{"text_format":"1","workbook":"xlsx","n_sheets":74,"sheets":["ACS_Notes","StartInstruction","ACS_Table_B08303","PopulationCharacteristics","SchoolEnrolEduAttain","HousingCharacteristics","CntyDataLink","CntyQuery","BuildingPermitsSince2000","EmploymentAndWages","EmpVsHUxCounty","HHIncome-10YearComparison","HHIncomeByAge","HHIncomeByTenure","Updates","ACS_Source_Table_List","ACS_Table_B01001","ACS_Table_B01002","ACS_Tbl_B11001_B11002_B25010","ACS_Table_B19001","ACS_Table_B19037","DisabilityByAge","DisabilityByAgePrior5YearEst","ACS_Table_B18101","ACS_Table_B18102","ACS_Table_B18103","ACS_Table_B18104","ACS_Table_B18105","ACS_Table_B18106","ACS_Table_B18107","ACS_Table_C18108","ACS_TableB19201_ACS_Tbl_B19202","ACS_Table_B19049","ACS_Table_B25118","ACS_TableB19101_ACS_Tbl_B19113","ACS_Table_B25119","ACS_Table_B25001","ACS_Table_B25003","ACS_Table_B25004","ACS_Table_B25008","ACS_Table_B25024","ACS_Table_B25032","ACS_Table_B25034","ACS_Table_B25041","PovertyCharacteristics","ACS_Table_ B17001","ACS_Table_B17010","ACS_Table_B17017","ACS_Table_B03002","RentalHousingCost","RentalHousingCost-Prior5Yr","ACS_Table_B25063_&_B25064","ACS_Table_B25070","ACS_Table_B25074","PlaceOfBirthAndPriorRes","ACS_Table_B05002","ACS_Table_B07003","ACS_Table_B14001","ACS_Table_B15002","PopComparison","DropDownList","CntyQryCensus","SmallTownEmploymentandWages","HousingComparison","Housing_EmploymentComparison","CntyDataLinkPrior5YearEstimates","CntyDataLinkPrior10YearEstimate","StatisticallySignificantCalcs","OwnerHousingCost","OwnerHousingCostPrior5Year","ACS_Table_B25075_&_B25077","ACS_Table_B25088","ACS_Table_B25091","ACS_Table_B25106"],"not_rendered":{"charts":344,"images":158,"macros":1,"external_links":0,"defined_names":67,"comments":0,"pivot_tables":0},"unopened":[],"bounds":{"document_bytes":16777216,"sheet_cells":100000,"rows_first":2000,"rows_last":500,"rows_between":2000,"halvings":0,"cell_chars":16384,"cell_head_chars":4096},"cells_cut":0,"cells_raw":0,"read":"row_number_cap","date_system":"1900"}

{"sheet":"ACS_Notes","index":0,"n_rows":28,"n_cols":1,"rows_kept":28,"cut":false,"hidden":true,"merged":[[10,0,12,14],[14,0,14,14],[18,0,19,14],[3,0,5,14],[7,0,8,14],[25,0,25,14],[20,0,21,14],[22,0,22,14],[23,0,23,14],[24,0,24,14],[31,60,31,74],[31,75,31,89],[31,90,31,104],[31,105,31,119],[29,0,29,14],[31,15,31,29],[31,30,31,44],[31,45,31,59],[31,120,31,134],[31,135,31,149],[31,150,31,164],[31,165,31,179],[31,240,31,254],[31,180,31,194],[31,195,31,209],[31,210,31,224],[31,225,31,239]]}
["NOTES:"]
[]
[]
["Data are based on a sample and are subject to sampling variability. The degree of uncertainty for an estimate arising from sampling variability is represented through the use of a margin of error. The value shown here is the 90 percent margin of error. The margin of error can be interpreted roughly as providing a 90 percent probability that the interval defined by the estimate minus the margin of error and the estimate plus the margin of error (the lower and upper confidence bounds) contains the true value. In addition to sampling variability, the ACS estimates are subject to nonsampling error (for a discussion of nonsampling variability, see Accuracy of the Data). The effect of nonsampling error is not represented in these tables."]
[]
[]
[]
["In addition to sampling variability, the ACS estimates are subject to nonsampling error (for a discussion of nonsampling variability, see Accuracy of the Data. The link is located at the end of this worksheet.).  The effect of nonsampling error is not represented in these tables."]
[]
[]
["While the 2005-2009 American Community Survey (ACS) data generally reflect the November 2008 Office of Management and Budget (OMB) definitions of metropolitan and micropolitan statistical areas; in certain instances the names, codes, and boundaries of the principal cities shown in ACS tables may differ from the OMB definitions due to differences in the effective dates of the geographic entities."]
[]
[]
[]
["Estimates of urban and rural population, housing units, and characteristics reflect boundaries of urban areas defined based on Census 2000 data.  Boundaries for urban areas have not been updated since Census 2000.  As a result, data for urban and rural areas from the ACS do not necessarily reflect the results of ongoing urbanization."]
[]
["Explanation of Symbols:"]
[]
["1. An '**' entry in the margin of error column indicates that either no sample observations or too few sample observations were available to compute a standard error and thus the margin of error. A statistical test is not appropriate."]
[]
["2. An '-' entry in the estimate column indicates that either no sample observations or too few sample observations were available to compute an estimate, or a ratio of medians cannot be calculated because one or both of the median estimates falls in the lowest interval or upper interval of an open-ended distribution."]
[]
["3. An '-' following a median estimate means the median falls in the lowest interval of an open-ended distribution."]
["4. An '+' following a median estimate means the median falls in the upper interval of an open-ended distribution."]
["5. An '***' entry in the margin of error column indicates that the median falls in the lowest interval or upper interval of an open-ended distribution. A statistical test is not appropriate."]
["6. An '*****' entry in the margin of error column indicates that the estimate is controlled. A statistical test for sampling variability is not appropriate."]
[]
["Accuracy of Data "]

{"sheet":"StartInstruction","index":1,"n_rows":30,"n_cols":16,"rows_kept":30,"cut":false,"hidden":false,"merged":[[30,1,32,3],[29,15,31,18]]}
["Demographic Profiles for Municipalities in Strafford County"]
[]
["To view or print a Demographic Profile follow the steps below"]
[]
[]
["Step 1. ",null,"Select the municipality you wish to"]
[null,null,"Profile from the drop down box below. "]
[]
[]
[]
[]
["Step 2. ",null,"Click one of the profile topic buttons below to review or print"]
[null,null,"the information for the selected geography."]
[null,null,"Don't forget to adjust the axis on charts as necessary. "]
[]
[]
[]
[]
[]
[]
[]
[]
[]
[]
[]
[]
[]
[null,null,null,null,null,null,null,null,null,null,null,null,null,"Updated:",null,"2020-12-17"]
[]
[null,null,null,null,null,null,null,null,null,null,null,null,null,"Next Update:",null,"Fall 2021 - Annual Employment and Wage Data"]

{"sheet":"ACS_Table_B08303","index":2,"n_rows":40,"n_cols":28,"rows_kept":40,"cut":false,"hidden":true,"merged":[]}
[null,"B08303: TRAVEL TIME TO WORK"]
[null,"Universe: Workers 16 years and over who did not work at home"]
[null,"Data Set: 2006-2010 American Community Survey 3-Year Estimates"]
[]
[null,null,"Barrington",null,"Dover",null,"Durham",null,"Farmington",null,"Lee",null,"Madbury",null,"Middleton",null,"Milton",null,"New Durham",null,"Rochester",null,"Rollinsford",null,"Somersworth",null,"Strafford"]
[null,null,"Esitimate","Margin Of Error","Esitimate","Margin Of Error","Esitimate","Margin Of Error","Esitimate","Margin Of Error","Esitimate","Margin Of Error","Esitimate","Margin Of Error","Esitimate","Margin Of Error","Esitimate","Margin Of Error","Esitimate","Margin Of Error","Esitimate","Margin Of Error","Esitimate","Margin Of Error","Esitimate","Margin Of Error","Esitimate","Margin Of Error"]
[null,"Population Older than 16 not working at hom",4962,342,16598,595,7031,389,3366,317,2296,203,991,108,934,111,2216,204,1312,106,14801,623,1331,99,6499,428,1988,165]
[null,"Less than 5 minutes",103,78,270,92,576,155,175,140,60,55,27,17,4,6,50,67,5,7,308,178,30,23,191,160,20,20]
[null,"5 to 9 minutes",446,211,1839,303,1449,197,187,96,37,40,85,33,12,12,154,99,77,36,1605,308,127,42,885,267,117,61]
[null,"10 to 14 minutes",527,215,3066,359,1035,188,424,193,155,100,196,59,33,17,235,95,83,34,2095,380,189,50,1177,278,117,54]
[null,"15 to 19 minutes",548,198,2581,357,918,163,317,153,246,170,128,36,40,19,196,82,70,35,2031,296,146,58,695,191,211,97]
[null,"20 to 24 minutes",774,253,3228,427,982,184,509,209,366,138,176,46,131,41,140,71,168,50,1834,290,157,52,1007,223,221,85]
[null,"25 to 29 minutes",695,306,992,251,382,98,106,82,189,107,44,24,87,33,432,133,89,39,1134,254,103,37,628,209,132,62]
[null,"30 to 34 minutes",567,182,1845,400,517,135,211,132,529,190,99,38,218,54,289,96,247,72,2131,358,262,71,851,198,350,149]
[null,"35 to 39 minutes",343,306,304,127,171,82,211,106,127,79,54,31,70,30,132,69,42,25,603,203,39,30,151,86,95,55]
[null,"40 to 44 minutes",301,228,428,144,102,69,157,96,130,81,19,12,46,23,132,65,112,47,771,284,60,38,224,109,166,69]
[null,"45 to 59 minutes",429,198,744,193,420,170,612,277,189,99,48,25,128,37,256,101,264,66,950,267,43,31,310,134,382,97]
[null,"60 to 89 minutes",229,105,910,205,320,97,248,167,192,133,79,29,132,47,93,62,59,29,939,211,93,46,283,150,135,65]
[null,"90 or more minutes",0,16,391,152,159,84,209,193,76,65,36,17,33,22,107,80,96,44,400,135,82,53,97,77,42,35]
[]
[]
[]
[]
[]
[]
[]
[]
[]
[]
[]
[]
[]
[]
[]
[]
[]
[]
[]
[null,null,642668,3466,28483,1018,21150,846,36744,934,14089,645,42727,1151,197866,2634,70876,1467,148355,1823,61589,1595,20789,620]
[null,null,"Estimate"]

{"sheet":"PopulationCharacteristics","index":3,"n_rows":64,"n_cols":23,"rows_kept":64,"cut":false,"hidden":true,"merged":[[19,15,19,17],[18,15,18,21],[19,18,19,20],[3,1,3,3],[2,8,2,12],[18,2,18,12],[19,11,19,13],[33,11,33,12],[63,1,63,3],[45,1,45,8],[48,3,48,4],[48,6,48,7],[48,9,48,10],[62,1,62,8]]}
[]
[null,{"$f":"CntyDataLink!A35","v":"Barrington"}]
[null,null,null,null,null,null,"Land Area:",null,{"$f":"((CntyDataLink!F35*10.764)/43560)/640","v":46.586027050619826},null,null,null,null,"Water Area:",{"$f":"((CntyDataLink!G35*10.764)/43560)/640","v":1.9327766955061982}]
[null,"POPULATION CHARACTERISTICS"]
[]
[]
[]
[]
[]
[]
[]
[]
[]
[]
[]
[]
[]
[]
[null,"Population ",{"$f":"\"Source:  US Census; New Hampshire Office of Strategic Initiatives; \"& L20&\", \"&P20&\", and \"&S20&\" American Community Survey Table B01001\"","v":"Source:  US Census; New Hampshire Office of Strategic Initiatives; 2005-2009, 2010-2014, and 2015-2019 American Community Survey Table B01001"},null,null,null,null,null,null,null,null,null,null,"Population by Age ",null,{"$f":"\"Source: \"& L20&\", \"&P20&\", and \"&S20&\"  American Community Survey Tables B01001 and B01002\"","v":"Source: 2005-2009, 2010-2014, and 2015-2019  American Community Survey Tables B01001 and B01002"}]
[null,null,null,null,null,null,null,null,null,null,null,"2005-2009",null,null,null,"2010-2014",null,null,"2015-2019"]
[null,null,1980,1990,2000,"2015-2019",2025,2030,null,null,null,"Estimate",null,"Margin of Error","Percent Change","Estimate","Margin of Error","Percent Change","Estimate","Margin of Error",null,"Percent Change","Statistically Significant Change"]
[null,null,{"$f":"CntyDataLink!$E$20","v":4404},{"$f":"CntyDataLink!$F$20","v":6164},{"$f":"CntyDataLink!$G$20","v":7475},{"$f":"CntyDataLink!$B$132","v":9063},{"$f":"CntyDataLink!$I$20","v":9536},{"$f":"CntyDataLink!$K$20","v":9970},null,null,"Under 15 yrs.",{"$f":"CntyDataLinkPrior10YearEstimate!$D$132","v":2139},null,{"$f":"CntyDataLinkPrior10YearEstimate!$E$132","v":277.52837692747744},{"$f":"L22/SUM($L$22:$L$29)","v":0.2549767552747646},{"$f":"CntyDataLinkPrior5YearEstimates!$D$132","v":1667},{"$f":"CntyDataLinkPrior5YearEstimates!$E$132","v":343.71499821800035},{"$f":"P22/SUM($P$22:$P$29)","v":0.19180761707513519},{"$f":"CntyDataLink!$D$132","v":1942},{"$f":"CntyDataLink!$E$132","v":397.47452748572454},{"$f":"S22/SUM($S$22:$S$29)","v":0.21427783294714775},{"$f":"(S22-P22)/P22","v":0.16496700659868027},{"$f":"StatisticallySignificantCalcs!$A3","v":"Y"}]
[null,null,null,null,null,null,null,null,null,null,"15 to 24 yrs.",{"$f":"CntyDataLinkPrior10YearEstimate!$F$132","v":845},null,{"$f":"CntyDataLinkPrior10YearEstimate!$G$132","v":249.63373169505758},{"$f":"L23/SUM($L$22:$L$29)","v":0.10072714268685183},{"$f":"CntyDataLinkPrior5YearEstimates!$F$132","v":844},{"$f":"CntyDataLinkPrior5YearEstimates!$G$132","v":229.01964981197574},9.7111954895869296E-2,{"$f":"CntyDataLink!$F$132","v":957},{"$f":"CntyDataLink!$G$132","v":306.67409411295245},0.10559417411453161,0.13388625592417061,{"$f":"StatisticallySignificantCalcs!$A4","v":"Y"}]
[null,"Percent Change",null,null,null,null,null,null,null,null,"25 to 34 yrs.",{"$f":"CntyDataLinkPrior10YearEstimate!$H$132","v":984},null,{"$f":"CntyDataLinkPrior10YearEstimate!$I$132","v":210.29978601986261},{"$f":"L24/SUM($L$22:$L$29)","v":0.11729645964954107},{"$f":"CntyDataLinkPrior5YearEstimates!$H$132","v":923},{"$f":"CntyDataLinkPrior5YearEstimates!$I$132","v":220.94343167426362},0.10620181797261535,{"$f":"CntyDataLink!$H$132","v":892},{"$f":"CntyDataLink!$I$132","v":253.49161721840034},9.842215601897826E-2,-3.3586132177681471E-2,{"$f":"StatisticallySignificantCalcs!$A5","v":"Y"}]
[null,null,null,{"$f":"C21&\"-\"&(D21-1900)","v":"1980-90"},"1990-2000",{"$f":"E21&\"-19\"","v":"2000-19"},{"$f":"2019&\"-\"&(G21)","v":"2019-2025"},{"$f":"G21&\"-\"&(H21)","v":"2025-2030"},null,null,"35 to 44 yrs.",{"$f":"CntyDataLinkPrior10YearEstimate!$J$132","v":1601},null,{"$f":"CntyDataLinkPrior10YearEstimate!$K$132","v":250.93226177596216},0.1908451543688163,{"$f":"CntyDataLinkPrior5YearEstimates!$J$132","v":1198},{"$f":"CntyDataLinkPrior5YearEstimates!$K$132","v":270.16476454193651},0.13784374640432631,{"$f":"CntyDataLink!$J$132","v":1491},{"$f":"CntyDataLink!$K$132","v":311.94550806190495},0.16451506123800066,0.24457429048414023,{"$f":"StatisticallySignificantCalcs!$A6","v":"Y"}]
[null,null,null,{"$f":"(D22-C22)/C22","v":0.39963669391462309},{"$f":"(E22-D22)/D22","v":0.21268656716417911},{"$f":"(F22-E22)/E22","v":0.21244147157190635},{"$f":"(G22-F22)/F22","v":5.2190223987642059E-2},{"$f":"(H22-G22)/G22","v":4.5511744966442953E-2},null,null,"45 to 54 yrs.",{"$f":"CntyDataLinkPrior10YearEstimate!$L$132","v":1381},null,{"$f":"CntyDataLinkPrior10YearEstimate!$M$132","v":198.76619430879086},0.16462033615448801,{"$f":"CntyDataLinkPrior5YearEstimates!$L$132","v":1627},{"$f":"CntyDataLinkPrior5YearEstimates!$M$132","v":299.71152797314954},0.18720515475779542,{"$f":"CntyDataLink!$L$132","v":1452},{"$f":"CntyDataLink!$M$132","v":349.7070202326513},0.16021185038066865,-0.107559926244622,{"$f":"StatisticallySignificantCalcs!$A7","v":"Y"}]
[null,null,null,null,null,null,null,null,null,null,"55 to 64 yrs.",{"$f":"CntyDataLinkPrior10YearEstimate!$N$132","v":894},null,{"$f":"CntyDataLinkPrior10YearEstimate!$O$132","v":201.88610650562362},0.10656812492549768,{"$f":"CntyDataLinkPrior5YearEstimates!$N$132","v":1476},{"$f":"CntyDataLinkPrior5YearEstimates!$O$132","v":301.90892666497956},0.16983085950983776,{"$f":"CntyDataLink!$N$132","v":1528},{"$f":"CntyDataLink!$O$132","v":293.1961800569714},0.1685975946154695,3.5230352303523033E-2,{"$f":"StatisticallySignificantCalcs!$A8","v":"Y"}]
[null,null,null,null,null,null,null,null,null,null,"65 to 74 yrs.",{"$f":"CntyDataLinkPrior10YearEstimate!$P$132","v":358},null,{"$f":"CntyDataLinkPrior10YearEstimate!$Q$132","v":109.80437149767764},4.2674931457861484E-2,{"$f":"CntyDataLinkPrior5YearEstimates!$P$132","v":625},{"$f":"CntyDataLinkPrior5YearEstimates!$Q$132","v":187.12829823412599},7.1913473708434011E-2,{"$f":"CntyDataLink!$P$132","v":497},{"$f":"CntyDataLink!$Q$132","v":155.39305003763843},5.4838353746000219E-2,-0.20480000000000001,{"$f":"StatisticallySignificantCalcs!$A9","v":"Y"}]
[null,null,null,null,null,null,null,null,null,null,"Over 74 yrs. ",{"$f":"CntyDataLinkPrior10YearEstimate!$R$132","v":187},null,{"$f":"CntyDataLinkPrior10YearEstimate!$S$132","v":145.5403724057349},2.2291095482179044E-2,{"$f":"CntyDataLinkPrior5YearEstimates!$R$132","v":331},{"$f":"CntyDataLinkPrior5YearEstimates!$S$132","v":144.58561477546789},3.8085375675986653E-2,{"$f":"CntyDataLink!$R$132","v":304},{"$f":"CntyDataLink!$S$132","v":160.77002208123255},3.3542976939203356E-2,-8.1570996978851965E-2,{"$f":"StatisticallySignificantCalcs!$A10","v":"Y"}]
[null,null,null,null,null,null,null,null,null,null,"Median Age (years)",{"$f":"CntyDataLinkPrior10YearEstimate!$AX132","v":37.1},null,{"$f":"CntyDataLinkPrior10YearEstimate!$AY$132","v":2.4},null,{"$f":"CntyDataLinkPrior5YearEstimates!$AX132","v":43.4},{"$f":"CntyDataLinkPrior5YearEstimates!$AY$132","v":2.7},null,{"$f":"CntyDataLink!$AX$132","v":39.6},{"$f":"CntyDataLink!$AY$132","v":3.4}]
[]
[null,"Population By Race",null,null,null,null,null,null,null,null,null,null,"Statistically Significant Change"]
[null,null,null,null,null,null,null,null,null,null,null,null,{"$f":"IF(L36=\"\",\"-\",StatisticallySignificantCalcs!A20)","v":"Y"}]
[null,null,"2005-2009",null,null,"2010-2014",null,null,"2015-2019",null,null,"Statistically Significant Change"]
[null,null,"Estimate","Margin of Error",null,"Estimate","Margin of Error",null,"Estimate","Margin of Error",null,"2009-2019","2014-2019"]
[null,"White",{"$f":"CntyDataLinkPrior10YearEstimate!$AL$132","v":8083},{"$f":"CntyDataLinkPrior10YearEstimate!$AM$132","v":162},{"$f":"IF(C$36=\"-\",\"-\",VALUE(C36/$C$41))","v":0.96352366193825245},{"$f":"CntyDataLinkPrior5YearEstimates!$AL$132","v":62},{"$f":"CntyDataLinkPrior5YearEstimates!$AM$132","v":54},{"$f":"IF(F$36=\"-\",\"-\",VALUE(F36/$F$41))","v":7.1338165918766539E-3},{"$f":"CntyDataLink!$AL$132","v":8653},{"$f":"CntyDataLink!$AM$132","v":313},{"$f":"IF(I$36=\"-\",\"-\",VALUE(I36/$I$41))","v":0.95476111662804808},{"$f":"StatisticallySignificantCalcs!A20","v":"Y"},{"$f":"StatisticallySignificantCalcs!J20","v":"Y"}]
[null,"Black",{"$f":"CntyDataLinkPrior10YearEstimate!$AN132","v":60},{"$f":"CntyDataLinkPrior10YearEstimate!$AO$132","v":88},{"$f":"IF(C$37=\"-\",\"-\",VALUE(C37/$C$41))","v":7.1522231493622605E-3},{"$f":"CntyDataLinkPrior5YearEstimates!$AN132","v":0},{"$f":"CntyDataLinkPrior5YearEstimates!$AO$132","v":16},{"$f":"IF(F$37=\"-\",\"-\",VALUE(F37/$F$41))","v":0},{"$f":"CntyDataLink!$AN$132","v":0},{"$f":"CntyDataLink!$AO$132","v":16},{"$f":"IF(I$37=\"-\",\"-\",VALUE(I37/$I$41))","v":0},{"$f":"StatisticallySignificantCalcs!A21","v":"N"},{"$f":"StatisticallySignificantCalcs!J21","v":"N"}]
[null,"American Indian",{"$f":"CntyDataLinkPrior10YearEstimate!$AP$132","v":14},{"$f":"CntyDataLinkPrior10YearEstimate!$AQ$132","v":22},{"$f":"IF(C$38=\"-\",\"-\",VALUE(C38/$C$41))","v":1.6688520681845274E-3},{"$f":"CntyDataLinkPrior5YearEstimates!$AP$132","v":5},{"$f":"CntyDataLinkPrior5YearEstimates!$AQ$132","v":9},{"$f":"IF(F$38=\"-\",\"-\",VALUE(F38/$F$41))","v":5.7530778966747209E-4},{"$f":"CntyDataLink!$AP$132","v":0},{"$f":"CntyDataLink!$AQ$132","v":16},{"$f":"IF(I$38=\"-\",\"-\",VALUE(I38/$I$41))","v":0},{"$f":"StatisticallySignificantCalcs!A22","v":"N"},{"$f":"StatisticallySignificantCalcs!J22","v":"N"}]
[null,"Asian &Pacific Is.",{"$f":"CntyDataLinkPrior10YearEstimate!$AR$132","v":54},{"$f":"CntyDataLinkPrior10YearEstimate!$AS$132","v":124.88794977899188},{"$f":"IF(C$39=\"-\",\"-\",VALUE(C39/$C$41))","v":6.4370008344260344E-3},{"$f":"CntyDataLinkPrior5YearEstimates!$AR$132","v":11},{"$f":"CntyDataLinkPrior5YearEstimates!$AS$132","v":27.202941017470888},{"$f":"IF(F$39=\"-\",\"-\",VALUE(F39/$F$41))","v":1.2656771372684386E-3},{"$f":"CntyDataLink!$AR$132","v":257},{"$f":"CntyDataLink!$AS$132","v":291.4395306062649},{"$f":"IF(I$39=\"-\",\"-\",VALUE(I39/$I$41))","v":2.8357056162418626E-2},{"$f":"StatisticallySignificantCalcs!A23","v":"N"},{"$f":"StatisticallySignificantCalcs!J23","v":"N"}]
[null,"Other*",{"$f":"CntyDataLinkPrior10YearEstimate!$AT$132","v":44},{"$f":"CntyDataLinkPrior10YearEstimate!$AU$132","v":126.57408897558773},{"$f":"IF(C$40=\"-\",\"-\",VALUE(C40/$C$41))","v":5.2449636428656575E-3},{"$f":"CntyDataLinkPrior5YearEstimates!$AT$132","v":48},{"$f":"CntyDataLinkPrior5YearEstimates!$AU$132","v":54.589376255824725},{"$f":"IF(F$40=\"-\",\"-\",VALUE(F40/$F$41))","v":5.5229547808077319E-3},{"$f":"CntyDataLink!$AT$132","v":73},{"$f":"CntyDataLink!$AU$132","v":75.709972922990801},{"$f":"IF(I$40=\"-\",\"-\",VALUE(I40/$I$41))","v":8.0547280150060682E-3},{"$f":"StatisticallySignificantCalcs!A24","v":"N"},{"$f":"StatisticallySignificantCalcs!J24","v":"N"}]
[null,"Total Population",{"$f":"CntyDataLinkPrior10YearEstimate!$B$132","v":8389},{"$f":"CntyDataLinkPrior10YearEstimate!$C$132","v":19},null,{"$f":"CntyDataLinkPrior5YearEstimates!$B$132","v":8691},{"$f":"CntyDataLinkPrior5YearEstimates!$C$132","v":17},null,{"$f":"CntyDataLink!$B$132","v":9063},{"$f":"CntyDataLink!$C$132","v":31}]
[null,"Hispanic",{"$f":"CntyDataLinkPrior10YearEstimate!$AV$132","v":134},{"$f":"CntyDataLinkPrior10YearEstimate!$AW$132","v":122},{"$f":"IF(C$42=\"-\",\"-\",VALUE(C42/$C$41))","v":1.5973298366909049E-2},{"$f":"CntyDataLinkPrior5YearEstimates!$AV132","v":143},{"$f":"CntyDataLinkPrior5YearEstimates!$AW$132","v":142},{"$f":"IF(F$42=\"-\",\"-\",VALUE(F42/$F$41))","v":1.6453802784489702E-2},{"$f":"CntyDataLink!$AV$132","v":80},{"$f":"CntyDataLink!$AW$132","v":95},{"$f":"IF(I$42=\"-\",\"-\",VALUE(I42/$I$41))","v":8.8270991945271979E-3},{"$f":"StatisticallySignificantCalcs!A26","v":"Y"},{"$f":"StatisticallySignificantCalcs!J26","v":"N"}]
[]
[null,"*","Other includes population of 2 or more races"]
[]
[null,{"$f":"\"Source: \"& L20&\", \"&P20&\", and \"&S20&\" American Community Survey Table B03002\"","v":"Source: 2005-2009, 2010-2014, and 2015-2019 American Community Survey Table B03002"}]
[]
[null,null,"Households and Families"]
[null,null,null,"2005-2009",null,null,"2010-2014",null,null,"2015-2019",null,null,null,"Percent Change 2009-2019",null,"Percent Change 2014-2019"]
[null,null,null,"Estimate","Margin of Error",null,"Estimate","Margin of Error",null,"Estimate","Margin of Error"]
[null,null,"Total Households",{"$f":"CntyDataLinkPrior10YearEstimate!$T$132","v":2961},{"$f":"CntyDataLinkPrior10YearEstimate!$U$132","v":178},null,{"$f":"CntyDataLinkPrior5YearEstimates!$T$132","v":3307},{"$f":"CntyDataLinkPrior5YearEstimates!$U$132","v":184},null,{"$f":"CntyDataLink!$T$132","v":3183},{"$f":"CntyDataLink!$U$132","v":200},null,null,{"$f":"(J51-D51)/D51","v":7.4974670719351572E-2},null,{"$f":"(J51-G51)/G51","v":-3.7496220139098882E-2}]
[null,null,"Persons per Household",{"$f":"CntyDataLinkPrior10YearEstimate!$BD$132","v":2.8331644714623438},{"$f":"CntyDataLinkPrior10YearEstimate!$BE$132","v":0.17},null,{"$f":"CntyDataLinkPrior5YearEstimates!$BD$132","v":2.6277592984578169},{"$f":"CntyDataLinkPrior5YearEstimates!$BE$132","v":0.15},null,{"$f":"CntyDataLink!$BD$132","v":2.8473138548539114},{"$f":"CntyDataLink!$BE$132","v":0.18},null,null,{"$f":"(J52-D52)/D52","v":4.9941976662810318E-3},null,{"$f":"(J52-G52)/G52","v":8.3552004373059222E-2}]
[null,null,"Family Households",{"$f":"CntyDataLinkPrior10YearEstimate!$V$132","v":2306},{"$f":"CntyDataLinkPrior10YearEstimate!$U$132","v":178},null,{"$f":"CntyDataLinkPrior5YearEstimates!$V$132","v":2485},{"$f":"CntyDataLinkPrior5YearEstimates!$U$132","v":184},null,{"$f":"CntyDataLink!$V$132","v":2447},{"$f":"CntyDataLink!$U$132","v":200},null,null,6.11448395490026E-2,null,{"$f":"(J53-G53)/G53","v":-1.5291750503018108E-2}]
[null,null,"Persons per Family Household",{"$f":"CntyDataLinkPrior10YearEstimate!$BF$132","v":3.2792714657415436},{"$f":"CntyDataLinkPrior10YearEstimate!$BG$132","v":0.31610874941256284},null,{"$f":"CntyDataLinkPrior5YearEstimates!$BF$132","v":3.0414486921529176},{"$f":"CntyDataLinkPrior5YearEstimates!$BG$132","v":0.26424329023433368},null,{"$f":"CntyDataLink!$BF$132","v":3.2856559051900285},{"$f":"CntyDataLink!$BG$132","v":0.30423987118860091},null,null,1.9469078773084018E-3,null,8.0293056945914335E-2]
[null,null,"Married-Couple Family Hh",{"$f":"CntyDataLinkPrior10YearEstimate!$X$132","v":1973},{"$f":"CntyDataLinkPrior10YearEstimate!$Y$132","v":183},null,{"$f":"CntyDataLinkPrior5YearEstimates!$X$132","v":2143},{"$f":"CntyDataLinkPrior5YearEstimates!$Y$132","v":202},null,{"$f":"CntyDataLink!$X$132","v":2044},{"$f":"CntyDataLink!$Y$132","v":209},null,null,3.5985808413583377E-2,null,-4.6196920205319646E-2]
[null,null,"Single-Parent Family Hh",{"$f":"CntyDataLinkPrior10YearEstimate!$Z$132","v":333},{"$f":"CntyDataLinkPrior10YearEstimate!$AA$132","v":113},null,{"$f":"CntyDataLinkPrior5YearEstimates!$Z$132","v":342},{"$f":"CntyDataLinkPrior5YearEstimates!$AA$132","v":171},null,{"$f":"CntyDataLink!$Z$132","v":403},{"$f":"CntyDataLink!$AA$132","v":153},null,null,0.21021021021021022,null,0.17836257309941519]
[null,null,"Non-Family Households",{"$f":"CntyDataLinkPrior10YearEstimate!$AF$132","v":655},{"$f":"CntyDataLinkPrior10YearEstimate!$AG$132","v":188},null,{"$f":"CntyDataLinkPrior5YearEstimates!$AF$132","v":822},{"$f":"CntyDataLinkPrior5YearEstimates!$AG$132","v":221},null,{"$f":"CntyDataLink!$AF$132","v":736},{"$f":"CntyDataLink!$AG$132","v":242},null,null,0.12366412213740458,null,-0.10462287104622871]
[null,null,"Persons per Non-Family Hh",{"$f":"CntyDataLinkPrior10YearEstimate!$BH$132","v":1.2625954198473281},{"$f":"CntyDataLinkPrior10YearEstimate!$BI$132","v":0.65567039607870381},null,{"$f":"CntyDataLinkPrior5YearEstimates!$BH$132","v":1.3771289537712896},{"$f":"CntyDataLinkPrior5YearEstimates!$BI$132","v":0.5875436131349423},null,{"$f":"CntyDataLink!$BH$132","v":1.3899456521739131},{"$f":"CntyDataLink!$BI$132","v":0.63928566123211095},null,null,0.1008638478523738,null,9.3068251651558971E-3]
[]
[]
[null,"As a result of changes in the American Community Survey, direct comparisons between the data should be made with caution."]
[]
[null,"Source: 2005-2009, 2010-2014, and 2015-2019 American Community Survey Table B11001"]
[null,"POPULATION CHARACTERISTICS"]

{"sheet":"SchoolEnrolEduAttain","index":4,"n_rows":67,"n_cols":14,"rows_kept":67,"cut":false,"hidden":true,"merged":[[49,5,49,7],[20,5,20,7],[20,8,20,10],[20,11,20,13],[49,8,49,10]]}
[]
[null,null,{"$f":"CntyDataLink!A50","v":"Barrington"}]
[null,null,"SOCIAL CHARACTERISTICS"]
[]
[]
[]
[]
[]
[]
[]
[]
[]
[]
[]
[]
[]
[]
[]
[]
[]
[null,null,"School Enrollment",null,null,"2005-2009",null,null,"2010-2014",null,null,"2015-2019"]
[null,null,null,null,null,"Estimate"," Margin of Error","Percent of Population","Estimate"," Margin of Error","Percent of Population","Estimate"," Margin of Error","Percent of Population"]
[null,null,"Population 3 years and over",null,null,{"$f":"CntyDataLinkPrior10YearEstimate!$B$140","v":8025},{"$f":"CntyDataLinkPrior10YearEstimate!$C$140","v":121},null,{"$f":"CntyDataLinkPrior5YearEstimates!$B$140","v":8366},{"$f":"CntyDataLinkPrior5YearEstimates!$C$140","v":134},null,{"$f":"CntyDataLink!$B$140","v":30206},{"$f":"CntyDataLink!$C$140","v":277}]
[null,null,"Population 3 years & over enrolled in school",null,null,{"$f":"CntyDataLinkPrior10YearEstimate!$D$140","v":2398},{"$f":"CntyDataLinkPrior10YearEstimate!$E$140","v":275},{"$f":"F24/$F$23","v":0.29881619937694703},{"$f":"CntyDataLinkPrior5YearEstimates!$D$140","v":1968},{"$f":"CntyDataLinkPrior5YearEstimates!$E$140","v":287},{"$f":"I24/$I$23","v":0.23523786755916806},{"$f":"CntyDataLink!$D$140","v":6357},{"$f":"CntyDataLink!$E$140","v":453},{"$f":"L24/$L$23","v":0.21045487651459974}]
[null,null,"Preprimary (Nursery, Preschool, Kindergarten)",null,null,{"$f":"CntyDataLinkPrior10YearEstimate!$F$140","v":325},{"$f":"CntyDataLinkPrior10YearEstimate!$G$140","v":101.82337649086284},{"$f":"F25/$F$23","v":4.0498442367601244E-2},{"$f":"CntyDataLinkPrior5YearEstimates!$F$140","v":309},{"$f":"CntyDataLinkPrior5YearEstimates!$G$140","v":132.98120167903431},{"$f":"I25/$I$23","v":3.6935213961271814E-2},{"$f":"CntyDataLink!$F$140","v":924},{"$f":"CntyDataLink!$G$140","v":246.90281488877361},{"$f":"L25/$L$23","v":3.058994901675164E-2}]
[null,null,"        Nursery school and Preschool",null,null,{"$f":"CntyDataLinkPrior10YearEstimate!$H$140","v":189},{"$f":"CntyDataLinkPrior10YearEstimate!$I$140","v":72},2.355140186915888E-2,{"$f":"CntyDataLinkPrior5YearEstimates!$H$140","v":284},{"$f":"CntyDataLinkPrior5YearEstimates!$I$140","v":130},3.3946928042075067E-2,{"$f":"CntyDataLink!$H$140","v":97},{"$f":"CntyDataLink!$I$140","v":82},3.2112825266503342E-3]
[null,null,"        Kindergarten",null,null,{"$f":"CntyDataLinkPrior10YearEstimate!$J$140","v":136},{"$f":"CntyDataLinkPrior10YearEstimate!$K$140","v":72},1.6947040498442367E-2,{"$f":"CntyDataLinkPrior5YearEstimates!$J$140","v":25},{"$f":"CntyDataLinkPrior5YearEstimates!$K$140","v":28},2.9882859191967489E-3,{"$f":"CntyDataLink!$J$140","v":0},{"$f":"CntyDataLink!$K$140","v":16},0]
[null,null,"Elementary through High school",null,null,{"$f":"CntyDataLinkPrior10YearEstimate!$P$140","v":1716},{"$f":"CntyDataLinkPrior10YearEstimate!$Q$140","v":272.29946749856123},0.21383177570093459,{"$f":"CntyDataLinkPrior5YearEstimates!$P$140","v":1304},{"$f":"CntyDataLinkPrior5YearEstimates!$Q$140","v":256.94551951727044},0.15586899354530243,{"$f":"CntyDataLink!$P$140","v":3445},{"$f":"CntyDataLink!$Q$140","v":393.91750405383107},0.11405018870423095]
[null,null,"        Elementary school (grades 1-8)",null,null,{"$f":"CntyDataLinkPrior10YearEstimate!$L$140","v":1204},{"$f":"CntyDataLinkPrior10YearEstimate!$M$140","v":230.48210342670859},0.15003115264797509,{"$f":"CntyDataLinkPrior5YearEstimates!$L$140","v":943},{"$f":"CntyDataLinkPrior5YearEstimates!$M$140","v":211.43556938225885},0.11271814487210137,{"$f":"CntyDataLink!$L$140","v":2413},{"$f":"CntyDataLink!$M$140","v":333.90118298682319},7.9884791101105745E-2]
[null,null,"        High school (grades 9-12)",null,null,{"$f":"CntyDataLinkPrior10YearEstimate!$N$140","v":512},{"$f":"CntyDataLinkPrior10YearEstimate!$O$140","v":145},6.3800623052959499E-2,{"$f":"CntyDataLinkPrior5YearEstimates!$N$140","v":361},{"$f":"CntyDataLinkPrior5YearEstimates!$O$140","v":146},4.3150848673201049E-2,{"$f":"CntyDataLink!$N$140","v":1032},{"$f":"CntyDataLink!$O$140","v":209},3.416539760312521E-2]
[null,null,"College or Graduate School",null,null,{"$f":"CntyDataLinkPrior10YearEstimate!$R$140","v":357},{"$f":"CntyDataLinkPrior10YearEstimate!$S$140","v":120.10412149464314},4.4485981308411214E-2,{"$f":"CntyDataLinkPrior5YearEstimates!$R$140","v":355},{"$f":"CntyDataLinkPrior5YearEstimates!$S$140","v":157.63248396190426},4.243366005259383E-2,{"$f":"CntyDataLink!$R$140","v":1988},{"$f":"CntyDataLink!$S$140","v":368.81567211820055},6.5814738793617156E-2]
[]
[null,null,{"$f":"\"Source: \"&F21&\", \"& I21&\" and \"&L21&\" American Community Survey Table B14001\"","v":"Source: 2005-2009, 2010-2014 and 2015-2019 American Community Survey Table B14001"}]
[]
[]
[]
[]
[]
[]
[]
[]
[]
[]
[]
[]
[]
[]
[]
[]
[null,null,"Educational Attainment",null,null,"2005-2009",null,null,"2010-2014",null,null,"2015.-2019"]
[null,null,null,null,null,"Estimate"," Margin of Error","Percent of Population","Estimate"," Margin of Error","Percent of Population","Estimate"," Margin of Error","Percent of Population"]
[null,null,"Population 25 years and over",null,null,{"$f":"CntyDataLinkPrior10YearEstimate!$V$140","v":5405},{"$f":"CntyDataLinkPrior10YearEstimate!$W$140","v":239},null,{"$f":"CntyDataLinkPrior5YearEstimates!$V$140","v":6180},{"$f":"CntyDataLinkPrior5YearEstimates!$W$140","v":286},null,{"$f":"CntyDataLink!$V$140","v":22388},{"$f":"CntyDataLink!$W$140","v":542}]
[null,null,"Less than 9th Grade",null,null,{"$f":"CntyDataLinkPrior10YearEstimate!$X$140","v":79},{"$f":"CntyDataLinkPrior10YearEstimate!$Y$140","v":207.76188293332345},{"$f":"F53/$F$52","v":1.4616096207215542E-2},{"$f":"CntyDataLinkPrior5YearEstimates!$X$140","v":31},{"$f":"CntyDataLinkPrior5YearEstimates!$Y$140","v":43.692104549906958},{"$f":"I53/$I$52","v":5.016181229773463E-3},{"$f":"CntyDataLink!$X$140","v":319},{"$f":"CntyDataLink!$Y$140","v":139.79628035108803},{"$f":"L53/$L$52","v":1.4248704663212436E-2}]
[null,null,"9th to 12th Grade, no Diploma",null,null,{"$f":"CntyDataLinkPrior10YearEstimate!$Z$140","v":266},{"$f":"CntyDataLinkPrior10YearEstimate!$AA$140","v":102.25458424931374},{"$f":"F54/$F$52","v":4.921369102682701E-2},{"$f":"CntyDataLinkPrior5YearEstimates!$Z$140","v":206},{"$f":"CntyDataLinkPrior5YearEstimates!$AA$140","v":104.71867073258713},{"$f":"I54/$I$52","v":3.3333333333333333E-2},{"$f":"CntyDataLink!$Z$140","v":972},{"$f":"CntyDataLink!$AA$140","v":230.77911517292893},{"$f":"L54/$L$52","v":4.3416115776308738E-2}]
[null,null,"High School Graduate ",null,null,{"$f":"CntyDataLinkPrior10YearEstimate!$AB$140","v":1535},{"$f":"CntyDataLinkPrior10YearEstimate!$AC$140","v":233.77339455121918},0.2839962997224792,{"$f":"CntyDataLinkPrior5YearEstimates!$AB$140","v":1628},{"$f":"CntyDataLinkPrior5YearEstimates!$AC$140","v":338.66207345966569},0.26343042071197409,{"$f":"CntyDataLink!$AB$140","v":4724},{"$f":"CntyDataLink!$AC$140","v":426.75168423803552},0.2110058960157227]
[null,null,"Some College, No Degree",null,null,{"$f":"CntyDataLinkPrior10YearEstimate!$AD$140","v":1060},{"$f":"CntyDataLinkPrior10YearEstimate!$AE$140","v":211.1539722572133},0.19611470860314523,{"$f":"CntyDataLinkPrior5YearEstimates!$AD$140","v":1081},{"$f":"CntyDataLinkPrior5YearEstimates!$AE$140","v":273.243481166523},0.17491909385113269,{"$f":"CntyDataLink!$AD$140","v":3878},{"$f":"CntyDataLink!$AE$140","v":458.99237466432925},0.17321779524745398]
[null,null,"Associate Degree",null,null,{"$f":"CntyDataLinkPrior10YearEstimate!$AF$140","v":821},{"$f":"CntyDataLinkPrior10YearEstimate!$AG$140","v":200.12246250733574},0.1518963922294172,{"$f":"CntyDataLinkPrior5YearEstimates!$AF$140","v":682},{"$f":"CntyDataLinkPrior5YearEstimates!$AG$140","v":187.25650856512306},0.11035598705501617,{"$f":"CntyDataLink!$AF$140","v":1995},{"$f":"CntyDataLink!$AG$140","v":342.94751785076386},8.9110237627300345E-2]
[null,null,"Bachelor's Degree",null,null,{"$f":"CntyDataLinkPrior10YearEstimate!$AH$140","v":1033},{"$f":"CntyDataLinkPrior10YearEstimate!$AI$140","v":190.3943276465977},0.19111933395004627,{"$f":"CntyDataLinkPrior5YearEstimates!$AH$140","v":1798},{"$f":"CntyDataLinkPrior5YearEstimates!$AI$140","v":315.57249563293692},0.29093851132686083,{"$f":"CntyDataLink!$AH$140","v":6373},{"$f":"CntyDataLink!$AI$140","v":610.28272136772807},0.28466142576380205]
[null,null,"Graduate or Professional Degree",null,null,{"$f":"CntyDataLinkPrior10YearEstimate!$AJ$140","v":286},{"$f":"CntyDataLinkPrior10YearEstimate!$AK$140","v":92.612094242598786},5.291396854764107E-2,{"$f":"CntyDataLinkPrior5YearEstimates!$AJ$140","v":703},{"$f":"CntyDataLinkPrior5YearEstimates!$AK$140","v":212.05895406702354},0.11375404530744336,{"$f":"CntyDataLink!$AJ$140","v":4048},{"$f":"CntyDataLink!$AK$140","v":464.47712537863475},0.18081114882973021]
[]
[null,null,"Percent of High School Graduate or Higher",null,null,null,null,{"$f":"SUM(F55:F59)/F52","v":0.87604070305272896},null,null,{"$f":"SUM(I55:I59)/I52","v":0.95339805825242718},null,null,{"$f":"SUM(L55:L59)/L52","v":0.93880650348400929}]
[null,null,"Percent of Bachelor's Degree or Higher",null,null,null,null,{"$f":"SUM(F58:F59)/F52","v":0.24403330249768732},null,null,{"$f":"SUM(I58:I59)/I52","v":0.4046925566343042},null,null,{"$f":"SUM(L58:L59)/L52","v":0.46547257459353225}]
[]
[null,null,{"$f":"\"Source: \"&F21&\", \"&I21&\" and \"&L21&\" American Community Survey Table B15002\"","v":"Source: 2005-2009, 2010-2014 and 2015-2019 American Community Survey Table B15002"},null,null,null,null,"Data from the American Community Survey are estimates"]
[]
[null,null,"As a result of changes in the American Community Survey, direct comparisons between the data should be made with caution."]
[null,null,"be made with caution."]

{"sheet":"HousingCharacteristics","index":5,"n_rows":112,"n_cols":15,"rows_kept":112,"cut":false,"hidden":true,"merged":[[85,2,85,4],[85,6,85,8],[85,10,85,12],[29,2,29,4],[29,5,29,7],[29,8,29,10],[68,3,68,5],[68,6,68,8],[68,9,68,12]]}
[]
[null,{"$f":"CntyDataLink!$A35","v":"Barrington"}]
[]
[null,"HOUSING CHARACTERISTICS"]
[]
[]
[]
[]
[]
[]
[]
[]
[]
[]
[]
[]
[]
[]
[]
[]
[]
[]
[]
[]
[]
[]
[null,null,null,{"$f":"\"Source:  \"& \" \"&D69&\", \"&G69&\" and \"&J69& \" American Community Survey Table B25024; B25032\"","v":"Source:   2005-2009, 2010-2014 and 2015-2019 American Community Survey Table B25024; B25032"}]
[null,"Units by Tenure & Vacancy"]
[]
[null,null,"2005-2009",null,null,"2010-2014",null,null,"2015-2019"]
[null,null,"Estimate","Margin of Error","%","Estimate","Margin of Error","%","Estimate","Margin of Error","%","% Change","Statistically Significant Change"]
[null,"Total Units",{"$f":"CntyDataLinkPrior10YearEstimate!$B$108","v":3244},{"$f":"CntyDataLinkPrior5YearEstimates!$C$108","v":198},null,{"$f":"CntyDataLinkPrior5YearEstimates!$B$108","v":3588},{"$f":"CntyDataLinkPrior5YearEstimates!$C$108","v":198},null,{"$f":"CntyDataLink!$B$108","v":3593},{"$f":"CntyDataLink!$C$108","v":260},null,{"$f":"IF(I32=\"-\",\"-\",(I32-C32)/C32)","v":0.10758323057953144},{"$f":"StatisticallySignificantCalcs!$A61","v":"Y"}]
[null,"Occupied Units",{"$f":"CntyDataLinkPrior10YearEstimate!$D$108","v":2961},{"$f":"CntyDataLinkPrior5YearEstimates!$E$108","v":184},{"$f":"ROUND(C33/C32,2)*100&\"% of Total\"","v":"91% of Total"},{"$f":"CntyDataLinkPrior5YearEstimates!$D$108","v":3307},{"$f":"CntyDataLinkPrior5YearEstimates!$E$108","v":184},{"$f":"ROUND(F33/F32,2)*100&\"% of Total\"","v":"92% of Total"},{"$f":"CntyDataLink!$D$108","v":3183},{"$f":"CntyDataLink!$E$108","v":200},{"$f":"ROUND(I33/I32,2)*100&\"% of Total\"","v":"89% of Total"},{"$f":"IF(I33=\"-\",\"-\",(I33-C33)/C33)","v":7.4974670719351572E-2},{"$f":"StatisticallySignificantCalcs!$A62","v":"Y"}]
[null,"Owner Occupied",{"$f":"CntyDataLinkPrior10YearEstimate!$F$108","v":2392},{"$f":"CntyDataLinkPrior5YearEstimates!$G$108","v":207},{"$f":"ROUND(C34/C33,2)*100&\"% of Occ.\"","v":"81% of Occ."},{"$f":"CntyDataLinkPrior5YearEstimates!$F$108","v":2948},{"$f":"CntyDataLinkPrior5YearEstimates!$G$108","v":207},{"$f":"ROUND(F34/F33,2)*100&\"% of Occ.\"","v":"89% of Occ."},{"$f":"CntyDataLink!$F$108","v":2904},{"$f":"CntyDataLink!$G$108","v":213},{"$f":"ROUND(I34/I33,2)*100&\"% of Occ.\"","v":"91% of Occ."},{"$f":"IF(I34=\"-\",\"-\",(I34-C34)/C34)","v":0.21404682274247491},{"$f":"StatisticallySignificantCalcs!$A63","v":"N"}]
[null,"Renter Occupied",{"$f":"CntyDataLinkPrior10YearEstimate!$H$108","v":569},{"$f":"CntyDataLinkPrior5YearEstimates!$I$108","v":153},{"$f":"ROUND(C35/C33,2)*100&\"% of Occ.\"","v":"19% of Occ."},{"$f":"CntyDataLinkPrior5YearEstimates!$H$108","v":359},{"$f":"CntyDataLinkPrior5YearEstimates!$I$108","v":153},{"$f":"ROUND(F35/F33,2)*100&\"% of Occ.\"","v":"11% of Occ."},{"$f":"CntyDataLink!$H$108","v":279},{"$f":"CntyDataLink!$I$108","v":139},{"$f":"ROUND(I35/I33,2)*100&\"% of Occ.\"","v":"9% of Occ."},{"$f":"IF(I35=\"-\",\"-\",(I35-C35)/C35)","v":-0.50966608084358522},{"$f":"StatisticallySignificantCalcs!$A64","v":"Y"}]
[null,"Vacant Units",{"$f":"CntyDataLinkPrior10YearEstimate!$J$108","v":283},{"$f":"CntyDataLinkPrior5YearEstimates!$K$108","v":127},{"$f":"ROUND(C36/C32,2)*100&\"% of Total\"","v":"9% of Total"},{"$f":"CntyDataLinkPrior5YearEstimates!$J$108","v":281},{"$f":"CntyDataLinkPrior5YearEstimates!$K$108","v":127},{"$f":"ROUND(F36/F32,2)*100&\"% of Total\"","v":"8% of Total"},{"$f":"CntyDataLink!$J$108","v":410},{"$f":"CntyDataLink!$K$108","v":223},{"$f":"ROUND(I36/I32,2)*100&\"% of Total\"","v":"11% of Total"},{"$f":"IF(I36=\"-\",I36,VALUE((I36-C36)/C36))","v":0.44876325088339225},{"$f":"StatisticallySignificantCalcs!$A65","v":"Y"}]
[null,"Vacant For Sale",{"$f":"CntyDataLinkPrior10YearEstimate!$P$108","v":61},{"$f":"CntyDataLinkPrior5YearEstimates!$Q$108","v":60},{"$f":"ROUND(C37/(C34+C37),3)*100&\"% Vac.\"","v":"2.5% Vac."},{"$f":"CntyDataLinkPrior5YearEstimates!$P$108","v":38},{"$f":"CntyDataLinkPrior5YearEstimates!$Q$108","v":60},{"$f":"ROUND(F37/(F34+F37),3)*100&\"% Vac.\"","v":"1.3% Vac."},{"$f":"CntyDataLink!$P$108","v":0},{"$f":"CntyDataLink!$Q$108","v":16},{"$f":"ROUND(I37/(I34+I37),3)*100&\"% Vac.\"","v":"0% Vac."},{"$f":"IF(I37=\"-\",I37,VALUE((I37-C37)/C37))","v":-1},{"$f":"StatisticallySignificantCalcs!$A66","v":"N"}]
[null,"Vacant For Rent",{"$f":"CntyDataLinkPrior10YearEstimate!$L$108","v":0},{"$f":"CntyDataLinkPrior5YearEstimates!$M$108","v":15},{"$f":"ROUND(C38/(C35+C38),3)*100&\"% Vac.\"","v":"0% Vac."},{"$f":"CntyDataLinkPrior5YearEstimates!$L$108","v":0},{"$f":"CntyDataLinkPrior5YearEstimates!$M$108","v":15},{"$f":"ROUND(F38/(F35+F38),3)*100&\"% Vac.\"","v":"0% Vac."},{"$f":"CntyDataLink!$L$108","v":0},{"$f":"CntyDataLink!$M$108","v":16},{"$f":"ROUND(I38/(I35+I38),3)*100&\"% Vac.\"","v":"0% Vac."},{"$f":"IF(I38=\"-\",I38,VALUE((I38-C38)/C38))","v":{"$error":"#DIV/0!"}},{"$f":"StatisticallySignificantCalcs!$A67","v":"N"}]
[null,"Vacant Seasonal",{"$f":"CntyDataLinkPrior10YearEstimate!$T$108","v":200},{"$f":"CntyDataLinkPrior5YearEstimates!$U$108","v":108},{"$f":"ROUND(C39/C32,2)*100&\"% of Total\"","v":"6% of Total"},{"$f":"CntyDataLinkPrior5YearEstimates!$T$108","v":191},{"$f":"CntyDataLinkPrior5YearEstimates!$U$108","v":108},{"$f":"ROUND(F39/F32,2)*100&\"% of Total\"","v":"5% of Total"},{"$f":"CntyDataLink!$T$108","v":244},{"$f":"CntyDataLink!$U$108","v":162},{"$f":"ROUND(I39/I32,2)*100&\"% of Total\"","v":"7% of Total"},{"$f":"IF(I39=\"-\",I39,VALUE((I39-C39)/C39))","v":0.22},{"$f":"StatisticallySignificantCalcs!$A68","v":"N"}]
[]
[null,"Data from the American Community Survey are estimates"]
[]
[]
[null,"HOUSING CHARACTERISTICS"]
[]
[]
[]
[]
[]
[]
[]
[]
[]
[]
[]
[]
[]
[]
[]
[]
[]
[]
[]
[]
[null,null,null,{"$f":"\"Source: \"& \" \"&D69&\", \"&G69&\" and \"&J69& \"  American Community Survey Table B25024; B25032\"","v":"Source:  2005-2009, 2010-2014 and 2015-2019  American Community Survey Table B25024; B25032"}]
[]
[null,null,"Units by Type"]
[]
[null,null,null,"2005-2009",null,null,"2010-2014",null,null,"2015-2019"]
[null,null,null,"Estimate","Margin of Error","% of Total","Estimate","Margin of Error","% of Total","Estimate","Margin of Error","% of Total","% Change","Statistically Significant Change"]
[null,null,"Total Units",{"$f":"CntyDataLinkPrior10YearEstimate!$B$108","v":3244},{"$f":"CntyDataLinkPrior10YearEstimate!$C$108","v":196},null,{"$f":"CntyDataLinkPrior5YearEstimates!$B$108","v":3588},{"$f":"CntyDataLinkPrior5YearEstimates!$C$108","v":198},null,{"$f":"CntyDataLink!$B$108","v":3593},{"$f":"CntyDataLink!$C$108","v":260},null,{"$f":"IF(J71=\"-\",\"-\",($J71-$D71)/$D71)","v":0.10758323057953144},{"$f":"StatisticallySignificantCalcs!$A69","v":"N"}]
[null,null,"Single Family Units",{"$f":"CntyDataLinkPrior10YearEstimate!$AT$108","v":2479},{"$f":"CntyDataLinkPrior10YearEstimate!$AU$108","v":181},{"$f":"IF(D72=\"-\",\"-\",($D$72/$D$71))","v":0.7641800246609125},{"$f":"CntyDataLinkPrior5YearEstimates!$AT$108","v":2884},{"$f":"CntyDataLinkPrior5YearEstimates!$AU$108","v":222},{"$f":"IF(G72=\"-\",\"-\",($G$72/$G$71))","v":0.80379041248606464},{"$f":"CntyDataLink!$AT$108","v":2904},{"$f":"CntyDataLink!$AU$108","v":290},{"$f":"IF(J72=\"-\",\"-\",($J$72/$J$71))","v":0.80823824102421371},0.17144009681323114,{"$f":"StatisticallySignificantCalcs!$A70","v":"Y"}]
[null,null,"SF Owner Occ.",{"$f":"CntyDataLinkPrior10YearEstimate!$AF$108","v":2021},{"$f":"CntyDataLinkPrior10YearEstimate!$AG$108","v":185},null,{"$f":"CntyDataLinkPrior5YearEstimates!$AF$108","v":2410},{"$f":"CntyDataLinkPrior5YearEstimates!$AG$108","v":214},null,{"$f":"CntyDataLink!$AF$108","v":2438},{"$f":"CntyDataLink!$AG$108","v":226},null,0.20633349826818406,{"$f":"StatisticallySignificantCalcs!$A71","v":"Y"}]
[null,null,"SF Renter Occ.",{"$f":"CntyDataLinkPrior10YearEstimate!$AN$108","v":236},{"$f":"CntyDataLinkPrior10YearEstimate!$AO$108","v":108},null,{"$f":"CntyDataLinkPrior5YearEstimates!$AN$108","v":233},{"$f":"CntyDataLinkPrior5YearEstimates!$AO$108","v":139},null,{"$f":"CntyDataLink!$AN$108","v":184},{"$f":"CntyDataLink!$AO$108","v":130},null,-0.22033898305084745,{"$f":"StatisticallySignificantCalcs!$A72","v":"Y"}]
[null,null,"Multi-family Units",{"$f":"CntyDataLinkPrior10YearEstimate!$AV$108","v":270},{"$f":"CntyDataLinkPrior10YearEstimate!$AW$108","v":195.28440797974631},{"$f":"IF(D75=\"-\",\"-\",$D$75/$D$71)","v":8.3230579531442667E-2},{"$f":"CntyDataLinkPrior5YearEstimates!$AV$108","v":260},{"$f":"CntyDataLinkPrior5YearEstimates!$AW$108","v":127.83192089615176},{"$f":"IF(G75=\"-\",\"-\",$G$75/$G$71)","v":7.2463768115942032E-2},{"$f":"CntyDataLink!$AV$108","v":300},{"$f":"CntyDataLink!$AW$108","v":178.33956375409244},{"$f":"IF(J75=\"-\",\"-\",$J$75/$J$71)","v":8.3495686056220431E-2},0.1111111111111111,{"$f":"StatisticallySignificantCalcs!$A73","v":"N"}]
[null,null,"MF Owner Occ.",{"$f":"CntyDataLinkPrior10YearEstimate!$AH$108","v":21},{"$f":"CntyDataLinkPrior10YearEstimate!$AI$108","v":256.09568524284043},null,{"$f":"CntyDataLinkPrior5YearEstimates!$AH$108","v":111},{"$f":"CntyDataLinkPrior5YearEstimates!$AI$108","v":93.085981758801893},null,{"$f":"CntyDataLink!$AH$108","v":161},{"$f":"CntyDataLink!$AI$108","v":126.59383871263246},null,6.666666666666667,{"$f":"StatisticallySignificantCalcs!$A74","v":"N"}]
[null,null,"MF Renter Occ.",{"$f":"CntyDataLinkPrior10YearEstimate!$AP$108","v":249},{"$f":"CntyDataLinkPrior10YearEstimate!$AQ$108","v":224.64638879803965},null,{"$f":"CntyDataLinkPrior5YearEstimates!$AP$108","v":126},{"$f":"CntyDataLinkPrior5YearEstimates!$AQ$108","v":87.321245982864909},null,{"$f":"CntyDataLink!$AP$108","v":82},{"$f":"CntyDataLink!$AQ$108","v":88.662280593271461},null,-0.67068273092369479,{"$f":"StatisticallySignificantCalcs!$A75","v":"N"}]
[null,null,"Mobile Home & Other",{"$f":"CntyDataLinkPrior10YearEstimate!$AX$108","v":495},{"$f":"CntyDataLinkPrior10YearEstimate!$AY$108","v":172.15400082484288},{"$f":"IF(D78=\"-\",\"-\",($D$78/$D$71))","v":0.15258939580764488},{"$f":"CntyDataLinkPrior5YearEstimates!$AX$108","v":444},{"$f":"CntyDataLinkPrior5YearEstimates!$AY$108","v":133.843191832831},{"$f":"IF(G78=\"-\",\"-\",($G$78/$G$71))","v":0.12374581939799331},{"$f":"CntyDataLink!$AX$108","v":389},{"$f":"CntyDataLink!$AY$108","v":145.88008774332431},{"$f":"IF(J78=\"-\",\"-\",($J$78/$J$71))","v":0.10826607291956582},-0.21414141414141413,{"$f":"StatisticallySignificantCalcs!$A76","v":"N"}]
[]
[null,"Data from the American Community Survey are estimates"]
[]
[]
[null,"Units by Number of Bedrooms "]
[null,null,null,{"$f":"\"Source: \"& \" \"&D69&\", \"&G69&\" and \"&J69& \" American Community Survey Table B25041\"","v":"Source:  2005-2009, 2010-2014 and 2015-2019 American Community Survey Table B25041"}]
[]
[null,null,"2005-2009",null,null,null,"2010-2014",null,null,null,"2015-2019"]
[null,"Bedrooms","Estimate","Margin of Error","% of Total",null,"Estimate","Margin of Error","% of Total",null,"Estimate","Margin of Error","% of Total",null,"Statistically Significant Change"]
[null,"No Bedrooms",{"$f":"CntyDataLinkPrior10YearEstimate!$BR$108","v":0},{"$f":"CntyDataLinkPrior10YearEstimate!$BS$108","v":114},{"$f":"C88/SUM($C$88:$C$92)","v":0},null,{"$f":"CntyDataLinkPrior5YearEstimates!$BR$108","v":0},{"$f":"CntyDataLinkPrior5YearEstimates!$BS$108","v":15},{"$f":"G88/SUM($G$88:$G$92)","v":0},null,{"$f":"CntyDataLink!$BT$108","v":0},{"$f":"CntyDataLink!$BU$108","v":16},{"$f":"K88/SUM($K$88:$K$92)","v":0},null,{"$f":"StatisticallySignificantCalcs!$A77","v":"N"}]
[null,"1 Bedroom",{"$f":"CntyDataLinkPrior10YearEstimate!$BT$108","v":247},{"$f":"CntyDataLinkPrior10YearEstimate!$BU$108","v":105},{"$f":"C89/SUM($C$88:$C$92)","v":7.6140567200986442E-2},null,{"$f":"CntyDataLinkPrior5YearEstimates!$BT$108","v":252},{"$f":"CntyDataLinkPrior5YearEstimates!$BU$108","v":154},{"$f":"G89/SUM($G$88:$G$92)","v":7.0234113712374577E-2},null,{"$f":"CntyDataLink!$BV$108","v":138},{"$f":"CntyDataLink!$BW$108","v":89},{"$f":"K89/SUM($K$88:$K$92)","v":3.8408015585861398E-2},null,{"$f":"StatisticallySignificantCalcs!$A78","v":"N"}]
[null,"2 Bedrooms",{"$f":"CntyDataLinkPrior10YearEstimate!$BV$108","v":814},{"$f":"CntyDataLinkPrior10YearEstimate!$BW$108","v":201},0.25092478421701603,null,{"$f":"CntyDataLinkPrior5YearEstimates!$BV$108","v":1199},{"$f":"CntyDataLinkPrior5YearEstimates!$BW$108","v":235},{"$f":"G90/SUM($G$88:$G$92)","v":0.33416945373467111},null,{"$f":"CntyDataLink!$BX$108","v":1057},{"$f":"CntyDataLink!$BY$108","v":248},{"$f":"K90/SUM($K$88:$K$92)","v":0.29418313387141665},null,{"$f":"StatisticallySignificantCalcs!$A79","v":"N"}]
[null,"3 Bedrooms",{"$f":"CntyDataLinkPrior10YearEstimate!$BX$108","v":1686},{"$f":"CntyDataLinkPrior10YearEstimate!$BY$108","v":219},0.51972872996300867,null,{"$f":"CntyDataLinkPrior5YearEstimates!$BX$108","v":1290},{"$f":"CntyDataLinkPrior5YearEstimates!$BY$108","v":220},{"$f":"G91/SUM($G$88:$G$92)","v":0.35953177257525082},null,{"$f":"CntyDataLink!$BZ$108","v":1866},{"$f":"CntyDataLink!$CA$108","v":280},{"$f":"K91/SUM($K$88:$K$92)","v":0.5193431672696911},null,{"$f":"StatisticallySignificantCalcs!$A80","v":"Y"}]
[null,"4+ Bedrooms",{"$f":"CntyDataLinkPrior10YearEstimate!$BZ$108","v":497},{"$f":"CntyDataLinkPrior10YearEstimate!$CA$108","v":135.60235986147143},0.15320591861898891,null,{"$f":"CntyDataLinkPrior5YearEstimates!$BZ$108","v":847},{"$f":"CntyDataLinkPrior5YearEstimates!$CA$108","v":242.03305559365234},{"$f":"G92/SUM($G$88:$G$92)","v":0.23606465997770346},null,{"$f":"CntyDataLink!$CB$108","v":532},{"$f":"CntyDataLink!$CC$108","v":204.56050449683585},{"$f":"K92/SUM($K$88:$K$92)","v":0.14806568327303091},null,{"$f":"StatisticallySignificantCalcs!$A81","v":"Y"}]
[]
[null,"As a result of changes in the American Community Survey, direct comparisons between the 2009-2013 and 2015-2019 data should be made with caution."]
[null,"Data from the American Community Survey are estimates"]
[]
[null,"Units by Year Built   "]
[null,{"$f":"\"Source: \"&K86& \" American Community Survey Table B25034\"","v":"Source: 2015-2019 American Community Survey Table B25034"}]
[]
[null,null,null,"Year Built",null,null,"Units  ",null,"% of Total",null,"Margin of Error"]
[null,null,null,null,null,"2014 or later",{"$f":"CntyDataLink!$AZ$108","v":106},null,{"$f":"G101/SUM($G$101:$G$110)","v":2.9501809073197886E-2},null,{"$f":"CntyDataLink!$BA$108","v":73}]
[null,null,null,null,null,"2010 through 2013",{"$f":"CntyDataLink!$BB$108","v":204},null,5.6777066518229891E-2,null,{"$f":"CntyDataLink!$BC$108","v":142}]
[null,null,null,null,null,"2000 through 2009",{"$f":"CntyDataLink!$BD$108","v":786},null,0.21875869746729754,null,{"$f":"CntyDataLink!$BE$108","v":219}]
[null,null,null,null,null,"1990 through 1999",{"$f":"CntyDataLink!$BF$108","v":434},null,0.12079042582799888,null,{"$f":"CntyDataLink!$BG$108","v":180}]
[null,null,null,null,null,"1980 through 1989",{"$f":"CntyDataLink!$BH$108","v":430},null,0.11967715001391595,null,{"$f":"CntyDataLink!$BI$108","v":159}]
[null,null,null,null,null,"1970 through 1979",{"$f":"CntyDataLink!$BJ$108","v":802},null,0.22321180072362928,null,{"$f":"CntyDataLink!$BK$108","v":235}]
[null,null,null,null,null,"1960 through 1969",{"$f":"CntyDataLink!$BL$108","v":99},null,2.7553576398552743E-2,null,{"$f":"CntyDataLink!$BM$108","v":101}]
[null,null,null,null,null,"1950 through 1959",{"$f":"CntyDataLink!$BN$108","v":294},null,8.1825772335096025E-2,null,{"$f":"CntyDataLink!$BO$108","v":170}]
[null,null,null,null,null,"1940 through 1949",{"$f":"CntyDataLink!$BP$108","v":90},null,2.5048705816866128E-2,null,{"$f":"CntyDataLink!$BQ$108","v":107}]
[null,null,null,null,null,"1939 and earlier",{"$f":"CntyDataLink!$BR$108","v":348},null,9.6854995825215701E-2,null,{"$f":"CntyDataLink!$BS$108","v":180}]
[]
[null,"Data from the American Community Survey are estimates"]

{"sheet":"CntyDataLink","index":6,"n_rows":167,"n_cols":255,"rows_kept":167,"cut":false,"hidden":true,"merged":[]}
[1,{"$f":"A1+1","v":2},{"$f":"B1+1","v":3},4,5,6,7,8,9,10,11,12,13,14,15,{"$f":"O1+1","v":16},17,18,19,20,21,22,23,24,25,26,27,28,29,30,31,32,33,34,35,36,37,38,39,40,41,42,43,44,45,46,47,48,49,50,51,52,53,54,55,56,57,58,59,60,61,62,63,64,65,66,{"$f":"BN1+1","v":67},68,69,70,71,72,73,74,75,76,77,78,79,80,81,82,83,84,85,86,87,88,89,90,91,92,93,94,95,96,97,98,99,100,101,102,103,104,105,106,107,108,109,110,111,112,113,114,115,116,117,118,119,120,121,122,123,124,125,126,127,128,129,130,{"$f":"DZ1+1","v":131},132,133,134,135,136,137,138,139,140,141,142,143,144,145,146,147,148,149,150,151,152,153,154,155,156,157,158,159,160,161,162,163,164,165,166,167,168,169,170,171,172,173,174,175,176,177,178,179,180,181,182,183,184,185,186,187,188,189,190,191,192,193,194,{"$f":"GL1+1","v":195},196,197,198,199,200,201,202,203,204,205,206,207,208,209,210,211,212,213,214,215,216,217,218,219,220,221,222,223,224,225,226,227,228,229,230,231,232,233,234,235,236,237,238,239,240,241,242,243,244,245,246,247,248,249,250,251,252,253,254,255]
[]
["Census 1990 Data -           Query Name:  DPCnty90Census"]
["TownName","Cnty_Code","Census_Cnty_Code","LandAcres","WaterAcres","HousingUnits90Cen","Persons90Cen","Families90Cen","Households90cen","MalePop90cen","FemalePop90cen","WhitePop","BlackPop","AmerIndianPop","AsianPIPop","OtherRacePop","HispanicOrPop","AgeUnder15_90cen","Age15to24_90cen","Age25to34_90cen","Age35to44_90cen","Age45to54_90cen","Age55to64_90cen","Age65to74_90cen","Age75andOver_90cen","PersonsInHH90cen","PersonsInFamHH90cen","PersonsInGC","PersonsPerHH90cen","PersonsPerFam90Cen","SinglePersonHH90cen","MarriedCoupleHH90cen","SingleParentHH90cen","NonFamilyHH90cen","TotalHousingUnits","OccupiedHousingUnits","VacantHousingUnits","OwnerOccHU","RenterOccHU","VacantForRent90","VacantForSale90","VacantSeasonalRec","SingFamHU90cen","MultiFamHU90cen","MobileHom90cen","SingFamOwnHU90cen","MultiFamOwnHU90cen","MobileHomOwnHU90cen","SingFamRntrHU90cen","MultiFamRntrHU90cen","MobileHomRntrHU90cen","HU<5yrs90cen","HU5to20yrs90cen","HU20to50yrs90cen","HU>50yrs90cen","Units0Bedroom90cen","Units1Bedroom90cen","Units2Bedroom90cen","Units3Bedroom90cen","Units4+Bedroom90cen","HI<5K","HI5Kto10K","HI10Kto15K","HI15Kto25K","HI25Kto35K","HI35Kto50K","HI50Kto75K","HI75Kto100K","HI>100K","MedHI","HH<25HI<5K","HH<25HI5Kto10K","HH<25HI10Kto15K","HH<25HI15Kto25K","HH<25HI25Kto35K","HH<25HI35Kto50K","HH<25HI50Kto75K","HH<25HI75Kto100K","HH<25HI>100K","HH25to34HI<5K","HH25to34HI5Kto10K","HH25to34HI10Kto15K","HH25to34HI15Kto25K","HH25to34HI25Kto35K","HH25to34HI35Kto50K","HH25to34HI50Kto75K","HH25to34HI75Kto100K","HH25to34HI>100K","HH35to44HI<5K","HH35to44HI5Kto10K","HH35to44HI10Kto15K","HH35to44HI15Kto25K","HH35to44HI25Kto35K","HH35to44HI35Kto50K","HH35to44HI50Kto75K","HH35to44HI75Kto100K","HH35to44HI>100K","HH45to54HI<5K","HH45to54HI5Kto10K","HH45to54HI10Kto15K","HH45to54HI15Kto25K","HH45to54HI25Kto35K","HH45to54HI35Kto50K","HH45to54HI50Kto75K","HH45to54HI75Kto100K","HH45to54HI>100K","HH55to64HI<5K","HH55to64HI5Kto10K","HH55to64HI10Kto15K","HH55to64HI15Kto25K","HH55to64HI25Kto35K","HH55to64HI35Kto50K","HH55to64HI50Kto75K","HH55to64HI75Kto100K","HH55to64HI>100K","HH65to74HI<5K","HH65to74HI5Kto10K","HH65to74HI10Kto15K","HH65to74HI15Kto25K","HH65to74HI25Kto35K","HH65to74HI35Kto50K","HH65to74HI50Kto75K","HH65to74HI75Kto100K","HH65to74HI>100K","HH>75HI<5K","HH>75HI5Kto10K","HH>75HI10Kto15K","HH>75HI15Kto25K","HH>75HI25Kto35K","HH>75HI35Kto50K","HH>75HI50Kto75K","HH>75HI75Kto100K","HH>75HI>100K","SchoolEnrollment1thru12","Pop25andOver","HSGradorHigher","CollGradorHigher","NativePop","ForeignBornPop","BornStateOfRes","NativePop2","ForeignBornPop2","DroveAlone","CarPooled","PublicTranspt","Walked","OtherMeans","WorkedAtHome","HHInc<10K","HHInc10to15K","HHInc15to25K","HHInc25to35K","HHInc35to50K","HHInc50to75K","HHInc75to100K","HHInc100to150K","HHInc>150K"]
[{"$f":"VLOOKUP(DropDownList!$A$47,CntyQuery!$A$4:$FI$46,A1)","v":"Barrington"},{"$f":"VLOOKUP(DropDownList!$A$47,CntyQuery!$A$4:$FA$46,B1)","v":17005},{"$f":"VLOOKUP(DropDownList!$A$47,CntyQuery!$A$4:$FA$46,C1)","v":"03460"},{"$f":"VLOOKUP(DropDownList!$A$47,CntyQuery!$A$4:$FA$46,D1)","v":29886.99},{"$f":"VLOOKUP(DropDownList!$A$47,CntyQuery!$A$4:$FA$46,E1)","v":1230.17},{"$f":"VLOOKUP(DropDownList!$A$47,CntyQuery!$A$4:$FA$46,F1)","v":2640},{"$f":"VLOOKUP(DropDownList!$A$47,CntyQuery!$A$4:$FA$46,G1)","v":6164},{"$f":"VLOOKUP(DropDownList!$A$47,CntyQuery!$A$4:$FA$46,H1)","v":1698},{"$f":"VLOOKUP(DropDownList!$A$47,CntyQuery!$A$4:$FA$46,I1)","v":2217},{"$f":"VLOOKUP(DropDownList!$A$47,CntyQuery!$A$4:$FA$46,J1)","v":3053},{"$f":"VLOOKUP(DropDownList!$A$47,CntyQuery!$A$4:$FA$46,K1)","v":3111},{"$f":"VLOOKUP(DropDownList!$A$47,CntyQuery!$A$4:$FA$46,L1)","v":6100},{"$f":"VLOOKUP(DropDownList!$A$47,CntyQuery!$A$4:$FA$46,M1)","v":19},{"$f":"VLOOKUP(DropDownList!$A$47,CntyQuery!$A$4:$FA$46,N1)","v":16},{"$f":"VLOOKUP(DropDownList!$A$47,CntyQuery!$A$4:$FA$46,O1)","v":15},{"$f":"VLOOKUP(DropDownList!$A$47,CntyQuery!$A$4:$FA$46,P1)","v":14},{"$f":"VLOOKUP(DropDownList!$A$47,CntyQuery!$A$4:$FA$46,Q1)","v":53},{"$f":"VLOOKUP(DropDownList!$A$47,CntyQuery!$A$4:$FA$46,R1)","v":1479},{"$f":"VLOOKUP(DropDownList!$A$47,CntyQuery!$A$4:$FA$46,S1)","v":700},{"$f":"VLOOKUP(DropDownList!$A$47,CntyQuery!$A$4:$FA$46,T1)","v":1303},{"$f":"VLOOKUP(DropDownList!$A$47,CntyQuery!$A$4:$FA$46,U1)","v":1142},{"$f":"VLOOKUP(DropDownList!$A$47,CntyQuery!$A$4:$FA$46,V1)","v":673},{"$f":"VLOOKUP(DropDownList!$A$47,CntyQuery!$A$4:$FA$46,W1)","v":402},{"$f":"VLOOKUP(DropDownList!$A$47,CntyQuery!$A$4:$FA$46,X1)","v":317},{"$f":"VLOOKUP(DropDownList!$A$47,CntyQuery!$A$4:$FA$46,Y1)","v":148},{"$f":"VLOOKUP(DropDownList!$A$47,CntyQuery!$A$4:$FA$46,Z1)","v":6164},{"$f":"VLOOKUP(DropDownList!$A$47,CntyQuery!$A$4:$FA$46,AA1)","v":5438},{"$f":"VLOOKUP(DropDownList!$A$47,CntyQuery!$A$4:$FA$46,AB1)","v":0},{"$f":"VLOOKUP(DropDownList!$A$47,CntyQuery!$A$4:$FA$46,AC1)","v":2.7803337843933242},{"$f":"VLOOKUP(DropDownList!$A$47,CntyQuery!$A$4:$FA$46,AD1)","v":3.2025912838633688},{"$f":"VLOOKUP(DropDownList!$A$47,CntyQuery!$A$4:$FA$46,AE1)","v":360},{"$f":"VLOOKUP(DropDownList!$A$47,CntyQuery!$A$4:$FA$46,AF1)","v":1497},{"$f":"VLOOKUP(DropDownList!$A$47,CntyQuery!$A$4:$FA$46,AG1)","v":201},{"$f":"VLOOKUP(DropDownList!$A$47,CntyQuery!$A$4:$FA$46,AH1)","v":159},{"$f":"VLOOKUP(DropDownList!$A$47,CntyQuery!$A$4:$FA$46,AI1)","v":2640},{"$f":"VLOOKUP(DropDownList!$A$47,CntyQuery!$A$4:$FA$46,AJ1)","v":2217},{"$f":"VLOOKUP(DropDownList!$A$47,CntyQuery!$A$4:$FA$46,AK1)","v":423},{"$f":"VLOOKUP(DropDownList!$A$47,CntyQuery!$A$4:$FA$46,AL1)","v":1911},{"$f":"VLOOKUP(DropDownList!$A$47,CntyQuery!$A$4:$FA$46,AM1)","v":306},{"$f":"VLOOKUP(DropDownList!$A$47,CntyQuery!$A$4:$FA$46,AN1)","v":59},{"$f":"VLOOKUP(DropDownList!$A$47,CntyQuery!$A$4:$FA$46,AO1)","v":44},{"$f":"VLOOKUP(DropDownList!$A$47,CntyQuery!$A$4:$FA$46,AP1)","v":280},{"$f":"VLOOKUP(DropDownList!$A$47,CntyQuery!$A$4:$FA$46,AQ1)","v":1809},{"$f":"VLOOKUP(DropDownList!$A$47,CntyQuery!$A$4:$FA$46,AR1)","v":244},{"$f":"VLOOKUP(DropDownList!$A$47,CntyQuery!$A$4:$FA$46,AS1)","v":587},{"$f":"VLOOKUP(DropDownList!$A$47,CntyQuery!$A$4:$FA$46,AT1)","v":1402},{"$f":"VLOOKUP(DropDownList!$A$47,CntyQuery!$A$4:$FA$46,AU1)","v":39},{"$f":"VLOOKUP(DropDownList!$A$47,CntyQuery!$A$4:$FA$46,AV1)","v":587},{"$f":"VLOOKUP(DropDownList!$A$47,CntyQuery!$A$4:$FA$46,AW1)","v":108},{"$f":"VLOOKUP(DropDownList!$A$47,CntyQuery!$A$4:$FA$46,AX1)","v":152},{"$f":"VLOOKUP(DropDownList!$A$47,CntyQuery!$A$4:$FA$46,AY1)","v":46},{"$f":"VLOOKUP(DropDownList!$A$47,CntyQuery!$A$4:$FA$46,AZ1)","v":452},{"$f":"VLOOKUP(DropDownList!$A$47,CntyQuery!$A$4:$FA$46,BA1)","v":1375},{"$f":"VLOOKUP(DropDownList!$A$47,CntyQuery!$A$4:$FA$46,BB1)","v":531},{"$f":"VLOOKUP(DropDownList!$A$47,CntyQuery!$A$4:$FA$46,BC1)","v":322},{"$f":"VLOOKUP(DropDownList!$A$47,CntyQuery!$A$4:$FA$46,BD1)","v":18},{"$f":"VLOOKUP(DropDownList!$A$47,CntyQuery!$A$4:$FA$46,BE1)","v":182},{"$f":"VLOOKUP(DropDownList!$A$47,CntyQuery!$A$4:$FA$46,BF1)","v":955},{"$f":"VLOOKUP(DropDownList!$A$47,CntyQuery!$A$4:$FA$46,BG1)","v":1206},{"$f":"VLOOKUP(DropDownList!$A$47,CntyQuery!$A$4:$FA$46,BH1)","v":319},{"$f":"VLOOKUP(DropDownList!$A$47,CntyQuery!$A$4:$FA$46,BI1)","v":17},{"$f":"VLOOKUP(DropDownList!$A$47,CntyQuery!$A$4:$FA$46,BJ1)","v":97},{"$f":"VLOOKUP(DropDownList!$A$47,CntyQuery!$A$4:$FA$46,BK1)","v":140},{"$f":"VLOOKUP(DropDownList!$A$47,CntyQuery!$A$4:$FA$46,BL1)","v":301},{"$f":"VLOOKUP(DropDownList!$A$47,CntyQuery!$A$4:$FA$46,BM1)","v":521},{"$f":"VLOOKUP(DropDownList!$A$47,CntyQuery!$A$4:$FA$46,BN1)","v":606},{"$f":"VLOOKUP(DropDownList!$A$47,CntyQuery!$A$4:$FA$46,BO1)","v":398},{"$f":"VLOOKUP(DropDownList!$A$47,CntyQuery!$A$4:$FA$46,BP1)","v":99},{"$f":"VLOOKUP(DropDownList!$A$47,CntyQuery!$A$4:$FA$46,BQ1)","v":38},{"$f":"VLOOKUP(DropDownList!$A$47,CntyQuery!$A$4:$FA$46,BR1)","v":35542},{"$f":"VLOOKUP(DropDownList!$A$47,CntyQuery!$A$4:$FA$46,BS1)","v":0},{"$f":"VLOOKUP(DropDownList!$A$47,CntyQuery!$A$4:$FA$46,BT1)","v":0},{"$f":"VLOOKUP(DropDownList!$A$47,CntyQuery!$A$4:$FA$46,BU1)","v":0},{"$f":"VLOOKUP(DropDownList!$A$47,CntyQuery!$A$4:$FA$46,BV1)","v":12},{"$f":"VLOOKUP(DropDownList!$A$47,CntyQuery!$A$4:$FA$46,BW1)","v":0},{"$f":"VLOOKUP(DropDownList!$A$47,CntyQuery!$A$4:$FA$46,BX1)","v":41},{"$f":"VLOOKUP(DropDownList!$A$47,CntyQuery!$A$4:$FA$46,BY1)","v":11},{"$f":"VLOOKUP(DropDownList!$A$47,CntyQuery!$A$4:$FA$46,BZ1)","v":0},{"$f":"VLOOKUP(DropDownList!$A$47,CntyQuery!$A$4:$FA$46,CA1)","v":0},{"$f":"VLOOKUP(DropDownList!$A$47,CntyQuery!$A$4:$FA$46,CB1)","v":0},{"$f":"VLOOKUP(DropDownList!$A$47,CntyQuery!$A$4:$FA$46,CC1)","v":9},{"$f":"VLOOKUP(DropDownList!$A$47,CntyQuery!$A$4:$FA$46,CD1)","v":14},{"$f":"VLOOKUP(DropDownList!$A$47,CntyQuery!$A$4:$FA$46,CE1)","v":111},{"$f":"VLOOKUP(DropDownList!$A$47,CntyQuery!$A$4:$FA$46,CF1)","v":216},{"$f":"VLOOKUP(DropDownList!$A$47,CntyQuery!$A$4:$FA$46,CG1)","v":211},{"$f":"VLOOKUP(DropDownList!$A$47,CntyQuery!$A$4:$FA$46,CH1)","v":68},{"$f":"VLOOKUP(DropDownList!$A$47,CntyQuery!$A$4:$FA$46,CI1)","v":17},{"$f":"VLOOKUP(DropDownList!$A$47,CntyQuery!$A$4:$FA$46,CJ1)","v":0},{"$f":"VLOOKUP(DropDownList!$A$47,CntyQuery!$A$4:$FA$46,CK1)","v":0},{"$f":"VLOOKUP(DropDownList!$A$47,CntyQuery!$A$4:$FA$46,CL1)","v":34},{"$f":"VLOOKUP(DropDownList!$A$47,CntyQuery!$A$4:$FA$46,CM1)","v":8},{"$f":"VLOOKUP(DropDownList!$A$47,CntyQuery!$A$4:$FA$46,CN1)","v":81},{"$f":"VLOOKUP(DropDownList!$A$47,CntyQuery!$A$4:$FA$46,CO1)","v":120},{"$f":"VLOOKUP(DropDownList!$A$47,CntyQuery!$A$4:$FA$46,CP1)","v":193},{"$f":"VLOOKUP(DropDownList!$A$47,CntyQuery!$A$4:$FA$46,CQ1)","v":192},{"$f":"VLOOKUP(DropDownList!$A$47,CntyQuery!$A$4:$FA$46,CR1)","v":17},{"$f":"VLOOKUP(DropDownList!$A$47,CntyQuery!$A$4:$FA$46,CS1)","v":7},{"$f":"VLOOKUP(DropDownList!$A$47,CntyQuery!$A$4:$FA$46,CT1)","v":0},{"$f":"VLOOKUP(DropDownList!$A$47,CntyQuery!$A$4:$FA$46,CU1)","v":0},{"$f":"VLOOKUP(DropDownList!$A$47,CntyQuery!$A$4:$FA$46,CV1)","v":34},{"$f":"VLOOKUP(DropDownList!$A$47,CntyQuery!$A$4:$FA$46,CW1)","v":38},{"$f":"VLOOKUP(DropDownList!$A$47,CntyQuery!$A$4:$FA$46,CX1)","v":56},{"$f":"VLOOKUP(DropDownList!$A$47,CntyQuery!$A$4:$FA$46,CY1)","v":66},{"$f":"VLOOKUP(DropDownList!$A$47,CntyQuery!$A$4:$FA$46,CZ1)","v":87},{"$f":"VLOOKUP(DropDownList!$A$47,CntyQuery!$A$4:$FA$46,DA1)","v":32},{"$f":"VLOOKUP(DropDownList!$A$47,CntyQuery!$A$4:$FA$46,DB1)","v":13},{"$f":"VLOOKUP(DropDownList!$A$47,CntyQuery!$A$4:$FA$46,DC1)","v":17},{"$f":"VLOOKUP(DropDownList!$A$47,CntyQuery!$A$4:$FA$46,DD1)","v":26},{"$f":"VLOOKUP(DropDownList!$A$47,CntyQuery!$A$4:$FA$46,DE1)","v":26},{"$f":"VLOOKUP(DropDownList!$A$47,CntyQuery!$A$4:$FA$46,DF1)","v":37},{"$f":"VLOOKUP(DropDownList!$A$47,CntyQuery!$A$4:$FA$46,DG1)","v":25},{"$f":"VLOOKUP(DropDownList!$A$47,CntyQuery!$A$4:$FA$46,DH1)","v":32},{"$f":"VLOOKUP(DropDownList!$A$47,CntyQuery!$A$4:$FA$46,DI1)","v":40},{"$f":"VLOOKUP(DropDownList!$A$47,CntyQuery!$A$4:$FA$46,DJ1)","v":33},{"$f":"VLOOKUP(DropDownList!$A$47,CntyQuery!$A$4:$FA$46,DK1)","v":8},{"$f":"VLOOKUP(DropDownList!$A$47,CntyQuery!$A$4:$FA$46,DL1)","v":0},{"$f":"VLOOKUP(DropDownList!$A$47,CntyQuery!$A$4:$FA$46,DM1)","v":14},{"$f":"VLOOKUP(DropDownList!$A$47,CntyQuery!$A$4:$FA$46,DN1)","v":22},{"$f":"VLOOKUP(DropDownList!$A$47,CntyQuery!$A$4:$FA$46,DO1)","v":14},{"$f":"VLOOKUP(DropDownList!$A$47,CntyQuery!$A$4:$FA$46,DP1)","v":96},{"$f":"VLOOKUP(DropDownList!$A$47,CntyQuery!$A$4:$FA$46,DQ1)","v":42},{"$f":"VLOOKUP(DropDownList!$A$47,CntyQuery!$A$4:$FA$46,DR1)","v":0},{"$f":"VLOOKUP(DropDownList!$A$47,CntyQuery!$A$4:$FA$46,DS1)","v":0},{"$f":"VLOOKUP(DropDownList!$A$47,CntyQuery!$A$4:$FA$46,DT1)","v":10},{"$f":"VLOOKUP(DropDownList!$A$47,CntyQuery!$A$4:$FA$46,DU1)","v":0},{"$f":"VLOOKUP(DropDownList!$A$47,CntyQuery!$A$4:$FA$46,DV1)","v":14},{"$f":"VLOOKUP(DropDownList!$A$47,CntyQuery!$A$4:$FA$46,DW1)","v":36},{"$f":"VLOOKUP(DropDownList!$A$47,CntyQuery!$A$4:$FA$46,DX1)","v":8},{"$f":"VLOOKUP(DropDownList!$A$47,CntyQuery!$A$4:$FA$46,DY1)","v":8},{"$f":"VLOOKUP(DropDownList!$A$47,CntyQuery!$A$4:$FA$46,DZ1)","v":21},{"$f":"VLOOKUP(DropDownList!$A$47,CntyQuery!$A$4:$FA$46,EA1)","v":0},{"$f":"VLOOKUP(DropDownList!$A$47,CntyQuery!$A$4:$FA$46,EB1)","v":0},{"$f":"VLOOKUP(DropDownList!$A$47,CntyQuery!$A$4:$FA$46,EC1)","v":0},{"$f":"VLOOKUP(DropDownList!$A$47,CntyQuery!$A$4:$FA$46,ED1)","v":1146},{"$f":"VLOOKUP(DropDownList!$A$47,CntyQuery!$A$4:$FA$46,EE1)","v":3943},{"$f":"VLOOKUP(DropDownList!$A$47,CntyQuery!$A$4:$FA$46,EF1)","v":3358},{"$f":"VLOOKUP(DropDownList!$A$47,CntyQuery!$A$4:$FA$46,EG1)","v":893},{"$f":"VLOOKUP(DropDownList!$A$47,CntyQuery!$A$4:$FA$46,EH1)","v":6022},{"$f":"VLOOKUP(DropDownList!$A$47,CntyQuery!$A$4:$FA$46,EI1)","v":187},{"$f":"VLOOKUP(DropDownList!$A$47,CntyQuery!$A$4:$FA$46,EJ1)","v":3502},{"$f":"VLOOKUP(DropDownList!$A$47,CntyQuery!$A$4:$FA$46,EK1)","v":6022},{"$f":"VLOOKUP(DropDownList!$A$47,CntyQuery!$A$4:$FA$46,EL1)","v":187},{"$f":"VLOOKUP(DropDownList!$A$47,CntyQuery!$A$4:$FA$46,EM1)","v":2520},{"$f":"VLOOKUP(DropDownList!$A$47,CntyQuery!$A$4:$FA$46,EN1)","v":619},{"$f":"VLOOKUP(DropDownList!$A$47,CntyQuery!$A$4:$FA$46,EO1)","v":28},{"$f":"VLOOKUP(DropDownList!$A$47,CntyQuery!$A$4:$FA$46,EP1)","v":29},{"$f":"VLOOKUP(DropDownList!$A$47,CntyQuery!$A$4:$FA$46,EQ1)","v":25},{"$f":"VLOOKUP(DropDownList!$A$47,CntyQuery!$A$4:$FA$46,ER1)","v":100},{"$f":"VLOOKUP(DropDownList!$A$47,CntyQuery!$A$4:$FA$46,ES1)","v":114},{"$f":"VLOOKUP(DropDownList!$A$47,CntyQuery!$A$4:$FA$46,ET1)","v":140},{"$f":"VLOOKUP(DropDownList!$A$47,CntyQuery!$A$4:$FA$46,EU1)","v":301},{"$f":"VLOOKUP(DropDownList!$A$47,CntyQuery!$A$4:$FA$46,EV1)","v":521},{"$f":"VLOOKUP(DropDownList!$A$47,CntyQuery!$A$4:$FA$46,EW1)","v":606},{"$f":"VLOOKUP(DropDownList!$A$47,CntyQuery!$A$4:$FA$46,EX1)","v":398},{"$f":"VLOOKUP(DropDownList!$A$47,CntyQuery!$A$4:$FA$46,EY1)","v":99},{"$f":"VLOOKUP(DropDownList!$A$47,CntyQuery!$A$4:$FA$46,EZ1)","v":21},{"$f":"VLOOKUP(DropDownList!$A$47,CntyQuery!$A$4:$FA$46,FA1)","v":17}]
[]
[]
["Census 1990 Data -    Query Name:  TownSTF1Qry1"]
["NAME","COUSUBFP","Census_Cnty_Code","FIPS","LandAcres","WaterAcres","HousingUnits90Cen","P01Persons90Cen","P02Families90Cen","P03Households90cen","P05MalePop90cen","P05FemalePop90cen","P06WhitePop","P06BlackPop","P06AmerIndianPop","P06AsianPIPop","P06OtherRacePop","P08HispanicOrPop","P11AgeUnder15_90cen","P11Age15to24_90cen","P11Age25to34_90cen","P11Age35to44_90cen","P11Age45to54_90cen","P11Age55to64_90cen","P11Age65to74_90cen","P11Age75andOver_90cen","P15PersonsInHH90cen","P15PersonsInFamHH90cen","P15PersonsInGC","PersonsPerHH90cen","PersonsPerFam90Cen","P16SinglePersonHH90cen","P16MarriedCoupleHH90cen","P16SingleParentHH90cen","P16NonFamilyHH90cen","H01TotalHousingUnits","H02OccupiedHousingUnits","H02VacantHousingUnits","H03OwnerOccHU","H03RenterOccHU","H05VacantForRent90","H05VacantForSale90","H05VacantSeasonalRec","H23OOHUVal<15k","H23OOHUVal15to19k","H23OOHUVal20to24k","H23OOHUVal25to29k","H23OOHUVal30to34k","H23OOHUVal35to39k","H23OOHUVal40to44k","H23OOHUVal45to49k","H23OOHUVal50to59k","H23OOHUVal60to74k","H23OOHUVal75to99k","H23OOHUVal100to124k","H23OOHUVal125to149k","H23OOHUVal150to174k","H23OOHUVal175to199k","H23OOHUVal200to249k","H23OOHUVal250to299k","H23OOHUVal300to399k","H23OOHUVal400to499k","H23OOHUVal500kOrMore","H23BOOHUMedVal","H41SingFamHU90cen","H41MultiFamHU90cen","H41MobileHom90cen","H43SingFamOwnHU90cen","H43MultiFamOwnHU90cen","H43MobileHomOwnHU90cen","H43SingFamRntrHU90cen","H43MultiFamRntrHU90cen","H43MobileHomRntrHU90cen","H41HU1UnitDet","H41HU1UnitAtt","H41HU2Unit","H41HU3to4Unit","H41HU5to9Unit","H41HU10to19Unit","H41HU20to49Unit","H41HU50PlusUnit","H41HUMobilH","H41HUOther"]
[{"$f":"VLOOKUP(DropDownList!$B$47,CntyQuery!$A$51:$CE$93,A$1)","v":"Barrington"},{"$f":"VLOOKUP(DropDownList!$B$47,CntyQuery!$A$51:$CE$93,B$1)","v":901},{"$f":"VLOOKUP(DropDownList!$B$47,CntyQuery!$A$51:$CE$93,C$1)","v":17005},{"$f":"VLOOKUP(DropDownList!$B$47,CntyQuery!$A$51:$CE$93,D$1)","v":"03460"},{"$f":"VLOOKUP(DropDownList!$B$47,CntyQuery!$A$51:$CE$93,E$1)","v":29886.99},{"$f":"VLOOKUP(DropDownList!$B$47,CntyQuery!$A$51:$CE$93,F$1)","v":1230.17},{"$f":"VLOOKUP(DropDownList!$B$47,CntyQuery!$A$51:$CE$93,G$1)","v":2640},{"$f":"VLOOKUP(DropDownList!$B$47,CntyQuery!$A$51:$CE$93,H$1)","v":6164},{"$f":"VLOOKUP(DropDownList!$B$47,CntyQuery!$A$51:$CE$93,I$1)","v":1698},{"$f":"VLOOKUP(DropDownList!$B$47,CntyQuery!$A$51:$CE$93,J$1)","v":2217},{"$f":"VLOOKUP(DropDownList!$B$47,CntyQuery!$A$51:$CE$93,K$1)","v":3053},{"$f":"VLOOKUP(DropDownList!$B$47,CntyQuery!$A$51:$CE$93,L$1)","v":3111},{"$f":"VLOOKUP(DropDownList!$B$47,CntyQuery!$A$51:$CE$93,M$1)","v":6100},{"$f":"VLOOKUP(DropDownList!$B$47,CntyQuery!$A$51:$CE$93,N$1)","v":19},{"$f":"VLOOKUP(DropDownList!$B$47,CntyQuery!$A$51:$CE$93,O$1)","v":16},{"$f":"VLOOKUP(DropDownList!$B$47,CntyQuery!$A$51:$CE$93,P$1)","v":15},{"$f":"VLOOKUP(DropDownList!$B$47,CntyQuery!$A$51:$CE$93,Q$1)","v":14},{"$f":"VLOOKUP(DropDownList!$B$47,CntyQuery!$A$51:$CE$93,R$1)","v":53},{"$f":"VLOOKUP(DropDownList!$B$47,CntyQuery!$A$51:$CE$93,S$1)","v":1479},{"$f":"VLOOKUP(DropDownList!$B$47,CntyQuery!$A$51:$CE$93,T$1)","v":700},{"$f":"VLOOKUP(DropDownList!$B$47,CntyQuery!$A$51:$CE$93,U$1)","v":1303},{"$f":"VLOOKUP(DropDownList!$B$47,CntyQuery!$A$51:$CE$93,V$1)","v":1142},{"$f":"VLOOKUP(DropDownList!$B$47,CntyQuery!$A$51:$CE$93,W$1)","v":673},{"$f":"VLOOKUP(DropDownList!$B$47,CntyQuery!$A$51:$CE$93,X$1)","v":402},{"$f":"VLOOKUP(DropDownList!$B$47,CntyQuery!$A$51:$CE$93,Y$1)","v":317},{"$f":"VLOOKUP(DropDownList!$B$47,CntyQuery!$A$51:$CE$93,Z$1)","v":148},{"$f":"VLOOKUP(DropDownList!$B$47,CntyQuery!$A$51:$CE$93,AA$1)","v":6164},{"$f":"VLOOKUP(DropDownList!$B$47,CntyQuery!$A$51:$CE$93,AB$1)","v":5438},{"$f":"VLOOKUP(DropDownList!$B$47,CntyQuery!$A$51:$CE$93,AC$1)","v":0},{"$f":"VLOOKUP(DropDownList!$B$47,CntyQuery!$A$51:$CE$93,AD$1)","v":2.7803337843933242},{"$f":"VLOOKUP(DropDownList!$B$47,CntyQuery!$A$51:$CE$93,AE$1)","v":3.2025912838633688},{"$f":"VLOOKUP(DropDownList!$B$47,CntyQuery!$A$51:$CE$93,AF$1)","v":360},{"$f":"VLOOKUP(DropDownList!$B$47,CntyQuery!$A$51:$CE$93,AG$1)","v":1497},{"$f":"VLOOKUP(DropDownList!$B$47,CntyQuery!$A$51:$CE$93,AH$1)","v":201},{"$f":"VLOOKUP(DropDownList!$B$47,CntyQuery!$A$51:$CE$93,AI$1)","v":159},{"$f":"VLOOKUP(DropDownList!$B$47,CntyQuery!$A$51:$CE$93,AJ$1)","v":2640},{"$f":"VLOOKUP(DropDownList!$B$47,CntyQuery!$A$51:$CE$93,AK$1)","v":2217},{"$f":"VLOOKUP(DropDownList!$B$47,CntyQuery!$A$51:$CE$93,AL$1)","v":423},{"$f":"VLOOKUP(DropDownList!$B$47,CntyQuery!$A$51:$CE$93,AM$1)","v":1911},{"$f":"VLOOKUP(DropDownList!$B$47,CntyQuery!$A$51:$CE$93,AN$1)","v":306},{"$f":"VLOOKUP(DropDownList!$B$47,CntyQuery!$A$51:$CE$93,AO$1)","v":59},{"$f":"VLOOKUP(DropDownList!$B$47,CntyQuery!$A$51:$CE$93,AP$1)","v":44},{"$f":"VLOOKUP(DropDownList!$B$47,CntyQuery!$A$51:$CE$93,AQ$1)","v":280},{"$f":"VLOOKUP(DropDownList!$B$47,CntyQuery!$A$51:$CE$93,AR$1)","v":3},{"$f":"VLOOKUP(DropDownList!$B$47,CntyQuery!$A$51:$CE$93,AS$1)","v":0},{"$f":"VLOOKUP(DropDownList!$B$47,CntyQuery!$A$51:$CE$93,AT$1)","v":3},{"$f":"VLOOKUP(DropDownList!$B$47,CntyQuery!$A$51:$CE$93,AU$1)","v":6},{"$f":"VLOOKUP(DropDownList!$B$47,CntyQuery!$A$51:$CE$93,AV$1)","v":5},{"$f":"VLOOKUP(DropDownList!$B$47,CntyQuery!$A$51:$CE$93,AW$1)","v":4},{"$f":"VLOOKUP(DropDownList!$B$47,CntyQuery!$A$51:$CE$93,AX$1)","v":5},{"$f":"VLOOKUP(DropDownList!$B$47,CntyQuery!$A$51:$CE$93,AY$1)","v":4},{"$f":"VLOOKUP(DropDownList!$B$47,CntyQuery!$A$51:$CE$93,AZ$1)","v":20},{"$f":"VLOOKUP(DropDownList!$B$47,CntyQuery!$A$51:$CE$93,BA$1)","v":51},{"$f":"VLOOKUP(DropDownList!$B$47,CntyQuery!$A$51:$CE$93,BB$1)","v":185},{"$f":"VLOOKUP(DropDownList!$B$47,CntyQuery!$A$51:$CE$93,BC$1)","v":324},{"$f":"VLOOKUP(DropDownList!$B$47,CntyQuery!$A$51:$CE$93,BD$1)","v":257},{"$f":"VLOOKUP(DropDownList!$B$47,CntyQuery!$A$51:$CE$93,BE$1)","v":143},{"$f":"VLOOKUP(DropDownList!$B$47,CntyQuery!$A$51:$CE$93,BF$1)","v":48},{"$f":"VLOOKUP(DropDownList!$B$47,CntyQuery!$A$51:$CE$93,BG$1)","v":41},{"$f":"VLOOKUP(DropDownList!$B$47,CntyQuery!$A$51:$CE$93,BH$1)","v":17},{"$f":"VLOOKUP(DropDownList!$B$47,CntyQuery!$A$51:$CE$93,BI$1)","v":6},{"$f":"VLOOKUP(DropDownList!$B$47,CntyQuery!$A$51:$CE$93,BJ$1)","v":2},{"$f":"VLOOKUP(DropDownList!$B$47,CntyQuery!$A$51:$CE$93,BK$1)","v":2},{"$f":"VLOOKUP(DropDownList!$B$47,CntyQuery!$A$51:$CE$93,BL$1)","v":121400},{"$f":"VLOOKUP(DropDownList!$B$47,CntyQuery!$A$51:$CE$93,BM$1)","v":1809},{"$f":"VLOOKUP(DropDownList!$B$47,CntyQuery!$A$51:$CE$93,BN$1)","v":244},{"$f":"VLOOKUP(DropDownList!$B$47,CntyQuery!$A$51:$CE$93,BO$1)","v":587},{"$f":"VLOOKUP(DropDownList!$B$47,CntyQuery!$A$51:$CE$93,BP$1)","v":1402},{"$f":"VLOOKUP(DropDownList!$B$47,CntyQuery!$A$51:$CE$93,BQ$1)","v":39},{"$f":"VLOOKUP(DropDownList!$B$47,CntyQuery!$A$51:$CE$93,BR$1)","v":470},{"$f":"VLOOKUP(DropDownList!$B$47,CntyQuery!$A$51:$CE$93,BS$1)","v":108},{"$f":"VLOOKUP(DropDownList!$B$47,CntyQuery!$A$51:$CE$93,BT$1)","v":152},{"$f":"VLOOKUP(DropDownList!$B$47,CntyQuery!$A$51:$CE$93,BU$1)","v":46},{"$f":"VLOOKUP(DropDownList!$B$47,CntyQuery!$A$51:$CE$93,BV$1)","v":1809},{"$f":"VLOOKUP(DropDownList!$B$47,CntyQuery!$A$51:$CE$93,BW$1)","v":21},{"$f":"VLOOKUP(DropDownList!$B$47,CntyQuery!$A$51:$CE$93,BX$1)","v":45},{"$f":"VLOOKUP(DropDownList!$B$47,CntyQuery!$A$51:$CE$93,BY$1)","v":36},{"$f":"VLOOKUP(DropDownList!$B$47,CntyQuery!$A$51:$CE$93,BZ$1)","v":99},{"$f":"VLOOKUP(DropDownList!$B$47,CntyQuery!$A$51:$CE$93,CA$1)","v":43},{"$f":"VLOOKUP(DropDownList!$B$47,CntyQuery!$A$51:$CE$93,CB$1)","v":0},{"$f":"VLOOKUP(DropDownList!$B$47,CntyQuery!$A$51:$CE$93,CC$1)","v":0},{"$f":"VLOOKUP(DropDownList!$B$47,CntyQuery!$A$51:$CE$93,CD$1)","v":569},{"$f":"VLOOKUP(DropDownList!$B$47,CntyQuery!$A$51:$CE$93,CE$1)","v":18}]
[]
[]
["Census 1990 Data -          Query Name: TownSTF3Qry1"]
["NAME","FIPS","COUSUBFP","LandAcres","WaterAcres","HousingUnits90Cen","P01Persons90Cen","P02Families90Cen","P03Households90cen","H25HU<5yrs90cen","H25HU5to20yrs90cen","H25HU20to50yrs90cen","H25HU>50yrs90cen","H31Units0Bedroom90cen","H31Units1Bedroom90cen","H31Units2Bedroom90cen","H31Units3Bedroom90cen","H31Units4Bedroom90cen","H31Units5+Bedroom90cen","P80HI<5K","P80HI5Kto10K","P80HI10Kto15K","P80HI15Kto25K","P80HI25Kto35K","P80HI35Kto50K","P80HI50Kto75K","P80HI75Kto100K","P80HI>100K","P80AMedHI","P86HH<25HI<5K","P86HH<25HI5Kto10K","P86HH<25HI10Kto15K","P86HH<25HI15Kto25K","P86HH<25HI25Kto35K","P86HH<25HI35Kto50K","P86HH<25HI50Kto75K","P86HH<25HI75Kto100K","P86HH<25HI>100K","P86HH25to34HI<5K","P86HH25to34HI5Kto10K","P86HH25to34HI10Kto15K","P86HH25to34HI15Kto25K","P86HH25to34HI25Kto35K","P86HH25to34HI35Kto50K","P86HH25to34HI50Kto75K","P86HH25to34HI75Kto100K","P86HH25to34HI>100K","P86HH35to44HI<5K","P86HH35to44HI5Kto10K","P86HH35to44HI10Kto15K","P86HH35to44HI15Kto25K","P86HH35to44HI25Kto35K","P86HH35to44HI35Kto50K","P86HH35to44HI50Kto75K","P86HH35to44HI75Kto100K","P86HH35to44HI>100K","P86HH45to54HI<5K","P86HH45to54HI5Kto10K","P86HH45to54HI10Kto15K","P86HH45to54HI15Kto25K","P86HH45to54HI25Kto35K","P86HH45to54HI35Kto50K","P86HH45to54HI50Kto75K","P86HH45to54HI75Kto100K","P86HH45to54HI>100K","P86HH55to64HI<5K","P86HH55to64HI5Kto10K","P86HH55to64HI10Kto15K","P86HH55to64HI15Kto25K","P86HH55to64HI25Kto35K","P86HH55to64HI35Kto50K","P86HH55to64HI50Kto75K","P86HH55to64HI75Kto100K","P86HH55to64HI>100K","P86HH65to74HI<5K","P86HH65to74HI5Kto10K","P86HH65to74HI10Kto15K","P86HH65to74HI15Kto25K","P86HH65to74HI25Kto35K","P86HH65to74HI35Kto50K","P86HH65to74HI50Kto75K","P86HH65to74HI75Kto100K","P86HH65to74HI>100K","P86HH>75HI<5K","P86HH>75HI5Kto10K","P86HH>75HI10Kto15K","P86HH>75HI15Kto25K","P86HH>75HI25Kto35K","P86HH>75HI35Kto50K","P86HH>75HI50Kto75K","P86HH>75HI75Kto100K","P86HH>75HI>100K","P54SchlEnrlPrePrim","P54SchlEnrlElemThrHS","P54SchlEnrlCollege","P54NotEnrlInSch","P57Pop25andOver","P57LessThan9thGrade","P579thto12thNoDip","P57HSGrad","P57SomeCollege","P57AssocDeg","P57BachelDeg","P57GradorProfDeg","P57HSGradorHigher","P57CollGradorHigher","P42NativePop","P42ForeignBornPop","P42BornStateOfRes","P37NativePop2","P37ForeignBornPop2","P49DroveAlone","P49CarPooled","P49PublicTranspt","P49Walked","P49OtherMeans","P49WorkedAtHome","P80HHInc<10K","P80HHInc10to15K","P80HHInc15to25K","P80HHInc25to35K","P80HHInc35to50K","P80HHInc50to75K","P80HHInc75to100K","P80HHInc100to150K","P80HHInc>150K","H25YearStBlt89to90","H25YearStBlt85to88","H25YearStBlt80to84","H25YearStBlt70to79","H25YearStBlt60to69","H25YearStBlt50to59","H25YearStBlt40to49","H25YearStBlt39earlier","P107FamInc<10K","P107FamInc10to15K","P107FamInc15to25K","P107FamInc25to35K","P107FamInc35to50K","P107FamInc50to75K","P107FamInc75to100K","P107FamInc100to150K","P107FamInc>150K","P107AMedFamInc","P110NonFamInc<10K","P110NonFamInc10to15K","P110NonFamInc15to25K","P110NonFamInc25to35K","P110NonFamInc35to50K","P110NonFamInc50to75K","P110NonFamInc75to100K","P110NonFamInc100to150K","P110NonFamInc>150K","P110AMedNonFamInc","H16HU1Room","H16HU2Room","H16HU3Room","H16HU4Room","H16HU5Room","H16HU6Room","H16HU7Room","H16HU8Room","H16HU9+Room","H43GrossRnt<100","H43GrossRnt100to149","H43GrossRnt150to199","H43GrossRnt200to249","H43GrossRnt250to299","H43GrossRnt300to349","H43GrossRnt350to399","H43GrossRnt400to449","H43GrossRnt450to499","H43GrossRnt500to549","H43GrossRnt550to599","H43GrossRnt600to649","H43GrossRnt650to699","H43GrossRnt700to749","H43GrossRnt750to999","H43GrossRnt1000Plus","H43NoCashRent","H43MedGrossRent","H51GrossRnt<20PctHHInc","H51GrossRnt20to24PctHHInc","H51GrossRnt25to29PctHHInc","H51GrossRnt30to34PctHHInc","H51GrossRnt35PctOrMoreHHInc","H51GrossRntAsPctHHIncNotComp","H52HUwMtgMoOwnCst<200","H52HUwMtgMoOwnCst200to299","H52HUwMtgMoOwnCst300to399","H52HUwMtgMoOwnCst400to499","H52HUwMtgMoOwnCst500to599","H52HUwMtgMoOwnCst600to699","H52HUwMtgMoOwnCst700to799","H52HUwMtgMoOwnCst800to899","H52HUwMtgMoOwnCst900to999","H52HUwMtgMoOwnCst1000to1249","H52HUwMtgMoOwnCst1250to1499","H52HUwMtgMoOwnCst1500to1999","H52HUwMtgMoOwnCst2000More","H52HUwNoMtgMoOwnCst<100","H52HUwNoMtgMoOwnCst100to149","H52HUwNoMtgMoOwnCst150to199","H52HUwNoMtgMoOwnCst200to249","H52HUwNoMtgMoOwnCst250to299","H52HUwNoMtgMoOwnCst300to349","H52HUwNoMtgMoOwnCst350to399","H52HUwNoMtgMoOwnCst400More","H52AMedMoOwnCstWMortg","H52AMedMoOwnCstWNoMortg","H58HUwMtgMOC<20pHHInc","H58HUwMtgMOC20to24pHHInc","H58HUwMtgMOC25to29pHHInc","H58HUwMtgMOC30to34pHHInc","H58wMtgMOC>35pHHInc","H58HUwMtgMOCNotComp","H58HUwNoMtgMOC<20pHHInc","H58HUwNoMtgMOC20to24pHHInc","H58HUwNoMtgMOC25to29pHHInc","H58HUwNoMtgMOC30to34pHHInc","H58wNoMtgMOC>35pHHInc","H58HUwNoMtgMOCNotComp","H61OOHUVal<15k","H61OOHUVal15to19k","H61OOHUVal20to24k","H61OOHUVal25to29k","H61OOHUVal30to34k","H61OOHUVal35to39k","H61OOHUVal40to44k","H61OOHUVal45to49k","H61OOHUVal50to59k","H61OOHUVal60to74k","H61OOHUVal75to99k","H61OOHUVal100to124k","H61OOHUVal125to149k","H61OOHUVal150to174k","H61OOHUVal175to199k","H61OOHUVal200to249k","H61OOHUVal250to299k","H61OOHUVal300to399k","H61OOHUVal400to499k","H61OOHUVal500kOrMore","H61aOOHUMedVal"]
[]
[]
[]
["Other Demo Data -             Query Name: QryAllTowns-ACSDemographicSheet"]
["TOWN_NAME","FIPS","TOWNCNTY","COUSUB","POP80","POP90CDCEN","POP2000CEN","POP2010CEN","POP2020-Proj","POP2025-Proj","POP2030-Proj","SF80","MF80","MH80","SF81","MF81","MH81","SF82","MF82","MH82","SF83","MF83","MH83","SF84_OSP","MF84_OSP","MH84_OSP","SF85_OSP","MF85_OSP","MH85_OSP","SF86_OSP","MF86_OSP","MH86_OSP","SF87_OSP","MF87_OSP","MH87_OSP","SF88_OSP","MF88_OSP","MH88_OSP","SF89_OSP","MF89_OSP","MH89_OSP","SF90_OSP","MF90_OSP","MH90_OSP","SF91_OSP","MF91_OSP","MH91_OSP","SF92_OSP","MF92_OSP","MH92_OSP","SF93_OSP","MF93_OSP","MH93_OSP","SF94_OSP","MF94_OSP","MH94_OSP","SF95_OSP","MF95_OSP","MH95_OSP","SF96_OSP","MF96_OSP","MH96_OSP","SF97_OSP","MF97_OSP","MH97_OSP","SF98_OSP","MF98_OSP","MH98_OSP","SF99_OSP","MF99_OSP","MH99_OSP","SF00_OSP","MF00_OSP","MH00_OSP","SF01_OSP","MF01_OSP","MH01_OSP","SF02_OSP","MF02_OSP","MH02_OSP","SF03_OSP","MF03_OSP","MH03_OSP","SF04_OSP","MF04_OSP","MH04_OSP","SF05_OSP","MF05_OSP","MH05_OSP","SF06_OSP","MF06_OSP","MH06_OSP","SF07_OSP","MF07_OSP","MH07_OSP","SF08_OSP","MF08_OSP","MH08_OSP","SF09_OSP","MF09_OSP","MH09_OSP","SF10_OSP","MF10_OSP","MH10_OSP","SF11_OSP","MF11_OSP","MH11_OSP","SF12_OSP","MF12_OSP","MH12_OSP","SF13_OSP","MF13_OSP","MH13_OSP","SF14_OSP","MF14_OSP","MH14_OSP","SF15_OSP","MF15_OSP","MH15_OSP","SF16_OSP","MF16_OSP","MH16_OSP","SF17_OSP","MF17_OSP","MH17_OSP","SF18_OSP","MF18_OSP","MH18_OSP","SF19_OSP","MF19_OSP","MH19_OSP","COMMENTS"]
[{"$f":"VLOOKUP(DropDownList!$B$47,CntyQuery!$A$118:$FZ$130,A$1)","v":"Barrington"},{"$f":"VLOOKUP(DropDownList!$B$47,CntyQuery!$A$118:$FZ$130,B$1)","v":17005},{"$f":"VLOOKUP(DropDownList!$B$47,CntyQuery!$A$118:$FZ$130,C$1)","v":901},{"$f":"VLOOKUP(DropDownList!$B$47,CntyQuery!$A$118:$FZ$130,D$1)","v":"03460"},{"$f":"VLOOKUP(DropDownList!$B$47,CntyQuery!$A$118:$FZ$130,E$1)","v":4404},{"$f":"VLOOKUP(DropDownList!$B$47,CntyQuery!$A$118:$FZ$130,F$1)","v":6164},{"$f":"VLOOKUP(DropDownList!$B$47,CntyQuery!$A$118:$FZ$130,G$1)","v":7475},{"$f":"VLOOKUP(DropDownList!$B$47,CntyQuery!$A$118:$FZ$130,H$1)","v":8576},{"$f":"VLOOKUP(DropDownList!$B$47,CntyQuery!$A$118:$FZ$130,I$1)","v":9536},{"$f":"VLOOKUP(DropDownList!$B$47,CntyQuery!$A$118:$FZ$130,J$1)","v":9730},{"$f":"VLOOKUP(DropDownList!$B$47,CntyQuery!$A$118:$FZ$130,K$1)","v":9970},{"$f":"VLOOKUP(DropDownList!$B$47,CntyQuery!$A$118:$FZ$130,L$1)","v":26},{"$f":"VLOOKUP(DropDownList!$B$47,CntyQuery!$A$118:$FZ$130,M$1)","v":0},{"$f":"VLOOKUP(DropDownList!$B$47,CntyQuery!$A$118:$FZ$130,N$1)","v":15},{"$f":"VLOOKUP(DropDownList!$B$47,CntyQuery!$A$118:$FZ$130,O$1)","v":22},{"$f":"VLOOKUP(DropDownList!$B$47,CntyQuery!$A$118:$FZ$130,P$1)","v":0},{"$f":"VLOOKUP(DropDownList!$B$47,CntyQuery!$A$118:$FZ$130,Q$1)","v":9},{"$f":"VLOOKUP(DropDownList!$B$47,CntyQuery!$A$118:$FZ$130,R$1)","v":37},{"$f":"VLOOKUP(DropDownList!$B$47,CntyQuery!$A$118:$FZ$130,S$1)","v":6},{"$f":"VLOOKUP(DropDownList!$B$47,CntyQuery!$A$118:$FZ$130,T$1)","v":20},{"$f":"VLOOKUP(DropDownList!$B$47,CntyQuery!$A$118:$FZ$130,U$1)","v":41},{"$f":"VLOOKUP(DropDownList!$B$47,CntyQuery!$A$118:$FZ$130,V$1)","v":0},{"$f":"VLOOKUP(DropDownList!$B$47,CntyQuery!$A$118:$FZ$130,W$1)","v":14},{"$f":"VLOOKUP(DropDownList!$B$47,CntyQuery!$A$118:$FZ$130,X$1)","v":45},{"$f":"VLOOKUP(DropDownList!$B$47,CntyQuery!$A$118:$FZ$130,Y$1)","v":10},{"$f":"VLOOKUP(DropDownList!$B$47,CntyQuery!$A$118:$FZ$130,Z$1)","v":15},{"$f":"VLOOKUP(DropDownList!$B$47,CntyQuery!$A$118:$FZ$130,AA$1)","v":62},{"$f":"VLOOKUP(DropDownList!$B$47,CntyQuery!$A$118:$FZ$130,AB$1)","v":1},{"$f":"VLOOKUP(DropDownList!$B$47,CntyQuery!$A$118:$FZ$130,AC$1)","v":6},{"$f":"VLOOKUP(DropDownList!$B$47,CntyQuery!$A$118:$FZ$130,AD$1)","v":68},{"$f":"VLOOKUP(DropDownList!$B$47,CntyQuery!$A$118:$FZ$130,AE$1)","v":18},{"$f":"VLOOKUP(DropDownList!$B$47,CntyQuery!$A$118:$FZ$130,AF$1)","v":4},{"$f":"VLOOKUP(DropDownList!$B$47,CntyQuery!$A$118:$FZ$130,AG$1)","v":62},{"$f":"VLOOKUP(DropDownList!$B$47,CntyQuery!$A$118:$FZ$130,AH$1)","v":0},{"$f":"VLOOKUP(DropDownList!$B$47,CntyQuery!$A$118:$FZ$130,AI$1)","v":3},{"$f":"VLOOKUP(DropDownList!$B$47,CntyQuery!$A$118:$FZ$130,AJ$1)","v":79},{"$f":"VLOOKUP(DropDownList!$B$47,CntyQuery!$A$118:$FZ$130,AK$1)","v":6},{"$f":"VLOOKUP(DropDownList!$B$47,CntyQuery!$A$118:$FZ$130,AL$1)","v":11},{"$f":"VLOOKUP(DropDownList!$B$47,CntyQuery!$A$118:$FZ$130,AM$1)","v":67},{"$f":"VLOOKUP(DropDownList!$B$47,CntyQuery!$A$118:$FZ$130,AN$1)","v":5},{"$f":"VLOOKUP(DropDownList!$B$47,CntyQuery!$A$118:$FZ$130,AO$1)","v":4},{"$f":"VLOOKUP(DropDownList!$B$47,CntyQuery!$A$118:$FZ$130,AP$1)","v":52},{"$f":"VLOOKUP(DropDownList!$B$47,CntyQuery!$A$118:$FZ$130,AQ$1)","v":0},{"$f":"VLOOKUP(DropDownList!$B$47,CntyQuery!$A$118:$FZ$130,AR$1)","v":6},{"$f":"VLOOKUP(DropDownList!$B$47,CntyQuery!$A$118:$FZ$130,AS$1)","v":37},{"$f":"VLOOKUP(DropDownList!$B$47,CntyQuery!$A$118:$FZ$130,AT$1)","v":1},{"$f":"VLOOKUP(DropDownList!$B$47,CntyQuery!$A$118:$FZ$130,AU$1)","v":7},{"$f":"VLOOKUP(DropDownList!$B$47,CntyQuery!$A$118:$FZ$130,AV$1)","v":31},{"$f":"VLOOKUP(DropDownList!$B$47,CntyQuery!$A$118:$FZ$130,AW$1)","v":2},{"$f":"VLOOKUP(DropDownList!$B$47,CntyQuery!$A$118:$FZ$130,AX$1)","v":11},{"$f":"VLOOKUP(DropDownList!$B$47,CntyQuery!$A$118:$FZ$130,AY$1)","v":30},{"$f":"VLOOKUP(DropDownList!$B$47,CntyQuery!$A$118:$FZ$130,AZ$1)","v":0},{"$f":"VLOOKUP(DropDownList!$B$47,CntyQuery!$A$118:$FZ$130,BA$1)","v":10},{"$f":"VLOOKUP(DropDownList!$B$47,CntyQuery!$A$118:$FZ$130,BB$1)","v":33},{"$f":"VLOOKUP(DropDownList!$B$47,CntyQuery!$A$118:$FZ$130,BC$1)","v":0},{"$f":"VLOOKUP(DropDownList!$B$47,CntyQuery!$A$118:$FZ$130,BD$1)","v":8},{"$f":"VLOOKUP(DropDownList!$B$47,CntyQuery!$A$118:$FZ$130,BE$1)","v":50},{"$f":"VLOOKUP(DropDownList!$B$47,CntyQuery!$A$118:$FZ$130,BF$1)","v":2},{"$f":"VLOOKUP(DropDownList!$B$47,CntyQuery!$A$118:$FZ$130,BG$1)","v":10},{"$f":"VLOOKUP(DropDownList!$B$47,CntyQuery!$A$118:$FZ$130,BH$1)","v":36},{"$f":"VLOOKUP(DropDownList!$B$47,CntyQuery!$A$118:$FZ$130,BI$1)","v":4},{"$f":"VLOOKUP(DropDownList!$B$47,CntyQuery!$A$118:$FZ$130,BJ$1)","v":14},{"$f":"VLOOKUP(DropDownList!$B$47,CntyQuery!$A$118:$FZ$130,BK$1)","v":52},{"$f":"VLOOKUP(DropDownList!$B$47,CntyQuery!$A$118:$FZ$130,BL$1)","v":0},{"$f":"VLOOKUP(DropDownList!$B$47,CntyQuery!$A$118:$FZ$130,BM$1)","v":14},{"$f":"VLOOKUP(DropDownList!$B$47,CntyQuery!$A$118:$FZ$130,BN$1)","v":54},{"$f":"VLOOKUP(DropDownList!$B$47,CntyQuery!$A$118:$FZ$130,BO$1)","v":0},{"$f":"VLOOKUP(DropDownList!$B$47,CntyQuery!$A$118:$FZ$130,BP$1)","v":7},{"$f":"VLOOKUP(DropDownList!$B$47,CntyQuery!$A$118:$FZ$130,BQ$1)","v":67},{"$f":"VLOOKUP(DropDownList!$B$47,CntyQuery!$A$118:$FZ$130,BR$1)","v":4},{"$f":"VLOOKUP(DropDownList!$B$47,CntyQuery!$A$118:$FZ$130,BS$1)","v":0},{"$f":"VLOOKUP(DropDownList!$B$47,CntyQuery!$A$118:$FZ$130,BT$1)","v":69},{"$f":"VLOOKUP(DropDownList!$B$47,CntyQuery!$A$118:$FZ$130,BU$1)","v":0},{"$f":"VLOOKUP(DropDownList!$B$47,CntyQuery!$A$118:$FZ$130,BV$1)","v":6},{"$f":"VLOOKUP(DropDownList!$B$47,CntyQuery!$A$118:$FZ$130,BW$1)","v":51},{"$f":"VLOOKUP(DropDownList!$B$47,CntyQuery!$A$118:$FZ$130,BX$1)","v":6},{"$f":"VLOOKUP(DropDownList!$B$47,CntyQuery!$A$118:$FZ$130,BY$1)","v":1},{"$f":"VLOOKUP(DropDownList!$B$47,CntyQuery!$A$118:$FZ$130,BZ$1)","v":59},{"$f":"VLOOKUP(DropDownList!$B$47,CntyQuery!$A$118:$FZ$130,CA$1)","v":10},{"$f":"VLOOKUP(DropDownList!$B$47,CntyQuery!$A$118:$FZ$130,CB$1)","v":0},{"$f":"VLOOKUP(DropDownList!$B$47,CntyQuery!$A$118:$FZ$130,CC$1)","v":44},{"$f":"VLOOKUP(DropDownList!$B$47,CntyQuery!$A$118:$FZ$130,CD$1)","v":0},{"$f":"VLOOKUP(DropDownList!$B$47,CntyQuery!$A$118:$FZ$130,CE$1)","v":1},{"$f":"VLOOKUP(DropDownList!$B$47,CntyQuery!$A$118:$FZ$130,CF$1)","v":77},{"$f":"VLOOKUP(DropDownList!$B$47,CntyQuery!$A$118:$FZ$130,CG$1)","v":2},{"$f":"VLOOKUP(DropDownList!$B$47,CntyQuery!$A$118:$FZ$130,CH$1)","v":0},{"$f":"VLOOKUP(DropDownList!$B$47,CntyQuery!$A$118:$FZ$130,CI$1)","v":63},{"$f":"VLOOKUP(DropDownList!$B$47,CntyQuery!$A$118:$FZ$130,CJ$1)","v":4},{"$f":"VLOOKUP(DropDownList!$B$47,CntyQuery!$A$118:$FZ$130,CK$1)","v":15},{"$f":"VLOOKUP(DropDownList!$B$47,CntyQuery!$A$118:$FZ$130,CL$1)","v":52},{"$f":"VLOOKUP(DropDownList!$B$47,CntyQuery!$A$118:$FZ$130,CM$1)","v":0},{"$f":"VLOOKUP(DropDownList!$B$47,CntyQuery!$A$118:$FZ$130,CN$1)","v":22},{"$f":"VLOOKUP(DropDownList!$B$47,CntyQuery!$A$118:$FZ$130,CO$1)","v":37},{"$f":"VLOOKUP(DropDownList!$B$47,CntyQuery!$A$118:$FZ$130,CP$1)","v":6},{"$f":"VLOOKUP(DropDownList!$B$47,CntyQuery!$A$118:$FZ$130,CQ$1)","v":0},{"$f":"VLOOKUP(DropDownList!$B$47,CntyQuery!$A$118:$FZ$130,CR$1)","v":42},{"$f":"VLOOKUP(DropDownList!$B$47,CntyQuery!$A$118:$FZ$130,CS$1)","v":0},{"$f":"VLOOKUP(DropDownList!$B$47,CntyQuery!$A$118:$FZ$130,CT$1)","v":0},{"$f":"VLOOKUP(DropDownList!$B$47,CntyQuery!$A$118:$FZ$130,CU$1)","v":29},{"$f":"VLOOKUP(DropDownList!$B$47,CntyQuery!$A$118:$FZ$130,CV$1)","v":0},{"$f":"VLOOKUP(DropDownList!$B$47,CntyQuery!$A$118:$FZ$130,CW$1)","v":0},{"$f":"VLOOKUP(DropDownList!$B$47,CntyQuery!$A$118:$FZ$130,CX$1)","v":37},{"$f":"VLOOKUP(DropDownList!$B$47,CntyQuery!$A$118:$FZ$130,CY$1)","v":0},{"$f":"VLOOKUP(DropDownList!$B$47,CntyQuery!$A$118:$FZ$130,CZ$1)","v":2},{"$f":"VLOOKUP(DropDownList!$B$47,CntyQuery!$A$118:$FZ$130,DA$1)","v":20},{"$f":"VLOOKUP(DropDownList!$B$47,CntyQuery!$A$118:$FZ$130,DB$1)","v":2},{"$f":"VLOOKUP(DropDownList!$B$47,CntyQuery!$A$118:$FZ$130,DC$1)","v":0},{"$f":"VLOOKUP(DropDownList!$B$47,CntyQuery!$A$118:$FZ$130,DD$1)","v":19},{"$f":"VLOOKUP(DropDownList!$B$47,CntyQuery!$A$118:$FZ$130,DE$1)","v":0},{"$f":"VLOOKUP(DropDownList!$B$47,CntyQuery!$A$118:$FZ$130,DF$1)","v":2},{"$f":"VLOOKUP(DropDownList!$B$47,CntyQuery!$A$118:$FZ$130,DG$1)","v":17},{"$f":"VLOOKUP(DropDownList!$B$47,CntyQuery!$A$118:$FZ$130,DH$1)","v":0},{"$f":"VLOOKUP(DropDownList!$B$47,CntyQuery!$A$118:$FZ$130,DI$1)","v":3},{"$f":"VLOOKUP(DropDownList!$B$47,CntyQuery!$A$118:$FZ$130,DJ$1)","v":26},{"$f":"VLOOKUP(DropDownList!$B$47,CntyQuery!$A$118:$FZ$130,DK$1)","v":0},{"$f":"VLOOKUP(DropDownList!$B$47,CntyQuery!$A$118:$FZ$130,DL$1)","v":2},{"$f":"VLOOKUP(DropDownList!$B$47,CntyQuery!$A$118:$FZ$130,DM$1)","v":26},{"$f":"VLOOKUP(DropDownList!$B$47,CntyQuery!$A$118:$FZ$130,DN$1)","v":0},{"$f":"VLOOKUP(DropDownList!$B$47,CntyQuery!$A$118:$FZ$130,DO$1)","v":0},{"$f":"VLOOKUP(DropDownList!$B$47,CntyQuery!$A$118:$FZ$130,DP$1)","v":26},{"$f":"VLOOKUP(DropDownList!$B$47,CntyQuery!$A$118:$FZ$130,DQ$1)","v":0},{"$f":"VLOOKUP(DropDownList!$B$47,CntyQuery!$A$118:$FZ$130,DR$1)","v":5},{"$f":"VLOOKUP(DropDownList!$B$47,CntyQuery!$A$118:$FZ$130,DS$1)","v":41},{"$f":"VLOOKUP(DropDownList!$B$47,CntyQuery!$A$118:$FZ$130,DT$1)","v":0},{"$f":"VLOOKUP(DropDownList!$B$47,CntyQuery!$A$118:$FZ$130,DU$1)","v":0},{"$f":"VLOOKUP(DropDownList!$B$47,CntyQuery!$A$118:$FZ$130,DV$1)","v":33},{"$f":"VLOOKUP(DropDownList!$B$47,CntyQuery!$A$118:$FZ$130,DW$1)","v":8},{"$f":"VLOOKUP(DropDownList!$B$47,CntyQuery!$A$118:$FZ$130,DX$1)","v":1},{"$f":"VLOOKUP(DropDownList!$B$47,CntyQuery!$A$118:$FZ$130,DY$1)","v":15},{"$f":"VLOOKUP(DropDownList!$B$47,CntyQuery!$A$118:$FZ$130,DZ$1)","v":6},{"$f":"VLOOKUP(DropDownList!$B$47,CntyQuery!$A$118:$FZ$130,EA$1)","v":-1},{"$f":"VLOOKUP(DropDownList!$B$47,CntyQuery!$A$118:$FZ$130,EB$1)","v":""}]
[]
[]
[]
["AreaName","COUNTYCODE","TOTP & G2001","TOT2001","GOODPRO2001","SERVICEPROMAN2001","WAGEP & G2001","WAGETOT2001","WAGEGOODPRO2001","WAGESERVICEPRO2001","TOTP & G2002","TOT2002","GOODPRO2002","SERVICEPROMAN2002","WAGEP & G2002","WAGETOT2002","WAGEGOODPRO2002","WAGESERVICEPRO2002","TOTP & G2003","TOT2003","GOODPRO2003","SERVICEPROMAN2003","WAGEP & G2003","WAGETOT2003","WAGEGOODPRO2003","WAGESERVICEPRO2003","TOTP & G2004","TOT2004","GOODPRO2004","SERVICEPROMAN2004","WAGEP & G2004","WAGETOT2004","WAGEGOODPRO2004","WAGESERVICEPRO2004","TOTP & G2005","TOT2005","GOODPRO2005","SERVICEPROMAN2005","WAGEP & G2005","WAGETOT2005","WAGEGOODPRO2005","WAGESERVICEPRO2005","TOTP & G2006","TOT2006","GOODPRO2006","SERVICEPROMAN2006","WAGEP & G2006","WAGETOT2006","WAGEGOODPRO2006","WAGESERVICEPRO2006","TOTP & G2007","TOT2007","GOODPRO2007","SERVICEPROMAN2007","WAGEP & G2007","WAGETOT2007","WAGEGOODPRO2007","WAGESERVICEPRO2007","TOTP & G2008","TOT2008","GOODPRO2008","SERVICEPROMAN2008","WAGEP & G2008","WAGETOT2008","WAGEGOODPRO2008","WAGESERVICEPRO2008","TOTP & G2009","TOT2009","GOODPRO2009","SERVICEPROMAN2009","WAGEP & G2009","WAGETOT2009","WAGEGOODPRO2009","WAGESERVICEPRO2009","TOTP & G2010","TOT2010","GOODPRO2010","SERVICEPROMAN2010","WAGEP & G2010","WAGETOT2010","WAGEGOODPRO2010","WAGESERVICEPRO2010","TOTP & G2011","TOT2011","GOODPRO2011","SERVICEPROMAN2011","WAGEP & G2011","WAGETOT2011","WAGEGOODPRO2011","WAGESERVICEPRO2011","TOTP & G2012","TOT2012","GOODPRO2012","SERVICEPROMAN2012","WAGEP & G2012","WAGETOT2012","WAGEGOODPRO2012","WAGESERVICEPRO2012","TOTP & G2013","TOT2013","GOODPRO2013","SERVICEPROMAN2013","WAGEP & G2013","WAGETOT2013","WAGEGOODPRO2013","WAGESERVICEPRO2013","TOTP & G2014","TOT2014","GOODPRO2014","SERVICEPROMAN2014","WAGEP & G2014","WAGETOT2014","WAGEGOODPRO2014","WAGESERVICEPRO2014","TOTP & G2015","TOT2015","GOODPRO2015","SERVICEPROMAN2015","WAGEP & G2015","WAGETOT2015","WAGEGOODPRO2015","WAGESERVICEPRO2015","TOTP & G2016","TOT2016","GOODPRO2016","SERVICEPROMAN2016","WAGEP & G2016","WAGETOT2016","WAGEGOODPRO2016","WAGESERVICEPRO2016","TOTP & G2017","TOT2017","GOODPRO2017","SERVICEPROMAN2017","WAGEP & G2017","WAGETOT2017","WAGEGOODPRO2017","WAGESERVICEPRO2017","TOTP & G2018","TOT2018","GOODPRO2018","SERVICEPROMAN2018","WAGEP & G2018","WAGETOT2018","WAGEGOODPRO2018","WAGESERVICEPRO2018","TOTP & G2019","TOT2019","TOTGov2019","GOODPRO2019","SERVICEPROMAN2019","WAGEP & G2019","WAGETOT2019","WAGEGov2019","WAGEGOODPRO2019","WAGESERVICEPRO2019","SummaryLevel"]
[{"$f":"VLOOKUP(DropDownList!$B$47,CntyQuery!$A$170:$FT$183,A$1)","v":"Barrington"},{"$f":"VLOOKUP(DropDownList!$B$47,CntyQuery!$A$170:$FT$183,B$1)","v":9},"v",{"$f":"VLOOKUP(DropDownList!$B$47,CntyQuery!$A$170:$FT$183,D$1)","v":766},{"$f":"VLOOKUP(DropDownList!$B$47,CntyQuery!$A$170:$FT$183,E$1)","v":128},{"$f":"VLOOKUP(DropDownList!$B$47,CntyQuery!$A$170:$FT$183,F$1)","v":637},{"$f":"VLOOKUP(DropDownList!$B$47,CntyQuery!$A$170:$FT$183,G$1)","v":576.54},{"$f":"VLOOKUP(DropDownList!$B$47,CntyQuery!$A$170:$FT$183,H$1)","v":591.1},{"$f":"VLOOKUP(DropDownList!$B$47,CntyQuery!$A$170:$FT$183,I$1)","v":545.95000000000005},{"$f":"VLOOKUP(DropDownList!$B$47,CntyQuery!$A$170:$FT$183,J$1)","v":600.17999999999995},{"$f":"VLOOKUP(DropDownList!$B$47,CntyQuery!$A$170:$FT$183,K$1)","v":1011},{"$f":"VLOOKUP(DropDownList!$B$47,CntyQuery!$A$170:$FT$183,L$1)","v":803},{"$f":"VLOOKUP(DropDownList!$B$47,CntyQuery!$A$170:$FT$183,M$1)","v":121},{"$f":"VLOOKUP(DropDownList!$B$47,CntyQuery!$A$170:$FT$183,N$1)","v":682},{"$f":"VLOOKUP(DropDownList!$B$47,CntyQuery!$A$170:$FT$183,O$1)","v":597.25},{"$f":"VLOOKUP(DropDownList!$B$47,CntyQuery!$A$170:$FT$183,P$1)","v":612.87},{"$f":"VLOOKUP(DropDownList!$B$47,CntyQuery!$A$170:$FT$183,Q$1)","v":557.24},{"$f":"VLOOKUP(DropDownList!$B$47,CntyQuery!$A$170:$FT$183,R$1)","v":622.72},{"$f":"VLOOKUP(DropDownList!$B$47,CntyQuery!$A$170:$FT$183,S$1)","v":984},{"$f":"VLOOKUP(DropDownList!$B$47,CntyQuery!$A$170:$FT$183,T$1)","v":777},{"$f":"VLOOKUP(DropDownList!$B$47,CntyQuery!$A$170:$FT$183,U$1)","v":139},{"$f":"VLOOKUP(DropDownList!$B$47,CntyQuery!$A$170:$FT$183,V$1)","v":638},{"$f":"VLOOKUP(DropDownList!$B$47,CntyQuery!$A$170:$FT$183,W$1)","v":585.84},{"$f":"VLOOKUP(DropDownList!$B$47,CntyQuery!$A$170:$FT$183,X$1)","v":584.16999999999996},{"$f":"VLOOKUP(DropDownList!$B$47,CntyQuery!$A$170:$FT$183,Y$1)","v":534.86},{"$f":"VLOOKUP(DropDownList!$B$47,CntyQuery!$A$170:$FT$183,Z$1)","v":594.92999999999995},{"$f":"VLOOKUP(DropDownList!$B$47,CntyQuery!$A$170:$FT$183,AA$1)","v":1065},{"$f":"VLOOKUP(DropDownList!$B$47,CntyQuery!$A$170:$FT$183,AB$1)","v":841},{"$f":"VLOOKUP(DropDownList!$B$47,CntyQuery!$A$170:$FT$183,AC$1)","v":144},{"$f":"VLOOKUP(DropDownList!$B$47,CntyQuery!$A$170:$FT$183,AD$1)","v":697},{"$f":"VLOOKUP(DropDownList!$B$47,CntyQuery!$A$170:$FT$183,AE$1)","v":624.84},{"$f":"VLOOKUP(DropDownList!$B$47,CntyQuery!$A$170:$FT$183,AF$1)","v":632.54999999999995},{"$f":"VLOOKUP(DropDownList!$B$47,CntyQuery!$A$170:$FT$183,AG$1)","v":555.78},{"$f":"VLOOKUP(DropDownList!$B$47,CntyQuery!$A$170:$FT$183,AH$1)","v":648.38},{"$f":"VLOOKUP(DropDownList!$B$47,CntyQuery!$A$170:$FT$183,AI$1)","v":1165},{"$f":"VLOOKUP(DropDownList!$B$47,CntyQuery!$A$170:$FT$183,AJ$1)","v":923},{"$f":"VLOOKUP(DropDownList!$B$47,CntyQuery!$A$170:$FT$183,AK$1)","v":140},{"$f":"VLOOKUP(DropDownList!$B$47,CntyQuery!$A$170:$FT$183,AL$1)","v":783},{"$f":"VLOOKUP(DropDownList!$B$47,CntyQuery!$A$170:$FT$183,AM$1)","v":635.08000000000004},{"$f":"VLOOKUP(DropDownList!$B$47,CntyQuery!$A$170:$FT$183,AN$1)","v":650.46},{"$f":"VLOOKUP(DropDownList!$B$47,CntyQuery!$A$170:$FT$183,AO$1)","v":585.94000000000005},{"$f":"VLOOKUP(DropDownList!$B$47,CntyQuery!$A$170:$FT$183,AP$1)","v":662},{"$f":"VLOOKUP(DropDownList!$B$47,CntyQuery!$A$170:$FT$183,AQ$1)","v":1246},{"$f":"VLOOKUP(DropDownList!$B$47,CntyQuery!$A$170:$FT$183,AR$1)","v":992},{"$f":"VLOOKUP(DropDownList!$B$47,CntyQuery!$A$170:$FT$183,AS$1)","v":150},{"$f":"VLOOKUP(DropDownList!$B$47,CntyQuery!$A$170:$FT$183,AT$1)","v":843},{"$f":"VLOOKUP(DropDownList!$B$47,CntyQuery!$A$170:$FT$183,AU$1)","v":643.59},{"$f":"VLOOKUP(DropDownList!$B$47,CntyQuery!$A$170:$FT$183,AV$1)","v":658.49},{"$f":"VLOOKUP(DropDownList!$B$47,CntyQuery!$A$170:$FT$183,AW$1)","v":636.42999999999995},{"$f":"VLOOKUP(DropDownList!$B$47,CntyQuery!$A$170:$FT$183,AX$1)","v":662.41},{"$f":"VLOOKUP(DropDownList!$B$47,CntyQuery!$A$170:$FT$183,AY$1)","v":1309},{"$f":"VLOOKUP(DropDownList!$B$47,CntyQuery!$A$170:$FT$183,AZ$1)","v":1033},{"$f":"VLOOKUP(DropDownList!$B$47,CntyQuery!$A$170:$FT$183,BA$1)","v":141},{"$f":"VLOOKUP(DropDownList!$B$47,CntyQuery!$A$170:$FT$183,BB$1)","v":892},{"$f":"VLOOKUP(DropDownList!$B$47,CntyQuery!$A$170:$FT$183,BC$1)","v":645.05999999999995},{"$f":"VLOOKUP(DropDownList!$B$47,CntyQuery!$A$170:$FT$183,BD$1)","v":658.62},{"$f":"VLOOKUP(DropDownList!$B$47,CntyQuery!$A$170:$FT$183,BE$1)","v":599.33000000000004},{"$f":"VLOOKUP(DropDownList!$B$47,CntyQuery!$A$170:$FT$183,BF$1)","v":668},{"$f":"VLOOKUP(DropDownList!$B$47,CntyQuery!$A$170:$FT$183,BG$1)","v":1536},{"$f":"VLOOKUP(DropDownList!$B$47,CntyQuery!$A$170:$FT$183,BH$1)","v":1253},{"$f":"VLOOKUP(DropDownList!$B$47,CntyQuery!$A$170:$FT$183,BI$1)","v":352},{"$f":"VLOOKUP(DropDownList!$B$47,CntyQuery!$A$170:$FT$183,BJ$1)","v":901},{"$f":"VLOOKUP(DropDownList!$B$47,CntyQuery!$A$170:$FT$183,BK$1)","v":739.01},{"$f":"VLOOKUP(DropDownList!$B$47,CntyQuery!$A$170:$FT$183,BL$1)","v":766.39},{"$f":"VLOOKUP(DropDownList!$B$47,CntyQuery!$A$170:$FT$183,BM$1)","v":955.73},{"$f":"VLOOKUP(DropDownList!$B$47,CntyQuery!$A$170:$FT$183,BN$1)","v":692.46},{"$f":"VLOOKUP(DropDownList!$B$47,CntyQuery!$A$170:$FT$183,BO$1)","v":1475},{"$f":"VLOOKUP(DropDownList!$B$47,CntyQuery!$A$170:$FT$183,BP$1)","v":1184},{"$f":"VLOOKUP(DropDownList!$B$47,CntyQuery!$A$170:$FT$183,BQ$1)","v":323},{"$f":"VLOOKUP(DropDownList!$B$47,CntyQuery!$A$170:$FT$183,BR$1)","v":861},{"$f":"VLOOKUP(DropDownList!$B$47,CntyQuery!$A$170:$FT$183,BS$1)","v":744.65},{"$f":"VLOOKUP(DropDownList!$B$47,CntyQuery!$A$170:$FT$183,BT$1)","v":778.79},{"$f":"VLOOKUP(DropDownList!$B$47,CntyQuery!$A$170:$FT$183,BU$1)","v":932.29},{"$f":"VLOOKUP(DropDownList!$B$47,CntyQuery!$A$170:$FT$183,BV$1)","v":721.2},{"$f":"VLOOKUP(DropDownList!$B$47,CntyQuery!$A$170:$FT$183,BW$1)","v":1468},{"$f":"VLOOKUP(DropDownList!$B$47,CntyQuery!$A$170:$FT$183,BX$1)","v":1188},{"$f":"VLOOKUP(DropDownList!$B$47,CntyQuery!$A$170:$FT$183,BY$1)","v":354},{"$f":"VLOOKUP(DropDownList!$B$47,CntyQuery!$A$170:$FT$183,BZ$1)","v":834},{"$f":"VLOOKUP(DropDownList!$B$47,CntyQuery!$A$170:$FT$183,CA$1)","v":769.31},{"$f":"VLOOKUP(DropDownList!$B$47,CntyQuery!$A$170:$FT$183,CB$1)","v":796.47},{"$f":"VLOOKUP(DropDownList!$B$47,CntyQuery!$A$170:$FT$183,CC$1)","v":1067.45},{"$f":"VLOOKUP(DropDownList!$B$47,CntyQuery!$A$170:$FT$183,CD$1)","v":681.53},{"$f":"VLOOKUP(DropDownList!$B$47,CntyQuery!$A$170:$FT$183,CE$1)","v":1522},{"$f":"VLOOKUP(DropDownList!$B$47,CntyQuery!$A$170:$FT$183,CF$1)","v":1236},{"$f":"VLOOKUP(DropDownList!$B$47,CntyQuery!$A$170:$FT$183,CG$1)","v":396},{"$f":"VLOOKUP(DropDownList!$B$47,CntyQuery!$A$170:$FT$183,CH$1)","v":840},{"$f":"VLOOKUP(DropDownList!$B$47,CntyQuery!$A$170:$FT$183,CI$1)","v":783.83},{"$f":"VLOOKUP(DropDownList!$B$47,CntyQuery!$A$170:$FT$183,CJ$1)","v":814.57},{"$f":"VLOOKUP(DropDownList!$B$47,CntyQuery!$A$170:$FT$183,CK$1)","v":994.51},{"$f":"VLOOKUP(DropDownList!$B$47,CntyQuery!$A$170:$FT$183,CL$1)","v":729.74},{"$f":"VLOOKUP(DropDownList!$B$47,CntyQuery!$A$170:$FT$183,CM$1)","v":1591},{"$f":"VLOOKUP(DropDownList!$B$47,CntyQuery!$A$170:$FT$183,CN$1)","v":1306},{"$f":"VLOOKUP(DropDownList!$B$47,CntyQuery!$A$170:$FT$183,CO$1)","v":457},{"$f":"VLOOKUP(DropDownList!$B$47,CntyQuery!$A$170:$FT$183,CP$1)","v":849},{"$f":"VLOOKUP(DropDownList!$B$47,CntyQuery!$A$170:$FT$183,CQ$1)","v":793.41},{"$f":"VLOOKUP(DropDownList!$B$47,CntyQuery!$A$170:$FT$183,CR$1)","v":823.23},{"$f":"VLOOKUP(DropDownList!$B$47,CntyQuery!$A$170:$FT$183,CS$1)","v":1006},{"$f":"VLOOKUP(DropDownList!$B$47,CntyQuery!$A$170:$FT$183,CT$1)","v":724.85},{"$f":"VLOOKUP(DropDownList!$B$47,CntyQuery!$A$170:$FT$183,CU$1)","v":1650},{"$f":"VLOOKUP(DropDownList!$B$47,CntyQuery!$A$170:$FT$183,CV$1)","v":1370},{"$f":"VLOOKUP(DropDownList!$B$47,CntyQuery!$A$170:$FT$183,CW$1)","v":487},{"$f":"VLOOKUP(DropDownList!$B$47,CntyQuery!$A$170:$FT$183,CX$1)","v":883},{"$f":"VLOOKUP(DropDownList!$B$47,CntyQuery!$A$170:$FT$183,CY$1)","v":840.65},{"$f":"VLOOKUP(DropDownList!$B$47,CntyQuery!$A$170:$FT$183,CZ$1)","v":873.52},{"$f":"VLOOKUP(DropDownList!$B$47,CntyQuery!$A$170:$FT$183,DA$1)","v":1118.82},{"$f":"VLOOKUP(DropDownList!$B$47,CntyQuery!$A$170:$FT$183,DB$1)","v":738.04},{"$f":"VLOOKUP(DropDownList!$B$47,CntyQuery!$A$170:$FT$183,DC$1)","v":1661},{"$f":"VLOOKUP(DropDownList!$B$47,CntyQuery!$A$170:$FT$183,DD$1)","v":1387},{"$f":"VLOOKUP(DropDownList!$B$47,CntyQuery!$A$170:$FT$183,DE$1)","v":505},{"$f":"VLOOKUP(DropDownList!$B$47,CntyQuery!$A$170:$FT$183,DF$1)","v":883},{"$f":"VLOOKUP(DropDownList!$B$47,CntyQuery!$A$170:$FT$183,DG$1)","v":839.24},{"$f":"VLOOKUP(DropDownList!$B$47,CntyQuery!$A$170:$FT$183,DH$1)","v":862.33},{"$f":"VLOOKUP(DropDownList!$B$47,CntyQuery!$A$170:$FT$183,DI$1)","v":1124.94},{"$f":"VLOOKUP(DropDownList!$B$47,CntyQuery!$A$170:$FT$183,DJ$1)","v":712.28},{"$f":"VLOOKUP(DropDownList!$B$47,CntyQuery!$A$170:$FT$183,DK$1)","v":1785},{"$f":"VLOOKUP(DropDownList!$B$47,CntyQuery!$A$170:$FT$183,DL$1)","v":1502},{"$f":"VLOOKUP(DropDownList!$B$47,CntyQuery!$A$170:$FT$183,DM$1)","v":607},{"$f":"VLOOKUP(DropDownList!$B$47,CntyQuery!$A$170:$FT$183,DN$1)","v":895},{"$f":"VLOOKUP(DropDownList!$B$47,CntyQuery!$A$170:$FT$183,DO$1)","v":900.26},{"$f":"VLOOKUP(DropDownList!$B$47,CntyQuery!$A$170:$FT$183,DP$1)","v":931.95},{"$f":"VLOOKUP(DropDownList!$B$47,CntyQuery!$A$170:$FT$183,DQ$1)","v":1163.26},{"$f":"VLOOKUP(DropDownList!$B$47,CntyQuery!$A$170:$FT$183,DR$1)","v":775.14},{"$f":"VLOOKUP(DropDownList!$B$47,CntyQuery!$A$170:$FT$183,DS$1)","v":1880},{"$f":"VLOOKUP(DropDownList!$B$47,CntyQuery!$A$170:$FT$183,DT$1)","v":1583},{"$f":"VLOOKUP(DropDownList!$B$47,CntyQuery!$A$170:$FT$183,DU$1)","v":673},{"$f":"VLOOKUP(DropDownList!$B$47,CntyQuery!$A$170:$FT$183,DV$1)","v":910},{"$f":"VLOOKUP(DropDownList!$B$47,CntyQuery!$A$170:$FT$183,DW$1)","v":886.48},{"$f":"VLOOKUP(DropDownList!$B$47,CntyQuery!$A$170:$FT$183,DX$1)","v":921.27},{"$f":"VLOOKUP(DropDownList!$B$47,CntyQuery!$A$170:$FT$183,DY$1)","v":1107.7},{"$f":"VLOOKUP(DropDownList!$B$47,CntyQuery!$A$170:$FT$183,DZ$1)","v":783.48},{"$f":"VLOOKUP(DropDownList!$B$47,CntyQuery!$A$170:$FT$183,EA$1)","v":1947},{"$f":"VLOOKUP(DropDownList!$B$47,CntyQuery!$A$170:$FT$183,EB$1)","v":1661},{"$f":"VLOOKUP(DropDownList!$B$47,CntyQuery!$A$170:$FT$183,EC$1)","v":721},{"$f":"VLOOKUP(DropDownList!$B$47,CntyQuery!$A$170:$FT$183,ED$1)","v":939},{"$f":"VLOOKUP(DropDownList!$B$47,CntyQuery!$A$170:$FT$183,EE$1)","v":927.55},{"$f":"VLOOKUP(DropDownList!$B$47,CntyQuery!$A$170:$FT$183,EF$1)","v":955.59},{"$f":"VLOOKUP(DropDownList!$B$47,CntyQuery!$A$170:$FT$183,EG$1)","v":1123.82},{"$f":"VLOOKUP(DropDownList!$B$47,CntyQuery!$A$170:$FT$183,EH$1)","v":826.39},{"$f":"VLOOKUP(DropDownList!$B$47,CntyQuery!$A$170:$FT$183,EI$1)","v":2015},{"$f":"VLOOKUP(DropDownList!$B$47,CntyQuery!$A$170:$FT$183,EJ$1)","v":1719},{"$f":"VLOOKUP(DropDownList!$B$47,CntyQuery!$A$170:$FT$183,EK$1)","v":791},{"$f":"VLOOKUP(DropDownList!$B$47,CntyQuery!$A$170:$FT$183,EL$1)","v":928},{"$f":"VLOOKUP(DropDownList!$B$47,CntyQuery!$A$170:$FT$183,EM$1)","v":985.51},{"$f":"VLOOKUP(DropDownList!$B$47,CntyQuery!$A$170:$FT$183,EN$1)","v":1021.32},{"$f":"VLOOKUP(DropDownList!$B$47,CntyQuery!$A$170:$FT$183,EO$1)","v":1209.45},{"$f":"VLOOKUP(DropDownList!$B$47,CntyQuery!$A$170:$FT$183,EP$1)","v":860.86},{"$f":"VLOOKUP(DropDownList!$B$47,CntyQuery!$A$170:$FT$183,EQ$1)","v":2070},{"$f":"VLOOKUP(DropDownList!$B$47,CntyQuery!$A$170:$FT$183,ER$1)","v":1769},{"$f":"VLOOKUP(DropDownList!$B$47,CntyQuery!$A$170:$FT$183,ES$1)","v":302},{"$f":"VLOOKUP(DropDownList!$B$47,CntyQuery!$A$170:$FT$183,ET$1)","v":811},{"$f":"VLOOKUP(DropDownList!$B$47,CntyQuery!$A$170:$FT$183,EU$1)","v":958},{"$f":"VLOOKUP(DropDownList!$B$47,CntyQuery!$A$170:$FT$183,EV$1)","v":996.42},{"$f":"VLOOKUP(DropDownList!$B$47,CntyQuery!$A$170:$FT$183,EW$1)","v":1033.02},{"$f":"VLOOKUP(DropDownList!$B$47,CntyQuery!$A$170:$FT$183,EX$1)","v":781.75},{"$f":"VLOOKUP(DropDownList!$B$47,CntyQuery!$A$170:$FT$183,EY$1)","v":1174.99},{"$f":"VLOOKUP(DropDownList!$B$47,CntyQuery!$A$170:$FT$183,EZ$1)","v":912.8},{"$f":"VLOOKUP(DropDownList!$B$47,CntyQuery!$A$170:$FT$183,FA$1)","v":60}]
[]
[]
["Labor Force and Unemployment Rate","Query Name: DPQryUnempByCnty"]
["PlaceName","LaborForce1990","LaborForce1991","LaborForce1992","LaborForce1993","LaborForce1994","LaborForce1995","LaborForce1996","LaborForce1997","LaborForce1998","LaborForce1999","LaborForce2000","LaborForce2001","LaborForce2002","LaborForce2003","NumbEmployed1990","NumbEmployed1991","NumbEmployed1992","NumbEmployed1993","NumbEmployed1994","NumbEmployed1995","NumbEmployed1996","NumbEmployed1997","NumbEmployed1998","NumbEmployed1999","NumbEmployed2000","NumbEmployed2001","NumbEmployed2002","NumbEmployed2003","UnempRate1990","UnempRate1991","UnempRate1992","UnempRate1993","UnempRate1994","UnempRate1995","UnempRate1996","UnempRate1997","UnempRate1998","UnempRate1999","UnempRate2000","UnempRate2001","UnempRate2002","UnempRate2003","NumbUnEmp1990","NumbUnEmp1991","NumbUnEmp1992","NumbUnEmp1993","NumbUnEmp1994","NumbUnEmp1995","NumbUnEmp1996","NumbUnEmp1997","NumbUnEmp1998","NumbUnEmp1999","NumbUnEmp2000","NumbUnEmp2001","NumbUnEmp2002","NumbUnEmp2003","LaborForce2004","NumbEmployed2004","UnempRate2004","NumbUnEmp2004","LaborForce2005","NumbEmployed2005","NumbUnEmp2005","UnempRate2005","LaborForce2006","NumbEmployed2006","NumbUnEmp2006","UnempRate2006","LaborForce2007","NumbEmployed2007","NumbUnEmp2007","UnempRate2007","LaborForce2008","NumbEmployed2008","NumbUnEmp2008","UnempRate2008","LaborForce2009","NumbEmployed2009","NumbUnEmp2009","UnempRate2009","LaborForce2010","NumbEmployed2010","NumbUnEmp2010","UnempRate2010","LaborForce2011","NumbEmployed2011","NumbUnEmp2011","UnempRate2011","LaborForce2012","NumbEmployed2012","NumbUnEmp2012","UnempRate2012","LaborForce2013","NumbEmployed2013","NumbUnEmp2013","UnempRate2013","LaborForce2014","NumbEmployed2014","NumbUnEmp2014","UnempRate2014","LaborForce2015","NumbEmployed2015","NumbUnEmp2015","UnempRate2015","LaborForce2016","NumbEmployed2016","NumbUnEmp2016","UnempRate2016","LaborForce2017","NumbEmployed2017","NumbUnEmp2017","UnempRate2017","LaborForce2018","NumbEmployed2018","NumbUnEmp2018","UnempRate2018","LaborForce2019","NumbEmployed2019","NumbUnEmp2019","UnempRate2019","Place-TownIDNumber"]
[{"$f":"VLOOKUP(DropDownList!$B$47,CntyQuery!$A$220:$EF$229,A$1)","v":{"$error":"#N/A"}},{"$f":"VLOOKUP(DropDownList!$B$47,CntyQuery!$A$220:$EF$229,B$1)","v":{"$error":"#N/A"}},{"$f":"VLOOKUP(DropDownList!$B$47,CntyQuery!$A$220:$EF$229,C$1)","v":{"$error":"#N/A"}},{"$f":"VLOOKUP(DropDownList!$B$47,CntyQuery!$A$220:$EF$229,D$1)","v":{"$error":"#N/A"}},{"$f":"VLOOKUP(DropDownList!$B$47,CntyQuery!$A$220:$EF$229,E$1)","v":{"$error":"#N/A"}},{"$f":"VLOOKUP(DropDownList!$B$47,CntyQuery!$A$220:$EF$229,F$1)","v":{"$error":"#N/A"}},{"$f":"VLOOKUP(DropDownList!$B$47,CntyQuery!$A$220:$EF$229,G$1)","v":{"$error":"#N/A"}},{"$f":"VLOOKUP(DropDownList!$B$47,CntyQuery!$A$220:$EF$229,H$1)","v":{"$error":"#N/A"}},{"$f":"VLOOKUP(DropDownList!$B$47,CntyQuery!$A$220:$EF$229,I$1)","v":{"$error":"#N/A"}},{"$f":"VLOOKUP(DropDownList!$B$47,CntyQuery!$A$220:$EF$229,J$1)","v":{"$error":"#N/A"}},{"$f":"VLOOKUP(DropDownList!$B$47,CntyQuery!$A$220:$EF$229,K$1)","v":{"$error":"#N/A"}},{"$f":"VLOOKUP(DropDownList!$B$47,CntyQuery!$A$220:$EF$229,L$1)","v":{"$error":"#N/A"}},{"$f":"VLOOKUP(DropDownList!$B$47,CntyQuery!$A$220:$EF$229,M$1)","v":{"$error":"#N/A"}},{"$f":"VLOOKUP(DropDownList!$B$47,CntyQuery!$A$220:$EF$229,N$1)","v":{"$error":"#N/A"}},{"$f":"VLOOKUP(DropDownList!$B$47,CntyQuery!$A$220:$EF$229,O$1)","v":{"$error":"#N/A"}},{"$f":"VLOOKUP(DropDownList!$B$47,CntyQuery!$A$220:$EF$229,P$1)","v":{"$error":"#N/A"}},{"$f":"VLOOKUP(DropDownList!$B$47,CntyQuery!$A$220:$EF$229,Q$1)","v":{"$error":"#N/A"}},{"$f":"VLOOKUP(DropDownList!$B$47,CntyQuery!$A$220:$EF$229,R$1)","v":{"$error":"#N/A"}},{"$f":"VLOOKUP(DropDownList!$B$47,CntyQuery!$A$220:$EF$229,S$1)","v":{"$error":"#N/A"}},{"$f":"VLOOKUP(DropDownList!$B$47,CntyQuery!$A$220:$EF$229,T$1)","v":{"$error":"#N/A"}},{"$f":"VLOOKUP(DropDownList!$B$47,CntyQuery!$A$220:$EF$229,U$1)","v":{"$error":"#N/A"}},{"$f":"VLOOKUP(DropDownList!$B$47,CntyQuery!$A$220:$EF$229,V$1)","v":{"$error":"#N/A"}},{"$f":"VLOOKUP(DropDownList!$B$47,CntyQuery!$A$220:$EF$229,W$1)","v":{"$error":"#N/A"}},{"$f":"VLOOKUP(DropDownList!$B$47,CntyQuery!$A$220:$EF$229,X$1)","v":{"$error":"#N/A"}},{"$f":"VLOOKUP(DropDownList!$B$47,CntyQuery!$A$220:$EF$229,Y$1)","v":{"$error":"#N/A"}},{"$f":"VLOOKUP(DropDownList!$B$47,CntyQuery!$A$220:$EF$229,Z$1)","v":{"$error":"#N/A"}},{"$f":"VLOOKUP(DropDownList!$B$47,CntyQuery!$A$220:$EF$229,AA$1)","v":{"$error":"#N/A"}},{"$f":"VLOOKUP(DropDownList!$B$47,CntyQuery!$A$220:$EF$229,AB$1)","v":{"$error":"#N/A"}},{"$f":"VLOOKUP(DropDownList!$B$47,CntyQuery!$A$220:$EF$229,AC$1)","v":{"$error":"#N/A"}},{"$f":"VLOOKUP(DropDownList!$B$47,CntyQuery!$A$220:$EF$229,AD$1)","v":{"$error":"#N/A"}},{"$f":"VLOOKUP(DropDownList!$B$47,CntyQuery!$A$220:$EF$229,AE$1)","v":{"$error":"#N/A"}},{"$f":"VLOOKUP(DropDownList!$B$47,CntyQuery!$A$220:$EF$229,AF$1)","v":{"$error":"#N/A"}},{"$f":"VLOOKUP(DropDownList!$B$47,CntyQuery!$A$220:$EF$229,AG$1)","v":{"$error":"#N/A"}},{"$f":"VLOOKUP(DropDownList!$B$47,CntyQuery!$A$220:$EF$229,AH$1)","v":{"$error":"#N/A"}},{"$f":"VLOOKUP(DropDownList!$B$47,CntyQuery!$A$220:$EF$229,AI$1)","v":{"$error":"#N/A"}},{"$f":"VLOOKUP(DropDownList!$B$47,CntyQuery!$A$220:$EF$229,AJ$1)","v":{"$error":"#N/A"}},{"$f":"VLOOKUP(DropDownList!$B$47,CntyQuery!$A$220:$EF$229,AK$1)","v":{"$error":"#N/A"}},{"$f":"VLOOKUP(DropDownList!$B$47,CntyQuery!$A$220:$EF$229,AL$1)","v":{"$error":"#N/A"}},{"$f":"VLOOKUP(DropDownList!$B$47,CntyQuery!$A$220:$EF$229,AM$1)","v":{"$error":"#N/A"}},{"$f":"VLOOKUP(DropDownList!$B$47,CntyQuery!$A$220:$EF$229,AN$1)","v":{"$error":"#N/A"}},{"$f":"VLOOKUP(DropDownList!$B$47,CntyQuery!$A$220:$EF$229,AO$1)","v":{"$error":"#N/A"}},{"$f":"VLOOKUP(DropDownList!$B$47,CntyQuery!$A$220:$EF$229,AP$1)","v":{"$error":"#N/A"}},{"$f":"VLOOKUP(DropDownList!$B$47,CntyQuery!$A$220:$EF$229,AQ$1)","v":{"$error":"#N/A"}},{"$f":"VLOOKUP(DropDownList!$B$47,CntyQuery!$A$220:$EF$229,AR$1)","v":{"$error":"#N/A"}},{"$f":"VLOOKUP(DropDownList!$B$47,CntyQuery!$A$220:$EF$229,AS$1)","v":{"$error":"#N/A"}},{"$f":"VLOOKUP(DropDownList!$B$47,CntyQuery!$A$220:$EF$229,AT$1)","v":{"$error":"#N/A"}},{"$f":"VLOOKUP(DropDownList!$B$47,CntyQuery!$A$220:$EF$229,AU$1)","v":{"$error":"#N/A"}},{"$f":"VLOOKUP(DropDownList!$B$47,CntyQuery!$A$220:$EF$229,AV$1)","v":{"$error":"#N/A"}},{"$f":"VLOOKUP(DropDownList!$B$47,CntyQuery!$A$220:$EF$229,AW$1)","v":{"$error":"#N/A"}},{"$f":"VLOOKUP(DropDownList!$B$47,CntyQuery!$A$220:$EF$229,AX$1)","v":{"$error":"#N/A"}},{"$f":"VLOOKUP(DropDownList!$B$47,CntyQuery!$A$220:$EF$229,AY$1)","v":{"$error":"#N/A"}},{"$f":"VLOOKUP(DropDownList!$B$47,CntyQuery!$A$220:$EF$229,AZ$1)","v":{"$error":"#N/A"}},{"$f":"VLOOKUP(DropDownList!$B$47,CntyQuery!$A$220:$EF$229,BA$1)","v":{"$error":"#N/A"}},{"$f":"VLOOKUP(DropDownList!$B$47,CntyQuery!$A$220:$EF$229,BB$1)","v":{"$error":"#N/A"}},{"$f":"VLOOKUP(DropDownList!$B$47,CntyQuery!$A$220:$EF$229,BC$1)","v":{"$error":"#N/A"}},{"$f":"VLOOKUP(DropDownList!$B$47,CntyQuery!$A$220:$EF$229,BD$1)","v":{"$error":"#N/A"}},{"$f":"VLOOKUP(DropDownList!$B$47,CntyQuery!$A$220:$EF$229,BE$1)","v":{"$error":"#N/A"}},{"$f":"VLOOKUP(DropDownList!$B$47,CntyQuery!$A$220:$EF$229,BF$1)","v":{"$error":"#N/A"}},{"$f":"VLOOKUP(DropDownList!$B$47,CntyQuery!$A$220:$EF$229,BG$1)","v":{"$error":"#N/A"}},{"$f":"VLOOKUP(DropDownList!$B$47,CntyQuery!$A$220:$EF$229,BH$1)","v":{"$error":"#N/A"}},{"$f":"VLOOKUP(DropDownList!$B$47,CntyQuery!$A$220:$EF$229,BI$1)","v":{"$error":"#N/A"}},{"$f":"VLOOKUP(DropDownList!$B$47,CntyQuery!$A$220:$EF$229,BJ$1)","v":{"$error":"#N/A"}},{"$f":"VLOOKUP(DropDownList!$B$47,CntyQuery!$A$220:$EF$229,BK$1)","v":{"$error":"#N/A"}},{"$f":"VLOOKUP(DropDownList!$B$47,CntyQuery!$A$220:$EF$229,BL$1)","v":{"$error":"#N/A"}},{"$f":"VLOOKUP(DropDownList!$B$47,CntyQuery!$A$220:$EF$229,BM$1)","v":{"$error":"#N/A"}},{"$f":"VLOOKUP(DropDownList!$B$47,CntyQuery!$A$220:$EF$229,BN$1)","v":{"$error":"#N/A"}},{"$f":"VLOOKUP(DropDownList!$B$47,CntyQuery!$A$220:$EF$229,BO$1)","v":{"$error":"#N/A"}},{"$f":"VLOOKUP(DropDownList!$B$47,CntyQuery!$A$220:$EF$229,BP$1)","v":{"$error":"#N/A"}},{"$f":"VLOOKUP(DropDownList!$B$47,CntyQuery!$A$220:$EF$229,BQ$1)","v":{"$error":"#N/A"}},{"$f":"VLOOKUP(DropDownList!$B$47,CntyQuery!$A$220:$EF$229,BR$1)","v":{"$error":"#N/A"}},{"$f":"VLOOKUP(DropDownList!$B$47,CntyQuery!$A$220:$EF$229,BS$1)","v":{"$error":"#N/A"}},{"$f":"VLOOKUP(DropDownList!$B$47,CntyQuery!$A$220:$EF$229,BT$1)","v":{"$error":"#N/A"}},{"$f":"VLOOKUP(DropDownList!$B$47,CntyQuery!$A$220:$EF$229,BU$1)","v":{"$error":"#N/A"}},{"$f":"VLOOKUP(DropDownList!$B$47,CntyQuery!$A$220:$EF$229,BV$1)","v":{"$error":"#N/A"}},{"$f":"VLOOKUP(DropDownList!$B$47,CntyQuery!$A$220:$EF$229,BW$1)","v":{"$error":"#N/A"}},{"$f":"VLOOKUP(DropDownList!$B$47,CntyQuery!$A$220:$EF$229,BX$1)","v":{"$error":"#N/A"}},{"$f":"VLOOKUP(DropDownList!$B$47,CntyQuery!$A$220:$EF$229,BY$1)","v":{"$error":"#N/A"}},{"$f":"VLOOKUP(DropDownList!$B$47,CntyQuery!$A$220:$EF$229,BZ$1)","v":{"$error":"#N/A"}},{"$f":"VLOOKUP(DropDownList!$B$47,CntyQuery!$A$220:$EF$229,CA$1)","v":{"$error":"#N/A"}},{"$f":"VLOOKUP(DropDownList!$B$47,CntyQuery!$A$220:$EF$229,CB$1)","v":{"$error":"#N/A"}},{"$f":"VLOOKUP(DropDownList!$B$47,CntyQuery!$A$220:$EF$229,CC$1)","v":{"$error":"#N/A"}},{"$f":"VLOOKUP(DropDownList!$B$47,CntyQuery!$A$220:$EF$229,CD$1)","v":{"$error":"#N/A"}},{"$f":"VLOOKUP(DropDownList!$B$47,CntyQuery!$A$220:$EF$229,CE$1)","v":{"$error":"#N/A"}},{"$f":"VLOOKUP(DropDownList!$B$47,CntyQuery!$A$220:$EF$229,CF$1)","v":{"$error":"#N/A"}},{"$f":"VLOOKUP(DropDownList!$B$47,CntyQuery!$A$220:$EF$229,CG$1)","v":{"$error":"#N/A"}},{"$f":"VLOOKUP(DropDownList!$B$47,CntyQuery!$A$220:$EF$229,CH$1)","v":{"$error":"#N/A"}},{"$f":"VLOOKUP(DropDownList!$B$47,CntyQuery!$A$220:$EF$229,CI$1)","v":{"$error":"#N/A"}},{"$f":"VLOOKUP(DropDownList!$B$47,CntyQuery!$A$220:$EF$229,CJ$1)","v":{"$error":"#N/A"}},{"$f":"VLOOKUP(DropDownList!$B$47,CntyQuery!$A$220:$EF$229,CK$1)","v":{"$error":"#N/A"}},{"$f":"VLOOKUP(DropDownList!$B$47,CntyQuery!$A$220:$EF$229,CL$1)","v":{"$error":"#N/A"}},{"$f":"VLOOKUP(DropDownList!$B$47,CntyQuery!$A$220:$EF$229,CM$1)","v":{"$error":"#N/A"}},{"$f":"VLOOKUP(DropDownList!$B$47,CntyQuery!$A$220:$EF$229,CN$1)","v":{"$error":"#N/A"}},{"$f":"VLOOKUP(DropDownList!$B$47,CntyQuery!$A$220:$EF$229,CO$1)","v":{"$error":"#N/A"}},{"$f":"VLOOKUP(DropDownList!$B$47,CntyQuery!$A$220:$EF$229,CP$1)","v":{"$error":"#N/A"}},{"$f":"VLOOKUP(DropDownList!$B$47,CntyQuery!$A$220:$EF$229,CQ$1)","v":{"$error":"#N/A"}},{"$f":"VLOOKUP(DropDownList!$B$47,CntyQuery!$A$220:$EF$229,CR$1)","v":{"$error":"#N/A"}},{"$f":"VLOOKUP(DropDownList!$B$47,CntyQuery!$A$220:$EF$229,CS$1)","v":{"$error":"#N/A"}},{"$f":"VLOOKUP(DropDownList!$B$47,CntyQuery!$A$220:$EF$229,CT$1)","v":{"$error":"#N/A"}},{"$f":"VLOOKUP(DropDownList!$B$47,CntyQuery!$A$220:$EF$229,CU$1)","v":{"$error":"#N/A"}},{"$f":"VLOOKUP(DropDownList!$B$47,CntyQuery!$A$220:$EF$229,CV$1)","v":{"$error":"#N/A"}},{"$f":"VLOOKUP(DropDownList!$B$47,CntyQuery!$A$220:$EF$229,CW$1)","v":{"$error":"#N/A"}},{"$f":"VLOOKUP(DropDownList!$B$47,CntyQuery!$A$220:$EF$229,CX$1)","v":{"$error":"#N/A"}},{"$f":"VLOOKUP(DropDownList!$B$47,CntyQuery!$A$220:$EF$229,CY$1)","v":{"$error":"#N/A"}},{"$f":"VLOOKUP(DropDownList!$B$47,CntyQuery!$A$220:$EF$229,CZ$1)","v":{"$error":"#N/A"}},{"$f":"VLOOKUP(DropDownList!$B$47,CntyQuery!$A$220:$EF$229,DA$1)","v":{"$error":"#N/A"}},{"$f":"VLOOKUP(DropDownList!$B$47,CntyQuery!$A$220:$EF$229,DB$1)","v":{"$error":"#N/A"}},{"$f":"VLOOKUP(DropDownList!$B$47,CntyQuery!$A$220:$EF$229,DC$1)","v":{"$error":"#N/A"}},{"$f":"VLOOKUP(DropDownList!$B$47,CntyQuery!$A$220:$EF$229,DD$1)","v":{"$error":"#N/A"}},{"$f":"VLOOKUP(DropDownList!$B$47,CntyQuery!$A$220:$EF$229,DE$1)","v":{"$error":"#N/A"}},{"$f":"VLOOKUP(DropDownList!$B$47,CntyQuery!$A$220:$EF$229,DF$1)","v":{"$error":"#N/A"}},{"$f":"VLOOKUP(DropDownList!$B$47,CntyQuery!$A$220:$EF$229,DG$1)","v":{"$error":"#N/A"}},{"$f":"VLOOKUP(DropDownList!$B$47,CntyQuery!$A$220:$EF$229,DH$1)","v":{"$error":"#N/A"}},{"$f":"VLOOKUP(DropDownList!$B$47,CntyQuery!$A$220:$EF$229,DI$1)","v":{"$error":"#N/A"}},{"$f":"VLOOKUP(DropDownList!$B$47,CntyQuery!$A$220:$EF$229,DJ$1)","v":{"$error":"#N/A"}},{"$f":"VLOOKUP(DropDownList!$B$47,CntyQuery!$A$220:$EF$229,DK$1)","v":{"$error":"#N/A"}},{"$f":"VLOOKUP(DropDownList!$B$47,CntyQuery!$A$220:$EF$229,DL$1)","v":{"$error":"#N/A"}},{"$f":"VLOOKUP(DropDownList!$B$47,CntyQuery!$A$220:$EF$229,DM$1)","v":{"$error":"#N/A"}},{"$f":"VLOOKUP(DropDownList!$B$47,CntyQuery!$A$220:$EF$229,DN$1)","v":{"$error":"#N/A"}},{"$f":"VLOOKUP(DropDownList!$B$47,CntyQuery!$A$220:$EF$229,DO$1)","v":{"$error":"#N/A"}},{"$f":"VLOOKUP(DropDownList!$B$47,CntyQuery!$A$220:$EF$229,DP$1)","v":{"$error":"#N/A"}},{"$f":"VLOOKUP(DropDownList!$B$47,CntyQuery!$A$220:$EF$229,DQ$1)","v":{"$error":"#N/A"}},{"$f":"VLOOKUP(DropDownList!$B$47,CntyQuery!$A$220:$EF$229,DR$1)","v":{"$error":"#N/A"}}]
[]
[null,null,null,null,null,null,null,null,null,null,null,null,{"$f":"IF((CntyDataLink!$BL$25)=\"n\",NA(),IF(VALUE(CntyDataLink!$BL$25)=\"\",NA(),VALUE(CntyDataLink!$BL$25)))","v":766.39}]
["Census 2000   -           Query Name:  TownAllQuery3",2,{"$f":"B33+1","v":3},{"$f":"C33+1","v":4},5,6,7,8,9,10,11,12,13,14,15,16,17,18,19,20,21,22,23,24,25,26,27,28,29,30,31,32,33,34,35,36,37,38,39,40,41,42,43,44,45,46,47,48,49,50,51,52,53,54,55,56,57,58,59,60,61,62,63,64,65,66,67,{"$f":"BO33+1","v":68},69,70,71,72,73,74,75,76,77,78,79,80,81,82,83,84,85,86,87,88,89,90,91,92,93,94,95,96,97,98,99,100,101,102]
["NAME","COUNTY","LOGRECNO","COUSUB","TRACT","AREALAND","AREAWATR","POP100","HU100","2000Population","PopOfOneRace","PopWhite","PopBlack","PopAmIndian","PopAsian","PopHawaiian","PopOtherRace","Pop2orMoreRaces","PopHispanicLatino","PopNotHispanicLatino","PopMale","PopMale<15","PopMale15to24","PopMale25to34","PopMale35to44","PopMale45to54","PopMale55to64","PopMale65to74","PopMale75to84","PopMale85andOver","PopFemale","PopFemale<15","PopFemale15to24","PopFemale25to34","PopFemale35t44","PopFemale45to54","PopFemale55to64","PopFemale65to74","PopFemale75to84","PopFemale85andOver","Households2000","PopInHH","AvgHHSize","HHs1Person","HHs2orMorePerson","HHsFamily","HHMarriedCoupleFam","HHSingleParentFam","HHsNonFamily","Families","PopInFam","AvgFamSize","TotHsUnits","OccHsUnits","OwnerOccHU","RenterOccHU","VctHsUnits","VctHUForRent","VctHUForSale","VctHUSeasonal","PopInOccHU","PopInOwnOccHU","PopInRntOccHU","AvgHHSize2","AvgHHSizOwnOcc","AvgHHSizRntOcc","OwnOccWhtHsHldr","OwnOccBlkHsHldr","OwnOccAmIHsHldr","OwnOccAsnHsHldr","OwnOccPIsHsHldr","OwnOccORHsHldr","OwnOcc2RcHsHldr","RntOccWhtHsHldr","RntOccBlkHsHldr","RntOccAmIHsHldr","RntOccAsnHsHldr","RntOccPIsHsHldr","RntOccORHsHldr","RntOcc2RcHsHldr","OwnOccHH15to24","OwnOccHH25to34","OwnOccHH35to44","OwnOccHH45to54","OwnOccHH55to64","OwnOccHH65to74","OwnOccHH75to84","OwnOccHH85Over","RntOccHH15to24","RntOccHH25to34","RntOccHH35to44","RntOccHH45to54","RntOccHH55to64","RntOccHH65to74","RntOccHH75to84","RntOccHH85Over","P27TotalPop","P27PopInHseHlds","P27PopInGrpQtrs","Median Age Total","Median Age (Male)","Median Age (Female)"]
[{"$f":"VLOOKUP(DropDownList!$B$47,CntyQryCensus!$A$4:$CW$46,A$1)","v":"Barrington"},{"$f":"VLOOKUP(DropDownList!$B$47,CntyQryCensus!$A$4:$CW$46,B$1)","v":"017"},{"$f":"VLOOKUP(DropDownList!$B$47,CntyQryCensus!$A$4:$CW$46,C$1)","v":"0033389"},{"$f":"VLOOKUP(DropDownList!$B$47,CntyQryCensus!$A$4:$CW$46,D$1)","v":"03460"},{"$f":"VLOOKUP(DropDownList!$B$47,CntyQryCensus!$A$4:$CW$46,E$1)","v":""},{"$f":"VLOOKUP(DropDownList!$B$47,CntyQryCensus!$A$4:$CW$46,F$1)","v":"     120656252"},{"$f":"VLOOKUP(DropDownList!$B$47,CntyQryCensus!$A$4:$CW$46,G$1)","v":"       5005827"},{"$f":"VLOOKUP(DropDownList!$B$47,CntyQryCensus!$A$4:$CW$46,H$1)","v":7475},{"$f":"VLOOKUP(DropDownList!$B$47,CntyQryCensus!$A$4:$CW$46,I$1)","v":"     3147"},{"$f":"VLOOKUP(DropDownList!$B$47,CntyQryCensus!$A$4:$CW$46,J$1)","v":7475},{"$f":"VLOOKUP(DropDownList!$B$47,CntyQryCensus!$A$4:$CW$46,K$1)","v":7415},{"$f":"VLOOKUP(DropDownList!$B$47,CntyQryCensus!$A$4:$CW$46,L$1)","v":7334},{"$f":"VLOOKUP(DropDownList!$B$47,CntyQryCensus!$A$4:$CW$46,M$1)","v":19},{"$f":"VLOOKUP(DropDownList!$B$47,CntyQryCensus!$A$4:$CW$46,N$1)","v":10},{"$f":"VLOOKUP(DropDownList!$B$47,CntyQryCensus!$A$4:$CW$46,O$1)","v":31},{"$f":"VLOOKUP(DropDownList!$B$47,CntyQryCensus!$A$4:$CW$46,P$1)","v":4},{"$f":"VLOOKUP(DropDownList!$B$47,CntyQryCensus!$A$4:$CW$46,Q$1)","v":17},{"$f":"VLOOKUP(DropDownList!$B$47,CntyQryCensus!$A$4:$CW$46,R$1)","v":60},{"$f":"VLOOKUP(DropDownList!$B$47,CntyQryCensus!$A$4:$CW$46,S$1)","v":69},{"$f":"VLOOKUP(DropDownList!$B$47,CntyQryCensus!$A$4:$CW$46,T$1)","v":7406},{"$f":"VLOOKUP(DropDownList!$B$47,CntyQryCensus!$A$4:$CW$46,U$1)","v":3813},{"$f":"VLOOKUP(DropDownList!$B$47,CntyQryCensus!$A$4:$CW$46,V$1)","v":890},{"$f":"VLOOKUP(DropDownList!$B$47,CntyQryCensus!$A$4:$CW$46,W$1)","v":418},{"$f":"VLOOKUP(DropDownList!$B$47,CntyQryCensus!$A$4:$CW$46,X$1)","v":478},{"$f":"VLOOKUP(DropDownList!$B$47,CntyQryCensus!$A$4:$CW$46,Y$1)","v":822},{"$f":"VLOOKUP(DropDownList!$B$47,CntyQryCensus!$A$4:$CW$46,Z$1)","v":594},{"$f":"VLOOKUP(DropDownList!$B$47,CntyQryCensus!$A$4:$CW$46,AA$1)","v":363},{"$f":"VLOOKUP(DropDownList!$B$47,CntyQryCensus!$A$4:$CW$46,AB$1)","v":154},{"$f":"VLOOKUP(DropDownList!$B$47,CntyQryCensus!$A$4:$CW$46,AC$1)","v":83},{"$f":"VLOOKUP(DropDownList!$B$47,CntyQryCensus!$A$4:$CW$46,AD$1)","v":11},{"$f":"VLOOKUP(DropDownList!$B$47,CntyQryCensus!$A$4:$CW$46,AE$1)","v":3662},{"$f":"VLOOKUP(DropDownList!$B$47,CntyQryCensus!$A$4:$CW$46,AF$1)","v":832},{"$f":"VLOOKUP(DropDownList!$B$47,CntyQryCensus!$A$4:$CW$46,AG$1)","v":340},{"$f":"VLOOKUP(DropDownList!$B$47,CntyQryCensus!$A$4:$CW$46,AH$1)","v":537},{"$f":"VLOOKUP(DropDownList!$B$47,CntyQryCensus!$A$4:$CW$46,AI$1)","v":788},{"$f":"VLOOKUP(DropDownList!$B$47,CntyQryCensus!$A$4:$CW$46,AJ$1)","v":580},{"$f":"VLOOKUP(DropDownList!$B$47,CntyQryCensus!$A$4:$CW$46,AK$1)","v":308},{"$f":"VLOOKUP(DropDownList!$B$47,CntyQryCensus!$A$4:$CW$46,AL$1)","v":162},{"$f":"VLOOKUP(DropDownList!$B$47,CntyQryCensus!$A$4:$CW$46,AM$1)","v":90},{"$f":"VLOOKUP(DropDownList!$B$47,CntyQryCensus!$A$4:$CW$46,AN$1)","v":25},{"$f":"VLOOKUP(DropDownList!$B$47,CntyQryCensus!$A$4:$CW$46,AO$1)","v":2756},{"$f":"VLOOKUP(DropDownList!$B$47,CntyQryCensus!$A$4:$CW$46,AP$1)","v":7467},{"$f":"VLOOKUP(DropDownList!$B$47,CntyQryCensus!$A$4:$CW$46,AQ$1)","v":2.71},{"$f":"VLOOKUP(DropDownList!$B$47,CntyQryCensus!$A$4:$CW$46,AR$1)","v":465},{"$f":"VLOOKUP(DropDownList!$B$47,CntyQryCensus!$A$4:$CW$46,AS$1)","v":2291},{"$f":"VLOOKUP(DropDownList!$B$47,CntyQryCensus!$A$4:$CW$46,AT$1)","v":2076},{"$f":"VLOOKUP(DropDownList!$B$47,CntyQryCensus!$A$4:$CW$46,AU$1)","v":1781},{"$f":"VLOOKUP(DropDownList!$B$47,CntyQryCensus!$A$4:$CW$46,AV$1)","v":295},{"$f":"VLOOKUP(DropDownList!$B$47,CntyQryCensus!$A$4:$CW$46,AW$1)","v":215},{"$f":"VLOOKUP(DropDownList!$B$47,CntyQryCensus!$A$4:$CW$46,AX$1)","v":2076},{"$f":"VLOOKUP(DropDownList!$B$47,CntyQryCensus!$A$4:$CW$46,AY$1)","v":6374},{"$f":"VLOOKUP(DropDownList!$B$47,CntyQryCensus!$A$4:$CW$46,AZ$1)","v":3.07},{"$f":"VLOOKUP(DropDownList!$B$47,CntyQryCensus!$A$4:$CW$46,BA$1)","v":3147},{"$f":"VLOOKUP(DropDownList!$B$47,CntyQryCensus!$A$4:$CW$46,BB$1)","v":2756},{"$f":"VLOOKUP(DropDownList!$B$47,CntyQryCensus!$A$4:$CW$46,BC$1)","v":2349},{"$f":"VLOOKUP(DropDownList!$B$47,CntyQryCensus!$A$4:$CW$46,BD$1)","v":407},{"$f":"VLOOKUP(DropDownList!$B$47,CntyQryCensus!$A$4:$CW$46,BE$1)","v":391},{"$f":"VLOOKUP(DropDownList!$B$47,CntyQryCensus!$A$4:$CW$46,BF$1)","v":9},{"$f":"VLOOKUP(DropDownList!$B$47,CntyQryCensus!$A$4:$CW$46,BG$1)","v":18},{"$f":"VLOOKUP(DropDownList!$B$47,CntyQryCensus!$A$4:$CW$46,BH$1)","v":310},{"$f":"VLOOKUP(DropDownList!$B$47,CntyQryCensus!$A$4:$CW$46,BI$1)","v":7467},{"$f":"VLOOKUP(DropDownList!$B$47,CntyQryCensus!$A$4:$CW$46,BJ$1)","v":6513},{"$f":"VLOOKUP(DropDownList!$B$47,CntyQryCensus!$A$4:$CW$46,BK$1)","v":954},{"$f":"VLOOKUP(DropDownList!$B$47,CntyQryCensus!$A$4:$CW$46,BL$1)","v":2.71},{"$f":"VLOOKUP(DropDownList!$B$47,CntyQryCensus!$A$4:$CW$46,BM$1)","v":2.77},{"$f":"VLOOKUP(DropDownList!$B$47,CntyQryCensus!$A$4:$CW$46,BN$1)","v":2.34},{"$f":"VLOOKUP(DropDownList!$B$47,CntyQryCensus!$A$4:$CW$46,BO$1)","v":2315},{"$f":"VLOOKUP(DropDownList!$B$47,CntyQryCensus!$A$4:$CW$46,BP$1)","v":6},{"$f":"VLOOKUP(DropDownList!$B$47,CntyQryCensus!$A$4:$CW$46,BQ$1)","v":1},{"$f":"VLOOKUP(DropDownList!$B$47,CntyQryCensus!$A$4:$CW$46,BR$1)","v":5},{"$f":"VLOOKUP(DropDownList!$B$47,CntyQryCensus!$A$4:$CW$46,BS$1)","v":1},{"$f":"VLOOKUP(DropDownList!$B$47,CntyQryCensus!$A$4:$CW$46,BT$1)","v":5},{"$f":"VLOOKUP(DropDownList!$B$47,CntyQryCensus!$A$4:$CW$46,BU$1)","v":16},{"$f":"VLOOKUP(DropDownList!$B$47,CntyQryCensus!$A$4:$CW$46,BV$1)","v":398},{"$f":"VLOOKUP(DropDownList!$B$47,CntyQryCensus!$A$4:$CW$46,BW$1)","v":1},{"$f":"VLOOKUP(DropDownList!$B$47,CntyQryCensus!$A$4:$CW$46,BX$1)","v":1},{"$f":"VLOOKUP(DropDownList!$B$47,CntyQryCensus!$A$4:$CW$46,BY$1)","v":2},{"$f":"VLOOKUP(DropDownList!$B$47,CntyQryCensus!$A$4:$CW$46,BZ$1)","v":0},{"$f":"VLOOKUP(DropDownList!$B$47,CntyQryCensus!$A$4:$CW$46,CA$1)","v":1},{"$f":"VLOOKUP(DropDownList!$B$47,CntyQryCensus!$A$4:$CW$46,CB$1)","v":4},{"$f":"VLOOKUP(DropDownList!$B$47,CntyQryCensus!$A$4:$CW$46,CC$1)","v":18},{"$f":"VLOOKUP(DropDownList!$B$47,CntyQryCensus!$A$4:$CW$46,CD$1)","v":315},{"$f":"VLOOKUP(DropDownList!$B$47,CntyQryCensus!$A$4:$CW$46,CE$1)","v":750},{"$f":"VLOOKUP(DropDownList!$B$47,CntyQryCensus!$A$4:$CW$46,CF$1)","v":611},{"$f":"VLOOKUP(DropDownList!$B$47,CntyQryCensus!$A$4:$CW$46,CG$1)","v":368},{"$f":"VLOOKUP(DropDownList!$B$47,CntyQryCensus!$A$4:$CW$46,CH$1)","v":174},{"$f":"VLOOKUP(DropDownList!$B$47,CntyQryCensus!$A$4:$CW$46,CI$1)","v":98},{"$f":"VLOOKUP(DropDownList!$B$47,CntyQryCensus!$A$4:$CW$46,CJ$1)","v":15},{"$f":"VLOOKUP(DropDownList!$B$47,CntyQryCensus!$A$4:$CW$46,CK$1)","v":44},{"$f":"VLOOKUP(DropDownList!$B$47,CntyQryCensus!$A$4:$CW$46,CL$1)","v":133},{"$f":"VLOOKUP(DropDownList!$B$47,CntyQryCensus!$A$4:$CW$46,CM$1)","v":113},{"$f":"VLOOKUP(DropDownList!$B$47,CntyQryCensus!$A$4:$CW$46,CN$1)","v":50},{"$f":"VLOOKUP(DropDownList!$B$47,CntyQryCensus!$A$4:$CW$46,CO$1)","v":35},{"$f":"VLOOKUP(DropDownList!$B$47,CntyQryCensus!$A$4:$CW$46,CP$1)","v":17},{"$f":"VLOOKUP(DropDownList!$B$47,CntyQryCensus!$A$4:$CW$46,CQ$1)","v":12},{"$f":"VLOOKUP(DropDownList!$B$47,CntyQryCensus!$A$4:$CW$46,CR$1)","v":3},{"$f":"VLOOKUP(DropDownList!$B$47,CntyQryCensus!$A$4:$CW$46,CS$1)","v":7475},{"$f":"VLOOKUP(DropDownList!$B$47,CntyQryCensus!$A$4:$CW$46,CT$1)","v":7467},{"$f":"VLOOKUP(DropDownList!$B$47,CntyQryCensus!$A$4:$CW$46,CU$1)","v":8},{"$f":"VLOOKUP(DropDownList!$B$47,CntyQryCensus!$A$4:$CW$46,CV$1)","v":36.6},{"$f":"VLOOKUP(DropDownList!$B$47,CntyQryCensus!$A$4:$CW$46,CW$1)","v":36.6},{"$f":"VLOOKUP(DropDownList!$B$47,CntyQryCensus!$A$4:$CW$46,CX$1)","v":{"$error":"#REF!"}}]
[]
[]
["Census 2000 DemoProfile Sample Data Tables 2&3   -  DPTab23TownQry"]
["NAME","COUSUB","AREANAME","PopInSchool","Preschool","Kindergarten","Elementary","HighSchool","College","Pop25andOver","HighSchoolGrad","SomeCollege","AssocDegree","BachelDegree","GradDegree","HSGradorHigher","CollegeGradorHigher","Pop5to20yrs","Pop5to20wDis","Pop21to64","Pop21to64wDis","Pop65over","Pop65overwDis","Pop5yrsOver","SameHUin95","DiffHUinUSin95","HUinSameCountyin95","HUinSameStatein95","TotalPop","NativePop","NatPopBornUS","NatPopBornInStatRes","NatPopBornDiffState","NatPopBornOutUS","FornBornPop","FornPopEnt90to00","FornPopNatCit","FornPopNotCit","Households","HHIncLessThn10k","HHInc10to15K","HHInc15to25K","HHInc25to35K","HHInc35to50K","HHInc50to75K","HHInc75to100K","HHInc100to150K","HHInc150to200K","HHIncOver200K","MedianHHInc","HHwithPubAssistInc","MeanPubAssist","FamilyHH","FHHIncLessThn10k","FHHInc10to15K","FHHInc15to25K","FHHInc25to35K","FHHInc35to50K","FHHInc50to75K","FHHInc75to100K","FHHInc100to150K","FHHInc150to200K","FHHIncOver200K","MedianFHHInc","PerCapitaInc","PovStatFamilies","PovStatFHHwChilUnd18","PovStatFHHwChilUnd5","PovStFmalHH","DP3088","DP3089","PovStatIndiv","PovStatIndiv18yrOver","PovStatIndiv65yrOver","DP3093","DP3094","DP3095"]
[{"$f":"VLOOKUP(DropDownList!$B$47,CntyQryCensus!$A$53:$BY$96,A$1)","v":"Barrington"},{"$f":"VLOOKUP(DropDownList!$B$47,CntyQryCensus!$A$53:$BY$96,B$1)","v":"03460"},{"$f":"VLOOKUP(DropDownList!$B$47,CntyQryCensus!$A$53:$BY$96,C$1)","v":"Barrington town, Strafford County, New Hampshire"},{"$f":"VLOOKUP(DropDownList!$B$47,CntyQryCensus!$A$53:$BY$96,D$1)","v":2084},{"$f":"VLOOKUP(DropDownList!$B$47,CntyQryCensus!$A$53:$BY$96,E$1)","v":64},{"$f":"VLOOKUP(DropDownList!$B$47,CntyQryCensus!$A$53:$BY$96,F$1)","v":152},{"$f":"VLOOKUP(DropDownList!$B$47,CntyQryCensus!$A$53:$BY$96,G$1)","v":1000},{"$f":"VLOOKUP(DropDownList!$B$47,CntyQryCensus!$A$53:$BY$96,H$1)","v":447},{"$f":"VLOOKUP(DropDownList!$B$47,CntyQryCensus!$A$53:$BY$96,I$1)","v":421},{"$f":"VLOOKUP(DropDownList!$B$47,CntyQryCensus!$A$53:$BY$96,J$1)","v":4986},{"$f":"VLOOKUP(DropDownList!$B$47,CntyQryCensus!$A$53:$BY$96,K$1)","v":1458},{"$f":"VLOOKUP(DropDownList!$B$47,CntyQryCensus!$A$53:$BY$96,L$1)","v":1124},{"$f":"VLOOKUP(DropDownList!$B$47,CntyQryCensus!$A$53:$BY$96,M$1)","v":587},{"$f":"VLOOKUP(DropDownList!$B$47,CntyQryCensus!$A$53:$BY$96,N$1)","v":983},{"$f":"VLOOKUP(DropDownList!$B$47,CntyQryCensus!$A$53:$BY$96,O$1)","v":386},{"$f":"VLOOKUP(DropDownList!$B$47,CntyQryCensus!$A$53:$BY$96,P$1)","v":4538},{"$f":"VLOOKUP(DropDownList!$B$47,CntyQryCensus!$A$53:$BY$96,Q$1)","v":1369},{"$f":"VLOOKUP(DropDownList!$B$47,CntyQryCensus!$A$53:$BY$96,R$1)","v":1800},{"$f":"VLOOKUP(DropDownList!$B$47,CntyQryCensus!$A$53:$BY$96,S$1)","v":100},{"$f":"VLOOKUP(DropDownList!$B$47,CntyQryCensus!$A$53:$BY$96,T$1)","v":4666},{"$f":"VLOOKUP(DropDownList!$B$47,CntyQryCensus!$A$53:$BY$96,U$1)","v":658},{"$f":"VLOOKUP(DropDownList!$B$47,CntyQryCensus!$A$53:$BY$96,V$1)","v":528},{"$f":"VLOOKUP(DropDownList!$B$47,CntyQryCensus!$A$53:$BY$96,W$1)","v":173},{"$f":"VLOOKUP(DropDownList!$B$47,CntyQryCensus!$A$53:$BY$96,X$1)","v":7017},{"$f":"VLOOKUP(DropDownList!$B$47,CntyQryCensus!$A$53:$BY$96,Y$1)","v":4296},{"$f":"VLOOKUP(DropDownList!$B$47,CntyQryCensus!$A$53:$BY$96,Z$1)","v":2692},{"$f":"VLOOKUP(DropDownList!$B$47,CntyQryCensus!$A$53:$BY$96,AA$1)","v":1241},{"$f":"VLOOKUP(DropDownList!$B$47,CntyQryCensus!$A$53:$BY$96,AB$1)","v":1451},{"$f":"VLOOKUP(DropDownList!$B$47,CntyQryCensus!$A$53:$BY$96,AC$1)","v":7475},{"$f":"VLOOKUP(DropDownList!$B$47,CntyQryCensus!$A$53:$BY$96,AD$1)","v":7333},{"$f":"VLOOKUP(DropDownList!$B$47,CntyQryCensus!$A$53:$BY$96,AE$1)","v":7284},{"$f":"VLOOKUP(DropDownList!$B$47,CntyQryCensus!$A$53:$BY$96,AF$1)","v":3863},{"$f":"VLOOKUP(DropDownList!$B$47,CntyQryCensus!$A$53:$BY$96,AG$1)","v":3421},{"$f":"VLOOKUP(DropDownList!$B$47,CntyQryCensus!$A$53:$BY$96,AH$1)","v":49},{"$f":"VLOOKUP(DropDownList!$B$47,CntyQryCensus!$A$53:$BY$96,AI$1)","v":142},{"$f":"VLOOKUP(DropDownList!$B$47,CntyQryCensus!$A$53:$BY$96,AJ$1)","v":70},{"$f":"VLOOKUP(DropDownList!$B$47,CntyQryCensus!$A$53:$BY$96,AK$1)","v":48},{"$f":"VLOOKUP(DropDownList!$B$47,CntyQryCensus!$A$53:$BY$96,AL$1)","v":94},{"$f":"VLOOKUP(DropDownList!$B$47,CntyQryCensus!$A$53:$BY$96,AM$1)","v":2767},{"$f":"VLOOKUP(DropDownList!$B$47,CntyQryCensus!$A$53:$BY$96,AN$1)","v":73},{"$f":"VLOOKUP(DropDownList!$B$47,CntyQryCensus!$A$53:$BY$96,AO$1)","v":106},{"$f":"VLOOKUP(DropDownList!$B$47,CntyQryCensus!$A$53:$BY$96,AP$1)","v":184},{"$f":"VLOOKUP(DropDownList!$B$47,CntyQryCensus!$A$53:$BY$96,AQ$1)","v":442},{"$f":"VLOOKUP(DropDownList!$B$47,CntyQryCensus!$A$53:$BY$96,AR$1)","v":548},{"$f":"VLOOKUP(DropDownList!$B$47,CntyQryCensus!$A$53:$BY$96,AS$1)","v":660},{"$f":"VLOOKUP(DropDownList!$B$47,CntyQryCensus!$A$53:$BY$96,AT$1)","v":538},{"$f":"VLOOKUP(DropDownList!$B$47,CntyQryCensus!$A$53:$BY$96,AU$1)","v":164},{"$f":"VLOOKUP(DropDownList!$B$47,CntyQryCensus!$A$53:$BY$96,AV$1)","v":52},{"$f":"VLOOKUP(DropDownList!$B$47,CntyQryCensus!$A$53:$BY$96,AW$1)","v":0},{"$f":"VLOOKUP(DropDownList!$B$47,CntyQryCensus!$A$53:$BY$96,AX$1)","v":50630},{"$f":"VLOOKUP(DropDownList!$B$47,CntyQryCensus!$A$53:$BY$96,AY$1)","v":64},{"$f":"VLOOKUP(DropDownList!$B$47,CntyQryCensus!$A$53:$BY$96,AZ$1)","v":1115},{"$f":"VLOOKUP(DropDownList!$B$47,CntyQryCensus!$A$53:$BY$96,BA$1)","v":2096},{"$f":"VLOOKUP(DropDownList!$B$47,CntyQryCensus!$A$53:$BY$96,BB$1)","v":43},{"$f":"VLOOKUP(DropDownList!$B$47,CntyQryCensus!$A$53:$BY$96,BC$1)","v":47},{"$f":"VLOOKUP(DropDownList!$B$47,CntyQryCensus!$A$53:$BY$96,BD$1)","v":138},{"$f":"VLOOKUP(DropDownList!$B$47,CntyQryCensus!$A$53:$BY$96,BE$1)","v":288},{"$f":"VLOOKUP(DropDownList!$B$47,CntyQryCensus!$A$53:$BY$96,BF$1)","v":359},{"$f":"VLOOKUP(DropDownList!$B$47,CntyQryCensus!$A$53:$BY$96,BG$1)","v":523},{"$f":"VLOOKUP(DropDownList!$B$47,CntyQryCensus!$A$53:$BY$96,BH$1)","v":508},{"$f":"VLOOKUP(DropDownList!$B$47,CntyQryCensus!$A$53:$BY$96,BI$1)","v":151},{"$f":"VLOOKUP(DropDownList!$B$47,CntyQryCensus!$A$53:$BY$96,BJ$1)","v":39},{"$f":"VLOOKUP(DropDownList!$B$47,CntyQryCensus!$A$53:$BY$96,BK$1)","v":0},{"$f":"VLOOKUP(DropDownList!$B$47,CntyQryCensus!$A$53:$BY$96,BL$1)","v":56136},{"$f":"VLOOKUP(DropDownList!$B$47,CntyQryCensus!$A$53:$BY$96,BM$1)","v":21012},{"$f":"VLOOKUP(DropDownList!$B$47,CntyQryCensus!$A$53:$BY$96,BN$1)","v":76},{"$f":"VLOOKUP(DropDownList!$B$47,CntyQryCensus!$A$53:$BY$96,BO$1)","v":70},{"$f":"VLOOKUP(DropDownList!$B$47,CntyQryCensus!$A$53:$BY$96,BP$1)","v":9},{"$f":"VLOOKUP(DropDownList!$B$47,CntyQryCensus!$A$53:$BY$96,BQ$1)","v":42},{"$f":"VLOOKUP(DropDownList!$B$47,CntyQryCensus!$A$53:$BY$96,BR$1)","v":36},{"$f":"VLOOKUP(DropDownList!$B$47,CntyQryCensus!$A$53:$BY$96,BS$1)","v":9},{"$f":"VLOOKUP(DropDownList!$B$47,CntyQryCensus!$A$53:$BY$96,BT$1)","v":411},{"$f":"VLOOKUP(DropDownList!$B$47,CntyQryCensus!$A$53:$BY$96,BU$1)","v":259},{"$f":"VLOOKUP(DropDownList!$B$47,CntyQryCensus!$A$53:$BY$96,BV$1)","v":0},{"$f":"VLOOKUP(DropDownList!$B$47,CntyQryCensus!$A$53:$BY$96,BW$1)","v":141},{"$f":"VLOOKUP(DropDownList!$B$47,CntyQryCensus!$A$53:$BY$96,BX$1)","v":131},{"$f":"VLOOKUP(DropDownList!$B$47,CntyQryCensus!$A$53:$BY$96,BY$1)","v":136}]
[]
[]
["Census 2000 DemoProfile Sample Data Table 4   -  DPTab4TownQry"]
["NAME","COUSUB","TotHousingUnits","1UnitDet","1UnitAtt","2Units","3to4Units","5to9Units","10to19Units","20orMoreUnits","MobileHomes","BoatRvVan","SingleFamilyUnits","MultiFamUnits","MobileHomeUnits","YearBuilt99to00","YearBuilt95to98","YearBUilt90to94","YearBuilt80to89","YearBuilt70to79","YearBuilt60to69","YearBuilt40to59","YearBuilt39orEarlier","Rooms1","Rooms2","Rooms3","Rooms4","Rooms5","Rooms6","Rooms7","Rooms8","Rooms9orMore","MedianRooms","OccHU1","YrHHMvdIn99to00","YrHHMvdIn95to98","YrHHMvdIn90to94","YrHHMvdIn80to89","YrHHMvdIn70to79","YrHHMvdIn69orBefore","HeatFuelNatGas","HeatFuelBotGas","HeatFuelElectric","HeatFuelOil","HeatFuelCoal","HeatFuelWood","HeatFuelSolar","HeatFuelOther","HeatFuelNone","LackCompPlumb","LackCompKit","NoTelephone","OccHU","OccPerRm1orLess","OccPerRm1to1_5","OccPerRm1_5orMore","SpecOwnOccUnits","Value<50K","Value50to100K","Value100to150K","Value150to200K","Value200to300K","Value300to500K","Value500Kto1mil","Value1MilorMore","MedianValue","WithMortg","MnthOwnCst<300","MnthOwnCst300to500","MnthOwnCst500to700","MnthOwnCst700to1000","MnthOwnCst1000to1500","MnthOwnCst1500to2000","MnthOwnCst2000orMore","MediMnthOwnCst","NotMrtg","NotMrtgMediMnthOwnCst","OwnCst%HHInc<15","OwnCst%HHInc15to20","OwnCst%HHInc20to25","OwnCst%HHInc25to30","OwnCst%HHInc30to35","OwnCst%HHInc35orMor","NotComputed","SpecRntOccUnits","Rnt<200","Rnt200to300","Rnt300to500","Rnt500to750","Rnt750to1000","Rnt1000to1500","Rnt1500orMore","NoRent","MedianRent","Rnt%HHInc<15","Rnt%HHInc15to20","Rnt%HHInc20to25","Rnt%HHInc25to30","Rnt%HHInc30to35","Rnt%HHInc35orMore","Rnt%NotCompute"]
[{"$f":"VLOOKUP(DropDownList!$B$47,CntyQryCensus!$A$103:$CX$146,A$1)","v":"Barrington"},{"$f":"VLOOKUP(DropDownList!$B$47,CntyQryCensus!$A$103:$CX$146,B$1)","v":"03460"},{"$f":"VLOOKUP(DropDownList!$B$47,CntyQryCensus!$A$103:$CX$146,C$1)","v":3147},{"$f":"VLOOKUP(DropDownList!$B$47,CntyQryCensus!$A$103:$CX$146,D$1)","v":2290},{"$f":"VLOOKUP(DropDownList!$B$47,CntyQryCensus!$A$103:$CX$146,E$1)","v":28},{"$f":"VLOOKUP(DropDownList!$B$47,CntyQryCensus!$A$103:$CX$146,F$1)","v":40},{"$f":"VLOOKUP(DropDownList!$B$47,CntyQryCensus!$A$103:$CX$146,G$1)","v":47},{"$f":"VLOOKUP(DropDownList!$B$47,CntyQryCensus!$A$103:$CX$146,H$1)","v":92},{"$f":"VLOOKUP(DropDownList!$B$47,CntyQryCensus!$A$103:$CX$146,I$1)","v":46},{"$f":"VLOOKUP(DropDownList!$B$47,CntyQryCensus!$A$103:$CX$146,J$1)","v":0},{"$f":"VLOOKUP(DropDownList!$B$47,CntyQryCensus!$A$103:$CX$146,K$1)","v":556},{"$f":"VLOOKUP(DropDownList!$B$47,CntyQryCensus!$A$103:$CX$146,L$1)","v":48},{"$f":"VLOOKUP(DropDownList!$B$47,CntyQryCensus!$A$103:$CX$146,M$1)","v":2290},{"$f":"VLOOKUP(DropDownList!$B$47,CntyQryCensus!$A$103:$CX$146,N$1)","v":253},{"$f":"VLOOKUP(DropDownList!$B$47,CntyQryCensus!$A$103:$CX$146,O$1)","v":604},{"$f":"VLOOKUP(DropDownList!$B$47,CntyQryCensus!$A$103:$CX$146,P$1)","v":68},{"$f":"VLOOKUP(DropDownList!$B$47,CntyQryCensus!$A$103:$CX$146,Q$1)","v":329},{"$f":"VLOOKUP(DropDownList!$B$47,CntyQryCensus!$A$103:$CX$146,R$1)","v":229},{"$f":"VLOOKUP(DropDownList!$B$47,CntyQryCensus!$A$103:$CX$146,S$1)","v":844},{"$f":"VLOOKUP(DropDownList!$B$47,CntyQryCensus!$A$103:$CX$146,T$1)","v":813},{"$f":"VLOOKUP(DropDownList!$B$47,CntyQryCensus!$A$103:$CX$146,U$1)","v":282},{"$f":"VLOOKUP(DropDownList!$B$47,CntyQryCensus!$A$103:$CX$146,V$1)","v":284},{"$f":"VLOOKUP(DropDownList!$B$47,CntyQryCensus!$A$103:$CX$146,W$1)","v":298},{"$f":"VLOOKUP(DropDownList!$B$47,CntyQryCensus!$A$103:$CX$146,X$1)","v":41},{"$f":"VLOOKUP(DropDownList!$B$47,CntyQryCensus!$A$103:$CX$146,Y$1)","v":127},{"$f":"VLOOKUP(DropDownList!$B$47,CntyQryCensus!$A$103:$CX$146,Z$1)","v":166},{"$f":"VLOOKUP(DropDownList!$B$47,CntyQryCensus!$A$103:$CX$146,AA$1)","v":642},{"$f":"VLOOKUP(DropDownList!$B$47,CntyQryCensus!$A$103:$CX$146,AB$1)","v":662},{"$f":"VLOOKUP(DropDownList!$B$47,CntyQryCensus!$A$103:$CX$146,AC$1)","v":605},{"$f":"VLOOKUP(DropDownList!$B$47,CntyQryCensus!$A$103:$CX$146,AD$1)","v":447},{"$f":"VLOOKUP(DropDownList!$B$47,CntyQryCensus!$A$103:$CX$146,AE$1)","v":268},{"$f":"VLOOKUP(DropDownList!$B$47,CntyQryCensus!$A$103:$CX$146,AF$1)","v":189},{"$f":"VLOOKUP(DropDownList!$B$47,CntyQryCensus!$A$103:$CX$146,AG$1)","v":5.4},{"$f":"VLOOKUP(DropDownList!$B$47,CntyQryCensus!$A$103:$CX$146,AH$1)","v":2756},{"$f":"VLOOKUP(DropDownList!$B$47,CntyQryCensus!$A$103:$CX$146,AI$1)","v":435},{"$f":"VLOOKUP(DropDownList!$B$47,CntyQryCensus!$A$103:$CX$146,AJ$1)","v":867},{"$f":"VLOOKUP(DropDownList!$B$47,CntyQryCensus!$A$103:$CX$146,AK$1)","v":457},{"$f":"VLOOKUP(DropDownList!$B$47,CntyQryCensus!$A$103:$CX$146,AL$1)","v":571},{"$f":"VLOOKUP(DropDownList!$B$47,CntyQryCensus!$A$103:$CX$146,AM$1)","v":319},{"$f":"VLOOKUP(DropDownList!$B$47,CntyQryCensus!$A$103:$CX$146,AN$1)","v":107},{"$f":"VLOOKUP(DropDownList!$B$47,CntyQryCensus!$A$103:$CX$146,AO$1)","v":13},{"$f":"VLOOKUP(DropDownList!$B$47,CntyQryCensus!$A$103:$CX$146,AP$1)","v":588},{"$f":"VLOOKUP(DropDownList!$B$47,CntyQryCensus!$A$103:$CX$146,AQ$1)","v":102},{"$f":"VLOOKUP(DropDownList!$B$47,CntyQryCensus!$A$103:$CX$146,AR$1)","v":1872},{"$f":"VLOOKUP(DropDownList!$B$47,CntyQryCensus!$A$103:$CX$146,AS$1)","v":8},{"$f":"VLOOKUP(DropDownList!$B$47,CntyQryCensus!$A$103:$CX$146,AT$1)","v":139},{"$f":"VLOOKUP(DropDownList!$B$47,CntyQryCensus!$A$103:$CX$146,AU$1)","v":0},{"$f":"VLOOKUP(DropDownList!$B$47,CntyQryCensus!$A$103:$CX$146,AV$1)","v":9},{"$f":"VLOOKUP(DropDownList!$B$47,CntyQryCensus!$A$103:$CX$146,AW$1)","v":25},{"$f":"VLOOKUP(DropDownList!$B$47,CntyQryCensus!$A$103:$CX$146,AX$1)","v":45},{"$f":"VLOOKUP(DropDownList!$B$47,CntyQryCensus!$A$103:$CX$146,AY$1)","v":29},{"$f":"VLOOKUP(DropDownList!$B$47,CntyQryCensus!$A$103:$CX$146,AZ$1)","v":17},{"$f":"VLOOKUP(DropDownList!$B$47,CntyQryCensus!$A$103:$CX$146,BA$1)","v":2756},{"$f":"VLOOKUP(DropDownList!$B$47,CntyQryCensus!$A$103:$CX$146,BB$1)","v":2727},{"$f":"VLOOKUP(DropDownList!$B$47,CntyQryCensus!$A$103:$CX$146,BC$1)","v":29},{"$f":"VLOOKUP(DropDownList!$B$47,CntyQryCensus!$A$103:$CX$146,BD$1)","v":0},{"$f":"VLOOKUP(DropDownList!$B$47,CntyQryCensus!$A$103:$CX$146,BE$1)","v":1667},{"$f":"VLOOKUP(DropDownList!$B$47,CntyQryCensus!$A$103:$CX$146,BF$1)","v":38},{"$f":"VLOOKUP(DropDownList!$B$47,CntyQryCensus!$A$103:$CX$146,BG$1)","v":282},{"$f":"VLOOKUP(DropDownList!$B$47,CntyQryCensus!$A$103:$CX$146,BH$1)","v":728},{"$f":"VLOOKUP(DropDownList!$B$47,CntyQryCensus!$A$103:$CX$146,BI$1)","v":500},{"$f":"VLOOKUP(DropDownList!$B$47,CntyQryCensus!$A$103:$CX$146,BJ$1)","v":119},{"$f":"VLOOKUP(DropDownList!$B$47,CntyQryCensus!$A$103:$CX$146,BK$1)","v":0},{"$f":"VLOOKUP(DropDownList!$B$47,CntyQryCensus!$A$103:$CX$146,BL$1)","v":0},{"$f":"VLOOKUP(DropDownList!$B$47,CntyQryCensus!$A$103:$CX$146,BM$1)","v":0},{"$f":"VLOOKUP(DropDownList!$B$47,CntyQryCensus!$A$103:$CX$146,BN$1)","v":136400},{"$f":"VLOOKUP(DropDownList!$B$47,CntyQryCensus!$A$103:$CX$146,BO$1)","v":1345},{"$f":"VLOOKUP(DropDownList!$B$47,CntyQryCensus!$A$103:$CX$146,BP$1)","v":0},{"$f":"VLOOKUP(DropDownList!$B$47,CntyQryCensus!$A$103:$CX$146,BQ$1)","v":14},{"$f":"VLOOKUP(DropDownList!$B$47,CntyQryCensus!$A$103:$CX$146,BR$1)","v":88},{"$f":"VLOOKUP(DropDownList!$B$47,CntyQryCensus!$A$103:$CX$146,BS$1)","v":339},{"$f":"VLOOKUP(DropDownList!$B$47,CntyQryCensus!$A$103:$CX$146,BT$1)","v":626},{"$f":"VLOOKUP(DropDownList!$B$47,CntyQryCensus!$A$103:$CX$146,BU$1)","v":218},{"$f":"VLOOKUP(DropDownList!$B$47,CntyQryCensus!$A$103:$CX$146,BV$1)","v":60},{"$f":"VLOOKUP(DropDownList!$B$47,CntyQryCensus!$A$103:$CX$146,BW$1)","v":1195},{"$f":"VLOOKUP(DropDownList!$B$47,CntyQryCensus!$A$103:$CX$146,BX$1)","v":322},{"$f":"VLOOKUP(DropDownList!$B$47,CntyQryCensus!$A$103:$CX$146,BY$1)","v":433},{"$f":"VLOOKUP(DropDownList!$B$47,CntyQryCensus!$A$103:$CX$146,BZ$1)","v":452},{"$f":"VLOOKUP(DropDownList!$B$47,CntyQryCensus!$A$103:$CX$146,CA$1)","v":292},{"$f":"VLOOKUP(DropDownList!$B$47,CntyQryCensus!$A$103:$CX$146,CB$1)","v":318},{"$f":"VLOOKUP(DropDownList!$B$47,CntyQryCensus!$A$103:$CX$146,CC$1)","v":223},{"$f":"VLOOKUP(DropDownList!$B$47,CntyQryCensus!$A$103:$CX$146,CD$1)","v":92},{"$f":"VLOOKUP(DropDownList!$B$47,CntyQryCensus!$A$103:$CX$146,CE$1)","v":275},{"$f":"VLOOKUP(DropDownList!$B$47,CntyQryCensus!$A$103:$CX$146,CF$1)","v":15},{"$f":"VLOOKUP(DropDownList!$B$47,CntyQryCensus!$A$103:$CX$146,CG$1)","v":411},{"$f":"VLOOKUP(DropDownList!$B$47,CntyQryCensus!$A$103:$CX$146,CH$1)","v":18},{"$f":"VLOOKUP(DropDownList!$B$47,CntyQryCensus!$A$103:$CX$146,CI$1)","v":0},{"$f":"VLOOKUP(DropDownList!$B$47,CntyQryCensus!$A$103:$CX$146,CJ$1)","v":46},{"$f":"VLOOKUP(DropDownList!$B$47,CntyQryCensus!$A$103:$CX$146,CK$1)","v":188},{"$f":"VLOOKUP(DropDownList!$B$47,CntyQryCensus!$A$103:$CX$146,CL$1)","v":84},{"$f":"VLOOKUP(DropDownList!$B$47,CntyQryCensus!$A$103:$CX$146,CM$1)","v":38},{"$f":"VLOOKUP(DropDownList!$B$47,CntyQryCensus!$A$103:$CX$146,CN$1)","v":0},{"$f":"VLOOKUP(DropDownList!$B$47,CntyQryCensus!$A$103:$CX$146,CO$1)","v":37},{"$f":"VLOOKUP(DropDownList!$B$47,CntyQryCensus!$A$103:$CX$146,CP$1)","v":674},{"$f":"VLOOKUP(DropDownList!$B$47,CntyQryCensus!$A$103:$CX$146,CQ$1)","v":88},{"$f":"VLOOKUP(DropDownList!$B$47,CntyQryCensus!$A$103:$CX$146,CR$1)","v":37},{"$f":"VLOOKUP(DropDownList!$B$47,CntyQryCensus!$A$103:$CX$146,CS$1)","v":41},{"$f":"VLOOKUP(DropDownList!$B$47,CntyQryCensus!$A$103:$CX$146,CT$1)","v":34},{"$f":"VLOOKUP(DropDownList!$B$47,CntyQryCensus!$A$103:$CX$146,CU$1)","v":39},{"$f":"VLOOKUP(DropDownList!$B$47,CntyQryCensus!$A$103:$CX$146,CV$1)","v":127},{"$f":"VLOOKUP(DropDownList!$B$47,CntyQryCensus!$A$103:$CX$146,CW$1)","v":45}]
[]
[]
["Census 2000 SummaryFile3 Sample Data  -  SF3TownQry1SocialChar"]
["TOWN_NAME","LOGRECNO","COUSUB","P01TotalPopulation","P02SampleCountOfPop","P03Pop100pctCount","P05UrbanPopulation","P05RuralPopulation","P06WhiteAlone","P06BlackOrAfAm","P06AmIndAlone","P06AsianAlone","P06HawaiianOrPI","P06OtherRace","P06TwoPlusRaces","P07NotHispanicOrLatino","P07HispanicOrLatino","P08MalePop","P08FemalePop","P09PopInHouseholds","P09PopInFamHH","P09PopInNonFamHH","P09PopInGroupQtr","P13TotalHH","P13FamilyHH","P13FamHHolder15to24yrs","P13FamHHolder25to34yrs","P13FamHHolder35to44yrs","P13FamHHolder45to54yrs","P13FamHHolder55to64yrs","P13FamHHolder65to74yrs","P13FamHHolder75to84yrs","P13FamHHolder85yrsOver","P13NonFamilyHH","P13NonFamHHolder15to24yrs","P13NonFamHHolder25to34yrs","P13NonFamHHolder35to44yrs","P13NonFamHHolder45to54yrs","P13NonFamHHolder55to64yrs","P13NonFamHHolder65to74yrs","P13NonFamHHolder75to84yrs","P13NonFamHHolder85yrsOver","P18Pop15yrsOver","P18MaritalStatNeverMarried","P18MaritalStatNowMarried","P18MaritalStatSeparated","P18MaritalStatWidowed","P18MaritalStatWidowFemale","P18MaritalStatDivorced","P18MaritalStatDivorcedFemale","P21NativeBornPop","P21NatPopBornInState","P21NatPopBornOtherState","P021005","P021006","P021007","P021008","P21NatPopBornOutUS","P21ForeignBornPop","P021014","P021015","P24Pop5YrsPlus","P24ResSameHouseIn95","P24ResDiffHouseIn95","P24ResDiffHouseInUSIn95","P24ResDiffHouseSameCountyIn95","P24ResDiffHouseDiffCountyIn95","P24ResDiffHouseDiffCntySamStIn95","P24ResDiffHouseDiffCntyDifStIn95","P24ResDiffHouseDiffCntyNEStIn95","P24ResDiffHouseDiffCntyMWStIn95","P24ResDiffHouseDiffCntySoStIn95","P24ResDiffHouseDiffCntyWstStIn95","P24ResDiffInPR","P24ResDiffElsewhereIn95","P26Workers16yrsOver","P26WorkedInState","P26WorkedInCnty","P26WorkedOutsideCnty","P26WorkedOutsideState","P30Workers16Over","P30TranspToWrkCar","P30TranspToWrkPublic","P30TranspToWrkOther","P30WrkdAtHome","P31WrkrsNotWrkAtHom","P31TravTim<5min","P31TravTim5to9Min","P31TravTim10to14Min","P31TravTim15to19Min","P31TravTim20to24Min","P31TravTim25to29Min","P31TravTim30to34Min","P31TravTim35to39Min","P31TravTim40to44Min","P31TravTim45to59Min","P31TravTim60to89Min","P31TravTim90MinMore","P31WorkAtHome","P36SchEnrlPop3yrOver","P36NurserSchEnrl","P36KinderSchEnrl","P36ElemSchEnrl","P36HighSchEnrl","P36CollGradSchEnrl","P37Pop25yrsOver","P37EduAtain<9grd","P37EduAtainHSnoDip","P37EduAtainHSgrad","P37EduAtainCollNoDeg","P37EduAtainAssocDeg","P37EduAtainBachDeg","P37EduAtainGradProfDeg","P42NIPop5to15","P42NIPop5to15wDisabl","P42NIPop16to20","P42NIPop16to20wDisab","P42NIPop16to20wDisEmp","P42NIPop16to21NoDis","P42NIPop16to21NoDisEmpl","P42NIPop21to64","P42NIPop21to64wDis","P42NIPop21to64wDisEmp","P42NIPop21to64NoDis","P42NIPop21to64NoDisEmp","P42NIPop65to74","P42NIPop65to74wDis","P42NIPop75Over","P42NIPop75OverwDis","P43Pop16YrsOver","P43Pop16OvrInLaborForce","P43Pop16OvrCivlLabFrc","P43Pop16OvrCivlLbrFrcEmp","P48Families","P48MarriedFam","P48MarrFamNoWorkers","P48MarrFam1Worker","P48MarrFam2Worker","P48MarrFamHusbWifeWorked","P48MarrFamOther","P48MarrFam3PlusWorker","P48MarrFam3WorkHsbWif","P48MarrFam3PlsWrkOther","P48OtherFam","P48MaleHHNoWif","P48MaleHHNoWifNoWorker","P48MaleHHNoWif1Worker","P48MaleHHNoWif2Worker","P48MaleHHNoWif3PlusWorker","P48FemaleHHNoHsb","P48FemaleHHNoHsbNoWorker","P48FemaleHHNoHsb1Worker","P48FemaleHHNoHsb2Worker","P48FemaleHHNoHsb3Worker","P49EmpCivPop16YrOver","P49IndustAgricult","P49IndustConst","P49IndustMnftg","P49IndustWhlslTrd","P49IndustRtlTrd","P49IndustTrspWrhsUtlt","P49IndustInfrm","P49IndustFinInsRE","P49IndustPrfsScntfMngmt","P49IndustEduHlthSocSrv","P49IndustArtsEntRec","P49IndustOthrSrvc","P49IndustPubAdm","P50OccupMngmtProfs","P50OccupService","P50OccupSalesOff","P50OccupFarmFishForest","P50OccupConstExtrctMaint","P50OccupPrdctTrnspMatMv"]
[{"$f":"VLOOKUP(DropDownList!$B$47,CntyQryCensus!$A$156:$FR$198,A$1)","v":"Barrington"},{"$f":"VLOOKUP(DropDownList!$B$47,CntyQryCensus!$A$156:$FR$198,B$1)","v":"0003823"},{"$f":"VLOOKUP(DropDownList!$B$47,CntyQryCensus!$A$156:$FR$198,C$1)","v":"03460"},{"$f":"VLOOKUP(DropDownList!$B$47,CntyQryCensus!$A$156:$FR$198,D$1)","v":7475},{"$f":"VLOOKUP(DropDownList!$B$47,CntyQryCensus!$A$156:$FR$198,E$1)","v":889},{"$f":"VLOOKUP(DropDownList!$B$47,CntyQryCensus!$A$156:$FR$198,F$1)","v":7475},{"$f":"VLOOKUP(DropDownList!$B$47,CntyQryCensus!$A$156:$FR$198,G$1)","v":0},{"$f":"VLOOKUP(DropDownList!$B$47,CntyQryCensus!$A$156:$FR$198,H$1)","v":7475},{"$f":"VLOOKUP(DropDownList!$B$47,CntyQryCensus!$A$156:$FR$198,I$1)","v":7328},{"$f":"VLOOKUP(DropDownList!$B$47,CntyQryCensus!$A$156:$FR$198,J$1)","v":78},{"$f":"VLOOKUP(DropDownList!$B$47,CntyQryCensus!$A$156:$FR$198,K$1)","v":0},{"$f":"VLOOKUP(DropDownList!$B$47,CntyQryCensus!$A$156:$FR$198,L$1)","v":40},{"$f":"VLOOKUP(DropDownList!$B$47,CntyQryCensus!$A$156:$FR$198,M$1)","v":0},{"$f":"VLOOKUP(DropDownList!$B$47,CntyQryCensus!$A$156:$FR$198,N$1)","v":18},{"$f":"VLOOKUP(DropDownList!$B$47,CntyQryCensus!$A$156:$FR$198,O$1)","v":11},{"$f":"VLOOKUP(DropDownList!$B$47,CntyQryCensus!$A$156:$FR$198,P$1)","v":7405},{"$f":"VLOOKUP(DropDownList!$B$47,CntyQryCensus!$A$156:$FR$198,Q$1)","v":70},{"$f":"VLOOKUP(DropDownList!$B$47,CntyQryCensus!$A$156:$FR$198,R$1)","v":3821},{"$f":"VLOOKUP(DropDownList!$B$47,CntyQryCensus!$A$156:$FR$198,S$1)","v":3654},{"$f":"VLOOKUP(DropDownList!$B$47,CntyQryCensus!$A$156:$FR$198,T$1)","v":7467},{"$f":"VLOOKUP(DropDownList!$B$47,CntyQryCensus!$A$156:$FR$198,U$1)","v":6552},{"$f":"VLOOKUP(DropDownList!$B$47,CntyQryCensus!$A$156:$FR$198,V$1)","v":915},{"$f":"VLOOKUP(DropDownList!$B$47,CntyQryCensus!$A$156:$FR$198,W$1)","v":8},{"$f":"VLOOKUP(DropDownList!$B$47,CntyQryCensus!$A$156:$FR$198,X$1)","v":2767},{"$f":"VLOOKUP(DropDownList!$B$47,CntyQryCensus!$A$156:$FR$198,Y$1)","v":2096},{"$f":"VLOOKUP(DropDownList!$B$47,CntyQryCensus!$A$156:$FR$198,Z$1)","v":29},{"$f":"VLOOKUP(DropDownList!$B$47,CntyQryCensus!$A$156:$FR$198,AA$1)","v":325},{"$f":"VLOOKUP(DropDownList!$B$47,CntyQryCensus!$A$156:$FR$198,AB$1)","v":705},{"$f":"VLOOKUP(DropDownList!$B$47,CntyQryCensus!$A$156:$FR$198,AC$1)","v":513},{"$f":"VLOOKUP(DropDownList!$B$47,CntyQryCensus!$A$156:$FR$198,AD$1)","v":289},{"$f":"VLOOKUP(DropDownList!$B$47,CntyQryCensus!$A$156:$FR$198,AE$1)","v":176},{"$f":"VLOOKUP(DropDownList!$B$47,CntyQryCensus!$A$156:$FR$198,AF$1)","v":53},{"$f":"VLOOKUP(DropDownList!$B$47,CntyQryCensus!$A$156:$FR$198,AG$1)","v":6},{"$f":"VLOOKUP(DropDownList!$B$47,CntyQryCensus!$A$156:$FR$198,AH$1)","v":671},{"$f":"VLOOKUP(DropDownList!$B$47,CntyQryCensus!$A$156:$FR$198,AI$1)","v":14},{"$f":"VLOOKUP(DropDownList!$B$47,CntyQryCensus!$A$156:$FR$198,AJ$1)","v":118},{"$f":"VLOOKUP(DropDownList!$B$47,CntyQryCensus!$A$156:$FR$198,AK$1)","v":144},{"$f":"VLOOKUP(DropDownList!$B$47,CntyQryCensus!$A$156:$FR$198,AL$1)","v":166},{"$f":"VLOOKUP(DropDownList!$B$47,CntyQryCensus!$A$156:$FR$198,AM$1)","v":121},{"$f":"VLOOKUP(DropDownList!$B$47,CntyQryCensus!$A$156:$FR$198,AN$1)","v":78},{"$f":"VLOOKUP(DropDownList!$B$47,CntyQryCensus!$A$156:$FR$198,AO$1)","v":30},{"$f":"VLOOKUP(DropDownList!$B$47,CntyQryCensus!$A$156:$FR$198,AP$1)","v":0},{"$f":"VLOOKUP(DropDownList!$B$47,CntyQryCensus!$A$156:$FR$198,AQ$1)","v":5757},{"$f":"VLOOKUP(DropDownList!$B$47,CntyQryCensus!$A$156:$FR$198,AR$1)","v":1261},{"$f":"VLOOKUP(DropDownList!$B$47,CntyQryCensus!$A$156:$FR$198,AS$1)","v":3586},{"$f":"VLOOKUP(DropDownList!$B$47,CntyQryCensus!$A$156:$FR$198,AT$1)","v":21},{"$f":"VLOOKUP(DropDownList!$B$47,CntyQryCensus!$A$156:$FR$198,AU$1)","v":263},{"$f":"VLOOKUP(DropDownList!$B$47,CntyQryCensus!$A$156:$FR$198,AV$1)","v":211},{"$f":"VLOOKUP(DropDownList!$B$47,CntyQryCensus!$A$156:$FR$198,AW$1)","v":626},{"$f":"VLOOKUP(DropDownList!$B$47,CntyQryCensus!$A$156:$FR$198,AX$1)","v":284},{"$f":"VLOOKUP(DropDownList!$B$47,CntyQryCensus!$A$156:$FR$198,AY$1)","v":7333},{"$f":"VLOOKUP(DropDownList!$B$47,CntyQryCensus!$A$156:$FR$198,AZ$1)","v":3863},{"$f":"VLOOKUP(DropDownList!$B$47,CntyQryCensus!$A$156:$FR$198,BA$1)","v":3421},{"$f":"VLOOKUP(DropDownList!$B$47,CntyQryCensus!$A$156:$FR$198,BB$1)","v":2687},{"$f":"VLOOKUP(DropDownList!$B$47,CntyQryCensus!$A$156:$FR$198,BC$1)","v":193},{"$f":"VLOOKUP(DropDownList!$B$47,CntyQryCensus!$A$156:$FR$198,BD$1)","v":283},{"$f":"VLOOKUP(DropDownList!$B$47,CntyQryCensus!$A$156:$FR$198,BE$1)","v":258},{"$f":"VLOOKUP(DropDownList!$B$47,CntyQryCensus!$A$156:$FR$198,BF$1)","v":49},{"$f":"VLOOKUP(DropDownList!$B$47,CntyQryCensus!$A$156:$FR$198,BG$1)","v":142},{"$f":"VLOOKUP(DropDownList!$B$47,CntyQryCensus!$A$156:$FR$198,BH$1)","v":48},{"$f":"VLOOKUP(DropDownList!$B$47,CntyQryCensus!$A$156:$FR$198,BI$1)","v":94},{"$f":"VLOOKUP(DropDownList!$B$47,CntyQryCensus!$A$156:$FR$198,BJ$1)","v":7017},{"$f":"VLOOKUP(DropDownList!$B$47,CntyQryCensus!$A$156:$FR$198,BK$1)","v":4296},{"$f":"VLOOKUP(DropDownList!$B$47,CntyQryCensus!$A$156:$FR$198,BL$1)","v":2721},{"$f":"VLOOKUP(DropDownList!$B$47,CntyQryCensus!$A$156:$FR$198,BM$1)","v":2692},{"$f":"VLOOKUP(DropDownList!$B$47,CntyQryCensus!$A$156:$FR$198,BN$1)","v":1241},{"$f":"VLOOKUP(DropDownList!$B$47,CntyQryCensus!$A$156:$FR$198,BO$1)","v":1451},{"$f":"VLOOKUP(DropDownList!$B$47,CntyQryCensus!$A$156:$FR$198,BP$1)","v":631},{"$f":"VLOOKUP(DropDownList!$B$47,CntyQryCensus!$A$156:$FR$198,BQ$1)","v":820},{"$f":"VLOOKUP(DropDownList!$B$47,CntyQryCensus!$A$156:$FR$198,BR$1)","v":463},{"$f":"VLOOKUP(DropDownList!$B$47,CntyQryCensus!$A$156:$FR$198,BS$1)","v":59},{"$f":"VLOOKUP(DropDownList!$B$47,CntyQryCensus!$A$156:$FR$198,BT$1)","v":158},{"$f":"VLOOKUP(DropDownList!$B$47,CntyQryCensus!$A$156:$FR$198,BU$1)","v":140},{"$f":"VLOOKUP(DropDownList!$B$47,CntyQryCensus!$A$156:$FR$198,BV$1)","v":0},{"$f":"VLOOKUP(DropDownList!$B$47,CntyQryCensus!$A$156:$FR$198,BW$1)","v":29},{"$f":"VLOOKUP(DropDownList!$B$47,CntyQryCensus!$A$156:$FR$198,BX$1)","v":4192},{"$f":"VLOOKUP(DropDownList!$B$47,CntyQryCensus!$A$156:$FR$198,BY$1)","v":3779},{"$f":"VLOOKUP(DropDownList!$B$47,CntyQryCensus!$A$156:$FR$198,BZ$1)","v":2361},{"$f":"VLOOKUP(DropDownList!$B$47,CntyQryCensus!$A$156:$FR$198,CA$1)","v":1418},{"$f":"VLOOKUP(DropDownList!$B$47,CntyQryCensus!$A$156:$FR$198,CB$1)","v":413},{"$f":"VLOOKUP(DropDownList!$B$47,CntyQryCensus!$A$156:$FR$198,CC$1)","v":4192},{"$f":"VLOOKUP(DropDownList!$B$47,CntyQryCensus!$A$156:$FR$198,CD$1)","v":3912},{"$f":"VLOOKUP(DropDownList!$B$47,CntyQryCensus!$A$156:$FR$198,CE$1)","v":42},{"$f":"VLOOKUP(DropDownList!$B$47,CntyQryCensus!$A$156:$FR$198,CF$1)","v":359},{"$f":"VLOOKUP(DropDownList!$B$47,CntyQryCensus!$A$156:$FR$198,CG$1)","v":194},{"$f":"VLOOKUP(DropDownList!$B$47,CntyQryCensus!$A$156:$FR$198,CH$1)","v":3998},{"$f":"VLOOKUP(DropDownList!$B$47,CntyQryCensus!$A$156:$FR$198,CI$1)","v":34},{"$f":"VLOOKUP(DropDownList!$B$47,CntyQryCensus!$A$156:$FR$198,CJ$1)","v":238},{"$f":"VLOOKUP(DropDownList!$B$47,CntyQryCensus!$A$156:$FR$198,CK$1)","v":390},{"$f":"VLOOKUP(DropDownList!$B$47,CntyQryCensus!$A$156:$FR$198,CL$1)","v":613},{"$f":"VLOOKUP(DropDownList!$B$47,CntyQryCensus!$A$156:$FR$198,CM$1)","v":781},{"$f":"VLOOKUP(DropDownList!$B$47,CntyQryCensus!$A$156:$FR$198,CN$1)","v":379},{"$f":"VLOOKUP(DropDownList!$B$47,CntyQryCensus!$A$156:$FR$198,CO$1)","v":624},{"$f":"VLOOKUP(DropDownList!$B$47,CntyQryCensus!$A$156:$FR$198,CP$1)","v":140},{"$f":"VLOOKUP(DropDownList!$B$47,CntyQryCensus!$A$156:$FR$198,CQ$1)","v":178},{"$f":"VLOOKUP(DropDownList!$B$47,CntyQryCensus!$A$156:$FR$198,CR$1)","v":299},{"$f":"VLOOKUP(DropDownList!$B$47,CntyQryCensus!$A$156:$FR$198,CS$1)","v":243},{"$f":"VLOOKUP(DropDownList!$B$47,CntyQryCensus!$A$156:$FR$198,CT$1)","v":79},{"$f":"VLOOKUP(DropDownList!$B$47,CntyQryCensus!$A$156:$FR$198,CU$1)","v":194},{"$f":"VLOOKUP(DropDownList!$B$47,CntyQryCensus!$A$156:$FR$198,CV$1)","v":7155},{"$f":"VLOOKUP(DropDownList!$B$47,CntyQryCensus!$A$156:$FR$198,CW$1)","v":64},{"$f":"VLOOKUP(DropDownList!$B$47,CntyQryCensus!$A$156:$FR$198,CX$1)","v":152},{"$f":"VLOOKUP(DropDownList!$B$47,CntyQryCensus!$A$156:$FR$198,CY$1)","v":1000},{"$f":"VLOOKUP(DropDownList!$B$47,CntyQryCensus!$A$156:$FR$198,CZ$1)","v":447},{"$f":"VLOOKUP(DropDownList!$B$47,CntyQryCensus!$A$156:$FR$198,DA$1)","v":421},{"$f":"VLOOKUP(DropDownList!$B$47,CntyQryCensus!$A$156:$FR$198,DB$1)","v":4986},{"$f":"VLOOKUP(DropDownList!$B$47,CntyQryCensus!$A$156:$FR$198,DC$1)","v":92},{"$f":"VLOOKUP(DropDownList!$B$47,CntyQryCensus!$A$156:$FR$198,DD$1)","v":356},{"$f":"VLOOKUP(DropDownList!$B$47,CntyQryCensus!$A$156:$FR$198,DE$1)","v":1458},{"$f":"VLOOKUP(DropDownList!$B$47,CntyQryCensus!$A$156:$FR$198,DF$1)","v":1124},{"$f":"VLOOKUP(DropDownList!$B$47,CntyQryCensus!$A$156:$FR$198,DG$1)","v":587},{"$f":"VLOOKUP(DropDownList!$B$47,CntyQryCensus!$A$156:$FR$198,DH$1)","v":983},{"$f":"VLOOKUP(DropDownList!$B$47,CntyQryCensus!$A$156:$FR$198,DI$1)","v":386},{"$f":"VLOOKUP(DropDownList!$B$47,CntyQryCensus!$A$156:$FR$198,DJ$1)","v":1377},{"$f":"VLOOKUP(DropDownList!$B$47,CntyQryCensus!$A$156:$FR$198,DK$1)","v":64},{"$f":"VLOOKUP(DropDownList!$B$47,CntyQryCensus!$A$156:$FR$198,DL$1)","v":423},{"$f":"VLOOKUP(DropDownList!$B$47,CntyQryCensus!$A$156:$FR$198,DM$1)","v":36},{"$f":"VLOOKUP(DropDownList!$B$47,CntyQryCensus!$A$156:$FR$198,DN$1)","v":18},{"$f":"VLOOKUP(DropDownList!$B$47,CntyQryCensus!$A$156:$FR$198,DO$1)","v":387},{"$f":"VLOOKUP(DropDownList!$B$47,CntyQryCensus!$A$156:$FR$198,DP$1)","v":226},{"$f":"VLOOKUP(DropDownList!$B$47,CntyQryCensus!$A$156:$FR$198,DQ$1)","v":4666},{"$f":"VLOOKUP(DropDownList!$B$47,CntyQryCensus!$A$156:$FR$198,DR$1)","v":658},{"$f":"VLOOKUP(DropDownList!$B$47,CntyQryCensus!$A$156:$FR$198,DS$1)","v":420},{"$f":"VLOOKUP(DropDownList!$B$47,CntyQryCensus!$A$156:$FR$198,DT$1)","v":4008},{"$f":"VLOOKUP(DropDownList!$B$47,CntyQryCensus!$A$156:$FR$198,DU$1)","v":3455},{"$f":"VLOOKUP(DropDownList!$B$47,CntyQryCensus!$A$156:$FR$198,DV$1)","v":368},{"$f":"VLOOKUP(DropDownList!$B$47,CntyQryCensus!$A$156:$FR$198,DW$1)","v":96},{"$f":"VLOOKUP(DropDownList!$B$47,CntyQryCensus!$A$156:$FR$198,DX$1)","v":160},{"$f":"VLOOKUP(DropDownList!$B$47,CntyQryCensus!$A$156:$FR$198,DY$1)","v":77},{"$f":"VLOOKUP(DropDownList!$B$47,CntyQryCensus!$A$156:$FR$198,DZ$1)","v":5640},{"$f":"VLOOKUP(DropDownList!$B$47,CntyQryCensus!$A$156:$FR$198,EA$1)","v":4314},{"$f":"VLOOKUP(DropDownList!$B$47,CntyQryCensus!$A$156:$FR$198,EB$1)","v":4299},{"$f":"VLOOKUP(DropDownList!$B$47,CntyQryCensus!$A$156:$FR$198,EC$1)","v":4221},{"$f":"VLOOKUP(DropDownList!$B$47,CntyQryCensus!$A$156:$FR$198,ED$1)","v":2096},{"$f":"VLOOKUP(DropDownList!$B$47,CntyQryCensus!$A$156:$FR$198,EE$1)","v":1727},{"$f":"VLOOKUP(DropDownList!$B$47,CntyQryCensus!$A$156:$FR$198,EF$1)","v":125},{"$f":"VLOOKUP(DropDownList!$B$47,CntyQryCensus!$A$156:$FR$198,EG$1)","v":268},{"$f":"VLOOKUP(DropDownList!$B$47,CntyQryCensus!$A$156:$FR$198,EH$1)","v":1036},{"$f":"VLOOKUP(DropDownList!$B$47,CntyQryCensus!$A$156:$FR$198,EI$1)","v":994},{"$f":"VLOOKUP(DropDownList!$B$47,CntyQryCensus!$A$156:$FR$198,EJ$1)","v":42},{"$f":"VLOOKUP(DropDownList!$B$47,CntyQryCensus!$A$156:$FR$198,EK$1)","v":298},{"$f":"VLOOKUP(DropDownList!$B$47,CntyQryCensus!$A$156:$FR$198,EL$1)","v":298},{"$f":"VLOOKUP(DropDownList!$B$47,CntyQryCensus!$A$156:$FR$198,EM$1)","v":0},{"$f":"VLOOKUP(DropDownList!$B$47,CntyQryCensus!$A$156:$FR$198,EN$1)","v":369},{"$f":"VLOOKUP(DropDownList!$B$47,CntyQryCensus!$A$156:$FR$198,EO$1)","v":159},{"$f":"VLOOKUP(DropDownList!$B$47,CntyQryCensus!$A$156:$FR$198,EP$1)","v":0},{"$f":"VLOOKUP(DropDownList!$B$47,CntyQryCensus!$A$156:$FR$198,EQ$1)","v":102},{"$f":"VLOOKUP(DropDownList!$B$47,CntyQryCensus!$A$156:$FR$198,ER$1)","v":21},{"$f":"VLOOKUP(DropDownList!$B$47,CntyQryCensus!$A$156:$FR$198,ES$1)","v":36},{"$f":"VLOOKUP(DropDownList!$B$47,CntyQryCensus!$A$156:$FR$198,ET$1)","v":210},{"$f":"VLOOKUP(DropDownList!$B$47,CntyQryCensus!$A$156:$FR$198,EU$1)","v":23},{"$f":"VLOOKUP(DropDownList!$B$47,CntyQryCensus!$A$156:$FR$198,EV$1)","v":122},{"$f":"VLOOKUP(DropDownList!$B$47,CntyQryCensus!$A$156:$FR$198,EW$1)","v":53},{"$f":"VLOOKUP(DropDownList!$B$47,CntyQryCensus!$A$156:$FR$198,EX$1)","v":12},{"$f":"VLOOKUP(DropDownList!$B$47,CntyQryCensus!$A$156:$FR$198,EY$1)","v":4221},{"$f":"VLOOKUP(DropDownList!$B$47,CntyQryCensus!$A$156:$FR$198,EZ$1)","v":86},{"$f":"VLOOKUP(DropDownList!$B$47,CntyQryCensus!$A$156:$FR$198,FA$1)","v":365},{"$f":"VLOOKUP(DropDownList!$B$47,CntyQryCensus!$A$156:$FR$198,FB$1)","v":760},{"$f":"VLOOKUP(DropDownList!$B$47,CntyQryCensus!$A$156:$FR$198,FC$1)","v":78},{"$f":"VLOOKUP(DropDownList!$B$47,CntyQryCensus!$A$156:$FR$198,FD$1)","v":584},{"$f":"VLOOKUP(DropDownList!$B$47,CntyQryCensus!$A$156:$FR$198,FE$1)","v":268},{"$f":"VLOOKUP(DropDownList!$B$47,CntyQryCensus!$A$156:$FR$198,FF$1)","v":37},{"$f":"VLOOKUP(DropDownList!$B$47,CntyQryCensus!$A$156:$FR$198,FG$1)","v":268},{"$f":"VLOOKUP(DropDownList!$B$47,CntyQryCensus!$A$156:$FR$198,FH$1)","v":349},{"$f":"VLOOKUP(DropDownList!$B$47,CntyQryCensus!$A$156:$FR$198,FI$1)","v":887},{"$f":"VLOOKUP(DropDownList!$B$47,CntyQryCensus!$A$156:$FR$198,FJ$1)","v":197},{"$f":"VLOOKUP(DropDownList!$B$47,CntyQryCensus!$A$156:$FR$198,FK$1)","v":150},{"$f":"VLOOKUP(DropDownList!$B$47,CntyQryCensus!$A$156:$FR$198,FL$1)","v":192},{"$f":"VLOOKUP(DropDownList!$B$47,CntyQryCensus!$A$156:$FR$198,FM$1)","v":1593},{"$f":"VLOOKUP(DropDownList!$B$47,CntyQryCensus!$A$156:$FR$198,FN$1)","v":507},{"$f":"VLOOKUP(DropDownList!$B$47,CntyQryCensus!$A$156:$FR$198,FO$1)","v":1054},{"$f":"VLOOKUP(DropDownList!$B$47,CntyQryCensus!$A$156:$FR$198,FP$1)","v":16},{"$f":"VLOOKUP(DropDownList!$B$47,CntyQryCensus!$A$156:$FR$198,FQ$1)","v":450},{"$f":"VLOOKUP(DropDownList!$B$47,CntyQryCensus!$A$156:$FR$198,FR$1)","v":601}]
[]
[]
["Census 2000 SummaryFile3 Sample Data  -  SF3TownQry2aIncomeChar"]
["NAME","LOGRECNO","COUNTY","TotalPop","P52Households1","P52HHInc<10K","P52HHInc10to15K","P52HHInc15to20K","P52HHInc20to25K","P52HHInc25to30K","P52HHInc30to35K","P52HHInc35to40K","P52HHInc40to45K","P52HHInc45to50K","P52HHInc50to60K","P52HHInc60to75K","P52HHInc75to100K","P52HHInc100to125K","P52HHInc125to150K","P52HHInc150to200K","P52HHInc>200K","P53MedianHHInc","P54AggregHHInc","P55Households2","P55HHUnder25yrs","P55HH<25HHInc<10K","P55HH<25HHInc10to15K","P55HH<25HHInc15to20K","P55HH<25HHInc20to25K","P55HH<25HHInc25to30K","P55HH<25HHInc30to35K","P55HH<25HHInc35to40K","P55HH<25HHInc40to45K","P55HH<25HHInc45to50K","P55HH<25HHInc50to60K","P55HH<25HHInc60to75K","P55HH<25HHInc75to100K","P55HH<25HHInc100to125K","P55HH<25HHInc125to150K","P55HH<25HHInc150to200K","P55HH<25HHInc>200K","P55HH25to34yrs","P55HH25to34HHInc<10K","P55HH25to34HHInc10to15K","P55HH25to34HHInc15to20K","P55HH25to34HHInc20to25K","P55HH25to34HHInc25to30K","P55HH25to34HHInc30to35K","P55HH25to34HHInc35to40K","P55HH25to34HHInc40to45K","P55HH25to34HHInc45to50K","P55HH25to34HHInc50to60K","P55HH25to34HHInc60to75K","P55HH25to34HHInc75to100K","P55HH25to34HHInc100to125K","P55HH25to34HHInc125to150K","P55HH25to34HHInc150to200K","P55HH25to34HHInc>200K","P55HH35to44yrs","P55HH35to44HHInc<10K","P55HH35to44HHInc10to15K","P55HH35to44HHInc15to20K","P55HH35to44HHInc20to25K","P55HH35to44HHInc25to30K","P55HH35to44HHInc30to35K","P55HH35to44HHInc35to40K","P55HH35to44HHInc40to45K","P55HH35to44HHInc45to50K","P55HH35to44HHInc50to60K","P55HH35to44HHInc60to75K","P55HH35to44HHInc75to100K","P55HH35to44HHInc100to125K","P55HH35to44HHInc125to150K","P55HH35to44HHInc150to200K","P55HH35to44HHInc>200K","P55HH45to54yrs","P55HH45to55HHInc<10K","P55HH45to55HHInc10to15K","P55HH45to55HHInc15to20K","P55HH45to55HHInc20to25K","P55HH45to55HHInc25to30K","P55HH45to55HHInc30to35K","P55HH45to55HHInc35to40K","P55HH45to55HHInc40to45K","P55HH45to55HHInc45to50K","P55HH45to55HHInc50to60K","P55HH45to55HHInc60to75K","P55HH45to55HHInc75to100K","P55HH45to55HHInc100to125K","P55HH45to55HHInc125to150K","P55HH45to55HHInc150to200K","P55HH45to55HHInc>200K","P55HH55to64yrs","P55HH55to64HHInc<10K","P55HH55to64HHInc10to15K","P55HH55to64HHInc15to20K","P55HH55to64HHInc20to25K","P55HH55to64HHInc25to30K","P55HH55to64HHInc30to35K","P55HH55to64HHInc35to40K","P55HH55to64HHInc40to45K","P55HH55to64HHInc45to50K","P55HH55to64HHInc50to60K","P55HH55to64HHInc60to75K","P55HH55to64HHInc75to100K","P55HH55to64HHInc100to125K","P55HH55to64HHInc125to150K","P55HH55to64HHInc150to200K","P55HH55to64HHInc>200K","P55HH65to74yrs","P55HH65to74HHInc<10K","P55HH65to74HHInc10to15K","P55HH65to74HHInc15to20K","P55HH65to74HHInc20to25K","P55HH65to74HHInc25to30K","P55HH65to74HHInc30to35K","P55HH65to74HHInc35to40K","P55HH65to74HHInc40to45K","P55HH65to74HHInc45to50K","P55HH65to74HHInc50to60K","P55HH65to74HHInc60to75K","P55HH65to74HHInc75to100K","P55HH65to74HHInc100to125K","P55HH65to74HHInc125to150K","P55HH65to74HHInc150to200K","P55HH65to74HHInc>200K","P55HH>75yrs","P55HH>75HHInc<10K","P55HH>75HHInc10to15K","P55HH>75HHInc15to20K","P55HH>75HHInc20to25K","P55HH>75HHInc25to30K","P55HH>75HHInc30to35K","P55HH>75HHInc35to40K","P55HH>75HHInc40to45K","P55HH>75HHInc45to50K","P55HH>75HHInc50to60K","P55HH>75HHInc60to75K","P55HH>75HHInc75to100K","P55HH>75HHInc100to125K","P55HH>75HHInc125to150K","P55HH>75HHInc150to200K","P55HH>75HHInc>200K","P56MedHHInc","P56MedHHIncHH<25y","P56MedHHIncHH25to34y","P56MedHHIncHH35to44y","P56MedHHIncHH45to54y","P56MedHHIncHH55to64y","P56MedHHIncHH65to74y","P56MedHHIncHH>75y","P58Households3","P58HHwithEarnings","P58HHNoEarnings","P59HHwWageSalInc","P59HHNoWageSalInc","P60HHwSelfEmpInc","P60HHNoSelfEmpInc","P61HHwIndDivInc","P61HHNoIndDivInc","P62HHwSocSecInc","P62HHNoSocSecInc","P63HHwSSI","P63HHNoSSI","P64HHwPubAssInc","P64HHNoPubAssInc","P65HHwRetInc","P65HHNoRetInc","P66HHwOtherTypInc","P66HHNoOtherTypInc","P67AggregEarnings","P68AggregWageSalInc","P69AggregSelfEmpInc","P70AggregIntDivInc","P71AggregSocSecInc","P72AggregSSIInc","P73AggregPublicAssInc","P74AggregRetireInc","P76Families1","P76FamInc<10K","P76FamInc10to15K","P76FamInc15to20K","P76FamInc20to25K","P76FamInc25to30K","P76FamInc30to35K","P76FamInc35to40K","P76FamInc40to45K","P76FamInc45to50K","P76FamInc50to60K","P76FamInc60to75K","P76FamInc75to100K","P76FamInc100to125K","P76FamInc125to150K","P76FamInc150to200K","P76FamInc>200K","P77MedFamInc","P78AggregFamInc","P79NonFamHH","P79NonFamHHwInc<10K","P79NonFamHHwInc10to15K","P79NonFamHHwInc15to20K","P79NonFamHHwInc20to25K","P79NonFamHHwInc25to30K","P79NonFamHHwInc30to35K","P79NonFamHHwInc35to40K","P79NonFamHHwInc40to45K","P79NonFamHHwInc45to50K","P79NonFamHHwInc50to60K","P79NonFamHHwInc60to75K","P79NonFamHHwInc75to100K","P79NonFamHHwInc100to125K","P79NonFamHHwInc125to150K","P79NonFamHHwInc150to200K","P79NonFamHHwInc200KorMore","P80MedNonFamInc","P82PerCapitaInc"]
[{"$f":"VLOOKUP(DropDownList!$B$47,CntyQryCensus!$A$206:$HH$248,A$1)","v":"Barrington"},{"$f":"VLOOKUP(DropDownList!$B$47,CntyQryCensus!$A$206:$HH$248,B$1)","v":"0003823"},{"$f":"VLOOKUP(DropDownList!$B$47,CntyQryCensus!$A$206:$HH$248,C$1)","v":"03460"},{"$f":"VLOOKUP(DropDownList!$B$47,CntyQryCensus!$A$206:$HH$248,D$1)","v":7475},{"$f":"VLOOKUP(DropDownList!$B$47,CntyQryCensus!$A$206:$HH$248,E$1)","v":2767},{"$f":"VLOOKUP(DropDownList!$B$47,CntyQryCensus!$A$206:$HH$248,F$1)","v":73},{"$f":"VLOOKUP(DropDownList!$B$47,CntyQryCensus!$A$206:$HH$248,G$1)","v":106},{"$f":"VLOOKUP(DropDownList!$B$47,CntyQryCensus!$A$206:$HH$248,H$1)","v":54},{"$f":"VLOOKUP(DropDownList!$B$47,CntyQryCensus!$A$206:$HH$248,I$1)","v":130},{"$f":"VLOOKUP(DropDownList!$B$47,CntyQryCensus!$A$206:$HH$248,J$1)","v":233},{"$f":"VLOOKUP(DropDownList!$B$47,CntyQryCensus!$A$206:$HH$248,K$1)","v":209},{"$f":"VLOOKUP(DropDownList!$B$47,CntyQryCensus!$A$206:$HH$248,L$1)","v":174},{"$f":"VLOOKUP(DropDownList!$B$47,CntyQryCensus!$A$206:$HH$248,M$1)","v":154},{"$f":"VLOOKUP(DropDownList!$B$47,CntyQryCensus!$A$206:$HH$248,N$1)","v":220},{"$f":"VLOOKUP(DropDownList!$B$47,CntyQryCensus!$A$206:$HH$248,O$1)","v":300},{"$f":"VLOOKUP(DropDownList!$B$47,CntyQryCensus!$A$206:$HH$248,P$1)","v":360},{"$f":"VLOOKUP(DropDownList!$B$47,CntyQryCensus!$A$206:$HH$248,Q$1)","v":538},{"$f":"VLOOKUP(DropDownList!$B$47,CntyQryCensus!$A$206:$HH$248,R$1)","v":146},{"$f":"VLOOKUP(DropDownList!$B$47,CntyQryCensus!$A$206:$HH$248,S$1)","v":18},{"$f":"VLOOKUP(DropDownList!$B$47,CntyQryCensus!$A$206:$HH$248,T$1)","v":52},{"$f":"VLOOKUP(DropDownList!$B$47,CntyQryCensus!$A$206:$HH$248,U$1)","v":0},{"$f":"VLOOKUP(DropDownList!$B$47,CntyQryCensus!$A$206:$HH$248,V$1)","v":50630},{"$f":"VLOOKUP(DropDownList!$B$47,CntyQryCensus!$A$206:$HH$248,W$1)","v":155379000},{"$f":"VLOOKUP(DropDownList!$B$47,CntyQryCensus!$A$206:$HH$248,X$1)","v":2767},{"$f":"VLOOKUP(DropDownList!$B$47,CntyQryCensus!$A$206:$HH$248,Y$1)","v":43},{"$f":"VLOOKUP(DropDownList!$B$47,CntyQryCensus!$A$206:$HH$248,Z$1)","v":4},{"$f":"VLOOKUP(DropDownList!$B$47,CntyQryCensus!$A$206:$HH$248,AA$1)","v":0},{"$f":"VLOOKUP(DropDownList!$B$47,CntyQryCensus!$A$206:$HH$248,AB$1)","v":0},{"$f":"VLOOKUP(DropDownList!$B$47,CntyQryCensus!$A$206:$HH$248,AC$1)","v":10},{"$f":"VLOOKUP(DropDownList!$B$47,CntyQryCensus!$A$206:$HH$248,AD$1)","v":0},{"$f":"VLOOKUP(DropDownList!$B$47,CntyQryCensus!$A$206:$HH$248,AE$1)","v":10},{"$f":"VLOOKUP(DropDownList!$B$47,CntyQryCensus!$A$206:$HH$248,AF$1)","v":7},{"$f":"VLOOKUP(DropDownList!$B$47,CntyQryCensus!$A$206:$HH$248,AG$1)","v":0},{"$f":"VLOOKUP(DropDownList!$B$47,CntyQryCensus!$A$206:$HH$248,AH$1)","v":12},{"$f":"VLOOKUP(DropDownList!$B$47,CntyQryCensus!$A$206:$HH$248,AI$1)","v":0},{"$f":"VLOOKUP(DropDownList!$B$47,CntyQryCensus!$A$206:$HH$248,AJ$1)","v":0},{"$f":"VLOOKUP(DropDownList!$B$47,CntyQryCensus!$A$206:$HH$248,AK$1)","v":0},{"$f":"VLOOKUP(DropDownList!$B$47,CntyQryCensus!$A$206:$HH$248,AL$1)","v":0},{"$f":"VLOOKUP(DropDownList!$B$47,CntyQryCensus!$A$206:$HH$248,AM$1)","v":0},{"$f":"VLOOKUP(DropDownList!$B$47,CntyQryCensus!$A$206:$HH$248,AN$1)","v":0},{"$f":"VLOOKUP(DropDownList!$B$47,CntyQryCensus!$A$206:$HH$248,AO$1)","v":0},{"$f":"VLOOKUP(DropDownList!$B$47,CntyQryCensus!$A$206:$HH$248,AP$1)","v":443},{"$f":"VLOOKUP(DropDownList!$B$47,CntyQryCensus!$A$206:$HH$248,AQ$1)","v":36},{"$f":"VLOOKUP(DropDownList!$B$47,CntyQryCensus!$A$206:$HH$248,AR$1)","v":17},{"$f":"VLOOKUP(DropDownList!$B$47,CntyQryCensus!$A$206:$HH$248,AS$1)","v":5},{"$f":"VLOOKUP(DropDownList!$B$47,CntyQryCensus!$A$206:$HH$248,AT$1)","v":8},{"$f":"VLOOKUP(DropDownList!$B$47,CntyQryCensus!$A$206:$HH$248,AU$1)","v":23},{"$f":"VLOOKUP(DropDownList!$B$47,CntyQryCensus!$A$206:$HH$248,AV$1)","v":28},{"$f":"VLOOKUP(DropDownList!$B$47,CntyQryCensus!$A$206:$HH$248,AW$1)","v":29},{"$f":"VLOOKUP(DropDownList!$B$47,CntyQryCensus!$A$206:$HH$248,AX$1)","v":45},{"$f":"VLOOKUP(DropDownList!$B$47,CntyQryCensus!$A$206:$HH$248,AY$1)","v":22},{"$f":"VLOOKUP(DropDownList!$B$47,CntyQryCensus!$A$206:$HH$248,AZ$1)","v":72},{"$f":"VLOOKUP(DropDownList!$B$47,CntyQryCensus!$A$206:$HH$248,BA$1)","v":43},{"$f":"VLOOKUP(DropDownList!$B$47,CntyQryCensus!$A$206:$HH$248,BB$1)","v":69},{"$f":"VLOOKUP(DropDownList!$B$47,CntyQryCensus!$A$206:$HH$248,BC$1)","v":35},{"$f":"VLOOKUP(DropDownList!$B$47,CntyQryCensus!$A$206:$HH$248,BD$1)","v":0},{"$f":"VLOOKUP(DropDownList!$B$47,CntyQryCensus!$A$206:$HH$248,BE$1)","v":11},{"$f":"VLOOKUP(DropDownList!$B$47,CntyQryCensus!$A$206:$HH$248,BF$1)","v":0},{"$f":"VLOOKUP(DropDownList!$B$47,CntyQryCensus!$A$206:$HH$248,BG$1)","v":849},{"$f":"VLOOKUP(DropDownList!$B$47,CntyQryCensus!$A$206:$HH$248,BH$1)","v":0},{"$f":"VLOOKUP(DropDownList!$B$47,CntyQryCensus!$A$206:$HH$248,BI$1)","v":23},{"$f":"VLOOKUP(DropDownList!$B$47,CntyQryCensus!$A$206:$HH$248,BJ$1)","v":11},{"$f":"VLOOKUP(DropDownList!$B$47,CntyQryCensus!$A$206:$HH$248,BK$1)","v":31},{"$f":"VLOOKUP(DropDownList!$B$47,CntyQryCensus!$A$206:$HH$248,BL$1)","v":47},{"$f":"VLOOKUP(DropDownList!$B$47,CntyQryCensus!$A$206:$HH$248,BM$1)","v":30},{"$f":"VLOOKUP(DropDownList!$B$47,CntyQryCensus!$A$206:$HH$248,BN$1)","v":35},{"$f":"VLOOKUP(DropDownList!$B$47,CntyQryCensus!$A$206:$HH$248,BO$1)","v":42},{"$f":"VLOOKUP(DropDownList!$B$47,CntyQryCensus!$A$206:$HH$248,BP$1)","v":71},{"$f":"VLOOKUP(DropDownList!$B$47,CntyQryCensus!$A$206:$HH$248,BQ$1)","v":98},{"$f":"VLOOKUP(DropDownList!$B$47,CntyQryCensus!$A$206:$HH$248,BR$1)","v":167},{"$f":"VLOOKUP(DropDownList!$B$47,CntyQryCensus!$A$206:$HH$248,BS$1)","v":229},{"$f":"VLOOKUP(DropDownList!$B$47,CntyQryCensus!$A$206:$HH$248,BT$1)","v":45},{"$f":"VLOOKUP(DropDownList!$B$47,CntyQryCensus!$A$206:$HH$248,BU$1)","v":0},{"$f":"VLOOKUP(DropDownList!$B$47,CntyQryCensus!$A$206:$HH$248,BV$1)","v":20},{"$f":"VLOOKUP(DropDownList!$B$47,CntyQryCensus!$A$206:$HH$248,BW$1)","v":0},{"$f":"VLOOKUP(DropDownList!$B$47,CntyQryCensus!$A$206:$HH$248,BX$1)","v":679},{"$f":"VLOOKUP(DropDownList!$B$47,CntyQryCensus!$A$206:$HH$248,BY$1)","v":13},{"$f":"VLOOKUP(DropDownList!$B$47,CntyQryCensus!$A$206:$HH$248,BZ$1)","v":21},{"$f":"VLOOKUP(DropDownList!$B$47,CntyQryCensus!$A$206:$HH$248,CA$1)","v":11},{"$f":"VLOOKUP(DropDownList!$B$47,CntyQryCensus!$A$206:$HH$248,CB$1)","v":28},{"$f":"VLOOKUP(DropDownList!$B$47,CntyQryCensus!$A$206:$HH$248,CC$1)","v":70},{"$f":"VLOOKUP(DropDownList!$B$47,CntyQryCensus!$A$206:$HH$248,CD$1)","v":41},{"$f":"VLOOKUP(DropDownList!$B$47,CntyQryCensus!$A$206:$HH$248,CE$1)","v":45},{"$f":"VLOOKUP(DropDownList!$B$47,CntyQryCensus!$A$206:$HH$248,CF$1)","v":41},{"$f":"VLOOKUP(DropDownList!$B$47,CntyQryCensus!$A$206:$HH$248,CG$1)","v":64},{"$f":"VLOOKUP(DropDownList!$B$47,CntyQryCensus!$A$206:$HH$248,CH$1)","v":71},{"$f":"VLOOKUP(DropDownList!$B$47,CntyQryCensus!$A$206:$HH$248,CI$1)","v":72},{"$f":"VLOOKUP(DropDownList!$B$47,CntyQryCensus!$A$206:$HH$248,CJ$1)","v":138},{"$f":"VLOOKUP(DropDownList!$B$47,CntyQryCensus!$A$206:$HH$248,CK$1)","v":33},{"$f":"VLOOKUP(DropDownList!$B$47,CntyQryCensus!$A$206:$HH$248,CL$1)","v":18},{"$f":"VLOOKUP(DropDownList!$B$47,CntyQryCensus!$A$206:$HH$248,CM$1)","v":13},{"$f":"VLOOKUP(DropDownList!$B$47,CntyQryCensus!$A$206:$HH$248,CN$1)","v":0},{"$f":"VLOOKUP(DropDownList!$B$47,CntyQryCensus!$A$206:$HH$248,CO$1)","v":410},{"$f":"VLOOKUP(DropDownList!$B$47,CntyQryCensus!$A$206:$HH$248,CP$1)","v":0},{"$f":"VLOOKUP(DropDownList!$B$47,CntyQryCensus!$A$206:$HH$248,CQ$1)","v":0},{"$f":"VLOOKUP(DropDownList!$B$47,CntyQryCensus!$A$206:$HH$248,CR$1)","v":9},{"$f":"VLOOKUP(DropDownList!$B$47,CntyQryCensus!$A$206:$HH$248,CS$1)","v":9},{"$f":"VLOOKUP(DropDownList!$B$47,CntyQryCensus!$A$206:$HH$248,CT$1)","v":33},{"$f":"VLOOKUP(DropDownList!$B$47,CntyQryCensus!$A$206:$HH$248,CU$1)","v":58},{"$f":"VLOOKUP(DropDownList!$B$47,CntyQryCensus!$A$206:$HH$248,CV$1)","v":35},{"$f":"VLOOKUP(DropDownList!$B$47,CntyQryCensus!$A$206:$HH$248,CW$1)","v":8},{"$f":"VLOOKUP(DropDownList!$B$47,CntyQryCensus!$A$206:$HH$248,CX$1)","v":33},{"$f":"VLOOKUP(DropDownList!$B$47,CntyQryCensus!$A$206:$HH$248,CY$1)","v":44},{"$f":"VLOOKUP(DropDownList!$B$47,CntyQryCensus!$A$206:$HH$248,CZ$1)","v":69},{"$f":"VLOOKUP(DropDownList!$B$47,CntyQryCensus!$A$206:$HH$248,DA$1)","v":71},{"$f":"VLOOKUP(DropDownList!$B$47,CntyQryCensus!$A$206:$HH$248,DB$1)","v":33},{"$f":"VLOOKUP(DropDownList!$B$47,CntyQryCensus!$A$206:$HH$248,DC$1)","v":0},{"$f":"VLOOKUP(DropDownList!$B$47,CntyQryCensus!$A$206:$HH$248,DD$1)","v":8},{"$f":"VLOOKUP(DropDownList!$B$47,CntyQryCensus!$A$206:$HH$248,DE$1)","v":0},{"$f":"VLOOKUP(DropDownList!$B$47,CntyQryCensus!$A$206:$HH$248,DF$1)","v":254},{"$f":"VLOOKUP(DropDownList!$B$47,CntyQryCensus!$A$206:$HH$248,DG$1)","v":8},{"$f":"VLOOKUP(DropDownList!$B$47,CntyQryCensus!$A$206:$HH$248,DH$1)","v":32},{"$f":"VLOOKUP(DropDownList!$B$47,CntyQryCensus!$A$206:$HH$248,DI$1)","v":18},{"$f":"VLOOKUP(DropDownList!$B$47,CntyQryCensus!$A$206:$HH$248,DJ$1)","v":35},{"$f":"VLOOKUP(DropDownList!$B$47,CntyQryCensus!$A$206:$HH$248,DK$1)","v":44},{"$f":"VLOOKUP(DropDownList!$B$47,CntyQryCensus!$A$206:$HH$248,DL$1)","v":32},{"$f":"VLOOKUP(DropDownList!$B$47,CntyQryCensus!$A$206:$HH$248,DM$1)","v":18},{"$f":"VLOOKUP(DropDownList!$B$47,CntyQryCensus!$A$206:$HH$248,DN$1)","v":9},{"$f":"VLOOKUP(DropDownList!$B$47,CntyQryCensus!$A$206:$HH$248,DO$1)","v":18},{"$f":"VLOOKUP(DropDownList!$B$47,CntyQryCensus!$A$206:$HH$248,DP$1)","v":9},{"$f":"VLOOKUP(DropDownList!$B$47,CntyQryCensus!$A$206:$HH$248,DQ$1)","v":0},{"$f":"VLOOKUP(DropDownList!$B$47,CntyQryCensus!$A$206:$HH$248,DR$1)","v":31},{"$f":"VLOOKUP(DropDownList!$B$47,CntyQryCensus!$A$206:$HH$248,DS$1)","v":0},{"$f":"VLOOKUP(DropDownList!$B$47,CntyQryCensus!$A$206:$HH$248,DT$1)","v":0},{"$f":"VLOOKUP(DropDownList!$B$47,CntyQryCensus!$A$206:$HH$248,DU$1)","v":0},{"$f":"VLOOKUP(DropDownList!$B$47,CntyQryCensus!$A$206:$HH$248,DV$1)","v":0},{"$f":"VLOOKUP(DropDownList!$B$47,CntyQryCensus!$A$206:$HH$248,DW$1)","v":89},{"$f":"VLOOKUP(DropDownList!$B$47,CntyQryCensus!$A$206:$HH$248,DX$1)","v":12},{"$f":"VLOOKUP(DropDownList!$B$47,CntyQryCensus!$A$206:$HH$248,DY$1)","v":13},{"$f":"VLOOKUP(DropDownList!$B$47,CntyQryCensus!$A$206:$HH$248,DZ$1)","v":0},{"$f":"VLOOKUP(DropDownList!$B$47,CntyQryCensus!$A$206:$HH$248,EA$1)","v":9},{"$f":"VLOOKUP(DropDownList!$B$47,CntyQryCensus!$A$206:$HH$248,EB$1)","v":16},{"$f":"VLOOKUP(DropDownList!$B$47,CntyQryCensus!$A$206:$HH$248,EC$1)","v":10},{"$f":"VLOOKUP(DropDownList!$B$47,CntyQryCensus!$A$206:$HH$248,ED$1)","v":5},{"$f":"VLOOKUP(DropDownList!$B$47,CntyQryCensus!$A$206:$HH$248,EE$1)","v":9},{"$f":"VLOOKUP(DropDownList!$B$47,CntyQryCensus!$A$206:$HH$248,EF$1)","v":0},{"$f":"VLOOKUP(DropDownList!$B$47,CntyQryCensus!$A$206:$HH$248,EG$1)","v":6},{"$f":"VLOOKUP(DropDownList!$B$47,CntyQryCensus!$A$206:$HH$248,EH$1)","v":9},{"$f":"VLOOKUP(DropDownList!$B$47,CntyQryCensus!$A$206:$HH$248,EI$1)","v":0},{"$f":"VLOOKUP(DropDownList!$B$47,CntyQryCensus!$A$206:$HH$248,EJ$1)","v":0},{"$f":"VLOOKUP(DropDownList!$B$47,CntyQryCensus!$A$206:$HH$248,EK$1)","v":0},{"$f":"VLOOKUP(DropDownList!$B$47,CntyQryCensus!$A$206:$HH$248,EL$1)","v":0},{"$f":"VLOOKUP(DropDownList!$B$47,CntyQryCensus!$A$206:$HH$248,EM$1)","v":0},{"$f":"VLOOKUP(DropDownList!$B$47,CntyQryCensus!$A$206:$HH$248,EN$1)","v":50630},{"$f":"VLOOKUP(DropDownList!$B$47,CntyQryCensus!$A$206:$HH$248,EO$1)","v":31875},{"$f":"VLOOKUP(DropDownList!$B$47,CntyQryCensus!$A$206:$HH$248,EP$1)","v":51012},{"$f":"VLOOKUP(DropDownList!$B$47,CntyQryCensus!$A$206:$HH$248,EQ$1)","v":62974},{"$f":"VLOOKUP(DropDownList!$B$47,CntyQryCensus!$A$206:$HH$248,ER$1)","v":50724},{"$f":"VLOOKUP(DropDownList!$B$47,CntyQryCensus!$A$206:$HH$248,ES$1)","v":51429},{"$f":"VLOOKUP(DropDownList!$B$47,CntyQryCensus!$A$206:$HH$248,ET$1)","v":28611},{"$f":"VLOOKUP(DropDownList!$B$47,CntyQryCensus!$A$206:$HH$248,EU$1)","v":29141},{"$f":"VLOOKUP(DropDownList!$B$47,CntyQryCensus!$A$206:$HH$248,EV$1)","v":2767},{"$f":"VLOOKUP(DropDownList!$B$47,CntyQryCensus!$A$206:$HH$248,EW$1)","v":2489},{"$f":"VLOOKUP(DropDownList!$B$47,CntyQryCensus!$A$206:$HH$248,EX$1)","v":278},{"$f":"VLOOKUP(DropDownList!$B$47,CntyQryCensus!$A$206:$HH$248,EY$1)","v":2413},{"$f":"VLOOKUP(DropDownList!$B$47,CntyQryCensus!$A$206:$HH$248,EZ$1)","v":354},{"$f":"VLOOKUP(DropDownList!$B$47,CntyQryCensus!$A$206:$HH$248,FA$1)","v":459},{"$f":"VLOOKUP(DropDownList!$B$47,CntyQryCensus!$A$206:$HH$248,FB$1)","v":2308},{"$f":"VLOOKUP(DropDownList!$B$47,CntyQryCensus!$A$206:$HH$248,FC$1)","v":1043},{"$f":"VLOOKUP(DropDownList!$B$47,CntyQryCensus!$A$206:$HH$248,FD$1)","v":1724},{"$f":"VLOOKUP(DropDownList!$B$47,CntyQryCensus!$A$206:$HH$248,FE$1)","v":502},{"$f":"VLOOKUP(DropDownList!$B$47,CntyQryCensus!$A$206:$HH$248,FF$1)","v":2265},{"$f":"VLOOKUP(DropDownList!$B$47,CntyQryCensus!$A$206:$HH$248,FG$1)","v":36},{"$f":"VLOOKUP(DropDownList!$B$47,CntyQryCensus!$A$206:$HH$248,FH$1)","v":2731},{"$f":"VLOOKUP(DropDownList!$B$47,CntyQryCensus!$A$206:$HH$248,FI$1)","v":64},{"$f":"VLOOKUP(DropDownList!$B$47,CntyQryCensus!$A$206:$HH$248,FJ$1)","v":2703},{"$f":"VLOOKUP(DropDownList!$B$47,CntyQryCensus!$A$206:$HH$248,FK$1)","v":453},{"$f":"VLOOKUP(DropDownList!$B$47,CntyQryCensus!$A$206:$HH$248,FL$1)","v":2314},{"$f":"VLOOKUP(DropDownList!$B$47,CntyQryCensus!$A$206:$HH$248,FM$1)","v":361},{"$f":"VLOOKUP(DropDownList!$B$47,CntyQryCensus!$A$206:$HH$248,FN$1)","v":2406},{"$f":"VLOOKUP(DropDownList!$B$47,CntyQryCensus!$A$206:$HH$248,FO$1)","v":135568400},{"$f":"VLOOKUP(DropDownList!$B$47,CntyQryCensus!$A$206:$HH$248,FP$1)","v":123014900},{"$f":"VLOOKUP(DropDownList!$B$47,CntyQryCensus!$A$206:$HH$248,FQ$1)","v":12553500},{"$f":"VLOOKUP(DropDownList!$B$47,CntyQryCensus!$A$206:$HH$248,FR$1)","v":4444500},{"$f":"VLOOKUP(DropDownList!$B$47,CntyQryCensus!$A$206:$HH$248,FS$1)","v":5970100},{"$f":"VLOOKUP(DropDownList!$B$47,CntyQryCensus!$A$206:$HH$248,FT$1)","v":163100},{"$f":"VLOOKUP(DropDownList!$B$47,CntyQryCensus!$A$206:$HH$248,FU$1)","v":71300},{"$f":"VLOOKUP(DropDownList!$B$47,CntyQryCensus!$A$206:$HH$248,FV$1)","v":6515700},{"$f":"VLOOKUP(DropDownList!$B$47,CntyQryCensus!$A$206:$HH$248,FW$1)","v":2096},{"$f":"VLOOKUP(DropDownList!$B$47,CntyQryCensus!$A$206:$HH$248,FX$1)","v":43},{"$f":"VLOOKUP(DropDownList!$B$47,CntyQryCensus!$A$206:$HH$248,FY$1)","v":47},{"$f":"VLOOKUP(DropDownList!$B$47,CntyQryCensus!$A$206:$HH$248,FZ$1)","v":33},{"$f":"VLOOKUP(DropDownList!$B$47,CntyQryCensus!$A$206:$HH$248,GA$1)","v":105},{"$f":"VLOOKUP(DropDownList!$B$47,CntyQryCensus!$A$206:$HH$248,GB$1)","v":160},{"$f":"VLOOKUP(DropDownList!$B$47,CntyQryCensus!$A$206:$HH$248,GC$1)","v":128},{"$f":"VLOOKUP(DropDownList!$B$47,CntyQryCensus!$A$206:$HH$248,GD$1)","v":93},{"$f":"VLOOKUP(DropDownList!$B$47,CntyQryCensus!$A$206:$HH$248,GE$1)","v":116},{"$f":"VLOOKUP(DropDownList!$B$47,CntyQryCensus!$A$206:$HH$248,GF$1)","v":150},{"$f":"VLOOKUP(DropDownList!$B$47,CntyQryCensus!$A$206:$HH$248,GG$1)","v":212},{"$f":"VLOOKUP(DropDownList!$B$47,CntyQryCensus!$A$206:$HH$248,GH$1)","v":311},{"$f":"VLOOKUP(DropDownList!$B$47,CntyQryCensus!$A$206:$HH$248,GI$1)","v":508},{"$f":"VLOOKUP(DropDownList!$B$47,CntyQryCensus!$A$206:$HH$248,GJ$1)","v":133},{"$f":"VLOOKUP(DropDownList!$B$47,CntyQryCensus!$A$206:$HH$248,GK$1)","v":18},{"$f":"VLOOKUP(DropDownList!$B$47,CntyQryCensus!$A$206:$HH$248,GL$1)","v":39},{"$f":"VLOOKUP(DropDownList!$B$47,CntyQryCensus!$A$206:$HH$248,GM$1)","v":0},{"$f":"VLOOKUP(DropDownList!$B$47,CntyQryCensus!$A$206:$HH$248,GN$1)","v":56136},{"$f":"VLOOKUP(DropDownList!$B$47,CntyQryCensus!$A$206:$HH$248,GO$1)","v":126321800},{"$f":"VLOOKUP(DropDownList!$B$47,CntyQryCensus!$A$206:$HH$248,GP$1)","v":671},{"$f":"VLOOKUP(DropDownList!$B$47,CntyQryCensus!$A$206:$HH$248,GQ$1)","v":38},{"$f":"VLOOKUP(DropDownList!$B$47,CntyQryCensus!$A$206:$HH$248,GR$1)","v":67},{"$f":"VLOOKUP(DropDownList!$B$47,CntyQryCensus!$A$206:$HH$248,GS$1)","v":31},{"$f":"VLOOKUP(DropDownList!$B$47,CntyQryCensus!$A$206:$HH$248,GT$1)","v":44},{"$f":"VLOOKUP(DropDownList!$B$47,CntyQryCensus!$A$206:$HH$248,GU$1)","v":84},{"$f":"VLOOKUP(DropDownList!$B$47,CntyQryCensus!$A$206:$HH$248,GV$1)","v":72},{"$f":"VLOOKUP(DropDownList!$B$47,CntyQryCensus!$A$206:$HH$248,GW$1)","v":64},{"$f":"VLOOKUP(DropDownList!$B$47,CntyQryCensus!$A$206:$HH$248,GX$1)","v":46},{"$f":"VLOOKUP(DropDownList!$B$47,CntyQryCensus!$A$206:$HH$248,GY$1)","v":51},{"$f":"VLOOKUP(DropDownList!$B$47,CntyQryCensus!$A$206:$HH$248,GZ$1)","v":77},{"$f":"VLOOKUP(DropDownList!$B$47,CntyQryCensus!$A$206:$HH$248,HA$1)","v":49},{"$f":"VLOOKUP(DropDownList!$B$47,CntyQryCensus!$A$206:$HH$248,HB$1)","v":22},{"$f":"VLOOKUP(DropDownList!$B$47,CntyQryCensus!$A$206:$HH$248,HC$1)","v":17},{"$f":"VLOOKUP(DropDownList!$B$47,CntyQryCensus!$A$206:$HH$248,HD$1)","v":0},{"$f":"VLOOKUP(DropDownList!$B$47,CntyQryCensus!$A$206:$HH$248,HE$1)","v":9},{"$f":"VLOOKUP(DropDownList!$B$47,CntyQryCensus!$A$206:$HH$248,HF$1)","v":0},{"$f":"VLOOKUP(DropDownList!$B$47,CntyQryCensus!$A$206:$HH$248,HG$1)","v":34963},{"$f":"VLOOKUP(DropDownList!$B$47,CntyQryCensus!$A$206:$HH$248,HH$1)","v":21012}]
[]
[]
["Census 2000 SummaryFile3 Sample Data  -  SF3TownQry2bPovertyChar"]
["NAME","LOGRECNO","COUNTY","TotalPop","P52Households1","P82PerCapitaInc","P87PopForPovStatus","P87PopWIncBelowPovStatus","P87PopUnder5yrBelowPoverty","P87Pop5yrBelowPoverty","P87Pop5to11yrBelowPoverty","P87Pop12to17yrBelowPoverty","P87Pop18to64yrBelowPoverty","P87Pop65to74yrBelowPoverty","P87PopOver75yrBelowPoverty","P87PopWIncAbovePovStatus","P87PopUnder5yrAbovePoverty","P87Pop5yrAbovePoverty","P87Pop5to11yrAbovePoverty","P87Pop12to17yrAbovePoverty","P87Pop18to64yrAbovePoverty","P87Pop65to74yrAbovePoverty","P87PopOver75yrAbovePoverty","P90Families","P90FamWIncBelowPov","P90MarCupFamWIncBelowPov","P90MCFamWRltdChld<18WIncBelowPov","P90MCFamWRltdChld<5WIncBelowPov","P90MaleHhlrWIncBelowPov","P90MaleHhlrWRltdChld<18yrWIncBelowPov","P90MaleHhlrWRltdChld<5yrWIncBelowPov","P90FemaleHhlrWIncBelowPov","P90FemaleHhlrWRltdChld<18yWIncBelowPov","P90FemaleHhlrWRltdChld<5yWIncBelowPov","P90FamWIncAbovePov","P90MarCupFamWIncAbovePov","P90MCFamWRltdChld<18WIncAbovePov","P90MCFamWRltdChld<5WIncAbovePov","P90MaleHhlrWIncAbovePov","P90MaleHhlrWRltdChld<18yrWIncAbovePov","P90MaleHhlrWRltdChld<5yrWIncAbovePov","P90FemaleHhlrWIncAbovePov","P90FemaleHhlrWRltdChld<18yWIncAbovePov","P90FemaleHhlrWRltdChld<5yWIncAbovePov","P92Households","P92HHwIncBelowPov","P92FamHHwIncBelowPov","P92MCFamHHwIncBelowPov","P92MaleFamHHwIncBelowPov","P92FemaleFamHHwIncBelowPov","P92NonFamHHwIncBelowPov","P92NonFamMaleHHwIncBelowPov","P92NonFamFemaleHHwIncBelowPov","P92HHwIncAbovePov","P92FamHHwIncAbovePov","P92MCFamHHwIncAbovePov","P92MaleFamHHwIncAbovePov","P92FemaleFamHHwIncAbovePov","P92NonFamHHwIncAbovePov","P92NonFamMaleHHwIncAbovePov","P92NonFamFemaleHHwIncAbovePov"]
[{"$f":"VLOOKUP(DropDownList!$B$47,CntyQryCensus!$A$256:$BI$298,A$1)","v":"Barrington"},{"$f":"VLOOKUP(DropDownList!$B$47,CntyQryCensus!$A$256:$BI$298,B$1)","v":"0003823"},{"$f":"VLOOKUP(DropDownList!$B$47,CntyQryCensus!$A$256:$BI$298,C$1)","v":"03460"},{"$f":"VLOOKUP(DropDownList!$B$47,CntyQryCensus!$A$256:$BI$298,D$1)","v":7475},{"$f":"VLOOKUP(DropDownList!$B$47,CntyQryCensus!$A$256:$BI$298,E$1)","v":2767},{"$f":"VLOOKUP(DropDownList!$B$47,CntyQryCensus!$A$256:$BI$298,F$1)","v":21012},{"$f":"VLOOKUP(DropDownList!$B$47,CntyQryCensus!$A$256:$BI$298,G$1)","v":7441},{"$f":"VLOOKUP(DropDownList!$B$47,CntyQryCensus!$A$256:$BI$298,H$1)","v":411},{"$f":"VLOOKUP(DropDownList!$B$47,CntyQryCensus!$A$256:$BI$298,I$1)","v":10},{"$f":"VLOOKUP(DropDownList!$B$47,CntyQryCensus!$A$256:$BI$298,J$1)","v":19},{"$f":"VLOOKUP(DropDownList!$B$47,CntyQryCensus!$A$256:$BI$298,K$1)","v":71},{"$f":"VLOOKUP(DropDownList!$B$47,CntyQryCensus!$A$256:$BI$298,L$1)","v":52},{"$f":"VLOOKUP(DropDownList!$B$47,CntyQryCensus!$A$256:$BI$298,M$1)","v":259},{"$f":"VLOOKUP(DropDownList!$B$47,CntyQryCensus!$A$256:$BI$298,N$1)","v":0},{"$f":"VLOOKUP(DropDownList!$B$47,CntyQryCensus!$A$256:$BI$298,O$1)","v":0},{"$f":"VLOOKUP(DropDownList!$B$47,CntyQryCensus!$A$256:$BI$298,P$1)","v":7030},{"$f":"VLOOKUP(DropDownList!$B$47,CntyQryCensus!$A$256:$BI$298,Q$1)","v":448},{"$f":"VLOOKUP(DropDownList!$B$47,CntyQryCensus!$A$256:$BI$298,R$1)","v":143},{"$f":"VLOOKUP(DropDownList!$B$47,CntyQryCensus!$A$256:$BI$298,S$1)","v":566},{"$f":"VLOOKUP(DropDownList!$B$47,CntyQryCensus!$A$256:$BI$298,T$1)","v":722},{"$f":"VLOOKUP(DropDownList!$B$47,CntyQryCensus!$A$256:$BI$298,U$1)","v":4623},{"$f":"VLOOKUP(DropDownList!$B$47,CntyQryCensus!$A$256:$BI$298,V$1)","v":368},{"$f":"VLOOKUP(DropDownList!$B$47,CntyQryCensus!$A$256:$BI$298,W$1)","v":160},{"$f":"VLOOKUP(DropDownList!$B$47,CntyQryCensus!$A$256:$BI$298,X$1)","v":2096},{"$f":"VLOOKUP(DropDownList!$B$47,CntyQryCensus!$A$256:$BI$298,Y$1)","v":76},{"$f":"VLOOKUP(DropDownList!$B$47,CntyQryCensus!$A$256:$BI$298,Z$1)","v":34},{"$f":"VLOOKUP(DropDownList!$B$47,CntyQryCensus!$A$256:$BI$298,AA$1)","v":34},{"$f":"VLOOKUP(DropDownList!$B$47,CntyQryCensus!$A$256:$BI$298,AB$1)","v":0},{"$f":"VLOOKUP(DropDownList!$B$47,CntyQryCensus!$A$256:$BI$298,AC$1)","v":0},{"$f":"VLOOKUP(DropDownList!$B$47,CntyQryCensus!$A$256:$BI$298,AD$1)","v":0},{"$f":"VLOOKUP(DropDownList!$B$47,CntyQryCensus!$A$256:$BI$298,AE$1)","v":0},{"$f":"VLOOKUP(DropDownList!$B$47,CntyQryCensus!$A$256:$BI$298,AF$1)","v":42},{"$f":"VLOOKUP(DropDownList!$B$47,CntyQryCensus!$A$256:$BI$298,AG$1)","v":36},{"$f":"VLOOKUP(DropDownList!$B$47,CntyQryCensus!$A$256:$BI$298,AH$1)","v":0},{"$f":"VLOOKUP(DropDownList!$B$47,CntyQryCensus!$A$256:$BI$298,AI$1)","v":2020},{"$f":"VLOOKUP(DropDownList!$B$47,CntyQryCensus!$A$256:$BI$298,AJ$1)","v":1693},{"$f":"VLOOKUP(DropDownList!$B$47,CntyQryCensus!$A$256:$BI$298,AK$1)","v":839},{"$f":"VLOOKUP(DropDownList!$B$47,CntyQryCensus!$A$256:$BI$298,AL$1)","v":207},{"$f":"VLOOKUP(DropDownList!$B$47,CntyQryCensus!$A$256:$BI$298,AM$1)","v":159},{"$f":"VLOOKUP(DropDownList!$B$47,CntyQryCensus!$A$256:$BI$298,AN$1)","v":110},{"$f":"VLOOKUP(DropDownList!$B$47,CntyQryCensus!$A$256:$BI$298,AO$1)","v":18},{"$f":"VLOOKUP(DropDownList!$B$47,CntyQryCensus!$A$256:$BI$298,AP$1)","v":168},{"$f":"VLOOKUP(DropDownList!$B$47,CntyQryCensus!$A$256:$BI$298,AQ$1)","v":136},{"$f":"VLOOKUP(DropDownList!$B$47,CntyQryCensus!$A$256:$BI$298,AR$1)","v":12},{"$f":"VLOOKUP(DropDownList!$B$47,CntyQryCensus!$A$256:$BI$298,AS$1)","v":2767},{"$f":"VLOOKUP(DropDownList!$B$47,CntyQryCensus!$A$256:$BI$298,AT$1)","v":125},{"$f":"VLOOKUP(DropDownList!$B$47,CntyQryCensus!$A$256:$BI$298,AU$1)","v":76},{"$f":"VLOOKUP(DropDownList!$B$47,CntyQryCensus!$A$256:$BI$298,AV$1)","v":34},{"$f":"VLOOKUP(DropDownList!$B$47,CntyQryCensus!$A$256:$BI$298,AW$1)","v":0},{"$f":"VLOOKUP(DropDownList!$B$47,CntyQryCensus!$A$256:$BI$298,AX$1)","v":42},{"$f":"VLOOKUP(DropDownList!$B$47,CntyQryCensus!$A$256:$BI$298,AY$1)","v":49},{"$f":"VLOOKUP(DropDownList!$B$47,CntyQryCensus!$A$256:$BI$298,AZ$1)","v":30},{"$f":"VLOOKUP(DropDownList!$B$47,CntyQryCensus!$A$256:$BI$298,BA$1)","v":19},{"$f":"VLOOKUP(DropDownList!$B$47,CntyQryCensus!$A$256:$BI$298,BB$1)","v":2642},{"$f":"VLOOKUP(DropDownList!$B$47,CntyQryCensus!$A$256:$BI$298,BC$1)","v":2020},{"$f":"VLOOKUP(DropDownList!$B$47,CntyQryCensus!$A$256:$BI$298,BD$1)","v":1693},{"$f":"VLOOKUP(DropDownList!$B$47,CntyQryCensus!$A$256:$BI$298,BE$1)","v":159},{"$f":"VLOOKUP(DropDownList!$B$47,CntyQryCensus!$A$256:$BI$298,BF$1)","v":168},{"$f":"VLOOKUP(DropDownList!$B$47,CntyQryCensus!$A$256:$BI$298,BG$1)","v":622},{"$f":"VLOOKUP(DropDownList!$B$47,CntyQryCensus!$A$256:$BI$298,BH$1)","v":348},{"$f":"VLOOKUP(DropDownList!$B$47,CntyQryCensus!$A$256:$BI$298,BI$1)","v":274}]
[null,null,null,null,null,null,null,null,null,null,null,null,null,null,null,null,null,null,{"$f":"SUM(R60:T60)","v":1431}]
[]
["Census 2000 SummaryFile3 Sample Data  -  SF3TownQry7HousingA"]
["NAME","LOGRECNO","COUNTY","TotalPop","H1HousingUnitsTotal","H2SampleHU","H2SampleOccHU","H2SampleVacHU","H3HU100pctCount","H5HUTotal","H5HUUrban","H5HUUrbanInUrbanAreas","H5HUUrbanInUrbanClusters","H5HURural","H5HURuralFarm","H5HURuralNonFarm","H7HUOcc","H7HUOwnrOcc","H7HURentrOcc","H8HUVacant","H8HUVacantForRent","H8HUVacantForSale","H8HUVacRentedorSold","H8HUVacSeasonal","H8HUVacForMigrantWrkrs","H8HUOtherVacant","H14OccHUa","H14OwnerOccHU","H14OwnOccHuHh15to24","H14OwnOccHuHh25to34","H14OwnOccHuHh35to44","H14OwnOccHuHh45to54","H14OwnOccHuHh55to59","H14OwnOccHuHh60to64","H14OwnOccHuHh65to74","H14OwnOccHuHh75to84","H14OwnOccHuHh85Over","H14RenterOccHU1","H14RntrOccHuHh15to24","H14RntrOccHuHh25to34","H14RntrOccHuHh35to44","H14RntrOccHuHh45to54","H14RntrOccHuHh55to59","H14RntrOccHuHh60to64","H14RntrOccHuHh65to74","H14RntrOccHuHh75to84","H14RntrOccHuHh85Over","H15PopInOccHU","H15PopInOwnOccHU1","H15PopInRentOccHU1","H17OccupHUb","H17OwnOccHU2","H17OwnOccHU1PersonHH","H17OwnOccHU2PersonHH","H17OwnOccHU3PersonHH","H17OwnOccHU4PersonHH","H17OwnOccHU5PersonHH","H17OwnOccHU6PersonHH","H17OwnOccHU7PlusPersonHH","H17RentOccHU2","H17RntOccHU1PersonHH","H17RntOccHU2PersonHH","H17RntOccHU3PersonHH","H17RntOccHU4PersonHH","H17RntOccHU5PersonHH","H17RntOccHU6PersonHH","H17RntOccHU7PlusPersonHH","H18AvgHHSize","H18AvgHHSizeOwnOcc","H18AvgHHSizeRentOcc","H23TotHU","H23HU1Room","H23HU2Room","H23HU3Room","H23HU4Room","H23HU5Room","H23HU6Room","H23HU7Room","H23HU8Room","H23HU9orMoreRoom","H24MedianNumRooms","H25AggregNumRooms","H30TotalHU","H30Det1HU","H30Att1HU","H30Units2","H30Units3or4","H30Units5to9","H30Units10to19","H30Units20to49","H30Units50orMore","H30UnitsMobileHome","H30UnitsBoatRv","H32OccHUcTotal","H32OwnerOccHU3","H32OwnOccHU1Det","H32OwnOccHU1Att","H32OwnOccHU2Unit","H32OwnOccHU3to4Unit","H32OwnOccHU5to9Unit","H32OwnOccHU10to19Unit","H32OwnOccHU20to49Unit","H32OwnOccHU50plusUnit","H32OwnOccHUMobHom","H32OwnOccHUBoatRVOth","H32RentrOccHU3","H32RntrOccHU1Det","H32RntrOccHU1Att","H32RntrOccHU2Unit","H32RntrOccHU3to4Unit","H32RntrOccHU5to9Unit","H32RntrOccHU10to19Unit","H32RntrOccHU20to49Unit","H32RntrOccHU50PlusUnit","H32RntrOccHUMobHom","H32RntrOccHUBoatRVOth","H33TotPopInOccHU","H33PopInOwnOccHU2","H33PopInOOHU1Det","H33PopInOOHU1Att","H33PopInOOHU2unit","H33PopInOOHU3to4Unit","H33PopInOOHU5to9Unit","H33PopInOOHU10to19Unit","H33PopInOOHU20to49Unit","H33PopInOOHU50PlusUnit","H33PopInOOHUMobilHome","H33PopInOOHUOtherUnit","H33PopInRentOccHU2","H33PopInROHU1Det","H33PopInROHU1Att","H33PopInROHU2Unit","H33PopInROHU3to4Unit","H33PopInROHU5to9Unit","H33PopInROHU10to19Unit","H33PopInROHU20to49Unit","H33PopInROHU50PlusUnit","H33PopInROHUMobilHome","H33PopInROHUOtherUnit","H36OccHousingUnitsdTotal","H36OwnerOccHU4","H36OOHUBuilt99to0300","H36OOHUBuilt95to98","H36OOHUBuilt90to94","H36OOHUBuilt80to89","H36OOHUBuilt70to79","H36OOHUBuilt60to69","H36OOHUBuilt50to59","H36OOHUBuilt40to49","H36OOHUBuilt39Earlier","H36RentOccHU4","H36ROHUBuilt99to0300","H36ROHUBuilt95to98","H36ROHUBuilt90to94","H36ROHUBuilt80to89","H36ROHUBuilt70to79","H36ROHUBuilt60to69","H36ROHUBuilt50to59","H36ROHUBuilt40to49","H36ROHUBuilt39Earlier","H40OccupHousUnitse","H40HeatFuelUtilGas","H40HeatFuelBotGas","H40HeatFuelElect","H40HeatFuelOilKero","H40HeatFuelCoal","H40HeatFuelWood","H40HeatFuelSolar","H40HeatFuelOther","H40HeatFuelNone","H41TotalHU","H41HUNoBdrm","H41HU1Bdrm","H41HU2Bdrm","H41HU3Bdrm","H41HU4Bdrm","H41HU5MoreBdrm","H42OccuHousUnitf","H42OwnerOccHU5","H42OOHUNoBdrm","H42OOHU1Bdrm","H42OOHU2Bdrm","H42OOHU3Bdrm","H42OOHU4Bdrm","H42OOHU5PlusBdrm","H42RentOccHU5","H42ROHUNoBdrm","H42ROHU1Bdrm","H42ROHU2Bdrm","H42ROHU3Bdrm","H42ROHU4Bdrm","H42ROHU5PlusBdrm","H48OccupHousUnitsg","H48OwnerOccHU6","H48OOHUwCompltPlumFacil","H48OOHULackCompltPlumFacil","H48RentOccHU6","H48ROHUwCompltPlumFacil","H48ROHULackCompltPlumFacil","H51OccupHousUnitf","H51OwnerOccHU7","H51OOHUwCompleteKitFacil","H51OOHULackCompleteKitFacil","H51RenterOccHU7","H51ROHUwCompleteKitFacil","H51ROHULackCompleteKitFacil"]
[{"$f":"VLOOKUP(DropDownList!$B47,CntyQryCensus!$A$306:$GX$348,A$1)","v":"Barrington"},{"$f":"VLOOKUP(DropDownList!$B47,CntyQryCensus!$A$306:$GX$348,B$1)","v":"0003823"},{"$f":"VLOOKUP(DropDownList!$B47,CntyQryCensus!$A$306:$GX$348,C$1)","v":"03460"},{"$f":"VLOOKUP(DropDownList!$B47,CntyQryCensus!$A$306:$GX$348,D$1)","v":7475},{"$f":"VLOOKUP(DropDownList!$B47,CntyQryCensus!$A$306:$GX$348,E$1)","v":3147},{"$f":"VLOOKUP(DropDownList!$B47,CntyQryCensus!$A$306:$GX$348,F$1)","v":379},{"$f":"VLOOKUP(DropDownList!$B47,CntyQryCensus!$A$306:$GX$348,G$1)","v":343},{"$f":"VLOOKUP(DropDownList!$B47,CntyQryCensus!$A$306:$GX$348,H$1)","v":36},{"$f":"VLOOKUP(DropDownList!$B47,CntyQryCensus!$A$306:$GX$348,I$1)","v":3147},{"$f":"VLOOKUP(DropDownList!$B47,CntyQryCensus!$A$306:$GX$348,J$1)","v":3147},{"$f":"VLOOKUP(DropDownList!$B47,CntyQryCensus!$A$306:$GX$348,K$1)","v":0},{"$f":"VLOOKUP(DropDownList!$B47,CntyQryCensus!$A$306:$GX$348,L$1)","v":0},{"$f":"VLOOKUP(DropDownList!$B47,CntyQryCensus!$A$306:$GX$348,M$1)","v":0},{"$f":"VLOOKUP(DropDownList!$B47,CntyQryCensus!$A$306:$GX$348,N$1)","v":3147},{"$f":"VLOOKUP(DropDownList!$B47,CntyQryCensus!$A$306:$GX$348,O$1)","v":15},{"$f":"VLOOKUP(DropDownList!$B47,CntyQryCensus!$A$306:$GX$348,P$1)","v":3132},{"$f":"VLOOKUP(DropDownList!$B47,CntyQryCensus!$A$306:$GX$348,Q$1)","v":2756},{"$f":"VLOOKUP(DropDownList!$B47,CntyQryCensus!$A$306:$GX$348,R$1)","v":2345},{"$f":"VLOOKUP(DropDownList!$B47,CntyQryCensus!$A$306:$GX$348,S$1)","v":411},{"$f":"VLOOKUP(DropDownList!$B47,CntyQryCensus!$A$306:$GX$348,T$1)","v":391},{"$f":"VLOOKUP(DropDownList!$B47,CntyQryCensus!$A$306:$GX$348,U$1)","v":0},{"$f":"VLOOKUP(DropDownList!$B47,CntyQryCensus!$A$306:$GX$348,V$1)","v":20},{"$f":"VLOOKUP(DropDownList!$B47,CntyQryCensus!$A$306:$GX$348,W$1)","v":0},{"$f":"VLOOKUP(DropDownList!$B47,CntyQryCensus!$A$306:$GX$348,X$1)","v":314},{"$f":"VLOOKUP(DropDownList!$B47,CntyQryCensus!$A$306:$GX$348,Y$1)","v":0},{"$f":"VLOOKUP(DropDownList!$B47,CntyQryCensus!$A$306:$GX$348,Z$1)","v":57},{"$f":"VLOOKUP(DropDownList!$B47,CntyQryCensus!$A$306:$GX$348,AA$1)","v":2756},{"$f":"VLOOKUP(DropDownList!$B47,CntyQryCensus!$A$306:$GX$348,AB$1)","v":2345},{"$f":"VLOOKUP(DropDownList!$B47,CntyQryCensus!$A$306:$GX$348,AC$1)","v":18},{"$f":"VLOOKUP(DropDownList!$B47,CntyQryCensus!$A$306:$GX$348,AD$1)","v":319},{"$f":"VLOOKUP(DropDownList!$B47,CntyQryCensus!$A$306:$GX$348,AE$1)","v":756},{"$f":"VLOOKUP(DropDownList!$B47,CntyQryCensus!$A$306:$GX$348,AF$1)","v":603},{"$f":"VLOOKUP(DropDownList!$B47,CntyQryCensus!$A$306:$GX$348,AG$1)","v":241},{"$f":"VLOOKUP(DropDownList!$B47,CntyQryCensus!$A$306:$GX$348,AH$1)","v":114},{"$f":"VLOOKUP(DropDownList!$B47,CntyQryCensus!$A$306:$GX$348,AI$1)","v":208},{"$f":"VLOOKUP(DropDownList!$B47,CntyQryCensus!$A$306:$GX$348,AJ$1)","v":78},{"$f":"VLOOKUP(DropDownList!$B47,CntyQryCensus!$A$306:$GX$348,AK$1)","v":8},{"$f":"VLOOKUP(DropDownList!$B47,CntyQryCensus!$A$306:$GX$348,AL$1)","v":411},{"$f":"VLOOKUP(DropDownList!$B47,CntyQryCensus!$A$306:$GX$348,AM$1)","v":29},{"$f":"VLOOKUP(DropDownList!$B47,CntyQryCensus!$A$306:$GX$348,AN$1)","v":173},{"$f":"VLOOKUP(DropDownList!$B47,CntyQryCensus!$A$306:$GX$348,AO$1)","v":116},{"$f":"VLOOKUP(DropDownList!$B47,CntyQryCensus!$A$306:$GX$348,AP$1)","v":75},{"$f":"VLOOKUP(DropDownList!$B47,CntyQryCensus!$A$306:$GX$348,AQ$1)","v":0},{"$f":"VLOOKUP(DropDownList!$B47,CntyQryCensus!$A$306:$GX$348,AR$1)","v":0},{"$f":"VLOOKUP(DropDownList!$B47,CntyQryCensus!$A$306:$GX$348,AS$1)","v":18},{"$f":"VLOOKUP(DropDownList!$B47,CntyQryCensus!$A$306:$GX$348,AT$1)","v":0},{"$f":"VLOOKUP(DropDownList!$B47,CntyQryCensus!$A$306:$GX$348,AU$1)","v":0},{"$f":"VLOOKUP(DropDownList!$B47,CntyQryCensus!$A$306:$GX$348,AV$1)","v":7467},{"$f":"VLOOKUP(DropDownList!$B47,CntyQryCensus!$A$306:$GX$348,AW$1)","v":6781},{"$f":"VLOOKUP(DropDownList!$B47,CntyQryCensus!$A$306:$GX$348,AX$1)","v":686},{"$f":"VLOOKUP(DropDownList!$B47,CntyQryCensus!$A$306:$GX$348,AY$1)","v":2756},{"$f":"VLOOKUP(DropDownList!$B47,CntyQryCensus!$A$306:$GX$348,AZ$1)","v":2345},{"$f":"VLOOKUP(DropDownList!$B47,CntyQryCensus!$A$306:$GX$348,BA$1)","v":332},{"$f":"VLOOKUP(DropDownList!$B47,CntyQryCensus!$A$306:$GX$348,BB$1)","v":823},{"$f":"VLOOKUP(DropDownList!$B47,CntyQryCensus!$A$306:$GX$348,BC$1)","v":448},{"$f":"VLOOKUP(DropDownList!$B47,CntyQryCensus!$A$306:$GX$348,BD$1)","v":508},{"$f":"VLOOKUP(DropDownList!$B47,CntyQryCensus!$A$306:$GX$348,BE$1)","v":178},{"$f":"VLOOKUP(DropDownList!$B47,CntyQryCensus!$A$306:$GX$348,BF$1)","v":47},{"$f":"VLOOKUP(DropDownList!$B47,CntyQryCensus!$A$306:$GX$348,BG$1)","v":9},{"$f":"VLOOKUP(DropDownList!$B47,CntyQryCensus!$A$306:$GX$348,BH$1)","v":411},{"$f":"VLOOKUP(DropDownList!$B47,CntyQryCensus!$A$306:$GX$348,BI$1)","v":135},{"$f":"VLOOKUP(DropDownList!$B47,CntyQryCensus!$A$306:$GX$348,BJ$1)","v":170},{"$f":"VLOOKUP(DropDownList!$B47,CntyQryCensus!$A$306:$GX$348,BK$1)","v":70},{"$f":"VLOOKUP(DropDownList!$B47,CntyQryCensus!$A$306:$GX$348,BL$1)","v":13},{"$f":"VLOOKUP(DropDownList!$B47,CntyQryCensus!$A$306:$GX$348,BM$1)","v":11},{"$f":"VLOOKUP(DropDownList!$B47,CntyQryCensus!$A$306:$GX$348,BN$1)","v":12},{"$f":"VLOOKUP(DropDownList!$B47,CntyQryCensus!$A$306:$GX$348,BO$1)","v":0},{"$f":"VLOOKUP(DropDownList!$B47,CntyQryCensus!$A$306:$GX$348,BP$1)","v":3},{"$f":"VLOOKUP(DropDownList!$B47,CntyQryCensus!$A$306:$GX$348,BQ$1)","v":3},{"$f":"VLOOKUP(DropDownList!$B47,CntyQryCensus!$A$306:$GX$348,BR$1)","v":2},{"$f":"VLOOKUP(DropDownList!$B47,CntyQryCensus!$A$306:$GX$348,BS$1)","v":3147},{"$f":"VLOOKUP(DropDownList!$B47,CntyQryCensus!$A$306:$GX$348,BT$1)","v":41},{"$f":"VLOOKUP(DropDownList!$B47,CntyQryCensus!$A$306:$GX$348,BU$1)","v":127},{"$f":"VLOOKUP(DropDownList!$B47,CntyQryCensus!$A$306:$GX$348,BV$1)","v":166},{"$f":"VLOOKUP(DropDownList!$B47,CntyQryCensus!$A$306:$GX$348,BW$1)","v":642},{"$f":"VLOOKUP(DropDownList!$B47,CntyQryCensus!$A$306:$GX$348,BX$1)","v":662},{"$f":"VLOOKUP(DropDownList!$B47,CntyQryCensus!$A$306:$GX$348,BY$1)","v":605},{"$f":"VLOOKUP(DropDownList!$B47,CntyQryCensus!$A$306:$GX$348,BZ$1)","v":447},{"$f":"VLOOKUP(DropDownList!$B47,CntyQryCensus!$A$306:$GX$348,CA$1)","v":268},{"$f":"VLOOKUP(DropDownList!$B47,CntyQryCensus!$A$306:$GX$348,CB$1)","v":189},{"$f":"VLOOKUP(DropDownList!$B47,CntyQryCensus!$A$306:$GX$348,CC$1)","v":5},{"$f":"VLOOKUP(DropDownList!$B47,CntyQryCensus!$A$306:$GX$348,CD$1)","v":17464},{"$f":"VLOOKUP(DropDownList!$B47,CntyQryCensus!$A$306:$GX$348,CE$1)","v":3147},{"$f":"VLOOKUP(DropDownList!$B47,CntyQryCensus!$A$306:$GX$348,CF$1)","v":2290},{"$f":"VLOOKUP(DropDownList!$B47,CntyQryCensus!$A$306:$GX$348,CG$1)","v":28},{"$f":"VLOOKUP(DropDownList!$B47,CntyQryCensus!$A$306:$GX$348,CH$1)","v":40},{"$f":"VLOOKUP(DropDownList!$B47,CntyQryCensus!$A$306:$GX$348,CI$1)","v":47},{"$f":"VLOOKUP(DropDownList!$B47,CntyQryCensus!$A$306:$GX$348,CJ$1)","v":92},{"$f":"VLOOKUP(DropDownList!$B47,CntyQryCensus!$A$306:$GX$348,CK$1)","v":46},{"$f":"VLOOKUP(DropDownList!$B47,CntyQryCensus!$A$306:$GX$348,CL$1)","v":0},{"$f":"VLOOKUP(DropDownList!$B47,CntyQryCensus!$A$306:$GX$348,CM$1)","v":0},{"$f":"VLOOKUP(DropDownList!$B47,CntyQryCensus!$A$306:$GX$348,CN$1)","v":556},{"$f":"VLOOKUP(DropDownList!$B47,CntyQryCensus!$A$306:$GX$348,CO$1)","v":48},{"$f":"VLOOKUP(DropDownList!$B47,CntyQryCensus!$A$306:$GX$348,CP$1)","v":2756},{"$f":"VLOOKUP(DropDownList!$B47,CntyQryCensus!$A$306:$GX$348,CQ$1)","v":2345},{"$f":"VLOOKUP(DropDownList!$B47,CntyQryCensus!$A$306:$GX$348,CR$1)","v":1864},{"$f":"VLOOKUP(DropDownList!$B47,CntyQryCensus!$A$306:$GX$348,CS$1)","v":28},{"$f":"VLOOKUP(DropDownList!$B47,CntyQryCensus!$A$306:$GX$348,CT$1)","v":32},{"$f":"VLOOKUP(DropDownList!$B47,CntyQryCensus!$A$306:$GX$348,CU$1)","v":6},{"$f":"VLOOKUP(DropDownList!$B47,CntyQryCensus!$A$306:$GX$348,CV$1)","v":0},{"$f":"VLOOKUP(DropDownList!$B47,CntyQryCensus!$A$306:$GX$348,CW$1)","v":0},{"$f":"VLOOKUP(DropDownList!$B47,CntyQryCensus!$A$306:$GX$348,CX$1)","v":0},{"$f":"VLOOKUP(DropDownList!$B47,CntyQryCensus!$A$306:$GX$348,CY$1)","v":0},{"$f":"VLOOKUP(DropDownList!$B47,CntyQryCensus!$A$306:$GX$348,CZ$1)","v":415},{"$f":"VLOOKUP(DropDownList!$B47,CntyQryCensus!$A$306:$GX$348,DA$1)","v":0},{"$f":"VLOOKUP(DropDownList!$B47,CntyQryCensus!$A$306:$GX$348,DB$1)","v":411},{"$f":"VLOOKUP(DropDownList!$B47,CntyQryCensus!$A$306:$GX$348,DC$1)","v":159},{"$f":"VLOOKUP(DropDownList!$B47,CntyQryCensus!$A$306:$GX$348,DD$1)","v":0},{"$f":"VLOOKUP(DropDownList!$B47,CntyQryCensus!$A$306:$GX$348,DE$1)","v":8},{"$f":"VLOOKUP(DropDownList!$B47,CntyQryCensus!$A$306:$GX$348,DF$1)","v":41},{"$f":"VLOOKUP(DropDownList!$B47,CntyQryCensus!$A$306:$GX$348,DG$1)","v":92},{"$f":"VLOOKUP(DropDownList!$B47,CntyQryCensus!$A$306:$GX$348,DH$1)","v":46},{"$f":"VLOOKUP(DropDownList!$B47,CntyQryCensus!$A$306:$GX$348,DI$1)","v":0},{"$f":"VLOOKUP(DropDownList!$B47,CntyQryCensus!$A$306:$GX$348,DJ$1)","v":0},{"$f":"VLOOKUP(DropDownList!$B47,CntyQryCensus!$A$306:$GX$348,DK$1)","v":57},{"$f":"VLOOKUP(DropDownList!$B47,CntyQryCensus!$A$306:$GX$348,DL$1)","v":8},{"$f":"VLOOKUP(DropDownList!$B47,CntyQryCensus!$A$306:$GX$348,DM$1)","v":7467},{"$f":"VLOOKUP(DropDownList!$B47,CntyQryCensus!$A$306:$GX$348,DN$1)","v":6781},{"$f":"VLOOKUP(DropDownList!$B47,CntyQryCensus!$A$306:$GX$348,DO$1)","v":5554},{"$f":"VLOOKUP(DropDownList!$B47,CntyQryCensus!$A$306:$GX$348,DP$1)","v":63},{"$f":"VLOOKUP(DropDownList!$B47,CntyQryCensus!$A$306:$GX$348,DQ$1)","v":87},{"$f":"VLOOKUP(DropDownList!$B47,CntyQryCensus!$A$306:$GX$348,DR$1)","v":5},{"$f":"VLOOKUP(DropDownList!$B47,CntyQryCensus!$A$306:$GX$348,DS$1)","v":0},{"$f":"VLOOKUP(DropDownList!$B47,CntyQryCensus!$A$306:$GX$348,DT$1)","v":0},{"$f":"VLOOKUP(DropDownList!$B47,CntyQryCensus!$A$306:$GX$348,DU$1)","v":0},{"$f":"VLOOKUP(DropDownList!$B47,CntyQryCensus!$A$306:$GX$348,DV$1)","v":0},{"$f":"VLOOKUP(DropDownList!$B47,CntyQryCensus!$A$306:$GX$348,DW$1)","v":1072},{"$f":"VLOOKUP(DropDownList!$B47,CntyQryCensus!$A$306:$GX$348,DX$1)","v":0},{"$f":"VLOOKUP(DropDownList!$B47,CntyQryCensus!$A$306:$GX$348,DY$1)","v":686},{"$f":"VLOOKUP(DropDownList!$B47,CntyQryCensus!$A$306:$GX$348,DZ$1)","v":288},{"$f":"VLOOKUP(DropDownList!$B47,CntyQryCensus!$A$306:$GX$348,EA$1)","v":0},{"$f":"VLOOKUP(DropDownList!$B47,CntyQryCensus!$A$306:$GX$348,EB$1)","v":6},{"$f":"VLOOKUP(DropDownList!$B47,CntyQryCensus!$A$306:$GX$348,EC$1)","v":80},{"$f":"VLOOKUP(DropDownList!$B47,CntyQryCensus!$A$306:$GX$348,ED$1)","v":133},{"$f":"VLOOKUP(DropDownList!$B47,CntyQryCensus!$A$306:$GX$348,EE$1)","v":76},{"$f":"VLOOKUP(DropDownList!$B47,CntyQryCensus!$A$306:$GX$348,EF$1)","v":0},{"$f":"VLOOKUP(DropDownList!$B47,CntyQryCensus!$A$306:$GX$348,EG$1)","v":0},{"$f":"VLOOKUP(DropDownList!$B47,CntyQryCensus!$A$306:$GX$348,EH$1)","v":96},{"$f":"VLOOKUP(DropDownList!$B47,CntyQryCensus!$A$306:$GX$348,EI$1)","v":7},{"$f":"VLOOKUP(DropDownList!$B47,CntyQryCensus!$A$306:$GX$348,EJ$1)","v":2756},{"$f":"VLOOKUP(DropDownList!$B47,CntyQryCensus!$A$306:$GX$348,EK$1)","v":2345},{"$f":"VLOOKUP(DropDownList!$B47,CntyQryCensus!$A$306:$GX$348,EL$1)","v":55},{"$f":"VLOOKUP(DropDownList!$B47,CntyQryCensus!$A$306:$GX$348,EM$1)","v":300},{"$f":"VLOOKUP(DropDownList!$B47,CntyQryCensus!$A$306:$GX$348,EN$1)","v":209},{"$f":"VLOOKUP(DropDownList!$B47,CntyQryCensus!$A$306:$GX$348,EO$1)","v":626},{"$f":"VLOOKUP(DropDownList!$B47,CntyQryCensus!$A$306:$GX$348,EP$1)","v":564},{"$f":"VLOOKUP(DropDownList!$B47,CntyQryCensus!$A$306:$GX$348,EQ$1)","v":175},{"$f":"VLOOKUP(DropDownList!$B47,CntyQryCensus!$A$306:$GX$348,ER$1)","v":116},{"$f":"VLOOKUP(DropDownList!$B47,CntyQryCensus!$A$306:$GX$348,ES$1)","v":59},{"$f":"VLOOKUP(DropDownList!$B47,CntyQryCensus!$A$306:$GX$348,ET$1)","v":241},{"$f":"VLOOKUP(DropDownList!$B47,CntyQryCensus!$A$306:$GX$348,EU$1)","v":411},{"$f":"VLOOKUP(DropDownList!$B47,CntyQryCensus!$A$306:$GX$348,EV$1)","v":0},{"$f":"VLOOKUP(DropDownList!$B47,CntyQryCensus!$A$306:$GX$348,EW$1)","v":9},{"$f":"VLOOKUP(DropDownList!$B47,CntyQryCensus!$A$306:$GX$348,EX$1)","v":20},{"$f":"VLOOKUP(DropDownList!$B47,CntyQryCensus!$A$306:$GX$348,EY$1)","v":105},{"$f":"VLOOKUP(DropDownList!$B47,CntyQryCensus!$A$306:$GX$348,EZ$1)","v":111},{"$f":"VLOOKUP(DropDownList!$B47,CntyQryCensus!$A$306:$GX$348,FA$1)","v":56},{"$f":"VLOOKUP(DropDownList!$B47,CntyQryCensus!$A$306:$GX$348,FB$1)","v":63},{"$f":"VLOOKUP(DropDownList!$B47,CntyQryCensus!$A$306:$GX$348,FC$1)","v":8},{"$f":"VLOOKUP(DropDownList!$B47,CntyQryCensus!$A$306:$GX$348,FD$1)","v":39},{"$f":"VLOOKUP(DropDownList!$B47,CntyQryCensus!$A$306:$GX$348,FE$1)","v":2756},{"$f":"VLOOKUP(DropDownList!$B47,CntyQryCensus!$A$306:$GX$348,FF$1)","v":13},{"$f":"VLOOKUP(DropDownList!$B47,CntyQryCensus!$A$306:$GX$348,FG$1)","v":588},{"$f":"VLOOKUP(DropDownList!$B47,CntyQryCensus!$A$306:$GX$348,FH$1)","v":102},{"$f":"VLOOKUP(DropDownList!$B47,CntyQryCensus!$A$306:$GX$348,FI$1)","v":1872},{"$f":"VLOOKUP(DropDownList!$B47,CntyQryCensus!$A$306:$GX$348,FJ$1)","v":8},{"$f":"VLOOKUP(DropDownList!$B47,CntyQryCensus!$A$306:$GX$348,FK$1)","v":139},{"$f":"VLOOKUP(DropDownList!$B47,CntyQryCensus!$A$306:$GX$348,FL$1)","v":0},{"$f":"VLOOKUP(DropDownList!$B47,CntyQryCensus!$A$306:$GX$348,FM$1)","v":9},{"$f":"VLOOKUP(DropDownList!$B47,CntyQryCensus!$A$306:$GX$348,FN$1)","v":25},{"$f":"VLOOKUP(DropDownList!$B47,CntyQryCensus!$A$306:$GX$348,FO$1)","v":3147},{"$f":"VLOOKUP(DropDownList!$B47,CntyQryCensus!$A$306:$GX$348,FP$1)","v":49},{"$f":"VLOOKUP(DropDownList!$B47,CntyQryCensus!$A$306:$GX$348,FQ$1)","v":265},{"$f":"VLOOKUP(DropDownList!$B47,CntyQryCensus!$A$306:$GX$348,FR$1)","v":1052},{"$f":"VLOOKUP(DropDownList!$B47,CntyQryCensus!$A$306:$GX$348,FS$1)","v":1301},{"$f":"VLOOKUP(DropDownList!$B47,CntyQryCensus!$A$306:$GX$348,FT$1)","v":370},{"$f":"VLOOKUP(DropDownList!$B47,CntyQryCensus!$A$306:$GX$348,FU$1)","v":110},{"$f":"VLOOKUP(DropDownList!$B47,CntyQryCensus!$A$306:$GX$348,FV$1)","v":2756},{"$f":"VLOOKUP(DropDownList!$B47,CntyQryCensus!$A$306:$GX$348,FW$1)","v":2345},{"$f":"VLOOKUP(DropDownList!$B47,CntyQryCensus!$A$306:$GX$348,FX$1)","v":0},{"$f":"VLOOKUP(DropDownList!$B47,CntyQryCensus!$A$306:$GX$348,FY$1)","v":102},{"$f":"VLOOKUP(DropDownList!$B47,CntyQryCensus!$A$306:$GX$348,FZ$1)","v":606},{"$f":"VLOOKUP(DropDownList!$B47,CntyQryCensus!$A$306:$GX$348,GA$1)","v":1185},{"$f":"VLOOKUP(DropDownList!$B47,CntyQryCensus!$A$306:$GX$348,GB$1)","v":363},{"$f":"VLOOKUP(DropDownList!$B47,CntyQryCensus!$A$306:$GX$348,GC$1)","v":89},{"$f":"VLOOKUP(DropDownList!$B47,CntyQryCensus!$A$306:$GX$348,GD$1)","v":411},{"$f":"VLOOKUP(DropDownList!$B47,CntyQryCensus!$A$306:$GX$348,GE$1)","v":23},{"$f":"VLOOKUP(DropDownList!$B47,CntyQryCensus!$A$306:$GX$348,GF$1)","v":76},{"$f":"VLOOKUP(DropDownList!$B47,CntyQryCensus!$A$306:$GX$348,GG$1)","v":239},{"$f":"VLOOKUP(DropDownList!$B47,CntyQryCensus!$A$306:$GX$348,GH$1)","v":73},{"$f":"VLOOKUP(DropDownList!$B47,CntyQryCensus!$A$306:$GX$348,GI$1)","v":0},{"$f":"VLOOKUP(DropDownList!$B47,CntyQryCensus!$A$306:$GX$348,GJ$1)","v":0},{"$f":"VLOOKUP(DropDownList!$B47,CntyQryCensus!$A$306:$GX$348,GK$1)","v":2756},{"$f":"VLOOKUP(DropDownList!$B47,CntyQryCensus!$A$306:$GX$348,GL$1)","v":2345},{"$f":"VLOOKUP(DropDownList!$B47,CntyQryCensus!$A$306:$GX$348,GM$1)","v":2319},{"$f":"VLOOKUP(DropDownList!$B47,CntyQryCensus!$A$306:$GX$348,GN$1)","v":26},{"$f":"VLOOKUP(DropDownList!$B47,CntyQryCensus!$A$306:$GX$348,GO$1)","v":411},{"$f":"VLOOKUP(DropDownList!$B47,CntyQryCensus!$A$306:$GX$348,GP$1)","v":392},{"$f":"VLOOKUP(DropDownList!$B47,CntyQryCensus!$A$306:$GX$348,GQ$1)","v":19},{"$f":"VLOOKUP(DropDownList!$B47,CntyQryCensus!$A$306:$GX$348,GR$1)","v":2756},{"$f":"VLOOKUP(DropDownList!$B47,CntyQryCensus!$A$306:$GX$348,GS$1)","v":2345},{"$f":"VLOOKUP(DropDownList!$B47,CntyQryCensus!$A$306:$GX$348,GT$1)","v":2335},{"$f":"VLOOKUP(DropDownList!$B47,CntyQryCensus!$A$306:$GX$348,GU$1)","v":10},{"$f":"VLOOKUP(DropDownList!$B47,CntyQryCensus!$A$306:$GX$348,GV$1)","v":411},{"$f":"VLOOKUP(DropDownList!$B47,CntyQryCensus!$A$306:$GX$348,GW$1)","v":392},{"$f":"VLOOKUP(DropDownList!$B47,CntyQryCensus!$A$306:$GX$348,GX$1)","v":19}]
[]
[]
["Census 2000 SummaryFile3 Sample Data  -  SF3TownQry8HousingCostA"]
["NAME","LOGRECNO","COUNTY","TotalPop","H62RntrOccHU","H62RntrOccHUwRent","H62ROHUGRent<100","H62ROHUGRent100to149","H62ROHUGRent150to199","H62ROHUGRent200to249","H62ROHUGRent250to299","H62ROHUGRent300to349","H62ROHUGRent350to399","H62ROHUGRent400to449","H62ROHUGRent450to499","H62ROHUGRent500to549","H62ROHUGRent550to599","H62ROHUGRent600to649","H62ROHUGRent650to699","H62ROHUGRent700to749","H62ROHUGRent750to799","H62ROHUGRent800to899","H62ROHUGRent900to999","H62ROHUGRent1000to1249","H62ROHUGRent1250to1499","H62ROHUGRent1500to1999","H62ROHUGRent2000>","H62ROHUNoGRent","H63MedianGrossRnt","H69RenterOccHsU","H69GRnt<10PctHHInc","H69GRnt10to15PctHHInc","H69GRnt15to20PctHHInc","H69GRnt20to25PctHHInc","H69GRnt25to30PctHHInc","H69GRnt30to35PctHHInc","H69GRnt35to40PctHHInc","H69GRnt40to50PctHHInc","H69GRnt>50PctHHInc","H69GRntPctNotcomputed","H73RenterOccHU","H73ROHUHhInc<10k","H73ROHUHhInc<10kRnt<20pct","H73ROHUHhInc<10kRnt20to25pct","H73ROHUHhInc<10kRnt25to30pct","H73ROHUHhInc<10kRnt30to35pct","H73ROHUHhInc<10kRnt>35pct","H73ROHUHhInc<10kPctNotComput","H73ROHUHhInc10to20k","H73ROHUHhInc10to20kRnt<20pct","H73ROHUHhInc10to20kRnt20to25pct","H73ROHUHhInc10to20kRnt25to30pct","H73ROHUHhInc10to20kRnt30to35pct","H73ROHUHhInc10to20kRnt>35pct","H73ROHUHhInc10to20kRntPctNC","H73ROHUHhInc20to35k","H73ROHUHhInc20to35kRnt<20pct","H73ROHUHhInc20to35kRnt20to25pct","H73ROHUHhInc20to35kRnt25to30pct","H73ROHUHhInc20to35kRnt30to35pct","H73ROHUHhInc20to35kRnt>35pct","H73ROHUHhInc20to35kRntPctNC","H73ROHUHhInc35to40k","H73ROHUHhInc35to40kRnt<20pct","H73ROHUHhInc35to40kRnt20to25pct","H73ROHUHhInc35to40kRnt25to30pct","H73ROHUHhInc35to40kRnt30to35pct","H73ROHUHhInc35to40kRnt>35pct","H73ROHUHhInc35to40kRntPctNC","H73ROHUHhInc50to75k","H73ROHUHhInc50to75kRnt<20pct","H73ROHUHhInc50to75kRnt20to25pct","H73ROHUHhInc50to75kRnt25to30pct","H73ROHUHhInc50to75kRnt30to35pct","H73ROHUHhInc50to75kRnt>35pct","H73ROHUHhInc50to75kRntPctNC","H73ROHUHhInc75to100k","H73ROHUHhInc75to100kRnt<20pct","H73ROHUHhInc75to100kRnt20to25pct","H73ROHUHhInc75to100kRnt25to30pct","H73ROHUHhInc75to100kRnt30to35pct","H73ROHUHhInc75to100kRnt>35pct","H73ROHUHhInc75to100kRntPctNC","H73ROHUHhInc>100k","H73ROHUHhInc>100kRnt<20pct","H73ROHUHhInc>100kRnt20to25pct","H73ROHUHhInc>100kRnt25to30pct","H73ROHUHhInc>100kRnt30to35pct","H73ROHUHhInc>100kRnt>35pct","H73ROHUHhInc>100kRntPctNC","H73ROHUHhInc>100kRntPctNC"]
[{"$f":"VLOOKUP(DropDownList!$B$47,CntyQryCensus!$A$357:$CM$399,A$1)","v":"Barrington"},{"$f":"VLOOKUP(DropDownList!$B$47,CntyQryCensus!$A$357:$CM$399,B$1)","v":"0003823"},{"$f":"VLOOKUP(DropDownList!$B$47,CntyQryCensus!$A$357:$CM$399,C$1)","v":"03460"},{"$f":"VLOOKUP(DropDownList!$B$47,CntyQryCensus!$A$357:$CM$399,D$1)","v":7475},{"$f":"VLOOKUP(DropDownList!$B$47,CntyQryCensus!$A$357:$CM$399,E$1)","v":411},{"$f":"VLOOKUP(DropDownList!$B$47,CntyQryCensus!$A$357:$CM$399,F$1)","v":374},{"$f":"VLOOKUP(DropDownList!$B$47,CntyQryCensus!$A$357:$CM$399,G$1)","v":0},{"$f":"VLOOKUP(DropDownList!$B$47,CntyQryCensus!$A$357:$CM$399,H$1)","v":8},{"$f":"VLOOKUP(DropDownList!$B$47,CntyQryCensus!$A$357:$CM$399,I$1)","v":10},{"$f":"VLOOKUP(DropDownList!$B$47,CntyQryCensus!$A$357:$CM$399,J$1)","v":0},{"$f":"VLOOKUP(DropDownList!$B$47,CntyQryCensus!$A$357:$CM$399,K$1)","v":0},{"$f":"VLOOKUP(DropDownList!$B$47,CntyQryCensus!$A$357:$CM$399,L$1)","v":0},{"$f":"VLOOKUP(DropDownList!$B$47,CntyQryCensus!$A$357:$CM$399,M$1)","v":9},{"$f":"VLOOKUP(DropDownList!$B$47,CntyQryCensus!$A$357:$CM$399,N$1)","v":8},{"$f":"VLOOKUP(DropDownList!$B$47,CntyQryCensus!$A$357:$CM$399,O$1)","v":29},{"$f":"VLOOKUP(DropDownList!$B$47,CntyQryCensus!$A$357:$CM$399,P$1)","v":24},{"$f":"VLOOKUP(DropDownList!$B$47,CntyQryCensus!$A$357:$CM$399,Q$1)","v":28},{"$f":"VLOOKUP(DropDownList!$B$47,CntyQryCensus!$A$357:$CM$399,R$1)","v":53},{"$f":"VLOOKUP(DropDownList!$B$47,CntyQryCensus!$A$357:$CM$399,S$1)","v":37},{"$f":"VLOOKUP(DropDownList!$B$47,CntyQryCensus!$A$357:$CM$399,T$1)","v":46},{"$f":"VLOOKUP(DropDownList!$B$47,CntyQryCensus!$A$357:$CM$399,U$1)","v":66},{"$f":"VLOOKUP(DropDownList!$B$47,CntyQryCensus!$A$357:$CM$399,V$1)","v":8},{"$f":"VLOOKUP(DropDownList!$B$47,CntyQryCensus!$A$357:$CM$399,W$1)","v":10},{"$f":"VLOOKUP(DropDownList!$B$47,CntyQryCensus!$A$357:$CM$399,X$1)","v":38},{"$f":"VLOOKUP(DropDownList!$B$47,CntyQryCensus!$A$357:$CM$399,Y$1)","v":0},{"$f":"VLOOKUP(DropDownList!$B$47,CntyQryCensus!$A$357:$CM$399,Z$1)","v":0},{"$f":"VLOOKUP(DropDownList!$B$47,CntyQryCensus!$A$357:$CM$399,AA$1)","v":0},{"$f":"VLOOKUP(DropDownList!$B$47,CntyQryCensus!$A$357:$CM$399,AB$1)","v":37},{"$f":"VLOOKUP(DropDownList!$B$47,CntyQryCensus!$A$357:$CM$399,AC$1)","v":674},{"$f":"VLOOKUP(DropDownList!$B$47,CntyQryCensus!$A$357:$CM$399,AD$1)","v":411},{"$f":"VLOOKUP(DropDownList!$B$47,CntyQryCensus!$A$357:$CM$399,AE$1)","v":8},{"$f":"VLOOKUP(DropDownList!$B$47,CntyQryCensus!$A$357:$CM$399,AF$1)","v":80},{"$f":"VLOOKUP(DropDownList!$B$47,CntyQryCensus!$A$357:$CM$399,AG$1)","v":37},{"$f":"VLOOKUP(DropDownList!$B$47,CntyQryCensus!$A$357:$CM$399,AH$1)","v":41},{"$f":"VLOOKUP(DropDownList!$B$47,CntyQryCensus!$A$357:$CM$399,AI$1)","v":34},{"$f":"VLOOKUP(DropDownList!$B$47,CntyQryCensus!$A$357:$CM$399,AJ$1)","v":39},{"$f":"VLOOKUP(DropDownList!$B$47,CntyQryCensus!$A$357:$CM$399,AK$1)","v":35},{"$f":"VLOOKUP(DropDownList!$B$47,CntyQryCensus!$A$357:$CM$399,AL$1)","v":52},{"$f":"VLOOKUP(DropDownList!$B$47,CntyQryCensus!$A$357:$CM$399,AM$1)","v":40},{"$f":"VLOOKUP(DropDownList!$B$47,CntyQryCensus!$A$357:$CM$399,AN$1)","v":45},{"$f":"VLOOKUP(DropDownList!$B$47,CntyQryCensus!$A$357:$CM$399,AO$1)","v":411},{"$f":"VLOOKUP(DropDownList!$B$47,CntyQryCensus!$A$357:$CM$399,AP$1)","v":24},{"$f":"VLOOKUP(DropDownList!$B$47,CntyQryCensus!$A$357:$CM$399,AQ$1)","v":0},{"$f":"VLOOKUP(DropDownList!$B$47,CntyQryCensus!$A$357:$CM$399,AR$1)","v":0},{"$f":"VLOOKUP(DropDownList!$B$47,CntyQryCensus!$A$357:$CM$399,AS$1)","v":0},{"$f":"VLOOKUP(DropDownList!$B$47,CntyQryCensus!$A$357:$CM$399,AT$1)","v":0},{"$f":"VLOOKUP(DropDownList!$B$47,CntyQryCensus!$A$357:$CM$399,AU$1)","v":9},{"$f":"VLOOKUP(DropDownList!$B$47,CntyQryCensus!$A$357:$CM$399,AV$1)","v":15},{"$f":"VLOOKUP(DropDownList!$B$47,CntyQryCensus!$A$357:$CM$399,AW$1)","v":63},{"$f":"VLOOKUP(DropDownList!$B$47,CntyQryCensus!$A$357:$CM$399,AX$1)","v":10},{"$f":"VLOOKUP(DropDownList!$B$47,CntyQryCensus!$A$357:$CM$399,AY$1)","v":0},{"$f":"VLOOKUP(DropDownList!$B$47,CntyQryCensus!$A$357:$CM$399,AZ$1)","v":0},{"$f":"VLOOKUP(DropDownList!$B$47,CntyQryCensus!$A$357:$CM$399,BA$1)","v":0},{"$f":"VLOOKUP(DropDownList!$B$47,CntyQryCensus!$A$357:$CM$399,BB$1)","v":53},{"$f":"VLOOKUP(DropDownList!$B$47,CntyQryCensus!$A$357:$CM$399,BC$1)","v":0},{"$f":"VLOOKUP(DropDownList!$B$47,CntyQryCensus!$A$357:$CM$399,BD$1)","v":157},{"$f":"VLOOKUP(DropDownList!$B$47,CntyQryCensus!$A$357:$CM$399,BE$1)","v":0},{"$f":"VLOOKUP(DropDownList!$B$47,CntyQryCensus!$A$357:$CM$399,BF$1)","v":31},{"$f":"VLOOKUP(DropDownList!$B$47,CntyQryCensus!$A$357:$CM$399,BG$1)","v":24},{"$f":"VLOOKUP(DropDownList!$B$47,CntyQryCensus!$A$357:$CM$399,BH$1)","v":39},{"$f":"VLOOKUP(DropDownList!$B$47,CntyQryCensus!$A$357:$CM$399,BI$1)","v":55},{"$f":"VLOOKUP(DropDownList!$B$47,CntyQryCensus!$A$357:$CM$399,BJ$1)","v":8},{"$f":"VLOOKUP(DropDownList!$B$47,CntyQryCensus!$A$357:$CM$399,BK$1)","v":94},{"$f":"VLOOKUP(DropDownList!$B$47,CntyQryCensus!$A$357:$CM$399,BL$1)","v":52},{"$f":"VLOOKUP(DropDownList!$B$47,CntyQryCensus!$A$357:$CM$399,BM$1)","v":0},{"$f":"VLOOKUP(DropDownList!$B$47,CntyQryCensus!$A$357:$CM$399,BN$1)","v":10},{"$f":"VLOOKUP(DropDownList!$B$47,CntyQryCensus!$A$357:$CM$399,BO$1)","v":0},{"$f":"VLOOKUP(DropDownList!$B$47,CntyQryCensus!$A$357:$CM$399,BP$1)","v":10},{"$f":"VLOOKUP(DropDownList!$B$47,CntyQryCensus!$A$357:$CM$399,BQ$1)","v":22},{"$f":"VLOOKUP(DropDownList!$B$47,CntyQryCensus!$A$357:$CM$399,BR$1)","v":73},{"$f":"VLOOKUP(DropDownList!$B$47,CntyQryCensus!$A$357:$CM$399,BS$1)","v":63},{"$f":"VLOOKUP(DropDownList!$B$47,CntyQryCensus!$A$357:$CM$399,BT$1)","v":10},{"$f":"VLOOKUP(DropDownList!$B$47,CntyQryCensus!$A$357:$CM$399,BU$1)","v":0},{"$f":"VLOOKUP(DropDownList!$B$47,CntyQryCensus!$A$357:$CM$399,BV$1)","v":0},{"$f":"VLOOKUP(DropDownList!$B$47,CntyQryCensus!$A$357:$CM$399,BW$1)","v":0},{"$f":"VLOOKUP(DropDownList!$B$47,CntyQryCensus!$A$357:$CM$399,BX$1)","v":0},{"$f":"VLOOKUP(DropDownList!$B$47,CntyQryCensus!$A$357:$CM$399,BY$1)","v":0},{"$f":"VLOOKUP(DropDownList!$B$47,CntyQryCensus!$A$357:$CM$399,BZ$1)","v":0},{"$f":"VLOOKUP(DropDownList!$B$47,CntyQryCensus!$A$357:$CM$399,CA$1)","v":0},{"$f":"VLOOKUP(DropDownList!$B$47,CntyQryCensus!$A$357:$CM$399,CB$1)","v":0},{"$f":"VLOOKUP(DropDownList!$B$47,CntyQryCensus!$A$357:$CM$399,CC$1)","v":0},{"$f":"VLOOKUP(DropDownList!$B$47,CntyQryCensus!$A$357:$CM$399,CD$1)","v":0},{"$f":"VLOOKUP(DropDownList!$B$47,CntyQryCensus!$A$357:$CM$399,CE$1)","v":0},{"$f":"VLOOKUP(DropDownList!$B$47,CntyQryCensus!$A$357:$CM$399,CF$1)","v":0},{"$f":"VLOOKUP(DropDownList!$B$47,CntyQryCensus!$A$357:$CM$399,CG$1)","v":0},{"$f":"VLOOKUP(DropDownList!$B$47,CntyQryCensus!$A$357:$CM$399,CH$1)","v":0},{"$f":"VLOOKUP(DropDownList!$B$47,CntyQryCensus!$A$357:$CM$399,CI$1)","v":0},{"$f":"VLOOKUP(DropDownList!$B$47,CntyQryCensus!$A$357:$CM$399,CJ$1)","v":0},{"$f":"VLOOKUP(DropDownList!$B$47,CntyQryCensus!$A$357:$CM$399,CK$1)","v":0},{"$f":"VLOOKUP(DropDownList!$B$47,CntyQryCensus!$A$357:$CM$399,CL$1)","v":0},{"$f":"VLOOKUP(DropDownList!$B$47,CntyQryCensus!$A$357:$CM$399,CM$1)","v":0}]
[]
[]
["Census 2000 SummaryFile3 Sample Data  -  SF3TownQry8HousingCostB"]
["NAME","LOGRECNO","COUNTY","TotalPop","H74SpecOwnerOccHU","H74OOHU<10k","H74OOHU10to15k","H74OOHU15to20k","H74OOHU20to25k","H74OOHU25to30k","H74OOHU30to35k","H74OOHU35to40k","H74OOHU40to50k","H74OOHU50to60k","H74OOHU60to70k","H74OOHU70to80k","H74OOHU80to90k","H74OOHU90to100k","H74OOHU100to125k","H74OOHU125to150k","H74OOHU150to175k","H74OOHU175to200k","H74OOHU200to250k","H74OOHU250to300k","H74OOHU300to400k","H74OOHU400to500k","H74OOHU500to750k","H74OOHU750to1000k","H74OOHU1000kmore","H76OOHUMedianVal","H84OwnerOccHU","H84AllOOHU<10k","H84AllOOHU10to15k","H84AllOOHU15to20k","H84AllOOHU20to25k","H84AllOOHU25to30k","H84AllOOHU30to35k","H84AllOOHU35to40k","H84AllOOHU40to50k","H84AllOOHU50to60k","H84AllOOHU60to70k","H84AllOOHU70to80k","H84AllOOHU80to90k","H84AllOOHU90to100k","H84AllOOHU100to125k","H84AllOOHU125to150k","H84AllOOHU150to175k","H84AllOOHU175to200k","H84AllOOHU200to250k","H84AllOOHU250to300k","H84AllOOHU300to400k","H84AllOOHU400to500k","H84AllOOHU500to750k","H84AllOOHU750to1000k","H84AllOOHU1000kmore","H85OOHUMedVal","H90SOOHU","H90HUwMorgt","H90HUwMtgHC<200","H90HUwMtgHC200to300","H90HUwMtgHC300to400","H90HUwMtgHC400to500","H90HUwMtgHC500to600","H90HUwMtgHC600to700","H90HUwMtgHC700to800","H90HUwMtgHC800to900","H90HUwMtgHC900to1000","H90HUwMtgHC1000to1250","H90HUwMtgHC1250to1500","H90HUwMtgHC1500to2000","H90HUwMtgHC2000to2500","H90HUwMtgHC2500to3000","H90HUwMtgHC3000orMore","H90HUwOutMorgt","H90HUwOutMtgHC<100","H90HUwOutMtgHC100to150","H90HUwOutMtgHC150to200","H90HUwOutMtgHC200to250","H90HUwOutMtgHC250to300","H90HUwOutMtgHC300to350","H90HUwOutMtgHC350to400","H90HUwOutMtgHC400to500","H90HUwOutMtgHC500to600","H90HUwOutMtgHC600to700","H90HUwOutMtgHC700to800","H90HUwOutMtgHC800to900","H90HUwOutMtgHC900to1000","H90HUwOutMtgHC1000orMore","H91MedianOCHUwMtg","H91MedianOCHUwOutMtg","H94SpecOOHU","H94HUwMortg","H94HUwMtgHC<10pct","H94HUwMtgHC10to15pct","H94HUwMtgHC15to20pct","H94HUwMtgHC20to25pct","H94HUwMtgHC25to30pct","H94HUwMtgHC30to35pct","H94HUwMtgHC35to40pct","H94HUwMtgHC40to50pct","H94HUwMtgHC50pctOrMore","H94HUwMtgHCpctNotComp","H94HUWOutMortg","H94HUWOutMortgHC<10pct","H94HUWOutMortgHC10to15pct","H94HUWOutMortgHC15to20pct","H94HUWOutMortgHC20to25pct","H94HUWOutMortgHC25to30pct","H94HUWOutMortgHC30to35pct","H94HUWOutMortgHC35to40pct","H94HUWOutMortgHC40to50pct","H94HUWOutMortgHC50pctOrMore","H94HUWOutMortgHCpctNotComp","H97SpecifOwnOccHU","H97SOOHUInc<10k","H97SOOHUInc<10kHC<20pct","H97SOOHUInc<10kHC20to25pct","H97SOOHUInc<10kHC25to30pct","H97SOOHUInc<10kHC30to35pct","H97SOOHUInc<10kHC>35pct","H97SOOHUInc<10kHCpctNotComput","H97SOOHUInc10to20k","H97SOOHUInc10to20kHC<20pct","H97SOOHUInc10to20kHC20to25pct","H97SOOHUInc10to20kHC25to30pct","H97SOOHUInc10to20kHC30to35pct","H97SOOHUInc10to20kHC>35pct","H97SOOHUInc10to20kHCpctNotComput","H97SOOHUInc20to35k","H97SOOHUInc20to35kRC<20pct","H97SOOHUInc20to35kRC20to25pct","H97SOOHUInc20to35kRC25to30pct","H97SOOHUInc20to35kRC30to35pct","H97SOOHUInc20to35kRC>35pct","H97SOOHUInc20to35kRCpctNotComput","H97SOOHUInc35to50k","H97SOOHUInc35to50kRC<20pct","H97SOOHUInc35to50kRC20to25pct","H97SOOHUInc35to50kRC25to30pct","H97SOOHUInc35to50kRC30to35pct","H97SOOHUInc35to50kRC>35pct","H97SOOHUInc35to50kRCpctNotCompute","H97SOOHUInc50to75k","H97SOOHUInc50to75kRC<20pct","H97SOOHUInc50to75kRC20to25pct","H97SOOHUInc50to75kRC25to30pct","H97SOOHUInc50to75kRC30to35pct","H97SOOHUInc50to75kRC>35pct","H97SOOHUInc50to75kRCpctNotComput","H97SOOHUInc75to100k","H97SOOHUInc75to100kRC<20pct","H97SOOHUInc75to100kRC20to25pct","H97SOOHUInc75to100kRC25to30pct","H97SOOHUInc75to100kRC30to35pct","H97SOOHUInc75to100kRC>35pct","H97SOOHUInc75to100kRCpctNotCompute","H97SOOHUInc100to150k","H97SOOHUInc100to150kRC<20pct","H97SOOHUInc100to150kRC20to25pct","H97SOOHUInc100to150kRC25to30pct","H97SOOHUInc100to150kRC30to35pct","H97SOOHUInc100to150kRC>35pct","H97SOOHUInc100to150kRCpctNotCompute","H97SOOHUInc>150k","H97SOOHUInc>150kRC<20pct","H97SOOHUInc>150kRC20to25pct","H97SOOHUInc>150kRC25to30pct","H97SOOHUInc>150kRC30to35pct","H97SOOHUInc>150kRC>35pct","H97SOOHUInc>150kRCpctNotCompute"]
[{"$f":"VLOOKUP(DropDownList!$B$47,CntyQryCensus!$A$408:$FN$450,A$1)","v":"Barrington"},{"$f":"VLOOKUP(DropDownList!$B$47,CntyQryCensus!$A$408:$FN$450,B$1)","v":"0003823"},{"$f":"VLOOKUP(DropDownList!$B$47,CntyQryCensus!$A$408:$FN$450,C$1)","v":"03460"},{"$f":"VLOOKUP(DropDownList!$B$47,CntyQryCensus!$A$408:$FN$450,D$1)","v":7475},{"$f":"VLOOKUP(DropDownList!$B$47,CntyQryCensus!$A$408:$FN$450,E$1)","v":1667},{"$f":"VLOOKUP(DropDownList!$B$47,CntyQryCensus!$A$408:$FN$450,F$1)","v":0},{"$f":"VLOOKUP(DropDownList!$B$47,CntyQryCensus!$A$408:$FN$450,G$1)","v":0},{"$f":"VLOOKUP(DropDownList!$B$47,CntyQryCensus!$A$408:$FN$450,H$1)","v":0},{"$f":"VLOOKUP(DropDownList!$B$47,CntyQryCensus!$A$408:$FN$450,I$1)","v":0},{"$f":"VLOOKUP(DropDownList!$B$47,CntyQryCensus!$A$408:$FN$450,J$1)","v":10},{"$f":"VLOOKUP(DropDownList!$B$47,CntyQryCensus!$A$408:$FN$450,K$1)","v":7},{"$f":"VLOOKUP(DropDownList!$B$47,CntyQryCensus!$A$408:$FN$450,L$1)","v":0},{"$f":"VLOOKUP(DropDownList!$B$47,CntyQryCensus!$A$408:$FN$450,M$1)","v":21},{"$f":"VLOOKUP(DropDownList!$B$47,CntyQryCensus!$A$408:$FN$450,N$1)","v":15},{"$f":"VLOOKUP(DropDownList!$B$47,CntyQryCensus!$A$408:$FN$450,O$1)","v":14},{"$f":"VLOOKUP(DropDownList!$B$47,CntyQryCensus!$A$408:$FN$450,P$1)","v":49},{"$f":"VLOOKUP(DropDownList!$B$47,CntyQryCensus!$A$408:$FN$450,Q$1)","v":99},{"$f":"VLOOKUP(DropDownList!$B$47,CntyQryCensus!$A$408:$FN$450,R$1)","v":105},{"$f":"VLOOKUP(DropDownList!$B$47,CntyQryCensus!$A$408:$FN$450,S$1)","v":334},{"$f":"VLOOKUP(DropDownList!$B$47,CntyQryCensus!$A$408:$FN$450,T$1)","v":394},{"$f":"VLOOKUP(DropDownList!$B$47,CntyQryCensus!$A$408:$FN$450,U$1)","v":336},{"$f":"VLOOKUP(DropDownList!$B$47,CntyQryCensus!$A$408:$FN$450,V$1)","v":164},{"$f":"VLOOKUP(DropDownList!$B$47,CntyQryCensus!$A$408:$FN$450,W$1)","v":85},{"$f":"VLOOKUP(DropDownList!$B$47,CntyQryCensus!$A$408:$FN$450,X$1)","v":34},{"$f":"VLOOKUP(DropDownList!$B$47,CntyQryCensus!$A$408:$FN$450,Y$1)","v":0},{"$f":"VLOOKUP(DropDownList!$B$47,CntyQryCensus!$A$408:$FN$450,Z$1)","v":0},{"$f":"VLOOKUP(DropDownList!$B$47,CntyQryCensus!$A$408:$FN$450,AA$1)","v":0},{"$f":"VLOOKUP(DropDownList!$B$47,CntyQryCensus!$A$408:$FN$450,AB$1)","v":0},{"$f":"VLOOKUP(DropDownList!$B$47,CntyQryCensus!$A$408:$FN$450,AC$1)","v":0},{"$f":"VLOOKUP(DropDownList!$B$47,CntyQryCensus!$A$408:$FN$450,AD$1)","v":136400},{"$f":"VLOOKUP(DropDownList!$B$47,CntyQryCensus!$A$408:$FN$450,AE$1)","v":2345},{"$f":"VLOOKUP(DropDownList!$B$47,CntyQryCensus!$A$408:$FN$450,AF$1)","v":13},{"$f":"VLOOKUP(DropDownList!$B$47,CntyQryCensus!$A$408:$FN$450,AG$1)","v":37},{"$f":"VLOOKUP(DropDownList!$B$47,CntyQryCensus!$A$408:$FN$450,AH$1)","v":29},{"$f":"VLOOKUP(DropDownList!$B$47,CntyQryCensus!$A$408:$FN$450,AI$1)","v":38},{"$f":"VLOOKUP(DropDownList!$B$47,CntyQryCensus!$A$408:$FN$450,AJ$1)","v":61},{"$f":"VLOOKUP(DropDownList!$B$47,CntyQryCensus!$A$408:$FN$450,AK$1)","v":68},{"$f":"VLOOKUP(DropDownList!$B$47,CntyQryCensus!$A$408:$FN$450,AL$1)","v":23},{"$f":"VLOOKUP(DropDownList!$B$47,CntyQryCensus!$A$408:$FN$450,AM$1)","v":28},{"$f":"VLOOKUP(DropDownList!$B$47,CntyQryCensus!$A$408:$FN$450,AN$1)","v":55},{"$f":"VLOOKUP(DropDownList!$B$47,CntyQryCensus!$A$408:$FN$450,AO$1)","v":59},{"$f":"VLOOKUP(DropDownList!$B$47,CntyQryCensus!$A$408:$FN$450,AP$1)","v":73},{"$f":"VLOOKUP(DropDownList!$B$47,CntyQryCensus!$A$408:$FN$450,AQ$1)","v":123},{"$f":"VLOOKUP(DropDownList!$B$47,CntyQryCensus!$A$408:$FN$450,AR$1)","v":148},{"$f":"VLOOKUP(DropDownList!$B$47,CntyQryCensus!$A$408:$FN$450,AS$1)","v":383},{"$f":"VLOOKUP(DropDownList!$B$47,CntyQryCensus!$A$408:$FN$450,AT$1)","v":409},{"$f":"VLOOKUP(DropDownList!$B$47,CntyQryCensus!$A$408:$FN$450,AU$1)","v":369},{"$f":"VLOOKUP(DropDownList!$B$47,CntyQryCensus!$A$408:$FN$450,AV$1)","v":221},{"$f":"VLOOKUP(DropDownList!$B$47,CntyQryCensus!$A$408:$FN$450,AW$1)","v":126},{"$f":"VLOOKUP(DropDownList!$B$47,CntyQryCensus!$A$408:$FN$450,AX$1)","v":57},{"$f":"VLOOKUP(DropDownList!$B$47,CntyQryCensus!$A$408:$FN$450,AY$1)","v":17},{"$f":"VLOOKUP(DropDownList!$B$47,CntyQryCensus!$A$408:$FN$450,AZ$1)","v":0},{"$f":"VLOOKUP(DropDownList!$B$47,CntyQryCensus!$A$408:$FN$450,BA$1)","v":0},{"$f":"VLOOKUP(DropDownList!$B$47,CntyQryCensus!$A$408:$FN$450,BB$1)","v":8},{"$f":"VLOOKUP(DropDownList!$B$47,CntyQryCensus!$A$408:$FN$450,BC$1)","v":0},{"$f":"VLOOKUP(DropDownList!$B$47,CntyQryCensus!$A$408:$FN$450,BD$1)","v":127100},{"$f":"VLOOKUP(DropDownList!$B$47,CntyQryCensus!$A$408:$FN$450,BE$1)","v":1667},{"$f":"VLOOKUP(DropDownList!$B$47,CntyQryCensus!$A$408:$FN$450,BF$1)","v":1345},{"$f":"VLOOKUP(DropDownList!$B$47,CntyQryCensus!$A$408:$FN$450,BG$1)","v":0},{"$f":"VLOOKUP(DropDownList!$B$47,CntyQryCensus!$A$408:$FN$450,BH$1)","v":0},{"$f":"VLOOKUP(DropDownList!$B$47,CntyQryCensus!$A$408:$FN$450,BI$1)","v":6},{"$f":"VLOOKUP(DropDownList!$B$47,CntyQryCensus!$A$408:$FN$450,BJ$1)","v":8},{"$f":"VLOOKUP(DropDownList!$B$47,CntyQryCensus!$A$408:$FN$450,BK$1)","v":0},{"$f":"VLOOKUP(DropDownList!$B$47,CntyQryCensus!$A$408:$FN$450,BL$1)","v":88},{"$f":"VLOOKUP(DropDownList!$B$47,CntyQryCensus!$A$408:$FN$450,BM$1)","v":99},{"$f":"VLOOKUP(DropDownList!$B$47,CntyQryCensus!$A$408:$FN$450,BN$1)","v":106},{"$f":"VLOOKUP(DropDownList!$B$47,CntyQryCensus!$A$408:$FN$450,BO$1)","v":134},{"$f":"VLOOKUP(DropDownList!$B$47,CntyQryCensus!$A$408:$FN$450,BP$1)","v":297},{"$f":"VLOOKUP(DropDownList!$B$47,CntyQryCensus!$A$408:$FN$450,BQ$1)","v":329},{"$f":"VLOOKUP(DropDownList!$B$47,CntyQryCensus!$A$408:$FN$450,BR$1)","v":218},{"$f":"VLOOKUP(DropDownList!$B$47,CntyQryCensus!$A$408:$FN$450,BS$1)","v":52},{"$f":"VLOOKUP(DropDownList!$B$47,CntyQryCensus!$A$408:$FN$450,BT$1)","v":8},{"$f":"VLOOKUP(DropDownList!$B$47,CntyQryCensus!$A$408:$FN$450,BU$1)","v":0},{"$f":"VLOOKUP(DropDownList!$B$47,CntyQryCensus!$A$408:$FN$450,BV$1)","v":322},{"$f":"VLOOKUP(DropDownList!$B$47,CntyQryCensus!$A$408:$FN$450,BW$1)","v":0},{"$f":"VLOOKUP(DropDownList!$B$47,CntyQryCensus!$A$408:$FN$450,BX$1)","v":0},{"$f":"VLOOKUP(DropDownList!$B$47,CntyQryCensus!$A$408:$FN$450,BY$1)","v":24},{"$f":"VLOOKUP(DropDownList!$B$47,CntyQryCensus!$A$408:$FN$450,BZ$1)","v":31},{"$f":"VLOOKUP(DropDownList!$B$47,CntyQryCensus!$A$408:$FN$450,CA$1)","v":16},{"$f":"VLOOKUP(DropDownList!$B$47,CntyQryCensus!$A$408:$FN$450,CB$1)","v":13},{"$f":"VLOOKUP(DropDownList!$B$47,CntyQryCensus!$A$408:$FN$450,CC$1)","v":37},{"$f":"VLOOKUP(DropDownList!$B$47,CntyQryCensus!$A$408:$FN$450,CD$1)","v":120},{"$f":"VLOOKUP(DropDownList!$B$47,CntyQryCensus!$A$408:$FN$450,CE$1)","v":49},{"$f":"VLOOKUP(DropDownList!$B$47,CntyQryCensus!$A$408:$FN$450,CF$1)","v":8},{"$f":"VLOOKUP(DropDownList!$B$47,CntyQryCensus!$A$408:$FN$450,CG$1)","v":17},{"$f":"VLOOKUP(DropDownList!$B$47,CntyQryCensus!$A$408:$FN$450,CH$1)","v":7},{"$f":"VLOOKUP(DropDownList!$B$47,CntyQryCensus!$A$408:$FN$450,CI$1)","v":0},{"$f":"VLOOKUP(DropDownList!$B$47,CntyQryCensus!$A$408:$FN$450,CJ$1)","v":0},{"$f":"VLOOKUP(DropDownList!$B$47,CntyQryCensus!$A$408:$FN$450,CK$1)","v":1195},{"$f":"VLOOKUP(DropDownList!$B$47,CntyQryCensus!$A$408:$FN$450,CL$1)","v":433},{"$f":"VLOOKUP(DropDownList!$B$47,CntyQryCensus!$A$408:$FN$450,CM$1)","v":1667},{"$f":"VLOOKUP(DropDownList!$B$47,CntyQryCensus!$A$408:$FN$450,CN$1)","v":1345},{"$f":"VLOOKUP(DropDownList!$B$47,CntyQryCensus!$A$408:$FN$450,CO$1)","v":60},{"$f":"VLOOKUP(DropDownList!$B$47,CntyQryCensus!$A$408:$FN$450,CP$1)","v":161},{"$f":"VLOOKUP(DropDownList!$B$47,CntyQryCensus!$A$408:$FN$450,CQ$1)","v":247},{"$f":"VLOOKUP(DropDownList!$B$47,CntyQryCensus!$A$408:$FN$450,CR$1)","v":318},{"$f":"VLOOKUP(DropDownList!$B$47,CntyQryCensus!$A$408:$FN$450,CS$1)","v":208},{"$f":"VLOOKUP(DropDownList!$B$47,CntyQryCensus!$A$408:$FN$450,CT$1)","v":85},{"$f":"VLOOKUP(DropDownList!$B$47,CntyQryCensus!$A$408:$FN$450,CU$1)","v":88},{"$f":"VLOOKUP(DropDownList!$B$47,CntyQryCensus!$A$408:$FN$450,CV$1)","v":86},{"$f":"VLOOKUP(DropDownList!$B$47,CntyQryCensus!$A$408:$FN$450,CW$1)","v":83},{"$f":"VLOOKUP(DropDownList!$B$47,CntyQryCensus!$A$408:$FN$450,CX$1)","v":9},{"$f":"VLOOKUP(DropDownList!$B$47,CntyQryCensus!$A$408:$FN$450,CY$1)","v":322},{"$f":"VLOOKUP(DropDownList!$B$47,CntyQryCensus!$A$408:$FN$450,CZ$1)","v":140},{"$f":"VLOOKUP(DropDownList!$B$47,CntyQryCensus!$A$408:$FN$450,DA$1)","v":91},{"$f":"VLOOKUP(DropDownList!$B$47,CntyQryCensus!$A$408:$FN$450,DB$1)","v":45},{"$f":"VLOOKUP(DropDownList!$B$47,CntyQryCensus!$A$408:$FN$450,DC$1)","v":0},{"$f":"VLOOKUP(DropDownList!$B$47,CntyQryCensus!$A$408:$FN$450,DD$1)","v":15},{"$f":"VLOOKUP(DropDownList!$B$47,CntyQryCensus!$A$408:$FN$450,DE$1)","v":7},{"$f":"VLOOKUP(DropDownList!$B$47,CntyQryCensus!$A$408:$FN$450,DF$1)","v":6},{"$f":"VLOOKUP(DropDownList!$B$47,CntyQryCensus!$A$408:$FN$450,DG$1)","v":12},{"$f":"VLOOKUP(DropDownList!$B$47,CntyQryCensus!$A$408:$FN$450,DH$1)","v":0},{"$f":"VLOOKUP(DropDownList!$B$47,CntyQryCensus!$A$408:$FN$450,DI$1)","v":6},{"$f":"VLOOKUP(DropDownList!$B$47,CntyQryCensus!$A$408:$FN$450,DJ$1)","v":1667},{"$f":"VLOOKUP(DropDownList!$B$47,CntyQryCensus!$A$408:$FN$450,DK$1)","v":15},{"$f":"VLOOKUP(DropDownList!$B$47,CntyQryCensus!$A$408:$FN$450,DL$1)","v":0},{"$f":"VLOOKUP(DropDownList!$B$47,CntyQryCensus!$A$408:$FN$450,DM$1)","v":0},{"$f":"VLOOKUP(DropDownList!$B$47,CntyQryCensus!$A$408:$FN$450,DN$1)","v":0},{"$f":"VLOOKUP(DropDownList!$B$47,CntyQryCensus!$A$408:$FN$450,DO$1)","v":0},{"$f":"VLOOKUP(DropDownList!$B$47,CntyQryCensus!$A$408:$FN$450,DP$1)","v":0},{"$f":"VLOOKUP(DropDownList!$B$47,CntyQryCensus!$A$408:$FN$450,DQ$1)","v":15},{"$f":"VLOOKUP(DropDownList!$B$47,CntyQryCensus!$A$408:$FN$450,DR$1)","v":41},{"$f":"VLOOKUP(DropDownList!$B$47,CntyQryCensus!$A$408:$FN$450,DS$1)","v":0},{"$f":"VLOOKUP(DropDownList!$B$47,CntyQryCensus!$A$408:$FN$450,DT$1)","v":0},{"$f":"VLOOKUP(DropDownList!$B$47,CntyQryCensus!$A$408:$FN$450,DU$1)","v":0},{"$f":"VLOOKUP(DropDownList!$B$47,CntyQryCensus!$A$408:$FN$450,DV$1)","v":7},{"$f":"VLOOKUP(DropDownList!$B$47,CntyQryCensus!$A$408:$FN$450,DW$1)","v":34},{"$f":"VLOOKUP(DropDownList!$B$47,CntyQryCensus!$A$408:$FN$450,DX$1)","v":0},{"$f":"VLOOKUP(DropDownList!$B$47,CntyQryCensus!$A$408:$FN$450,DY$1)","v":290},{"$f":"VLOOKUP(DropDownList!$B$47,CntyQryCensus!$A$408:$FN$450,DZ$1)","v":77},{"$f":"VLOOKUP(DropDownList!$B$47,CntyQryCensus!$A$408:$FN$450,EA$1)","v":0},{"$f":"VLOOKUP(DropDownList!$B$47,CntyQryCensus!$A$408:$FN$450,EB$1)","v":49},{"$f":"VLOOKUP(DropDownList!$B$47,CntyQryCensus!$A$408:$FN$450,EC$1)","v":32},{"$f":"VLOOKUP(DropDownList!$B$47,CntyQryCensus!$A$408:$FN$450,ED$1)","v":132},{"$f":"VLOOKUP(DropDownList!$B$47,CntyQryCensus!$A$408:$FN$450,EE$1)","v":0},{"$f":"VLOOKUP(DropDownList!$B$47,CntyQryCensus!$A$408:$FN$450,EF$1)","v":294},{"$f":"VLOOKUP(DropDownList!$B$47,CntyQryCensus!$A$408:$FN$450,EG$1)","v":78},{"$f":"VLOOKUP(DropDownList!$B$47,CntyQryCensus!$A$408:$FN$450,EH$1)","v":62},{"$f":"VLOOKUP(DropDownList!$B$47,CntyQryCensus!$A$408:$FN$450,EI$1)","v":41},{"$f":"VLOOKUP(DropDownList!$B$47,CntyQryCensus!$A$408:$FN$450,EJ$1)","v":29},{"$f":"VLOOKUP(DropDownList!$B$47,CntyQryCensus!$A$408:$FN$450,EK$1)","v":84},{"$f":"VLOOKUP(DropDownList!$B$47,CntyQryCensus!$A$408:$FN$450,EL$1)","v":0},{"$f":"VLOOKUP(DropDownList!$B$47,CntyQryCensus!$A$408:$FN$450,EM$1)","v":430},{"$f":"VLOOKUP(DropDownList!$B$47,CntyQryCensus!$A$408:$FN$450,EN$1)","v":148},{"$f":"VLOOKUP(DropDownList!$B$47,CntyQryCensus!$A$408:$FN$450,EO$1)","v":136},{"$f":"VLOOKUP(DropDownList!$B$47,CntyQryCensus!$A$408:$FN$450,EP$1)","v":105},{"$f":"VLOOKUP(DropDownList!$B$47,CntyQryCensus!$A$408:$FN$450,EQ$1)","v":16},{"$f":"VLOOKUP(DropDownList!$B$47,CntyQryCensus!$A$408:$FN$450,ER$1)","v":25},{"$f":"VLOOKUP(DropDownList!$B$47,CntyQryCensus!$A$408:$FN$450,ES$1)","v":0},{"$f":"VLOOKUP(DropDownList!$B$47,CntyQryCensus!$A$408:$FN$450,ET$1)","v":427},{"$f":"VLOOKUP(DropDownList!$B$47,CntyQryCensus!$A$408:$FN$450,EU$1)","v":288},{"$f":"VLOOKUP(DropDownList!$B$47,CntyQryCensus!$A$408:$FN$450,EV$1)","v":111},{"$f":"VLOOKUP(DropDownList!$B$47,CntyQryCensus!$A$408:$FN$450,EW$1)","v":28},{"$f":"VLOOKUP(DropDownList!$B$47,CntyQryCensus!$A$408:$FN$450,EX$1)","v":0},{"$f":"VLOOKUP(DropDownList!$B$47,CntyQryCensus!$A$408:$FN$450,EY$1)","v":0},{"$f":"VLOOKUP(DropDownList!$B$47,CntyQryCensus!$A$408:$FN$450,EZ$1)","v":0},{"$f":"VLOOKUP(DropDownList!$B$47,CntyQryCensus!$A$408:$FN$450,FA$1)","v":120},{"$f":"VLOOKUP(DropDownList!$B$47,CntyQryCensus!$A$408:$FN$450,FB$1)","v":103},{"$f":"VLOOKUP(DropDownList!$B$47,CntyQryCensus!$A$408:$FN$450,FC$1)","v":9},{"$f":"VLOOKUP(DropDownList!$B$47,CntyQryCensus!$A$408:$FN$450,FD$1)","v":0},{"$f":"VLOOKUP(DropDownList!$B$47,CntyQryCensus!$A$408:$FN$450,FE$1)","v":8},{"$f":"VLOOKUP(DropDownList!$B$47,CntyQryCensus!$A$408:$FN$450,FF$1)","v":0},{"$f":"VLOOKUP(DropDownList!$B$47,CntyQryCensus!$A$408:$FN$450,FG$1)","v":0},{"$f":"VLOOKUP(DropDownList!$B$47,CntyQryCensus!$A$408:$FN$450,FH$1)","v":50},{"$f":"VLOOKUP(DropDownList!$B$47,CntyQryCensus!$A$408:$FN$450,FI$1)","v":50},{"$f":"VLOOKUP(DropDownList!$B$47,CntyQryCensus!$A$408:$FN$450,FJ$1)","v":0},{"$f":"VLOOKUP(DropDownList!$B$47,CntyQryCensus!$A$408:$FN$450,FK$1)","v":0},{"$f":"VLOOKUP(DropDownList!$B$47,CntyQryCensus!$A$408:$FN$450,FL$1)","v":0},{"$f":"VLOOKUP(DropDownList!$B$47,CntyQryCensus!$A$408:$FN$450,FM$1)","v":0},{"$f":"VLOOKUP(DropDownList!$B$47,CntyQryCensus!$A$408:$FN$450,FN$1)","v":0}]
[]
[]
["Census 2000 SummaryFile3 Sample Data  -  SF3TownQry9HHIncomeByTenure"]
["NAME","LOGRECNO","COUNTY","TotalPop","HCT11OccHU","HCT11OwnOccHU","HCT11OOHUInc<5K","HCT11OOHUInc5to10K","HCT11OOHUInc10to15K","HCT11OOHUInc15to20K","HCT11OOHUInc20to25K","HCT11OOHUInc25to35K","HCT11OOHUInc35to50K","HCT11OOHUInc50to75K","HCT11OOHUInc75to100K","HCT11OOHUInc100to150K","HCT11OOHUInc>150K","HCT11RentOccHU","HCT11ROHUInc<5K","HCT11ROHUInc5to10K","HCT11ROHUInc10to15K","HCT11ROHUInc15to20K","HCT11ROHUInc20to25K","HCT11ROHUInc25to35K","HCT11ROHUInc35to50K","HCT11ROHUInc50to75K","HCT11ROHUInc75to100K","HCT11ROHUInc100to150K","HCT11ROHUInc>150K","HCT12MedHHInc","HCT12MedOwnOccHHInc","HCT12MedRentOccHHInc","Summary Level"]
[{"$f":"VLOOKUP(DropDownList!$B$47,CntyQryCensus!$A$459:$AG$501,A$1)","v":"Barrington"},{"$f":"VLOOKUP(DropDownList!$B$47,CntyQryCensus!$A$459:$AG$501,B$1)","v":"0003823"},{"$f":"VLOOKUP(DropDownList!$B$47,CntyQryCensus!$A$459:$AG$501,C$1)","v":"03460"},{"$f":"VLOOKUP(DropDownList!$B$47,CntyQryCensus!$A$459:$AG$501,D$1)","v":"Barrington town"},{"$f":"VLOOKUP(DropDownList!$B$47,CntyQryCensus!$A$459:$AG$501,E$1)","v":"017"},{"$f":"VLOOKUP(DropDownList!$B$47,CntyQryCensus!$A$459:$AG$501,F$1)","v":7475},{"$f":"VLOOKUP(DropDownList!$B$47,CntyQryCensus!$A$459:$AG$501,G$1)","v":2756},{"$f":"VLOOKUP(DropDownList!$B$47,CntyQryCensus!$A$459:$AG$501,H$1)","v":2345},{"$f":"VLOOKUP(DropDownList!$B$47,CntyQryCensus!$A$459:$AG$501,I$1)","v":25},{"$f":"VLOOKUP(DropDownList!$B$47,CntyQryCensus!$A$459:$AG$501,J$1)","v":33},{"$f":"VLOOKUP(DropDownList!$B$47,CntyQryCensus!$A$459:$AG$501,K$1)","v":82},{"$f":"VLOOKUP(DropDownList!$B$47,CntyQryCensus!$A$459:$AG$501,L$1)","v":24},{"$f":"VLOOKUP(DropDownList!$B$47,CntyQryCensus!$A$459:$AG$501,M$1)","v":79},{"$f":"VLOOKUP(DropDownList!$B$47,CntyQryCensus!$A$459:$AG$501,N$1)","v":327},{"$f":"VLOOKUP(DropDownList!$B$47,CntyQryCensus!$A$459:$AG$501,O$1)","v":450},{"$f":"VLOOKUP(DropDownList!$B$47,CntyQryCensus!$A$459:$AG$501,P$1)","v":588},{"$f":"VLOOKUP(DropDownList!$B$47,CntyQryCensus!$A$459:$AG$501,Q$1)","v":523},{"$f":"VLOOKUP(DropDownList!$B$47,CntyQryCensus!$A$459:$AG$501,R$1)","v":164},{"$f":"VLOOKUP(DropDownList!$B$47,CntyQryCensus!$A$459:$AG$501,S$1)","v":50},{"$f":"VLOOKUP(DropDownList!$B$47,CntyQryCensus!$A$459:$AG$501,T$1)","v":411},{"$f":"VLOOKUP(DropDownList!$B$47,CntyQryCensus!$A$459:$AG$501,U$1)","v":17},{"$f":"VLOOKUP(DropDownList!$B$47,CntyQryCensus!$A$459:$AG$501,V$1)","v":7},{"$f":"VLOOKUP(DropDownList!$B$47,CntyQryCensus!$A$459:$AG$501,W$1)","v":30},{"$f":"VLOOKUP(DropDownList!$B$47,CntyQryCensus!$A$459:$AG$501,X$1)","v":33},{"$f":"VLOOKUP(DropDownList!$B$47,CntyQryCensus!$A$459:$AG$501,Y$1)","v":56},{"$f":"VLOOKUP(DropDownList!$B$47,CntyQryCensus!$A$459:$AG$501,Z$1)","v":101},{"$f":"VLOOKUP(DropDownList!$B$47,CntyQryCensus!$A$459:$AG$501,AA$1)","v":94},{"$f":"VLOOKUP(DropDownList!$B$47,CntyQryCensus!$A$459:$AG$501,AB$1)","v":73},{"$f":"VLOOKUP(DropDownList!$B$47,CntyQryCensus!$A$459:$AG$501,AC$1)","v":0},{"$f":"VLOOKUP(DropDownList!$B$47,CntyQryCensus!$A$459:$AG$501,AD$1)","v":0},{"$f":"VLOOKUP(DropDownList!$B$47,CntyQryCensus!$A$459:$AG$501,AE$1)","v":0},{"$f":"VLOOKUP(DropDownList!$B$47,CntyQryCensus!$A$459:$AG$501,AF$1)","v":50435},{"$f":"VLOOKUP(DropDownList!$B$47,CntyQryCensus!$A$459:$AG$501,AG$1)","v":54272}]
[]
[]
[]
[]
[]
[{"$f":"VLOOKUP(DropDownList!$B$47,CntyQryCensus!$A$510:$DA$522,A$1)","v":"Barrington"}]
[]
[]
[]
[]
[]
[]
[]
["Census 2000 SummaryFile3 Sample Data - SF3TownQry10Disabil"]
["NAME","LOGRECNO","COUNTY","TotalPop","PCT026001-NonInstPop5yrs+","PCT026002-MaleNonInstPop5yrs+","PCT026003","PCT026004","PCT026005","PCT026006","PCT026007","PCT026008","PCT026009","PCT026010","PCT026011","PCT026012","PCT026013","PCT026014","PCT026015","PCT026016","PCT026017","PCT026018","PCT026019","PCT026020","PCT026021","PCT026022","PCT026023","PCT026024","PCT026025","PCT026026","PCT026027","PCT026028","PCT026029","PCT026030","PCT026031","PCT026032","PCT026033","PCT026034","PCT026035","PCT026036","PCT026037","PCT026038","PCT026039","PCT026040","PCT026041","PCT026042","PCT026043","PCT026044","PCT026045","PCT026046","PCT026047","PCT026048","PCT026049","PCT026050","PCT026051","PCT026052","PCT026053","PCT026054","PCT026055","PCT026056","PCT026057","PCT026058","PCT026059","PCT026060","PCT026061","PCT026062","PCT026063","PCT026064","PCT026065","PCT026066","PCT026067","PCT026068","PCT026069","PCT026070","PCT026071","PCT026072","PCT026073","PCT026074","PCT026075","PCT026076","PCT026077","PCT026078","PCT026079","PCT026080","PCT026081","PCT026082","PCT026083","PCT026084","PCT026085","PCT026086","PCT026087","PCT026088","PCT026089","PCT026090","PCT026091","PCT026092","PCT026093","PCT026094","PCT026095","PCT026096","PCT026097","PCT026098","PCT026099","PCT026100","PCT026101"]
[{"$f":"VLOOKUP(DropDownList!$B$47,CntyQryCensus!$A$510:$DA$522,A$1)","v":"Barrington"},{"$f":"VLOOKUP(DropDownList!$B$47,CntyQryCensus!$A$510:$DA$522,B$1)","v":"0003823"},{"$f":"VLOOKUP(DropDownList!$B$47,CntyQryCensus!$A$510:$DA$522,C$1)","v":"03460"},{"$f":"VLOOKUP(DropDownList!$B$47,CntyQryCensus!$A$510:$DA$522,D$1)","v":7475},{"$f":"VLOOKUP(DropDownList!$B$47,CntyQryCensus!$A$510:$DA$522,E$1)","v":6994},{"$f":"VLOOKUP(DropDownList!$B$47,CntyQryCensus!$A$510:$DA$522,F$1)","v":3568},{"$f":"VLOOKUP(DropDownList!$B$47,CntyQryCensus!$A$510:$DA$522,G$1)","v":753},{"$f":"VLOOKUP(DropDownList!$B$47,CntyQryCensus!$A$510:$DA$522,H$1)","v":48},{"$f":"VLOOKUP(DropDownList!$B$47,CntyQryCensus!$A$510:$DA$522,I$1)","v":10},{"$f":"VLOOKUP(DropDownList!$B$47,CntyQryCensus!$A$510:$DA$522,J$1)","v":9},{"$f":"VLOOKUP(DropDownList!$B$47,CntyQryCensus!$A$510:$DA$522,K$1)","v":29},{"$f":"VLOOKUP(DropDownList!$B$47,CntyQryCensus!$A$510:$DA$522,L$1)","v":0},{"$f":"VLOOKUP(DropDownList!$B$47,CntyQryCensus!$A$510:$DA$522,M$1)","v":0},{"$f":"VLOOKUP(DropDownList!$B$47,CntyQryCensus!$A$510:$DA$522,N$1)","v":0},{"$f":"VLOOKUP(DropDownList!$B$47,CntyQryCensus!$A$510:$DA$522,O$1)","v":0},{"$f":"VLOOKUP(DropDownList!$B$47,CntyQryCensus!$A$510:$DA$522,P$1)","v":705},{"$f":"VLOOKUP(DropDownList!$B$47,CntyQryCensus!$A$510:$DA$522,Q$1)","v":219},{"$f":"VLOOKUP(DropDownList!$B$47,CntyQryCensus!$A$510:$DA$522,R$1)","v":24},{"$f":"VLOOKUP(DropDownList!$B$47,CntyQryCensus!$A$510:$DA$522,S$1)","v":0},{"$f":"VLOOKUP(DropDownList!$B$47,CntyQryCensus!$A$510:$DA$522,T$1)","v":0},{"$f":"VLOOKUP(DropDownList!$B$47,CntyQryCensus!$A$510:$DA$522,U$1)","v":22},{"$f":"VLOOKUP(DropDownList!$B$47,CntyQryCensus!$A$510:$DA$522,V$1)","v":0},{"$f":"VLOOKUP(DropDownList!$B$47,CntyQryCensus!$A$510:$DA$522,W$1)","v":0},{"$f":"VLOOKUP(DropDownList!$B$47,CntyQryCensus!$A$510:$DA$522,X$1)","v":2},{"$f":"VLOOKUP(DropDownList!$B$47,CntyQryCensus!$A$510:$DA$522,Y$1)","v":0},{"$f":"VLOOKUP(DropDownList!$B$47,CntyQryCensus!$A$510:$DA$522,Z$1)","v":0},{"$f":"VLOOKUP(DropDownList!$B$47,CntyQryCensus!$A$510:$DA$522,AA$1)","v":0},{"$f":"VLOOKUP(DropDownList!$B$47,CntyQryCensus!$A$510:$DA$522,AB$1)","v":0},{"$f":"VLOOKUP(DropDownList!$B$47,CntyQryCensus!$A$510:$DA$522,AC$1)","v":0},{"$f":"VLOOKUP(DropDownList!$B$47,CntyQryCensus!$A$510:$DA$522,AD$1)","v":195},{"$f":"VLOOKUP(DropDownList!$B$47,CntyQryCensus!$A$510:$DA$522,AE$1)","v":2346},{"$f":"VLOOKUP(DropDownList!$B$47,CntyQryCensus!$A$510:$DA$522,AF$1)","v":197},{"$f":"VLOOKUP(DropDownList!$B$47,CntyQryCensus!$A$510:$DA$522,AG$1)","v":33},{"$f":"VLOOKUP(DropDownList!$B$47,CntyQryCensus!$A$510:$DA$522,AH$1)","v":8},{"$f":"VLOOKUP(DropDownList!$B$47,CntyQryCensus!$A$510:$DA$522,AI$1)","v":42},{"$f":"VLOOKUP(DropDownList!$B$47,CntyQryCensus!$A$510:$DA$522,AJ$1)","v":0},{"$f":"VLOOKUP(DropDownList!$B$47,CntyQryCensus!$A$510:$DA$522,AK$1)","v":8},{"$f":"VLOOKUP(DropDownList!$B$47,CntyQryCensus!$A$510:$DA$522,AL$1)","v":106},{"$f":"VLOOKUP(DropDownList!$B$47,CntyQryCensus!$A$510:$DA$522,AM$1)","v":138},{"$f":"VLOOKUP(DropDownList!$B$47,CntyQryCensus!$A$510:$DA$522,AN$1)","v":37},{"$f":"VLOOKUP(DropDownList!$B$47,CntyQryCensus!$A$510:$DA$522,AO$1)","v":101},{"$f":"VLOOKUP(DropDownList!$B$47,CntyQryCensus!$A$510:$DA$522,AP$1)","v":44},{"$f":"VLOOKUP(DropDownList!$B$47,CntyQryCensus!$A$510:$DA$522,AQ$1)","v":57},{"$f":"VLOOKUP(DropDownList!$B$47,CntyQryCensus!$A$510:$DA$522,AR$1)","v":2011},{"$f":"VLOOKUP(DropDownList!$B$47,CntyQryCensus!$A$510:$DA$522,AS$1)","v":250},{"$f":"VLOOKUP(DropDownList!$B$47,CntyQryCensus!$A$510:$DA$522,AT$1)","v":25},{"$f":"VLOOKUP(DropDownList!$B$47,CntyQryCensus!$A$510:$DA$522,AU$1)","v":0},{"$f":"VLOOKUP(DropDownList!$B$47,CntyQryCensus!$A$510:$DA$522,AV$1)","v":25},{"$f":"VLOOKUP(DropDownList!$B$47,CntyQryCensus!$A$510:$DA$522,AW$1)","v":0},{"$f":"VLOOKUP(DropDownList!$B$47,CntyQryCensus!$A$510:$DA$522,AX$1)","v":0},{"$f":"VLOOKUP(DropDownList!$B$47,CntyQryCensus!$A$510:$DA$522,AY$1)","v":0},{"$f":"VLOOKUP(DropDownList!$B$47,CntyQryCensus!$A$510:$DA$522,AZ$1)","v":28},{"$f":"VLOOKUP(DropDownList!$B$47,CntyQryCensus!$A$510:$DA$522,BA$1)","v":8},{"$f":"VLOOKUP(DropDownList!$B$47,CntyQryCensus!$A$510:$DA$522,BB$1)","v":20},{"$f":"VLOOKUP(DropDownList!$B$47,CntyQryCensus!$A$510:$DA$522,BC$1)","v":197},{"$f":"VLOOKUP(DropDownList!$B$47,CntyQryCensus!$A$510:$DA$522,BD$1)","v":3426},{"$f":"VLOOKUP(DropDownList!$B$47,CntyQryCensus!$A$510:$DA$522,BE$1)","v":624},{"$f":"VLOOKUP(DropDownList!$B$47,CntyQryCensus!$A$510:$DA$522,BF$1)","v":7},{"$f":"VLOOKUP(DropDownList!$B$47,CntyQryCensus!$A$510:$DA$522,BG$1)","v":0},{"$f":"VLOOKUP(DropDownList!$B$47,CntyQryCensus!$A$510:$DA$522,BH$1)","v":0},{"$f":"VLOOKUP(DropDownList!$B$47,CntyQryCensus!$A$510:$DA$522,BI$1)","v":7},{"$f":"VLOOKUP(DropDownList!$B$47,CntyQryCensus!$A$510:$DA$522,BJ$1)","v":0},{"$f":"VLOOKUP(DropDownList!$B$47,CntyQryCensus!$A$510:$DA$522,BK$1)","v":9},{"$f":"VLOOKUP(DropDownList!$B$47,CntyQryCensus!$A$510:$DA$522,BL$1)","v":0},{"$f":"VLOOKUP(DropDownList!$B$47,CntyQryCensus!$A$510:$DA$522,BM$1)","v":9},{"$f":"VLOOKUP(DropDownList!$B$47,CntyQryCensus!$A$510:$DA$522,BN$1)","v":608},{"$f":"VLOOKUP(DropDownList!$B$47,CntyQryCensus!$A$510:$DA$522,BO$1)","v":204},{"$f":"VLOOKUP(DropDownList!$B$47,CntyQryCensus!$A$510:$DA$522,BP$1)","v":12},{"$f":"VLOOKUP(DropDownList!$B$47,CntyQryCensus!$A$510:$DA$522,BQ$1)","v":0},{"$f":"VLOOKUP(DropDownList!$B$47,CntyQryCensus!$A$510:$DA$522,BR$1)","v":0},{"$f":"VLOOKUP(DropDownList!$B$47,CntyQryCensus!$A$510:$DA$522,BS$1)","v":0},{"$f":"VLOOKUP(DropDownList!$B$47,CntyQryCensus!$A$510:$DA$522,BT$1)","v":0},{"$f":"VLOOKUP(DropDownList!$B$47,CntyQryCensus!$A$510:$DA$522,BU$1)","v":0},{"$f":"VLOOKUP(DropDownList!$B$47,CntyQryCensus!$A$510:$DA$522,BV$1)","v":12},{"$f":"VLOOKUP(DropDownList!$B$47,CntyQryCensus!$A$510:$DA$522,BW$1)","v":0},{"$f":"VLOOKUP(DropDownList!$B$47,CntyQryCensus!$A$510:$DA$522,BX$1)","v":0},{"$f":"VLOOKUP(DropDownList!$B$47,CntyQryCensus!$A$510:$DA$522,BY$1)","v":0},{"$f":"VLOOKUP(DropDownList!$B$47,CntyQryCensus!$A$510:$DA$522,BZ$1)","v":0},{"$f":"VLOOKUP(DropDownList!$B$47,CntyQryCensus!$A$510:$DA$522,CA$1)","v":0},{"$f":"VLOOKUP(DropDownList!$B$47,CntyQryCensus!$A$510:$DA$522,CB$1)","v":192},{"$f":"VLOOKUP(DropDownList!$B$47,CntyQryCensus!$A$510:$DA$522,CC$1)","v":2320},{"$f":"VLOOKUP(DropDownList!$B$47,CntyQryCensus!$A$510:$DA$522,CD$1)","v":157},{"$f":"VLOOKUP(DropDownList!$B$47,CntyQryCensus!$A$510:$DA$522,CE$1)","v":0},{"$f":"VLOOKUP(DropDownList!$B$47,CntyQryCensus!$A$510:$DA$522,CF$1)","v":7},{"$f":"VLOOKUP(DropDownList!$B$47,CntyQryCensus!$A$510:$DA$522,CG$1)","v":0},{"$f":"VLOOKUP(DropDownList!$B$47,CntyQryCensus!$A$510:$DA$522,CH$1)","v":0},{"$f":"VLOOKUP(DropDownList!$B$47,CntyQryCensus!$A$510:$DA$522,CI$1)","v":0},{"$f":"VLOOKUP(DropDownList!$B$47,CntyQryCensus!$A$510:$DA$522,CJ$1)","v":150},{"$f":"VLOOKUP(DropDownList!$B$47,CntyQryCensus!$A$510:$DA$522,CK$1)","v":166},{"$f":"VLOOKUP(DropDownList!$B$47,CntyQryCensus!$A$510:$DA$522,CL$1)","v":17},{"$f":"VLOOKUP(DropDownList!$B$47,CntyQryCensus!$A$510:$DA$522,CM$1)","v":149},{"$f":"VLOOKUP(DropDownList!$B$47,CntyQryCensus!$A$510:$DA$522,CN$1)","v":31},{"$f":"VLOOKUP(DropDownList!$B$47,CntyQryCensus!$A$510:$DA$522,CO$1)","v":118},{"$f":"VLOOKUP(DropDownList!$B$47,CntyQryCensus!$A$510:$DA$522,CP$1)","v":1997},{"$f":"VLOOKUP(DropDownList!$B$47,CntyQryCensus!$A$510:$DA$522,CQ$1)","v":278},{"$f":"VLOOKUP(DropDownList!$B$47,CntyQryCensus!$A$510:$DA$522,CR$1)","v":70},{"$f":"VLOOKUP(DropDownList!$B$47,CntyQryCensus!$A$510:$DA$522,CS$1)","v":28},{"$f":"VLOOKUP(DropDownList!$B$47,CntyQryCensus!$A$510:$DA$522,CT$1)","v":13},{"$f":"VLOOKUP(DropDownList!$B$47,CntyQryCensus!$A$510:$DA$522,CU$1)","v":0},{"$f":"VLOOKUP(DropDownList!$B$47,CntyQryCensus!$A$510:$DA$522,CV$1)","v":0},{"$f":"VLOOKUP(DropDownList!$B$47,CntyQryCensus!$A$510:$DA$522,CW$1)","v":29},{"$f":"VLOOKUP(DropDownList!$B$47,CntyQryCensus!$A$510:$DA$522,CX$1)","v":50},{"$f":"VLOOKUP(DropDownList!$B$47,CntyQryCensus!$A$510:$DA$522,CY$1)","v":0},{"$f":"VLOOKUP(DropDownList!$B$47,CntyQryCensus!$A$510:$DA$522,CZ$1)","v":50},{"$f":"VLOOKUP(DropDownList!$B$47,CntyQryCensus!$A$510:$DA$522,DA$1)","v":158}]
[]
[]
[]
[]
[{"$f":"VLOOKUP(DropDownList!$B$47,CntyQryCensus!$A$510:$DA$522,A$1)","v":"Barrington"}]
[]
[]
[]
["ACS",2,{"$f":"B105+1","v":3},{"$f":"C105+1","v":4},5,6,7,8,9,10,11,{"$f":"K105+1","v":12},13,14,15,{"$f":"O105+1","v":16},17,18,19,20,21,22,23,24,25,26,27,28,29,30,31,32,33,34,35,36,37,38,39,40,41,42,43,44,45,46,47,48,49,50,51,52,53,54,55,56,57,58,59,60,61,62,63,64,65,66,67,{"$f":"BO105+1","v":68},69,70,71,72,73,74,75,76,77,78,79,80,81,82,83,84,85,86,87,88,89,90,91,92,93,94,95,96,97,98,99,100,101,102,103,104,105,106,107,108,109,110,111,112,113,114,115,116,117,118,119,120,121,122,123,124,125]
["Househould Data (Housing Unit Type)"]
["NAME","TotalHU",{"$f":"\"MOE \"&B107","v":"MOE TotalHU"},"TotalOccHU",{"$f":"\"MOE \"&D107","v":"MOE TotalOccHU"},"TotalOwnerOccUn",{"$f":"\"MOE \"&F107","v":"MOE TotalOwnerOccUn"},"TotalRenterOccn",{"$f":"\"MOE \"&H107","v":"MOE TotalRenterOccn"},"TotalVacantUntis",{"$f":"\"MOE \"&J107","v":"MOE TotalVacantUntis"},"VacantUnitsForRent",{"$f":"\"MOE \"&L107","v":"MOE VacantUnitsForRent"},"VacantUnitRentedNotOcc",{"$f":"\"MOE \"&N107","v":"MOE VacantUnitRentedNotOcc"},"VacantUnitForSale",{"$f":"\"MOE \"&P107","v":"MOE VacantUnitForSale"},"VacantUnitSoldNotOcc",{"$f":"\"MOE \"&R107","v":"MOE VacantUnitSoldNotOcc"},"VacantUnitSeasonalRec",{"$f":"\"MOE \"&T107","v":"MOE VacantUnitSeasonalRec"},"TotalPopInHousingUnits",{"$f":"\"MOE \"&V107","v":"MOE TotalPopInHousingUnits"},"OwnerOccPopHousingUnits",{"$f":"\"MOE \"&X107","v":"MOE OwnerOccPopHousingUnits"},"RenterOccPopHousingUnits",{"$f":"\"MOE \"&Z107","v":"MOE RenterOccPopHousingUnits"},"TotalUntis",{"$f":"\"MOE \"&AB107","v":"MOE TotalUntis"},"TotalOwnerOccUnits",{"$f":"\"MOE \"&AD107","v":"MOE TotalOwnerOccUnits"},"SigFamOwnerOcc",{"$f":"\"MOE \"&AF107","v":"MOE SigFamOwnerOcc"},"MultiFamOwnerOcc",{"$f":"\"MOE \"&AH107","v":"MOE MultiFamOwnerOcc"},"MobileOwnerOcc",{"$f":"\"MOE \"&AJ107","v":"MOE MobileOwnerOcc"},"TotalRenterOccUnits",{"$f":"\"MOE \"&AL107","v":"MOE TotalRenterOccUnits"},"SigFamRenterOcc",{"$f":"\"MOE \"&AN107","v":"MOE SigFamRenterOcc"},"MultiFamRenterOcc",{"$f":"\"MOE \"&AP107","v":"MOE MultiFamRenterOcc"},"MobileRenterOcc",{"$f":"\"MOE \"&AR107","v":"MOE MobileRenterOcc"},"TotalSigFamilyUnits",{"$f":"\"MOE \"&AT107","v":"MOE TotalSigFamilyUnits"},"TotalMultiFamilyUnits",{"$f":"\"MOE \"&AV107","v":"MOE TotalMultiFamilyUnits"},"TotalMobileUnits",{"$f":"\"MOE \"&AX107","v":"MOE TotalMobileUnits"},"YrHouseBuilt2014Later",{"$f":"\"MOE \"&AZ107","v":"MOE YrHouseBuilt2014Later"},"YrHouseBuilt2010-2013",{"$f":"\"MOE \"&BB107","v":"MOE YrHouseBuilt2010-2013"},"YrHouseBuilt2000-2009",{"$f":"\"MOE \"&BD107","v":"MOE YrHouseBuilt2000-2009"},"YrHouseBuilt1990-1999",{"$f":"\"MOE \"&BF107","v":"MOE YrHouseBuilt1990-1999"},"YrHouseBuilt1980-1989",{"$f":"\"MOE \"&BH107","v":"MOE YrHouseBuilt1980-1989"},"YrHouseBuilt1970-1979",{"$f":"\"MOE \"&BJ107","v":"MOE YrHouseBuilt1970-1979"},"YrHouseBuilt1960-1969",{"$f":"\"MOE \"&BL107","v":"MOE YrHouseBuilt1960-1969"},"YrHouseBuilt1950-1959",{"$f":"\"MOE \"&BN107","v":"MOE YrHouseBuilt1950-1959"},"YrHouseBuilt1940-1949",{"$f":"\"MOE \"&BP107","v":"MOE YrHouseBuilt1940-1949"},"YrHouseBuilt1939orEarlier",{"$f":"\"MOE \"&BR107","v":"MOE YrHouseBuilt1939orEarlier"},"NoBedrooms",{"$f":"\"MOE \"&BT107","v":"MOE NoBedrooms"},"1Bedroom",{"$f":"\"MOE \"&BV107","v":"MOE 1Bedroom"},"2Bedroom",{"$f":"\"MOE \"&BX107","v":"MOE 2Bedroom"},"3Bedroom",{"$f":"\"MOE \"&BZ107","v":"MOE 3Bedroom"},"4+Bedroom",{"$f":"\"MOE \"&CB107","v":"MOE 4+Bedroom"}]
[{"$f":"VLOOKUP(DropDownList!$B$47,CntyQryCensus!$A$510:$DA$522,A$1)","v":"Barrington"},3593,260,3183,200,2904,213,279,139,410,223,0,16,0,16,0,16,57,92,244,162,9063,31,8398,356,665,351,3183,200,2904,213,2438,226,161,126.59383871263246,305,117.09824934643558,279,139,184,130,82,88.662280593271461,13,27.202941017470888,2904,290,300,178.33956375409244,389,145.88008774332431,106,73,204,142,786,219,434,180,430,159,802,235,99,101,294,170,90,107,348,180,0,16,138,89,1057,248,1866,280,532,204.56050449683585,null,null,null,null,28]
[]
["Disability Data"]
["NAME","TotalPop",{"$f":"\"MOE \"&B111","v":"MOE TotalPop"},"PopUnder 5 years:",{"$f":"\"MOE \"&D111","v":"MOE PopUnder 5 years:"},{"$f":"D$111&\"-WithDisability\"","v":"PopUnder 5 years:-WithDisability"},{"$f":"\"MOE \"&F111","v":"MOE PopUnder 5 years:-WithDisability"},{"$f":"D111&\"-NoDisability\"","v":"PopUnder 5 years:-NoDisability"},{"$f":"\"MOE \"&H111","v":"MOE PopUnder 5 years:-NoDisability"},"PopUnder 5 to 17years:",{"$f":"\"MOE \"&J111","v":"MOE PopUnder 5 to 17years:"},{"$f":"J$111&\"-WithDisability\"","v":"PopUnder 5 to 17years:-WithDisability"},{"$f":"\"MOE \"&L111","v":"MOE PopUnder 5 to 17years:-WithDisability"},{"$f":"J111&\"-NoDisability\"","v":"PopUnder 5 to 17years:-NoDisability"},{"$f":"\"MOE \"&N111","v":"MOE PopUnder 5 to 17years:-NoDisability"},"PopUnder 18 to 34 years:",{"$f":"\"MOE \"&P111","v":"MOE PopUnder 18 to 34 years:"},{"$f":"P$111&\"-WithDisability\"","v":"PopUnder 18 to 34 years:-WithDisability"},{"$f":"\"MOE \"&R111","v":"MOE PopUnder 18 to 34 years:-WithDisability"},{"$f":"P111&\"-NoDisability\"","v":"PopUnder 18 to 34 years:-NoDisability"},{"$f":"\"MOE \"&T111","v":"MOE PopUnder 18 to 34 years:-NoDisability"},"Pop 35 years to 64:",{"$f":"\"MOE \"&V111","v":"MOE Pop 35 years to 64:"},{"$f":"$V$111&\"-WithDisability\"","v":"Pop 35 years to 64:-WithDisability"},{"$f":"\"MOE \"&X111","v":"MOE Pop 35 years to 64:-WithDisability"},{"$f":"$V$111&\"-NoDisability\"","v":"Pop 35 years to 64:-NoDisability"},{"$f":"\"MOE \"&Z111","v":"MOE Pop 35 years to 64:-NoDisability"},"Pop 65 years to 74:",{"$f":"\"MOE \"&AB111","v":"MOE Pop 65 years to 74:"},{"$f":"$AB$111&\"-WithDisability\"","v":"Pop 65 years to 74:-WithDisability"},{"$f":"\"MOE \"&AD111","v":"MOE Pop 65 years to 74:-WithDisability"},{"$f":"$AB$111&\"-NoDisability\"","v":"Pop 65 years to 74:-NoDisability"},{"$f":"\"MOE \"&AF111","v":"MOE Pop 65 years to 74:-NoDisability"},"Pop 75 and older:",{"$f":"\"MOE \"&AH111","v":"MOE Pop 75 and older:"},{"$f":"$AH$111&\"-WithDisability\"","v":"Pop 75 and older:-WithDisability"},{"$f":"\"MOE \"&AJ111","v":"MOE Pop 75 and older:-WithDisability"},{"$f":"$AH$111&\"-NoDisability\"","v":"Pop 75 and older:-NoDisability"},{"$f":"\"MOE \"&AL111","v":"MOE Pop 75 and older:-NoDisability"},"TotalPopUnder5_HearingDisability",{"$f":"\"MOE \"&AN111","v":"MOE TotalPopUnder5_HearingDisability"},"TotalPopUnder5_HearingDisability",{"$f":"\"MOE \"&AP111","v":"MOE TotalPopUnder5_HearingDisability"},"TotalPop18To34_HearingDisability",{"$f":"\"MOE \"&AR111","v":"MOE TotalPop18To34_HearingDisability"},"TotalPop35To64_HearingDisability",{"$f":"\"MOE \"&AT111","v":"MOE TotalPop35To64_HearingDisability"},"TotalPop65To74_HearingDisability",{"$f":"\"MOE \"&AV111","v":"MOE TotalPop65To74_HearingDisability"},"TotalPop75andOlder_HearingDisability",{"$f":"\"MOE \"&AX111","v":"MOE TotalPop75andOlder_HearingDisability"},"TotalPopUnder5_VisionDisability",{"$f":"\"MOE \"&AZ111","v":"MOE TotalPopUnder5_VisionDisability"},"TotalPop5To17_VisionDisability",{"$f":"\"MOE \"&BB111","v":"MOE TotalPop5To17_VisionDisability"},"TotalPop18To34_VisionDisability",{"$f":"\"MOE \"&BD111","v":"MOE TotalPop18To34_VisionDisability"},"TotalPop35To64_VisionDisability",{"$f":"\"MOE \"&BF111","v":"MOE TotalPop35To64_VisionDisability"},"TotalPop65To74_VisionDisability",{"$f":"\"MOE \"&BH111","v":"MOE TotalPop65To74_VisionDisability"},"TotalPop75andOlder_VisionDisability",{"$f":"\"MOE \"&BJ111","v":"MOE TotalPop75andOlder_VisionDisability"},"TotalPop5To17_CongnitiveDisability",{"$f":"\"MOE \"&BL111","v":"MOE TotalPop5To17_CongnitiveDisability"},"TotalPop18To34_CongnitiveDisability",{"$f":"\"MOE \"&BN111","v":"MOE TotalPop18To34_CongnitiveDisability"},"TotalPop35To64_CongnitiveDisability",{"$f":"\"MOE \"&BP111","v":"MOE TotalPop35To64_CongnitiveDisability"},"TotalPop65To74_CongnitiveDisability",{"$f":"\"MOE \"&BR111","v":"MOE TotalPop65To74_CongnitiveDisability"},"TotalPop75andOlder_CongnitiveDisability",{"$f":"\"MOE \"&BT111","v":"MOE TotalPop75andOlder_CongnitiveDisability"},"TotalPop5To17_AmbulatoryDisability",{"$f":"\"MOE \"&BV111","v":"MOE TotalPop5To17_AmbulatoryDisability"},"TotalPop18To34_AmbulatoryDisability",{"$f":"\"MOE \"&BX111","v":"MOE TotalPop18To34_AmbulatoryDisability"},"TotalPop35To64_AmbulatoryDisability",{"$f":"\"MOE \"&BZ111","v":"MOE TotalPop35To64_AmbulatoryDisability"},"TotalPop65To74_AmbulatoryDisability",{"$f":"\"MOE \"&CB111","v":"MOE TotalPop65To74_AmbulatoryDisability"},"TotalPop75andOlder_AmbulatoryDisability",{"$f":"\"MOE \"&CD111","v":"MOE TotalPop75andOlder_AmbulatoryDisability"},"TotalPop5To17_SelfCareDisability",{"$f":"\"MOE \"&CF111","v":"MOE TotalPop5To17_SelfCareDisability"},"TotalPop18To34_SelfCareDisability",{"$f":"\"MOE \"&CH111","v":"MOE TotalPop18To34_SelfCareDisability"},"TotalPop35To64_SelfCareDisability",{"$f":"\"MOE \"&CJ111","v":"MOE TotalPop35To64_SelfCareDisability"},"TotalPop65To74_SelfCareDisability",{"$f":"\"MOE \"&CL111","v":"MOE TotalPop65To74_SelfCareDisability"},"TotalPop75andOlder_SelfCareDisability",{"$f":"\"MOE \"&CN111","v":"MOE TotalPop75andOlder_SelfCareDisability"},"TotalPop18To34_IndependantLivingDisability",{"$f":"\"MOE \"&CP111","v":"MOE TotalPop18To34_IndependantLivingDisability"},"TotalPop35To64_IndependantLivingDisability",{"$f":"\"MOE \"&CR111","v":"MOE TotalPop35To64_IndependantLivingDisability"},"TotalPop65To74_IndependantLivingDisability",{"$f":"\"MOE \"&CT111","v":"MOE TotalPop65To74_IndependantLivingDisability"},"TotalPop75andOlder_IndependantLivingDisability",{"$f":"\"MOE \"&CV111","v":"MOE TotalPop75andOlder_IndependantLivingDisability"},"TotalUnder5_HearingorVisionDisability",{"$f":"\"MOE \"&CX111","v":"MOE TotalUnder5_HearingorVisionDisability"},"TotalUnder5_HearingandVisionDisability",{"$f":"\"MOE \"&CZ111","v":"MOE TotalUnder5_HearingandVisionDisability"},"5to17YearWIthOneDisability",{"$f":"\"MOE \"&DB111","v":"MOE 5to17YearWIthOneDisability"},"5to17YearWIthTwoOrMoreDisability",{"$f":"\"MOE \"&DD111","v":"MOE 5to17YearWIthTwoOrMoreDisability"},"18to34YearWIthOneDisability",{"$f":"\"MOE \"&DF111","v":"MOE 18to34YearWIthOneDisability"},"18to34YearWIthTwoOrMoreDisability",{"$f":"\"MOE \"&DH111","v":"MOE 18to34YearWIthTwoOrMoreDisability"},"35to64YearWIthOneDisability",{"$f":"\"MOE \"&DJ111","v":"MOE 35to64YearWIthOneDisability"},"35to64YearWIthTwoOrMoreDisability",{"$f":"\"MOE \"&DL111","v":"MOE 35to64YearWIthTwoOrMoreDisability"},"65to74YearWIthOneDisability",{"$f":"\"MOE \"&DN111","v":"MOE 65to74YearWIthOneDisability"},"65to74YearWIthTwoOrMoreDisability",{"$f":"\"MOE \"&DP111","v":"MOE 65to74YearWIthTwoOrMoreDisability"},"75AndOlderWIthOneDisability",{"$f":"\"MOE \"&DR111","v":"MOE 75AndOlderWIthOneDisability"},"75AndOlderWIthTwoOrMoreDisability",{"$f":"\"MOE \"&DT111","v":"MOE 75AndOlderWIthTwoOrMoreDisability"}]
[{"$f":"VLOOKUP(DropDownList!$B$47,CntyQryCensus!$A$510:$DA$522,A$1)","v":"Barrington"},9063,31,507,205.86646157157313,0,22.627416997969522,507,205.86646157157313,1642,282.24280327406046,50,77.665951355790398,1592,283.69878392407679,1642,285.20343616443336,216,135.79396157414365,1426,304.80321520613921,4471,286.42101878179261,573,190.06577808748213,3898,311.93108213193506,497,146.03081866510234,66,56.320511361314892,431,133.79461872586654,304,153.83432646844463,149,127.01574705523721,155,99.35793878699377,0,22.627416997969522,0,22.627416997969522,0,22.627416997969522,136,87.783825389418979,35,43.08131845707603,40,66.940271884718243,0,22.627416997969522,50,77.665951355790398,58,66.887966032762577,83,70.213958726167832,35,43.08131845707603,16,32.249030993194197,59,47.75981574503821,45,42.720018726587654,70,55.758407437802596,103,98.290386101591849,58,42.80186911806539,0,22.627416997969522,15,28.0178514522438,136,88.76936408468859,134,102.95630140987001,95,58.728187440104094,0,22.627416997969522,0,22.627416997969522,154,130.59862173851607,17,32.249030993194197,79,103.84603988597736,81,89.10667763978185,153,128.68954891520912,31,39.395431207184416,119,121.27654348636426,50,76,0,16,505,195,284,173,12,20,203,135]
[]
["Househould Income By Age"]
["NAME","TotalHouseholds",{"$f":"\"MOE \"&B115","v":"MOE TotalHouseholds"},"HHInc<10K",{"$f":"\"MOE \"&D115","v":"MOE HHInc<10K"},"HHInc10to15K",{"$f":"\"MOE \"&F115","v":"MOE HHInc10to15K"},"HHInc15to20K",{"$f":"\"MOE \"&H115","v":"MOE HHInc15to20K"},"HHInc20to25K",{"$f":"\"MOE \"&J115","v":"MOE HHInc20to25K"},"HHInc25to30K",{"$f":"\"MOE \"&L115","v":"MOE HHInc25to30K"},"HHInc30to35K",{"$f":"\"MOE \"&N115","v":"MOE HHInc30to35K"},"HHInc35to40K",{"$f":"\"MOE \"&P115","v":"MOE HHInc35to40K"},"HHInc40to45K",{"$f":"\"MOE \"&R115","v":"MOE HHInc40to45K"},"HHInc45to50K",{"$f":"\"MOE \"&T115","v":"MOE HHInc45to50K"},"HHInc50to60K",{"$f":"\"MOE \"&V115","v":"MOE HHInc50to60K"},"HHInc60to75K",{"$f":"\"MOE \"&X115","v":"MOE HHInc60to75K"},"HHInc75to100K",{"$f":"\"MOE \"&Z115","v":"MOE HHInc75to100K"},"HHInc100to125K",{"$f":"\"MOE \"&AB115","v":"MOE HHInc100to125K"},"HHInc125to150K",{"$f":"\"MOE \"&AD115","v":"MOE HHInc125to150K"},"HHInc150to200K",{"$f":"\"MOE \"&AF115","v":"MOE HHInc150to200K"},"HHInc>200K",{"$f":"\"MOE \"&AH115","v":"MOE HHInc>200K"},"TotalHH",{"$f":"\"MOE \"&AJ115","v":"MOE TotalHH"},"HHAgeHHUnder25yrs",{"$f":"\"MOE \"&AL115","v":"MOE HHAgeHHUnder25yrs"},"HHAgeHH<25HHInc<10K",{"$f":"\"MOE \"&AN115","v":"MOE HHAgeHH<25HHInc<10K"},"HHAgeHH<25HHInc10to15K",{"$f":"\"MOE \"&AP115","v":"MOE HHAgeHH<25HHInc10to15K"},"HHAgeHH<25HHInc15to20K",{"$f":"\"MOE \"&AR115","v":"MOE HHAgeHH<25HHInc15to20K"},"HHAgeHH<25HHInc20to25K",{"$f":"\"MOE \"&AT115","v":"MOE HHAgeHH<25HHInc20to25K"},"HHAgeHH<25HHInc25to30K",{"$f":"\"MOE \"&AV115","v":"MOE HHAgeHH<25HHInc25to30K"},"HHAgeHH<25HHInc30to35K",{"$f":"\"MOE \"&AX115","v":"MOE HHAgeHH<25HHInc30to35K"},"HHAgeHH<25HHInc35to40K",{"$f":"\"MOE \"&AZ115","v":"MOE HHAgeHH<25HHInc35to40K"},"HHAgeHH<25HHInc40to45K",{"$f":"\"MOE \"&BB115","v":"MOE HHAgeHH<25HHInc40to45K"},"HHAgeHH<25HHInc45to50K",{"$f":"\"MOE \"&BD115","v":"MOE HHAgeHH<25HHInc45to50K"},"HHAgeHH<25HHInc50to60K",{"$f":"\"MOE \"&BF115","v":"MOE HHAgeHH<25HHInc50to60K"},"HHAgeHH<25HHInc60to75K",{"$f":"\"MOE \"&BH115","v":"MOE HHAgeHH<25HHInc60to75K"},"HHAgeHH<25HHInc75to100K",{"$f":"\"MOE \"&BJ115","v":"MOE HHAgeHH<25HHInc75to100K"},"HHAgeHH<25HHInc100to125K",{"$f":"\"MOE \"&BL115","v":"MOE HHAgeHH<25HHInc100to125K"},"HHAgeHH<25HHInc125to150K",{"$f":"\"MOE \"&BN115","v":"MOE HHAgeHH<25HHInc125to150K"},"HHAgeHH<25HHInc150to200K",{"$f":"\"MOE \"&BP115","v":"MOE HHAgeHH<25HHInc150to200K"},"HHAge<25HHInc>200K",{"$f":"\"MOE \"&BR115","v":"MOE HHAge<25HHInc>200K"},"HHAgeHH25to44yrs",{"$f":"\"MOE \"&BT115","v":"MOE HHAgeHH25to44yrs"},"HHAgeHH25To44yrsHHInc<10K",{"$f":"\"MOE \"&BV115","v":"MOE HHAgeHH25To44yrsHHInc<10K"},"HHAgeHH25To44yrsHHInc10to15K",{"$f":"\"MOE \"&BX115","v":"MOE HHAgeHH25To44yrsHHInc10to15K"},"HHAgeHH25To44yrsHHInc15to20K",{"$f":"\"MOE \"&BZ115","v":"MOE HHAgeHH25To44yrsHHInc15to20K"},"HHAgeHH25To44yrsHHInc20to25K",{"$f":"\"MOE \"&CB115","v":"MOE HHAgeHH25To44yrsHHInc20to25K"},"HHAgeHH25To44yrsHHInc25to30K",{"$f":"\"MOE \"&CD115","v":"MOE HHAgeHH25To44yrsHHInc25to30K"},"HHAgeHH25To44yrsHHInc30to35K",{"$f":"\"MOE \"&CF115","v":"MOE HHAgeHH25To44yrsHHInc30to35K"},"HHAgeHH25To44yrsHHInc35to40K",{"$f":"\"MOE \"&CH115","v":"MOE HHAgeHH25To44yrsHHInc35to40K"},"HHAgeHH25To44yrsHHInc40to45K",{"$f":"\"MOE \"&CJ115","v":"MOE HHAgeHH25To44yrsHHInc40to45K"},"HHAgeHH25To44yrsHHInc45to50K",{"$f":"\"MOE \"&CL115","v":"MOE HHAgeHH25To44yrsHHInc45to50K"},"HHAgeHH25To44yrsHHInc50to60K",{"$f":"\"MOE \"&CN115","v":"MOE HHAgeHH25To44yrsHHInc50to60K"},"HHAgeHH25To44yrsHHInc60to75K",{"$f":"\"MOE \"&CP115","v":"MOE HHAgeHH25To44yrsHHInc60to75K"},"HHAgeHH25To44yrsHHInc75to100K",{"$f":"\"MOE \"&CR115","v":"MOE HHAgeHH25To44yrsHHInc75to100K"},"HHAgeHH25To44yrsHHInc100to125K",{"$f":"\"MOE \"&CT115","v":"MOE HHAgeHH25To44yrsHHInc100to125K"},"HHAgeHH25To44yrsHHInc125to150K",{"$f":"\"MOE \"&CV115","v":"MOE HHAgeHH25To44yrsHHInc125to150K"},"HHAgeHH25To44yrsHHInc150to200K",{"$f":"\"MOE \"&CX115","v":"MOE HHAgeHH25To44yrsHHInc150to200K"},"HHAge25To44yrsHHInc>200K",{"$f":"\"MOE \"&CZ115","v":"MOE HHAge25To44yrsHHInc>200K"},"HHAgeHH45To64yrs",{"$f":"\"MOE \"&DB115","v":"MOE HHAgeHH45To64yrs"},"HHAgeHH45To64yrsHHInc<10K",{"$f":"\"MOE \"&DD115","v":"MOE HHAgeHH45To64yrsHHInc<10K"},"HHAgeHH45To64yrsHHInc10to15K",{"$f":"\"MOE \"&DF115","v":"MOE HHAgeHH45To64yrsHHInc10to15K"},"HHAgeHH45To64yrsHHInc15to20K",{"$f":"\"MOE \"&DH115","v":"MOE HHAgeHH45To64yrsHHInc15to20K"},"HHAgeHH45To64yrsHHInc20to25K",{"$f":"\"MOE \"&DJ115","v":"MOE HHAgeHH45To64yrsHHInc20to25K"},"HHAgeHH45To64yrsHHInc25to30K",{"$f":"\"MOE \"&DL115","v":"MOE HHAgeHH45To64yrsHHInc25to30K"},"HHAgeHH45To64yrsHHInc30to35K",{"$f":"\"MOE \"&DN115","v":"MOE HHAgeHH45To64yrsHHInc30to35K"},"HHAgeHH45To64yrsHHInc35to40K",{"$f":"\"MOE \"&DP115","v":"MOE HHAgeHH45To64yrsHHInc35to40K"},"HHAgeHH45To64yrsHHInc40to45K",{"$f":"\"MOE \"&DR115","v":"MOE HHAgeHH45To64yrsHHInc40to45K"},"HHAgeHH45To64yrsHHInc45to50K",{"$f":"\"MOE \"&DT115","v":"MOE HHAgeHH45To64yrsHHInc45to50K"},"HHAgeHH45To64yrsHHInc50to60K",{"$f":"\"MOE \"&DV115","v":"MOE HHAgeHH45To64yrsHHInc50to60K"},"HHAgeHH45To64yrsHHInc60to75K",{"$f":"\"MOE \"&DX115","v":"MOE HHAgeHH45To64yrsHHInc60to75K"},"HHAgeHH45To64yrsHHInc75to100K",{"$f":"\"MOE \"&DZ115","v":"MOE HHAgeHH45To64yrsHHInc75to100K"},"HHAgeHH45To64yrsHHInc100to125K",{"$f":"\"MOE \"&EB115","v":"MOE HHAgeHH45To64yrsHHInc100to125K"},"HHAgeHH45To64yrsHHInc125to150K",{"$f":"\"MOE \"&ED115","v":"MOE HHAgeHH45To64yrsHHInc125to150K"},"HHAgeHH45To64yrsHHInc150to200K",{"$f":"\"MOE \"&EF115","v":"MOE HHAgeHH45To64yrsHHInc150to200K"},"HHAge45To64yrsHHInc>200K",{"$f":"\"MOE \"&EH115","v":"MOE HHAge45To64yrsHHInc>200K"},"HHAgeHH65yrsorOlder",{"$f":"\"MOE \"&EJ115","v":"MOE HHAgeHH65yrsorOlder"},"HHAgeHH65yrsorOlderHHInc<10K",{"$f":"\"MOE \"&EL115","v":"MOE HHAgeHH65yrsorOlderHHInc<10K"},"HHAgeHH65yrsorOlderHHInc10to15K",{"$f":"\"MOE \"&EN115","v":"MOE HHAgeHH65yrsorOlderHHInc10to15K"},"HHAgeHH65yrsorOlderHHInc15to20K",{"$f":"\"MOE \"&EP115","v":"MOE HHAgeHH65yrsorOlderHHInc15to20K"},"HHAgeHH65yrsorOlderHHInc20to25K",{"$f":"\"MOE \"&ER115","v":"MOE HHAgeHH65yrsorOlderHHInc20to25K"},"HHAgeHH65yrsorOlderHHInc25to30K",{"$f":"\"MOE \"&ET115","v":"MOE HHAgeHH65yrsorOlderHHInc25to30K"},"HHAgeHH65yrsorOlderHHInc30to35K",{"$f":"\"MOE \"&EV115","v":"MOE HHAgeHH65yrsorOlderHHInc30to35K"},"HHAgeHH65yrsorOlderHHInc35to40K",{"$f":"\"MOE \"&EX115","v":"MOE HHAgeHH65yrsorOlderHHInc35to40K"},"HHAgeHH65yrsorOlderHHInc40to45K",{"$f":"\"MOE \"&EZ115","v":"MOE HHAgeHH65yrsorOlderHHInc40to45K"},"HHAgeHH65yrsorOlderHHInc45to50K",{"$f":"\"MOE \"&FB115","v":"MOE HHAgeHH65yrsorOlderHHInc45to50K"},"HHAgeHH65yrsorOlderHHInc50to60K",{"$f":"\"MOE \"&FD115","v":"MOE HHAgeHH65yrsorOlderHHInc50to60K"},"HHAgeHH65yrsorOlderHHInc60to75K",{"$f":"\"MOE \"&FF115","v":"MOE HHAgeHH65yrsorOlderHHInc60to75K"},"HHAgeHH65yrsorOlderHHInc75to100K",{"$f":"\"MOE \"&FH115","v":"MOE HHAgeHH65yrsorOlderHHInc75to100K"},"HHAgeHH65yrsorOlderHHInc100to125K",{"$f":"\"MOE \"&FJ115","v":"MOE HHAgeHH65yrsorOlderHHInc100to125K"},"HHAgeHH65yrsorOlderHHInc125to150K",{"$f":"\"MOE \"&FL115","v":"MOE HHAgeHH65yrsorOlderHHInc125to150K"},"HHAgeHH65yrsorOlderHHInc150to200K",{"$f":"\"MOE \"&FN115","v":"MOE HHAgeHH65yrsorOlderHHInc150to200K"},"HHAge65yrsorOlderHHInc>200K",{"$f":"\"MOE \"&FP115","v":"MOE HHAge65yrsorOlderHHInc>200K"},"MedianHHInc",{"$f":"\"MOE \"&FR115","v":"MOE MedianHHInc"},"HH under 25 years",{"$f":"\"MOE \"&FT115","v":"MOE HH under 25 years"},"Householder 25 to 44 years",{"$f":"\"MOE \"&FV115","v":"MOE Householder 25 to 44 years"},"Householder 45 to 64 years",{"$f":"\"MOE \"&FX115","v":"MOE Householder 45 to 64 years"},"Householder 65 years and over",{"$f":"\"MOE \"&FZ115","v":"MOE Householder 65 years and over"}]
[{"$f":"VLOOKUP(DropDownList!$B$47,CntyQryCensus!$A$510:$DA$522,A$1)","v":"Barrington"},3183,200,53,82,30,36,31,34,147,136,157,136,109,101,53,84,109,68,18,29,121,77,394,168,419,168,405,134,269,124,531,198,337,143,3183,200,19,29,0,16,0,16,0,16,0,16,19,29,0,16,0,16,0,16,0,16,0,16,0,16,0,16,0,16,0,16,0,16,0,16,970,153,0,16,0,16,0,16,0,16,0,16,27,40,0,16,22,36,0,16,0,16,145,124,165,134,203,105,132,106,233,135,43,49,1673,215,53,82,13,22,31,34,107,119,25,31,45,70,53,84,67,56,0,16,76,62,161,86,184,87,202,91,120,103,279,149,257,123,521,137,0,16,17,28,0,16,40,65,113,124,37,44,0,16,20,34,18,29,45,42,88,79,70,54,0,16,17,28,19,32,37,53,92596,21054,"-","**",120343,21125,105867,32168,54922,30503,1404,301.14448359549937,1576,302.69456552769492,1934,291.73104051506073,2575,287.70297183032363,1736,234,1271,194.164878389476,518,141,95,56]
[]
["Number of Households by Income"]
["NAME","HHIncLessThn10k",{"$f":"\"MOE \"&B119","v":"MOE HHIncLessThn10k"},"HHInc10to15K",{"$f":"\"MOE \"&D119","v":"MOE HHInc10to15K"},"HHInc15to25K",{"$f":"\"MOE \"&F119","v":"MOE HHInc15to25K"},"HHInc25to35K",{"$f":"\"MOE \"&H119","v":"MOE HHInc25to35K"},"HHInc35to50K",{"$f":"\"MOE \"&J119","v":"MOE HHInc35to50K"},"HHInc50to75K",{"$f":"\"MOE \"&L119","v":"MOE HHInc50to75K"},"HHInc75to100K",{"$f":"\"MOE \"&N119","v":"MOE HHInc75to100K"},"HHInc100to150K",{"$f":"\"MOE \"&P119","v":"MOE HHInc100to150K"},"HHInc150to200K",{"$f":"\"MOE \"&R119","v":"MOE HHInc150to200K"},"HHIncOver200K",{"$f":"\"MOE \"&T119","v":"MOE HHIncOver200K"}]
[{"$f":"VLOOKUP(DropDownList!$B$47,CntyQryCensus!$A$510:$DA$522,A$1)","v":"Barrington"},49,76,137,122,232,173.25414857947845,179,112.2007130102122,303,161.94443491518936,421,156.26259949200897,468,218,683,198.07069445023916,564,224,270,127,533,149,637,143,397,109,163,71,186,95,27,25,null,null,null,null,null,null,null,null,null,null,null,null,null,null,null,null,null,null,null,null,null,null,null,null,null,null,null,null,null,null,null,null,null,null,null,null,null,null,null,null,null,40,80,51,13,20,12,19,104,88,115,65,276,90,254,107,166,59,152,59,206,97,79,43,null,null,null,null,null,null,null,null,null,null,null,null,null,null,"Lee",null,"Esitimate","Margin Of Error",1774,134,null,null,83,74,28,43,92,104.58011283222064,43,49.244289008980523,174,91.586025134842487,256,114.63420083029322,271,92,490,193.9922678871506,225,98,112,70]
[]
[]
["NAME","TotalPop",{"$f":"\"MOE \"&B123","v":"MOE TotalPop"},"Total Individuals living in Poverty",{"$f":"\"MOE \"&D123","v":"MOE Total Individuals living in Poverty"},"Under 5 yrs.",{"$f":"\"MOE \"&F123","v":"MOE Under 5 yrs."},"5 to 17 yrs.",{"$f":"\"MOE \"&H123","v":"MOE 5 to 17 yrs."},"18 to 64 yrs.",{"$f":"\"MOE \"&J123","v":"MOE 18 to 64 yrs."},"65 to 74 yrs.",{"$f":"\"MOE \"&L123","v":"MOE 65 to 74 yrs."},"75 yrs. & Over",{"$f":"\"MOE \"&N123","v":"MOE 75 yrs. & Over"},"Total Individuals  Not living Poverty",{"$f":"\"MOE \"&P123","v":"MOE Total Individuals  Not living Poverty"},"Under 5 yrs.",{"$f":"\"MOE \"&R123","v":"MOE Under 5 yrs."},"5 to 17 yrs.",{"$f":"\"MOE \"&T123","v":"MOE 5 to 17 yrs."},"18 to 64 yrs.",{"$f":"\"MOE \"&V123","v":"MOE 18 to 64 yrs."},"65 to 74 yrs.",{"$f":"\"MOE \"&X123","v":"MOE 65 to 74 yrs."},"75 yrs. & Over",{"$f":"\"MOE \"&Z123","v":"MOE 75 yrs. & Over"},"Total HH",{"$f":"\"MOE \"&AB123","v":"MOE Total HH"},"Total Households Below Poverty",{"$f":"\"MOE \"&AD123","v":"MOE Total Households Below Poverty"},"Family Households in Poverty",{"$f":"\"MOE \"&AF123","v":"MOE Family Households in Poverty"},"Married Couple Fam HH",{"$f":"\"MOE \"&AH123","v":"MOE Married Couple Fam HH"},"Other Family",{"$f":"\"MOE \"&AJ123","v":"MOE Other Family"},"Male Head of Family HH no wife",{"$f":"\"MOE \"&AL123","v":"MOE Male Head of Family HH no wife"},"Female Head of Family HH no husband",{"$f":"\"MOE \"&AN123","v":"MOE Female Head of Family HH no husband"},"Non-Family HH",{"$f":"\"MOE \"&AP123","v":"MOE Non-Family HH"},"Non-Family Male HH",{"$f":"\"MOE \"&AR123","v":"MOE Non-Family Male HH"},"Non-Family Female HH",{"$f":"\"MOE \"&AT123","v":"MOE Non-Family Female HH"},"Total Households at or Above Poverty",{"$f":"\"MOE \"&AV123","v":"MOE Total Households at or Above Poverty"},"Family Households above Poverty",{"$f":"\"MOE \"&AX123","v":"MOE Family Households above Poverty"},"Married Couple Fam HH",{"$f":"\"MOE \"&AZ123","v":"MOE Married Couple Fam HH"},"Other Family",{"$f":"\"MOE \"&BB123","v":"MOE Other Family"},"Male Head of Family HH no wife",{"$f":"\"MOE \"&BD123","v":"MOE Male Head of Family HH no wife"},"Female Head of Family HH no husband",{"$f":"\"MOE \"&BF123","v":"MOE Female Head of Family HH no husband"},"Non-Family HH",{"$f":"\"MOE \"&BH123","v":"MOE Non-Family HH"},"Non-Family Male HH",{"$f":"\"MOE \"&BJ123","v":"MOE Non-Family Male HH"},"Non-Family Female HH",{"$f":"\"MOE \"&BL123","v":"MOE Non-Family Female HH"},"Married Couple with Children Below Poverty",{"$f":"\"MOE \"&BN123","v":"MOE Married Couple with Children Below Poverty"},"Male HH with children below poverty",{"$f":"\"MOE \"&BP123","v":"MOE Male HH with children below poverty"},"Female HH with children below poverty",{"$f":"\"MOE \"&BR123","v":"MOE Female HH with children below poverty"},"Married Couple with Children At or Above Poverty",{"$f":"\"MOE \"&BT123","v":"MOE Married Couple with Children At or Above Poverty"},"Male HH with children at or above poverty",{"$f":"\"MOE \"&BV123","v":"MOE Male HH with children at or above poverty"},"Female HH with children at or above poverty",{"$f":"\"MOE \"&BX123","v":"MOE Female HH with children at or above poverty"}]
[{"$f":"VLOOKUP(DropDownList!$B$47,CntyQryCensus!$A$510:$DA$522,A$1)","v":"Barrington"},8979,19,466,241,0,80.603970125546539,10,48.867166891482462,439,203.31502649828911,17,32.249030993194197,0,22.627416997969522,8513,244,598,211.45448682872635,1373,339.8867458433765,5790,626.18048516382237,544,181.61773041198373,208,135.09256086106296,215,144,84,88,84,88,84,88,0,16,0,16,0,16,131,113,67,86,64,81,3091,254,2302,194,2009,215,293,160,97,94,196,125,789,271,432,189,357,181,0,16,0,16,0,16,965,176,75,84,77,80]
[]
["Household Income By Tenure"]
["NAME","TotalOccHU",{"$f":"\"MOE \"&B127","v":"MOE TotalOccHU"},"OwnOccHU",{"$f":"\"MOE \"&D127","v":"MOE OwnOccHU"},"OOHUInc<5K",{"$f":"\"MOE \"&F127","v":"MOE OOHUInc<5K"},"OOHUInc5to10K",{"$f":"\"MOE \"&H127","v":"MOE OOHUInc5to10K"},"OOHUInc10to15K",{"$f":"\"MOE \"&J127","v":"MOE OOHUInc10to15K"},"OOHUInc15to20K",{"$f":"\"MOE \"&L127","v":"MOE OOHUInc15to20K"},"OOHUInc20to25K",{"$f":"\"MOE \"&N127","v":"MOE OOHUInc20to25K"},"OOHUInc25to35K",{"$f":"\"MOE \"&P127","v":"MOE OOHUInc25to35K"},"OOHUInc35to50K",{"$f":"\"MOE \"&R127","v":"MOE OOHUInc35to50K"},"OOHUInc50to75K",{"$f":"\"MOE \"&T127","v":"MOE OOHUInc50to75K"},"OOHUInc75to100K",{"$f":"\"MOE \"&V127","v":"MOE OOHUInc75to100K"},"OOHUInc100to150K",{"$f":"\"MOE \"&X127","v":"MOE OOHUInc100to150K"},"OOHUInc>150K",{"$f":"\"MOE \"&Z127","v":"MOE OOHUInc>150K"},"RentOccHU",{"$f":"\"MOE \"&AB127","v":"MOE RentOccHU"},"ROHUInc<5K",{"$f":"\"MOE \"&AD127","v":"MOE ROHUInc<5K"},"ROHUInc5to10K",{"$f":"\"MOE \"&AF127","v":"MOE ROHUInc5to10K"},"ROHUInc10to15K",{"$f":"\"MOE \"&AH127","v":"MOE ROHUInc10to15K"},"ROHUInc15to20K",{"$f":"\"MOE \"&AJ127","v":"MOE ROHUInc15to20K"},"ROHUInc20to25K",{"$f":"\"MOE \"&AL127","v":"MOE ROHUInc20to25K"},"ROHUInc25to35K",{"$f":"\"MOE \"&AN127","v":"MOE ROHUInc25to35K"},"ROHUInc35to50K",{"$f":"\"MOE \"&AP127","v":"MOE ROHUInc35to50K"},"ROHUInc50to75K",{"$f":"\"MOE \"&AR127","v":"MOE ROHUInc50to75K"},"ROHUInc75to100K",{"$f":"\"MOE \"&AT127","v":"MOE ROHUInc75to100K"},"ROHUInc100to150K",{"$f":"\"MOE \"&AV127","v":"MOE ROHUInc100to150K"},"ROHUInc>150K",{"$f":"\"MOE \"&AX127","v":"MOE ROHUInc>150K"},"Total OCC HUInc<5K",{"$f":"\"MOE \"&AZ127","v":"MOE Total OCC HUInc<5K"},"Total OCC HUInc5to10K",{"$f":"\"MOE \"&BB127","v":"MOE Total OCC HUInc5to10K"},"Total OCC HUInc10to15K",{"$f":"\"MOE \"&BD127","v":"MOE Total OCC HUInc10to15K"},"Total OCC HUInc15to20K",{"$f":"\"MOE \"&BF127","v":"MOE Total OCC HUInc15to20K"},"Total OCC HUInc20to25K",{"$f":"\"MOE \"&BH127","v":"MOE Total OCC HUInc20to25K"},"Total OCC HUInc25to35K",{"$f":"\"MOE \"&BJ127","v":"MOE Total OCC HUInc25to35K"},"Total OCC HUInc35to50K",{"$f":"\"MOE \"&BL127","v":"MOE Total OCC HUInc35to50K"},"Total OCC HUInc50to75K",{"$f":"\"MOE \"&BN127","v":"MOE Total OCC HUInc50to75K"},"Total OCC HUInc75to100K",{"$f":"\"MOE \"&BP127","v":"MOE Total OCC HUInc75to100K"},"Total OCC HUInc100to150K",{"$f":"\"MOE \"&BR127","v":"MOE Total OCC HUInc100to150K"},"Total OCC HUInc>150K",{"$f":"\"MOE \"&BT127","v":"MOE Total OCC HUInc>150K"},"MedHHInc",{"$f":"\"MOE \"&BV127","v":"MOE MedHHInc"},"MedOwnOccHHInc",{"$f":"\"MOE \"&BX127","v":"MOE MedOwnOccHHInc"},"MedRentOccHHInc",{"$f":"\"MOE \"&BZ127","v":"MOE MedRentOccHHInc"}]
[{"$f":"VLOOKUP(DropDownList!$B$47,CntyQryCensus!$A$510:$DA$522,A$1)","v":"Barrington"},3306,247,3015,292,49,76,0,16,89,96,136,124,83,119,109,98,303,155,385,151,362,203,665,195,834,225,291,158,0,16,0,16,48,77,0,16,13,23,70,72,0,16,36,40,106,98,18,30,0,16,49,77.665951355790398,0,22.627416997969522,137,123.06502346320826,136,125.02799686470227,96,121.2023102090055,179,121.60592090848209,303,155.82361823549087,421,156.20819440733575,468,225.41739063346466,683,197.29419656948858,834,225.56817151362469,86755,13562,93365,37171,54766,46564]
[]
["Population Data"]
["NAME","Total Population","MOE Total Population","Under 15 Years","MOE Under 15 yrs.","15 to 24 yrs.","MOE 15 to 24 yrs.","25 to 34 yrs.","MOE 25 to 34 yrs.","35 to 44 yrs.","MOE 35 to 44 yrs.","45 to 54 yrs.","MOE 45 to 54 yrs.","55 to 64 yrs.","MOE 55 to 64 yrs.","65 to 74 yrs.","MOE 65 to 74 yrs.","Over 74 yrs. ","MOE Over 74 yrs. ","TotalHH","MOE TotalHH","FamilyHH","MOE FamilyHH","MarriedFamilyHH","MOE MarriedFamilyHH","SingleFamilyHH","MOE SingleFamilyHH","Sfamily-MaleHH","MOE Sfamily-MaleHH","Sfamily-FemaleHH","MOE Sfamily-FemaleHH","NonFamilyHH","MOE NonFamilyHH","NonFamilyHH-LivingAlone","MOE NonFamilyHH-LivingAlone","NonFamilyHH-NotLivingAlone","MOE NonFamilyHH-NotLivingAlone","PopRaceWhite","MOE PopRaceWhite","PopRaceBlack","MOE PopRaceBlack","PopRaceAmerican Indian","MOE PopRaceAmerican Indian","PopRaceAsian &Pacific Is.","MOE PopRaceAsian &Pacific Is.","PopRaceOther*","MOE PopRaceOther*","PopRaceHispanic or Latino:","MOE PopRaceHispanic or Latino:","MedianAgeTotalPop","MOE MedianAgeTotalPop","MedianAgeMale","MOE MedianAgeMale","MedianAgeFemale","MOE MedianAgeFemale","AvgHHSizeTotal","MOE AvgHHSizeTotal","AvgHHSizeFamilyHH","MOE AvgHHSizeFamilyHH","AvgHHSizeNonFamilyHH","MOE AvgHHSizeNonFamilyHH"]
[{"$f":"VLOOKUP(DropDownList!$B$47,CntyQryCensus!$A$510:$DA$522,A$1)","v":"Barrington"},9063,31,1942,397.47452748572454,957,306.67409411295245,892,253.49161721840034,1491,311.94550806190495,1452,349.7070202326513,1528,293.1961800569714,497,155.39305003763843,304,160.77002208123255,3183,200,2447,204,2044,209,403,153,67,54,336,140,736,242,509,213,227,115,8653,313,0,16,0,16,257,291.4395306062649,73,75.709972922990801,80,95,39.6,3.4,38.200000000000003,3.6,40.799999999999997,3.2,2.8473138548539114,0.18,3.2856559051900285,0.30423987118860091,1.3899456521739131,0.63928566123211095,null,null,null,null,null,null,null,null,null,null,null,null,null,null,null,null,null,null,null,null,null,null,null,null,null,null,null,null,null,null,null,null,null,null,null,null,null,null,null,null,null,null,null,null,29,535,534]
[]
["Nativity and Prior Place of Residence"]
["NAME","TotalPop",{"$f":"\"MOE \"&B135","v":"MOE TotalPop"},"Native:",{"$f":"\"MOE \"&D135","v":"MOE Native:"},"NatBornInStateOfResidence",{"$f":"\"MOE \"&F135","v":"MOE NatBornInStateOfResidence"},"Born in other state in the United States:",{"$f":"\"MOE \"&H135","v":"MOE Born in other state in the United States:"},"Northeast",{"$f":"\"MOE \"&J135","v":"MOE Northeast"},"Midwest",{"$f":"\"MOE \"&L135","v":"MOE Midwest"},"South",{"$f":"\"MOE \"&N135","v":"MOE South"},"West",{"$f":"\"MOE \"&P135","v":"MOE West"},"Born outside the United States:",{"$f":"\"MOE \"&R135","v":"MOE Born outside the United States:"},"Puerto Rico",{"$f":"\"MOE \"&T135","v":"MOE Puerto Rico"},"U.S. Island Areas",{"$f":"\"MOE \"&V135","v":"MOE U.S. Island Areas"},"Born abroad of American parent(s)",{"$f":"\"MOE \"&X135","v":"MOE Born abroad of American parent(s)"},"Foreign born:",{"$f":"\"MOE \"&Z135","v":"MOE Foreign born:"},"Naturalized U.S. citizen",{"$f":"\"MOE \"&AB135","v":"MOE Naturalized U.S. citizen"},"Not a U.S. citizen",{"$f":"\"MOE \"&AD135","v":"MOE Not a U.S. citizen"},"CurrentResidenceTotal:",{"$f":"\"MOE \"&AF135","v":"MOE CurrentResidenceTotal:"},"SameHouse:",{"$f":"\"MOE \"&AH135","v":"MOE SameHouse:"},"DifferentHouse:",{"$f":"\"MOE \"&AJ135","v":"MOE DifferentHouse:"},"DiffHouseInNH",{"$f":"\"MOE \"&AL135","v":"MOE DiffHouseInNH"},"DiffHouseInNHSameCnty",{"$f":"\"MOE \"&AN135","v":"MOE DiffHouseInNHSameCnty"},"DiffHouseInNHDiffCnty",{"$f":"\"MOE \"&AP135","v":"MOE DiffHouseInNHDiffCnty"},"DiffHouseInDiffState",{"$f":"\"MOE \"&AR135","v":"MOE DiffHouseInDiffState"},"DiffHouseInElsewhere",{"$f":"\"MOE \"&AT135","v":"MOE DiffHouseInElsewhere"}]
[{"$f":"VLOOKUP(DropDownList!$B$47,CntyQryCensus!$A$510:$DA$522,A$1)","v":"Barrington"},9063,31,8781,221,4980,522,3747,513,2839,564,217,107,318,149,373,246,54,54,0,16,0,16,54,54,282,221,207,212,75,90,9004,69,8305,257,699,284.74374444401758,544,259.09457732650446,350,203,194,161,103,82,52,85]
[]
["School Enrollment - Education"]
["NAME","Total Pop 3 Years and Older","MOE Total Pop 3 Years and Older","SchEnrlPop3yrOver",{"$f":"\"MOE \"&D139","v":"MOE SchEnrlPop3yrOver"},"TotalEnrollNursy&Kinder",{"$f":"\"MOE \"&F139","v":"MOE TotalEnrollNursy&Kinder"},"NurserSchEnrl",{"$f":"\"MOE \"&H139","v":"MOE NurserSchEnrl"},"KinderSchEnrl",{"$f":"\"MOE \"&J139","v":"MOE KinderSchEnrl"},"ElemSchEnrl (1-8)",{"$f":"\"MOE \"&L139","v":"MOE ElemSchEnrl (1-8)"},"HighSchEnrl(9-12)",{"$f":"\"MOE \"&N139","v":"MOE HighSchEnrl(9-12)"},"TotalElementry&HSEnroll",{"$f":"\"MOE \"&P139","v":"MOE TotalElementry&HSEnroll"},"CollGradSchEnrl",{"$f":"\"MOE \"&R139","v":"MOE CollGradSchEnrl"},"PopNotEnrolled","MOE PopNotEnrolled","Pop25yrsOver",{"$f":"\"MOE \"&V139","v":"MOE Pop25yrsOver"},"EduAtain<9grd",{"$f":"\"MOE \"&X139","v":"MOE EduAtain<9grd"},"EduAtainHSnoDip",{"$f":"\"MOE \"&Z139","v":"MOE EduAtainHSnoDip"},"EduAtainHSgrad",{"$f":"\"MOE \"&AB139","v":"MOE EduAtainHSgrad"},"EduAtainCollNoDeg",{"$f":"\"MOE \"&AD139","v":"MOE EduAtainCollNoDeg"},"EduAtainAssocDeg",{"$f":"\"MOE \"&AF139","v":"MOE EduAtainAssocDeg"},"EduAtainBachDeg",{"$f":"\"MOE \"&AH139","v":"MOE EduAtainBachDeg"},"EduAtainGradProfDeg",{"$f":"\"MOE \"&AJ139","v":"MOE EduAtainGradProfDeg"}]
[{"$f":"VLOOKUP(DropDownList!$B$47,CntyQryCensus!$A$510:$DA$522,A$1)","v":"Barrington"},30206,277,6357,453,924,246.90281488877361,97,82,0,16,2413,333.90118298682319,1032,209,3445,393.91750405383107,1988,368.81567211820055,23849,428,22388,542,319,139.79628035108803,972,230.77911517292893,4724,426.75168423803552,3878,458.99237466432925,1995,342.94751785076386,6373,610.28272136772807,4048,464.47712537863475]
[]
["Occupied Owner Housing Value"]
["NAME","OwnerOccHU","MOE OwnerOccHU","AllOOHU<10k","MOE AllOOHU<10k","AllOOHU10to15k","MOE AllOOHU10to15k","AllOOHU15to20k","MOE AllOOHU15to20k","AllOOHU20to25k","MOE AllOOHU20to25k","AllOOHU25to30k","MOE AllOOHU25to30k","AllOOHU30to35k","MOE AllOOHU30to35k","AllOOHU35to40k","MOE AllOOHU35to40k","AllOOHU40to50k","MOE AllOOHU40to50k","AllOOHU50to60k","MOE AllOOHU50to60k","AllOOHU60to70k","MOE AllOOHU60to70k","AllOOHU70to80k","MOE AllOOHU70to80k","AllOOHU80to90k","MOE AllOOHU80to90k","AllOOHU90to100k","MOE AllOOHU90to100k","AllOOHU100to125k","MOE AllOOHU100to125k","AllOOHU125to150k","MOE AllOOHU125to150k","AllOOHU150to175k","MOE AllOOHU150to175k","AllOOHU175to200k","MOE AllOOHU175to200k","AllOOHU200to250k","MOE AllOOHU200to250k","AllOOHU250to300k","MOE AllOOHU250to300k","AllOOHU300to400k","MOE AllOOHU300to400k","AllOOHU400to500k","MOE AllOOHU400to500k","AllOOHU500to750k","MOE AllOOHU500to750k","AllOOHU750to1000k","MOE AllOOHU750to1000k","AllOOHU1000kmore","MOE AllOOHU1000kmore","MedianOwnOCCHomeValue","MOE MedianOwnOCCHomeValue","OnwerOccHsU","MOE OnwerOccHsU","OwnerCosts>20PctHHInc","MOE OwnerCosts>20PctHHInc","OwnerCosts20to29.9PctHHInc","MOE OwnerCosts20to29.9PctHHInc","OwnerCosts<30PctHHInc","MOE OwnerCosts<30PctHHInc","OwnerCosts>30PctHHInc","MOE OwnerCosts>30PctHHInc","OwnerCosts30to34.9PctHHInc","MOE OwnerCosts30to34.9PctHHInc","OwnerCosts<35PctHHInc","MOE OwnerCosts<35PctHHInc","OwnerCosts>35PctHHInc","MOE OwnerCosts>35PctHHInc","OwnerCosts>50PctHHInc","MOE OwnerCosts>50PctHHInc","OwnerCostsPctNotcomputed","MOE OwnerCostsPctNotcomputed","OwnerOHUHhInc<20k","MOE OwnerOHUHhInc<20k","OwnerOHUHhInc<20kHCosts<20pct","MOE OwnerOHUHhInc<20kHCosts<20pct","OwnerOHUHhInc<20kHCosts20to29pct","MOE OwnerOHUHhInc<20kHCosts20to29pct","OwnerOHUHhInc>20kHCosts30pct","MOE OwnerOHUHhInc>20kHCosts30pct","OwnerOHUHhInc20kTo34999","MOE OwnerOHUHhInc20kTo34999","OwnerOHUHhInc20kTo34999HCosts<20pct","MOE OwnerOHUHhInc20kTo34999HCosts<20pct","OwnerOHUHhInc20kTo34999HCosts20to29pct","MOE OwnerOHUHhInc20kTo34999HCosts20to29pct","OwnerOHUHhInc20kTo34999HCosts30pct","MOE OwnerOHUHhInc20kTo34999HCosts30pct","OwnerOHUHhInc35kTo49999","MOE OwnerOHUHhInc35kTo49999","OwnerOHUHhInc35kTo49999HCosts<20pct","MOE OwnerOHUHhInc35kTo49999HCosts<20pct","OwnerOHUHhInc35kTo49999HCosts20to29pct","MOE OwnerOHUHhInc35kTo49999HCosts20to29pct","OwnerOHUHhInc35kTo49999HCosts30pct","MOE OwnerOHUHhInc35kTo49999HCosts30pct","OwnerOHUHhInc50kTo74999","MOE OwnerOHUHhInc50kTo74999","OwnerOHUHhInc50kTo74999HCosts<20pct","MOE OwnerOHUHhInc50kTo74999HCosts<20pct","OwnerOHUHhInc50kTo74999HCosts20to29pct","MOE OwnerOHUHhInc50kTo74999HCosts20to29pct","OwnerOHUHhInc50kTo74999HCosts30pct","MOE OwnerOHUHhInc50kTo74999HCosts30pct","OwnerOHUHhInc>75000","MOE OwnerOHUHhInc>75000","OwnerOHUHhInc>75000HCosts<20pct","MOE OwnerOHUHhInc>75000HCosts<20pct","OwnerOHUHhInc>75000HCosts20to29pct","MOE OwnerOHUHhInc>75000HCosts20to29pct","OwnerOHUHhInc>75000HCosts30pct","MOE OwnerOHUHhInc>75000HCosts30pct","ZeroOrNegativeIncome","MOE ZeroOrNegativeIncome"]
[{"$f":"VLOOKUP(DropDownList!$B$47,CntyQryCensus!$A$510:$DA$522,A$1)","v":"Barrington"},3015,292,17,28,21,35,0,16,48,78,13,22,67,76,0,16,72,88,66,69,86,123,0,16,0,16,0,16,82,81,29,50,158,133,88,112,461,213,497,175,800,224,387,215,91,74,32,51,0,16,0,16,0,16,280100,21008,3015,292,1639,363.01101911650011,538,191.50718002205556,2177,410.42904380660002,838,289.90860628825766,201,140.91131963046828,2378,433.94469693729405,637,253.35942848056789,397,199.52944644838766,0,22.627416997969522,274,190,0,16,0,16,274,190,192,155,13,21,18,29,161,142,303,155,59,59,83,87,161,137,385,151,214,116,64,62,107,83,1861,214,1353,247,373,153,135,103,0,16]
[]
["Occupied Rental Housing Value"]
["NAME","Estimate; Total:","Margin of Error; Total:","Estimate; Total: - Less than $10,000","Margin of Error; Total: - Less than $10,000","Estimate; Total: - $10,000 to $14,999","Margin of Error; Total: - $10,000 to $14,999","Estimate; Total: - $15,000 to $19,999","Margin of Error; Total: - $15,000 to $19,999","Estimate; Total: - $20,000 to $24,999","Margin of Error; Total: - $20,000 to $24,999","Estimate; Total: - $25,000 to $29,999","Margin of Error; Total: - $25,000 to $29,999","Estimate; Total: - $30,000 to $34,999","Margin of Error; Total: - $30,000 to $34,999","Estimate; Total: - $35,000 to $39,999","Margin of Error; Total: - $35,000 to $39,999","Estimate; Total: - $40,000 to $49,999","Margin of Error; Total: - $40,000 to $49,999","Estimate; Total: - $50,000 to $59,999","Margin of Error; Total: - $50,000 to $59,999","Estimate; Total: - $60,000 to $69,999","Margin of Error; Total: - $60,000 to $69,999","Estimate; Total: - $70,000 to $79,999","Margin of Error; Total: - $70,000 to $79,999","Estimate; Total: - $80,000 to $89,999","Margin of Error; Total: - $80,000 to $89,999","Estimate; Total: - $90,000 to $99,999","Margin of Error; Total: - $90,000 to $99,999","Estimate; Total: - $100,000 to $124,999","Margin of Error; Total: - $100,000 to $124,999","Estimate; Total: - $125,000 to $149,999","Margin of Error; Total: - $125,000 to $149,999","Estimate; Total: - $150,000 to $174,999","Margin of Error; Total: - $150,000 to $174,999","Estimate; Total: - $175,000 to $199,999","Margin of Error; Total: - $175,000 to $199,999","Estimate; Total: - $200,000 to $249,999","Margin of Error; Total: - $200,000 to $249,999","Estimate; Total: - $250,000 to $299,999","Margin of Error; Total: - $250,000 to $299,999","Estimate; Total: - $300,000 to $399,999","Margin of Error; Total: - $300,000 to $399,999","Estimate; Total: - $400,000 to $499,999","Margin of Error; Total: - $400,000 to $499,999","Estimate; Total: - $500,000 to $749,999","Margin of Error; Total: - $500,000 to $749,999","Estimate; Total: - $750,000 to $999,999","Margin of Error; Total: - $750,000 to $999,999","Estimate; Total: - $1,000,000 to $1,499,999","Margin of Error; Total: - $1,000,000 to $1,499,999","Estimate; Total: - $1,500,000 to $1,999,999","Margin of Error; Total: - $1,500,000 to $1,999,999","Estimate; Total: - $2,000,000 or more","Margin of Error; Total: - $2,000,000 or more","MedianOwnOCCHomeValue","MOE MedianOwnOCCHomeValue","OnwerOccHsU","MOE OnwerOccHsU","OwnerCosts>20PctHHInc","MOE OwnerCosts>20PctHHInc","OwnerCosts20to29.9PctHHInc","MOE OwnerCosts20to29.9PctHHInc","OwnerCosts<30PctHHInc","MOE OwnerCosts<30PctHHInc","OwnerCosts>30PctHHInc","MOE OwnerCosts>30PctHHInc","OwnerCosts30to34.9PctHHInc","MOE OwnerCosts30to34.9PctHHInc","OwnerCosts<35PctHHInc","MOE OwnerCosts<35PctHHInc","OwnerCosts>35PctHHInc","MOE OwnerCosts>35PctHHInc","OwnerCosts>50PctHHInc","MOE OwnerCosts>50PctHHInc","OwnerCostsPctNotcomputed","MOE OwnerCostsPctNotcomputed","OwnerOHUHhInc<20k","MOE OwnerOHUHhInc<20k","OwnerOHUHhInc<20kHCosts<20pct","MOE OwnerOHUHhInc<20kHCosts<20pct","OwnerOHUHhInc<20kHCosts20to29pct","MOE OwnerOHUHhInc<20kHCosts20to29pct","OwnerOHUHhInc>20kHCosts30pct","MOE OwnerOHUHhInc>20kHCosts30pct","OwnerOHUHhInc20kTo34999","MOE OwnerOHUHhInc20kTo34999","OwnerOHUHhInc20kTo34999HCosts<20pct","MOE OwnerOHUHhInc20kTo34999HCosts<20pct","OwnerOHUHhInc20kTo34999HCosts20to29pct","MOE OwnerOHUHhInc20kTo34999HCosts20to29pct","OwnerOHUHhInc20kTo34999HCosts30pct","MOE OwnerOHUHhInc20kTo34999HCosts30pct","OwnerOHUHhInc35kTo49999","MOE OwnerOHUHhInc35kTo49999","OwnerOHUHhInc35kTo49999HCosts<20pct","MOE OwnerOHUHhInc35kTo49999HCosts<20pct","OwnerOHUHhInc35kTo49999HCosts20to29pct","MOE OwnerOHUHhInc35kTo49999HCosts20to29pct","OwnerOHUHhInc35kTo49999HCosts30pct","MOE OwnerOHUHhInc35kTo49999HCosts30pct","OwnerOHUHhInc50kTo74999","MOE OwnerOHUHhInc50kTo74999","OwnerOHUHhInc50kTo74999HCosts<20pct","MOE OwnerOHUHhInc50kTo74999HCosts<20pct","OwnerOHUHhInc50kTo74999HCosts20to29pct","MOE OwnerOHUHhInc50kTo74999HCosts20to29pct","OwnerOHUHhInc50kTo74999HCosts30pct","MOE OwnerOHUHhInc50kTo74999HCosts30pct","OwnerOHUHhInc>75000","MOE OwnerOHUHhInc>75000","OwnerOHUHhInc>75000HCosts<20pct","MOE OwnerOHUHhInc>75000HCosts<20pct","OwnerOHUHhInc>75000HCosts20to29pct","MOE OwnerOHUHhInc>75000HCosts20to29pct","OwnerOHUHhInc>75000HCosts30pct","MOE OwnerOHUHhInc>75000HCosts30pct","ZeroOrNegativeIncome","MOE ZeroOrNegativeIncome"]
[{"$f":"VLOOKUP(DropDownList!$B$47,CntyQryCensus!$A$510:$DA$522,A$1)","v":"Barrington"},279,139,266,138,15,21,0,16,0,16,0,16,0,16,0,16,0,16,0,16,0,16,27,40,0,16,0,16,0,16,0,16,0,16,19,29,0,16,18,30,0,16,151,111,17,26,0,16,19,32,0,16,13,22,1679,145,279,139,0,16,0,16,0,16,0,16,0,16,0,16,0,16,0,16,0,16,0,16,0,16,0,16,0,16,0,16,0,16,0,16,0,16,0,16,106,87,42,46,0,16,0,16,0,16,19,29,0,16,45,70,0,16,0,16,0,16,0,16,0,16,0,16,0,16,0,16,0,16,0,16,85,105,0,16,0,16,0,16,72,104,0,16,0,16,0,16,13,22,69,67,18,30,0,16,34,54,17,26,0,16,0,16,0,16,0,16,19,32,0,16,0,16,19,32,0,16,0,16,0,16,0,16,0,16]
[]
[]
[]
[]
[]
["Occupied Rental Housing Cost Burdern All Incomes"]
["NAME","RntrOccHU","MOE RntrOccHU","RntrOccHUwRent","MOE RntrOccHUwRent","ROHUGRent<100","MOE ROHUGRent<100","ROHUGRent100to149","MOE ROHUGRent100to149","ROHUGRent150to199","MOE ROHUGRent150to199","ROHUGRent200to249","MOE ROHUGRent200to249","ROHUGRent250to299","MOE ROHUGRent250to299","ROHUGRent300to349","MOE ROHUGRent300to349","ROHUGRent350to399","MOE ROHUGRent350to399","ROHUGRent400to449","MOE ROHUGRent400to449","ROHUGRent450to499","MOE ROHUGRent450to499","ROHUGRent500to549","MOE ROHUGRent500to549","ROHUGRent550to599","MOE ROHUGRent550to599","ROHUGRent600to649","MOE ROHUGRent600to649","ROHUGRent650to699","MOE ROHUGRent650to699","ROHUGRent700to749","MOE ROHUGRent700to749","ROHUGRent750to799","MOE ROHUGRent750to799","ROHUGRent800to899","MOE ROHUGRent800to899","ROHUGRent900to999","MOE ROHUGRent900to999","ROHUGRent1000to1249","MOE ROHUGRent1000to1249","ROHUGRent1250to1499","MOE ROHUGRent1250to1499","ROHUGRent1500to1999","MOE ROHUGRent1500to1999","ROHUGRent2000-2499","MOE ROHUGRent2000-2499","ROHUGRent2500-2999","MOE ROHUGRent2500-2999","ROHUGRent3000-3499","MOE ROHUGRent3000-3499","ROHUGRent3500<","MOE ROHUGRent3500<","ROHUNoGRent","MOE ROHUNoGRent","MedianGrossRnt","MOE MedianGrossRnt","H73RenterOccHU","MOE H73RenterOccHU","H73ROHUHhInc<10k","MOE H73ROHUHhInc<10k","H73ROHUHhInc<10kRnt<20pct","MOE H73ROHUHhInc<10kRnt<20pct","H73ROHUHhInc<10kRnt20to25pct","MOE H73ROHUHhInc<10kRnt20to25pct","H73ROHUHhInc<10kRnt25to30pct","MOE H73ROHUHhInc<10kRnt25to30pct","H73ROHUHhInc<10kRnt30to35pct","MOE H73ROHUHhInc<10kRnt30to35pct","H73ROHUHhInc<10kRnt35to39.9","MOE H73ROHUHhInc<10kRnt35to39.9","H73ROHUHhInc<10kRnt40to49.9","MOE H73ROHUHhInc<10kRnt40to49.9","H73ROHUHhInc<10kRnt>50pct","MOE H73ROHUHhInc<10kRnt>50pct","H73ROHUHhInc<10kPctNotComput","MOE H73ROHUHhInc<10kPctNotComput","H73ROHUHhInc10to20k","MOE H73ROHUHhInc10to20k","H73ROHUHhInc10to20kRnt<20pct","MOE H73ROHUHhInc10to20kRnt<20pct","H73ROHUHhInc10to20kRnt20to25pct","MOE H73ROHUHhInc10to20kRnt20to25pct","H73ROHUHhInc10to20kRnt25to30pct","MOE H73ROHUHhInc10to20kRnt25to30pct","H73ROHUHhInc10to20kRnt30to35pct","MOE H73ROHUHhInc10to20kRnt30to35pct","H73ROHUHhInc10to20kRnt35to39.9","MOE H73ROHUHhInc10to20kRnt35to39.9","H73ROHUHhInc10to20kRnt40to49.9","MOE H73ROHUHhInc10to20kRnt40to49.9","H73ROHUHhInc10to20kRnt>50pct","MOE H73ROHUHhInc10to20kRnt>50pct","H73ROHUHhInc10to20kRntPctNC","MOE H73ROHUHhInc10to20kRntPctNC","H73ROHUHhInc20to34.9k","MOE H73ROHUHhInc20to34.9k","H73ROHUHhInc20to34.9kRnt<20pct","MOE H73ROHUHhInc20to34.9kRnt<20pct","H73ROHUHhInc20to34.9kRnt20to25pct","MOE H73ROHUHhInc20to34.9kRnt20to25pct","H73ROHUHhInc20to34.9kRnt25to30pct","MOE H73ROHUHhInc20to34.9kRnt25to30pct","H73ROHUHhInc20to34.9kRnt30to35pct","MOE H73ROHUHhInc20to34.9kRnt30to35pct","H73ROHUHhInc20to34.9kRnt35to39.9","MOE H73ROHUHhInc20to34.9kRnt35to39.9","H73ROHUHhInc20to34.9kRnt40to49.9","MOE H73ROHUHhInc20to34.9kRnt40to49.9","H73ROHUHhInc20to34.9kRnt>50pct","MOE H73ROHUHhInc20to34.9kRnt>50pct","H73ROHUHhInc20to34.9kRntPctNC","MOE H73ROHUHhInc20to34.9kRntPctNC","H73ROHUHhInc35to49.9k","MOE H73ROHUHhInc35to49.9k","H73ROHUHhInc35to49.9kRnt<20pct","MOE H73ROHUHhInc35to49.9kRnt<20pct","H73ROHUHhInc35to49.9kRnt20to25pct","MOE H73ROHUHhInc35to49.9kRnt20to25pct","H73ROHUHhInc35to49.9kRnt25to30pct","MOE H73ROHUHhInc35to49.9kRnt25to30pct","H73ROHUHhInc35to49.9kRnt30to35pct","MOE H73ROHUHhInc35to49.9kRnt30to35pct","H73ROHUHhInc35to49.9kRnt35to39.9","MOE H73ROHUHhInc35to49.9kRnt35to39.9","H73ROHUHhInc35to49.9kRnt40to49.9","MOE H73ROHUHhInc35to49.9kRnt40to49.9","H73ROHUHhInc35to49.9kRnt>50pct","MOE H73ROHUHhInc35to49.9kRnt>50pct","H73ROHUHhInc35to49.9kRntPctNC","MOE H73ROHUHhInc35to49.9kRntPctNC","H73ROHUHhInc50to74.9k","MOE H73ROHUHhInc50to74.9k","H73ROHUHhInc50to74.9kRnt<20pct","MOE H73ROHUHhInc50to74.9kRnt<20pct","H73ROHUHhInc50to74.9kRnt20to25pct","MOE H73ROHUHhInc50to74.9kRnt20to25pct","H73ROHUHhInc50to74.9kRnt25to30pct","MOE H73ROHUHhInc50to74.9kRnt25to30pct","H73ROHUHhInc50to74.9kRnt30to35pct","MOE H73ROHUHhInc50to74.9kRnt30to35pct","H73ROHUHhInc50to74.9kRnt35to39.9","MOE H73ROHUHhInc50to74.9kRnt35to39.9","H73ROHUHhInc50to74.9kRnt40to49.9","MOE H73ROHUHhInc50to74.9kRnt40to49.9","H73ROHUHhInc50to74.9kRnt>50pct","MOE H73ROHUHhInc50to74.9kRnt>50pct","H73ROHUHhInc50to74.9kRntPctNC","MOE H73ROHUHhInc50to74.9kRntPctNC","H73ROHUHhInc75to99.9k","MOE H73ROHUHhInc75to99.9k","H73ROHUHhInc75to99.9kRnt<20pct","MOE H73ROHUHhInc75to99.9kRnt<20pct","H73ROHUHhInc75to99.9kRnt20to25pct","MOE H73ROHUHhInc75to99.9kRnt20to25pct","H73ROHUHhInc75to99.9kRnt25to30pct","MOE H73ROHUHhInc75to99.9kRnt25to30pct","H73ROHUHhInc75to99.9kRnt30to35pct","MOE H73ROHUHhInc75to99.9kRnt30to35pct","H73ROHUHhInc75to99.9kRnt35to39.9","MOE H73ROHUHhInc75to99.9kRnt35to39.9","H73ROHUHhInc75to99.9kRnt40to49.9","MOE H73ROHUHhInc75to99.9kRnt40to49.9","H73ROHUHhInc75to99.9kRnt>50pct","MOE H73ROHUHhInc75to99.9kRnt>50pct","H73ROHUHhInc75to99.9kRntPctNC","MOE H73ROHUHhInc75to99.9kRntPctNC","H73ROHUHhInc>100k","MOE H73ROHUHhInc>100k","H73ROHUHhInc>100kRnt<20pct","MOE H73ROHUHhInc>100kRnt<20pct","H73ROHUHhInc>100kRnt20to25pct","MOE H73ROHUHhInc>100kRnt20to25pct","H73ROHUHhInc>100kRnt25to30pct","MOE H73ROHUHhInc>100kRnt25to30pct","H73ROHUHhInc>100kRnt30to35pct","MOE H73ROHUHhInc>100kRnt30to35pct","H73ROHUHhInc>100kRnt35to39.9","MOE H73ROHUHhInc>100kRnt35to39.9","H73ROHUHhInc>100kRnt40to49.9","MOE H73ROHUHhInc>100kRnt40to49.9","H73ROHUHhInc>100kRnt>50pct","MOE H73ROHUHhInc>100kRnt>50pct","H73ROHUHhInc>100kRntPctNC","MOE H73ROHUHhInc>100kRntPctNC"]
[{"$f":"VLOOKUP(DropDownList!$B$47,CntyQryCensus!$A$510:$DA$522,A$1)","v":"Barrington"},279,139,60,55.659680200302986,0,16,53,62,113,84.841027810841609,153,130.46838697554284,89,105,202,134.9925923893604,64,77.440299586197369,45,70,13,22]
[]
["Income By Household Type and Tenure"]
["NAME","TotalFamilyHouseholds",{"$f":"\"MOE \"&B159","v":"MOE TotalFamilyHouseholds"},"FamInc<10K",{"$f":"\"MOE \"&D159","v":"MOE FamInc<10K"},"FamInc10to15K",{"$f":"\"MOE \"&F159","v":"MOE FamInc10to15K"},"FamInc15to20K",{"$f":"\"MOE \"&H159","v":"MOE FamInc15to20K"},"FamInc20to25K",{"$f":"\"MOE \"&J159","v":"MOE FamInc20to25K"},"FamInc25to30K",{"$f":"\"MOE \"&L159","v":"MOE FamInc25to30K"},"FamInc30to35K",{"$f":"\"MOE \"&N159","v":"MOE FamInc30to35K"},"FamInc35to40K",{"$f":"\"MOE \"&P159","v":"MOE FamInc35to40K"},"FamInc40to45K",{"$f":"\"MOE \"&R159","v":"MOE FamInc40to45K"},"FamInc45to50K",{"$f":"\"MOE \"&T159","v":"MOE FamInc45to50K"},"FamInc50to60K",{"$f":"\"MOE \"&V159","v":"MOE FamInc50to60K"},"FamInc60to75K",{"$f":"\"MOE \"&X159","v":"MOE FamInc60to75K"},"FamInc75to100K",{"$f":"\"MOE \"&Z159","v":"MOE FamInc75to100K"},"FamInc100to125K",{"$f":"\"MOE \"&AB159","v":"MOE FamInc100to125K"},"FamInc125to150K",{"$f":"\"MOE \"&AD159","v":"MOE FamInc125to150K"},"FamInc150to200K",{"$f":"\"MOE \"&AF159","v":"MOE FamInc150to200K"},"FamInc>200K",{"$f":"\"MOE \"&AH159","v":"MOE FamInc>200K"},"MedFamInc",{"$f":"\"MOE \"&AJ159","v":"MOE MedFamInc"},"TotalNonNonFamilyHouseholds",{"$f":"\"MOE \"&AL159","v":"MOE TotalNonNonFamilyHouseholds"},"NonFamInc<10K",{"$f":"\"MOE \"&AN159","v":"MOE NonFamInc<10K"},"NonFamInc10to15K",{"$f":"\"MOE \"&AP159","v":"MOE NonFamInc10to15K"},"NonFamInc15to20K",{"$f":"\"MOE \"&AR159","v":"MOE NonFamInc15to20K"},"NonFamInc20to25K",{"$f":"\"MOE \"&AT159","v":"MOE NonFamInc20to25K"},"NonFamInc25to30K",{"$f":"\"MOE \"&AV159","v":"MOE NonFamInc25to30K"},"NonFamInc30to35K",{"$f":"\"MOE \"&AX159","v":"MOE NonFamInc30to35K"},"NonFamInc35to40K",{"$f":"\"MOE \"&AZ159","v":"MOE NonFamInc35to40K"},"NonFamInc40to45K",{"$f":"\"MOE \"&BB159","v":"MOE NonFamInc40to45K"},"NonFamInc45to50K",{"$f":"\"MOE \"&BD159","v":"MOE NonFamInc45to50K"},"NonFamInc50to60K",{"$f":"\"MOE \"&BF159","v":"MOE NonFamInc50to60K"},"NonFamInc60to75K",{"$f":"\"MOE \"&BH159","v":"MOE NonFamInc60to75K"},"NonFamInc75to100K",{"$f":"\"MOE \"&BJ159","v":"MOE NonFamInc75to100K"},"NonFamInc100to125K",{"$f":"\"MOE \"&BL159","v":"MOE NonFamInc100to125K"},"NonFamInc125to150K",{"$f":"\"MOE \"&BN159","v":"MOE NonFamInc125to150K"},"NonFamInc150to200K",{"$f":"\"MOE \"&BP159","v":"MOE NonFamInc150to200K"},"NonFamInc>200K",{"$f":"\"MOE \"&BR159","v":"MOE NonFamInc>200K"},"MedNonFamInc",{"$f":"\"MOE \"&BT159","v":"MOE MedNonFamInc"},"PerCapitaIncome","MOE PerCapitaIncome"]
[{"$f":"VLOOKUP(DropDownList!$B$47,CntyQryCensus!$A$510:$DA$522,A$1)","v":"Barrington"},2447,204,53,82,0,16,13,20,15,21,37,46,46,51,0,16,69,57,0,16,133,79,309,173,382,156,323,114,231,118,512,191,324,142,114738,16489,736,242,0,16,30,36,18,29,132,135,145,134,63,76,53,84,40,36,18,29,19,33,96,95,18,28,82,68,9,16,0,16,13,21,31706,11606]
[]
[]
[]
["2010 Census"]
[]
["TownName","LOGRECNO","COUNTY","TotalPop","TotalPop1Race","TotalPopWhite","TotalPopAfricanAmerican","TotalPopAmericanIndAlaska","TotalPopAsian","TotalPopNativeHawaiianPIsland","TotalPopSomeOtherRace","TotalPopTwoOrMoreRaces","TotalPopHispanicLatino","TotalNonHispanicLatino","TotPopUnder15yrs","TotPop15to24yrs","TotPop25to34yrs","TotPop35to44yrs","TotPop45to54yrs","TotPop55to64yrs","TotPop65to74yrs","TotPopOver74yrs","MedianAge","MedianAgeMale","MedianAgeFemale","TotalHH","TotalPopInHouseholds","TotalPopInFamilyHH","TotalPopInNonFamilyHH","AvgHHSize","TotalFamilyHH","TotalFamilyHHSpouse","TotalSingleParentHH","TotalNonFamilyHH","AvgFamilyHHSize","AvgNonFamilyHHSize","AverageHHSizeOwnerOccupied","AverageHHSizeRentalOccupied","TotalHousingUnits","TotalOccupiedHU","TotalOwnerOccupiedHUs","TotalRentalOccupiedHU","TotalVacantHU","VacantHUForRent","VacantHURentNotOccupied","VacantHUForSale","VacantHUsSoldNotOccupied","VacantHUSeasonalRecreational","VacantHUsAllOtherVacants","HomeOwnerVacancyRate","HomeRentalVacancyRate","Total HH","Total Single Family HU","Total Multi-Family HU","Total Manufacture HU"]
[{"$f":"VLOOKUP(DropDownList!$B$47,CntyQryCensus!$A$529:$DA$540,A$1)","v":"Barrington"},{"$f":"VLOOKUP(DropDownList!$B$47,CntyQryCensus!$A$529:$DA$540,B$1)","v":"0000216"},{"$f":"VLOOKUP(DropDownList!$B$47,CntyQryCensus!$A$529:$DA$540,C$1)","v":"017"},{"$f":"VLOOKUP(DropDownList!$B$47,CntyQryCensus!$A$529:$DA$540,D$1)","v":8576},{"$f":"VLOOKUP(DropDownList!$B$47,CntyQryCensus!$A$529:$DA$540,E$1)","v":8473},{"$f":"VLOOKUP(DropDownList!$B$47,CntyQryCensus!$A$529:$DA$540,F$1)","v":8312},{"$f":"VLOOKUP(DropDownList!$B$47,CntyQryCensus!$A$529:$DA$540,G$1)","v":40},{"$f":"VLOOKUP(DropDownList!$B$47,CntyQryCensus!$A$529:$DA$540,H$1)","v":20},{"$f":"VLOOKUP(DropDownList!$B$47,CntyQryCensus!$A$529:$DA$540,I$1)","v":83},{"$f":"VLOOKUP(DropDownList!$B$47,CntyQryCensus!$A$529:$DA$540,J$1)","v":0},{"$f":"VLOOKUP(DropDownList!$B$47,CntyQryCensus!$A$529:$DA$540,K$1)","v":18},{"$f":"VLOOKUP(DropDownList!$B$47,CntyQryCensus!$A$529:$DA$540,L$1)","v":103},{"$f":"VLOOKUP(DropDownList!$B$47,CntyQryCensus!$A$529:$DA$540,M$1)","v":112},{"$f":"VLOOKUP(DropDownList!$B$47,CntyQryCensus!$A$529:$DA$540,N$1)","v":8464},{"$f":"VLOOKUP(DropDownList!$B$47,CntyQryCensus!$A$529:$DA$540,O$1)","v":1689},{"$f":"VLOOKUP(DropDownList!$B$47,CntyQryCensus!$A$529:$DA$540,P$1)","v":966},{"$f":"VLOOKUP(DropDownList!$B$47,CntyQryCensus!$A$529:$DA$540,Q$1)","v":933},{"$f":"VLOOKUP(DropDownList!$B$47,CntyQryCensus!$A$529:$DA$540,R$1)","v":1368},{"$f":"VLOOKUP(DropDownList!$B$47,CntyQryCensus!$A$529:$DA$540,S$1)","v":1691},{"$f":"VLOOKUP(DropDownList!$B$47,CntyQryCensus!$A$529:$DA$540,T$1)","v":1110},{"$f":"VLOOKUP(DropDownList!$B$47,CntyQryCensus!$A$529:$DA$540,U$1)","v":535},{"$f":"VLOOKUP(DropDownList!$B$47,CntyQryCensus!$A$529:$DA$540,V$1)","v":284},{"$f":"VLOOKUP(DropDownList!$B$47,CntyQryCensus!$A$529:$DA$540,W$1)","v":40.700000000000003},{"$f":"VLOOKUP(DropDownList!$B$47,CntyQryCensus!$A$529:$DA$540,X$1)","v":40.299999999999997},{"$f":"VLOOKUP(DropDownList!$B$47,CntyQryCensus!$A$529:$DA$540,Y$1)","v":41.1},{"$f":"VLOOKUP(DropDownList!$B$47,CntyQryCensus!$A$529:$DA$540,Z$1)","v":3229},{"$f":"VLOOKUP(DropDownList!$B$47,CntyQryCensus!$A$529:$DA$540,AA$1)","v":8576},{"$f":"VLOOKUP(DropDownList!$B$47,CntyQryCensus!$A$529:$DA$540,AB$1)","v":4816},{"$f":"VLOOKUP(DropDownList!$B$47,CntyQryCensus!$A$529:$DA$540,AC$1)","v":3760},{"$f":"VLOOKUP(DropDownList!$B$47,CntyQryCensus!$A$529:$DA$540,AD$1)","v":2.66},{"$f":"VLOOKUP(DropDownList!$B$47,CntyQryCensus!$A$529:$DA$540,AE$1)","v":2382},{"$f":"VLOOKUP(DropDownList!$B$47,CntyQryCensus!$A$529:$DA$540,AF$1)","v":1973},{"$f":"VLOOKUP(DropDownList!$B$47,CntyQryCensus!$A$529:$DA$540,AG$1)","v":409},{"$f":"VLOOKUP(DropDownList!$B$47,CntyQryCensus!$A$529:$DA$540,AH$1)","v":847},{"$f":"VLOOKUP(DropDownList!$B$47,CntyQryCensus!$A$529:$DA$540,AI$1)","v":3.02},{"$f":"VLOOKUP(DropDownList!$B$47,CntyQryCensus!$A$529:$DA$540,AJ$1)","v":4.4391971664698939},{"$f":"VLOOKUP(DropDownList!$B$47,CntyQryCensus!$A$529:$DA$540,AK$1)","v":2.71},{"$f":"VLOOKUP(DropDownList!$B$47,CntyQryCensus!$A$529:$DA$540,AL$1)","v":2.2599999999999998},{"$f":"VLOOKUP(DropDownList!$B$47,CntyQryCensus!$A$529:$DA$540,AM$1)","v":3661},{"$f":"VLOOKUP(DropDownList!$B$47,CntyQryCensus!$A$529:$DA$540,AN$1)","v":3229},{"$f":"VLOOKUP(DropDownList!$B$47,CntyQryCensus!$A$529:$DA$540,AO$1)","v":2813},{"$f":"VLOOKUP(DropDownList!$B$47,CntyQryCensus!$A$529:$DA$540,AP$1)","v":416},{"$f":"VLOOKUP(DropDownList!$B$47,CntyQryCensus!$A$529:$DA$540,AQ$1)","v":432},{"$f":"VLOOKUP(DropDownList!$B$47,CntyQryCensus!$A$529:$DA$540,AR$1)","v":35},{"$f":"VLOOKUP(DropDownList!$B$47,CntyQryCensus!$A$529:$DA$540,AS$1)","v":2},{"$f":"VLOOKUP(DropDownList!$B$47,CntyQryCensus!$A$529:$DA$540,AT$1)","v":63},{"$f":"VLOOKUP(DropDownList!$B$47,CntyQryCensus!$A$529:$DA$540,AU$1)","v":5},{"$f":"VLOOKUP(DropDownList!$B$47,CntyQryCensus!$A$529:$DA$540,AV$1)","v":286},{"$f":"VLOOKUP(DropDownList!$B$47,CntyQryCensus!$A$529:$DA$540,AW$1)","v":41},{"$f":"VLOOKUP(DropDownList!$B$47,CntyQryCensus!$A$529:$DA$540,AX$1)","v":2.2000000000000002},{"$f":"VLOOKUP(DropDownList!$B$47,CntyQryCensus!$A$529:$DA$540,AY$1)","v":7.7},{"$f":"VLOOKUP(DropDownList!$B$47,CntyQryCensus!$A$529:$DA$540,AZ$1)","v":3661},{"$f":"VLOOKUP(DropDownList!$B$47,CntyQryCensus!$A$529:$DA$540,BA$1)","v":3022},{"$f":"VLOOKUP(DropDownList!$B$47,CntyQryCensus!$A$529:$DA$540,BB$1)","v":239},{"$f":"VLOOKUP(DropDownList!$B$47,CntyQryCensus!$A$529:$DA$540,BC$1)","v":400}]

{"sheet":"CntyQuery","index":7,"n_rows":229,"n_cols":243,"rows_kept":229,"cut":false,"hidden":true,"merged":[]}
["CountyName","Cnty_Code","Census_Cnty_Code","LandAcres","WaterAcres","HousingUnits90Cen","Persons90Cen","Families90Cen","Households90cen","MalePop90cen","FemalePop90cen","WhitePop","BlackPop","AmerIndianPop","AsianPIPop","OtherRacePop","HispanicOrPop","AgeUnder15_90cen","Age15to24_90cen","Age25to34_90cen","Age35to44_90cen","Age45to54_90cen","Age55to64_90cen","Age65to74_90cen","Age75andOver_90cen","PersonsInHH90cen","PersonsInFamHH90cen","PersonsInGC","PersonsPerHH90cen","PersonsPerFam90Cen","SinglePersonHH90cen","MarriedCoupleHH90cen","SingleParentHH90cen","NonFamilyHH90cen","TotalHousingUnits","OccupiedHousingUnits","VacantHousingUnits","OwnerOccHU","RenterOccHU","VacantForRent90","VacantForSale90","VacantSeasonalRec","SingFamHU90cen","MultiFamHU90cen","MobileHom90cen","SingFamOwnHU90cen","MultiFamOwnHU90cen","MobileHomOwnHU90cen","SingFamRntrHU90cen","MultiFamRntrHU90cen","MobileHomRntrHU90cen","HU<5yrs90cen","HU5to20yrs90cen","HU20to50yrs90cen","HU>50yrs90cen","Units0Bedroom90cen","Units1Bedroom90cen","Units2Bedroom90cen","Units3Bedroom90cen","Units4+Bedroom90cen","HI<5K","HI5Kto10K","HI10Kto15K","HI15Kto25K","HI25Kto35K","HI35Kto50K","HI50Kto75K","HI75Kto100K","HI>100K","MedHI","HH<25HI<5K","HH<25HI5Kto10K","HH<25HI10Kto15K","HH<25HI15Kto25K","HH<25HI25Kto35K","HH<25HI35Kto50K","HH<25HI50Kto75K","HH<25HI75Kto100K","HH<25HI>100K","HH25to34HI<5K","HH25to34HI5Kto10K","HH25to34HI10Kto15K","HH25to34HI15Kto25K","HH25to34HI25Kto35K","HH25to34HI35Kto50K","HH25to34HI50Kto75K","HH25to34HI75Kto100K","HH25to34HI>100K","HH35to44HI<5K","HH35to44HI5Kto10K","HH35to44HI10Kto15K","HH35to44HI15Kto25K","HH35to44HI25Kto35K","HH35to44HI35Kto50K","HH35to44HI50Kto75K","HH35to44HI75Kto100K","HH35to44HI>100K","HH45to54HI<5K","HH45to54HI5Kto10K","HH45to54HI10Kto15K","HH45to54HI15Kto25K","HH45to54HI25Kto35K","HH45to54HI35Kto50K","HH45to54HI50Kto75K","HH45to54HI75Kto100K","HH45to54HI>100K","HH55to64HI<5K","HH55to64HI5Kto10K","HH55to64HI10Kto15K","HH55to64HI15Kto25K","HH55to64HI25Kto35K","HH55to64HI35Kto50K","HH55to64HI50Kto75K","HH55to64HI75Kto100K","HH55to64HI>100K","HH65to74HI<5K","HH65to74HI5Kto10K","HH65to74HI10Kto15K","HH65to74HI15Kto25K","HH65to74HI25Kto35K","HH65to74HI35Kto50K","HH65to74HI50Kto75K","HH65to74HI75Kto100K","HH65to74HI>100K","HH>75HI<5K","HH>75HI5Kto10K","HH>75HI10Kto15K","HH>75HI15Kto25K","HH>75HI25Kto35K","HH>75HI35Kto50K","HH>75HI50Kto75K","HH>75HI75Kto100K","HH>75HI>100K","SchoolEnrollment1thru12","Pop25andOver","HSGradorHigher","CollGradorHigher","NativePop","ForeignBornPop","BornStateOfRes","NativePop2","ForeignBornPop2","DroveAlone","CarPooled","PublicTranspt","Walked","OtherMeans","WorkedAtHome","HHInc<10K","HHInc10to15K","HHInc15to25K","HHInc25to35K","HHInc35to50K","HHInc50to75K","HHInc75to100K","HHInc100to150K","HHInc>150K"]
["Census 1990 Data -           Query Name:  DPCnty90Census"]
["NAME","FIPS","COUSUBFP","LandAcres","WaterAcres","HousingUnits90Cen","Persons90Cen","Families90Cen","Households90cen","MalePop90cen","FemalePop90cen","WhitePop","BlackPop","AmerIndianPop","AsianPIPop","OtherRacePop","HispanicOrPop","AgeUnder15_90cen","Age15to24_90cen","Age25to34_90cen","Age35to44_90cen","Age45to54_90cen","Age55to64_90cen","Age65to74_90cen","Age75andOver_90cen","PersonsInHH90cen","PersonsInFamHH90cen","PersonsInGC","PersonsPerHH90cen","PersonsPerFam90Cen","SinglePersonHH90cen","MarriedCoupleHH90cen","SingleParentHH90cen","NonFamilyHH90cen","TotalHousingUnits","OccupiedHousingUnits","VacantHousingUnits","OwnerOccHU","RenterOccHU","VacantForRent90","VacantForSale90","VacantSeasonalRec","SingFamHU90cen","MultiFamHU90cen","MobileHom90cen","SingFamOwnHU90cen","MultiFamOwnHU90cen","MobileHomOwnHU90cen","SingFamRntrHU90cen","MultiFamRntrHU90cen","MobileHomRntrHU90cen","HU<5yrs90cen","HU5to20yrs90cen","HU20to50yrs90cen","HU>50yrs90cen","Units0Bedroom90cen","Units1Bedroom90cen","Units2Bedroom90cen","Units3Bedroom90cen","Units4+Bedroom90cen","HI<5K","HI5Kto10K","HI10Kto15K","HI15Kto25K","HI25Kto35K","HI35Kto50K","HI50Kto75K","HI75Kto100K","HI>100K","MedHI","HH<25HI<5K","HH<25HI5Kto10K","HH<25HI10Kto15K","HH<25HI15Kto25K","HH<25HI25Kto35K","HH<25HI35Kto50K","HH<25HI50Kto75K","HH<25HI75Kto100K","HH<25HI>100K","HH25to34HI<5K","HH25to34HI5Kto10K","HH25to34HI10Kto15K","HH25to34HI15Kto25K","HH25to34HI25Kto35K","HH25to34HI35Kto50K","HH25to34HI50Kto75K","HH25to34HI75Kto100K","HH25to34HI>100K","HH35to44HI<5K","HH35to44HI5Kto10K","HH35to44HI10Kto15K","HH35to44HI15Kto25K","HH35to44HI25Kto35K","HH35to44HI35Kto50K","HH35to44HI50Kto75K","HH35to44HI75Kto100K","HH35to44HI>100K","HH45to54HI<5K","HH45to54HI5Kto10K","HH45to54HI10Kto15K","HH45to54HI15Kto25K","HH45to54HI25Kto35K","HH45to54HI35Kto50K","HH45to54HI50Kto75K","HH45to54HI75Kto100K","HH45to54HI>100K","HH55to64HI<5K","HH55to64HI5Kto10K","HH55to64HI10Kto15K","HH55to64HI15Kto25K","HH55to64HI25Kto35K","HH55to64HI35Kto50K","HH55to64HI50Kto75K","HH55to64HI75Kto100K","HH55to64HI>100K","HH65to74HI<5K","HH65to74HI5Kto10K","HH65to74HI10Kto15K","HH65to74HI15Kto25K","HH65to74HI25Kto35K","HH65to74HI35Kto50K","HH65to74HI50Kto75K","HH65to74HI75Kto100K","HH65to74HI>100K","HH>75HI<5K","HH>75HI5Kto10K","HH>75HI10Kto15K","HH>75HI15Kto25K","HH>75HI25Kto35K","HH>75HI35Kto50K","HH>75HI50Kto75K","HH>75HI75Kto100K","HH>75HI>100K","SchoolEnrollment1thru12","Pop25andOver","HSGradorHigher","CollGradorHigher","NativePop","ForeignBornPop","BornStateOfRes","NativePop2","ForeignBornPop2","DroveAlone","CarPooled","PublicTranspt","Walked","OtherMeans","WorkedAtHome","HHInc<10K","HHInc10to15K","HHInc15to25K","HHInc25to35K","HHInc35to50K","HHInc50to75K","HHInc75to100K","HHInc100to150K","HHInc>150K"]
["Barrington",17005,"03460",29886.99,1230.17,2640,6164,1698,2217,3053,3111,6100,19,16,15,14,53,1479,700,1303,1142,673,402,317,148,6164,5438,0,2.7803337843933242,3.2025912838633688,360,1497,201,159,2640,2217,423,1911,306,59,44,280,1809,244,587,1402,39,587,108,152,46,452,1375,531,322,18,182,955,1206,319,17,97,140,301,521,606,398,99,38,35542,0,0,0,12,0,41,11,0,0,0,9,14,111,216,211,68,17,0,0,34,8,81,120,193,192,17,7,0,0,34,38,56,66,87,32,13,17,26,26,37,25,32,40,33,8,0,14,22,14,96,42,0,0,10,0,14,36,8,8,21,0,0,0,1146,3943,3358,893,6022,187,3502,6022,187,2520,619,28,29,25,100,114,140,301,521,606,398,99,21,17,100,352,444,931,329,101,101,322]
["Dover",17010,"18820",17113.07,1478.97,11307,25042,6257,10345,11976,13066,24390,265,53,284,50,254,4279,4558,5221,3374,2282,2087,1769,1472,24433,18633,609,2.3618173030449494,2.9779447019338341,2870,5023,1234,1218,11307,10345,962,5190,5155,616,136,72,4649,6202,456,4056,785,456,425,4659,71,1440,2726,3296,3845,194,2186,4095,3403,1429,269,888,863,1937,1859,2159,1653,468,250,31507,32,229,149,338,232,126,30,7,0,32,90,133,549,661,739,504,74,13,22,60,101,224,337,523,455,126,35,21,46,43,131,207,302,344,160,121,19,38,101,249,167,260,264,66,59,31,146,210,293,197,137,51,27,14,112,279,126,153,58,72,5,8,8,3175,16201,13468,3944,24087,955,11846,24087,955,10490,1931,244,621,138,331,1157,863,1937,1859,2159,1653,468,179,71,169,1271,916,1810,1209,1423,664,3845]
["Durham",17015,"19700",14338,1514.2,2508,11818,1466,2392,5505,6313,11486,75,8,234,15,99,1008,7130,858,942,682,521,401,276,6407,4521,5411,2.6785117056856187,3.0839017735334244,496,1280,186,430,2508,2392,116,1357,1035,41,24,23,1480,954,74,1241,93,74,172,815,48,339,717,951,495,171,381,493,621,836,153,156,219,277,238,284,432,309,297,42477,96,88,89,122,25,12,0,0,8,22,21,24,45,65,44,22,22,34,6,7,6,44,69,63,130,96,59,9,0,9,15,5,64,155,86,89,0,9,0,9,24,36,71,66,56,12,6,27,19,31,33,31,36,36,8,25,64,23,19,32,23,3,15,908,3707,3609,2467,11296,521,3003,11296,521,2741,357,122,1624,81,232,309,219,277,238,284,432,309,214,83,27,312,145,572,502,338,111,495]
["Farmington",17020,"26020",23368.36,271.51,2260,5739,1514,2032,2812,2927,5681,8,19,16,15,40,1473,699,1083,899,537,425,353,270,5718,5030,21,2.813976377952756,3.3223249669749011,381,1222,292,137,2260,2032,228,1431,601,74,28,65,1324,544,392,1102,52,392,109,412,80,289,684,352,893,28,313,732,777,368,82,194,132,349,451,543,238,37,41,31112,0,8,6,36,19,15,0,0,0,0,31,45,90,135,146,51,0,4,7,8,18,89,77,175,99,20,16,0,24,9,29,99,86,64,7,12,23,0,34,46,53,85,8,10,9,15,75,11,46,49,19,16,0,0,37,48,9,13,19,17,0,0,0,1087,3679,2492,334,5661,94,3383,5661,94,1960,475,35,122,34,84,276,132,349,451,543,238,37,17,24,44,245,172,512,222,100,30,893]
["Lee",17025,"41460",12788.37,138.87,1393,3729,1014,1287,1911,1818,3654,17,11,46,1,23,910,496,730,736,422,230,137,68,3729,3278,0,2.8974358974358974,3.2327416173570018,164,895,119,109,1393,1287,106,972,315,31,24,40,881,295,217,753,67,217,75,196,44,475,480,244,178,0,131,377,564,305,29,30,43,186,173,301,288,133,95,43421,0,7,6,14,17,7,7,0,0,8,8,15,82,30,132,76,12,7,13,15,0,30,75,90,96,42,61,8,0,0,12,45,29,59,43,14,0,0,0,7,6,24,39,12,7,0,0,22,29,0,19,11,24,0,0,0,0,12,0,0,0,0,6,706,2314,2089,968,3654,78,1556,3654,78,1515,328,10,26,20,84,59,43,186,173,301,288,133,64,31,46,429,197,283,175,19,50,178]
["Madbury",17030,"44820",7390.17,408.86,528,1404,377,490,722,682,1368,2,5,26,3,16,329,199,256,255,166,89,80,30,1404,1216,0,2.8653061224489798,3.2254641909814326,67,323,54,46,528,490,38,367,123,8,9,7,339,93,96,280,21,96,32,66,25,132,190,88,124,3,25,153,192,161,9,13,34,54,80,112,118,38,31,42208,0,4,0,8,0,8,2,0,0,6,0,14,18,18,35,19,10,5,0,2,4,7,18,25,41,12,6,0,2,6,2,11,18,29,8,10,0,0,0,3,17,18,22,8,8,2,2,6,12,10,2,3,0,0,1,3,4,4,6,6,2,0,2,260,869,774,346,1366,39,644,1366,39,584,67,0,22,3,37,22,34,54,80,112,118,38,20,11,8,124,58,132,30,40,18,124]
["Middleton",17035,"47700",11568.36,274.58999999999997,654,1183,320,399,610,573,1172,1,5,5,0,7,321,140,251,181,105,100,49,36,1183,1076,0,2.9649122807017543,3.3624999999999998,59,281,39,20,654,399,255,363,36,4,19,217,569,8,77,308,2,77,30,1,5,127,268,198,61,10,32,291,255,66,12,23,26,59,94,125,46,11,2,33125,1,0,0,0,0,0,0,0,0,0,0,5,13,45,37,17,2,0,2,6,7,19,14,56,13,5,0,5,2,0,12,3,20,4,2,0,0,6,5,6,16,12,10,2,2,4,4,9,6,13,0,2,0,0,0,5,0,3,3,0,0,0,0,252,723,525,56,1161,22,614,1161,22,459,80,10,3,6,6,35,26,59,94,125,46,11,2,0,23,104,66,202,136,50,12,61]
["Milton",17040,"48660",21159.759999999998,776.07,1767,3691,1030,1324,1816,1875,3666,3,3,17,2,7,860,444,728,569,395,316,216,163,3688,3285,3,2.785498489425982,3.1893203883495147,208,850,180,86,1767,1324,443,1097,227,25,33,329,1190,163,414,765,29,414,77,108,42,392,522,370,483,26,172,703,631,235,61,57,120,193,244,384,186,37,19,32888,8,0,0,10,15,9,0,0,0,13,6,33,57,60,124,72,0,0,3,0,5,16,71,91,33,13,6,7,6,22,19,22,100,66,7,13,23,6,8,50,38,50,15,13,0,0,12,22,34,30,0,0,0,0,7,27,30,7,8,10,0,4,0,612,2387,1720,302,3663,28,2091,3663,28,1324,328,12,48,24,73,118,120,193,244,384,186,37,19,0,60,332,137,385,133,113,124,483]
["New Durham",17045,"51220",26487.99,1565.83,1231,1974,551,688,987,987,1966,2,2,2,2,10,521,193,390,352,189,159,118,52,1974,1783,0,2.8691860465116279,3.2359346642468241,95,488,63,42,1231,688,543,603,85,5,32,489,1088,18,125,522,2,125,58,10,17,280,358,394,199,10,88,525,504,104,26,29,42,97,150,184,122,22,12,34857,4,0,0,0,0,9,0,0,0,0,0,10,25,60,41,35,5,0,6,6,3,26,41,69,46,10,0,2,0,6,10,12,36,23,7,5,6,5,5,12,23,16,14,0,7,2,9,14,17,9,11,1,0,0,6,9,4,7,5,2,3,0,0,410,1260,1015,191,1941,33,992,1941,33,710,176,6,14,10,42,55,42,97,150,184,122,22,10,2,42,238,97,261,169,160,65,199]
["Rochester",17050,"65140",28688.05,392.49,11076,26630,7332,10221,12931,13699,26291,85,54,147,53,192,6067,3386,5151,3862,2510,2258,1886,1510,26327,22703,303,2.5757753644457488,3.0964266230223676,2304,5989,1343,585,11076,10221,855,7051,3170,446,212,50,5129,3796,2151,4588,626,2151,392,2646,132,2013,3034,2699,3330,113,1452,4176,3867,1468,335,786,879,1996,1883,2394,1525,276,122,30807,26,62,50,225,102,169,29,6,0,37,65,144,464,563,766,423,45,14,42,53,90,352,375,735,455,64,38,24,80,48,189,244,339,335,102,48,51,71,166,257,232,224,215,47,22,39,142,263,354,297,95,39,12,0,116,313,118,155,70,66,29,0,0,4209,17177,12889,2416,25961,669,15347,25961,669,9749,2241,113,278,164,298,1121,879,1996,1883,2394,1525,276,68,54,237,1776,836,2198,1124,872,703,3330]
["Rollinsford",17055,"65540",4680.0600000000004,162.69,1040,2645,751,976,1310,1335,2614,14,2,13,2,21,540,362,544,431,258,253,173,84,2645,2350,0,2.7100409836065573,3.1291611185086552,164,639,112,61,1040,976,64,686,290,34,12,5,673,338,29,605,58,29,45,239,6,162,134,346,414,0,111,352,371,222,25,56,65,176,129,220,186,75,47,37741,0,0,0,15,0,12,10,0,0,0,0,13,49,41,56,43,31,7,8,6,7,28,36,80,63,0,12,0,0,8,22,15,22,20,6,28,7,13,12,19,20,30,44,32,0,10,24,12,27,17,7,6,6,0,0,13,13,16,0,13,0,0,0,341,1752,1410,284,2577,65,1656,2577,65,1154,165,0,50,0,35,81,65,176,129,220,186,75,33,14,47,115,19,115,123,129,94,414]
["Somersworth",17060,"69940",6280.88,117.39,4719,11249,3073,4374,5378,5871,10968,82,33,123,43,102,2444,1656,2365,1559,1021,945,783,476,11208,9493,41,2.5624142661179699,3.0891636836967131,985,2412,661,316,4719,4374,345,2549,1825,221,60,10,1979,2170,570,1788,274,570,133,1642,50,406,1171,1947,1195,28,715,1901,1545,530,165,273,412,791,743,1007,758,205,20,32886,14,15,44,77,51,87,0,7,0,18,25,45,207,288,378,217,29,15,0,0,53,110,173,209,212,76,0,16,7,41,95,72,99,203,36,5,15,30,49,112,66,143,91,49,0,55,97,108,122,71,68,29,8,0,47,99,72,68,22,23,6,0,0,1558,7149,5341,970,10820,429,6520,10820,429,4374,1047,65,235,52,132,438,412,791,743,1007,758,205,10,10,79,327,287,884,943,698,306,1195]
["Strafford",17065,"73860",31342.78,1436.02,1264,2965,848,999,1457,1508,2952,2,1,9,1,13,773,320,559,605,280,216,135,77,2959,2764,6,2.9619619619619622,3.2594339622641511,112,760,88,39,1264,999,265,876,123,8,24,207,963,58,243,787,14,243,65,37,21,267,451,239,309,11,48,378,581,248,28,32,56,103,215,269,224,38,29,37500,0,0,0,11,14,6,0,0,5,5,6,0,20,57,79,52,7,0,0,0,7,46,63,101,66,26,11,5,8,13,0,19,37,71,5,0,6,6,0,7,56,7,22,0,7,6,0,16,13,6,13,13,0,6,6,12,20,6,0,26,0,0,0,564,1802,1543,484,2844,60,1458,2844,60,1098,198,6,26,6,79,60,56,103,215,269,224,38,29,0,26,241,114,337,159,41,39,309]
[]
[]
[]
[]
[]
[]
[]
[]
[]
[]
[]
[]
[]
[]
[]
[]
[]
[]
[]
[]
[]
[]
[]
[]
[]
[]
[]
[]
[]
[]
[]
[]
["Census 1990 Data -    Query Name:  CountySTF1Qry1"]
["NAME","COUSUBFP","Census_Cnty_Code","FIPS","LandAcres","WaterAcres","HousingUnits90Cen","P01Persons90Cen","P02Families90Cen","P03Households90cen","P05MalePop90cen","P05FemalePop90cen","P06WhitePop","P06BlackPop","P06AmerIndianPop","P06AsianPIPop","P06OtherRacePop","P08HispanicOrPop","P11AgeUnder15_90cen","P11Age15to24_90cen","P11Age25to34_90cen","P11Age35to44_90cen","P11Age45to54_90cen","P11Age55to64_90cen","P11Age65to74_90cen","P11Age75andOver_90cen","P15PersonsInHH90cen","P15PersonsInFamHH90cen","P15PersonsInGC","PersonsPerHH90cen","PersonsPerFam90Cen","P16SinglePersonHH90cen","P16MarriedCoupleHH90cen","P16SingleParentHH90cen","P16NonFamilyHH90cen","H01TotalHousingUnits","H02OccupiedHousingUnits","H02VacantHousingUnits","H03OwnerOccHU","H03RenterOccHU","H05VacantForRent90","H05VacantForSale90","H05VacantSeasonalRec","H23OOHUVal<15k","H23OOHUVal15to19k","H23OOHUVal20to24k","H23OOHUVal25to29k","H23OOHUVal30to34k","H23OOHUVal35to39k","H23OOHUVal40to44k","H23OOHUVal45to49k","H23OOHUVal50to59k","H23OOHUVal60to74k","H23OOHUVal75to99k","H23OOHUVal100to124k","H23OOHUVal125to149k","H23OOHUVal150to174k","H23OOHUVal175to199k","H23OOHUVal200to249k","H23OOHUVal250to299k","H23OOHUVal300to399k","H23OOHUVal400to499k","H23OOHUVal500kOrMore","H23BOOHUMedVal","H41SingFamHU90cen","H41MultiFamHU90cen","H41MobileHom90cen","H43SingFamOwnHU90cen","H43MultiFamOwnHU90cen","H43MobileHomOwnHU90cen","H43SingFamRntrHU90cen","H43MultiFamRntrHU90cen","H43MobileHomRntrHU90cen","H41HU1UnitDet","H41HU1UnitAtt","H41HU2Unit","H41HU3to4Unit","H41HU5to9Unit","H41HU10to19Unit","H41HU20to49Unit","H41HU50PlusUnit","H41HUMobilH","H41HUOther"]
["Barrington",901,17005,"03460",29886.99,1230.17,2640,6164,1698,2217,3053,3111,6100,19,16,15,14,53,1479,700,1303,1142,673,402,317,148,6164,5438,0,2.7803337843933242,3.2025912838633688,360,1497,201,159,2640,2217,423,1911,306,59,44,280,3,0,3,6,5,4,5,4,20,51,185,324,257,143,48,41,17,6,2,2,121400,1809,244,587,1402,39,470,108,152,46,1809,21,45,36,99,43,0,0,569,18]
["Dover",902,17010,"18820",17113.07,1478.97,11307,25042,6257,10345,11976,13066,24390,265,53,284,50,254,4279,4558,5221,3374,2282,2087,1769,1472,24433,18633,609,2.3618173030449494,2.9779447019338341,2870,5023,1234,1218,11307,10345,962,5190,5155,616,136,72,7,5,2,5,4,15,30,36,63,135,745,1179,774,386,208,200,98,45,17,15,119900,4649,6202,456,4056,785,349,425,4659,71,4649,536,1145,1575,1034,533,882,497,369,87]
["Durham",903,17015,"19700",14338,1514.2,2508,11818,1466,2392,5505,6313,11486,75,8,234,15,99,1008,7130,858,942,682,521,401,276,6407,4521,5411,2.6785117056856187,3.0839017735334244,496,1280,186,430,2508,2392,116,1357,1035,41,24,23,2,0,0,0,0,0,1,0,0,2,21,61,140,286,207,228,110,31,11,18,180600,1480,954,74,1241,93,23,172,815,48,1480,103,122,140,226,200,94,69,6,68]
["Farmington",904,17020,"26020",23368.36,271.51,2260,5739,1514,2032,2812,2927,5681,8,19,16,15,40,1473,699,1083,899,537,425,353,270,5718,5030,21,2.813976377952756,3.3223249669749011,381,1222,292,137,2260,2032,228,1431,601,74,28,65,4,4,8,5,6,6,10,23,32,120,363,158,93,41,17,9,6,4,0,0,91300,1324,544,392,1102,52,277,109,412,80,1324,17,127,141,115,99,45,0,375,17]
["Lee",905,17025,"41460",12788.37,138.87,1393,3729,1014,1287,1911,1818,3654,17,11,46,1,23,910,496,730,736,422,230,137,68,3729,3278,0,2.8974358974358974,3.2327416173570018,164,895,119,109,1393,1287,106,972,315,31,24,40,2,1,0,0,1,1,0,2,1,3,27,82,140,119,79,100,34,11,4,0,159100,881,295,217,753,67,152,75,196,44,881,69,83,43,85,15,0,0,191,26]
["Madbury",906,17030,"44820",7390.17,408.86,528,1404,377,490,722,682,1368,2,5,26,3,16,329,199,256,255,166,89,80,30,1404,1216,0,2.8653061224489798,3.2254641909814326,67,323,54,46,528,490,38,367,123,8,9,7,2,1,0,0,0,0,1,1,1,4,12,20,37,47,45,29,12,3,0,1,165400,339,93,96,280,21,66,32,66,25,339,19,48,24,1,1,0,0,88,8]
["Middleton",907,17035,"47700",11568.36,274.58999999999997,654,1183,320,399,610,573,1172,1,5,5,0,7,321,140,251,181,105,100,49,36,1183,1076,0,2.9649122807017543,3.3624999999999998,59,281,39,20,654,399,255,363,36,4,19,217,3,1,0,3,1,3,2,6,12,30,86,57,30,14,4,8,2,0,0,0,95300,569,8,77,308,2,53,30,1,5,569,5,3,0,0,0,0,0,69,8]
["Milton",908,17040,"48660",21159.759999999998,776.07,1767,3691,1030,1324,1816,1875,3666,3,3,17,2,7,860,444,728,569,395,316,216,163,3688,3285,3,2.785498489425982,3.1893203883495147,208,850,180,86,1767,1324,443,1097,227,25,33,329,4,4,6,6,7,8,6,7,20,62,169,146,65,57,17,21,9,4,0,0,101700,1190,163,414,765,29,303,77,108,42,1190,14,58,57,23,11,0,0,388,26]
["New Durham",909,17045,"51220",26487.99,1565.83,1231,1974,551,688,987,987,1966,2,2,2,2,10,521,193,390,352,189,159,118,52,1974,1783,0,2.8691860465116279,3.2359346642468241,95,488,63,42,1231,688,543,603,85,5,32,489,4,0,1,0,1,3,1,3,6,11,88,115,72,40,14,15,9,14,0,1,117600,1088,18,125,522,2,79,58,10,17,1088,2,10,6,0,0,0,0,108,17]
["Rochester",910,17050,"65140",28688.05,392.49,11076,26630,7332,10221,12931,13699,26291,85,54,147,53,192,6067,3386,5151,3862,2510,2258,1886,1510,26327,22703,303,2.5757753644457488,3.0964266230223676,2304,5989,1343,585,11076,10221,855,7051,3170,446,212,50,15,6,18,10,20,35,33,31,78,311,1366,1172,720,265,102,97,34,12,3,4,105200,5129,3796,2151,4588,626,1837,392,2646,132,5129,362,942,1151,696,273,218,154,2041,110]
["Rollinsford",911,17055,"65540",4680.0600000000004,162.69,1040,2645,751,976,1310,1335,2614,14,2,13,2,21,540,362,544,431,258,253,173,84,2645,2350,0,2.7100409836065573,3.1291611185086552,164,639,112,61,1040,976,64,686,290,34,12,5,2,0,2,1,0,2,0,5,8,9,120,177,79,63,25,23,8,10,2,2,116900,673,338,29,605,58,23,45,239,6,673,15,90,93,111,29,0,0,25,4]
["Somersworth",912,17060,"69940",6280.88,117.39,4719,11249,3073,4374,5378,5871,10968,82,33,123,43,102,2444,1656,2365,1559,1021,945,783,476,11208,9493,41,2.5624142661179699,3.0891636836967131,985,2412,661,316,4719,4374,345,2549,1825,221,60,10,6,1,5,6,5,9,8,9,26,62,480,579,282,114,48,32,2,1,0,2,109600,1979,2170,570,1788,274,487,133,1642,50,1979,61,700,588,289,202,195,135,537,33]
["Strafford",913,17065,"73860",31342.78,1436.02,1264,2965,848,999,1457,1508,2952,2,1,9,1,13,773,320,559,605,280,216,135,77,2959,2764,6,2.9619619619619622,3.2594339622641511,112,760,88,39,1264,999,265,876,123,8,24,207,1,0,2,1,2,5,1,2,6,17,104,149,119,67,32,18,9,9,3,3,122500,963,58,243,787,14,75,65,37,21,963,5,45,7,0,1,0,0,77,166]
[]
[]
[]
[]
[]
[]
[]
[]
[]
[]
[]
[]
[]
[]
[]
[]
[]
[]
[]
[]
[]
[]
[]
[]
[]
[]
[]
[]
[]
[]
[]
[]
[]
["Census 1990 Data -          Query Name: CountySTF3Qry1"]
[]
["NAME","FIPS","COUSUBFP","LandAcres","WaterAcres","HousingUnits90Cen","P01Persons90Cen","P02Families90Cen","P03Households90cen","H25HU<5yrs90cen","H25HU5to20yrs90cen","H25HU20to50yrs90cen","H25HU>50yrs90cen","H31Units0Bedroom90cen","H31Units1Bedroom90cen","H31Units2Bedroom90cen","H31Units3Bedroom90cen","H31Units4Bedroom90cen","H31Units5+Bedroom90cen","P80HI<5K","P80HI5Kto10K","P80HI10Kto15K","P80HI15Kto25K","P80HI25Kto35K","P80HI35Kto50K","P80HI50Kto75K","P80HI75Kto100K","P80HI>100K","P80AMedHI","P86HH<25HI<5K","P86HH<25HI5Kto10K","P86HH<25HI10Kto15K","P86HH<25HI15Kto25K","P86HH<25HI25Kto35K","P86HH<25HI35Kto50K","P86HH<25HI50Kto75K","P86HH<25HI75Kto100K","P86HH<25HI>100K","P86HH25to34HI<5K","P86HH25to34HI5Kto10K","P86HH25to34HI10Kto15K","P86HH25to34HI15Kto25K","P86HH25to34HI25Kto35K","P86HH25to34HI35Kto50K","P86HH25to34HI50Kto75K","P86HH25to34HI75Kto100K","P86HH25to34HI>100K","P86HH35to44HI<5K","P86HH35to44HI5Kto10K","P86HH35to44HI10Kto15K","P86HH35to44HI15Kto25K","P86HH35to44HI25Kto35K","P86HH35to44HI35Kto50K","P86HH35to44HI50Kto75K","P86HH35to44HI75Kto100K","P86HH35to44HI>100K","P86HH45to54HI<5K","P86HH45to54HI5Kto10K","P86HH45to54HI10Kto15K","P86HH45to54HI15Kto25K","P86HH45to54HI25Kto35K","P86HH45to54HI35Kto50K","P86HH45to54HI50Kto75K","P86HH45to54HI75Kto100K","P86HH45to54HI>100K","P86HH55to64HI<5K","P86HH55to64HI5Kto10K","P86HH55to64HI10Kto15K","P86HH55to64HI15Kto25K","P86HH55to64HI25Kto35K","P86HH55to64HI35Kto50K","P86HH55to64HI50Kto75K","P86HH55to64HI75Kto100K","P86HH55to64HI>100K","P86HH65to74HI<5K","P86HH65to74HI5Kto10K","P86HH65to74HI10Kto15K","P86HH65to74HI15Kto25K","P86HH65to74HI25Kto35K","P86HH65to74HI35Kto50K","P86HH65to74HI50Kto75K","P86HH65to74HI75Kto100K","P86HH65to74HI>100K","P86HH>75HI<5K","P86HH>75HI5Kto10K","P86HH>75HI10Kto15K","P86HH>75HI15Kto25K","P86HH>75HI25Kto35K","P86HH>75HI35Kto50K","P86HH>75HI50Kto75K","P86HH>75HI75Kto100K","P86HH>75HI>100K","P54SchlEnrlPrePrim","P54SchlEnrlElemThrHS","P54SchlEnrlCollege","P54NotEnrlInSch","P57Pop25andOver","P57LessThan9thGrade","P579thto12thNoDip","P57HSGrad","P57SomeCollege","P57AssocDeg","P57BachelDeg","P57GradorProfDeg","P57HSGradorHigher","P57CollGradorHigher","P42NativePop","P42ForeignBornPop","P42BornStateOfRes","P37NativePop2","P37ForeignBornPop2","P49DroveAlone","P49CarPooled","P49PublicTranspt","P49Walked","P49OtherMeans","P49WorkedAtHome","P80HHInc<10K","P80HHInc10to15K","P80HHInc15to25K","P80HHInc25to35K","P80HHInc35to50K","P80HHInc50to75K","P80HHInc75to100K","P80HHInc100to150K","P80HHInc>150K","H25YearStBlt89to90","H25YearStBlt85to88","H25YearStBlt80to84","H25YearStBlt70to79","H25YearStBlt60to69","H25YearStBlt50to59","H25YearStBlt40to49","H25YearStBlt39earlier","P107FamInc<10K","P107FamInc10to15K","P107FamInc15to25K","P107FamInc25to35K","P107FamInc35to50K","P107FamInc50to75K","P107FamInc75to100K","P107FamInc100to150K","P107FamInc>150K","P107AMedFamInc","P110NonFamInc<10K","P110NonFamInc10to15K","P110NonFamInc15to25K","P110NonFamInc25to35K","P110NonFamInc35to50K","P110NonFamInc50to75K","P110NonFamInc75to100K","P110NonFamInc100to150K","P110NonFamInc>150K","P110AMedNonFamInc","H16HU1Room","H16HU2Room","H16HU3Room","H16HU4Room","H16HU5Room","H16HU6Room","H16HU7Room","H16HU8Room","H16HU9+Room","H43GrossRnt<100","H43GrossRnt100to149","H43GrossRnt150to199","H43GrossRnt200to249","H43GrossRnt250to299","H43GrossRnt300to349","H43GrossRnt350to399","H43GrossRnt400to449","H43GrossRnt450to499","H43GrossRnt500to549","H43GrossRnt550to599","H43GrossRnt600to649","H43GrossRnt650to699","H43GrossRnt700to749","H43GrossRnt750to999","H43GrossRnt1000Plus","H43NoCashRent","H43MedGrossRent","H51GrossRnt<20PctHHInc","H51GrossRnt20to24PctHHInc","H51GrossRnt25to29PctHHInc","H51GrossRnt30to34PctHHInc","H51GrossRnt35PctOrMoreHHInc","H51GrossRntAsPctHHIncNotComp","H52HUwMtgMoOwnCst<200","H52HUwMtgMoOwnCst200to299","H52HUwMtgMoOwnCst300to399","H52HUwMtgMoOwnCst400to499","H52HUwMtgMoOwnCst500to599","H52HUwMtgMoOwnCst600to699","H52HUwMtgMoOwnCst700to799","H52HUwMtgMoOwnCst800to899","H52HUwMtgMoOwnCst900to999","H52HUwMtgMoOwnCst1000to1249","H52HUwMtgMoOwnCst1250to1499","H52HUwMtgMoOwnCst1500to1999","H52HUwMtgMoOwnCst2000More","H52HUwNoMtgMoOwnCst<100","H52HUwNoMtgMoOwnCst100to149","H52HUwNoMtgMoOwnCst150to199","H52HUwNoMtgMoOwnCst200to249","H52HUwNoMtgMoOwnCst250to299","H52HUwNoMtgMoOwnCst300to349","H52HUwNoMtgMoOwnCst350to399","H52HUwNoMtgMoOwnCst400More","H52AMedMoOwnCstWMortg","H52AMedMoOwnCstWNoMortg","H58HUwMtgMOC<20pHHInc","H58HUwMtgMOC20to24pHHInc","H58HUwMtgMOC25to29pHHInc","H58HUwMtgMOC30to34pHHInc","H58wMtgMOC>35pHHInc","H58HUwMtgMOCNotComp","H58HUwNoMtgMOC<20pHHInc","H58HUwNoMtgMOC20to24pHHInc","H58HUwNoMtgMOC25to29pHHInc","H58HUwNoMtgMOC30to34pHHInc","H58wNoMtgMOC>35pHHInc","H58HUwNoMtgMOCNotComp","H61OOHUVal<15k","H61OOHUVal15to19k","H61OOHUVal20to24k","H61OOHUVal25to29k","H61OOHUVal30to34k","H61OOHUVal35to39k","H61OOHUVal40to44k","H61OOHUVal45to49k","H61OOHUVal50to59k","H61OOHUVal60to74k","H61OOHUVal75to99k","H61OOHUVal100to124k","H61OOHUVal125to149k","H61OOHUVal150to174k","H61OOHUVal175to199k","H61OOHUVal200to249k","H61OOHUVal250to299k","H61OOHUVal300to399k","H61OOHUVal400to499k","H61OOHUVal500kOrMore","H61aOOHUMedVal"]
[]
[]
[]
[]
[]
[]
[]
[]
[]
[]
[]
[]
[]
[]
[]
["Other Demo Data -             Query Name: QryAllTowns-ACSDemographicSheet",null,null,"2020-12-18"]
[]
["TOWN_NAME","FIPS","TOWNCNTY","COUSUB","POP80","POP90CDCEN","POP2000CEN","POP2010CEN","POP2025-Proj","POP2030-Proj","POP2040-Proj","SF80","MF80","MH80","SF81","MF81","MH81","SF82","MF82","MH82","SF83","MF83","MH83","SF84_OSP","MF84_OSP","MH84_OSP","SF85_OSP","MF85_OSP","MH85_OSP","SF86_OSP","MF86_OSP","MH86_OSP","SF87_OSP","MF87_OSP","MH87_OSP","SF88_OSP","MF88_OSP","MH88_OSP","SF89_OSP","MF89_OSP","MH89_OSP","SF90_OSP","MF90_OSP","MH90_OSP","SF91_OSP","MF91_OSP","MH91_OSP","SF92_OSP","MF92_OSP","MH92_OSP","SF93_OSP","MF93_OSP","MH93_OSP","SF94_OSP","MF94_OSP","MH94_OSP","SF95_OSP","MF95_OSP","MH95_OSP","SF96_OSP","MF96_OSP","MH96_OSP","SF97_OSP","MF97_OSP","MH97_OSP","SF98_OSP","MF98_OSP","MH98_OSP","SF99_OSP","MF99_OSP","MH99_OSP","SF00_OSP","MF00_OSP","MH00_OSP","SF01_OSP","MF01_OSP","MH01_OSP","SF02_OSP","MF02_OSP","MH02_OSP","SF03_OSP","MF03_OSP","MH03_OSP","SF04_OSP","MF04_OSP","MH04_OSP","SF05_OSP","MF05_OSP","MH05_OSP","SF06_OSP","MF06_OSP","MH06_OSP","SF07_OSP","MF07_OSP","MH07_OSP","SF08_OSP","MF08_OSP","MH08_OSP","SF09_OSP","MF09_OSP","MH09_OSP","SF10_OSP","MF10_OSP","MH10_OSP","SF11_OSP","MF11_OSP","MH11_OSP","SF12_OSP","MF12_OSP","MH12_OSP","SF13_OSP","MF13_OSP","MH13_OSP","SF14_OSP","MF14_OSP","MH14_OSP","SF15_OSP","MF15_OSP","MH15_OSP","SF16_OSP","MF16_OSP","MH16_OSP","SF17_OSP","MF17_OSP","MH17_OSP","SF18_OSP","MF18_OSP","MH18_OSP","SF19_OSP","MF19_OSP","MH19_OSP","COMMENTS","CNTY_CODE"]
["Barrington",17005,901,"03460",4404,6164,7475,8576,9536,9730,9970,26,0,15,22,0,9,37,6,20,41,0,14,45,10,15,62,1,6,68,18,4,62,0,3,79,6,11,67,5,4,52,0,6,37,1,7,31,2,11,30,0,10,33,0,8,50,2,10,36,4,14,52,0,14,54,0,7,67,4,0,69,0,6,51,6,1,59,10,0,44,0,1,77,2,0,63,4,15,52,0,22,37,6,0,42,0,0,29,0,0,37,0,2,20,2,0,19,0,2,17,0,3,26,0,2,26,0,0,26,0,5,41,0,0,33,8,1,15,6,-1,"",9]
["Dover",17010,902,"18820",22377,25042,26884,29987,32470,33131,33950,81,46,12,22,28,13,41,0,10,165,58,11,68,128,11,204,245,13,260,28,0,647,31,0,213,93,12,60,3,3,35,4,11,53,0,4,50,0,1,40,53,4,57,0,2,52,2,0,54,2,0,68,74,1,74,47,16,114,30,9,130,31,16,143,6,22,113,120,15,99,150,-21,83,45,-4,59,31,4,53,75,1,37,28,1,16,63,0,42,68,0,53,20,0,46,9,1,68,23,4,60,54,1,57,13,0,44,38,0,60,18,4,52,112,5,41,237,3,39,169,3,"2001 Did not submit data to OEP. Used Census Data",9]
["Durham",17015,903,"19700",10652,11818,12664,14638,16387,16720,17134,9,0,0,13,0,0,13,2,0,23,69,0,30,30,0,39,14,0,72,16,0,52,2,0,35,0,0,27,6,0,18,9,0,19,0,0,10,0,0,23,28,0,27,0,0,30,4,0,26,0,0,33,3,0,40,3,0,42,8,-1,17,7,0,21,43,0,10,115,0,12,31,0,15,10,4,13,12,0,8,4,0,2,2,0,2,55,0,1,62,0,5,6,0,52,121,0,4,17,0,17,133,0,8,164,0,6,6,0,4,1,0,1,0,0,8,155,0,11,1,0,"",9]
["Farmington",17020,904,"26020",4630,5739,5774,6786,7710,7867,8061,0,0,0,0,0,0,0,0,0,0,0,0,0,0,0,18,16,10,45,1,21,43,10,15,34,-1,20,18,3,27,10,0,4,7,0,9,15,-3,5,10,4,5,8,5,16,7,0,8,12,0,1,9,1,14,12,3,26,23,0,27,34,0,27,37,0,20,45,14,22,76,10,23,81,12,0,54,5,19,44,0,7,40,2,5,7,0,3,11,1,2,8,1,1,6,1,-1,2,0,0,5,1,1,6,1,-5,5,3,0,15,0,5,5,2,3,-8,4,7,3,6,6,"",9]
["Lee",17025,905,"41460",2111,3729,4145,4330,4381,4470,4581,12,2,4,17,4,0,23,4,1,32,18,5,22,13,4,73,63,5,92,10,5,66,6,3,26,10,0,35,2,0,12,6,3,7,2,2,16,0,0,18,2,0,19,2,0,14,2,0,24,4,4,20,1,3,34,0,0,26,0,6,30,0,0,17,0,3,10,2,0,18,2,0,38,0,4,10,6,0,8,4,0,13,0,0,4,0,0,1,0,0,5,0,0,4,0,0,2,0,0,4,0,-1,1,0,1,6,0,0,11,0,0,11,2,0,26,3,5,16,0,0,"2005 Did not submit data to OEP. Used Census Data",9]
["Madbury",17030,906,"44820",987,1404,1509,1771,2010,2051,2101,8,0,-1,7,0,2,0,2,0,4,2,1,13,2,1,32,8,3,14,3,5,18,2,1,3,-2,0,10,0,2,8,0,0,6,0,0,5,2,2,5,2,1,3,0,2,6,2,4,4,0,0,4,0,0,10,0,1,7,0,0,21,0,3,24,2,0,10,8,1,13,2,0,9,0,0,13,2,-2,8,0,-2,9,1,0,4,10,0,6,6,3,2,4,0,1,0,0,3,0,0,0,0,0,3,0,0,5,0,0,3,0,0,4,0,0,9,0,1,2,0,0,"",9]
["Middleton",17035,907,"47700",734,1183,1440,1783,2116,2159,2212,2,0,5,2,0,1,2,0,1,3,0,0,2,0,2,17,0,4,18,0,1,28,1,9,38,0,9,23,0,3,2,0,0,5,0,0,4,0,2,9,0,0,2,1,2,6,0,3,7,0,4,5,0,2,6,0,5,8,0,7,7,9,9,18,0,7,18,0,10,30,0,0,31,0,2,82,0,0,14,0,0,8,0,2,6,0,0,3,0,0,1,0,0,0,0,1,0,0,0,1,0,0,0,0,1,5,4,0,4,0,0,1,0,0,6,0,0,1,1,0,"2005 Did not submit data to OEP. Used Census Data",9]
["Milton",17040,908,"48660",2438,3691,3910,4598,5227,5333,5465,5,0,3,7,0,2,7,0,2,9,0,8,13,5,10,14,0,31,45,18,18,29,18,12,31,40,12,40,6,8,5,6,22,4,2,3,15,1,2,4,0,0,5,0,2,1,0,3,8,0,7,6,0,5,12,0,0,19,2,10,42,0,6,45,0,10,41,0,11,42,2,0,45,0,0,108,4,0,45,0,7,1,0,10,15,0,0,2,0,0,3,2,0,6,0,-4,-2,1,0,-1,0,2,2,0,0,3,0,0,4,0,8,4,1,5,1,0,6,1,0,6,"2002, 2005 Did not submit data to OEP. Used Census Data",9]
["New Durham",17045,909,"51220",1183,1974,2220,2638,3026,3088,3164,8,0,4,10,0,3,5,0,3,11,0,6,19,0,6,26,0,13,44,0,0,54,0,11,64,0,2,37,2,1,17,1,1,12,0,0,6,0,0,6,0,2,9,0,5,13,0,0,14,0,2,11,0,2,19,0,2,15,0,3,32,0,6,24,0,2,29,0,4,30,0,0,52,0,0,57,0,2,25,0,0,17,0,0,6,0,0,8,0,0,4,0,0,-3,0,0,-1,0,0,-2,0,0,3,-2,0,5,0,1,2,0,0,6,0,0,9,0,0,12,2,1,"",9]
["Rochester",17050,910,"65140",21560,26630,28461,29752,30126,30739,31499,46,48,11,31,0,6,19,10,8,42,2,38,111,27,52,159,73,132,321,334,250,335,117,159,81,28,87,114,1,78,54,0,30,36,-7,32,36,2,28,19,-6,69,47,43,61,30,5,37,26,0,62,30,0,56,50,63,88,79,0,52,87,16,40,62,-3,71,108,7,88,86,193,61,158,90,44,92,26,26,66,145,11,69,4,0,63,0,18,15,30,1,20,31,5,20,0,0,39,0,36,0,0,3,27,24,7,45,51,0,7,71,10,71,113,28,61,58,24,33,123,5,"",9]
["Rollinsford",17055,911,"65540",2319,2645,2648,2527,2289,2336,2393,2,1,0,2,0,0,3,0,0,5,1,0,4,11,0,11,0,4,50,2,0,27,2,0,40,1,1,24,0,0,4,0,0,6,2,0,8,0,0,5,0,0,5,0,0,4,0,0,5,0,0,2,0,0,6,0,0,3,0,0,0,0,0,4,2,0,7,2,0,2,2,0,1,0,0,7,0,0,6,2,0,3,0,0,-1,0,0,2,0,0,2,0,0,0,0,0,1,0,1,1,2,0,2,0,0,6,0,0,8,0,0,9,0,0,4,0,0,3,2,0,"",9]
["Somersworth",17060,912,"69940",10350,11249,11477,11766,11655,11892,12186,1,-7,0,7,2,4,9,62,1,22,22,12,17,24,9,30,77,27,90,15,23,34,12,24,52,20,12,38,4,9,14,3,5,14,0,3,7,0,3,14,0,11,14,0,2,7,0,8,12,2,31,10,2,7,18,2,7,28,46,0,29,4,-2,23,16,0,23,16,0,13,41,0,49,4,11,64,1,0,39,17,0,23,50,0,16,4,0,12,0,-1,13,-1,0,2,0,0,3,0,5,4,0,-2,0,0,1,10,-3,0,14,14,-2,19,0,0,14,0,4,18,0,-1,"",9]
["Strafford",17065,913,"73860",1663,2965,3626,3991,4265,4352,4460,7,0,2,22,0,2,0,0,0,44,0,1,42,1,0,48,2,5,0,0,0,71,0,-1,68,0,0,42,0,0,30,0,1,13,0,0,17,1,0,10,0,0,22,0,1,25,0,2,10,0,0,19,0,0,23,0,5,41,2,10,31,0,2,36,2,0,41,0,0,32,4,0,28,2,0,28,0,0,15,0,0,8,2,3,4,0,0,9,3,2,6,0,0,10,0,0,6,0,0,10,0,0,16,0,0,8,0,2,11,0,0,12,2,0,21,6,0,15,3,1,"2002 Did not provide data. Census data used",9]
[]
[]
[]
[]
[]
[]
[]
[]
[]
[]
[]
[]
[]
[]
[]
[]
[]
[]
[]
[]
[]
[]
[]
[]
[]
[]
[]
[]
[]
[]
[]
[]
[]
[]
[]
[]
[]
["NH Employment Data","Query Name: DPQryEmploymentByCnty-Good-Serv-Total","Updated:","2019-09-17"]
[]
["AreaName","COUNTYCODE","TOTP & G2001","TOT2001","GOODPRO2001","SERVICEPROMAN2001","WAGEP & G2001","WAGETOT2001","WAGEGOODPRO2001","WAGESERVICEPRO2001","TOTP & G2002","TOT2002","GOODPRO2002","SERVICEPROMAN2002","WAGEP & G2002","WAGETOT2002","WAGEGOODPRO2002","WAGESERVICEPRO2002","TOTP & G2003","TOT2003","GOODPRO2003","SERVICEPROMAN2003","WAGEP & G2003","WAGETOT2003","WAGEGOODPRO2003","WAGESERVICEPRO2003","TOTP & G2004","TOT2004","GOODPRO2004","SERVICEPROMAN2004","WAGEP & G2004","WAGETOT2004","WAGEGOODPRO2004","WAGESERVICEPRO2004","TOTP & G2005","TOT2005","GOODPRO2005","SERVICEPROMAN2005","WAGEP & G2005","WAGETOT2005","WAGEGOODPRO2005","WAGESERVICEPRO2005","TOTP & G2006","TOT2006","GOODPRO2006","SERVICEPROMAN2006","WAGEP & G2006","WAGETOT2006","WAGEGOODPRO2006","WAGESERVICEPRO2006","TOTP & G2007","TOT2007","GOODPRO2007","SERVICEPROMAN2007","WAGEP & G2007","WAGETOT2007","WAGEGOODPRO2007","WAGESERVICEPRO2007","TOTP & G2008","TOT2008","GOODPRO2008","SERVICEPROMAN2008","WAGEP & G2008","WAGETOT2008","WAGEGOODPRO2008","WAGESERVICEPRO2008","TOTP & G2009","TOT2009","GOODPRO2009","SERVICEPROMAN2009","WAGEP & G2009","WAGETOT2009","WAGEGOODPRO2009","WAGESERVICEPRO2009","TOTP & G2010","TOT2010","GOODPRO2010","SERVICEPROMAN2010","WAGEP & G2010","WAGETOT2010","WAGEGOODPRO2010","WAGESERVICEPRO2010","TOTP & G2011","TOT2011","GOODPRO2011","SERVICEPROMAN2011","WAGEP & G2011","WAGETOT2011","WAGEGOODPRO2011","WAGESERVICEPRO2011","TOTP & G2012","TOT2012","GOODPRO2012","SERVICEPROMAN2012","WAGEP & G2012","WAGETOT2012","WAGEGOODPRO2012","WAGESERVICEPRO2012","TOTP & G2013","TOT2013","GOODPRO2013","SERVICEPROMAN2013","WAGEP & G2013","WAGETOT2013","WAGEGOODPRO2013","WAGESERVICEPRO2013","TOTP & G2014","TOT2014","GOODPRO2014","SERVICEPROMAN2014","WAGEP & G2014","WAGETOT2014","WAGEGOODPRO2014","WAGESERVICEPRO2014","TOTP & G2015","TOT2015","GOODPRO2015","SERVICEPROMAN2015","WAGEP & G2015","WAGETOT2015","WAGEGOODPRO2015","WAGESERVICEPRO2015","TOTP & G2016","TOT2016","GOODPRO2016","SERVICEPROMAN2016","WAGEP & G2016","WAGETOT2016","WAGEGOODPRO2016","WAGESERVICEPRO2016","TOTP & G2017","TOT2017","GOODPRO2017","SERVICEPROMAN2017","WAGEP & G2017","WAGETOT2017","WAGEGOODPRO2017","WAGESERVICEPRO2017","TOTP & G2018","TOT2018","GOODPRO2018","SERVICEPROMAN2018","WAGEP & G2018","WAGETOT2018","WAGEGOODPRO2018","WAGESERVICEPRO2018","TOTP & G2019","TOT2019","TOTGov2019","GOODPRO2019","SERVICEPROMAN2019","WAGEP & G2019","WAGETOT2019","WAGEGov2019","WAGEGOODPRO2019","WAGESERVICEPRO2019","SummaryLevel"]
["Barrington",9,967,766,128,637,576.54,591.1,545.95000000000005,600.17999999999995,1011,803,121,682,597.25,612.87,557.24,622.72,984,777,139,638,585.84,584.16999999999996,534.86,594.92999999999995,1065,841,144,697,624.84,632.54999999999995,555.78,648.38,1165,923,140,783,635.08000000000004,650.46,585.94000000000005,662,1246,992,150,843,643.59,658.49,636.42999999999995,662.41,1309,1033,141,892,645.05999999999995,658.62,599.33000000000004,668,1536,1253,352,901,739.01,766.39,955.73,692.46,1475,1184,323,861,744.65,778.79,932.29,721.2,1468,1188,354,834,769.31,796.47,1067.45,681.53,1522,1236,396,840,783.83,814.57,994.51,729.74,1591,1306,457,849,793.41,823.23,1006,724.85,1650,1370,487,883,840.65,873.52,1118.82,738.04,1661,1387,505,883,839.24,862.33,1124.94,712.28,1785,1502,607,895,900.26,931.95,1163.26,775.14,1880,1583,673,910,886.48,921.27,1107.7,783.48,1947,1661,721,939,927.55,955.59,1123.82,826.39,2015,1719,791,928,985.51,1021.32,1209.45,860.86,2070,1769,302,811,958,996.42,1033.02,781.75,1174.99,912.8,60]
["Dover",9,15072,13283,2858,10425,632.05999999999995,637.82000000000005,778.92,599.14,15077,13240,2523,10717,664.15,673.77,819.33,639.5,15503,13665,2760,10906,682.59,689.77,825.13,655.52,15657,13782,2573,11209,721.01,730.14,842.18,704.42,15847,13991,2439,11553,746.59,757.36,862.81,735.1,16247,14373,2447,11926,782.26,793.93,932.95,765.41,16755,14911,2298,12612,806.67,818.08,934.77,796.82,17630,15761,2008,13753,896.17,915.68,964.24,908.59,16271,14460,1319,13141,927.27,947.34,888.43,953.25,16402,14574,1278,13296,940.99,964.19,893.1,971.03,16586,14809,1318,13491,999.42,1028.5899999999999,1373.88,994.84,16773,15013,1293,13720,979.59,1004.09,928.7,1011.19,16666,14920,1325,13594,1004.16,1028.76,900.5,1041.26,17129,15376,1318,14058,1033.55,1058.98,940.46,1070.0899999999999,17215,15437,1287,14150,1075.03,1099.92,980.47,1110.79,17406,15575,1308,14266,1098.8,1128.17,995.64,1140.33,17579,15737,1329,14408,1134.43,1163.17,1023.16,1176.0899999999999,17761,15885,1393,14492,1136.08,1163.03,1015.1,1177.24,17768,15890,1878,1428,14462,1183.49,1211.8800000000001,943.29,1040.23,1228.82,60]
["Durham",9,6455,2067,"n","n",754.34,770.54,"n","n",6546,2063,545,1518,765.22,758.43,1114.96,630.29999999999995,6856,2059,559,1500,774.67,664,1139.71,486.77,6806,1990,589,1401,819.79,622.16999999999996,1122.06,411.93,6683,2031,582,1449,822.27,612.59,1085.8,422.63,6438,1857,362,1496,826.48,564.86,1089.52,437.89,6291,1691,348,1343,876.76,635.4,1114.82,511.1,6173,1697,318,1378,965.78,640.53,1159.44,520.73,6327,2141,"n","n",1009.57,731.94,"n","n",6115,1905,"n","n",1039.58,773.82,"n","n",6054,1818,"n","n",1073.46,848.18,"n","n",6091,1812,"n","n",1072.6500000000001,867.08,"n","n",6100,1876,"n","n",1091.81,834.04,"n","n",6255,1921,531,1389,1074.6199999999999,873.85,1402.33,671.74,6249,1910,"n","n",1120.08,830.06,"n","n",6261,1917,401,1517,1137.3599999999999,810.43,1369.37,662.73,6131,1747,343,1404,1148.4000000000001,850.36,1465.79,699.9,5986,1687,253,1434,1172.9100000000001,823.27,1497.11,704.33,6000,1697,4303,212,1485,1145.98,796.85,1283.71,1428.29,706.48,60]
["Farmington",9,1636,1357,969,388,627.07000000000005,646.54,727.6,444.36,1607,1308,872,436,642.54999999999995,666.17,758.3,482,1128,829,407,422,635.91999999999996,661.43,802.85,525.22,1040,744,319,425,635.79999999999995,658.54,843.59,519.57000000000005,1109,783,350,432,656.21,686.31,874.17,533.99,1152,814,385,429,665.51,687.88,888.02,508.48,1073,718,299,419,668.29,693.33,939.48,517.66999999999996,1026,657,249,408,669.13,675.77,903.1,537.25,978,603,214,390,705.85,735.12,1000.08,589.91999999999996,944,568,203,365,686.79,699.22,934.89,568.16999999999996,953,580,219,361,697.66,726.29,975.69,574.99,1012,629,227,403,688.62,725.1,998.12,571.23,1008,653,254,398,738.61,781.87,1067.55,599.44000000000005,1000,655,225,430,736.96,763.59,1079.02,598.63,1004,661,243,418,739.61,787.95,1035.53,643.91,971,646,256,390,823.7,885.81,1147.3399999999999,714.17,956,614,209,405,780.04,809.5,1030.4000000000001,695.59,947,617,208,410,795.06,811.47,1014.73,708.47,954,616,338,207,409,798.09,820.56,757.11,986.71,736.47,60]
["Lee",9,1074,961,90,871,409.9,395.35,672.72,366.82,1050,936,87,849,434.83,421.6,693.66,393.66,991,870,77,793,458.81,442.24,643.44000000000005,422.67,982,858,87,772,494.87,475.7,597.07000000000005,462.1,1020,888,88,799,524.04,511.41,707.15,489.8,1041,907,88,819,521.54999999999995,502.92,655.75,486.5,1118,981,81,901,504.47,482.32,637.38,468.46,1123,988,86,902,509.21,482.13,512.69000000000005,479.22,1106,970,76,894,495.31,464.52,501.51,461.37,1113,982,82,900,512.19000000000005,479,494.96,477.54,1117,974,80,894,529.71,491.02,602.79999999999995,481.07,1153,1008,74,935,520.70000000000005,490.17,616.37,480.24,1189,1050,61,990,522.71,492.69,663.34,482.25,1212,1039,60,979,579.72,515.47,664.54,506.32,1221,1084,61,1023,555.89,524.12,687.22,514.37,1233,1106,70,1035,578.72,557.75,742.29,545.25,1306,1178,83,1095,592.41999999999996,569.29,696.44,559.66999999999996,1304,1174,79,1095,646.13,626.91,717.55,620.41999999999996,1330,1193,9,100,1092,684.66,666.3,2064.29,814.76,652.66,60]
["Madbury",9,147,133,52,81,542.29999999999995,575.29,513.58000000000004,615.32000000000005,238,149,56,93,597.01,646.04,541.29,708.37,249,162,61,101,676.53,738.31,565.95000000000005,841.82,281,191,61,131,757.86,828.25,609.44000000000005,929.36,276,190,59,131,686.04,730.73,606.64,786.83,257,173,47,127,683.71,695.18,684.14,699.23,252,168,43,125,666.64,659.39,779.41,617.97,251,154,"n","n",668.21,682.59,"n","n",255,156,45,111,727.33,760.61,717.33,778.31,245,145,39,106,722.32,771.54,739.99,783.17,239,137,"n","n",841.34,969.41,"n","n",246,145,41,104,841.32,951.44,880.25,979.4,246,149,41,107,874.21,968.64,878.49,1003.41,252,151,40,111,861.18,958.22,897.88,980.15,258,156,40,116,894.02,987.08,1003.73,981.34,276,178,35,143,915.47,965.56,1096.27,933.18,291,194,34,160,971.67,1023.53,1175.8900000000001,990.9,289,194,37,157,1008.23,1071.6199999999999,1146.6199999999999,1053.79,333,240,92,50,190,882.29,873.85,904.21,1142.8,802.36,60]
["Middleton",9,155,137,"n","n",556.74,592.08000000000004,"n","n",143,126,22,105,667.94,718.95,509.75,762.22,150,132,12,120,618.22,665.39,594.04,672.59,144,125,6,119,663.4,721.24,598.58000000000004,727.51,145,123,9,114,711.73,789.24,516.98,811.11,136,121,9,112,757.75,795,540.84,814.83,135,118,10,108,754.76,798.42,678.16,809.77,124,107,"n","n",781.58,819.42,"n","n",119,101,"n","n",741.01,781.47,"n","n",128,103,"n","n",680.63,759.72,"n","n",120,103,5,99,750.14,777.49,390,796.15,128,100,"n","n",720.72,825.91,"n","n",139,118,"n","n",1031.5999999999999,1133.46,"n","n",137,122,"n","n",1131.95,1163.24,"n","n",135,121,4,117,1060.96,1078.6500000000001,667.87,1092.76,138,124,6,118,1010.98,1012.7,538.25,1034.75,136,120,0,0,996.95,990.78,0,0,141,126,0,0,977.11,975.52,0,0,155,140,0,0,0,951.9,940.61,0,0,0,60]
["Milton",9,356,310,180,131,476.41,480.68,518.33000000000004,428.79,375,326,186,140,508.78,515.17999999999995,559.34,456.78,454,403,217,185,508.32,510.02,544.01,470.22,492,436,252,185,533.15,543.95000000000005,589.83000000000004,481.46,477,417,244,173,562.07000000000005,579.65,627.83000000000004,511.85,527,469,257,213,575.65,585.58000000000004,648.65,509.51,513,455,245,211,632.38,635.86,707.03,553.29999999999995,513,453,229,224,634.83000000000004,636.1,698.78,571.92999999999995,455,401,188,213,649.55999999999995,645.97,698.14,599.75,495,440,221,219,652.29999999999995,649.21,715.24,582.48,537,480,243,237,659.77,657.38,718.85,594.22,530,465,236,230,732.99,747.17,808,684.65,519,451,244,207,733.44,752.49,786.2,712.84,582,514,273,241,814.61,834.92,830.59,839.83,589,520,264,256,881.01,905.54,934.55,875.65,577,507,266,241,869.34,894.85,861.84,931.23,587,515,272,244,878.53,904.47,850.89,964.15,589,515,292,223,910.49,936.94,909.75,972.58,608,536,72,302,235,904.76,921.87,777.11,861.04,999.99,60]
["New Durham",9,239,161,21,141,573.47,603.62,647.91999999999996,597.16,241,152,18,134,633.86,721.73,549.20000000000005,744.55,228,142,17,124,655.83,737.29,558.27,762.24,236,153,24,129,642.54999999999995,686.6,515.72,718.82,235,148,29,119,718.78,806,518.26,876.28,332,247,34,213,609.41999999999996,609.1,542.14,619.79999999999995,328,228,35,193,647.65,686.57,677.34,688.24,355,240,40,200,727.33,822.39,530.30999999999995,880.73,306,192,30,162,537.64,523.42999999999995,621.79,505.51,281,165,23,142,531.54,525.62,651.12,505.44,300,184,23,161,541.85,531.82000000000005,678.13,511.01,290,182,"n","n",526.95000000000005,510.43,"n","n",274,170,"n","n",536.6,516.84,"n","n",240,137,"n","n",566.39,554.13,"n","n",258,147,"n","n",575.48,616.70000000000005,"n","n",259,159,21,138,638.98,654.95000000000005,746.96,641.13,247,147,16,130,713.08,773.95,800.46,770.63,279,175,19,156,697,738.27,871.34,721.96,275,172,103,13,159,640.22,642.85,635.79999999999995,745.89,634.28,60]
["Rochester",9,11888,10711,2575,8136,715.39,729.43,795.69,708.46,11143,9848,1791,8057,649.78,660.08,817.04,625.17999999999995,11059,9763,1708,8055,642.30999999999995,647.39,773.1,620.74,10935,9664,1666,7998,641.45000000000005,641.09,768.85,614.47,10944,9654,1713,7941,644.64,644.05999999999995,764.91,618,11250,9937,1790,8147,650.77,648.54999999999995,818,611.32000000000005,11702,10330,1853,8476,670.68,667.45,846.88,628.21,11760,10354,1844,8511,690.71,688.41,856,652.11,11201,9784,1613,8171,686,680.33,907.22,635.54,11079,9599,1671,7928,706.57,705.31,977.22,647.99,10780,9364,1614,7750,734.07,733.64,1062.29,665.17,10732,9318,1559,7760,750.73,752.87,1163.8599999999999,670.33,11035,9644,1759,7885,767.61,766.34,1198.75,669.88,11249,9811,1897,7914,791.7,794.8,1206.82,696.03,11523,10100,1939,8161,843.18,849.52,1305.07,741.27,11928,10514,2072,8442,845.47,851.07,1296.42,741.78,12108,10693,2170,8522,877.87,884.76,1388.36,756.52,12359,10941,2260,8681,889.69,895.48,1302.67,789.49,12483,11067,1415,2370,8697,901.03,906.17,860.8,1307.21,796.89,60]
["Rollinsford",9,580,513,237,276,521.07000000000005,537.6,647.22,443.43,389,324,163,160,533.16999999999996,549.9,694.85,402.24,427,358,170,189,574.20000000000005,594.54,723.22,478.88,542,472,238,234,648.9,671.23,749.18,591.78,640,567,259,308,703.16,728.88,792.51,675.55,688,610,330,281,700.41,724.62,765.75,676.3,635,553,358,195,651.77,670.4,732.24,556.61,582,503,335,168,662.96,678.13,750.4,533.52,579,495,325,169,650.05999999999995,666.92,733.96,538.13,590,511,327,184,706.06,725.25,775.44,635.91,547,470,271,199,657.75,667.52,657.37,681.35,562,472,269,203,656.02,680.4,732.14,611.82000000000005,524,435,251,183,662.33,685.14,714.64,644.66,507,427,246,181,658.43,666.75,703.16,617.13,507,424,246,178,717.54,732.91,759.67,695.95,521,439,246,193,787.72,823.84,838.55,805.13,554,474,248,226,755.01,777.62,807.62,744.62,591,507,258,249,746.28,765.53,826.07,702.85,594,512,81,266,246,757.67,765.31,709.56,851.33,672.3,60]
["Somersworth",9,4743,4243,1384,2859,579.5,585.25,749.04,505.96,4691,4178,1173,3005,597.4,601.83000000000004,740.02,547.91,4718,4212,1156,3056,634.1,638.29999999999995,790.45,580.74,4935,4433,1157,3276,646.45000000000005,648.11,835.43,581.94000000000005,4909,4375,1180,3196,669.66,676.57,833.66,618.58000000000004,4890,4364,1106,3258,672.59,675.75,841.42,619.5,5078,4552,1105,3447,701.54,704.31,897.42,642.4,5115,4585,1108,3477,713.59,715.82,910.08,653.91999999999996,4938,4418,1017,3400,740.8,743.39,975.69,673.9,4951,4427,1042,3385,787.94,795.86,1060.99,714.23,5055,4524,1106,3418,793.17,803.08,1098.76,707.44,5549,5013,1168,3845,789.42,796.96,1068.3,714.54,5669,5137,1248,3888,802.17,807.87,1033.28,735.5,5642,5122,1194,3928,809.23,813.47,1071.8800000000001,734.92,5700,5215,1372,3843,827.9,826.24,1062.4100000000001,741.91,5820,5345,1391,3954,828.3,825.45,1048.76,746.88,5933,5458,1358,4100,834.14,831.6,1015.59,770.67,5704,5239,1247,3992,852.64,850.38,1019.53,797.56,5740,5275,465,1182,4093,967.67,973.05,906.66,1103.01,935.52,60]
["Strafford",9,334,179,75,104,469.9,497.01,527.22,475.23,363,232,74,158,415.26,408.01,565.66,334.39,300,159,84,75,514.49,581.78,626.88,530.92999999999995,322,182,114,68,539.25,607.6,641.41999999999996,550.88,323,177,120,57,575.75,669.74,644.22,723.12,354,199,137,62,584.4,691.74,634.46,817.54,382,224,144,80,658.14,783.24,780.83,787.61,392,240,135,105,659.1,742.04,839.18,618.1,367,210,"n","n",606.34,651.66,"n","n",335,186,102,84,668.65,736.19,760.26,707.17,343,192,112,80,682.71,754.37,726.68,793.13,361,204,114,90,711.04,811.45,781.45,849.29,361,217,119,98,800.43,915.98,803.86,1051.72,384,238,116,122,813.15,919.22,867.42,968.27,383,242,129,113,824.95,933.57,877.97,996.88,361,221,136,86,794.08,893.83,876.87,920.63,390,243,143,101,805.02,912.46,931.73,885.2,405,259,148,111,853.7,969.67,954.97,989.33,404,257,147,144,112,867.46,988.38,656.37,1061.48,894.53,60]
[]
[]
[]
[]
["AreaName","COUNTYCODE","TOTP & G2001","TOT2001","GOODPRO2001","SERVICEPROMAN2001","WAGEP & G2001","WAGETOT2001","WAGEGOODPRO2001","WAGESERVICEPRO2001","TOTP & G2002","TOT2002","GOODPRO2002","SERVICEPROMAN2002","WAGEP & G2002","WAGETOT2002","WAGEGOODPRO2002","WAGESERVICEPRO2002","TOTP & G2003","TOT2003","GOODPRO2003","SERVICEPROMAN2003","WAGEP & G2003","WAGETOT2003","WAGEGOODPRO2003","WAGESERVICEPRO2003","TOTP & G2004","TOT2004","GOODPRO2004","SERVICEPROMAN2004","WAGEP & G2004","WAGETOT2004","WAGEGOODPRO2004","WAGESERVICEPRO2004","TOTP & G2005","TOT2005","GOODPRO2005","SERVICEPROMAN2005","WAGEP & G2005","WAGETOT2005","WAGEGOODPRO2005","WAGESERVICEPRO2005","TOTP & G2006","TOT2006","GOODPRO2006","SERVICEPROMAN2006","WAGEP & G2006","WAGETOT2006","WAGEGOODPRO2006","WAGESERVICEPRO2006","TOTP & G2007","TOT2007","GOODPRO2007","SERVICEPROMAN2007","WAGEP & G2007","WAGETOT2007","WAGEGOODPRO2007","WAGESERVICEPRO2007","TOTP & G2008","TOT2008","GOODPRO2008","SERVICEPROMAN2008","WAGEP & G2008","WAGETOT2008","WAGEGOODPRO2008","WAGESERVICEPRO2008","TOTP & G2009","TOT2009","GOODPRO2009","SERVICEPROMAN2009","WAGEP & G2009","WAGETOT2009","WAGEGOODPRO2009","WAGESERVICEPRO2009","TOTP & G2010","TOT2010","GOODPRO2010","SERVICEPROMAN2010","WAGEP & G2010","WAGETOT2010","WAGEGOODPRO2010","WAGESERVICEPRO2010","TOTP & G2011","TOT2011","GOODPRO2011","SERVICEPROMAN2011","WAGEP & G2011","WAGETOT2011","WAGEGOODPRO2011","WAGESERVICEPRO2011","TOTP & G2012","TOT2012","GOODPRO2012","SERVICEPROMAN2012","WAGEP & G2012","WAGETOT2012","WAGEGOODPRO2012","WAGESERVICEPRO2012","TOTP & G2013","TOT2013","GOODPRO2013","SERVICEPROMAN2013","WAGEP & G2013","WAGETOT2013","WAGEGOODPRO2013","WAGESERVICEPRO2013","TOTP & G2014","TOT2014","GOODPRO2014","SERVICEPROMAN2014","WAGEP & G2014","WAGETOT2014","WAGEGOODPRO2014","WAGESERVICEPRO2014","TOTP & G2015","TOT2015","GOODPRO2015","SERVICEPROMAN2015","WAGEP & G2015","WAGETOT2015","WAGEGOODPRO2015","WAGESERVICEPRO2015","TOTP & G2016","TOT2016","GOODPRO2016","SERVICEPROMAN2016","WAGEP & G2016","WAGETOT2016","WAGEGOODPRO2016","WAGESERVICEPRO2016","TOTP & G2017","TOT2017","GOODPRO2017","SERVICEPROMAN2017","WAGEP & G2017","WAGETOT2017","WAGEGOODPRO2017","WAGESERVICEPRO2017","TOTP & G2018","TOT2018","GOODPRO2018","SERVICEPROMAN2018","WAGEP & G2018","WAGETOT2018","WAGEGOODPRO2018","WAGESERVICEPRO2018","TOTP & G2019","TOT2019","TOTGov2019","GOODPRO2019","SERVICEPROMAN2019","WAGEP & G2019","WAGETOT2019","WAGEGov2019"]
["Belknap County",1,26173,22708,6138,16570,541.07000000000005,538.34,689.88,482.21,26052,22334,5408,16926,561.11,555.84,731.15,499.83,26286,22376,5281,17095,579.91,573.04,754.28,517.04999999999995,26931,23030,5431,17599,610.04,602.01,777.41,547.89,26940,22891,5467,17424,636.41999999999996,634.14,819.42,576,27237,23042,5133,17909,657.93,655.07000000000005,862.32,595.66999999999996,27266,23032,4820,18212,674.29,668.31,921.91,601.17999999999995,26793,22507,4572,17935,689.74,680.53,938.61,614.74,25570,21280,3944,17337,692.98,680.87,934.72,623.12,24943,20713,3480,17234,698.61,690.71,945.91,639.19000000000005,24953,20748,3411,17337,706.01,697.17,959.24,645.61,25196,20972,3400,17572,708.66,703.81,960.55,654.13,25517,21311,3517,17794,718.36,714.81,997.67,658.89,25490,21315,3554,17761,748.41,745.98,1036.05,687.93,25584,21457,3597,17859,776.57,774.35,1066.24,715.55,25708,21577,3626,17951,797.95,796.89,1088.81,737.93,25829,21725,3676,18049,823.13,823.31,1139.79,758.85,"25898",21803,3774,18029,851.06,851.82,1167.98,785.64,26080,22008,4072,3799,18209,854.12,849.87,877.08]
["Carroll County",2,19495,16938,2563,14374,467.52,460.32,627.98,430.42,19756,17153,2497,14656,481.01,472.65,645.74,443.16,20167,17534,2567,14967,492.28,481.72,647.55999999999995,453.27,20405,17701,2526,15175,519.72,511.1,687.06,481.81,20205,17448,2541,14906,533.86,524.08000000000004,703.81,493.43,20294,17504,2588,14916,575.59,568.1,737.84,538.66,20402,17510,2544,14966,573.29999999999995,562.55999999999995,760.1,528.99,20584,17636,2552,15084,584.17999999999995,570.32000000000005,770.38,536.47,19942,16904,2265,14639,587.36,570.99,765.31,540.91999999999996,19810,16754,2124,14630,600.19000000000005,586.5,775.97,558.99,19997,17005,2189,14816,617.28,603.41999999999996,798.39,574.61,20082,17083,2162,14921,627.16999999999996,615.41,800.29,588.62,19971,16958,2084,14874,645.66999999999996,633.79,805.62,609.71,20015,16952,2024,14928,640.24,627.02,843.7,597.64,19806,16828,1996,14832,667.3,653.87,884.26,622.86,19997,17053,2030,15023,686.74,674.21,909.04,642.48,20005,17047,2057,14991,692.33,677.15,941.62,640.87,"20015",17037,2078,14959,710.33,694.81,905.58,665.54,20228,17268,2960,2128,15140,735.27,721.26,816.99]
["Cheshire County",3,32349,27819,"n","n",571.92999999999995,577.30999999999995,"n","n",32369,27595,7795,19800,584.33000000000004,590.97,743.2,531.04,32548,27626,7754,19873,598.89,603.04,763.11,540.59,33075,28132,7648,20484,631.09,634.67999999999995,807.42,570.17999999999995,33995,28886,8110,20776,656.03,666.98,828.9,603.78,34194,29151,7889,21262,723.95,741.43,987.42,650.15,33638,28601,7473,21128,707.44,717.07,867.3,663.94,33220,28351,7351,21000,746.75,752.8,902.94,700.24,32207,27212,6761,20451,742.41,745.7,870.79,704.34,31527,26585,6300,20286,754.45,756.21,900.6,711.38,31690,26854,6240,20614,768.13,768.69,935.64,718.15,32021,27158,6245,20914,790.24,793.9,933.87,752.11,31923,27008,6032,20975,796.52,797.61,965.3,749.39,31904,26935,6025,20910,810.83,815.88,993.69,764.64,32067,27097,6073,21024,830.63,834.25,1010.79,783.25,32005,27109,6177,20932,838.96,843.47,1028.03,789.01,31743,26953,6194,20759,867.06,873.07,1043.75,822.14,"31642",26825,6445,20380,895.81,907.01,1090.07,849.12,31737,26923,4814,6652,20272,913.17,927.09,835.36]
["Coos County",4,13872,11234,"n","n",489.02,487.7,"n","n",13737,11021,2332,8689,490.8,484.33,650.88,439.63,13946,11225,2578,8647,525.08000000000004,519.66,703.37,464.89,14103,11341,2590,8751,542.98,540.59,726.42,485.6,14026,11222,2533,8689,556.04,552.64,754.89,493.68,13898,10991,2334,8657,572.86,571.41999999999996,766.73,518.76,13876,11050,2184,8866,583.63,572.30999999999995,758.88,526.34,13566,10747,1988,8759,602.53,587.51,755.51,549.38,13002,10134,1720,8414,609.67999999999995,592.77,751.35,560.36,12832,9977,1593,8384,608.57000000000005,589.54,744.88,560.02,12555,9785,1473,8312,620.23,600.46,757.95,572.54,12371,9564,1568,7995,640.94000000000005,622.74,825.56,582.97,12515,9564,1649,7915,667.37,647.75,855.89,604.39,12064,9083,1293,7789,675.59,651.58000000000004,777.89,630.61,11974,9046,1222,7824,694.46,666.94,788.97,647.89,11990,9038,1167,7870,706.62,682.98,853.55,657.68,11999,9070,1223,7846,729.45,705.37,867.99,680.02,"11970",9060,1296,7764,749.69,723.06,852.68,701.43,12083,9226,2857,1304,7921,766.79,735.31,868.44]
["Grafton County",5,49352,43256,8085,35171,617.73,624.04999999999995,672.45,612.92999999999995,49690,43362,7763,35599,658.93,668.77,701.81,661.56,50615,44009,7790,36220,704.15,717.01,753.77,709.11,51355,44704,7636,37069,728.96,740.6,770.78,734.38,51541,44954,7698,37256,768.82,783.94,809.26,778.7,52267,45531,7761,37770,803.4,820.96,855.22,813.92,52729,45992,7672,38320,843.04,860.73,901.98,852.47,52901,46166,7347,38819,867.61,884.82,928.14,876.62,51401,44646,6446,38200,879.4,895.26,899.95,894.47,51256,44376,6289,38086,905.77,925.54,949.83,921.53,51663,44867,6681,38186,926.58,946.3,981.6,940.12,52026,45246,6818,38428,950.95,973.52,996.15,969.5,52153,45454,6717,38736,965.05,986.68,1028.75,979.39,52226,45565,6778,38787,1004.06,1029.1500000000001,1069.54,1022.09,52654,46056,6882,39174,1037.55,1061.83,1078.8900000000001,1058.83,53361,46686,6801,39885,1058.5999999999999,1086.92,1082.4000000000001,1087.69,53790,47161,6781,40380,1079.6300000000001,1108.6099999999999,1125.3,1105.81,"54119",47417,6926,40491,1105.33,1135.81,1167.74,1130.3399999999999,54388,47685,6703,6855,40830,1142.8,1174.8,915.17]
["Hillsborough County",6,192842,173003,47169,125834,756.14,762.49,941.37,695.43,188573,168164,42086,126078,768.52,773.3,968.23,708.23,190864,169969,41006,128962,801.91,806.79,1014.82,740.64,193543,172567,40910,131656,839.56,844.4,1064.01,776.16,196190,174854,40181,134673,866.71,873.18,1101.58,805.03,196502,175094,39123,135971,897.24,904,1171.1600000000001,827.13,197183,175821,38588,137233,946.54,951.14,1248.82,867.44,195976,174253,36628,137625,973.54,979.17,1267.17,902.52,187240,165260,33003,132257,959.3,962.96,1236.24,894.76,184628,162829,32117,130712,980.99,986.25,1287.9100000000001,912.12,186437,165030,32694,132336,1013.7,1018.86,1329.81,942.03,188425,167133,31642,135492,1029.82,1035.95,1325.69,968.28,190568,169383,30861,138522,1038.74,1045.24,1365.43,973.9,193565,172574,31422,141152,1092.9000000000001,1101.22,1393.55,1036.1500000000001,196842,175848,31842,144005,1099.51,1106.52,1401.46,1041.3,199729,178867,32654,146213,1118.6300000000001,1126.21,1436.51,1056.9100000000001,201740,180839,33513,147327,1147.78,1156.08,1490.14,1080.0899999999999,"203961",182874,34296,148577,1182,1189.98,1525.57,1112.51,205989,184819,21170,35047,149772,1219.73,1229.8399999999999,1131.48]
["Merrimack County",7,71543,56168,12137,44031,631.86,633.92999999999995,772.48,595.74,71850,56025,11403,44622,653.27,655.12,799.93,618.12,72840,56631,11036,45595,667.06,666.91,826.68,628.24,72381,56515,10742,45773,690.51,689.4,845.49,652.77,72963,56979,11012,45967,710.07,710.67,861.87,674.44,74077,57818,10760,47058,739.28,739.89,906.79,701.73,74070,57629,10051,47579,774.05,772.96,972.47,730.82,73959,57295,9822,47472,795.3,789.49,978.78,750.33,72134,55582,8724,46857,810.16,788.36,966.04,755.28,71882,55306,8662,46645,821.15,806.64,998.67,770.98,72140,55913,9059,46854,835.3,821.63,1012.78,784.67,72901,56946,9282,47664,850.4,842.26,1036.72,804.39,73510,57805,9457,48348,866.04,857.51,1050.8699999999999,819.69,74884,58800,9698,49103,892.44,882.46,1086.78,842.11,75670,59563,9801,49762,929.04,918.53,1114.06,880.02,76413,60219,9936,50283,946.35,937.29,1126.3800000000001,899.92,76803,60570,10042,50528,980.03,971.23,1164.72,932.78,"77469",61326,10142,51184,1012.33,1004.39,1186.1199999999999,968.39,77816,61536,16281,10313,51222,1038.6300000000001,1030.98,1067.56]
["New Hampshire",1026,610446,531225,127190,404035,682.38,691.51,842.11,644.1,603100,521320,115244,406076,695.8,703.84,868.13,657.22,604198,520362,111472,408890,717.94,724.91,888.81,680.22,613327,529515,111893,417622,753.7,760.58,928.63,715.56,620909,536173,112033,424140,779.84,788.93,958.48,744.15,627301,541435,110189,431246,816.3,827.48,1013.11,780.04,630171,543800,107673,436127,843.46,852.45,1054.1600000000001,802.65,628819,541768,104441,437326,863.66,870.64,1074.5999999999999,821.93,604915,517658,92952,424706,864.05,867.37,1066.42,823.81,600540,513386,89428,423957,883.88,890.13,1119.47,841.75,605864,520338,90996,429342,909.31,916.27,1140.95,868.65,612432,527263,90404,436858,928.33,938.02,1152.07,893.72,618756,534106,90890,443216,941.75,950.79,1173.1099999999999,905.2,626567,541441,92176,449265,983.96,996.35,1200.71,954.42,636798,552276,93968,458308,1010.64,1021.89,1224.55,980.34,647375,562836,96138,466699,1030.04,1042.6300000000001,1251.03,999.7,653496,569023,97995,471029,1060.3399999999999,1073.99,1294.46,1028.1199999999999,"658816",574044,100089,473955,1091.97,1106.44,1317.59,1061.8499999999999,665374,580394,84980,101907,478487,1128.27,1145.04,1013.77]
["Rockingham County",8,130960,117604,24384,93220,704.6,714.62,913.02,662.73,130242,116589,22286,94302,712.56,720.57,945.47,667.42,130329,116466,21075,95392,725.68,731.51,920.38,689.79,133803,119786,21944,97841,774.11,781.14,964.22,740.08,136154,122028,22051,99976,796.86,803.2,996.54,760.55,138063,123549,22274,101275,842.13,851.8,1013.05,816.33,138382,123679,22407,101273,849.04,856.27,1052.77,812.8,137191,122378,22407,99970,839.01,841.86,1081.82,788.07,131375,116492,19644,96848,839.06,840.45,1104.3599999999999,786.93,131892,117079,18689,98391,862.17,865.32,1199.72,801.8,133444,119079,18941,100138,880.6,883.65,1146.49,833.93,135396,121125,18942,102183,907.06,912.95,1200.98,859.56,137505,123255,19558,103698,919.22,924.42,1204.8699999999999,871.53,139972,125705,20107,105598,967.99,976.63,1214.5999999999999,931.32,143650,129571,20954,108617,999.45,1007.52,1260.8800000000001,958.65,146926,132843,21711,111132,1008.63,1016.49,1289.1199999999999,963.24,149059,134948,22384,112564,1040.5999999999999,1049.82,1335.62,992.99,"149817",135525,22957,112568,1068.69,1079.1600000000001,1345.67,1024.8,151694,137342,14352,23611,113731,1110.28,1122.81,990.42]
["Strafford County",9,43645,34821,9068,25753,655.37,655.92,770.85,615.45000000000005,42874,33684,7630,26054,655.35,652.99,800.21,609.88,43046,33530,7366,26164,668.52,656.47,806.84,614.13,43436,33873,7230,26643,693.72,673.65,820.17,633.9,43773,34267,7211,27056,709.03,692.76,828.02,656.71,44557,35064,7140,27925,723.22,705.71,858.22,666.71,45570,35960,6960,29000,746.96,729.16,880.17,692.91,46580,36991,6754,30237,803.35,784.14,900.05,758.25,44375,35115,5981,29133,822.2,798.7,916.04,774.61,44144,34793,5960,28833,843.68,824.98,964.85,796.07,44154,34870,6008,28863,879.87,868.02,1098.93,819.95,45017,35667,6036,29631,875.8,864.35,1039.17,828.73,45379,36187,6365,29822,896.63,880.93,1050.44,844.76,46249,36899,6431,30469,915.86,906.58,1082.2,869.52,46826,37517,6657,30860,954.37,941.53,1121.8,902.65,47632,38313,6879,31434,967.61,953.88,1119.03,917.74,48165,38780,6935,31845,990.95,980.7,1148.01,944.26,"48371",39036,6997,32039,1004.47,991.1,1131.83,960.36,48714,39366,9348,7127,32239,1034.79,1028.5999999999999,1060.8599999999999]
["Sullivan County",10,14086,11544,"n","n",536.78,549.33000000000004,"n","n",13793,11231,4452,6779,561.15,569.74,685.65,493.64,13370,10809,4059,6750,577.41,588.45000000000005,688.92,528.03,13551,11127,4066,7061,602.70000000000005,607.34,721.67,541.5,13862,11386,4086,7300,615.79,621.85,741.34,554.98,13826,11306,3928,7377,642.61,650.96,800.27,571.45000000000005,13873,11351,3958,7393,676.8,687.32,843.22,603.85,13799,11227,3909,7318,687.34,698.53,866.24,608.95000000000005,13185,10586,3466,7121,698.02,705.82,887.35,617.47,13076,10479,3303,7176,714.38,723.66,917.55,634.42999999999995,13190,10617,3204,7413,723.57,732.12,955.94,635.39,13597,11070,3448,7622,757.15,771.77,1038.8399999999999,650.94000000000005,13793,11373,3704,7670,768.35,784.88,1012.65,674.88,13873,11439,3932,7507,795.94,816.28,1039.17,699.53,14090,11709,3948,7761,803.2,815.31,1021.57,710.37,14204,11783,4061,7722,810.76,830.28,1066.2,706.22,13997,11636,4031,7605,821.95,836.22,1048.48,723.72,"13966",11628,3919,7708,836.09,849.04,1063.6199999999999,739.94,13735,11390,2344,3818,7573,854.16,864.16,805.53]
[]
[]
[]
[]
[]
[]
[]
[]
[]
[]
[]
[]
[]
[]
[]
[]
[]
["Labor Force and Unemployment Rate","Query Name: DPQryUnempByTown",null,"2020-07-10"]
[]
["PlaceName","LaborForce1990","LaborForce1991","LaborForce1992","LaborForce1993","LaborForce1994","LaborForce1995","LaborForce1996","LaborForce1997","LaborForce1998","LaborForce1999","LaborForce2000","LaborForce2001","LaborForce2002","LaborForce2003","NumbEmployed1990","NumbEmployed1991","NumbEmployed1992","NumbEmployed1993","NumbEmployed1994","NumbEmployed1995","NumbEmployed1996","NumbEmployed1997","NumbEmployed1998","NumbEmployed1999","NumbEmployed2000","NumbEmployed2001","NumbEmployed2002","NumbEmployed2003","UnempRate1990","UnempRate1991","UnempRate1992","UnempRate1993","UnempRate1994","UnempRate1995","UnempRate1996","UnempRate1997","UnempRate1998","UnempRate1999","UnempRate2000","UnempRate2001","UnempRate2002","UnempRate2003","NumbUnEmp1990","NumbUnEmp1991","NumbUnEmp1992","NumbUnEmp1993","NumbUnEmp1994","NumbUnEmp1995","NumbUnEmp1996","NumbUnEmp1997","NumbUnEmp1998","NumbUnEmp1999","NumbUnEmp2000","NumbUnEmp2001","NumbUnEmp2002","NumbUnEmp2003","LaborForce2004","NumbEmployed2004","UnempRate2004","NumbUnEmp2004","LaborForce2005","NumbEmployed2005","NumbUnEmp2005","UnempRate2005","LaborForce2006","NumbEmployed2006","NumbUnEmp2006","UnempRate2006","LaborForce2007","NumbEmployed2007","NumbUnEmp2007","UnempRate2007","LaborForce2008","NumbEmployed2008","NumbUnEmp2008","UnempRate2008","LaborForce2009","NumbEmployed2009","NumbUnEmp2009","UnempRate2009","LaborForce2010","NumbEmployed2010","NumbUnEmp2010","UnempRate2010","LaborForce2011","NumbEmployed2011","NumbUnEmp2011","UnempRate2011","LaborForce2012","NumbEmployed2012","NumbUnEmp2012","UnempRate2012","LaborForce2013","NumbEmployed2013","NumbUnEmp2013","UnempRate2013","LaborForce2014","NumbEmployed2014","NumbUnEmp2014","UnempRate2014","LaborForce2015","NumbEmployed2015","NumbUnEmp2015","UnempRate2015","LaborForce2016","NumbEmployed2016","NumbUnEmp2016","UnempRate2016","LaborForce2017","NumbEmployed2017","NumbUnEmp2017","UnempRate2017","LaborForce2018","NumbEmployed2018","NumbUnEmp2018","UnempRate2018","LaborForce2019","NumbEmployed2019","NumbUnEmp2019","UnempRate2019","Place-TownIDNumber"]
["Concord",17158,19156,19345,19473,20493,20901,20846,21269,21945,22040,21450,21610,21650,21670,16236,17796,18081,18604,19817,20347,20327,20750,21448,21597,20940,20990,20950,20910,5.4,7.1000000000000005,6.5,4.5,3.3000000000000003,2.7,2.5,2.4,2.3000000000000003,2,2.4,2.9,3.2,3.5000000000000004,922,1360,1264,869,676,554,519,519,497,443,510,620,700,760,21380,20700,3.2,680,21470,20780,690,3.2,21760,21080,680,3.1,21910,21160,750,3.4000000000000004,22110,21300,810,3.7000000000000006,22350,21100,1250,5.6,22810,21650,1160,5.0999999999999996,22550,21470,1080,4.8,22600,21520,1080,4.8,22470,21450,1020,4.5,22380,21540,840,3.7000000000000006,22440,21760,680,3,22630,22060,570,2.5,22590,22060,530,2.4,22730,22220,510,2.2000000000000002,22930,22420,510,2.2000000000000002,708]
["Derry",17958,17746,18152,18497,18838,18314,18802,19008,19268,21920,19660,19960,19850,20060,16803,16278,16445,16998,17576,17406,17960,18213,18522,21159,19050,19020,18590,18830,6.4,8.3000000000000007,9.4,8.1,6.7,5,4.5,4.2,3.9,3.5,3.1,4.7,6.3,6.1,1155,1468,1707,1499,1262,908,842,795,746,761,610,940,1260,1230,20040,19040,5,1000,20230,19300,930,4.5999999999999996,19950,19140,810,4.0999999999999996,20050,19250,800,4,20240,19350,890,4.4000000000000004,20170,18770,1400,7.0000000000000009,19780,18450,1330,6.7,19590,18370,1220,6.2,19910,18600,1310,6.6000000000000005,19900,18710,1190,6,19920,18890,1030,5.2,19820,19010,810,4.0999999999999996,19960,19250,710,3.6000000000000005,20110,19410,700,3.5000000000000004,20250,19600,650,3.2,20630,20040,590,2.9,808]
["Dover",14442,14804,14525,14590,14159,14543,14597,14771,14778,14852,15820,15990,16200,16680,13728,13847,13574,13803,13638,14026,14138,14390,14439,14536,15420,15520,15600,16060,4.9000000000000004,6.5,6.5,5.4,3.7,3.6,3.1,2.6,2.3000000000000003,2.1,2.5,2.9,3.7000000000000006,3.7000000000000006,714,957,951,787,521,517,459,381,339,316,400,470,600,620,16980,16440,3.2,540,16980,16460,520,3.1,16890,16410,480,2.9,17220,16720,500,2.9,17420,16870,550,3.2,17280,16330,950,5.5,17370,16480,890,5.0999999999999996,17400,16580,820,4.7,17500,16660,840,4.8,17570,16840,730,4.2,17730,17090,640,3.6000000000000005,17840,17330,510,2.8,18210,17780,430,2.2999999999999998,18220,17810,410,2.2999999999999998,18490,18080,410,2.2000000000000002,18730,18330,400,2.1,902]
["Hudson",12484,12026,12188,12214,12119,12078,12442,12876,13125,13345,13500,13680,13660,14010,11727,11098,11160,11343,11344,11442,11918,12438,12722,12888,13130,13130,12920,13300,6.1000000000000005,7.7,8.4,7.1000000000000005,6.4,5.3,4.2,3.4,3.1,3.4,2.8,4,5.4,5.0999999999999996,757,928,1028,871,775,636,524,438,403,457,370,550,740,710,14420,13770,4.5,650,14750,14150,600,4.0999999999999996,14750,14200,550,3.8,14920,14350,570,3.8,14950,14330,620,4.0999999999999996,14930,13930,1000,6.7,14240,13290,950,6.7,14150,13280,870,6.1,14320,13400,920,6.5,14360,13500,860,6,14460,13690,770,5.3,14510,13890,620,4.2,14660,14160,500,3.4000000000000004,14710,14210,500,3.4000000000000004,14970,14490,480,3.2,31590,14810,480,3.1,614]
["Londonderry",11797,11497,11671,11945,12109,11969,12248,12747,13057,13288,13370,13700,13730,13880,11223,10806,10886,11198,11492,11495,11820,12345,12706,12914,13030,13180,13020,13200,4.9000000000000004,6,6.7,6.3,5.1000000000000005,4,3.5,3.2,2.7,2.8000000000000003,2.5,3.8,5.2,4.9000000000000004,574,691,785,747,617,474,428,402,351,374,340,520,710,680,14070,13500,4.0999999999999996,570,14490,13960,530,3.7000000000000006,14430,13940,490,3.4000000000000004,14620,14120,500,3.4000000000000004,14670,14120,550,3.7000000000000006,14540,13680,860,5.9,14270,13470,800,5.6,14160,13420,740,5.2,14410,13600,810,5.6,14440,13690,750,5.2,14510,13850,660,4.5,14960,14440,520,3.5000000000000004,15420,14980,440,2.8,15610,15180,430,2.8,15780,15330,450,2.8,16110,15670,440,2.8,819]
["Manchester",57227,54398,53484,53029,52584,54444,54748,56302,57027,57867,58440,59230,59350,60270,53493,49879,48873,49490,49803,52144,52888,54663,55481,56389,56950,57140,56610,57550,6.5,8.3000000000000007,8.6,6.7,5.3,4.2,3.4,2.9,2.7,2.6,2.6,3.5000000000000004,4.5999999999999996,4.5,3734,4519,4611,3539,2781,2300,1860,1639,1546,1478,1490,2090,2740,2720,60940,58510,4,2430,61140,58810,2330,3.8,61080,58710,2370,3.9,61520,59130,2390,3.9,61910,59230,2680,4.3,62170,57720,4450,7.2000000000000011,61300,57130,4170,6.8000000000000007,60990,57330,3660,6,61290,57460,3830,6.3,61390,57990,3400,5.5,61890,59020,2870,4.5999999999999996,61940,59690,2250,3.6000000000000005,62620,60720,1900,3,63530,61710,1820,2.9,64700,63010,1690,2.6,65780,64080,1700,2.6,617]
["Merrimack",13981,13473,13706,13893,13686,13315,13754,14250,14570,14810,15420,15760,15890,16040,13416,12714,12773,12999,12979,12783,13294,13866,14217,14403,15070,15270,15160,15360,4,5.6000000000000005,6.8,6.4,5.2,4,3.3000000000000003,2.7,2.4,2.7,2.2999999999999998,3.1,4.5999999999999996,4.2,565,759,933,894,707,532,460,384,353,407,350,490,730,680,16250,15710,3.3000000000000003,540,16520,16020,500,3,16440,15950,490,3,16550,16060,490,3,16510,15970,540,3.3000000000000003,16470,15520,950,5.8,61300,57130,4170,6.8000000000000007,60990,57330,3660,6,61290,57460,3830,6.3,61390,57990,3400,5.5,61890,59020,2870,4.5999999999999996,61940,59690,2250,3.6000000000000005,62620,60720,1900,3,15790,15380,410,2.6,16020,15610,410,2.5,16360,15960,400,2.4,619]
["Nashua",48381,45637,45669,45204,43405,44276,45430,46753,47362,48054,48150,48730,48350,48550,45749,42390,42064,41756,40901,42188,43654,45410,45982,46581,46830,46750,45610,46000,5.4,7.1000000000000005,7.9,7.6000000000000005,5.8,4.7,3.9,2.9,2.9,3.1,2.7,4.0999999999999996,5.7,5.2,2632,3247,3605,3448,2504,2088,1776,1343,1380,1473,1320,1980,2740,2550,48910,46770,4.4000000000000004,2140,49460,47490,1970,4,49190,47270,1920,3.9,49360,47510,1850,3.7000000000000006,49270,47280,1990,4,49520,46070,3450,7.0000000000000009,48410,45220,3190,6.6000000000000005,48090,45080,3010,6.2,48600,45500,3100,6.4,48830,45940,2890,5.9,48860,46380,2480,5.0999999999999996,49150,47210,1940,3.9,49370,47680,1690,3.4000000000000004,49680,48060,1620,3.3000000000000003,50200,48700,1500,3,51280,49770,1510,3,622]
["Rochester",14242,14280,14153,14123,13917,14056,14172,14407,14297,14288,15280,15450,15670,15900,13158,12952,12771,13032,13177,13387,13529,13825,13799,13892,14820,14880,14870,15210,7.6000000000000005,9.3000000000000007,9.8000000000000007,7.7,5.3,4.8,4.5,4,3.5,2.8000000000000003,3,3.7000000000000006,5.0999999999999996,4.3,1084,1328,1382,1091,740,669,643,582,498,396,460,570,800,690,16150,15550,3.7000000000000006,600,16360,15740,620,3.8,16340,15790,550,3.3000000000000003,16700,16100,600,3.6000000000000005,17120,16410,710,4.0999999999999996,17210,15950,1260,7.3,16910,15840,1070,6.3,16850,15890,960,5.7,16850,15860,990,5.9,16810,15920,890,5.3,16910,16210,700,4.2,16910,16360,550,3.2,17240,16800,440,2.5,17350,16940,410,2.4,17730,17310,420,2.4,17990,17560,430,2.4,910]
["Salem",15853,15251,15792,16067,15973,15983,16536,16695,17028,19224,16440,16840,17070,17060,14545,13832,14010,14242,14652,14897,15474,15785,16115,18409,15780,15940,15860,15880,8.3000000000000007,9.3000000000000007,11.3,11.4,8.3000000000000007,6.8,6.4,5.5,5.4,4.2,4,5.3,7.1,6.9,1308,1419,1782,1825,1321,1086,1062,910,913,815,660,900,1210,1180,17300,16210,6.3,1090,17440,16490,950,5.5,17510,16680,830,4.7,17840,16970,870,4.9000000000000004,17830,16880,950,5.3,17830,16410,1420,8,17320,16110,1210,7.0000000000000009,17300,16160,1140,6.6000000000000005,17530,16330,1200,6.8000000000000007,17580,16480,1100,6.2,17660,16730,930,5.2,17680,16920,760,4.3,17750,17110,640,3.6000000000000005,17840,17190,650,3.6000000000000005,18210,17610,600,3.3000000000000003,18410,17790,620,3.4000000000000004,832]

{"sheet":"BuildingPermitsSince2000","index":8,"n_rows":41,"n_cols":23,"rows_kept":41,"cut":false,"hidden":true,"merged":[[3,1,3,3]]}
[]
[null,{"$f":"CntyDataLink!A35","v":"Barrington"}]
[]
[null,"HOUSING CHARACTERISTICS"]
[]
[]
[]
[]
[]
[]
[]
[]
[]
[]
[]
[]
[]
[]
[]
[]
[]
[]
[]
[]
[]
[]
[]
[]
[]
[]
[]
[]
[]
[]
[null,"Housing Units Authorized by Permit",null,null,null,"Source: New Hampshire Office of Strategic Initiatives"]
[]
[null,"Year",2000,{"$f":"C37+1","v":2001},{"$f":"D37+1","v":2002},2003,2004,2005,2006,2007,2008,2009,2010,2011,2012,2013,2014,2015,2016,2017,2018,2019,"Total"]
[null,"Single Family",{"$f":"CntyDataLink!$BT$20","v":69},{"$f":"CntyDataLink!$BW$20","v":51},{"$f":"CntyDataLink!$BZ$20","v":59},{"$f":"CntyDataLink!$CC$20","v":44},{"$f":"CntyDataLink!$CF$20","v":77},{"$f":"CntyDataLink!$CI$20","v":63},{"$f":"CntyDataLink!$CL$20","v":52},{"$f":"CntyDataLink!$CO$20","v":37},{"$f":"CntyDataLink!$CR$20","v":42},{"$f":"CntyDataLink!$CU$20","v":29},{"$f":"CntyDataLink!$CX$20","v":37},{"$f":"CntyDataLink!$DA$20","v":20},{"$f":"CntyDataLink!$DD$20","v":19},{"$f":"CntyDataLink!$DG$20","v":17},{"$f":"CntyDataLink!$DJ$20","v":26},{"$f":"CntyDataLink!$DM$20","v":26},{"$f":"CntyDataLink!$DP$20","v":26},{"$f":"CntyDataLink!$DS$20","v":41},{"$f":"CntyDataLink!$DV$20","v":33},{"$f":"CntyDataLink!$DY$20","v":15},{"$f":"SUM(C38:V38)","v":783}]
[null,"Multi-family",{"$f":"CntyDataLink!$BU$20","v":0},{"$f":"CntyDataLink!$BX$20","v":6},{"$f":"CntyDataLink!$CA$20","v":10},{"$f":"CntyDataLink!$CD$20","v":0},{"$f":"CntyDataLink!$CG$20","v":2},{"$f":"CntyDataLink!$CJ$20","v":4},{"$f":"CntyDataLink!$CM$20","v":0},{"$f":"CntyDataLink!$CP$20","v":6},{"$f":"CntyDataLink!$CS$20","v":0},{"$f":"CntyDataLink!$CV$20","v":0},{"$f":"CntyDataLink!$CY$20","v":0},{"$f":"CntyDataLink!$DB$20","v":2},{"$f":"CntyDataLink!$DE$20","v":0},{"$f":"CntyDataLink!$DH$20","v":0},{"$f":"CntyDataLink!$DK$20","v":0},{"$f":"CntyDataLink!$DN$20","v":0},{"$f":"CntyDataLink!$DQ$20","v":0},{"$f":"CntyDataLink!$DT$20","v":0},{"$f":"CntyDataLink!$DW$20","v":8},{"$f":"CntyDataLink!$DZ$20","v":6},{"$f":"SUM(C39:V39)","v":44}]
[null,"Mobile Home",{"$f":"CntyDataLink!$BV$20","v":6},{"$f":"CntyDataLink!$BY$20","v":1},{"$f":"CntyDataLink!$CB$20","v":0},{"$f":"CntyDataLink!$CE$20","v":1},{"$f":"CntyDataLink!$CH$20","v":0},{"$f":"CntyDataLink!$CK$20","v":15},{"$f":"CntyDataLink!$CN$20","v":22},{"$f":"CntyDataLink!$CQ$20","v":0},{"$f":"CntyDataLink!$CT$20","v":0},{"$f":"CntyDataLink!$CW$20","v":0},{"$f":"CntyDataLink!$CZ$20","v":2},{"$f":"CntyDataLink!$DC$20","v":0},{"$f":"CntyDataLink!$DF$20","v":2},{"$f":"CntyDataLink!$DI$20","v":3},{"$f":"CntyDataLink!$DL$20","v":2},{"$f":"CntyDataLink!$DO$20","v":0},{"$f":"CntyDataLink!$DR$20","v":5},{"$f":"CntyDataLink!$DU$20","v":0},{"$f":"CntyDataLink!$DX$20","v":1},{"$f":"CntyDataLink!$EA$20","v":-1},{"$f":"SUM(C40:V40)","v":59}]
[null,"Total",{"$f":"SUM(C38:C40)","v":75},{"$f":"SUM(D38:D40)","v":58},69,45,79,82,74,43,42,29,39,22,21,20,28,26,31,41,{"$f":"SUM(U38:U40)","v":42},20,{"$f":"SUM(W38:W40)","v":886}]

{"sheet":"EmploymentAndWages","index":9,"n_rows":115,"n_cols":14,"rows_kept":115,"cut":false,"hidden":true,"merged":[[3,1,3,3],[35,1,35,2],[73,1,73,2],[41,1,41,3],[66,1,67,3]]}
[]
[null,{"$f":"CntyDataLink!A35","v":"Barrington"}]
[]
[null,"EMPLOYMENT CHARACTERISTICS"]
[]
[]
[]
[]
[]
[]
[]
[]
[]
[]
[]
[]
[]
[]
[]
[]
[]
[]
[]
[]
[]
[]
[]
[]
[null,"Annual Average Covered Private Employment "]
[null,null,null,"Source: NH Department of Employment Security, Covered Private Employment by location of employment"]
[null,null,2009,{"$f":"C31+1","v":2010},{"$f":"D31+1","v":2011},2012,2013,2014,2015,2016,2017,2018,2019,"Total Change  "]
[null,"Goods Producing",{"$f":"IF((CntyDataLink!$BQ$25)=\"n\",NA(),IF(VALUE(CntyDataLink!$BQ$25)=\"\",NA(),VALUE(CntyDataLink!$BQ$25)))","v":323},{"$f":"IF((CntyDataLink!$BY$25)=\"n\",NA(),IF(VALUE(CntyDataLink!$BY$25)=\"\",NA(),VALUE(CntyDataLink!$BY$25)))","v":354},{"$f":"IF((CntyDataLink!$CG$25)=\"n\",NA(),IF(VALUE(CntyDataLink!$CG$25)=\"\",NA(),VALUE(CntyDataLink!$CG$25)))","v":396},{"$f":"IF((CntyDataLink!$CO$25)=\"n\",NA(),IF(VALUE(CntyDataLink!$CO$25)=\"\",NA(),VALUE(CntyDataLink!$CO$25)))","v":457},{"$f":"IF((CntyDataLink!$CW$25)=\"n\",NA(),IF(VALUE(CntyDataLink!$CW$25)=\"\",NA(),VALUE(CntyDataLink!$CW$25)))","v":487},{"$f":"IF((CntyDataLink!$DE$25)=\"n\",NA(),IF(VALUE(CntyDataLink!$DE$25)=\"\",NA(),VALUE(CntyDataLink!$DE$25)))","v":505},{"$f":"IF((CntyDataLink!$DM$25)=\"n\",NA(),IF(VALUE(CntyDataLink!$DM$25)=\"\",NA(),VALUE(CntyDataLink!$DM$25)))","v":607},{"$f":"IF((CntyDataLink!$DU$25)=\"n\",NA(),IF(VALUE(CntyDataLink!$DU$25)=\"\",NA(),VALUE(CntyDataLink!$DU$25)))","v":673},{"$f":"IF((CntyDataLink!$EC$25)=\"n\",NA(),IF(VALUE(CntyDataLink!$EC$25)=\"\",NA(),VALUE(CntyDataLink!$EC$25)))","v":721},{"$f":"IF((CntyDataLink!$EK$25)=\"n\",NA(),IF(VALUE(CntyDataLink!$EK$25)=\"\",NA(),VALUE(CntyDataLink!$EK$25)))","v":791},{"$f":"IF((CntyDataLink!$ET$25)=\"n\",NA(),IF(VALUE(CntyDataLink!$ET$25)=\"\",NA(),VALUE(CntyDataLink!$ET$25)))","v":811},{"$f":"$M32-C32","v":488}]
[null,"Service Providing",{"$f":"IF((CntyDataLink!$BR$25)=\"n\",NA(),IF(VALUE(CntyDataLink!$BR$25)=\"\",NA(),VALUE(CntyDataLink!$BR$25)))","v":861},{"$f":"IF((CntyDataLink!$BZ$25)=\"n\",NA(),IF(VALUE(CntyDataLink!$BZ$25)=\"\",NA(),VALUE(CntyDataLink!$BZ$25)))","v":834},{"$f":"IF((CntyDataLink!$CH$25)=\"n\",NA(),IF(VALUE(CntyDataLink!$CH$25)=\"\",NA(),VALUE(CntyDataLink!$CH$25)))","v":840},{"$f":"IF((CntyDataLink!$CP$25)=\"n\",NA(),IF(VALUE(CntyDataLink!$CP$25)=\"\",NA(),VALUE(CntyDataLink!$CP$25)))","v":849},{"$f":"IF((CntyDataLink!$CX$25)=\"n\",NA(),IF(VALUE(CntyDataLink!$CX$25)=\"\",NA(),VALUE(CntyDataLink!$CX$25)))","v":883},{"$f":"IF((CntyDataLink!$DF$25)=\"n\",NA(),IF(VALUE(CntyDataLink!$DF$25)=\"\",NA(),VALUE(CntyDataLink!$DF$25)))","v":883},{"$f":"IF((CntyDataLink!$DN$25)=\"n\",NA(),IF(VALUE(CntyDataLink!$DN$25)=\"\",NA(),VALUE(CntyDataLink!$DN$25)))","v":895},{"$f":"IF((CntyDataLink!$DV$25)=\"n\",NA(),IF(VALUE(CntyDataLink!$DV$25)=\"\",NA(),VALUE(CntyDataLink!$DV$25)))","v":910},{"$f":"IF((CntyDataLink!$ED$25)=\"n\",NA(),IF(VALUE(CntyDataLink!$ED$25)=\"\",NA(),VALUE(CntyDataLink!$ED$25)))","v":939},{"$f":"IF((CntyDataLink!$EL$25)=\"n\",NA(),IF(VALUE(CntyDataLink!$EL$25)=\"\",NA(),VALUE(CntyDataLink!$EL$25)))","v":928},{"$f":"IF((CntyDataLink!$EU$25)=\"n\",NA(),IF(VALUE(CntyDataLink!$EU$25)=\"\",NA(),VALUE(CntyDataLink!$EU$25)))","v":958},{"$f":"$M33-C33","v":97}]
[null,"Total Private Emp",{"$f":"IF((CntyDataLink!$BP$25)=\"n\",NA(),IF(VALUE(CntyDataLink!$BP$25)=\"\",NA(),VALUE(CntyDataLink!$BP$25)))","v":1184},{"$f":"IF((CntyDataLink!$BX$25)=\"n\",NA(),IF(VALUE(CntyDataLink!$BX$25)=\"\",NA(),VALUE(CntyDataLink!$BX$25)))","v":1188},{"$f":"IF((CntyDataLink!$CF$25)=\"n\",NA(),IF(VALUE(CntyDataLink!$CF$25)=\"\",NA(),VALUE(CntyDataLink!$CF$25)))","v":1236},{"$f":"IF((CntyDataLink!$CN$25)=\"n\",NA(),IF(VALUE(CntyDataLink!$CN$25)=\"\",NA(),VALUE(CntyDataLink!$CN$25)))","v":1306},{"$f":"IF((CntyDataLink!$CV$25)=\"n\",NA(),IF(VALUE(CntyDataLink!$CV$25)=\"\",NA(),VALUE(CntyDataLink!$CV$25)))","v":1370},{"$f":"IF((CntyDataLink!$DD$25)=\"n\",NA(),IF(VALUE(CntyDataLink!$DD$25)=\"\",NA(),VALUE(CntyDataLink!$DD$25)))","v":1387},{"$f":"IF((CntyDataLink!$DL$25)=\"n\",NA(),IF(VALUE(CntyDataLink!$DL$25)=\"\",NA(),VALUE(CntyDataLink!$DL$25)))","v":1502},{"$f":"IF((CntyDataLink!$DT$25)=\"n\",NA(),IF(VALUE(CntyDataLink!$DT$25)=\"\",NA(),VALUE(CntyDataLink!$DT$25)))","v":1583},{"$f":"IF((CntyDataLink!$EB$25)=\"n\",NA(),IF(VALUE(CntyDataLink!$EB$25)=\"\",NA(),VALUE(CntyDataLink!$EB$25)))","v":1661},{"$f":"IF((CntyDataLink!$EJ$25)=\"n\",NA(),IF(VALUE(CntyDataLink!$EJ$25)=\"\",NA(),VALUE(CntyDataLink!$EJ$25)))","v":1719},{"$f":"IF((CntyDataLink!$ER$25)=\"n\",NA(),IF(VALUE(CntyDataLink!$ER$25)=\"\",NA(),VALUE(CntyDataLink!$ER$25)))","v":1769},{"$f":"$M34-C34","v":585}]
[]
[null,"% Change from prior Year",null,"09-10","10-11","11-12","12-13","13-14","14-15","15-16","16-17","17-18","18-19","Total % Change"]
[null,"Goods Producing",null,{"$f":"(D32-C32)/C32","v":9.5975232198142413E-2},0.11864406779661017,0.15404040404040403,6.5645514223194742E-2,3.6960985626283367E-2,{"$f":"(I32-H32)/H32","v":0.20198019801980199},0.10873146622734761,7.1322436849925702E-2,9.7087378640776698E-2,2.5284450063211124E-2,{"$f":"N32/C32","v":1.5108359133126934}]
[null,"Service Providing",null,-3.1358885017421602E-2,7.1942446043165471E-3,1.0714285714285714E-2,{"$f":"(G33-F33)/F33","v":4.0047114252061249E-2},0,1.3590033975084938E-2,1.6759776536312849E-2,3.1868131868131866E-2,-1.1714589989350373E-2,3.2327586206896554E-2,{"$f":"N33/C33","v":0.11265969802555169}]
[null,"Total Private Emp",null,3.3783783783783786E-3,4.0404040404040407E-2,5.6634304207119741E-2,4.9004594180704443E-2,1.2408759124087591E-2,8.2912761355443398E-2,5.3928095872170442E-2,4.9273531269740996E-2,3.4918723660445516E-2,2.9086678301337987E-2,{"$f":"N34/C34","v":0.49408783783783783}]
[]
[]
[null,"EMPLOYMENT CHARACTERISTICS"]
[]
[]
[]
[]
[]
[]
[]
[]
[]
[]
[]
[]
[]
[]
[]
[]
[]
[]
[]
[]
[]
[]
[]
[]
[null,"Covered Private Employment Average Wages",null,null,"Source: NH Department of Employment Security, Covered Private Employment"]
[]
[null,null,2009,{"$f":"C69+1","v":2010},{"$f":"D69+1","v":2011},{"$f":"E69+1","v":2012},2013,2014,2015,2016,2017,2018,2019,"Total $ Change"]
[null,"Goods Producing",{"$f":"IF((CntyDataLink!$BU$25)=\"n\",NA(),IF(VALUE(CntyDataLink!$BU$25)=\"\",NA(),VALUE(CntyDataLink!$BU$25)))","v":932.29},{"$f":"IF((CntyDataLink!$CC$25)=\"n\",NA(),IF(VALUE(CntyDataLink!$CC$25)=\"\",NA(),VALUE(CntyDataLink!$CC$25)))","v":1067.45},{"$f":"IF((CntyDataLink!$CK$25)=\"n\",NA(),IF(VALUE(CntyDataLink!$CK$25)=\"\",NA(),VALUE(CntyDataLink!$CK$25)))","v":994.51},{"$f":"IF((CntyDataLink!$CS$25)=\"n\",NA(),IF(VALUE(CntyDataLink!$CS$25)=\"\",NA(),VALUE(CntyDataLink!$CS$25)))","v":1006},{"$f":"IF((CntyDataLink!$DA$25)=\"n\",NA(),IF(VALUE(CntyDataLink!$DA$25)=\"\",NA(),VALUE(CntyDataLink!$DA$25)))","v":1118.82},{"$f":"IF((CntyDataLink!$DI$25)=\"n\",NA(),IF(VALUE(CntyDataLink!$DI$25)=\"\",NA(),VALUE(CntyDataLink!$DI$25)))","v":1124.94},{"$f":"IF((CntyDataLink!$DQ$25)=\"n\",NA(),IF(VALUE(CntyDataLink!$DQ$25)=\"\",NA(),VALUE(CntyDataLink!$DQ$25)))","v":1163.26},{"$f":"IF((CntyDataLink!$DY$25)=\"n\",NA(),IF(VALUE(CntyDataLink!$DY$25)=\"\",NA(),VALUE(CntyDataLink!$DY$25)))","v":1107.7},{"$f":"IF((CntyDataLink!$EG$25)=\"n\",NA(),IF(VALUE(CntyDataLink!$EG$25)=\"\",NA(),VALUE(CntyDataLink!$EG$25)))","v":1123.82},{"$f":"IF((CntyDataLink!$EO$25)=\"n\",NA(),IF(VALUE(CntyDataLink!$EO$25)=\"\",NA(),VALUE(CntyDataLink!$EO$25)))","v":1209.45},{"$f":"IF((CntyDataLink!$EY$25)=\"n\",NA(),IF(VALUE(CntyDataLink!$EY$25)=\"\",NA(),VALUE(CntyDataLink!$EY$25)))","v":1174.99},{"$f":"M70-C70","v":242.70000000000005}]
[null,"Service Providing",{"$f":"IF((CntyDataLink!$BV$25)=\"n\",NA(),IF(VALUE(CntyDataLink!$BV$25)=\"\",NA(),VALUE(CntyDataLink!$BV$25)))","v":721.2},{"$f":"IF((CntyDataLink!$CD$25)=\"n\",NA(),IF(VALUE(CntyDataLink!$CD$25)=\"\",NA(),VALUE(CntyDataLink!$CD$25)))","v":681.53},{"$f":"IF((CntyDataLink!$CL$25)=\"n\",NA(),IF(VALUE(CntyDataLink!$CL$25)=\"\",NA(),VALUE(CntyDataLink!$CL$25)))","v":729.74},{"$f":"IF((CntyDataLink!$CT$25)=\"n\",NA(),IF(VALUE(CntyDataLink!$CT$25)=\"\",NA(),VALUE(CntyDataLink!$CT$25)))","v":724.85},{"$f":"IF((CntyDataLink!$DB$25)=\"n\",NA(),IF(VALUE(CntyDataLink!$DB$25)=\"\",NA(),VALUE(CntyDataLink!$DB$25)))","v":738.04},{"$f":"IF((CntyDataLink!$DJ$25)=\"n\",NA(),IF(VALUE(CntyDataLink!$DJ$25)=\"\",NA(),VALUE(CntyDataLink!$DJ$25)))","v":712.28},{"$f":"IF((CntyDataLink!$DR$25)=\"n\",NA(),IF(VALUE(CntyDataLink!$DR$25)=\"\",NA(),VALUE(CntyDataLink!$DR$25)))","v":775.14},{"$f":"IF((CntyDataLink!$DZ$25)=\"n\",NA(),IF(VALUE(CntyDataLink!$DZ$25)=\"\",NA(),VALUE(CntyDataLink!$DZ$25)))","v":783.48},{"$f":"IF((CntyDataLink!EG$25)=\"n\",NA(),IF(VALUE(CntyDataLink!$EH$25)=\"\",NA(),VALUE(CntyDataLink!$EH$25)))","v":826.39},{"$f":"IF((CntyDataLink!EO$25)=\"n\",NA(),IF(VALUE(CntyDataLink!$EP$25)=\"\",NA(),VALUE(CntyDataLink!$EP$25)))","v":860.86},{"$f":"IF((CntyDataLink!EZ$25)=\"n\",NA(),IF(VALUE(CntyDataLink!$EZ$25)=\"\",NA(),VALUE(CntyDataLink!$EZ$25)))","v":912.8},{"$f":"M71-C71","v":191.59999999999991}]
[null,"Total Private Emp",{"$f":"IF((CntyDataLink!$BT$25)=\"n\",NA(),IF(VALUE(CntyDataLink!$BT$25)=\"\",NA(),VALUE(CntyDataLink!$BT$25)))","v":778.79},{"$f":"IF((CntyDataLink!$CB$25)=\"n\",NA(),IF(VALUE(CntyDataLink!$CB$25)=\"\",NA(),VALUE(CntyDataLink!$CB$25)))","v":796.47},{"$f":"IF((CntyDataLink!$CJ$25)=\"n\",NA(),IF(VALUE(CntyDataLink!$CJ$25)=\"\",NA(),VALUE(CntyDataLink!$CJ$25)))","v":814.57},{"$f":"IF((CntyDataLink!$CR$25)=\"n\",NA(),IF(VALUE(CntyDataLink!$CR$25)=\"\",NA(),VALUE(CntyDataLink!$CR$25)))","v":823.23},{"$f":"IF((CntyDataLink!$CZ$25)=\"n\",NA(),IF(VALUE(CntyDataLink!$CZ$25)=\"\",NA(),VALUE(CntyDataLink!$CZ$25)))","v":873.52},{"$f":"IF((CntyDataLink!$DH$25)=\"n\",NA(),IF(VALUE(CntyDataLink!$DH$25)=\"\",NA(),VALUE(CntyDataLink!$DH$25)))","v":862.33},{"$f":"IF((CntyDataLink!$DP$25)=\"n\",NA(),IF(VALUE(CntyDataLink!$DP$25)=\"\",NA(),VALUE(CntyDataLink!$DP$25)))","v":931.95},{"$f":"IF((CntyDataLink!$DX$25)=\"n\",NA(),IF(VALUE(CntyDataLink!$DX$25)=\"\",NA(),VALUE(CntyDataLink!$DX$25)))","v":921.27},{"$f":"IF((CntyDataLink!$EF$25)=\"n\",NA(),IF(VALUE(CntyDataLink!$EF$25)=\"\",NA(),VALUE(CntyDataLink!$EF$25)))","v":955.59},{"$f":"IF((CntyDataLink!$EN$25)=\"n\",NA(),IF(VALUE(CntyDataLink!$EN$25)=\"\",NA(),VALUE(CntyDataLink!$EN$25)))","v":1021.32},{"$f":"IF((CntyDataLink!$EW$25)=\"n\",NA(),IF(VALUE(CntyDataLink!$EW$25)=\"\",NA(),VALUE(CntyDataLink!$EW$25)))","v":1033.02},{"$f":"M72-C72","v":254.23000000000002}]
[]
[null,"% Change from prior Year",null,{"$f":"D36","v":"09-10"},"10-11","11-12","12-13","13-14","14-15","15-16","16-17","17-18","18-19","Total % Change"]
[null,"Goods Producing",null,{"$f":"(D70-C70)/C70","v":0.14497634856107014},-6.8331069370930766E-2,1.1553428321484961E-2,0.11214711729622261,5.4700488014158832E-3,3.4064038970967284E-2,-4.7762323126386147E-2,1.4552676717522696E-2,7.6195476143866556E-2,-2.8492289883831522E-2,{"$f":"N70/C70","v":0.26032672237179422}]
[null,"Service Providing",null,-5.5005546311702812E-2,7.0737898551787942E-2,-6.7010168005042703E-3,1.8196868317582868E-2,-3.4903257276028388E-2,8.8251811085528181E-2,1.0759346698660929E-2,5.476846888242197E-2,4.1711540555911891E-2,6.0335013823385845E-2,{"$f":"N71/C71","v":0.26566833056017736}]
[null,"Total Private Emp",null,2.2701883691367459E-2,2.2725275277160499E-2,1.0631376063444477E-2,6.1088638655053824E-2,-1.2810239032878401E-2,8.0734753516635158E-2,-1.1459842266216066E-2,3.7252922595981688E-2,6.8784729852761142E-2,1.1455763130066904E-2,{"$f":"N72/C72","v":0.32644230151902315}]
[]
[]
[null,"LABOR FORCE AND UNEMPLOYMENT CHARACTERISTICS"]
[]
[]
[]
[]
[]
[]
[]
[]
[]
[]
[]
[]
[]
[]
[]
[]
[]
[]
[]
[]
[]
[]
[]
[]
[]
[]
[]
[]
[]
[null,"Annual Average Labor Force and Unemployment ",null,null,null,"Source: NH Department of Employment Security, Local Area Unemployment Statistics"]
[null,null,2009,{"$f":"C111+1","v":2010},{"$f":"D111+1","v":2011},2012,2013,2014,2015,2016,2017,2018,2019,"Total Change  "]
[null,"Civilian Labor Force",{"$f":"CntyDataLink!$BZ30","v":{"$error":"#N/A"}},{"$f":"CntyDataLink!$CD30","v":{"$error":"#N/A"}},{"$f":"CntyDataLink!$CH30","v":{"$error":"#N/A"}},{"$f":"CntyDataLink!$CL30","v":{"$error":"#N/A"}},{"$f":"CntyDataLink!$CP30","v":{"$error":"#N/A"}},{"$f":"CntyDataLink!$CT30","v":{"$error":"#N/A"}},{"$f":"CntyDataLink!$CX30","v":{"$error":"#N/A"}},{"$f":"CntyDataLink!$DB30","v":{"$error":"#N/A"}},{"$f":"CntyDataLink!$DF30","v":{"$error":"#N/A"}},{"$f":"CntyDataLink!$DF30","v":{"$error":"#N/A"}},{"$f":"CntyDataLink!$DN30","v":{"$error":"#N/A"}},{"$f":"$M112-C112","v":{"$error":"#N/A"}}]
[null,"Employed Labor Force",{"$f":"CntyDataLink!$CA$30","v":{"$error":"#N/A"}},{"$f":"CntyDataLink!$CE$30","v":{"$error":"#N/A"}},{"$f":"CntyDataLink!$CI$30","v":{"$error":"#N/A"}},{"$f":"CntyDataLink!$CM$30","v":{"$error":"#N/A"}},{"$f":"CntyDataLink!$CQ$30","v":{"$error":"#N/A"}},{"$f":"CntyDataLink!$CU$30","v":{"$error":"#N/A"}},{"$f":"CntyDataLink!$CY$30","v":{"$error":"#N/A"}},{"$f":"CntyDataLink!$DC$30","v":{"$error":"#N/A"}},{"$f":"CntyDataLink!$DG$30","v":{"$error":"#N/A"}},{"$f":"CntyDataLink!$DG$30","v":{"$error":"#N/A"}},{"$f":"CntyDataLink!$DO$30","v":{"$error":"#N/A"}},{"$f":"$M113-C113","v":{"$error":"#N/A"}}]
[null,"Unemployed Labor Force",{"$f":"CntyDataLink!$CB$30","v":{"$error":"#N/A"}},{"$f":"CntyDataLink!$CF$30","v":{"$error":"#N/A"}},{"$f":"CntyDataLink!$CJ$30","v":{"$error":"#N/A"}},{"$f":"CntyDataLink!$CN$30","v":{"$error":"#N/A"}},{"$f":"CntyDataLink!$CR$30","v":{"$error":"#N/A"}},{"$f":"CntyDataLink!$CV$30","v":{"$error":"#N/A"}},{"$f":"CntyDataLink!$CZ$30","v":{"$error":"#N/A"}},{"$f":"CntyDataLink!$DD$30","v":{"$error":"#N/A"}},{"$f":"CntyDataLink!$DH$30","v":{"$error":"#N/A"}},{"$f":"CntyDataLink!$DH$30","v":{"$error":"#N/A"}},{"$f":"CntyDataLink!$DP$30","v":{"$error":"#N/A"}},{"$f":"$M114-C114","v":{"$error":"#N/A"}}]
[null,"Unemployment Rate",{"$f":"CntyDataLink!$CC$30","v":{"$error":"#N/A"}},{"$f":"CntyDataLink!$CG$30","v":{"$error":"#N/A"}},{"$f":"CntyDataLink!$CK$30","v":{"$error":"#N/A"}},{"$f":"CntyDataLink!$CO$30","v":{"$error":"#N/A"}},{"$f":"CntyDataLink!$CS$30","v":{"$error":"#N/A"}},{"$f":"CntyDataLink!$CW$30","v":{"$error":"#N/A"}},{"$f":"CntyDataLink!$DA$30","v":{"$error":"#N/A"}},{"$f":"CntyDataLink!$DE$30","v":{"$error":"#N/A"}},{"$f":"CntyDataLink!$DI$30","v":{"$error":"#N/A"}},{"$f":"CntyDataLink!$DI$30","v":{"$error":"#N/A"}},{"$f":"CntyDataLink!$DQ$30","v":{"$error":"#N/A"}}]

{"sheet":"EmpVsHUxCounty","index":10,"n_rows":124,"n_cols":15,"rows_kept":124,"cut":false,"hidden":true,"merged":[[64,0,64,11],[79,0,80,9]]}
[]
[{"$f":"CntyDataLink!A35","v":"Barrington"}]
[]
[]
[]
[]
[]
[]
[]
[]
[]
[]
[]
[]
[]
[]
[]
[]
[]
[]
[]
[]
[]
[]
[]
[]
[]
[]
[]
[]
[]
[]
[]
[]
[]
[]
[]
[]
[]
[]
[]
[]
[]
["Housing Units "]
[{"$f":"CntyDataLink!A20","v":"Barrington"}]
[null,null,null,"Source: New Hampshire Office of Strategic Initiatives"]
["Units Authorized By Permit",2008,{"$f":"B47+1","v":2009},{"$f":"C47+1","v":2010},2011,2012,2013,2014,2015,2016,2017,2018,2019]
["Single Family",{"$f":"CntyDataLink!$CR$20","v":42},{"$f":"CntyDataLink!$CU$20","v":29},{"$f":"CntyDataLink!$CX$20","v":37},{"$f":"CntyDataLink!$DA$20","v":20},{"$f":"CntyDataLink!$DD$20","v":19},{"$f":"CntyDataLink!$DG$20","v":17},{"$f":"CntyDataLink!$DJ$20","v":26},{"$f":"CntyDataLink!$DM$20","v":26},{"$f":"CntyDataLink!$DP$20","v":26},{"$f":"CntyDataLink!$DS$20","v":41},{"$f":"CntyDataLink!$DV$20","v":33},{"$f":"CntyDataLink!$DY$20","v":15}]
["Multi-family",{"$f":"CntyDataLink!$CS$20","v":0},{"$f":"CntyDataLink!$CV$20","v":0},{"$f":"CntyDataLink!$CY$20","v":0},{"$f":"CntyDataLink!$DB$20","v":2},{"$f":"CntyDataLink!$DE$20","v":0},{"$f":"CntyDataLink!$DH$20","v":0},{"$f":"CntyDataLink!$DK$20","v":0},{"$f":"CntyDataLink!$DN$20","v":0},{"$f":"CntyDataLink!$DQ$20","v":0},{"$f":"CntyDataLink!$DT$20","v":0},{"$f":"CntyDataLink!$DW$20","v":8},{"$f":"CntyDataLink!$DZ$20","v":6}]
["Mobile Home",{"$f":"CntyDataLink!$CT$20","v":0},{"$f":"CntyDataLink!$CW$20","v":0},{"$f":"CntyDataLink!$CZ$20","v":2},{"$f":"CntyDataLink!$DC$20","v":0},{"$f":"CntyDataLink!$DF$20","v":2},{"$f":"CntyDataLink!$DI$20","v":3},{"$f":"CntyDataLink!$DL$20","v":2},{"$f":"CntyDataLink!$DO$20","v":0},{"$f":"CntyDataLink!$DR$20","v":5},{"$f":"CntyDataLink!$DU$20","v":0},{"$f":"CntyDataLink!$DX$20","v":1},{"$f":"CntyDataLink!$EA$20","v":-1}]
["Total",{"$f":"SUM(B48:B50)","v":42},29,39,22,21,20,28,26,31,41,{"$f":"SUM(L48:L50)","v":42},{"$f":"SUM(M48:M50)","v":20}]
[]
["Total Housing Units",2008,{"$f":"B53+1","v":2009},2010,"2010 Census",2011,{"$f":"F53+1","v":2012},2013,2014,2015,2016,2017,2018,2019,2020]
["Single Family",{"$f":"CntyDataLink!CF65+CntyDataLink!$BT$20+CntyDataLink!$BW$20+CntyDataLink!$BZ$20+CntyDataLink!$CC$20+CntyDataLink!$CF$20+CntyDataLink!$CI$20+CntyDataLink!$CO$20+CntyDataLink!$CR$20","v":2732},{"$f":"B54+B48","v":2774},{"$f":"C54+C48","v":2803},{"$f":"CntyDataLink!$BA$167","v":3022},{"$f":"D48+E54","v":3059},{"$f":"F54+E48","v":3079},3098,3115,3141,3167,3193,3234,3267,3282]
["Multi Family",{"$f":"SUM(CntyDataLink!CG65:CM65)+CntyDataLink!$BU$20+CntyDataLink!$BX$20+CntyDataLink!$CA$20+CntyDataLink!$CD$20+CntyDataLink!$CG$20+CntyDataLink!$CJ$20+CntyDataLink!$CP$20+CntyDataLink!$CS$20","v":281},{"$f":"B55+B49","v":281},{"$f":"C55+C49","v":281},{"$f":"CntyDataLink!$BB$167","v":239},{"$f":"D49+E55","v":239},{"$f":"F55+E49","v":241},241,241,241,241,241,241,249,255]
["Mobile Home",{"$f":"SUM(CntyDataLink!CN65:CO65)+CntyDataLink!$BV$20+CntyDataLink!$BY$20+CntyDataLink!$CB$20+CntyDataLink!$CE$20+CntyDataLink!$CH$20+CntyDataLink!$CK$20+CntyDataLink!$CQ$20+CntyDataLink!$CT$20","v":627},627,{"$f":"C56+C50","v":627},{"$f":"CntyDataLink!$BC$167","v":400},{"$f":"D50+E56","v":402},402,404,407,409,409,414,414,415,414]
["Total",{"$f":"SUM(B54:B56)","v":3640},{"$f":"SUM(C54:C56)","v":3682},{"$f":"C57+C51","v":3711},{"$f":"SUM(E54:E56)","v":3661},{"$f":"SUM(F54:F56)","v":3700},3722,3743,3763,3791,3817,3848,3889,3931,3951]
[]
["Percent Change",null,"08-09","09-10","2000-2010 Census"," 10-11"," 11-12","12-13","13-14","14-15","15-16","16-17","17-18","18-19","19-20"]
["Single Family",null,{"$f":"(C54-B54)/B54","v":1.5373352855051245E-2},{"$f":"(D54-C54)/C54","v":1.0454217736121124E-2},{"$f":"(E54-CntyDataLink!CF$65)/CntyDataLink!CF$65","v":0.31965065502183404},{"$f":"(F54-E54)/E54","v":1.2243547319655858E-2},6.5380843412880026E-3,6.1708346865865541E-3,5.4874112330535827E-3,8.3467094703049763E-3,8.2776185928048387E-3,8.2096621408272816E-3,1.2840588787973693E-2,1.020408163265306E-2,4.5913682277318639E-3]
["Multi Family",null,{"$f":"(C55-B55)/B55","v":0},0,{"$f":"(E55-SUM(CntyDataLink!CG65:CM65))/SUM(CntyDataLink!CG65:CM65)","v":-5.533596837944664E-2},{"$f":"(F55-E55)/E55","v":0},8.368200836820083E-3,0,0,0,0,0,0,3.3195020746887967E-2,2.4096385542168676E-2]
["Mobile Home",null,0,0,{"$f":"(E56-SUM(CntyDataLink!CM65:CN65))/SUM(CntyDataLink!CM65:CN65)","v":-0.2805755395683453},{"$f":"(F56-E56)/E56","v":5.0000000000000001E-3},0,4.9751243781094526E-3,7.4257425742574254E-3,4.9140049140049139E-3,0,1.2224938875305624E-2,0,2.4154589371980675E-3,-2.4096385542168677E-3]
["Total",null,1.1538461538461539E-2,7.876154263986964E-3,{"$f":"(E57-CntyDataLink!$CE65)/CntyDataLink!$CE65","v":0.16333015570384493},{"$f":"(F57-E57)/E57","v":1.0652827096421742E-2},5.9459459459459459E-3,5.6421278882321331E-3,5.3433075073470475E-3,7.4408716449641246E-3,6.8583487206541806E-3,8.1215614356824738E-3,1.0654885654885655E-2,1.0799691437387503E-2,5.0877639277537526E-3]
[]
[]
[]
[]
["Private Employment"]
[{"$f":"CntyDataLink!A25","v":"Barrington"}]
[null,null,2008,{"$f":"C70+1","v":2009},2010,2011,2012,2013,2014,2015,2016,2017,2018,2019]
["Goods Producing",null,{"$f":"IF((CntyDataLink!$BI$25)=\"n\",NA(),IF(VALUE(CntyDataLink!$BI$25)=\"\",NA(),VALUE(CntyDataLink!$BI$25)))","v":352},{"$f":"IF((CntyDataLink!$BQ$25)=\"n\",NA(),IF(VALUE(CntyDataLink!$BQ$25)=\"\",NA(),VALUE(CntyDataLink!$BQ$25)))","v":323},{"$f":"IF((CntyDataLink!$BY$25)=\"n\",NA(),IF(VALUE(CntyDataLink!$BY$25)=\"\",NA(),VALUE(CntyDataLink!$BY$25)))","v":354},{"$f":"IF((CntyDataLink!$CG$25)=\"n\",NA(),IF(VALUE(CntyDataLink!$CG$25)=\"\",NA(),VALUE(CntyDataLink!$CG$25)))","v":396},{"$f":"IF((CntyDataLink!$CO$25)=\"n\",NA(),IF(VALUE(CntyDataLink!$CO$25)=\"\",NA(),VALUE(CntyDataLink!$CO$25)))","v":457},{"$f":"IF((CntyDataLink!$CW$25)=\"n\",NA(),IF(VALUE(CntyDataLink!$CW$25)=\"\",NA(),VALUE(CntyDataLink!$CW$25)))","v":487},{"$f":"IF((CntyDataLink!$DE$25)=\"n\",NA(),IF(VALUE(CntyDataLink!$DE$25)=\"\",NA(),VALUE(CntyDataLink!$DE$25)))","v":505},{"$f":"IF((CntyDataLink!$DM$25)=\"n\",NA(),IF(VALUE(CntyDataLink!$DM$25)=\"\",NA(),VALUE(CntyDataLink!$DM$25)))","v":607},{"$f":"IF((CntyDataLink!$DU$25)=\"n\",NA(),IF(VALUE(CntyDataLink!$DU$25)=\"\",NA(),VALUE(CntyDataLink!$DU$25)))","v":673},{"$f":"IF((CntyDataLink!$EC$25)=\"n\",NA(),IF(VALUE(CntyDataLink!$EC$25)=\"\",NA(),VALUE(CntyDataLink!$EC$25)))","v":721},{"$f":"IF((CntyDataLink!$EK$25)=\"n\",NA(),IF(VALUE(CntyDataLink!$EK$25)=\"\",NA(),VALUE(CntyDataLink!$EK$25)))","v":791},{"$f":"IF((CntyDataLink!$ET$25)=\"n\",NA(),IF(VALUE(CntyDataLink!$ET$25)=\"\",NA(),VALUE(CntyDataLink!$ET$25)))","v":811}]
["Service Providing",null,{"$f":"IF((CntyDataLink!$BJ$25)=\"n\",NA(),IF(VALUE(CntyDataLink!$BJ$25)=\"\",NA(),VALUE(CntyDataLink!$BJ$25)))","v":901},{"$f":"IF((CntyDataLink!$BR$25)=\"n\",NA(),IF(VALUE(CntyDataLink!$BR$25)=\"\",NA(),VALUE(CntyDataLink!$BR$25)))","v":861},{"$f":"IF((CntyDataLink!$BZ$25)=\"n\",NA(),IF(VALUE(CntyDataLink!$BZ$25)=\"\",NA(),VALUE(CntyDataLink!$BZ$25)))","v":834},{"$f":"IF((CntyDataLink!$CH$25)=\"n\",NA(),IF(VALUE(CntyDataLink!$CH$25)=\"\",NA(),VALUE(CntyDataLink!$CH$25)))","v":840},{"$f":"IF((CntyDataLink!$CP$25)=\"n\",NA(),IF(VALUE(CntyDataLink!$CP$25)=\"\",NA(),VALUE(CntyDataLink!$CP$25)))","v":849},{"$f":"IF((CntyDataLink!$CX$25)=\"n\",NA(),IF(VALUE(CntyDataLink!$CX$25)=\"\",NA(),VALUE(CntyDataLink!$CX$25)))","v":883},{"$f":"IF((CntyDataLink!$DF$25)=\"n\",NA(),IF(VALUE(CntyDataLink!$DF$25)=\"\",NA(),VALUE(CntyDataLink!$DF$25)))","v":883},{"$f":"IF((CntyDataLink!$DN$25)=\"n\",NA(),IF(VALUE(CntyDataLink!$DN$25)=\"\",NA(),VALUE(CntyDataLink!$DN$25)))","v":895},{"$f":"IF((CntyDataLink!$DV$25)=\"n\",NA(),IF(VALUE(CntyDataLink!$DV$25)=\"\",NA(),VALUE(CntyDataLink!$DV$25)))","v":910},{"$f":"IF((CntyDataLink!$ED$25)=\"n\",NA(),IF(VALUE(CntyDataLink!$ED$25)=\"\",NA(),VALUE(CntyDataLink!$ED$25)))","v":939},{"$f":"IF((CntyDataLink!$EL$25)=\"n\",NA(),IF(VALUE(CntyDataLink!$EL$25)=\"\",NA(),VALUE(CntyDataLink!$EL$25)))","v":928},{"$f":"IF((CntyDataLink!$EU$25)=\"n\",NA(),IF(VALUE(CntyDataLink!$EU$25)=\"\",NA(),VALUE(CntyDataLink!$EU$25)))","v":958}]
["Total Private Emp",null,{"$f":"IF((CntyDataLink!$BH$25)=\"n\",NA(),IF(VALUE(CntyDataLink!$BH$25)=\"\",NA(),VALUE(CntyDataLink!$BH$25)))","v":1253},{"$f":"IF((CntyDataLink!$BP$25)=\"n\",NA(),IF(VALUE(CntyDataLink!$BP$25)=\"\",NA(),VALUE(CntyDataLink!$BP$25)))","v":1184},{"$f":"IF((CntyDataLink!$BX$25)=\"n\",NA(),IF(VALUE(CntyDataLink!$BX$25)=\"\",NA(),VALUE(CntyDataLink!$BX$25)))","v":1188},{"$f":"IF((CntyDataLink!$CF$25)=\"n\",NA(),IF(VALUE(CntyDataLink!$CF$25)=\"\",NA(),VALUE(CntyDataLink!$CF$25)))","v":1236},{"$f":"IF((CntyDataLink!$CN$25)=\"n\",NA(),IF(VALUE(CntyDataLink!$CN$25)=\"\",NA(),VALUE(CntyDataLink!$CN$25)))","v":1306},{"$f":"IF((CntyDataLink!$CV$25)=\"n\",NA(),IF(VALUE(CntyDataLink!$CV$25)=\"\",NA(),VALUE(CntyDataLink!$CV$25)))","v":1370},{"$f":"IF((CntyDataLink!$DD$25)=\"n\",NA(),IF(VALUE(CntyDataLink!$DD$25)=\"\",NA(),VALUE(CntyDataLink!$DD$25)))","v":1387},{"$f":"IF((CntyDataLink!$DL$25)=\"n\",NA(),IF(VALUE(CntyDataLink!$DL$25)=\"\",NA(),VALUE(CntyDataLink!$DL$25)))","v":1502},{"$f":"IF((CntyDataLink!$DT$25)=\"n\",NA(),IF(VALUE(CntyDataLink!$DT$25)=\"\",NA(),VALUE(CntyDataLink!$DT$25)))","v":1583},{"$f":"IF((CntyDataLink!$EB$25)=\"n\",NA(),IF(VALUE(CntyDataLink!$EB$25)=\"\",NA(),VALUE(CntyDataLink!$EB$25)))","v":1661},{"$f":"IF((CntyDataLink!$EJ$25)=\"n\",NA(),IF(VALUE(CntyDataLink!$EJ$25)=\"\",NA(),VALUE(CntyDataLink!$EJ$25)))","v":1719},{"$f":"IF((CntyDataLink!$ER$25)=\"n\",NA(),IF(VALUE(CntyDataLink!$ER$25)=\"\",NA(),VALUE(CntyDataLink!$ER$25)))","v":1769}]
[]
["Percent Change",null,null,"08-09","09-10","10-11","11-12","12-13","13-14","14-15","15-16","16-17","17-18","18-19"]
["Goods Producing",null,null,{"$f":"(D71-C71)/C71","v":-8.2386363636363633E-2},9.5975232198142413E-2,0.11864406779661017,0.15404040404040403,6.5645514223194742E-2,3.6960985626283367E-2,0.20198019801980199,0.10873146622734761,7.1322436849925702E-2,9.7087378640776698E-2,{"$f":"(N71-M71)/M71","v":2.5284450063211124E-2}]
["Service Providing",null,null,-4.4395116537180909E-2,-3.1358885017421602E-2,7.1942446043165471E-3,1.0714285714285714E-2,4.0047114252061249E-2,0,1.3590033975084938E-2,1.6759776536312849E-2,3.1868131868131866E-2,-1.1714589989350373E-2,3.2327586206896554E-2]
["Total Private Emp",null,null,-5.5067837190742222E-2,{"$f":"(E73-D73)/D73","v":3.3783783783783786E-3},4.0404040404040407E-2,5.6634304207119741E-2,4.9004594180704443E-2,1.2408759124087591E-2,8.2912761355443398E-2,5.3928095872170442E-2,4.9273531269740996E-2,3.4918723660445516E-2,{"$f":"(N73-M73)/M73","v":2.9086678301337987E-2}]
[]
[]
[]
[]
[]
[]
["Source: New Hampshire Department of Employment Security"]
[]
[{"$f":"A2","v":"Barrington"}]
[]
[]
[]
[]
[]
[]
[]
[]
[]
[]
[]
[]
[]
[]
[]
[]
[]
[]
[]
[]
[]
[]
[]
[]
[]
[]
[]
[]
[]
[]
[]
[]
[null,null,2008,{"$f":"C120+1","v":2009},2010,2011,2012,2013,2014,2015,2016,2017,2018,2019]
["Total Housing Units",null,{"$f":"B$57","v":3640},3682,{"$f":"$E$57","v":3661},{"$f":"F57","v":3700},3722,3743,3763,3791,3817,3848,3889,3931]
["Private & Government Emp.",null,{"$f":"VALUE(CntyDataLink!$BG$25)","v":1536},{"$f":"VALUE(CntyDataLink!$BO$25)","v":1475},{"$f":"VALUE(CntyDataLink!$BW$25)","v":1468},{"$f":"VALUE(CntyDataLink!$CE$25)","v":1522},{"$f":"VALUE(CntyDataLink!$CM$25)","v":1591},{"$f":"VALUE(CntyDataLink!$CU$25)","v":1650},{"$f":"VALUE(CntyDataLink!$DC$25)","v":1661},{"$f":"VALUE(CntyDataLink!$DK$25)","v":1785},{"$f":"VALUE(CntyDataLink!$DS$25)","v":1880},{"$f":"VALUE(CntyDataLink!$EA$25)","v":1947},{"$f":"VALUE(CntyDataLink!$EI$25)","v":2015},{"$f":"VALUE(CntyDataLink!$EQ$25)","v":2070}]
[]
["Source: New Hampshire Department of Employment Security and New Hampshire Office of Strategic Initiatives"]

{"sheet":"HHIncome-10YearComparison","index":11,"n_rows":50,"n_cols":16,"rows_kept":50,"cut":false,"hidden":true,"merged":[[27,11,27,13],[28,1,28,2],[3,1,3,3],[26,1,26,4],[27,4,27,7],[27,8,27,10]],"read":"row_number_cap"}
[]
[null,{"$f":"CntyDataLink!A35","v":"Barrington"}]
[]
[null,"INCOME CHARACTERISTICS"]
[]
[]
[]
[]
[]
[]
[]
[]
[]
[]
[]
[]
[]
[]
[]
[]
[]
[]
[]
[]
[]
[]
[null,"Households By Household Income"]
[null,null,null,null,"2005-2009",null,null,null,"2010-2014",null,null,"2015-2019"]
[null,"Household Income",null,null,"Estimate","Margin of Error",null,null,"Estimate"," Margin of Error",null,"Estimate"," Margin of Error",null,null,"Statistically Significant Change"]
[null,"Less than $10,000",null,null,{"$f":"CntyDataLinkPrior10YearEstimate!$B$120","v":39},{"$f":"CntyDataLinkPrior10YearEstimate!$C$120","v":37},{"$f":"E30/SUM($E$30:$E$39)","v":3.9795918367346937E-2},null,{"$f":"CntyDataLinkPrior5YearEstimates!$B$120","v":91},{"$f":"CntyDataLinkPrior5YearEstimates!$C$120","v":83},{"$f":"I30/SUM($E$30:$E$39)","v":9.285714285714286E-2},{"$f":"CntyDataLink!$B$120","v":49},{"$f":"CntyDataLink!$C$120","v":76},{"$f":"L30/SUM($I$30:$I$39)","v":1.4817054732385848E-2},null,{"$f":"StatisticallySignificantCalcs!$A$82","v":"Y"}]
[null,"$10,000 to $14,999",null,null,{"$f":"CntyDataLinkPrior10YearEstimate!$D$120","v":14},{"$f":"CntyDataLinkPrior10YearEstimate!$E$120","v":22},1.4285714285714285E-2,null,{"$f":"CntyDataLinkPrior5YearEstimates!$D$120","v":174},{"$f":"CntyDataLinkPrior5YearEstimates!$E$120","v":103},0.17755102040816326,{"$f":"CntyDataLink!$D$120","v":137},{"$f":"CntyDataLink!$E$120","v":122},4.1427275476262473E-2,null,{"$f":"StatisticallySignificantCalcs!$A$83","v":"N"}]
[null,"$15,000 to $24,999",null,null,{"$f":"CntyDataLinkPrior10YearEstimate!$F$120","v":92},{"$f":"CntyDataLinkPrior10YearEstimate!$G$120","v":87},9.3877551020408165E-2,null,{"$f":"CntyDataLinkPrior5YearEstimates!$F$120","v":100},{"$f":"CntyDataLinkPrior5YearEstimates!$G$120","v":83.096329642168911},0.10204081632653061,{"$f":"CntyDataLink!$F$120","v":232},{"$f":"CntyDataLink!$G$120","v":173.25414857947845},7.0154218324765649E-2,null,{"$f":"StatisticallySignificantCalcs!$A$84","v":"N"}]
[null,"$25,000 to $34,999",null,null,{"$f":"CntyDataLinkPrior10YearEstimate!$H$120","v":88},{"$f":"CntyDataLinkPrior10YearEstimate!$I$120","v":56},8.9795918367346933E-2,null,{"$f":"CntyDataLinkPrior5YearEstimates!$H$120","v":253},{"$f":"CntyDataLinkPrior5YearEstimates!$I$120","v":140.07141035914503},0.25816326530612244,{"$f":"CntyDataLink!$H$120","v":179},{"$f":"CntyDataLink!$I$120","v":112.2007130102122},5.4127608104021771E-2,null,{"$f":"StatisticallySignificantCalcs!$A$85","v":"N"}]
[null,"$35,000 to $49,999",null,null,{"$f":"CntyDataLinkPrior10YearEstimate!$J$120","v":101},{"$f":"CntyDataLinkPrior10YearEstimate!$K$120","v":67},0.10306122448979592,null,{"$f":"CntyDataLinkPrior5YearEstimates!$J$120","v":347},{"$f":"CntyDataLinkPrior5YearEstimates!$K$120","v":173.25992035089939},0.35408163265306125,{"$f":"CntyDataLink!$J$120","v":303},{"$f":"CntyDataLink!$K$120","v":161.94443491518936},9.1623828243120653E-2,null,{"$f":"StatisticallySignificantCalcs!$A$86","v":"N"}]
[null,"$50,000 to $74,999",null,null,{"$f":"CntyDataLinkPrior10YearEstimate!$L$120","v":102},{"$f":"CntyDataLinkPrior10YearEstimate!$M$120","v":65},0.10408163265306122,null,{"$f":"CntyDataLinkPrior5YearEstimates!$L$120","v":497},{"$f":"CntyDataLinkPrior5YearEstimates!$M$120","v":169.74392478082979},0.50714285714285712,{"$f":"CntyDataLink!$L$120","v":421},{"$f":"CntyDataLink!$M$120","v":156.26259949200897},0.1273057151496825,null,{"$f":"StatisticallySignificantCalcs!$A$87","v":"Y"}]
[null,"$75,000 to $99,999",null,null,{"$f":"CntyDataLinkPrior10YearEstimate!$N$120","v":101},{"$f":"CntyDataLinkPrior10YearEstimate!$O$120","v":62},0.10306122448979592,null,{"$f":"CntyDataLinkPrior5YearEstimates!$N$120","v":590},{"$f":"CntyDataLinkPrior5YearEstimates!$O$120","v":173},0.60204081632653061,{"$f":"CntyDataLink!$N$120","v":468},{"$f":"CntyDataLink!$O$120","v":218},0.14151799213788932,null,{"$f":"StatisticallySignificantCalcs!$A$88","v":"Y"}]
[null,"$100,000 to $149,999",null,null,{"$f":"CntyDataLinkPrior10YearEstimate!$P$120","v":118},{"$f":"CntyDataLinkPrior10YearEstimate!$Q$120","v":75},0.12040816326530612,null,{"$f":"CntyDataLinkPrior5YearEstimates!$P$120","v":658},{"$f":"CntyDataLinkPrior5YearEstimates!$Q$120","v":204.98048687619024},0.67142857142857137,{"$f":"CntyDataLink!$P$120","v":683},{"$f":"CntyDataLink!$Q$120","v":198.07069445023916},0.20653159963713336,null,{"$f":"StatisticallySignificantCalcs!$A$89","v":"Y"}]
[null,"$150,000 to $199,999",null,null,{"$f":"CntyDataLinkPrior10YearEstimate!$R$120","v":223},{"$f":"CntyDataLinkPrior10YearEstimate!$S$120","v":116},0.22755102040816327,null,{"$f":"CntyDataLinkPrior5YearEstimates!$R$120","v":365},{"$f":"CntyDataLinkPrior5YearEstimates!$S$120","v":185},0.37244897959183676,{"$f":"CntyDataLink!$R$120","v":564},{"$f":"CntyDataLink!$S$120","v":224},0.17054732385848201,null,{"$f":"StatisticallySignificantCalcs!$A$90","v":"Y"}]
[null,"Greater than $200,000",null,null,{"$f":"CntyDataLinkPrior10YearEstimate!$T$120","v":102},{"$f":"CntyDataLinkPrior10YearEstimate!$U$120","v":54},0.10408163265306122,null,{"$f":"CntyDataLinkPrior5YearEstimates!$T$120","v":232},{"$f":"CntyDataLinkPrior5YearEstimates!$U$120","v":131},0.23673469387755103,{"$f":"CntyDataLink!$T$120","v":270},{"$f":"CntyDataLink!$U$120","v":127},8.1644995464166925E-2,null,{"$f":"StatisticallySignificantCalcs!$A$91","v":"Y"}]
[null,null,null,null,491895,null,null,null,491895]
[null,null,"Median HH Income",null,{"$f":"CntyDataLinkPrior10YearEstimate!$BV$128","v":73449},null,{"$f":"CntyDataLinkPrior10YearEstimate!$BW$128","v":4244},null,{"$f":"CntyDataLinkPrior5YearEstimates!$BV$128","v":82431},{"$f":"CntyDataLinkPrior5YearEstimates!$BW$128","v":7227},null,{"$f":"CntyDataLink!$BV$128","v":86755},{"$f":"CntyDataLink!$BW$128","v":13562}]
[null,null,"HH Income in 2019 Dollars",null,{"$f":"($E$50)*E41","v":86669.819999999992},null,null,null,{"$f":"($E$49)*I41","v":88201.17}]
[]
[null,{"$f":"\"Source:  \"& \" \"&E28&\", \"&I28&\" and \"&L28& \"  American Community Survey; Tables B25119; B19001\"","v":"Source:   2005-2009, 2010-2014 and 2015-2019  American Community Survey; Tables B25119; B19001"}]
[]
[null,"Data from the American Community Survey are estimates."]
[]
[null,"CPI Adjustment Factor"]
[null,"2010-2014",null,null,1.07]
[null,"2005-2009",null,null,1.18]

{"sheet":"HHIncomeByAge","index":12,"n_rows":79,"n_cols":22,"rows_kept":79,"cut":false,"hidden":true,"merged":[[21,6,21,15]]}
[]
[null,null,{"$f":"CntyDataLink!A55","v":"Barrington"}]
[null,null,"INCOME CHARACTERISTICS"]
[]
[]
[]
[]
[]
[]
[]
[]
[]
[]
[]
[]
[]
[]
[]
[]
[]
[null,null,{"$f":"HHIncomeByAge!C2","v":"Barrington"},"Household Income in 2019"]
[null,null,null,null,null,null,"Households by Age of Householder "]
[null,null,null,"Households","Margin of Error Households",null,"Under 25","Margin of Error Under 25",null,"25 to 44","Margin of Error 25 to 44",null,"45 to 64","Margin of Error 45 to 64",null,"65 & Over","Margin of Error 65 & Over",null,"Family Households","Margin of Error Family HH","Non-Family HH","Margin of Error Non-Family HH"]
[null,null,"Less Than $10,000",{"$f":"CntyDataLink!$D$116","v":53},{"$f":"CntyDataLink!$E$116","v":82},null,{"$f":"CntyDataLink!$AN$116","v":0},{"$f":"CntyDataLink!$AO$116","v":16},null,{"$f":"CntyDataLink!$BV$116","v":0},{"$f":"CntyDataLink!$BW$116","v":16},null,{"$f":"CntyDataLink!$DD$116","v":53},{"$f":"CntyDataLink!$DE$116","v":82},null,{"$f":"CntyDataLink!$EL$116","v":0},{"$f":"CntyDataLink!$EM$116","v":16},null,{"$f":"CntyDataLink!$D$160","v":53},{"$f":"CntyDataLink!$E$160","v":82},{"$f":"CntyDataLink!$AN$160","v":0},{"$f":"CntyDataLink!$AO$160","v":16}]
[null,null,"$10,000 to $14,999",{"$f":"CntyDataLink!$F$116","v":30},{"$f":"CntyDataLink!$G$116","v":36},null,{"$f":"CntyDataLink!$AP$116","v":0},{"$f":"CntyDataLink!$AQ$116","v":16},null,{"$f":"CntyDataLink!$BX$116","v":0},{"$f":"CntyDataLink!$BY$116","v":16},null,{"$f":"CntyDataLink!$DF$116","v":13},{"$f":"CntyDataLink!$DG$116","v":22},null,{"$f":"CntyDataLink!$EN$116","v":17},{"$f":"CntyDataLink!$EO$116","v":28},null,{"$f":"CntyDataLink!$F$160","v":0},{"$f":"CntyDataLink!$G$160","v":16},{"$f":"CntyDataLink!$AP$160","v":30},{"$f":"CntyDataLink!$AQ$160","v":36}]
[null,null,"$15,000 to $19,999",{"$f":"CntyDataLink!$H$116","v":31},{"$f":"CntyDataLink!$I$116","v":34},null,{"$f":"CntyDataLink!$AR$116","v":0},{"$f":"CntyDataLink!$AS$116","v":16},null,{"$f":"CntyDataLink!$BZ$116","v":0},{"$f":"CntyDataLink!$CA$116","v":16},null,{"$f":"CntyDataLink!$DH$116","v":31},{"$f":"CntyDataLink!$DI$116","v":34},null,{"$f":"CntyDataLink!$EP$116","v":0},{"$f":"CntyDataLink!$EQ$116","v":16},null,{"$f":"CntyDataLink!$H$160","v":13},{"$f":"CntyDataLink!$I$160","v":20},{"$f":"CntyDataLink!$AR$160","v":18},{"$f":"CntyDataLink!$AS$160","v":29}]
[null,null,"$20,000 to $24,999",{"$f":"CntyDataLink!$J$116","v":147},{"$f":"CntyDataLink!$K$116","v":136},null,{"$f":"CntyDataLink!$AT$116","v":0},{"$f":"CntyDataLink!$AU$116","v":16},null,{"$f":"CntyDataLink!$CB$116","v":0},{"$f":"CntyDataLink!$CC$116","v":16},null,{"$f":"CntyDataLink!$DJ$116","v":107},{"$f":"CntyDataLink!$DK$116","v":119},null,{"$f":"CntyDataLink!$ER$116","v":40},{"$f":"CntyDataLink!$ES$116","v":65},null,{"$f":"CntyDataLink!$J$160","v":15},{"$f":"CntyDataLink!$K$160","v":21},{"$f":"CntyDataLink!$AT$160","v":132},{"$f":"CntyDataLink!$AU$160","v":135}]
[null,null,"$25,000 to $29,999",{"$f":"CntyDataLink!$L$116","v":157},{"$f":"CntyDataLink!$M$116","v":136},null,{"$f":"CntyDataLink!$AV$116","v":19},{"$f":"CntyDataLink!$AW$116","v":29},null,{"$f":"CntyDataLink!$CD$116","v":0},{"$f":"CntyDataLink!$CE$116","v":16},null,{"$f":"CntyDataLink!$DL$116","v":25},{"$f":"CntyDataLink!$DM$116","v":31},null,{"$f":"CntyDataLink!$ET$116","v":113},{"$f":"CntyDataLink!$EU$116","v":124},null,{"$f":"CntyDataLink!$L$160","v":37},{"$f":"CntyDataLink!$M$160","v":46},{"$f":"CntyDataLink!$AV$160","v":145},{"$f":"CntyDataLink!$AW$160","v":134}]
[null,null,"$30,000 to $34,999",{"$f":"CntyDataLink!$N$116","v":109},{"$f":"CntyDataLink!$O$116","v":101},null,{"$f":"CntyDataLink!$AX$116","v":0},{"$f":"CntyDataLink!$AY$116","v":16},null,{"$f":"CntyDataLink!$CF$116","v":27},{"$f":"CntyDataLink!$CG$116","v":40},null,{"$f":"CntyDataLink!$DN$116","v":45},{"$f":"CntyDataLink!$DO$116","v":70},null,{"$f":"CntyDataLink!$EV$116","v":37},{"$f":"CntyDataLink!$EW$116","v":44},null,{"$f":"CntyDataLink!$N$160","v":46},{"$f":"CntyDataLink!$O$160","v":51},{"$f":"CntyDataLink!$AX$160","v":63},{"$f":"CntyDataLink!$AY$160","v":76}]
[null,null,"$35,000 to $39,999",{"$f":"CntyDataLink!$P$116","v":53},{"$f":"CntyDataLink!$Q$116","v":84},null,{"$f":"CntyDataLink!$AZ$116","v":0},{"$f":"CntyDataLink!$BA$116","v":16},null,{"$f":"CntyDataLink!$CH$116","v":0},{"$f":"CntyDataLink!$CI$116","v":16},null,{"$f":"CntyDataLink!$DP$116","v":53},{"$f":"CntyDataLink!$DQ$116","v":84},null,{"$f":"CntyDataLink!$EX$116","v":0},{"$f":"CntyDataLink!$EY$116","v":16},null,{"$f":"CntyDataLink!$P$160","v":0},{"$f":"CntyDataLink!$Q$160","v":16},{"$f":"CntyDataLink!$AZ$160","v":53},{"$f":"CntyDataLink!$BA$160","v":84}]
[null,null,"$40,000 to $44,999",{"$f":"CntyDataLink!$R$116","v":109},{"$f":"CntyDataLink!$S$116","v":68},null,{"$f":"CntyDataLink!$BB$116","v":0},{"$f":"CntyDataLink!$BC$116","v":16},null,{"$f":"CntyDataLink!$CJ$116","v":22},{"$f":"CntyDataLink!$CK$116","v":36},null,{"$f":"CntyDataLink!$DR$116","v":67},{"$f":"CntyDataLink!$DS$116","v":56},null,{"$f":"CntyDataLink!$EZ$116","v":20},{"$f":"CntyDataLink!$FA$116","v":34},null,{"$f":"CntyDataLink!$R$160","v":69},{"$f":"CntyDataLink!$S$160","v":57},{"$f":"CntyDataLink!$BB$160","v":40},{"$f":"CntyDataLink!$BC$160","v":36}]
[null,null,"$45,000 to $49,999",{"$f":"CntyDataLink!$T$116","v":18},{"$f":"CntyDataLink!$U$116","v":29},null,{"$f":"CntyDataLink!$BD$116","v":0},{"$f":"CntyDataLink!$BE$116","v":16},null,{"$f":"CntyDataLink!$CL$116","v":0},{"$f":"CntyDataLink!$CM$116","v":16},null,{"$f":"CntyDataLink!$DT$116","v":0},{"$f":"CntyDataLink!$DU$116","v":16},null,{"$f":"CntyDataLink!$FB$116","v":18},{"$f":"CntyDataLink!$FC$116","v":29},null,{"$f":"CntyDataLink!$T$160","v":0},{"$f":"CntyDataLink!$U$160","v":16},{"$f":"CntyDataLink!$BD$160","v":18},{"$f":"CntyDataLink!$BE$160","v":29}]
[null,null,"$50,000 to $59,999",{"$f":"CntyDataLink!$V$116","v":121},{"$f":"CntyDataLink!$W$116","v":77},null,{"$f":"CntyDataLink!$BF$116","v":0},{"$f":"CntyDataLink!$BG$116","v":16},null,{"$f":"CntyDataLink!$CN$116","v":0},{"$f":"CntyDataLink!$CO$116","v":16},null,{"$f":"CntyDataLink!$DV$116","v":76},{"$f":"CntyDataLink!$DW$116","v":62},null,{"$f":"CntyDataLink!$FD$116","v":45},{"$f":"CntyDataLink!$FE$116","v":42},null,{"$f":"CntyDataLink!$V$160","v":133},{"$f":"CntyDataLink!$W$160","v":79},{"$f":"CntyDataLink!$BF$160","v":19},{"$f":"CntyDataLink!$BG$160","v":33}]
[null,null,"$60,000 to $74,999",{"$f":"CntyDataLink!$X$116","v":394},{"$f":"CntyDataLink!$Y$116","v":168},null,{"$f":"CntyDataLink!$BH$116","v":0},{"$f":"CntyDataLink!$BI$116","v":16},null,{"$f":"CntyDataLink!$CP$116","v":145},{"$f":"CntyDataLink!$CQ$116","v":124},null,{"$f":"CntyDataLink!$DX$116","v":161},{"$f":"CntyDataLink!$DY$116","v":86},null,{"$f":"CntyDataLink!$FF$116","v":88},{"$f":"CntyDataLink!$FG$116","v":79},null,{"$f":"CntyDataLink!$X$160","v":309},{"$f":"CntyDataLink!$Y$160","v":173},{"$f":"CntyDataLink!$BH$160","v":96},{"$f":"CntyDataLink!$BI$160","v":95}]
[null,null,"$75,000 to $99,999",{"$f":"CntyDataLink!$Z$116","v":419},{"$f":"CntyDataLink!$AA$116","v":168},null,{"$f":"CntyDataLink!$BJ$116","v":0},{"$f":"CntyDataLink!$BK$116","v":16},null,{"$f":"CntyDataLink!$CR$116","v":165},{"$f":"CntyDataLink!$CS$116","v":134},null,{"$f":"CntyDataLink!$DZ$116","v":184},{"$f":"CntyDataLink!$EA$116","v":87},null,{"$f":"CntyDataLink!$FH$116","v":70},{"$f":"CntyDataLink!$FI$116","v":54},null,{"$f":"CntyDataLink!$Z$160","v":382},{"$f":"CntyDataLink!$AA$160","v":156},{"$f":"CntyDataLink!$BJ$160","v":18},{"$f":"CntyDataLink!$BK$160","v":28}]
[null,null,"$100,000 to $124,999",{"$f":"CntyDataLink!$AB$116","v":405},{"$f":"CntyDataLink!$AC$116","v":134},null,{"$f":"CntyDataLink!$BL$116","v":0},{"$f":"CntyDataLink!$BM$116","v":16},null,{"$f":"CntyDataLink!$CT$116","v":203},{"$f":"CntyDataLink!$CU$116","v":105},null,{"$f":"CntyDataLink!$EB$116","v":202},{"$f":"CntyDataLink!$EC$116","v":91},null,{"$f":"CntyDataLink!$FJ$116","v":0},{"$f":"CntyDataLink!$FK$116","v":16},null,{"$f":"CntyDataLink!$AB$160","v":323},{"$f":"CntyDataLink!$AC$160","v":114},{"$f":"CntyDataLink!$BL$160","v":82},{"$f":"CntyDataLink!$BM$160","v":68}]
[null,null,"$125,000 to $149,999",{"$f":"CntyDataLink!$AD$116","v":269},{"$f":"CntyDataLink!$AE$116","v":124},null,{"$f":"CntyDataLink!$BN$116","v":0},{"$f":"CntyDataLink!$BO$116","v":16},null,{"$f":"CntyDataLink!$CV$116","v":132},{"$f":"CntyDataLink!$CW$116","v":106},null,{"$f":"CntyDataLink!$ED$116","v":120},{"$f":"CntyDataLink!$EE$116","v":103},null,{"$f":"CntyDataLink!$FL$116","v":17},{"$f":"CntyDataLink!$FM$116","v":28},null,{"$f":"CntyDataLink!$AD$160","v":231},{"$f":"CntyDataLink!$AE$160","v":118},{"$f":"CntyDataLink!$BN$160","v":9},{"$f":"CntyDataLink!$BO$160","v":16}]
[null,null,"$150,000 to $199,999",{"$f":"CntyDataLink!$AF$116","v":531},{"$f":"CntyDataLink!$AG$116","v":198},null,{"$f":"CntyDataLink!$BP$116","v":0},{"$f":"CntyDataLink!$BQ$116","v":16},null,{"$f":"CntyDataLink!$CX$116","v":233},{"$f":"CntyDataLink!$CY$116","v":135},null,{"$f":"CntyDataLink!$EF$116","v":279},{"$f":"CntyDataLink!$EG$116","v":149},null,{"$f":"CntyDataLink!$FN$116","v":19},{"$f":"CntyDataLink!$FO$116","v":32},null,{"$f":"CntyDataLink!$AF$160","v":512},{"$f":"CntyDataLink!$AG$160","v":191},{"$f":"CntyDataLink!$BP$160","v":0},{"$f":"CntyDataLink!$BQ$160","v":16}]
[null,null,"$200,000 or More",{"$f":"CntyDataLink!$AH$116","v":337},{"$f":"CntyDataLink!$AI$116","v":143},null,{"$f":"CntyDataLink!$BR$116","v":0},{"$f":"CntyDataLink!$BS$116","v":16},null,{"$f":"CntyDataLink!$CZ$116","v":43},{"$f":"CntyDataLink!$DA$116","v":49},null,{"$f":"CntyDataLink!$EH$116","v":257},{"$f":"CntyDataLink!$EI$116","v":123},null,{"$f":"CntyDataLink!$FP$116","v":37},{"$f":"CntyDataLink!$FQ$116","v":53},null,{"$f":"CntyDataLink!$AH$160","v":324},{"$f":"CntyDataLink!$AI$160","v":142},{"$f":"CntyDataLink!$BR$160","v":13},{"$f":"CntyDataLink!$BS$160","v":21}]
[]
[null,null,"Total Households",{"$f":"CntyDataLink!$B$116","v":3183},{"$f":"CntyDataLink!$C$116","v":200},null,{"$f":"CntyDataLink!$AL$116","v":19},{"$f":"CntyDataLink!$AM$116","v":29},null,{"$f":"CntyDataLink!$BT$116","v":970},{"$f":"CntyDataLink!$BU$116","v":153},null,{"$f":"CntyDataLink!$DB$116","v":1673},{"$f":"CntyDataLink!$DC$116","v":215},null,{"$f":"CntyDataLink!$EJ$116","v":521},{"$f":"CntyDataLink!$EK$116","v":137},null,{"$f":"CntyDataLink!$B$160","v":2447},{"$f":"CntyDataLink!$C$160","v":204},{"$f":"CntyDataLink!$AL$160","v":736},{"$f":"CntyDataLink!$AM$160","v":242}]
[null,null,"Median Household Inc ",{"$f":"CntyDataLink!$FR$116","v":92596},{"$f":"CntyDataLink!$FS$116","v":21054},null,{"$f":"CntyDataLink!$FT$116","v":"-"},{"$f":"CntyDataLink!$FU$116","v":"**"},null,{"$f":"CntyDataLink!$FV$116","v":120343},{"$f":"CntyDataLink!$FW$116","v":21125},null,{"$f":"CntyDataLink!$FX$116","v":105867},{"$f":"CntyDataLink!$FY$116","v":32168},null,{"$f":"CntyDataLink!$FZ$116","v":54922},{"$f":"CntyDataLink!$GA$116","v":30503},null,{"$f":"CntyDataLink!$AJ$160","v":114738},{"$f":"CntyDataLink!$AK$160","v":16489},{"$f":"CntyDataLink!BT$160","v":31706},{"$f":"CntyDataLink!$BU$160","v":11606}]
[]
[null,null,"Source: 2015-2019 American Community Survey Tables B19001; B19037; B19101; B19102; B19112; Table B19113; B19049"]
[null,null,"Data from the American Community Survey are estimates"]
[]
[null,null,{"$f":"C2","v":"Barrington"}]
[null,null,"INCOME CHARACTERISTICS"]
[]
[]
[]
[]
[]
[]
[]
[]
[]
[]
[]
[]
[]
[]
[]
[]
[]
[]
[]
[]
[]
[]
[]
[]
[]
[]
[]
[]
[]
[]
[null,"Source: 2015-2019 American Community Survey Tables B19001; B19102",null,null,null,null,null,null,null,null,null,null,null,null,"Data from the American Community Survey are estimates"]

{"sheet":"HHIncomeByTenure","index":13,"n_rows":64,"n_cols":17,"rows_kept":64,"cut":false,"hidden":true,"merged":[[63,3,63,4],[63,8,63,9],[63,13,63,14],[61,3,61,4],[61,8,61,9],[61,13,61,14],[62,3,62,4],[62,8,62,9],[62,13,62,14],[2,3,2,5],[58,3,58,6],[58,8,58,11],[58,13,58,16],[59,3,59,6],[59,8,59,11],[59,13,59,16]]}
[]
[null,null,null,{"$f":"CntyDataLink!A80","v":"Barrington"}]
[null,null,null,"INCOME CHARACTERISTICS"]
[]
[]
[]
[]
[]
[]
[]
[]
[]
[]
[]
[]
[]
[]
[]
[]
[]
[]
[]
[]
[]
[]
[]
[]
[null,null,null,{"$f":"D2","v":"Barrington"}]
[null,null,null,"Household Income By Tenure"]
[null,null,null,null,null,"2019 Household Income 1",null,"Occupied Housing Units","Margin of Error Occupied Housing Units","Owner Occupied Housing Units","Margin of Error Owner Occupied Housing Units","Renter Occupied Housing Units","Margin of Error Renter Occupied Housing Units"]
[]
[null,null,null,null,null,"Total",null,{"$f":"CntyDataLink!$B$128","v":3306},{"$f":"CntyDataLink!$C$128","v":247},{"$f":"CntyDataLink!$D$128","v":3015},{"$f":"CntyDataLink!$E$128","v":292},{"$f":"CntyDataLink!$AB$128","v":291},{"$f":"CntyDataLink!$AC$128","v":158}]
[null,null,null,4999,{"$f":"VALUE(RIGHT(F33,7))","v":5000},"Less Than $5,000",null,{"$f":"CntyDataLink!$AZ$128","v":49},{"$f":"CntyDataLink!$BA$128","v":77.665951355790398},{"$f":"CntyDataLink!$F$128","v":49},{"$f":"CntyDataLink!$G$128","v":76},{"$f":"CntyDataLink!$AD$128","v":0},{"$f":"CntyDataLink!$AE$128","v":16}]
[null,null,{"$f":"VALUE(RIGHT($F33,7))","v":5000},4999,10000,"$5,000 to $10,000",null,{"$f":"CntyDataLink!$BB$128","v":0},{"$f":"CntyDataLink!$BC$128","v":22.627416997969522},{"$f":"CntyDataLink!$H$128","v":0},{"$f":"CntyDataLink!$I$128","v":16},{"$f":"CntyDataLink!$AF$128","v":0},{"$f":"CntyDataLink!$AG$128","v":16}]
[null,null,10000,4999,15000,"$10,000 to $15,000",null,{"$f":"CntyDataLink!$BD$128","v":137},{"$f":"CntyDataLink!$BE$128","v":123.06502346320826},{"$f":"CntyDataLink!$J$128","v":89},{"$f":"CntyDataLink!$K$128","v":96},{"$f":"CntyDataLink!$AH$128","v":48},{"$f":"CntyDataLink!$AI$128","v":77}]
[null,null,15000,4999,20000,"$15,000 to $20,000",null,{"$f":"CntyDataLink!$BF$128","v":136},{"$f":"CntyDataLink!$BG$128","v":125.02799686470227},{"$f":"CntyDataLink!$L$128","v":136},{"$f":"CntyDataLink!$M$128","v":124},{"$f":"CntyDataLink!$AJ$128","v":0},{"$f":"CntyDataLink!$AK$128","v":16}]
[null,null,20000,4999,25000,"$20,000 to $25,000",null,{"$f":"CntyDataLink!$BH$128","v":96},{"$f":"CntyDataLink!$BI$128","v":121.2023102090055},{"$f":"CntyDataLink!$N$128","v":83},{"$f":"CntyDataLink!$O$128","v":119},{"$f":"CntyDataLink!$AL$128","v":13},{"$f":"CntyDataLink!$AM$128","v":23}]
[null,null,25000,9999,35000,"$25,000 to $35,000",null,{"$f":"CntyDataLink!$BJ$128","v":179},{"$f":"CntyDataLink!$BK$128","v":121.60592090848209},{"$f":"CntyDataLink!$P$128","v":109},{"$f":"CntyDataLink!$Q$128","v":98},{"$f":"CntyDataLink!$AN$128","v":70},{"$f":"CntyDataLink!$AO$128","v":72}]
[null,null,35000,14999,50000,"$35,000 to $50,000",null,{"$f":"CntyDataLink!$BL$128","v":303},{"$f":"CntyDataLink!$BM$128","v":155.82361823549087},{"$f":"CntyDataLink!$R$128","v":303},{"$f":"CntyDataLink!$S$128","v":155},{"$f":"CntyDataLink!$AP$128","v":0},{"$f":"CntyDataLink!$AQ$128","v":16}]
[null,null,50000,24999,75000,"$50,000 to $75,000",null,{"$f":"CntyDataLink!$BN$128","v":421},{"$f":"CntyDataLink!$BO$128","v":156.20819440733575},{"$f":"CntyDataLink!$T$128","v":385},{"$f":"CntyDataLink!$U$128","v":151},{"$f":"CntyDataLink!$AR$128","v":36},{"$f":"CntyDataLink!$AS$128","v":40}]
[null,null,75000,24999,100000,"$75,000 to $100,000",null,{"$f":"CntyDataLink!$BP$128","v":468},{"$f":"CntyDataLink!$BQ$128","v":225.41739063346466},{"$f":"CntyDataLink!$V$128","v":362},{"$f":"CntyDataLink!$W$128","v":203},{"$f":"CntyDataLink!$AT$128","v":106},{"$f":"CntyDataLink!$AU$128","v":98}]
[null,null,100000,49999,150000,"$100,000 to $150,000",null,{"$f":"CntyDataLink!$BR$128","v":683},{"$f":"CntyDataLink!$BS$128","v":197.29419656948858},{"$f":"CntyDataLink!$X$128","v":665},{"$f":"CntyDataLink!$Y$128","v":195},{"$f":"CntyDataLink!$AV$128","v":18},{"$f":"CntyDataLink!$AW$128","v":30}]
[null,null,150000,null,null,"$150,000 and More",null,{"$f":"CntyDataLink!$BT$128","v":834},{"$f":"CntyDataLink!$BU$128","v":225.56817151362469},{"$f":"CntyDataLink!$Z$128","v":834},{"$f":"CntyDataLink!$AA$128","v":225},{"$f":"CntyDataLink!$AX$128","v":0},{"$f":"CntyDataLink!$AY$128","v":16}]
[]
[]
[null,null,null,null,null,"Median Household Income 2",null,{"$f":"CntyDataLink!$BV$128","v":86755},{"$f":"CntyDataLink!$BW$128","v":13562},{"$f":"CntyDataLink!$BX$128","v":93365},{"$f":"CntyDataLink!$BY$128","v":37171},{"$f":"CntyDataLink!$BZ$128","v":54766},{"$f":"CntyDataLink!$CA$128","v":46564}]
[]
[]
[null,null,null,null,null,"Data from the American Community Survey are estimates"]
[]
[null,null,null,"Source:",1,"2015-2019 American Community Survey Table B25118;  2019 Inflation Adjusted dollars"]
[null,null,null,null,2,"2015-2019 American Community Survey Table B25119;  2019 Inflation Adjusted dollars"]
[]
[]
[]
[null,null,null,"HOUSEHOLD INCOME IN THE PAST 12 MONTHS BY PERCENT OF MEDIAN THRESHOLD"]
[]
[]
[null,null,null,"All Occupied Housing Units",null,null,null,null,"Owner Occupied Households",null,null,null,null,"Renter Occupied Households"]
[]
[null,null,null,"HOUSEHOLD INCOME",null,"Estimate","Margin Of Error",null,"HOUSEHOLD INCOME",null,"Estimate","Margin Of Error",null,"HOUSEHOLD INCOME",null,"Estimate","Margin Of Error"]
[null,null,{"$f":"$H$46*0.3","v":26026.5},"30% of Median Household Income",null,{"$f":"IF($C$62<$C$36,((($C$62-$C$35)/$D$35)*$H$35)+SUM($H$33:$H$34),IF($C$62<$C$37,((($C$62-$C$36)/$D$36)*$H$36)+SUM($H$33:$H$35),IF($C$62<$C$38,((($C$62-$C$37)/$D$37)*$H$37)+SUM($H$33:$H$36),IF($C$62<$C$39,((($C$62-$C$38)/$D$38)*$H$38)+SUM($H$33:$H$37),IF($C$62<$C$40,((($C$62-$C$39)/$D$39)*$H$39)+SUM($H$33:$H$38),IF($C$62<$C$41,((($C$62-$C$40)/$D$40)*$H$40)+SUM($H$33:$H$39),IF($C$62<$C$42,((($C$62-$C$41)/$D$41)*$H$41)+SUM($H$33:$H$40),\"False\")))))))","v":436.37618761876189},{"$f":"IF($C$62<$C$36,((($C$62-$C$35)/$D$35)*$I$35)+SQRT(SUM(($I$33^2),($I$34^2))),IF($C$62<$C$37,((($C$62-$C$36)/$D$36)*$I$36)+SQRT(SUM(($I$33^2),($I$34^2),($I$35^2))),IF($C$62<$C$38,((($C$62-$C$37)/$D$37)*$I$37)+SQRT(SUM(($I$33^2),($I$34^2),($I$35^2),($I$36^2))),IF($C$62<$C$39,((($C$62-$C$38)/$D$38)*$I$38)+SQRT(SUM(($I$33^2),($I$34^2),($I$35^2),($I$36^2),($I$37^2))),IF($C$62<$C$40,((($C$62-$C$39)/$D$39)*$I$39)+SQRT(SUM(($I$33^2),($I$34^2),($I$35^2),($I$36^2),($I$37^2),($I$38^2))),IF($C$62<$C$41,((($C$62-$C$40)/$D$40)*$I$40)+SQRT(SUM(($I$33^2),($I$34^2),($I$35^2),($I$36^2),($I$37^2),($I$38^2),($I$39^2))),IF($C$62<$C$42,((($C$62-$C$41)/$D$41)*$I$41)+SQRT((($I$33^2)+($I$34^2)+($I$35^2)+($I$36^2)+($I$37^2)+($I$38^2)+($I$39^2)+($I$40^2))),\"False\")))))))","v":240.54329903083911},{"$f":"$J$46*0.3","v":28009.5},"30% of Median Household Income",null,{"$f":"IF($H$62<$C$36,((($H$62-$C$35)/$D$35)*$J$35)+SUM($J$33:$J$34),IF($H$62<$C$37,((($H$62-$C$36)/$D$36)*$J$36)+SUM($J$33:$J$35),IF($H$62<$C$38,((($H$62-$C$37)/$D$37)*$J$37)+SUM($J$33:$J$36),IF($H$62<$C$39,((($H$62-$C$38)/$D$38)*$J$38)+SUM($J$33:$J$37),IF($H$62<$C$40,((($H$62-$C$39)/$D$39)*$J$39)+SUM($J$33:$J$38),IF($H$62<$C$41,((($H$62-$C$40)/$D$40)*$J$40)+SUM($J$33:$J$39),IF($H$62<$C$42,((($H$62-$C$41)/$D$41)*$J$41)+SUM($J$33:$J$40),\"False\")))))))","v":389.80683068306831},{"$f":"IF($H$62<$C$36,((($H$62-$C$35)/$D$35)*$K$35)+SQRT(SUM(($K$33^2),($K$34^2))),IF($H$62<$C$37,((($H$62-$C$36)/$D$36)*$K$36)+SQRT(SUM(($K$33^2),($K$34^2),($K$35^2))),IF($H$62<$C$38,((($H$62-$C$37)/$D$37)*$K$37)+SQRT(SUM(($K$33^2),($K$34^2),($K$35^2),($K$36^2))),IF($H$62<$C$39,((($H$62-$C$38)/$D$38)*$K$38)+SQRT(SUM(($K$33^2),($K$34^2),($K$35^2),($K$36^2),($K$37^2))),IF($H$62<$C$40,((($H$62-$C$39)/$D$39)*$K$39)+SQRT(SUM(($K$33^2),($K$34^2),($K$35^2),($K$36^2),($K$37^2),($K$38^2))),IF($H$62<$C$41,((($H$62-$C$40)/$D$40)*$K$40)+SQRT(SUM(($K$33^2),($K$34^2),($K$35^2),($K$36^2),($K$37^2),($K$38^2),($K$39^2))),IF($H$62<$C$42,((($H$62-$C$41)/$D$41)*$K$41)+SQRT((($K$33^2)+($K$34^2)+($K$35^2)+($K$36^2)+($K$37^2)+($K$38^2)+($K$39^2)+($K$40^2))),\"False\")))))))","v":241.12071735425667},{"$f":"$L$46*0.3","v":16429.8},"30% of Median Household Income",null,{"$f":"IF($M$62<$C$36,((($M$62-$C$35)/$D$35)*$L$35)+SUM($L$33:$L$34),IF($M$62<$C$37,((($M$62-$C$36)/$D$36)*$L$36)+SUM($L$33:$L$35),IF($M$62<$C$38,((($M$62-$C$37)/$D$37)*$L$37)+SUM($L$33:$L$36),IF($M$62<$C$39,((($M$62-$C$38)/$D$38)*$L$38)+SUM($L$33:$L$37),IF($M$62<$C$40,((($M$62-$C$39)/$D$39)*$L$39)+SUM($L$33:$L$38),IF($M$62<$C$41,((($M$62-$C$40)/$D$40)*$L$40)+SUM($L$33:$L$39),IF($M$62<$C$42,((($M$62-$C$41)/$D$41)*$L$41)+SUM($L$33:$L$40),\"False\")))))))","v":48},{"$f":"IF($M$62<$C$36,((($M$62-$C$35)/$D$35)*$M$35)+SQRT(SUM(($M$33^2),($M$34^2))),IF($M$62<$C$37,((($M$62-$C$36)/$D$36)*$M$36)+SQRT(SUM(($M$33^2),($M$34^2),($M$35^2))),IF($M$62<$C$38,((($M$62-$C$37)/$D$37)*$M$37)+SQRT(SUM(($M$33^2),($M$34^2),($M$35^2),($M$36^2))),IF($M$62<$C$39,((($M$62-$C$38)/$D$38)*$M$38)+SQRT(SUM(($M$33^2),($M$34^2),($M$35^2),($M$36^2),($M$37^2))),IF($M$62<$C$40,((($M$62-$C$39)/$D$39)*$M$39)+SQRT(SUM(($M$33^2),($M$34^2),($M$35^2),($M$36^2),($M$37^2),($M$38^2))),IF($M$62<$C$41,((($M$62-$C$40)/$D$40)*$M$40)+SQRT(SUM(($M$33^2),($M$34^2),($M$35^2),($M$36^2),($M$37^2),($M$38^2),($M$39^2))),IF($M$62<$C$42,((($M$62-$C$41)/$D$41)*$M$41)+SQRT((($M$33^2)+($M$34^2)+($M$35^2)+($M$36^2)+($M$37^2)+($M$38^2)+($M$39^2)+($M$40^2))),\"False\")))))))","v":84.832116163984224}]
[490,null,{"$f":"$H$46*0.5","v":43377.5},"50% of Median Household Income",null,{"$f":"IF($C$63<$C$36,((($C$63-$C$35)/$D$35)*$H$35)+SUM($H$33:$H$34),IF($C$63<$C$37,((($C$63-$C$36)/$D$36)*$H$36)+SUM($H$33:$H$35),IF($C$63<$C$38,((($C$63-$C$37)/$D$37)*$H$37)+SUM($H$33:$H$36),IF($C$63<$C$39,((($C$63-$C$38)/$D$38)*$H$38)+SUM($H$33:$H$37),IF($C$63<$C$40,((($C$63-$C$39)/$D$39)*$H$39)+SUM($H$33:$H$38),IF($C$63<$C$41,((($C$63-$C$40)/$D$40)*$H$40)+SUM($H$33:$H$39),IF($C$63<$C$42,((($C$63-$C$41)/$D$41)*$H$41)+SUM($H$33:$H$40),\"False\")))))))","v":766.23678245216342},{"$f":"IF($C$63<$C$36,((($C$63-$C$35)/$D$35)*$I$35)+SQRT(SUM(($I$33^2),($I$34^2))),IF($C$63<$C$37,((($C$63-$C$36)/$D$36)*$I$36)+SQRT(SUM(($I$33^2),($I$34^2),($I$35^2))),IF($C$63<$C$38,((($C$63-$C$37)/$D$37)*$I$37)+SQRT(SUM(($I$33^2),($I$34^2),($I$35^2),($I$36^2))),IF($C$63<$C$39,((($C$63-$C$38)/$D$38)*$I$38)+SQRT(SUM(($I$33^2),($I$34^2),($I$35^2),($I$36^2),($I$37^2))),IF($C$63<$C$40,((($C$63-$C$39)/$D$39)*$I$39)+SQRT(SUM(($I$33^2),($I$34^2),($I$35^2),($I$36^2),($I$37^2),($I$38^2))),IF($C$63<$C$41,((($C$63-$C$40)/$D$40)*$I$40)+SQRT(SUM(($I$33^2),($I$34^2),($I$35^2),($I$36^2),($I$37^2),($I$38^2),($I$39^2))),IF($C$63<$C$42,((($C$63-$C$41)/$D$41)*$I$41)+SQRT((($I$33^2)+($I$34^2)+($I$35^2)+($I$36^2)+($I$37^2)+($I$38^2)+($I$39^2)+($I$40^2))),\"False\")))))))","v":345.48831810513548},{"$f":"$J$46*0.5","v":46682.5},"50% of Median Household Income",null,{"$f":"IF($H$63<$C$36,((($H$63-$C$35)/$D$35)*$J$35)+SUM($J$33:$J$34),IF($H$63<$C$37,((($H$63-$C$36)/$D$36)*$J$36)+SUM($J$33:$J$35),IF($H$63<$C$38,((($H$63-$C$37)/$D$37)*$J$37)+SUM($J$33:$J$36),IF($H$63<$C$39,((($H$63-$C$38)/$D$38)*$J$38)+SUM($J$33:$J$37),IF($H$63<$C$40,((($H$63-$C$39)/$D$39)*$J$39)+SUM($J$33:$J$38),IF($H$63<$C$41,((($H$63-$C$40)/$D$40)*$J$40)+SUM($J$33:$J$39),IF($H$63<$C$42,((($H$63-$C$41)/$D$41)*$J$41)+SUM($J$33:$J$40),\"False\")))))))","v":702.0022334822321},{"$f":"IF($H$63<$C$36,((($H$63-$C$35)/$D$35)*$K$35)+SQRT(SUM(($K$33^2),($K$34^2))),IF($H$63<$C$37,((($H$63-$C$36)/$D$36)*$K$36)+SQRT(SUM(($K$33^2),($K$34^2),($K$35^2))),IF($H$63<$C$38,((($H$63-$C$37)/$D$37)*$K$37)+SQRT(SUM(($K$33^2),($K$34^2),($K$35^2),($K$36^2))),IF($H$63<$C$39,((($H$63-$C$38)/$D$38)*$K$38)+SQRT(SUM(($K$33^2),($K$34^2),($K$35^2),($K$36^2),($K$37^2))),IF($H$63<$C$40,((($H$63-$C$39)/$D$39)*$K$39)+SQRT(SUM(($K$33^2),($K$34^2),($K$35^2),($K$36^2),($K$37^2),($K$38^2))),IF($H$63<$C$41,((($H$63-$C$40)/$D$40)*$K$40)+SQRT(SUM(($K$33^2),($K$34^2),($K$35^2),($K$36^2),($K$37^2),($K$38^2),($K$39^2))),IF($H$63<$C$42,((($H$63-$C$41)/$D$41)*$K$41)+SQRT((($K$33^2)+($K$34^2)+($K$35^2)+($K$36^2)+($K$37^2)+($K$38^2)+($K$39^2)+($K$40^2))),\"False\")))))))","v":353.94170869385385},{"$f":"$L$46*0.5","v":27383},"50% of Median Household Income",null,{"$f":"IF($M$63<$C$36,((($M$63-$C$35)/$D$35)*$L$35)+SUM($L$33:$L$34),IF($M$63<$C$37,((($M$63-$C$36)/$D$36)*$L$36)+SUM($L$33:$L$35),IF($M$63<$C$38,((($M$63-$C$37)/$D$37)*$L$37)+SUM($L$33:$L$36),IF($M$63<$C$39,((($M$63-$C$38)/$D$38)*$L$38)+SUM($L$33:$L$37),IF($M$63<$C$40,((($M$63-$C$39)/$D$39)*$L$39)+SUM($L$33:$L$38),IF($M$63<$C$41,((($M$63-$C$40)/$D$40)*$L$40)+SUM($L$33:$L$39),IF($M$63<$C$42,((($M$63-$C$41)/$D$41)*$L$41)+SUM($L$33:$L$40),\"False\")))))))","v":77.682668266826681},{"$f":"IF($M$63<$C$36,((($M$63-$C$35)/$D$35)*$M$35)+SQRT(SUM(($M$33^2),($M$34^2))),IF($M$63<$C$37,((($M$63-$C$36)/$D$36)*$M$36)+SQRT(SUM(($M$33^2),($M$34^2),($M$35^2))),IF($M$63<$C$38,((($M$63-$C$37)/$D$37)*$M$37)+SQRT(SUM(($M$33^2),($M$34^2),($M$35^2),($M$36^2))),IF($M$63<$C$39,((($M$63-$C$38)/$D$38)*$M$38)+SQRT(SUM(($M$33^2),($M$34^2),($M$35^2),($M$36^2),($M$37^2))),IF($M$63<$C$40,((($M$63-$C$39)/$D$39)*$M$39)+SQRT(SUM(($M$33^2),($M$34^2),($M$35^2),($M$36^2),($M$37^2),($M$38^2))),IF($M$63<$C$41,((($M$63-$C$40)/$D$40)*$M$40)+SQRT(SUM(($M$33^2),($M$34^2),($M$35^2),($M$36^2),($M$37^2),($M$38^2),($M$39^2))),IF($M$63<$C$42,((($M$63-$C$41)/$D$41)*$M$41)+SQRT((($M$33^2)+($M$34^2)+($M$35^2)+($M$36^2)+($M$37^2)+($M$38^2)+($M$39^2)+($M$40^2))),\"False\")))))))","v":102.16519808100679}]
[null,null,{"$f":"$H$46*0.8","v":69404},"80% of Median Household Income",null,{"$f":"IF($C$64<$C$36,((($C$64-$C$35)/$D$35)*$H$35)+SUM($H$33:$H$34),IF($C$64<$C$37,((($C$64-$C$36)/$D$36)*$H$36)+SUM($H$33:$H$35),IF($C$64<$C$38,((($C$64-$C$37)/$D$37)*$H$37)+SUM($H$33:$H$36),IF($C$64<$C$39,((($C$64-$C$38)/$D$38)*$H$38)+SUM($H$33:$H$37),IF($C$64<$C$40,((($C$64-$C$39)/$D$39)*$H$39)+SUM($H$33:$H$38),IF($C$64<$C$41,((($C$64-$C$40)/$D$40)*$H$40)+SUM($H$33:$H$39),IF($C$64<$C$42,((($C$64-$C$41)/$D$41)*$H$41)+SUM($H$33:$H$40),\"False\")))))))","v":1226.7764310572422},{"$f":"IF($C$64<$C$36,((($C$64-$C$35)/$D$35)*$I$35)+SQRT(SUM(($I$33^2),($I$34^2))),IF($C$64<$C$37,((($C$64-$C$36)/$D$36)*$I$36)+SQRT(SUM(($I$33^2),($I$34^2),($I$35^2))),IF($C$64<$C$38,((($C$64-$C$37)/$D$37)*$I$37)+SQRT(SUM(($I$33^2),($I$34^2),($I$35^2),($I$36^2))),IF($C$64<$C$39,((($C$64-$C$38)/$D$38)*$I$38)+SQRT(SUM(($I$33^2),($I$34^2),($I$35^2),($I$36^2),($I$37^2))),IF($C$64<$C$40,((($C$64-$C$39)/$D$39)*$I$39)+SQRT(SUM(($I$33^2),($I$34^2),($I$35^2),($I$36^2),($I$37^2),($I$38^2))),IF($C$64<$C$41,((($C$64-$C$40)/$D$40)*$I$40)+SQRT(SUM(($I$33^2),($I$34^2),($I$35^2),($I$36^2),($I$37^2),($I$38^2),($I$39^2))),IF($C$64<$C$42,((($C$64-$C$41)/$D$41)*$I$41)+SQRT((($I$33^2)+($I$34^2)+($I$35^2)+($I$36^2)+($I$37^2)+($I$38^2)+($I$39^2)+($I$40^2))),\"False\")))))))","v":423.04203422630343},{"$f":"$J$46*0.8","v":74692},"80% of Median Household Income",null,{"$f":"IF($H$64<$C$36,((($H$64-$C$35)/$D$35)*$J$35)+SUM($J$33:$J$34),IF($H$64<$C$37,((($H$64-$C$36)/$D$36)*$J$36)+SUM($J$33:$J$35),IF($H$64<$C$38,((($H$64-$C$37)/$D$37)*$J$37)+SUM($J$33:$J$36),IF($H$64<$C$39,((($H$64-$C$38)/$D$38)*$J$38)+SUM($J$33:$J$37),IF($H$64<$C$40,((($H$64-$C$39)/$D$39)*$J$39)+SUM($J$33:$J$38),IF($H$64<$C$41,((($H$64-$C$40)/$D$40)*$J$40)+SUM($J$33:$J$39),IF($H$64<$C$42,((($H$64-$C$41)/$D$41)*$J$41)+SUM($J$33:$J$40),\"False\")))))))","v":1149.2720108804351},{"$f":"IF($H$64<$C$36,((($H$64-$C$35)/$D$35)*$K$35)+SQRT(SUM(($K$33^2),($K$34^2))),IF($H$64<$C$37,((($H$64-$C$36)/$D$36)*$K$36)+SQRT(SUM(($K$33^2),($K$34^2),($K$35^2))),IF($H$64<$C$38,((($H$64-$C$37)/$D$37)*$K$37)+SQRT(SUM(($K$33^2),($K$34^2),($K$35^2),($K$36^2))),IF($H$64<$C$39,((($H$64-$C$38)/$D$38)*$K$38)+SQRT(SUM(($K$33^2),($K$34^2),($K$35^2),($K$36^2),($K$37^2))),IF($H$64<$C$40,((($H$64-$C$39)/$D$39)*$K$39)+SQRT(SUM(($K$33^2),($K$34^2),($K$35^2),($K$36^2),($K$37^2),($K$38^2))),IF($H$64<$C$41,((($H$64-$C$40)/$D$40)*$K$40)+SQRT(SUM(($K$33^2),($K$34^2),($K$35^2),($K$36^2),($K$37^2),($K$38^2),($K$39^2))),IF($H$64<$C$42,((($H$64-$C$41)/$D$41)*$K$41)+SQRT((($K$33^2)+($K$34^2)+($K$35^2)+($K$36^2)+($K$37^2)+($K$38^2)+($K$39^2)+($K$40^2))),\"False\")))))))","v":429.17064470986122},{"$f":"$L$46*0.8","v":43812.800000000003},"80% of Median Household Income",null,{"$f":"IF($M$64<$C$36,((($M$64-$C$35)/$D$35)*$L$35)+SUM($L$33:$L$34),IF($M$64<$C$37,((($M$64-$C$36)/$D$36)*$L$36)+SUM($L$33:$L$35),IF($M$64<$C$38,((($M$64-$C$37)/$D$37)*$L$37)+SUM($L$33:$L$36),IF($M$64<$C$39,((($M$64-$C$38)/$D$38)*$L$38)+SUM($L$33:$L$37),IF($M$64<$C$40,((($M$64-$C$39)/$D$39)*$L$39)+SUM($L$33:$L$38),IF($M$64<$C$41,((($M$64-$C$40)/$D$40)*$L$40)+SUM($L$33:$L$39),IF($M$64<$C$42,((($M$64-$C$41)/$D$41)*$L$41)+SUM($L$33:$L$40),\"False\")))))))","v":131},{"$f":"IF($M$64<$C$36,((($M$64-$C$35)/$D$35)*$M$35)+SQRT(SUM(($M$33^2),($M$34^2))),IF($M$64<$C$37,((($M$64-$C$36)/$D$36)*$M$36)+SQRT(SUM(($M$33^2),($M$34^2),($M$35^2))),IF($M$64<$C$38,((($M$64-$C$37)/$D$37)*$M$37)+SQRT(SUM(($M$33^2),($M$34^2),($M$35^2),($M$36^2))),IF($M$64<$C$39,((($M$64-$C$38)/$D$38)*$M$38)+SQRT(SUM(($M$33^2),($M$34^2),($M$35^2),($M$36^2),($M$37^2))),IF($M$64<$C$40,((($M$64-$C$39)/$D$39)*$M$39)+SQRT(SUM(($M$33^2),($M$34^2),($M$35^2),($M$36^2),($M$37^2),($M$38^2))),IF($M$64<$C$41,((($M$64-$C$40)/$D$40)*$M$40)+SQRT(SUM(($M$33^2),($M$34^2),($M$35^2),($M$36^2),($M$37^2),($M$38^2),($M$39^2))),IF($M$64<$C$42,((($M$64-$C$41)/$D$41)*$M$41)+SQRT((($M$33^2)+($M$34^2)+($M$35^2)+($M$36^2)+($M$37^2)+($M$38^2)+($M$39^2)+($M$40^2))),\"False\")))))))","v":120.80112626285097}]

{"sheet":"Updates","index":14,"n_rows":51,"n_cols":3,"rows_kept":51,"cut":false,"hidden":false,"merged":[[6,2,6,11],[7,2,7,11],[9,2,9,12],[11,2,11,12],[12,2,12,12],[13,2,13,12],[8,2,8,12],[14,2,14,12],[33,2,33,12],[34,2,34,12],[15,2,15,12],[37,2,37,12],[26,2,26,12],[29,2,29,12],[30,2,30,12],[31,2,31,12],[32,2,32,12],[0,2,0,12],[1,2,1,12],[2,2,2,12],[28,2,28,12],[27,2,27,12],[16,2,16,12],[17,2,17,12],[20,2,20,12],[18,2,18,12],[19,2,19,12],[21,2,21,12],[22,2,22,12],[23,2,23,12],[24,2,24,12],[25,2,25,12],[10,2,10,12],[5,2,5,11],[49,2,49,12],[50,2,50,12],[36,2,36,12],[38,2,38,12],[44,2,44,12],[45,2,45,12],[46,2,46,12],[47,2,47,12],[48,2,48,12],[43,2,43,12],[42,2,42,12],[39,2,39,12],[40,2,40,12],[41,2,41,12],[35,2,35,12]]}
["Important Notes"]
[]
["Date",null,"Task"]
[]
[]
["2020-12-18",null,"Updated 2015-2019 Amreican Community Survey Data and added 2019 NH Permit data."]
["2020-10-01",null,"Updated 2019 Employmnet and Wage data by industry sector"]
["2020-09-10",null,"Updated historical data 2005-2009 and 2010-2014 ACS Data"]
["2020-07-10",null,"Updated 2018 Unemployment Rate and Labor Force Data to Employment, Wages, LaborForce & Unemp. Worksheet for large communities."]
["2019-12-31",null,"Updated Visual Basic Code changing the footer font from Gotham Medium to Verdana."]
["2019-12-27",null,"Updated with 2014-2018 ACS Data. Updated 2018 Permit data. Updated CPI Adjustment Factor (1.02437673) to the 2009-2013 and 2014-2018 Income Comparison Table. This factor was provided by Census"]
["2019-11-27",null,"Updated 2009-2013 comparison data set."]
["2019-09-17",null,"Updated 2018 Annual Employment and Wage data; updated Housing and Employment worksheet."]
["2019-01-08",null,"Updated the location of the 2008-2012 data and the ACS_Tbl_B11001_B11002_B25010 worksheet. This fixed an error on the PopulationCharacteristics worksheet"]
["2018-12-19",null,"Updated 2017 Annual Employment and Wage data; updated Housing and Employment worksheet. Updated 2017 Permit data"]
["2018-12-13",null,"Updated the 2008-2012 ACS data for comparison purposes. Updated CPI Adjustment Factor (1.0676) to the 2008-2012 and 2013-2017  Income Comparison Table. This factor was provided by Census."]
["2018-12-06",null,"Updated labels in workbook to reflect 2013-2017 data set and 2008-2012 comparison data set. Updated footer text.  Updated 2013-2017 ACS data"]
["2018-08-17",null,"Updated Chart formats."]
["2018-05-09",null,"Updated 2017 Unemployment Rate and Labor Force Data to Employment, Wages, LaborForce & Unemp. Worksheet for large communities."]
["2017-12-18",null,"Updated 2016 NH Permit Data"]
["2017-12-12",null,"Updated Charts with 2012-2016 data; updated code to reflect additional data points in various tables. Updated CPI Adjustment Factor (1.06686838) to the 2007-2011 and 2012-2016 Income Comparison Table. This factor was provided by Census."]
["2017-11-16",null,"Updated 2007-2011 ACS Data to all charts"]
["2017-10-13",null,"Updated 2016 Annual Employment and Wage data; updated Housing and Employment worksheet"]
["2017-06-06",null,"Fixed error on E mployment and Housing worksheet. Invalidly referenced Coos County."]
["2017-05-15",null,"Updated 2016 Unemployment Rate and Labor Force Data to Employment, Wages, LaborForce & Unemp. Worksheet for large communities."]
["2017-01-05",null,"Verified Charts; Added 2015 Permit Data; Updated Housing and Permit data"]
["2016-12-29",null,"Updated the 2006-2010 ACS data for comparison purposes."]
["2016-12-23",null,"Updated Town Comparisons: Employment and Housing with 2015 data"]
["2016-12-19",null,"Updated 2010-2014 ACS Data"]
["2016-10-31",null,"Updated 2015 Annual Employment and Wage data"]
["2016-08-09",null,"Updated Labor Force and Unemployment data for the specific towns: Concord; Derry; Dover; Hudson; Londonderry; Manchester; Merrimack; Nashua; Rochester; and Salem"]
["2016-01-14",null,"Fixed error in School Attainment worksheet - Graduate or Professional Degree data."]
["2016-01-07",null,"Fixed formula in Poverty worksheet; fixed Non-Family Persons per Household data; fixed legend of Rental Cost Charts."]
["2015-12-23",null,"Fixed Table ACS_B25074"]
["2015-12-16",null,"Updated Owner Cost Chart and data worksheet to fix error."]
["2015-12-11",null,"Updated Code to correct an error on the RentalHousingCost worksheet; updated column names on CntyDataLink."]
["2015-12-10",null,"Updated 2010-2014 ACS Data"]
["2015-12-07",null,"Updated Permit Data and all appropriate charts."]
["2015-12-03",null,"Updated Color scheme on charts and added correct logo to the charts; updated RentalHousingCost and OwnerCost worksheet to eliminate a printed page. Charts were moved and reduced in size. Updated the CPI Adjustment Factor (1.1034264) to the 2005-2009 and 2010-2014 Income Comparison Table. This factor was provided by Census."]
["2015-10-06",null,"Added County Comparison Employment and Housing data. Added Visual basic code to automatically update footer. Visual basic code will run when Ctrl-j is selected. "]
["2015-09-29",null,"Updated Employment Information"]
["2015-09-18",null,"Updated RentalHousingCost worksheet to accommodate changes to Table B25074; Updated Charts and code to allow for prior 5 year estimates to be updated."]
["2015-09-01",null,"Updated Code to include Prior 5 year Estimates"]
["2015-08-19",null,"Updated Owner Cost Chart and data. Added Table B25106. Housing Cost burden by Income. Updated 2005-2009 ACS Estimate data"]
["2015-08-06",null,"Corrected the Employment vs. Housing worksheet."]
["2015-03-17",null,"Added Labor Force Data"]
["2014-12-30",null,"Corrected Rental Cost formula."]
["2014-12-17",null,"Corrected and verified household pie charts. All Permit data and employment data has been updated through 2013."]
["2011-10-14",null,"Reformatted the code in the worksheet and corrected an error in the Income Comparison Sheet"]
["2010-12-21",null,"Added Margin of Error information on all applicable ACS Sheets"]
["2010-12-07",null,"Created a calculated Table B19001 in anticipation for the 5 year data.  Table C19001 will not be provided"]

{"sheet":"ACS_Source_Table_List","index":15,"n_rows":45,"n_cols":4,"rows_kept":45,"cut":false,"hidden":true,"merged":[]}
[]
["ACS Table B01001","x"]
["ACS Table B01002","x"]
["ACS Table B03002","x"]
["ACS Table B05002 ","x"]
["ACS Table B07003","x","Replaces C07001"]
["ACS Table B11001","x"]
["ACS Table B11002","x"]
["ACS Table B14001 & B15002","x","Replaces C15002"]
["ACS Table B17001 ","x"]
["ACS Table B17010 ","x","Replaces C17010","Poverty Status by family type"]
["ACS Table B17017","x","Replaces C17017","Poverty Status by HH type"]
["ACS Table B18001 ",null,"Removed Disability Tables"]
["ACS Table C18001 ",null,"Removed Disability Tables"]
["ACS Table B18003",null,"Removed Disability Tables"]
["ACS Table B18004",null,"Removed Disability Tables"]
["ACS Table B18005",null,"Removed Disability Tables"]
["ACS Table B18006",null,"Removed Disability Tables"]
["ACS Table B18007",null,"Removed Disability Tables"]
["ACS Table B18008",null,"Removed Disability Tables"]
["ACS Table B19001","x"]
["ACS Table B19037 ","x"]
["ACS Table B19049 ","x"]
["ACS Table B19101& B19113 ","s"]
["ACS Table B19201 & B19202","s"]
["ACS Table B25001, B25003 & B25004 ","x"]
["ACS Table B25008","x"]
["ACS Table B25010","x"]
["ACS Table B25024","x"]
["ACS Table B25075 & B25077","x"]
["ACS Table B25088","x"]
["ACS Table B25091","x"]
["ACS Table B25118 & B25119","x"]
[]
[]
[]
[]
[]
[]
["Tables Removed from 5 Year Estimates"]
["ACS Table C19001 ","x","May have to consolidate this table from Table B19001. This has already been done. For 5 year estimates remove worksheet."]
["ACS Table B25094","x","No Comparison Table for B25094 Removed"]
["ACS Table B25101",null,"No Comparison Table for B25101 Removed"]
["ACS Table B25104 & B25105",null,"No Comparison Table for B25104 & B25105 Removed"]
["ACS Table B25106","x","No Comparison Table for  B25106 Removed"]

{"sheet":"ACS_Table_B01001","index":16,"n_rows":310,"n_cols":76,"rows_kept":310,"cut":false,"hidden":true,"merged":[[65106,72,65106,73],[65106,74,65106,75],[65106,64,65106,65],[65106,66,65106,67],[65106,68,65106,69],[65106,70,65106,71],[65106,52,65106,53],[65106,54,65106,55],[65106,56,65106,57],[65106,58,65106,59],[65106,60,65106,61],[65106,62,65106,63],[65106,40,65106,41],[65106,42,65106,43],[65106,44,65106,45],[65106,46,65106,47],[65106,48,65106,49],[65106,50,65106,51],[65086,72,65086,73],[65086,74,65086,75],[65106,24,65106,25],[65106,26,65106,27],[65106,28,65106,29],[65106,30,65106,31],[65106,32,65106,33],[65106,34,65106,35],[65106,36,65106,37],[65106,38,65106,39],[65086,60,65086,61],[65086,62,65086,63],[65086,64,65086,65],[65086,66,65086,67],[65086,68,65086,69],[65086,70,65086,71],[65086,48,65086,49],[65086,50,65086,51],[65086,52,65086,53],[65086,54,65086,55],[65086,56,65086,57],[65086,58,65086,59],[65086,36,65086,37],[65086,38,65086,39],[65086,40,65086,41],[65086,42,65086,43],[65086,44,65086,45],[65086,46,65086,47],[65086,24,65086,25],[65086,26,65086,27],[65086,28,65086,29],[65086,30,65086,31],[65086,32,65086,33],[65086,34,65086,35],[65024,64,65024,65],[65024,66,65024,67],[65024,68,65024,69],[65024,70,65024,71],[65024,72,65024,73],[65024,74,65024,75],[65024,52,65024,53],[65024,54,65024,55],[65024,56,65024,57],[65024,58,65024,59],[65024,60,65024,61],[65024,62,65024,63],[65024,40,65024,41],[65024,42,65024,43],[65024,44,65024,45],[65024,46,65024,47],[65024,48,65024,49],[65024,50,65024,51],[65004,72,65004,73],[65004,74,65004,75],[65024,24,65024,25],[65024,26,65024,27],[65024,28,65024,29],[65024,30,65024,31],[65024,32,65024,33],[65024,34,65024,35],[65024,36,65024,37],[65024,38,65024,39],[65004,60,65004,61],[65004,62,65004,63],[65004,64,65004,65],[65004,66,65004,67],[65004,68,65004,69],[65004,70,65004,71],[65004,48,65004,49],[65004,50,65004,51],[65004,52,65004,53],[65004,54,65004,55],[65004,56,65004,57],[65004,58,65004,59],[65004,36,65004,37],[65004,38,65004,39],[65004,40,65004,41],[65004,42,65004,43],[65004,44,65004,45],[65004,46,65004,47],[65004,24,65004,25],[65004,26,65004,27],[65004,28,65004,29],[65004,30,65004,31],[65004,32,65004,33],[65004,34,65004,35],[64942,64,64942,65],[64942,66,64942,67],[64942,68,64942,69],[64942,70,64942,71],[64942,72,64942,73],[64942,74,64942,75],[64942,52,64942,53],[64942,54,64942,55],[64942,56,64942,57],[64942,58,64942,59],[64942,60,64942,61],[64942,62,64942,63],[64942,40,64942,41],[64942,42,64942,43],[64942,44,64942,45],[64942,46,64942,47],[64942,48,64942,49],[64942,50,64942,51],[64922,72,64922,73],[64922,74,64922,75],[64942,24,64942,25],[64942,26,64942,27],[64942,28,64942,29],[64942,30,64942,31],[64942,32,64942,33],[64942,34,64942,35],[64942,36,64942,37],[64942,38,64942,39],[64922,60,64922,61],[64922,62,64922,63],[64922,64,64922,65],[64922,66,64922,67],[64922,68,64922,69],[64922,70,64922,71],[64922,48,64922,49],[64922,50,64922,51],[64922,52,64922,53],[64922,54,64922,55],[64922,56,64922,57],[64922,58,64922,59],[64922,36,64922,37],[64922,38,64922,39],[64922,40,64922,41],[64922,42,64922,43],[64922,44,64922,45],[64922,46,64922,47],[64922,24,64922,25],[64922,26,64922,27],[64922,28,64922,29],[64922,30,64922,31],[64922,32,64922,33],[64922,34,64922,35],[64860,64,64860,65],[64860,66,64860,67],[64860,68,64860,69],[64860,70,64860,71],[64860,72,64860,73],[64860,74,64860,75],[64860,52,64860,53],[64860,54,64860,55],[64860,56,64860,57],[64860,58,64860,59],[64860,60,64860,61],[64860,62,64860,63],[64860,40,64860,41],[64860,42,64860,43],[64860,44,64860,45],[64860,46,64860,47],[64860,48,64860,49],[64860,50,64860,51],[64840,72,64840,73],[64840,74,64840,75],[64860,24,64860,25],[64860,26,64860,27],[64860,28,64860,29],[64860,30,64860,31],[64860,32,64860,33],[64860,34,64860,35],[64860,36,64860,37],[64860,38,64860,39],[64840,60,64840,61],[64840,62,64840,63],[64840,64,64840,65],[64840,66,64840,67],[64840,68,64840,69],[64840,70,64840,71],[64840,48,64840,49],[64840,50,64840,51],[64840,52,64840,53],[64840,54,64840,55],[64840,56,64840,57],[64840,58,64840,59],[64840,36,64840,37],[64840,38,64840,39],[64840,40,64840,41],[64840,42,64840,43],[64840,44,64840,45],[64840,46,64840,47],[64840,24,64840,25],[64840,26,64840,27],[64840,28,64840,29],[64840,30,64840,31],[64840,32,64840,33],[64840,34,64840,35],[64778,64,64778,65],[64778,66,64778,67],[64778,68,64778,69],[64778,70,64778,71],[64778,72,64778,73],[64778,74,64778,75],[64778,52,64778,53],[64778,54,64778,55],[64778,56,64778,57],[64778,58,64778,59],[64778,60,64778,61],[64778,62,64778,63],[64778,40,64778,41],[64778,42,64778,43],[64778,44,64778,45],[64778,46,64778,47],[64778,48,64778,49],[64778,50,64778,51],[64758,72,64758,73],[64758,74,64758,75],[64778,24,64778,25],[64778,26,64778,27],[64778,28,64778,29],[64778,30,64778,31],[64778,32,64778,33],[64778,34,64778,35],[64778,36,64778,37],[64778,38,64778,39],[64758,60,64758,61],[64758,62,64758,63],[64758,64,64758,65],[64758,66,64758,67],[64758,68,64758,69],[64758,70,64758,71],[64758,48,64758,49],[64758,50,64758,51],[64758,52,64758,53],[64758,54,64758,55],[64758,56,64758,57],[64758,58,64758,59],[64758,36,64758,37],[64758,38,64758,39],[64758,40,64758,41],[64758,42,64758,43],[64758,44,64758,45],[64758,46,64758,47],[64758,24,64758,25],[64758,26,64758,27],[64758,28,64758,29],[64758,30,64758,31],[64758,32,64758,33],[64758,34,64758,35],[64696,64,64696,65],[64696,66,64696,67],[64696,68,64696,69],[64696,70,64696,71],[64696,72,64696,73],[64696,74,64696,75],[64696,52,64696,53],[64696,54,64696,55],[64696,56,64696,57],[64696,58,64696,59],[64696,60,64696,61],[64696,62,64696,63],[64696,40,64696,41],[64696,42,64696,43],[64696,44,64696,45],[64696,46,64696,47],[64696,48,64696,49],[64696,50,64696,51],[64676,72,64676,73],[64676,74,64676,75],[64696,24,64696,25],[64696,26,64696,27],[64696,28,64696,29],[64696,30,64696,31],[64696,32,64696,33],[64696,34,64696,35],[64696,36,64696,37],[64696,38,64696,39],[64676,60,64676,61],[64676,62,64676,63],[64676,64,64676,65],[64676,66,64676,67],[64676,68,64676,69],[64676,70,64676,71],[64676,48,64676,49],[64676,50,64676,51],[64676,52,64676,53],[64676,54,64676,55],[64676,56,64676,57],[64676,58,64676,59],[64676,36,64676,37],[64676,38,64676,39],[64676,40,64676,41],[64676,42,64676,43],[64676,44,64676,45],[64676,46,64676,47],[64676,24,64676,25],[64676,26,64676,27],[64676,28,64676,29],[64676,30,64676,31],[64676,32,64676,33],[64676,34,64676,35],[64614,64,64614,65],[64614,66,64614,67],[64614,68,64614,69],[64614,70,64614,71],[64614,72,64614,73],[64614,74,64614,75],[64614,52,64614,53],[64614,54,64614,55],[64614,56,64614,57],[64614,58,64614,59],[64614,60,64614,61],[64614,62,64614,63],[64614,40,64614,41],[64614,42,64614,43],[64614,44,64614,45],[64614,46,64614,47],[64614,48,64614,49],[64614,50,64614,51],[64594,72,64594,73],[64594,74,64594,75],[64614,24,64614,25],[64614,26,64614,27],[64614,28,64614,29],[64614,30,64614,31],[64614,32,64614,33],[64614,34,64614,35],[64614,36,64614,37],[64614,38,64614,39],[64594,60,64594,61],[64594,62,64594,63],[64594,64,64594,65],[64594,66,64594,67],[64594,68,64594,69],[64594,70,64594,71],[64594,48,64594,49],[64594,50,64594,51],[64594,52,64594,53],[64594,54,64594,55],[64594,56,64594,57],[64594,58,64594,59],[64594,36,64594,37],[64594,38,64594,39],[64594,40,64594,41],[64594,42,64594,43],[64594,44,64594,45],[64594,46,64594,47],[64594,24,64594,25],[64594,26,64594,27],[64594,28,64594,29],[64594,30,64594,31],[64594,32,64594,33],[64594,34,64594,35],[64532,64,64532,65],[64532,66,64532,67],[64532,68,64532,69],[64532,70,64532,71],[64532,72,64532,73],[64532,74,64532,75],[64532,52,64532,53],[64532,54,64532,55],[64532,56,64532,57],[64532,58,64532,59],[64532,60,64532,61],[64532,62,64532,63],[64532,40,64532,41],[64532,42,64532,43],[64532,44,64532,45],[64532,46,64532,47],[64532,48,64532,49],[64532,50,64532,51],[64512,72,64512,73],[64512,74,64512,75],[64532,24,64532,25],[64532,26,64532,27],[64532,28,64532,29],[64532,30,64532,31],[64532,32,64532,33],[64532,34,64532,35],[64532,36,64532,37],[64532,38,64532,39],[64512,60,64512,61],[64512,62,64512,63],[64512,64,64512,65],[64512,66,64512,67],[64512,68,64512,69],[64512,70,64512,71],[64512,48,64512,49],[64512,50,64512,51],[64512,52,64512,53],[64512,54,64512,55],[64512,56,64512,57],[64512,58,64512,59],[64512,36,64512,37],[64512,38,64512,39],[64512,40,64512,41],[64512,42,64512,43],[64512,44,64512,45],[64512,46,64512,47],[64512,24,64512,25],[64512,26,64512,27],[64512,28,64512,29],[64512,30,64512,31],[64512,32,64512,33],[64512,34,64512,35],[64450,64,64450,65],[64450,66,64450,67],[64450,68,64450,69],[64450,70,64450,71],[64450,72,64450,73],[64450,74,64450,75],[64450,52,64450,53],[64450,54,64450,55],[64450,56,64450,57],[64450,58,64450,59],[64450,60,64450,61],[64450,62,64450,63],[64450,40,64450,41],[64450,42,64450,43],[64450,44,64450,45],[64450,46,64450,47],[64450,48,64450,49],[64450,50,64450,51],[64430,72,64430,73],[64430,74,64430,75],[64450,24,64450,25],[64450,26,64450,27],[64450,28,64450,29],[64450,30,64450,31],[64450,32,64450,33],[64450,34,64450,35],[64450,36,64450,37],[64450,38,64450,39],[64430,60,64430,61],[64430,62,64430,63],[64430,64,64430,65],[64430,66,64430,67],[64430,68,64430,69],[64430,70,64430,71],[64430,48,64430,49],[64430,50,64430,51],[64430,52,64430,53],[64430,54,64430,55],[64430,56,64430,57],[64430,58,64430,59],[64430,36,64430,37],[64430,38,64430,39],[64430,40,64430,41],[64430,42,64430,43],[64430,44,64430,45],[64430,46,64430,47],[64430,24,64430,25],[64430,26,64430,27],[64430,28,64430,29],[64430,30,64430,31],[64430,32,64430,33],[64430,34,64430,35],[64368,64,64368,65],[64368,66,64368,67],[64368,68,64368,69],[64368,70,64368,71],[64368,72,64368,73],[64368,74,64368,75],[64368,52,64368,53],[64368,54,64368,55],[64368,56,64368,57],[64368,58,64368,59],[64368,60,64368,61],[64368,62,64368,63],[64368,40,64368,41],[64368,42,64368,43],[64368,44,64368,45],[64368,46,64368,47],[64368,48,64368,49],[64368,50,64368,51],[64348,72,64348,73],[64348,74,64348,75],[64368,24,64368,25],[64368,26,64368,27],[64368,28,64368,29],[64368,30,64368,31],[64368,32,64368,33],[64368,34,64368,35],[64368,36,64368,37],[64368,38,64368,39],[64348,60,64348,61],[64348,62,64348,63],[64348,64,64348,65],[64348,66,64348,67],[64348,68,64348,69],[64348,70,64348,71],[64348,48,64348,49],[64348,50,64348,51],[64348,52,64348,53],[64348,54,64348,55],[64348,56,64348,57],[64348,58,64348,59],[64348,36,64348,37],[64348,38,64348,39],[64348,40,64348,41],[64348,42,64348,43],[64348,44,64348,45],[64348,46,64348,47],[64348,24,64348,25],[64348,26,64348,27],[64348,28,64348,29],[64348,30,64348,31],[64348,32,64348,33],[64348,34,64348,35],[64286,64,64286,65],[64286,66,64286,67],[64286,68,64286,69],[64286,70,64286,71],[64286,72,64286,73],[64286,74,64286,75],[64286,52,64286,53],[64286,54,64286,55],[64286,56,64286,57],[64286,58,64286,59],[64286,60,64286,61],[64286,62,64286,63],[64286,40,64286,41],[64286,42,64286,43],[64286,44,64286,45],[64286,46,64286,47],[64286,48,64286,49],[64286,50,64286,51],[64266,72,64266,73],[64266,74,64266,75],[64286,24,64286,25],[64286,26,64286,27],[64286,28,64286,29],[64286,30,64286,31],[64286,32,64286,33],[64286,34,64286,35],[64286,36,64286,37],[64286,38,64286,39],[64266,60,64266,61],[64266,62,64266,63],[64266,64,64266,65],[64266,66,64266,67],[64266,68,64266,69],[64266,70,64266,71],[64266,48,64266,49],[64266,50,64266,51],[64266,52,64266,53],[64266,54,64266,55],[64266,56,64266,57],[64266,58,64266,59],[64266,36,64266,37],[64266,38,64266,39],[64266,40,64266,41],[64266,42,64266,43],[64266,44,64266,45],[64266,46,64266,47],[64266,24,64266,25],[64266,26,64266,27],[64266,28,64266,29],[64266,30,64266,31],[64266,32,64266,33],[64266,34,64266,35],[64204,64,64204,65],[64204,66,64204,67],[64204,68,64204,69],[64204,70,64204,71],[64204,72,64204,73],[64204,74,64204,75],[64204,52,64204,53],[64204,54,64204,55],[64204,56,64204,57],[64204,58,64204,59],[64204,60,64204,61],[64204,62,64204,63],[64204,40,64204,41],[64204,42,64204,43],[64204,44,64204,45],[64204,46,64204,47],[64204,48,64204,49],[64204,50,64204,51],[64184,72,64184,73],[64184,74,64184,75],[64204,24,64204,25],[64204,26,64204,27],[64204,28,64204,29],[64204,30,64204,31],[64204,32,64204,33],[64204,34,64204,35],[64204,36,64204,37],[64204,38,64204,39],[64184,60,64184,61],[64184,62,64184,63],[64184,64,64184,65],[64184,66,64184,67],[64184,68,64184,69],[64184,70,64184,71],[64184,48,64184,49],[64184,50,64184,51],[64184,52,64184,53],[64184,54,64184,55],[64184,56,64184,57],[64184,58,64184,59],[64184,36,64184,37],[64184,38,64184,39],[64184,40,64184,41],[64184,42,64184,43],[64184,44,64184,45],[64184,46,64184,47],[64184,24,64184,25],[64184,26,64184,27],[64184,28,64184,29],[64184,30,64184,31],[64184,32,64184,33],[64184,34,64184,35],[64122,64,64122,65],[64122,66,64122,67],[64122,68,64122,69],[64122,70,64122,71],[64122,72,64122,73],[64122,74,64122,75],[64122,52,64122,53],[64122,54,64122,55],[64122,56,64122,57],[64122,58,64122,59],[64122,60,64122,61],[64122,62,64122,63],[64122,40,64122,41],[64122,42,64122,43],[64122,44,64122,45],[64122,46,64122,47],[64122,48,64122,49],[64122,50,64122,51],[64102,72,64102,73],[64102,74,64102,75],[64122,24,64122,25],[64122,26,64122,27],[64122,28,64122,29],[64122,30,64122,31],[64122,32,64122,33],[64122,34,64122,35],[64122,36,64122,37],[64122,38,64122,39],[64102,60,64102,61],[64102,62,64102,63],[64102,64,64102,65],[64102,66,64102,67],[64102,68,64102,69],[64102,70,64102,71],[64102,48,64102,49],[64102,50,64102,51],[64102,52,64102,53],[64102,54,64102,55],[64102,56,64102,57],[64102,58,64102,59],[64102,36,64102,37],[64102,38,64102,39],[64102,40,64102,41],[64102,42,64102,43],[64102,44,64102,45],[64102,46,64102,47],[64102,24,64102,25],[64102,26,64102,27],[64102,28,64102,29],[64102,30,64102,31],[64102,32,64102,33],[64102,34,64102,35],[64040,64,64040,65],[64040,66,64040,67],[64040,68,64040,69],[64040,70,64040,71],[64040,72,64040,73],[64040,74,64040,75],[64040,52,64040,53],[64040,54,64040,55],[64040,56,64040,57],[64040,58,64040,59],[64040,60,64040,61],[64040,62,64040,63],[64040,40,64040,41],[64040,42,64040,43],[64040,44,64040,45],[64040,46,64040,47],[64040,48,64040,49],[64040,50,64040,51],[64020,72,64020,73],[64020,74,64020,75],[64040,24,64040,25],[64040,26,64040,27],[64040,28,64040,29],[64040,30,64040,31],[64040,32,64040,33],[64040,34,64040,35],[64040,36,64040,37],[64040,38,64040,39],[64020,60,64020,61],[64020,62,64020,63],[64020,64,64020,65],[64020,66,64020,67],[64020,68,64020,69],[64020,70,64020,71],[64020,48,64020,49],[64020,50,64020,51],[64020,52,64020,53],[64020,54,64020,55],[64020,56,64020,57],[64020,58,64020,59],[64020,36,64020,37],[64020,38,64020,39],[64020,40,64020,41],[64020,42,64020,43],[64020,44,64020,45],[64020,46,64020,47],[64020,24,64020,25],[64020,26,64020,27],[64020,28,64020,29],[64020,30,64020,31],[64020,32,64020,33],[64020,34,64020,35],[63958,64,63958,65],[63958,66,63958,67],[63958,68,63958,69],[63958,70,63958,71],[63958,72,63958,73],[63958,74,63958,75],[63958,52,63958,53],[63958,54,63958,55],[63958,56,63958,57],[63958,58,63958,59],[63958,60,63958,61],[63958,62,63958,63],[63958,40,63958,41],[63958,42,63958,43],[63958,44,63958,45],[63958,46,63958,47],[63958,48,63958,49],[63958,50,63958,51],[63938,72,63938,73],[63938,74,63938,75],[63958,24,63958,25],[63958,26,63958,27],[63958,28,63958,29],[63958,30,63958,31],[63958,32,63958,33],[63958,34,63958,35],[63958,36,63958,37],[63958,38,63958,39],[63938,60,63938,61],[63938,62,63938,63],[63938,64,63938,65],[63938,66,63938,67],[63938,68,63938,69],[63938,70,63938,71],[63938,48,63938,49],[63938,50,63938,51],[63938,52,63938,53],[63938,54,63938,55],[63938,56,63938,57],[63938,58,63938,59],[63938,36,63938,37],[63938,38,63938,39],[63938,40,63938,41],[63938,42,63938,43],[63938,44,63938,45],[63938,46,63938,47],[63938,24,63938,25],[63938,26,63938,27],[63938,28,63938,29],[63938,30,63938,31],[63938,32,63938,33],[63938,34,63938,35],[63876,64,63876,65],[63876,66,63876,67],[63876,68,63876,69],[63876,70,63876,71],[63876,72,63876,73],[63876,74,63876,75],[63876,52,63876,53],[63876,54,63876,55],[63876,56,63876,57],[63876,58,63876,59],[63876,60,63876,61],[63876,62,63876,63],[63876,40,63876,41],[63876,42,63876,43],[63876,44,63876,45],[63876,46,63876,47],[63876,48,63876,49],[63876,50,63876,51],[63856,72,63856,73],[63856,74,63856,75],[63876,24,63876,25],[63876,26,63876,27],[63876,28,63876,29],[63876,30,63876,31],[63876,32,63876,33],[63876,34,63876,35],[63876,36,63876,37],[63876,38,63876,39],[63856,60,63856,61],[63856,62,63856,63],[63856,64,63856,65],[63856,66,63856,67],[63856,68,63856,69],[63856,70,63856,71],[63856,48,63856,49],[63856,50,63856,51],[63856,52,63856,53],[63856,54,63856,55],[63856,56,63856,57],[63856,58,63856,59],[63856,36,63856,37],[63856,38,63856,39],[63856,40,63856,41],[63856,42,63856,43],[63856,44,63856,45],[63856,46,63856,47],[63856,24,63856,25],[63856,26,63856,27],[63856,28,63856,29],[63856,30,63856,31],[63856,32,63856,33],[63856,34,63856,35],[63794,64,63794,65],[63794,66,63794,67],[63794,68,63794,69],[63794,70,63794,71],[63794,72,63794,73],[63794,74,63794,75],[63794,52,63794,53],[63794,54,63794,55],[63794,56,63794,57],[63794,58,63794,59],[63794,60,63794,61],[63794,62,63794,63],[63794,40,63794,41],[63794,42,63794,43],[63794,44,63794,45],[63794,46,63794,47],[63794,48,63794,49],[63794,50,63794,51],[63774,72,63774,73],[63774,74,63774,75],[63794,24,63794,25],[63794,26,63794,27],[63794,28,63794,29],[63794,30,63794,31],[63794,32,63794,33],[63794,34,63794,35],[63794,36,63794,37],[63794,38,63794,39],[63774,60,63774,61],[63774,62,63774,63],[63774,64,63774,65],[63774,66,63774,67],[63774,68,63774,69],[63774,70,63774,71],[63774,48,63774,49],[63774,50,63774,51],[63774,52,63774,53],[63774,54,63774,55],[63774,56,63774,57],[63774,58,63774,59],[63774,36,63774,37],[63774,38,63774,39],[63774,40,63774,41],[63774,42,63774,43],[63774,44,63774,45],[63774,46,63774,47],[63774,24,63774,25],[63774,26,63774,27],[63774,28,63774,29],[63774,30,63774,31],[63774,32,63774,33],[63774,34,63774,35],[63712,64,63712,65],[63712,66,63712,67],[63712,68,63712,69],[63712,70,63712,71],[63712,72,63712,73],[63712,74,63712,75],[63712,52,63712,53],[63712,54,63712,55],[63712,56,63712,57],[63712,58,63712,59],[63712,60,63712,61],[63712,62,63712,63],[63712,40,63712,41],[63712,42,63712,43],[63712,44,63712,45],[63712,46,63712,47],[63712,48,63712,49],[63712,50,63712,51],[63692,72,63692,73],[63692,74,63692,75],[63712,24,63712,25],[63712,26,63712,27],[63712,28,63712,29],[63712,30,63712,31],[63712,32,63712,33],[63712,34,63712,35],[63712,36,63712,37],[63712,38,63712,39],[63692,60,63692,61],[63692,62,63692,63],[63692,64,63692,65],[63692,66,63692,67],[63692,68,63692,69],[63692,70,63692,71],[63692,48,63692,49],[63692,50,63692,51],[63692,52,63692,53],[63692,54,63692,55],[63692,56,63692,57],[63692,58,63692,59],[63692,36,63692,37],[63692,38,63692,39],[63692,40,63692,41],[63692,42,63692,43],[63692,44,63692,45],[63692,46,63692,47],[63692,24,63692,25],[63692,26,63692,27],[63692,28,63692,29],[63692,30,63692,31],[63692,32,63692,33],[63692,34,63692,35],[63630,64,63630,65],[63630,66,63630,67],[63630,68,63630,69],[63630,70,63630,71],[63630,72,63630,73],[63630,74,63630,75],[63630,52,63630,53],[63630,54,63630,55],[63630,56,63630,57],[63630,58,63630,59],[63630,60,63630,61],[63630,62,63630,63],[63630,40,63630,41],[63630,42,63630,43],[63630,44,63630,45],[63630,46,63630,47],[63630,48,63630,49],[63630,50,63630,51],[63610,72,63610,73],[63610,74,63610,75],[63630,24,63630,25],[63630,26,63630,27],[63630,28,63630,29],[63630,30,63630,31],[63630,32,63630,33],[63630,34,63630,35],[63630,36,63630,37],[63630,38,63630,39],[63610,60,63610,61],[63610,62,63610,63],[63610,64,63610,65],[63610,66,63610,67],[63610,68,63610,69],[63610,70,63610,71],[63610,48,63610,49],[63610,50,63610,51],[63610,52,63610,53],[63610,54,63610,55],[63610,56,63610,57],[63610,58,63610,59],[63610,36,63610,37],[63610,38,63610,39],[63610,40,63610,41],[63610,42,63610,43],[63610,44,63610,45],[63610,46,63610,47],[63610,24,63610,25],[63610,26,63610,27],[63610,28,63610,29],[63610,30,63610,31],[63610,32,63610,33],[63610,34,63610,35],[63548,64,63548,65],[63548,66,63548,67],[63548,68,63548,69],[63548,70,63548,71],[63548,72,63548,73],[63548,74,63548,75],[63548,52,63548,53],[63548,54,63548,55],[63548,56,63548,57],[63548,58,63548,59],[63548,60,63548,61],[63548,62,63548,63]],"merged_total":58593,"flags":["merged_cut"]}
[null,"B01001. GENDER BY AGE"]
[null,"Universe:  TOTAL POPULATION"]
[null,"Data Set: 2015-2019 American Community Survey 5-Year Estimates"]
[]
[null,null,"Barrington",null,"Dover",null,"Durham",null,"Farmington",null,"Lee",null,"Madbury",null,"Middleton",null,"Milton",null,"New Durham",null,"Rochester",null,"Rollinsford",null,"Somersworth",null,"Strafford"]
[null,null,"Estimate","Margin Of Error","Estimate","Margin Of Error","Estimate","Margin Of Error","Estimate","Margin Of Error","Estimate","Margin Of Error","Estimate","Margin Of Error","Estimate","Margin Of Error","Estimate","Margin Of Error","Estimate","Margin Of Error","Estimate","Margin Of Error","Estimate","Margin Of Error","Estimate","Margin Of Error","Estimate","Margin Of Error"]
[null,"Total:",9063,31,31577,22,16481,21,6930,17,4485,18,1901,157,1783,159,4620,24,2697,17,30955,38,2567,21,11925,22,4140,18]
[null,"Male:",4525,271,15011,453,7731,356,3696,257,2173,185,992,99,889,86,2398,142,1319,84,15423,371,1178,78,5864,351,2005,138]
[null,"Under 5 years",308,150,939,186,126,69,216,146,80,92,51,24,36,24,90,60,28,23,594,188,49,25,290,128,211,96]
[null,"5 to 9 years",271,134,784,190,170,75,142,105,174,92,59,27,47,28,171,68,112,43,969,214,32,19,311,170,102,56]
[null,"10 to 14 years",511,202,658,159,184,63,295,141,158,98,76,36,64,29,96,47,48,30,1142,205,76,41,397,168,57,48]
[null,"15 to 17 years",144,96,340,102,135,57,89,65,89,76,59,32,15,10,138,77,88,37,806,162,32,25,190,90,19,21]
[null,"18 and 19 years",50,60,139,86,1992,177,184,112,0,11,11,12,6,9,23,27,38,33,377,162,20,17,65,60,48,37]
[null,"20 years",36,57,64,60,1121,176,34,55,0,11,30,26,13,11,27,30,30,24,192,111,7,10,67,75,75,65]
[null,"21 years",56,71,240,125,908,196,84,82,0,11,16,15,19,17,0,11,0,11,156,100,8,12,19,31,0,11]
[null,"22 to 24 years",154,106,1061,302,869,216,64,99,63,69,37,22,34,21,96,74,18,19,718,224,82,49,295,223,49,42]
[null,"25 to 29 years",242,143,1441,245,252,93,206,117,1,4,40,20,37,24,217,97,118,44,1276,270,39,23,645,189,125,74]
[null,"30 to 34 years",230,136,1499,232,152,50,212,127,25,36,30,20,39,18,141,76,39,23,872,189,112,35,675,203,109,60]
[null,"35 to 39 years",400,171,987,209,136,49,223,139,166,81,52,23,90,27,160,81,70,26,762,194,51,30,409,134,179,75]
[null,"40 to 44 years",299,137,863,220,245,86,194,112,117,93,41,20,46,22,131,65,50,25,1137,183,83,35,234,121,70,61]
[null,"45 to 49 years",274,173,823,181,160,77,220,112,260,120,148,52,83,34,83,46,134,45,1083,167,49,25,455,149,134,61]
[null,"50 to 54 years",484,171,1111,193,235,76,318,134,273,112,91,27,77,29,179,85,109,40,980,180,97,32,316,137,170,61]
[null,"55 to 59 years",370,142,1033,205,210,66,370,157,178,119,87,44,87,26,234,82,126,46,993,172,133,38,503,160,140,51]
[null,"60 and 61 years",126,105,313,114,133,59,168,97,63,57,27,20,29,20,82,47,44,33,543,157,65,39,73,52,149,52]
[null,"62 to 64 years",173,77,453,141,113,49,165,130,171,83,27,15,62,19,131,70,62,22,434,135,87,44,291,103,81,39]
[null,"65 and 66 years",13,23,172,97,133,54,170,134,131,68,16,11,25,13,69,53,27,19,420,142,15,13,61,51,49,36]
[null,"67 to 69 years",183,98,561,174,118,51,86,73,87,75,18,12,17,12,46,31,81,33,477,130,28,18,155,72,87,45]
[null,"70 to 74 years",97,66,648,172,155,59,68,59,70,47,29,14,31,16,169,73,45,30,552,128,47,21,179,95,39,29]
[null,"75 to 79 years",74,67,379,116,38,25,75,62,28,31,20,11,12,9,36,28,46,33,382,127,46,33,126,65,49,28]
[null,"80 to 84 years",30,36,349,144,107,51,95,61,13,21,9,7,15,16,63,50,0,11,305,109,20,14,50,50,23,21]
[null,"85 years and over",0,16,154,70,39,30,18,28,26,29,18,19,5,6,16,18,6,9,253,108,0,11,58,46,40,26]
[null,"Female:",4538,270,16566,453,8750,354,3234,257,2312,183,909,100,894,103,2222,144,1378,82,15532,372,1389,75,6061,351,2135,135]
[null,"Under 5 years",199,141,1094,244,140,62,105,74,50,45,61,39,53,27,143,68,57,37,649,175,50,30,363,172,102,54]
[null,"5 to 9 years",304,163,945,228,219,85,154,107,116,69,67,30,55,32,93,70,40,26,827,188,114,53,231,102,103,66]
[null,"10 to 14 years",349,174,771,165,169,73,220,107,121,76,88,32,60,28,86,55,125,55,804,182,78,29,331,143,197,108]
[null,"15 to 17 years",63,59,504,143,207,82,203,100,41,46,43,20,30,17,63,45,99,44,406,126,48,26,328,132,136,73]
[null,"18 and 19 years",48,50,109,78,2874,283,128,85,41,42,7,9,18,13,31,28,4,6,256,126,28,37,55,55,22,29]
[null,"20 years",194,171,103,89,1371,274,27,43,71,70,6,9,17,14,12,22,0,11,219,150,16,18,0,18,0,11]
[null,"21 years",78,126,246,162,1187,256,0,16,156,161,6,9,0,11,0,11,21,19,111,93,0,11,99,144,22,28]
[null,"22 to 24 years",134,103,1192,317,446,115,75,117,126,108,60,31,23,16,68,53,63,36,746,245,80,49,140,104,73,56]
[null,"25 to 29 years",193,113,1561,202,112,52,205,110,42,43,36,18,39,18,108,52,65,39,836,153,63,33,713,183,67,60]
[null,"30 to 34 years",227,112,1618,213,128,52,182,104,45,43,24,14,68,30,205,81,47,36,910,191,87,33,383,134,120,59]
[null,"35 to 39 years",401,158,924,229,173,78,72,65,93,63,69,25,58,23,68,47,46,21,989,166,56,33,443,144,143,66]
[null,"40 to 44 years",391,156,935,244,179,59,311,114,203,85,58,27,57,29,95,58,92,36,1008,202,52,28,220,96,73,47]
[null,"45 to 49 years",509,233,719,181,209,64,176,103,167,117,98,33,68,29,120,59,159,52,1091,227,86,34,473,136,159,68]
[null,"50 to 54 years",185,94,1201,182,257,70,351,136,226,100,55,25,63,29,244,106,152,42,1118,194,136,53,436,141,193,65]
[null,"55 to 59 years",579,181,1019,166,233,67,220,94,276,125,75,29,98,33,230,87,88,32,1217,247,138,46,306,110,203,59]
[null,"60 and 61 years",148,103,296,95,82,44,72,59,60,54,42,23,39,17,114,65,51,25,550,158,63,33,240,86,106,52]
[null,"62 to 64 years",132,74,536,163,117,63,169,128,98,67,24,15,34,12,85,56,25,16,615,147,35,18,356,129,51,27]
[null,"65 and 66 years",73,57,331,138,95,50,41,49,94,65,10,8,19,13,53,50,41,20,407,120,58,34,98,80,53,35]
[null,"67 to 69 years",18,28,545,170,115,48,172,101,57,40,24,14,29,15,134,73,52,23,646,133,22,16,164,96,83,43]
[null,"70 to 74 years",113,75,670,144,134,51,62,59,122,101,17,12,25,13,102,55,105,41,706,158,49,21,273,99,61,37]
[null,"75 to 79 years",41,49,423,139,123,54,91,83,72,68,28,16,16,12,95,62,20,17,491,142,43,25,132,81,35,32]
[null,"80 to 84 years",56,59,289,139,38,26,100,99,35,39,8,9,7,9,62,57,20,16,475,144,54,40,98,77,69,44]
[null,"85 years and over",103,118,535,141,142,60,98,86,0,11,3,4,18,12,11,18,6,9,455,125,33,22,179,84,64,36]
[]
[]
[]
[]
[]
[]
[]
[]
[]
[]
[]
[]
[]
[null,"Calculated B01001. GENDER BY AGE"]
[null,"Universe:  TOTAL POPULATION"]
[null,"Data Set: 2015-2019 American Community Survey 5-Year Estimates"]
[]
[null,null,"Barrington",null,"Dover",null,"Durham",null,"Farmington",null,"Lee",null,"Madbury",null,"Middleton",null,"Milton",null,"New Durham",null,"Rochester",null,"Rollinsford",null,"Somersworth",null,"Strafford"]
[null,null,"Estimate","Margin Of Error","Estimate","Margin Of Error","Estimate","Margin Of Error","Estimate","Margin Of Error","Estimate","Margin Of Error","Estimate","Margin Of Error","Estimate","Margin Of Error","Estimate","Margin Of Error","Estimate","Margin Of Error","Estimate","Margin Of Error","Estimate","Margin Of Error","Estimate","Margin Of Error","Estimate","Margin Of Error"]
[null,"Total",{"$f":"C7","v":9063},31,31577,22,16481,21,6930,17,4485,18,1901,157,1783,159,4620,24,2697,17,30955,38,2567,21,{"$f":"Y7","v":11925},{"$f":"Z7","v":22},{"$f":"AA7","v":4140},{"$f":"AB7","v":18}]
[null,"Under 15 yrs.",{"$f":"C9+C10+C11+C33+C34+C35","v":1942},{"$f":"SQRT((D9^2)+(D10^2)+(D11^2)+(D33^2)+(D34^2)+(D35^2))","v":397.47452748572454},{"$f":"E9+E10+E11+E33+E34+E35","v":5191},{"$f":"SQRT((F9^2)+(F10^2)+(F11^2)+(F33^2)+(F34^2)+(F35^2))","v":484.48116578459479},{"$f":"G9+G10+G11+G33+G34+G35","v":1008},{"$f":"SQRT((H9^2)+(H10^2)+(H11^2)+(H33^2)+(H34^2)+(H35^2))","v":175.36533294810579},{"$f":"I9+I10+I11+I33+I34+I35","v":1132},{"$f":"SQRT((J9^2)+(J10^2)+(J11^2)+(J33^2)+(J34^2)+(J35^2))","v":283.89434654462565},{"$f":"K9+K10+K11+K33+K34+K35","v":699},{"$f":"SQRT((L9^2)+(L10^2)+(L11^2)+(L33^2)+(L34^2)+(L35^2))","v":197.72202709865181},{"$f":"M9+M10+M11+M33+M34+M35","v":402},{"$f":"SQRT((N9^2)+(N10^2)+(N11^2)+(N33^2)+(N34^2)+(N35^2))","v":77.756028705175012},{"$f":"O9+O10+O11+O33+O34+O35","v":315},{"$f":"SQRT((P9^2)+(P10^2)+(P11^2)+(P33^2)+(P34^2)+(P35^2))","v":68.833131557412088},{"$f":"Q9+Q10+Q11+Q33+Q34+Q35","v":679},{"$f":"SQRT((R9^2)+(R10^2)+(R11^2)+(R33^2)+(R34^2)+(R35^2))","v":151.59815302304972},{"$f":"S9+S10+S11+S33+S34+S35","v":410},{"$f":"SQRT((T9^2)+(T10^2)+(T11^2)+(T33^2)+(T34^2)+(T35^2))","v":91.36739024400336},{"$f":"U9+U10+U11+U33+U34+U35","v":4985},{"$f":"SQRT((V9^2)+(V10^2)+(V11^2)+(V33^2)+(V34^2)+(V35^2))","v":471.44246732766874},{"$f":"W9+W10+W11+W33+W34+W35","v":399},{"$f":"SQRT((X9^2)+(X10^2)+(X11^2)+(X33^2)+(X34^2)+(X35^2))","v":84.952928142589641},{"$f":"Y9+Y10+Y11+Y33+Y34+Y35","v":1923},{"$f":"SQRT((Z9^2)+(Z10^2)+(Z11^2)+(Z33^2)+(Z34^2)+(Z35^2))","v":365.98497236908514},{"$f":"AA9+AA10+AA11+AA33+AA34+AA35","v":772},{"$f":"SQRT((AB9^2)+(AB10^2)+(AB11^2)+(AB33^2)+(AB34^2)+(AB35^2))","v":183.28120471013932}]
[null,"15 to 24 yrs.",{"$f":"C12+C13+C14+C15+C16+C36+C37+C38+C39+C40","v":957},{"$f":"SQRT((D12^2)+(D13^2)+(D14^2)+(D15^2)+(D16^2)+(D36^2)+(D37^2)+(D38^2)+(D39^2)+(D40^2))","v":306.67409411295245},{"$f":"E12+E13+E14+E15+E16+E36+E37+E38+E39+E40","v":3998},{"$f":"SQRT((F12^2)+(F13^2)+(F14^2)+(F15^2)+(F16^2)+(F36^2)+(F37^2)+(F38^2)+(F39^2)+(F40^2))","v":537.97397706580568},{"$f":"G12+G13+G14+G15+G16+G36+G37+G38+G39+G40","v":11110},{"$f":"SQRT((H12^2)+(H13^2)+(H14^2)+(H15^2)+(H16^2)+(H36^2)+(H37^2)+(H38^2)+(H39^2)+(H40^2))","v":625.5205831945101},{"$f":"I12+I13+I14+I15+I16+I36+I37+I38+I39+I40","v":888},{"$f":"SQRT((J12^2)+(J13^2)+(J14^2)+(J15^2)+(J16^2)+(J36^2)+(J37^2)+(J38^2)+(J39^2)+(J40^2))","v":263.32109676210905},{"$f":"K12+K13+K14+K15+K16+K36+K37+K38+K39+K40","v":587},{"$f":"SQRT((L12^2)+(L13^2)+(L14^2)+(L15^2)+(L16^2)+(L36^2)+(L37^2)+(L38^2)+(L39^2)+(L40^2))","v":239.30106560565082},{"$f":"M12+M13+M14+M15+M16+M36+M37+M38+M39+M40","v":275},{"$f":"SQRT((N12^2)+(N13^2)+(N14^2)+(N15^2)+(N16^2)+(N36^2)+(N37^2)+(N38^2)+(N39^2)+(N40^2))","v":64.474801279259481},{"$f":"O12+O13+O14+O15+O16+O36+O37+O38+O39+O40","v":175},{"$f":"SQRT((P12^2)+(P13^2)+(P14^2)+(P15^2)+(P16^2)+(P36^2)+(P37^2)+(P38^2)+(P39^2)+(P40^2))","v":45.420259796703057},{"$f":"Q12+Q13+Q14+Q15+Q16+Q36+Q37+Q38+Q39+Q40","v":458},{"$f":"SQRT((R12^2)+(R13^2)+(R14^2)+(R15^2)+(R16^2)+(R36^2)+(R37^2)+(R38^2)+(R39^2)+(R40^2))","v":139.20488497175666},{"$f":"S12+S13+S14+S15+S16+S36+S37+S38+S39+S40","v":361},{"$f":"SQRT((T12^2)+(T13^2)+(T14^2)+(T15^2)+(T16^2)+(T36^2)+(T37^2)+(T38^2)+(T39^2)+(T40^2))","v":85.240835284504342},{"$f":"U12+U13+U14+U15+U16+U36+U37+U38+U39+U40","v":3987},{"$f":"SQRT((V12^2)+(V13^2)+(V14^2)+(V15^2)+(V16^2)+(V36^2)+(V37^2)+(V38^2)+(V39^2)+(V40^2))","v":497.90661775075858},{"$f":"W12+W13+W14+W15+W16+W36+W37+W38+W39+W40","v":321},{"$f":"SQRT((X12^2)+(X13^2)+(X14^2)+(X15^2)+(X16^2)+(X36^2)+(X37^2)+(X38^2)+(X39^2)+(X40^2))","v":91.923881554251182},{"$f":"Y12+Y13+Y14+Y15+Y16+Y36+Y37+Y38+Y39+Y40","v":1258},{"$f":"SQRT((Z12^2)+(Z13^2)+(Z14^2)+(Z15^2)+(Z16^2)+(Z36^2)+(Z37^2)+(Z38^2)+(Z39^2)+(Z40^2))","v":346.90056212119345},{"$f":"AA12+AA13+AA14+AA15+AA16+AA36+AA37+AA38+AA39+AA40","v":444},{"$f":"SQRT((AB12^2)+(AB13^2)+(AB14^2)+(AB15^2)+(AB16^2)+(AB36^2)+(AB37^2)+(AB38^2)+(AB39^2)+(AB40^2))","v":134.65140177510222}]
[null,"25 to 34 yrs.",{"$f":"C17+C18+C41+C42","v":892},{"$f":"SQRT((D17^2)+(D18^2)+(D41^2)+(D42^2))","v":253.49161721840034},{"$f":"E17+E18+E41+E42","v":6119},{"$f":"SQRT((F17^2)+(F18^2)+(F41^2)+(F42^2))","v":447.2381915713371},{"$f":"G17+G18+G41+G42","v":644},{"$f":"SQRT((H17^2)+(H18^2)+(H41^2)+(H42^2))","v":128.67400669909986},{"$f":"I17+I18+I41+I42","v":805},{"$f":"SQRT((J17^2)+(J18^2)+(J41^2)+(J42^2))","v":229.63884688789045},{"$f":"K17+K18+K41+K42","v":113},{"$f":"SQRT((L17^2)+(L18^2)+(L41^2)+(L42^2))","v":70.781353476745551},{"$f":"M17+M18+M41+M42","v":130},{"$f":"SQRT((N17^2)+(N18^2)+(N41^2)+(N42^2))","v":36.331804249169899},{"$f":"O17+O18+O41+O42","v":183},{"$f":"SQRT((P17^2)+(P18^2)+(P41^2)+(P42^2))","v":46.086874487211652},{"$f":"Q17+Q18+Q41+Q42","v":671},{"$f":"SQRT((R17^2)+(R18^2)+(R41^2)+(R42^2))","v":156.3649577111189},{"$f":"S17+S18+S41+S42","v":269},{"$f":"SQRT((T17^2)+(T18^2)+(T41^2)+(T42^2))","v":72.677369242426494},{"$f":"U17+U18+U41+U42","v":3894},{"$f":"SQRT((V17^2)+(V18^2)+(V41^2)+(V42^2))","v":410.500913519081},{"$f":"W17+W18+W41+W42","v":301},{"$f":"SQRT((X17^2)+(X18^2)+(X41^2)+(X42^2))","v":62.705661626363529},{"$f":"Y17+Y18+Y41+Y42","v":2416},{"$f":"SQRT((Z17^2)+(Z18^2)+(Z41^2)+(Z42^2))","v":358.29457154693262},{"$f":"AA17+AA18+AA41+AA42","v":421},{"$f":"SQRT((AB17^2)+(AB18^2)+(AB41^2)+(AB42^2))","v":127.11018841933954}]
[null,"35 to 44 yrs.",{"$f":"C19+C20+C43+C44","v":1491},{"$f":"SQRT((D19^2)+(D20^2)+(D43^2)+(D44^2))","v":311.94550806190495},{"$f":"E19+E20+E43+E44","v":3709},{"$f":"SQRT((F19^2)+(F20^2)+(F43^2)+(F44^2))","v":451.72779414156042},{"$f":"G19+G20+G43+G44","v":733},{"$f":"SQRT((H19^2)+(H20^2)+(H43^2)+(H44^2))","v":139.14740385648594},{"$f":"I19+I20+I43+I44","v":800},{"$f":"SQRT((J19^2)+(J20^2)+(J43^2)+(J44^2))","v":221.55360525164107},{"$f":"K19+K20+K43+K44","v":579},{"$f":"SQRT((L19^2)+(L20^2)+(L43^2)+(L44^2))","v":162.49307677559682},{"$f":"M19+M20+M43+M44","v":220},{"$f":"SQRT((N19^2)+(N20^2)+(N43^2)+(N44^2))","v":47.780749261601159},{"$f":"O19+O20+O43+O44","v":251},{"$f":"SQRT((P19^2)+(P20^2)+(P43^2)+(P44^2))","v":50.823223038292248},{"$f":"Q19+Q20+Q43+Q44","v":454},{"$f":"SQRT((R19^2)+(R20^2)+(R43^2)+(R44^2))","v":127.90230646864818},{"$f":"S19+S20+S43+S44","v":258},{"$f":"SQRT((T19^2)+(T20^2)+(T43^2)+(T44^2))","v":55.11805511808268},{"$f":"U19+U20+U43+U44","v":3896},{"$f":"SQRT((V19^2)+(V20^2)+(V43^2)+(V44^2))","v":373.47690691661245},{"$f":"W19+W20+W43+W44","v":242},{"$f":"SQRT((X19^2)+(X20^2)+(X43^2)+(X44^2))","v":63.229739838148944},{"$f":"Y19+Y20+Y43+Y44","v":1306},{"$f":"SQRT((Z19^2)+(Z20^2)+(Z43^2)+(Z44^2))","v":250.09798079952586},{"$f":"AA19+AA20+AA43+AA44","v":465},{"$f":"SQRT((AB19^2)+(AB20^2)+(AB43^2)+(AB44^2))","v":126.13881242504227}]
[null,"45 to 54 yrs.",{"$f":"C21+C22+C45+C46","v":1452},{"$f":"SQRT((D21^2)+(D22^2)+(D45^2)+(D46^2))","v":349.7070202326513},{"$f":"E21+E22+E45+E46","v":3854},{"$f":"SQRT((F21^2)+(F22^2)+(F45^2)+(F46^2))","v":368.63939019046785},{"$f":"G21+G22+G45+G46","v":861},{"$f":"SQRT((H21^2)+(H22^2)+(H45^2)+(H46^2))","v":143.87842089764538},{"$f":"I21+I22+I45+I46","v":1065},{"$f":"SQRT((J21^2)+(J22^2)+(J45^2)+(J46^2))","v":244.14135249891609},{"$f":"K21+K22+K45+K46","v":926},{"$f":"SQRT((L21^2)+(L22^2)+(L45^2)+(L46^2))","v":225.0177770755013},{"$f":"M21+M22+M45+M46","v":392},{"$f":"SQRT((N21^2)+(N22^2)+(N45^2)+(N46^2))","v":71.742595436741766},{"$f":"O21+O22+O45+O46","v":291},{"$f":"SQRT((P21^2)+(P22^2)+(P45^2)+(P46^2))","v":60.654760736482999},{"$f":"Q21+Q22+Q45+Q46","v":626},{"$f":"SQRT((R21^2)+(R22^2)+(R45^2)+(R46^2))","v":155.1064150833227},{"$f":"S21+S22+S45+S46","v":554},{"$f":"SQRT((T21^2)+(T22^2)+(T45^2)+(T46^2))","v":89.961102705558247},{"$f":"U21+U22+U45+U46","v":4272},{"$f":"SQRT((V21^2)+(V22^2)+(V45^2)+(V46^2))","v":386.59280903814027},{"$f":"W21+W22+W45+W46","v":368},{"$f":"SQRT((X21^2)+(X22^2)+(X45^2)+(X46^2))","v":74.92663077971676},{"$f":"Y21+Y22+Y45+Y46","v":1680},{"$f":"SQRT((Z21^2)+(Z22^2)+(Z45^2)+(Z46^2))","v":281.68599539203223},{"$f":"AA21+AA22+AA45+AA46","v":656},{"$f":"SQRT((AB21^2)+(AB22^2)+(AB45^2)+(AB46^2))","v":127.63620176109912}]
[null,"55 to 64 yrs.",{"$f":"C23+C24+C25+C47+C48+C49","v":1528},{"$f":"SQRT((D23^2)+(D24^2)+(D25^2)+(D47^2)+(D48^2)+(D49^2))","v":293.1961800569714},{"$f":"E23+E24+E25+E47+E48+E49","v":3650},{"$f":"SQRT((F23^2)+(F24^2)+(F25^2)+(F47^2)+(F48^2)+(F49^2))","v":371.55349547541601},{"$f":"G23+G24+G25+G47+G48+G49","v":888},{"$f":"SQRT((H23^2)+(H24^2)+(H25^2)+(H47^2)+(H48^2)+(H49^2))","v":143.63843496780379},{"$f":"I23+I24+I25+I47+I48+I49","v":1164},{"$f":"SQRT((J23^2)+(J24^2)+(J25^2)+(J47^2)+(J48^2)+(J49^2))","v":282.23926020311205},{"$f":"K23+K24+K25+K47+K48+K49","v":846},{"$f":"SQRT((L23^2)+(L24^2)+(L25^2)+(L47^2)+(L48^2)+(L49^2))","v":217.55229256433958},{"$f":"M23+M24+M25+M47+M48+M49","v":282},{"$f":"SQRT((N23^2)+(N24^2)+(N25^2)+(N47^2)+(N48^2)+(N49^2))","v":64.467045845144796},{"$f":"O23+O24+O25+O47+O48+O49","v":349},{"$f":"SQRT((P23^2)+(P24^2)+(P25^2)+(P47^2)+(P48^2)+(P49^2))","v":54.396691075836586},{"$f":"Q23+Q24+Q25+Q47+Q48+Q49","v":876},{"$f":"SQRT((R23^2)+(R24^2)+(R25^2)+(R47^2)+(R48^2)+(R49^2))","v":169.59658015420004},{"$f":"S23+S24+S25+S47+S48+S49","v":396},{"$f":"SQRT((T23^2)+(T24^2)+(T25^2)+(T47^2)+(T48^2)+(T49^2))","v":74.793047805260613},{"$f":"U23+U24+U25+U47+U48+U49","v":4352},{"$f":"SQRT((V23^2)+(V24^2)+(V25^2)+(V47^2)+(V48^2)+(V49^2))","v":424.31120654538455},{"$f":"W23+W24+W25+W47+W48+W49","v":521},{"$f":"SQRT((X23^2)+(X24^2)+(X25^2)+(X47^2)+(X48^2)+(X49^2))","v":91.815031449104239},{"$f":"Y23+Y24+Y25+Y47+Y48+Y49","v":1769},{"$f":"SQRT((Z23^2)+(Z24^2)+(Z25^2)+(Z47^2)+(Z48^2)+(Z49^2))","v":273.95255063605447},{"$f":"AA23+AA24+AA25+AA47+AA48+AA49","v":730},{"$f":"SQRT((AB23^2)+(AB24^2)+(AB25^2)+(AB47^2)+(AB48^2)+(AB49^2))","v":117.21774609674083}]
[null,"65 to 74 yrs.",{"$f":"C26+C27+C28+C50+C51+C52","v":497},{"$f":"SQRT((D26^2)+(D27^2)+(D28^2)+(D50^2)+(D51^2)+(D52^2))","v":155.39305003763843},{"$f":"E26+E27+E28+E50+E51+E52","v":2927},{"$f":"SQRT((F26^2)+(F27^2)+(F28^2)+(F50^2)+(F51^2)+(F52^2))","v":371.41486238436931},{"$f":"G26+G27+G28+G50+G51+G52","v":750},{"$f":"SQRT((H26^2)+(H27^2)+(H28^2)+(H50^2)+(H51^2)+(H52^2))","v":128.07419724519065},{"$f":"I26+I27+I28+I50+I51+I52","v":599},{"$f":"SQRT((J26^2)+(J27^2)+(J28^2)+(J50^2)+(J51^2)+(J52^2))","v":207},{"$f":"K26+K27+K28+K50+K51+K52","v":561},{"$f":"SQRT((L26^2)+(L27^2)+(L28^2)+(L50^2)+(L51^2)+(L52^2))","v":168.77203559831824},{"$f":"M26+M27+M28+M50+M51+M52","v":114},{"$f":"SQRT((N26^2)+(N27^2)+(N28^2)+(N50^2)+(N51^2)+(N52^2))","v":29.410882339705484},{"$f":"O26+O27+O28+O50+O51+O52","v":146},{"$f":"SQRT((P26^2)+(P27^2)+(P28^2)+(P50^2)+(P51^2)+(P52^2))","v":33.645207682521445},{"$f":"Q26+Q27+Q28+Q50+Q51+Q52","v":573},{"$f":"SQRT((R26^2)+(R27^2)+(R28^2)+(R50^2)+(R51^2)+(R52^2))","v":141.25508840392263},{"$f":"S26+S27+S28+S50+S51+S52","v":351},{"$f":"SQRT((T26^2)+(T27^2)+(T28^2)+(T50^2)+(T51^2)+(T52^2))","v":70.427267446636037},{"$f":"U26+U27+U28+U50+U51+U52","v":3208},{"$f":"SQRT((V26^2)+(V27^2)+(V28^2)+(V50^2)+(V51^2)+(V52^2))","v":332.4169069105842},{"$f":"W26+W27+W28+W50+W51+W52","v":219},{"$f":"SQRT((X26^2)+(X27^2)+(X28^2)+(X50^2)+(X51^2)+(X52^2))","v":52.792044855262048},{"$f":"Y26+Y27+Y28+Y50+Y51+Y52","v":930},{"$f":"SQRT((Z26^2)+(Z27^2)+(Z28^2)+(Z50^2)+(Z51^2)+(Z52^2))","v":205.49209230527583},{"$f":"AA26+AA27+AA28+AA50+AA51+AA52","v":372},{"$f":"SQRT((AB26^2)+(AB27^2)+(AB28^2)+(AB50^2)+(AB51^2)+(AB52^2))","v":92.763139231054481}]
[null,"Over 74 yrs. ",{"$f":"C29+C30+C31+C53+C54+C55","v":304},{"$f":"SQRT((D29^2)+(D30^2)+(D31^2)+(D53^2)+(D54^2)+(D55^2))","v":160.77002208123255},{"$f":"E29+E30+E31+E53+E54+E55","v":2129},{"$f":"SQRT((F29^2)+(F30^2)+(F31^2)+(F53^2)+(F54^2)+(F55^2))","v":312.43399302892766},{"$f":"G29+G30+G31+G53+G54+G55","v":487},{"$f":"SQRT((H29^2)+(H30^2)+(H31^2)+(H53^2)+(H54^2)+(H55^2))","v":106.38608931622592},{"$f":"I29+I30+I31+I53+I54+I55","v":477},{"$f":"SQRT((J29^2)+(J30^2)+(J31^2)+(J53^2)+(J54^2)+(J55^2))","v":180.09719598039277},{"$f":"K29+K30+K31+K53+K54+K55","v":174},{"$f":"SQRT((L29^2)+(L30^2)+(L31^2)+(L53^2)+(L54^2)+(L55^2))","v":92.244241012650761},{"$f":"M29+M30+M31+M53+M54+M55","v":86},{"$f":"SQRT((N29^2)+(N30^2)+(N31^2)+(N53^2)+(N54^2)+(N55^2))","v":29.732137494637012},{"$f":"O29+O30+O31+O53+O54+O55","v":73},{"$f":"SQRT((P29^2)+(P30^2)+(P31^2)+(P53^2)+(P54^2)+(P55^2))","v":27.239676943752471},{"$f":"Q29+Q30+Q31+Q53+Q54+Q55","v":283},{"$f":"SQRT((R29^2)+(R30^2)+(R31^2)+(R53^2)+(R54^2)+(R55^2))","v":105},{"$f":"S29+S30+S31+S53+S54+S55","v":98},{"$f":"SQRT((T29^2)+(T30^2)+(T31^2)+(T53^2)+(T54^2)+(T55^2))","v":43.783558557979269},{"$f":"U29+U30+U31+U53+U54+U55","v":2361},{"$f":"SQRT((V29^2)+(V30^2)+(V31^2)+(V53^2)+(V54^2)+(V55^2))","v":310.15963631652653},{"$f":"W29+W30+W31+W53+W54+W55","v":196},{"$f":"SQRT((X29^2)+(X30^2)+(X31^2)+(X53^2)+(X54^2)+(X55^2))","v":64.148265759878498},{"$f":"Y29+Y30+Y31+Y53+Y54+Y55","v":643},{"$f":"SQRT((Z29^2)+(Z30^2)+(Z31^2)+(Z53^2)+(Z54^2)+(Z55^2))","v":168.48442064475873},{"$f":"AA29+AA30+AA31+AA53+AA54+AA55","v":280},{"$f":"SQRT((AB29^2)+(AB30^2)+(AB31^2)+(AB53^2)+(AB54^2)+(AB55^2))","v":78.466553384228618}]
[]
[]
[]
[]
[]
[]
[]
[]
[]
[]
[]
[]
[]
[]
[]
[]
[]
[]
[]
[]
[]
[]
[]
[]
[]
[]
[]
[]
[]
[]
[]
[]
[]
[]
[]
[]
[]
[]
[]
[]
[]
[]
[]
[]
[]
[]
[]
[]
[]
[]
[]
[]
[]
[]
[]
[]
[]
[]
[]
[]
[]
[]
[]
[]
[]
[]
[]
[]
[]
[]
[]
[]
[]
[]
[]
[]
[null,"Calculated B01001. GENDER BY AGE"]
[null,"Universe:  TOTAL POPULATION"]
[null,"Data Set: 2010-2014 American Community Survey 5-Year Estimates"]
[]
[null,null,"Barrington",null,"Dover",null,"Durham",null,"Farmington",null,"Lee",null,"Madbury",null,"Middleton",null,"Milton",null,"New Durham",null,"Rochester",null,"Rollinsford",null,"Somersworth",null,"Strafford"]
[null,null,"Estimate","Margin Of Error","Estimate","Margin Of Error","Estimate","Margin Of Error","Estimate","Margin Of Error","Estimate","Margin Of Error","Estimate","Margin Of Error","Estimate","Margin Of Error","Estimate","Margin Of Error","Estimate","Margin Of Error","Estimate","Margin Of Error","Estimate","Margin Of Error","Estimate","Margin Of Error","Estimate","Margin Of Error",null,null,null,null,null,null,null,null,null,null,null,null,null,null,"Estimate","Margin Of Error","Estimate","Margin Of Error","Estimate","Margin Of Error","Estimate","Margin Of Error","Estimate","Margin Of Error","Estimate","Margin Of Error","Estimate","Margin Of Error","Estimate","Margin Of Error","Estimate","Margin Of Error","Estimate","Margin Of Error","Estimate","Margin Of Error","Estimate","Margin Of Error","Estimate","Margin Of Error","Estimate","Margin Of Error","Estimate","Margin Of Error","Estimate","Margin Of Error","Estimate","Margin Of Error"]
[null,"Total",8691,17,30332,27,15180,30,6824,32,4357,15,2003,170,1567,167,4592,23,2648,16,29883,38,2528,18,11765,34,4017,28,null,null,null,null,null,null,null,null,null,null,null,null,null,null,1836,240,691,109,9401,30,4523,25,4542,22,4077,20,4471,16,7665,30,20557,24,10181,17,5177,23,29423,51,5822,18,8494,17,798,129,7214,17,13097,27]
[null,"Under 15 yrs.",1667,343.71499821800035,5144,465.94098338738138,1391,211.08529081866411,1158,260.55325751178009,709,238.1785044877056,469,85.790442358108862,321,65.099923195039182,830,163.88105442667862,503,111.11705539655017,4745,484.45949263070486,600,122.74770873625299,2223,332.81225938958437,787,174.49068743059041,null,null,null,null,null,null,null,null,null,null,null,null,null,null,494,81.301906496711382,57,31.496031496047245,1693,285.04561038542585,828,148.2700239428051,806,181.48829163337231,872,182.65815065307106,1065,209.01913787976449,1654,321.3627234139019,3103,379.76045081077098,1825,268.4809117982133,843,191.59331929897763,5616,474.16558289272746,1367,216.84787294322257,1384,277.45089655648979,126,35.735136770411273,1616,233.79905902291395,2804,324.07097987940853]
[null,"15 to 24 yrs.",844,229.01964981197574,4530,535.72007615918221,9243,692.07225056347977,1004,320.82082226688465,505,159.98124890123842,348,102.60116958397697,169,43.023249528597908,653,172.46158992656888,265,70.035705179572517,3947,450.99667404538582,335,87.091905479212016,1699,346.08813906286935,459,135.88598161694236,null,null,null,null,null,null,null,null,null,null,null,null,null,null,223,172.78888853164142,69,199.83493188129046,1367,253.25678668102856,702,204.87313147409057,470,169.29264603047588,463,167.10176540060851,389,184.03260580668851,1007,235.0957251844448,2532,428.31530441953623,1325,247.69537742961614,554,266.4169664266899,3727,438.85874720688889,853,186.23372412106247,599,237.49526311065659,45,255.62472493872733,683,157.89870170460554,1542,275.31436577120343]
[null,"25 to 34 yrs.",923,220.94343167426362,4728,417.35596317771717,587,149.71973817770322,750,218.68013169924697,513,204.28166829160173,154,52.933921071464184,213,54.184868736576263,519,122.84543133547946,238,64.046857846423663,3915,378.38076061026146,207,79.737067916998299,1931,341.49963396759301,317,108.27742146911331,null,null,null,null,null,null,null,null,null,null,null,null,null,null,107,41.581245772583578,49,22.693611435820433,1640,258.80108191427638,466,115.90944741478151,541,149.70971912337555,470,143.90621946253748,590,148.32059870429327,576,188.09572031282372,3848,398.70415096911142,987,179.89163404672269,248,98.168222964460341,2750,379.13717834050516,569,136.58330791132568,793,226.31615055050756,90,121.64292005702592,520,148.81532179181013,1040,183.82328470571949]
[null,"35 to 44 yrs.",1198,270.16476454193651,4098,388.09534910895286,937,143.98958295654586,918,244.5690086662658,574,169.69973482595663,372,77.330459716724818,190,43.806392227619021,520,118.57908753233008,303,68.168907868617055,3900,365.39020238643508,277,65.498091575251266,1445,265.45432752170382,449,97.984692682071525,null,null,null,null,null,null,null,null,null,null,null,null,null,null,330,63.482280992415511,78,33.136083051561783,1452,253.59613561724476,960,160.49299050114308,639,128.55349081219072,557,129.67266481413884,807,157.23867208800766,1034,181.09389829588406,2906,262.13355374694021,1864,257.27028588626399,685,144.33987668000827,4851,401.55946010522524,1013,169.94999264489539,1509,269.06504789734396,133,38.183766184073569,1389,228.34184898962346,2212,254.6644851564505]
[null,"45 to 54 yrs.",1627,299.71152797314954,4282,379.36262335659796,1026,164.89693750946378,1147,260.77960042917465,854,175.60751692339369,266,51.039200620699383,292,54.63515351859094,793,141.5132502630054,516,102.49878048055011,4665,348.87103634437756,465,82.734515167492219,1667,264.83013423702374,873,148.11819604626569,null,null,null,null,null,null,null,null,null,null,null,null,null,null,414,68.753181744556372,131,38.974350539810153,1322,190.84810714282708,764,154.463587942272,834,144.08677940741129,657,128.46400274006723,730,146.78555787270082,1500,232.25632391820895,3292,333.37816365203048,1820,247.78014448296699,1013,196.22945752358385,5289,423.48317558080157,1254,191.15961916681044,1256,257.17309346041628,142,28.0178514522438,1370,211.72859986312668,2167,238.62522917746983]
[null,"55 to 64 yrs.",1476,301.90892666497956,3464,344.13078909042707,938,167.20346886353764,1043,255.21951336055793,549,143.15725619052637,216,47.444704657105831,202,36.715119501371639,656,133.49531826996781,470,80.05623023850174,3890,344.18599622878327,320,59.916608715780967,1450,248.08063205337092,583,107.94443014810908,null,null,null,null,null,null,null,null,null,null,null,null,null,null,157,41.340053217188775,159,44.50842616853577,1031,198.38094666575216,445,115.26057435220423,560,107.25670142233538,596,138.30039768561767,523,119.00420160649792,998,192.97668252926312,2056,252.91105155765732,1443,242.30971916124207,905,185.68791021496256,3277,323.2723310151984,407,93.300589494386372,1265,256.59111442136884,139,41.928510586473259,991,195.94386951369518,2009,263.51470547200967]
[null,"65 to 74 yrs.",625,187.12829823412599,1911,258.26923936078799,560,129.98461447417537,408,133.87307421584072,411,152.32859219463691,123,41.484937025383083,138,38.561638969317684,247,70.851958335673402,184,54.166410255803363,2903,344.88983748437704,200,44.598206241955516,743,165.78902255577719,372,102.50365847129555,null,null,null,null,null,null,null,null,null,null,null,null,null,null,75,20.928449536456348,94,33.045423283716609,543,136.24243098242192,185,139.30900904105232,328,94.609724658726279,214,70.562029449272501,252,70.753091805234916,349,152.34500319997372,1277,209.12914670126688,601,143.80542409798039,405,129.38315191708693,2049,254.22234362856463,298,106,899,186.66011893278113,41,15.066519173319364,370,111.74972035759194,892,192.05467971387731]
[null,"Over 74 yrs. ",331,144.58561477546789,2175,274.35378619585333,498,111.54371340420759,396,179.91664736760742,242,145.95204691952765,55,24.657656011875904,42,22.693611435820433,374,108.80716888146662,169,52.411830725514633,1918,274.47586414838008,124,42.118879377305376,607,149.41218156495808,177,72.353299855638923,null,null,null,null,null,null,null,null,null,null,null,null,null,null,36,115.35163631262454,54,20.760539492026695,353,110.75197515168747,173,182.3567931281969,364,97.596106479715672,248,86.804377769787621,115,127.23993083933989,547,176.78518037437414,1543,223.98660674245681,316,98.427638394914254,524,137.08391590555036,1864,256.32791498391276,61,168.54079624826744,789,180.94197965093673,82,119.05040949110591,275,101.70054080485511,431,183.61917111238685]
[]
[]
[]
[]
[]
[]
[]
[]
[]
[]
[]
[]
[]
[]
[]
[]
[]
[]
[]
[]
[]
[]
[]
[]
[]
[]
[]
[]
[]
[]
[]
[]
[]
[]
[]
[]
[]
[]
[]
[]
[]
[]
[]
[]
[]
[]
[]
[]
[]
[]
[]
[]
[]
[]
[]
[]
[]
[]
[]
[]
[]
[]
[]
[]
[]
[]
[]
[]
[]
[]
[]
[]
[]
[]
[]
[]
[null,"Calculated B01001. GENDER BY AGE"]
[null,"Universe:  TOTAL POPULATION"]
[null,"Data Set: 2005-2009 American Community Survey 5-Year Estimates"]
[]
[null,null,"Barrington",null,"Dover",null,"Durham",null,"Farmington",null,"Lee",null,"Madbury",null,"Middleton",null,"Milton",null,"New Durham",null,"Rochester",null,"Rollinsford",null,"Somersworth",null,"Strafford"]
[null,null,"Esitimate","Margin Of Error","Esitimate","Margin Of Error","Esitimate","Margin Of Error","Esitimate","Margin Of Error","Esitimate","Margin Of Error","Esitimate","Margin Of Error","Esitimate","Margin Of Error","Esitimate","Margin Of Error","Esitimate","Margin Of Error","Esitimate","Margin Of Error","Esitimate","Margin Of Error","Esitimate","Margin Of Error","Esitimate","Margin Of Error",null,null,null,null,null,null,null,null,null,null,null,null,null,null,"Esitimate","Margin Of Error","Esitimate","Margin Of Error","Esitimate","Margin Of Error","Esitimate","Margin Of Error","Esitimate","Margin Of Error","Esitimate","Margin Of Error","Esitimate","Margin Of Error","Esitimate","Margin Of Error","Esitimate","Margin Of Error","Esitimate","Margin Of Error","Esitimate","Margin Of Error","Esitimate","Margin Of Error","Esitimate","Margin Of Error","Esitimate","Margin Of Error","Esitimate","Margin Of Error","Esitimate","Margin Of Error","Esitimate","Margin Of Error"]
[null,"Total",8389,19,28595,21,13991,26,6621,32,4446,14,1857,153,1630,157,4509,19,2516,18,30568,44,2629,37,11876,20,4029,28,null,null,null,null,null,null,null,null,null,null,null,null,null,null,1836,240,691,109,9401,30,4523,25,4542,22,4077,20,4471,16,7665,30,20557,24,10181,17,5177,23,29423,51,5822,18,8494,17,798,129,7214,17,13097,27]
[null,"Under 15 yrs.",2139,277.52837692747744,4753,443.66090654913467,1105,160.56462873248267,1217,248.59002393499222,718,163.40746616969494,451,95.44108130150245,281,60.712436946642157,893,210.68697159530296,455,102.53779790886871,5515,525.7527936207282,529,127.10232098588916,2240,318.54513024059872,900,198.31288409984865,null,null,null,null,null,null,null,null,null,null,null,null,null,null,494,81.301906496711382,57,31.496031496047245,1693,285.04561038542585,828,148.2700239428051,806,181.48829163337231,872,182.65815065307106,1065,209.01913787976449,1654,321.3627234139019,3103,379.76045081077098,1825,268.4809117982133,843,191.59331929897763,5616,474.16558289272746,1367,216.84787294322257,1384,277.45089655648979,126,35.735136770411273,1616,233.79905902291395,2804,324.07097987940853]
[null,"15 to 24 yrs.",845,249.63373169505758,5063,627.41214524425652,8702,756.9240384609277,1109,303.40237309553135,792,172.08137609863539,316,95.692214939356489,228,62.689712074629917,663,185.88975227268446,329,184.67268341582087,4563,551.60583753256276,226,181.65902124584949,1517,309.12618782626618,453,185.24848177515517,null,null,null,null,null,null,null,null,null,null,null,null,null,null,223,172.78888853164142,69,199.83493188129046,1367,253.25678668102856,702,204.87313147409057,470,169.29264603047588,463,167.10176540060851,389,184.03260580668851,1007,235.0957251844448,2532,428.31530441953623,1325,247.69537742961614,554,266.4169664266899,3727,438.85874720688889,853,186.23372412106247,599,237.49526311065659,45,255.62472493872733,683,157.89870170460554,1542,275.31436577120343]
[null,"25 to 34 yrs.",984,210.29978601986261,4125,393.04707097242181,417,106.41898326896381,667,170.61945961700852,477,148.45201244846766,130,42.30839160261236,185,49.416596402423345,468,126.10313239567049,275,70.278019323256402,3513,333.34816633663968,319,100.27462291128299,1739,258.52852840644107,391,102.61578825892242,null,null,null,null,null,null,null,null,null,null,null,null,null,null,107,41.581245772583578,49,22.693611435820433,1640,258.80108191427638,466,115.90944741478151,541,149.70971912337555,470,143.90621946253748,590,148.32059870429327,576,188.09572031282372,3848,398.70415096911142,987,179.89163404672269,248,98.168222964460341,2750,379.13717834050516,569,136.58330791132568,793,226.31615055050756,90,121.64292005702592,520,148.81532179181013,1040,183.82328470571949]
[null,"35 to 44 yrs.",1601,250.93226177596216,4402,432.99307153810207,659,110.19981851164728,879,167.87495346239118,544,118.23282116231516,320,81.203448202647152,229,50.259327492516249,789,168.18144963104581,368,77.032460690283031,4472,387.53580479744062,387,72.208032794142781,1986,280.24810436468613,611,147.13938969562162,null,null,null,null,null,null,null,null,null,null,null,null,null,null,330,63.482280992415511,78,33.136083051561783,1452,253.59613561724476,960,160.49299050114308,639,128.55349081219072,557,129.67266481413884,807,157.23867208800766,1034,181.09389829588406,2906,262.13355374694021,1864,257.27028588626399,685,144.33987668000827,4851,401.55946010522524,1013,169.94999264489539,1509,269.06504789734396,133,38.183766184073569,1389,228.34184898962346,2212,254.6644851564505]
[null,"45 to 54 yrs.",1381,198.76619430879086,3918,330.73403211644245,1401,186.31693428134759,1055,198.28514820833152,859,155.46703830716015,287,64.884512790033341,316,53.329166503893532,933,200.09247861926244,540,97.657564991146486,4572,343.71063410956606,480,98.645831133403703,1755,252.14479966876175,747,150.07997867803687,null,null,null,null,null,null,null,null,null,null,null,null,null,null,414,68.753181744556372,131,38.974350539810153,1322,190.84810714282708,764,154.463587942272,834,144.08677940741129,657,128.46400274006723,730,146.78555787270082,1500,232.25632391820895,3292,333.37816365203048,1820,247.78014448296699,1013,196.22945752358385,5289,423.48317558080157,1254,191.15961916681044,1256,257.17309346041628,142,28.0178514522438,1370,211.72859986312668,2167,238.62522917746983]
[null,"55 to 64 yrs.",894,201.88610650562362,2819,295.25920815446216,777,146.44452874723589,598,155.33834040570923,616,163.53592877407704,220,47.127486671792717,208,45.133136385587029,351,105.28057750601485,281,78.708322304569549,3675,343.75281817026604,281,62.952362942148568,1127,232.83255786079403,570,147.220922426128,null,null,null,null,null,null,null,null,null,null,null,null,null,null,157,41.340053217188775,159,44.50842616853577,1031,198.38094666575216,445,115.26057435220423,560,107.25670142233538,596,138.30039768561767,523,119.00420160649792,998,192.97668252926312,2056,252.91105155765732,1443,242.30971916124207,905,185.68791021496256,3277,323.2723310151984,407,93.300589494386372,1265,256.59111442136884,139,41.928510586473259,991,195.94386951369518,2009,263.51470547200967]
[null,"65 to 74 yrs.",358,109.80437149767764,1697,230.09780529157595,445,100.30453628824571,382,125.37942414925983,246,91.290744328217627,89,26.944387170614959,127,32.496153618543843,221,109.01376059929315,133,54.027770636960398,2283,252.39255139563846,260,69.656299069071991,745,162.34531098864542,246,95.619035761714315,null,null,null,null,null,null,null,null,null,null,null,null,null,null,75,20.928449536456348,94,33.045423283716609,543,136.24243098242192,185,139.30900904105232,328,94.609724658726279,214,70.562029449272501,252,70.753091805234916,349,152.34500319997372,1277,209.12914670126688,601,143.80542409798039,405,129.38315191708693,2049,254.22234362856463,298,106,899,186.66011893278113,41,15.066519173319364,370,111.74972035759194,892,192.05467971387731]
[null,"Over 74 yrs. ",187,145.5403724057349,1818,265.90035727693186,485,117.10251918724892,714,249.86396298786266,194,141,44,19.026297590440446,56,20.248456731316587,191,145.56785359412291,135,51.623637996561229,1975,313.73237002260385,147,172.30786401090347,767,203.66639388961548,111,56.267219586540797,null,null,null,null,null,null,null,null,null,null,null,null,null,null,36,115.35163631262454,54,20.760539492026695,353,110.75197515168747,173,182.3567931281969,364,97.596106479715672,248,86.804377769787621,115,127.23993083933989,547,176.78518037437414,1543,223.98660674245681,316,98.427638394914254,524,137.08391590555036,1864,256.32791498391276,61,168.54079624826744,789,180.94197965093673,82,119.05040949110591,275,101.70054080485511,431,183.61917111238685]
[]
[]
[]
[]
[]
[]
[]
[]
[]
[]
[]
[]
[]
[]
[]
[]
[]
[]
[]
[]
[]
[]
[]
[]
[]
[]
[]
[]
[]
[]
[null,"Calculated B01001. GENDER BY AGE"]
[null,"Universe:  TOTAL POPULATION"]
[null,"Data Set: 2005-2009 American Community Survey 5-Year Estimates"]
[]
[null,null,"Barrington",null,"Dover",null,"Durham",null,"Farmington",null,"Lee",null,"Madbury",null,"Middleton",null,"Milton",null,"New Durham",null,"Rochester",null,"Rollinsford",null,"Somersworth",null,"Strafford"]
[null,null,"Estimate","Margin Of Error","Estimate","Margin Of Error","Estimate","Margin Of Error","Estimate","Margin Of Error","Estimate","Margin Of Error","Estimate","Margin Of Error","Estimate","Margin Of Error","Estimate","Margin Of Error","Estimate","Margin Of Error","Estimate","Margin Of Error","Estimate","Margin Of Error","Estimate","Margin Of Error","Estimate","Margin Of Error",null,null,null,null,null,null,null,null,null,null,null,null,null,null,"Estimate","Margin Of Error","Estimate","Margin Of Error","Estimate","Margin Of Error","Estimate","Margin Of Error","Estimate","Margin Of Error","Estimate","Margin Of Error","Estimate","Margin Of Error","Estimate","Margin Of Error","Estimate","Margin Of Error","Estimate","Margin Of Error","Estimate","Margin Of Error","Estimate","Margin Of Error","Estimate","Margin Of Error","Estimate","Margin Of Error","Estimate","Margin Of Error","Estimate","Margin Of Error","Estimate","Margin Of Error"]
[null,"Total",8389,19,28595,21,13991,26,6621,32,4446,14,1857,153,1630,157,4509,19,2516,18,30568,44,2629,37,11876,20,4029,28,null,null,null,null,null,null,null,null,null,null,null,null,null,null,1836,240,691,109,9401,30,4523,25,4542,22,4077,20,4471,16,7665,30,20557,24,10181,17,5177,23,29423,51,5822,18,8494,17,798,129,7214,17,13097,27]
[null,"Under 15 yrs.",2139,277.52837692747744,4753,443.66090654913467,1105,160.56462873248267,1217,248.59002393499222,718,163.40746616969494,451,95.44108130150245,281,60.712436946642157,893,210.68697159530296,455,102.53779790886871,5515,525.7527936207282,529,127.10232098588916,2240,318.54513024059872,900,198.31288409984865,null,null,null,null,null,null,null,null,null,null,null,null,null,null,494,81.301906496711382,57,31.496031496047245,1693,285.04561038542585,828,148.2700239428051,806,181.48829163337231,872,182.65815065307106,1065,209.01913787976449,1654,321.3627234139019,3103,379.76045081077098,1825,268.4809117982133,843,191.59331929897763,5616,474.16558289272746,1367,216.84787294322257,1384,277.45089655648979,126,35.735136770411273,1616,233.79905902291395,2804,324.07097987940853]
[null,"15 to 24 yrs.",845,249.63373169505758,5063,627.41214524425652,8702,756.9240384609277,1109,303.40237309553135,792,172.08137609863539,316,95.692214939356489,228,62.689712074629917,663,185.88975227268446,329,184.67268341582087,4563,551.60583753256276,226,181.65902124584949,1517,309.12618782626618,453,185.24848177515517,null,null,null,null,null,null,null,null,null,null,null,null,null,null,223,172.78888853164142,69,199.83493188129046,1367,253.25678668102856,702,204.87313147409057,470,169.29264603047588,463,167.10176540060851,389,184.03260580668851,1007,235.0957251844448,2532,428.31530441953623,1325,247.69537742961614,554,266.4169664266899,3727,438.85874720688889,853,186.23372412106247,599,237.49526311065659,45,255.62472493872733,683,157.89870170460554,1542,275.31436577120343]
[null,"25 to 34 yrs.",984,210.29978601986261,4125,393.04707097242181,417,106.41898326896381,667,170.61945961700852,477,148.45201244846766,130,42.30839160261236,185,49.416596402423345,468,126.10313239567049,275,70.278019323256402,3513,333.34816633663968,319,100.27462291128299,1739,258.52852840644107,391,102.61578825892242,null,null,null,null,null,null,null,null,null,null,null,null,null,null,107,41.581245772583578,49,22.693611435820433,1640,258.80108191427638,466,115.90944741478151,541,149.70971912337555,470,143.90621946253748,590,148.32059870429327,576,188.09572031282372,3848,398.70415096911142,987,179.89163404672269,248,98.168222964460341,2750,379.13717834050516,569,136.58330791132568,793,226.31615055050756,90,121.64292005702592,520,148.81532179181013,1040,183.82328470571949]
[null,"35 to 44 yrs.",1601,250.93226177596216,4402,432.99307153810207,659,110.19981851164728,879,167.87495346239118,544,118.23282116231516,320,81.203448202647152,229,50.259327492516249,789,168.18144963104581,368,77.032460690283031,4472,387.53580479744062,387,72.208032794142781,1986,280.24810436468613,611,147.13938969562162,null,null,null,null,null,null,null,null,null,null,null,null,null,null,330,63.482280992415511,78,33.136083051561783,1452,253.59613561724476,960,160.49299050114308,639,128.55349081219072,557,129.67266481413884,807,157.23867208800766,1034,181.09389829588406,2906,262.13355374694021,1864,257.27028588626399,685,144.33987668000827,4851,401.55946010522524,1013,169.94999264489539,1509,269.06504789734396,133,38.183766184073569,1389,228.34184898962346,2212,254.6644851564505]
[null,"45 to 54 yrs.",1381,198.76619430879086,3918,330.73403211644245,1401,186.31693428134759,1055,198.28514820833152,859,155.46703830716015,287,64.884512790033341,316,53.329166503893532,933,200.09247861926244,540,97.657564991146486,4572,343.71063410956606,480,98.645831133403703,1755,252.14479966876175,747,150.07997867803687,null,null,null,null,null,null,null,null,null,null,null,null,null,null,414,68.753181744556372,131,38.974350539810153,1322,190.84810714282708,764,154.463587942272,834,144.08677940741129,657,128.46400274006723,730,146.78555787270082,1500,232.25632391820895,3292,333.37816365203048,1820,247.78014448296699,1013,196.22945752358385,5289,423.48317558080157,1254,191.15961916681044,1256,257.17309346041628,142,28.0178514522438,1370,211.72859986312668,2167,238.62522917746983]
[null,"55 to 64 yrs.",894,201.88610650562362,2819,295.25920815446216,777,146.44452874723589,598,155.33834040570923,616,163.53592877407704,220,47.127486671792717,208,45.133136385587029,351,105.28057750601485,281,78.708322304569549,3675,343.75281817026604,281,62.952362942148568,1127,232.83255786079403,570,147.220922426128,null,null,null,null,null,null,null,null,null,null,null,null,null,null,157,41.340053217188775,159,44.50842616853577,1031,198.38094666575216,445,115.26057435220423,560,107.25670142233538,596,138.30039768561767,523,119.00420160649792,998,192.97668252926312,2056,252.91105155765732,1443,242.30971916124207,905,185.68791021496256,3277,323.2723310151984,407,93.300589494386372,1265,256.59111442136884,139,41.928510586473259,991,195.94386951369518,2009,263.51470547200967]
[null,"65 to 74 yrs.",358,109.80437149767764,1697,230.09780529157595,445,100.30453628824571,382,125.37942414925983,246,91.290744328217627,89,26.944387170614959,127,32.496153618543843,221,109.01376059929315,133,54.027770636960398,2283,252.39255139563846,260,69.656299069071991,745,162.34531098864542,246,95.619035761714315,null,null,null,null,null,null,null,null,null,null,null,null,null,null,75,20.928449536456348,94,33.045423283716609,543,136.24243098242192,185,139.30900904105232,328,94.609724658726279,214,70.562029449272501,252,70.753091805234916,349,152.34500319997372,1277,209.12914670126688,601,143.80542409798039,405,129.38315191708693,2049,254.22234362856463,298,106,899,186.66011893278113,41,15.066519173319364,370,111.74972035759194,892,192.05467971387731]
[null,"Over 74 yrs. ",187,145.5403724057349,1818,265.90035727693186,485,117.10251918724892,714,249.86396298786266,194,141,44,19.026297590440446,56,20.248456731316587,191,145.56785359412291,135,51.623637996561229,1975,313.73237002260385,147,172.30786401090347,767,203.66639388961548,111,56.267219586540797,null,null,null,null,null,null,null,null,null,null,null,null,null,null,36,115.35163631262454,54,20.760539492026695,353,110.75197515168747,173,182.3567931281969,364,97.596106479715672,248,86.804377769787621,115,127.23993083933989,547,176.78518037437414,1543,223.98660674245681,316,98.427638394914254,524,137.08391590555036,1864,256.32791498391276,61,168.54079624826744,789,180.94197965093673,82,119.05040949110591,275,101.70054080485511,431,183.61917111238685]

{"sheet":"ACS_Table_B01002","index":17,"n_rows":49,"n_cols":28,"rows_kept":49,"cut":false,"hidden":true,"merged":[[64938,72,64938,73],[64938,74,64938,75],[64938,64,64938,65],[64938,66,64938,67],[64938,68,64938,69],[64938,70,64938,71],[64938,52,64938,53],[64938,54,64938,55],[64938,56,64938,57],[64938,58,64938,59],[64938,60,64938,61],[64938,62,64938,63],[64938,40,64938,41],[64938,42,64938,43],[64938,44,64938,45],[64938,46,64938,47],[64938,48,64938,49],[64938,50,64938,51],[64918,72,64918,73],[64918,74,64918,75],[64938,24,64938,25],[64938,26,64938,27],[64938,28,64938,29],[64938,30,64938,31],[64938,32,64938,33],[64938,34,64938,35],[64938,36,64938,37],[64938,38,64938,39],[64918,60,64918,61],[64918,62,64918,63],[64918,64,64918,65],[64918,66,64918,67],[64918,68,64918,69],[64918,70,64918,71],[64918,48,64918,49],[64918,50,64918,51],[64918,52,64918,53],[64918,54,64918,55],[64918,56,64918,57],[64918,58,64918,59],[64918,36,64918,37],[64918,38,64918,39],[64918,40,64918,41],[64918,42,64918,43],[64918,44,64918,45],[64918,46,64918,47],[64918,24,64918,25],[64918,26,64918,27],[64918,28,64918,29],[64918,30,64918,31],[64918,32,64918,33],[64918,34,64918,35],[64856,64,64856,65],[64856,66,64856,67],[64856,68,64856,69],[64856,70,64856,71],[64856,72,64856,73],[64856,74,64856,75],[64856,52,64856,53],[64856,54,64856,55],[64856,56,64856,57],[64856,58,64856,59],[64856,60,64856,61],[64856,62,64856,63],[64856,40,64856,41],[64856,42,64856,43],[64856,44,64856,45],[64856,46,64856,47],[64856,48,64856,49],[64856,50,64856,51],[64836,72,64836,73],[64836,74,64836,75],[64856,24,64856,25],[64856,26,64856,27],[64856,28,64856,29],[64856,30,64856,31],[64856,32,64856,33],[64856,34,64856,35],[64856,36,64856,37],[64856,38,64856,39],[64836,60,64836,61],[64836,62,64836,63],[64836,64,64836,65],[64836,66,64836,67],[64836,68,64836,69],[64836,70,64836,71],[64836,48,64836,49],[64836,50,64836,51],[64836,52,64836,53],[64836,54,64836,55],[64836,56,64836,57],[64836,58,64836,59],[64836,36,64836,37],[64836,38,64836,39],[64836,40,64836,41],[64836,42,64836,43],[64836,44,64836,45],[64836,46,64836,47],[64836,24,64836,25],[64836,26,64836,27],[64836,28,64836,29],[64836,30,64836,31],[64836,32,64836,33],[64836,34,64836,35],[64774,64,64774,65],[64774,66,64774,67],[64774,68,64774,69],[64774,70,64774,71],[64774,72,64774,73],[64774,74,64774,75],[64774,52,64774,53],[64774,54,64774,55],[64774,56,64774,57],[64774,58,64774,59],[64774,60,64774,61],[64774,62,64774,63],[64774,40,64774,41],[64774,42,64774,43],[64774,44,64774,45],[64774,46,64774,47],[64774,48,64774,49],[64774,50,64774,51],[64754,72,64754,73],[64754,74,64754,75],[64774,24,64774,25],[64774,26,64774,27],[64774,28,64774,29],[64774,30,64774,31],[64774,32,64774,33],[64774,34,64774,35],[64774,36,64774,37],[64774,38,64774,39],[64754,60,64754,61],[64754,62,64754,63],[64754,64,64754,65],[64754,66,64754,67],[64754,68,64754,69],[64754,70,64754,71],[64754,48,64754,49],[64754,50,64754,51],[64754,52,64754,53],[64754,54,64754,55],[64754,56,64754,57],[64754,58,64754,59],[64754,36,64754,37],[64754,38,64754,39],[64754,40,64754,41],[64754,42,64754,43],[64754,44,64754,45],[64754,46,64754,47],[64754,24,64754,25],[64754,26,64754,27],[64754,28,64754,29],[64754,30,64754,31],[64754,32,64754,33],[64754,34,64754,35],[64692,64,64692,65],[64692,66,64692,67],[64692,68,64692,69],[64692,70,64692,71],[64692,72,64692,73],[64692,74,64692,75],[64692,52,64692,53],[64692,54,64692,55],[64692,56,64692,57],[64692,58,64692,59],[64692,60,64692,61],[64692,62,64692,63],[64692,40,64692,41],[64692,42,64692,43],[64692,44,64692,45],[64692,46,64692,47],[64692,48,64692,49],[64692,50,64692,51],[64672,72,64672,73],[64672,74,64672,75],[64692,24,64692,25],[64692,26,64692,27],[64692,28,64692,29],[64692,30,64692,31],[64692,32,64692,33],[64692,34,64692,35],[64692,36,64692,37],[64692,38,64692,39],[64672,60,64672,61],[64672,62,64672,63],[64672,64,64672,65],[64672,66,64672,67],[64672,68,64672,69],[64672,70,64672,71],[64672,48,64672,49],[64672,50,64672,51],[64672,52,64672,53],[64672,54,64672,55],[64672,56,64672,57],[64672,58,64672,59],[64672,36,64672,37],[64672,38,64672,39],[64672,40,64672,41],[64672,42,64672,43],[64672,44,64672,45],[64672,46,64672,47],[64672,24,64672,25],[64672,26,64672,27],[64672,28,64672,29],[64672,30,64672,31],[64672,32,64672,33],[64672,34,64672,35],[64610,64,64610,65],[64610,66,64610,67],[64610,68,64610,69],[64610,70,64610,71],[64610,72,64610,73],[64610,74,64610,75],[64610,52,64610,53],[64610,54,64610,55],[64610,56,64610,57],[64610,58,64610,59],[64610,60,64610,61],[64610,62,64610,63],[64610,40,64610,41],[64610,42,64610,43],[64610,44,64610,45],[64610,46,64610,47],[64610,48,64610,49],[64610,50,64610,51],[64590,72,64590,73],[64590,74,64590,75],[64610,24,64610,25],[64610,26,64610,27],[64610,28,64610,29],[64610,30,64610,31],[64610,32,64610,33],[64610,34,64610,35],[64610,36,64610,37],[64610,38,64610,39],[64590,60,64590,61],[64590,62,64590,63],[64590,64,64590,65],[64590,66,64590,67],[64590,68,64590,69],[64590,70,64590,71],[64590,48,64590,49],[64590,50,64590,51],[64590,52,64590,53],[64590,54,64590,55],[64590,56,64590,57],[64590,58,64590,59],[64590,36,64590,37],[64590,38,64590,39],[64590,40,64590,41],[64590,42,64590,43],[64590,44,64590,45],[64590,46,64590,47],[64590,24,64590,25],[64590,26,64590,27],[64590,28,64590,29],[64590,30,64590,31],[64590,32,64590,33],[64590,34,64590,35],[64528,64,64528,65],[64528,66,64528,67],[64528,68,64528,69],[64528,70,64528,71],[64528,72,64528,73],[64528,74,64528,75],[64528,52,64528,53],[64528,54,64528,55],[64528,56,64528,57],[64528,58,64528,59],[64528,60,64528,61],[64528,62,64528,63],[64528,40,64528,41],[64528,42,64528,43],[64528,44,64528,45],[64528,46,64528,47],[64528,48,64528,49],[64528,50,64528,51],[64508,72,64508,73],[64508,74,64508,75],[64528,24,64528,25],[64528,26,64528,27],[64528,28,64528,29],[64528,30,64528,31],[64528,32,64528,33],[64528,34,64528,35],[64528,36,64528,37],[64528,38,64528,39],[64508,60,64508,61],[64508,62,64508,63],[64508,64,64508,65],[64508,66,64508,67],[64508,68,64508,69],[64508,70,64508,71],[64508,48,64508,49],[64508,50,64508,51],[64508,52,64508,53],[64508,54,64508,55],[64508,56,64508,57],[64508,58,64508,59],[64508,36,64508,37],[64508,38,64508,39],[64508,40,64508,41],[64508,42,64508,43],[64508,44,64508,45],[64508,46,64508,47],[64508,24,64508,25],[64508,26,64508,27],[64508,28,64508,29],[64508,30,64508,31],[64508,32,64508,33],[64508,34,64508,35],[64446,64,64446,65],[64446,66,64446,67],[64446,68,64446,69],[64446,70,64446,71],[64446,72,64446,73],[64446,74,64446,75],[64446,52,64446,53],[64446,54,64446,55],[64446,56,64446,57],[64446,58,64446,59],[64446,60,64446,61],[64446,62,64446,63],[64446,40,64446,41],[64446,42,64446,43],[64446,44,64446,45],[64446,46,64446,47],[64446,48,64446,49],[64446,50,64446,51],[64426,72,64426,73],[64426,74,64426,75],[64446,24,64446,25],[64446,26,64446,27],[64446,28,64446,29],[64446,30,64446,31],[64446,32,64446,33],[64446,34,64446,35],[64446,36,64446,37],[64446,38,64446,39],[64426,60,64426,61],[64426,62,64426,63],[64426,64,64426,65],[64426,66,64426,67],[64426,68,64426,69],[64426,70,64426,71],[64426,48,64426,49],[64426,50,64426,51],[64426,52,64426,53],[64426,54,64426,55],[64426,56,64426,57],[64426,58,64426,59],[64426,36,64426,37],[64426,38,64426,39],[64426,40,64426,41],[64426,42,64426,43],[64426,44,64426,45],[64426,46,64426,47],[64426,24,64426,25],[64426,26,64426,27],[64426,28,64426,29],[64426,30,64426,31],[64426,32,64426,33],[64426,34,64426,35],[64364,64,64364,65],[64364,66,64364,67],[64364,68,64364,69],[64364,70,64364,71],[64364,72,64364,73],[64364,74,64364,75],[64364,52,64364,53],[64364,54,64364,55],[64364,56,64364,57],[64364,58,64364,59],[64364,60,64364,61],[64364,62,64364,63],[64364,40,64364,41],[64364,42,64364,43],[64364,44,64364,45],[64364,46,64364,47],[64364,48,64364,49],[64364,50,64364,51],[64344,72,64344,73],[64344,74,64344,75],[64364,24,64364,25],[64364,26,64364,27],[64364,28,64364,29],[64364,30,64364,31],[64364,32,64364,33],[64364,34,64364,35],[64364,36,64364,37],[64364,38,64364,39],[64344,60,64344,61],[64344,62,64344,63],[64344,64,64344,65],[64344,66,64344,67],[64344,68,64344,69],[64344,70,64344,71],[64344,48,64344,49],[64344,50,64344,51],[64344,52,64344,53],[64344,54,64344,55],[64344,56,64344,57],[64344,58,64344,59],[64344,36,64344,37],[64344,38,64344,39],[64344,40,64344,41],[64344,42,64344,43],[64344,44,64344,45],[64344,46,64344,47],[64344,24,64344,25],[64344,26,64344,27],[64344,28,64344,29],[64344,30,64344,31],[64344,32,64344,33],[64344,34,64344,35],[64282,64,64282,65],[64282,66,64282,67],[64282,68,64282,69],[64282,70,64282,71],[64282,72,64282,73],[64282,74,64282,75],[64282,52,64282,53],[64282,54,64282,55],[64282,56,64282,57],[64282,58,64282,59],[64282,60,64282,61],[64282,62,64282,63],[64282,40,64282,41],[64282,42,64282,43],[64282,44,64282,45],[64282,46,64282,47],[64282,48,64282,49],[64282,50,64282,51],[64262,72,64262,73],[64262,74,64262,75],[64282,24,64282,25],[64282,26,64282,27],[64282,28,64282,29],[64282,30,64282,31],[64282,32,64282,33],[64282,34,64282,35],[64282,36,64282,37],[64282,38,64282,39],[64262,60,64262,61],[64262,62,64262,63],[64262,64,64262,65],[64262,66,64262,67],[64262,68,64262,69],[64262,70,64262,71],[64262,48,64262,49],[64262,50,64262,51],[64262,52,64262,53],[64262,54,64262,55],[64262,56,64262,57],[64262,58,64262,59],[64262,36,64262,37],[64262,38,64262,39],[64262,40,64262,41],[64262,42,64262,43],[64262,44,64262,45],[64262,46,64262,47],[64262,24,64262,25],[64262,26,64262,27],[64262,28,64262,29],[64262,30,64262,31],[64262,32,64262,33],[64262,34,64262,35],[64200,64,64200,65],[64200,66,64200,67],[64200,68,64200,69],[64200,70,64200,71],[64200,72,64200,73],[64200,74,64200,75],[64200,52,64200,53],[64200,54,64200,55],[64200,56,64200,57],[64200,58,64200,59],[64200,60,64200,61],[64200,62,64200,63],[64200,40,64200,41],[64200,42,64200,43],[64200,44,64200,45],[64200,46,64200,47],[64200,48,64200,49],[64200,50,64200,51],[64180,72,64180,73],[64180,74,64180,75],[64200,24,64200,25],[64200,26,64200,27],[64200,28,64200,29],[64200,30,64200,31],[64200,32,64200,33],[64200,34,64200,35],[64200,36,64200,37],[64200,38,64200,39],[64180,60,64180,61],[64180,62,64180,63],[64180,64,64180,65],[64180,66,64180,67],[64180,68,64180,69],[64180,70,64180,71],[64180,48,64180,49],[64180,50,64180,51],[64180,52,64180,53],[64180,54,64180,55],[64180,56,64180,57],[64180,58,64180,59],[64180,36,64180,37],[64180,38,64180,39],[64180,40,64180,41],[64180,42,64180,43],[64180,44,64180,45],[64180,46,64180,47],[64180,24,64180,25],[64180,26,64180,27],[64180,28,64180,29],[64180,30,64180,31],[64180,32,64180,33],[64180,34,64180,35],[64118,64,64118,65],[64118,66,64118,67],[64118,68,64118,69],[64118,70,64118,71],[64118,72,64118,73],[64118,74,64118,75],[64118,52,64118,53],[64118,54,64118,55],[64118,56,64118,57],[64118,58,64118,59],[64118,60,64118,61],[64118,62,64118,63],[64118,40,64118,41],[64118,42,64118,43],[64118,44,64118,45],[64118,46,64118,47],[64118,48,64118,49],[64118,50,64118,51],[64098,72,64098,73],[64098,74,64098,75],[64118,24,64118,25],[64118,26,64118,27],[64118,28,64118,29],[64118,30,64118,31],[64118,32,64118,33],[64118,34,64118,35],[64118,36,64118,37],[64118,38,64118,39],[64098,60,64098,61],[64098,62,64098,63],[64098,64,64098,65],[64098,66,64098,67],[64098,68,64098,69],[64098,70,64098,71],[64098,48,64098,49],[64098,50,64098,51],[64098,52,64098,53],[64098,54,64098,55],[64098,56,64098,57],[64098,58,64098,59],[64098,36,64098,37],[64098,38,64098,39],[64098,40,64098,41],[64098,42,64098,43],[64098,44,64098,45],[64098,46,64098,47],[64098,24,64098,25],[64098,26,64098,27],[64098,28,64098,29],[64098,30,64098,31],[64098,32,64098,33],[64098,34,64098,35],[64036,64,64036,65],[64036,66,64036,67],[64036,68,64036,69],[64036,70,64036,71],[64036,72,64036,73],[64036,74,64036,75],[64036,52,64036,53],[64036,54,64036,55],[64036,56,64036,57],[64036,58,64036,59],[64036,60,64036,61],[64036,62,64036,63],[64036,40,64036,41],[64036,42,64036,43],[64036,44,64036,45],[64036,46,64036,47],[64036,48,64036,49],[64036,50,64036,51],[64016,72,64016,73],[64016,74,64016,75],[64036,24,64036,25],[64036,26,64036,27],[64036,28,64036,29],[64036,30,64036,31],[64036,32,64036,33],[64036,34,64036,35],[64036,36,64036,37],[64036,38,64036,39],[64016,60,64016,61],[64016,62,64016,63],[64016,64,64016,65],[64016,66,64016,67],[64016,68,64016,69],[64016,70,64016,71],[64016,48,64016,49],[64016,50,64016,51],[64016,52,64016,53],[64016,54,64016,55],[64016,56,64016,57],[64016,58,64016,59],[64016,36,64016,37],[64016,38,64016,39],[64016,40,64016,41],[64016,42,64016,43],[64016,44,64016,45],[64016,46,64016,47],[64016,24,64016,25],[64016,26,64016,27],[64016,28,64016,29],[64016,30,64016,31],[64016,32,64016,33],[64016,34,64016,35],[63954,64,63954,65],[63954,66,63954,67],[63954,68,63954,69],[63954,70,63954,71],[63954,72,63954,73],[63954,74,63954,75],[63954,52,63954,53],[63954,54,63954,55],[63954,56,63954,57],[63954,58,63954,59],[63954,60,63954,61],[63954,62,63954,63],[63954,40,63954,41],[63954,42,63954,43],[63954,44,63954,45],[63954,46,63954,47],[63954,48,63954,49],[63954,50,63954,51],[63934,72,63934,73],[63934,74,63934,75],[63954,24,63954,25],[63954,26,63954,27],[63954,28,63954,29],[63954,30,63954,31],[63954,32,63954,33],[63954,34,63954,35],[63954,36,63954,37],[63954,38,63954,39],[63934,60,63934,61],[63934,62,63934,63],[63934,64,63934,65],[63934,66,63934,67],[63934,68,63934,69],[63934,70,63934,71],[63934,48,63934,49],[63934,50,63934,51],[63934,52,63934,53],[63934,54,63934,55],[63934,56,63934,57],[63934,58,63934,59],[63934,36,63934,37],[63934,38,63934,39],[63934,40,63934,41],[63934,42,63934,43],[63934,44,63934,45],[63934,46,63934,47],[63934,24,63934,25],[63934,26,63934,27],[63934,28,63934,29],[63934,30,63934,31],[63934,32,63934,33],[63934,34,63934,35],[63872,64,63872,65],[63872,66,63872,67],[63872,68,63872,69],[63872,70,63872,71],[63872,72,63872,73],[63872,74,63872,75],[63872,52,63872,53],[63872,54,63872,55],[63872,56,63872,57],[63872,58,63872,59],[63872,60,63872,61],[63872,62,63872,63],[63872,40,63872,41],[63872,42,63872,43],[63872,44,63872,45],[63872,46,63872,47],[63872,48,63872,49],[63872,50,63872,51],[63852,72,63852,73],[63852,74,63852,75],[63872,24,63872,25],[63872,26,63872,27],[63872,28,63872,29],[63872,30,63872,31],[63872,32,63872,33],[63872,34,63872,35],[63872,36,63872,37],[63872,38,63872,39],[63852,60,63852,61],[63852,62,63852,63],[63852,64,63852,65],[63852,66,63852,67],[63852,68,63852,69],[63852,70,63852,71],[63852,48,63852,49],[63852,50,63852,51],[63852,52,63852,53],[63852,54,63852,55],[63852,56,63852,57],[63852,58,63852,59],[63852,36,63852,37],[63852,38,63852,39],[63852,40,63852,41],[63852,42,63852,43],[63852,44,63852,45],[63852,46,63852,47],[63852,24,63852,25],[63852,26,63852,27],[63852,28,63852,29],[63852,30,63852,31],[63852,32,63852,33],[63852,34,63852,35],[63790,64,63790,65],[63790,66,63790,67],[63790,68,63790,69],[63790,70,63790,71],[63790,72,63790,73],[63790,74,63790,75],[63790,52,63790,53],[63790,54,63790,55],[63790,56,63790,57],[63790,58,63790,59],[63790,60,63790,61],[63790,62,63790,63],[63790,40,63790,41],[63790,42,63790,43],[63790,44,63790,45],[63790,46,63790,47],[63790,48,63790,49],[63790,50,63790,51],[63770,72,63770,73],[63770,74,63770,75],[63790,24,63790,25],[63790,26,63790,27],[63790,28,63790,29],[63790,30,63790,31],[63790,32,63790,33],[63790,34,63790,35],[63790,36,63790,37],[63790,38,63790,39],[63770,60,63770,61],[63770,62,63770,63],[63770,64,63770,65],[63770,66,63770,67],[63770,68,63770,69],[63770,70,63770,71],[63770,48,63770,49],[63770,50,63770,51],[63770,52,63770,53],[63770,54,63770,55],[63770,56,63770,57],[63770,58,63770,59],[63770,36,63770,37],[63770,38,63770,39],[63770,40,63770,41],[63770,42,63770,43],[63770,44,63770,45],[63770,46,63770,47],[63770,24,63770,25],[63770,26,63770,27],[63770,28,63770,29],[63770,30,63770,31],[63770,32,63770,33],[63770,34,63770,35],[63708,64,63708,65],[63708,66,63708,67],[63708,68,63708,69],[63708,70,63708,71],[63708,72,63708,73],[63708,74,63708,75],[63708,52,63708,53],[63708,54,63708,55],[63708,56,63708,57],[63708,58,63708,59],[63708,60,63708,61],[63708,62,63708,63],[63708,40,63708,41],[63708,42,63708,43],[63708,44,63708,45],[63708,46,63708,47],[63708,48,63708,49],[63708,50,63708,51],[63688,72,63688,73],[63688,74,63688,75],[63708,24,63708,25],[63708,26,63708,27],[63708,28,63708,29],[63708,30,63708,31],[63708,32,63708,33],[63708,34,63708,35],[63708,36,63708,37],[63708,38,63708,39],[63688,60,63688,61],[63688,62,63688,63],[63688,64,63688,65],[63688,66,63688,67],[63688,68,63688,69],[63688,70,63688,71],[63688,48,63688,49],[63688,50,63688,51],[63688,52,63688,53],[63688,54,63688,55],[63688,56,63688,57],[63688,58,63688,59],[63688,36,63688,37],[63688,38,63688,39],[63688,40,63688,41],[63688,42,63688,43],[63688,44,63688,45],[63688,46,63688,47],[63688,24,63688,25],[63688,26,63688,27],[63688,28,63688,29],[63688,30,63688,31],[63688,32,63688,33],[63688,34,63688,35],[63626,64,63626,65],[63626,66,63626,67],[63626,68,63626,69],[63626,70,63626,71],[63626,72,63626,73],[63626,74,63626,75],[63626,52,63626,53],[63626,54,63626,55],[63626,56,63626,57],[63626,58,63626,59],[63626,60,63626,61],[63626,62,63626,63],[63626,40,63626,41],[63626,42,63626,43],[63626,44,63626,45],[63626,46,63626,47],[63626,48,63626,49],[63626,50,63626,51],[63606,72,63606,73],[63606,74,63606,75],[63626,24,63626,25],[63626,26,63626,27],[63626,28,63626,29],[63626,30,63626,31],[63626,32,63626,33],[63626,34,63626,35],[63626,36,63626,37],[63626,38,63626,39],[63606,60,63606,61],[63606,62,63606,63],[63606,64,63606,65],[63606,66,63606,67],[63606,68,63606,69],[63606,70,63606,71],[63606,48,63606,49],[63606,50,63606,51],[63606,52,63606,53],[63606,54,63606,55],[63606,56,63606,57],[63606,58,63606,59],[63606,36,63606,37],[63606,38,63606,39],[63606,40,63606,41],[63606,42,63606,43],[63606,44,63606,45],[63606,46,63606,47],[63606,24,63606,25],[63606,26,63606,27],[63606,28,63606,29],[63606,30,63606,31],[63606,32,63606,33],[63606,34,63606,35],[63544,64,63544,65],[63544,66,63544,67],[63544,68,63544,69],[63544,70,63544,71],[63544,72,63544,73],[63544,74,63544,75],[63544,52,63544,53],[63544,54,63544,55],[63544,56,63544,57],[63544,58,63544,59],[63544,60,63544,61],[63544,62,63544,63],[63544,40,63544,41],[63544,42,63544,43],[63544,44,63544,45],[63544,46,63544,47],[63544,48,63544,49],[63544,50,63544,51],[63524,72,63524,73],[63524,74,63524,75],[63544,24,63544,25],[63544,26,63544,27],[63544,28,63544,29],[63544,30,63544,31],[63544,32,63544,33],[63544,34,63544,35],[63544,36,63544,37],[63544,38,63544,39],[63524,60,63524,61],[63524,62,63524,63],[63524,64,63524,65],[63524,66,63524,67],[63524,68,63524,69],[63524,70,63524,71],[63524,48,63524,49],[63524,50,63524,51],[63524,52,63524,53],[63524,54,63524,55],[63524,56,63524,57],[63524,58,63524,59],[63524,36,63524,37],[63524,38,63524,39],[63524,40,63524,41],[63524,42,63524,43],[63524,44,63524,45],[63524,46,63524,47],[63524,24,63524,25],[63524,26,63524,27],[63524,28,63524,29],[63524,30,63524,31],[63524,32,63524,33],[63524,34,63524,35],[63462,64,63462,65],[63462,66,63462,67],[63462,68,63462,69],[63462,70,63462,71],[63462,72,63462,73],[63462,74,63462,75],[63462,52,63462,53],[63462,54,63462,55],[63462,56,63462,57],[63462,58,63462,59],[63462,60,63462,61],[63462,62,63462,63],[63462,40,63462,41],[63462,42,63462,43],[63462,44,63462,45],[63462,46,63462,47],[63462,48,63462,49],[63462,50,63462,51],[63442,72,63442,73],[63442,74,63442,75],[63462,24,63462,25],[63462,26,63462,27],[63462,28,63462,29],[63462,30,63462,31],[63462,32,63462,33],[63462,34,63462,35],[63462,36,63462,37],[63462,38,63462,39],[63442,60,63442,61],[63442,62,63442,63],[63442,64,63442,65],[63442,66,63442,67],[63442,68,63442,69],[63442,70,63442,71],[63442,48,63442,49],[63442,50,63442,51],[63442,52,63442,53],[63442,54,63442,55],[63442,56,63442,57],[63442,58,63442,59],[63442,36,63442,37],[63442,38,63442,39],[63442,40,63442,41],[63442,42,63442,43],[63442,44,63442,45],[63442,46,63442,47],[63442,24,63442,25],[63442,26,63442,27],[63442,28,63442,29],[63442,30,63442,31],[63442,32,63442,33],[63442,34,63442,35],[63380,64,63380,65],[63380,66,63380,67],[63380,68,63380,69],[63380,70,63380,71],[63380,72,63380,73],[63380,74,63380,75],[63380,52,63380,53],[63380,54,63380,55],[63380,56,63380,57],[63380,58,63380,59],[63380,60,63380,61],[63380,62,63380,63]],"merged_total":58608,"flags":["merged_cut"]}
[null,"B01001. GENDER BY AGE"]
[null,"Universe:  TOTAL POPULATION, Median Age"]
[null,"Data Set: 2015-2019 American Community Survey 5-Year Estimates"]
[]
[null,null,"Barrington",null,"Dover",null,"Durham",null,"Farmington",null,"Lee",null,"Madbury",null,"Middleton",null,"Milton",null,"New Durham",null,"Rochester",null,"Rollinsford",null,"Somersworth",null,"Strafford"]
[null,null,"Estimate","Margin Of Error","Estimate","Margin Of Error","Estimate","Margin Of Error","Estimate","Margin Of Error","Estimate","Margin Of Error","Estimate","Margin Of Error","Estimate","Margin Of Error","Estimate","Margin Of Error","Estimate","Margin Of Error","Estimate","Margin Of Error","Estimate","Margin Of Error","Estimate","Margin Of Error","Estimate","Margin Of Error"]
[null,"Total:",39.6,3.4,36.1,1.7,20.8,0.1,44,4.0999999999999996,47.8,3.5,41.2,5.8,42.4,4.7,46.8,4.3,45.7,1.8,41.8,1.8,45.6,3.1,36.9,2.1,43.7,5.7]
[null,"Male:",38.200000000000003,3.6,37,1.9,21.2,0.3,43.5,5.7,48.2,4.5999999999999996,44.3,6.7,44.6,7.2,42.2,5,45.5,3.7,38.9,3.1,45,5.0999999999999996,34.700000000000003,3.1,43.2,6.9]
[null,"Female:",40.799999999999997,3.2,35.5,1.8,20.6,0.2,44.3,4.5999999999999996,47.4,7.2,38.700000000000003,5.0999999999999996,41.8,4.2,52.1,6.2,45.9,2.2000000000000002,45,1.9,45.8,3,39.299999999999997,4.2,45.4,6.7]
[]
[]
[]
[]
[]
[]
[]
[]
[]
[]
[]
[null,"B01001. GENDER BY AGE"]
[null,"Universe:  TOTAL POPULATION, Median Age"]
[null,"Data Set: 2010-2014 American Community Survey 5-Year Estimates"]
[]
[null,null,"Barrington",null,"Dover",null,"Durham",null,"Farmington",null,"Lee",null,"Madbury",null,"Middleton",null,"Milton",null,"New Durham",null,"Rochester",null,"Rollinsford",null,"Somersworth",null,"Strafford"]
[null,null,"Estimate","Margin Of Error","Estimate","Margin Of Error","Estimate","Margin Of Error","Estimate","Margin Of Error","Estimate","Margin Of Error","Estimate","Margin Of Error","Estimate","Margin Of Error","Estimate","Margin Of Error","Estimate","Margin Of Error","Estimate","Margin Of Error","Estimate","Margin Of Error","Estimate","Margin Of Error","Estimate","Margin Of Error"]
[null,"Total:",43.4,2.7,36.6,1.3,20.7,0.3,40.799999999999997,3.7,41.7,3.9,36,3.6,40.299999999999997,3.7,41.2,4.9000000000000004,45.6,3.2,41.5,1.2,38.700000000000003,4.3,35.200000000000003,2.7,45,2.1]
[null,"Male:",44.5,2.6,35.6,1.3,20.8,0.3,35.6,6.7,38.5,7.5,31.2,8.6,39.9,5.0999999999999996,39.299999999999997,4.5999999999999996,46.8,3,39.799999999999997,1.4,37.1,10.1,34.5,3.5,44.8,1.7]
[null,"Female:",41.7,3.6,38.200000000000003,2,20.7,0.3,43.9,5.4,42,6,37.6,2.7,40.700000000000003,4.5999999999999996,42,6.7,43.9,4.0999999999999996,43.1,1.9,41.3,4.2,36.5,4.0999999999999996,45.5,4]
[]
[]
[]
[]
[]
[]
[null,null,null,null,null,null,null,null,null,null,null,{"$f":"IF(F36=\"-\",\"\",IF(I36=\"-\",\"\",(I36-F36)/F36))","v":{"$error":"#DIV/0!"}}]
[]
[]
[]
[]
[null,"B01001. GENDER BY AGE"]
[null,"Universe:  TOTAL POPULATION, Median Age"]
[null,"Data Set: 2005-2009 American Community Survey 5-Year Estimates"]
[]
[null,null,"Barrington",null,"Dover",null,"Durham",null,"Farmington",null,"Lee",null,"Madbury",null,"Middleton",null,"Milton",null,"New Durham",null,"Rochester",null,"Rollinsford",null,"Somersworth",null,"Strafford"]
[null,null,"Estimate","Margin Of Error","Estimate","Margin Of Error","Estimate","Margin Of Error","Estimate","Margin Of Error","Estimate","Margin Of Error","Estimate","Margin Of Error","Estimate","Margin Of Error","Estimate","Margin Of Error","Estimate","Margin Of Error","Estimate","Margin Of Error","Estimate","Margin Of Error","Estimate","Margin Of Error","Estimate","Margin Of Error"]
[null,"Total:",37.1,2.4,36,1.3,20.8,0.3,40.4,6.4,39.799999999999997,3.8,36.5,4.4000000000000004,42.2,3.1,38.200000000000003,4.4000000000000004,40.700000000000003,3.3,38.799999999999997,1.3,42.1,3.6,37.6,1.2,39.1,3.2]
[null,"Male:",36.799999999999997,4.8,34.799999999999997,1.1000000000000001,21.1,0.6,36.5,8.6999999999999993,43.2,5.6,35.700000000000003,5.5,41,5.7,37.1,4.3,36.9,8,37.799999999999997,1.7,41.9,4,37,2.2000000000000002,37.9,4.0999999999999996]
[null,"Female:",37.200000000000003,2,37.200000000000003,1.3,20.6,0.3,42.8,5.0999999999999996,38.1,6.7,37.299999999999997,5.8,43.5,2.7,40,5.8,42.1,3.7,40.6,2.4,43.1,5.9,38.1,1.5,39.5,3.4]

{"sheet":"ACS_Tbl_B11001_B11002_B25010","index":18,"n_rows":202,"n_cols":28,"rows_kept":202,"cut":false,"hidden":true,"merged":[]}
[null,"B11001. HOUSEHOLD TYPE (INCLUDING LIVING ALONE)"]
[null,"Universe:  HOUSEHOLDS"]
[null,"Data Set: 2015-2019 American Community Survey 5-Year Estimates"]
[]
[null,null,"Barrington",null,"Dover",null,"Durham",null,"Farmington",null,"Lee",null,"Madbury",null,"Middleton",null,"Milton",null,"New Durham",null,"Rochester",null,"Rollinsford",null,"Somersworth",null,"Strafford"]
[null,null,"Estimate","Margin Of Error","Estimate","Margin Of Error","Estimate","Margin Of Error","Estimate","Margin Of Error","Estimate","Margin Of Error","Estimate","Margin Of Error","Estimate","Margin Of Error","Estimate","Margin Of Error","Estimate","Margin Of Error","Estimate","Margin Of Error","Estimate","Margin Of Error","Estimate","Margin Of Error","Estimate","Margin Of Error"]
[null,"Total:",3183,200,13489,308,3187,199,2868,200,1876,180,615,47,658,59,1811,105,953,64,12780,347,1040,61,5127,249,1395,85]
[null,"Family households:",2447,204,7429,322,1683,152,1798,222,1271,151,537,47,480,54,1366,102,749,53,8196,317,733,47,3318,208,1203,80]
[null,"Married-couple family",2044,209,5748,366,1480,147,1428,234,1065,154,459,49,405,55,1206,120,666,58,6184,323,604,55,2388,279,1053,116]
[null,"Other family:",403,153,1681,325,203,79,370,152,206,108,78,33,75,29,160,79,83,37,2012,328,129,48,930,260,150,82]
[null,"Male householder, no wife present",67,54,621,208,113,74,206,130,14,22,35,19,38,24,77,57,13,13,841,239,35,18,303,157,78,64]
[null,"Female householder, no husband present",336,140,1060,242,90,41,164,94,192,105,43,26,37,19,83,58,70,35,1171,258,94,45,627,209,72,50]
[null,"Nonfamily households:",736,242,6060,443,1504,156,1070,285,605,257,78,27,178,43,445,138,204,61,4584,426,307,74,1809,320,192,79]
[null,"Householder living alone",509,213,4224,405,749,135,768,232,518,229,51,21,126,40,372,125,165,62,3479,433,269,71,1463,272,111,64]
[null,"Householder not living alone",227,115,1836,274,755,123,302,151,87,101,27,15,52,23,73,40,39,29,1105,256,38,24,346,152,81,43]
[]
[]
[]
[]
[]
[]
[]
[]
[]
[]
[]
[]
[]
[]
[]
[]
[]
[null,"B11002. HOUSEHOLD TYPE BY RELATIVES AND NONRELATIVES FOR POPULATION IN HOUSEHOLDS "]
[null,"Universe:  POPULATION IN HOUSEHOLDS"]
[null,"Data Set: 2015-2019 American Community Survey 5-Year Estimates"]
[null,null,null,null,null,null,null,null,null,null,null,{"$f":"IF(F36=\"-\",\"\",IF(I36=\"-\",\"\",(I36-F36)/F36))","v":{"$error":"#DIV/0!"}}]
[null,null,"Barrington",null,"Dover",null,"Durham",null,"Farmington",null,"Lee",null,"Madbury",null,"Middleton",null,"Milton",null,"New Durham",null,"Rochester",null,"Rollinsford",null,"Somersworth",null,"Strafford"]
[null,null,"Estimate","Margin Of Error","Estimate","Margin Of Error","Estimate","Margin Of Error","Estimate","Margin Of Error","Estimate","Margin Of Error","Estimate","Margin Of Error","Estimate","Margin Of Error","Estimate","Margin Of Error","Estimate","Margin Of Error","Estimate","Margin Of Error","Estimate","Margin Of Error","Estimate","Margin Of Error","Estimate","Margin Of Error"]
[null,"Total:",9063,31,30655,253,8509,403,6930,17,4475,27,1901,157,1783,159,4615,34,2697,17,30799,90,2567,21,11912,30,4135,20]
[null,"In family households:",8040,324,22013,752,5076,435,5317,542,3789,312,1791,167,1549,168,4094,164,2421,105,24902,562,2202,93,9645,479,3849,116]
[null,"In married-couple family:",6645,647,16854,1119,4390,424,4222,674,3218,402,1577,192,1288,184,3643,256,2126,156,18461,1027,1857,124,6925,807,3273,283]
[null,"Relatives",6581,649,16675,1086,4380,421,4181,673,3172,396,1541,191,1274,179,3567,260,2099,153,18320,1044,1844,125,6870,790,3266,284]
[null,"Nonrelatives",64,74,179,106,10,14,41,69,46,48,36,21,14,21,76,73,27,23,141,75,13,14,55,68,7,11]
[null,"In male householder, no wife present, family:",176,142,1714,566,414,300,585,387,42,65,100,53,119,79,221,161,61,72,2572,664,114,59,788,407,273,224]
[null,"Relatives",176,142,1639,548,388,283,475,301,42,65,91,50,95,60,208,158,26,27,2107,566,101,50,697,361,218,168]
[null,"Nonrelatives",0,16,75,56,26,30,110,104,0,11,9,9,24,20,13,15,35,48,465,168,13,15,91,77,55,63]
[null,"In female householder, no husband present, family:",1219,591,3445,755,272,145,510,293,529,265,114,66,142,69,230,155,234,112,3869,984,231,108,1932,625,303,218]
[null,"Relatives",1127,564,3141,722,251,129,490,274,529,265,110,63,125,62,230,155,227,108,3427,849,211,97,1801,587,253,178]
[null,"Nonrelatives",92,78,304,133,21,33,20,49,0,11,4,7,17,13,0,11,7,11,442,262,20,21,131,88,50,48]
[null,"In nonfamily households",1023,329,8642,729,3433,441,1613,541,686,312,110,44,234,57,521,162,276,104,5897,564,365,91,2267,476,286,114]
[]
[]
[]
[null,"Calculated Average  Household Size by Household Type"]
[null,"Universe:  POPULATION IN HOUSEHOLDS"]
[null,"Data Set: 2015-2019 American Community Survey 5-Year Estimates"]
[]
[null,null,"Barrington",null,"Dover",null,"Durham",null,"Farmington",null,"Lee",null,"Madbury",null,"Middleton",null,"Milton",null,"New Durham",null,"Rochester",null,"Rollinsford",null,"Somersworth",null,"Strafford"]
[null,null,"Estimate","Margin Of Error","Estimate","Margin Of Error","Estimate","Margin Of Error","Estimate","Margin Of Error","Estimate","Margin Of Error","Estimate","Margin Of Error","Estimate","Margin Of Error","Estimate","Margin Of Error","Estimate","Margin Of Error","Estimate","Margin Of Error","Estimate","Margin Of Error","Estimate","Margin Of Error","Estimate","Margin Of Error"]
[null,"Total:",{"$f":"C39/C7","v":2.8473138548539114},{"$f":"D73","v":0.18},{"$f":"E39/E7","v":2.2725924827637334},{"$f":"(SQRT((F$39^2)+((E$39^2)/(E$7^2))*(F$7^2)))/E$7","v":5.5176719191604329E-2},{"$f":"G39/G7","v":2.6699090053341701},{"$f":"(SQRT((H$39^2)+((G$39^2)/(G$7^2))*(H$7^2)))/G$7","v":0.20924358345998428},{"$f":"I39/I7","v":2.4163179916317992},{"$f":"(SQRT((J$39^2)+((I$39^2)/(I$7^2))*(J$7^2)))/I$7","v":0.16860617661752536},{"$f":"K39/K7","v":2.3853944562899785},{"$f":"(SQRT((L$39^2)+((K$39^2)/(K$7^2))*(L$7^2)))/K$7","v":0.22932786822260115},{"$f":"M39/M7","v":3.0910569105691055},{"$f":"(SQRT((N$39^2)+((M$39^2)/(M$7^2))*(N$7^2)))/M$7","v":0.34781238055834712},{"$f":"O39/O7","v":2.709726443768997},{"$f":"(SQRT((P$39^2)+((O$39^2)/(O$7^2))*(P$7^2)))/O$7","v":0.34267281999671373},{"$f":"Q39/Q7","v":2.5483158475980123},{"$f":"(SQRT((R$39^2)+((Q$39^2)/(Q$7^2))*(R$7^2)))/Q$7","v":0.14893686962970659},{"$f":"S39/S7","v":2.8300104931794334},{"$f":"(SQRT((T$39^2)+((S$39^2)/(S$7^2))*(T$7^2)))/S$7","v":0.190888491905776},{"$f":"U39/U7","v":2.4099374021909235},{"$f":"(SQRT((V$39^2)+((U$39^2)/(U$7^2))*(V$7^2)))/U$7","v":6.5812002692835617E-2},{"$f":"W39/W7","v":2.4682692307692307},{"$f":"(SQRT((X$39^2)+((W$39^2)/(W$7^2))*(X$7^2)))/W$7","v":0.14617486405202326},{"$f":"Y39/Y7","v":2.3233859957089917},{"$f":"(SQRT((Z$39^2)+((Y$39^2)/(Y$7^2))*(Z$7^2)))/Y$7","v":0.11299013720510097},{"$f":"AA39/AA7","v":2.9641577060931898},{"$f":"(SQRT((AB$39^2)+((AA$39^2)/(AA$7^2))*(AB$7^2)))/AA$7","v":0.18117989681073934}]
[null,"In family households:",{"$f":"C40/C8","v":3.2856559051900285},{"$f":"(SQRT((D$40^2)+((C$40^2)/(C$8^2))*(D$8^2)))/C$8","v":0.30423987118860091},{"$f":"E40/E8","v":2.9631175124512046},{"$f":"(SQRT((F$40^2)+((E$40^2)/(E$8^2))*(F$8^2)))/E$8","v":0.16352783176714658},{"$f":"G40/G8","v":3.0160427807486632},{"$f":"(SQRT((H$40^2)+((G$40^2)/(G$8^2))*(H$8^2)))/G$8","v":0.37550432660859928},{"$f":"I40/I8","v":2.9571746384872082},{"$f":"(SQRT((J$40^2)+((I$40^2)/(I$8^2))*(J$8^2)))/I$8","v":0.47348197760690236},{"$f":"K40/K8","v":2.9811172305271438},{"$f":"(SQRT((L$40^2)+((K$40^2)/(K$8^2))*(L$8^2)))/K$8","v":0.43092237644051673},{"$f":"M40/M8","v":3.3351955307262569},{"$f":"(SQRT((N$40^2)+((M$40^2)/(M$8^2))*(N$8^2)))/M$8","v":0.42652401007560026},{"$f":"O40/O8","v":3.2270833333333333},{"$f":"(SQRT((P$40^2)+((O$40^2)/(O$8^2))*(P$8^2)))/O$8","v":0.50428467500734697},{"$f":"Q40/Q8","v":2.9970717423133237},{"$f":"(SQRT((R$40^2)+((Q$40^2)/(Q$8^2))*(R$8^2)))/Q$8","v":0.25396336750730447},{"$f":"S40/S8","v":3.232309746328438},{"$f":"(SQRT((T$40^2)+((S$40^2)/(S$8^2))*(T$8^2)))/S$8","v":0.26826461548596942},{"$f":"U40/U8","v":3.0383113714006833},{"$f":"(SQRT((V$40^2)+((U$40^2)/(U$8^2))*(V$8^2)))/U$8","v":0.13605656417507725},{"$f":"W40/W8","v":3.0040927694406547},{"$f":"(SQRT((X$40^2)+((W$40^2)/(W$8^2))*(X$8^2)))/W$8","v":0.23065330055465355},{"$f":"Y40/Y8","v":2.9068716094032552},{"$f":"(SQRT((Z$40^2)+((Y$40^2)/(Y$8^2))*(Z$8^2)))/Y$8","v":0.23248156389603514},{"$f":"AA40/AA8","v":3.199501246882793},{"$f":"(SQRT((AB$40^2)+((AA$40^2)/(AA$8^2))*(AB$8^2)))/AA$8","v":0.23359834741506258}]
[null,"In nonfamily households",{"$f":"C50/C13","v":1.3899456521739131},{"$f":"(SQRT((D$50^2)+((C$50^2)/(C$13^2))*(D$13^2)))/C$13","v":0.63928566123211095},{"$f":"E50/E13","v":1.4260726072607262},{"$f":"(SQRT((F$50^2)+((E$50^2)/(E$13^2))*(F$13^2)))/E$13","v":0.15918313825226235},{"$f":"G50/G13","v":2.2825797872340425},{"$f":"(SQRT((H$50^2)+((G$50^2)/(G$13^2))*(H$13^2)))/G$13","v":0.37686960201164782},{"$f":"I50/I13","v":1.5074766355140188},{"$f":"(SQRT((J$50^2)+((I$50^2)/(I$13^2))*(J$13^2)))/I$13","v":0.64564739907274027},{"$f":"K50/K13","v":1.1338842975206611},{"$f":"(SQRT((L$50^2)+((K$50^2)/(K$13^2))*(L$13^2)))/K$13","v":0.70565693882538683},{"$f":"M50/M13","v":1.4102564102564104},{"$f":"(SQRT((N$50^2)+((M$50^2)/(M$13^2))*(N$13^2)))/M$13","v":0.74600096140629646},{"$f":"O50/O13","v":1.3146067415730338},{"$f":"(SQRT((P$50^2)+((O$50^2)/(O$13^2))*(P$13^2)))/O$13","v":0.45099536938022988},{"$f":"Q50/Q13","v":1.1707865168539326},{"$f":"(SQRT((R$50^2)+((Q$50^2)/(Q$13^2))*(R$13^2)))/Q$13","v":0.51415216122539809},{"$f":"S50/S13","v":1.3529411764705883},{"$f":"(SQRT((T$50^2)+((S$50^2)/(S$13^2))*(T$13^2)))/S$13","v":0.65081913543986969},{"$f":"U50/U13","v":1.2864310645724257},{"$f":"(SQRT((V$50^2)+((U$50^2)/(U$13^2))*(V$13^2)))/U$13","v":0.17155275130774852},{"$f":"W50/W13","v":1.1889250814332248},{"$f":"(SQRT((X$50^2)+((W$50^2)/(W$13^2))*(X$13^2)))/W$13","v":0.4123006633145978},{"$f":"Y50/Y13","v":1.2531785516860143},{"$f":"(SQRT((Z$50^2)+((Y$50^2)/(Y$13^2))*(Z$13^2)))/Y$13","v":0.3440614798340641},{"$f":"AA50/AA13","v":1.4895833333333333},{"$f":"(SQRT((AB$50^2)+((AA$50^2)/(AA$13^2))*(AB$13^2)))/AA$13","v":0.85333890184874839}]
[]
[]
[]
[null,"B25010. AVERAGE HOUSEHOLD SIZE OF OCCUPIED HOUSING UNITS BY TENURE"]
[null,"Universe:  OCCUPIED HOUSING UNITS"]
[null,"Data Set: 2015-2019 American Community Survey 5-Year Estimates"]
[]
[null,null,"Barrington",null,"Dover",null,"Durham",null,"Farmington",null,"Lee",null,"Madbury",null,"Middleton",null,"Milton",null,"New Durham",null,"Rochester",null,"Rollinsford",null,"Somersworth",null,"Strafford"]
[null,null,"Estimate","Margin Of Error","Estimate","Margin Of Error","Estimate","Margin Of Error","Estimate","Margin Of Error","Estimate","Margin Of Error","Estimate","Margin Of Error","Estimate","Margin Of Error","Estimate","Margin Of Error","Estimate","Margin Of Error","Estimate","Margin Of Error","Estimate","Margin Of Error","Estimate","Margin Of Error","Estimate","Margin Of Error"]
[null,"Average household size --"]
[null,"Total:",2.85,0.18,2.27,0.05,2.67,0.11,2.42,0.17,2.39,0.23,3.09,0.21,2.71,0.19,2.5499999999999998,0.15,2.83,0.19,2.41,7.0000000000000007E-2,2.4700000000000002,0.14000000000000001,2.3199999999999998,0.11,2.96,0.18]
[null,"Owner occupied",2.89,0.19,2.5299999999999998,0.1,2.72,0.14000000000000001,2.4900000000000002,0.18,2.5299999999999998,0.24,3.08,0.23,2.63,0.2,2.63,0.15,2.91,0.19,2.48,0.09,2.65,0.16,2.4900000000000002,0.16,3.05,0.17]
[null,"Renter occupied",2.38,0.51,2,0.08,2.59,0.24,2.27,0.41,1.44,0.33,3.16,0.69,3.32,0.65,1.93,0.53,1.63,0.37,2.2799999999999998,0.17,1.86,0.28999999999999998,2.12,0.18,2.04,0.98]
[]
[]
[]
[]
[]
[]
[null,"B11001. HOUSEHOLD TYPE (INCLUDING LIVING ALONE)"]
[null,"Universe:  HOUSEHOLDS"]
[null,"Data Set: 2010-2014 American Community Survey 5-Year Estimates"]
[]
[null,null,"Barrington",null,"Dover",null,"Durham",null,"Farmington",null,"Lee",null,"Madbury",null,"Middleton",null,"Milton",null,"New Durham",null,"Rochester",null,"Rollinsford",null,"Somersworth",null,"Strafford"]
[null,null,"Estimate","Margin Of Error","Estimate","Margin Of Error","Estimate","Margin Of Error","Estimate","Margin Of Error","Estimate","Margin Of Error","Estimate","Margin Of Error","Estimate","Margin Of Error","Estimate","Margin Of Error","Estimate","Margin Of Error","Estimate","Margin Of Error","Estimate","Margin Of Error","Estimate","Margin Of Error","Estimate","Margin Of Error"]
[null,"Total:",3307,184,12586,374,3073,263,2625,158,1774,134,655,62,553,65,1656,120,1001,64,12715,331,1024,67,4492,207,1430,118]
[null,"Family households:",2485,177,7290,365,1812,161,1797,164,1189,130,503,54,416,49,1267,98,750,53,7480,268,713,56,3178,200,1128,86]
[null,"Married-couple family",2143,202,5415,324,1633,166,1375,216,1072,146,460,53,302,49,867,114,657,60,5088,341,568,59,2440,219,1044,103]
[null,"Other family:",342,171,1875,275,179,69,422,186,117,69,43,20,114,35,400,112,93,40,2392,290,145,50,738,188,84,48]
[null,"Male householder, no wife present",112,115,560,177,60,53,143,110,31,35,17,12,38,23,212,77,42,27,701,202,33,26,195,103,25,40]
[null,"Female householder, no husband present",230,115,1315,258,119,53,279,161,86,62,26,14,76,33,188,78,51,29,1691,272,112,44,543,154,59,34]
[null,"Nonfamily households:",822,221,5296,464,1261,180,828,224,585,184,152,49,137,39,389,98,251,72,5235,405,311,70,1314,230,302,107]
[null,"Householder living alone",604,175,3703,409,697,141,617,211,412,171,100,41,95,33,285,105,192,60,3834,380,270,66,782,199,243,93]
[null,"Householder not living alone",218,142,1593,275,564,91,211,139,173,121,52,29,42,24,104,61,59,38,1401,265,41,38,532,158,59,37]
[]
[]
[]
[]
[]
[]
[]
[]
[]
[]
[]
[]
[]
[]
[]
[]
[]
[null,"B11002. HOUSEHOLD TYPE BY RELATIVES AND NONRELATIVES FOR POPULATION IN HOUSEHOLDS "]
[null,"Universe:  POPULATION IN HOUSEHOLDS"]
[null,"Data Set: 2010-2014 American Community Survey 5-Year Estimates"]
[]
[null,null,"Barrington",null,"Dover",null,"Durham",null,"Farmington",null,"Lee",null,"Madbury",null,"Middleton",null,"Milton",null,"New Durham",null,"Rochester",null,"Rollinsford",null,"Somersworth",null,"Strafford"]
[null,null,"Estimate","Margin Of Error","Estimate","Margin Of Error","Estimate","Margin Of Error","Estimate","Margin Of Error","Estimate","Margin Of Error","Estimate","Margin Of Error","Estimate","Margin Of Error","Estimate","Margin Of Error","Estimate","Margin Of Error","Estimate","Margin Of Error","Estimate","Margin Of Error","Estimate","Margin Of Error","Estimate","Margin Of Error"]
[null,"Total:",8690,17,29422,339,8211,614,6820,32,4346,29,2003,170,1567,167,4588,31,2647,17,29654,114,2528,18,11747,37,4010,29]
[null,"In family households:",7558,376,22323,700,5590,467,5687,378,3529,322,1693,176,1370,159,4061,148,2335,101,22827,599,2182,85,9798,382,3637,130]
[null,"In married-couple family:",6524,580,16551,920,4987,508,4267,674,3259,348,1575,177,896,138,2798,373,2041,152,15470,1023,1734,157,7669,583,3337,198]
[null,"Relatives",6390,575,16532,917,4955,502,4195,658,3251,350,1565,174,891,136,2716,347,2036,152,15408,1025,1734,157,7491,589,3337,198]
[null,"Nonrelatives",134,106,19,30,32,42,72,86,8,15,10,9,5,7,82,98,5,9,62,64,0,11,178,115,0,11]
[null,"In male householder, no wife present, family:",252,234,1644,557,226,215,441,329,66,72,36,24,150,97,688,262,135,88,2345,722,111,85,540,278,73,115]
[null,"Relatives",231,226,1383,457,207,211,423,321,57,62,36,24,124,87,604,227,100,63,1932,580,71,55,464,242,73,115]
[null,"Nonrelatives",21,28,261,137,19,21,18,29,9,15,0,11,26,21,84,55,35,30,413,181,40,33,76,53,0,11]
[null,"In female householder, no husband present, family:",782,407,4128,863,377,185,979,558,204,155,82,45,324,144,575,249,159,103,5012,833,337,135,1589,457,227,142]
[null,"Relatives",754,398,3709,788,346,162,917,518,204,155,76,41,272,124,536,246,159,103,4349,725,310,121,1436,408,220,141]
[null,"Nonrelatives",28,34,419,141,31,37,62,66,0,11,6,7,52,32,39,34,0,11,663,194,27,24,153,133,7,11]
[null,"In nonfamily households",1132,375,7099,664,2621,393,1133,378,817,322,310,153,197,57,527,148,312,99,6827,593,346,86,1949,381,373,128]
[]
[]
[]
[null,"Calculated Average  Household Size by Household Type"]
[null,"Universe:  POPULATION IN HOUSEHOLDS"]
[null,"Data Set: 2010-2014 American Community Survey 5-Year Estimates"]
[]
[null,null,"Barrington",null,"Dover",null,"Durham",null,"Farmington",null,"Lee",null,"Madbury",null,"Middleton",null,"Milton",null,"New Durham",null,"Rochester",null,"Rollinsford",null,"Somersworth",null,"Strafford"]
[null,null,"Estimate","Margin Of Error","Estimate","Margin Of Error","Estimate","Margin Of Error","Estimate","Margin Of Error","Estimate","Margin Of Error","Estimate","Margin Of Error","Estimate","Margin Of Error","Estimate","Margin Of Error","Estimate","Margin Of Error","Estimate","Margin Of Error","Estimate","Margin Of Error","Estimate","Margin Of Error","Estimate","Margin Of Error"]
[null,"Total:",2.6277592984578169,0.15,2.3376767837279515,7.450446155116916E-2,2.6719817767653757,0.3036710702078787,2.598095238095238,0.15685501746437364,2.4498308906426156,0.18576988674450806,3.0580152671755725,0.38877976401129039,2.8336347197106693,0.44959017020153935,2.7705314009661834,0.20163400396401848,2.6443556443556444,0.16992052102590652,2.3322060558395594,6.1371005719920234E-2,2.46875,0.16248317789615668,2.6150934995547641,0.12078970890207812,2.8041958041958042,0.23228214647535406]
[null,"In family households:",3.0414486921529176,0.26424329023433368,3.0621399176954731,0.18090418140404305,3.0849889624724063,0.37624178720844426,3.1647189760712298,0.3573034650185643,2.9680403700588731,0.42266949739758386,3.3658051689860833,0.50298732178962879,3.2932692307692308,0.54457244008987549,3.2052091554853988,0.27405765859713038,3.1133333333333333,0.2579515890651472,3.0517379679144385,0.13552915388061557,3.0603085553997196,0.26830104566416835,3.0830711139081184,0.22824200322620683,3.2242907801418439,0.27149841649172335]
[null,"In nonfamily households",1.3771289537712896,0.5875436131349423,1.3404456193353473,0.17179030206173582,2.0785091197462333,0.43029979391636536,1.3683574879227054,0.58774828500227494,1.3965811965811965,0.7042196977461348,2.0394736842105261,1.2022717422325813,1.437956204379562,0.58366778011957265,1.3547557840616966,0.51111468260811665,1.2430278884462151,0.5317030249123037,1.3041069723018146,0.1516918297447763,1.112540192926045,0.37305900571621448,1.4832572298325724,0.38920356446779492,1.2350993377483444,0.60920952672937789]
[]
[]
[]
[null,"B25010. AVERAGE HOUSEHOLD SIZE OF OCCUPIED HOUSING UNITS BY TENURE"]
[null,"Universe:  OCCUPIED HOUSING UNITS"]
[null,"Data Set: 2010-2014 American Community Survey 5-Year Estimates"]
[]
[null,null,"Barrington",null,"Dover",null,"Durham",null,"Farmington",null,"Lee",null,"Madbury",null,"Middleton",null,"Milton",null,"New Durham",null,"Rochester",null,"Rollinsford",null,"Somersworth",null,"Strafford"]
[null,null,"Estimate","Margin Of Error","Estimate","Margin Of Error","Estimate","Margin Of Error","Estimate","Margin Of Error","Estimate","Margin Of Error","Estimate","Margin Of Error","Estimate","Margin Of Error","Estimate","Margin Of Error","Estimate","Margin Of Error","Estimate","Margin Of Error","Estimate","Margin Of Error","Estimate","Margin Of Error","Estimate","Margin Of Error"]
[null,"Average household size --"]
[null,"Total:",2.63,0.15,2.34,0.06,2.67,0.12,2.6,0.15,2.4500000000000002,0.18,3.06,0.32,2.83,0.22,2.77,0.19,2.64,0.17,2.33,0.06,2.4700000000000002,0.16,2.62,0.12,2.8,0.22]
[null,"Owner occupied",2.68,0.17,2.56,0.1,2.66,0.11,2.66,0.17,2.5499999999999998,0.2,3.22,0.36,2.77,0.21,2.78,0.21,2.69,0.17,2.4300000000000002,0.08,2.64,0.2,2.84,0.18,2.82,0.24]
[null,"Renter occupied",2.2000000000000002,0.48,2.11,0.12,2.69,0.28999999999999998,2.46,0.37,1.93,0.49,2.46,0.72,3.27,1.1499999999999999,2.7,0.56000000000000005,2.2599999999999998,0.56000000000000005,2.17,0.12,1.97,0.32,2.3199999999999998,0.18,2.6,0.92]
[]
[]
[]
[]
[]
[]
[null,"B11001. HOUSEHOLD TYPE (INCLUDING LIVING ALONE)"]
[null,"Universe:  HOUSEHOLDS"]
[null,"Data Set: 2005-2009 American Community Survey 5-Year Estimates"]
[]
[null,null,"Barrington",null,"Dover",null,"Durham",null,"Farmington",null,"Lee",null,"Madbury",null,"Middleton",null,"Milton",null,"New Durham",null,"Rochester",null,"Rollinsford",null,"Somersworth",null,"Strafford"]
[null,null,"Estimate","Margin Of Error","Estimate","Margin Of Error","Estimate","Margin Of Error","Estimate","Margin Of Error","Estimate","Margin Of Error","Estimate","Margin Of Error","Estimate","Margin Of Error","Estimate","Margin Of Error","Estimate","Margin Of Error","Estimate","Margin Of Error","Estimate","Margin Of Error","Estimate","Margin Of Error","Estimate","Margin Of Error"]
[null,"Total:",2961,178,11856,425,3312,328,2466,249,1900,146,586,49,602,65,1730,133,905,63,12268,366,1065,64,4949,265,1373,127]
[null,"Family households:",2306,136,6821,344,1867,177,1698,177,1117,117,450,52,462,51,1203,121,701,50,8423,399,766,59,2961,190,1157,117]
[null,"Married-couple family",1973,183,5591,333,1567,195,1327,190,952,113,404,45,377,53,902,152,665,53,6579,362,538,73,2134,210,983,153]
[null,"Other family:",333,113,1230,214,300,96,371,129,165,92,46,29,85,32,301,100,36,24,1844,321,228,72,827,195,174,87]
[null,"Male householder, no wife present",96,60,357,166,81,50,199,111,63,47,11,15,31,19,146,78,30,22,448,154,77,45,205,125,90,78]
[null,"Female householder, no husband present",237,103,873,177,219,91,172,76,102,76,35,24,54,28,155,82,6,9,1396,269,151,65,622,178,84,56]
[null,"Nonfamily households:",655,188,5035,447,1445,244,768,216,783,191,136,46,140,38,527,176,204,65,3845,405,299,79,1988,369,216,93]
[null,"Householder living alone",510,171,3562,420,892,181,655,199,569,168,60,23,104,36,348,136,134,48,2747,344,208,66,1444,284,145,81]
[null,"Householder not living alone",145,78,1473,294,553,139,113,59,214,91,76,40,36,18,179,94,70,52,1098,322,91,56,544,194,71,43]
[]
[]
[]
[null,"Calculated Average  Household Size by Household Type"]
[null,"Universe:  POPULATION IN HOUSEHOLDS"]
[null,"Data Set: 2005-2009 American Community Survey 5-Year Estimates"]
[]
[null,null,"Barrington",null,"Dover",null,"Durham",null,"Farmington",null,"Lee",null,"Madbury",null,"Middleton",null,"Milton",null,"New Durham",null,"Rochester",null,"Rollinsford",null,"Somersworth",null,"Strafford"]
[null,null,"Estimate","Margin Of Error","Estimate","Margin Of Error","Estimate","Margin Of Error","Estimate","Margin Of Error","Estimate","Margin Of Error","Estimate","Margin Of Error","Estimate","Margin Of Error","Estimate","Margin Of Error","Estimate","Margin Of Error","Estimate","Margin Of Error","Estimate","Margin Of Error","Estimate","Margin Of Error","Estimate","Margin Of Error"]
[null,"Total:",2.8331644714623438,0.17,2.3343454790823213,7.0504813695474094E-2,2.6579106280193239,0.23200927108409086,2.5811030008110301,0.16542320026483917,2.34,0.17589736596381253,3.1689419795221845,0.41446560002013888,2.7076411960132889,0.35794258069578605,2.6063583815028903,0.18678218968219829,2.780110497237569,0.18170352618789565,2.4677208999021847,6.8306410104169477E-2,2.4685446009389671,0.14327138389894478,2.3928066276015358,0.12858878716551622,2.9344501092498181,0.21377035632204056]
[null,"In family households:",3.2792714657415436,0.31610874941256284,3.0177393344084447,0.18767931862789583,3.1660417782538834,0.34001372803733704,3.2179034157832747,0.43886748434352435,3.0778871978513878,0.38309029663192345,3.548888888888889,0.47670997212305977,3.1450216450216448,0.48500615558671006,3.0997506234413965,0.22640557096280808,3.1997146932952925,0.30428683349428265,2.9760180458269025,0.16047590403105447,2.9007832898172325,0.26512891955299456,3.1377912867274569,0.19497299330144441,3.1953327571305099,0.27344527777751515]
[null,"In nonfamily households",1.2625954198473281,0.65567039607870381,1.408540218470705,0.17554402806496269,2.0013840830449827,0.38928718396463824,1.1731770833333333,0.59351953290237702,1.2873563218390804,0.55800005130499986,1.911764705882353,0.73587882455512132,1.2642857142857142,0.47202189068998768,1.4800759013282732,0.48999265588968155,1.338235294117647,0.74892732834636155,1.354226267880364,0.19000700670909385,1.3612040133779264,0.4319132213585623,1.2831991951710262,0.31357439387210589,1.537037037037037,0.58187309368161777]
[]
[]
[]
[null,"B25010. AVERAGE HOUSEHOLD SIZE OF OCCUPIED HOUSING UNITS BY TENURE"]
[null,"Universe:  OCCUPIED HOUSING UNITS"]
[null,"Data Set: 2005-2009 American Community Survey 5-Year Estimates"]
[]
[null,null,"Barrington",null,"Dover",null,"Durham",null,"Farmington",null,"Lee",null,"Madbury",null,"Middleton",null,"Milton",null,"New Durham",null,"Rochester",null,"Rollinsford",null,"Somersworth",null,"Strafford"]
[null,null,"Estimate","Margin Of Error","Estimate","Margin Of Error","Estimate","Margin Of Error","Estimate","Margin Of Error","Estimate","Margin Of Error","Estimate","Margin Of Error","Estimate","Margin Of Error","Estimate","Margin Of Error","Estimate","Margin Of Error","Estimate","Margin Of Error","Estimate","Margin Of Error","Estimate","Margin Of Error","Estimate","Margin Of Error"]
[null,"Average household size --"]
[null,"Total:",2.83,0.17,2.33,0.06,2.66,0.16,2.58,0.21,2.34,0.18,3.17,0.24,2.71,0.21,2.61,0.2,2.78,0.19,2.4700000000000002,7.0000000000000007E-2,2.4700000000000002,0.15,2.39,0.13,2.93,0.28999999999999998]
[null,"Owner occupied",2.87,0.16,2.5499999999999998,0.08,2.89,0.14000000000000001,2.79,0.22,2.58,0.24,3.27,0.22,2.68,0.22,2.71,0.21,2.75,0.2,2.54,0.08,2.52,0.18,2.5,0.12,3.03,0.3]
[null,"Renter occupied",2.67,0.54,2.0299999999999998,0.13,2.33,0.36,2.14,0.43,1.74,0.22,2.79,0.7,3.16,0.87,2.08,0.41,2.96,0.7,2.31,0.16,2.35,0.34,2.2400000000000002,0.23,1.83,0.56000000000000005]

{"sheet":"ACS_Table_B19001","index":19,"n_rows":162,"n_cols":28,"rows_kept":162,"cut":false,"hidden":true,"merged":[]}
[null,"B19001. HOUSEHOLD INCOME IN THE PAST 12 MONTHS (IN 2019 INFLATION-ADJUSTED DOLLARS)",null,null,null,null,null,null,null,null,null,null,null,null,{"$f":"B1","v":"B19001. HOUSEHOLD INCOME IN THE PAST 12 MONTHS (IN 2019 INFLATION-ADJUSTED DOLLARS)"}]
[null,"Universe:  HOUSEHOLDS",null,null,null,null,null,null,null,null,null,null,null,null,{"$f":"B3","v":"Data Set: 2015-2019 American Community Survey 5-Year Estimates"}]
[null,"Data Set: 2015-2019 American Community Survey 5-Year Estimates"]
[]
[null,null,"Barrington",null,"Dover",null,"Durham",null,"Farmington",null,"Lee",null,"Madbury",null,"Middleton",null,"Milton",null,"New Durham",null,"Rochester",null,"Rollinsford",null,"Somersworth",null,"Strafford"]
[null,null,"Estimate","Margin Of Error","Estimate","Margin Of Error","Estimate","Margin Of Error","Estimate","Margin Of Error","Estimate","Margin Of Error","Estimate","Margin Of Error","Estimate","Margin Of Error","Estimate","Margin Of Error","Estimate","Margin Of Error","Estimate","Margin Of Error","Estimate","Margin Of Error","Estimate","Margin Of Error","Estimate","Margin Of Error"]
[null,"Total Households",3183,200,13489,308,3187,199,2868,200,1876,180,615,47,658,59,1811,105,953,64,12780,347,1040,61,5127,249,1395,85]
[null,"Households With"]
[null,"Income Less than $10,000 ",53,82,484,162,409,132,166,113,42,68,12,9,18,11,37,45,39,34,666,238,64,50,314,175,15,17]
[null,"Income $10,000 to $14,999 ",30,36,482,140,106,68,16,30,0,11,3,6,22,15,74,59,16,16,592,186,25,24,194,134,0,11]
[null,"Income $15,000 to $19,999 ",31,34,497,164,126,52,126,99,26,38,3,5,13,9,88,58,16,14,495,164,24,19,127,77,0,11]
[null,"Income $20,000 to $24,999 ",147,136,424,139,44,28,113,80,27,28,8,8,10,9,38,34,23,15,780,211,39,23,152,82,0,11]
[null,"Income $25,000 to $29,999 ",157,136,527,151,186,75,139,95,63,71,5,6,23,18,41,54,11,10,614,180,44,31,122,69,70,50]
[null,"Income $30,000 to $34,999 ",109,101,440,185,139,67,155,133,53,48,5,6,7,7,38,40,77,39,477,147,18,16,91,60,20,21]
[null,"Income $35,000 to $39,999 ",53,84,517,154,71,39,187,158,32,48,17,15,25,18,36,29,20,15,572,197,22,17,372,132,51,32]
[null,"Income $40,000 to $44,999 ",109,68,517,166,70,40,120,77,74,73,8,6,45,21,58,34,32,28,535,169,32,20,197,88,35,30]
[null,"Income $45,000 to $49,999 ",18,29,580,201,93,58,110,116,0,11,10,9,28,13,118,76,25,22,427,143,26,17,223,110,16,18]
[null,"Income $50,000 to $59,999 ",121,77,1104,205,76,35,197,142,105,69,46,30,32,19,217,99,46,26,1096,215,101,47,515,176,158,75]
[null,"Income $60,000 to $74,999 ",394,168,1340,281,163,57,166,94,108,92,47,19,95,34,232,93,141,51,1320,253,122,41,615,180,173,72]
[null,"Income $75,000 to $99,999 ",419,168,2220,347,299,84,548,195,405,197,87,33,133,37,120,62,139,45,2154,320,128,52,889,231,165,55]
[null,"Income $100,000 to $124,999 ",405,134,1352,232,240,68,504,153,240,110,61,26,68,26,312,109,118,44,1354,288,98,35,552,168,207,82]
[null,"Income $125,000 to $149,999 ",269,124,853,215,275,77,100,88,186,117,57,24,59,28,182,87,67,31,634,157,97,37,393,157,118,62]
[null,"Income $150,000 to $199,999 ",531,198,1183,244,407,105,188,112,200,105,76,37,35,19,171,72,111,38,712,163,112,34,288,113,244,88]
[null,"Income $200,000 or more ",337,143,969,208,483,117,33,51,315,108,170,45,45,24,49,34,72,32,352,115,88,34,83,59,123,48]
[]
[]
[]
[]
[null,"Calculated B19001. HOUSEHOLD INCOME IN THE PAST 12 MONTHS (IN 2019 INFLATION-ADJUSTED DOLLARS)"]
[null,"Universe:  HOUSEHOLDS"]
[null,"Data Set: 2015-2019 American Community Survey 5-Year Estimates"]
[null,null,"Barrington",null,"Dover",null,"Durham",null,"Farmington",null,"Lee",null,"Madbury",null,"Middleton",null,"Milton",null,"New Durham",null,"Rochester",null,"Rollinsford",null,"Somersworth",null,"Strafford"]
[null,null,"Estimate","Margin Of Error","Estimate","Margin Of Error","Estimate","Margin Of Error","Estimate","Margin Of Error","Estimate","Margin Of Error","Estimate","Margin Of Error","Estimate","Margin Of Error","Estimate","Margin Of Error","Estimate","Margin Of Error","Estimate","Margin Of Error","Estimate","Margin Of Error","Estimate","Margin Of Error","Estimate","Margin Of Error"]
[null,"Total Households",{"$f":"$C$7","v":3183},{"$f":"$D$7","v":200},{"$f":"$E$7","v":13489},{"$f":"$F$7","v":308},{"$f":"$G$7","v":3187},{"$f":"$H$7","v":199},{"$f":"$I$7","v":2868},{"$f":"$J$7","v":200},{"$f":"$K$7","v":1876},{"$f":"$L$7","v":180},{"$f":"$M$7","v":615},{"$f":"$N$7","v":47},{"$f":"$O$7","v":658},{"$f":"$P$7","v":59},{"$f":"$Q$7","v":1811},{"$f":"R7","v":105},953,64,12780,347,1040,61,{"$f":"Y7","v":5127},{"$f":"Z7","v":249},{"$f":"AA7","v":1395},{"$f":"AB7","v":85}]
[null,"Households With"]
[null,"Income Less than $10,000 ",{"$f":"$C$9","v":53},{"$f":"$D$9","v":82},{"$f":"$E$9","v":484},{"$f":"$F$9","v":162},{"$f":"$G$9","v":409},{"$f":"$H$9","v":132},{"$f":"$I$9","v":166},{"$f":"$J$9","v":113},{"$f":"$K$9","v":42},{"$f":"$L$9","v":68},{"$f":"$M$9","v":12},{"$f":"$N$9","v":9},{"$f":"$O$9","v":18},{"$f":"$P$9","v":11},{"$f":"$Q$9","v":37},{"$f":"R9","v":45},39,34,666,238,64,50,{"$f":"Y9","v":314},175,15,17]
[null,"Income $10,000 to $14,999 ",{"$f":"$C$10","v":30},{"$f":"$D$10","v":36},{"$f":"$E$10","v":482},{"$f":"$F$10","v":140},{"$f":"$G$10","v":106},{"$f":"$H$10","v":68},{"$f":"$I$10","v":16},{"$f":"$J$10","v":30},{"$f":"$K$10","v":0},{"$f":"$L$10","v":11},{"$f":"$M$10","v":3},{"$f":"$N$10","v":6},{"$f":"$O$10","v":22},{"$f":"$P$10","v":15},{"$f":"$Q$10","v":74},59,16,16,592,186,25,24,194,134,0,11]
[null,"Income $15,000 to $24,999 ",{"$f":"$C$11+$C$12","v":178},{"$f":"SQRT(($D$11^2)+($D$12^2))","v":140.18559127100045},{"$f":"$E$11+$E$12","v":921},{"$f":"SQRT(($F$11^2)+($F$12^2))","v":214.98139454380697},{"$f":"$G$11+$G$12","v":170},{"$f":"SQRT(($H$11^2)+($H$12^2))","v":59.059292240933601},{"$f":"$I$11+$I$12","v":239},{"$f":"SQRT(($J$11^2)+($J$12^2))","v":127.28314892396401},{"$f":"$K$11+$K$12","v":53},{"$f":"SQRT(($L$11^2)+($L$12^2))","v":47.201694884823787},{"$f":"$M$11+$M$12","v":11},{"$f":"SQRT(($N$11^2)+($N$12^2))","v":9.4339811320566032},{"$f":"$O$11+$O$12","v":23},{"$f":"SQRT(($P$11^2)+($P$12^2))","v":12.727922061357855},{"$f":"Q11+Q12","v":126},{"$f":"SQRT((R11^2)+(R12^2))","v":67.230945255886439},{"$f":"S11+S12","v":39},{"$f":"SQRT((T11^2)+(T12^2))","v":20.518284528683193},{"$f":"U11+U12","v":1275},{"$f":"SQRT((V11^2)+(V12^2))","v":267.23959287500793},{"$f":"W11+W12","v":63},{"$f":"SQRT((X11^2)+(X12^2))","v":29.832867780352597},{"$f":"Y11+Y12","v":279},{"$f":"SQRT((Z11^2)+(Z12^2))","v":112.48555462813881},{"$f":"AA11+AA12","v":0},{"$f":"SQRT((AB11^2)+(AB12^2))","v":15.556349186104045}]
[null,"Income $25,000 to $34,999 ",{"$f":"$C$13+$C$14","v":266},{"$f":"SQRT(($D$13^2)+($D$14^2))","v":169.40188900953851},{"$f":"$E$13+$E$14","v":967},{"$f":"SQRT(($F$13^2)+($F$14^2))","v":238.80117252643464},{"$f":"$G$13+$G$14","v":325},{"$f":"SQRT(($H$13^2)+($H$14^2))","v":100.56838469419701},{"$f":"$I$13+$I$14","v":294},{"$f":"SQRT(($J$13^2)+($J$14^2))","v":163.44418007380992},{"$f":"$K$13+$K$14","v":116},{"$f":"SQRT(($L$13^2)+($L$14^2))","v":85.702975444263316},{"$f":"$M$13+$M$14","v":10},{"$f":"SQRT(($N$13^2)+($N$14^2))","v":8.4852813742385695},{"$f":"$O$13+$O$14","v":30},{"$f":"SQRT(($P$13^2)+($P$14^2))","v":19.313207915827967},{"$f":"Q13+Q14","v":79},{"$f":"SQRT((R13^2)+(R14^2))","v":67.201190465645766},{"$f":"S13+S14","v":88},{"$f":"SQRT((T13^2)+(T14^2))","v":40.26164427839479},{"$f":"U13+U14","v":1091},{"$f":"SQRT((V13^2)+(V14^2))","v":232.39836488237177},{"$f":"W13+W14","v":62},{"$f":"SQRT((X13^2)+(X14^2))","v":34.885527085024819},{"$f":"Y13+Y14","v":213},{"$f":"SQRT((Z13^2)+(Z14^2))","v":91.438503924769023},{"$f":"AA13+AA14","v":90},{"$f":"SQRT((AB13^2)+(AB14^2))","v":54.230987451824994}]
[null,"Income $35,000 to $49,999 ",{"$f":"$C$15+$C$16+$C$17","v":180},{"$f":"SQRT(($D$15^2)+($D$16^2)+($D$17^2))","v":111.89727431890377},{"$f":"$E$15+$E$16+$E$17","v":1614},{"$f":"SQRT(($F$15^2)+($F$16^2)+($F$17^2))","v":302.77549438486597},{"$f":"$G$15+$G$16+$G$17","v":234},{"$f":"SQRT(($H$15^2)+($H$16^2)+($H$17^2))","v":80.529497701152962},{"$f":"$I$15+$I$16+$I$17","v":417},{"$f":"SQRT(($J$15^2)+($J$16^2)+($J$17^2))","v":210.5920226409348},{"$f":"$K$15+$K$16+$K$17","v":106},{"$f":"SQRT(($L$15^2)+($L$16^2)+($L$17^2))","v":88.056799851005266},{"$f":"$M$15+$M$16+$M$17","v":35},{"$f":"SQRT(($N$15^2)+($N$16^2)+($N$17^2))","v":18.493242008906929},{"$f":"$O$15+$O$16+$O$17","v":98},{"$f":"SQRT(($P$15^2)+($P$16^2)+($P$17^2))","v":30.561413579872251},{"$f":"Q15+Q16+Q17","v":212},{"$f":"SQRT((R15^2)+(R16^2)+(R17^2))","v":88.164618753783543},{"$f":"S15+S16+S17","v":77},{"$f":"SQRT((T15^2)+(T16^2)+(T17^2))","v":38.639358172723313},{"$f":"U15+U16+U17","v":1534},{"$f":"SQRT((V15^2)+(V16^2)+(V17^2))","v":296.34270701334964},{"$f":"W15+W16+W17","v":80},{"$f":"SQRT((X15^2)+(X16^2)+(X17^2))","v":31.272991542223778},{"$f":"Y15+Y16+Y17","v":792},{"$f":"SQRT((Z15^2)+(Z16^2)+(Z17^2))","v":193.04921652262669},{"$f":"AA15+AA16+AA17","v":102},{"$f":"SQRT((AB15^2)+(AB16^2)+(AB17^2))","v":47.413078364518789}]
[null,"Income $50,000 to $74,999 ",{"$f":"$C$18+$C$19","v":515},{"$f":"SQRT(($D$18^2)+($D$19^2))","v":184.80530295421721},{"$f":"$E$18+$E$19","v":2444},{"$f":"SQRT(($F$18^2)+($F$19^2))","v":347.83041845129071},{"$f":"$G$18+$G$19","v":239},{"$f":"SQRT(($H$18^2)+($H$19^2))","v":66.887966032762577},{"$f":"$I$18+$I$19","v":363},{"$f":"SQRT(($J$18^2)+($J$19^2))","v":170.29386365926402},{"$f":"$K$18+$K$19","v":213},{"$f":"SQRT(($L$18^2)+($L$19^2))","v":115},{"$f":"$M$18+$M$19","v":93},{"$f":"SQRT(($N$18^2)+($N$19^2))","v":35.510561809129406},{"$f":"$O$18+$O$19","v":127},{"$f":"SQRT(($P$18^2)+($P$19^2))","v":38.948684188300895},{"$f":"Q18+Q19","v":449},{"$f":"SQRT((R18^2)+(R19^2))","v":135.83077707206124},{"$f":"S18+S19","v":187},{"$f":"SQRT((T18^2)+(T19^2))","v":57.245087125446844},{"$f":"U18+U19","v":2416},{"$f":"SQRT((V18^2)+(V19^2))","v":332.01505989939676},{"$f":"W18+W19","v":223},{"$f":"SQRT((X18^2)+(X19^2))","v":62.369864518050704},{"$f":"Y18+Y19","v":1130},{"$f":"SQRT((Z18^2)+(Z19^2))","v":251.745903640953},{"$f":"AA18+AA19","v":331},{"$f":"SQRT((AB18^2)+(AB19^2))","v":103.96634070698073}]
[null,"Income $75,000 to $99,999 ",{"$f":"$C$20","v":419},{"$f":"$D$20","v":168},{"$f":"$E$20","v":2220},{"$f":"$F$20","v":347},{"$f":"$G$20","v":299},{"$f":"$H$20","v":84},{"$f":"$I$20","v":548},{"$f":"$J$20","v":195},{"$f":"$K$20","v":405},{"$f":"$L$20","v":197},{"$f":"$M$20","v":87},{"$f":"$N$20","v":33},{"$f":"$O$20","v":133},{"$f":"$P$20","v":37},{"$f":"Q20","v":120},62,139,45,2154,320,128,52,{"$f":"Y20","v":889},{"$f":"Z20","v":231},{"$f":"AA20","v":165},{"$f":"AB20","v":55}]
[null,"Income $100,000 to $149,999 ",{"$f":"$C$21+$C$22","v":674},{"$f":"SQRT(($D$21^2)+($D$22^2))","v":182.57053431482311},{"$f":"$E$21+$E$22","v":2205},{"$f":"SQRT(($F$21^2)+($F$22^2))","v":316.30523233105077},{"$f":"$G$21+$G$22","v":515},{"$f":"SQRT(($H$21^2)+($H$22^2))","v":102.7277956543408},{"$f":"$I$21+$I$22","v":604},{"$f":"SQRT(($J$21^2)+($J$22^2))","v":176.50212463310464},{"$f":"$K$21+$K$22","v":426},{"$f":"SQRT(($L$21^2)+($L$22^2))","v":160.58953888718904},{"$f":"$M$21+$M$22","v":118},{"$f":"SQRT(($N$21^2)+($N$22^2))","v":35.383612025908263},{"$f":"$O$21+$O$22","v":127},{"$f":"SQRT(($P$21^2)+($P$22^2))","v":38.209946349085598},{"$f":"Q21+Q22","v":494},{"$f":"SQRT((R21^2)+(R22^2))","v":139.46325680981354},{"$f":"S21+S22","v":185},{"$f":"SQRT((T21^2)+(T22^2))","v":53.823786563191554},{"$f":"U21+U22","v":1988},{"$f":"SQRT((V21^2)+(V22^2))","v":328.01371922527875},{"$f":"W21+W22","v":195},{"$f":"SQRT((X21^2)+(X22^2))","v":50.931326312987373},{"$f":"Y21+Y22","v":945},{"$f":"SQRT((Z21^2)+(Z22^2))","v":229.94129685639334},{"$f":"AA21+AA22","v":325},{"$f":"SQRT((AB21^2)+(AB22^2))","v":102.80077820717118}]
[null,"Income $150,000 to $199,999 ",{"$f":"$C$23","v":531},{"$f":"$D$23","v":198},{"$f":"$E$23","v":1183},{"$f":"$F$23","v":244},{"$f":"$G$23","v":407},{"$f":"$H$23","v":105},{"$f":"$I$23","v":188},{"$f":"$J$23","v":112},{"$f":"$K$23","v":200},{"$f":"$L$23","v":105},{"$f":"$M$23","v":76},{"$f":"$N$23","v":37},{"$f":"$O$23","v":35},{"$f":"$P$23","v":19},{"$f":"Q23","v":171},72,111,38,712,163,112,34,{"$f":"Y23","v":288},113,244,88]
[null,"Income $200,000 or more ",{"$f":"$C$24","v":337},{"$f":"$D$24","v":143},{"$f":"$E$24","v":969},{"$f":"$F$24","v":208},{"$f":"$G$24","v":483},{"$f":"$H$24","v":117},{"$f":"$I$24","v":33},{"$f":"$J$24","v":51},{"$f":"$K$24","v":315},{"$f":"$L$24","v":108},{"$f":"$M$24","v":170},{"$f":"$N$24","v":45},{"$f":"$O$24","v":45},{"$f":"$P$24","v":24},49,34,72,32,352,115,88,34,83,59,123,48]
[]
[]
[]
[]
[]
[]
[]
[]
[]
[]
[]
[]
[]
[]
[]
[]
[]
[]
[]
[]
[]
[]
[]
[]
[null,"B19001. HOUSEHOLD INCOME IN THE PAST 12 MONTHS (IN 2014 INFLATION-ADJUSTED DOLLARS)",null,null,null,null,null,null,null,null,null,null,null,null,{"$f":"B70","v":"B19001. HOUSEHOLD INCOME IN THE PAST 12 MONTHS (IN 2014 INFLATION-ADJUSTED DOLLARS)"}]
[null,"Universe:  HOUSEHOLDS",null,null,null,null,null,null,null,null,null,null,null,null,{"$f":"B72","v":"Data Set: 2010-2014 American Community Survey 5-Year Estimates"}]
[null,"Data Set: 2010-2014 American Community Survey 5-Year Estimates"]
[]
[null,null,"Barrington",null,"Dover",null,"Durham",null,"Farmington",null,"Lee",null,"Madbury",null,"Middleton",null,"Milton",null,"New Durham",null,"Rochester",null,"Rollinsford",null,"Somersworth",null,"Strafford"]
[null,null,"Estimate","Margin Of Error","Estimate","Margin Of Error","Estimate","Margin Of Error","Estimate","Margin Of Error","Estimate","Margin Of Error","Estimate","Margin Of Error","Estimate","Margin Of Error","Estimate","Margin Of Error","Estimate","Margin Of Error","Estimate","Margin Of Error","Estimate","Margin Of Error","Estimate","Margin Of Error","Estimate","Margin Of Error"]
[null,"Total Households",3307,184,12586,374,3073,263,2625,158,1774,134,655,62,553,65,1656,120,1001,64,12715,331,1024,67,4492,207,1430,118]
[null,"Households With"]
[null,"Income Less than $10,000 ",91,83,603,179,270,97,23,27,83,74,24,23,11,8,51,44,22,15,669,185,5,7,337,156,32,22]
[null,"Income $10,000 to $14,999 ",174,103,525,161,163,92,161,107,28,43,11,9,21,13,67,38,27,20,906,252,30,20,254,104,31,42]
[null,"Income $15,000 to $19,999 ",56,64,441,159,201,98,241,147,92,104,9,9,23,16,47,42,24,25,723,175,63,39,146,72,19,20]
[null,"Income $20,000 to $24,999 ",44,53,775,213,139,65,270,122,0,11,16,16,27,20,130,74,31,24,533,157,72,34,321,161,36,37]
[null,"Income $25,000 to $29,999 ",115,96,735,191,84,44,31,35,27,43,24,23,14,13,75,44,16,14,847,181,59,48,262,107,83,65]
[null,"Income $30,000 to $34,999 ",138,102,509,160,97,58,124,102,16,24,32,25,23,12,53,44,46,24,658,177,37,21,122,91,17,20]
[null,"Income $35,000 to $39,999 ",152,123,733,172,61,46,200,128,49,56,18,17,26,16,92,53,55,36,623,172,31,20,208,91,35,27]
[null,"Income $40,000 to $44,999 ",98,93,595,155,110,67,88,54,64,56,14,11,29,22,75,50,51,26,810,174,25,17,233,104,19,22]
[null,"Income $45,000 to $49,999 ",97,79,408,116,57,61,153,122,61,46,27,15,24,15,99,60,18,15,802,192,59,37,224,109,81,51]
[null,"Income $50,000 to $59,999 ",177,93,963,253,257,88,191,89,98,71,34,24,69,29,138,62,100,33,1054,237,102,49,331,129,108,55]
[null,"Income $60,000 to $74,999 ",320,142,1444,255,174,72,257,115,158,90,40,23,71,26,264,105,99,43,1459,241,162,65,528,156,121,72]
[null,"Income $75,000 to $99,999 ",590,173,1772,241,386,111,260,118,271,92,85,33,80,31,253,84,152,41,1675,249,85,31,698,179,200,82]
[null,"Income $100,000 to $124,999 ",453,169,1028,192,279,79,294,113,382,168,67,30,64,28,162,66,121,46,807,192,144,69,402,141,247,77]
[null,"Income $125,000 to $149,999 ",205,116,838,174,196,72,45,41,108,97,80,30,36,22,83,51,103,43,575,160,18,13,198,112,191,78]
[null,"Income $150,000 to $199,999 ",365,185,675,158,231,88,171,111,225,98,64,21,28,17,25,23,115,48,360,113,86,31,178,91,90,46]
[null,"Income $200,000 or more ",232,131,542,143,368,81,116,107,112,70,110,35,7,7,42,29,21,17,214,94,46,23,50,49,120,43]
[]
[]
[]
[]
[null,"Calculated B19001. HOUSEHOLD INCOME IN THE PAST 12 MONTHS (IN 2014 INFLATION-ADJUSTED DOLLARS)"]
[null,"Universe:  HOUSEHOLDS"]
[null,"Data Set: 2010-2014 American Community Survey 5-Year Estimates"]
[null,null,"Barrington",null,"Dover",null,"Durham",null,"Farmington",null,"Lee",null,"Madbury",null,"Middleton",null,"Milton",null,"New Durham",null,"Rochester",null,"Rollinsford",null,"Somersworth",null,"Strafford"]
[null,null,"Estimate","Margin Of Error","Estimate","Margin Of Error","Estimate","Margin Of Error","Estimate","Margin Of Error","Estimate","Margin Of Error","Estimate","Margin Of Error","Estimate","Margin Of Error","Estimate","Margin Of Error","Estimate","Margin Of Error","Estimate","Margin Of Error","Estimate","Margin Of Error","Estimate","Margin Of Error","Estimate","Margin Of Error"]
[null,"Total Households",3307,184,12586,374,3073,263,2625,158,1774,134,655,62,553,65,1656,120,1001,64,12715,331,1024,67,4492,207,1430,118]
[null,"Households With"]
[null,"Income Less than $10,000 ",91,83,603,179,270,97,23,27,83,74,24,23,11,8,51,44,22,15,669,185,5,7,337,156,32,22]
[null,"Income $10,000 to $14,999 ",174,103,525,161,163,92,161,107,28,43,11,9,21,13,67,38,27,20,906,252,30,20,254,104,31,42]
[null,"Income $15,000 to $24,999 ",100,83.096329642168911,1216,265.80067720004024,340,117.5967686630887,511,191.03141102970474,92,104.58011283222064,25,18.357559750685819,50,25.612496949731394,177,85.088189544730596,55,34.655446902326915,1256,235.10423220350586,135,51.739733281106119,467,176.36609651517495,55,42.059481689626182]
[null,"Income $25,000 to $34,999 ",253,140.07141035914503,1244,249.16059078433733,181,72.801098892805186,155,107.83784122468327,43,49.244289008980523,56,33.97057550292606,37,17.691806012954132,128,62.22539674441618,62,27.784887978899608,1505,253.16002844051033,96,52.392747589718944,384,140.46351839534705,100,68.007352543677214]
[null,"Income $35,000 to $49,999 ",347,173.25992035089939,1736,258.96911012705743,228,101.61692772368194,441,184.88915598271305,174,91.586025134842487,59,25.199206336708304,79,31.064449134018133,266,94.387499172295051,124,46.872166581031863,2235,311.00482311372599,115,45.365184888855019,665,176.00568172647155,135,61.757590626578043]
[null,"Income $50,000 to $74,999 ",497,169.74392478082979,2407,359.21302871694394,431,113.70136322841516,448,145.41664278891878,256,114.63420083029322,74,33.241540277189323,140,38.948684188300895,402,121.93850909372314,199,54.203320931470607,2513,338.00887562311141,264,81.400245699874887,859,202.42776489404807,229,90.603531939985658]
[null,"Income $75,000 to $99,999 ",590,173,1772,241,386,111,260,118,271,92,85,33,80,31,253,84,152,41,1675,249,85,31,698,179,200,82]
[null,"Income $100,000 to $149,999 ",658,204.98048687619024,1866,259.11387458027019,475,106.88779163215975,339,120.20815280171308,490,193.9922678871506,147,42.426406871192853,100,35.608987629529715,245,83.408632646747066,224,62.968245965724662,1382,249.92798962901293,162,70.213958726167832,600,180.06943105369106,438,109.60383204979651]
[null,"Income $150,000 to $199,999 ",365,185,675,158,231,88,171,111,225,98,64,21,28,17,25,23,115,48,360,113,86,31,178,91,90,46]
[null,"Income $200,000 or more ",232,131,542,143,368,81,116,107,112,70,110,35,7,7,42,29,21,17,214,94,46,23,50,49,120,43]
[]
[]
[]
[null,"B19001. HOUSEHOLD INCOME IN THE PAST 12 MONTHS (IN 2009 INFLATION-ADJUSTED DOLLARS)",null,null,null,null,null,null,null,null,null,null,null,null,{"$f":"B118","v":"B19001. HOUSEHOLD INCOME IN THE PAST 12 MONTHS (IN 2009 INFLATION-ADJUSTED DOLLARS)"}]
[null,"Universe:  HOUSEHOLDS",null,null,null,null,null,null,null,null,null,null,null,null,{"$f":"B120","v":"Data Set: 2005-2009 American Community Survey 5-Year Estimates"}]
[null,"Data Set: 2005-2009 American Community Survey 5-Year Estimates"]
[]
[null,null,"Barrington",null,"Dover",null,"Durham",null,"Farmington",null,"Lee",null,"Madbury",null,"Middleton",null,"Milton",null,"New Durham",null,"Rochester",null,"Rollinsford",null,"Somersworth",null,"Strafford"]
[null,null,"Estimate","Margin Of Error","Estimate","Margin Of Error","Estimate","Margin Of Error","Estimate","Margin Of Error","Estimate","Margin Of Error","Estimate","Margin Of Error","Estimate","Margin Of Error","Estimate","Margin Of Error","Estimate","Margin Of Error","Estimate","Margin Of Error","Estimate","Margin Of Error","Estimate","Margin Of Error","Estimate","Margin Of Error"]
[null,"Total Households",2961,178,11856,425,3312,328,2466,249,1900,146,586,49,602,65,1730,133,905,63,12268,366,1065,64,4949,265,1373,127]
[null,"Households With"]
[null,"Income Less than $10,000 ",39,37,550,171,710,184,195,123,319,113,9,9,36,21,74,46,36,31,602,170,96,62,484,152,19,20]
[null,"Income $10,000 to $14,999 ",14,22,491,136,183,67,296,133,20,33,6,7,10,9,191,121,19,16,557,177,69,40,354,162,18,14]
[null,"Income $15,000 to $19,999 ",92,87,453,154,198,87,71,48,28,26,21,20,18,18,64,53,16,15,735,192,41,38,138,80,16,18]
[null,"Income $20,000 to $24,999 ",88,56,577,176,96,58,149,77,52,37,15,17,22,19,55,53,48,34,669,232,26,23,192,93,18,22]
[null,"Income $25,000 to $29,999 ",101,67,554,167,39,35,156,95,24,40,27,23,38,17,74,45,20,16,772,210,39,34,110,65,96,75]
[null,"Income $30,000 to $34,999 ",102,65,711,206,51,40,91,63,80,51,8,10,24,18,14,23,30,22,804,218,50,44,282,125,47,39]
[null,"Income $35,000 to $39,999 ",101,62,698,185,49,39,28,27,13,20,15,11,32,21,31,31,21,24,686,161,20,18,160,82,59,52]
[null,"Income $40,000 to $44,999 ",118,75,460,157,72,60,235,112,12,19,10,11,59,26,58,40,35,32,738,175,62,40,337,111,52,41]
[null,"Income $45,000 to $49,999 ",223,116,426,146,52,62,68,42,104,88,26,17,18,12,21,26,80,50,510,169,61,31,299,131,82,70]
[null,"Income $50,000 to $59,999 ",102,54,1206,234,186,94,181,97,115,65,69,42,87,33,225,85,69,31,1052,183,46,28,354,138,187,100]
[null,"Income $60,000 to $74,999 ",588,152,1472,278,75,47,281,111,276,90,38,18,101,37,281,106,82,31,1523,222,114,47,712,196,159,80]
[null,"Income $75,000 to $99,999 ",623,129,1551,269,416,119,293,115,254,107,91,38,93,37,387,125,215,58,1736,234,191,58,674,156,151,78]
[null,"Income $100,000 to $124,999 ",367,111,1141,198,338,90,180,83,166,59,79,37,30,16,88,66,91,37,892,160,109,39,423,148,167,80]
[null,"Income $125,000 to $149,999 ",231,103,712,152,232,70,125,90,152,59,60,26,16,11,90,73,83,36,379,110,35,25,227,115,84,51]
[null,"Income $150,000 to $199,999 ",148,78,512,145,272,80,108,62,206,97,69,29,14,12,58,52,48,36,518,141,44,40,150,85,149,79]
[null,"Income $200,000 or more ",24,28,342,100,343,90,9,14,79,43,43,20,4,5,19,23,12,14,95,56,62,39,53,44,69,41]
[]
[]
[]
[]
[null,"Calculated B19001. HOUSEHOLD INCOME IN THE PAST 12 MONTHS (IN 2009 INFLATION-ADJUSTED DOLLARS)"]
[null,"Universe:  HOUSEHOLDS"]
[null,"Data Set: 2005-2009 American Community Survey 5-Year Estimates"]
[null,null,"Barrington",null,"Dover",null,"Durham",null,"Farmington",null,"Lee",null,"Madbury",null,"Middleton",null,"Milton",null,"New Durham",null,"Rochester",null,"Rollinsford",null,"Somersworth",null,"Strafford"]
[null,null,"Estimate","Margin Of Error","Estimate","Margin Of Error","Estimate","Margin Of Error","Estimate","Margin Of Error","Estimate","Margin Of Error","Estimate","Margin Of Error","Estimate","Margin Of Error","Estimate","Margin Of Error","Estimate","Margin Of Error","Estimate","Margin Of Error","Estimate","Margin Of Error","Estimate","Margin Of Error","Estimate","Margin Of Error"]
[null,"Total Households",2961,178,11856,425,3312,328,2466,249,1900,146,586,49,602,65,1730,133,905,63,12268,366,1065,64,4949,265,1373,127]
[null,"Households With"]
[null,"Income Less than $10,000 ",39,37,550,171,710,184,195,123,319,113,9,9,36,21,74,46,36,31,602,170,96,62,484,152,19,20]
[null,"Income $10,000 to $14,999 ",14,22,491,136,183,67,296,133,20,33,6,7,10,9,191,121,19,16,557,177,69,40,354,162,18,14]
[null,"Income $15,000 to $24,999 ",180,103.46496991735899,1030,233.86320788016229,294,104.5609869884557,220,90.735880444287304,80,45.221676218380054,36,26.248809496813376,40,26.172504656604801,119,74.953318805774032,64,37.161808352124091,1404,301.14448359549937,67,44.418464629025621,330,122.67436570041843,34,28.42534080710379]
[null,"Income $25,000 to $34,999 ",203,93.348808240919709,1265,265.18861212352238,90,53.150729063673246,247,113.99122773266372,104,64.815121692395209,35,25.079872407968907,62,24.758836806279895,88,50.537115073973112,50,27.202941017470888,1576,302.69456552769492,89,55.605755097831377,392,140.89002803605371,143,84.534016821632221]
[null,"Income $35,000 to $49,999 ",442,151.41003929726722,1584,283.17838900594091,173,94.683683916501693,331,122.62544597268545,129,92.22255689363638,51,23.043437243605826,109,35.510561809129406,110,56.894639466297704,136,64.031242374328485,1934,291.73104051506073,143,53.712196007983138,796,190.27874290103978,193,96.358704848083136]
[null,"Income $50,000 to $74,999 ",690,161.3071604114337,2678,363.37308651026979,261,105.09519494249011,462,147.41099009232656,391,111.01801655587259,107,45.694638635183452,188,49.578221024962161,506,135.87126259809321,151,43.840620433565945,2575,287.70297183032363,160,54.708317466359723,1066,239.70815588961506,346,128.06248474865697]
[null,"Income $75,000 to $99,999 ",623,129,1551,269,416,119,293,115,254,107,91,38,93,37,387,125,215,58,1736,234,191,58,674,156,151,78]
[null,"Income $100,000 to $149,999 ",598,151.42654985173505,1853,249.61570463414355,570,114.0175425099138,305,122.42957159118053,318,83.438600180012614,139,45.221676218380054,46,19.416487838947599,178,98.412397592986224,174,51.623637996561229,1271,194.164878389476,144,46.324939287601879,650,187.42731924668826,251,94.873600121424715]
[null,"Income $150,000 to $199,999 ",148,78,512,145,272,80,108,62,206,97,69,29,14,12,58,52,48,36,518,141,44,40,150,85,149,79]
[null,"Income $200,000 or more ",24,28,342,100,343,90,9,14,79,43,43,20,4,5,19,23,12,14,95,56,62,39,53,44,69,41]

{"sheet":"ACS_Table_B19037","index":20,"n_rows":253,"n_cols":28,"rows_kept":253,"cut":false,"hidden":true,"merged":[]}
[null,"B19037. AGE OF HOUSEHOLDER BY HOUSEHOLD INCOME IN THE PAST 12 MONTHS (IN 2019 INFLATION-ADJUSTED DOLLARS)"]
[null,"Universe:  HOUSEHOLDS"]
[null,"Data Set: 2015-2019 American Community Survey 5-Year Estimates"]
[]
[null,null,"Barrington",null,"Dover",null,"Durham",null,"Farmington",null,"Lee",null,"Madbury",null,"Middleton",null,"Milton",null,"New Durham",null,"Rochester",null,"Rollinsford",null,"Somersworth",null,"Strafford"]
[null,null,"Estimate","Margin Of Error","Estimate","Margin Of Error","Estimate","Margin Of Error","Estimate","Margin Of Error","Estimate","Margin Of Error","Estimate","Margin Of Error","Estimate","Margin Of Error","Estimate","Margin Of Error","Estimate","Margin Of Error","Estimate","Margin Of Error","Estimate","Margin Of Error","Estimate","Margin Of Error","Estimate","Margin Of Error"]
[null,"Total:",3183,200,13489,308,3187,199,2868,200,1876,180,615,47,658,59,1811,105,953,64,12780,347,1040,61,5127,249,1395,85]
[null,"Householder under 25 years:",19,29,1013,230,885,150,139,143,0,11,3,5,10,10,14,22,0,11,542,211,42,37,203,165,38,38]
[null,"Less than $10,000",0,16,48,55,322,125,0,16,0,11,0,11,0,11,0,11,0,11,0,24,6,11,124,146,0,11]
[null,"$10,000 to $14,999",0,16,114,84,76,69,0,16,0,11,0,11,5,7,0,11,0,11,0,24,0,11,0,18,0,11]
[null,"$15,000 to $19,999",0,16,0,24,62,41,0,16,0,11,0,11,0,11,0,11,0,11,31,50,8,12,0,18,0,11]
[null,"$20,000 to $24,999",0,16,99,77,20,22,0,16,0,11,0,11,0,11,0,11,0,11,95,103,8,13,0,18,0,11]
[null,"$25,000 to $29,999",19,29,69,63,83,50,0,16,0,11,0,11,0,11,0,11,0,11,53,54,0,11,0,18,0,11]
[null,"$30,000 to $34,999",0,16,51,54,79,48,75,117,0,11,0,11,0,11,0,11,0,11,24,36,0,11,0,18,0,11]
[null,"$35,000 to $39,999",0,16,46,51,30,32,64,99,0,11,0,11,0,11,0,11,0,11,0,24,0,11,0,18,0,11]
[null,"$40,000 to $44,999",0,16,60,62,25,24,0,16,0,11,0,11,0,11,0,11,0,11,0,24,0,11,0,18,0,11]
[null,"$45,000 to $49,999",0,16,123,124,57,55,0,16,0,11,0,11,5,7,0,11,0,11,0,24,0,11,0,18,0,11]
[null,"$50,000 to $59,999",0,16,127,81,27,25,0,16,0,11,0,11,0,11,0,11,0,11,7,11,0,11,0,18,27,32]
[null,"$60,000 to $74,999",0,16,73,69,33,30,0,16,0,11,0,11,0,11,0,11,0,11,77,67,0,11,5,22,11,19]
[null,"$75,000 to $99,999",0,16,131,96,37,32,0,16,0,11,3,5,0,11,0,11,0,11,67,63,20,33,0,18,0,11]
[null,"$100,000 to $124,999",0,16,27,43,0,18,0,16,0,11,0,11,0,11,14,22,0,11,176,155,0,11,32,51,0,11]
[null,"$125,000 to $149,999",0,16,23,36,9,15,0,16,0,11,0,11,0,11,0,11,0,11,12,19,0,11,42,75,0,11]
[null,"$150,000 to $199,999",0,16,0,24,25,32,0,16,0,11,0,11,0,11,0,11,0,11,0,24,0,11,0,18,0,11]
[null,"$200,000 or more",0,16,22,33,0,18,0,16,0,11,0,11,0,11,0,11,0,11,0,24,0,11,0,18,0,11]
[null,"Householder 25 to 44 years:",970,153,5141,332,588,124,802,174,414,105,150,40,179,38,426,82,178,41,3796,332,248,39,1768,256,396,73]
[null,"Less than $10,000",0,16,134,86,14,15,63,51,0,11,3,5,2,5,0,11,0,11,290,181,15,22,0,18,0,11]
[null,"$10,000 to $14,999",0,16,0,24,0,18,16,30,0,11,0,11,4,6,33,41,0,11,130,104,6,8,100,120,0,11]
[null,"$15,000 to $19,999",0,16,100,72,48,28,17,26,0,11,0,11,0,11,12,21,0,11,42,41,5,7,35,40,0,11]
[null,"$20,000 to $24,999",0,16,77,43,8,8,18,30,0,11,0,11,0,11,0,11,6,9,110,68,0,11,42,48,0,11]
[null,"$25,000 to $29,999",0,16,201,123,19,18,57,52,0,11,0,11,3,5,0,11,0,11,151,90,0,11,14,23,0,11]
[null,"$30,000 to $34,999",27,40,100,63,29,44,18,29,0,11,0,11,0,11,30,38,16,18,131,81,7,10,0,18,0,11]
[null,"$35,000 to $39,999",0,16,233,109,14,16,51,82,0,11,7,13,4,7,0,11,6,9,68,60,6,9,73,64,0,11]
[null,"$40,000 to $44,999",22,36,344,145,0,18,30,48,44,70,3,5,14,11,0,11,0,11,164,97,6,9,70,65,12,18]
[null,"$45,000 to $49,999",0,16,207,124,29,22,61,95,0,11,6,7,0,11,68,59,12,19,121,99,0,11,97,81,0,11]
[null,"$50,000 to $59,999",0,16,438,154,0,18,121,104,42,45,6,9,13,15,66,60,7,11,353,111,12,13,217,129,36,45]
[null,"$60,000 to $74,999",145,124,531,204,36,29,0,16,0,11,9,9,7,9,79,57,44,26,347,150,58,29,230,111,91,58]
[null,"$75,000 to $99,999",165,134,908,227,70,46,126,82,0,11,10,12,51,24,63,52,38,24,936,214,49,30,403,141,44,33]
[null,"$100,000 to $124,999",203,105,686,188,71,40,149,99,87,61,26,16,32,15,24,30,15,15,457,143,24,18,227,109,74,63]
[null,"$125,000 to $149,999",132,106,345,127,25,21,19,30,44,44,20,13,23,18,0,11,0,11,213,100,25,17,189,102,0,11]
[null,"$150,000 to $199,999",233,135,501,185,75,40,56,60,91,98,13,13,17,12,41,38,28,21,201,76,29,18,52,54,122,69]
[null,"$200,000 or more",43,49,336,125,150,58,0,16,106,74,47,24,9,8,10,15,6,10,82,71,6,9,19,31,17,22]
[null,"Householder 45 to 64 years:",1673,215,4288,336,936,108,1241,171,1028,205,356,61,331,47,941,119,517,54,5002,317,479,72,2114,227,679,74]
[null,"Less than $10,000",53,82,154,108,32,38,44,44,0,11,4,6,13,10,10,15,33,33,151,101,0,11,134,102,15,17]
[null,"$10,000 to $14,999",13,22,200,85,0,18,0,16,0,11,3,6,3,5,23,35,10,14,251,108,19,22,37,41,0,11]
[null,"$15,000 to $19,999",31,34,180,121,7,12,17,30,26,38,0,11,6,6,30,27,5,7,194,113,0,11,36,43,0,11]
[null,"$20,000 to $24,999",107,119,48,43,0,18,0,16,0,11,4,6,10,9,38,34,6,8,209,113,15,13,93,64,0,11]
[null,"$25,000 to $29,999",25,31,69,55,22,20,64,81,63,71,0,11,14,17,7,11,0,11,159,87,24,34,16,27,62,47]
[null,"$30,000 to $34,999",45,70,89,72,8,12,43,45,39,42,3,5,3,4,0,11,17,25,186,86,0,11,91,60,9,13]
[null,"$35,000 to $39,999",53,84,102,87,0,18,32,40,32,48,6,7,15,15,36,29,7,10,233,110,5,9,209,88,0,11]
[null,"$40,000 to $44,999",67,56,96,68,19,27,32,37,0,11,0,11,10,10,40,31,0,11,172,80,5,8,36,43,15,20]
[null,"$45,000 to $49,999",0,16,133,97,7,11,0,16,0,11,4,6,7,8,41,50,7,9,146,78,21,17,54,52,0,11]
[null,"$50,000 to $59,999",76,62,225,97,31,25,27,32,34,39,37,28,6,6,79,58,22,17,432,160,42,37,172,101,48,35]
[null,"$60,000 to $74,999",161,86,397,145,29,33,113,77,84,88,20,14,66,27,81,55,58,27,529,146,44,26,306,159,36,29]
[null,"$75,000 to $99,999",184,87,677,147,96,52,332,164,345,164,52,30,62,21,38,30,59,28,802,178,30,16,356,137,73,39]
[null,"$100,000 to $124,999",202,91,550,142,119,49,334,140,112,71,29,19,32,18,256,112,96,41,481,143,63,26,188,84,110,51]
[null,"$125,000 to $149,999",120,103,295,120,156,68,81,82,89,100,31,15,36,22,101,59,61,30,375,113,66,34,104,79,98,59]
[null,"$150,000 to $199,999",279,149,596,167,180,65,89,85,50,57,50,33,15,11,122,62,77,33,428,137,63,25,236,109,115,47]
[null,"$200,000 or more",257,123,477,139,230,76,33,51,154,82,113,38,33,21,39,29,59,29,254,85,82,34,46,40,98,45]
[null,"Householder 65 years and over:",521,137,3047,314,778,108,686,163,434,130,106,30,138,37,430,101,258,59,3440,278,271,50,1042,145,282,59]
[null,"Less than $10,000",0,16,148,66,41,31,59,92,42,68,5,5,3,5,27,41,6,8,225,100,43,39,56,52,0,11]
[null,"$10,000 to $14,999",17,28,168,80,30,23,0,16,0,11,0,11,10,9,18,22,6,9,211,92,0,11,57,52,0,11]
[null,"$15,000 to $19,999",0,16,217,107,9,15,92,92,0,11,3,5,7,8,46,47,11,12,228,124,11,12,56,54,0,11]
[null,"$20,000 to $24,999",40,65,200,92,16,15,95,70,27,28,4,5,0,11,0,11,11,12,366,131,16,19,17,28,0,11]
[null,"$25,000 to $29,999",113,124,188,72,62,48,18,29,0,11,5,6,6,6,34,53,11,10,251,108,20,27,92,62,8,13]
[null,"$30,000 to $34,999",37,44,200,130,23,23,19,32,14,21,2,3,4,5,8,13,44,35,136,75,11,12,0,18,11,17]
[null,"$35,000 to $39,999",0,16,136,71,27,25,40,48,0,11,4,5,6,6,0,11,7,9,271,131,11,11,90,64,51,32]
[null,"$40,000 to $44,999",20,34,17,26,26,25,58,60,30,24,5,6,21,17,18,20,32,28,199,97,21,17,91,55,8,13]
[null,"$45,000 to $49,999",18,29,117,70,0,18,49,61,0,11,0,11,16,10,9,15,6,9,160,93,5,7,72,57,16,18]
[null,"$50,000 to $59,999",45,42,314,122,18,19,49,73,29,32,3,4,13,10,72,41,17,14,304,111,47,25,126,91,47,29]
[null,"$60,000 to $74,999",88,79,339,131,65,32,53,55,24,26,18,12,22,15,72,51,39,30,367,109,20,16,74,47,35,30]
[null,"$75,000 to $99,999",70,54,504,198,96,39,90,58,60,91,22,13,20,11,19,22,42,23,349,145,29,18,130,76,48,30]
[null,"$100,000 to $124,999",0,16,89,64,50,36,21,33,41,39,6,7,4,5,18,20,7,9,240,103,11,12,105,80,23,27]
[null,"$125,000 to $149,999",17,28,190,120,85,48,0,16,53,47,6,7,0,11,81,68,6,8,34,34,6,9,58,40,20,23]
[null,"$150,000 to $199,999",19,32,86,49,127,54,43,48,59,48,13,11,3,4,8,13,6,8,83,53,20,17,0,18,7,11]
[null,"$200,000 or more",37,53,134,70,103,62,0,16,55,52,10,8,3,5,0,11,7,11,16,25,0,11,18,29,8,14]
[]
[]
[]
[]
[]
[]
[]
[]
[]
[]
[]
[]
[]
[]
[null,"B19037. AGE OF HOUSEHOLDER BY HOUSEHOLD INCOME IN THE PAST 12 MONTHS (IN 2014 INFLATION-ADJUSTED DOLLARS)"]
[null,"Universe:  HOUSEHOLDS"]
[null,"Data Set: 2010-2014 American Community Survey 5-Year Estimates"]
[]
[null,null,"Barrington",null,"Dover",null,"Durham",null,"Farmington",null,"Lee",null,"Madbury",null,"Middleton",null,"Milton",null,"New Durham",null,"Rochester",null,"Rollinsford",null,"Somersworth",null,"Strafford"]
[null,null,"Estimate","Margin Of Error","Estimate","Margin Of Error","Estimate","Margin Of Error","Estimate","Margin Of Error","Estimate","Margin Of Error","Estimate","Margin Of Error","Estimate","Margin Of Error","Estimate","Margin Of Error","Estimate","Margin Of Error","Estimate","Margin Of Error","Estimate","Margin Of Error","Estimate","Margin Of Error","Estimate","Margin Of Error"]
[null,"Total:",3307,184,12586,374,3073,263,2625,158,1774,134,655,62,553,65,1656,120,1001,64,12715,331,1024,67,4492,207,1430,118]
[null,"Householder under 25 years:",27,46,1057,269,631,118,145,125,42,49,43,31,19,16,76,53,5,8,628,193,87,56,250,145,6,11]
[null,"Less than $10,000",0,15,81,87,186,89,0,15,11,19,24,23,0,11,7,12,0,11,60,55,0,11,0,17,6,11]
[null,"$10,000 to $14,999",0,15,82,66,120,75,0,15,0,11,0,11,0,11,8,13,0,11,0,20,0,11,12,20,0,11]
[null,"$15,000 to $19,999",0,15,38,44,95,75,0,15,0,11,0,11,0,11,0,11,0,11,0,20,20,31,10,17,0,11]
[null,"$20,000 to $24,999",0,15,48,56,79,54,0,15,0,11,0,11,8,12,0,11,0,11,51,54,0,11,59,88,0,11]
[null,"$25,000 to $29,999",0,15,132,75,0,17,0,15,0,11,0,11,0,11,20,32,0,11,111,80,35,39,42,65,0,11]
[null,"$30,000 to $34,999",0,15,82,87,42,43,64,93,0,11,14,21,0,11,0,11,0,11,0,20,0,11,0,17,0,11]
[null,"$35,000 to $39,999",0,15,26,29,11,12,81,99,0,11,0,11,5,8,6,10,0,11,18,30,0,11,0,17,0,11]
[null,"$40,000 to $44,999",0,15,93,75,27,29,0,15,31,46,0,11,0,11,0,11,0,11,39,40,0,11,0,17,0,11]
[null,"$45,000 to $49,999",0,15,98,70,19,31,0,15,0,11,0,11,0,11,0,11,0,11,173,115,17,23,44,71,0,11]
[null,"$50,000 to $59,999",0,15,207,160,42,51,0,15,0,11,0,11,0,11,26,34,0,11,14,24,15,22,32,41,0,11]
[null,"$60,000 to $74,999",27,46,55,50,5,8,0,15,0,11,0,11,3,5,0,11,0,11,87,93,0,11,51,58,0,11]
[null,"$75,000 to $99,999",0,15,46,45,5,8,0,15,0,11,5,8,3,4,9,15,5,8,21,33,0,11,0,17,0,11]
[null,"$100,000 to $124,999",0,15,7,12,0,17,0,15,0,11,0,11,0,11,0,11,0,11,0,20,0,11,0,17,0,11]
[null,"$125,000 to $149,999",0,15,62,74,0,17,0,15,0,11,0,11,0,11,0,11,0,11,44,68,0,11,0,17,0,11]
[null,"$150,000 to $199,999",0,15,0,23,0,17,0,15,0,11,0,11,0,11,0,11,0,11,0,20,0,11,0,17,0,11]
[null,"$200,000 or more",0,15,0,23,0,17,0,15,0,11,0,11,0,11,0,11,0,11,10,16,0,11,0,17,0,11]
[null,"Householder 25 to 44 years:",1101,165,4610,346,693,116,650,132,503,124,246,63,173,35,465,93,281,56,3782,323,264,67,1718,228,290,76]
[null,"Less than $10,000",48,74,215,127,41,44,14,22,0,11,0,11,0,11,36,39,0,11,246,136,0,11,182,131,0,11]
[null,"$10,000 to $14,999",56,52,147,91,0,17,37,48,0,11,0,11,0,11,9,13,7,11,117,60,12,12,52,43,0,11]
[null,"$15,000 to $19,999",0,15,82,65,17,15,28,36,0,11,0,11,3,5,0,11,6,9,133,77,0,11,34,45,0,11]
[null,"$20,000 to $24,999",0,15,351,171,4,7,87,64,0,11,0,11,0,11,32,38,12,17,162,117,14,14,95,82,0,11]
[null,"$25,000 to $29,999",63,83,309,159,0,17,0,15,27,43,4,7,0,11,14,18,6,8,226,101,0,11,40,35,31,47]
[null,"$30,000 to $34,999",32,53,126,77,11,14,17,30,0,11,4,7,0,11,13,17,19,16,196,113,10,11,0,17,9,14]
[null,"$35,000 to $39,999",100,103,299,115,18,19,27,35,0,11,0,11,5,7,20,24,10,11,224,102,8,10,84,66,0,11]
[null,"$40,000 to $44,999",0,15,103,52,52,53,18,27,0,11,5,7,13,19,8,13,5,7,292,125,6,10,97,62,0,11]
[null,"$45,000 to $49,999",59,74,165,78,5,9,14,24,16,24,3,6,10,10,21,21,4,6,156,77,6,9,103,63,20,32]
[null,"$50,000 to $59,999",59,62,329,145,56,44,46,42,48,56,17,25,22,21,38,31,19,14,409,168,46,35,93,72,18,20]
[null,"$60,000 to $74,999",103,69,526,171,45,36,108,82,75,66,18,25,24,17,71,53,19,16,332,106,29,33,156,75,44,43]
[null,"$75,000 to $99,999",150,104,859,189,111,54,64,62,97,74,36,26,41,25,134,65,45,29,660,170,25,17,352,167,36,28]
[null,"$100,000 to $124,999",150,103,414,143,88,48,119,87,161,146,36,26,35,24,32,24,68,36,268,117,68,62,220,115,66,39]
[null,"$125,000 to $149,999",41,40,241,92,66,37,45,41,0,11,43,24,8,7,18,22,25,20,158,86,0,11,114,101,26,27]
[null,"$150,000 to $199,999",143,131,203,90,108,56,26,30,40,44,21,14,9,8,19,21,36,31,111,72,26,20,73,66,32,26]
[null,"$200,000 or more",97,79,241,109,71,44,0,15,39,45,59,32,3,5,0,11,0,11,92,70,14,14,23,37,8,13]
[null,"Householder 45 to 64 years:",1739,191,4340,324,1057,133,1336,181,786,151,257,49,267,41,784,120,521,74,5236,309,451,61,1673,217,797,112]
[null,"Less than $10,000",43,44,183,92,37,31,0,15,55,66,0,11,11,8,8,11,15,12,264,116,5,7,130,79,16,18]
[null,"$10,000 to $14,999",83,76,110,65,0,17,68,80,28,43,5,6,19,13,30,32,14,14,315,117,8,8,112,69,0,11]
[null,"$15,000 to $19,999",0,15,114,81,35,29,118,128,0,11,6,7,0,11,15,17,14,22,280,111,7,10,24,27,8,12]
[null,"$20,000 to $24,999",44,53,129,76,30,29,138,87,0,11,11,14,13,14,89,63,19,17,152,79,43,28,107,86,20,32]
[null,"$25,000 to $29,999",52,42,68,46,35,28,16,26,0,11,6,7,6,9,26,24,5,8,185,78,5,8,72,54,8,12]
[null,"$30,000 to $34,999",97,85,168,97,6,10,32,36,0,11,7,9,11,8,0,11,11,12,291,135,4,6,102,89,8,13]
[null,"$35,000 to $39,999",0,15,156,78,25,39,79,82,49,56,7,7,8,7,37,34,27,35,165,84,17,14,98,56,35,27]
[null,"$40,000 to $44,999",61,74,200,95,4,6,29,34,33,37,0,11,13,10,21,23,10,11,272,120,5,7,48,47,8,13]
[null,"$45,000 to $49,999",26,30,93,62,33,52,79,92,28,28,21,15,11,8,71,57,14,14,225,105,19,17,25,30,16,22]
[null,"$50,000 to $59,999",96,64,285,85,91,40,100,63,50,49,10,12,34,16,65,48,37,21,463,149,32,28,168,91,83,56]
[null,"$60,000 to $74,999",145,79,567,152,80,45,112,70,28,33,20,16,34,14,140,66,57,36,715,166,113,51,214,123,23,23]
[null,"$75,000 to $99,999",381,128,653,164,125,86,196,95,92,49,37,21,30,15,70,44,83,37,830,168,42,22,218,87,158,70]
[null,"$100,000 to $124,999",260,134,445,114,137,59,152,80,141,98,26,15,26,13,118,65,43,27,470,139,55,22,167,89,164,60]
[null,"$125,000 to $149,999",155,105,494,121,97,48,0,15,49,43,30,16,28,20,56,40,78,38,298,98,18,13,84,62,122,55]
[null,"$150,000 to $199,999",161,110,398,126,81,48,145,105,160,81,36,18,19,16,6,9,79,38,199,81,51,26,95,57,50,30]
[null,"$200,000 or more",135,113,277,99,241,73,72,81,73,55,35,19,4,5,32,24,15,13,112,65,27,18,9,15,78,42]
[null,"Householder 65 years and over:",440,156,2579,215,692,100,494,142,443,123,109,42,94,32,331,90,194,46,3069,241,222,45,851,155,337,84]
[null,"Less than $10,000",0,15,124,66,6,9,9,15,17,28,0,11,0,11,0,11,7,10,99,55,0,11,25,28,10,16]
[null,"$10,000 to $14,999",35,57,186,90,43,58,56,56,0,11,6,7,2,4,20,19,6,8,474,198,10,11,78,56,31,42]
[null,"$15,000 to $19,999",56,64,207,110,54,35,95,90,92,104,3,6,20,15,32,38,4,7,310,114,36,21,78,49,11,16]
[null,"$20,000 to $24,999",0,15,247,107,26,28,45,40,0,11,5,7,6,6,9,14,0,11,168,72,15,13,60,40,16,18]
[null,"$25,000 to $29,999",0,15,226,123,49,32,15,24,0,11,14,22,8,8,15,18,5,8,325,117,19,26,108,67,44,48]
[null,"$30,000 to $34,999",9,15,133,70,38,30,11,17,16,24,7,8,12,10,40,40,16,13,171,78,23,18,20,23,0,11]
[null,"$35,000 to $39,999",52,66,252,107,7,11,13,21,0,11,11,15,8,8,29,29,18,17,216,76,6,9,26,32,0,11]
[null,"$40,000 to $44,999",37,60,199,88,27,25,41,36,0,11,9,8,3,4,46,42,36,23,207,74,14,13,88,77,11,17]
[null,"$45,000 to $49,999",12,20,52,45,0,17,60,78,17,26,3,5,3,5,7,11,0,11,248,98,17,17,52,53,45,30]
[null,"$50,000 to $59,999",22,27,142,68,68,41,45,45,0,11,7,6,13,14,9,13,44,22,168,74,9,11,38,29,7,11]
[null,"$60,000 to $74,999",45,59,296,111,44,32,37,29,55,51,2,4,10,10,53,41,23,20,325,115,20,14,107,75,54,48]
[null,"$75,000 to $99,999",59,52,214,80,145,52,0,15,82,57,7,8,6,7,40,32,19,21,164,76,18,15,128,69,6,11]
[null,"$100,000 to $124,999",43,48,162,69,54,33,23,28,80,49,5,6,3,4,12,19,10,10,69,50,21,20,15,26,17,19]
[null,"$125,000 to $149,999",9,17,41,41,33,32,0,15,59,88,7,8,0,11,9,15,0,11,75,46,0,11,0,17,43,43]
[null,"$150,000 to $199,999",61,70,74,54,42,38,0,15,25,38,7,8,0,11,0,11,0,11,50,38,9,10,10,17,8,14]
[null,"$200,000 or more",0,15,24,21,56,39,44,69,0,11,16,11,0,11,10,15,6,9,0,20,5,7,18,29,34,25]
[]
[]
[]
[]
[]
[]
[]
[]
[]
[]
[]
[]
[]
[]
[null,"B19037. AGE OF HOUSEHOLDER BY HOUSEHOLD INCOME IN THE PAST 12 MONTHS (IN 2009 INFLATION-ADJUSTED DOLLARS)"]
[null,"Universe:  HOUSEHOLDS"]
[null,"Data Set: 2005-2009 American Community Survey 5-Year Estimates"]
[]
[null,null,"Barrington",null,"Dover",null,"Durham",null,"Farmington",null,"Lee",null,"Madbury",null,"Middleton",null,"Milton",null,"New Durham",null,"Rochester",null,"Rollinsford",null,"Somersworth",null,"Strafford"]
[null,null,"Estimate","Margin Of Error","Estimate","Margin Of Error","Estimate","Margin Of Error","Estimate","Margin Of Error","Estimate","Margin Of Error","Estimate","Margin Of Error","Estimate","Margin Of Error","Estimate","Margin Of Error","Estimate","Margin Of Error","Estimate","Margin Of Error","Estimate","Margin Of Error","Estimate","Margin Of Error","Estimate","Margin Of Error"]
[null,"Total:",2961,178,11856,425,3312,328,2466,249,1900,146,586,49,602,65,1730,133,905,63,12268,366,1065,64,4949,265,1373,127]
[null,"Householder under 25 years:",82,65,1156,265,1092,218,159,125,303,102,44,35,17,27,90,84,8,12,773,280,15,23,297,137,0,114]
[null,"Less than $10,000",16,25,94,64,615,163,69,91,207,69,4,6,0,114,0,114,0,114,91,88,0,114,22,27,0,114]
[null,"$10,000 to $14,999",0,114,53,52,93,47,64,77,0,114,0,114,0,114,0,114,0,114,54,87,0,114,75,113,0,114]
[null,"$15,000 to $19,999",0,114,116,112,122,71,0,114,9,15,11,18,0,114,0,114,0,114,13,22,0,114,0,114,0,114]
[null,"$20,000 to $24,999",0,114,140,108,41,33,0,114,0,114,0,114,0,114,0,114,0,114,136,149,0,114,0,114,0,114]
[null,"$25,000 to $29,999",26,41,32,35,34,34,12,20,24,40,10,17,0,114,8,13,0,114,56,64,0,114,0,114,0,114]
[null,"$30,000 to $34,999",20,32,77,70,15,23,0,114,11,16,0,114,0,114,0,114,0,114,248,176,0,114,23,37,0,114]
[null,"$35,000 to $39,999",0,114,113,100,8,14,0,114,0,114,0,114,0,114,0,114,0,114,13,21,0,114,0,114,0,114]
[null,"$40,000 to $44,999",0,114,37,43,39,62,0,114,0,114,4,8,0,114,0,114,0,114,66,49,0,114,16,26,0,114]
[null,"$45,000 to $49,999",0,114,32,36,36,58,0,114,42,63,0,114,0,114,0,114,8,12,63,106,0,114,60,70,0,114]
[null,"$50,000 to $59,999",0,114,128,85,39,64,0,114,0,114,0,114,0,114,11,16,0,114,0,114,0,114,22,35,0,114]
[null,"$60,000 to $74,999",0,114,315,171,0,114,14,24,0,114,0,114,17,27,71,83,0,114,0,114,15,23,25,44,0,114]
[null,"$75,000 to $99,999",0,114,0,114,50,60,0,114,0,114,0,114,0,114,0,114,0,114,33,38,0,114,0,114,0,114]
[null,"$100,000 to $124,999",0,114,19,30,0,114,0,114,0,114,15,24,0,114,0,114,0,114,0,114,0,114,0,114,0,114]
[null,"$125,000 to $149,999",20,33,0,114,0,114,0,114,0,114,0,114,0,114,0,114,0,114,0,114,0,114,51,69,0,114]
[null,"$150,000 to $199,999",0,114,0,114,0,114,0,114,0,114,0,114,0,114,0,114,0,114,0,114,0,114,0,114,0,114]
[null,"$200,000 or more",0,114,0,114,0,114,0,114,10,17,0,114,0,114,0,114,0,114,0,114,0,114,3,8,0,114]
[null,"Householder 25 to 44 years:",1298,124,4547,300,506,107,811,147,457,102,210,45,208,45,658,109,295,48,4280,287,401,54,1839,222,437,89]
[null,"Less than $10,000",0,114,99,79,36,47,23,28,37,61,0,114,13,17,0,114,0,114,221,120,60,51,81,69,10,16]
[null,"$10,000 to $14,999",0,114,119,77,0,114,13,22,0,114,2,3,0,114,21,24,0,114,192,107,32,29,41,35,0,114]
[null,"$15,000 to $19,999",41,65,99,72,19,31,17,29,0,114,3,4,0,114,9,15,6,9,240,128,14,15,7,11,0,114]
[null,"$20,000 to $24,999",21,25,228,121,29,31,67,64,9,13,6,8,14,17,8,14,0,114,112,86,5,8,43,38,0,114]
[null,"$25,000 to $29,999",48,44,135,86,5,7,80,68,0,114,3,5,7,6,19,18,0,114,295,130,33,32,83,56,0,114]
[null,"$30,000 to $34,999",22,34,324,170,7,11,12,19,38,48,0,114,12,15,0,114,5,8,260,123,8,12,105,73,19,22]
[null,"$35,000 to $39,999",65,55,218,110,23,23,10,17,13,20,0,114,15,18,0,114,21,24,239,110,9,13,55,47,0,114]
[null,"$40,000 to $44,999",52,52,191,116,6,10,123,86,12,19,3,6,27,23,18,21,29,30,234,113,6,9,54,46,0,114]
[null,"$45,000 to $49,999",90,93,213,125,0,114,17,29,0,114,15,15,3,4,14,23,18,15,114,62,20,21,108,62,54,52]
[null,"$50,000 to $59,999",27,24,481,145,51,37,55,56,63,48,51,41,35,25,102,55,21,17,376,122,6,9,133,97,74,72]
[null,"$60,000 to $74,999",307,120,476,143,0,114,100,60,116,73,14,12,26,13,124,72,27,24,535,165,45,31,387,173,72,49]
[null,"$75,000 to $99,999",329,100,767,199,100,50,130,66,41,37,34,22,39,19,243,106,95,38,819,161,76,39,319,133,23,24]
[null,"$100,000 to $124,999",139,65,558,157,80,41,81,46,46,36,20,19,14,15,20,23,56,32,276,98,45,26,231,106,100,52]
[null,"$125,000 to $149,999",97,70,372,126,39,24,19,22,56,37,31,19,0,114,38,45,10,13,162,73,9,13,80,59,48,41]
[null,"$150,000 to $199,999",60,36,198,105,43,37,64,54,26,25,17,17,3,4,34,47,7,11,162,70,0,114,81,69,28,32]
[null,"$200,000 or more",0,114,69,65,68,33,0,114,0,114,11,10,0,114,8,14,0,114,43,42,33,37,31,39,9,14]
[null,"Householder 45 to 64 years:",1282,148,4151,297,1166,168,1030,177,871,114,251,43,296,53,750,155,423,82,4794,297,393,50,1855,232,716,131]
[null,"Less than $10,000",23,27,161,94,40,42,44,35,22,26,0,114,13,10,74,46,13,14,133,76,21,24,191,102,0,114]
[null,"$10,000 to $14,999",14,22,127,71,34,43,108,78,0,114,4,6,7,7,90,99,19,16,154,97,6,9,61,50,0,114]
[null,"$15,000 to $19,999",0,114,91,63,25,38,26,30,12,19,0,114,16,16,28,34,5,8,224,106,21,33,73,62,0,114]
[null,"$20,000 to $24,999",55,43,96,49,13,22,33,26,21,24,9,15,0,114,12,19,18,27,231,107,6,10,61,55,10,17]
[null,"$25,000 to $29,999",27,31,228,105,0,114,48,61,0,114,14,14,18,13,47,40,0,114,183,113,6,10,12,19,72,60]
[null,"$30,000 to $34,999",30,32,115,60,10,15,55,64,18,20,4,7,9,8,14,23,13,14,151,69,10,12,111,81,15,24]
[null,"$35,000 to $39,999",36,33,145,79,0,114,18,20,0,114,3,5,7,7,19,23,0,114,196,86,11,12,24,26,39,48]
[null,"$40,000 to $44,999",52,48,99,59,8,12,30,24,0,114,0,114,27,15,0,114,6,9,247,106,0,114,170,93,52,41]
[null,"$45,000 to $49,999",87,66,100,68,4,8,51,45,37,58,5,7,15,11,7,11,27,34,210,92,17,15,96,88,14,24]
[null,"$50,000 to $59,999",46,35,479,120,35,25,83,59,27,25,13,11,42,22,112,60,30,20,458,157,11,12,164,87,104,74]
[null,"$60,000 to $74,999",220,98,564,150,31,25,159,103,130,60,17,12,43,21,74,38,44,25,758,152,47,24,289,109,41,41]
[null,"$75,000 to $99,999",249,88,664,165,170,75,140,85,202,94,43,28,52,28,144,69,109,49,704,154,94,38,325,103,98,53]
[null,"$100,000 to $124,999",228,93,436,112,178,64,76,52,98,51,36,18,16,11,68,59,35,21,567,134,64,29,114,67,67,51]
[null,"$125,000 to $149,999",103,58,319,88,152,61,106,86,79,44,26,18,16,11,26,40,61,29,201,85,19,19,96,86,23,29]
[null,"$150,000 to $199,999",88,73,288,97,206,71,44,33,167,93,45,21,11,11,24,27,31,33,337,125,38,39,49,44,121,70]
[null,"$200,000 or more",24,28,239,81,260,78,9,14,58,39,32,18,4,5,11,17,12,14,40,31,22,18,19,22,60,37]
[null,"Householder 65 years and over:",299,91,2002,197,548,88,466,145,269,105,81,29,81,22,232,119,179,57,2421,204,256,65,958,161,220,62]
[null,"Less than $10,000",0,114,196,100,19,21,59,70,53,64,5,6,10,9,0,114,23,28,157,81,15,14,190,94,9,15]
[null,"$10,000 to $14,999",0,114,192,79,56,37,111,71,20,33,0,114,3,4,80,69,0,114,157,59,31,24,177,105,18,14]
[null,"$15,000 to $19,999",51,59,147,64,32,25,28,21,7,11,7,7,2,5,27,30,5,8,258,99,6,10,58,49,16,18]
[null,"$20,000 to $24,999",12,20,113,52,13,19,49,42,22,25,0,114,8,8,35,47,30,33,190,77,15,16,88,60,8,13]
[null,"$25,000 to $29,999",0,114,159,69,0,114,16,19,0,114,0,114,13,10,0,114,20,16,238,84,0,114,15,23,24,36]
[null,"$30,000 to $34,999",30,34,195,76,19,22,24,26,13,19,4,7,3,4,0,114,12,14,145,76,32,41,43,41,13,18]
[null,"$35,000 to $39,999",0,114,222,75,18,22,0,114,0,114,12,9,10,8,12,21,0,114,238,89,0,114,81,57,20,22]
[null,"$40,000 to $44,999",14,23,133,64,19,22,82,64,0,114,3,5,5,6,40,38,0,114,191,80,56,39,97,56,0,114]
[null,"$45,000 to $49,999",46,41,81,50,12,19,0,114,25,28,6,8,0,114,0,114,27,26,123,68,24,15,35,38,14,16]
[null,"$50,000 to $59,999",29,32,118,55,61,53,43,55,25,27,5,6,10,9,0,114,18,17,218,92,29,24,35,39,9,14]
[null,"$60,000 to $74,999",61,42,117,55,44,39,8,13,30,27,7,7,15,11,12,17,11,12,230,89,7,11,11,18,46,40]
[null,"$75,000 to $99,999",45,40,120,74,96,52,23,21,11,17,14,11,2,4,0,114,11,12,180,75,21,20,30,36,30,47]
[null,"$100,000 to $124,999",0,114,128,78,80,52,23,29,22,25,8,8,0,114,0,114,0,114,49,32,0,114,78,78,0,114]
[null,"$125,000 to $149,999",11,18,21,26,41,35,0,114,17,17,3,5,0,114,26,41,12,12,16,20,7,11,0,114,13,19]
[null,"$150,000 to $199,999",0,114,26,27,23,25,0,114,13,17,7,9,0,114,0,114,10,10,19,24,6,9,20,31,0,114]
[null,"$200,000 or more",0,114,34,29,15,22,0,114,11,17,0,114,0,114,0,114,0,114,12,20,7,11,0,114,0,114]

{"sheet":"DisabilityByAge","index":21,"n_rows":72,"n_cols":15,"rows_kept":72,"cut":false,"hidden":true,"merged":[[51,13,51,14],[28,3,28,4],[28,5,28,6],[28,7,28,8],[28,9,28,10],[28,11,28,12],[28,13,28,14],[51,3,51,4],[51,5,51,6],[51,7,51,8],[51,9,51,10],[51,11,51,12]]}
[]
[]
[]
[]
[null,{"$f":"CntyDataLink!A20","v":"Barrington"}]
[null,"SOCIAL CHARACTERISTICS"]
[]
[null,"Disabilities By Age"]
[null,null,"Universe: Civilian Non-institutionalized Population"]
[]
[]
[]
[]
[]
[]
[]
[]
[]
[]
[]
[]
[]
[]
[]
[]
[]
[]
[]
[null,null,null,"Under 5",null,"5 to 17 years",null,"18 to 34 years",null,"35 to 64 years",null,"65 to 74 years",null,"75 years and older"]
[null,null,null,"Estimate","Margin of Error","Estimate","Margin of Error","Estimate","Margin of Error","Estimate","Margin of Error","Estimate","Margin of Error","Estimate","Margin of Error"]
[null,"Total ",null,{"$f":"CntyDataLink!D112","v":507},{"$f":"CntyDataLink!E112","v":205.86646157157313},{"$f":"CntyDataLink!J112","v":1642},{"$f":"CntyDataLink!K112","v":282.24280327406046},{"$f":"CntyDataLink!P112","v":1642},{"$f":"CntyDataLink!Q112","v":285.20343616443336},{"$f":"CntyDataLink!V112","v":4471},{"$f":"CntyDataLink!W112","v":286.42101878179261},{"$f":"CntyDataLink!AB112","v":497},{"$f":"CntyDataLink!AC112","v":146.03081866510234},{"$f":"CntyDataLink!AH112","v":304},{"$f":"CntyDataLink!AI112","v":153.83432646844463}]
[]
[null,"With a disability:",null,{"$f":"CntyDataLink!F112","v":0},{"$f":"CntyDataLink!G112","v":22.627416997969522},{"$f":"CntyDataLink!L112","v":50},{"$f":"CntyDataLink!M112","v":77.665951355790398},{"$f":"CntyDataLink!R112","v":216},{"$f":"CntyDataLink!S112","v":135.79396157414365},{"$f":"CntyDataLink!X112","v":573},{"$f":"CntyDataLink!Y112","v":190.06577808748213},{"$f":"CntyDataLink!AD112","v":66},{"$f":"CntyDataLink!AE112","v":56.320511361314892},{"$f":"CntyDataLink!AJ112","v":149},{"$f":"CntyDataLink!AK112","v":127.01574705523721}]
[]
[]
[]
[null,"Type of disability"]
[null,null,"Hearing disability",{"$f":"CntyDataLink!AN112","v":0},{"$f":"CntyDataLink!AO112","v":22.627416997969522},{"$f":"CntyDataLink!AP112","v":0},{"$f":"CntyDataLink!AQ112","v":22.627416997969522},{"$f":"CntyDataLink!AR112","v":0},{"$f":"CntyDataLink!AS112","v":22.627416997969522},{"$f":"CntyDataLink!AT112","v":136},{"$f":"CntyDataLink!AU112","v":87.783825389418979},{"$f":"CntyDataLink!AV112","v":35},{"$f":"CntyDataLink!AW112","v":43.08131845707603},{"$f":"CntyDataLink!AX112","v":40},{"$f":"CntyDataLink!AY112","v":66.940271884718243}]
[null,null,"Visual disability",{"$f":"CntyDataLink!AZ112","v":0},{"$f":"CntyDataLink!BA112","v":22.627416997969522},{"$f":"CntyDataLink!BB112","v":50},{"$f":"CntyDataLink!BC112","v":77.665951355790398},{"$f":"CntyDataLink!BD112","v":58},{"$f":"CntyDataLink!BE112","v":66.887966032762577},{"$f":"CntyDataLink!BF112","v":83},{"$f":"CntyDataLink!BG112","v":70.213958726167832},{"$f":"CntyDataLink!BH112","v":35},{"$f":"CntyDataLink!BI112","v":43.08131845707603},{"$f":"CntyDataLink!BJ112","v":16},{"$f":"CntyDataLink!BK112","v":32.249030993194197}]
[null,null,"Cognitive disability","NA","NA",{"$f":"CntyDataLink!BL112","v":59},{"$f":"CntyDataLink!BM112","v":47.75981574503821},{"$f":"CntyDataLink!BN112","v":45},{"$f":"CntyDataLink!BO112","v":42.720018726587654},{"$f":"CntyDataLink!BP112","v":70},{"$f":"CntyDataLink!BQ112","v":55.758407437802596},{"$f":"CntyDataLink!BR112","v":103},{"$f":"CntyDataLink!BS112","v":98.290386101591849},{"$f":"CntyDataLink!BT112","v":58},{"$f":"CntyDataLink!BU112","v":42.80186911806539}]
[null,null,"Ambulatory disability","NA","NA",{"$f":"CntyDataLink!BV112","v":0},{"$f":"CntyDataLink!BW112","v":22.627416997969522},{"$f":"CntyDataLink!BX112","v":15},{"$f":"CntyDataLink!BY112","v":28.0178514522438},{"$f":"CntyDataLink!BZ112","v":136},{"$f":"CntyDataLink!CA112","v":88.76936408468859},{"$f":"CntyDataLink!CB112","v":134},{"$f":"CntyDataLink!CC112","v":102.95630140987001},{"$f":"CntyDataLink!CD112","v":95},{"$f":"CntyDataLink!CE112","v":58.728187440104094}]
[null,null,"Self-care disability","NA","NA",{"$f":"CntyDataLink!CF112","v":0},{"$f":"CntyDataLink!CG112","v":22.627416997969522},{"$f":"CntyDataLink!CH112","v":0},{"$f":"CntyDataLink!CI112","v":22.627416997969522},{"$f":"CntyDataLink!CJ112","v":154},{"$f":"CntyDataLink!CK112","v":130.59862173851607},{"$f":"CntyDataLink!CL112","v":17},{"$f":"CntyDataLink!CM112","v":32.249030993194197},{"$f":"CntyDataLink!CN112","v":79},{"$f":"CntyDataLink!CO112","v":103.84603988597736}]
[null,null,"Independent living disability","NA","NA","NA","NA",{"$f":"CntyDataLink!CP112","v":81},{"$f":"CntyDataLink!CQ112","v":89.10667763978185},{"$f":"CntyDataLink!CR112","v":153},{"$f":"CntyDataLink!CS112","v":128.68954891520912},{"$f":"CntyDataLink!CT112","v":31},{"$f":"CntyDataLink!CU112","v":39.395431207184416},{"$f":"CntyDataLink!CV112","v":119},{"$f":"CntyDataLink!CW112","v":121.27654348636426}]
[]
[]
[]
[null,"No disability",null,{"$f":"CntyDataLink!H112","v":507},{"$f":"CntyDataLink!I112","v":205.86646157157313},{"$f":"CntyDataLink!N112","v":1592},{"$f":"CntyDataLink!O112","v":283.69878392407679},{"$f":"CntyDataLink!T112","v":1426},{"$f":"CntyDataLink!U112","v":304.80321520613921},{"$f":"CntyDataLink!Z112","v":3898},{"$f":"CntyDataLink!AA112","v":311.93108213193506},{"$f":"CntyDataLink!AF112","v":431},{"$f":"CntyDataLink!AG112","v":133.79461872586654},{"$f":"CntyDataLink!AL112","v":155},{"$f":"CntyDataLink!AM112","v":99.35793878699377}]
[null,"Source: 2015-2019 American Community Survey Tables B18101;  B18102; B18103; B18104; B18105; B18106; and B18107"]
[null,"NA indicates that the American Community Survey does not calculate the number for that disability."]
[null,"Percent of Population with Disabilities"]
[]
[null,null,null,"Under 5",null,"5 to 17 years",null,"18 to 34 years",null,"35 to 64 years",null,"65 to 74 years",null,"75 years and older"]
[]
[null,"With a disability:",null,{"$f":"D33/D$31","v":0},null,{"$f":"F33/F$31","v":3.0450669914738125E-2},null,{"$f":"H33/H$31","v":0.13154689403166869},null,{"$f":"J33/J$31","v":0.12815924849027063},null,{"$f":"L33/L$31","v":0.13279678068410464},null,{"$f":"N33/N$31","v":0.49013157894736842}]
[]
[null,"Type of disability"]
[null,null,"Hearing disability",{"$f":"D38/D$31","v":0},null,{"$f":"F38/F$31","v":0},null,{"$f":"H38/H$31","v":0},null,{"$f":"J38/J$31","v":3.0418250950570342E-2},null,{"$f":"L38/L$31","v":7.0422535211267609E-2},null,{"$f":"N38/N$31","v":0.13157894736842105}]
[null,null,"Visual disability",{"$f":"D39/D$31","v":0},null,{"$f":"F39/F$31","v":3.0450669914738125E-2},null,3.5322777101096221E-2,null,1.8564079624245135E-2,null,7.0422535211267609E-2,null,5.2631578947368418E-2]
[null,null,"Cognitive disability","NA",null,{"$f":"F40/F$31","v":3.5931790499390985E-2},null,2.7405602923264313E-2,null,1.5656452695146501E-2,null,0.20724346076458752,null,0.19078947368421054]
[null,null,"Ambulatory disability","NA",null,{"$f":"F41/F$31","v":0},null,9.1352009744214372E-3,null,3.0418250950570342E-2,null,0.26961770623742454,null,0.3125]
[null,null,"Self-care disability","NA",null,{"$f":"F42/F$31","v":0},null,0,null,3.4444195929322297E-2,null,3.4205231388329982E-2,null,0.25986842105263158]
[null,null,"Independent living disability","NA",null,"NA",null,4.933008526187576E-2,null,3.4220532319391636E-2,null,6.2374245472837021E-2,null,0.39144736842105265]
[]
[]
[]
[null,"No disability",null,{"$f":"D47/D$31","v":1},null,{"$f":"F47/F$31","v":0.9695493300852619},null,{"$f":"H47/H$31","v":0.86845310596833125},null,{"$f":"J47/J$31","v":0.87184075150972939},null,{"$f":"L47/L$31","v":0.86720321931589539},null,{"$f":"N47/N$31","v":0.50986842105263153}]
[]
[]
[null,"Source: 2015-2019 American Community Survey Tables B18101;  B18102; B18103; B18104; B18105; B18106; and B18107",null,null,null,null,null,null,null,null,"Data from the American Community Survey are estimates."]
[null,"NA indicates that the American Community Survey does not calculate the number for that disability."]
[]
[null,"Data from the American Community Survey are estimates."]

{"sheet":"DisabilityByAgePrior5YearEst","index":22,"n_rows":72,"n_cols":15,"rows_kept":72,"cut":false,"hidden":true,"merged":[[51,13,51,14],[28,3,28,4],[28,5,28,6],[28,7,28,8],[28,9,28,10],[28,11,28,12],[28,13,28,14],[51,3,51,4],[51,5,51,6],[51,7,51,8],[51,9,51,10],[51,11,51,12]]}
[]
[]
[]
[]
[null,{"$f":"CntyDataLink!A20","v":"Barrington"}]
[null,"SOCIAL CHARACTERISTICS"]
[]
[null,"Disabilities By Age"]
[null,null,"Universe: Civilian Non-institutionalized Population"]
[]
[]
[]
[]
[]
[]
[]
[]
[]
[]
[]
[]
[]
[]
[]
[]
[]
[]
[]
[null,null,null,"Under 5",null,"5 to 17 years",null,"18 to 34 years",null,"35 to 64 years",null,"65 to 74 years",null,"75 years and older"]
[null,null,null,"Estimate","Margin of Error","Estimate","Margin of Error","Estimate","Margin of Error","Estimate","Margin of Error","Estimate","Margin of Error","Estimate","Margin of Error"]
[null,"Total ",null,{"$f":"CntyDataLinkPrior5YearEstimates!D112","v":600},{"$f":"CntyDataLinkPrior5YearEstimates!E112","v":216.00462958001617},{"$f":"CntyDataLinkPrior5YearEstimates!J112","v":1307},{"$f":"CntyDataLinkPrior5YearEstimates!K112","v":308.52552568628744},{"$f":"CntyDataLinkPrior5YearEstimates!P112","v":1527},{"$f":"CntyDataLinkPrior5YearEstimates!Q112","v":249.0461804565571},{"$f":"CntyDataLinkPrior5YearEstimates!V112","v":4301},{"$f":"CntyDataLinkPrior5YearEstimates!W112","v":257.0311265197272},{"$f":"CntyDataLinkPrior5YearEstimates!AB112","v":625},{"$f":"CntyDataLinkPrior5YearEstimates!AC112","v":166.58031096140985},{"$f":"CntyDataLinkPrior5YearEstimates!AH112","v":331},{"$f":"CntyDataLinkPrior5YearEstimates!AI112","v":139.51702405083043}]
[]
[null,"With a disability:",null,{"$f":"CntyDataLinkPrior5YearEstimates!F112","v":0},{"$f":"CntyDataLinkPrior5YearEstimates!G112","v":21.213203435596427},{"$f":"CntyDataLinkPrior5YearEstimates!L112","v":23},{"$f":"CntyDataLinkPrior5YearEstimates!M112","v":41.785164831552358},{"$f":"CntyDataLinkPrior5YearEstimates!R112","v":57},{"$f":"CntyDataLinkPrior5YearEstimates!S112","v":53.413481444294568},{"$f":"CntyDataLinkPrior5YearEstimates!X112","v":364},{"$f":"CntyDataLinkPrior5YearEstimates!Y112","v":155.05160431288675},{"$f":"CntyDataLinkPrior5YearEstimates!AD112","v":304},{"$f":"CntyDataLinkPrior5YearEstimates!AE112","v":131.82564242210239},{"$f":"CntyDataLinkPrior5YearEstimates!AJ112","v":210},{"$f":"CntyDataLinkPrior5YearEstimates!AK112","v":102.61578825892242}]
[]
[null,"With one disability:",null,{"$f":"CntyDataLinkPrior5YearEstimates!CX112","v":0},{"$f":"CntyDataLinkPrior5YearEstimates!CY112","v":15},{"$f":"CntyDataLinkPrior5YearEstimates!DB112","v":56},{"$f":"CntyDataLinkPrior5YearEstimates!DC112","v":46},{"$f":"CntyDataLinkPrior5YearEstimates!DF112","v":88},{"$f":"CntyDataLinkPrior5YearEstimates!DG112","v":53},{"$f":"CntyDataLinkPrior5YearEstimates!DJ112","v":751},{"$f":"CntyDataLinkPrior5YearEstimates!DK112","v":211},{"$f":"CntyDataLinkPrior5YearEstimates!DN112","v":0},{"$f":"CntyDataLinkPrior5YearEstimates!DO112","v":0},{"$f":"CntyDataLinkPrior5YearEstimates!DR112","v":0},{"$f":"CntyDataLinkPrior5YearEstimates!DS112","v":0}]
[]
[null,"Type of disability"]
[null,null,"Hearing disability",{"$f":"CntyDataLinkPrior5YearEstimates!AN112","v":0},{"$f":"CntyDataLinkPrior5YearEstimates!AO112","v":21.213203435596427},{"$f":"CntyDataLinkPrior5YearEstimates!AP112","v":0},{"$f":"CntyDataLinkPrior5YearEstimates!AQ112","v":21.213203435596427},{"$f":"CntyDataLinkPrior5YearEstimates!AR112","v":0},{"$f":"CntyDataLinkPrior5YearEstimates!AS112","v":21.213203435596427},{"$f":"CntyDataLinkPrior5YearEstimates!AT112","v":130},{"$f":"CntyDataLinkPrior5YearEstimates!AU112","v":90.520715861066847},{"$f":"CntyDataLinkPrior5YearEstimates!AV112","v":92},{"$f":"CntyDataLinkPrior5YearEstimates!AW112","v":70.007142492748557},{"$f":"CntyDataLinkPrior5YearEstimates!AX112","v":64},{"$f":"CntyDataLinkPrior5YearEstimates!AY112","v":52.153619241621193}]
[null,null,"Visual disability",{"$f":"CntyDataLinkPrior5YearEstimates!AZ112","v":0},{"$f":"CntyDataLinkPrior5YearEstimates!BA112","v":21.213203435596427},{"$f":"CntyDataLinkPrior5YearEstimates!BB112","v":0},{"$f":"CntyDataLinkPrior5YearEstimates!BC112","v":21.213203435596427},{"$f":"CntyDataLinkPrior5YearEstimates!BD112","v":0},{"$f":"CntyDataLinkPrior5YearEstimates!BE112","v":21.213203435596427},{"$f":"CntyDataLinkPrior5YearEstimates!BF112","v":38},{"$f":"CntyDataLinkPrior5YearEstimates!BG112","v":42.449970553582247},{"$f":"CntyDataLinkPrior5YearEstimates!BH112","v":17},{"$f":"CntyDataLinkPrior5YearEstimates!BI112","v":31.76476034853718},{"$f":"CntyDataLinkPrior5YearEstimates!BJ112","v":23},{"$f":"CntyDataLinkPrior5YearEstimates!BK112","v":40.853396431630991}]
[null,null,"Cognitive disability","NA","NA",{"$f":"CntyDataLinkPrior5YearEstimates!BL112","v":23},{"$f":"CntyDataLinkPrior5YearEstimates!BM112","v":41.785164831552358},{"$f":"CntyDataLinkPrior5YearEstimates!BN112","v":57},{"$f":"CntyDataLinkPrior5YearEstimates!BO112","v":53.413481444294568},{"$f":"CntyDataLinkPrior5YearEstimates!BP112","v":59},{"$f":"CntyDataLinkPrior5YearEstimates!BQ112","v":59.908263203000637},{"$f":"CntyDataLinkPrior5YearEstimates!BR112","v":96},{"$f":"CntyDataLinkPrior5YearEstimates!BS112","v":83.450584180100265},{"$f":"CntyDataLinkPrior5YearEstimates!BT112","v":54},{"$f":"CntyDataLinkPrior5YearEstimates!BU112","v":45.793012567421243}]
[null,null,"Ambulatory disability","NA","NA",{"$f":"CntyDataLinkPrior5YearEstimates!BV112","v":0},{"$f":"CntyDataLinkPrior5YearEstimates!BW112","v":21.213203435596427},{"$f":"CntyDataLinkPrior5YearEstimates!BX112","v":22},{"$f":"CntyDataLinkPrior5YearEstimates!BY112","v":36.249137920783717},{"$f":"CntyDataLinkPrior5YearEstimates!BZ112","v":211},{"$f":"CntyDataLinkPrior5YearEstimates!CA112","v":119.47384651043926},{"$f":"CntyDataLinkPrior5YearEstimates!CB112","v":179},{"$f":"CntyDataLinkPrior5YearEstimates!CC112","v":111.89280584559492},{"$f":"CntyDataLinkPrior5YearEstimates!CD112","v":107},{"$f":"CntyDataLinkPrior5YearEstimates!CE112","v":64.637450444769243}]
[null,null,"Self-care disability","NA","NA",{"$f":"CntyDataLinkPrior5YearEstimates!CF112","v":0},{"$f":"CntyDataLinkPrior5YearEstimates!CG112","v":21.213203435596427},{"$f":"CntyDataLinkPrior5YearEstimates!CH112","v":22},{"$f":"CntyDataLinkPrior5YearEstimates!CI112","v":36.249137920783717},{"$f":"CntyDataLinkPrior5YearEstimates!CJ112","v":12},{"$f":"CntyDataLinkPrior5YearEstimates!CK112","v":25.80697580112788},{"$f":"CntyDataLinkPrior5YearEstimates!CL112","v":17},{"$f":"CntyDataLinkPrior5YearEstimates!CM112","v":31.76476034853718},{"$f":"CntyDataLinkPrior5YearEstimates!CN112","v":38},{"$f":"CntyDataLinkPrior5YearEstimates!CO112","v":44.77722635447622}]
[null,null,"Independent living disability","NA","NA","NA","NA",{"$f":"CntyDataLinkPrior5YearEstimates!CP112","v":22},{"$f":"CntyDataLinkPrior5YearEstimates!CQ112","v":36.249137920783717},{"$f":"CntyDataLinkPrior5YearEstimates!CR112","v":94},{"$f":"CntyDataLinkPrior5YearEstimates!CS112","v":77.89736837660179},{"$f":"CntyDataLinkPrior5YearEstimates!CT112","v":26},{"$f":"CntyDataLinkPrior5YearEstimates!CU112","v":35.341194094144583},{"$f":"CntyDataLinkPrior5YearEstimates!CV112","v":152},{"$f":"CntyDataLinkPrior5YearEstimates!CW112","v":93.813645062965122}]
[]
[null,"With two or more types of disability:",null,{"$f":"CntyDataLinkPrior5YearEstimates!CZ112","v":11},{"$f":"CntyDataLinkPrior5YearEstimates!DA112","v":18},{"$f":"CntyDataLinkPrior5YearEstimates!DD112","v":89},{"$f":"CntyDataLinkPrior5YearEstimates!DE112","v":65},{"$f":"CntyDataLinkPrior5YearEstimates!DH112","v":77},{"$f":"CntyDataLinkPrior5YearEstimates!DI112","v":56},{"$f":"CntyDataLinkPrior5YearEstimates!DL112","v":0},{"$f":"CntyDataLinkPrior5YearEstimates!DM112","v":0},{"$f":"CntyDataLinkPrior5YearEstimates!DP112","v":0},{"$f":"CntyDataLinkPrior5YearEstimates!DQ112","v":0},{"$f":"CntyDataLinkPrior5YearEstimates!DT112","v":0},{"$f":"CntyDataLinkPrior5YearEstimates!DU112","v":0}]
[]
[null,"No disability",null,{"$f":"CntyDataLinkPrior5YearEstimates!H112","v":600},{"$f":"CntyDataLinkPrior5YearEstimates!I112","v":216.00462958001617},{"$f":"CntyDataLinkPrior5YearEstimates!N112","v":1284},{"$f":"CntyDataLinkPrior5YearEstimates!O112","v":305.66812067992959},{"$f":"CntyDataLinkPrior5YearEstimates!T112","v":1470},{"$f":"CntyDataLinkPrior5YearEstimates!U112","v":244.6752950340512},{"$f":"CntyDataLinkPrior5YearEstimates!Z112","v":3937},{"$f":"CntyDataLinkPrior5YearEstimates!AA112","v":271.49401466699038},{"$f":"CntyDataLinkPrior5YearEstimates!AF112","v":321},{"$f":"CntyDataLinkPrior5YearEstimates!AG112","v":131.22880781291889},{"$f":"CntyDataLinkPrior5YearEstimates!AL112","v":121},{"$f":"CntyDataLinkPrior5YearEstimates!AM112","v":94.36630754670864}]
[null,"Source: 2010-2014 American Community Survey Tables B18101;  B18102; B18103; B18104; B18105; B18106;  and B18107"]
[null,"NA indicates that the American Community Survey does not calculate the number for that disability."]
[null,"Percent of Population with Disabilities"]
[]
[null,null,null,"Under 5",null,"5 to 17 years",null,"18 to 34 years",null,"35 to 64 years",null,"65 to 74 years",null,"75 years and older"]
[]
[null,"With one disability:",null,{"$f":"D33/D$31","v":0},null,{"$f":"F33/F$31","v":1.7597551644988524E-2},null,{"$f":"H33/H$31","v":3.732809430255403E-2},null,{"$f":"J33/J$31","v":8.4631481050918389E-2},null,{"$f":"L33/L$31","v":0.4864},null,{"$f":"N33/N$31","v":0.6344410876132931}]
[]
[null,"Type of disability"]
[null,null,"Hearing disability",{"$f":"D38/D$31","v":0},null,{"$f":"F38/F$31","v":0},null,{"$f":"H38/H$31","v":0},null,{"$f":"J38/J$31","v":3.0225528946756567E-2},null,{"$f":"L38/L$31","v":0.1472},null,{"$f":"N38/N$31","v":0.19335347432024169}]
[null,null,"Visual disability",{"$f":"D39/D$31","v":0},null,{"$f":"F39/F$31","v":0},null,0,null,8.8351546152057661E-3,null,2.7199999999999998E-2,null,6.9486404833836862E-2]
[null,null,"Cognitive disability","NA",null,{"$f":"F40/F$31","v":1.7597551644988524E-2},null,3.732809430255403E-2,null,1.3717740060451058E-2,null,0.15359999999999999,null,0.16314199395770393]
[null,null,"Ambulatory disability","NA",null,{"$f":"F41/F$31","v":0},null,1.4407334643091027E-2,null,4.9058358521274124E-2,null,0.28639999999999999,null,0.32326283987915405]
[null,null,"Self-care disability","NA",null,{"$f":"F42/F$31","v":0},null,1.4407334643091027E-2,null,2.7900488258544524E-3,null,2.7199999999999998E-2,null,0.11480362537764351]
[null,null,"Independent living disability","NA",null,"NA",null,1.4407334643091027E-2,null,2.1855382469193212E-2,null,4.1599999999999998E-2,null,0.45921450151057402]
[]
[]
[]
[null,"No disability",null,{"$f":"D47/D$31","v":1},null,{"$f":"F47/F$31","v":0.98240244835501145},null,{"$f":"H47/H$31","v":0.96267190569744598},null,{"$f":"J47/J$31","v":0.91536851894908156},null,{"$f":"L47/L$31","v":0.51359999999999995},null,{"$f":"N47/N$31","v":0.36555891238670696}]
[]
[]
[null,"Source: 2010-2014 American Community Survey Tables B18101;  B18102; B18103; B18104; B18105; B18106;  and B18107"]
[null,"NA indicates that the American Community Survey does not calculate the number for that disability."]
[]
[null,"Data from the American Community Survey are estimates."]

{"sheet":"ACS_Table_B18101","index":23,"n_rows":125,"n_cols":28,"rows_kept":125,"cut":false,"hidden":true,"merged":[]}
["B18101. SEX BY AGE BY DISABILITY STATUS\n"]
["Universe:  Civilian non-institutionalized population"]
["Data Set: 2015-2019 American Community Survey 5-Year Estimates"]
[]
[null,null,"Barrington",null,"Dover",null,"Durham",null,"Farmington",null,"Lee",null,"Madbury",null,"Middleton",null,"Milton",null,"New Durham",null,"Rochester",null,"Rollinsford",null,"Somersworth",null,"Strafford"]
[null,null,"Estimate","Margin Of Error","Estimate","Margin Of Error","Estimate","Margin Of Error","Estimate","Margin Of Error","Estimate","Margin Of Error","Estimate","Margin Of Error","Estimate","Margin Of Error","Estimate","Margin Of Error","Estimate","Margin Of Error","Estimate","Margin Of Error","Estimate","Margin Of Error","Estimate","Margin Of Error","Estimate","Margin Of Error"]
[null,"Total",9063,31,30696,253,16461,28,6930,17,4485,18,1901,157,1780,160,4620,24,2697,17,30647,144,2547,37,11848,74,4131,24]
[null,"Male:",4525,271,14501,452,7711,354,3696,257,2173,185,992,99,886,86,2398,142,1319,84,15249,387,1158,82,5787,351,1996,137]
[null,"Under 5 years:",308,150,939,186,126,69,216,146,80,92,51,24,36,24,90,60,28,23,594,188,49,25,290,128,211,96]
[null,"With a disability",0,16,0,24,0,18,0,16,0,11,0,11,0,11,0,11,0,11,0,24,0,11,54,61,0,11]
[null,"No disability",308,150,939,186,126,69,216,146,80,92,51,24,36,24,90,60,28,23,594,188,49,25,236,126,211,96]
[null,"5 to 17 years:",926,205,1775,252,489,95,526,144,421,147,194,62,126,45,405,82,248,68,2907,288,140,56,890,212,178,100]
[null,"With a disability",50,76,101,107,45,35,27,34,0,11,3,4,3,4,17,18,7,10,275,116,49,29,44,50,25,41]
[null,"No disability",876,207,1674,250,444,88,499,149,421,147,191,62,123,45,388,83,241,68,2632,270,91,45,846,205,153,73]
[null,"18 to 34 years:",768,170,4216,454,5285,418,784,213,89,76,164,56,148,42,504,155,243,68,3448,334,248,58,1697,302,406,115]
[null,"With a disability",105,98,258,115,169,71,28,44,0,11,9,10,0,11,38,60,9,12,292,121,7,10,161,96,18,28]
[null,"No disability",663,184,3958,437,5116,415,756,205,89,76,155,54,148,42,466,146,234,64,3156,334,241,57,1536,298,388,119]
[null,"35 to 64 years:",2126,199,5399,343,1221,145,1658,211,1228,166,473,65,471,57,1000,126,595,56,5927,338,565,61,2281,252,914,97]
[null,"With a disability",284,149,409,142,85,43,252,151,157,134,22,14,61,28,226,85,60,38,1018,230,65,34,241,121,95,51]
[null,"No disability",1842,226,4990,351,1136,141,1406,204,1071,185,451,65,410,52,774,123,535,58,4909,320,500,68,2040,231,819,93]
[null,"65 to 74 years:",293,115,1322,218,406,88,324,138,288,108,63,23,73,25,284,88,153,47,1449,208,90,28,395,110,175,60]
[null,"With a disability",66,54,459,158,53,36,130,85,80,76,7,7,25,13,42,31,36,28,310,91,21,17,82,74,35,27]
[null,"No disability",227,99,863,190,353,81,194,117,208,91,56,20,48,20,242,85,117,39,1139,194,69,23,313,107,140,56]
[null,"75 years and over:",104,79,850,165,184,63,188,84,67,47,47,23,32,21,115,58,52,34,924,151,66,35,234,74,112,40]
[null,"With a disability",46,47,403,147,66,38,112,66,13,21,28,21,14,17,79,52,26,31,516,156,31,18,15,21,47,27]
[null,"No disability",58,64,447,131,118,49,76,55,54,41,19,10,18,12,36,27,26,16,408,143,35,30,219,79,65,33]
[null,"Female:",4538,270,16195,455,8750,354,3234,257,2312,183,909,100,894,103,2222,144,1378,82,15398,376,1389,75,6061,351,2135,135]
[null,"Under 5 years:",199,141,1094,244,140,62,105,74,50,45,61,39,53,27,143,68,57,37,649,175,50,30,363,172,102,54]
[null,"With a disability",0,16,0,24,0,18,0,16,0,11,0,11,0,11,0,11,0,11,0,24,0,11,0,18,0,11]
[null,"No disability",199,141,1094,244,140,62,105,74,50,45,61,39,53,27,143,68,57,37,649,175,50,30,363,172,102,54]
[null,"5 to 17 years:",716,194,2211,236,595,150,577,161,278,98,198,50,145,50,242,104,264,74,2035,237,240,66,890,155,436,134]
[null,"With a disability",0,16,64,69,11,12,20,31,21,31,6,7,0,11,0,11,0,11,58,55,18,14,0,18,0,11]
[null,"No disability",716,194,2147,245,584,149,557,150,257,102,192,50,145,50,242,104,264,74,1977,255,222,66,890,155,436,134]
[null,"18 to 34 years:",874,229,4772,445,6118,406,617,153,481,210,139,46,165,38,424,100,200,78,3078,406,274,72,1390,255,304,100]
[null,"With a disability",111,94,346,131,333,114,142,127,0,11,6,7,0,11,24,29,20,17,505,248,32,39,54,64,40,46]
[null,"No disability",763,243,4426,458,5785,397,475,137,481,210,133,46,165,38,400,103,180,77,2573,388,242,59,1336,248,264,97]
[null,"35 to 64 years:",2345,206,5553,399,1250,125,1371,182,1123,142,421,49,417,57,956,122,613,47,6551,335,566,63,2474,218,928,102]
[null,"With a disability",289,118,666,164,84,38,168,94,25,32,15,11,49,21,100,59,82,33,1570,291,76,38,484,144,83,68]
[null,"No disability",2056,215,4887,390,1166,121,1203,191,1098,142,406,49,368,52,856,133,531,57,4981,360,490,61,1990,211,845,102]
[null,"65 to 74 years:",204,90,1487,205,344,71,275,110,273,111,51,20,73,24,289,101,198,48,1741,202,129,37,535,126,197,48]
[null,"With a disability",0,16,363,133,67,48,0,16,0,11,8,7,3,4,44,29,74,42,339,130,5,7,162,96,7,11]
[null,"No disability",204,90,1124,212,277,65,275,110,273,111,43,19,70,23,245,95,124,34,1402,202,124,36,373,109,190,47]
[null,"75 years and over:",200,132,1078,210,303,68,289,125,107,79,39,21,41,17,168,82,46,26,1344,210,130,47,409,134,168,57]
[null,"With a disability",103,118,548,140,120,44,178,114,21,32,3,5,21,14,76,57,26,18,511,127,59,38,240,98,90,44]
[null,"No disability",97,76,530,146,183,62,111,68,86,75,36,19,20,10,92,62,20,17,833,200,71,36,169,98,78,41]
[]
[]
[{"$f":"A1& \"-Calculated\"","v":"B18101. SEX BY AGE BY DISABILITY STATUS\n-Calculated"}]
[{"$f":"A2","v":"Universe:  Civilian non-institutionalized population"}]
[{"$f":"A3","v":"Data Set: 2015-2019 American Community Survey 5-Year Estimates"}]
[]
[]
[null,null,"Barrington",null,"Dover",null,"Durham",null,"Farmington",null,"Lee",null,"Madbury",null,"Middleton",null,"Milton",null,"New Durham",null,"Rochester",null,"Rollinsford",null,"Somersworth",null,"Strafford"]
[null,null,"Estimate","Margin Of Error","Estimate","Margin Of Error","Estimate","Margin Of Error","Estimate","Margin Of Error","Estimate","Margin Of Error","Estimate","Margin Of Error","Estimate","Margin Of Error","Estimate","Margin Of Error","Estimate","Margin Of Error","Estimate","Margin Of Error","Estimate","Margin Of Error","Estimate","Margin Of Error","Estimate","Margin Of Error"]
[null,"Total",{"$f":"C7","v":9063},31,30696,253,16461,28,6930,17,4485,18,1901,157,1780,160,4620,24,2697,17,30647,144,2547,37,{"$f":"Y7","v":11848},{"$f":"Z7","v":74},{"$f":"AA7","v":4131},{"$f":"AB7","v":24}]
[null,"Under 5 years:",{"$f":"C28+C9","v":507},{"$f":"SQRT((D28^2)+(D9^2))","v":205.86646157157313},{"$f":"E28+E9","v":2033},{"$f":"SQRT((F28^2)+(F9^2))","v":306.80938707933956},{"$f":"G28+G9","v":266},{"$f":"SQRT((H28^2)+(H9^2))","v":92.763139231054481},{"$f":"I28+I9","v":321},{"$f":"SQRT((J28^2)+(J9^2))","v":163.68261972488099},{"$f":"K28+K9","v":130},{"$f":"SQRT((L28^2)+(L9^2))","v":102.41581909060729},{"$f":"M28+M9","v":112},{"$f":"SQRT((N28^2)+(N9^2))","v":45.793012567421243},{"$f":"O28+O9","v":89},{"$f":"SQRT((P28^2)+(P9^2))","v":36.124783736376884},{"$f":"Q28+Q9","v":233},{"$f":"SQRT((R28^2)+(R9^2))","v":90.686272390037075},{"$f":"S28+S9","v":85},{"$f":"SQRT((T28^2)+(T9^2))","v":43.56604182158393},{"$f":"U28+U9","v":1243},{"$f":"SQRT((V28^2)+(V9^2))","v":256.84431081883048},{"$f":"W28+W9","v":99},{"$f":"SQRT((X28^2)+(X9^2))","v":39.05124837953327},653,214.40149253211834,{"$f":"AA28+AA9","v":313},{"$f":"SQRT((AB28^2)+(AB9^2))","v":110.14535850411491}]
[null,"With a disability",{"$f":"C29+C10","v":0},{"$f":"SQRT((D29^2)+(D10^2))","v":22.627416997969522},{"$f":"E29+E10","v":0},{"$f":"SQRT((F29^2)+(F10^2))","v":33.941125496954278},{"$f":"G29+G10","v":0},{"$f":"SQRT((H29^2)+(H10^2))","v":25.45584412271571},{"$f":"I29+I10","v":0},{"$f":"SQRT((J29^2)+(J10^2))","v":22.627416997969522},{"$f":"K29+K10","v":0},{"$f":"SQRT((L29^2)+(L10^2))","v":15.556349186104045},{"$f":"M29+M10","v":0},{"$f":"SQRT((N29^2)+(N10^2))","v":15.556349186104045},{"$f":"O29+O10","v":0},{"$f":"SQRT((P29^2)+(P10^2))","v":15.556349186104045},{"$f":"Q29+Q10","v":0},{"$f":"SQRT((R29^2)+(R10^2))","v":15.556349186104045},{"$f":"S29+S10","v":0},{"$f":"SQRT((T29^2)+(T10^2))","v":15.556349186104045},{"$f":"U29+U10","v":0},{"$f":"SQRT((V29^2)+(V10^2))","v":33.941125496954278},0,15.556349186104045,54,63.600314464631381,0,15.556349186104045]
[null,"No disability",{"$f":"C30+C11","v":507},205.86646157157313,2033,306.80938707933956,266,92.763139231054481,321,163.68261972488099,130,102.41581909060729,112,45.793012567421243,89,36.124783736376884,233,90.686272390037075,85,43.56604182158393,1243,256.84431081883048,99,39.05124837953327,599,213.21350801485352,313,110.14535850411491]
[null,"5 to 17 years:",1642,282.24280327406046,3986,345.25353003264138,1084,177.55280904564702,1103,216.00231480241132,699,176.67201249773547,392,79.649231006959511,271,67.268120235368556,647,132.43866504914644,512,100.4987562112089,4942,372.97855166215658,380,86.556340033529608,1780,262.6194966105906,614,167.20047846821492]
[null,"With a disability",50,77.665951355790398,165,127.3184982632139,56,37,47,46.010868281309364,21,32.893768406797051,9,8.0622577482985491,3,11.704699910719626,17,21.095023109728988,7,14.866068747318506,333,128.37834708392222,67,32.202484376209235,44,53.141321022345693,25,42.449970553582247]
[null,"No disability",1592,283.69878392407679,3821,350.03571246374275,1028,173.04623659588788,1056,211.42611002428248,678,178.92177061498134,383,79.649231006959511,268,67.268120235368556,630,133.06013678032951,505,100.4987562112089,4609,371.38255209419839,313,79.881161734166085,1736,257.00194551792794,589,152.59423318068085]
[null,"18 to 34 years:",1642,285.20343616443336,8988,635.72085068841341,11403,582.71777045152828,1401,262.25560051217207,570,223.32935319836486,303,72.47068372797375,313,56.639209034025185,928,184.45866745696716,443,103.47946656221224,6526,525.72996871017347,522,92.455394650609762,3087,395.25814349612079,710,152.3975065412817]
[null,"With a disability",216,135.79396157414365,604,174.31580536486069,502,134.30189872075525,170,134.40610105199838,0,15.556349186104045,15,12.206555615733702,0,15.556349186104045,62,66.640828326184547,29,20.808652046684813,797,275.94383486499567,39,40.26164427839479,215,115.37764081484765,58,53.851648071345039]
[null,"No disability",1426,304.80321520613921,8384,633.03475418021083,10901,574.31176202477343,1231,246.56439321199645,570,223.32935319836486,288,70.936591403872796,313,56.639209034025185,866,178.67568385205638,414,100.12492197250393,5729,511.95702944680818,483,82.03657720797473,2872,387.6957570054127,652,153.52524222420234]
[null,"35 to 64 years:",4471,286.42101878179261,10952,526.16537324305182,2471,191.44189719076647,3029,278.64852413031008,2351,218.44907873461037,894,81.400245699874887,888,80.610173055266415,1956,175.38529014715002,1208,73.109506905736964,12478,475.88759176931688,1131,87.692645073575008,4755,333.20864334527698,1842,140.75865870347016]
[null,"With a disability",573,190.06577808748213,1075,216.93316943243141,169,57.384666941614292,420,177.86792853125601,182,137.7679207943562,37,17.804493814764857,110,35,326,103.46980235798269,142,50.328918128646478,2588,370.91912865205535,141,50.990195135927848,725,188.08774548066654,178,85]
[null,"No disability",3898,311.93108213193506,9877,524.69133783587472,2302,185.80096878111266,2609,279.45840477609545,2169,233.21449354617735,857,81.400245699874887,778,73.53910524340094,1630,181.1573901335521,1066,81.320354155647891,9890,481.6637831516918,990,91.35097153287424,4030,312.86099149622345,1664,138.03260484392808]
[null,"65 to 74 years:",497,146.03081866510234,2809,299.24738929521175,750,113.07077429645558,599,176.47662734764623,561,154.87091398968369,114,30.479501308256342,146,34.655446902326915,573,133.9589489358587,351,67.178865724273734,3190,289.94482233694049,219,46.400431032480725,930,167.26027621644059,372,76.837490849194182]
[null,"With a disability",66,56.320511361314892,822,206.52602741543257,120,60,130,86.49277426467485,80,76.791926658991954,15,9.8994949366116654,28,13.601470508735444,86,42.449970553582247,110,50.47771785649585,649,158.68522300453813,26,18.384776310850235,244,121.21056059601408,42,29.154759474226502]
[null,"No disability",431,133.79461872586654,1987,284.68227904103901,630,103.85566907973777,469,160.58953888718904,481,143.53396810511441,99,27.586228448267445,118,30.479501308256342,487,127.47548783981962,241,51.739733281106119,2541,280.07141946296485,193,42.720018726587654,686,152.74161188098023,330,73.109506905736964]
[null,"75 years and over:",304,153.83432646844463,1928,267.06740722147282,487,92.69843580125827,477,150.60212481900777,174,91.923881554251182,86,31.144823004794873,73,27.018512172212592,283,100.43903623591775,98,42.80186911806539,2268,258.65227623200997,196,58.600341295934449,643,153.07514494521962,280,69.634761434214738]
[null,"With a disability",149,127.01574705523721,951,203,186,58.137767414994535,290,131.7269904006009,34,38.275318418009277,31,21.587033144922902,35,22.022715545545239,155,77.155686763841331,52,35.846896657869841,1027,201.15914098046849,90,42.047592083257278,255,100.22474744293447,137,51.623637996561229]
[null,"No disability",155,99.35793878699377,977,196.15555052049891,301,79.025312400521386,187,87.458561616344909,140,85.475142585432408,55,21.470910553583888,38,15.620499351813308,128,67.623960250786851,46,23.345235059857504,1241,245.86378342488754,106,46.861498055439924,388,125.87692401707312,143,52.630789467763066]
[]
[]
[]
[]
[]
[]
[]
[]
[]
[]
[]
[]
[]
[]
[]
[]
[]
[]
[]
[]
[]
[]
[]
[]
[]
[]
["B18101. SEX BY AGE BY DISABILITY STATUS\n-Calculated"]
["Universe:  Civilian non-institutionalized population"]
["Data Set: 2010-2014 American Community Survey 5-Year Estimates"]
[]
[]
[null,null,"Barrington",null,"Dover",null,"Durham",null,"Farmington",null,"Lee",null,"Madbury",null,"Middleton",null,"Milton",null,"New Durham",null,"Rochester",null,"Rollinsford",null,"Somersworth",null,"Strafford"]
[null,null,"Estimate","Margin Of Error","Estimate","Margin Of Error","Estimate","Margin Of Error","Estimate","Margin Of Error","Estimate","Margin Of Error","Estimate","Margin Of Error","Estimate","Margin Of Error","Estimate","Margin Of Error","Estimate","Margin Of Error","Estimate","Margin Of Error","Estimate","Margin Of Error","Estimate","Margin Of Error","Estimate","Margin Of Error"]
[null,"Total",8691,17,29373,345,15169,37,6805,45,4357,15,1995,170,1563,168,4576,27,2648,16,29661,116,2506,31,11694,51,4017,28]
[null,"Under 5 years:",600,216.00462958001617,1640,272.80945731407479,382,123.45849504995596,306,132.40090634130871,97,68.622153857191051,104,39.962482405376171,90,41.231056256176608,219,87.658428003244509,150,51.884487084291386,1733,291.74303762043746,263,98.412397592986224,832,189.84203960134857,153,83.450584180100265]
[null,"With a disability",0,21.213203435596427,0,32.526911934581186,0,24.041630560342615,18,32.649655434629018,0,15.556349186104045,0,15.556349186104045,0,15.556349186104045,0,15.556349186104045,0,15.556349186104045,48,75.690157880665041,0,15.556349186104045,0,24.041630560342615,0,15.556349186104045]
[null,"No disability",600,216.00462958001617,1640,272.80945731407479,382,123.45849504995596,288,119.85407794480753,97,68.622153857191051,104,39.962482405376171,90,41.231056256176608,219,87.658428003244509,150,51.884487084291386,1685,288.4250335875858,263,98.412397592986224,832,189.84203960134857,153,83.450584180100265]
[null,"5 to 17 years:",1307,308.52552568628744,4542,357.45908856818846,1295,202.82997806044352,1130,270.94648918190472,875,230.52114870440846,463,97.652444925869617,275,72.47068372797375,824,142.42541907960108,462,98.994949366116657,4043,414.71194822430664,409,82.09750300709517,1839,288.51343122981297,794,142.87407042567241]
[null,"With a disability",23,41.785164831552358,309,133.843191832831,82,52.630789467763066,211,132.74034804836094,93,102.88342918079665,18,24.596747752497688,26,17.720045146669349,0,15.556349186104045,31,21.023796041628639,272,116.81181447096864,16,20.248456731316587,107,80.212218520621903,30,24.596747752497688]
[null,"No disability",1284,305.66812067992959,4233,347.13109915419562,1213,201.40009930484146,919,250.31979546172531,782,224.18073066166949,445,99.297532698451278,249,72.945184899347538,824,142.42541907960108,431,100.41912168506553,3771,409.05989781448875,393,76.400261779656233,1732,280.72228269234347,764,139.51702405083043]
[null,"18 to 34 years:",1527,249.0461804565571,7875,561.69920776159188,9544,619.46832041679102,1476,351.31894341182345,755,211.303099835284,400,115.83177456984762,338,65.855903304107827,951,169.83815825661793,394,77.466121627457255,6797,465.24187257812468,453,94.36630754670864,3157,377.06895921038102,616,145.16542288024377]
[null,"With a disability",57,53.413481444294568,555,189.1718795170149,473,161.15210206509875,151,108.04628637764465,2,9.2195444572928871,6,13.038404810405298,24,16.124515496597098,122,65.215028942721474,45,37.947331922020552,597,183.83144453547658,27,27.513632984395208,283,147.92227688891217,28,31.953090617340916]
[null,"No disability",1470,244.6752950340512,7320,550.51339674888925,9071,594.83443074522847,1325,345.89160151700708,753,211.303099835284,394,115.39497389401325,314,60.141499815019579,829,166.23477373883,349,72.249567472753768,6200,455.28123176779428,426,93.085981758801893,2874,377.9735440477283,588,140.75865870347016]
[null,"35 to 64 years:",4301,257.0311265197272,11606,418.05741232514941,2890,217.95412361320444,3089,270.22398117117586,1977,187.60863519571799,850,72.201108024738787,680,70.178344238091,1961,142.83556979968259,1289,107.48953437428223,12448,395.63746030930895,1057,81.394102980498531,4516,297.39199720234569,1905,158.44872987815333]
[null,"With a disability",364,155.05160431288675,1124,239.10248848558643,182,83.93449827097318,578,204.79501947068928,99,62.681735776859277,47,23.853720883753127,126,27.802877548915689,304,95.131487952202235,119,43.416586692184822,2295,328.12345237730267,58,28.301943396169811,630,175.45369759569047,157,64.899922958351809]
[null,"No disability",3937,271.49401466699038,10482,444.77522413012173,2708,212.30167215544958,2511,310.0403199585499,1878,181.89282558693733,803,73.81734213584231,554,66.603303221386852,1657,134.82581355215328,1170,99.35793878699377,10153,444.93257916228163,999,84.38601779915912,3886,295.60108254199611,1748,159.8311609167624]
[null,"65 to 74 years:",625,166.58031096140985,1841,227.07047364199511,560,104.62313319720452,408,118.98319209031165,411,139.8177385026664,123,40.459856648287818,138,36.069377593742864,247,73.430239002743278,184,52.345009313209601,2885,253.65330670030698,200,40.36087214122113,743,150.6286825275983,372,90.972523324353276]
[null,"With a disability",304,131.82564242210239,480,150.04665940966495,114,68.796802251267465,90,85.422479477008864,114,98.979795918156952,42,30.610455730027933,38,19.416487838947599,99,50.24937810560445,46,24.413111231467404,871,212.43822631532208,29,17.088007490635061,190,76.216796049164913,136,59.816385714952723]
[null,"No disability",321,131.22880781291889,1361,227.66861883008821,446,91.678787077491378,318,110.38568747804219,297,112.61438629233834,81,25.45584412271571,100,33.241540277189323,148,57.801384066473702,138,47.381430961928537,2014,224.74207438750761,171,40.36087214122113,553,128.70120434556935,236,82.680106434377549]
[null,"75 years and over:",331,139.51702405083043,1869,236.31546711969574,498,102.34256201600583,396,171.60419575290109,242,140.03570973148243,55,27.018512172212592,42,19.209372712298546,374,102.39628899525607,169,48.104053883222775,1755,221.33458834985552,124,40.36087214122113,607,136.03308421115798,177,71.175838597096984]
[null,"With a disability",210,102.61578825892242,971,178.80715869338118,140,58.258046654518033,245,140.75865870347016,19,31.016124838541646,26,15.264337522473747,25,16.15549442140351,189,85,121,43.139309220245984,970,201.62589119455865,52,25.80697580112788,309,96.213304693269947,50,33.120990323358392]
[null,"No disability",121,94.36630754670864,898,185.06485349736184,358,93.477269964414347,151,114.47707194019246,223,140.03570973148243,29,19.798989873223331,17,10.770329614269007,185,67.208630398186216,48,24.186773244895647,785,134.9518432626987,72,35.468295701936398,298,119.20151005754919,127,62.169124169478209]

{"sheet":"ACS_Table_B18102","index":24,"n_rows":125,"n_cols":28,"rows_kept":125,"cut":false,"hidden":true,"merged":[]}
["B18102. SEX BY AGE BY HEARING DIFFICULTY\n\n"]
["Universe:  Civilian non-institutionalized population"]
["Data Set: 2015-2019 American Community Survey 5-Year Estimates"]
[]
[null,null,"Barrington",null,"Dover",null,"Durham",null,"Farmington",null,"Lee",null,"Madbury",null,"Middleton",null,"Milton",null,"New Durham",null,"Rochester",null,"Rollinsford",null,"Somersworth",null,"Strafford"]
[null,null,"Estimate","Margin Of Error","Estimate","Margin Of Error","Estimate","Margin Of Error","Estimate","Margin Of Error","Estimate","Margin Of Error","Estimate","Margin Of Error","Estimate","Margin Of Error","Estimate","Margin Of Error","Estimate","Margin Of Error","Estimate","Margin Of Error","Estimate","Margin Of Error","Estimate","Margin Of Error","Estimate","Margin Of Error"]
[null,"Total:",9063,31,30696,253,16461,28,6930,17,1901,157,1780,160,4620,24,2697,17,30647,144,2547,37,11848,74,4131,24,906,134]
[null,"Male:",4525,271,14501,452,7711,354,3696,257,992,99,886,86,2398,142,1319,84,15249,387,1158,82,5787,351,1996,137,487,83]
[null,"Under 5 years:",308,150,939,186,126,69,216,146,51,24,36,24,90,60,28,23,594,188,49,25,290,128,211,96,21,14]
[null,"With hearing difficulty",0,16,0,24,0,18,0,16,0,11,0,11,0,11,0,11,0,24,0,11,54,61,0,11,0,11]
[null,"With no hearing difficulty",308,150,939,186,126,69,216,146,51,24,36,24,90,60,28,23,594,188,49,25,236,126,211,96,21,14]
[null,"5 to 17  years:",926,205,1775,252,489,95,526,144,194,62,126,45,405,82,248,68,2907,288,140,56,890,212,178,100,34,23]
[null,"With hearing difficulty",0,16,9,12,8,9,0,16,0,11,0,11,0,11,0,11,63,65,0,11,0,18,0,11,0,11]
[null,"With no hearing difficulty",926,205,1766,249,481,96,526,144,194,62,126,45,405,82,248,68,2844,280,140,56,890,212,178,100,34,23]
[null,"18 to 34  years:",768,170,4216,454,5285,418,784,213,164,56,148,42,504,155,243,68,3448,334,248,58,1697,302,406,115,79,38]
[null,"With hearing difficulty",0,16,55,62,32,28,0,16,5,8,0,11,0,11,0,11,0,24,0,11,0,18,0,11,9,14]
[null,"With no hearing difficulty",768,170,4161,434,5253,414,784,213,159,54,148,42,504,155,243,68,3448,334,248,58,1697,302,406,115,70,37]
[null,"35 to 64  years:",2126,199,5399,343,1221,145,1658,211,473,65,471,57,1000,126,595,56,5927,338,565,61,2281,252,914,97,213,48]
[null,"With hearing difficulty",81,59,147,64,52,32,47,53,3,5,25,19,50,38,52,37,365,159,18,15,51,44,21,18,0,11]
[null,"With no hearing difficulty",2045,193,5252,332,1169,142,1611,226,470,66,446,53,950,130,543,57,5562,319,547,62,2230,254,893,97,213,48]
[null,"65 to 74  years:",293,115,1322,218,406,88,324,138,63,23,73,25,284,88,153,47,1449,208,90,28,395,110,175,60,88,27]
[null,"With hearing difficulty",35,40,228,124,36,27,64,56,2,4,13,10,42,31,31,27,132,62,21,17,82,74,24,22,10,11]
[null,"With no hearing difficulty",258,106,1094,207,370,84,260,134,61,22,60,20,242,85,122,39,1317,215,69,23,313,107,151,58,78,24]
[null,"75  years and Older:",104,79,850,165,184,63,188,84,47,23,32,21,115,58,52,34,924,151,66,35,234,74,112,40,52,23]
[null,"With hearing difficulty",0,16,319,129,42,29,36,29,19,19,5,6,70,49,20,30,360,143,26,17,15,21,39,25,13,12]
[null,"With no hearing difficulty",104,79,531,144,142,55,152,79,28,12,27,19,45,30,32,18,564,141,40,31,219,79,73,34,39,21]
[null,"Female:",4538,270,16195,455,8750,354,3234,257,909,100,894,103,2222,144,1378,82,15398,376,1389,75,6061,351,2135,135,419,72]
[null,"Under 5 years:",199,141,1094,244,140,62,105,74,61,39,53,27,143,68,57,37,649,175,50,30,363,172,102,54,16,13]
[null,"With hearing difficulty",0,16,0,24,0,18,0,16,0,11,0,11,0,11,0,11,0,24,0,11,0,18,0,11,0,11]
[null,"With no hearing difficulty",199,141,1094,244,140,62,105,74,61,39,53,27,143,68,57,37,649,175,50,30,363,172,102,54,16,13]
[null,"5 to 17  years:",716,194,2211,236,595,150,577,161,198,50,145,50,242,104,264,74,2035,237,240,66,890,155,436,134,24,18]
[null,"With hearing difficulty",0,16,58,73,0,18,0,16,0,11,0,11,0,11,0,11,0,24,0,11,0,18,0,11,0,11]
[null,"With no hearing difficulty",716,194,2153,248,595,150,577,161,198,50,145,50,242,104,264,74,2035,237,240,66,890,155,436,134,24,18]
[null,"18 to 34  years:",874,229,4772,445,6118,406,617,153,139,46,165,38,424,100,200,78,3078,406,274,72,1390,255,304,100,47,25]
[null,"With hearing difficulty",0,16,68,61,4,8,16,30,3,5,0,11,0,11,0,11,80,95,0,11,0,18,0,11,0,11]
[null,"With no hearing difficulty",874,229,4704,444,6114,405,601,152,136,46,165,38,424,100,200,78,2998,388,274,72,1390,255,304,100,47,25]
[null,"35 to 64  years:",2345,206,5553,399,1250,125,1371,182,421,49,417,57,956,122,613,47,6551,335,566,63,2474,218,928,102,190,46]
[null,"With hearing difficulty",55,65,95,58,0,18,56,52,6,7,3,5,10,15,8,11,152,103,5,7,62,43,7,11,5,6]
[null,"With no hearing difficulty",2290,210,5458,391,1250,125,1315,181,415,49,414,57,946,122,605,50,6399,327,561,62,2412,219,921,103,185,46]
[null,"65 to 74  years:",204,90,1487,205,344,71,275,110,51,20,73,24,289,101,198,48,1741,202,129,37,535,126,197,48,117,42]
[null,"With hearing difficulty",0,16,76,79,7,9,0,16,5,6,0,11,17,20,39,41,97,66,0,11,37,43,0,11,3,4]
[null,"With no hearing difficulty",204,90,1411,211,337,68,275,110,46,19,73,24,272,99,159,35,1644,200,129,37,498,120,197,48,114,42]
[null,"75  years and Older:",200,132,1078,210,303,68,289,125,39,21,41,17,168,82,46,26,1344,210,130,47,409,134,168,57,25,14]
[null,"With hearing difficulty",40,65,188,110,42,31,160,112,3,5,6,7,9,15,26,18,261,95,6,9,76,60,30,27,0,11]
[null,"With no hearing difficulty",160,118,890,173,261,68,129,74,36,19,35,16,159,77,20,17,1083,200,124,46,333,130,138,55,25,14]
[]
[]
[{"$f":"A1& \"-Calculated\"","v":"B18102. SEX BY AGE BY HEARING DIFFICULTY\n\n-Calculated"}]
[{"$f":"A2","v":"Universe:  Civilian non-institutionalized population"}]
[{"$f":"A3","v":"Data Set: 2015-2019 American Community Survey 5-Year Estimates"}]
[]
[]
[null,null,"Barrington",null,"Dover",null,"Durham",null,"Farmington",null,"Lee",null,"Madbury",null,"Middleton",null,"Milton",null,"New Durham",null,"Rochester",null,"Rollinsford",null,"Somersworth",null,"Strafford"]
[null,null,"Estimate","Margin Of Error","Estimate","Margin Of Error","Estimate","Margin Of Error","Estimate","Margin Of Error","Estimate","Margin Of Error","Estimate","Margin Of Error","Estimate","Margin Of Error","Estimate","Margin Of Error","Estimate","Margin Of Error","Estimate","Margin Of Error","Estimate","Margin Of Error","Estimate","Margin Of Error","Estimate","Margin Of Error"]
[null,"Total",{"$f":"C7","v":9063},31,30696,253,16461,28,6930,17,1901,157,1780,160,4620,24,2697,17,30647,144,2547,37,11848,74,{"$f":"Y7","v":4131},{"$f":"Z7","v":24},{"$f":"AA7","v":906},{"$f":"AB7","v":134}]
[null,"Under 5 years:",{"$f":"C28+C9","v":507},{"$f":"SQRT((D28^2)+(D9^2))","v":205.86646157157313},{"$f":"E28+E9","v":2033},{"$f":"SQRT((F28^2)+(F9^2))","v":306.80938707933956},{"$f":"G28+G9","v":266},{"$f":"SQRT((H28^2)+(H9^2))","v":92.763139231054481},{"$f":"I28+I9","v":321},{"$f":"SQRT((J28^2)+(J9^2))","v":163.68261972488099},{"$f":"K28+K9","v":112},{"$f":"SQRT((L28^2)+(L9^2))","v":45.793012567421243},{"$f":"M28+M9","v":89},{"$f":"SQRT((N28^2)+(N9^2))","v":36.124783736376884},{"$f":"O28+O9","v":233},{"$f":"SQRT((P28^2)+(P9^2))","v":90.686272390037075},{"$f":"Q28+Q9","v":85},{"$f":"SQRT((R28^2)+(R9^2))","v":43.56604182158393},{"$f":"S28+S9","v":1243},{"$f":"SQRT((T28^2)+(T9^2))","v":256.84431081883048},{"$f":"U28+U9","v":99},{"$f":"SQRT((V28^2)+(V9^2))","v":39.05124837953327},{"$f":"W28+W9","v":653},{"$f":"SQRT((X28^2)+(X9^2))","v":214.40149253211834},{"$f":"Y28+Y9","v":313},{"$f":"SQRT((Z28^2)+(Z9^2))","v":110.14535850411491},{"$f":"AA28+AA9","v":37},{"$f":"SQRT((AB28^2)+(AB9^2))","v":19.104973174542799}]
[null,"With hearing difficulty",{"$f":"C29+C10","v":0},{"$f":"SQRT((D29^2)+(D10^2))","v":22.627416997969522},{"$f":"E29+E10","v":0},{"$f":"SQRT((F29^2)+(F10^2))","v":33.941125496954278},{"$f":"G29+G10","v":0},{"$f":"SQRT((H29^2)+(H10^2))","v":25.45584412271571},{"$f":"I29+I10","v":0},{"$f":"SQRT((J29^2)+(J10^2))","v":22.627416997969522},{"$f":"K29+K10","v":0},{"$f":"SQRT((L29^2)+(L10^2))","v":15.556349186104045},{"$f":"M29+M10","v":0},{"$f":"SQRT((N29^2)+(N10^2))","v":15.556349186104045},{"$f":"O29+O10","v":0},{"$f":"SQRT((P29^2)+(P10^2))","v":15.556349186104045},{"$f":"Q29+Q10","v":0},{"$f":"SQRT((R29^2)+(R10^2))","v":15.556349186104045},{"$f":"S29+S10","v":0},{"$f":"SQRT((T29^2)+(T10^2))","v":33.941125496954278},{"$f":"U29+U10","v":0},{"$f":"SQRT((V29^2)+(V10^2))","v":15.556349186104045},{"$f":"W29+W10","v":54},{"$f":"SQRT((X29^2)+(X10^2))","v":63.600314464631381},0,15.556349186104045,0,15.556349186104045]
[null,"With no hearing difficulty",507,205.86646157157313,2033,306.80938707933956,266,92.763139231054481,321,163.68261972488099,112,45.793012567421243,89,36.124783736376884,233,90.686272390037075,85,43.56604182158393,1243,256.84431081883048,99,39.05124837953327,599,213.21350801485352,313,110.14535850411491,37,19.104973174542799]
[null,"5 to 17 years:",1642,282.24280327406046,3986,345.25353003264138,1084,177.55280904564702,1103,216.00231480241132,392,79.649231006959511,271,67.268120235368556,647,132.43866504914644,512,100.4987562112089,4942,372.97855166215658,380,86.556340033529608,1780,262.6194966105906,614,167.20047846821492,58,29.206163733020468]
[null,"With hearing difficulty",0,22.627416997969522,67,73.979726952726722,8,20.124611797498108,0,22.627416997969522,0,15.556349186104045,0,15.556349186104045,0,15.556349186104045,0,15.556349186104045,63,69.289248805280025,0,15.556349186104045,0,25.45584412271571,0,15.556349186104045,0,15.556349186104045]
[null,"With no hearing difficulty",1642,282.24280327406046,3919,351.43278162402549,1076,178.08986495586996,1103,216.00231480241132,392,79.649231006959511,271,67.268120235368556,647,132.43866504914644,512,100.4987562112089,4879,366.83647583085298,380,86.556340033529608,1780,262.6194966105906,614,167.20047846821492,58,29.206163733020468]
[null,"18 to 34 years:",1642,285.20343616443336,8988,635.72085068841341,11403,582.71777045152828,1401,262.25560051217207,303,72.47068372797375,313,56.639209034025185,928,184.45866745696716,443,103.47946656221224,6526,525.72996871017347,522,92.455394650609762,3087,395.25814349612079,710,152.3975065412817,126,45.486261662176638]
[null,"With hearing difficulty",0,22.627416997969522,123,86.977008456258133,36,29.120439557122072,16,34,8,9.4339811320566032,0,15.556349186104045,0,15.556349186104045,0,15.556349186104045,80,97.984692682071525,0,15.556349186104045,0,25.45584412271571,0,15.556349186104045,9,17.804493814764857]
[null,"With no hearing difficulty",1642,285.20343616443336,8865,620.88002061589964,11367,579.15541955506205,1385,261.67346063366841,295,70.936591403872796,313,56.639209034025185,928,184.45866745696716,443,103.47946656221224,6446,511.95702944680818,522,92.455394650609762,3087,395.25814349612079,710,152.3975065412817,117,44.654227123532216]
[null,"35 to 64 years:",4471,286.42101878179261,10952,526.16537324305182,2471,191.44189719076647,3029,278.64852413031008,894,81.400245699874887,888,80.610173055266415,1956,175.38529014715002,1208,73.109506905736964,12478,475.88759176931688,1131,87.692645073575008,4755,333.20864334527698,1842,140.75865870347016,403,66.483080554378645]
[null,"With hearing difficulty",136,87.783825389418979,242,86.371291526756735,52,36.715119501371639,103,74.249579123386283,9,8.6023252670426267,28,19.646882704388499,60,40.853396431630991,60,38.600518131237564,517,189.44656238633627,23,16.552945357246848,113,61.522353661088097,28,21.095023109728988,5,12.529964086141668]
[null,"With no hearing difficulty",4335,285.21746089606785,10710,512.93761803946495,2419,189.17980864775183,2926,289.54619665953135,885,82.200973230248309,860,77.833154889160184,1896,178.28067758453241,1148,75.822160349069449,11961,456.82600626496736,1108,87.681240867131891,4642,335.37590849671955,1814,141.48498153514387,398,66.483080554378645]
[null,"65 to 74 years:",497,146.03081866510234,2809,299.24738929521175,750,113.07077429645558,599,176.47662734764623,114,30.479501308256342,146,34.655446902326915,573,133.9589489358587,351,67.178865724273734,3190,289.94482233694049,219,46.400431032480725,930,167.26027621644059,372,76.837490849194182,205,49.929950931279713]
[null,"With hearing difficulty",35,43.08131845707603,304,147.02720836634285,43,28.460498941515414,64,58.240879114244144,7,7.2111025509279782,13,14.866068747318506,59,36.891733491393431,70,49.091750834534309,229,90.553851381374173,21,20.248456731316587,119,85.586213843118443,24,24.596747752497688,13,11.704699910719626]
[null,"With no hearing difficulty",462,139.05394636614957,2505,295.58416737031098,707,108.07404868885037,535,173.36666346215469,107,29.068883707497267,133,31.240998703626616,514,130.48371545905641,281,52.40229002629561,2961,293.64093720052045,198,43.56604182158393,811,160.77624202599088,348,75.286120898874842,192,48.373546489791295]
[null,"75 years and over:",304,153.83432646844463,1928,267.06740722147282,487,92.69843580125827,477,150.60212481900777,86,31.144823004794873,73,27.018512172212592,283,100.43903623591775,98,42.80186911806539,2268,258.65227623200997,196,58.600341295934449,643,153.07514494521962,280,69.634761434214738,77,26.92582403567252]
[null,"With hearing difficulty",40,66.940271884718243,507,169.53170794869024,84,42.449970553582247,196,115.69356075426151,22,19.646882704388499,11,9.2195444572928871,79,51.244511901275828,46,34.985711369071801,621,171.67993476233616,32,19.235384061671343,91,63.56886030125127,69,36.796738985948195,13,16.278820596099706]
[null,"With no hearing difficulty",264,142.00352108310554,1421,225.08887133752305,403,87.458561616344909,281,108.2450922675019,64,22.472205054244231,62,24.839484696748443,204,82.637763764516279,52,24.758836806279895,1647,244.70594598415462,164,55.470712993434653,552,152.12166183683374,211,64.660652641308843,64,25.238858928247925]
[]
[]
[]
[]
[]
[]
[]
[]
[]
[]
[]
[]
[]
[]
[]
[]
[]
[]
[]
[]
[]
[]
[]
[]
[]
[]
["B18102. SEX BY AGE BY HEARING DIFFICULTY\n\n-Calculated"]
["Universe:  Civilian non-institutionalized population"]
["Data Set: 2010-2014 American Community Survey 5-Year Estimates"]
[]
[]
[null,null,"Barrington",null,"Dover",null,"Durham",null,"Farmington",null,"Lee",null,"Madbury",null,"Middleton",null,"Milton",null,"New Durham",null,"Rochester",null,"Rollinsford",null,"Somersworth",null,"Strafford"]
[null,null,"Estimate","Margin Of Error","Estimate","Margin Of Error","Estimate","Margin Of Error","Estimate","Margin Of Error","Estimate","Margin Of Error","Estimate","Margin Of Error","Estimate","Margin Of Error","Estimate","Margin Of Error","Estimate","Margin Of Error","Estimate","Margin Of Error","Estimate","Margin Of Error","Estimate","Margin Of Error","Estimate","Margin Of Error"]
[null,"Total",8691,17,29373,345,15169,37,6805,45,4357,15,1995,170,1563,168,4576,27,2648,16,29661,116,2506,31,11694,51,4017,28]
[null,"Under 5 years:",600,216.00462958001617,1640,272.80945731407479,382,123.45849504995596,306,132.40090634130871,97,68.622153857191051,104,39.962482405376171,90,41.231056256176608,219,87.658428003244509,150,51.884487084291386,1733,291.74303762043746,263,98.412397592986224,832,189.84203960134857,153,83.450584180100265]
[null,"With hearing difficulty",0,21.213203435596427,0,32.526911934581186,0,24.041630560342615,0,21.213203435596427,0,15.556349186104045,0,15.556349186104045,0,15.556349186104045,0,15.556349186104045,0,15.556349186104045,48,75.690157880665041,0,15.556349186104045,0,24.041630560342615,0,15.556349186104045]
[null,"With no hearing difficulty",600,216.00462958001617,1640,272.80945731407479,382,123.45849504995596,306,132.40090634130871,97,68.622153857191051,104,39.962482405376171,90,41.231056256176608,219,87.658428003244509,150,51.884487084291386,1685,288.4250335875858,263,98.412397592986224,832,189.84203960134857,153,83.450584180100265]
[null,"5 to 17 years:",1307,308.52552568628744,4542,357.45908856818846,1295,202.82997806044352,1130,270.94648918190472,875,230.52114870440846,463,97.652444925869617,275,72.47068372797375,824,142.42541907960108,462,98.994949366116657,4043,414.71194822430664,409,82.09750300709517,1839,288.51343122981297,794,142.87407042567241]
[null,"With hearing difficulty",0,21.213203435596427,70,59.363288318623319,0,24.041630560342615,0,21.213203435596427,0,15.556349186104045,0,15.556349186104045,0,15.556349186104045,0,15.556349186104045,0,15.556349186104045,99,71.840100222647237,0,15.556349186104045,0,24.041630560342615,0,15.556349186104045]
[null,"With no hearing difficulty",1307,308.52552568628744,4472,355.14785653302204,1295,202.82997806044352,1130,270.94648918190472,875,230.52114870440846,463,97.652444925869617,275,72.47068372797375,824,142.42541907960108,462,98.994949366116657,3944,412.68510998096355,409,82.09750300709517,1839,288.51343122981297,794,142.87407042567241]
[null,"18 to 34 years:",1527,249.0461804565571,7875,561.69920776159188,9544,619.46832041679102,1476,351.31894341182345,755,211.303099835284,400,115.83177456984762,338,65.855903304107827,951,169.83815825661793,394,77.466121627457255,6797,465.24187257812468,453,94.36630754670864,3157,377.06895921038102,616,145.16542288024377]
[null,"With hearing difficulty",0,21.213203435596427,34,33.526109228480422,77,80.081208782085696,18,32.649655434629018,1,11.180339887498949,0,15.556349186104045,0,15.556349186104045,15,16.970562748477139,0,15.556349186104045,91,82.927679335671755,0,15.556349186104045,17,30.232432915661949,0,15.556349186104045]
[null,"With no hearing difficulty",1527,249.0461804565571,7841,558.28397791804844,9467,610.21061937662148,1458,349.88569562072695,754,211.303099835284,400,115.83177456984762,338,65.855903304107827,936,171.2337583538947,394,77.466121627457255,6706,455.28123176779428,453,94.36630754670864,3140,372.00672036940409,616,145.16542288024377]
[null,"35 to 64 years:",4301,257.0311265197272,11606,418.05741232514941,2890,217.95412361320444,3089,270.22398117117586,1977,187.60863519571799,850,72.201108024738787,680,70.178344238091,1961,142.83556979968259,1289,107.48953437428223,12448,395.63746030930895,1057,81.394102980498531,4516,297.39199720234569,1905,158.44872987815333]
[null,"With hearing difficulty",130,90.520715861066847,296,106.21675950620975,18,27.802877548915689,98,70.235318750611498,20,31.953090617340916,12,10,38,17.204650534085253,81,54.230987451824994,53,31.11269837220809,528,169.71151993898351,16,15.620499351813308,105,61.611687202997452,48,29.732137494637012]
[null,"With no hearing difficulty",4171,265.04527915056326,11310,427.61898928836172,2872,217.22108553268947,2991,271.20471972294285,1957,189.09521411183309,838,69.202601107183824,642,67.268120235368556,1880,147.13938969562162,1236,103.24727599312246,11920,420.05951959216446,1041,83.630138108220294,4411,297.39199720234569,1857,163.41664541900252]
[null,"65 to 74 years:",625,166.58031096140985,1841,227.07047364199511,560,104.62313319720452,408,118.98319209031165,411,139.8177385026664,123,40.459856648287818,138,36.069377593742864,247,73.430239002743278,184,52.345009313209601,2885,253.65330670030698,200,40.36087214122113,743,150.6286825275983,372,90.972523324353276]
[null,"With hearing difficulty",92,70.007142492748557,171,105.08092119885512,10,23.345235059857504,26,36.249137920783717,7,18.601075237738275,18,15.620499351813308,19,18.601075237738275,50,29.681644159311659,8,16.278820596099706,275,105.75916035975324,15,17.029386365926403,145,66.211781428987393,77,53.310411741047361]
[null,"With no hearing difficulty",533,169.95587662684687,1670,234.76371099469355,550,104.62313319720452,382,116.2841347734075,404,138.75518008348374,105,35.608987629529715,119,36.069377593742864,197,63.245553203367585,176,50.911688245431421,2610,252.69151153135317,185,39.623225512317902,598,138.2931668593933,295,92.086915465770701]
[null,"75 years and over:",331,139.51702405083043,1869,236.31546711969574,498,102.34256201600583,396,171.60419575290109,242,140.03570973148243,55,27.018512172212592,42,19.209372712298546,374,102.39628899525607,169,48.104053883222775,1755,221.33458834985552,124,40.36087214122113,607,136.03308421115798,177,71.175838597096984]
[null,"With hearing difficulty",64,52.153619241621193,447,116.69190203266035,57,29.068883707497267,29,27.784887978899608,19,31.016124838541646,15,13.416407864998739,16,14.317821063276353,153,80.212218520621903,67,32.802438933713454,541,164.20109622045769,21,15.231546211727817,111,59.464274989274024,24,25.80697580112788]
[null,"With no hearing difficulty",267,124.53112060846478,1422,216.0925727552893,441,99.297532698451278,367,170.60187572239644,223,140.03570973148243,40,22.671568097509269,26,13.45362404707371,221,72.47068372797375,102,36.400549446402593,1214,178.64489917151286,103,38.209946349085598,496,131.79529581893277,153,66.708320320631671]

{"sheet":"ACS_Table_B18103","index":25,"n_rows":125,"n_cols":28,"rows_kept":125,"cut":false,"hidden":true,"merged":[]}
["B18103. SEX BY AGE BY VISION DIFFICULTY\n\n\n"]
["Universe:  Civilian non-institutionalized population"]
["Data Set: 2015-2019 American Community Survey 5-Year Estimates"]
[]
[null,null,"Barrington",null,"Dover",null,"Durham",null,"Farmington",null,"Lee",null,"Madbury",null,"Middleton",null,"Milton",null,"New Durham",null,"Rochester",null,"Rollinsford",null,"Somersworth",null,"Strafford"]
[null,null,"Estimate","Margin Of Error","Estimate","Margin Of Error","Estimate","Margin Of Error","Estimate","Margin Of Error","Estimate","Margin Of Error","Estimate","Margin Of Error","Estimate","Margin Of Error","Estimate","Margin Of Error","Estimate","Margin Of Error","Estimate","Margin Of Error","Estimate","Margin Of Error","Estimate","Margin Of Error","Estimate","Margin Of Error"]
[null,"Total:",9063,31,30696,253,16461,28,6930,17,4485,18,1901,157,1780,160,4620,24,2697,17,30647,144,2547,37,11848,74,4131,24]
[null,"Male:",4525,271,14501,452,7711,354,3696,257,2173,185,992,99,886,86,2398,142,1319,84,15249,387,1158,82,5787,351,1996,137]
[null,"Under 5 years:",308,150,939,186,126,69,216,146,80,92,51,24,36,24,90,60,28,23,594,188,49,25,290,128,211,96]
[null,"With vision difficulty",0,16,0,24,0,18,0,16,0,11,0,11,0,11,0,11,0,11,0,24,0,11,0,18,0,11]
[null,"With no vision difficulty",308,150,939,186,126,69,216,146,80,92,51,24,36,24,90,60,28,23,594,188,49,25,290,128,211,96]
[null,"5 to 17  years:",926,205,1775,252,489,95,526,144,421,147,194,62,126,45,405,82,248,68,2907,288,140,56,890,212,178,100]
[null,"With vision difficulty",50,76,0,24,0,18,0,16,0,11,0,11,0,11,0,11,0,11,0,24,12,12,0,18,0,11]
[null,"With no vision difficulty",876,207,1775,252,489,95,526,144,421,147,194,62,126,45,405,82,248,68,2907,288,128,57,890,212,178,100]
[null,"18 to 34  years:",768,170,4216,454,5285,418,784,213,89,76,164,56,148,42,504,155,243,68,3448,334,248,58,1697,302,406,115]
[null,"With vision difficulty",36,57,59,51,25,29,0,16,0,11,0,11,0,11,0,11,0,11,118,84,0,11,0,18,0,11]
[null,"With no vision difficulty",732,169,4157,463,5260,418,784,213,89,76,164,56,148,42,504,155,243,68,3330,335,248,58,1697,302,406,115]
[null,"35 to 64  years:",2126,199,5399,343,1221,145,1658,211,1228,166,473,65,471,57,1000,126,595,56,5927,338,565,61,2281,252,914,97]
[null,"With vision difficulty",25,41,102,77,9,13,17,30,0,11,0,11,10,7,22,24,27,30,103,58,0,11,15,25,21,18]
[null,"With no vision difficulty",2101,200,5297,352,1212,144,1641,209,1228,166,473,65,461,56,978,121,568,57,5824,342,565,61,2266,252,893,98]
[null,"65 to 74  years:",293,115,1322,218,406,88,324,138,288,108,63,23,73,25,284,88,153,47,1449,208,90,28,395,110,175,60]
[null,"With vision difficulty",35,40,66,101,14,20,17,29,0,11,3,5,3,5,0,11,5,8,50,42,0,11,0,18,8,12]
[null,"With no vision difficulty",258,106,1256,224,392,85,307,137,288,108,60,22,70,24,284,88,148,45,1399,198,90,28,395,110,167,60]
[null,"75  years and Older:",104,79,850,165,184,63,188,84,67,47,47,23,32,21,115,58,52,34,924,151,66,35,234,74,112,40]
[null,"With vision difficulty",16,28,78,53,4,7,0,16,0,11,0,11,0,11,0,11,26,31,61,61,16,14,0,18,1,3]
[null,"With no vision difficulty",88,77,772,156,180,63,188,84,67,47,47,23,32,21,115,58,26,16,863,138,50,32,234,74,111,41]
[null,"Female:",4538,270,16195,455,8750,354,3234,257,2312,183,909,100,894,103,2222,144,1378,82,15398,376,1389,75,6061,351,2135,135]
[null,"Under 5 years:",199,141,1094,244,140,62,105,74,50,45,61,39,53,27,143,68,57,37,649,175,50,30,363,172,102,54]
[null,"With vision difficulty",0,16,0,24,0,18,0,16,0,11,0,11,0,11,0,11,0,11,0,24,0,11,0,18,0,11]
[null,"With no vision difficulty",199,141,1094,244,140,62,105,74,50,45,61,39,53,27,143,68,57,37,649,175,50,30,363,172,102,54]
[null,"5 to 17  years:",716,194,2211,236,595,150,577,161,278,98,198,50,145,50,242,104,264,74,2035,237,240,66,890,155,436,134]
[null,"With vision difficulty",0,16,64,69,0,18,0,16,0,11,0,11,0,11,0,11,0,11,26,41,6,9,0,18,0,11]
[null,"With no vision difficulty",716,194,2147,245,595,150,577,161,278,98,198,50,145,50,242,104,264,74,2009,244,234,67,890,155,436,134]
[null,"18 to 34  years:",874,229,4772,445,6118,406,617,153,481,210,139,46,165,38,424,100,200,78,3078,406,274,72,1390,255,304,100]
[null,"With vision difficulty",22,35,0,24,22,24,75,117,0,11,0,11,0,11,0,11,0,11,155,120,25,37,0,18,0,11]
[null,"With no vision difficulty",852,233,4772,445,6096,401,542,136,481,210,139,46,165,38,424,100,200,78,2923,390,249,60,1390,255,304,100]
[null,"35 to 64  years:",2345,206,5553,399,1250,125,1371,182,1123,142,421,49,417,57,956,122,613,47,6551,335,566,63,2474,218,928,102]
[null,"With vision difficulty",58,57,81,56,30,24,10,24,0,11,0,11,7,7,22,27,0,11,197,103,8,10,63,49,21,19]
[null,"With no vision difficulty",2287,210,5472,411,1220,126,1361,177,1123,142,421,49,410,55,934,118,613,47,6354,333,558,61,2411,219,907,105]
[null,"65 to 74  years:",204,90,1487,205,344,71,275,110,273,111,51,20,73,24,289,101,198,48,1741,202,129,37,535,126,197,48]
[null,"With vision difficulty",0,16,26,30,0,18,0,16,0,11,0,11,3,4,0,11,22,32,22,28,0,11,19,31,0,11]
[null,"With no vision difficulty",204,90,1461,205,344,71,275,110,273,111,51,20,70,23,289,101,176,36,1719,206,129,37,516,121,197,48]
[null,"75  years and Older:",200,132,1078,210,303,68,289,125,107,79,39,21,41,17,168,82,46,26,1344,210,130,47,409,134,168,57]
[null,"With vision difficulty",0,16,113,98,15,17,26,39,0,11,0,11,7,9,20,16,13,13,91,63,5,9,54,53,20,23]
[null,"With no vision difficulty",200,132,965,186,288,69,263,116,107,79,39,21,34,14,148,82,33,21,1253,203,125,47,355,125,148,54]
[]
[]
[{"$f":"A1& \"-Calculated\"","v":"B18103. SEX BY AGE BY VISION DIFFICULTY\n\n\n-Calculated"}]
[{"$f":"A2","v":"Universe:  Civilian non-institutionalized population"}]
[{"$f":"A3","v":"Data Set: 2015-2019 American Community Survey 5-Year Estimates"}]
[]
[]
[null,null,"Barrington",null,"Dover",null,"Durham",null,"Farmington",null,"Lee",null,"Madbury",null,"Middleton",null,"Milton",null,"New Durham",null,"Rochester",null,"Rollinsford",null,"Somersworth",null,"Strafford"]
[null,null,"Estimate","Margin Of Error","Estimate","Margin Of Error","Estimate","Margin Of Error","Estimate","Margin Of Error","Estimate","Margin Of Error","Estimate","Margin Of Error","Estimate","Margin Of Error","Estimate","Margin Of Error","Estimate","Margin Of Error","Estimate","Margin Of Error","Estimate","Margin Of Error","Estimate","Margin Of Error","Estimate","Margin Of Error"]
[null,"Total",{"$f":"C7","v":9063},31,30696,253,16461,28,6930,17,4485,18,1901,157,1780,160,4620,24,2697,17,30647,144,2547,37,{"$f":"Y7","v":11848},{"$f":"Z7","v":74},{"$f":"AA7","v":4131},{"$f":"AB7","v":24}]
[null,"Under 5 years:",{"$f":"C28+C9","v":507},{"$f":"SQRT((D28^2)+(D9^2))","v":205.86646157157313},{"$f":"E28+E9","v":2033},{"$f":"SQRT((F28^2)+(F9^2))","v":306.80938707933956},{"$f":"G28+G9","v":266},{"$f":"SQRT((H28^2)+(H9^2))","v":92.763139231054481},{"$f":"I28+I9","v":321},{"$f":"SQRT((J28^2)+(J9^2))","v":163.68261972488099},{"$f":"K28+K9","v":130},{"$f":"SQRT((L28^2)+(L9^2))","v":102.41581909060729},{"$f":"M28+M9","v":112},{"$f":"SQRT((N28^2)+(N9^2))","v":45.793012567421243},{"$f":"O28+O9","v":89},{"$f":"SQRT((P28^2)+(P9^2))","v":36.124783736376884},{"$f":"Q28+Q9","v":233},{"$f":"SQRT((R28^2)+(R9^2))","v":90.686272390037075},{"$f":"S28+S9","v":85},{"$f":"SQRT((T28^2)+(T9^2))","v":43.56604182158393},{"$f":"U28+U9","v":1243},{"$f":"SQRT((V28^2)+(V9^2))","v":256.84431081883048},{"$f":"W28+W9","v":99},{"$f":"SQRT((X28^2)+(X9^2))","v":39.05124837953327},{"$f":"Y28+Y9","v":653},{"$f":"SQRT((Z28^2)+(Z9^2))","v":214.40149253211834},{"$f":"AA28+AA9","v":313},{"$f":"SQRT((AB28^2)+(AB9^2))","v":110.14535850411491}]
[null,"With vision difficulty",{"$f":"C29+C10","v":0},{"$f":"SQRT((D29^2)+(D10^2))","v":22.627416997969522},{"$f":"E29+E10","v":0},{"$f":"SQRT((F29^2)+(F10^2))","v":33.941125496954278},{"$f":"G29+G10","v":0},{"$f":"SQRT((H29^2)+(H10^2))","v":25.45584412271571},{"$f":"I29+I10","v":0},{"$f":"SQRT((J29^2)+(J10^2))","v":22.627416997969522},{"$f":"K29+K10","v":0},{"$f":"SQRT((L29^2)+(L10^2))","v":15.556349186104045},{"$f":"M29+M10","v":0},{"$f":"SQRT((N29^2)+(N10^2))","v":15.556349186104045},{"$f":"O29+O10","v":0},{"$f":"SQRT((P29^2)+(P10^2))","v":15.556349186104045},{"$f":"Q29+Q10","v":0},{"$f":"SQRT((R29^2)+(R10^2))","v":15.556349186104045},{"$f":"S29+S10","v":0},{"$f":"SQRT((T29^2)+(T10^2))","v":15.556349186104045},{"$f":"U29+U10","v":0},{"$f":"SQRT((V29^2)+(V10^2))","v":33.941125496954278},{"$f":"W29+W10","v":0},{"$f":"SQRT((X29^2)+(X10^2))","v":15.556349186104045},0,25.45584412271571,0,15.556349186104045]
[null,"With no vision difficulty",507,205.86646157157313,2033,306.80938707933956,266,92.763139231054481,321,163.68261972488099,130,102.41581909060729,112,45.793012567421243,89,36.124783736376884,233,90.686272390037075,85,43.56604182158393,1243,256.84431081883048,99,39.05124837953327,653,214.40149253211834,313,110.14535850411491]
[null,"5 to 17 years:",1642,282.24280327406046,3986,345.25353003264138,1084,177.55280904564702,1103,216.00231480241132,699,176.67201249773547,392,79.649231006959511,271,67.268120235368556,647,132.43866504914644,512,100.4987562112089,4942,372.97855166215658,380,86.556340033529608,1780,262.6194966105906,614,167.20047846821492]
[null,"With vision difficulty",50,77.665951355790398,64,73.054773971315527,0,25.45584412271571,0,22.627416997969522,0,15.556349186104045,0,15.556349186104045,0,15.556349186104045,0,15.556349186104045,0,15.556349186104045,26,47.507894080878813,18,15,0,25.45584412271571,0,15.556349186104045]
[null,"With no vision difficulty",1592,283.69878392407679,3922,351.46692589772937,1084,177.55280904564702,1103,216.00231480241132,699,176.67201249773547,392,79.649231006959511,271,67.268120235368556,647,132.43866504914644,512,100.4987562112089,4916,377.46523018683456,362,87.965902484996988,1780,262.6194966105906,614,167.20047846821492]
[null,"18 to 34 years:",1642,285.20343616443336,8988,635.72085068841341,11403,582.71777045152828,1401,262.25560051217207,570,223.32935319836486,303,72.47068372797375,313,56.639209034025185,928,184.45866745696716,443,103.47946656221224,6526,525.72996871017347,522,92.455394650609762,3087,395.25814349612079,710,152.3975065412817]
[null,"With vision difficulty",58,66.887966032762577,59,56.36488268416781,47,37.643060449437421,75,118.0889495253472,0,15.556349186104045,0,15.556349186104045,0,15.556349186104045,0,15.556349186104045,0,15.556349186104045,273,146.47866738880444,25,38.600518131237564,0,25.45584412271571,0,15.556349186104045]
[null,"With no vision difficulty",1584,287.83675929248511,8929,642.17910274315216,11356,579.24519851268508,1326,252.71525478292759,570,223.32935319836486,303,72.47068372797375,313,56.639209034025185,928,184.45866745696716,443,103.47946656221224,6253,514.12547106713157,497,83.450584180100265,3087,395.25814349612079,710,152.3975065412817]
[null,"35 to 64 years:",4471,286.42101878179261,10952,526.16537324305182,2471,191.44189719076647,3029,278.64852413031008,2351,218.44907873461037,894,81.400245699874887,888,80.610173055266415,1956,175.38529014715002,1208,73.109506905736964,12478,475.88759176931688,1131,87.692645073575008,4755,333.20864334527698,1842,140.75865870347016]
[null,"With vision difficulty",83,70.213958726167832,183,95.210293561148106,39,27.294688127912362,27,38.418745424597091,0,15.556349186104045,0,15.556349186104045,17,9.8994949366116654,44,36.124783736376884,27,31.953090617340916,300,118.20744477400736,8,14.866068747318506,78,55.009090157900268,42,26.172504656604801]
[null,"With no vision difficulty",4388,290,10769,541.13307051038748,2432,191.34262462922368,3002,273.87953556262653,2351,218.44907873461037,894,81.400245699874887,871,78.492037812761623,1912,169.01183390520322,1181,73.878278269055514,12178,477.33950182234025,1123,86.267027304758798,4677,333.86374466239965,1800,143.62799170078233]
[null,"65 to 74 years:",497,146.03081866510234,2809,299.24738929521175,750,113.07077429645558,599,176.47662734764623,561,154.87091398968369,114,30.479501308256342,146,34.655446902326915,573,133.9589489358587,351,67.178865724273734,3190,289.94482233694049,219,46.400431032480725,930,167.26027621644059,372,76.837490849194182]
[null,"With vision difficulty",35,43.08131845707603,92,105.3612832116238,14,26.90724809414742,17,33.120990323358392,0,15.556349186104045,3,12.083045973594572,6,6.4031242374328485,0,15.556349186104045,27,32.984845004941285,72,50.47771785649585,0,15.556349186104045,19,35.846896657869841,8,16.278820596099706]
[null,"With no vision difficulty",462,139.05394636614957,2717,303.64617567161946,736,110.75197515168747,582,175.69575976670581,561,154.87091398968369,111,29.732137494637012,140,33.241540277189323,573,133.9589489358587,324,57.628118136895637,3118,285.72714256787015,219,46.400431032480725,911,163.52675622050356,364,76.837490849194182]
[null,"75 years and over:",304,153.83432646844463,1928,267.06740722147282,487,92.69843580125827,477,150.60212481900777,174,91.923881554251182,86,31.144823004794873,73,27.018512172212592,283,100.43903623591775,98,42.80186911806539,2268,258.65227623200997,196,58.600341295934449,643,153.07514494521962,280,69.634761434214738]
[null,"With vision difficulty",16,32.249030993194197,191,111.4136436887332,19,18.384776310850235,26,42.154477816715982,0,15.556349186104045,0,15.556349186104045,7,14.212670403551895,20,19.416487838947599,39,33.61547262794322,152,87.692645073575008,21,16.643316977093239,54,55.97320787662612,21,23.194827009486403]
[null,"With no vision difficulty",288,152.81688388394784,1737,242.75913988972692,468,93.434469014384618,451,143.22011031974526,174,91.923881554251182,86,31.144823004794873,66,25.238858928247925,263,100.43903623591775,59,26.40075756488817,2116,245.46486510293076,175,56.859475903318,589,145.26183256451091,259,67.801179930735714]
[]
[]
[]
[]
[]
[]
[]
[]
[]
[]
[]
[]
[]
[]
[]
[]
[]
[]
[]
[]
[]
[]
[]
[]
[]
[]
["B18103. SEX BY AGE BY VISION DIFFICULTY\n\n\n-Calculated"]
["Universe:  Civilian non-institutionalized population"]
["Data Set: 2010-2014 American Community Survey 5-Year Estimates"]
[]
[]
[null,null,"Barrington",null,"Dover",null,"Durham",null,"Farmington",null,"Lee",null,"Madbury",null,"Middleton",null,"Milton",null,"New Durham",null,"Rochester",null,"Rollinsford",null,"Somersworth",null,"Strafford"]
[null,null,"Estimate","Margin Of Error","Estimate","Margin Of Error","Estimate","Margin Of Error","Estimate","Margin Of Error","Estimate","Margin Of Error","Estimate","Margin Of Error","Estimate","Margin Of Error","Estimate","Margin Of Error","Estimate","Margin Of Error","Estimate","Margin Of Error","Estimate","Margin Of Error","Estimate","Margin Of Error","Estimate","Margin Of Error"]
[null,"Total",8691,17,29373,345,15169,37,6805,45,4357,15,1995,170,1563,168,4576,27,2648,16,29661,116,2506,31,11694,51,4017,28]
[null,"Under 5 years:",600,216.00462958001617,1640,272.80945731407479,382,123.45849504995596,306,132.40090634130871,97,68.622153857191051,104,39.962482405376171,90,41.231056256176608,219,87.658428003244509,150,51.884487084291386,1733,291.74303762043746,263,98.412397592986224,832,189.84203960134857,153,83.450584180100265]
[null,"With vision difficulty",0,21.213203435596427,0,32.526911934581186,0,24.041630560342615,18,32.649655434629018,0,15.556349186104045,0,15.556349186104045,0,15.556349186104045,0,15.556349186104045,0,15.556349186104045,0,28.284271247461902,0,15.556349186104045,0,24.041630560342615,0,15.556349186104045]
[null,"With no vision difficulty",600,216.00462958001617,1640,272.80945731407479,382,123.45849504995596,288,119.85407794480753,97,68.622153857191051,104,39.962482405376171,90,41.231056256176608,219,87.658428003244509,150,51.884487084291386,1733,291.74303762043746,263,98.412397592986224,832,189.84203960134857,153,83.450584180100265]
[null,"5 to 17 years:",1307,308.52552568628744,4542,357.45908856818846,1295,202.82997806044352,1130,270.94648918190472,875,230.52114870440846,463,97.652444925869617,275,72.47068372797375,824,142.42541907960108,462,98.994949366116657,4043,414.71194822430664,409,82.09750300709517,1839,288.51343122981297,794,142.87407042567241]
[null,"With vision difficulty",0,21.213203435596427,0,32.526911934581186,0,24.041630560342615,0,21.213203435596427,0,15.556349186104045,0,15.556349186104045,0,15.556349186104045,0,15.556349186104045,6,14.212670403551895,78,65.513357416636794,0,15.556349186104045,0,24.041630560342615,0,15.556349186104045]
[null,"With no vision difficulty",1307,308.52552568628744,4542,357.45908856818846,1295,202.82997806044352,1130,270.94648918190472,875,230.52114870440846,463,97.652444925869617,275,72.47068372797375,824,142.42541907960108,456,98.994949366116657,3965,418.0011961705373,409,82.09750300709517,1839,288.51343122981297,794,142.87407042567241]
[null,"18 to 34 years:",1527,249.0461804565571,7875,561.69920776159188,9544,619.46832041679102,1476,351.31894341182345,755,211.303099835284,400,115.83177456984762,338,65.855903304107827,951,169.83815825661793,394,77.466121627457255,6797,465.24187257812468,453,94.36630754670864,3157,377.06895921038102,616,145.16542288024377]
[null,"With vision difficulty",0,21.213203435596427,51,63.694583757176716,31,31.89043743820395,17,33.541019662496844,0,15.556349186104045,3,12.083045973594572,8,16.278820596099706,35,42.059481689626182,0,15.556349186104045,120,90.520715861066847,0,15.556349186104045,0,24.041630560342615,8,16.278820596099706]
[null,"With no vision difficulty",1527,249.0461804565571,7824,555.09278503688017,9513,616.84438880482651,1459,351.80108015752313,755,211.303099835284,397,115.83177456984762,330,61.522353661088097,916,168.21712160181556,394,77.466121627457255,6677,451.42551988118703,453,94.36630754670864,3157,377.06895921038102,608,142.21462653327893]
[null,"35 to 64 years:",4301,257.0311265197272,11606,418.05741232514941,2890,217.95412361320444,3089,270.22398117117586,1977,187.60863519571799,850,72.201108024738787,680,70.178344238091,1961,142.83556979968259,1289,107.48953437428223,12448,395.63746030930895,1057,81.394102980498531,4516,297.39199720234569,1905,158.44872987815333]
[null,"With vision difficulty",38,42.449970553582247,110,68.249542123006222,0,24.041630560342615,138,83.450584180100265,2,9.2195444572928871,5,6.7082039324993694,20,14.212670403551895,21,26.40075756488817,18,18.601075237738275,231,103.58571330062848,4,13.038404810405298,56,43.56604182158393,16,20.248456731316587]
[null,"With no vision difficulty",4263,255.04901489713697,11496,424.09904503547284,2890,217.95412361320444,2951,272.20029390138433,1975,187.60863519571799,845,71.400280111495363,660,70.837842993699354,1940,141.42842712835352,1271,106.10372283760829,12217,407.03439658092776,1053,80.05623023850174,4460,293.41097457320848,1889,159.17600321656528]
[null,"65 to 74 years:",625,166.58031096140985,1841,227.07047364199511,560,104.62313319720452,408,118.98319209031165,411,139.8177385026664,123,40.459856648287818,138,36.069377593742864,247,73.430239002743278,184,52.345009313209601,2885,253.65330670030698,200,40.36087214122113,743,150.6286825275983,372,90.972523324353276]
[null,"With vision difficulty",17,31.76476034853718,43,41.048751503547585,0,24.041630560342615,64,79.404030124421269,0,15.556349186104045,2,12.083045973594572,8,17.029386365926403,9,17.804493814764857,5,13.601470508735444,124,71.505244562899023,0,15.556349186104045,5,18.788294228055936,18,22.135943621178654]
[null,"With no vision difficulty",608,168.5852899869974,1798,224.18073066166949,560,104.62313319720452,344,113.22543883774529,411,139.8177385026664,121,41.109609582188931,130,36.76955262170047,238,73.430239002743278,179,51.623637996561229,2761,243.80525014855607,200,40.36087214122113,738,150.6286825275983,354,91.263355187062899]
[null,"75 years and over:",331,139.51702405083043,1869,236.31546711969574,498,102.34256201600583,396,171.60419575290109,242,140.03570973148243,55,27.018512172212592,42,19.209372712298546,374,102.39628899525607,169,48.104053883222775,1755,221.33458834985552,124,40.36087214122113,607,136.03308421115798,177,71.175838597096984]
[null,"With vision difficulty",23,40.853396431630991,168,78.549347546621931,23,27.586228448267445,0,21.213203435596427,19,31.016124838541646,0,15.556349186104045,2,11.401754250991379,40,41.484937025383083,9,14.866068747318506,243,131.09538512091109,6,13.601470508735444,95,58.051701094799967,14,23.706539182259394]
[null,"With no vision difficulty",308,137.01094846763161,1701,236.44872594285638,475,99.02019995940222,396,171.60419575290109,223,140.03570973148243,55,27.018512172212592,40,19.209372712298546,334,84.504437753291981,160,47.381430961928537,1512,223.66492796144863,118,39.623225512317902,512,126.73200069437868,163,67.542579163073128]

{"sheet":"ACS_Table_B18104","index":26,"n_rows":122,"n_cols":28,"rows_kept":122,"cut":false,"hidden":true,"merged":[]}
["B18104. SEX BY AGE BY COGNITIVE DIFFICULTY\n\n"]
["Universe:  Civilian non-institutionalized population 5 years and over"]
["Data Set: 2015-2019 American Community Survey 5-Year Estimates"]
[]
[null,null,"Barrington",null,"Dover",null,"Durham",null,"Farmington",null,"Lee",null,"Madbury",null,"Middleton",null,"Milton",null,"New Durham",null,"Rochester",null,"Rollinsford",null,"Somersworth",null,"Strafford"]
[null,null,"Estimate","Margin Of Error","Estimate","Margin Of Error","Estimate","Margin Of Error","Estimate","Margin Of Error","Estimate","Margin Of Error","Estimate","Margin Of Error","Estimate","Margin Of Error","Estimate","Margin Of Error","Estimate","Margin Of Error","Estimate","Margin Of Error","Estimate","Margin Of Error","Estimate","Margin Of Error","Estimate","Margin Of Error"]
[null,"Total:",8556,235,28663,384,16195,97,6609,161,1789,139,1691,156,4387,108,2612,53,29404,295,2448,55,11195,240,3818,106,869,133]
[null,"Male:",4217,290,13562,440,7585,359,3480,296,941,96,850,81,2308,153,1291,83,14655,380,1109,78,5497,351,1785,153,466,81]
[null,"5 to 17  years:",926,205,1775,252,489,95,526,144,194,62,126,45,405,82,248,68,2907,288,140,56,890,212,178,100,34,23]
[null,"With cognitive difficulty",0,16,92,107,31,31,27,34,3,4,3,4,17,18,7,10,245,113,44,29,44,50,25,41,0,11]
[null,"With no cognitive difficulty",926,205,1683,253,458,88,499,149,191,62,123,45,388,83,241,68,2662,273,96,44,846,205,153,73,34,23]
[null,"18 to 34  years:",768,170,4216,454,5285,418,784,213,164,56,148,42,504,155,243,68,3448,334,248,58,1697,302,406,115,79,38]
[null,"With cognitive difficulty",69,82,116,70,100,56,28,44,4,6,0,11,38,60,9,12,161,93,7,10,99,60,18,28,18,19]
[null,"With no cognitive difficulty",699,185,4100,452,5185,422,756,205,160,56,148,42,466,146,234,64,3287,335,241,57,1598,296,388,119,61,27]
[null,"35 to 64  years:",2126,199,5399,343,1221,145,1658,211,473,65,471,57,1000,126,595,56,5927,338,565,61,2281,252,914,97,213,48]
[null,"With cognitive difficulty",77,59,137,90,20,18,106,77,15,12,22,17,67,47,6,9,367,129,13,13,89,90,25,23,8,10]
[null,"With no cognitive difficulty",2049,202,5262,358,1201,143,1552,230,458,66,449,55,933,113,589,57,5560,335,552,62,2192,239,889,100,205,48]
[null,"65 to 74  years:",293,115,1322,218,406,88,324,138,63,23,73,25,284,88,153,47,1449,208,90,28,395,110,175,60,88,27]
[null,"With cognitive difficulty",31,36,111,110,0,18,24,36,3,5,3,4,10,17,16,24,112,73,0,11,45,61,11,17,17,15]
[null,"With no cognitive difficulty",262,108,1211,225,406,88,300,139,60,22,70,25,274,87,137,43,1337,206,90,28,350,110,164,58,71,23]
[null,"75  years and Older:",104,79,850,165,184,63,188,84,47,23,32,21,115,58,52,34,924,151,66,35,234,74,112,40,52,23]
[null,"With cognitive difficulty",34,42,155,113,8,13,20,34,2,4,0,11,38,46,0,11,147,94,6,9,0,18,15,17,6,10]
[null,"With no cognitive difficulty",70,70,695,151,176,61,168,79,45,24,32,21,77,37,52,34,777,142,60,34,234,74,97,38,46,21]
[null,"Female:",4339,304,15101,434,8610,352,3129,258,848,84,841,97,2079,146,1321,77,14749,401,1339,79,5698,296,2033,138,403,70]
[null,"5 to 17  years:",716,194,2211,236,595,150,577,161,198,50,145,50,242,104,264,74,2035,237,240,66,890,155,436,134,24,18]
[null,"With cognitive difficulty",0,16,58,73,6,9,20,31,6,7,0,11,0,11,0,11,58,55,12,12,0,18,0,11,0,11]
[null,"With no cognitive difficulty",716,194,2153,248,589,149,557,150,192,50,145,50,242,104,264,74,1977,255,228,66,890,155,436,134,24,18]
[null,"18 to 34  years:",874,229,4772,445,6118,406,617,153,139,46,165,38,424,100,200,78,3078,406,274,72,1390,255,304,100,47,25]
[null,"With cognitive difficulty",111,94,229,100,240,93,118,125,3,6,0,11,24,29,20,17,450,232,7,9,54,64,40,46,0,11]
[null,"With no cognitive difficulty",763,243,4543,442,5878,397,499,135,136,46,165,38,400,103,180,77,2628,385,267,71,1336,248,264,97,47,25]
[null,"35 to 64  years:",2345,206,5553,399,1250,125,1371,182,421,49,417,57,956,122,613,47,6551,335,566,63,2474,218,928,102,190,46]
[null,"With cognitive difficulty",47,45,289,112,33,27,79,67,0,11,7,7,7,11,27,19,784,207,24,23,203,107,16,18,0,11]
[null,"With no cognitive difficulty",2298,212,5264,406,1217,121,1292,186,421,49,410,57,949,124,586,49,5767,345,542,61,2271,205,912,102,190,46]
[null,"65 to 74  years:",204,90,1487,205,344,71,275,110,51,20,73,24,289,101,198,48,1741,202,129,37,535,126,197,48,117,42]
[null,"With cognitive difficulty",0,16,42,42,28,42,0,16,3,4,0,11,9,15,0,11,61,57,0,11,0,18,0,11,2,4]
[null,"With no cognitive difficulty",204,90,1445,215,316,69,275,110,48,20,73,24,280,102,198,48,1680,201,129,37,535,126,197,48,115,42]
[null,"75  years and Older:",200,132,1078,210,303,68,289,125,39,21,41,17,168,82,46,26,1344,210,130,47,409,134,168,57,25,14]
[null,"With cognitive difficulty",40,65,168,78,47,31,59,73,3,5,10,10,0,11,0,11,117,64,0,11,36,42,29,27,0,11]
[null,"With no cognitive difficulty",160,118,910,209,256,68,230,125,36,19,31,14,168,82,46,26,1227,207,130,47,373,125,139,57,25,14]
[]
[]
[{"$f":"A1& \"-Calculated\"","v":"B18104. SEX BY AGE BY COGNITIVE DIFFICULTY\n\n-Calculated"}]
[{"$f":"A2","v":"Universe:  Civilian non-institutionalized population 5 years and over"}]
[{"$f":"A3","v":"Data Set: 2015-2019 American Community Survey 5-Year Estimates"}]
[]
[]
[null,null,"Barrington",null,"Dover",null,"Durham",null,"Farmington",null,"Lee",null,"Madbury",null,"Middleton",null,"Milton",null,"New Durham",null,"Rochester",null,"Rollinsford",null,"Somersworth",null,"Strafford"]
[null,null,"Estimate","Margin Of Error","Estimate","Margin Of Error","Estimate","Margin Of Error","Estimate","Margin Of Error","Estimate","Margin Of Error","Estimate","Margin Of Error","Estimate","Margin Of Error","Estimate","Margin Of Error","Estimate","Margin Of Error","Estimate","Margin Of Error","Estimate","Margin Of Error","Estimate","Margin Of Error","Estimate","Margin Of Error"]
[null,"Total:",7993,220,27436,451,14545,126,6554,115,4212,86,1923,147,1409,152,4416,82,2516,57,27901,286,2290,82,10792,227,3781,130]
[null,"5 to 17  years:",1482,263.78779350076076,4567,429.26215766125949,1268,226.34486961272174,1209,263.89770745499095,838,204.45292856792244,434,79.39773296511683,240,50.24937810560445,863,128.06248474865697,472,92.80086206496145,4047,392.39011200589653,419,80.430093870391573,1735,253.62176562747922,768,155.72411502397438]
[null,"With cognitive difficulty",59,47.75981574503821,263,133.71985641631537,61,65.620118866091673,191,126.40015822774906,58,67.119296778199342,15,21.95449840010015,22,17.088007490635061,0,15.556349186104045,26,15.652475842498529,102,70.213958726167832,21,21.095023109728988,32,31.240998703626616,24,25.495097567963924]
[null,"With no cognitive difficulty",1423,259.91537084212621,4304,427.375712927162,1207,205.80087463370995,1018,241.40008285002722,780,202.41047403728888,419,80.156097709406993,218,48.259714048054619,863,128.06248474865697,446,90.801982357215081,3945,379.86444950797909,398,75.822160349069449,1703,254.95097567963924,744,157.30543537970962]
[null,"18 to 34  years:",1507,268.48649872945197,7912,541.86714238824266,9332,638.94365948806467,1231,272.237029075767,782,200.8183258569795,365,107.33126291998991,295,61.846584384264908,797,160.51479682571323,408,79.025312400521386,6800,492.10771178675913,462,85.14693182963201,3321,393.31539507118202,563,128.70120434556935]
[null,"With cognitive difficulty",45,42.720018726587654,450,179.33488227336031,315,126.56223765404908,21,37.576588456111871,2,5.6568542494923806,8,14.866068747318506,10,10,68,45.607017003965517,48,34.481879299133332,424,146.47866738880444,10,11.313708498984761,236,135.35139452550905,6,16.278820596099706]
[null,"With no cognitive difficulty",1462,275.40878707840824,7462,511.94530957906039,9017,620.34587126860129,1210,269.43088167468852,780,200.8183258569795,357,106.88779163215975,285,59.816385714952723,729,150.74813431681335,360,70.007142492748557,6376,471.9502092382204,452,85.14693182963201,3085,369.64036576110027,557,128.70120434556935]
[null,"35 to 64  years:",4144,282.28531665674711,11449,411.07785150747299,2927,249.16059078433733,3244,266.62520511009456,2026,173.36666346215469,954,89.498603341057787,718,84.38601779915912,2068,166.93112352104984,1292,95.801878895979911,12588,451.8860475827949,1079,74.953318805774032,4473,355.30831681794336,1892,160.86329600005092]
[null,"With cognitive difficulty",70,55.758407437802596,546,167.94344286098223,97,72.993150363578636,141,100.62305898749054,75,55.154328932550705,9,14.212670403551895,33,16.643316977093239,186,96.020831073262428,36,19.723082923316021,894,231.63117234085743,11,12.041594578792296,124,71.400280111495363,85,49.658836071740545]
[null,"With no cognitive difficulty",4074,281.51731740694032,10903,414.64322013027055,2830,247.51767613647314,3103,257.10892633278991,1951,174.28998823799375,945,87.965902484996988,685,82.328609851011095,1882,163.60012224934309,1256,96.829747495281637,11694,475.3861588224882,1068,76.367532368147138,4349,347.39746688771351,1807,164.14627622946554]
[null,"65 to 74  years:",521,157.76247969653622,1769,205.38013535880242,472,114.58621208504974,416,120.95040305844375,406,105.68348972285122,118,37.483329627982627,94,30,332,100.56838469419701,164,50.328918128646478,2640,250.50349298961882,212,53.263495942343098,685,163.60012224934309,432,100.56838469419701]
[null,"With cognitive difficulty",103,98.290386101591849,97,59.665735560705194,39,50,17,34,19,30.083217912982647,4,13.038404810405298,6,6.4031242374328485,0,15.556349186104045,0,15.556349186104045,200,133.01503674397117,19,26.40075756488817,5,20.124611797498108,22,29.154759474226502]
[null,"With no cognitive difficulty",418,136.02940858505562,1672,210.44001520623399,433,110.30865786510141,399,120.41594578792295,387,107.41508273980894,114,36.76955262170047,88,28.600699292150182,332,100.56838469419701,164,50.328918128646478,2440,252.38264599611441,193,48.083261120685229,680,162.85576440519384,410,97.948966303887048]
[null,"75  years and Older:",339,115.6027681329474,1739,206.3492185592182,546,112.69871339105873,454,173.97126199461795,160,79.404030124421269,52,23.600847442411894,62,26.172504656604801,356,104.63746938836012,180,49.040799340956916,1826,204.62893246068603,118,36.796738985948195,578,113.6001760562016,126,58.137767414994535]
[null,"With cognitive difficulty",58,42.80186911806539,249,84.723078319900537,39,32.802438933713454,40,39.560080889704963,0,15.556349186104045,11,18.601075237738275,0,15.556349186104045,0,15.556349186104045,16,14.142135623730951,200,112.27199116431488,10,10.63014581273465,54,41.182520563948003,26,26.172504656604801]
[null,"With no cognitive difficulty",281,107.00467279516349,1490,208.21383239352758,507,105.75916035975324,414,173.97126199461795,160,79.404030124421269,41,19.798989873223331,62,26.172504656604801,356,104.63746938836012,164,48.270073544588683,1626,211.43556938225885,108,34.713109915419565,524,115.10864433221339,100,54.589376255824725]
[]
[]
[]
[]
[]
[]
[]
[]
[]
[]
[]
[]
[]
[]
[]
[]
[]
[]
[]
[]
[]
[]
[]
[]
[]
[]
[]
[]
[]
[]
[]
[]
[]
[]
[]
["B18104. SEX BY AGE BY COGNITIVE DIFFICULTY\n\n-Calculated"]
["Universe:  Civilian non-institutionalized population 5 years and over"]
["Data Set: 2010-2014 American Community Survey 5-Year Estimates"]
[]
[]
[null,null,"Barrington",null,"Dover",null,"Durham",null,"Farmington",null,"Lee",null,"Madbury",null,"Middleton",null,"Milton",null,"New Durham",null,"Rochester",null,"Rollinsford",null,"Somersworth",null,"Strafford"]
[null,null,"Estimate","Margin Of Error","Estimate","Margin Of Error","Estimate","Margin Of Error","Estimate","Margin Of Error","Estimate","Margin Of Error","Estimate","Margin Of Error","Estimate","Margin Of Error","Estimate","Margin Of Error","Estimate","Margin Of Error","Estimate","Margin Of Error","Estimate","Margin Of Error","Estimate","Margin Of Error","Estimate","Margin Of Error"]
[null,"Total:",8091,237,27733,459,14787,126,6499,146,4260,86,1891,162,1473,158,4357,92,2498,53,27928,315,2243,82,10862,218,3864,114]
[null,"5 to 17  years:",1307,308.52552568628744,4542,357.45908856818846,1295,202.82997806044352,1130,270.94648918190472,875,230.52114870440846,463,97.652444925869617,275,72.47068372797375,824,142.42541907960108,462,98.994949366116657,4043,414.71194822430664,409,82.09750300709517,1839,288.51343122981297,794,142.87407042567241]
[null,"With cognitive difficulty",23,41.785164831552358,270,132.3782459469833,82,52.630789467763066,195,130.24976007655445,93,102.88342918079665,18,24.596747752497688,26,17.720045146669349,0,15.556349186104045,31,21.023796041628639,190,97.097888751506844,16,20.248456731316587,25,25.495097567963924,14,19.416487838947599]
[null,"With no cognitive difficulty",1284,305.66812067992959,4272,353.52651951444886,1213,201.40009930484146,935,253.86019774671254,782,224.18073066166949,445,99.297532698451278,249,72.945184899347538,824,142.42541907960108,431,100.41912168506553,3853,410.00121951038147,393,76.400261779656233,1814,289.9275771636772,780,143.45033983926285]
[null,"18 to 34  years:",1527,249.0461804565571,7875,561.69920776159188,9544,619.46832041679102,1476,351.31894341182345,755,211.303099835284,400,115.83177456984762,338,65.855903304107827,951,169.83815825661793,394,77.466121627457255,6797,465.24187257812468,453,94.36630754670864,3157,377.06895921038102,616,145.16542288024377]
[null,"With cognitive difficulty",57,53.413481444294568,442,164.47796204963143,335,133.5440002396214,17,33.541019662496844,1,14.212670403551895,3,12.083045973594572,18,14.317821063276353,62,44.418464629025621,45,37.947331922020552,434,151.72672803431834,6,14.212670403551895,251,142.42541907960108,21,29.154759474226502]
[null,"With no cognitive difficulty",1470,244.6752950340512,7433,549.59621541637273,9209,605.97112142411538,1459,352.19596817680917,754,211.303099835284,397,115.39497389401325,320,61.522353661088097,889,167.20047846821492,349,72.249567472753768,6363,454.41940979672074,447,94.36630754670864,2906,383.34318827911892,595,140.03570973148243]
[null,"35 to 64  years:",4301,257.0311265197272,11606,418.05741232514941,2890,217.95412361320444,3089,270.22398117117586,1977,187.60863519571799,850,72.201108024738787,680,70.178344238091,1961,142.83556979968259,1289,107.48953437428223,12448,395.63746030930895,1057,81.394102980498531,4516,297.39199720234569,1905,158.44872987815333]
[null,"With cognitive difficulty",59,59.908263203000637,590,205.52858681944952,83,69.375788283809797,169,113.25193155085701,66,52.009614495783374,15,12.206555615733702,35,17.4928556845359,143,68.117545463705611,32,20.248456731316587,918,222.92823957498072,14,12.041594578792296,149,75.166481891864535,85,44.204072210600685]
[null,"With no cognitive difficulty",4242,259.8249410660955,11016,434.91723350541076,2807,219.27608168699112,2920,261.07853224652541,1911,181.76083186429358,835,73.23933369440222,645,70.178344238091,1818,140.03570973148243,1257,102.6498904042279,11530,427.36986323324203,1043,83.486525858967212,4367,289.58763785769582,1820,165.48715962273326]
[null,"65 to 74  years:",625,166.58031096140985,1841,227.07047364199511,560,104.62313319720452,408,118.98319209031165,411,139.8177385026664,123,40.459856648287818,138,36.069377593742864,247,73.430239002743278,184,52.345009313209601,2885,253.65330670030698,200,40.36087214122113,743,150.6286825275983,372,90.972523324353276]
[null,"With cognitive difficulty",96,83.450584180100265,114,70.767224051816527,48,59.135437767890075,0,21.213203435596427,19,31.016124838541646,2,12.083045973594572,21,17.029386365926403,12,23.706539182259394,0,15.556349186104045,229,143.67324037551322,5,13.601470508735444,5,18.788294228055936,31,29.681644159311659]
[null,"With no cognitive difficulty",529,165.60495161679194,1727,217.79348015953096,512,91.400218818118816,408,118.98319209031165,392,137.71347065556077,121,41.109609582188931,117,34.655446902326915,235,68.264192663504048,184,52.345009313209601,2656,243.02263269086689,195,41.109609582188931,738,150.6286825275983,341,93.477269964414347]
[null,"75  years and Older:",331,139.51702405083043,1869,236.31546711969574,498,102.34256201600583,396,171.60419575290109,242,140.03570973148243,55,27.018512172212592,42,19.209372712298546,374,102.39628899525607,169,48.104053883222775,1755,221.33458834985552,124,40.36087214122113,607,136.03308421115798,177,71.175838597096984]
[null,"With cognitive difficulty",54,45.793012567421243,244,94.641428560646744,7,20.248456731316587,40,39.924929555354261,0,15.556349186104045,12,16.278820596099706,0,15.556349186104045,46,41.677331968349414,11,17.029386365926403,247,117.51595636338071,6,14.212670403551895,49,45.343136195018538,17,21.840329667841555]
[null,"With no cognitive difficulty",277,139.60659010233005,1625,223.54417907876734,491,102.34256201600583,356,167.80047675736802,242,140.03570973148243,43,23.345235059857504,42,19.209372712298546,328,97.637083119069061,158,48.104053883222775,1508,211.19185590358356,118,39.623225512317902,558,128.31601614763451,160,67.542579163073128]

{"sheet":"ACS_Table_B18105","index":27,"n_rows":122,"n_cols":28,"rows_kept":122,"cut":false,"hidden":true,"merged":[]}
["B18105. SEX BY AGE BY AMBULATORY DIFFICULTY\n\n"]
["Universe:  Civilian non-institutionalized population 5 years and over"]
["Data Set: 2015-2019 American Community Survey 5-Year Estimates"]
[]
[null,null,"Barrington",null,"Dover",null,"Durham",null,"Farmington",null,"Lee",null,"Madbury",null,"Middleton",null,"Milton",null,"New Durham",null,"Rochester",null,"Rollinsford",null,"Somersworth",null,"Strafford"]
[null,null,"Estimate","Margin Of Error","Estimate","Margin Of Error","Estimate","Margin Of Error","Estimate","Margin Of Error","Estimate","Margin Of Error","Estimate","Margin Of Error","Estimate","Margin Of Error","Estimate","Margin Of Error","Estimate","Margin Of Error","Estimate","Margin Of Error","Estimate","Margin Of Error","Estimate","Margin Of Error","Estimate","Margin Of Error"]
[null,"Total:",8556,235,28663,384,16195,97,6609,161,4355,102,1789,139,1691,156,4387,108,2612,53,29404,295,2448,55,11195,240,3818,106]
[null,"Male:",4217,290,13562,440,7585,359,3480,296,2093,176,941,96,850,81,2308,153,1291,83,14655,380,1109,78,5497,351,1785,153]
[null,"5 to 17  years:",926,205,1775,252,489,95,526,144,421,147,194,62,126,45,405,82,248,68,2907,288,140,56,890,212,178,100]
[null,"With ambulatory difficulty",0,16,0,24,0,18,0,16,0,11,0,11,0,11,0,11,0,11,47,60,0,11,0,18,25,41]
[null,"With no ambulatory difficulty",926,205,1775,252,489,95,526,144,421,147,194,62,126,45,405,82,248,68,2860,281,140,56,890,212,153,73]
[null,"18 to 34  years:",768,170,4216,454,5285,418,784,213,89,76,164,56,148,42,504,155,243,68,3448,334,248,58,1697,302,406,115]
[null,"With ambulatory difficulty",0,16,0,24,15,19,0,16,0,11,0,11,0,11,0,11,0,11,0,24,0,11,0,18,0,11]
[null,"With no ambulatory difficulty",768,170,4216,454,5270,418,784,213,89,76,164,56,148,42,504,155,243,68,3448,334,248,58,1697,302,406,115]
[null,"35 to 64  years:",2126,199,5399,343,1221,145,1658,211,1228,166,473,65,471,57,1000,126,595,56,5927,338,565,61,2281,252,914,97]
[null,"With ambulatory difficulty",51,60,95,63,11,17,182,145,119,129,13,9,23,16,167,74,19,28,398,128,34,28,194,115,56,41]
[null,"With no ambulatory difficulty",2075,207,5304,344,1210,145,1476,204,1109,181,460,65,448,54,833,117,576,55,5529,358,531,66,2087,237,858,91]
[null,"65 to 74  years:",293,115,1322,218,406,88,324,138,288,108,63,23,73,25,284,88,153,47,1449,208,90,28,395,110,175,60]
[null,"With ambulatory difficulty",31,36,337,124,3,5,90,73,55,72,5,6,9,8,25,24,26,26,158,70,0,11,45,61,18,20]
[null,"With no ambulatory difficulty",262,108,985,196,403,88,234,123,233,93,58,21,64,25,259,85,127,42,1291,204,90,28,350,110,157,58]
[null,"75  years and Older:",104,79,850,165,184,63,188,84,67,47,47,23,32,21,115,58,52,34,924,151,66,35,234,74,112,40]
[null,"With ambulatory difficulty",46,47,194,114,32,27,75,59,0,11,20,19,9,14,38,46,0,11,360,144,6,9,0,18,24,21]
[null,"With no ambulatory difficulty",58,64,656,146,152,56,113,70,67,47,27,13,23,12,77,37,52,34,564,145,60,34,234,74,88,39]
[null,"Female:",4339,304,15101,434,8610,352,3129,258,2262,191,848,84,841,97,2079,146,1321,77,14749,401,1339,79,5698,296,2033,138]
[null,"5 to 17  years:",716,194,2211,236,595,150,577,161,278,98,198,50,145,50,242,104,264,74,2035,237,240,66,890,155,436,134]
[null,"With ambulatory difficulty",0,16,0,24,0,18,0,16,0,11,0,11,0,11,0,11,0,11,26,41,0,11,0,18,0,11]
[null,"With no ambulatory difficulty",716,194,2211,236,595,150,577,161,278,98,198,50,145,50,242,104,264,74,2009,244,240,66,890,155,436,134]
[null,"18 to 34  years:",874,229,4772,445,6118,406,617,153,481,210,139,46,165,38,424,100,200,78,3078,406,274,72,1390,255,304,100]
[null,"With ambulatory difficulty",0,16,57,65,58,45,99,119,0,11,0,11,0,11,13,21,0,11,167,123,0,11,0,18,0,11]
[null,"With no ambulatory difficulty",874,229,4715,453,6060,407,518,138,481,210,139,46,165,38,411,103,200,78,2911,378,274,72,1390,255,304,100]
[null,"35 to 64  years:",2345,206,5553,399,1250,125,1371,182,1123,142,421,49,417,57,956,122,613,47,6551,335,566,63,2474,218,928,102]
[null,"With ambulatory difficulty",129,98,272,104,20,22,96,69,23,32,9,9,31,17,43,48,62,32,970,222,43,20,232,113,13,14]
[null,"With no ambulatory difficulty",2216,212,5281,410,1230,126,1275,190,1100,143,412,49,386,56,913,134,551,57,5581,330,523,61,2242,225,915,104]
[null,"65 to 74  years:",204,90,1487,205,344,71,275,110,273,111,51,20,73,24,289,101,198,48,1741,202,129,37,535,126,197,48]
[null,"With ambulatory difficulty",0,16,299,134,60,46,0,16,0,11,3,5,0,11,36,26,57,34,233,111,5,7,144,92,7,11]
[null,"With no ambulatory difficulty",204,90,1188,212,284,67,275,110,273,111,48,20,73,24,253,98,141,35,1508,204,124,36,391,111,190,47]
[null,"75  years and Older:",200,132,1078,210,303,68,289,125,107,79,39,21,41,17,168,82,46,26,1344,210,130,47,409,134,168,57]
[null,"With ambulatory difficulty",103,118,373,129,101,45,103,84,0,11,0,11,18,13,67,49,13,14,294,108,53,37,148,80,62,37]
[null,"With no ambulatory difficulty",97,76,705,169,202,68,186,112,107,79,39,21,23,11,101,64,33,21,1050,207,77,37,261,111,106,48]
[]
[]
[{"$f":"A1& \"-Calculated\"","v":"B18105. SEX BY AGE BY AMBULATORY DIFFICULTY\n\n-Calculated"}]
[{"$f":"A2","v":"Universe:  Civilian non-institutionalized population 5 years and over"}]
[{"$f":"A3","v":"Data Set: 2015-2019 American Community Survey 5-Year Estimates"}]
[]
[]
[null,null,"Barrington",null,"Dover",null,"Durham",null,"Farmington",null,"Lee",null,"Madbury",null,"Middleton",null,"Milton",null,"New Durham",null,"Rochester",null,"Rollinsford",null,"Somersworth",null,"Strafford"]
[null,null,"Estimate","Margin Of Error","Estimate","Margin Of Error","Estimate","Margin Of Error","Estimate","Margin Of Error","Estimate","Margin Of Error","Estimate","Margin Of Error","Estimate","Margin Of Error","Estimate","Margin Of Error","Estimate","Margin Of Error","Estimate","Margin Of Error","Estimate","Margin Of Error","Estimate","Margin Of Error","Estimate","Margin Of Error"]
[null,"Total:",7993,220,27436,451,14545,126,6554,115,4212,86,1923,147,1409,152,4416,82,2516,57,27901,286,2290,82,10792,227,3781,130]
[null,"5 to 17  years:",1482,263.78779350076076,4567,429.26215766125949,1268,226.34486961272174,1209,263.89770745499095,838,204.45292856792244,434,79.39773296511683,240,50.24937810560445,863,128.06248474865697,472,92.80086206496145,4047,392.39011200589653,419,80.430093870391573,1735,253.62176562747922,768,155.72411502397438]
[null,"With ambulatory difficulty",0,22.627416997969522,0,33.941125496954278,0,25.45584412271571,33,44.011362169330773,20,33.837848631377263,0,15.556349186104045,0,15.556349186104045,0,15.556349186104045,5,13.038404810405298,7,24.186773244895647,0,15.556349186104045,45,74.215901261117892,0,15.556349186104045]
[null,"With no ambulatory difficulty",1482,263.78779350076076,4567,429.26215766125949,1268,226.34486961272174,1176,264.66015944981217,818,204.45292856792244,434,79.39773296511683,240,50.24937810560445,863,128.06248474865697,467,92.80086206496145,4040,392.39011200589653,419,80.430093870391573,1690,247.75189202102979,768,155.72411502397438]
[null,"18 to 34  years:",1507,268.48649872945197,7912,541.86714238824266,9332,638.94365948806467,1231,272.237029075767,782,200.8183258569795,365,107.33126291998991,295,61.846584384264908,797,160.51479682571323,408,79.025312400521386,6800,492.10771178675913,462,85.14693182963201,3321,393.31539507118202,563,128.70120434556935]
[null,"With ambulatory difficulty",15,28.0178514522438,148,144.01388821915754,74,53.851648071345039,34,44.944410108488462,0,15.556349186104045,0,15.556349186104045,5,13.038404810405298,22,35.735136770411273,0,15.556349186104045,160,120.3536455617361,30,30.083217912982647,31,34.713109915419565,0,15.556349186104045]
[null,"With no ambulatory difficulty",1492,267.8245694479877,7764,540.49606844083519,9258,636.74955830373369,1197,275.78614903580637,782,200.8183258569795,365,107.33126291998991,290,61.073725938409879,775,153.63918770938616,408,79.025312400521386,6640,489.83772823252394,432,85.912746434973201,3290,390.59057848340376,563,128.70120434556935]
[null,"35 to 64  years:",4144,282.28531665674711,11449,411.07785150747299,2927,249.16059078433733,3244,266.62520511009456,2026,173.36666346215469,954,89.498603341057787,718,84.38601779915912,2068,166.93112352104984,1292,95.801878895979911,12588,451.8860475827949,1079,74.953318805774032,4473,355.30831681794336,1892,160.86329600005092]
[null,"With ambulatory difficulty",136,88.76936408468859,432,141.42842712835352,50,35.510561809129406,295,154.76756766196203,36,40.249223594996216,31,20.615528128088304,80,25.495097567963924,221,108.68762579061151,63,36.76955262170047,1368,264.66015944981217,25,22.825424421026653,455,168.21712160181556,69,42.720018726587654]
[null,"With no ambulatory difficulty",4008,289.91722956733702,11017,414.67336543356629,2877,243.83601046605074,2949,294.32295187429742,1990,170.69856472741651,923,88.865066252155572,638,80.05623023850174,1847,158.39823231336896,1229,93.23625904121208,11220,489.83772823252394,1054,77.103826104804938,4018,340.13673721019904,1823,165.75886099994776]
[null,"65 to 74  years:",521,157.76247969653622,1769,205.38013535880242,472,114.58621208504974,416,120.95040305844375,406,105.68348972285122,118,37.483329627982627,94,30,332,100.56838469419701,164,50.328918128646478,2640,250.50349298961882,212,53.263495942343098,685,163.60012224934309,432,100.56838469419701]
[null,"With ambulatory difficulty",134,102.95630140987001,304,131.48764200486676,44,31.827660925679098,68,66.037867924396224,29,32.893768406797051,21,24.041630560342615,9,7.2111025509279782,24,25.495097567963924,42,29.410882339705484,491,167.09278859364338,29,25.079872407968907,70,47.169905660283021,60,47.885279575251516]
[null,"With no ambulatory difficulty",387,137.43725841270262,1465,186.35718392377581,428,111.75866856758807,348,120.22063050907694,377,99.201814499534237,97,29.832867780352597,85,28.600699292150182,308,98.35141076771599,122,43.56604182158393,2149,232,183,46.872166581031863,615,157.13688300332294,372,95.268042910516428]
[null,"75  years and Older:",339,115.6027681329474,1739,206.3492185592182,546,112.69871339105873,454,173.97126199461795,160,79.404030124421269,52,23.600847442411894,62,26.172504656604801,356,104.63746938836012,180,49.040799340956916,1826,204.62893246068603,118,36.796738985948195,578,113.6001760562016,126,58.137767414994535]
[null,"With ambulatory difficulty",95,58.728187440104094,620,132.32157798333574,96,53.851648071345039,265,156.84705926475002,29,48.270073544588683,3,12.083045973594572,11,10.816653826391969,50,36.891733491393431,52,27.730849247724095,548,150.81445554057476,25,16.643316977093239,215,87.664131775772461,34,28.160255680657446]
[null,"With no ambulatory difficulty",244,103.73041983911952,1119,186.25251676151922,450,102.59142264341595,189,117.2006825918689,131,63.890531379853151,49,23.021728866442675,51,24.083189157584592,306,90.609050320594349,128,48.104053883222775,1278,197.28405916343064,93,31.827660925679098,363,115.10864433221339,92,52.839379254491625]
[]
[]
[]
[]
[]
[]
[]
[]
[]
[]
[]
[]
[]
[]
[]
[]
[]
[]
[]
[]
[]
[]
[]
[]
[]
[]
[]
[]
[]
[]
[]
[]
[]
[]
[]
["B18105. SEX BY AGE BY AMBULATORY DIFFICULTY\n\n-Calculated"]
["Universe:  Civilian non-institutionalized population 5 years and over"]
["Data Set: 2010-2014 American Community Survey 5-Year Estimates"]
[]
[]
[null,null,"Barrington",null,"Dover",null,"Durham",null,"Farmington",null,"Lee",null,"Madbury",null,"Middleton",null,"Milton",null,"New Durham",null,"Rochester",null,"Rollinsford",null,"Somersworth",null,"Strafford"]
[null,null,"Estimate","Margin Of Error","Estimate","Margin Of Error","Estimate","Margin Of Error","Estimate","Margin Of Error","Estimate","Margin Of Error","Estimate","Margin Of Error","Estimate","Margin Of Error","Estimate","Margin Of Error","Estimate","Margin Of Error","Estimate","Margin Of Error","Estimate","Margin Of Error","Estimate","Margin Of Error","Estimate","Margin Of Error"]
[null,"Total:",8091,237,27733,459,14787,126,6499,146,4260,86,1891,162,1473,158,4357,92,2498,53,27928,315,2243,82,10862,218,3864,114]
[null,"5 to 17  years:",1307,308.52552568628744,4542,357.45908856818846,1295,202.82997806044352,1130,270.94648918190472,875,230.52114870440846,463,97.652444925869617,275,72.47068372797375,824,142.42541907960108,462,98.994949366116657,4043,414.71194822430664,409,82.09750300709517,1839,288.51343122981297,794,142.87407042567241]
[null,"With ambulatory difficulty",0,21.213203435596427,0,32.526911934581186,0,24.041630560342615,34,47.434164902525687,24,38.600518131237564,0,15.556349186104045,0,15.556349186104045,0,15.556349186104045,6,13.601470508735444,31,42.941821107167776,0,15.556349186104045,43,64.288412641781719,0,15.556349186104045]
[null,"With no ambulatory difficulty",1307,308.52552568628744,4542,357.45908856818846,1295,202.82997806044352,1096,265.81948762270986,851,229.8194943863553,463,97.652444925869617,275,72.47068372797375,824,142.42541907960108,456,100.41912168506553,4012,414.03502267320334,409,82.09750300709517,1796,285.72714256787015,794,142.87407042567241]
[null,"18 to 34  years:",1527,249.0461804565571,7875,561.69920776159188,9544,619.46832041679102,1476,351.31894341182345,755,211.303099835284,400,115.83177456984762,338,65.855903304107827,951,169.83815825661793,394,77.466121627457255,6797,465.24187257812468,453,94.36630754670864,3157,377.06895921038102,616,145.16542288024377]
[null,"With ambulatory difficulty",22,36.249137920783717,144,127.09838708654017,26,35.355339059327378,37,50.289163842720633,0,15.556349186104045,0,15.556349186104045,11,13,34,40.718546143004666,0,15.556349186104045,117,91.967385523347346,21,28.231188426986208,28,31.144823004794873,1,11.401754250991379]
[null,"With no ambulatory difficulty",1505,249.7298540423231,7731,555.56907761321634,9518,617.0980473150114,1439,351.80108015752313,755,211.303099835284,400,115.83177456984762,327,62.241465278381739,917,167.6305461424021,394,77.466121627457255,6680,457.30077629498948,432,93.085981758801893,3129,375.53295461250804,615,145.16542288024377]
[null,"35 to 64  years:",4301,257.0311265197272,11606,418.05741232514941,2890,217.95412361320444,3089,270.22398117117586,1977,187.60863519571799,850,72.201108024738787,680,70.178344238091,1961,142.83556979968259,1289,107.48953437428223,12448,395.63746030930895,1057,81.394102980498531,4516,297.39199720234569,1905,158.44872987815333]
[null,"With ambulatory difficulty",211,119.47384651043926,335,108.90362712049586,59,34.438350715445125,300,161.75598906995685,43,47.010637094172637,23,17.088007490635061,77,23.600847442411894,200,97.754795278799492,49,24.041630560342615,1244,247.50353532828578,33,23.706539182259394,443,149.20120642943877,77,51.86520991955976]
[null,"With no ambulatory difficulty",4090,261.74797038372617,11271,427.36986323324203,2831,215.92822881689185,2789,323.64177727852132,1934,178.2133552795637,827,74.632432628181164,603,66.603303221386852,1761,143.00349646075091,1240,108.30050784737807,11204,409.50335773959171,1024,82.758685344802331,4073,297.69951293208391,1828,152.76125163142649]
[null,"65 to 74  years:",625,166.58031096140985,1841,227.07047364199511,560,104.62313319720452,408,118.98319209031165,411,139.8177385026664,123,40.459856648287818,138,36.069377593742864,247,73.430239002743278,184,52.345009313209601,2885,253.65330670030698,200,40.36087214122113,743,150.6286825275983,372,90.972523324353276]
[null,"With ambulatory difficulty",179,111.89280584559492,273,123.2233744059949,53,33.015148038438355,14,27.459060435491963,88,94.641428560646744,26,26.40075756488817,27,17.804493814764857,59,45.617978911828175,33,19.104973174542799,562,174.28998823799375,14,12.529964086141668,69,46.957427527495582,72,48.259714048054619]
[null,"With no ambulatory difficulty",446,140.08925726121899,1568,227.7981562699751,507,105.11898020814318,394,118.98319209031165,323,116.38728452885221,97,29.068883707497267,111,34.655446902326915,188,64.350602172784676,151,49.51767361255979,2323,220.73740054644117,186,41.109609582188931,674,136.61991070118586,300,91.525952603619487]
[null,"75  years and Older:",331,139.51702405083043,1869,236.31546711969574,498,102.34256201600583,396,171.60419575290109,242,140.03570973148243,55,27.018512172212592,42,19.209372712298546,374,102.39628899525607,169,48.104053883222775,1755,221.33458834985552,124,40.36087214122113,607,136.03308421115798,177,71.175838597096984]
[null,"With ambulatory difficulty",107,64.637450444769243,673,161.33505508723144,73,43.011626335213137,225,140.12137595670404,0,15.556349186104045,10,10,7,13.038404810405298,82,50.774009099144415,55,30.870698080866262,569,155.08062419270823,32,21.95449840010015,243,95.268042910516428,33,25.709920264364882]
[null,"With no ambulatory difficulty",224,123.00406497347964,1196,213.32838535928593,425,99.297532698451278,171,112.64102272262978,242,140.03570973148243,45,23.430749027719962,35,18.439088914585774,292,93.744333162063725,114,39.204591567825318,1186,173.97126199461795,92,37.013511046643494,364,135.67977004697494,144,63.953107821277925]

{"sheet":"ACS_Table_B18106","index":28,"n_rows":122,"n_cols":76,"rows_kept":122,"cut":false,"hidden":true,"merged":[]}
["B18106. SEX BY AGE BY SELF-CARE DIFFICULTY\n\n\n\n"]
["Universe:  Civilian non-institutionalized population 5 years and over"]
["Data Set: 2015-2019 American Community Survey 5-Year Estimates"]
[]
[null,null,"Barrington",null,"Dover",null,"Durham",null,"Farmington",null,"Lee",null,"Madbury",null,"Middleton",null,"Milton",null,"New Durham",null,"Rochester",null,"Rollinsford",null,"Somersworth",null,"Strafford"]
[null,null,"Estimate","Margin Of Error","Estimate","Margin Of Error","Estimate","Margin Of Error","Estimate","Margin Of Error","Estimate","Margin Of Error","Estimate","Margin Of Error","Estimate","Margin Of Error","Estimate","Margin Of Error","Estimate","Margin Of Error","Estimate","Margin Of Error","Estimate","Margin Of Error","Estimate","Margin Of Error","Estimate","Margin Of Error",null,null,null,null,null,null,null,null,null,null,null,null,null,null,"Estimate","Margin Of Error","Estimate","Margin Of Error","Estimate","Margin Of Error","Estimate","Margin Of Error","Estimate","Margin Of Error","Estimate","Margin Of Error","Estimate","Margin Of Error","Estimate","Margin Of Error","Estimate","Margin Of Error","Estimate","Margin Of Error","Estimate","Margin Of Error","Estimate","Margin Of Error","Estimate","Margin Of Error","Estimate","Margin Of Error","Estimate","Margin Of Error","Estimate","Margin Of Error","Estimate","Margin Of Error"]
[null,"Total:",8556,235,28663,384,16195,97,6609,161,4355,102,1789,139,1691,156,4387,108,2612,53,29404,295,2448,55,11195,240,3818,106]
[null,"Male:",4217,290,13562,440,7585,359,3480,296,2093,176,941,96,850,81,2308,153,1291,83,14655,380,1109,78,5497,351,1785,153]
[null,"5 to 17  years:",926,205,1775,252,489,95,526,144,421,147,194,62,126,45,405,82,248,68,2907,288,140,56,890,212,178,100]
[null,"With self care difficulty",0,16,0,24,6,10,0,16,0,11,0,11,0,11,0,11,0,11,77,64,0,11,0,18,25,41]
[null,"With no self care difficulty",926,205,1775,252,483,93,526,144,421,147,194,62,126,45,405,82,248,68,2830,279,140,56,890,212,153,73]
[null,"18 to 34  years:",768,170,4216,454,5285,418,784,213,89,76,164,56,148,42,504,155,243,68,3448,334,248,58,1697,302,406,115]
[null,"With self care difficulty",0,16,21,36,13,13,0,16,0,11,0,11,0,11,0,11,0,11,13,20,0,11,18,30,0,11]
[null,"With no self care difficulty",768,170,4195,459,5272,418,784,213,89,76,164,56,148,42,504,155,243,68,3435,333,248,58,1679,300,406,115]
[null,"35 to 64  years:",2126,199,5399,343,1221,145,1658,211,1228,166,473,65,471,57,1000,126,595,56,5927,338,565,61,2281,252,914,97]
[null,"With self care difficulty",65,100,15,24,11,17,34,43,117,129,9,7,13,15,83,63,0,11,131,63,24,27,72,55,8,13]
[null,"With no self care difficulty",2061,218,5384,345,1210,145,1624,206,1111,180,464,65,458,54,917,117,595,56,5796,343,541,66,2209,247,906,97]
[null,"65 to 74  years:",293,115,1322,218,406,88,324,138,288,108,63,23,73,25,284,88,153,47,1449,208,90,28,395,110,175,60]
[null,"With self care difficulty",17,28,41,48,3,5,0,16,0,11,0,11,0,11,0,11,21,25,37,36,0,11,0,18,0,11]
[null,"With no self care difficulty",276,110,1281,218,403,88,324,138,288,108,63,23,73,25,284,88,132,41,1412,211,90,28,395,110,175,60]
[null,"75  years and Older:",104,79,850,165,184,63,188,84,67,47,47,23,32,21,115,58,52,34,924,151,66,35,234,74,112,40]
[null,"With self care difficulty",16,28,29,38,0,18,39,44,0,11,3,4,0,11,9,14,0,11,99,82,0,11,0,18,16,17]
[null,"With no self care difficulty",88,77,821,157,184,63,149,71,67,47,44,23,32,21,106,55,52,34,825,148,66,35,234,74,96,38]
[null,"Female:",4339,304,15101,434,8610,352,3129,258,2262,191,848,84,841,97,2079,146,1321,77,14749,401,1339,79,5698,296,2033,138]
[null,"5 to 17  years:",716,194,2211,236,595,150,577,161,278,98,198,50,145,50,242,104,264,74,2035,237,240,66,890,155,436,134]
[null,"With self care difficulty",0,16,0,24,11,12,0,16,0,11,6,7,0,11,0,11,0,11,26,41,0,11,0,18,0,11]
[null,"With no self care difficulty",716,194,2211,236,584,149,577,161,278,98,192,50,145,50,242,104,264,74,2009,244,240,66,890,155,436,134]
[null,"18 to 34  years:",874,229,4772,445,6118,406,617,153,481,210,139,46,165,38,424,100,200,78,3078,406,274,72,1390,255,304,100]
[null,"With self care difficulty",0,16,19,30,0,18,102,125,0,11,3,6,0,11,13,21,0,11,84,96,7,9,0,18,0,11]
[null,"With no self care difficulty",874,229,4753,448,6118,406,515,138,481,210,136,46,165,38,411,103,200,78,2994,388,267,71,1390,255,304,100]
[null,"35 to 64  years:",2345,206,5553,399,1250,125,1371,182,1123,142,421,49,417,57,956,122,613,47,6551,335,566,63,2474,218,928,102]
[null,"With self care difficulty",89,84,61,40,0,18,0,16,0,11,0,11,11,12,0,11,12,11,347,132,0,11,88,78,7,10]
[null,"With no self care difficulty",2256,205,5492,401,1250,125,1371,182,1123,142,421,49,406,56,956,122,601,49,6204,344,566,63,2386,226,921,103]
[null,"65 to 74  years:",204,90,1487,205,344,71,275,110,273,111,51,20,73,24,289,101,198,48,1741,202,129,37,535,126,197,48]
[null,"With self care difficulty",0,16,18,27,29,42,0,16,0,11,0,11,0,11,9,15,28,33,20,22,0,11,19,31,0,11]
[null,"With no self care difficulty",204,90,1469,210,315,69,275,110,273,111,51,20,73,24,280,102,170,36,1721,204,129,37,516,121,197,48]
[null,"75  years and Older:",200,132,1078,210,303,68,289,125,107,79,39,21,41,17,168,82,46,26,1344,210,130,47,409,134,168,57]
[null,"With self care difficulty",63,100,103,65,41,27,59,73,0,11,0,11,14,10,9,14,6,9,124,74,0,11,53,46,41,31]
[null,"With no self care difficulty",137,98,975,212,262,68,230,125,107,79,39,21,27,12,159,83,40,24,1220,201,130,47,356,130,127,52]
[]
[]
[{"$f":"A1& \"-Calculated\"","v":"B18106. SEX BY AGE BY SELF-CARE DIFFICULTY\n\n\n\n-Calculated"}]
[{"$f":"A2","v":"Universe:  Civilian non-institutionalized population 5 years and over"}]
[{"$f":"A3","v":"Data Set: 2015-2019 American Community Survey 5-Year Estimates"}]
[]
[]
[null,null,"Barrington",null,"Dover",null,"Durham",null,"Farmington",null,"Lee",null,"Madbury",null,"Middleton",null,"Milton",null,"New Durham",null,"Rochester",null,"Rollinsford",null,"Somersworth",null,"Strafford"]
[null,null,"Estimate","Margin Of Error","Estimate","Margin Of Error","Estimate","Margin Of Error","Estimate","Margin Of Error","Estimate","Margin Of Error","Estimate","Margin Of Error","Estimate","Margin Of Error","Estimate","Margin Of Error","Estimate","Margin Of Error","Estimate","Margin Of Error","Estimate","Margin Of Error","Estimate","Margin Of Error","Estimate","Margin Of Error"]
[null,"Total:",{"$f":"C7","v":8556},235,28663,384,16195,97,6609,161,4355,102,1789,139,1691,156,4387,108,2612,53,29404,295,2448,55,{"$f":"Y7","v":11195},{"$f":"Z7","v":240},{"$f":"AA7","v":3818},{"$f":"AB7","v":106}]
[null,"5 to 17  years:",{"$f":"C25+C9","v":1642},{"$f":"SQRT((D25^2)+(D9^2))","v":282.24280327406046},{"$f":"E25+E9","v":3986},{"$f":"SQRT((F25^2)+(F9^2))","v":345.25353003264138},{"$f":"G25+G9","v":1084},{"$f":"SQRT((H25^2)+(H9^2))","v":177.55280904564702},{"$f":"I25+I9","v":1103},{"$f":"SQRT((J25^2)+(J9^2))","v":216.00231480241132},{"$f":"K25+K9","v":699},{"$f":"SQRT((L25^2)+(L9^2))","v":176.67201249773547},{"$f":"M25+M9","v":392},{"$f":"SQRT((N25^2)+(N9^2))","v":79.649231006959511},{"$f":"O25+O9","v":271},{"$f":"SQRT((P25^2)+(P9^2))","v":67.268120235368556},{"$f":"Q25+Q9","v":647},{"$f":"SQRT((R25^2)+(R9^2))","v":132.43866504914644},{"$f":"S25+S9","v":512},{"$f":"SQRT((T25^2)+(T9^2))","v":100.4987562112089},{"$f":"U25+U9","v":4942},{"$f":"SQRT((V25^2)+(V9^2))","v":372.97855166215658},{"$f":"W25+W9","v":380},{"$f":"SQRT((X25^2)+(X9^2))","v":86.556340033529608},1780,262.6194966105906,{"$f":"AA25+AA9","v":614},{"$f":"SQRT((AB25^2)+(AB9^2))","v":167.20047846821492}]
[null,"With self care difficulty",0,22.627416997969522,0,33.941125496954278,17,15.620499351813308,0,22.627416997969522,0,15.556349186104045,6,13.038404810405298,0,15.556349186104045,0,15.556349186104045,0,15.556349186104045,103,76.006578662639456,0,15.556349186104045,0,25.45584412271571,25,42.449970553582247]
[null,"With no self care difficulty",1642,282.24280327406046,3986,345.25353003264138,1067,175.64168070250295,1103,216.00231480241132,699,176.67201249773547,386,79.649231006959511,271,67.268120235368556,647,132.43866504914644,512,100.4987562112089,4839,370.64403408121922,380,86.556340033529608,1780,262.6194966105906,589,152.59423318068085]
[null,"18 to 34  years:",1642,285.20343616443336,8988,635.72085068841341,11403,582.71777045152828,1401,262.25560051217207,570,223.32935319836486,303,72.47068372797375,313,56.639209034025185,928,184.45866745696716,443,103.47946656221224,6526,525.72996871017347,522,92.455394650609762,3087,395.25814349612079,710,152.3975065412817]
[null,"With self care difficulty",0,22.627416997969522,40,46.861498055439924,13,22.203603311174518,102,126.01983970788092,0,15.556349186104045,3,12.529964086141668,0,15.556349186104045,13,23.706539182259394,0,15.556349186104045,97,98.061205377050101,7,14.212670403551895,18,34.985711369071801,0,15.556349186104045]
[null,"With no self care difficulty",1642,285.20343616443336,8948,641.39301524104553,11390,582.71777045152828,1299,253.79716310471241,570,223.32935319836486,300,72.47068372797375,313,56.639209034025185,915,186.10212250267324,443,103.47946656221224,6429,511.30519261982857,515,91.678787077491378,3069,393.73214245220061,710,152.3975065412817]
[null,"35 to 64  years:",4471,286.42101878179261,10952,526.16537324305182,2471,191.44189719076647,3029,278.64852413031008,2351,218.44907873461037,894,81.400245699874887,888,80.610173055266415,1956,175.38529014715002,1208,73.109506905736964,12478,475.88759176931688,1131,87.692645073575008,4755,333.20864334527698,1842,140.75865870347016]
[null,"With self care difficulty",154,130.59862173851607,76,46.647615158762406,11,24.758836806279895,34,45.880278987817846,117,129.46814279968643,9,13.038404810405298,24,19.209372712298546,83,63.953107821277925,12,15.556349186104045,478,146.26346091898688,24,29.154759474226502,160,95.44108130150245,15,16.401219466856727]
[null,"With no self care difficulty",4317,299.24738929521175,10876,528.98582211624534,2460,191.44189719076647,2995,274.88179277645872,2234,229.26840166058645,885,81.400245699874887,864,77.794601355106892,1873,169.03549923019128,1196,74.411020689142546,12000,485.78287330864185,1107,91.241437954473298,4595,334.79097956784915,1827,141.48498153514387]
[null,"65 to 74  years:",497,146.03081866510234,2809,299.24738929521175,750,113.07077429645558,599,176.47662734764623,561,154.87091398968369,114,30.479501308256342,146,34.655446902326915,573,133.9589489358587,351,67.178865724273734,3190,289.94482233694049,219,46.400431032480725,930,167.26027621644059,372,76.837490849194182]
[null,"With self care difficulty",17,32.249030993194197,59,55.072679252057455,32,42.296571965113202,0,22.627416997969522,0,15.556349186104045,0,15.556349186104045,0,15.556349186104045,9,18.601075237738275,49,41.400483088968905,57,42.190046219457976,0,15.556349186104045,19,35.846896657869841,0,15.556349186104045]
[null,"With no self care difficulty",480,142.12670403551894,2750,302.69456552769492,718,111.82575731914361,599,176.47662734764623,561,154.87091398968369,114,30.479501308256342,146,34.655446902326915,564,134.71451295239129,302,54.561891462814962,3133,293.49105608178252,219,46.400431032480725,911,163.52675622050356,372,76.837490849194182]
[null,"75  years and Older:",304,153.83432646844463,1928,267.06740722147282,487,92.69843580125827,477,150.60212481900777,174,91.923881554251182,86,31.144823004794873,73,27.018512172212592,283,100.43903623591775,98,42.80186911806539,2268,258.65227623200997,196,58.600341295934449,643,153.07514494521962,280,69.634761434214738]
[null,"With self care difficulty",79,103.84603988597736,132,75.292761936324268,41,32.449961479175904,98,85.234969349440135,0,15.556349186104045,3,11.704699910719626,14,14.866068747318506,18,19.798989873223331,6,14.212670403551895,223,110.45361017187261,0,15.556349186104045,53,49.396356140913873,57,35.355339059327378]
[null,"With no self care difficulty",225,124.63145670335399,1796,263.80485211610494,446,92.69843580125827,379,143.75673897247393,174,91.923881554251182,83,31.144823004794873,59,24.186773244895647,265,99.569071503153026,92,41.617304093369626,2045,249.6096953245206,196,58.600341295934449,590,149.58609561052123,223,64.404968752418469]
[]
[]
[]
[]
[]
[]
[]
[]
[]
[]
[]
[]
[]
[]
[]
[]
[]
[]
[]
[]
[]
[]
[]
[]
[]
[]
[]
[]
[]
[]
[]
[]
[]
[]
[]
["B18106. SEX BY AGE BY SELF-CARE DIFFICULTY\n\n\n\n-Calculated"]
["Universe:  Civilian non-institutionalized population 5 years and over"]
["Data Set: 2010-2014 American Community Survey 5-Year Estimates"]
[]
[]
[null,null,"Barrington",null,"Dover",null,"Durham",null,"Farmington",null,"Lee",null,"Madbury",null,"Middleton",null,"Milton",null,"New Durham",null,"Rochester",null,"Rollinsford",null,"Somersworth",null,"Strafford"]
[null,null,"Estimate","Margin Of Error","Estimate","Margin Of Error","Estimate","Margin Of Error","Estimate","Margin Of Error","Estimate","Margin Of Error","Estimate","Margin Of Error","Estimate","Margin Of Error","Estimate","Margin Of Error","Estimate","Margin Of Error","Estimate","Margin Of Error","Estimate","Margin Of Error","Estimate","Margin Of Error","Estimate","Margin Of Error"]
[null,"Total:",8091,237,27733,459,14787,126,6499,146,4260,86,1891,162,1473,158,4357,92,2498,53,27928,315,2243,82,10862,218,3864,114]
[null,"5 to 17  years:",1307,308.52552568628744,4542,357.45908856818846,1295,202.82997806044352,1130,270.94648918190472,875,230.52114870440846,463,97.652444925869617,275,72.47068372797375,824,142.42541907960108,462,98.994949366116657,4043,414.71194822430664,409,82.09750300709517,1839,288.51343122981297,794,142.87407042567241]
[null,"With self care difficulty",0,21.213203435596427,18,37.013511046643494,20,34.481879299133332,50,52.478567053607705,24,38.600518131237564,0,15.556349186104045,8,13.601470508735444,0,15.556349186104045,0,15.556349186104045,48,52.924474489596967,7,14.212670403551895,18,32.756678708318397,16,24.596747752497688]
[null,"With no self care difficulty",1307,308.52552568628744,4524,358.1982691192128,1275,206.65188119153427,1080,261.96373794859471,851,229.8194943863553,463,97.652444925869617,267,72.47068372797375,824,142.42541907960108,462,98.994949366116657,3995,405.35663310225971,402,80.448741444475061,1821,284.26044395940846,778,140.06427096158393]
[null,"18 to 34  years:",1527,249.0461804565571,7875,561.69920776159188,9544,619.46832041679102,1476,351.31894341182345,755,211.303099835284,400,115.83177456984762,338,65.855903304107827,951,169.83815825661793,394,77.466121627457255,6797,465.24187257812468,453,94.36630754670864,3157,377.06895921038102,616,145.16542288024377]
[null,"With self care difficulty",22,36.249137920783717,102,96.166522241370458,70,75.927597090912869,0,21.213203435596427,0,15.556349186104045,3,12.083045973594572,8,16.278820596099706,23,38.600518131237564,0,15.556349186104045,42,50.159744815937813,0,15.556349186104045,15,28.600699292150182,0,15.556349186104045]
[null,"With no self care difficulty",1505,249.7298540423231,7773,563.00088809876672,9474,619.46832041679102,1476,351.31894341182345,755,211.303099835284,397,115.39497389401325,330,61.522353661088097,928,168.21712160181556,394,77.466121627457255,6755,462.13093382720012,453,94.36630754670864,3142,375.53295461250804,616,145.16542288024377]
[null,"35 to 64  years:",4301,257.0311265197272,11606,418.05741232514941,2890,217.95412361320444,3089,270.22398117117586,1977,187.60863519571799,850,72.201108024738787,680,70.178344238091,1961,142.83556979968259,1289,107.48953437428223,12448,395.63746030930895,1057,81.394102980498531,4516,297.39199720234569,1905,158.44872987815333]
[null,"With self care difficulty",12,25.80697580112788,274,132.60844618650805,17,23.345235059857504,55,52.801515129776341,0,15.556349186104045,17,16.278820596099706,29,16.278820596099706,65,44.384682042344295,11,15.556349186104045,249,109.65856099730654,6,14.212670403551895,184,93.520051325905499,17,22.825424421026653]
[null,"With no self care difficulty",4289,257.0311265197272,11332,431.42206712220923,2873,217.27632176562636,3034,272.85344051340087,1977,187.60863519571799,833,73.81734213584231,651,70.178344238091,1896,139.38794782907166,1278,106.7941945987702,12199,396.02272662058169,1051,81.394102980498531,4332,282.1364917907643,1888,157.72444325468391]
[null,"65 to 74  years:",625,166.58031096140985,1841,227.07047364199511,560,104.62313319720452,408,118.98319209031165,411,139.8177385026664,123,40.459856648287818,138,36.069377593742864,247,73.430239002743278,184,52.345009313209601,2885,253.65330670030698,200,40.36087214122113,743,150.6286825275983,372,90.972523324353276]
[null,"With self care difficulty",17,31.76476034853718,46,37.161808352124091,29,31.906112267087632,0,21.213203435596427,19,31.016124838541646,0,15.556349186104045,3,11.704699910719626,21,25.238858928247925,0,15.556349186104045,28,36.891733491393431,5,13.601470508735444,13,27.018512172212592,0,15.556349186104045]
[null,"With no self care difficulty",608,168.5852899869974,1795,225.62136423663429,531,106.78014796768171,408,118.98319209031165,392,137.71347065556077,123,40.459856648287818,135,35.355339059327378,226,68.264192663504048,184,52.345009313209601,2857,252.84184780213894,195,41.109609582188931,730,149.20120642943877,372,90.972523324353276]
[null,"75  years and Older:",331,139.51702405083043,1869,236.31546711969574,498,102.34256201600583,396,171.60419575290109,242,140.03570973148243,55,27.018512172212592,42,19.209372712298546,374,102.39628899525607,169,48.104053883222775,1755,221.33458834985552,124,40.36087214122113,607,136.03308421115798,177,71.175838597096984]
[null,"With self care difficulty",38,44.77722635447622,161,80.919713296575637,19,23.600847442411894,71,94.921019800674287,0,15.556349186104045,2,12.529964086141668,0,15.556349186104045,28,29.154759474226502,0,15.556349186104045,184,100,6,14.212670403551895,46,42.485291572496003,3,12.529964086141668]
[null,"With no self care difficulty",293,137.92751719653333,1708,225.03777460684239,479,100.68763578513501,325,152.89865924853626,242,140.03570973148243,53,24.758836806279895,42,19.209372712298546,346,101.35580891098448,169,48.104053883222775,1571,214.51573368869705,118,39.623225512317902,561,127.06297651164952,174,71.175838597096984]

{"sheet":"ACS_Table_B18107","index":29,"n_rows":119,"n_cols":28,"rows_kept":119,"cut":false,"hidden":true,"merged":[]}
["B18107. SEX BY AGE BY INDEPENDENT LIVING DIFFICULTY\n\n\n"]
["Universe:  Civilian non-institutionalized population 18 years and over"]
["Data Set: 2015-2019 American Community Survey 5-Year Estimates"]
[]
[null,null,"Barrington",null,"Dover",null,"Durham",null,"Farmington",null,"Lee",null,"Madbury",null,"Middleton",null,"Milton",null,"New Durham",null,"Rochester",null,"Rollinsford",null,"Somersworth",null,"Strafford"]
[null,null,"Estimate","Margin Of Error","Estimate","Margin Of Error","Estimate","Margin Of Error","Estimate","Margin Of Error","Estimate","Margin Of Error","Estimate","Margin Of Error","Estimate","Margin Of Error","Estimate","Margin Of Error","Estimate","Margin Of Error","Estimate","Margin Of Error","Estimate","Margin Of Error","Estimate","Margin Of Error","Estimate","Margin Of Error"]
[null,"Total:",6914,203,24677,406,15111,194,5506,191,3656,174,1397,116,1420,130,3740,107,2100,89,24462,389,2068,59,9415,321,3204,147]
[null,"Male:",3291,193,11787,423,7096,359,2954,254,1672,178,747,81,724,69,1903,125,1043,81,11748,356,969,66,4607,333,1607,132]
[null,"18 to 34  years:",768,170,4216,454,5285,418,784,213,89,76,164,56,148,42,504,155,243,68,3448,334,248,58,1697,302,406,115]
[null,"With independent living difficulty",40,62,72,67,8,13,28,44,0,11,0,11,0,11,0,11,0,11,95,73,0,11,103,93,1,5]
[null,"With no independent living difficulty",728,173,4144,449,5277,420,756,205,89,76,164,56,148,42,504,155,243,68,3353,335,248,58,1594,309,405,115]
[null,"35 to 64  years:",2126,199,5399,343,1221,145,1658,211,1228,166,473,65,471,57,1000,126,595,56,5927,338,565,61,2281,252,914,97]
[null,"With independent living difficulty",65,100,123,82,19,21,92,72,117,129,12,9,26,19,63,47,0,11,168,83,30,26,98,63,8,13]
[null,"With no independent living difficulty",2061,218,5276,359,1202,143,1566,219,1111,180,461,65,445,55,937,121,595,56,5759,330,535,66,2183,241,906,97]
[null,"65 to 74  years:",293,115,1322,218,406,88,324,138,288,108,63,23,73,25,284,88,153,47,1449,208,90,28,395,110,175,60]
[null,"With independent living difficulty",31,36,125,110,3,5,0,16,13,22,3,5,6,7,0,11,21,25,67,53,0,11,0,18,19,21]
[null,"With no independent living difficulty",262,108,1197,225,403,88,324,138,275,105,60,22,67,25,284,88,132,41,1382,212,90,28,395,110,156,58]
[null,"75  years and Older:",104,79,850,165,184,63,188,84,67,47,47,23,32,21,115,58,52,34,924,151,66,35,234,74,112,40]
[null,"With independent living difficulty",16,28,134,98,8,13,39,46,13,21,5,5,0,11,38,46,0,11,158,92,10,11,0,18,23,22]
[null,"With no independent living difficulty",88,77,716,152,176,61,149,72,54,41,42,23,32,21,77,37,52,34,766,150,56,33,234,74,89,38]
[null,"Female:",3623,225,12890,432,8015,370,2552,211,1984,214,650,62,696,77,1837,122,1057,74,12714,342,1099,62,4808,264,1597,124]
[null,"18 to 34  years:",874,229,4772,445,6118,406,617,153,481,210,139,46,165,38,424,100,200,78,3078,406,274,72,1390,255,304,100]
[null,"With independent living difficulty",41,64,91,69,70,47,102,125,0,11,3,6,0,11,13,21,6,9,374,226,7,9,54,64,14,22]
[null,"With no independent living difficulty",833,240,4681,459,6048,402,515,138,481,210,136,46,165,38,411,103,194,77,2704,388,267,71,1336,248,290,99]
[null,"35 to 64  years:",2345,206,5553,399,1250,125,1371,182,1123,142,421,49,417,57,956,122,613,47,6551,335,566,63,2474,218,928,102]
[null,"With independent living difficulty",88,81,265,127,1,3,62,59,0,11,3,5,15,11,33,32,41,25,603,208,24,23,148,81,47,61]
[null,"With no independent living difficulty",2257,204,5288,384,1249,125,1309,189,1123,142,418,50,402,57,923,126,572,52,5948,347,542,60,2326,235,881,100]
[null,"65 to 74  years:",204,90,1487,205,344,71,275,110,273,111,51,20,73,24,289,101,198,48,1741,202,129,37,535,126,197,48]
[null,"With independent living difficulty",0,16,106,67,29,42,0,16,0,11,0,11,0,11,15,17,28,33,49,30,0,11,19,31,0,11]
[null,"With no independent living difficulty",204,90,1381,207,315,69,275,110,273,111,51,20,73,24,274,102,170,35,1692,202,129,37,516,121,197,48]
[null,"75  years and Older:",200,132,1078,210,303,68,289,125,107,79,39,21,41,17,168,82,46,26,1344,210,130,47,409,134,168,57]
[null,"With independent living difficulty",103,118,299,104,78,37,85,80,21,32,3,5,18,13,56,46,13,14,180,77,22,18,91,64,62,39]
[null,"With no independent living difficulty",97,76,779,198,225,61,204,114,86,75,36,19,23,11,112,68,33,21,1164,194,108,46,318,124,106,48]
[]
[]
[{"$f":"A1& \"-Calculated\"","v":"B18107. SEX BY AGE BY INDEPENDENT LIVING DIFFICULTY\n\n\n-Calculated"}]
[{"$f":"A2","v":"Universe:  Civilian non-institutionalized population 18 years and over"}]
[{"$f":"A3","v":"Data Set: 2015-2019 American Community Survey 5-Year Estimates"}]
[]
[]
[null,null,"Barrington",null,"Dover",null,"Durham",null,"Farmington",null,"Lee",null,"Madbury",null,"Middleton",null,"Milton",null,"New Durham",null,"Rochester",null,"Rollinsford",null,"Somersworth",null,"Strafford"]
[null,null,"Estimate","Margin Of Error","Estimate","Margin Of Error","Estimate","Margin Of Error","Estimate","Margin Of Error","Estimate","Margin Of Error","Estimate","Margin Of Error","Estimate","Margin Of Error","Estimate","Margin Of Error","Estimate","Margin Of Error","Estimate","Margin Of Error","Estimate","Margin Of Error","Estimate","Margin Of Error","Estimate","Margin Of Error"]
[null,"Total:",{"$f":"C7","v":6914},203,24677,406,15111,194,5506,191,3656,174,1397,116,1420,130,3740,107,2100,89,24462,389,2068,59,{"$f":"Y7","v":9415},{"$f":"Z7","v":321},{"$f":"AA7","v":3204},{"$f":"AB7","v":147}]
[null,"18 to 34  years:",{"$f":"C22+C9","v":1642},{"$f":"SQRT((D22^2)+(D9^2))","v":285.20343616443336},{"$f":"E22+E9","v":8988},{"$f":"SQRT((F22^2)+(F9^2))","v":635.72085068841341},{"$f":"G22+G9","v":11403},{"$f":"SQRT((H22^2)+(H9^2))","v":582.71777045152828},{"$f":"I22+I9","v":1401},{"$f":"SQRT((J22^2)+(J9^2))","v":262.25560051217207},{"$f":"K22+K9","v":570},{"$f":"SQRT((L22^2)+(L9^2))","v":223.32935319836486},{"$f":"M22+M9","v":303},{"$f":"SQRT((N22^2)+(N9^2))","v":72.47068372797375},{"$f":"O22+O9","v":313},{"$f":"SQRT((P22^2)+(P9^2))","v":56.639209034025185},{"$f":"Q22+Q9","v":928},{"$f":"SQRT((R22^2)+(R9^2))","v":184.45866745696716},{"$f":"S22+S9","v":443},{"$f":"SQRT((T22^2)+(T9^2))","v":103.47946656221224},{"$f":"U22+U9","v":6526},{"$f":"SQRT((V22^2)+(V9^2))","v":525.72996871017347},{"$f":"W22+W9","v":522},{"$f":"SQRT((X22^2)+(X9^2))","v":92.455394650609762},3087,395.25814349612079,710,152.3975065412817]
[null,"With independent living difficulty",{"$f":"C23+C10","v":81},{"$f":"SQRT((D23^2)+(D10^2))","v":89.10667763978185},163,96.176920308356728,78,48.764741360946438,130,132.51792331605563,0,15.556349186104045,3,12.529964086141668,0,15.556349186104045,13,23.706539182259394,6,14.212670403551895,469,237.49736840647307,7,14.212670403551895,157,112.89375536317321,15,22.561028345356956]
[null,"With no independent living difficulty",1561,295.85300404085808,8825,642.09189373484537,11325,581.38111424434828,1271,247.1214276423637,570,223.32935319836486,300,72.47068372797375,313,56.639209034025185,915,186.10212250267324,437,102.7277956543408,6057,512.60998819765496,515,91.678787077491378,2930,396.21332637860633,695,151.74320413119]
[null,"35 to 64  years:",4471,286.42101878179261,10952,526.16537324305182,2471,191.44189719076647,3029,278.64852413031008,2351,218.44907873461037,894,81.400245699874887,888,80.610173055266415,1956,175.38529014715002,1208,73.109506905736964,12478,475.88759176931688,1131,87.692645073575008,4755,333.20864334527698,1842,140.75865870347016]
[null,"With independent living difficulty",153,128.68954891520912,388,151.17208737065187,20,21.213203435596427,154,93.085981758801893,117,129.46814279968643,15,10.295630140987001,41,21.95449840010015,96,56.859475903318,41,27.313000567495326,771,223.94865482962831,54,34.713109915419565,246,102.61578825892242,55,62.369864518050704]
[null,"With no independent living difficulty",4318,298.56322613476698,10564,525.67765788551446,2451,189.93156662334991,2875,289.27841260626411,2234,229.26840166058645,879,82.006097334283623,847,79.208585393251411,1860,174.69115604403103,1167,76.419892698171196,11707,478.86219312031722,1077,89.196412483911033,4509,336.60956611480907,1787,139.31618714277246]
[null,"65 to 74  years:",497,146.03081866510234,2809,299.24738929521175,750,113.07077429645558,599,176.47662734764623,561,154.87091398968369,114,30.479501308256342,146,34.655446902326915,573,133.9589489358587,351,67.178865724273734,3190,289.94482233694049,219,46.400431032480725,930,167.26027621644059,372,76.837490849194182]
[null,"With independent living difficulty",31,39.395431207184416,231,128.79829191413992,32,42.296571965113202,0,22.627416997969522,13,24.596747752497688,3,12.083045973594572,6,13.038404810405298,15,20.248456731316587,49,41.400483088968905,116,60.901559914340453,0,15.556349186104045,19,35.846896657869841,19,23.706539182259394]
[null,"With no independent living difficulty",466,140.58449416631979,2578,305.73517952633455,718,111.82575731914361,599,176.47662734764623,548,152.79397893896211,111,29.732137494637012,140,34.655446902326915,558,134.71451295239129,302,53.907327887774215,3074,292.8275943281302,219,46.400431032480725,911,163.52675622050356,353,75.286120898874842]
[null,"75  years and Older:",304,153.83432646844463,1928,267.06740722147282,487,92.69843580125827,477,150.60212481900777,174,91.923881554251182,86,31.144823004794873,73,27.018512172212592,283,100.43903623591775,98,42.80186911806539,2268,258.65227623200997,196,58.600341295934449,643,153.07514494521962,280,69.634761434214738]
[null,"With independent living difficulty",119,121.27654348636426,433,142.89856542317,86,39.217343102255157,124,92.282175960474618,34,38.275318418009277,8,7.0710678118654755,18,17.029386365926403,94,65.053823869162372,13,17.804493814764857,338,119.97082978791136,32,21.095023109728988,91,66.483080554378645,85,44.77722635447622]
[null,"With no independent living difficulty",{"$f":"C33+C20","v":185},108.18964830333815,1495,249.61570463414355,401,86.267027304758798,353,134.83323032546539,140,85.475142585432408,78,29.832867780352597,55,23.706539182259394,189,77.414468931847622,85,39.962482405376171,1930,245.22642598219304,164,56.612719418872643,552,144.40221604947757,195,61.220911460055866]
[]
[]
[]
[]
[]
[]
[]
[]
[]
[]
[]
[]
[]
[]
[]
[]
[]
[]
[]
[]
[]
[]
[]
[]
[]
[]
[]
[]
[]
[]
[]
[]
[]
[]
[]
[]
[]
[]
[]
[]
[]
[]
[]
[]
["B18107. SEX BY AGE BY INDEPENDENT LIVING DIFFICULTY\n\n\n-Calculated"]
["Universe:  Civilian non-institutionalized population 18 years and over"]
["Data Set: 2010-2014 American Community Survey 5-Year Estimates"]
[]
[]
[null,null,"Barrington",null,"Dover",null,"Durham",null,"Farmington",null,"Lee",null,"Madbury",null,"Middleton",null,"Milton",null,"New Durham",null,"Rochester",null,"Rollinsford",null,"Somersworth",null,"Strafford"]
[null,null,"Estimate","Margin Of Error","Estimate","Margin Of Error","Estimate","Margin Of Error","Estimate","Margin Of Error","Estimate","Margin Of Error","Estimate","Margin Of Error","Estimate","Margin Of Error","Estimate","Margin Of Error","Estimate","Margin Of Error","Estimate","Margin Of Error","Estimate","Margin Of Error","Estimate","Margin Of Error","Estimate","Margin Of Error"]
[null,"Total:",6784,264,23191,445,13492,201,5369,208,3385,150,1428,148,1198,125,3533,116,2036,108,23885,331,1834,82,9023,251,3070,143]
[null,"18 to 34  years:",1527,249.0461804565571,7875,561.69920776159188,9544,619.46832041679102,1476,351.31894341182345,755,211.303099835284,400,115.83177456984762,338,65.855903304107827,951,169.83815825661793,394,77.466121627457255,6797,465.24187257812468,453,94.36630754670864,3157,377.06895921038102,616,145.16542288024377]
[null,"With independent living difficulty",22,36.249137920783717,91,62.177166226839255,106,82.219219164377861,99,103.76897416858277,1,14.212670403551895,3,12.083045973594572,11,17.029386365926403,53,53.758720222862451,6,13.601470508735444,257,116.36150566231085,0,15.556349186104045,60,50.24937810560445,23,30.083217912982647]
[null,"With no independent living difficulty",1505,249.7298540423231,7784,566.52007907928555,9438,618.85701094840965,1377,348.30446451344835,754,211.303099835284,397,115.39497389401325,327,60.827625302982199,898,167.04789732289359,388,78.243210568074218,6540,468.01709370492011,453,94.36630754670864,3097,378.11373950175363,593,140.75865870347016]
[null,"35 to 64  years:",4301,257.0311265197272,11606,418.05741232514941,2890,217.95412361320444,3089,270.22398117117586,1977,187.60863519571799,850,72.201108024738787,680,70.178344238091,1961,142.83556979968259,1289,107.48953437428223,12448,395.63746030930895,1057,81.394102980498531,4516,297.39199720234569,1905,158.44872987815333]
[null,"With independent living difficulty",94,77.89736837660179,421,153.38839591051209,84,44.294469180700204,169,121.16517651536682,24,32.984845004941285,19,12.041594578792296,33,16.643316977093239,166,84.380092438915952,30,20.248456731316587,768,187.80042598460739,10,15.556349186104045,227,90.609050320594349,23,26.40075756488817]
[null,"With no independent living difficulty",4207,263.03041649208558,11185,438.98974931084666,2806,213.10326135467753,2920,297.06733243492124,1953,188.35073665903195,831,73.006848993775918,647,68.767724987816777,1795,142.63590010933433,1259,102.6498904042279,11680,411.75356707623069,1047,82.073138114732771,4289,281.27744310555727,1882,158.44872987815333]
[null,"65 to 74  years:",625,166.58031096140985,1841,227.07047364199511,560,104.62313319720452,408,118.98319209031165,411,139.8177385026664,123,40.459856648287818,138,36.069377593742864,247,73.430239002743278,184,52.345009313209601,2885,253.65330670030698,200,40.36087214122113,743,150.6286825275983,372,90.972523324353276]
[null,"With independent living difficulty",26,35.341194094144583,97,60.033324079214538,73,65,14,27.459060435491963,0,15.556349186104045,0,15.556349186104045,10,15.556349186104045,21,25.238858928247925,0,15.556349186104045,250,141.7391971192161,9,10,19,33.61547262794322,25,26.40075756488817]
[null,"With no independent living difficulty",599,169.09760495051373,1744,224.24317157942625,487,92.617492948146676,394,118.98319209031165,411,139.8177385026664,123,40.459856648287818,128,35.355339059327378,226,68.264192663504048,184,52.345009313209601,2635,251.62869470710211,191,41.109609582188931,724,149.93331851193051,347,92.086915465770701]
[null,"75  years and Older:",331,139.51702405083043,1869,236.31546711969574,498,102.34256201600583,396,171.60419575290109,242,140.03570973148243,55,27.018512172212592,42,19.209372712298546,374,102.39628899525607,169,48.104053883222775,1755,221.33458834985552,124,40.36087214122113,607,136.03308421115798,177,71.175838597096984]
[null,"With independent living difficulty",152,93.813645062965122,417,124.19742348374221,40,35.468295701936398,80,96.881370758262918,19,31.016124838541646,12,16.278820596099706,4,12.083045973594572,34,28.460498941515414,33,20.248456731316587,384,131.20975573485381,22,17.029386365926403,122,67.082039324993687,33,27.658633371878661]
[null,"With no independent living difficulty",179,112.50777750893491,1452,206.63494380186523,458,99.864908751773257,316,149.24141516348604,223,140.03570973148243,43,23.345235059857504,38,18.439088914585774,340,101.35580891098448,136,45.254833995939045,1371,200.11246837716035,102,36.878177829171548,485,132.90974381135493,144,63.953107821277925]

{"sheet":"ACS_Table_C18108","index":30,"n_rows":118,"n_cols":492,"rows_kept":118,"cut":false,"hidden":true,"merged":[]}
["B18108. AGE BY NUMBER OF DISABILITIES\n\n"]
["Universe:  Civilian non-institutionalized population"]
["Data Set: 2015-2019 American Community Survey 5-Year Estimates"]
[]
[null,null,"Barrington",null,"Dover",null,"Durham",null,"Farmington",null,"Lee",null,"Madbury",null,"Middleton",null,"Milton",null,"New Durham",null,"Rochester",null,"Rollinsford",null,"Somersworth",null,"Strafford"]
[null,null,"Estimate","Margin Of Error","Estimate","Margin Of Error","Estimate","Margin Of Error","Estimate","Margin Of Error","Estimate","Margin Of Error","Estimate","Margin Of Error","Estimate","Margin Of Error","Estimate","Margin Of Error","Estimate","Margin Of Error","Estimate","Margin Of Error","Estimate","Margin Of Error","Estimate","Margin Of Error","Estimate","Margin Of Error"]
[null,"Total:",9063,31,30696,253,16461,28,6930,17,4485,18,1901,157,1780,160,4620,24,2697,17,30647,144,2547,37,11848,74,4131,24]
[null,"Under 18 years:",2149,202,6019,349,1350,192,1424,191,829,175,504,108,360,73,880,105,597,91,6185,370,479,52,2433,297,927,148]
[null,"With one type of disability",50,76,107,108,44,33,47,64,21,31,3,4,3,4,11,18,7,10,201,95,48,24,98,79,0,11]
[null,"With two or more types of disability",0,16,58,73,12,13,0,16,0,11,6,7,0,11,6,11,0,11,132,87,19,21,0,18,25,41]
[null,"No disability",2099,232,5854,351,1294,191,1377,186,808,171,495,109,357,72,863,106,590,91,5852,370,412,50,2335,302,902,139]
[null,"18 to 64  years:",6113,258,19940,551,13874,280,4430,222,2921,217,1197,119,1201,117,2884,168,1651,99,19004,472,1653,70,7842,331,2552,129]
[null,"With one type of disability",505,195,1128,241,576,119,254,155,64,63,34,18,70,31,256,108,91,41,1830,345,115,47,485,176,192,87]
[null,"With two or more types of disability",284,173,551,166,95,50,336,188,118,129,18,11,40,21,132,71,80,44,1555,354,65,37,455,197,44,35]
[null,"No disability",5324,301,18261,529,13203,300,3840,272,2739,236,1145,120,1091,111,2496,156,1480,90,15619,573,1473,89,6902,306,2316,166]
[null,"65 years and over:",801,190,4737,402,1237,155,1076,256,735,171,200,56,219,51,856,161,449,100,5458,357,415,59,1573,156,652,89]
[null,"With one type of disability",12,20,850,213,165,58,237,115,25,26,19,13,36,23,107,49,62,31,862,175,78,41,325,117,74,41]
[null,"With two or more types of disability",203,135,923,222,141,70,183,111,89,80,27,21,27,16,134,74,100,74,814,190,38,27,174,94,105,43]
[null,"No disability",586,187,2964,330,931,133,656,194,621,164,154,46,156,42,615,144,287,59,3782,374,299,62,1074,172,473,82]
[]
[]
[]
[]
[]
[]
[]
[]
[]
[]
[]
[]
[]
[]
[]
[]
[]
[]
[]
[]
[]
[]
[]
[]
[]
[]
[]
[]
[]
[]
[]
[]
[]
[]
[]
[]
[]
[]
[]
[]
[]
[]
[]
[]
[]
[]
[]
[]
[]
[]
[]
[]
[]
[]
[]
[]
[]
[]
[]
[]
[]
[]
[]
[]
[]
[]
[]
[]
[]
[]
[]
[]
[]
[]
[]
[]
[]
[]
[]
[]
["B18108. AGE BY NUMBER OF DISABILITIES\n\n"]
["Universe:  Civilian non-institutionalized population"]
["Data Set: 2010-2014 American Community Survey 5-Year Estimates"]
[]
[null,null,"Barrington",null,"Dover",null,"Durham",null,"Farmington",null,"Lee",null,"Madbury",null,"Middleton",null,"Milton",null,"New Durham",null,"Rochester",null,"Rollinsford",null,"Somersworth",null,"Strafford"]
[null,null,"Estimate","Margin Of Error","Estimate","Margin Of Error","Estimate","Margin Of Error","Estimate","Margin Of Error","Estimate","Margin Of Error","Estimate","Margin Of Error","Estimate","Margin Of Error","Estimate","Margin Of Error","Estimate","Margin Of Error","Estimate","Margin Of Error","Estimate","Margin Of Error","Estimate","Margin Of Error","Estimate","Margin Of Error"]
[null,"Total:",5264,21,4605,19,7313,27,1012,145,7125,41,3778,15,15560,162,6262,56,2266,140,2977,25,3362,141,800,176,2767,20,786,200,393,96,9930,71,348,65,1362,168,1195,152,137,41,41,24,1032,242,2507,18,4032,19,4136,113,1484,191,2851,19,2256,298,5046,37,6103,76,1922,228,3601,19,1642,213,2454,210,610,88,911,121,3995,20,5341,85,22848,164,1834,236,753,140,606,108,1089,203,5933,42,236,46,1124,173,741,133,828,107,7255,32,2262,263,3704,33,1919,197,4239,44,0,11,0,11,0,11,8671,580,17,16,991,165,0,11,315,75,2340,210,726,132,0,11,0,11,933,154,0,11,13,9,348,76,301,70,0,11,2765,15,8,17,0,11,902,89,0,11,3338,89,0,11,0,11,1307,85,20,16,2179,180,0,11,8,6,875,130,424,74,9,12,0,11,358,66,490,94,712,123,705,127,0,11,0,11,62,33,2081,219,1829,203,2066,318,872,125,378,116,2537,19,1092,143,3054,16,3317,18,3910,23,318,60,243,45,61,33,4565,17,1099,166,1278,210,637,117,11167,53,4432,123,578,189,2080,249,416,52,13336,56,1309,266,1557,149,5937,21,0,11,608,97,1733,148,906,130,308,65,1572,257,754,98,6853,74,1649,314,618,125,2490,22,726,135,260,110,896,163,1137,211,11234,20,2622,21,20924,226,1357,201,5051,28,1772,184,1551,143,17288,167,1416,119,2374,215,1805,142,5950,49,7721,27,24453,72,8329,16,1633,171,108437,353,1329,102,25521,45,14974,135,2508,187,86197,162,5381,27,5119,14,13032,19,6216,91,320,61,1594,295,8849,40,3679,17,259,66,4283,41,2421,253,3446,335,7611,29,1706,205,2291,204,2551,18,40333,422,1243,186,2779,17,4490,91,8322,73,4822,22,1164,184,13669,50,5591,23,5332,24,1749,234,4465,78,4772,59,7121,29,4078,30,1402,161,2014,287,2846,21,1891,199,1367,181,0,11,6788,19,5078,20,4184,165,3920,21,4802,18,4416,39,4330,19,33018,137,2453,130,6587,17,14251,110,4306,45,3668,15,8496,64,14765,183,2307,123,2055,149,6060,19,24247,24,966,162,1621,222,798,136,8911,33,4700,39,4344,22,4269,16,4855,17,7614,26,20789,309,10202,23,5275,65,28729,56,6133,38,8736,25,799,123,7303,19,13908,55,8691,17,29373,345,15169,37,6805,45,4357,15,1995,170,1563,168,4576,27,2648,16,29661,116,2506,31,11694,51,4017,28]
[null,"Under 18 years:",928,236,866,192,1853,218,140,60,1328,249,818,139,3312,302,1340,190,455,78,509,85,649,146,215,88,360,139,188,88,84,37,2002,278,28,18,218,65,210,60,3,6,3,5,182,105,445,111,631,131,948,182,327,96,191,104,520,175,714,181,1035,248,449,110,709,192,314,104,468,114,60,28,128,45,759,97,1177,178,3609,321,359,126,165,64,101,38,206,79,1226,146,45,17,226,72,154,52,81,31,1392,289,470,135,928,138,474,103,991,131,0,11,0,11,0,11,1623,193,0,11,214,95,0,11,53,29,398,80,131,46,0,11,0,11,138,61,0,11,0,11,75,35,20,17,0,11,568,71,0,11,0,11,125,30,0,11,747,94,0,11,0,11,207,32,7,9,457,100,0,11,0,11,82,37,59,27,0,11,0,11,55,31,94,42,74,45,161,56,0,11,0,11,4,6,369,83,486,83,391,146,130,48,125,67,621,111,126,59,704,114,501,147,801,119,23,15,30,19,4,9,792,155,156,53,251,96,81,42,1441,200,813,112,96,36,424,105,62,25,2600,244,276,113,321,70,1176,201,0,11,106,44,396,52,199,66,53,24,347,85,129,41,812,138,316,131,110,57,348,95,134,40,49,41,144,56,207,93,3104,246,546,80,5892,292,370,111,1370,122,300,63,256,53,3157,262,290,44,532,142,380,60,1659,215,1771,130,5956,318,2293,150,350,83,22211,627,354,106,5619,252,3546,163,683,101,19093,643,1292,122,1523,227,3275,185,980,178,33,16,337,132,2406,208,829,103,37,22,836,110,422,110,840,192,1905,116,317,85,463,111,474,60,8640,396,262,90,596,63,899,106,1972,193,1168,233,251,82,2604,208,1257,157,1177,151,315,82,411,124,1136,153,1592,156,936,147,288,75,468,124,532,108,432,95,253,75,0,11,1431,121,1164,96,1185,125,779,108,1199,95,1156,115,1024,99,7444,423,553,61,1455,184,3335,295,993,98,879,68,1851,170,2764,306,529,65,484,72,1228,143,5967,266,120,67,443,99,99,40,1898,237,1231,118,867,122,917,169,1039,121,1669,258,3384,238,2473,241,789,141,5753,325,1479,170,1309,281,149,47,1709,141,3596,185,1907,261,6182,307,1677,197,1436,197,972,153,567,108,365,79,1043,110,612,106,5776,331,672,75,2671,247,947,138]
[null,"With one type of disability",0,15,76,66,126,87,5,7,19,27,34,36,202,100,65,56,20,23,0,11,15,22,0,11,0,11,8,9,4,5,51,38,0,11,13,10,14,12,0,11,0,11,0,11,25,26,0,11,30,26,4,8,0,11,36,32,16,23,0,15,5,6,16,25,20,16,5,9,0,11,0,11,61,60,41,48,145,78,0,11,10,10,15,20,13,11,8,12,3,5,11,11,2,3,0,11,64,61,16,20,34,41,11,13,44,46,0,11,0,11,0,11,78,48,0,11,32,38,0,11,3,4,26,22,4,6,0,11,0,11,10,13,0,11,0,11,0,11,0,11,0,11,56,39,0,11,0,11,0,11,0,11,0,11,0,11,0,11,3,4,0,11,50,31,0,11,0,11,6,8,2,3,0,11,0,11,2,3,2,3,0,11,35,27,0,11,0,11,0,11,30,31,29,15,17,26,0,11,4,7,26,31,7,10,103,77,8,14,26,40,5,6,3,4,0,11,0,11,9,10,12,15,5,7,52,50,21,23,0,11,0,11,0,11,197,177,18,18,26,24,65,59,0,11,0,11,2,3,6,9,0,11,11,17,2,3,0,15,18,17,3,5,3,5,8,6,0,11,6,6,15,19,64,57,11,15,149,69,8,8,25,24,6,7,7,11,88,57,15,10,15,14,10,9,148,95,0,15,293,171,128,160,8,11,915,203,6,7,120,59,118,70,0,11,694,207,31,29,80,91,35,46,19,30,0,11,11,14,84,70,13,15,0,11,67,43,0,11,6,11,47,36,3,5,16,25,25,24,437,123,7,12,15,22,29,34,108,80,61,58,15,16,118,85,31,30,33,44,0,11,12,20,37,29,94,80,51,39,15,11,4,5,14,15,17,16,0,11,0,11,0,15,12,18,19,18,13,16,68,57,112,89,99,71,173,73,5,9,67,61,124,78,37,34,33,32,24,23,33,30,12,14,4,5,30,39,191,76,0,11,13,11,5,7,37,36,0,11,0,11,49,47,45,40,70,71,94,59,71,50,44,46,177,99,8,14,38,58,0,11,91,90,10,16,23,39,236,116,62,42,195,136,69,96,18,22,18,15,0,11,19,17,229,127,9,15,107,86,24,20]
[null,"With two or more types of disability",11,18,0,11,70,86,0,11,43,46,0,11,17,21,0,15,4,6,11,12,0,11,0,11,0,11,0,11,2,3,23,26,0,11,4,5,10,12,0,11,0,11,0,11,6,10,31,37,29,45,0,11,0,11,0,11,16,24,18,18,10,9,0,11,0,11,0,11,0,11,0,11,0,11,0,15,19,23,0,11,0,11,0,11,6,7,17,22,0,11,0,11,3,5,0,11,0,15,0,11,27,41,3,7,0,11,0,11,0,11,0,11,96,57,0,11,8,13,0,11,0,11,0,11,7,8,0,11,0,11,2,3,0,11,0,11,0,11,0,11,0,11,16,18,0,11,0,11,0,11,0,11,35,39,0,11,0,11,0,11,0,11,43,30,0,11,0,11,0,11,0,11,0,11,0,11,0,11,2,4,0,11,0,11,0,11,0,11,0,11,0,11,3,4,0,11,0,11,0,11,30,47,0,11,22,34,0,11,6,13,0,11,0,11,0,11,23,40,0,11,0,11,0,11,11,18,29,36,0,11,0,11,0,11,36,43,0,11,0,11,27,31,0,11,0,11,0,11,0,11,0,11,19,17,2,3,0,15,0,11,7,11,0,11,0,11,0,11,1,2,0,11,8,14,0,11,9,14,0,11,0,15,4,5,0,11,25,28,2,5,0,11,3,5,44,66,14,24,46,42,29,33,0,11,416,168,0,11,101,68,36,34,0,11,304,156,20,22,0,15,12,20,0,15,0,11,0,11,16,25,45,35,0,11,59,57,0,11,0,11,14,21,2,3,11,11,19,22,88,48,3,4,14,16,0,11,18,32,13,22,0,11,22,35,38,49,33,45,6,9,18,26,0,11,20,33,4,8,0,11,0,11,0,11,0,11,0,11,0,11,0,15,18,25,10,16,9,13,30,33,0,11,8,13,84,67,1,3,0,15,51,62,10,15,0,11,8,11,45,50,0,11,4,5,22,35,120,78,0,11,7,8,0,11,28,43,0,11,0,11,0,11,0,11,23,37,6,10,35,40,0,15,28,38,12,21,21,31,4,5,17,26,25,29,0,15,73,61,20,30,34,45,24,37,0,11,8,8,0,11,12,12,91,68,7,9,0,17,6,10]
[null,"No disability",917,233,790,173,1657,254,135,60,1266,260,784,132,3093,274,1275,202,431,74,498,86,634,147,215,88,360,139,180,86,78,37,1928,269,28,18,201,63,186,50,3,6,3,5,182,105,414,121,600,139,889,190,323,93,191,104,484,167,682,184,1017,247,434,109,693,192,294,99,463,113,60,28,128,45,698,97,1136,180,3445,329,359,126,155,59,86,34,187,75,1201,145,42,16,215,73,149,52,81,31,1328,276,454,133,867,138,460,101,947,147,0,11,0,11,0,11,1449,203,0,11,174,70,0,11,50,28,372,81,120,44,0,11,0,11,126,56,0,11,0,11,75,35,20,17,0,11,496,63,0,11,0,11,125,30,0,11,712,85,0,11,0,11,204,31,7,9,364,89,0,11,0,11,76,35,57,28,0,11,0,11,53,30,90,41,74,45,126,43,0,11,0,11,4,6,339,77,454,78,374,135,130,48,121,66,565,100,119,57,579,144,493,148,769,115,18,11,27,18,4,9,769,159,147,51,239,94,76,45,1378,200,763,113,96,36,424,105,62,25,2367,263,258,105,295,60,1084,204,0,11,106,44,394,52,193,63,53,24,317,83,125,41,812,138,298,131,100,51,345,95,126,39,49,41,137,56,192,91,3032,232,535,81,5734,297,362,111,1345,120,290,64,249,53,3044,259,273,46,517,144,367,59,1467,220,1757,133,5617,351,2136,180,342,80,20880,600,348,105,5398,250,3392,176,683,101,18095,638,1241,124,1443,217,3228,192,961,174,33,16,326,129,2306,205,771,109,37,22,710,138,422,110,834,194,1844,129,312,83,436,100,430,51,8115,399,252,89,567,66,870,110,1846,218,1094,237,236,76,2464,233,1188,155,1111,167,309,83,381,128,1099,150,1478,157,881,135,273,73,464,124,518,115,415,96,253,75,0,11,1431,121,1134,101,1156,124,757,105,1101,126,1044,144,917,131,7187,434,547,62,1388,186,3160,314,946,108,846,80,1819,168,2686,307,517,66,476,70,1176,145,5656,256,120,67,423,99,94,37,1833,234,1231,118,867,122,868,176,994,127,1576,259,3284,244,2367,253,745,141,5548,336,1459,177,1250,287,145,46,1601,164,3561,189,1884,267,5873,301,1595,206,1207,182,879,172,549,104,339,83,1043,110,581,108,5456,332,656,70,2564,240,917,137]
[null,"18 to 64 years:",3420,262,3031,196,4556,223,659,96,4325,281,2308,156,9731,292,3388,181,1449,141,1912,109,2187,179,451,102,1776,191,419,108,246,64,6283,344,222,53,907,127,605,98,40,20,33,20,493,142,1642,98,2358,194,2438,152,788,134,2085,189,1229,195,3328,252,3120,264,1165,162,2185,175,1016,155,1576,154,460,73,564,91,2467,165,3143,202,15963,365,1163,164,440,87,402,82,747,140,4071,182,152,37,688,140,473,93,573,81,4912,229,1486,197,2201,143,1155,139,2691,132,0,11,0,11,0,11,5252,380,12,12,575,107,0,11,181,49,1435,144,431,94,0,11,0,11,550,112,0,11,13,9,191,45,186,51,0,11,1724,107,8,17,0,11,594,63,0,11,2043,114,0,11,0,11,880,71,13,9,1358,131,0,11,8,6,554,97,238,53,9,12,0,11,215,43,286,65,401,91,377,78,0,11,0,11,44,28,1376,148,1045,139,1267,224,476,76,200,57,1574,107,693,110,1744,175,2193,221,2517,117,228,46,147,35,40,24,2832,204,638,119,830,134,454,92,8476,311,2867,156,339,180,1361,176,263,39,8757,322,774,174,1036,117,3619,190,0,11,392,65,997,117,537,84,186,45,953,202,458,59,5429,213,1064,203,379,82,1685,124,465,95,145,72,553,114,743,149,6584,207,1601,97,12376,322,822,125,3300,124,1241,128,1075,123,11975,333,939,97,1568,163,1022,92,3510,171,4780,153,15584,332,5177,214,1017,119,73135,709,844,75,16831,313,9425,329,1481,141,56287,696,3680,130,3096,183,8296,192,3891,218,213,52,1001,207,5895,212,2344,136,188,54,2875,127,1484,199,2128,231,4631,109,1124,146,1467,124,1731,63,26469,530,807,126,1893,101,2924,143,5202,201,3355,232,754,105,9286,229,3367,173,3438,136,1023,148,2569,170,3082,129,4717,168,2656,148,951,114,1120,179,1840,106,1224,126,808,119,0,11,4226,139,3437,103,2613,172,2658,147,3135,108,2826,118,2857,105,22261,500,1462,96,4260,233,8348,264,2774,127,2214,84,5247,224,9084,311,1423,106,1317,101,3920,159,15650,297,518,128,1006,144,552,112,6112,277,3045,137,2664,115,2720,150,3363,125,4909,233,14097,364,6704,247,3244,289,18592,341,4102,172,5672,371,516,93,4708,158,8523,319,5828,244,19481,402,12434,256,4565,228,2732,180,1250,154,1018,110,2912,153,1683,105,19245,341,1510,81,7673,316,2521,156]
[null,"With one type of disability",56,46,217,87,248,137,44,28,241,141,94,52,670,176,202,82,75,36,79,30,163,80,8,7,250,130,14,15,11,14,394,160,21,18,48,20,75,38,3,5,0,11,20,21,147,74,67,50,174,83,27,13,328,171,53,32,318,161,192,124,88,40,89,75,39,27,105,52,37,16,17,15,260,97,147,83,663,179,102,66,46,17,15,11,58,31,138,59,5,7,37,21,40,19,24,13,273,114,64,38,113,58,52,25,153,66,0,11,0,11,0,11,465,121,0,11,69,58,0,11,15,14,103,37,21,13,0,11,0,11,53,36,0,11,3,4,13,13,16,13,0,11,162,71,4,9,0,11,51,22,0,11,201,73,0,11,0,11,57,20,0,11,168,75,0,11,1,4,39,18,11,9,0,11,0,11,15,11,19,13,47,32,49,25,0,11,0,11,3,3,142,62,87,32,79,36,24,12,19,15,163,71,34,24,77,52,139,91,105,76,19,14,8,7,3,6,101,68,22,19,70,29,41,21,175,83,114,69,23,35,35,35,21,12,676,229,74,41,70,30,155,105,0,11,25,11,40,16,26,12,8,9,31,14,27,16,188,105,90,48,20,20,85,41,22,12,0,11,43,20,28,20,229,92,89,43,230,102,42,22,107,60,94,27,37,16,708,223,55,29,145,70,28,19,184,136,224,114,544,181,161,84,54,28,4630,419,35,18,592,155,630,203,45,24,3398,404,149,75,86,59,241,77,141,61,3,5,70,37,351,148,105,55,10,9,237,88,151,77,139,73,148,64,59,30,48,32,131,83,1590,263,99,44,50,24,255,127,610,149,153,88,52,37,390,152,163,98,185,95,22,15,111,52,224,78,264,124,245,127,84,41,74,35,104,42,44,23,17,13,0,11,114,55,127,54,68,42,106,60,108,48,122,63,128,73,1291,254,61,31,305,135,304,125,83,42,63,37,76,46,565,207,25,16,92,56,261,104,629,188,12,15,40,26,20,16,402,128,135,61,120,70,66,39,128,56,370,150,673,162,437,167,145,100,809,207,192,87,385,203,39,25,195,115,103,61,274,147,939,223,518,151,431,196,47,40,24,14,87,27,199,75,121,48,1519,240,70,31,558,249,100,52]
[null,"With two or more types of disability",89,65,77,56,244,140,14,16,55,43,159,84,675,198,120,66,53,34,56,35,116,67,22,14,16,19,21,15,16,17,339,150,2,5,76,30,15,12,2,5,0,11,12,15,33,26,133,78,218,129,28,17,202,111,34,29,297,157,140,91,56,45,66,76,16,27,43,27,11,9,0,11,239,134,153,78,684,177,39,34,35,21,7,5,18,18,77,38,6,8,22,16,15,13,0,11,232,96,129,70,125,60,10,13,126,75,0,11,0,11,0,11,523,149,0,11,17,14,0,11,31,21,77,41,44,27,0,11,0,11,34,22,0,11,2,4,6,8,11,9,0,11,39,27,4,9,0,11,45,23,0,11,160,98,0,11,0,11,33,14,0,11,75,37,0,11,2,4,28,22,12,11,0,11,0,11,11,7,16,11,72,34,40,18,0,11,0,11,0,11,65,51,74,35,80,65,23,13,9,7,104,55,34,31,72,57,85,51,171,83,17,12,2,5,0,11,102,57,21,18,81,47,22,16,86,42,171,100,13,16,46,36,10,5,507,192,89,53,114,55,207,127,0,11,2,3,14,25,20,15,1,3,14,14,20,11,118,98,44,29,9,12,75,34,36,17,4,8,29,16,34,27,120,57,82,42,134,83,30,18,83,55,50,39,16,14,256,92,49,24,95,47,28,20,117,70,68,78,501,138,165,74,37,23,3688,349,15,10,420,158,279,130,25,18,2551,370,39,37,35,39,166,90,56,66,8,9,37,61,84,70,105,72,7,7,223,111,98,48,108,59,101,66,43,19,37,26,52,38,1473,265,18,12,40,27,89,90,462,132,143,106,54,30,190,108,27,32,164,115,13,13,111,58,121,50,192,96,89,52,32,16,32,28,99,55,32,18,17,17,0,11,135,82,96,73,61,41,58,41,78,45,82,51,120,70,793,200,37,20,171,75,366,155,83,39,67,43,92,51,256,101,32,17,18,16,23,27,361,118,8,13,11,9,2,3,318,137,66,48,110,69,71,54,142,68,166,87,513,141,404,119,42,37,392,127,51,50,328,122,5,5,271,268,173,81,147,121,740,223,137,82,298,151,54,59,29,19,63,24,227,106,43,26,1373,266,15,13,355,140,85,54]
[null,"No disability",3275,267,2737,195,4064,274,601,95,4029,283,2055,165,8386,423,3066,202,1321,128,1777,112,1908,177,421,102,1510,213,384,105,219,56,5550,366,199,51,783,124,515,90,35,18,33,20,461,135,1462,121,2158,180,2046,216,733,128,1555,222,1142,185,2713,317,2788,272,1021,149,2030,180,961,141,1428,155,412,75,547,90,1968,199,2843,216,14616,412,1022,161,359,74,380,80,671,137,3856,190,141,32,629,139,418,88,549,80,4407,241,1293,201,1963,149,1093,135,2412,145,0,11,0,11,0,11,4264,361,12,12,489,117,0,11,135,36,1255,134,366,88,0,11,0,11,463,104,0,11,8,8,172,39,159,47,0,11,1523,134,0,11,0,11,498,59,0,11,1682,136,0,11,0,11,790,67,13,9,1115,124,0,11,5,9,487,92,215,47,9,12,0,11,189,42,251,65,282,75,288,64,0,11,0,11,41,28,1169,132,884,118,1108,215,429,74,172,50,1307,123,625,93,1595,163,1969,262,2241,173,192,39,137,35,37,21,2629,212,595,113,679,121,391,79,8215,321,2582,181,303,146,1280,168,232,35,7574,411,611,159,852,85,3257,217,0,11,365,66,943,114,491,86,177,43,908,204,411,57,5123,219,930,187,350,72,1525,122,407,90,141,72,481,110,681,144,6235,220,1430,107,12012,322,750,120,3110,143,1097,128,1022,120,11011,400,835,92,1328,169,966,86,3209,242,4488,191,14539,352,4851,227,926,112,64817,843,794,74,15819,388,8516,363,1411,142,50338,818,3492,147,2975,190,7889,191,3694,245,202,50,894,187,5460,234,2134,147,171,53,2415,156,1235,175,1881,234,4382,147,1022,142,1382,114,1548,100,23406,548,690,118,1803,103,2580,165,4130,238,3059,207,648,91,8706,311,3177,175,3089,195,988,148,2347,162,2737,130,4261,207,2322,150,835,113,1014,171,1637,124,1148,128,774,113,0,11,3977,160,3214,114,2484,172,2494,138,2949,119,2622,134,2609,124,20177,618,1364,101,3784,236,7678,276,2608,122,2084,105,5079,229,8263,350,1366,103,1207,98,3636,182,14660,364,498,122,955,144,530,110,5392,337,2844,156,2434,143,2583,156,3093,134,4373,294,12911,391,5863,268,3057,280,17391,483,3859,201,4959,406,472,80,4242,234,8247,353,5407,253,17802,540,11779,277,3836,345,2631,179,1197,156,868,103,2486,179,1519,100,16353,431,1425,92,6760,437,2336,158]
[null,"65 years and over:",916,224,708,172,904,177,213,50,1472,223,652,121,2517,217,1534,200,362,114,556,81,526,104,134,39,631,193,179,72,63,22,1645,309,98,30,237,54,380,73,94,30,5,7,357,103,420,104,1043,172,750,171,369,82,575,182,507,135,1004,262,1948,296,308,70,707,178,312,73,410,95,90,27,219,55,769,152,1021,173,3276,248,312,58,148,46,103,29,136,36,636,130,39,14,210,61,114,33,174,41,951,167,306,81,575,83,290,71,557,89,0,11,0,11,0,11,1796,164,5,7,202,57,0,11,81,29,507,98,164,43,0,11,0,11,245,39,0,11,0,11,82,26,95,33,0,11,473,99,0,11,0,11,183,30,0,11,548,84,0,11,0,11,220,47,0,11,364,69,0,11,0,11,239,58,127,30,0,11,0,11,88,23,110,30,237,72,167,39,0,11,0,11,14,12,336,76,298,64,408,105,266,57,53,18,342,86,273,67,606,152,623,212,592,91,67,25,66,17,17,12,941,203,305,75,197,53,102,39,1250,231,752,116,143,38,295,76,91,23,1979,284,259,70,200,36,1142,233,0,11,110,27,340,62,170,34,69,25,272,66,167,36,612,147,269,69,129,35,457,113,127,33,66,39,199,42,187,50,1546,145,475,95,2656,209,165,55,381,71,231,65,220,38,2156,223,187,39,274,43,403,56,781,170,1170,106,2913,246,859,173,266,50,13091,465,131,22,3071,227,2003,244,344,61,10817,454,409,93,500,143,1461,136,1345,205,74,27,256,74,548,97,506,96,34,27,572,76,515,107,478,129,1075,111,265,65,361,55,346,55,5224,343,174,38,290,54,667,126,1148,145,299,77,159,59,1779,172,967,146,717,125,411,81,1485,180,554,116,812,123,486,73,163,49,426,108,474,90,235,46,306,65,0,11,1131,156,477,49,386,86,483,149,468,74,434,125,449,87,3313,314,438,67,872,215,2568,212,539,122,575,74,1398,189,2917,272,355,52,254,38,912,149,2630,238,328,70,172,53,147,51,901,138,424,116,813,121,632,126,453,79,1036,169,3308,224,1025,199,1242,286,4384,333,552,113,1755,342,134,36,886,118,1789,299,956,197,3710,267,1058,136,804,206,653,164,178,63,180,51,621,119,353,79,4640,298,324,58,1350,200,549,104]
[null,"With one type of disability",88,53,158,74,152,82,51,22,150,67,54,29,336,94,232,81,42,17,92,41,62,39,41,22,141,84,16,21,9,10,319,126,18,11,33,19,77,22,16,14,2,3,46,30,76,49,140,71,169,82,67,27,138,89,57,39,223,133,285,123,68,29,88,49,23,13,66,32,20,14,21,19,189,97,349,140,637,165,72,27,32,21,27,13,51,21,87,45,1,3,23,18,12,9,9,8,187,89,58,39,49,37,22,15,83,42,0,11,0,11,0,11,304,98,0,11,22,15,0,11,28,18,85,48,18,13,0,11,0,11,45,18,0,11,0,11,11,10,30,17,0,11,156,72,0,11,0,11,11,9,0,11,63,40,0,11,0,11,57,24,0,11,94,36,0,11,0,11,43,26,14,10,0,11,0,11,20,11,18,13,63,30,46,20,0,11,0,11,0,11,61,30,52,34,70,30,52,22,4,5,36,34,48,20,173,81,109,75,81,53,13,7,8,5,3,4,49,59,22,16,20,12,14,16,213,84,121,48,13,8,50,28,13,9,330,112,63,27,18,9,210,111,0,11,16,11,32,13,18,10,12,10,39,21,22,12,111,70,54,31,23,12,92,40,18,10,9,14,64,21,52,27,244,82,79,44,319,124,25,19,34,17,38,21,38,16,254,92,28,13,59,30,41,21,107,81,190,100,503,131,80,63,31,14,2260,274,32,14,460,133,439,123,36,21,1750,252,45,36,76,56,283,86,129,69,4,6,27,19,78,56,113,66,0,11,127,76,123,62,89,41,141,67,61,32,36,20,26,24,866,178,23,16,46,21,166,87,183,79,61,36,36,22,285,76,159,70,204,105,34,20,221,88,26,15,152,69,96,49,25,15,80,37,55,29,40,14,71,33,0,11,214,104,60,36,56,48,6,11,22,20,123,83,61,37,501,132,62,25,191,136,465,144,66,41,90,36,195,65,393,117,71,38,42,18,114,70,373,107,53,25,12,13,23,13,93,47,74,46,138,52,76,62,28,21,109,52,490,133,191,107,154,80,687,138,97,46,379,166,11,8,185,87,276,127,330,152,726,172,138,67,222,136,95,94,48,36,40,18,150,65,129,51,825,174,55,30,233,96,121,81]
[null,"With two or more types of disability",77,56,93,43,88,44,9,8,160,91,79,49,459,126,181,77,106,96,92,43,78,53,21,16,56,53,19,20,10,7,294,127,10,7,36,17,55,26,5,7,3,6,11,14,62,31,65,35,167,74,29,17,47,37,63,31,187,118,199,159,16,11,120,88,50,42,60,35,8,6,16,11,172,81,145,106,609,161,40,23,12,7,5,6,18,11,153,78,9,7,9,10,15,8,16,11,194,82,52,37,149,68,42,25,134,60,0,11,0,11,0,11,388,93,5,7,22,16,0,11,15,13,73,26,17,10,0,11,0,11,52,25,0,11,0,11,3,5,11,11,0,11,107,52,0,11,0,11,25,13,0,11,116,64,0,11,0,11,52,24,0,11,85,38,0,11,0,11,46,26,16,8,0,11,0,11,16,10,26,16,37,26,45,24,0,11,0,11,11,12,130,67,64,27,85,52,29,19,7,4,66,39,46,24,85,66,61,45,181,57,16,12,2,3,4,7,101,67,42,29,26,12,18,10,196,95,193,59,23,15,10,11,14,7,289,98,49,28,38,14,228,104,0,11,22,13,52,23,27,13,5,5,42,26,34,14,181,72,47,23,32,23,80,53,30,14,4,5,29,16,23,15,250,88,39,27,372,100,17,8,19,21,35,16,9,8,533,153,31,21,39,20,49,19,115,69,63,59,549,194,133,92,22,12,2638,296,7,7,365,131,283,99,9,10,1835,269,39,35,63,56,277,98,160,98,9,9,14,22,51,52,38,35,0,11,156,56,128,86,150,82,173,84,47,28,25,17,46,29,1077,205,57,25,33,18,56,37,218,99,43,36,21,16,266,84,73,48,117,59,93,47,180,76,134,82,125,73,86,43,13,9,23,15,102,61,26,24,25,20,0,11,91,54,15,17,43,31,92,62,92,52,60,41,53,40,568,159,32,20,99,60,450,146,52,48,74,47,90,53,391,137,31,19,41,20,113,57,210,70,29,18,29,17,32,37,165,66,61,33,149,60,60,33,55,27,219,107,531,178,91,60,180,110,680,197,103,60,337,168,9,8,135,70,144,93,184,108,725,186,116,69,113,106,38,39,20,15,23,24,138,63,38,25,1016,247,26,19,266,108,65,40]
[null,"No disability",751,211,457,131,664,155,153,41,1162,165,519,117,1722,199,1121,173,214,45,372,62,386,98,72,30,434,159,144,58,44,19,1032,215,70,29,168,47,248,63,73,28,0,11,300,89,282,83,838,164,414,121,273,63,390,174,387,122,594,212,1464,259,224,62,499,152,239,64,284,86,62,22,182,51,408,151,527,117,2030,216,200,50,104,39,71,22,67,24,396,111,29,12,178,53,87,27,149,41,570,131,196,67,377,72,226,61,340,79,0,11,0,11,0,11,1104,155,0,11,158,49,0,11,38,20,349,86,129,39,0,11,0,11,148,34,0,11,0,11,68,24,54,26,0,11,210,71,0,11,0,11,147,28,0,11,369,77,0,11,0,11,111,38,0,11,185,44,0,11,0,11,150,39,97,26,0,11,0,11,52,17,66,20,137,52,76,27,0,11,0,11,3,5,145,44,182,40,253,82,185,47,42,16,240,75,179,56,348,108,453,197,330,68,38,21,56,17,10,10,791,197,241,57,151,52,70,34,841,194,438,98,107,35,235,72,64,18,1360,291,147,53,144,30,704,176,0,11,72,21,256,56,125,32,52,26,191,46,111,30,320,104,168,54,74,21,285,78,79,30,53,29,106,31,112,33,1052,148,357,91,1965,202,123,46,328,68,158,57,173,34,1369,250,128,31,176,49,313,51,559,193,917,130,1861,208,646,129,213,52,8193,516,92,20,2246,227,1281,203,299,62,7232,427,325,102,361,105,901,141,1056,216,61,23,215,64,419,112,355,91,34,27,289,79,264,77,239,86,761,124,157,41,300,52,274,53,3281,283,94,34,211,54,445,117,747,132,195,65,102,45,1228,161,735,154,396,71,284,63,1084,171,394,84,535,112,304,67,125,41,323,86,317,97,169,38,210,52,0,11,826,135,402,60,287,73,385,106,354,90,251,105,335,81,2244,311,344,73,582,139,1653,197,421,120,411,71,1113,184,2133,239,253,53,171,33,685,158,2047,215,246,65,131,46,92,28,643,133,289,94,526,108,496,120,370,75,708,167,2287,246,743,146,908,272,3017,303,352,84,1039,227,114,34,566,114,1369,273,442,127,2259,277,804,131,469,149,520,181,110,42,117,42,333,87,186,61,2799,249,243,54,851,185,363,102]

{"sheet":"ACS_TableB19201_ACS_Tbl_B19202","index":31,"n_rows":115,"n_cols":28,"rows_kept":115,"cut":false,"hidden":true,"merged":[]}
[null,"B19102. NON-FAMILY INCOME IN THE PAST 12 MONTHS (IN 2019 INFLATION-ADJUSTED DOLLARS)"]
[null,"Universe:  FAMILIES"]
[null,"Data Set: 2015-2019 American Community Survey 5-Year Estimates"]
[]
[null,null,"Barrington",null,"Dover",null,"Durham",null,"Farmington",null,"Lee",null,"Madbury",null,"Middleton",null,"Milton",null,"New Durham",null,"Rochester",null,"Rollinsford",null,"Somersworth",null,"Strafford"]
[null,null,"Estimate","Margin Of Error","Estimate","Margin Of Error","Estimate","Margin Of Error","Estimate","Margin Of Error","Estimate","Margin Of Error","Estimate","Margin Of Error","Estimate","Margin Of Error","Estimate","Margin Of Error","Estimate","Margin Of Error","Estimate","Margin Of Error","Estimate","Margin Of Error","Estimate","Margin Of Error","Estimate","Margin Of Error"]
[null,"Total:",736,242,6060,443,1504,156,1070,285,605,257,78,27,178,43,445,138,204,61,4584,426,307,74,1809,320,192,79]
[null,"Less than $10,000",0,16,408,148,376,128,93,97,42,68,10,9,16,11,37,45,33,32,420,201,43,42,200,124,7,11]
[null,"$10,000 to $14,999",30,36,427,133,106,68,16,30,0,11,3,6,15,12,65,61,6,9,487,159,19,22,177,132,0,11]
[null,"$15,000 to $19,999",18,29,315,118,94,49,109,97,0,11,0,11,7,8,88,58,6,9,255,104,19,17,70,61,0,11]
[null,"$20,000 to $24,999",132,135,349,118,40,27,76,62,15,22,4,5,6,7,26,28,0,11,609,181,12,13,73,58,0,11]
[null,"$25,000 to $29,999",145,134,312,121,134,62,70,83,0,11,0,11,10,16,0,11,0,11,321,111,44,31,63,57,27,32]
[null,"$30,000 to $34,999",63,76,316,164,139,67,63,55,53,48,5,6,4,5,8,13,35,29,279,120,18,16,46,43,0,11]
[null,"$35,000 to $39,999",53,84,396,155,60,37,164,143,0,11,2,4,9,14,9,16,7,9,217,112,5,8,249,117,24,22]
[null,"$40,000 to $44,999",40,36,378,150,53,34,43,44,58,72,8,6,27,16,28,25,5,8,140,77,22,19,92,59,8,12]
[null,"$45,000 to $49,999",18,29,365,154,69,56,61,95,0,11,0,11,12,10,0,11,12,19,119,88,11,12,130,87,0,11]
[null,"$50,000 to $59,999",19,33,531,153,52,35,52,50,47,46,11,12,17,17,87,61,19,16,358,126,40,27,254,156,65,55]
[null,"$60,000 to $74,999",96,95,586,217,84,45,44,48,60,81,2,4,22,12,60,38,48,34,390,137,26,19,193,117,11,19]
[null,"$75,000 to $99,999",18,28,740,187,143,65,175,134,227,161,13,11,21,14,8,13,26,19,434,169,12,14,81,65,18,19]
[null,"$100,000 to $124,999",82,68,440,139,52,31,85,88,24,36,8,8,0,11,0,11,0,11,368,174,6,9,125,91,24,22]
[null,"$125,000 to $149,999",9,16,119,73,26,23,19,30,79,98,4,6,8,8,9,14,7,10,65,56,30,27,56,69,0,11]
[null,"$150,000 to $199,999",0,16,186,84,49,43,0,16,0,11,2,3,0,11,10,16,0,11,82,50,0,11,0,18,8,13]
[null,"$200,000 or more",13,21,192,87,27,43,0,16,0,11,6,6,4,5,10,15,0,11,40,32,0,11,0,18,0,11]
[]
[]
[null,"B19112. MEDIAN NON-FAMILY INCOME IN THE PAST 12 MONTHS (IN 2019 INFLATION-ADJUSTED DOLLARS)"]
[null,"Universe:  FAMILIES"]
[null,"Data Set: 2015-2019 American Community Survey 5-Year Estimates"]
[]
[null,null,"Barrington",null,"Dover",null,"Durham",null,"Farmington",null,"Lee",null,"Madbury",null,"Middleton",null,"Milton",null,"New Durham",null,"Rochester",null,"Rollinsford",null,"Somersworth",null,"Strafford"]
[null,null,"Estimate","Margin Of Error","Estimate","Margin Of Error","Estimate","Margin Of Error","Estimate","Margin Of Error","Estimate","Margin Of Error","Estimate","Margin Of Error","Estimate","Margin Of Error","Estimate","Margin Of Error","Estimate","Margin Of Error","Estimate","Margin Of Error","Estimate","Margin Of Error","Estimate","Margin Of Error","Estimate","Margin Of Error"]
[null,"Median family income in the past 12 months",31706,11606,47631,4247,30046,2850,38600,6657,77771,24498,53750,31643,43864,6517,34531,27632,47083,19646,32591,4673,34792,14001,41472,7576,51744,2197]
[]
[]
[]
[]
[]
[]
[]
[]
[]
[]
[]
[]
[]
[]
[]
[]
[]
[null,"B19102. NON-FAMILY INCOME IN THE PAST 12 MONTHS (IN 2014 INFLATION-ADJUSTED DOLLARS)"]
[null,"Universe:  FAMILIES"]
[null,"Data Set: 2010-2014 American Community Survey 5-Year Estimates"]
[]
[null,null,"Barrington",null,"Dover",null,"Durham",null,"Farmington",null,"Lee",null,"Madbury",null,"Middleton",null,"Milton",null,"New Durham",null,"Rochester",null,"Rollinsford",null,"Somersworth",null,"Strafford"]
[null,null,"Estimate","Margin Of Error","Estimate","Margin Of Error","Estimate","Margin Of Error","Estimate","Margin Of Error","Estimate","Margin Of Error","Estimate","Margin Of Error","Estimate","Margin Of Error","Estimate","Margin Of Error","Estimate","Margin Of Error","Estimate","Margin Of Error","Estimate","Margin Of Error","Estimate","Margin Of Error","Estimate","Margin Of Error"]
[null,"Total:",822,221,5296,464,1261,180,828,224,585,184,152,49,137,39,389,98,251,72,5235,405,311,70,1314,230,302,107]
[null,"Less than $10,000",77,79,476,157,256,94,9,15,72,72,18,22,5,5,35,37,12,12,373,147,5,7,156,104,25,24]
[null,"$10,000 to $14,999",106,90,431,137,156,87,124,98,28,43,6,7,13,9,41,29,13,14,733,246,20,16,137,79,31,42]
[null,"$15,000 to $19,999",48,62,356,141,198,98,111,83,92,104,5,6,16,16,28,36,24,25,430,128,45,34,97,53,11,16]
[null,"$20,000 to $24,999",13,20,491,165,101,59,135,90,0,11,10,15,15,15,56,49,13,15,292,124,67,33,116,70,36,37]
[null,"$25,000 to $29,999",40,41,357,162,24,21,15,24,27,43,17,23,12,11,14,16,0,11,444,138,43,39,82,78,36,46]
[null,"$30,000 to $34,999",45,58,331,139,69,50,107,97,0,11,24,24,11,8,30,38,17,15,492,177,6,8,41,39,8,13]
[null,"$35,000 to $39,999",86,83,299,103,36,25,59,89,29,48,7,7,5,8,29,28,34,36,242,106,6,8,96,56,0,11]
[null,"$40,000 to $44,999",61,74,333,130,58,40,12,18,44,50,0,11,8,9,13,16,23,18,273,91,0,11,57,61,0,11]
[null,"$45,000 to $49,999",60,75,201,95,19,31,93,97,0,11,7,8,12,10,30,30,6,8,316,139,21,18,120,93,49,41]
[null,"$50,000 to $59,999",34,40,504,196,157,78,45,45,41,41,6,6,5,6,20,33,23,17,338,153,22,26,111,72,7,11]
[null,"$60,000 to $74,999",41,53,445,159,47,31,87,77,58,55,23,23,8,8,46,36,28,30,626,203,46,36,150,85,6,9]
[null,"$75,000 to $99,999",94,92,571,141,77,40,13,21,37,38,11,11,12,7,36,41,20,15,440,167,7,9,134,71,14,15]
[null,"$100,000 to $124,999",43,52,168,72,17,19,18,23,157,120,14,21,10,13,11,17,21,16,116,63,19,18,0,17,25,24]
[null,"$125,000 to $149,999",41,49,197,114,0,17,0,15,0,11,3,5,2,3,0,11,17,11,38,43,4,8,7,13,33,42]
[null,"$150,000 to $199,999",33,36,119,73,30,34,0,15,0,11,1,3,0,11,0,11,0,11,67,42,0,11,10,17,8,14]
[null,"$200,000 or more",0,15,17,19,16,18,0,15,0,11,0,11,3,4,0,11,0,11,15,16,0,11,0,17,13,21]
[]
[]
[null,"B19112. MEDIAN NON-FAMILY INCOME IN THE PAST 12 MONTHS (IN 2013 INFLATION-ADJUSTED DOLLARS)"]
[null,"Universe:  FAMILIES"]
[null,"Data Set: 2010-2014 American Community Survey 5-Year Estimates"]
[]
[null,null,"Barrington",null,"Dover",null,"Durham",null,"Farmington",null,"Lee",null,"Madbury",null,"Middleton",null,"Milton",null,"New Durham",null,"Rochester",null,"Rollinsford",null,"Somersworth",null,"Strafford"]
[null,null,"Estimate","Margin Of Error","Estimate","Margin Of Error","Estimate","Margin Of Error","Estimate","Margin Of Error","Estimate","Margin Of Error","Estimate","Margin Of Error","Estimate","Margin Of Error","Estimate","Margin Of Error","Estimate","Margin Of Error","Estimate","Margin Of Error","Estimate","Margin Of Error","Estimate","Margin Of Error","Estimate","Margin Of Error"]
[null,"Median family income in the past 12 months",39865,8297,38013,4649,20633,3809,32967,15850,50050,25491,34524,16162,32083,13611,31708,12625,42981,10375,33758,2134,27813,6312,37333,11127,45333,30808]
[]
[]
[null,"B19102. NON-FAMILY INCOME IN THE PAST 12 MONTHS (IN 2009 INFLATION-ADJUSTED DOLLARS)"]
[null,"Universe:  FAMILIES"]
[null,"Data Set: 2005-2009 American Community Survey 5-Year Estimates"]
[]
[null,null,"Barrington",null,"Dover",null,"Durham",null,"Farmington",null,"Lee",null,"Madbury",null,"Middleton",null,"Milton",null,"New Durham",null,"Rochester",null,"Rollinsford",null,"Somersworth",null,"Strafford"]
[null,null,"Estimate","Margin Of Error","Estimate","Margin Of Error","Estimate","Margin Of Error","Estimate","Margin Of Error","Estimate","Margin Of Error","Estimate","Margin Of Error","Estimate","Margin Of Error","Estimate","Margin Of Error","Estimate","Margin Of Error","Estimate","Margin Of Error","Estimate","Margin Of Error","Estimate","Margin Of Error","Estimate","Margin Of Error"]
[null,"Total:",655,188,5035,447,1445,244,768,216,783,191,136,46,140,38,527,176,204,65,3845,405,299,79,1988,369,216,93]
[null,"Less than $10,000",39,37,429,162,666,172,158,117,282,103,7,8,30,20,30,37,13,14,324,120,33,38,419,142,0,114]
[null,"$10,000 to $14,999",14,22,367,131,147,61,229,124,20,33,2,3,10,9,114,76,19,16,379,140,50,35,225,114,18,14]
[null,"$15,000 to $19,999",92,87,246,92,118,56,54,38,28,26,19,20,0,114,27,33,10,12,333,117,14,16,80,58,8,13]
[null,"$20,000 to $24,999",36,39,528,176,96,58,36,34,43,35,9,15,14,17,20,24,0,114,336,170,21,19,103,71,8,13]
[null,"$25,000 to $29,999",25,29,316,115,22,27,66,66,24,40,18,19,19,11,22,26,6,8,407,171,13,15,64,46,29,29]
[null,"$30,000 to $34,999",50,47,543,180,51,40,8,12,42,33,8,10,3,4,0,114,14,15,328,172,30,40,157,87,0,114]
[null,"$35,000 to $39,999",45,42,276,117,36,35,9,15,13,20,7,8,13,18,11,19,0,114,275,118,9,13,55,45,0,114]
[null,"$40,000 to $44,999",67,58,263,133,58,60,55,40,12,19,7,9,11,10,0,114,10,10,277,112,7,10,200,104,11,16]
[null,"$45,000 to $49,999",30,33,117,74,40,58,18,29,54,66,8,10,3,6,7,11,35,39,166,120,12,13,146,99,31,32]
[null,"$50,000 to $59,999",34,30,546,172,69,69,43,53,18,25,11,8,20,19,67,49,22,16,259,112,25,19,90,58,45,56]
[null,"$60,000 to $74,999",80,74,706,210,20,21,28,33,112,74,11,12,4,6,128,87,0,114,312,100,31,30,159,94,0,114]
[null,"$75,000 to $99,999",75,57,350,149,95,68,41,34,31,29,3,4,10,9,46,49,20,18,230,123,49,42,150,99,27,29]
[null,"$100,000 to $124,999",41,39,165,86,7,14,12,19,11,18,17,25,0,114,27,38,5,7,159,79,0,114,58,62,29,31]
[null,"$125,000 to $149,999",20,33,46,50,0,114,0,114,0,114,4,7,3,5,28,39,24,18,46,53,0,114,62,55,0,114]
[null,"$150,000 to $199,999",7,13,102,83,0,114,11,17,70,69,0,114,0,114,0,114,20,32,14,18,0,114,20,31,0,114]
[null,"$200,000 or more",0,114,35,25,20,21,0,114,23,26,5,8,0,114,0,114,6,10,0,114,5,9,0,114,10,14]
[]
[]
[null,"B19112. MEDIAN NON-FAMILY INCOME IN THE PAST 12 MONTHS (IN 2009 INFLATION-ADJUSTED DOLLARS)"]
[null,"Universe:  FAMILIES"]
[null,"Data Set: 2005-2009 American Community Survey 5-Year Estimates"]
[]
[null,null,"Barrington",null,"Dover",null,"Durham",null,"Farmington",null,"Lee",null,"Madbury",null,"Middleton",null,"Milton",null,"New Durham",null,"Rochester",null,"Rollinsford",null,"Somersworth",null,"Strafford"]
[null,null,"Estimate","Margin Of Error","Estimate","Margin Of Error","Estimate","Margin Of Error","Estimate","Margin Of Error","Estimate","Margin Of Error","Estimate","Margin Of Error","Estimate","Margin Of Error","Estimate","Margin Of Error","Estimate","Margin Of Error","Estimate","Margin Of Error","Estimate","Margin Of Error","Estimate","Margin Of Error","Estimate","Margin Of Error"]
[null,"Median family income in the past 12 months",43313,9191,36844,4535,12316,4173,14830,5553,26927,16361,38333,15472,27500,18231,56193,24969,49643,13541,32188,3449,31542,15664,33500,5254,50250,4933]

{"sheet":"ACS_Table_B19049","index":32,"n_rows":56,"n_cols":28,"rows_kept":56,"cut":false,"hidden":true,"merged":[]}
[null,"B19049. MEDIAN HOUSEHOLD INCOME IN THE PAST 12 MONTHS (IN 2019 INFLATION-ADJUSTED DOLLARS) BY AGE OF HOUSEHOLDER "]
[null,"Universe:  HOUSEHOLDS"]
[null,"Data Set: 2015-2019 American Community Survey 5-Year Estimates"]
[]
[null,null,"Barrington",null,"Dover",null,"Durham",null,"Farmington",null,"Lee",null,"Madbury",null,"Middleton",null,"Milton",null,"New Durham",null,"Rochester",null,"Rollinsford",null,"Somersworth",null,"Strafford"]
[null,null,"Estimate","Margin Of Error","Estimate","Margin Of Error","Estimate","Margin Of Error","Estimate","Margin Of Error","Estimate","Margin Of Error","Estimate","Margin Of Error","Estimate","Margin Of Error","Estimate","Margin Of Error","Estimate","Margin Of Error","Estimate","Margin Of Error","Estimate","Margin Of Error","Estimate","Margin Of Error","Estimate","Margin Of Error"]
[null,"Median household income in the past 12 months"]
[null,"Total:",92596,21054,71631,6841,81995,9747,70257,16340,100170,18054,123875,19705,76964,8922,70788,8944,81250,11859,62179,5638,75682,11689,66663,5276,98625,21628]
[null,"Householder under 25 years","-","**",47896,12306,18750,11864,"-","**","-","**","-","**","-","**","-","**","-","**",73261,28591,"-","**","-","**",53667,6156]
[null,"Householder 25 to 44 years",120343,21125,78668,8284,114605,22782,58097,29509,133913,91747,128750,20814,94531,12935,63409,16396,74375,14880,74761,7299,77895,9552,76071,13480,115380,35571]
[null,"Householder 45 to 64 years",105867,32168,91019,7745,140288,11621,89436,12510,93767,2958,145208,28932,79875,13183,103466,11513,109327,8247,70708,5970,115375,20439,72665,13028,119013,12857]
[null,"Householder 65 years and over",54922,30503,55513,6398,95100,21130,42273,10525,79625,70966,78500,8808,49000,6837,58300,8894,47917,14390,40842,5706,48750,11917,48810,7914,60000,5297]
[]
[]
[]
[]
[]
[]
[]
[]
[]
[]
[]
[]
[]
[]
[]
[]
[]
[null,"B19049. MEDIAN HOUSEHOLD INCOME IN THE PAST 12 MONTHS (IN 2014 INFLATION-ADJUSTED DOLLARS) BY AGE OF HOUSEHOLDER "]
[null,"Universe:  HOUSEHOLDS"]
[null,"Data Set: 2010-2014 American Community Survey 5-Year Estimates"]
[]
[null,null,"Barrington",null,"Dover",null,"Durham",null,"Farmington",null,"Lee",null,"Madbury",null,"Middleton",null,"Milton",null,"New Durham",null,"Rochester",null,"Rollinsford",null,"Somersworth",null,"Strafford"]
[null,null,"Estimate","Margin Of Error","Estimate","Margin Of Error","Estimate","Margin Of Error","Estimate","Margin Of Error","Estimate","Margin Of Error","Estimate","Margin Of Error","Estimate","Margin Of Error","Estimate","Margin Of Error","Estimate","Margin Of Error","Estimate","Margin Of Error","Estimate","Margin Of Error","Estimate","Margin Of Error","Estimate","Margin Of Error"]
[null,"Median household income in the past 12 months"]
[null,"Total:",82431,7227,60038,3666,67578,12224,50632,8720,96083,14129,97969,15930,61250,4784,60032,7597,78583,9797,48114,2646,63269,8065,53094,4587,97333,12601]
[null,"Householder under 25 years","-","**",41317,10658,15264,2310,35360,2302,"-","**",7153,53175,38250,40952,38750,39084,"-","**",45524,4646,29179,18252,45114,35838,"-","**"]
[null,"Householder 25 to 44 years",82243,24773,63811,6418,94135,32076,70612,14188,97788,8964,120000,38460,82721,13546,66083,10915,94125,17560,53108,6927,80500,30176,65625,12897,97969,37671]
[null,"Householder 45 to 64 years",88375,13694,79205,7230,106063,15025,60479,16091,112568,24684,99063,33733,63646,7912,62500,11636,86250,14118,60126,4537,70234,6024,56273,9539,105288,13907]
[null,"Householder 65 years and over",56964,40579,38495,3309,68929,19666,40313,23838,78994,23644,44583,17497,34643,7983,43614,9842,50735,10351,34442,5794,40357,12354,41138,6857,55179,19134]
[]
[]
[]
[null,"B19049. MEDIAN HOUSEHOLD INCOME IN THE PAST 12 MONTHS (IN 2009 INFLATION-ADJUSTED DOLLARS) BY AGE OF HOUSEHOLDER "]
[null,"Universe:  HOUSEHOLDS"]
[null,"Data Set: 2005-2009 American Community Survey 5-Year Estimates"]
[]
[null,null,"Barrington",null,"Dover",null,"Durham",null,"Farmington",null,"Lee",null,"Madbury",null,"Middleton",null,"Milton",null,"New Durham",null,"Rochester",null,"Rollinsford",null,"Somersworth",null,"Strafford"]
[null,null,"Estimate","Margin Of Error","Estimate","Margin Of Error","Estimate","Margin Of Error","Estimate","Margin Of Error","Estimate","Margin Of Error","Estimate","Margin Of Error","Estimate","Margin Of Error","Estimate","Margin Of Error","Estimate","Margin Of Error","Estimate","Margin Of Error","Estimate","Margin Of Error","Estimate","Margin Of Error","Estimate","Margin Of Error"]
[null,"Median household income in the past 12 months"]
[null,"Total:",73449,4244,58756,2167,64318,19230,45811,9146,66447,8717,86579,9289,54408,3630,63674,8069,74698,10404,50382,2151,64583,11226,53430,5258,66520,11951]
[null,"Householder under 25 years",29904,51400,38960,5316,7870,2715,10691,9351,7473,2421,26750,67851,"-","**",70000,8403,"-","**",30767,4475,"-","**",48021,23888,"-","**"]
[null,"Householder 25 to 44 years",73696,6938,67393,9919,92955,11970,59331,18077,63153,6801,78333,22977,53750,7952,76667,9894,83967,7488,56853,7527,66705,33454,68434,7076,69464,43493]
[null,"Householder 45 to 64 years",81019,12297,71831,5377,134063,15575,63490,13421,93125,23795,104792,16269,58846,8813,57234,8602,84125,12024,62674,3701,87171,10543,56647,8116,80724,27501]
[null,"Householder 65 years and over",49271,17394,34975,3288,65833,19669,22244,13682,48942,21175,58750,22065,35625,7699,22250,11671,32396,33330,36840,3533,43594,2640,23583,8736,46000,29052]

{"sheet":"ACS_Table_B25118","index":33,"n_rows":191,"n_cols":76,"rows_kept":191,"cut":false,"hidden":true,"merged":[]}
[null,"B25118. TENURE BY HOUSEHOLD INCOME IN THE PAST 12 MONTHS (IN 2019 INFLATION-ADJUSTED DOLLARS) "]
[null,"Universe:  OCCUPIED HOUSING UNITS"]
[null,"Data Set: 2015-2019 American Community Survey 5-Year Estimates"]
[]
[null,null,"Barrington",null,"Dover",null,"Durham",null,"Farmington",null,"Lee",null,"Madbury",null,"Middleton",null,"Milton",null,"New Durham",null,"Rochester",null,"Rollinsford",null,"Somersworth",null,"Strafford"]
[null,null,"Estimate","Margin Of Error","Estimate","Margin Of Error","Estimate","Margin Of Error","Estimate","Margin Of Error","Estimate","Margin Of Error","Estimate","Margin Of Error","Estimate","Margin Of Error","Estimate","Margin Of Error","Estimate","Margin Of Error","Estimate","Margin Of Error","Estimate","Margin Of Error","Estimate","Margin Of Error","Estimate","Margin Of Error",null,null,null,null,null,null,null,null,null,null,null,null,null,null,null,null,null,null,null,null,null,null,null,null,null,null,null,null,null,null,null,null,null,null,null,null,null,null,null,null,"Estimate","Margin Of Error","Estimate","Margin Of Error","Estimate","Margin Of Error","Estimate","Margin Of Error"]
[null,"Total:",3183,200,13489,308,3187,199,2868,200,1876,180,615,47,658,59,1811,105,953,64,12780,347,1040,61,5127,249,1395,85,null,null,null,null,null,null,null,null,null,null,null,null,null,null,null,null,null,null,null,null,null,null,null,null,null,null,null,null,null,null,null,null,null,null,null,null,null,null,null,null,3846,231,321,42,2717,107,4364,175]
[null,"Owner occupied:",2904,213,6949,378,1854,158,1931,249,1619,162,533,52,585,63,1602,107,893,59,8601,379,798,62,2795,280,1271,89,null,null,null,null,null,null,null,null,null,null,null,null,null,null,null,null,null,null,null,null,null,null,null,null,null,null,null,null,null,null,null,null,null,null,null,null,null,null,null,null,2686,223,288,36,2540,143,4088,189]
[null,"Less than $5,000",53,82,19,29,40,43,49,46,0,11,5,5,13,10,10,15,15,18,67,58,21,32,15,24,8,14,null,null,null,null,null,null,null,null,null,null,null,null,null,null,null,null,null,null,null,null,null,null,null,null,null,null,null,null,null,null,null,null,null,null,null,null,null,null,null,null,12,18,2,5,14,23,44,55]
[null,"$5,000 to $9,999",0,16,104,99,16,15,30,41,0,11,4,6,3,5,0,11,6,8,103,75,17,25,0,18,7,11,null,null,null,null,null,null,null,null,null,null,null,null,null,null,null,null,null,null,null,null,null,null,null,null,null,null,null,null,null,null,null,null,null,null,null,null,null,null,null,null,11,18,6,7,11,20,14,22]
[null,"$10,000 to $14,999",30,36,96,59,8,13,0,16,0,11,0,11,18,12,29,29,16,16,261,118,6,8,55,49,0,11,null,null,null,null,null,null,null,null,null,null,null,null,null,null,null,null,null,null,null,null,null,null,null,null,null,null,null,null,null,null,null,null,null,null,null,null,null,null,null,null,41,38,7,7,9,15,41,32]
[null,"$15,000 to $19,999",31,34,121,82,0,18,18,29,26,38,0,11,13,9,78,57,16,14,207,131,11,12,37,43,0,11,null,null,null,null,null,null,null,null,null,null,null,null,null,null,null,null,null,null,null,null,null,null,null,null,null,null,null,null,null,null,null,null,null,null,null,null,null,null,null,null,207,100,11,9,29,32,42,44]
[null,"$20,000 to $24,999",132,135,128,71,5,8,74,61,27,28,6,7,10,9,38,34,11,9,354,149,17,14,18,28,0,11,null,null,null,null,null,null,null,null,null,null,null,null,null,null,null,null,null,null,null,null,null,null,null,null,null,null,null,null,null,null,null,null,null,null,null,null,null,null,null,null,215,104,9,8,43,43,85,61]
[null,"$25,000 to $34,999",175,135,285,103,85,53,81,68,77,74,10,8,23,18,41,54,88,40,700,177,23,18,88,55,70,43,null,null,null,null,null,null,null,null,null,null,null,null,null,null,null,null,null,null,null,null,null,null,null,null,null,null,null,null,null,null,null,null,null,null,null,null,null,null,null,null,249,113,22,11,143,73,192,78]
[null,"$35,000 to $49,999",180,121,464,137,45,31,179,101,48,54,29,17,87,31,193,88,77,39,1016,241,52,24,444,156,93,45,null,null,null,null,null,null,null,null,null,null,null,null,null,null,null,null,null,null,null,null,null,null,null,null,null,null,null,null,null,null,null,null,null,null,null,null,null,null,null,null,398,139,40,32,98,61,241,81]
[null,"$50,000 to $74,999",430,149,955,201,131,56,334,138,169,111,65,26,105,33,390,113,171,54,1525,238,171,56,617,177,236,81,null,null,null,null,null,null,null,null,null,null,null,null,null,null,null,null,null,null,null,null,null,null,null,null,null,null,null,null,null,null,null,null,null,null,null,null,null,null,null,null,570,177,28,14,345,110,497,122]
[null,"$75,000 to $99,999",350,156,1372,282,214,63,441,178,331,181,74,30,106,29,120,62,131,44,1771,294,101,41,386,135,165,55,null,null,null,null,null,null,null,null,null,null,null,null,null,null,null,null,null,null,null,null,null,null,null,null,null,null,null,null,null,null,null,null,null,null,null,null,null,null,null,null,387,140,37,16,442,115,531,137]
[null,"$100,000 to $149,999",674,179,1545,270,482,93,504,178,426,139,94,33,127,35,483,128,185,47,1616,262,186,46,764,213,325,94,null,null,null,null,null,null,null,null,null,null,null,null,null,null,null,null,null,null,null,null,null,null,null,null,null,null,null,null,null,null,null,null,null,null,null,null,null,null,null,null,462,164,58,24,687,127,1129,161]
[null,"$150,000 or more",849,193,1860,275,828,117,221,122,515,138,246,47,80,29,220,79,177,49,981,173,193,44,371,125,367,97,null,null,null,null,null,null,null,null,null,null,null,null,null,null,null,null,null,null,null,null,null,null,null,null,null,null,null,null,null,null,null,null,null,null,null,null,null,null,null,null,134,106,68,26,719,143,1272,162]
[null,"Renter occupied:",279,139,6540,359,1333,135,937,230,257,135,82,31,73,33,209,92,60,37,4179,368,242,56,2332,330,124,57,null,null,null,null,null,null,null,null,null,null,null,null,null,null,null,null,null,null,null,null,null,null,null,null,null,null,null,null,null,null,null,null,null,null,null,null,null,null,null,null,1160,200,33,30,177,114,276,108]
[null,"Less than $5,000",0,16,199,96,194,87,18,33,42,68,3,5,2,5,0,11,0,11,129,99,21,25,197,163,0,11,null,null,null,null,null,null,null,null,null,null,null,null,null,null,null,null,null,null,null,null,null,null,null,null,null,null,null,null,null,null,null,null,null,null,null,null,null,null,null,null,46,48,0,114,0,114,0,114]
[null,"$5,000 to $9,999",0,16,162,86,159,96,69,95,0,11,0,11,0,11,27,41,18,27,367,196,5,8,102,77,0,11,null,null,null,null,null,null,null,null,null,null,null,null,null,null,null,null,null,null,null,null,null,null,null,null,null,null,null,null,null,null,null,null,null,null,null,null,null,null,null,null,16,28,0,114,18,29,0,114]
[null,"$10,000 to $14,999",0,16,386,129,98,67,16,30,0,11,3,6,4,6,45,50,0,11,331,128,19,22,139,126,0,11,null,null,null,null,null,null,null,null,null,null,null,null,null,null,null,null,null,null,null,null,null,null,null,null,null,null,null,null,null,null,null,null,null,null,null,null,null,null,null,null,105,73,0,114,0,114,29,21]
[null,"$15,000 to $19,999",0,16,376,137,126,52,108,99,0,11,3,5,0,11,10,16,0,11,288,135,13,15,90,70,0,11,null,null,null,null,null,null,null,null,null,null,null,null,null,null,null,null,null,null,null,null,null,null,null,null,null,null,null,null,null,null,null,null,null,null,null,null,null,null,null,null,260,142,0,114,34,49,31,49]
[null,"$20,000 to $24,999",15,21,296,116,39,27,39,47,0,11,2,4,0,11,0,11,12,12,426,162,22,17,134,78,0,11,null,null,null,null,null,null,null,null,null,null,null,null,null,null,null,null,null,null,null,null,null,null,null,null,null,null,null,null,null,null,null,null,null,null,null,null,null,null,null,null,25,29,0,114,0,114,21,31]
[null,"$25,000 to $34,999",91,84,682,220,240,78,213,136,39,41,0,11,7,6,38,40,0,11,391,129,39,30,125,64,20,30,null,null,null,null,null,null,null,null,null,null,null,null,null,null,null,null,null,null,null,null,null,null,null,null,null,null,null,null,null,null,null,null,null,null,null,null,null,null,null,null,84,59,2,3,0,114,0,114]
[null,"$35,000 to $49,999",0,16,1150,271,189,75,238,168,58,72,6,7,11,10,19,24,0,11,518,180,28,19,348,138,9,13,null,null,null,null,null,null,null,null,null,null,null,null,null,null,null,null,null,null,null,null,null,null,null,null,null,null,null,null,null,null,null,null,null,null,null,null,null,null,null,null,229,115,0,114,0,114,67,60]
[null,"$50,000 to $74,999",85,105,1489,298,108,48,29,38,44,41,28,21,22,22,59,57,16,17,891,204,52,29,513,174,95,54,null,null,null,null,null,null,null,null,null,null,null,null,null,null,null,null,null,null,null,null,null,null,null,null,null,null,null,null,null,null,null,null,null,null,null,null,null,null,null,null,293,141,25,31,0,114,40,49]
[null,"$75,000 to $99,999",69,67,848,208,85,50,107,86,74,89,13,14,27,19,0,11,8,10,383,158,27,35,503,194,0,11,null,null,null,null,null,null,null,null,null,null,null,null,null,null,null,null,null,null,null,null,null,null,null,null,null,null,null,null,null,null,null,null,null,null,null,null,null,null,null,null,92,69,6,6,72,81,19,21]
[null,"$100,000 to $149,999",0,16,660,190,33,29,100,92,0,11,24,14,0,11,11,17,0,11,372,162,9,11,181,115,0,11,null,null,null,null,null,null,null,null,null,null,null,null,null,null,null,null,null,null,null,null,null,null,null,null,null,null,null,null,null,null,null,null,null,null,null,null,null,null,null,null,10,17,0,114,53,51,20,24]
[null,"$150,000 or more",19,32,292,139,62,47,0,16,0,11,0,11,0,11,0,11,6,10,83,55,7,10,0,18,0,11,null,null,null,null,null,null,null,null,null,null,null,null,null,null,null,null,null,null,null,null,null,null,null,null,null,null,null,null,null,null,null,null,null,null,null,null,null,null,null,null,0,114,0,114,0,114,49,50]
[]
[]
[]
[]
[]
[null,"Calculated B25118. TENURE BY HOUSEHOLD INCOME IN THE PAST 12 MONTHS (IN 2019 INFLATION-ADJUSTED DOLLARS) "]
[null,"Universe:  OCCUPIED HOUSING UNITS"]
[null,"Data Set: 2014-2018 American Community Survey 5-Year Estimates"]
[null,null,"Barrington",null,"Dover",null,"Durham",null,"Farmington",null,"Lee",null,"Madbury",null,"Middleton",null,"Milton",null,"New Durham",null,"Rochester",null,"Rollinsford",null,"Somersworth",null,"Strafford"]
[null,null,"Estimate","Margin Of Error","Estimate","Margin Of Error","Estimate","Margin Of Error","Estimate","Margin Of Error","Estimate","Margin Of Error","Estimate","Margin Of Error","Estimate","Margin Of Error","Estimate","Margin Of Error","Estimate","Margin Of Error","Estimate","Margin Of Error","Estimate","Margin Of Error","Estimate","Margin Of Error","Estimate","Margin Of Error",null,null,null,null,null,null,null,null,null,null,null,null,null,null,null,null,null,null,null,null,null,null,null,null,null,null,null,null,null,null,null,null,null,null,null,null,null,null,null,null,"Estimate","Margin Of Error","Estimate","Margin Of Error","Estimate","Margin Of Error","Estimate","Margin Of Error"]
[null,{"$f":"B7","v":"Total:"},3183,200,13489,308,3187,199,2868,200,1876,180,615,47,658,59,1811,105,953,64,12780,347,1040,61,{"$f":"Y7","v":5127},{"$f":"Z7","v":249},{"$f":"AA7","v":1395},{"$f":"AB7","v":85}]
[null,"Less than $5,000",{"$f":"C9+C21","v":53},{"$f":"SQRT((D9^2)+(D21^2))","v":83.546394296821688},{"$f":"E9+E21","v":218},{"$f":"SQRT((F9^2)+(F21^2))","v":100.2845950283492},{"$f":"G9+G21","v":234},{"$f":"SQRT((H9^2)+(H21^2))","v":97.04638066409278},{"$f":"I9+I21","v":67},{"$f":"SQRT((J9^2)+(J21^2))","v":56.612719418872643},{"$f":"K9+K21","v":42},{"$f":"SQRT((L9^2)+(L21^2))","v":68.8839603971781},{"$f":"M9+M21","v":8},{"$f":"SQRT((N9^2)+(N21^2))","v":7.0710678118654755},{"$f":"O9+O21","v":15},{"$f":"SQRT((P9^2)+(P21^2))","v":11.180339887498949},{"$f":"Q9+Q21","v":10},{"$f":"SQRT((R9^2)+(R21^2))","v":18.601075237738275},{"$f":"S9+S21","v":15},{"$f":"SQRT((T9^2)+(T21^2))","v":21.095023109728988},{"$f":"U9+U21","v":196},{"$f":"SQRT((V9^2)+(V21^2))","v":114.73883387938018},{"$f":"W9+W21","v":42},{"$f":"SQRT((X9^2)+(X21^2))","v":40.607881008493905},{"$f":"Y9+Y21","v":212},{"$f":"SQRT((Z9^2)+(Z21^2))","v":164.7573974060042},{"$f":"AA9+AA21","v":8},{"$f":"SQRT((AB9^2)+(AB21^2))","v":17.804493814764857}]
[null,"$5,000 to $9,999",{"$f":"C10+C22","v":0},{"$f":"SQRT((D10^2)+(D22^2))","v":22.627416997969522},{"$f":"E10+E22","v":266},131.13733259449805,{"$f":"G10+G22","v":175},97.164808444209882,{"$f":"I10+I22","v":99},103.46980235798269,{"$f":"K10+K22","v":0},15.556349186104045,{"$f":"M10+M22","v":4},12.529964086141668,{"$f":"O10+O22","v":3},12.083045973594572,{"$f":"Q10+Q22","v":27},42.449970553582247,24,28.160255680657446,470,209.85947679340097,22,26.248809496813376,102,79.075912893876861,7,15.556349186104045]
[null,"$10,000 to $14,999",{"$f":"C11+C23","v":30},39.395431207184416,{"$f":"E11+E23","v":482},141.85203558638133,{"$f":"G11+G23","v":106},68.249542123006222,{"$f":"I11+I23","v":16},34,{"$f":"K11+K23","v":0},15.556349186104045,{"$f":"M11+M23","v":3},12.529964086141668,{"$f":"O11+O23","v":22},13.416407864998739,{"$f":"Q11+Q23","v":74},57.801384066473702,16,19.416487838947599,592,174.0919297382851,25,23.409399821439251,194,135.19245541079576,0,15.556349186104045]
[null,"$15,000 to $19,999",{"$f":"C12+C24","v":31},37.576588456111871,497,159.66527487215245,126,55.027265968790417,126,103.16006979447037,26,39.560080889704963,3,12.083045973594572,13,14.212670403551895,88,59.203040462462738,16,17.804493814764857,495,188.11166896287961,24,19.209372712298546,127,82.152297594163485,0,15.556349186104045]
[null,"$20,000 to $24,999",147,136.62357044082839,424,136.0036764208968,44,28.160255680657446,113,77.006493232713822,27,30.083217912982647,8,8.0622577482985491,10,14.212670403551895,38,35.735136770411273,23,15,780,220.10224896624752,39,22.022715545545239,152,82.87339742040264,0,15.556349186104045]
[null,"$25,000 to $34,999",266,159,967,242.91768153018421,325,94.30270409696638,294,152.05262246998569,116,84.599054368237475,10,13.601470508735444,30,18.973665961010276,79,67.201190465645766,88,41.484937025383083,1091,219.02054698132775,62,34.985711369071801,213,84.38601779915912,90,52.430906915673319]
[null,"$35,000 to $49,999",180,122.05326705991938,1614,303.66099519036027,234,81.154174261093928,417,196.02295783912658,106,90,35,18.384776310850235,98,32.572994949804659,212,91.214034007931033,77,40.521599178709621,1534,300.8005984036601,80,30.610455730027933,792,208.27865949251739,102,46.840153714521477]
[null,"$50,000 to $74,999",515,182.28000438885226,2444,359.45097023098992,239,73.756355658343097,363,143.13629868066312,213,118.33004690272035,93,33.421549934136806,127,39.66106403010388,449,126.56223765404908,187,56.612719418872643,2416,313.46451154795818,223,63.063460101710248,1130,248.20354550247666,331,97.349884437527706]
[null,"$75,000 to $99,999",419,169.77926846349644,2220,350.41118703603058,299,80.430093870391573,548,197.68662069042509,405,201.69779374103229,87,33.105890714493697,133,34.669871646719429,120,62.968245965724662,139,45.122056690713912,2154,333.76638536557272,128,53.907327887774215,889,236.34931774811622,165,56.089214649520635]
[null,"$100,000 to $149,999",674,179.71366113904642,2205,330.15148038438355,515,97.416631023660429,604,200.3696583817021,426,139.43457247038842,118,35.846896657869841,127,36.687872655688281,494,129.12397143830421,185,48.270073544588683,1988,308.03895857504779,195,47.296934361541872,945,242.06197553519223,325,94.641428560646744]
[null,"$150,000 or more",868,195.63486396856774,{"$f":"E19+E31","v":2152},308.13308812913942,890,126.08727136392476,221,123.04470732217619,515,138.43771162512041,246,48.270073544588683,80,31.016124838541646,220,79.762146410437069,183,50.009999000199947,1064,181.53236626012455,200,45.122056690713912,371,126.28935030318273,367,97.621718894926246]
[]
[]
[]
[]
[]
[]
[]
[]
[]
[]
[]
[]
[]
[]
[]
[]
[null,"B25118. TENURE BY HOUSEHOLD INCOME IN THE PAST 12 MONTHS (IN 2014 INFLATION-ADJUSTED DOLLARS) "]
[null,"Universe:  OCCUPIED HOUSING UNITS"]
[null,"Data Set: 2010-2014 American Community Survey 5-Year Estimates"]
[]
[null,null,"Barrington",null,"Dover",null,"Durham",null,"Farmington",null,"Lee",null,"Madbury",null,"Middleton",null,"Milton",null,"New Durham",null,"Rochester",null,"Rollinsford",null,"Somersworth",null,"Strafford"]
[null,null,"Estimate","Margin Of Error","Estimate","Margin Of Error","Estimate","Margin Of Error","Estimate","Margin Of Error","Estimate","Margin Of Error","Estimate","Margin Of Error","Estimate","Margin Of Error","Estimate","Margin Of Error","Estimate","Margin Of Error","Estimate","Margin Of Error","Estimate","Margin Of Error","Estimate","Margin Of Error","Estimate","Margin Of Error",null,null,null,null,null,null,null,null,null,null,null,null,null,null,null,null,null,null,null,null,null,null,null,null,null,null,null,null,null,null,null,null,null,null,null,null,null,null,null,null,"Estimate","Margin Of Error","Estimate","Margin Of Error","Estimate","Margin Of Error","Estimate","Margin Of Error"]
[null,"Total:",3307,184,12586,374,3073,263,2625,158,1774,134,655,62,553,65,1656,120,1001,64,12715,331,1024,67,4492,207,1430,118,null,null,null,null,null,null,null,null,null,null,null,null,null,null,null,null,null,null,null,null,null,null,null,null,null,null,null,null,null,null,null,null,null,null,null,null,null,null,null,null,3846,231,321,42,2717,107,4364,175]
[null,"Owner occupied:",2948,207,6375,380,1894,198,1852,247,1487,183,517,55,483,65,1396,129,888,76,8135,440,765,71,2538,212,1313,143,null,null,null,null,null,null,null,null,null,null,null,null,null,null,null,null,null,null,null,null,null,null,null,null,null,null,null,null,null,null,null,null,null,null,null,null,null,null,null,null,2686,223,288,36,2540,143,4088,189]
[null,"Less than $5,000",48,74,88,58,23,28,14,22,40,52,6,8,3,4,0,11,2,4,65,52,5,7,25,29,22,20,null,null,null,null,null,null,null,null,null,null,null,null,null,null,null,null,null,null,null,null,null,null,null,null,null,null,null,null,null,null,null,null,null,null,null,null,null,null,null,null,12,18,2,5,14,23,44,55]
[null,"$5,000 to $9,999",33,40,30,35,6,9,0,15,43,50,0,11,6,7,24,27,12,12,87,67,0,11,33,37,10,16,null,null,null,null,null,null,null,null,null,null,null,null,null,null,null,null,null,null,null,null,null,null,null,null,null,null,null,null,null,null,null,null,null,null,null,null,null,null,null,null,11,18,6,7,11,20,14,22]
[null,"$10,000 to $14,999",52,61,96,68,0,17,57,56,0,11,11,9,18,12,42,25,27,20,244,93,15,16,76,73,31,42,null,null,null,null,null,null,null,null,null,null,null,null,null,null,null,null,null,null,null,null,null,null,null,null,null,null,null,null,null,null,null,null,null,null,null,null,null,null,null,null,41,38,7,7,9,15,41,32]
[null,"$15,000 to $19,999",56,64,157,90,43,31,92,99,35,51,9,9,11,8,41,41,18,23,346,93,43,25,69,45,19,20,null,null,null,null,null,null,null,null,null,null,null,null,null,null,null,null,null,null,null,null,null,null,null,null,null,null,null,null,null,null,null,null,null,null,null,null,null,null,null,null,207,100,11,9,29,32,42,44]
[null,"$20,000 to $24,999",31,50,218,85,51,40,141,68,0,11,16,16,19,15,90,56,6,8,252,101,25,20,63,45,16,18,null,null,null,null,null,null,null,null,null,null,null,null,null,null,null,null,null,null,null,null,null,null,null,null,null,null,null,null,null,null,null,null,null,null,null,null,null,null,null,null,215,104,9,8,43,43,85,61]
[null,"$25,000 to $34,999",253,152,408,148,81,48,59,44,16,24,31,24,35,17,76,50,55,27,715,178,52,29,162,86,53,50,null,null,null,null,null,null,null,null,null,null,null,null,null,null,null,null,null,null,null,null,null,null,null,null,null,null,null,null,null,null,null,null,null,null,null,null,null,null,null,null,249,113,22,11,143,73,192,78]
[null,"$35,000 to $49,999",246,116,598,171,103,73,308,138,143,78,41,22,74,31,254,85,102,37,1324,202,83,38,386,135,125,63,null,null,null,null,null,null,null,null,null,null,null,null,null,null,null,null,null,null,null,null,null,null,null,null,null,null,null,null,null,null,null,null,null,null,null,null,null,null,null,null,398,139,40,32,98,61,241,81]
[null,"$50,000 to $74,999",451,162,1129,231,272,89,381,124,206,110,31,18,123,36,369,111,163,44,1821,284,182,59,576,171,196,77,null,null,null,null,null,null,null,null,null,null,null,null,null,null,null,null,null,null,null,null,null,null,null,null,null,null,null,null,null,null,null,null,null,null,null,null,null,null,null,null,570,177,28,14,345,110,497,122]
[null,"$75,000 to $99,999",578,170,1051,201,339,105,216,121,257,93,58,27,65,20,215,80,143,41,1428,258,72,30,435,118,200,82,null,null,null,null,null,null,null,null,null,null,null,null,null,null,null,null,null,null,null,null,null,null,null,null,null,null,null,null,null,null,null,null,null,null,null,null,null,null,null,null,387,140,37,16,442,115,531,137]
[null,"$100,000 to $149,999",643,189,1538,222,448,105,297,109,414,160,140,37,97,36,218,83,224,60,1320,220,156,71,511,142,431,104,null,null,null,null,null,null,null,null,null,null,null,null,null,null,null,null,null,null,null,null,null,null,null,null,null,null,null,null,null,null,null,null,null,null,null,null,null,null,null,null,462,164,58,24,687,127,1129,161]
[null,"$150,000 or more",557,190,1062,182,528,119,287,152,333,103,174,41,32,18,67,38,136,49,533,130,132,39,202,100,210,66,null,null,null,null,null,null,null,null,null,null,null,null,null,null,null,null,null,null,null,null,null,null,null,null,null,null,null,null,null,null,null,null,null,null,null,null,null,null,null,null,134,106,68,26,719,143,1272,162]
[null,"Renter occupied:",359,153,6211,406,1179,177,773,254,287,156,138,51,70,36,260,89,113,55,4580,453,259,64,1954,238,117,67,null,null,null,null,null,null,null,null,null,null,null,null,null,null,null,null,null,null,null,null,null,null,null,null,null,null,null,null,null,null,null,null,null,null,null,null,null,null,null,null,1160,200,33,30,177,114,276,108]
[null,"Less than $5,000",10,17,185,106,118,77,0,15,0,11,0,11,2,4,7,12,0,11,130,79,0,11,144,112,0,11,null,null,null,null,null,null,null,null,null,null,null,null,null,null,null,null,null,null,null,null,null,null,null,null,null,null,null,null,null,null,null,null,null,null,null,null,null,null,null,null,46,48,0,114,0,114,0,114]
[null,"$5,000 to $9,999",0,15,300,129,123,66,9,15,0,11,18,22,0,11,20,32,8,9,387,153,0,11,135,94,0,11,null,null,null,null,null,null,null,null,null,null,null,null,null,null,null,null,null,null,null,null,null,null,null,null,null,null,null,null,null,null,null,null,null,null,null,null,null,null,null,null,16,28,0,114,18,29,0,114]
[null,"$10,000 to $14,999",122,92,429,146,163,92,104,97,28,43,0,11,3,4,25,30,0,11,662,227,15,14,178,86,0,11,null,null,null,null,null,null,null,null,null,null,null,null,null,null,null,null,null,null,null,null,null,null,null,null,null,null,null,null,null,null,null,null,null,null,null,null,null,null,null,null,105,73,0,114,0,114,29,21]
[null,"$15,000 to $19,999",0,15,284,121,158,85,149,117,57,91,0,11,12,12,6,9,6,9,377,139,20,31,77,58,0,11,null,null,null,null,null,null,null,null,null,null,null,null,null,null,null,null,null,null,null,null,null,null,null,null,null,null,null,null,null,null,null,null,null,null,null,null,null,null,null,null,260,142,0,114,34,49,31,49]
[null,"$20,000 to $24,999",13,20,557,204,88,56,129,98,0,11,0,11,8,12,40,46,25,22,281,117,47,28,258,159,20,32,null,null,null,null,null,null,null,null,null,null,null,null,null,null,null,null,null,null,null,null,null,null,null,null,null,null,null,null,null,null,null,null,null,null,null,null,null,null,null,null,25,29,0,114,0,114,21,31]
[null,"$25,000 to $34,999",0,15,836,213,100,53,96,96,27,43,25,24,2,5,52,42,7,9,790,202,44,41,222,121,47,49,null,null,null,null,null,null,null,null,null,null,null,null,null,null,null,null,null,null,null,null,null,null,null,null,null,null,null,null,null,null,null,null,null,null,null,null,null,null,null,null,84,59,2,3,0,114,0,114]
[null,"$35,000 to $49,999",101,96,1138,215,125,71,133,108,31,46,18,11,5,8,12,13,22,34,911,224,32,28,279,130,10,18,null,null,null,null,null,null,null,null,null,null,null,null,null,null,null,null,null,null,null,null,null,null,null,null,null,null,null,null,null,null,null,null,null,null,null,null,null,null,null,null,229,115,0,114,0,114,67,60]
[null,"$50,000 to $74,999",46,51,1278,288,159,80,67,50,50,55,43,31,17,21,33,31,36,32,692,209,82,55,283,123,33,40,null,null,null,null,null,null,null,null,null,null,null,null,null,null,null,null,null,null,null,null,null,null,null,null,null,null,null,null,null,null,null,null,null,null,null,null,null,null,null,null,293,141,25,31,0,114,40,49]
[null,"$75,000 to $99,999",12,22,721,158,47,32,44,50,14,22,27,22,15,21,38,36,9,15,247,105,13,10,263,154,0,11,null,null,null,null,null,null,null,null,null,null,null,null,null,null,null,null,null,null,null,null,null,null,null,null,null,null,null,null,null,null,null,null,null,null,null,null,null,null,null,null,92,69,6,6,72,81,19,21]
[null,"$100,000 to $149,999",15,26,328,127,27,26,42,63,76,109,7,8,3,4,27,40,0,11,62,50,6,10,89,80,7,10,null,null,null,null,null,null,null,null,null,null,null,null,null,null,null,null,null,null,null,null,null,null,null,null,null,null,null,null,null,null,null,null,null,null,null,null,null,null,null,null,10,17,0,114,53,51,20,24]
[null,"$150,000 or more",40,45,155,81,71,54,0,15,4,11,0,11,3,5,0,11,0,11,41,38,0,11,26,31,0,11,null,null,null,null,null,null,null,null,null,null,null,null,null,null,null,null,null,null,null,null,null,null,null,null,null,null,null,null,null,null,null,null,null,null,null,null,null,null,null,null,0,114,0,114,0,114,49,50]
[]
[]
[]
[]
[]
[null,"Calculated B25118. TENURE BY HOUSEHOLD INCOME IN THE PAST 12 MONTHS (IN 2014 INFLATION-ADJUSTED DOLLARS) "]
[null,"Universe:  OCCUPIED HOUSING UNITS"]
[null,"Data Set: 2010-2014 American Community Survey 5-Year Estimates"]
[null,null,"Barrington",null,"Dover",null,"Durham",null,"Farmington",null,"Lee",null,"Madbury",null,"Middleton",null,"Milton",null,"New Durham",null,"Rochester",null,"Rollinsford",null,"Somersworth",null,"Strafford"]
[null,null,"Estimate","Margin Of Error","Estimate","Margin Of Error","Estimate","Margin Of Error","Estimate","Margin Of Error","Estimate","Margin Of Error","Estimate","Margin Of Error","Estimate","Margin Of Error","Estimate","Margin Of Error","Estimate","Margin Of Error","Estimate","Margin Of Error","Estimate","Margin Of Error","Estimate","Margin Of Error","Estimate","Margin Of Error",null,null,null,null,null,null,null,null,null,null,null,null,null,null,null,null,null,null,null,null,null,null,null,null,null,null,null,null,null,null,null,null,null,null,null,null,null,null,null,null,"Estimate","Margin Of Error","Estimate","Margin Of Error","Estimate","Margin Of Error","Estimate","Margin Of Error"]
[null,"Total:",3307,184,12586,374,3073,263,2625,158,1774,134,655,62,553,65,1656,120,1001,64,12715,331,1024,67,4492,207,1430,118]
[null,"Less than $5,000",58,75.927597090912869,273,120.83045973594572,141,81.93289937503738,14,26.627053911388696,40,53.150729063673246,6,13.601470508735444,5,5.6568542494923806,7,16.278820596099706,2,11.704699910719626,195,94.578010129204984,5,13.038404810405298,169,115.69356075426151,22,22.825424421026653]
[null,"$5,000 to $9,999",33,42.720018726587654,330,133.6637572418193,129,66.610809933523555,9,21.213203435596427,43,51.195702944680818,18,24.596747752497688,6,13.038404810405298,44,41.868842830916641,20,15,474,167.02694393420481,0,15.556349186104045,168,101.01980003939822,10,19.416487838947599]
[null,"$10,000 to $14,999",174,110.38568747804219,525,161.05899540230592,163,93.557468969612472,161,112.0044641967453,28,44.384682042344295,11,14.212670403551895,21,12.649110640673518,67,39.05124837953327,27,22.825424421026653,906,245.31204617792417,30,21.2602916254693,254,112.80514172678478,31,43.416586692184822]
[null,"$15,000 to $19,999",56,65.73431371817918,441,150.80119362922829,201,90.476516290140168,241,153.26447729333762,92,104.31682510506155,9,14.212670403551895,23,14.422205101855956,47,41.976183723630712,24,24.698178070456937,723,167.2423391369542,63,39.824615503479755,146,73.409808608931812,19,22.825424421026653]
[null,"$20,000 to $24,999",44,53.851648071345039,775,221,139,68.818602136341013,270,119.28118040998756,0,15.556349186104045,16,19.416487838947599,27,19.209372712298546,130,72.47068372797375,31,23.409399821439251,533,154.56390264224049,72,34.409301068170507,321,165.24527224704494,36,36.715119501371639]
[null,"$25,000 to $34,999",253,152.73833834371774,1244,259.37039152532424,181,71.505244562899023,155,105.60303025955268,43,49.244289008980523,56,33.941125496954278,37,17.720045146669349,128,65.299310869258036,62,28.460498941515414,1505,269.23595599399425,96,50.219518117958877,384,148.44864431849825,100,70.007142492748557]
[null,"$35,000 to $49,999",347,150.57224179774968,1736,274.71075697904513,228,101.83319694480774,441,175.23698239812279,174,90.553851381374173,59,24.596747752497688,79,32.015621187164243,266,85.988371306822643,124,50.24937810560445,2235,301.62891108114951,115,47.201694884823787,665,187.41664813991312,135,65.520989003524662]
[null,"$50,000 to $74,999",497,169.83815825661793,2407,369.19507038962479,431,119.67038062946069,448,133.70115930686615,256,122.98373876248843,74,35.846896657869841,140,41.677331968349414,402,115.24755962709145,199,54.405882034941776,2513,352.6145204043645,264,80.65977932030313,859,210.64187617850351,229,86.769810418140253]
[null,"$75,000 to $99,999",590,171.41761869772895,1772,255.66579747787932,386,109.7679370308106,260,130.92364186807515,271,95.566730612698052,85,34.828149534535996,80,29,253,87.726848797845236,152,43.657759905886145,1675,278.54802099458544,85,31.622776601683793,698,194.01030900444439,200,82.734515167492219]
[null,"$100,000 to $149,999",658,190.77997798511248,1866,255.75965279926388,475,108.17116066678771,339,125.89678312014172,490,193.60010330575756,147,37.8549864614954,100,36.221540552549669,245,92.135769384099675,224,61,1382,225.61028345356956,162,71.700767080973407,600,162.98466185503469,438,104.47966309287182]
[null,"$150,000 or more",597,195.25624189766637,1217,199.21094347449892,599,130.67899601695751,287,152.73833834371774,337,103.58571330062848,174,42.449970553582247,35,18.681541692269406,67,39.560080889704963,136,50.219518117958877,574,135.4400236266961,132,40.521599178709621,228,104.69479452198185,210,66.91038783328041]
[]
[]
[]
[]
[]
[]
[]
[]
[]
[]
[]
[]
[]
[]
[]
[]
[null,"B25118. TENURE BY HOUSEHOLD INCOME IN THE PAST 12 MONTHS (IN 2009 INFLATION-ADJUSTED DOLLARS) "]
[null,"Universe:  OCCUPIED HOUSING UNITS"]
[null,"Data Set: 2005-2009 American Community Survey 5-Year Estimates"]
[]
[null,null,"Barrington",null,"Dover",null,"Durham",null,"Farmington",null,"Lee",null,"Madbury",null,"Middleton",null,"Milton",null,"New Durham",null,"Rochester",null,"Rollinsford",null,"Somersworth",null,"Strafford"]
[null,null,"Estimate","Margin Of Error","Estimate","Margin Of Error","Estimate","Margin Of Error","Estimate","Margin Of Error","Estimate","Margin Of Error","Estimate","Margin Of Error","Estimate","Margin Of Error","Estimate","Margin Of Error","Estimate","Margin Of Error","Estimate","Margin Of Error","Estimate","Margin Of Error","Estimate","Margin Of Error","Estimate","Margin Of Error",null,null,null,null,null,null,null,null,null,null,null,null,null,null,null,null,null,null,null,null,null,null,null,null,null,null,null,null,null,null,null,null,null,null,null,null,null,null,null,null,"Estimate","Margin Of Error","Estimate","Margin Of Error","Estimate","Margin Of Error","Estimate","Margin Of Error"]
[null,"Total:",2961,178,11856,425,3312,328,2466,249,1900,146,586,49,602,65,1730,133,905,63,12268,366,1065,64,4949,265,1373,127,null,null,null,null,null,null,null,null,null,null,null,null,null,null,null,null,null,null,null,null,null,null,null,null,null,null,null,null,null,null,null,null,null,null,null,null,null,null,null,null,3846,231,321,42,2717,107,4364,175]
[null,"Owner occupied:",2392,209,6930,399,1940,225,1664,223,1364,124,462,49,565,65,1438,135,771,70,8596,406,761,84,2852,293,1267,118,null,null,null,null,null,null,null,null,null,null,null,null,null,null,null,null,null,null,null,null,null,null,null,null,null,null,null,null,null,null,null,null,null,null,null,null,null,null,null,null,2686,223,288,36,2540,143,4088,189]
[null,"Less than $5,000",0,114,72,61,49,44,21,25,33,54,0,114,24,18,35,39,17,26,174,111,0,114,45,43,9,15,null,null,null,null,null,null,null,null,null,null,null,null,null,null,null,null,null,null,null,null,null,null,null,null,null,null,null,null,null,null,null,null,null,null,null,null,null,null,null,null,12,18,2,5,14,23,44,55]
[null,"$5,000 to $9,999",23,27,46,39,44,32,18,18,52,45,5,6,9,8,9,15,19,17,42,35,22,18,78,82,10,16,null,null,null,null,null,null,null,null,null,null,null,null,null,null,null,null,null,null,null,null,null,null,null,null,null,null,null,null,null,null,null,null,null,null,null,null,null,null,null,null,11,18,6,7,11,20,14,22]
[null,"$10,000 to $14,999",14,22,119,63,8,14,96,61,20,33,4,6,10,9,160,119,19,16,157,80,37,25,103,72,0,114,null,null,null,null,null,null,null,null,null,null,null,null,null,null,null,null,null,null,null,null,null,null,null,null,null,null,null,null,null,null,null,null,null,null,null,null,null,null,null,null,41,38,7,7,9,15,41,32]
[null,"$15,000 to $19,999",15,25,130,66,51,49,44,39,19,22,7,7,18,18,50,46,11,12,313,102,12,13,31,39,16,18,null,null,null,null,null,null,null,null,null,null,null,null,null,null,null,null,null,null,null,null,null,null,null,null,null,null,null,null,null,null,null,null,null,null,null,null,null,null,null,null,207,100,11,9,29,32,42,44]
[null,"$20,000 to $24,999",66,51,88,41,33,31,94,47,40,32,0,114,19,18,37,47,28,32,316,115,15,16,125,73,18,22,null,null,null,null,null,null,null,null,null,null,null,null,null,null,null,null,null,null,null,null,null,null,null,null,null,null,null,null,null,null,null,null,null,null,null,null,null,null,null,null,215,104,9,8,43,43,85,61]
[null,"$25,000 to $34,999",144,77,507,132,16,20,124,81,75,59,13,13,58,24,80,50,39,24,872,220,56,45,91,63,129,80,null,null,null,null,null,null,null,null,null,null,null,null,null,null,null,null,null,null,null,null,null,null,null,null,null,null,null,null,null,null,null,null,null,null,null,null,null,null,null,null,249,113,22,11,143,73,192,78]
[null,"$35,000 to $49,999",268,119,814,157,31,26,243,104,62,64,36,19,105,36,88,53,89,40,1278,216,96,32,483,145,177,83,null,null,null,null,null,null,null,null,null,null,null,null,null,null,null,null,null,null,null,null,null,null,null,null,null,null,null,null,null,null,null,null,null,null,null,null,null,null,null,null,398,139,40,32,98,61,241,81]
[null,"$50,000 to $74,999",578,151,1425,252,220,86,309,109,267,76,95,43,180,54,391,106,122,43,2136,285,127,45,652,163,339,120,null,null,null,null,null,null,null,null,null,null,null,null,null,null,null,null,null,null,null,null,null,null,null,null,null,null,null,null,null,null,null,null,null,null,null,null,null,null,null,null,570,177,28,14,345,110,497,122]
[null,"$75,000 to $99,999",541,133,1244,219,335,94,293,115,234,107,75,32,93,37,361,119,193,55,1532,232,167,50,527,132,134,68,null,null,null,null,null,null,null,null,null,null,null,null,null,null,null,null,null,null,null,null,null,null,null,null,null,null,null,null,null,null,null,null,null,null,null,null,null,null,null,null,387,140,37,16,442,115,531,137]
[null,"$100,000 to $149,999",571,138,1685,215,562,104,305,110,287,79,121,36,31,15,150,81,174,51,1215,192,144,43,537,188,224,89,null,null,null,null,null,null,null,null,null,null,null,null,null,null,null,null,null,null,null,null,null,null,null,null,null,null,null,null,null,null,null,null,null,null,null,null,null,null,null,null,462,164,58,24,687,127,1129,161]
[null,"$150,000 or more",172,78,800,173,591,111,117,63,275,100,106,37,18,15,77,56,60,39,561,136,85,46,180,93,211,89,null,null,null,null,null,null,null,null,null,null,null,null,null,null,null,null,null,null,null,null,null,null,null,null,null,null,null,null,null,null,null,null,null,null,null,null,null,null,null,null,134,106,68,26,719,143,1272,162]
[null,"Renter occupied:",569,151,4926,393,1372,207,802,191,536,127,124,49,37,20,292,116,134,56,3672,386,304,57,2097,223,106,51,null,null,null,null,null,null,null,null,null,null,null,null,null,null,null,null,null,null,null,null,null,null,null,null,null,null,null,null,null,null,null,null,null,null,null,null,null,null,null,null,1160,200,33,30,177,114,276,108]
[null,"Less than $5,000",0,114,209,119,416,127,81,93,150,70,0,114,0,114,0,114,0,114,203,105,19,31,155,106,0,114,null,null,null,null,null,null,null,null,null,null,null,null,null,null,null,null,null,null,null,null,null,null,null,null,null,null,null,null,null,null,null,null,null,null,null,null,null,null,null,null,46,48,0,114,0,114,0,114]
[null,"$5,000 to $9,999",16,25,223,104,201,86,75,74,84,42,4,6,3,5,30,36,0,114,183,94,55,50,206,92,0,114,null,null,null,null,null,null,null,null,null,null,null,null,null,null,null,null,null,null,null,null,null,null,null,null,null,null,null,null,null,null,null,null,null,null,null,null,null,null,null,null,16,28,0,114,18,29,0,114]
[null,"$10,000 to $14,999",0,114,372,116,175,66,200,117,0,114,2,3,0,114,31,29,0,114,400,156,32,28,251,138,18,14,null,null,null,null,null,null,null,null,null,null,null,null,null,null,null,null,null,null,null,null,null,null,null,null,null,null,null,null,null,null,null,null,null,null,null,null,null,null,null,null,105,73,0,114,0,114,29,21]
[null,"$15,000 to $19,999",77,85,323,145,147,76,27,31,9,15,14,19,0,114,14,24,5,8,422,161,29,34,107,70,0,114,null,null,null,null,null,null,null,null,null,null,null,null,null,null,null,null,null,null,null,null,null,null,null,null,null,null,null,null,null,null,null,null,null,null,null,null,null,null,null,null,260,142,0,114,34,49,31,49]
[null,"$20,000 to $24,999",22,26,489,171,63,43,55,61,12,19,15,17,3,6,18,20,20,32,353,199,11,13,67,49,0,114,null,null,null,null,null,null,null,null,null,null,null,null,null,null,null,null,null,null,null,null,null,null,null,null,null,null,null,null,null,null,null,null,null,null,null,null,null,null,null,null,25,29,0,114,0,114,21,31]
[null,"$25,000 to $34,999",59,43,758,210,74,50,123,87,29,26,22,20,4,5,8,13,11,12,704,198,33,32,301,125,14,22,null,null,null,null,null,null,null,null,null,null,null,null,null,null,null,null,null,null,null,null,null,null,null,null,null,null,null,null,null,null,null,null,null,null,null,null,null,null,null,null,84,59,2,3,0,114,0,114]
[null,"$35,000 to $49,999",174,111,770,242,142,82,88,75,67,59,15,15,4,6,22,25,47,43,656,219,47,44,313,126,16,19,null,null,null,null,null,null,null,null,null,null,null,null,null,null,null,null,null,null,null,null,null,null,null,null,null,null,null,null,null,null,null,null,null,null,null,null,null,null,null,null,229,115,0,114,0,114,67,60]
[null,"$50,000 to $74,999",112,75,1253,259,41,64,153,103,124,78,12,12,8,8,115,90,29,25,439,160,33,29,414,178,7,11,null,null,null,null,null,null,null,null,null,null,null,null,null,null,null,null,null,null,null,null,null,null,null,null,null,null,null,null,null,null,null,null,null,null,null,null,null,null,null,null,293,141,25,31,0,114,40,49]
[null,"$75,000 to $99,999",82,75,307,154,81,71,0,114,20,18,16,21,0,114,26,41,22,26,204,115,24,34,147,94,17,24,null,null,null,null,null,null,null,null,null,null,null,null,null,null,null,null,null,null,null,null,null,null,null,null,null,null,null,null,null,null,null,null,null,null,null,null,null,null,null,null,92,69,6,6,72,81,19,21]
[null,"$100,000 to $149,999",27,30,168,99,8,13,0,114,31,28,18,25,15,13,28,39,0,114,56,50,0,114,113,80,27,37,null,null,null,null,null,null,null,null,null,null,null,null,null,null,null,null,null,null,null,null,null,null,null,null,null,null,null,null,null,null,null,null,null,null,null,null,null,null,null,null,10,17,0,114,53,51,20,24]
[null,"$150,000 or more",0,114,54,47,24,28,0,114,10,17,6,7,0,114,0,114,0,114,52,47,21,33,23,36,7,13,null,null,null,null,null,null,null,null,null,null,null,null,null,null,null,null,null,null,null,null,null,null,null,null,null,null,null,null,null,null,null,null,null,null,null,null,null,null,null,null,0,114,0,114,0,114,49,50]
[]
[]
[]
[]
[]
[null,"Calculated B25118. TENURE BY HOUSEHOLD INCOME IN THE PAST 12 MONTHS (IN 2009 INFLATION-ADJUSTED DOLLARS) "]
[null,"Universe:  OCCUPIED HOUSING UNITS"]
[null,"Data Set: 2005-2009 American Community Survey 5-Year Estimates"]
[null,null,"Barrington",null,"Dover",null,"Durham",null,"Farmington",null,"Lee",null,"Madbury",null,"Middleton",null,"Milton",null,"New Durham",null,"Rochester",null,"Rollinsford",null,"Somersworth",null,"Strafford"]
[null,null,"Estimate","Margin Of Error","Estimate","Margin Of Error","Estimate","Margin Of Error","Estimate","Margin Of Error","Estimate","Margin Of Error","Estimate","Margin Of Error","Estimate","Margin Of Error","Estimate","Margin Of Error","Estimate","Margin Of Error","Estimate","Margin Of Error","Estimate","Margin Of Error","Estimate","Margin Of Error","Estimate","Margin Of Error",null,null,null,null,null,null,null,null,null,null,null,null,null,null,null,null,null,null,null,null,null,null,null,null,null,null,null,null,null,null,null,null,null,null,null,null,null,null,null,null,"Estimate","Margin Of Error","Estimate","Margin Of Error","Estimate","Margin Of Error","Estimate","Margin Of Error"]
[null,"Total:",2961,178,11856,425,3312,328,2466,249,1900,146,586,49,602,65,1730,133,905,63,12268,366,1065,64,4949,265,1373,127]
[null,"Less than $5,000",0,161.22034611053283,281,133.7235955244997,465,134.40610105199838,102,96.30160954002794,183,88.408144421201371,0,161.22034611053283,24,115.41230437002807,35,120.48651376813922,17,116.92732785794773,377,152.79397893896211,19,118.1397477566293,200,114.38968484964018,9,114.9826073804208]
[null,"$5,000 to $9,999",39,36.796738985948195,269,111.07204868912791,245,91.760557975635692,93,76.157731058639087,136,61.554853586049575,9,8.4852813742385695,12,9.4339811320566032,39,39,19,115.26057435220423,225,100.30453628824571,77,53.141321022345693,284,123.23960402403117,10,115.11733144926528]
[null,"$10,000 to $14,999",14,116.10340218959993,491,132.00378782444085,183,67.468511173731997,296,131.94695904036593,20,118.68024266911489,6,6.7082039324993694,10,114.35471131527551,191,122.48265183282079,19,115.11733144926528,557,175.31685600648902,69,37.536648758246919,354,155.65346125287417,18,114.85643212288984]
[null,"$15,000 to $19,999",92,88.600225733346747,453,159.31415505221122,198,90.426765949026404,71,49.819674828324601,28,26.627053911388696,21,20.248456731316587,18,115.41230437002807,64,51.884487084291386,16,14.422205101855956,735,190.59118552545917,41,36.400549446402593,138,80.131142510262507,16,115.41230437002807]
[null,"$20,000 to $24,999",88,57.245087125446844,577,175.84652399180371,96,53.009433122794285,149,77.006493232713822,52,37.215588131856791,15,115.26057435220423,22,18.973665961010276,55,51.078371156488537,48,45.254833995939045,669,229.83907413666634,26,20.615528128088304,192,87.920418561333065,18,116.10340218959993]
[null,"$25,000 to $34,999",203,88.192970241397362,1265,248.04031930313266,90,53.851648071345039,247,118.86967653695369,104,64.474801279259481,35,23.853720883753127,62,24.515301344262525,88,51.662365412357957,50,26.832815729997478,1576,295.97972903562163,89,55.21775076911409,392,139.97856978837868,143,82.969874050766165]
[null,"$35,000 to $49,999",442,162.73291000900832,1584,288.46663585239804,173,86.023252670426274,331,128.22246293064254,129,87.045964869142551,51,24.207436873820409,109,36.496575181789318,110,58.600341295934449,136,58.728187440104094,1934,307.59876462690806,143,54.405882034941776,796,192.09633000138237,193,85.14693182963201]
[null,"$50,000 to $74,999",690,168.60011862392031,2678,361.3654659759286,261,107.20074626605917,462,149.96666296213968,391,108.90362712049586,107,44.643028571099428,188,54.589376255824725,506,139.05394636614957,151,49.739320461783549,2575,326.84093990808435,160,53.535035257296691,1066,241.3565826738521,346,120.50311199301038]
[null,"$75,000 to $99,999",623,152.68922686293229,1551,267.72560579817537,416,117.80067911519016,293,161.92899678562824,254,108.50345616615168,91,38.275318418009277,93,119.85407794480753,387,125.86500705120545,215,60.835844697020519,1736,258.93821656912678,191,60.464865831323898,674,162.04937519163718,151,72.111025509279784]
[null,"$100,000 to $149,999",598,141.22322755127783,1853,236.6981199756348,570,104.80935072788114,305,158.41717078650282,318,83.815273071201048,139,43.829214001622255,46,19.849433241279208,178,89.899944382630181,174,124.88794977899188,1271,198.40362899906847,144,121.8400590938793,650,204.31348462595415,251,96.384646080171919]
[null,"$150,000 or more",172,138.13037319865606,854,179.27074496414633,615,114.47707194019246,117,130.24976007655445,285,101.43470806385751,112,37.656340767525464,18,114.9826073804208,77,127.01181047445942,60,120.48651376813922,613,143.89232085139221,106,56.612719418872643,203,99.724620831567975,218,89.944427287075428]

{"sheet":"ACS_TableB19101_ACS_Tbl_B19113","index":34,"n_rows":130,"n_cols":28,"rows_kept":130,"cut":false,"hidden":true,"merged":[]}
[null,"B19101. FAMILY INCOME IN THE PAST 12 MONTHS (IN 2018 INFLATION-ADJUSTED DOLLARS)"]
[null,"Universe:  FAMILIES"]
[null,"Data Set: 2015-2019 American Community Survey 5-Year Estimates"]
[]
[null,null,"Barrington",null,"Dover",null,"Durham",null,"Farmington",null,"Lee",null,"Madbury",null,"Middleton",null,"Milton",null,"New Durham",null,"Rochester",null,"Rollinsford",null,"Somersworth",null,"Strafford"]
[null,null,"Estimate","Margin Of Error","Estimate","Margin Of Error","Estimate","Margin Of Error","Estimate","Margin Of Error","Estimate","Margin Of Error","Estimate","Margin Of Error","Estimate","Margin Of Error","Estimate","Margin Of Error","Estimate","Margin Of Error","Estimate","Margin Of Error","Estimate","Margin Of Error","Estimate","Margin Of Error","Estimate","Margin Of Error"]
[null,"Total",2447,204,7429,322,1683,152,1798,222,1271,151,537,47,480,54,1366,102,749,53,8196,317,733,47,3318,208,1203,80]
[null,"Less than $10,000",53,82,100,71,33,40,73,55,0,11,2,3,9,10,0,11,16,17,322,142,21,32,142,149,8,14]
[null,"$10,000 to $14,999",0,16,82,62,0,18,0,16,0,11,0,11,3,4,9,15,0,11,137,108,6,8,17,27,0,11]
[null,"$15,000 to $19,999",13,20,187,114,32,22,26,33,26,38,3,5,6,6,0,11,10,11,240,118,5,7,57,55,0,11]
[null,"$20,000 to $24,999",15,21,131,86,4,5,67,67,12,18,4,6,4,6,12,19,23,15,263,115,27,18,102,75,0,11]
[null,"$25,000 to $29,999",37,46,196,119,52,43,86,62,63,71,5,6,13,9,41,54,11,10,301,126,0,11,71,50,43,37]
[null,"$30,000 to $34,999",46,51,168,84,0,18,159,154,0,11,0,11,17,19,30,38,42,29,207,87,15,19,45,46,20,21]
[null,"$35,000 to $39,999",0,16,140,83,11,15,23,37,32,48,15,15,16,11,27,25,21,16,325,150,22,17,123,61,66,57]
[null,"$40,000 to $44,999",69,57,117,75,17,20,47,48,16,25,2,5,15,12,30,22,27,27,445,154,10,10,100,69,27,25]
[null,"$45,000 to $49,999",0,16,209,122,24,21,49,61,0,11,10,9,16,12,118,76,13,13,294,129,10,8,122,83,16,18]
[null,"$50,000 to $59,999",133,79,498,150,24,21,69,80,58,54,35,27,26,18,137,75,27,18,685,179,61,37,186,97,100,48]
[null,"$60,000 to $74,999",309,173,728,182,88,43,122,82,48,46,43,18,62,27,174,84,93,36,895,226,81,30,489,164,126,58]
[null,"$75,000 to $99,999",382,156,1482,313,177,59,356,129,178,112,80,31,98,29,120,59,105,36,1692,253,122,52,785,213,143,51]
[null,"$100,000 to $124,999",323,114,947,209,167,65,419,142,216,104,57,24,79,29,295,108,131,44,938,219,92,34,427,153,183,78]
[null,"$125,000 to $149,999",231,118,721,209,249,78,81,83,131,83,58,24,40,23,185,83,54,28,580,149,67,28,300,152,118,62]
[null,"$150,000 to $199,999",512,191,963,229,349,90,188,112,191,104,67,36,35,19,149,67,111,38,560,141,106,34,288,113,230,89]
[null,"$200,000 or more",324,142,760,186,456,100,33,51,300,107,156,45,41,23,39,29,65,32,312,114,88,34,64,50,123,48]
[]
[]
[null,"B19113. MEDIAN FAMILY INCOME IN THE PAST 12 MONTHS (IN 2018 INFLATION-ADJUSTED DOLLARS)"]
[null,"Universe:  FAMILIES"]
[null,"Data Set: 2015-2019 American Community Survey 5-Year Estimates"]
[]
[null,null,"Barrington",null,"Dover",null,"Durham",null,"Farmington",null,"Lee",null,"Madbury",null,"Middleton",null,"Milton",null,"New Durham",null,"Rochester",null,"Rollinsford",null,"Somersworth",null,"Strafford"]
[null,null,"Estimate","Margin Of Error","Estimate","Margin Of Error","Estimate","Margin Of Error","Estimate","Margin Of Error","Estimate","Margin Of Error","Estimate","Margin Of Error","Estimate","Margin Of Error","Estimate","Margin Of Error","Estimate","Margin Of Error","Estimate","Margin Of Error","Estimate","Margin Of Error","Estimate","Margin Of Error","Estimate","Margin Of Error"]
[null,"Median family income in the past 12 months",114738,16489,95141,3579,145402,10973,88344,9885,123125,18761,132679,25193,87857,8389,99185,17081,97411,12252,74767,4574,98466,10652,78254,2014,112679,16001]
[]
[]
[]
[]
[]
[]
[]
[]
[]
[]
[]
[]
[]
[]
[]
[]
[]
[null,"B19101. FAMILY INCOME IN THE PAST 12 MONTHS (IN 2014 INFLATION-ADJUSTED DOLLARS)"]
[null,"Universe:  FAMILIES"]
[null,"Data Set: 2010-2014 American Community Survey 5-Year Estimates"]
[]
[null,null,"Barrington",null,"Dover",null,"Durham",null,"Farmington",null,"Lee",null,"Madbury",null,"Middleton",null,"Milton",null,"New Durham",null,"Rochester",null,"Rollinsford",null,"Somersworth",null,"Strafford"]
[null,null,"Estimate","Margin Of Error","Estimate","Margin Of Error","Estimate","Margin Of Error","Estimate","Margin Of Error","Estimate","Margin Of Error","Estimate","Margin Of Error","Estimate","Margin Of Error","Estimate","Margin Of Error","Estimate","Margin Of Error","Estimate","Margin Of Error","Estimate","Margin Of Error","Estimate","Margin Of Error","Estimate","Margin Of Error"]
[null,"Total",2485,177,7290,365,1812,161,1797,164,1189,130,503,54,416,49,1267,98,750,53,7480,268,713,56,3178,200,1128,86]
[null,"Less than $10,000",14,24,230,134,14,15,14,22,11,19,6,8,26,22,16,23,10,9,432,147,0,11,216,126,7,10]
[null,"$10,000 to $14,999",68,54,91,57,7,11,37,48,0,11,5,6,8,7,35,34,14,14,330,130,29,29,138,86,0,11]
[null,"$15,000 to $19,999",17,23,144,100,3,6,130,133,0,11,4,6,22,23,19,22,0,11,366,140,18,18,62,54,8,12]
[null,"$20,000 to $24,999",85,91,229,107,38,34,135,81,0,11,9,7,22,20,65,52,18,19,327,138,5,7,219,159,0,11]
[null,"$25,000 to $29,999",12,20,322,144,60,38,16,26,0,11,7,8,5,6,87,48,16,14,405,167,16,26,155,78,47,49]
[null,"$30,000 to $34,999",93,80,328,117,28,27,17,30,16,24,8,9,21,17,14,17,29,20,171,79,46,32,81,85,9,14]
[null,"$35,000 to $39,999",81,102,400,147,25,39,183,116,20,31,13,15,21,14,63,44,21,17,366,127,25,18,125,73,35,27]
[null,"$40,000 to $44,999",41,62,283,119,52,53,76,50,20,30,14,11,8,7,54,48,28,17,491,151,24,17,176,96,19,22]
[null,"$45,000 to $49,999",37,41,223,84,38,52,77,95,61,46,17,13,15,12,69,54,12,13,359,126,38,29,90,57,32,29]
[null,"$50,000 to $59,999",158,88,422,154,119,59,146,79,57,61,28,24,60,30,117,57,77,28,587,164,60,34,189,101,101,54]
[null,"$60,000 to $74,999",264,134,928,210,108,57,170,89,100,72,17,13,53,20,226,96,91,36,813,173,116,54,357,137,115,71]
[null,"$75,000 to $99,999",477,179,1161,215,309,100,293,136,234,92,74,34,45,18,206,76,136,41,1208,175,65,27,559,174,186,79]
[null,"$100,000 to $124,999",433,175,877,182,269,81,171,93,225,119,55,22,44,21,161,74,76,37,628,164,125,69,468,158,222,72]
[null,"$125,000 to $149,999",183,110,641,141,197,72,45,41,108,97,75,29,34,22,68,45,86,42,515,152,14,11,125,69,158,70]
[null,"$150,000 to $199,999",342,180,533,139,193,77,171,111,225,98,61,22,28,17,25,23,115,48,312,110,93,32,168,89,82,42]
[null,"$200,000 or more",180,115,478,135,352,78,116,107,112,70,110,35,4,6,42,29,21,17,170,89,39,22,50,49,107,41]
[]
[]
[null,"B19113. MEDIAN FAMILY INCOME IN THE PAST 12 MONTHS (IN 2014 INFLATION-ADJUSTED DOLLARS)"]
[null,"Universe:  FAMILIES"]
[null,"Data Set: 2010-2014 American Community Survey 5-Year Estimates"]
[]
[null,null,"Barrington",null,"Dover",null,"Durham",null,"Farmington",null,"Lee",null,"Madbury",null,"Middleton",null,"Milton",null,"New Durham",null,"Rochester",null,"Rollinsford",null,"Somersworth",null,"Strafford"]
[null,null,"Estimate","Margin Of Error","Estimate","Margin Of Error","Estimate","Margin Of Error","Estimate","Margin Of Error","Estimate","Margin Of Error","Estimate","Margin Of Error","Estimate","Margin Of Error","Estimate","Margin Of Error","Estimate","Margin Of Error","Estimate","Margin Of Error","Estimate","Margin Of Error","Estimate","Margin Of Error","Estimate","Margin Of Error"]
[null,"Median family income in the past 12 months",92820,10018,75907,6997,112742,12453,65366,14697,101946,12395,118472,20709,60000,7955,66144,6493,84167,8261,58531,4146,71354,13527,64382,6756,102083,9005]
[]
[]
[]
[]
[]
[]
[]
[]
[]
[]
[]
[]
[]
[]
[]
[]
[]
[null,"B19101. FAMILY INCOME IN THE PAST 12 MONTHS (IN 2009 INFLATION-ADJUSTED DOLLARS)"]
[null,"Universe:  FAMILIES"]
[null,"Data Set: 2005-2009 American Community Survey 5-Year Estimates"]
[]
[null,null,"Barrington",null,"Dover",null,"Durham",null,"Farmington",null,"Lee",null,"Madbury",null,"Middleton",null,"Milton",null,"New Durham",null,"Rochester",null,"Rollinsford",null,"Somersworth",null,"Strafford"]
[null,null,"Estimate","Margin Of Error","Estimate","Margin Of Error","Estimate","Margin Of Error","Estimate","Margin Of Error","Estimate","Margin Of Error","Estimate","Margin Of Error","Estimate","Margin Of Error","Estimate","Margin Of Error","Estimate","Margin Of Error","Estimate","Margin Of Error","Estimate","Margin Of Error","Estimate","Margin Of Error","Estimate","Margin Of Error"]
[null,null,2306,136,6821,344,1867,177,1698,177,1117,117,450,52,462,51,1203,121,701,50,8423,399,766,59,2961,190,1157,117]
[null,"Less than $10,000",43,67,205,86,56,47,37,36,37,61,2,4,16,15,44,42,28,28,414,174,69,52,80,50,49,46]
[null,"$10,000 to $14,999",0,114,139,62,72,67,67,41,0,114,4,6,0,114,97,94,0,114,178,103,13,14,133,122,0,114]
[null,"$15,000 to $19,999",0,114,181,125,44,46,29,35,0,114,2,4,18,18,28,39,6,9,418,140,41,38,58,52,8,12]
[null,"$20,000 to $24,999",78,58,49,33,0,114,113,73,9,14,6,8,10,11,35,47,48,34,341,144,5,8,92,64,10,17]
[null,"$25,000 to $29,999",76,54,238,112,5,7,89,70,0,114,9,11,21,11,82,54,14,14,389,132,26,30,85,75,97,65]
[null,"$30,000 to $34,999",38,43,159,79,0,114,86,62,38,48,0,114,21,18,38,36,16,14,439,182,20,18,125,92,47,39]
[null,"$35,000 to $39,999",56,47,420,155,13,14,19,22,0,114,8,9,19,12,12,21,21,24,401,129,11,12,114,71,59,52]
[null,"$40,000 to $44,999",39,37,197,76,14,15,201,110,12,17,3,6,53,25,58,40,39,32,457,141,61,38,172,78,41,41]
[null,"$45,000 to $49,999",193,109,325,123,12,19,50,30,50,61,18,14,18,12,43,50,40,25,331,114,50,43,144,75,51,64]
[null,"$50,000 to $59,999",68,45,670,131,133,76,138,78,97,61,77,44,67,27,165,85,40,25,834,173,29,22,266,123,112,79]
[null,"$60,000 to $74,999",465,126,826,166,55,39,239,110,164,71,27,15,99,36,97,57,75,28,1144,217,90,42,536,179,166,82]
[null,"$75,000 to $99,999",560,122,1121,208,330,95,231,102,222,101,69,31,68,33,304,115,195,57,1454,224,134,49,489,115,131,64]
[null,"$100,000 to $124,999",329,93,961,176,337,87,168,80,155,58,66,26,21,16,61,44,86,36,691,133,109,39,319,136,94,60]
[null,"$125,000 to $149,999",211,96,646,147,217,70,136,91,141,56,56,24,13,10,62,60,59,31,364,109,28,21,165,98,84,51]
[null,"$150,000 to $199,999",126,76,377,114,256,76,86,56,148,76,69,29,14,12,58,52,28,20,473,133,44,40,130,79,149,79]
[null,"$200,000 or more",24,28,307,100,323,92,9,14,44,33,34,16,4,5,19,23,6,10,95,56,36,21,53,44,59,43]
[]
[]
[null,"B19113. MEDIAN FAMILY INCOME IN THE PAST 12 MONTHS (IN 2009 INFLATION-ADJUSTED DOLLARS)"]
[null,"Universe:  FAMILIES"]
[null,"Data Set: 2005-2009 American Community Survey 5-Year Estimates"]
[]
[null,null,"Barrington",null,"Dover",null,"Durham",null,"Farmington",null,"Lee",null,"Madbury",null,"Middleton",null,"Milton",null,"New Durham",null,"Rochester",null,"Rollinsford",null,"Somersworth",null,"Strafford"]
[null,null,"Estimate","Margin Of Error","Estimate","Margin Of Error","Estimate","Margin Of Error","Estimate","Margin Of Error","Estimate","Margin Of Error","Estimate","Margin Of Error","Estimate","Margin Of Error","Estimate","Margin Of Error","Estimate","Margin Of Error","Estimate","Margin Of Error","Estimate","Margin Of Error","Estimate","Margin Of Error","Estimate","Margin Of Error"]
[null,"Median family income in the past 12 months",77740,6019,77542,8990,114757,9083,62992,9555,86832,11676,97500,18690,58125,6030,59750,13719,80938,9756,60097,3530,70338,6286,64248,4556,66858,14547]

{"sheet":"ACS_Table_B25119","index":35,"n_rows":68,"n_cols":28,"rows_kept":68,"cut":false,"hidden":true,"merged":[[11,2,11,3],[11,4,11,5],[11,6,11,7],[11,8,11,9],[17,2,17,3],[17,10,17,11],[17,12,17,13],[17,16,17,17],[17,14,17,15],[11,10,11,11],[11,12,11,13],[11,14,11,15],[11,16,11,17],[17,18,17,19],[17,20,17,21],[17,22,17,23],[11,18,11,19],[11,20,11,21],[11,22,11,23],[17,4,17,5],[17,6,17,7],[17,8,17,9],[23,10,23,11],[23,12,23,13],[23,14,23,15],[23,16,23,17],[23,2,23,3],[23,4,23,5],[23,6,23,7],[23,8,23,9],[23,18,23,19],[23,20,23,21],[23,22,23,23],[71,10,71,11],[71,12,71,13],[71,14,71,15],[71,16,71,17],[71,2,71,3],[71,4,71,5],[71,6,71,7],[71,8,71,9],[77,20,77,21],[77,22,77,23],[71,18,71,19],[71,20,71,21],[71,22,71,23],[77,4,77,5],[77,6,77,7],[77,8,77,9],[77,10,77,11],[77,12,77,13],[83,2,83,3],[83,4,83,5],[83,6,83,7],[83,8,83,9],[89,2,89,3],[77,18,77,19],[77,16,77,17],[77,14,77,15],[77,2,77,3],[89,10,89,11],[89,12,89,13],[89,16,89,17],[89,14,89,15],[83,10,83,11],[83,12,83,13],[83,14,83,15],[83,16,83,17],[101,2,101,3],[89,18,89,19],[89,20,89,21],[89,22,89,23],[83,18,83,19],[83,20,83,21],[83,22,83,23],[89,4,89,5],[89,6,89,7],[89,8,89,9],[95,10,95,11],[95,12,95,13],[95,14,95,15],[95,16,95,17],[95,2,95,3],[95,4,95,5],[95,6,95,7],[95,8,95,9],[101,4,101,5],[101,6,101,7],[101,8,101,9],[101,10,101,11],[101,12,101,13],[101,16,101,17],[101,14,101,15],[101,18,101,19],[101,20,101,21],[101,22,101,23],[95,18,95,19],[95,20,95,21],[95,22,95,23],[107,10,107,11],[107,12,107,13],[107,14,107,15],[107,16,107,17],[107,2,107,3],[107,4,107,5],[107,6,107,7],[107,8,107,9],[113,20,113,21],[113,22,113,23],[107,18,107,19],[107,20,107,21],[107,22,107,23],[113,4,113,5],[113,6,113,7],[113,8,113,9],[113,10,113,11],[113,12,113,13],[119,2,119,3],[119,4,119,5],[119,6,119,7],[119,8,119,9],[125,2,125,3],[113,18,113,19],[113,16,113,17],[113,14,113,15],[113,2,113,3],[125,10,125,11],[125,12,125,13],[125,16,125,17],[125,14,125,15],[119,10,119,11],[119,12,119,13],[119,14,119,15],[119,16,119,17],[137,2,137,3],[125,18,125,19],[125,20,125,21],[125,22,125,23],[119,18,119,19],[119,20,119,21],[119,22,119,23],[125,4,125,5],[125,6,125,7],[125,8,125,9],[131,10,131,11],[131,12,131,13],[131,14,131,15],[131,16,131,17],[131,2,131,3],[131,4,131,5],[131,6,131,7],[131,8,131,9],[137,4,137,5],[137,6,137,7],[137,8,137,9],[137,10,137,11],[137,12,137,13],[137,16,137,17],[137,14,137,15],[137,18,137,19],[137,20,137,21],[137,22,137,23],[131,18,131,19],[131,20,131,21],[131,22,131,23],[143,10,143,11],[143,12,143,13],[143,14,143,15],[143,16,143,17],[143,2,143,3],[143,4,143,5],[143,6,143,7],[143,8,143,9],[149,20,149,21],[149,22,149,23],[143,18,143,19],[143,20,143,21],[143,22,143,23],[149,4,149,5],[149,6,149,7],[149,8,149,9],[149,10,149,11],[149,12,149,13],[155,2,155,3],[155,4,155,5],[155,6,155,7],[155,8,155,9],[161,2,161,3],[149,18,149,19],[149,16,149,17],[149,14,149,15],[149,2,149,3],[161,10,161,11],[161,12,161,13],[161,16,161,17],[161,14,161,15],[155,10,155,11],[155,12,155,13],[155,14,155,15],[155,16,155,17],[173,2,173,3],[161,18,161,19],[161,20,161,21],[161,22,161,23],[155,18,155,19],[155,20,155,21],[155,22,155,23],[161,4,161,5],[161,6,161,7],[161,8,161,9],[167,10,167,11],[167,12,167,13],[167,14,167,15],[167,16,167,17],[167,2,167,3],[167,4,167,5],[167,6,167,7],[167,8,167,9],[173,4,173,5],[173,6,173,7],[173,8,173,9],[173,10,173,11],[173,12,173,13],[173,16,173,17],[173,14,173,15],[173,18,173,19],[173,20,173,21],[173,22,173,23],[167,18,167,19],[167,20,167,21],[167,22,167,23],[179,10,179,11],[179,12,179,13],[179,14,179,15],[179,16,179,17],[179,2,179,3],[179,4,179,5],[179,6,179,7],[179,8,179,9],[185,20,185,21],[185,22,185,23],[179,18,179,19],[179,20,179,21],[179,22,179,23],[185,4,185,5],[185,6,185,7],[185,8,185,9],[185,10,185,11],[185,12,185,13],[191,2,191,3],[191,4,191,5],[191,6,191,7],[191,8,191,9],[197,2,197,3],[185,18,185,19],[185,16,185,17],[185,14,185,15],[185,2,185,3],[197,10,197,11],[197,12,197,13],[197,16,197,17],[197,14,197,15],[191,10,191,11],[191,12,191,13],[191,14,191,15],[191,16,191,17],[209,2,209,3],[197,18,197,19],[197,20,197,21],[197,22,197,23],[191,18,191,19],[191,20,191,21],[191,22,191,23],[197,4,197,5],[197,6,197,7],[197,8,197,9],[203,10,203,11],[203,12,203,13],[203,14,203,15],[203,16,203,17],[203,2,203,3],[203,4,203,5],[203,6,203,7],[203,8,203,9],[209,4,209,5],[209,6,209,7],[209,8,209,9],[209,10,209,11],[209,12,209,13],[209,16,209,17],[209,14,209,15],[209,18,209,19],[209,20,209,21],[209,22,209,23],[203,18,203,19],[203,20,203,21],[203,22,203,23],[215,10,215,11],[215,12,215,13],[215,14,215,15],[215,16,215,17],[215,2,215,3],[215,4,215,5],[215,6,215,7],[215,8,215,9],[221,20,221,21],[221,22,221,23],[215,18,215,19],[215,20,215,21],[215,22,215,23],[221,4,221,5],[221,6,221,7],[221,8,221,9],[221,10,221,11],[221,12,221,13],[227,2,227,3],[227,4,227,5],[227,6,227,7],[227,8,227,9],[233,2,233,3],[221,18,221,19],[221,16,221,17],[221,14,221,15],[221,2,221,3],[233,10,233,11],[233,12,233,13],[233,16,233,17],[233,14,233,15],[227,10,227,11],[227,12,227,13],[227,14,227,15],[227,16,227,17],[245,2,245,3],[233,18,233,19],[233,20,233,21],[233,22,233,23],[227,18,227,19],[227,20,227,21],[227,22,227,23],[233,4,233,5],[233,6,233,7],[233,8,233,9],[239,10,239,11],[239,12,239,13],[239,14,239,15],[239,16,239,17],[239,2,239,3],[239,4,239,5],[239,6,239,7],[239,8,239,9],[245,4,245,5],[245,6,245,7],[245,8,245,9],[245,10,245,11],[245,12,245,13],[245,16,245,17],[245,14,245,15],[245,18,245,19],[245,20,245,21],[245,22,245,23],[239,18,239,19],[239,20,239,21],[239,22,239,23],[251,10,251,11],[251,12,251,13],[251,14,251,15],[251,16,251,17],[251,2,251,3],[251,4,251,5],[251,6,251,7],[251,8,251,9],[257,20,257,21],[257,22,257,23],[251,18,251,19],[251,20,251,21],[251,22,251,23],[257,4,257,5],[257,6,257,7],[257,8,257,9],[257,10,257,11],[257,12,257,13],[263,2,263,3],[263,4,263,5],[263,6,263,7],[263,8,263,9],[269,2,269,3],[257,18,257,19],[257,16,257,17],[257,14,257,15],[257,2,257,3],[269,10,269,11],[269,12,269,13],[269,16,269,17],[269,14,269,15],[263,10,263,11],[263,12,263,13],[263,14,263,15],[263,16,263,17],[281,2,281,3],[269,18,269,19],[269,20,269,21],[269,22,269,23],[263,18,263,19],[263,20,263,21],[263,22,263,23],[269,4,269,5],[269,6,269,7],[269,8,269,9],[275,10,275,11],[275,12,275,13],[275,14,275,15],[275,16,275,17],[275,2,275,3],[275,4,275,5],[275,6,275,7],[275,8,275,9],[281,4,281,5],[281,6,281,7],[281,8,281,9],[281,10,281,11],[281,12,281,13],[281,16,281,17],[281,14,281,15],[281,18,281,19],[281,20,281,21],[281,22,281,23],[275,18,275,19],[275,20,275,21],[275,22,275,23],[287,10,287,11],[287,12,287,13],[287,14,287,15],[287,16,287,17],[287,2,287,3],[287,4,287,5],[287,6,287,7],[287,8,287,9],[293,20,293,21],[293,22,293,23],[287,18,287,19],[287,20,287,21],[287,22,287,23],[293,4,293,5],[293,6,293,7],[293,8,293,9],[293,10,293,11],[293,12,293,13],[299,2,299,3],[299,4,299,5],[299,6,299,7],[299,8,299,9],[305,2,305,3],[293,18,293,19],[293,16,293,17],[293,14,293,15],[293,2,293,3],[305,10,305,11],[305,12,305,13],[305,16,305,17],[305,14,305,15],[299,10,299,11],[299,12,299,13],[299,14,299,15],[299,16,299,17],[317,2,317,3],[305,18,305,19],[305,20,305,21],[305,22,305,23],[299,18,299,19],[299,20,299,21],[299,22,299,23],[305,4,305,5],[305,6,305,7],[305,8,305,9],[311,10,311,11],[311,12,311,13],[311,14,311,15],[311,16,311,17],[311,2,311,3],[311,4,311,5],[311,6,311,7],[311,8,311,9],[317,4,317,5],[317,6,317,7],[317,8,317,9],[317,10,317,11],[317,12,317,13],[317,16,317,17],[317,14,317,15],[317,18,317,19],[317,20,317,21],[317,22,317,23],[311,18,311,19],[311,20,311,21],[311,22,311,23],[323,10,323,11],[323,12,323,13],[323,14,323,15],[323,16,323,17],[323,2,323,3],[323,4,323,5],[323,6,323,7],[323,8,323,9],[329,20,329,21],[329,22,329,23],[323,18,323,19],[323,20,323,21],[323,22,323,23],[329,4,329,5],[329,6,329,7],[329,8,329,9],[329,10,329,11],[329,12,329,13],[335,2,335,3],[335,4,335,5],[335,6,335,7],[335,8,335,9],[341,2,341,3],[329,18,329,19],[329,16,329,17],[329,14,329,15],[329,2,329,3],[341,10,341,11],[341,12,341,13],[341,16,341,17],[341,14,341,15],[335,10,335,11],[335,12,335,13],[335,14,335,15],[335,16,335,17],[353,2,353,3],[341,18,341,19],[341,20,341,21],[341,22,341,23],[335,18,335,19],[335,20,335,21],[335,22,335,23],[341,4,341,5],[341,6,341,7],[341,8,341,9],[347,10,347,11],[347,12,347,13],[347,14,347,15],[347,16,347,17],[347,2,347,3],[347,4,347,5],[347,6,347,7],[347,8,347,9],[353,4,353,5],[353,6,353,7],[353,8,353,9],[353,10,353,11],[353,12,353,13],[353,16,353,17],[353,14,353,15],[353,18,353,19],[353,20,353,21],[353,22,353,23],[347,18,347,19],[347,20,347,21],[347,22,347,23],[359,10,359,11],[359,12,359,13],[359,14,359,15],[359,16,359,17],[359,2,359,3],[359,4,359,5],[359,6,359,7],[359,8,359,9],[365,20,365,21],[365,22,365,23],[359,18,359,19],[359,20,359,21],[359,22,359,23],[365,4,365,5],[365,6,365,7],[365,8,365,9],[365,10,365,11],[365,12,365,13],[371,2,371,3],[371,4,371,5],[371,6,371,7],[371,8,371,9],[377,2,377,3],[365,18,365,19],[365,16,365,17],[365,14,365,15],[365,2,365,3],[377,10,377,11],[377,12,377,13],[377,16,377,17],[377,14,377,15],[371,10,371,11],[371,12,371,13],[371,14,371,15],[371,16,371,17],[389,2,389,3],[377,18,377,19],[377,20,377,21],[377,22,377,23],[371,18,371,19],[371,20,371,21],[371,22,371,23],[377,4,377,5],[377,6,377,7],[377,8,377,9],[383,10,383,11],[383,12,383,13],[383,14,383,15],[383,16,383,17],[383,2,383,3],[383,4,383,5],[383,6,383,7],[383,8,383,9],[389,4,389,5],[389,6,389,7],[389,8,389,9],[389,10,389,11],[389,12,389,13],[389,16,389,17],[389,14,389,15],[389,18,389,19],[389,20,389,21],[389,22,389,23],[383,18,383,19],[383,20,383,21],[383,22,383,23],[395,10,395,11],[395,12,395,13],[395,14,395,15],[395,16,395,17],[395,2,395,3],[395,4,395,5],[395,6,395,7],[395,8,395,9],[401,20,401,21],[401,22,401,23],[395,18,395,19],[395,20,395,21],[395,22,395,23],[401,4,401,5],[401,6,401,7],[401,8,401,9],[401,10,401,11],[401,12,401,13],[407,2,407,3],[407,4,407,5],[407,6,407,7],[407,8,407,9],[413,2,413,3],[401,18,401,19],[401,16,401,17],[401,14,401,15],[401,2,401,3],[413,10,413,11],[413,12,413,13],[413,16,413,17],[413,14,413,15],[407,10,407,11],[407,12,407,13],[407,14,407,15],[407,16,407,17],[425,2,425,3],[413,18,413,19],[413,20,413,21],[413,22,413,23],[407,18,407,19],[407,20,407,21],[407,22,407,23],[413,4,413,5],[413,6,413,7],[413,8,413,9],[419,10,419,11],[419,12,419,13],[419,14,419,15],[419,16,419,17],[419,2,419,3],[419,4,419,5],[419,6,419,7],[419,8,419,9],[425,4,425,5],[425,6,425,7],[425,8,425,9],[425,10,425,11],[425,12,425,13],[425,16,425,17],[425,14,425,15],[425,18,425,19],[425,20,425,21],[425,22,425,23],[419,18,419,19],[419,20,419,21],[419,22,419,23],[431,10,431,11],[431,12,431,13],[431,14,431,15],[431,16,431,17],[431,2,431,3],[431,4,431,5],[431,6,431,7],[431,8,431,9],[437,20,437,21],[437,22,437,23],[431,18,431,19],[431,20,431,21],[431,22,431,23],[437,4,437,5],[437,6,437,7],[437,8,437,9],[437,10,437,11],[437,12,437,13],[443,2,443,3],[443,4,443,5],[443,6,443,7],[443,8,443,9],[449,2,449,3],[437,18,437,19],[437,16,437,17],[437,14,437,15],[437,2,437,3],[449,10,449,11],[449,12,449,13],[449,16,449,17],[449,14,449,15],[443,10,443,11],[443,12,443,13],[443,14,443,15],[443,16,443,17],[461,2,461,3],[449,18,449,19],[449,20,449,21],[449,22,449,23],[443,18,443,19],[443,20,443,21],[443,22,443,23],[449,4,449,5],[449,6,449,7],[449,8,449,9],[455,10,455,11],[455,12,455,13],[455,14,455,15],[455,16,455,17],[455,2,455,3],[455,4,455,5],[455,6,455,7],[455,8,455,9],[461,4,461,5],[461,6,461,7],[461,8,461,9],[461,10,461,11],[461,12,461,13],[461,16,461,17],[461,14,461,15],[461,18,461,19],[461,20,461,21],[461,22,461,23],[455,18,455,19],[455,20,455,21],[455,22,455,23],[467,10,467,11],[467,12,467,13],[467,14,467,15],[467,16,467,17],[467,2,467,3],[467,4,467,5],[467,6,467,7],[467,8,467,9],[473,20,473,21],[473,22,473,23],[467,18,467,19],[467,20,467,21],[467,22,467,23],[473,4,473,5],[473,6,473,7],[473,8,473,9],[473,10,473,11],[473,12,473,13],[479,2,479,3],[479,4,479,5],[479,6,479,7],[479,8,479,9],[485,2,485,3],[473,18,473,19],[473,16,473,17],[473,14,473,15],[473,2,473,3],[485,10,485,11],[485,12,485,13],[485,16,485,17],[485,14,485,15],[479,10,479,11],[479,12,479,13],[479,14,479,15],[479,16,479,17],[497,2,497,3],[485,18,485,19],[485,20,485,21],[485,22,485,23],[479,18,479,19],[479,20,479,21],[479,22,479,23],[485,4,485,5],[485,6,485,7],[485,8,485,9],[491,10,491,11],[491,12,491,13],[491,14,491,15],[491,16,491,17],[491,2,491,3],[491,4,491,5],[491,6,491,7],[491,8,491,9],[497,4,497,5],[497,6,497,7],[497,8,497,9],[497,10,497,11],[497,12,497,13],[497,16,497,17],[497,14,497,15],[497,18,497,19],[497,20,497,21],[497,22,497,23],[491,18,491,19],[491,20,491,21],[491,22,491,23],[503,10,503,11],[503,12,503,13],[503,14,503,15],[503,16,503,17],[503,2,503,3],[503,4,503,5],[503,6,503,7],[503,8,503,9],[509,20,509,21],[509,22,509,23],[503,18,503,19],[503,20,503,21],[503,22,503,23],[509,4,509,5],[509,6,509,7],[509,8,509,9],[509,10,509,11],[509,12,509,13],[515,2,515,3],[515,4,515,5],[515,6,515,7],[515,8,515,9],[521,2,521,3],[509,18,509,19],[509,16,509,17],[509,14,509,15],[509,2,509,3],[521,10,521,11],[521,12,521,13],[521,16,521,17],[521,14,521,15],[515,10,515,11],[515,12,515,13],[515,14,515,15],[515,16,515,17],[533,2,533,3],[521,18,521,19],[521,20,521,21],[521,22,521,23],[515,18,515,19],[515,20,515,21],[515,22,515,23],[521,4,521,5],[521,6,521,7],[521,8,521,9],[527,10,527,11],[527,12,527,13],[527,14,527,15],[527,16,527,17],[527,2,527,3],[527,4,527,5],[527,6,527,7],[527,8,527,9],[533,4,533,5],[533,6,533,7],[533,8,533,9],[533,10,533,11],[533,12,533,13],[533,16,533,17],[533,14,533,15],[533,18,533,19],[533,20,533,21],[533,22,533,23],[527,18,527,19],[527,20,527,21],[527,22,527,23],[539,10,539,11],[539,12,539,13],[539,14,539,15],[539,16,539,17],[539,2,539,3],[539,4,539,5],[539,6,539,7],[539,8,539,9],[545,20,545,21],[545,22,545,23],[539,18,539,19],[539,20,539,21],[539,22,539,23],[545,4,545,5],[545,6,545,7],[545,8,545,9],[545,10,545,11],[545,12,545,13],[551,2,551,3],[551,4,551,5],[551,6,551,7],[551,8,551,9],[557,2,557,3],[545,18,545,19],[545,16,545,17],[545,14,545,15],[545,2,545,3],[557,10,557,11],[557,12,557,13],[557,16,557,17],[557,14,557,15],[551,10,551,11],[551,12,551,13],[551,14,551,15],[551,16,551,17],[569,2,569,3],[557,18,557,19],[557,20,557,21],[557,22,557,23],[551,18,551,19],[551,20,551,21],[551,22,551,23],[557,4,557,5],[557,6,557,7],[557,8,557,9],[563,10,563,11],[563,12,563,13],[563,14,563,15],[563,16,563,17],[563,2,563,3],[563,4,563,5],[563,6,563,7],[563,8,563,9],[569,4,569,5],[569,6,569,7],[569,8,569,9],[569,10,569,11],[569,12,569,13],[569,16,569,17],[569,14,569,15],[569,18,569,19],[569,20,569,21],[569,22,569,23],[563,18,563,19],[563,20,563,21],[563,22,563,23],[575,10,575,11],[575,12,575,13],[575,14,575,15],[575,16,575,17],[575,2,575,3],[575,4,575,5],[575,6,575,7],[575,8,575,9],[581,20,581,21],[581,22,581,23],[575,18,575,19],[575,20,575,21],[575,22,575,23],[581,4,581,5],[581,6,581,7],[581,8,581,9],[581,10,581,11],[581,12,581,13],[587,2,587,3],[587,4,587,5],[587,6,587,7],[587,8,587,9],[593,2,593,3],[581,18,581,19],[581,16,581,17],[581,14,581,15],[581,2,581,3],[593,10,593,11],[593,12,593,13],[593,16,593,17],[593,14,593,15],[587,10,587,11],[587,12,587,13],[587,14,587,15],[587,16,587,17],[605,2,605,3],[593,18,593,19],[593,20,593,21],[593,22,593,23],[587,18,587,19],[587,20,587,21],[587,22,587,23],[593,4,593,5]],"merged_total":89628,"flags":["merged_cut"]}
[null,"B25119. MEDIAN HOUSEHOLD INCOME THE PAST 12 MONTHS (IN 2019 INFLATION-ADJUSTED DOLLARS) BY TENURE"]
[null," Universe:  OCCUPIED HOUSING UNITS"]
[null,"Data Set: 2015-2019 American Community Survey 5-Year Estimates"]
[]
[null,null,"Barrington",null,"Dover",null,"Durham",null,"Farmington",null,"Lee",null,"Madbury",null,"Middleton",null,"Milton",null,"New Durham",null,"Rochester",null,"Rollinsford",null,"Somersworth",null,"Strafford"]
[null,null,"Estimate","Margin Of Error","Estimate","Margin Of Error","Estimate","Margin Of Error","Estimate","Margin Of Error","Estimate","Margin Of Error","Estimate","Margin Of Error","Estimate","Margin Of Error","Estimate","Margin Of Error","Estimate","Margin Of Error","Estimate","Margin Of Error","Estimate","Margin Of Error","Estimate","Margin Of Error","Estimate","Margin Of Error"]
[null,"Median household income in the past 12 months"]
[null,"Total:",92596,21054,71631,6841,81995,9747,70257,16340,100170,18054,123875,19705,76964,8922,70788,8944,81250,11859,62179,5638,75682,11689,66663,5276,98625,21628]
[null,"Owner occupied (dollars)",106311,16002,98345,5758,140000,8898,87326,4622,116005,17667,145398,20770,79931,7846,79397,32225,85625,11478,76089,6243,97727,16537,80099,7198,112344,15300]
[null,"Renter occupied (dollars)",60712,27921,50276,4100,28092,7028,35215,9026,44403,15956,63333,30691,62841,16574,32446,16874,"-","**",38136,6222,37917,20445,50912,5645,52357,7848]
[]
[]
[]
[]
[]
[]
[]
[]
[]
[]
[]
[]
[]
[]
[]
[]
[]
[]
[]
[null,"B25119. MEDIAN HOUSEHOLD INCOME THE PAST 12 MONTHS (IN 2014 INFLATION-ADJUSTED DOLLARS) BY TENURE"]
[null," Universe:  OCCUPIED HOUSING UNITS"]
[null,"Data Set: 2010-2014 American Community Survey 5-Year Estimates"]
[]
[null,null,"Barrington",null,"Dover",null,"Durham",null,"Farmington",null,"Lee",null,"Madbury",null,"Middleton",null,"Milton",null,"New Durham",null,"Rochester",null,"Rollinsford",null,"Somersworth",null,"Strafford"]
[null,null,"Estimate","Margin Of Error","Estimate","Margin Of Error","Estimate","Margin Of Error","Estimate","Margin Of Error","Estimate","Margin Of Error","Estimate","Margin Of Error","Estimate","Margin Of Error","Estimate","Margin Of Error","Estimate","Margin Of Error","Estimate","Margin Of Error","Estimate","Margin Of Error","Estimate","Margin Of Error","Estimate","Margin Of Error"]
[null,"Median household income in the past 12 months"]
[null,"Total:",82431,7227,60038,3666,67578,12224,50632,8720,96083,14129,97969,15930,61250,4784,60032,7597,78583,9797,48114,2646,63269,8065,53094,4587,97333,12601]
[null,"Owner occupied (dollars)",86389,11117,84281,5996,103750,14567,65345,10513,100583,16833,117917,22849,63438,7411,62143,6455,82647,7903,63903,3012,72656,6822,68750,8410,99404,8003]
[null,"Renter occupied (dollars)",44554,26087,39835,2609,20929,5423,24854,15577,60050,54086,53676,14005,58077,44094,29113,24441,38693,16631,29483,4311,35972,24554,32075,10230,27048,44965]
[]
[]
[]
[]
[]
[]
[]
[]
[]
[]
[]
[]
[]
[]
[]
[]
[]
[]
[]
[null,"B25119. MEDIAN HOUSEHOLD INCOME THE PAST 12 MONTHS (IN 2009 INFLATION-ADJUSTED DOLLARS) BY TENURE"]
[null," Universe:  OCCUPIED HOUSING UNITS"]
[null,"Data Set: 2005-2009 American Community Survey 5-Year Estimates"]
[]
[null,null,"Barrington",null,"Dover",null,"Durham",null,"Farmington",null,"Lee",null,"Madbury",null,"Middleton",null,"Milton",null,"New Durham",null,"Rochester",null,"Rollinsford",null,"Somersworth",null,"Strafford"]
[null,null,"Estimate","Margin Of Error","Estimate","Margin Of Error","Estimate","Margin Of Error","Estimate","Margin Of Error","Estimate","Margin Of Error","Estimate","Margin Of Error","Estimate","Margin Of Error","Estimate","Margin Of Error","Estimate","Margin Of Error","Estimate","Margin Of Error","Estimate","Margin Of Error","Estimate","Margin Of Error","Estimate","Margin Of Error"]
[null,"Median household income in the past 12 months"]
[null,"Total:",73449,4244,58756,2167,64318,19230,45811,9146,66447,8717,86579,9289,54408,3630,63674,8069,74698,10404,50382,2151,64583,11226,53430,5258,66520,11951]
[null,"Owner occupied (dollars)",78060,6232,83137,5729,115000,8293,67766,9122,85690,11798,94091,18964,54112,2908,64167,7341,82917,7346,63300,3036,77813,9623,68263,5100,66182,11071]
[null,"Renter occupied (dollars)",45504,6746,37548,4670,12006,3399,22368,14612,31806,31093,46136,35925,72083,39955,56023,25908,48571,9374,30126,4554,27143,21384,34083,7321,69286,47981]

{"sheet":"ACS_Table_B25001","index":36,"n_rows":29,"n_cols":28,"rows_kept":29,"cut":false,"hidden":true,"merged":[]}
[null,"B25001. HOUSING UNITS"]
[null,"Universe:  HOUSING UNITS"]
[null,"Data Set: 2015-2019 American Community Survey 5-Year Estimates"]
[]
[null,null,"Barrington",null,"Dover",null,"Durham",null,"Farmington",null,"Lee",null,"Madbury",null,"Middleton",null,"Milton",null,"New Durham",null,"Rochester",null,"Rollinsford",null,"Somersworth",null,"Strafford"]
[null,null,"Estimate","Margin Of Error","Estimate","Margin Of Error","Estimate","Margin Of Error","Estimate","Margin Of Error","Estimate","Margin Of Error","Estimate","Margin Of Error","Estimate","Margin Of Error","Estimate","Margin Of Error","Estimate","Margin Of Error","Estimate","Margin Of Error","Estimate","Margin Of Error","Estimate","Margin Of Error","Estimate","Margin Of Error"]
[null,"Total",3593,260,14226,401,3812,252,3130,229,1968,181,666,49,840,78,2140,136,1601,78,13522,348,1115,68,5501,307,1769,124]
[]
[]
[]
[]
[null,"B25001. HOUSING UNITS"]
[null,"Universe:  HOUSING UNITS"]
[null,"Data Set: 2010-2014 American Community Survey 5-Year Estimates"]
[]
[null,null,"Barrington",null,"Dover",null,"Durham",null,"Farmington",null,"Lee",null,"Madbury",null,"Middleton",null,"Milton",null,"New Durham",null,"Rochester",null,"Rollinsford",null,"Somersworth",null,"Strafford"]
[null,null,"Estimate","Margin Of Error","Estimate","Margin Of Error","Estimate","Margin Of Error","Estimate","Margin Of Error","Estimate","Margin Of Error","Estimate","Margin Of Error","Estimate","Margin Of Error","Estimate","Margin Of Error","Estimate","Margin Of Error","Estimate","Margin Of Error","Estimate","Margin Of Error","Estimate","Margin Of Error","Estimate","Margin Of Error"]
[null,"Total",3588,198,13447,407,3482,298,2907,202,1899,163,707,70,756,76,1961,154,1526,108,13971,394,1130,81,4886,247,1768,145]
[]
[]
[]
[]
[null,"B25001. HOUSING UNITS"]
[null,"Universe:  HOUSING UNITS"]
[null,"Data Set: 2005-2009 American Community Survey 5-Year Estimates"]
[]
[null,null,"Barrington",null,"Dover",null,"Durham",null,"Farmington",null,"Lee",null,"Madbury",null,"Middleton",null,"Milton",null,"New Durham",null,"Rochester",null,"Rollinsford",null,"Somersworth",null,"Strafford"]
[null,null,"Estimate","Margin Of Error","Estimate","Margin Of Error","Estimate","Margin Of Error","Estimate","Margin Of Error","Estimate","Margin Of Error","Estimate","Margin Of Error","Estimate","Margin Of Error","Estimate","Margin Of Error","Estimate","Margin Of Error","Estimate","Margin Of Error","Estimate","Margin Of Error","Estimate","Margin Of Error","Estimate","Margin Of Error"]
[null,"Total",3244,196,12521,433,3573,344,2661,276,2006,166,599,53,797,91,2121,161,1360,91,13336,376,1077,65,5180,290,1674,151]

{"sheet":"ACS_Table_B25003","index":37,"n_rows":42,"n_cols":28,"rows_kept":42,"cut":false,"hidden":true,"merged":[]}
[null,"B25003. TENURE"]
[null,"Universe:  OCCUPIED HOUSING UNITS"]
[null,"Data Set: 2015-2019 American Community Survey 5-Year Estimates"]
[]
[null,null,"Barrington",null,"Dover",null,"Durham",null,"Farmington",null,"Lee",null,"Madbury",null,"Middleton",null,"Milton",null,"New Durham",null,"Rochester",null,"Rollinsford",null,"Somersworth",null,"Strafford"]
[null,null,"Estimate","Margin Of Error","Estimate","Margin Of Error","Estimate","Margin Of Error","Estimate","Margin Of Error","Estimate","Margin Of Error","Estimate","Margin Of Error","Estimate","Margin Of Error","Estimate","Margin Of Error","Estimate","Margin Of Error","Estimate","Margin Of Error","Estimate","Margin Of Error","Estimate","Margin Of Error","Estimate","Margin Of Error"]
[null,"Total:",3183,200,13489,308,3187,199,2868,200,1876,180,615,47,658,59,1811,105,953,64,12780,347,1040,61,5127,249,1395,85]
[null,"Owner occupied",2904,213,6949,378,1854,158,1931,249,1619,162,533,52,585,63,1602,107,893,59,8601,379,798,62,2795,280,1271,89]
[null,"Renter occupied",279,139,6540,359,1333,135,937,230,257,135,82,31,73,33,209,92,60,37,4179,368,242,56,2332,330,124,57]
[]
[]
[]
[]
[]
[]
[]
[]
[]
[]
[]
[]
[null,"B25003. TENURE"]
[null,"Universe:  OCCUPIED HOUSING UNITS"]
[null,"Data Set: 2010-2014 American Community Survey 5-Year Estimates"]
[]
[null,null,"Barrington",null,"Dover",null,"Durham",null,"Farmington",null,"Lee",null,"Madbury",null,"Middleton",null,"Milton",null,"New Durham",null,"Rochester",null,"Rollinsford",null,"Somersworth",null,"Strafford"]
[null,null,"Estimate","Margin Of Error","Estimate","Margin Of Error","Estimate","Margin Of Error","Estimate","Margin Of Error","Estimate","Margin Of Error","Estimate","Margin Of Error","Estimate","Margin Of Error","Estimate","Margin Of Error","Estimate","Margin Of Error","Estimate","Margin Of Error","Estimate","Margin Of Error","Estimate","Margin Of Error","Estimate","Margin Of Error"]
[null,"Total:",3307,184,12586,374,3073,263,2625,158,1774,134,655,62,553,65,1656,120,1001,64,12715,331,1024,67,4492,207,1430,118]
[null,"Owner occupied",2948,207,6375,380,1894,198,1852,247,1487,183,517,55,483,65,1396,129,888,76,8135,440,765,71,2538,212,1313,143]
[null,"Renter occupied",359,153,6211,406,1179,177,773,254,287,156,138,51,70,36,260,89,113,55,4580,453,259,64,1954,238,117,67]
[]
[]
[]
[null,"B25003. TENURE"]
[null,"Universe:  OCCUPIED HOUSING UNITS"]
[null,"Data Set: 2005-2009 American Community Survey 5-Year Estimates"]
[]
[null,null,"Barrington",null,"Dover",null,"Durham",null,"Farmington",null,"Lee",null,"Madbury",null,"Middleton",null,"Milton",null,"New Durham",null,"Rochester",null,"Rollinsford",null,"Somersworth",null,"Strafford"]
[null,null,"Estimate","Margin Of Error","Estimate","Margin Of Error","Estimate","Margin Of Error","Estimate","Margin Of Error","Estimate","Margin Of Error","Estimate","Margin Of Error","Estimate","Margin Of Error","Estimate","Margin Of Error","Estimate","Margin Of Error","Estimate","Margin Of Error","Estimate","Margin Of Error","Estimate","Margin Of Error","Estimate","Margin Of Error"]
[null,"Total:",2961,178,11856,425,3312,328,2466,249,1900,146,586,49,602,65,1730,133,905,63,12268,366,1065,64,4949,265,1373,127]
[null,"Owner occupied",2392,209,6930,399,1940,225,1664,223,1364,124,462,49,565,65,1438,135,771,70,8596,406,761,84,2852,293,1267,118]
[null,"Renter occupied",569,151,4926,393,1372,207,802,191,536,127,124,49,37,20,292,116,134,56,3672,386,304,57,2097,223,106,51]

{"sheet":"ACS_Table_B25004","index":38,"n_rows":56,"n_cols":28,"rows_kept":56,"cut":false,"hidden":true,"merged":[]}
[null,"B25004. VACANCY STATUS"]
[null,"Universe:  VACANT HOUSING UNITS"]
[null,"Data Set: 2015-2019 American Community Survey 5-Year Estimates"]
[]
[null,null,"Barrington",null,"Dover",null,"Durham",null,"Farmington",null,"Lee",null,"Madbury",null,"Middleton",null,"Milton",null,"New Durham",null,"Rochester",null,"Rollinsford",null,"Somersworth",null,"Strafford"]
[null,null,"Estimate","Margin Of Error","Estimate","Margin Of Error","Estimate","Margin Of Error","Estimate","Margin Of Error","Estimate","Margin Of Error","Estimate","Margin Of Error","Estimate","Margin Of Error","Estimate","Margin Of Error","Estimate","Margin Of Error","Estimate","Margin Of Error","Estimate","Margin Of Error","Estimate","Margin Of Error","Estimate","Margin Of Error"]
[null,"Total:",410,223,737,246,625,144,262,157,92,98,51,23,182,51,329,97,648,58,742,222,75,51,374,220,374,101]
[null,"For rent",0,16,417,217,162,89,0,16,47,70,0,11,0,11,34,53,0,11,269,164,10,12,39,57,0,11]
[null,"Rented, not occupied",0,16,0,24,286,119,0,16,0,11,0,11,0,11,0,11,0,11,54,79,0,11,52,72,41,46]
[null,"For sale only",0,16,104,103,17,28,0,16,0,11,0,11,13,17,25,39,32,35,202,150,31,33,20,34,0,11]
[null,"Sold, not occupied",57,92,0,24,0,18,0,16,0,11,0,11,0,11,0,11,0,11,0,24,0,11,72,112,0,11]
[null,"For seasonal, recreational, or occasional use",244,162,15,24,5,9,130,110,0,11,13,16,166,57,187,79,594,69,31,50,16,25,0,18,301,91]
[null,"For migrant workers",0,16,0,24,0,18,0,16,0,11,0,11,0,11,0,11,0,11,29,46,0,11,0,18,0,11]
[null,"Other vacant",109,121,201,143,155,84,132,118,45,71,38,24,3,5,83,65,22,20,157,121,18,26,191,162,32,40]
[]
[]
[]
[]
[]
[]
[]
[null,"B25004. VACANCY STATUS"]
[null,"Universe:  VACANT HOUSING UNITS"]
[null,"Data Set: 2010-2014 American Community Survey 5-Year Estimates"]
[]
[null,null,"Barrington",null,"Dover",null,"Durham",null,"Farmington",null,"Lee",null,"Madbury",null,"Middleton",null,"Milton",null,"New Durham",null,"Rochester",null,"Rollinsford",null,"Somersworth",null,"Strafford"]
[null,null,"Estimate","Margin Of Error","Estimate","Margin Of Error","Estimate","Margin Of Error","Estimate","Margin Of Error","Estimate","Margin Of Error","Estimate","Margin Of Error","Estimate","Margin Of Error","Estimate","Margin Of Error","Estimate","Margin Of Error","Estimate","Margin Of Error","Estimate","Margin Of Error","Estimate","Margin Of Error","Estimate","Margin Of Error"]
[null,"Total:",281,127,861,261,409,136,282,154,125,114,52,49,203,48,305,110,525,91,1256,259,106,60,394,181,338,95]
[null,"For rent",0,15,351,172,99,76,0,15,80,97,0,11,0,11,0,11,33,35,343,172,0,11,52,75,0,11]
[null,"Rented, not occupied",0,15,0,23,142,88,0,15,0,11,0,11,0,11,0,11,0,11,145,132,31,34,47,75,0,11]
[null,"For sale only",38,60,73,70,0,17,25,42,45,64,30,43,8,13,0,11,26,27,132,95,0,11,76,86,0,11]
[null,"Sold, not occupied",0,15,39,58,0,17,35,44,0,11,0,11,0,11,20,27,0,11,114,103,10,16,0,17,0,11]
[null,"For seasonal, recreational, or occasional use",191,108,67,61,59,55,68,69,0,11,9,16,152,47,168,78,438,83,195,147,21,27,149,111,281,91]
[null,"For migrant workers",0,15,0,23,0,17,0,15,0,11,0,11,0,11,0,11,0,11,0,20,0,11,0,17,0,11]
[null,"Other vacant",52,59,331,180,109,80,154,129,0,11,13,20,43,26,117,82,28,31,327,150,44,39,70,79,57,54]
[]
[]
[]
[]
[]
[]
[]
[null,"B25004. VACANCY STATUS"]
[null,"Universe:  VACANT HOUSING UNITS"]
[null,"Data Set: 2005-2009 American Community Survey 5-Year Estimates"]
[]
[null,null,"Barrington",null,"Dover",null,"Durham",null,"Farmington",null,"Lee",null,"Madbury",null,"Middleton",null,"Milton",null,"New Durham",null,"Rochester",null,"Rollinsford",null,"Somersworth",null,"Strafford"]
[null,null,"Estimate","Margin Of Error","Estimate","Margin Of Error","Estimate","Margin Of Error","Estimate","Margin Of Error","Estimate","Margin Of Error","Estimate","Margin Of Error","Estimate","Margin Of Error","Estimate","Margin Of Error","Estimate","Margin Of Error","Estimate","Margin Of Error","Estimate","Margin Of Error","Estimate","Margin Of Error","Estimate","Margin Of Error"]
[null,"Total:",283,138,665,230,261,109,195,110,106,83,13,17,195,60,391,109,455,79,1068,245,12,17,231,146,301,101]
[null,"For rent",0,114,339,169,34,43,85,63,0,114,0,114,0,114,13,22,0,114,226,150,0,114,72,84,0,114]
[null,"Rented, not occupied",0,114,0,114,100,78,0,114,0,114,0,114,0,114,0,114,0,114,54,56,0,114,21,33,15,25]
[null,"For sale only",61,69,89,89,49,56,66,74,41,54,10,16,6,8,41,30,20,32,255,132,0,114,61,93,15,24]
[null,"Sold, not occupied",0,114,0,114,0,114,0,114,0,114,0,114,0,114,0,114,0,114,49,58,0,114,0,114,0,114]
[null,"For seasonal, recreational, or occasional use",200,117,85,59,21,22,44,54,65,64,0,114,189,60,337,106,435,86,19,20,12,17,0,114,248,101]
[null,"For migrant workers",0,114,0,114,0,114,0,114,0,114,0,114,0,114,0,114,0,114,0,114,0,114,0,114,0,114]
[null,"Other vacant",22,38,152,110,57,44,0,114,0,114,3,5,0,114,0,114,0,114,465,180,0,114,77,82,23,37]

{"sheet":"ACS_Table_B25008","index":39,"n_rows":51,"n_cols":28,"rows_kept":51,"cut":false,"hidden":true,"merged":[]}
[null,"B25008. TOTAL POPULATION IN OCCUPIED HOUSING UNITS BY TENURE"]
[null,"Universe:  TOTAL POPULATION IN OCCUPIED HOUSING UNITS"]
[null,"Data Set: 2015-2019 American Community Survey 5-Year Estimates"]
[]
[null,null,"Barrington",null,"Dover",null,"Durham",null,"Farmington",null,"Lee",null,"Madbury",null,"Middleton",null,"Milton",null,"New Durham",null,"Rochester",null,"Rollinsford",null,"Somersworth",null,"Strafford"]
[null,null,"Estimate","Margin Of Error","Estimate","Margin Of Error","Estimate","Margin Of Error","Estimate","Margin Of Error","Estimate","Margin Of Error","Estimate","Margin Of Error","Estimate","Margin Of Error","Estimate","Margin Of Error","Estimate","Margin Of Error","Estimate","Margin Of Error","Estimate","Margin Of Error","Estimate","Margin Of Error","Estimate","Margin Of Error"]
[null,"Total:",9063,31,30655,253,8509,403,6930,17,4475,27,1901,157,1783,159,4615,34,2697,17,30799,90,2567,21,11912,30,4135,20]
[null,"Owner occupied",8398,356,17584,916,5052,412,4803,568,4104,179,1642,169,1541,172,4211,212,2599,58,21290,949,2117,115,6968,765,3882,154]
[null,"Renter occupied",665,351,13071,872,3457,416,2127,565,371,175,259,100,242,109,404,211,98,56,9509,948,450,112,4944,767,253,155]
[]
[]
[]
[]
[]
[]
[]
[]
[]
[]
[]
[]
[null,"B25008. TOTAL POPULATION IN OCCUPIED HOUSING UNITS BY TENURE"]
[null,"Universe:  TOTAL POPULATION IN OCCUPIED HOUSING UNITS"]
[null,"Data Set: 2010-2014 American Community Survey 5-Year Estimates"]
[]
[null,null,"Barrington",null,"Dover",null,"Durham",null,"Farmington",null,"Lee",null,"Madbury",null,"Middleton",null,"Milton",null,"New Durham",null,"Rochester",null,"Rollinsford",null,"Somersworth",null,"Strafford"]
[null,null,"Estimate","Margin Of Error","Estimate","Margin Of Error","Estimate","Margin Of Error","Estimate","Margin Of Error","Estimate","Margin Of Error","Estimate","Margin Of Error","Estimate","Margin Of Error","Estimate","Margin Of Error","Estimate","Margin Of Error","Estimate","Margin Of Error","Estimate","Margin Of Error","Estimate","Margin Of Error","Estimate","Margin Of Error"]
[null,"Total:",8690,17,29422,339,8211,614,6820,32,4346,29,2003,170,1567,167,4588,31,2647,17,29654,114,2528,18,11747,37,4010,29]
[null,"Owner occupied",7900,348,16316,912,5042,517,4919,607,3793,310,1663,184,1338,180,3886,240,2392,138,19732,1041,2018,136,7216,549,3706,224]
[null,"Renter occupied",790,347,13106,842,3169,501,1901,608,553,309,340,167,229,157,702,236,255,134,9922,1044,510,132,4531,544,304,220]
[]
[]
[]
[]
[]
[]
[]
[]
[]
[]
[]
[]
[null,"B25008. TOTAL POPULATION IN OCCUPIED HOUSING UNITS BY TENURE"]
[null,"Universe:  TOTAL POPULATION IN OCCUPIED HOUSING UNITS"]
[null,"Data Set: 2005-2009 American Community Survey 5-Year Estimates"]
[]
[null,null,"Barrington",null,"Dover",null,"Durham",null,"Farmington",null,"Lee",null,"Madbury",null,"Middleton",null,"Milton",null,"New Durham",null,"Rochester",null,"Rollinsford",null,"Somersworth",null,"Strafford"]
[null,null,"Estimate","Margin Of Error","Estimate","Margin Of Error","Estimate","Margin Of Error","Estimate","Margin Of Error","Estimate","Margin Of Error","Estimate","Margin Of Error","Estimate","Margin Of Error","Estimate","Margin Of Error","Estimate","Margin Of Error","Estimate","Margin Of Error","Estimate","Margin Of Error","Estimate","Margin Of Error","Estimate","Margin Of Error"]
[null,"Total:",8389,19,27676,695,8803,683,6365,419,4446,14,1857,153,1630,157,4509,19,2516,18,30274,281,2629,37,11842,60,4029,28]
[null,"Owner occupied",6868,472,17680,922,5610,645,4648,566,3516,229,1511,176,1513,173,3903,279,2120,164,21808,888,1916,160,7139,649,3835,113]
[null,"Renter occupied",1521,473,9996,870,3193,630,1717,456,930,231,346,153,117,60,606,281,396,161,8466,906,713,155,4703,647,194,108]

{"sheet":"ACS_Table_B25024","index":40,"n_rows":78,"n_cols":28,"rows_kept":78,"cut":false,"hidden":true,"merged":[]}
[null,"B25024. UNITS IN STRUCTURE "]
[null,"Universe:  HOUSING UNITS"]
[null,"Data Set: 2015-2019 American Community Survey 5-Year Estimates"]
[]
[null,null,"Barrington",null,"Dover",null,"Durham",null,"Farmington",null,"Lee",null,"Madbury",null,"Middleton",null,"Milton",null,"New Durham",null,"Rochester",null,"Rollinsford",null,"Somersworth",null,"Strafford"]
[null,null,"Estimate","Margin Of Error","Estimate","Margin Of Error","Estimate","Margin Of Error","Estimate","Margin Of Error","Estimate","Margin Of Error","Estimate","Margin Of Error","Estimate","Margin Of Error","Estimate","Margin Of Error","Estimate","Margin Of Error","Estimate","Margin Of Error","Estimate","Margin Of Error","Estimate","Margin Of Error","Estimate","Margin Of Error"]
[null,"Total:",3593,260,14226,401,3812,252,3130,229,1968,181,666,49,840,78,2140,136,1601,78,13522,348,1115,68,5501,307,1769,124]
[null,"1, detached",2904,290,6118,347,2113,175,2069,252,1257,176,515,50,740,81,1657,145,1492,81,6687,359,808,73,2536,259,1594,151]
[null,"1, attached",84,84,1044,249,234,91,23,38,173,95,30,15,18,18,25,22,0,11,525,134,10,16,89,59,64,56]
[null,2,97,116,1266,212,254,98,128,79,108,95,54,31,0,11,9,15,14,15,758,231,53,37,852,245,21,25]
[null,"3 or 4",74,75,1663,254,209,75,161,119,27,29,6,7,0,11,34,36,0,11,1283,259,107,47,566,173,31,41]
[null,"5 to 9",45,70,829,212,315,97,168,133,56,62,0,11,0,11,123,78,0,11,1029,281,85,41,259,116,0,11]
[null,"10 to 19",0,16,688,174,261,102,18,30,0,11,0,11,0,11,12,19,0,11,313,139,33,31,317,167,0,11]
[null,"20 to 49",0,16,1325,248,262,101,0,16,0,11,0,11,0,11,0,11,0,11,280,107,0,11,380,133,0,11]
[null,"50 or more",0,16,866,171,155,69,0,16,0,11,0,11,0,11,0,11,0,11,397,138,6,11,70,53,0,11]
[null,"Mobile home",389,145,427,132,0,18,541,207,347,184,61,22,82,33,280,93,95,45,2250,272,13,13,432,100,59,56]
[null,"Boat, RV, van, etc.",0,16,0,24,9,14,22,33,0,11,0,11,0,11,0,11,0,11,0,24,0,11,0,18,0,11]
[]
[]
[null,"Calculated B25024. UNITS IN STRUCTURE "]
[null,"Universe:  HOUSING UNITS"]
[null,{"$f":"B3","v":"Data Set: 2015-2019 American Community Survey 5-Year Estimates"}]
[]
[null,null,"Barrington",null,"Dover",null,"Durham",null,"Farmington",null,"Lee",null,"Madbury",null,"Middleton",null,"Milton",null,"New Durham",null,"Rochester",null,"Rollinsford",null,"Somersworth",null,"Strafford"]
[null,null,"Estimate","Margin Of Error","Estimate","Margin Of Error","Estimate","Margin Of Error","Estimate","Margin Of Error","Estimate","Margin Of Error","Estimate","Margin Of Error","Estimate","Margin Of Error","Estimate","Margin Of Error","Estimate","Margin Of Error","Estimate","Margin Of Error","Estimate","Margin Of Error","Estimate","Margin Of Error","Estimate","Margin Of Error"]
[null,"Total:",{"$f":"C7","v":3593},260,14226,401,3812,252,3130,229,1968,181,666,49,840,78,2140,136,1601,78,13522,348,1115,68,{"$f":"Y7","v":5501},307,1769,124]
[null,"Single Family",{"$f":"C8","v":2904},290,6118,347,2113,175,2069,252,1257,176,515,50,740,81,1657,145,1492,81,6687,359,808,73,2536,259,1594,151]
[null,"Multi-Family",{"$f":"C9+C10+C11+C12+C13+C14+C15","v":300},{"$f":"SQRT((D9^2)+(D10^2)+(D11^2)+(D12^2)+(D13^2)+(D14^2)+(D15^2))","v":178.33956375409244},{"$f":"E9+E10+E11+E12+E13+E14+E15","v":7681},{"$f":"SQRT((F9^2)+(F10^2)+(F11^2)+(F12^2)+(F13^2)+(F14^2)+(F15^2))","v":580.88380938015473},{"$f":"G9+G10+G11+G12+G13+G14+G15","v":1690},{"$f":"SQRT((H9^2)+(H10^2)+(H11^2)+(H12^2)+(H13^2)+(H14^2)+(H15^2))","v":241.42286552851616},{"$f":"I9+I10+I11+I12+I13+I14+I15","v":498},{"$f":"SQRT((J9^2)+(J10^2)+(J11^2)+(J12^2)+(J13^2)+(J14^2)+(J15^2))","v":202.3536508195491},{"$f":"K9+K10+K11+K12+K13+K14+K15","v":364},{"$f":"SQRT((L9^2)+(L10^2)+(L11^2)+(L12^2)+(L13^2)+(L14^2)+(L15^2))","v":151.9802618763371},{"$f":"M9+M10+M11+M12+M13+M14+M15","v":90},{"$f":"SQRT((N9^2)+(N10^2)+(N11^2)+(N12^2)+(N13^2)+(N14^2)+(N15^2))","v":41.460824883255761},{"$f":"O9+O10+O11+O12+O13+O14+O15","v":18},{"$f":"SQRT((P9^2)+(P10^2)+(P11^2)+(P12^2)+(P13^2)+(P14^2)+(P15^2))","v":32.403703492039298},{"$f":"Q9+Q10+Q11+Q12+Q13+Q14+Q15","v":203},{"$f":"SQRT((R9^2)+(R10^2)+(R11^2)+(R12^2)+(R13^2)+(R14^2)+(R15^2))","v":93.23089616645332},{"$f":"S9+S10+S11+S12+S13+S14+S15","v":14},{"$f":"SQRT((T9^2)+(T10^2)+(T11^2)+(T12^2)+(T13^2)+(T14^2)+(T15^2))","v":30.838287890218549},{"$f":"U9+U10+U11+U12+U13+U14+U15","v":4585},{"$f":"SQRT((V9^2)+(V10^2)+(V11^2)+(V12^2)+(V13^2)+(V14^2)+(V15^2))","v":516.88780213891675},{"$f":"W9+W10+W11+W12+W13+W14+W15","v":294},{"$f":"SQRT((X9^2)+(X10^2)+(X11^2)+(X12^2)+(X13^2)+(X14^2)+(X15^2))","v":81.963406468984687},{"$f":"Y9+Y10+Y11+Y12+Y13+Y14+Y15","v":2533},{"$f":"SQRT((Z9^2)+(Z10^2)+(Z11^2)+(Z12^2)+(Z13^2)+(Z14^2)+(Z15^2))","v":394.05329588775169},{"$f":"AA9+AA10+AA11+AA12+AA13+AA14+AA15","v":116},{"$f":"SQRT((AB9^2)+(AB10^2)+(AB11^2)+(AB12^2)+(AB13^2)+(AB14^2)+(AB15^2))","v":76.980517015670927}]
[null,"Mobile Home & Other",{"$f":"C16+C17","v":389},{"$f":"SQRT((D16^2)+(D17^2))","v":145.88008774332431},{"$f":"E16+E17","v":427},{"$f":"SQRT((F16^2)+(F17^2))","v":134.16407864998737},{"$f":"G16+G17","v":9},{"$f":"SQRT((H16^2)+(H17^2))","v":22.803508501982758},{"$f":"I16+I17","v":563},{"$f":"SQRT((J16^2)+(J17^2))","v":209.61393083476108},{"$f":"K16+K17","v":347},{"$f":"SQRT((L16^2)+(L17^2))","v":184.32851108821987},{"$f":"M16+M17","v":61},{"$f":"SQRT((N16^2)+(N17^2))","v":24.596747752497688},{"$f":"O16+O17","v":82},{"$f":"SQRT((P16^2)+(P17^2))","v":34.785054261852174},{"$f":"Q16+Q17","v":280},{"$f":"SQRT((R16^2)+(R17^2))","v":93.648278147545241},{"$f":"S16+S17","v":95},{"$f":"SQRT((T16^2)+(T17^2))","v":46.324939287601879},{"$f":"U16+U17","v":2250},{"$f":"SQRT((V16^2)+(V17^2))","v":273.05677065401619},{"$f":"W16+W17","v":13},{"$f":"SQRT((X16^2)+(X17^2))","v":17.029386365926403},{"$f":"Y16+Y17","v":432},{"$f":"SQRT((Z16^2)+(Z17^2))","v":101.6070863670443},{"$f":"AA16+AA17","v":59},{"$f":"SQRT((AB16^2)+(AB17^2))","v":57.070132293521098}]
[]
[]
[]
[]
[]
[]
[]
[]
[]
[]
[]
[]
[]
[]
[]
[]
[]
[]
[]
[]
[]
[]
[]
[]
[]
[]
[]
[null,"Calculated B25024. UNITS IN STRUCTURE "]
[null,"Universe:  HOUSING UNITS"]
[null,"Data Set: 2010-2014 American Community Survey 5-Year Estimates"]
[]
[null,null,"Barrington",null,"Dover",null,"Durham",null,"Farmington",null,"Lee",null,"Madbury",null,"Middleton",null,"Milton",null,"New Durham",null,"Rochester",null,"Rollinsford",null,"Somersworth",null,"Strafford"]
[null,null,"Estimate","Margin Of Error","Estimate","Margin Of Error","Estimate","Margin Of Error","Estimate","Margin Of Error","Estimate","Margin Of Error","Estimate","Margin Of Error","Estimate","Margin Of Error","Estimate","Margin Of Error","Estimate","Margin Of Error","Estimate","Margin Of Error","Estimate","Margin Of Error","Estimate","Margin Of Error","Estimate","Margin Of Error"]
[null,"Total:",3588,198,13447,407,3482,298,2907,202,1899,163,707,70,756,76,1961,154,1526,108,13971,394,1130,81,4886,247,1768,145]
[null,"Single Family",2884,222,5893,396,2007,210,1817,262,1248,134,478,63,678,77,1414,147,1423,109,6456,435,817,91,2289,208,1525,161]
[null,"Multi-Family",260,127.83192089615176,7233,585.73970328124415,1469,226.16586833560893,482,196.3593644316461,389,173.98275776639477,178,61.587336360651285,13,33.555923471125034,243,103.31021246711285,39,38.340579025361627,5159,547.61300203702251,302,82.540898953185632,2108,333.20114045423071,168,88.583294136084149]
[null,"Mobile Home & Other",444,133.843191832831,321,88.056799851005266,6,18.788294228055936,608,166.67633305301626,262,110.54863183232979,51,26.40075756488817,65,25.495097567963924,304,83.725742755737912,64,36.687872655688281,2356,253.78928267363852,11,15.556349186104045,489,137.05838172107534,75,64.938432380216881]
[]
[]
[null,"Calculated B25024. UNITS IN STRUCTURE "]
[null,"Universe:  HOUSING UNITS"]
[null,"Data Set: 2005-2009 American Community Survey 5-Year Estimates"]
[]
[null,null,"Barrington",null,"Dover",null,"Durham",null,"Farmington",null,"Lee",null,"Madbury",null,"Middleton",null,"Milton",null,"New Durham",null,"Rochester",null,"Rollinsford",null,"Somersworth",null,"Strafford"]
[null,null,"Estimate","Margin Of Error","Estimate","Margin Of Error","Estimate","Margin Of Error","Estimate","Margin Of Error","Estimate","Margin Of Error","Estimate","Margin Of Error","Estimate","Margin Of Error","Estimate","Margin Of Error","Estimate","Margin Of Error","Estimate","Margin Of Error","Estimate","Margin Of Error","Estimate","Margin Of Error","Estimate","Margin Of Error"]
[null,"Total:",3244,196,12521,433,3573,344,2661,276,2006,166,599,53,797,91,2121,161,1360,91,13336,376,1077,65,5180,290,1674,151]
[null,"Single Family",2479,181,5668,398,2063,210,1498,250,1152,146,451,45,723,88,1370,179,1265,100,6689,341,798,90,2488,252,1511,163]
[null,"Multi-Family",270,195.28440797974631,6530,568.87169027822085,1498,245.83531072651056,791,257.14587299818754,614,160.43690348545124,91,231.79948231176013,16,255.40164447395401,242,189.50989420080418,25,255.51125219841103,4220,497.03420405440914,274,186.92779354606421,2185,341.57722406507139,65,165.71360837299994]
[null,"Mobile Home & Other",495,172.15400082484288,323,136.45878498652991,12,115.41230437002807,372,169.17742166140255,240,149.03690818049066,57,115.91807451816995,58,116.70903992407786,509,178.99720668211557,70,121.14866899805379,2427,260.69330639661615,5,114.28035701729323,507,177.45985461506498,98,131.7269904006009]

{"sheet":"ACS_Table_B25032","index":41,"n_rows":119,"n_cols":28,"rows_kept":119,"cut":false,"hidden":true,"merged":[]}
[null,"B25032. TENURE BY UNITS IN STRUCTURE "]
[null,"Universe:  OCCUPIED HOUSING UNITS"]
[null,"Data Set: 2015-2019 American Community Survey 5-Year Estimates"]
[]
[null,null,"Barrington",null,"Dover",null,"Durham",null,"Farmington",null,"Lee",null,"Madbury",null,"Middleton",null,"Milton",null,"New Durham",null,"Rochester",null,"Rollinsford",null,"Somersworth",null,"Strafford"]
[null,null,"Estimate","Margin Of Error","Estimate","Margin Of Error","Estimate","Margin Of Error","Estimate","Margin Of Error","Estimate","Margin Of Error","Estimate","Margin Of Error","Estimate","Margin Of Error","Estimate","Margin Of Error","Estimate","Margin Of Error","Estimate","Margin Of Error","Estimate","Margin Of Error","Estimate","Margin Of Error","Estimate","Margin Of Error"]
[null,"Total:",3183,200,13489,308,3187,199,2868,200,1876,180,615,47,658,59,1811,105,953,64,12780,347,1040,61,5127,249,1395,85]
[null,"Owner-occupied housing units:",2904,213,6949,378,1854,158,1931,249,1619,162,533,52,585,63,1602,107,893,59,8601,379,798,62,2795,280,1271,89]
[null,"1, detached",2438,226,5357,317,1721,145,1606,252,1194,162,459,49,522,63,1330,125,845,68,6158,327,754,62,2182,235,1198,107]
[null,"1, attached",84,84,598,187,69,41,23,38,152,91,16,12,4,6,25,22,0,11,279,99,0,11,30,26,14,17]
[null,2,40,65,384,138,35,26,44,48,17,25,16,15,0,11,9,15,0,11,106,54,24,18,155,89,0,11]
[null,"3 or 4",37,61,192,82,0,18,0,16,13,20,0,11,0,11,11,17,0,11,96,70,0,11,18,31,0,11]
[null,"5 to 9",0,16,35,55,24,29,0,16,0,11,0,11,0,11,0,11,0,11,102,63,16,24,0,18,0,11]
[null,"10 to 19",0,16,9,15,5,8,0,16,0,11,0,11,0,11,12,19,0,11,0,24,0,11,0,18,0,11]
[null,"20 to 49",0,16,24,37,0,18,0,16,0,11,0,11,0,11,0,11,0,11,34,27,0,11,0,18,0,11]
[null,"50 or more",0,16,20,35,0,18,0,16,0,11,0,11,0,11,0,11,0,11,0,24,0,11,0,18,0,11]
[null,"Mobile home",305,116,330,100,0,18,236,113,243,169,42,20,59,23,215,77,48,33,1826,246,4,7,410,94,59,56]
[null,"Boat, RV, van, etc.",0,16,0,24,0,18,22,33,0,11,0,11,0,11,0,11,0,11,0,24,0,11,0,18,0,11]
[null,"Renter-occupied housing units:",279,139,6540,359,1333,135,937,230,257,135,82,31,73,33,209,92,60,37,4179,368,242,56,2332,330,124,57]
[null,"1, detached",184,130,511,174,238,83,289,161,18,27,25,16,46,21,56,51,20,16,385,138,19,18,262,147,56,36]
[null,"1, attached",0,16,384,159,160,81,0,16,21,32,14,10,14,17,0,11,0,11,215,88,10,16,59,55,26,41]
[null,2,0,16,813,195,156,83,84,61,44,70,30,23,0,11,0,11,14,15,557,199,15,25,506,175,11,19]
[null,"3 or 4",37,41,1384,231,122,70,161,119,14,22,6,7,0,11,23,32,0,11,1007,237,91,47,548,172,31,41]
[null,"5 to 9",45,70,724,171,188,69,168,133,56,62,0,11,0,11,89,61,0,11,900,286,59,31,259,116,0,11]
[null,"10 to 19",0,16,679,171,132,62,18,30,0,11,0,11,0,11,0,11,0,11,262,116,33,31,265,150,0,11]
[null,"20 to 49",0,16,1121,181,220,88,0,16,0,11,0,11,0,11,0,11,0,11,242,103,0,11,341,132,0,11]
[null,"50 or more",0,16,827,175,108,46,0,16,0,11,0,11,0,11,0,11,0,11,335,122,6,11,70,53,0,11]
[null,"Mobile home",13,22,97,94,0,18,217,150,104,95,7,7,13,16,41,39,26,30,276,121,9,11,22,37,0,11]
[null,"Boat, RV, van, etc.",0,16,0,24,9,14,0,16,0,11,0,11,0,11,0,11,0,11,0,24,0,11,0,18,0,11]
[]
[]
[null,"Calculated B25032. TENURE BY UNITS IN STRUCTURE "]
[null,"Universe:  OCCUPIED HOUSING UNITS"]
[null,"Data Set: 2015-2019 American Community Survey 5-Year Estimates"]
[]
[null,null,"Barrington",null,"Dover",null,"Durham",null,"Farmington",null,"Lee",null,"Madbury",null,"Middleton",null,"Milton",null,"New Durham",null,"Rochester",null,"Rollinsford",null,"Somersworth",null,"Strafford"]
[null,null,"Estimate","Margin Of Error","Estimate","Margin Of Error","Estimate","Margin Of Error","Estimate","Margin Of Error","Estimate","Margin Of Error","Estimate","Margin Of Error","Estimate","Margin Of Error","Estimate","Margin Of Error","Estimate","Margin Of Error","Estimate","Margin Of Error","Estimate","Margin Of Error","Estimate","Margin Of Error","Estimate","Margin Of Error"]
[null,"Total:",{"$f":"C7","v":3183},200,13489,308,3187,199,2868,200,1876,180,615,47,658,59,1811,105,{"$f":"S7","v":953},64,12780,347,1040,61,5127,249,1395,85]
[null,"Owner-occupied housing units:",2904,213,6949,378,1854,158,1931,249,1619,162,533,52,585,63,1602,107,893,59,8601,379,798,62,2795,280,1271,89]
[null,"Single Family",{"$f":"C9","v":2438},226,{"$f":"E9","v":5357},317,{"$f":"G9","v":1721},145,{"$f":"I9","v":1606},252,{"$f":"K9","v":1194},162,{"$f":"M9","v":459},49,{"$f":"O9","v":522},63,{"$f":"Q9","v":1330},125,{"$f":"S9","v":845},68,{"$f":"U9","v":6158},327,{"$f":"W9","v":754},62,{"$f":"Y9","v":2182},235,{"$f":"AA9","v":1198},107]
[null,"Multi-Family",{"$f":"C10+C11+C12+C13+C14+C15+C16","v":161},{"$f":"SQRT((D10^2)+(D11^2)+(D12^2)+(D13^2)+(D14^2)+(D15^2)+(D16^2))","v":126.59383871263246},{"$f":"E10+E11+E12+E13+E14+E15+E16","v":1262},{"$f":"SQRT((F10^2)+(F11^2)+(F12^2)+(F13^2)+(F14^2)+(F15^2)+(F16^2))","v":258.03294363317252},{"$f":"G10+G11+G12+G13+G14+G15+G16","v":133},{"$f":"SQRT((H10^2)+(H11^2)+(H12^2)+(H13^2)+(H14^2)+(H15^2)+(H16^2))","v":65.069193939989759},{"$f":"I10+I11+I12+I13+I14+I15+I16","v":67},{"$f":"SQRT((J10^2)+(J11^2)+(J12^2)+(J13^2)+(J14^2)+(J15^2)+(J16^2))","v":70.908391604943347},{"$f":"K10+K11+K12+K13+K14+K15+K16","v":182},{"$f":"SQRT((L10^2)+(L11^2)+(L12^2)+(L13^2)+(L14^2)+(L15^2)+(L16^2))","v":98.944428847712288},{"$f":"M10+M11+M12+M13+M14+M15+M16","v":32},{"$f":"SQRT((N10^2)+(N11^2)+(N12^2)+(N13^2)+(N14^2)+(N15^2)+(N16^2))","v":31.208973068654469},{"$f":"O10+O11+O12+O13+O14+O15+O16","v":4},{"$f":"SQRT((P10^2)+(P11^2)+(P12^2)+(P13^2)+(P14^2)+(P15^2)+(P16^2))","v":27.604347483684521},{"$f":"Q10+Q11+Q12+Q13+Q14+Q15+Q16","v":57},{"$f":"SQRT((R10^2)+(R11^2)+(R12^2)+(R13^2)+(R14^2)+(R15^2)+(R16^2))","v":41.496987842492857},{"$f":"S10+S11+S12+S13+S14+S15+S16","v":0},{"$f":"SQRT((T10^2)+(T11^2)+(T12^2)+(T13^2)+(T14^2)+(T15^2)+(T16^2))","v":29.103264421710495},{"$f":"U10+U11+U12+U13+U14+U15+U16","v":617},{"$f":"SQRT((V10^2)+(V11^2)+(V12^2)+(V13^2)+(V14^2)+(V15^2)+(V16^2))","v":153.18942522250026},{"$f":"W10+W11+W12+W13+W14+W15+W16","v":40},{"$f":"SQRT((X10^2)+(X11^2)+(X12^2)+(X13^2)+(X14^2)+(X15^2)+(X16^2))","v":38.794329482541649},{"$f":"Y10+Y11+Y12+Y13+Y14+Y15+Y16","v":203},{"$f":"SQRT((Z10^2)+(Z11^2)+(Z12^2)+(Z13^2)+(Z14^2)+(Z15^2)+(Z16^2))","v":104.18253212511203},{"$f":"AA10+AA11+AA12+AA13+AA14+AA15+AA16","v":14},{"$f":"SQRT((AB10^2)+(AB11^2)+(AB12^2)+(AB13^2)+(AB14^2)+(AB15^2)+(AB16^2))","v":31.859064644147981}]
[null,"Mobile Home & Other",{"$f":"C17+C18","v":305},{"$f":"SQRT((D17^2)+(D18^2))","v":117.09824934643558},{"$f":"E17+E18","v":330},{"$f":"SQRT((F17^2)+(F18^2))","v":102.83968105745953},{"$f":"G17+G18","v":0},{"$f":"SQRT((H17^2)+(H18^2))","v":25.45584412271571},{"$f":"I17+I18","v":258},{"$f":"SQRT((J17^2)+(J18^2))","v":117.72000679578642},{"$f":"K17+K18","v":243},{"$f":"SQRT((L17^2)+(L18^2))","v":169.35760980835789},{"$f":"M17+M18","v":42},{"$f":"SQRT((N17^2)+(N18^2))","v":22.825424421026653},{"$f":"O17+O18","v":59},{"$f":"SQRT((P17^2)+(P18^2))","v":25.495097567963924},{"$f":"Q17+Q18","v":215},{"$f":"SQRT((R17^2)+(R18^2))","v":77.781745930520231},{"$f":"S17+S18","v":48},{"$f":"SQRT((T17^2)+(T18^2))","v":34.785054261852174},{"$f":"U17+U18","v":1826},{"$f":"SQRT((V17^2)+(V18^2))","v":247.16795908855175},{"$f":"W17+W18","v":4},{"$f":"SQRT((X17^2)+(X18^2))","v":13.038404810405298},{"$f":"Y17+Y18","v":410},{"$f":"SQRT((Z17^2)+(Z18^2))","v":95.707888912043188},{"$f":"AA17+AA18","v":59},{"$f":"SQRT((AB17^2)+(AB18^2))","v":57.070132293521098}]
[null,"Renter-occupied housing units:",{"$f":"C19","v":279},139,6540,359,1333,135,937,230,257,135,82,31,73,33,209,92,{"$f":"S19","v":60},37,4179,368,242,56,2332,330,124,57]
[null,"Single Family",184,130,511,174,238,83,289,161,18,27,25,16,46,21,56,51,20,16,385,138,19,18,262,147,56,36]
[null,"Multi-Family",{"$f":"C21+C22+C23+C24+C25+C26+C27","v":82},{"$f":"SQRT((D21^2)+(D22^2)+(D23^2)+(D24^2)+(D25^2)+(D26^2)+(D27^2))","v":88.662280593271461},{"$f":"E21+E22+E23+E24+E25+E26+E27","v":5932},{"$f":"SQRT((F21^2)+(F22^2)+(F23^2)+(F24^2)+(F25^2)+(F26^2)+(F27^2))","v":488.40045045024272},{"$f":"G21+G22+G23+G24+G25+G26+G27","v":1086},{"$f":"SQRT((H21^2)+(H22^2)+(H23^2)+(H24^2)+(H25^2)+(H26^2)+(H27^2))","v":191.87235340194272},{"$f":"I21+I22+I23+I24+I25+I26+I27","v":431},{"$f":"SQRT((J21^2)+(J22^2)+(J23^2)+(J24^2)+(J25^2)+(J26^2)+(J27^2))","v":192.97409152526149},{"$f":"K21+K22+K23+K24+K25+K26+K27","v":135},{"$f":"SQRT((L21^2)+(L22^2)+(L23^2)+(L24^2)+(L25^2)+(L26^2)+(L27^2))","v":103.02912209661888},{"$f":"M21+M22+M23+M24+M25+M26+M27","v":50},{"$f":"SQRT((N21^2)+(N22^2)+(N23^2)+(N24^2)+(N25^2)+(N26^2)+(N27^2))","v":34.08812109811862},{"$f":"O21+O22+O23+O24+O25+O26+O27","v":14},{"$f":"SQRT((P21^2)+(P22^2)+(P23^2)+(P24^2)+(P25^2)+(P26^2)+(P27^2))","v":31.859064644147981},{"$f":"Q21+Q22+Q23+Q24+Q25+Q26+Q27","v":112},{"$f":"SQRT((R21^2)+(R22^2)+(R23^2)+(R24^2)+(R25^2)+(R26^2)+(R27^2))","v":73.143694191638971},{"$f":"S21+S22+S23+S24+S25+S26+S27","v":14},{"$f":"SQRT((T21^2)+(T22^2)+(T23^2)+(T24^2)+(T25^2)+(T26^2)+(T27^2))","v":30.838287890218549},{"$f":"U21+U22+U23+U24+U25+U26+U27","v":3518},{"$f":"SQRT((V21^2)+(V22^2)+(V23^2)+(V24^2)+(V25^2)+(V26^2)+(V27^2))","v":473.55992229072763},{"$f":"W21+W22+W23+W24+W25+W26+W27","v":214},{"$f":"SQRT((X21^2)+(X22^2)+(X23^2)+(X24^2)+(X25^2)+(X26^2)+(X27^2))","v":72.484481097680487},{"$f":"Y21+Y22+Y23+Y24+Y25+Y26+Y27","v":2048},{"$f":"SQRT((Z21^2)+(Z22^2)+(Z23^2)+(Z24^2)+(Z25^2)+(Z26^2)+(Z27^2))","v":345.57633020795856},{"$f":"AA21+AA22+AA23+AA24+AA25+AA26+AA27","v":68},{"$f":"SQRT((AB21^2)+(AB22^2)+(AB23^2)+(AB24^2)+(AB25^2)+(AB26^2)+(AB27^2))","v":64.861390672726102}]
[null,"Mobile Home & Other",{"$f":"C28+C29","v":13},{"$f":"SQRT((D28^2)+(D29^2))","v":27.202941017470888},{"$f":"E28+E29","v":97},{"$f":"SQRT((F28^2)+(F29^2))","v":97.015462685079228},{"$f":"G28+G29","v":9},{"$f":"SQRT((H28^2)+(H29^2))","v":22.803508501982758},{"$f":"I28+I29","v":217},{"$f":"SQRT((J28^2)+(J29^2))","v":150.8509197850646},{"$f":"K28+K29","v":104},{"$f":"SQRT((L28^2)+(L29^2))","v":95.634721728041853},{"$f":"M28+M29","v":7},{"$f":"SQRT((N28^2)+(N29^2))","v":13.038404810405298},{"$f":"O28+O29","v":13},{"$f":"SQRT((P28^2)+(P29^2))","v":19.416487838947599},{"$f":"Q28+Q29","v":41},{"$f":"SQRT((R28^2)+(R29^2))","v":40.521599178709621},{"$f":"S28+S29","v":26},{"$f":"SQRT((T28^2)+(T29^2))","v":31.953090617340916},{"$f":"U28+U29","v":276},{"$f":"SQRT((V28^2)+(V29^2))","v":123.35720489699821},{"$f":"W28+W29","v":9},{"$f":"SQRT((X28^2)+(X29^2))","v":15.556349186104045},{"$f":"Y28+Y29","v":22},{"$f":"SQRT((Z28^2)+(Z29^2))","v":41.146081222881968},{"$f":"AA28+AA29","v":0},{"$f":"SQRT((AB28^2)+(AB29^2))","v":15.556349186104045}]
[]
[]
[]
[]
[]
[]
[]
[]
[]
[]
[]
[]
[]
[]
[]
[]
[]
[]
[]
[]
[]
[]
[]
[]
[]
[]
[]
[]
[]
[]
[]
[]
[]
[]
[]
[]
[]
[]
[]
[]
[null,"Calculated B25032. TENURE BY UNITS IN STRUCTURE "]
[null,"Universe:  OCCUPIED HOUSING UNITS"]
[null,"Data Set: 2010-2014 American Community Survey 5-Year Estimates"]
[]
[null,null,"Barrington",null,"Dover",null,"Durham",null,"Farmington",null,"Lee",null,"Madbury",null,"Middleton",null,"Milton",null,"New Durham",null,"Rochester",null,"Rollinsford",null,"Somersworth",null,"Strafford"]
[null,null,"Estimate","Margin Of Error","Estimate","Margin Of Error","Estimate","Margin Of Error","Estimate","Margin Of Error","Estimate","Margin Of Error","Estimate","Margin Of Error","Estimate","Margin Of Error","Estimate","Margin Of Error","Estimate","Margin Of Error","Estimate","Margin Of Error","Estimate","Margin Of Error","Estimate","Margin Of Error","Estimate","Margin Of Error"]
[null,"Total:",3307,184,12586,374,3073,263,2625,158,1774,134,655,62,553,65,1656,120,1001,64,12715,331,1024,67,4492,207,1430,118]
[null,"Owner-occupied housing units:",2948,207,6375,380,1894,198,1852,247,1487,183,517,55,483,65,1396,129,888,76,8135,440,765,71,2538,212,1313,143]
[null,"Single Family",2410,214,5095,356,1706,190,1494,240,1160,139,420,50,451,62,1059,118,832,74,5406,411,698,68,2026,192,1214,136]
[null,"Multi-Family",111,93.085981758801893,1041,212.67110758163648,188,89.983331789837607,50,55.054518434003214,153,80.343014631018178,50,38.444765573482172,0,29.103264421710495,120,78.48566748139433,9,28.740215726399828,801,192.43440440835937,67,41.689327171351664,112,72.367119605522504,78,56.49778756730214]
[null,"Mobile Home & Other",427,138.81282361511128,239,72.73238618387272,0,24.041630560342615,308,119.94165248152953,174,90.669730340395304,47,25.495097567963924,32,17.804493814764857,217,68.8839603971781,47,29.154759474226502,1928,242.82503989498284,0,15.556349186104045,400,124.16923934694937,21,25.495097567963924]
[null,"Renter-occupied housing units:",359,153,6211,406,1179,177,773,254,287,156,138,51,70,36,260,89,113,55,4580,453,259,64,1954,238,117,67]
[null,"Single Family",233,139,606,205,234,88,152,103,43,45,28,24,40,27,71,49,102,54,629,213,44,23,154,86,48,43]
[null,"Multi-Family",126,87.321245982864909,5572,515.20675461410633,939,169.4638604540803,389,180.90328908010491,156,128.93021368166578,106,49.33558553417604,13,33.555923471125034,123,73.088986858486422,7,28.407745422683583,3681,477.08489810514857,204,78.294316524253531,1770,313.66223872184548,69,63.749509802036911]
[null,"Mobile Home & Other",0,21.213203435596427,33,37.802116342871599,6,18.788294228055936,232,139.80700983856281,88,103.58571330062848,4,13.038404810405298,17,17.804493814764857,66,46.324939287601879,4,13.038404810405298,270,119.68291440301745,11,15.556349186104045,30,47.169905660283021,0,15.556349186104045]
[]
[]
[]
[null,"Calculated B25032. TENURE BY UNITS IN STRUCTURE "]
[null,"Universe:  OCCUPIED HOUSING UNITS"]
[null,"Data Set: 2005-2009 American Community Survey 5-Year Estimates"]
[]
[null,null,"Barrington",null,"Dover",null,"Durham",null,"Farmington",null,"Lee",null,"Madbury",null,"Middleton",null,"Milton",null,"New Durham",null,"Rochester",null,"Rollinsford",null,"Somersworth",null,"Strafford"]
[null,null,"Estimate","Margin Of Error","Estimate","Margin Of Error","Estimate","Margin Of Error","Estimate","Margin Of Error","Estimate","Margin Of Error","Estimate","Margin Of Error","Estimate","Margin Of Error","Estimate","Margin Of Error","Estimate","Margin Of Error","Estimate","Margin Of Error","Estimate","Margin Of Error","Estimate","Margin Of Error","Estimate","Margin Of Error"]
[null,"Total:",2961,178,11856,425,3312,328,2466,249,1900,146,586,49,602,65,1730,133,905,63,12268,366,1065,64,4949,265,1373,127]
[null,"Owner-occupied housing units:",2392,209,6930,399,1940,225,1664,223,1364,124,462,49,565,65,1438,135,771,70,8596,406,761,84,2852,293,1267,118]
[null,"Single Family",2021,185,5237,345,1767,210,1340,213,1037,121,404,46,498,63,1028,133,706,72,5904,306,737,80,2251,247,1152,136]
[null,"Multi-Family",21,256.09568524284043,1433,215.32765730393297,161,205.75227823769049,67,233.16303309058236,144,214.85576557309324,27,255.40164447395401,9,279.59256070217606,48,233.55513267749009,20,279.64441707282481,762,247.00202428320299,19,255.53277676259069,191,216.83634381717471,31,256.66709956673452]
[null,"Mobile Home & Other",350,155.66630977832037,260,133.77593206552515,12,115.41230437002807,257,154.31137352768266,183,139.26952286842948,31,114.9826073804208,58,116.70903992407786,362,172.90459797240788,45,116.49892703368559,1930,244.73863609981976,5,114.28035701729323,410,159.81239000778382,84,129.29423807734048]
[null,"Renter-occupied housing units:",569,151,4926,393,1372,207,802,191,536,127,124,49,37,20,292,116,134,56,3672,386,304,57,2097,223,106,51]
[null,"Single Family",236,108,280,111,177,75,48,60,42,42,44,30,30,19,62,46,104,48,451,157,49,47,160,105,58,38]
[null,"Multi-Family",249,224.64638879803965,4591,494.8040016006338,1195,221.90087877248257,639,234.91274976041638,470,178.44887222955487,64,231.57504183309564,7,255.0098037331114,141,178.16845961056069,5,279.38682860865151,3007,446.15580238297923,255,186.44570255170808,1901,325.97085759312904,34,198.95476872897518]
[null,"Mobile Home & Other",84,134.83323032546539,55,127.01181047445942,0,161.22034611053283,115,142.20056258679148,24,115.41230437002807,16,114.73883387938018,0,161.22034611053283,89,141.01418368376991,25,118.68024266911489,214,160.51479682571323,0,161.22034611053283,36,120.48651376813922,14,116.10340218959993]

{"sheet":"ACS_Table_B25034","index":42,"n_rows":58,"n_cols":28,"rows_kept":58,"cut":false,"hidden":true,"merged":[]}
[null,"B25034. YEAR STRUCTURE BUILT"]
[null,"Universe:  HOUSING UNITS"]
[null,"Data Set: 2015-2019 American Community Survey 5-Year Estimates"]
[]
[null,null,"Barrington",null,"Dover",null,"Durham",null,"Farmington",null,"Lee",null,"Madbury",null,"Middleton",null,"Milton",null,"New Durham",null,"Rochester",null,"Rollinsford",null,"Somersworth",null,"Strafford"]
[null,null,"Estimate","Margin Of Error","Estimate","Margin Of Error","Estimate","Margin Of Error","Estimate","Margin Of Error","Estimate","Margin Of Error","Estimate","Margin Of Error","Estimate","Margin Of Error","Estimate","Margin Of Error","Estimate","Margin Of Error","Estimate","Margin Of Error","Estimate","Margin Of Error","Estimate","Margin Of Error","Estimate","Margin Of Error"]
[null,"Total:",3593,260,14226,401,3812,252,3130,229,1968,181,666,49,840,78,2140,136,1601,78,13522,348,1115,68,5501,307,1769,124]
[null,"Built 2014 or later",106,73,300,132,206,80,22,33,0,11,3,5,3,4,0,11,8,12,212,107,0,11,17,28,27,28]
[null,"Built 2010 or 2013",204,142,381,138,328,106,22,38,0,11,16,13,3,5,63,56,53,35,255,86,0,11,24,39,83,64]
[null,"Built 2000 to 2009",786,219,1637,296,295,94,608,185,481,113,149,43,144,39,474,114,264,58,1772,249,65,36,488,171,300,82]
[null,"Built 1990 to 1999",434,180,1306,223,439,108,215,113,141,86,91,27,103,33,247,94,215,53,1085,188,66,26,250,124,281,94]
[null,"Built 1980 to 1989",430,159,2054,289,618,127,452,203,552,169,119,33,188,46,422,114,317,82,2842,315,169,61,743,224,303,95]
[null,"Built 1970 to 1979",802,235,1826,319,515,131,291,148,278,116,142,32,165,48,135,88,235,75,1885,275,80,29,687,191,173,77]
[null,"Built 1960 to 1969",99,101,1370,243,474,117,236,121,141,120,31,25,120,43,99,60,133,62,993,181,125,45,577,212,35,29]
[null,"Built 1950 to 1959",294,170,1323,221,238,76,107,68,77,96,42,21,32,27,105,60,62,41,1107,210,164,49,773,249,118,74]
[null,"Built 1940 to 1949",90,107,522,149,210,75,145,102,44,70,0,11,17,18,95,59,129,64,673,181,61,41,309,144,57,42]
[null,"Built 1939 or earlier",348,180,3507,374,489,123,1032,244,254,131,73,27,65,29,500,128,185,69,2698,299,385,79,1633,274,392,133]
[]
[]
[]
[]
[null,"B25034. YEAR STRUCTURE BUILT"]
[null,"Universe:  HOUSING UNITS"]
[null,"Data Set: 2010-2014 American Community Survey 5-Year Estimates"]
[]
[null,null,"Barrington",null,"Dover",null,"Durham",null,"Farmington",null,"Lee",null,"Madbury",null,"Middleton",null,"Milton",null,"New Durham",null,"Rochester",null,"Rollinsford",null,"Somersworth",null,"Strafford"]
[null,null,"Estimate","Margin Of Error","Estimate","Margin Of Error","Estimate","Margin Of Error","Estimate","Margin Of Error","Estimate","Margin Of Error","Estimate","Margin Of Error","Estimate","Margin Of Error","Estimate","Margin Of Error","Estimate","Margin Of Error","Estimate","Margin Of Error","Estimate","Margin Of Error","Estimate","Margin Of Error","Estimate","Margin Of Error"]
[null,"Total:",3588,198,13447,407,3482,298,2907,202,1899,163,707,70,756,76,1961,154,1526,108,13971,394,1130,81,4886,247,1768,145]
[null,"Built 2010 or later",26,31,116,58,69,53,31,35,0,11,7,6,3,4,9,15,0,11,133,83,0,11,16,25,29,34]
[null,"Built 2000 to 2009",543,197,1679,249,306,94,481,174,321,149,142,44,140,39,364,87,269,74,2076,279,35,24,442,139,300,107]
[null,"Built 1990 to 1999",463,176,1084,196,300,87,214,82,250,98,83,27,86,33,139,54,165,61,1343,245,57,35,424,147,257,98]
[null,"Built 1980 to 1989",981,239,1987,316,914,183,680,210,374,137,108,31,154,43,400,111,278,71,2823,361,215,55,630,138,312,90]
[null,"Built 1970 to 1979",661,184,1401,240,516,130,293,101,522,170,181,57,186,48,204,73,188,62,1556,305,89,40,537,158,308,91]
[null,"Built 1960 to 1969",246,125,1327,247,585,161,251,141,83,60,54,31,84,33,128,74,152,55,1112,206,80,30,644,219,120,75]
[null,"Built 1950 to 1959",174,121,1496,233,188,59,118,71,86,67,16,12,36,17,105,53,190,71,1145,193,174,60,515,155,81,46]
[null,"Built 1940 to 1949",65,56,716,181,129,61,33,36,10,16,0,11,25,17,68,42,81,44,509,157,42,31,250,106,19,19]
[null,"Built 1939 or earlier",429,144,3641,366,475,131,806,198,253,127,116,45,42,16,544,122,203,69,3274,360,438,76,1428,234,342,104]
[]
[]
[]
[]
[]
[null,"B25034. YEAR STRUCTURE BUILT"]
[null,"Universe:  HOUSING UNITS"]
[null,"Data Set: 2005-2009 American Community Survey 5-Year Estimates"]
[]
[null,null,"Barrington",null,"Dover",null,"Durham",null,"Farmington",null,"Lee",null,"Madbury",null,"Middleton",null,"Milton",null,"New Durham",null,"Rochester",null,"Rollinsford",null,"Somersworth",null,"Strafford"]
[null,null,"Estimate","Margin Of Error","Estimate","Margin Of Error","Estimate","Margin Of Error","Estimate","Margin Of Error","Estimate","Margin Of Error","Estimate","Margin Of Error","Estimate","Margin Of Error","Estimate","Margin Of Error","Estimate","Margin Of Error","Estimate","Margin Of Error","Estimate","Margin Of Error","Estimate","Margin Of Error","Estimate","Margin Of Error"]
[null,"Total:",3244,196,12521,433,3573,344,2661,276,2006,166,599,53,797,91,2121,161,1360,91,13336,376,1077,65,5180,290,1674,151]
[null,"Built 2005 or later",161,69,202,73,128,57,142,87,40,37,10,12,18,17,83,42,71,42,463,187,6,10,116,67,154,68]
[null,"Built 2000 to 2004",322,112,1000,206,247,88,176,88,126,67,83,26,98,47,195,91,140,68,1168,224,26,20,304,155,192,82]
[null,"Built 1990 to 1999",653,155,932,183,601,149,187,81,324,107,119,39,82,32,313,139,136,44,1232,226,38,30,247,80,220,82]
[null,"Built 1980 to 1989",810,174,1964,242,484,114,332,112,639,149,116,30,131,34,608,151,274,76,3013,348,186,57,671,168,439,122]
[null,"Built 1970 to 1979",571,143,1751,277,716,165,434,160,273,92,95,34,173,51,187,97,224,70,2069,280,150,51,793,206,283,83]
[null,"Built 1960 to 1969",248,105,1011,190,397,113,159,82,258,102,35,21,191,45,93,69,217,86,1043,200,84,47,492,165,31,30]
[null,"Built 1950 to 1959",188,95,1803,240,380,112,102,61,97,70,45,27,17,10,94,70,64,49,1036,172,103,37,883,168,83,66]
[null,"Built 1940 to 1949",82,82,546,163,210,67,85,63,61,38,0,114,16,12,43,33,92,54,711,176,47,34,158,76,113,76]
[null,"Built 1939 or earlier",209,80,3312,332,410,120,1044,181,188,90,96,44,71,33,505,128,142,54,2601,352,437,75,1516,212,159,69]

{"sheet":"ACS_Table_B25041","index":43,"n_rows":73,"n_cols":28,"rows_kept":73,"cut":false,"hidden":true,"merged":[]}
[null,"B25041. BEDROOMS "]
[null,"Universe:  HOUSING UNITS"]
[null,"Data Set: 2015-2019 American Community Survey 5-Year Estimates"]
[]
[null,null,"Barrington",null,"Dover",null,"Durham",null,"Farmington",null,"Lee",null,"Madbury",null,"Middleton",null,"Milton",null,"New Durham",null,"Rochester",null,"Rollinsford",null,"Somersworth",null,"Strafford"]
[null,null,"Estimate","Margin Of Error","Estimate","Margin Of Error","Estimate","Margin Of Error","Estimate","Margin Of Error","Estimate","Margin Of Error","Estimate","Margin Of Error","Estimate","Margin Of Error","Estimate","Margin Of Error","Estimate","Margin Of Error","Estimate","Margin Of Error","Estimate","Margin Of Error","Estimate","Margin Of Error","Estimate","Margin Of Error"]
[null,"Total:",3593,260,14226,401,3812,252,3130,229,1968,181,666,49,840,78,2140,136,1601,78,13522,348,1115,68,5501,307,1769,124]
[null,"No bedroom",0,16,218,124,293,107,7,16,45,71,6,8,10,7,96,60,5,8,266,128,26,34,51,43,0,11]
[null,"1 bedroom",138,89,2149,277,389,99,451,140,154,105,24,17,67,26,154,88,126,62,1464,250,94,53,772,228,52,31]
[null,"2 bedrooms",1057,248,5118,373,595,129,736,219,362,157,113,41,265,45,498,140,548,98,5082,389,280,61,1858,321,555,126]
[null,"3 bedrooms",1866,280,4509,368,1213,175,1441,241,815,186,264,50,403,62,1072,185,704,95,4833,416,530,79,2035,299,739,124]
[null,"4 bedrooms",510,201,1826,280,936,157,486,209,434,123,222,40,73,30,268,85,170,57,1641,237,179,45,691,194,346,113]
[null,"5 or more bedrooms",22,38,406,132,386,119,9,16,158,85,37,21,22,19,52,58,48,34,236,93,6,9,94,69,77,46]
[]
[]
[null,"Calculated B25041. BEDROOMS "]
[null,"Universe:  HOUSING UNITS"]
[null,"Data Set: 2015-2019 American Community Survey 5-Year Estimates"]
[]
[null,null,"Barrington",null,"Dover",null,"Durham",null,"Farmington",null,"Lee",null,"Madbury",null,"Middleton",null,"Milton",null,"New Durham",null,"Rochester",null,"Rollinsford",null,"Somersworth",null,"Strafford"]
[null,null,"Estimate","Margin Of Error","Estimate","Margin Of Error","Estimate","Margin Of Error","Estimate","Margin Of Error","Estimate","Margin Of Error","Estimate","Margin Of Error","Estimate","Margin Of Error","Estimate","Margin Of Error","Estimate","Margin Of Error","Estimate","Margin Of Error","Estimate","Margin Of Error","Estimate","Margin Of Error","Estimate","Margin Of Error"]
[null,"Total:",{"$f":"C7","v":3593},{"$f":"D7","v":260},14226,401,3812,252,3130,229,1968,181,666,49,840,78,2140,136,1601,78,13522,348,1115,68,{"$f":"Y7","v":5501},307,1769,124]
[null,"No bedroom",{"$f":"C8","v":0},16,218,124,293,107,7,16,45,71,6,8,10,7,96,60,5,8,266,128,26,34,51,43,0,11]
[null,"1 bedroom",{"$f":"C9","v":138},{"$f":"D9","v":89},2149,277,389,99,451,140,154,105,24,17,67,26,154,88,126,62,1464,250,94,53,772,228,52,31]
[null,"2 bedrooms",{"$f":"C10","v":1057},248,5118,373,595,129,736,219,362,157,113,41,265,45,498,140,548,98,5082,389,280,61,1858,321,555,126]
[null,"3 bedrooms",{"$f":"C11","v":1866},280,4509,368,1213,175,1441,241,815,186,264,50,403,62,1072,185,704,95,4833,416,530,79,2035,299,739,124]
[null,"4 + bedrooms",{"$f":"C12+C13","v":532},{"$f":"SQRT((D12^2)+(D13^2))","v":204.56050449683585},{"$f":"E12+E13","v":2232},{"$f":"SQRT((F12^2)+(F13^2))","v":309.55451862313367},{"$f":"G12+G13","v":1322},{"$f":"SQRT((H12^2)+(H13^2))","v":197.00253805471644},{"$f":"I12+I13","v":495},{"$f":"SQRT((J12^2)+(J13^2))","v":209.6115454835444},{"$f":"K12+K13","v":592},{"$f":"SQRT((L12^2)+(L13^2))","v":149.5125412799876},{"$f":"M12+M13","v":259},{"$f":"SQRT((N12^2)+(N13^2))","v":45.177427992306072},{"$f":"O12+O13","v":95},{"$f":"SQRT((P12^2)+(P13^2))","v":35.510561809129406},{"$f":"Q12+Q13","v":320},{"$f":"SQRT((R12^2)+(R13^2))","v":102.90286682109493},{"$f":"S12+S13","v":218},{"$f":"SQRT((T12^2)+(T13^2))","v":66.370174024180471},{"$f":"U12+U13","v":1877},{"$f":"SQRT((V12^2)+(V13^2))","v":254.59379411132551},{"$f":"W12+W13","v":185},{"$f":"SQRT((X12^2)+(X13^2))","v":45.891175622335062},{"$f":"Y12+Y13","v":785},{"$f":"SQRT((Z12^2)+(Z13^2))","v":205.90531804691204},{"$f":"AA12+AA13","v":423},{"$f":"SQRT((AB12^2)+(AB13^2))","v":122.00409829181969}]
[]
[]
[]
[]
[]
[]
[]
[]
[]
[]
[]
[]
[]
[]
[]
[]
[]
[]
[]
[null,"Calculated B25041. BEDROOMS "]
[null,"Universe:  HOUSING UNITS"]
[null,"Data Set: 2010-2014 American Community Survey 5-Year Estimates"]
[]
[null,null,"Barrington",null,"Dover",null,"Durham",null,"Farmington",null,"Lee",null,"Madbury",null,"Middleton",null,"Milton",null,"New Durham",null,"Rochester",null,"Rollinsford",null,"Somersworth",null,"Strafford"]
[null,null,"Estimate","Margin Of Error","Estimate","Margin Of Error","Estimate","Margin Of Error","Estimate","Margin Of Error","Estimate","Margin Of Error","Estimate","Margin Of Error","Estimate","Margin Of Error","Estimate","Margin Of Error","Estimate","Margin Of Error","Estimate","Margin Of Error","Estimate","Margin Of Error","Estimate","Margin Of Error","Estimate","Margin Of Error"]
[null,"Total:",3588,198,13447,407,3482,298,2907,202,1899,163,707,70,756,76,1961,154,1526,108,13971,394,1130,81,4886,247,1768,145]
[null,"No bedroom",0,15,226,109,229,94,102,111,62,94,4,6,7,8,29,35,5,7,484,251,22,28,44,71,32,37]
[null,"1 bedroom",252,154,2043,301,399,117,238,128,64,61,41,32,49,24,127,62,88,56,1341,229,125,51,598,178,123,72]
[null,"2 bedrooms",1199,235,4909,370,589,124,742,188,581,147,124,40,287,60,607,141,645,104,5852,418,280,71,1597,263,424,122]
[null,"3 bedrooms",1290,220,4311,442,981,174,1501,225,823,181,323,69,337,61,981,152,616,94,4760,350,483,80,1919,258,896,154]
[null,"4 + bedrooms",847,242.03305559365234,1958,280.58866691297425,1284,195.92090240706835,324,155.502411556863,369,100.46392387319938,215,46.669047558312137,76,33.301651610693426,217,66.708320320631671,172,44.271887242357309,1534,253.5527558517162,220,53,728,156.16977940690063,293,85]
[]
[]
[]
[null,"Calculated B25041. BEDROOMS "]
[null,"Universe:  HOUSING UNITS"]
[null,"Data Set: 2005-2009 American Community Survey 5-Year Estimates"]
[]
[null,null,"Barrington",null,"Dover",null,"Durham",null,"Farmington",null,"Lee",null,"Madbury",null,"Middleton",null,"Milton",null,"New Durham",null,"Rochester",null,"Rollinsford",null,"Somersworth",null,"Strafford"]
[null,null,"Estimate","Margin Of Error","Estimate","Margin Of Error","Estimate","Margin Of Error","Estimate","Margin Of Error","Estimate","Margin Of Error","Estimate","Margin Of Error","Estimate","Margin Of Error","Estimate","Margin Of Error","Estimate","Margin Of Error","Estimate","Margin Of Error","Estimate","Margin Of Error","Estimate","Margin Of Error","Estimate","Margin Of Error"]
[null,"Total:",3244,196,12521,433,3573,344,2661,276,2006,166,599,53,797,91,2121,161,1360,91,13336,376,1077,65,5180,290,1674,151]
[null,"No bedroom",0,114,234,133,67,52,97,91,79,59,1,3,0,114,14,24,0,114,105,72,0,114,93,89,10,9]
[null,"1 bedroom",247,105,2112,281,677,152,269,122,355,123,27,22,37,25,159,67,152,75,1365,258,69,46,652,165,77,60]
[null,"2 bedrooms",814,201,3957,422,537,125,846,188,442,136,92,40,284,63,684,177,392,93,4808,429,319,82,1671,271,420,121]
[null,"3 bedrooms",1686,219,4390,382,1111,170,1006,185,682,132,203,48,388,67,960,159,614,110,5407,395,453,81,1962,229,883,130]
[null,"4 + bedrooms",497,135.60235986147143,1828,270.89665926326961,1181,176.13914953808538,443,142.6954799564443,448,113.25193155085701,276,56.400354608814297,88,32.449961479175904,304,101.84301645179212,202,74.953318805774032,1651,237.6930794112441,236,73.16419889536138,802,206.73654732533385,284,83.198557679805958]

{"sheet":"PovertyCharacteristics","index":44,"n_rows":82,"n_cols":17,"rows_kept":82,"cut":false,"hidden":true,"merged":[[21,15,21,16],[49,15,49,16],[64,15,64,16],[64,3,64,5],[64,7,64,9],[64,11,64,14],[77,2,78,3],[77,6,78,9],[77,11,78,13],[21,11,21,13],[30,2,31,4],[30,7,31,9],[30,11,31,13],[49,11,49,14],[21,3,21,5],[21,7,21,9]]}
[]
[null,null,{"$f":"CntyDataLink!A86","v":"Barrington"}]
[null,null,"POVERTY CHARACTERISTICS"]
[]
[]
[]
[]
[]
[]
[]
[]
[]
[]
[]
[]
[]
[]
[null,null,null,null,null,null,null,null,null,null,null,null,"2009 Income (2005-2009 ACS)"]
[null,null,null,null,null,null,null,null,null,null,null,null,"2014 Income (2010-2014 ACS)"]
[null,null,null,null,null,null,null,null,null,null,null,null,"2019 Income (2015-2019 ACS)"]
[]
[null,null,null,"2009 Inc below Poverty Level",null,null,null,"2014 Inc below Poverty Level",null,null,null,"2019 Inc below Poverty Level",null,null,null,"Statistically Significant Change"]
[null,null,"Population","Estimate","Margin of Error","% of Population in Poverty",null,"Estimate","Margin of Error","% of Population in Poverty",null,"Estimate","Margin of Error","% of Population in Poverty",null,"2009-2019","2014-2019"]
[null,null," Total Individuals living Poverty",{"$f":"CntyDataLinkPrior10YearEstimate!$D$124","v":349},{"$f":"CntyDataLinkPrior10YearEstimate!$E$124","v":274},{"$f":"D24/CntyDataLinkPrior10YearEstimate!$B$124","v":4.1602097985457144E-2},null,{"$f":"CntyDataLinkPrior5YearEstimates!$D$124","v":546},{"$f":"CntyDataLinkPrior5YearEstimates!$E$124","v":228},{"$f":"H24/CntyDataLinkPrior5YearEstimates!$B$124","v":6.2983043026877378E-2},null,{"$f":"CntyDataLink!$D$124","v":466},{"$f":"CntyDataLink!$E$124","v":241},{"$f":"L24/CntyDataLink!$B$124","v":5.1898875153135092E-2},null,{"$f":"StatisticallySignificantCalcs!$A112","v":"N"},{"$f":"StatisticallySignificantCalcs!$J$112","v":"N"}]
[null,null,"Under 5 yrs.",{"$f":"CntyDataLinkPrior10YearEstimate!$F$124","v":0},{"$f":"CntyDataLinkPrior10YearEstimate!$G$124","v":120.48651376813922},{"$f":"D25/(CntyDataLinkPrior10YearEstimate!$F$124+CntyDataLinkPrior10YearEstimate!$R$124)","v":0},null,{"$f":"CntyDataLinkPrior5YearEstimates!$F$124","v":10},{"$f":"CntyDataLinkPrior5YearEstimates!$G$124","v":36.891733491393431},{"$f":"H25/(CntyDataLinkPrior5YearEstimates!$F$124+CntyDataLinkPrior5YearEstimates!$R$124)","v":1.6666666666666666E-2},null,{"$f":"CntyDataLink!$F$124","v":0},{"$f":"CntyDataLink!$G$124","v":80.603970125546539},{"$f":"L25/(CntyDataLink!$F$124+CntyDataLink!$R$124)","v":0},null,{"$f":"StatisticallySignificantCalcs!$A113","v":"N"},{"$f":"StatisticallySignificantCalcs!$J$113","v":"N"}]
[null,null,"5 to 17 yrs.",{"$f":"CntyDataLinkPrior10YearEstimate!$H$124","v":80},{"$f":"CntyDataLinkPrior10YearEstimate!$I$124","v":314.08756740756229},{"$f":"D26/(CntyDataLinkPrior10YearEstimate!$H$124+CntyDataLinkPrior10YearEstimate!$T$124)","v":4.3407487791644057E-2},null,{"$f":"CntyDataLinkPrior5YearEstimates!$H$124","v":102},{"$f":"CntyDataLinkPrior5YearEstimates!$I$124","v":96.881370758262918},{"$f":"H26/(CntyDataLinkPrior5YearEstimates!$H$124+CntyDataLinkPrior5YearEstimates!$T$124)","v":7.9377431906614782E-2},null,{"$f":"CntyDataLink!$H$124","v":10},{"$f":"CntyDataLink!$I$124","v":48.867166891482462},{"$f":"L26/(CntyDataLink!$H$124+CntyDataLink!$T$124)","v":7.2306579898770785E-3},null,{"$f":"StatisticallySignificantCalcs!$A114","v":"N"},{"$f":"StatisticallySignificantCalcs!$J$114","v":"N"}]
[null,null,"18 to 64 yrs.",{"$f":"CntyDataLinkPrior10YearEstimate!$J$124","v":269},{"$f":"CntyDataLinkPrior10YearEstimate!$K$124","v":173.55978796944873},{"$f":"D27/(CntyDataLinkPrior10YearEstimate!$J$124+CntyDataLinkPrior10YearEstimate!$V$124)","v":5.0102439932948405E-2},null,{"$f":"CntyDataLinkPrior5YearEstimates!$J$124","v":418},{"$f":"CntyDataLinkPrior5YearEstimates!$K$124","v":170.98830369355676},{"$f":"H27/(CntyDataLinkPrior5YearEstimates!$J$124+CntyDataLinkPrior5YearEstimates!$V$124)","v":7.1722717913520931E-2},null,{"$f":"CntyDataLink!$J$124","v":439},{"$f":"CntyDataLink!$K$124","v":203.31502649828911},{"$f":"L27/(CntyDataLink!$J$124+CntyDataLink!$V$124)","v":7.0476802054904475E-2},null,{"$f":"StatisticallySignificantCalcs!$A115","v":"N"},{"$f":"StatisticallySignificantCalcs!$J$115","v":"N"}]
[null,null,"65 to 74 yrs.",{"$f":"CntyDataLinkPrior10YearEstimate!$L$124","v":0},{"$f":"CntyDataLinkPrior10YearEstimate!$M$124","v":161.22034611053283},{"$f":"D28/(CntyDataLinkPrior10YearEstimate!$L$124+CntyDataLinkPrior10YearEstimate!$X$124)","v":0},null,{"$f":"CntyDataLinkPrior5YearEstimates!$L$124","v":0},{"$f":"CntyDataLinkPrior5YearEstimates!$M$124","v":21.213203435596427},{"$f":"H28/(CntyDataLinkPrior5YearEstimates!$L$124+CntyDataLinkPrior5YearEstimates!$X$124)","v":0},null,{"$f":"CntyDataLink!$L$124","v":17},{"$f":"CntyDataLink!$M$124","v":32.249030993194197},{"$f":"L28/(CntyDataLink!$L$124+CntyDataLink!$X$124)","v":3.0303030303030304E-2},null,{"$f":"StatisticallySignificantCalcs!$A116","v":"N"},{"$f":"StatisticallySignificantCalcs!$J$116","v":"N"}]
[null,null,"75 yrs. & Over",{"$f":"CntyDataLinkPrior10YearEstimate!$N$124","v":0},{"$f":"CntyDataLinkPrior10YearEstimate!$O$124","v":161.22034611053283},{"$f":"D29/(CntyDataLinkPrior10YearEstimate!$N$124+CntyDataLinkPrior10YearEstimate!$Z$124)","v":0},null,{"$f":"CntyDataLinkPrior5YearEstimates!$N$124","v":16},{"$f":"CntyDataLinkPrior5YearEstimates!$O$124","v":27.459060435491963},{"$f":"H29/(CntyDataLinkPrior5YearEstimates!$N$124+CntyDataLinkPrior5YearEstimates!$Z$124)","v":4.8338368580060423E-2},null,{"$f":"CntyDataLink!$N$124","v":0},{"$f":"CntyDataLink!$O$124","v":22.627416997969522},{"$f":"L29/(CntyDataLink!$N$124+CntyDataLink!$Z$124)","v":0},null,{"$f":"StatisticallySignificantCalcs!$A117","v":"N"},{"$f":"StatisticallySignificantCalcs!$J$117","v":"N"}]
[]
[null,null,"Source: 2005-2009 American Community Survey  Table B1701",null,null,null,null,"Source: 2015-2019 American Community Survey  Table B1701",null,null,null,"Source: 2015-2019 American Community Survey  Table B1701"]
[]
[]
[]
[]
[]
[]
[]
[]
[]
[]
[]
[]
[]
[]
[]
[]
[]
[]
[null,null,null,{"$f":"D22","v":"2009 Inc below Poverty Level"},null,null,null,{"$f":"H22","v":"2014 Inc below Poverty Level"},null,null,null,{"$f":"L22","v":"2019 Inc below Poverty Level"},null,null,null,"Statistically Significant Change"]
[null,null,null,"Estimate","Margin of Error","% of Family Type in Poverty",null,"Estimate","Margin of Error ","% of Family Type in Poverty",null,"Estimate","Margin of Error ","% of Family Type in Poverty",null,"2009-2019","2014-2019"]
[]
[]
[null,null,"Total Households",{"$f":"CntyDataLinkPrior10YearEstimate!$AD$124","v":43},{"$f":"CntyDataLinkPrior10YearEstimate!$AE$124","v":67},{"$f":"$D54/($D54+$D68)","v":1.4791881664946681E-2},null,{"$f":"CntyDataLinkPrior5YearEstimates!$AD$124","v":91},{"$f":"CntyDataLinkPrior5YearEstimates!$AE$124","v":63},{"$f":"$H54/($H54+$H68)","v":2.8806584362139918E-2},null,{"$f":"CntyDataLink!$AD$124","v":84},{"$f":"CntyDataLink!$AE$124","v":88},{"$f":"$L54/($L54+$L68)","v":2.6456692913385826E-2},null,{"$f":"StatisticallySignificantCalcs!$A$94","v":"N"},{"$f":"StatisticallySignificantCalcs!$J$94","v":"N"}]
[null,null,"Family Households",{"$f":"CntyDataLinkPrior10YearEstimate!$AF$124","v":0},{"$f":"CntyDataLinkPrior10YearEstimate!$AG$124","v":114},{"$f":"$D55/($D55+$D69)","v":0},null,{"$f":"CntyDataLinkPrior5YearEstimates!$AF$124","v":12},{"$f":"CntyDataLinkPrior5YearEstimates!$AG$124","v":19},{"$f":"$H55/($H55+$H69)","v":4.9875311720698253E-3},null,{"$f":"CntyDataLink!$AF$124","v":84},{"$f":"CntyDataLink!$AG$124","v":88},{"$f":"$L55/($L55+$L69)","v":3.5205364626990782E-2},null,{"$f":"StatisticallySignificantCalcs!$A$95","v":"N"},{"$f":"StatisticallySignificantCalcs!$J$95","v":"N"}]
[null,null,"Married Couple Fam HH",{"$f":"CntyDataLinkPrior10YearEstimate!$AH$124","v":84},{"$f":"CntyDataLinkPrior10YearEstimate!$AI$124","v":88},{"$f":"$D56/($D56+$D70)","v":4.0133779264214048E-2},null,{"$f":"CntyDataLinkPrior5YearEstimates!$AH$124","v":0},{"$f":"CntyDataLinkPrior5YearEstimates!$AI$124","v":15},0,null,{"$f":"CntyDataLink!$AH$124","v":84},{"$f":"CntyDataLink!$AI$124","v":88},4.0133779264214048E-2,null,{"$f":"StatisticallySignificantCalcs!$A$96","v":"N"},{"$f":"StatisticallySignificantCalcs!$J$96","v":"N"}]
[null,null,"M C Fam HH w/Children",{"$f":"CntyDataLinkPrior10YearEstimate!$BN$124","v":0},{"$f":"CntyDataLinkPrior10YearEstimate!$BO$124","v":0},0,null,{"$f":"CntyDataLinkPrior5YearEstimates!$BN$124","v":0},{"$f":"CntyDataLinkPrior5YearEstimates!$BO$124","v":15},0,null,{"$f":"CntyDataLink!$BN$124","v":0},{"$f":"CntyDataLink!$BO$124","v":16},0,null,{"$f":"StatisticallySignificantCalcs!$A$97","v":"N"},{"$f":"StatisticallySignificantCalcs!$J$97","v":"N"}]
[null,null,"Male Head of Family HH ",{"$f":"CntyDataLinkPrior10YearEstimate!$AL$124","v":0},{"$f":"CntyDataLinkPrior10YearEstimate!$AM$124","v":114},0,null,{"$f":"CntyDataLinkPrior5YearEstimates!$AL$124","v":0},{"$f":"CntyDataLinkPrior5YearEstimates!$AM$124","v":15},0,null,{"$f":"CntyDataLink!$AL$124","v":0},{"$f":"CntyDataLink!$AM$124","v":16},0,null,{"$f":"StatisticallySignificantCalcs!$A$98","v":"N"},{"$f":"StatisticallySignificantCalcs!$J$98","v":"N"}]
[null,null,"Male Head of HH w/Children",{"$f":"CntyDataLinkPrior10YearEstimate!$BP$124","v":43},{"$f":"CntyDataLinkPrior10YearEstimate!$BQ$124","v":67},1.8647007805724199E-2,null,{"$f":"CntyDataLinkPrior5YearEstimates!$BP$124","v":0},{"$f":"CntyDataLinkPrior5YearEstimates!$BQ$124","v":15},0,null,{"$f":"CntyDataLink!$BP$124","v":0},{"$f":"CntyDataLink!$BQ$124","v":16},0,null,{"$f":"StatisticallySignificantCalcs!$A$99","v":"N"},{"$f":"StatisticallySignificantCalcs!$J$99","v":"N"}]
[null,null,"Female Head of Family HH ",{"$f":"CntyDataLinkPrior10YearEstimate!$AN$124","v":43},{"$f":"CntyDataLinkPrior10YearEstimate!$AO$124","v":67},0.18143459915611815,null,{"$f":"CntyDataLinkPrior5YearEstimates!$AN$124","v":79},{"$f":"CntyDataLinkPrior5YearEstimates!$AO$124","v":58},0.34347826086956523,null,{"$f":"CntyDataLink!$AN$124","v":0},{"$f":"CntyDataLink!$AO$124","v":16},0,null,{"$f":"StatisticallySignificantCalcs!$A$100","v":"N"},{"$f":"StatisticallySignificantCalcs!$J$100","v":"Y"}]
[null,null,"Female Head of HH w/Children",{"$f":"CntyDataLinkPrior10YearEstimate!$BR$124","v":0},{"$f":"CntyDataLinkPrior10YearEstimate!$BS$124","v":114},0,null,{"$f":"CntyDataLinkPrior5YearEstimates!$BR$124","v":65},{"$f":"CntyDataLinkPrior5YearEstimates!$BS$124","v":53},0.42483660130718953,null,{"$f":"CntyDataLink!$BR$124","v":0},{"$f":"CntyDataLink!$BS$124","v":16},0,null,{"$f":"StatisticallySignificantCalcs!$A$101","v":"N"},{"$f":"StatisticallySignificantCalcs!$J$101","v":"Y"}]
[null,null,"Non-Family HH ",{"$f":"CntyDataLinkPrior10YearEstimate!$AP$124","v":54},{"$f":"CntyDataLinkPrior10YearEstimate!$AQ$124","v":46},0.17419354838709677,null,{"$f":"CntyDataLinkPrior5YearEstimates!$AP$124","v":148},{"$f":"CntyDataLinkPrior5YearEstimates!$AQ$124","v":103},0.18004866180048662,null,{"$f":"CntyDataLink!$AP$124","v":131},{"$f":"CntyDataLink!$AQ$124","v":113},0.1423913043478261,null,{"$f":"StatisticallySignificantCalcs!$A$102","v":"N"},{"$f":"StatisticallySignificantCalcs!$J$102","v":"N"}]
[]
[null,"Data from the American Community Survey are estimates."]
[null,null,null,"2009  Inc at or Above Poverty Level",null,null,null,"2014 Inc at or Above Poverty Level",null,null,null,"2019 Inc at or above Poverty Level",null,null,null,"Statistically Significant Change"]
[null,null,"Households","Estimate","Margin of Error",null,null,"Estimate","Margin of Error",null,null,"Estimate","Margin of Error",null,null,"2009-2019","2014-2019"]
[]
[null,null,"Total Households",{"$f":"CntyDataLinkPrior10YearEstimate!$AV$124","v":2864},{"$f":"CntyDataLinkPrior10YearEstimate!$AW$124","v":200},{"$f":"$D68/($D68+$D54)","v":0.98520811833505328},null,{"$f":"CntyDataLinkPrior5YearEstimates!$AV$124","v":3068},{"$f":"CntyDataLinkPrior5YearEstimates!$AW$124","v":196},{"$f":"$H68/($H68+$H54)","v":0.9711934156378601},null,{"$f":"CntyDataLink!$AV$124","v":3091},{"$f":"CntyDataLink!$AW$124","v":254},{"$f":"$L68/($L68+$L54)","v":0.97354330708661418},null,{"$f":"StatisticallySignificantCalcs!$A$103","v":"N"},{"$f":"StatisticallySignificantCalcs!$J$103","v":"N"}]
[null,null,"Family Households",{"$f":"CntyDataLinkPrior10YearEstimate!$AX$124","v":2263},{"$f":"CntyDataLinkPrior10YearEstimate!$AY$124","v":169},{"$f":"$D69/($D69+$D55)","v":1},null,{"$f":"CntyDataLinkPrior5YearEstimates!$AX$124","v":2394},{"$f":"CntyDataLinkPrior5YearEstimates!$AY$124","v":181},{"$f":"$H69/($H69+$H55)","v":0.99501246882793015},null,{"$f":"CntyDataLink!$AX$124","v":2302},{"$f":"CntyDataLink!$AY$124","v":194},{"$f":"$L69/($L69+$L55)","v":0.96479463537300925},null,{"$f":"StatisticallySignificantCalcs!$A$104","v":"N"},{"$f":"StatisticallySignificantCalcs!$J$104","v":"N"}]
[null,null,"Married Couple Fam HH",{"$f":"CntyDataLinkPrior10YearEstimate!$AZ$124","v":2009},{"$f":"CntyDataLinkPrior10YearEstimate!$BA$124","v":215},{"$f":"$D70/($D70+$D56)","v":0.95986622073578598},null,{"$f":"CntyDataLinkPrior5YearEstimates!$AZ$124","v":2131},{"$f":"CntyDataLinkPrior5YearEstimates!$BA$124","v":205},{"$f":"$H70/($H70+$H56)","v":1},null,{"$f":"CntyDataLink!$AZ$124","v":2009},{"$f":"CntyDataLink!$BA$124","v":215},0.95986622073578598,null,{"$f":"StatisticallySignificantCalcs!$A$105","v":"N"},{"$f":"StatisticallySignificantCalcs!$J$105","v":"N"}]
[null,null,"M C Fam HH w/Children",{"$f":"CntyDataLinkPrior10YearEstimate!$BT$124","v":809},{"$f":"CntyDataLinkPrior10YearEstimate!$BU$124","v":132},1,null,{"$f":"CntyDataLinkPrior5YearEstimates!$BT$124","v":809},{"$f":"CntyDataLinkPrior5YearEstimates!$BU$124","v":132},1,null,{"$f":"CntyDataLink!$BT$124","v":965},{"$f":"CntyDataLink!$BU$124","v":176},1,null,{"$f":"StatisticallySignificantCalcs!$A$106","v":"N"},{"$f":"StatisticallySignificantCalcs!$J$106","v":"N"}]
[null,null,"Male Head of Family HH ",{"$f":"CntyDataLinkPrior10YearEstimate!$BD$124","v":96},{"$f":"CntyDataLinkPrior10YearEstimate!$BE$124","v":60},1,null,{"$f":"CntyDataLinkPrior5YearEstimates!$BD$124","v":112},{"$f":"CntyDataLinkPrior5YearEstimates!$BE$124","v":115},1,null,{"$f":"CntyDataLink!$BD$124","v":97},{"$f":"CntyDataLink!$BE$124","v":94},1,null,{"$f":"StatisticallySignificantCalcs!$A$107","v":"N"},{"$f":"StatisticallySignificantCalcs!$J$107","v":"N"}]
[null,null,"Male Head of HH w/Children",{"$f":"CntyDataLinkPrior10YearEstimate!$BV$124","v":2263},{"$f":"CntyDataLinkPrior10YearEstimate!$BW$124","v":169},0.98135299219427585,null,{"$f":"CntyDataLinkPrior5YearEstimates!$BV$124","v":81},{"$f":"CntyDataLinkPrior5YearEstimates!$BW$124","v":102},1,null,{"$f":"CntyDataLink!$BV$124","v":75},{"$f":"CntyDataLink!$BW$124","v":84},1,null,{"$f":"StatisticallySignificantCalcs!$A$108","v":"Y"},{"$f":"StatisticallySignificantCalcs!$J$108","v":"N"}]
[null,null,"Female Head of Family HH ",{"$f":"CntyDataLinkPrior10YearEstimate!$BF$124","v":194},{"$f":"CntyDataLinkPrior10YearEstimate!$BG$124","v":82},0.81856540084388185,null,{"$f":"CntyDataLinkPrior5YearEstimates!$BF$124","v":151},{"$f":"CntyDataLinkPrior5YearEstimates!$BG$124","v":98},0.65652173913043477,null,{"$f":"CntyDataLink!$BF$124","v":196},{"$f":"CntyDataLink!$BG$124","v":125},1,null,{"$f":"StatisticallySignificantCalcs!$A$109","v":"N"},{"$f":"StatisticallySignificantCalcs!$J$109","v":"N"}]
[null,null,"Female Head of HH w/Children",{"$f":"CntyDataLinkPrior10YearEstimate!$BX$124","v":789},{"$f":"CntyDataLinkPrior10YearEstimate!$BY$124","v":148},1,null,{"$f":"CntyDataLinkPrior5YearEstimates!$BX$124","v":88},{"$f":"CntyDataLinkPrior5YearEstimates!$BY$124","v":71},0.57516339869281041,null,{"$f":"CntyDataLink!$BX$124","v":77},{"$f":"CntyDataLink!$BY$124","v":80},1,null,{"$f":"StatisticallySignificantCalcs!$A$110","v":"Y"},{"$f":"StatisticallySignificantCalcs!$J$110","v":"N"}]
[null,null,"Non-Family HH ",{"$f":"CntyDataLinkPrior10YearEstimate!$BH$124","v":256},{"$f":"CntyDataLinkPrior10YearEstimate!$BI$124","v":114},0.82580645161290323,null,{"$f":"CntyDataLinkPrior5YearEstimates!$BH$124","v":674},{"$f":"CntyDataLinkPrior5YearEstimates!$BI$124","v":212},0.81995133819951338,null,{"$f":"CntyDataLink!$BH$124","v":789},{"$f":"CntyDataLink!$BI$124","v":271},0.8576086956521739,null,{"$f":"StatisticallySignificantCalcs!$A$111","v":"Y"},{"$f":"StatisticallySignificantCalcs!$J$111","v":"N"}]
[]
[null,null,"Source: 2005-2009 American Community Survey ",null,null,null,"Source: 2010-2014 American Community Survey",null,null,null,null,"Source: 2015-2019 American Community Survey"]
[]
[null,null,"Tables B17010; and B17017",null,null,null,"Tables B17010; and B17017",null,null,null,null,"Tables B17010; and B17017"]
[]
[null,null,"Data from the American Community Survey are estimates."]

{"sheet":"ACS_Table_ B17001","index":45,"n_rows":209,"n_cols":28,"rows_kept":209,"cut":false,"hidden":true,"merged":[]}
[null,"B17001. POVERTY STATUS IN THE PAST 12 MONTHS BY SEX BY AGE"]
[null,"Universe:  POPULATION FOR WHOM POVERTY STATUS IS DETERMINED"]
[null,"Data Set: 2015-2019 American Community Survey 5-Year Estimates"]
[]
[null,null,"Barrington",null,"Dover",null,"Durham",null,"Farmington",null,"Lee",null,"Madbury",null,"Middleton",null,"Milton",null,"New Durham",null,"Rochester",null,"Rollinsford",null,"Somersworth",null,"Strafford"]
[null,null,"Estimate","Margin Of Error","Estimate","Margin Of Error","Estimate","Margin Of Error","Estimate","Margin Of Error","Estimate","Margin Of Error","Estimate","Margin Of Error","Estimate","Margin Of Error","Estimate","Margin Of Error","Estimate","Margin Of Error","Estimate","Margin Of Error","Estimate","Margin Of Error","Estimate","Margin Of Error","Estimate","Margin Of Error"]
[null,"Total:",9063,31,30464,329,8514,403,6877,67,4484,19,1901,157,1783,159,4597,40,2680,31,30631,146,2567,21,11856,85,4140,18]
[null,"Income in the past 12 months below poverty level:",321,199,3030,589,2305,382,664,268,49,69,50,30,98,48,145,89,173,108,3185,703,172,84,1045,436,84,70]
[null,"Male:",142,106,1268,300,970,292,195,138,45,69,28,20,53,30,55,45,82,54,1316,355,58,40,502,221,11,16]
[null,"Under 5 years",0,16,159,88,0,18,0,16,0,11,0,11,5,7,0,11,0,11,103,107,0,11,21,33,0,11]
[null,"5 years",0,16,0,24,0,18,24,42,0,11,0,11,0,11,0,11,0,11,25,27,0,11,100,119,0,11]
[null,"6 to 11 years",0,16,66,52,10,13,19,31,0,11,0,11,8,9,0,11,15,20,129,102,0,11,18,28,0,11]
[null,"12 to 14 years",0,16,27,43,8,11,8,14,0,11,0,11,0,11,0,11,0,11,85,86,0,11,0,18,0,11]
[null,"15 years",0,16,0,24,0,18,0,16,0,11,0,11,0,11,12,17,15,22,0,24,0,11,0,18,0,11]
[null,"16 and 17 years",11,18,35,48,0,18,0,16,0,11,0,11,3,4,0,11,0,11,126,82,0,11,56,58,0,11]
[null,"18 to 24 years",0,16,371,167,821,295,0,16,0,11,4,6,6,8,0,11,5,9,104,77,14,17,25,42,0,11]
[null,"25 to 34 years",0,16,144,78,63,38,0,16,1,4,9,11,0,11,0,11,0,11,262,171,6,9,83,66,1,5]
[null,"35 to 44 years",17,27,57,53,10,11,39,50,0,11,3,5,4,6,2,5,14,14,116,93,6,8,54,59,0,11]
[null,"45 to 54 years",16,25,140,88,32,38,28,44,2,4,7,8,12,15,1,3,0,11,168,110,11,12,74,91,0,11]
[null,"55 to 64 years",67,88,166,90,7,12,0,16,0,11,0,11,9,8,23,35,33,32,92,67,21,32,41,40,9,15]
[null,"65 to 74 years",31,37,70,64,11,12,59,92,42,68,0,11,6,6,9,14,0,11,69,55,0,11,30,35,0,11]
[null,"75 years and over",0,16,33,36,8,13,18,29,0,11,5,5,0,11,8,13,0,11,37,28,0,11,0,18,1,3]
[null,"Female:",179,121,1762,412,1335,316,469,205,4,7,22,15,45,25,90,63,91,63,1869,446,114,56,543,286,73,67]
[null,"Under 5 years",0,16,126,88,6,9,0,16,0,11,0,11,4,6,0,11,0,11,89,78,0,11,110,121,0,11]
[null,"5 years",0,16,0,24,0,18,25,39,0,11,0,11,0,11,0,11,0,11,35,38,0,11,0,18,0,11]
[null,"6 to 11 years",0,16,145,94,0,18,43,60,0,11,0,11,0,11,0,11,0,11,52,59,6,9,0,18,0,11]
[null,"12 to 14 years",0,16,37,37,0,18,47,50,0,11,4,6,4,5,0,11,0,11,106,111,0,11,0,18,0,11]
[null,"15 years",0,16,5,9,33,49,24,35,0,11,0,11,0,11,0,11,7,10,20,31,0,11,0,18,0,11]
[null,"16 and 17 years",0,16,6,10,0,18,65,82,0,11,0,11,3,5,0,11,25,28,2,4,0,11,18,28,0,11]
[null,"18 to 24 years",52,61,452,240,1175,305,77,71,0,11,6,10,5,7,0,11,0,11,289,178,16,17,106,145,11,19]
[null,"25 to 34 years",0,16,344,129,40,26,37,48,1,3,3,6,13,11,35,31,8,12,144,77,5,7,153,129,0,11]
[null,"35 to 44 years",49,73,34,41,14,20,80,54,2,6,0,11,5,8,0,11,23,30,300,139,20,23,45,40,6,11]
[null,"45 to 54 years",0,16,237,135,0,18,18,29,0,11,3,4,4,6,10,15,16,17,195,118,0,11,21,34,40,59]
[null,"55 to 64 years",78,86,150,85,27,29,53,43,1,4,0,11,0,11,0,11,6,8,305,152,13,21,15,24,16,17]
[null,"65 to 74 years",0,16,100,77,1,3,0,16,0,11,3,5,3,4,9,14,6,8,175,110,5,8,18,30,0,11]
[null,"75 years and over",0,16,126,81,39,31,0,16,0,11,3,4,4,6,36,51,0,11,157,89,49,40,57,53,0,11]
[null,"Income in the past 12 months at or above poverty level:",8742,205,27434,642,6209,479,6213,285,4435,73,1851,163,1685,162,4452,99,2507,113,27446,712,2395,88,10811,457,4056,73]
[null,"Male:",4383,298,13186,475,3173,313,3448,275,2127,188,964,101,836,85,2332,144,1237,96,13903,462,1120,86,5349,407,1994,141]
[null,"Under 5 years",308,150,780,180,126,69,216,146,80,92,51,24,31,25,90,60,28,23,462,158,49,25,269,130,211,96]
[null,"5 years",69,73,150,103,35,27,78,94,0,11,7,9,3,5,54,56,32,26,96,75,14,14,43,48,14,24]
[null,"6 to 11 years",459,161,739,233,200,67,159,130,235,106,69,29,59,31,143,66,88,44,882,207,48,24,329,152,121,87]
[null,"12 to 14 years",254,151,381,161,101,50,96,59,96,64,59,34,41,19,59,46,25,20,748,175,46,32,215,117,24,25]
[null,"15 years",19,32,101,60,54,40,8,19,53,57,14,11,5,7,79,51,10,10,261,107,29,25,27,32,11,17]
[null,"16 and 17 years",114,93,201,80,50,28,81,58,36,52,45,26,7,7,47,38,63,29,412,98,3,6,102,63,8,11]
[null,"18 to 24 years",296,134,1080,265,536,186,366,160,63,69,90,45,66,31,146,81,81,41,1339,290,103,51,416,242,172,109]
[null,"25 to 34 years",472,171,2635,354,317,92,418,163,25,36,61,30,76,30,358,138,157,54,1885,289,145,39,1237,257,233,102]
[null,"35 to 44 years",682,150,1707,229,371,99,378,162,283,112,90,33,132,36,289,85,106,33,1783,243,128,36,589,167,249,71]
[null,"45 to 54 years",742,229,1723,229,363,84,510,166,531,149,232,56,148,38,261,89,243,55,1890,205,135,35,697,162,304,75]
[null,"55 to 64 years",602,154,1620,262,449,86,703,167,412,105,141,51,169,36,424,89,199,49,1878,244,264,55,826,176,361,67]
[null,"65 to 74 years",262,111,1252,202,395,89,265,111,246,95,63,23,67,24,275,91,153,47,1380,192,90,28,365,109,175,60]
[null,"75 years and over",104,79,817,166,176,61,170,79,67,47,42,23,32,21,107,57,52,34,887,149,66,35,234,74,111,41]
[null,"Female:",4359,286,14248,561,3036,260,2765,285,2308,182,887,103,849,104,2120,144,1270,98,13543,502,1275,87,5462,374,2062,147]
[null,"Under 5 years",199,141,861,249,134,61,105,74,50,45,61,39,49,27,143,68,57,37,560,165,50,30,253,134,102,54]
[null,"5 years",82,77,86,73,28,31,24,40,68,54,21,19,10,9,23,27,23,19,143,91,32,20,0,18,19,23]
[null,"6 to 11 years",370,201,966,204,239,87,141,118,115,79,73,28,64,37,98,66,65,39,798,201,123,74,364,119,142,70]
[null,"12 to 14 years",201,107,396,156,121,63,94,74,54,50,57,27,37,25,46,43,60,41,482,126,31,24,142,82,139,86]
[null,"15 years",26,42,250,127,17,19,43,45,20,31,13,10,0,11,23,28,21,17,149,68,10,15,117,92,77,64]
[null,"16 and 17 years",37,45,242,104,93,45,71,63,21,31,30,16,27,17,40,37,46,23,235,98,38,22,193,99,59,49]
[null,"18 to 24 years",402,187,1190,309,400,123,153,130,394,201,73,34,53,24,111,62,88,39,1043,263,108,56,188,128,106,64]
[null,"25 to 34 years",420,156,2786,301,188,69,350,123,86,62,57,25,94,32,278,84,104,63,1602,256,145,43,943,178,187,79]
[null,"35 to 44 years",743,107,1806,244,338,77,303,114,294,86,127,40,110,37,163,62,115,36,1697,235,88,33,618,159,210,66]
[null,"45 to 54 years",694,222,1677,235,466,82,509,139,393,151,150,41,127,48,354,112,295,50,2014,257,222,60,888,197,312,78]
[null,"55 to 64 years",781,172,1649,211,405,78,408,136,433,113,141,41,171,39,429,109,158,42,2067,211,223,43,887,155,344,80]
[null,"65 to 74 years",204,90,1387,203,343,71,275,110,273,111,48,20,70,23,280,101,192,49,1566,197,124,37,517,126,197,48]
[null,"75 years and over",200,132,952,203,264,68,289,125,107,79,36,20,37,17,132,68,46,26,1187,212,81,33,352,119,168,57]
[]
[]
[]
[null,"Calculated Table B17001. POVERTY STATUS IN THE PAST 12 MONTHS BY SEX BY AGE"]
[null,"Universe:  POPULATION FOR WHOM POVERTY STATUS IS DETERMINED"]
[null,"Data Set: 2015-2019 American Community Survey 5-Year Estimates"]
[]
[null,null,"Barrington",null,"Dover",null,"Durham",null,"Farmington",null,"Lee",null,"Madbury",null,"Middleton",null,"Milton",null,"New Durham",null,"Rochester",null,"Rollinsford",null,"Somersworth",null,"Strafford"]
[null,null,"Estimate","Margin Of Error","Estimate","Margin Of Error","Estimate","Margin Of Error","Estimate","Margin Of Error","Estimate","Margin Of Error","Estimate","Margin Of Error","Estimate","Margin Of Error","Estimate","Margin Of Error","Estimate","Margin Of Error","Estimate","Margin Of Error","Estimate","Margin Of Error","Estimate","Margin Of Error","Estimate","Margin Of Error"]
[null,"Total:",{"$f":"C7","v":9063},{"$f":"D7","v":31},30464,329,8514,403,6877,67,4484,19,1901,157,1783,159,4597,40,2680,31,30631,146,2567,21,{"$f":"Y7","v":11856},85,4140,18]
[null,"Income in the past 12 months below poverty level:",{"$f":"C8","v":321},{"$f":"D8","v":199},3030,589,2305,382,664,268,49,69,50,30,98,48,145,89,173,108,3185,703,172,84,1045,436,84,70]
[null,"Under 5 years",{"$f":"C10+C24","v":0},{"$f":"SQRT(((D10^2))+((D34^2)))","v":87.475710914516156},{"$f":"E10+E24","v":285},{"$f":"SQRT(((F10^2))+((F34^2)))","v":122.34786471369249},{"$f":"G10+G24","v":6},{"$f":"SQRT(((H10^2))+((H34^2)))","v":34.132096331752024},{"$f":"I10+I24","v":0},{"$f":"SQRT(((J10^2))+((J34^2)))","v":45.880278987817846},{"$f":"K10+K24","v":0},{"$f":"SQRT(((L10^2))+((L34^2)))","v":11.704699910719626},{"$f":"M10+M24","v":0},{"$f":"SQRT(((N10^2))+((N34^2)))","v":15.556349186104045},{"$f":"O10+O24","v":9},{"$f":"SQRT(((P10^2))+((P34^2)))","v":13.038404810405298},{"$f":"Q10+Q24","v":0},{"$f":"SQRT(((R10^2))+((R34^2)))","v":15.556349186104045},{"$f":"S10+S24","v":0},{"$f":"SQRT(((T10^2))+((T34^2)))","v":13.601470508735444},{"$f":"U10+U24","v":192},{"$f":"SQRT(((V10^2))+((V34^2)))","v":185.88437266214714},{"$f":"W10+W24","v":0},{"$f":"SQRT(((X10^2))+((X34^2)))","v":23.706539182259394},{"$f":"Y10+Y24","v":131},{"$f":"SQRT(((Z10^2))+((Z34^2)))","v":40.80441152620633},{"$f":"AA10+AA24","v":0},{"$f":"SQRT(((AB10^2))+((AB34^2)))","v":20.248456731316587}]
[null,"5 to 17 years",{"$f":"C11+C12+C13+C14+C15+C25+C26+C27+C28+C29","v":11},{"$f":"SQRT((D11^2)+(D12^2)+(D13^2)+(D14^2)+(D15^2)+(D25^2)+(D26^2)+(D27^2)+(D28)+(D29^2))","v":48.867166891482462},{"$f":"E11+E12+E13+E14+E15+E25+E26+E27+E28+E29","v":321},{"$f":"SQRT((F11^2)+(F12^2)+(F13^2)+(F14^2)+(F15^2)+(F25^2)+(F26^2)+(F27^2)+(F28)+(F29^2))","v":137.47363383572866},{"$f":"G11+G12+G13+G14+G15+G25+G26+G27+G28+G29","v":51},{"$f":"SQRT((H11^2)+(H12^2)+(H13^2)+(H14^2)+(H15^2)+(H25^2)+(H26^2)+(H27^2)+(H28)+(H29^2))","v":51.058789644878971},{"$f":"I11+I12+I13+I14+I15+I25+I26+I27+I28+I29","v":255},{"$f":"SQRT((J11^2)+(J12^2)+(J13^2)+(J14^2)+(J15^2)+(J25^2)+(J26^2)+(J27^2)+(J28)+(J29^2))","v":133.46535130886969},{"$f":"K11+K12+K13+K14+K15+K25+K26+K27+K28+K29","v":0},{"$f":"SQRT((L11^2)+(L12^2)+(L13^2)+(L14^2)+(L15^2)+(L25^2)+(L26^2)+(L27^2)+(L28)+(L29^2))","v":33.166247903554002},{"$f":"M11+M12+M13+M14+M15+M25+M26+M27+M28+M29","v":4},{"$f":"SQRT((N11^2)+(N12^2)+(N13^2)+(N14^2)+(N15^2)+(N25^2)+(N26^2)+(N27^2)+(N28)+(N29^2))","v":31.859064644147981},{"$f":"O11+O12+O13+O14+O15+O25+O26+O27+O28+O29","v":18},{"$f":"SQRT((P11^2)+(P12^2)+(P13^2)+(P14^2)+(P15^2)+(P25^2)+(P26^2)+(P27^2)+(P28)+(P29^2))","v":27.622454633866266},{"$f":"Q11+Q12+Q13+Q14+Q15+Q25+Q26+Q27+Q28+Q29","v":12},{"$f":"SQRT((R11^2)+(R12^2)+(R13^2)+(R14^2)+(R15^2)+(R25^2)+(R26^2)+(R27^2)+(R28)+(R29^2))","v":35.608987629529715},{"$f":"S11+S12+S13+S14+S15+S25+S26+S27+S28+S29","v":62},{"$f":"SQRT((T11^2)+(T12^2)+(T13^2)+(T14^2)+(T15^2)+(T25^2)+(T26^2)+(T27^2)+(T28)+(T29^2))","v":49.03060268852505},{"$f":"U11+U12+U13+U14+U15+U25+U26+U27+U28+U29","v":580},{"$f":"SQRT((V11^2)+(V12^2)+(V13^2)+(V14^2)+(V15^2)+(V25^2)+(V26^2)+(V27^2)+(V28)+(V29^2))","v":207.65837329614234},{"$f":"W11+W12+W13+W14+W15+W25+W26+W27+W28+W29","v":6},{"$f":"SQRT((X11^2)+(X12^2)+(X13^2)+(X14^2)+(X15^2)+(X25^2)+(X26^2)+(X27^2)+(X28)+(X29^2))","v":32.557641192199412},{"$f":"Y11+Y12+Y13+Y14+Y15+Y25+Y26+Y27+Y28+Y29","v":192},{"$f":"SQRT((Z11^2)+(Z12^2)+(Z13^2)+(Z14^2)+(Z15^2)+(Z25^2)+(Z26^2)+(Z27^2)+(Z28)+(Z29^2))","v":143.98263784220651},{"$f":"AA11+AA12+AA13+AA14+AA15+AA25+AA26+AA27+AA28+AA29","v":0},{"$f":"SQRT((AB11^2)+(AB12^2)+(AB13^2)+(AB14^2)+(AB15^2)+(AB25^2)+(AB26^2)+(AB27^2)+(AB28)+(AB29^2))","v":33.166247903554002}]
[null,"18 to 64 years",{"$f":"C16+C17+C18+C19+C20+C30+C31+C32+C33+C34","v":279},{"$f":"SQRT((D16^2)+(D17^2)+(D18^2)+(D19^2)+(D20^2)+(D30^2)+(D31^2)+(D32^2)+(D33^2)+(D34^2))","v":162.9969324864735},{"$f":"E16+E17+E18+E19+E20+E30+E31+E32+E33+E34","v":2095},{"$f":"SQRT((F16^2)+(F17^2)+(F18^2)+(F19^2)+(F20^2)+(F30^2)+(F31^2)+(F32^2)+(F33^2)+(F34^2))","v":392.42578916274095},{"$f":"G16+G17+G18+G19+G20+G30+G31+G32+G33+G34","v":2189},{"$f":"SQRT((H16^2)+(H17^2)+(H18^2)+(H19^2)+(H20^2)+(H30^2)+(H31^2)+(H32^2)+(H33^2)+(H34^2))","v":430.63209355550822},{"$f":"I16+I17+I18+I19+I20+I30+I31+I32+I33+I34","v":332},{"$f":"SQRT((J16^2)+(J17^2)+(J18^2)+(J19^2)+(J20^2)+(J30^2)+(J31^2)+(J32^2)+(J33^2)+(J34^2))","v":134.740491315714},{"$f":"K16+K17+K18+K19+K20+K30+K31+K32+K33+K34","v":7},{"$f":"SQRT((L16^2)+(L17^2)+(L18^2)+(L19^2)+(L20^2)+(L30^2)+(L31^2)+(L32^2)+(L33^2)+(L34^2))","v":26.419689627245813},{"$f":"M16+M17+M18+M19+M20+M30+M31+M32+M33+M34","v":35},{"$f":"SQRT((N16^2)+(N17^2)+(N18^2)+(N19^2)+(N20^2)+(N30^2)+(N31^2)+(N32^2)+(N33^2)+(N34^2))","v":27.586228448267445},{"$f":"O16+O17+O18+O19+O20+O30+O31+O32+O33+O34","v":58},{"$f":"SQRT((P16^2)+(P17^2)+(P18^2)+(P19^2)+(P20^2)+(P30^2)+(P31^2)+(P32^2)+(P33^2)+(P34^2))","v":30.016662039607269},{"$f":"Q16+Q17+Q18+Q19+Q20+Q30+Q31+Q32+Q33+Q34","v":71},{"$f":"SQRT((R16^2)+(R17^2)+(R18^2)+(R19^2)+(R20^2)+(R30^2)+(R31^2)+(R32^2)+(R33^2)+(R34^2))","v":55.226805085936306},{"$f":"S16+S17+S18+S19+S20+S30+S31+S32+S33+S34","v":105},{"$f":"SQRT((T16^2)+(T17^2)+(T18^2)+(T19^2)+(T20^2)+(T30^2)+(T31^2)+(T32^2)+(T33^2)+(T34^2))","v":55.326304774492215},{"$f":"U16+U17+U18+U19+U20+U30+U31+U32+U33+U34","v":1975},{"$f":"SQRT((V16^2)+(V17^2)+(V18^2)+(V19^2)+(V20^2)+(V30^2)+(V31^2)+(V32^2)+(V33^2)+(V34^2))","v":392.89947823839117},{"$f":"W16+W17+W18+W19+W20+W30+W31+W32+W33+W34","v":112},{"$f":"SQRT((X16^2)+(X17^2)+(X18^2)+(X19^2)+(X20^2)+(X30^2)+(X31^2)+(X32^2)+(X33^2)+(X34^2))","v":55.054518434003214},{"$f":"Y16+Y17+Y18+Y19+Y20+Y30+Y31+Y32+Y33+Y34","v":617},{"$f":"SQRT((Z16^2)+(Z17^2)+(Z18^2)+(Z19^2)+(Z20^2)+(Z30^2)+(Z31^2)+(Z32^2)+(Z33^2)+(Z34^2))","v":245.92681838303037},{"$f":"AA16+AA17+AA18+AA19+AA20+AA30+AA31+AA32+AA33+AA34","v":83},{"$f":"SQRT((AB16^2)+(AB17^2)+(AB18^2)+(AB19^2)+(AB20^2)+(AB30^2)+(AB31^2)+(AB32^2)+(AB33^2)+(AB34^2))","v":70.611613775638915}]
[null,"65 to 74 years",{"$f":"C21+C35","v":31},{"$f":"SQRT((D21^2)+(D35^2))","v":40.311288741492746},{"$f":"E21+E35","v":170},{"$f":"SQRT((F21^2)+(F35^2))","v":100.12492197250393},{"$f":"G21+G35","v":12},{"$f":"SQRT((H21^2)+(H35^2))","v":12.369316876852981},{"$f":"I21+I35","v":59},{"$f":"SQRT((J21^2)+(J35^2))","v":93.380940239430018},{"$f":"K21+K35","v":42},{"$f":"SQRT((L21^2)+(L35^2))","v":68.8839603971781},{"$f":"M21+M35","v":3},{"$f":"SQRT((N21^2)+(N35^2))","v":12.083045973594572},{"$f":"O21+O35","v":9},{"$f":"SQRT((P21^2)+(P35^2))","v":7.2111025509279782},{"$f":"Q21+Q35","v":18},{"$f":"SQRT((R21^2)+(R35^2))","v":19.798989873223331},{"$f":"S21+S35","v":6},{"$f":"SQRT((T21^2)+(T35^2))","v":13.601470508735444},{"$f":"U21+U35","v":244},{"$f":"SQRT((V21^2)+(V35^2))","v":122.98373876248843},{"$f":"W21+W35","v":5},{"$f":"SQRT((X21^2)+(X35^2))","v":13.601470508735444},{"$f":"Y21+Y35","v":48},{"$f":"SQRT((Z21^2)+(Z35^2))","v":46.097722286464439},{"$f":"AA21+AA35","v":0},{"$f":"SQRT((AB21^2)+(AB35^2))","v":15.556349186104045}]
[null,"75 years and over",{"$f":"C22+C36","v":0},{"$f":"SQRT((D22^2)+(D36^2))","v":22.627416997969522},{"$f":"E22+E36","v":159},{"$f":"SQRT((F22^2)+(F36^2))","v":88.639720216164946},{"$f":"G22+G36","v":47},{"$f":"SQRT((H22^2)+(H36^2))","v":33.61547262794322},{"$f":"I22+I36","v":18},{"$f":"SQRT((J22^2)+(J36^2))","v":33.120990323358392},{"$f":"K22+K36","v":0},{"$f":"SQRT((L22^2)+(L36^2))","v":15.556349186104045},{"$f":"M22+M36","v":8},{"$f":"SQRT((N22^2)+(N36^2))","v":6.4031242374328485},{"$f":"O22+O36","v":4},{"$f":"SQRT((P22^2)+(P36^2))","v":12.529964086141668},{"$f":"Q22+Q36","v":44},{"$f":"SQRT((R22^2)+(R36^2))","v":52.630789467763066},{"$f":"S22+S36","v":0},{"$f":"SQRT((T22^2)+(T36^2))","v":15.556349186104045},{"$f":"U22+U36","v":194},{"$f":"SQRT((V22^2)+(V36^2))","v":93.300589494386372},{"$f":"W22+W36","v":49},{"$f":"SQRT((X22^2)+(X36^2))","v":41.484937025383083},{"$f":"Y22+Y36","v":57},{"$f":"SQRT((Z22^2)+(Z36^2))","v":55.97320787662612},{"$f":"AA22+AA36","v":1},{"$f":"SQRT((AB22^2)+(AB36^2))","v":11.401754250991379}]
[null," Income in the past 12 months at or above poverty level ",{"$f":"C37","v":8742},205,27434,642,6209,479,6213,285,4435,73,1851,163,1685,162,4452,99,2507,113,27446,712,2395,88,{"$f":"Y37","v":10811},{"$f":"Z37","v":457},{"$f":"AA37","v":4056},{"$f":"AB37","v":73}]
[null,"Under 5 years",{"$f":"C39+C53","v":507},{"$f":"SQRT(((D39))^2+((D53))^2)","v":205.86646157157313},{"$f":"E39+E53","v":1641},{"$f":"SQRT(((F39))^2+((F53))^2)","v":307.24745727182187},{"$f":"G39+G53","v":260},{"$f":"SQRT(((H39))^2+((H53))^2)","v":92.097774131626011},{"$f":"I39+I53","v":321},{"$f":"SQRT(((J39))^2+((J53))^2)","v":163.68261972488099},{"$f":"K39+K53","v":130},{"$f":"SQRT(((L39))^2+((L53))^2)","v":102.41581909060729},{"$f":"M39+M53","v":112},{"$f":"SQRT(((N39))^2+((N53))^2)","v":45.793012567421243},{"$f":"O39+O53","v":80},{"$f":"SQRT(((P39))^2+((P53))^2)","v":36.796738985948195},{"$f":"Q39+Q53","v":233},{"$f":"SQRT(((R39))^2+((R53))^2)","v":90.686272390037075},{"$f":"S39+S53","v":85},{"$f":"SQRT(((T39))^2+((T53))^2)","v":43.56604182158393},{"$f":"U39+U53","v":1022},{"$f":"SQRT(((V39))^2+((V53))^2)","v":228.44911906155383},{"$f":"W39+W53","v":99},{"$f":"SQRT(((X39))^2+((X53))^2)","v":39.05124837953327},{"$f":"Y39+Y53","v":522},{"$f":"SQRT(((Z39))^2+((Z53))^2)","v":186.69761648183942},{"$f":"AA39+AA53","v":313},{"$f":"SQRT(((AB39))^2+((AB53))^2)","v":110.14535850411491}]
[null,"5 to 17 years",{"$f":"((C40)+(C41)+(C42)+(C43)+(C44)+(C54)+(C55)+(C56)+(C57)+(C58))","v":1631},{"$f":"SQRT((D40^2)+(D41^2)+(D42^2)+(D43^2)+(D44^2)+(D54^2)+(D55^2)+(D56^2)+(D57^2)+(D58^2))","v":353.96610007174417},{"$f":"((E40)+(E41)+(E42)+(E43)+(E44)+(E54)+(E55)+(E56)+(E57)+(E58))","v":3512},{"$f":"SQRT((F40^2)+(F41^2)+(F42^2)+(F43^2)+(F44^2)+(F54^2)+(F55^2)+(F56^2)+(F57^2)+(F58^2))","v":446.14459539481146},{"$f":"((G40)+(G41)+(G42)+(G43)+(G44)+(G54)+(G55)+(G56)+(G57)+(G58))","v":938},{"$f":"SQRT((H40^2)+(H41^2)+(H42^2)+(H43^2)+(H44^2)+(H54^2)+(H55^2)+(H56^2)+(H57^2)+(H58^2))","v":158.07276805319756},{"$f":"((I40)+(I41)+(I42)+(I43)+(I44)+(I54)+(I55)+(I56)+(I57)+(I58))","v":795},{"$f":"SQRT((J40^2)+(J41^2)+(J42^2)+(J43^2)+(J44^2)+(J54^2)+(J55^2)+(J56^2)+(J57^2)+(J58^2))","v":244.8182999695897},{"$f":"((K40)+(K41)+(K42)+(K43)+(K44)+(K54)+(K55)+(K56)+(K57)+(K58))","v":698},{"$f":"SQRT((L40^2)+(L41^2)+(L42^2)+(L43^2)+(L44^2)+(L54^2)+(L55^2)+(L56^2)+(L57^2)+(L58^2))","v":187.04277585621958},{"$f":"((M40)+(M41)+(M42)+(M43)+(M44)+(M54)+(M55)+(M56)+(M57)+(M58))","v":388},{"$f":"SQRT((N40^2)+(N41^2)+(N42^2)+(N43^2)+(N44^2)+(N54^2)+(N55^2)+(N56^2)+(N57^2)+(N58^2))","v":71.449282711584999},{"$f":"((O40)+(O41)+(O42)+(O43)+(O44)+(O54)+(O55)+(O56)+(O57)+(O58))","v":253},{"$f":"SQRT((P40^2)+(P41^2)+(P42^2)+(P43^2)+(P44^2)+(P54^2)+(P55^2)+(P56^2)+(P57^2)+(P58^2))","v":62.689712074629917},{"$f":"((Q40)+(Q41)+(Q42)+(Q43)+(Q44)+(Q54)+(Q55)+(Q56)+(Q57)+(Q58))","v":612},{"$f":"SQRT((R40^2)+(R41^2)+(R42^2)+(R43^2)+(R44^2)+(R54^2)+(R55^2)+(R56^2)+(R57^2)+(R58^2))","v":150.79787796915446},{"$f":"((S40)+(S41)+(S42)+(S43)+(S44)+(S54)+(S55)+(S56)+(S57)+(S58))","v":433},{"$f":"SQRT((T40^2)+(T41^2)+(T42^2)+(T43^2)+(T44^2)+(T54^2)+(T55^2)+(T56^2)+(T57^2)+(T58^2))","v":91.290744328217627},{"$f":"((U40)+(U41)+(U42)+(U43)+(U44)+(U54)+(U55)+(U56)+(U57)+(U58))","v":4206},{"$f":"SQRT((V40^2)+(V41^2)+(V42^2)+(V43^2)+(V44^2)+(V54^2)+(V55^2)+(V56^2)+(V57^2)+(V58^2))","v":423.01063816410101},{"$f":"((W40)+(W41)+(W42)+(W43)+(W44)+(W54)+(W55)+(W56)+(W57)+(W58))","v":374},{"$f":"SQRT((X40^2)+(X41^2)+(X42^2)+(X43^2)+(X44^2)+(X54^2)+(X55^2)+(X56^2)+(X57^2)+(X58^2))","v":98.071402559563708},{"$f":"((Y40)+(Y41)+(Y42)+(Y43)+(Y44)+(Y54)+(Y55)+(Y56)+(Y57)+(Y58))","v":1532},{"$f":"SQRT((Z40^2)+(Z41^2)+(Z42^2)+(Z43^2)+(Z44^2)+(Z54^2)+(Z55^2)+(Z56^2)+(Z57^2)+(Z58^2))","v":289.07438489080971},{"$f":"((AA40)+(AA41)+(AA42)+(AA43)+(AA44)+(AA54)+(AA55)+(AA56)+(AA57)+(AA58))","v":614},{"$f":"SQRT((AB40^2)+(AB41^2)+(AB42^2)+(AB43^2)+(AB44^2)+(AB54^2)+(AB55^2)+(AB56^2)+(AB57^2)+(AB58^2))","v":168.82535354620171}]
[null,"18 to 64 years",{"$f":"((C45)+(C46)+(C47)+(C48)+(C49)+(C59)+(C60)+(C61)+(C62)+(C63))","v":5834},{"$f":"SQRT((D45^2)+(D46^2)+(D47^2)+(D48^2)+(D49^2)+(D59^2)+(D60^2)+(D61^2)+(D62^2)+(D63^2))","v":543.57704145778632},{"$f":"((E45)+(E46)+(E47)+(E48)+(E49)+(E59)+(E60)+(E61)+(E62)+(E63))","v":17873},{"$f":"SQRT((F45^2)+(F46^2)+(F47^2)+(F48^2)+(F49^2)+(F59^2)+(F60^2)+(F61^2)+(F62^2)+(F63^2))","v":845.24020254599816},{"$f":"((G45)+(G46)+(G47)+(G48)+(G49)+(G59)+(G60)+(G61)+(G62)+(G63))","v":3833},{"$f":"SQRT((H45^2)+(H46^2)+(H47^2)+(H48^2)+(H49^2)+(H59^2)+(H60^2)+(H61^2)+(H62^2)+(H63^2))","v":325.48425461149424},{"$f":"((I45)+(I46)+(I47)+(I48)+(I49)+(I59)+(I60)+(I61)+(I62)+(I63))","v":4098},{"$f":"SQRT((J45^2)+(J46^2)+(J47^2)+(J48^2)+(J49^2)+(J59^2)+(J60^2)+(J61^2)+(J62^2)+(J63^2))","v":465.51047249229526},{"$f":"((K45)+(K46)+(K47)+(K48)+(K49)+(K59)+(K60)+(K61)+(K62)+(K63))","v":2914},{"$f":"SQRT((L45^2)+(L46^2)+(L47^2)+(L48^2)+(L49^2)+(L59^2)+(L60^2)+(L61^2)+(L62^2)+(L63^2))","v":372.87799613278338},{"$f":"((M45)+(M46)+(M47)+(M48)+(M49)+(M59)+(M60)+(M61)+(M62)+(M63))","v":1162},{"$f":"SQRT((N45^2)+(N46^2)+(N47^2)+(N48^2)+(N49^2)+(N59^2)+(N60^2)+(N61^2)+(N62^2)+(N63^2))","v":128.42896869476138},{"$f":"((O45)+(O46)+(O47)+(O48)+(O49)+(O59)+(O60)+(O61)+(O62)+(O63))","v":1146},{"$f":"SQRT((P45^2)+(P46^2)+(P47^2)+(P48^2)+(P49^2)+(P59^2)+(P60^2)+(P61^2)+(P62^2)+(P63^2))","v":112.65433857601757},{"$f":"((Q45)+(Q46)+(Q47)+(Q48)+(Q49)+(Q59)+(Q60)+(Q61)+(Q62)+(Q63))","v":2813},{"$f":"SQRT((R45^2)+(R46^2)+(R47^2)+(R48^2)+(R49^2)+(R59^2)+(R60^2)+(R61^2)+(R62^2)+(R63^2))","v":296.37982387470305},{"$f":"((S45)+(S46)+(S47)+(S48)+(S49)+(S59)+(S60)+(S61)+(S62)+(S63))","v":1546},{"$f":"SQRT((T45^2)+(T46^2)+(T47^2)+(T48^2)+(T49^2)+(T59^2)+(T60^2)+(T61^2)+(T62^2)+(T63^2))","v":148.86906999104951},{"$f":"((U45)+(U46)+(U47)+(U48)+(U49)+(U59)+(U60)+(U61)+(U62)+(U63))","v":17198},{"$f":"SQRT((V45^2)+(V46^2)+(V47^2)+(V48^2)+(V49^2)+(V59^2)+(V60^2)+(V61^2)+(V62^2)+(V63^2))","v":792.92559550061185},{"$f":"((W45)+(W46)+(W47)+(W48)+(W49)+(W59)+(W60)+(W61)+(W62)+(W63))","v":1561},{"$f":"SQRT((X45^2)+(X46^2)+(X47^2)+(X48^2)+(X49^2)+(X59^2)+(X60^2)+(X61^2)+(X62^2)+(X63^2))","v":145.57128837789409},{"$f":"((Y45)+(Y46)+(Y47)+(Y48)+(Y49)+(Y59)+(Y60)+(Y61)+(Y62)+(Y63))","v":7289},{"$f":"SQRT((Z45^2)+(Z46^2)+(Z47^2)+(Z48^2)+(Z49^2)+(Z59^2)+(Z60^2)+(Z61^2)+(Z62^2)+(Z63^2))","v":588.13688882776262},{"$f":"((AA45)+(AA46)+(AA47)+(AA48)+(AA49)+(AA59)+(AA60)+(AA61)+(AA62)+(AA63))","v":2478},{"$f":"SQRT((AB45^2)+(AB46^2)+(AB47^2)+(AB48^2)+(AB49^2)+(AB59^2)+(AB60^2)+(AB61^2)+(AB62^2)+(AB63^2))","v":254.19874114558473}]
[null,"65 to 74 years",{"$f":"((C50)+(C64))","v":466},{"$f":"SQRT((D50^2)+(D64^2))","v":142.90206436577463},{"$f":"((E50)+(E64))","v":2639},{"$f":"SQRT((F50^2)+(F64^2))","v":286.37911935055598},{"$f":"((G50)+(G64))","v":738},{"$f":"SQRT((H50^2)+(H64^2))","v":113.85077953180645},{"$f":"((I50)+(I64))","v":540},{"$f":"SQRT((J50^2)+(J64^2))","v":156.27219842313605},{"$f":"((K50)+(K64))","v":519},{"$f":"SQRT((L50^2)+(L64^2))","v":146.10270360263701},{"$f":"((M50)+(M64))","v":111},{"$f":"SQRT((N50^2)+(N64^2))","v":30.479501308256342},{"$f":"((O50)+(O64))","v":137},{"$f":"SQRT((P50^2)+(P64^2))","v":33.241540277189323},{"$f":"((Q50)+(Q64))","v":555},{"$f":"SQRT((R50^2)+(R64^2))","v":135.94851966829208},{"$f":"((S50)+(S64))","v":345},{"$f":"SQRT((T50^2)+(T64^2))","v":67.896980787071826},{"$f":"((U50)+(U64))","v":2946},{"$f":"SQRT((V50^2)+(V64^2))","v":275.08725888343139},{"$f":"((W50)+(W64))","v":214},{"$f":"SQRT((X50^2)+(X64^2))","v":46.400431032480725},{"$f":"((Y50)+(Y64))","v":882},{"$f":"SQRT((Z50^2)+(Z64^2))","v":166.60432167263849},{"$f":"((AA50)+(AA64))","v":372},{"$f":"SQRT((AB50^2)+(AB64^2))","v":76.837490849194182}]
[null,"75 years and over",{"$f":"((C51)+(C65))","v":304},{"$f":"SQRT((D51^2)+(D65^2))","v":153.83432646844463},{"$f":"((E51)+(E65))","v":1769},{"$f":"SQRT((F51^2)+(F65^2))","v":262.23081436017395},{"$f":"((G51)+(G65))","v":440},{"$f":"SQRT((H51^2)+(H65^2))","v":91.35097153287424},{"$f":"((I51)+(I65))","v":459},{"$f":"SQRT((J51^2)+(J65^2))","v":147.87156589419075},{"$f":"((K51)+(K65))","v":174},{"$f":"SQRT((L51^2)+(L65^2))","v":91.923881554251182},{"$f":"((M51)+(M65))","v":78},{"$f":"SQRT((N51^2)+(N65^2))","v":30.479501308256342},{"$f":"((O51)+(O65))","v":69},{"$f":"SQRT((P51^2)+(P65^2))","v":27.018512172212592},{"$f":"((Q51)+(Q65))","v":239},{"$f":"SQRT((R51^2)+(R65^2))","v":88.729927307532492},{"$f":"((S51)+(S65))","v":98},{"$f":"SQRT((T51^2)+(T65^2))","v":42.80186911806539},{"$f":"((U51)+(U65))","v":2074},{"$f":"SQRT((V51^2)+(V65^2))","v":259.12352266824405},{"$f":"((W51)+(W65))","v":147},{"$f":"SQRT((X51^2)+(X65^2))","v":48.104053883222775},{"$f":"((Y51)+(Y65))","v":586},{"$f":"SQRT((Z51^2)+(Z65^2))","v":140.13208055259867},{"$f":"((AA51)+(AA65))","v":279},{"$f":"SQRT((AB51^2)+(AB65^2))","v":70.213958726167832}]
[]
[]
[]
[]
[]
[]
[]
[]
[]
[]
[]
[]
[]
[]
[]
[]
[]
[]
[]
[]
[]
[]
[]
[]
[]
[]
[]
[]
[]
[]
[]
[]
[]
[]
[]
[]
[]
[]
[]
[]
[]
[]
[null,"Calculated Table B17001. POVERTY STATUS IN THE PAST 12 MONTHS BY SEX BY AGE"]
[null,"Universe:  POPULATION FOR WHOM POVERTY STATUS IS DETERMINED"]
[null,"Data Set: 2010-2014 American Community Survey 5-Year Estimates"]
[]
[null,null,"Barrington",null,"Dover",null,"Durham",null,"Farmington",null,"Lee",null,"Madbury",null,"Middleton",null,"Milton",null,"New Durham",null,"Rochester",null,"Rollinsford",null,"Somersworth",null,"Strafford"]
[null,null,"Estimate","Margin Of Error","Estimate","Margin Of Error","Estimate","Margin Of Error","Estimate","Margin Of Error","Estimate","Margin Of Error","Estimate","Margin Of Error","Estimate","Margin Of Error","Estimate","Margin Of Error","Estimate","Margin Of Error","Estimate","Margin Of Error","Estimate","Margin Of Error","Estimate","Margin Of Error","Estimate","Margin Of Error"]
[null,"Total:",8669,37,29476,338,8222,615,6805,46,4285,97,2000,169,1563,166,4572,41,2648,16,29611,143,2528,18,11722,53,3998,39]
[null,"Income in the past 12 months below poverty level:",546,228,2729,629,1808,360,914,415,112,91,159,103,205,115,372,129,147,87,4006,647,134,74,1775,438,75,39]
[null,"Under 5 years",10,36.891733491393431,289,93.744333162063725,6,35.355339059327378,0,42.720018726587654,0,51.195702944680818,0,12.529964086141668,14,18.973665961010276,0,15.556349186104045,0,18.601075237738275,649,203.05910469614506,15,23.53720459187964,152,102.59142264341595,0,14.866068747318506]
[null,"5 to 17 years",102,96.881370758262918,326,150.55563755635322,0,51.166395221864128,248,139.48476619330157,25,41.809089920733747,11,29.017236257093817,87,57.810033731178535,82,51.497572758334933,64,38.288379438153292,662,184.67268341582087,27,34.278273002005221,386,156.8948692596415,7,33.166247903554002]
[null,"18 to 64 years",418,170.98830369355676,1929,379.60242359605661,1747,432.47890121946989,644,269.69983314789056,70,70.689461732283689,145,80.454956342042721,98,35.749125863438955,285,115.63304026099115,76,36.359317925395686,2270,351.87355683540642,92,47.021271782034987,1154,265.87214972614186,55,39.395431207184416]
[null,"65 to 74 years",0,21.213203435596427,68,47.201694884823787,55,60.016664352494629,13,25.80697580112788,17,30.083217912982647,0,15.556349186104045,6,6.4031242374328485,5,13.601470508735444,0,15.556349186104045,191,108.52188719332152,0,15.556349186104045,67,48.60041152089147,10,19.416487838947599]
[null,"75 years and over",16,27.459060435491963,117,67.601775124622279,0,24.041630560342615,9,21.213203435596427,0,15.556349186104045,3,12.083045973594572,0,15.556349186104045,0,15.556349186104045,7,14.866068747318506,234,99.744674043279119,0,15.556349186104045,16,31.064449134018133,3,12.529964086141668]
[null," Income in the past 12 months at or above poverty level ",8123,237,26747,686,6414,542,5891,416,4173,129,1841,159,1358,163,4200,138,2501,92,25605,652,2394,73,9947,441,3923,58]
[null,"Under 5 years",590,216.00462958001617,1347,240.8318915758459,376,124.03628501370073,287,129.37542270462347,95,69.31089380465383,104,39.962482405376171,76,38.078865529319543,218,87.658428003244509,150,51.884487084291386,1084,252.74493071078598,248,97.529482721892876,658,176.77669529663689,143,82.758685344802331]
[null,"5 to 17 years",1183,268.04477237954109,4210,450.3642969863397,1174,200.14994379214798,882,223.66939889041595,780,214.53204888780604,449,94.063808130438773,184,46.61544808322666,723,155.52491761772453,398,99.257241549420471,3312,409.392232461731,382,78.255990186055399,1447,278.41695350678629,778,150.1565849371915]
[null,"18 to 64 years",5410,486.60661729984724,17665,756.6353150626793,3861,336.32722161609223,3940,473.67710520986765,2662,331.39402529315464,1113,128.7944098165755,924,97.252249331313664,2643,270.22398117117586,1607,153.03921066184313,16994,709.25242333036829,1440,154.57684173251826,6575,513.83849602769158,2466,247.85277888294897]
[null,"65 to 74 years",625,166.58031096140985,1773,231.22499864850255,505,91.214034007931033,395,119.81652640600127,394,138.97481786280562,123,40.459856648287818,132,36.069377593742864,242,73.430239002743278,184,52.345009313209601,2694,245.70307283385773,200,40.36087214122113,676,149.21461054467824,362,88.836929258051242]
[null,"75 years and over",315,136.85759021698431,1752,239.95416228938393,498,102.34256201600583,387,168.40427548016706,242,140.03570973148243,52,26.40075756488817,42,19.209372712298546,374,102.39628899525607,162,46.669047558312137,1521,219.24415613648634,124,40.36087214122113,591,132.13629327327143,174,71.175838597096984]
[]
[]
[]
[]
[]
[]
[]
[]
[]
[]
[]
[]
[]
[]
[]
[]
[]
[]
[]
[]
[]
[]
[]
[]
[]
[]
[]
[]
[]
[]
[]
[]
[]
[]
[]
[]
[]
[]
[]
[]
[]
[]
[null,"Calculated Table B17001. POVERTY STATUS IN THE PAST 12 MONTHS BY SEX BY AGE"]
[null,"Universe:  POPULATION FOR WHOM POVERTY STATUS IS DETERMINED"]
[null,"Data Set: 2005-2009 American Community Survey 5-Year Estimates"]
[]
[null,null,"Barrington",null,"Dover",null,"Durham",null,"Farmington",null,"Lee",null,"Madbury",null,"Middleton",null,"Milton",null,"New Durham",null,"Rochester",null,"Rollinsford",null,"Somersworth",null,"Strafford"]
[null,null,"Estimate","Margin Of Error","Estimate","Margin Of Error","Estimate","Margin Of Error","Estimate","Margin Of Error","Estimate","Margin Of Error","Estimate","Margin Of Error","Estimate","Margin Of Error","Estimate","Margin Of Error","Estimate","Margin Of Error","Estimate","Margin Of Error","Estimate","Margin Of Error","Estimate","Margin Of Error","Estimate","Margin Of Error"]
[null,"Total:",8389,19,27672,695,8921,598,6598,49,4431,28,1857,153,1624,157,4484,36,2516,18,30160,280,2622,38,11769,93,3991,50]
[null,"Income in the past 12 months below poverty level:",349,274,2482,538,2727,595,1136,381,475,176,112,102,119,66,446,227,104,65,3953,792,367,195,1087,288,206,138]
[null,"Under 5 years",0,120.48651376813922,150,86.833173384369644,0,161.22034611053283,181,77.025969646606853,25,161.22034611053283,0,161.22034611053283,3,8.6023252670426267,12,115.41230437002807,0,117.63077828527702,558,148.55638660118251,80,137.01094846763161,102,110.07270324653611,0,115.11733144926528]
[null,"5 to 17 years",80,314.08756740756229,302,191.2929690291831,113,241.21152542944543,76,309.98387054813031,59,260.50143953536991,3,322.67320930005951,10,323.01393158809731,139,243.25089927891327,31,256.51900514386841,1095,348.55415648073972,48,304.12497431154844,94,203.28797308252155,28,280.70625215694787]
[null,"18 to 64 years",269,173.55978796944873,1766,462.42512907496712,2595,592.92073669251943,656,217.22338732282029,318,279.88569095257441,102,273.77180278472798,93,43.208795400936602,295,269.61824864055473,50,281.58657638459971,2096,398.77938763180828,194,216.10876891047249,666,206.76073128135332,169,246.92711475251153]
[null,"65 to 74 years",0,161.22034611053283,122,85,8,114.52947218947619,60,48.332183894378289,33,126.14277624977183,4,5.6568542494923806,9,114.28035701729323,0,161.22034611053283,23,27.513632984395208,53,38.897300677553446,37,24.083189157584592,73,47.885279575251516,9,114.9826073804208]
[null,"75 years and over",0,161.22034611053283,142,70.178344238091,11,115.41230437002807,163,132.98120167903431,40,46.669047558312137,3,114.10959644131601,4,114.10959644131601,0,161.22034611053283,0,161.22034611053283,151,80.802227692063042,8,114.62983904725679,152,100.31948963187563,0,161.22034611053283]
[null," Income in the past 12 months at or above poverty level ",8040,278,25190,826,6194,664,5462,377,3956,175,1745,162,1505,150,4038,225,2412,67,26207,838,2255,201,10682,300,3785,147]
[null,"Under 5 years",632,161.52399202595259,1806,287.2507615307573,261,72.124891681027847,235,92.655275079188016,170,79.025312400521386,164,57.245087125446844,72,25.495097567963924,181,82.152297594163485,110,50.119856344566671,1147,238.67341703675339,93,38.470768123342687,798,217.41435095227729,201,112.89375536317321]
[null,"5 to 17 years",1763,263.02851556437753,3586,381.57437020848243,989,148.55638660118251,925,210.2189334955346,619,143.00349646075091,364,140.49199265438583,261,58.796258384356399,785,205.32169880458324,463,147.68547660484427,3842,405.75485209668165,412,153.53501229361333,1603,267.5537329210714,774,214.97441708259149]
[null,"18 to 64 years",5100,413.51058027576511,16922,738.72389970813856,4033,424.71637594988022,3429,366.50511592609456,2800,297.0454510676775,1091,133.00751858447703,1002,104.4030650891055,2660,289.59972375677432,1594,165.23619458217985,17419,696.49407750532953,1388,154.59301407243473,6994,514.88736632393693,2462,266.22171211229187]
[null,"65 to 74 years",358,92.021736562618727,1498,186.07794065928394,437,82.073138114732771,322,115.88356225108029,213,68.600291544569984,85,28.0178514522438,118,31.144823004794873,221,111.80339887498948,110,46.043457732885351,2201,198.01010075246163,223,60.141499815019579,672,139.60300856356929,237,86.977008456258133]
[null,"75 years and over",187,89.872131386765275,1378,204.12986062798359,474,100.44899203078147,551,252.42028444639706,154,70.455659815234142,41,19.416487838947599,52,20.518284528683193,191,92.649878575203758,135,48.270073544588683,1598,221.46105752479374,139,60.307545133258408,615,184.76471524617463,111,58.412327466040935]

{"sheet":"ACS_Table_B17010","index":46,"n_rows":165,"n_cols":28,"rows_kept":165,"cut":false,"hidden":true,"merged":[]}
[null,"B17010. POVERTY STATUS IN THE PAST 12 MONTHS OF FAMILIES BY FAMILY TYPE BY PRESENCE OF RELATED CHILDREN UNDER 18 YEARS"]
[null,"Universe: FAMILIES"]
[null,"Data Set: 2015-2019 American Community Survey 5-Year Estimates"]
[]
[null,null,"Barrington",null,"Dover",null,"Durham",null,"Farmington",null,"Lee",null,"Madbury",null,"Middleton",null,"Milton",null,"New Durham",null,"Rochester",null,"Rollinsford",null,"Somersworth",null,"Strafford"]
[null,null,"Estimate","Margin Of Error","Estimate","Margin Of Error","Estimate","Margin Of Error","Estimate","Margin Of Error","Estimate","Margin Of Error","Estimate","Margin Of Error","Estimate","Margin Of Error","Estimate","Margin Of Error","Estimate","Margin Of Error","Estimate","Margin Of Error","Estimate","Margin Of Error","Estimate","Margin Of Error","Estimate","Margin Of Error"]
[null,"Total:",2447,204,7429,322,1683,152,1798,222,1271,151,537,47,480,54,1366,102,749,53,8196,317,733,47,3318,208,1203,80]
[null,"Income in the past 12 months below poverty level:",66,85,419,153,56,48,90,59,0,11,5,5,15,13,9,15,22,19,611,196,32,33,196,156,8,14]
[null,"Married-couple family:",66,85,99,79,52,46,22,36,0,11,3,5,3,4,9,15,12,13,144,96,11,11,37,42,8,14]
[null,"With related children under 18 years:",0,16,25,29,30,41,22,36,0,11,3,5,0,11,0,11,6,9,86,86,6,8,37,42,0,11]
[null,"Under 5 years only",0,16,0,24,6,9,0,16,0,11,0,11,0,11,0,11,0,11,48,77,0,11,0,18,0,11]
[null,"Under 5 years and 5 to 17 years",0,16,0,24,0,18,0,16,0,11,0,11,0,11,0,11,0,11,0,24,0,11,37,42,0,11]
[null,"5 to 17 years only",0,16,25,29,24,36,22,36,0,11,3,5,0,11,0,11,6,9,38,44,6,8,0,18,0,11]
[null,"No related children under 18 years",66,85,74,71,22,20,0,16,0,11,0,11,3,4,9,15,6,10,58,42,5,7,0,18,8,14]
[null,"Other family:",0,16,320,128,4,8,68,47,0,11,2,3,12,12,0,11,10,14,467,185,21,32,159,155,0,11]
[null,"Male householder, no wife present:",0,16,84,79,0,18,0,16,0,11,2,3,3,5,0,11,0,11,146,107,0,11,0,18,0,11]
[null,"With related children under 18 years:",0,16,65,74,0,18,0,16,0,11,0,11,3,5,0,11,0,11,88,81,0,11,0,18,0,11]
[null,"Under 5 years only",0,16,19,29,0,18,0,16,0,11,0,11,0,11,0,11,0,11,75,79,0,11,0,18,0,11]
[null,"Under 5 years and 5 to 17 years",0,16,0,24,0,18,0,16,0,11,0,11,0,11,0,11,0,11,13,21,0,11,0,18,0,11]
[null,"5 to 17 years only",0,16,46,69,0,18,0,16,0,11,0,11,3,5,0,11,0,11,0,24,0,11,0,18,0,11]
[null,"No related children under 18 years",0,16,19,31,0,18,0,16,0,11,2,3,0,11,0,11,0,11,58,74,0,11,0,18,0,11]
[null,"Female householder, no husband present:",0,16,236,112,4,8,68,47,0,11,0,11,9,10,0,11,10,14,321,143,21,32,159,155,0,11]
[null,"With related children under 18 years:",0,16,201,101,4,8,68,47,0,11,0,11,9,10,0,11,10,14,302,140,0,11,144,152,0,11]
[null,"Under 5 years only",0,16,33,44,0,18,0,16,0,11,0,11,0,11,0,11,0,11,0,24,0,11,0,18,0,11]
[null,"Under 5 years and 5 to 17 years",0,16,138,81,0,18,0,16,0,11,0,11,4,6,0,11,0,11,41,47,0,11,127,149,0,11]
[null,"5 to 17 years only",0,16,30,29,4,8,68,47,0,11,0,11,5,8,0,11,10,14,261,141,0,11,17,29,0,11]
[null,"No related children under 18 years",0,16,35,42,0,18,0,16,0,11,0,11,0,11,0,11,0,11,19,32,21,32,15,24,0,11]
[null,"Income in the past 12 months at or above poverty level:",2381,200,7010,367,1627,148,1708,220,1271,151,532,48,465,57,1357,102,727,57,7585,359,701,56,3122,235,1195,80]
[null,"Married-couple family:",1978,206,5649,384,1428,144,1406,232,1065,154,456,50,402,56,1197,117,654,61,6040,329,593,56,2351,276,1045,116]
[null,"With related children under 18 years:",944,172,2168,226,570,92,540,165,440,103,217,52,150,39,377,76,200,39,1948,236,212,32,936,196,358,80]
[null,"Under 5 years only",183,121,703,196,109,56,131,128,38,42,34,19,25,21,69,54,21,18,250,124,45,17,280,137,90,68]
[null,"Under 5 years and 5 to 17 years",112,93,304,140,73,35,102,99,56,49,31,21,22,19,84,53,40,31,332,126,19,15,102,76,74,48]
[null,"5 to 17 years only",649,193,1161,237,388,72,307,115,346,117,152,43,103,34,224,87,139,43,1366,197,148,34,554,157,194,68]
[null,"No related children under 18 years",1034,178,3481,352,858,120,866,198,625,152,239,50,252,53,820,126,454,64,4092,312,381,60,1415,221,687,123]
[null,"Other family:",403,153,1361,298,199,81,302,144,206,108,76,33,63,28,160,79,73,32,1545,287,108,37,771,249,150,82]
[null,"Male householder, no wife present:",67,54,537,190,113,74,206,130,14,22,33,19,35,24,77,57,13,13,695,202,35,18,303,157,78,64]
[null,"With related children under 18 years:",22,36,275,153,71,63,143,121,14,22,10,10,29,22,48,41,8,11,420,130,18,16,167,107,51,56]
[null,"Under 5 years only",0,16,25,32,0,18,30,48,0,11,0,11,7,7,0,11,0,11,92,60,12,14,47,57,35,53]
[null,"Under 5 years and 5 to 17 years",0,16,0,24,0,18,0,16,0,11,0,11,0,11,0,11,0,11,0,24,0,11,0,18,7,11]
[null,"5 to 17 years only",22,36,250,148,71,63,113,110,14,22,10,10,22,23,48,41,8,11,328,121,6,8,120,104,9,13]
[null,"No related children under 18 years",45,52,262,125,42,40,63,50,0,11,23,17,6,6,29,41,5,7,275,141,17,12,136,115,27,28]
[null,"Female householder, no husband present:",336,140,824,230,86,42,96,80,192,105,43,26,28,16,83,58,60,30,850,219,73,33,468,166,72,50]
[null,"With related children under 18 years:",218,134,500,181,49,37,56,62,116,103,30,23,10,10,27,25,60,30,546,199,35,22,208,102,37,44]
[null,"Under 5 years only",0,16,85,71,3,5,18,30,0,11,0,11,0,11,9,15,0,11,116,87,0,11,23,38,0,11]
[null,"Under 5 years and 5 to 17 years",54,59,111,111,0,18,0,16,0,11,0,11,3,7,0,11,0,11,8,14,0,11,37,44,0,11]
[null,"5 to 17 years only",164,113,304,123,46,36,38,44,116,103,30,23,7,7,18,20,60,30,422,176,35,22,148,82,37,44]
[null,"No related children under 18 years",118,77,324,133,37,24,40,46,76,50,13,11,18,13,56,52,0,11,304,110,38,25,260,131,35,27]
[]
[]
[]
[]
[]
[]
[]
[]
[]
[]
[]
[]
[null,"B17010. POVERTY STATUS IN THE PAST 12 MONTHS OF FAMILIES BY FAMILY TYPE BY PRESENCE OF RELATED CHILDREN UNDER 18 YEARS"]
[null,"Universe: FAMILIES"]
[null,"Data Set: 2010-2014 American Community Survey 5-Year Estimates"]
[]
[null,null,"Barrington",null,"Dover",null,"Durham",null,"Farmington",null,"Lee",null,"Madbury",null,"Middleton",null,"Milton",null,"New Durham",null,"Rochester",null,"Rollinsford",null,"Somersworth",null,"Strafford"]
[null,null,"Estimate","Margin Of Error","Estimate","Margin Of Error","Estimate","Margin Of Error","Estimate","Margin Of Error","Estimate","Margin Of Error","Estimate","Margin Of Error","Estimate","Margin Of Error","Estimate","Margin Of Error","Estimate","Margin Of Error","Estimate","Margin Of Error","Estimate","Margin Of Error","Estimate","Margin Of Error","Estimate","Margin Of Error"]
[null,"Total:",2485,177,7290,365,1812,161,1797,164,1189,130,503,54,416,49,1267,98,750,53,7480,268,713,56,3178,200,1128,86]
[null,"Income in the past 12 months below poverty level:",91,63,445,191,24,18,138,109,11,19,11,10,52,29,51,37,36,24,1000,189,36,29,379,159,7,10]
[null,"Married-couple family:",12,19,134,92,24,18,138,109,0,11,0,11,14,9,0,11,12,13,245,121,10,12,140,111,0,11]
[null,"With related children under 18 years:",0,15,62,56,5,8,138,109,0,11,0,11,3,5,0,11,0,11,116,94,7,10,99,93,0,11]
[null,"Under 5 years only",0,15,18,19,5,8,0,15,0,11,0,11,0,11,0,11,0,11,52,57,0,11,12,22,0,11]
[null,"Under 5 years and 5 to 17 years",0,15,29,45,0,17,0,15,0,11,0,11,0,11,0,11,0,11,45,69,0,11,0,17,0,11]
[null,"5 to 17 years only",0,15,15,27,0,17,138,109,0,11,0,11,3,5,0,11,0,11,19,27,7,10,87,88,0,11]
[null,"No related children under 18 years",12,19,72,72,19,16,0,15,0,11,0,11,11,9,0,11,12,13,129,72,3,5,41,62,0,11]
[null,"Other family:",79,58,311,153,0,17,0,15,11,19,11,10,38,28,51,37,24,20,755,161,26,27,239,122,7,10]
[null,"Male householder, no wife present:",0,15,103,95,0,17,0,15,11,19,2,4,3,4,0,11,8,9,133,73,0,11,41,37,0,11]
[null,"With related children under 18 years:",0,15,103,95,0,17,0,15,11,19,0,11,0,11,0,11,8,9,133,73,0,11,41,37,0,11]
[null,"Under 5 years only",0,15,56,87,0,17,0,15,0,11,0,11,0,11,0,11,0,11,31,36,0,11,25,29,0,11]
[null,"Under 5 years and 5 to 17 years",0,15,0,23,0,17,0,15,0,11,0,11,0,11,0,11,0,11,0,20,0,11,0,17,0,11]
[null,"5 to 17 years only",0,15,47,41,0,17,0,15,11,19,0,11,0,11,0,11,8,9,102,70,0,11,16,25,0,11]
[null,"No related children under 18 years",0,15,0,23,0,17,0,15,0,11,2,4,3,4,0,11,0,11,0,20,0,11,0,17,0,11]
[null,"Female householder, no husband present:",79,58,208,116,0,17,0,15,0,11,9,10,35,28,51,37,16,20,622,162,26,27,198,113,7,10]
[null,"With related children under 18 years:",65,53,193,112,0,17,0,15,0,11,9,10,35,28,42,34,16,20,559,165,26,27,188,111,7,10]
[null,"Under 5 years only",0,15,81,62,0,17,0,15,0,11,0,11,0,11,0,11,0,11,250,137,13,20,60,57,0,11]
[null,"Under 5 years and 5 to 17 years",9,18,75,81,0,17,0,15,0,11,0,11,17,20,0,11,0,11,73,65,0,11,53,68,0,11]
[null,"5 to 17 years only",56,52,37,40,0,17,0,15,0,11,9,10,18,22,42,34,16,20,236,112,13,14,75,60,7,10]
[null,"No related children under 18 years",14,24,15,25,0,17,0,15,0,11,0,11,0,11,9,15,0,11,63,48,0,11,10,17,0,11]
[null,"Income in the past 12 months at or above poverty level:",2394,181,6845,336,1788,162,1659,186,1178,128,492,53,364,53,1216,93,714,62,6480,322,677,60,2799,226,1121,87]
[null,"Married-couple family:",2131,205,5281,321,1609,166,1237,208,1072,146,460,53,288,48,867,114,645,60,4843,342,558,57,2300,227,1044,103]
[null,"With related children under 18 years:",809,132,2214,193,697,107,350,105,431,98,254,44,109,27,342,84,252,48,1748,227,272,64,1012,196,433,62]
[null,"Under 5 years only",181,113,457,134,142,89,75,58,52,58,26,18,26,20,44,32,45,26,334,128,69,36,372,196,75,55]
[null,"Under 5 years and 5 to 17 years",148,90,349,135,141,66,66,47,29,39,43,26,12,9,62,37,53,30,235,89,74,50,105,71,27,29]
[null,"5 to 17 years only",480,145,1408,188,414,95,209,109,350,89,185,44,71,24,236,73,154,45,1179,203,129,40,535,139,331,72]
[null,"No related children under 18 years",1322,218,3067,321,912,125,887,176,641,156,206,56,179,39,525,101,393,70,3095,289,286,55,1288,182,611,116]
[null,"Other family:",263,157,1564,237,179,69,422,186,106,68,32,19,76,33,349,98,69,35,1637,279,119,45,499,152,77,48]
[null,"Male householder, no wife present:",112,115,457,147,60,53,143,110,20,31,15,12,35,22,212,77,34,26,568,196,33,26,154,94,25,40]
[null,"With related children under 18 years:",81,102,329,132,60,53,36,45,0,11,11,11,23,19,113,61,14,14,412,171,33,26,109,77,25,40]
[null,"Under 5 years only",0,15,116,98,0,17,18,30,0,11,0,11,8,13,15,19,0,11,164,120,23,24,13,21,0,11]
[null,"Under 5 years and 5 to 17 years",0,15,22,28,0,17,0,15,0,11,0,11,0,11,9,15,4,7,43,41,5,8,0,17,0,11]
[null,"5 to 17 years only",81,102,191,98,60,53,18,30,0,11,11,11,15,14,89,58,10,12,205,119,5,7,96,67,25,40]
[null,"No related children under 18 years",31,47,128,69,0,17,107,101,20,31,4,6,12,11,99,52,20,23,156,100,0,11,45,43,0,11]
[null,"Female householder, no husband present:",151,98,1107,226,119,53,279,161,86,62,17,12,41,28,137,62,35,22,1069,223,86,37,345,106,52,32]
[null,"With related children under 18 years:",88,71,569,165,93,51,153,112,45,48,5,5,33,26,58,49,19,16,496,167,53,28,171,103,18,19]
[null,"Under 5 years only",11,18,67,63,0,17,22,35,0,11,0,11,7,8,20,32,0,11,104,93,16,24,29,36,0,11]
[null,"Under 5 years and 5 to 17 years",32,53,35,41,12,18,17,26,0,11,3,4,13,20,11,17,0,11,15,24,4,7,16,23,0,11]
[null,"5 to 17 years only",45,52,467,142,81,49,114,104,45,48,2,3,13,16,27,33,19,16,377,131,33,22,126,84,18,19]
[null,"No related children under 18 years",63,69,538,150,26,21,126,114,41,44,12,12,8,8,79,37,16,15,573,200,33,29,174,106,34,24]
[]
[]
[]
[]
[]
[]
[]
[]
[]
[]
[]
[]
[null,"C17010. POVERTY STATUS IN THE PAST 12 MONTHS OF FAMILIES BY FAMILY TYPE BY PRESENCE OF RELATED CHILDREN UNDER 18 YEARS"]
[null,"Universe: FAMILIES"]
[null,"Data Set: 2005-2009 American Community Survey 5-Year Estimates"]
[]
[null,null,"Barrington",null,"Dover",null,"Durham",null,"Farmington",null,"Lee",null,"Madbury",null,"Middleton",null,"Milton",null,"New Durham",null,"Rochester",null,"Rollinsford",null,"Somersworth",null,"Strafford"]
[null,null,"Estimate","Margin Of Error","Estimate","Margin Of Error","Estimate","Margin Of Error","Estimate","Margin Of Error","Estimate","Margin Of Error","Estimate","Margin Of Error","Estimate","Margin Of Error","Estimate","Margin Of Error","Estimate","Margin Of Error","Estimate","Margin Of Error","Estimate","Margin Of Error","Estimate","Margin Of Error","Estimate","Margin Of Error"]
[null,"Total:",2306,136,6821,344,1867,177,1698,177,1117,117,450,52,462,51,1203,121,701,50,8423,399,766,59,2961,190,1157,117]
[null,"Income in the past 12 months below poverty level:",43,67,355,95,142,80,160,66,37,61,2,4,16,15,128,96,28,28,791,218,88,54,213,126,49,46]
[null,"Married-couple family:",0,114,106,62,25,38,134,61,0,114,2,4,6,4,108,103,17,26,241,106,21,18,43,42,19,20]
[null,"With related children under 18 years:",0,114,31,34,25,38,78,69,0,114,0,114,3,5,35,39,0,114,183,105,6,9,0,114,10,16]
[null,"Under 5 years only",0,114,0,114,0,114,30,36,0,114,0,114,3,5,0,114,0,114,22,24,6,9,0,114,0,114]
[null,"Under 5 years and 5 to 17 years",0,114,0,114,0,114,48,61,0,114,0,114,0,114,0,114,0,114,33,39,0,114,0,114,0,114]
[null,"5 to 17 years only",0,114,31,34,25,38,0,114,0,114,0,114,0,114,35,39,0,114,128,90,0,114,0,114,10,16]
[null,"No related children under 18 years",0,114,75,53,0,114,56,40,0,114,2,4,3,5,73,98,17,26,58,59,15,15,43,42,9,15]
[null,"Other family:",43,67,249,88,117,76,26,30,37,61,0,114,10,15,20,23,11,12,550,207,67,51,170,120,30,39]
[null,"Male householder, no wife present:",0,114,4,6,25,28,0,114,0,114,0,114,0,114,0,114,11,12,86,83,0,114,13,22,30,39]
[null,"With related children under 18 years:",0,114,4,6,0,114,0,114,0,114,0,114,0,114,0,114,11,12,74,80,0,114,0,114,0,114]
[null,"Under 5 years only",0,114,0,114,0,114,0,114,0,114,0,114,0,114,0,114,0,114,39,64,0,114,0,114,0,114]
[null,"Under 5 years and 5 to 17 years",0,114,0,114,0,114,0,114,0,114,0,114,0,114,0,114,0,114,0,114,0,114,0,114,0,114]
[null,"5 to 17 years only",0,114,4,6,0,114,0,114,0,114,0,114,0,114,0,114,11,12,35,49,0,114,0,114,0,114]
[null,"No related children under 18 years",0,114,0,114,25,28,0,114,0,114,0,114,0,114,0,114,0,114,12,19,0,114,13,22,30,39]
[null,"Female householder, no husband present:",43,67,245,89,92,73,26,30,37,61,0,114,10,15,20,23,0,114,464,167,67,51,157,120,0,114]
[null,"With related children under 18 years:",43,67,239,87,56,54,26,30,37,61,0,114,10,15,20,23,0,114,453,166,61,50,144,118,0,114]
[null,"Under 5 years only",0,114,74,54,0,114,26,30,0,114,0,114,0,114,11,17,0,114,166,122,20,30,84,112,0,114]
[null,"Under 5 years and 5 to 17 years",0,114,50,40,0,114,0,114,37,61,0,114,0,114,0,114,0,114,154,99,21,32,9,16,0,114]
[null,"5 to 17 years only",43,67,115,69,56,54,0,114,0,114,0,114,10,15,9,15,0,114,133,87,20,23,51,39,0,114]
[null,"No related children under 18 years",0,114,6,11,36,55,0,114,0,114,0,114,0,114,0,114,0,114,11,18,6,9,13,21,0,114]
[null,"Income in the past 12 months at or above poverty level:",2263,169,6466,354,1725,204,1538,182,1080,114,448,52,446,55,1075,119,673,55,7632,435,678,79,2748,198,1108,129]
[null,"Married-couple family:",1973,183,5485,332,1542,192,1193,184,952,113,402,45,371,53,794,135,648,54,6338,373,517,73,2091,210,964,152]
[null,"With related children under 18 years:",1184,144,2578,265,669,114,490,107,386,80,232,39,145,30,339,91,315,45,2171,282,209,44,1094,135,349,60]
[null,"Under 5 years only",206,99,556,146,110,50,74,42,66,48,44,21,24,13,47,28,38,28,482,194,39,23,337,130,35,32]
[null,"Under 5 years and 5 to 17 years",190,77,542,139,85,37,28,26,85,53,58,34,25,16,48,36,50,33,319,99,30,22,162,93,84,53]
[null,"5 to 17 years only",788,164,1480,232,474,96,388,106,235,90,130,43,96,31,244,82,227,53,1370,185,140,44,595,138,230,80]
[null,"No related children under 18 years",789,148,2907,285,873,123,703,161,566,127,170,37,226,51,455,132,333,70,4167,335,308,67,997,172,615,151]
[null,"Other family:",290,95,981,214,183,72,345,126,128,66,46,29,75,29,281,97,25,20,1294,272,161,67,657,173,144,80]
[null,"Male householder, no wife present:",96,60,353,165,56,41,199,111,63,47,11,15,31,19,146,78,19,18,362,147,77,45,192,130,60,67]
[null,"With related children under 18 years:",40,44,218,135,31,37,96,71,12,19,11,15,27,18,110,72,19,18,250,137,68,43,189,129,60,67]
[null,"Under 5 years only",32,42,106,118,16,27,50,61,0,114,0,114,8,13,24,28,0,114,12,18,0,114,8,15,0,114]
[null,"Under 5 years and 5 to 17 years",0,114,0,114,0,114,23,26,0,114,0,114,3,6,0,114,0,114,40,54,0,114,0,114,0,114]
[null,"5 to 17 years only",8,13,112,71,15,18,23,27,12,19,11,15,16,13,86,71,19,18,198,131,68,43,181,129,60,67]
[null,"No related children under 18 years",56,42,135,88,25,23,103,89,51,42,0,114,4,5,36,34,0,114,112,59,9,13,3,8,0,114]
[null,"Female householder, no husband present:",194,82,628,164,127,63,146,67,65,41,35,24,44,24,135,80,6,9,932,227,84,51,465,145,84,56]
[null,"With related children under 18 years:",148,70,310,115,79,54,80,49,22,23,32,24,22,17,106,74,6,9,585,185,50,43,177,94,61,52]
[null,"Under 5 years only",44,45,42,33,0,114,0,114,0,114,0,114,0,114,8,13,6,9,54,44,0,114,47,64,0,114]
[null,"Under 5 years and 5 to 17 years",21,33,11,18,0,114,31,36,0,114,3,5,0,114,0,114,0,114,62,73,0,114,0,114,0,114]
[null,"5 to 17 years only",83,57,257,107,79,54,49,32,22,23,29,24,22,17,98,72,0,114,469,169,50,43,130,68,61,52]
[null,"No related children under 18 years",46,41,318,110,48,31,66,45,43,34,3,4,22,17,29,34,0,114,347,110,34,25,288,118,23,25]

{"sheet":"ACS_Table_B17017","index":47,"n_rows":213,"n_cols":28,"rows_kept":213,"cut":false,"hidden":true,"merged":[]}
[null,"B17017. POVERTY STATUS IN THE PAST 12 MONTHS BY HOUSEHOLD TYPE BY AGE OF HOUSEHOLDER"]
[null,"Universe: HOUSEHOLDS",null,null,null,null,null,null,null,null,null,null,null,"B19001. HOUSEHOLD INCOME IN THE PAST 12 MONTHS (IN 2007 INFLATION-ADJUSTED DOLLARS) - Universe:  HOUSEHOLDS"]
[null,"Data Set: 2015-2019 American Community Survey 5-Year Estimates",null,null,null,null,null,null,null,null,null,null,null,"Data Set: 2006-2008 American Community Survey 3-Year Estimates"]
[]
[null,null,"Barrington",null,"Dover",null,"Durham",null,"Farmington",null,"Lee",null,"Madbury",null,"Middleton",null,"Milton",null,"New Durham",null,"Rochester",null,"Rollinsford",null,"Somersworth",null,"Strafford"]
[null,null,"Estimate","Margin Of Error","Estimate","Margin Of Error","Estimate","Margin Of Error","Estimate","Margin Of Error","Estimate","Margin Of Error","Estimate","Margin Of Error","Estimate","Margin Of Error","Estimate","Margin Of Error","Estimate","Margin Of Error","Estimate","Margin Of Error","Estimate","Margin Of Error","Estimate","Margin Of Error","Estimate","Margin Of Error"]
[null,"Total:",3183,200,13489,308,3187,199,2868,200,1876,180,615,47,658,59,1811,105,953,64,12780,347,1040,61,5127,249,1395,85]
[null,"Income in the past 12 months below poverty level:",115,95,1327,263,872,161,199,120,42,68,15,11,49,23,89,75,61,38,1433,315,102,58,498,210,26,27]
[null,"Family households:",66,85,419,153,56,48,90,59,0,11,5,5,15,13,9,15,22,19,611,196,32,33,196,156,8,14]
[null,"Married-couple family:",66,85,99,79,52,46,22,36,0,11,3,5,3,4,9,15,12,13,144,96,11,11,37,42,8,14]
[null,"Householder under 25 years",0,16,0,24,0,18,0,16,0,11,0,11,0,11,0,11,0,11,0,24,0,11,0,18,0,11]
[null,"Householder 25 to 44 years",0,16,25,29,21,19,22,36,0,11,0,11,0,11,0,11,6,9,36,41,11,11,20,31,0,11]
[null,"Householder 45 to 64 years",66,85,64,69,31,38,0,16,0,11,0,11,0,11,0,11,6,10,86,86,0,11,17,27,8,14]
[null,"Householder 65 years and over",0,16,10,16,0,18,0,16,0,11,3,5,3,4,9,15,0,11,22,26,0,11,0,18,0,11]
[null,"Other family:",0,16,320,128,4,8,68,47,0,11,2,3,12,12,0,11,10,14,467,185,21,32,159,155,0,11]
[null,"Male householder, no wife present:",0,16,84,79,0,18,0,16,0,11,2,3,3,5,0,11,0,11,146,107,0,11,0,18,0,11]
[null,"Householder under 25 years",0,16,0,24,0,18,0,16,0,11,0,11,0,11,0,11,0,11,0,24,0,11,0,18,0,11]
[null,"Householder 25 to 44 years",0,16,38,44,0,18,0,16,0,11,0,11,0,11,0,11,0,11,116,94,0,11,0,18,0,11]
[null,"Householder 45 to 64 years",0,16,46,69,0,18,0,16,0,11,0,11,3,5,0,11,0,11,30,36,0,11,0,18,0,11]
[null,"Householder 65 years and over",0,16,0,24,0,18,0,16,0,11,2,3,0,11,0,11,0,11,0,24,0,11,0,18,0,11]
[null,"Female householder, no husband present:",0,16,236,112,4,8,68,47,0,11,0,11,9,10,0,11,10,14,321,143,21,32,159,155,0,11]
[null,"Householder under 25 years",0,16,27,43,0,18,0,16,0,11,0,11,0,11,0,11,0,11,0,24,0,11,99,144,0,11]
[null,"Householder 25 to 44 years",0,16,143,86,4,8,58,40,0,11,0,11,9,10,0,11,0,11,204,117,0,11,45,54,0,11]
[null,"Householder 45 to 64 years",0,16,47,39,0,18,10,24,0,11,0,11,0,11,0,11,10,14,59,69,0,11,15,24,0,11]
[null,"Householder 65 years and over",0,16,19,31,0,18,0,16,0,11,0,11,0,11,0,11,0,11,58,62,21,32,0,18,0,11]
[null,"Nonfamily households:",49,46,908,226,816,152,109,102,42,68,10,9,34,19,80,69,39,33,822,250,70,50,302,167,18,23]
[null,"Male householder:",17,28,344,129,325,98,59,92,42,68,7,8,21,17,32,38,27,31,262,166,6,11,123,103,0,11]
[null,"Householder under 25 years",0,16,142,78,294,101,0,16,0,11,0,11,0,11,0,11,0,11,0,24,6,11,25,42,0,11]
[null,"Householder 25 to 44 years",0,16,14,23,12,12,0,16,0,11,3,5,0,11,0,11,0,11,115,142,0,11,0,18,0,11]
[null,"Householder 45 to 64 years",0,16,132,74,0,18,0,16,0,11,4,6,18,16,23,35,27,31,97,66,0,11,98,93,0,11]
[null,"Householder 65 years and over",17,28,56,52,19,18,59,92,42,68,0,11,3,5,9,14,0,11,50,47,0,11,0,18,0,11]
[null,"Female householder:",32,36,564,180,491,131,50,49,0,11,3,4,13,11,48,49,12,12,560,184,64,48,179,132,18,23]
[null,"Householder under 25 years",19,29,167,99,404,123,0,16,0,11,0,11,5,7,0,11,0,11,16,19,8,12,0,18,11,19]
[null,"Householder 25 to 44 years",0,16,136,84,21,20,16,30,0,11,0,11,0,11,11,19,0,11,121,99,15,22,83,118,0,11]
[null,"Householder 45 to 64 years",13,22,138,113,27,29,34,37,0,11,0,11,4,6,10,15,6,8,268,125,13,21,21,34,7,11]
[null,"Householder 65 years and over",0,16,123,71,39,31,0,16,0,11,3,4,4,6,27,41,6,8,155,82,28,27,75,61,0,11]
[null,"Income in the past 12 months at or above poverty level:",3068,219,12162,398,2315,202,2669,217,1834,172,600,48,609,61,1722,104,892,69,11347,416,938,72,4629,267,1369,83]
[null,"Family households:",2381,200,7010,367,1627,148,1708,220,1271,151,532,48,465,57,1357,102,727,57,7585,359,701,56,3122,235,1195,80]
[null,"Married-couple family:",1978,206,5649,384,1428,144,1406,232,1065,154,456,50,402,56,1197,117,654,61,6040,329,593,56,2351,276,1045,116]
[null,"Householder under 25 years",0,16,31,40,0,18,75,117,0,11,0,11,0,11,14,22,0,11,13,21,20,33,5,22,0,11]
[null,"Householder 25 to 44 years",724,160,2229,298,352,66,362,133,356,90,111,34,123,32,267,61,85,30,1668,249,152,31,862,197,324,75]
[null,"Householder 45 to 64 years",1026,163,2097,242,682,79,677,220,447,131,280,53,211,40,652,101,405,55,2724,281,318,56,1030,183,498,87]
[null,"Householder 65 years and over",228,104,1292,217,394,77,292,106,262,95,65,24,68,26,264,96,164,51,1635,196,103,29,454,103,223,56]
[null,"Other family:",403,153,1361,298,199,81,302,144,206,108,76,33,63,28,160,79,73,32,1545,287,108,37,771,249,150,82]
[null,"Male householder, no wife present:",67,54,537,190,113,74,206,130,14,22,33,19,35,24,77,57,13,13,695,202,35,18,303,157,78,64]
[null,"Householder under 25 years",0,16,0,24,0,18,0,16,0,11,0,11,0,11,0,11,0,11,59,58,8,13,0,18,0,11]
[null,"Householder 25 to 44 years",0,16,175,87,25,39,97,108,14,22,6,7,15,17,54,54,8,11,329,139,6,8,106,93,17,21]
[null,"Householder 45 to 64 years",67,54,207,106,19,27,109,73,0,11,23,17,14,17,16,13,5,7,264,103,17,12,164,134,61,59]
[null,"Householder 65 years and over",0,16,155,120,69,49,0,16,0,11,4,6,6,6,7,11,0,11,43,36,4,7,33,36,0,11]
[null,"Female householder, no husband present:",336,140,824,230,86,42,96,80,192,105,43,26,28,16,83,58,60,30,850,219,73,33,468,166,72,50]
[null,"Householder under 25 years",0,16,21,35,0,18,0,16,0,11,0,11,0,11,0,11,0,11,8,16,0,11,42,75,0,11]
[null,"Householder 25 to 44 years",162,128,365,153,30,32,47,54,0,11,10,14,3,4,0,11,22,22,387,156,15,19,184,98,32,42]
[null,"Householder 45 to 64 years",117,79,355,139,45,30,20,25,192,105,27,22,15,13,66,54,20,17,278,140,28,17,177,100,21,22]
[null,"Householder 65 years and over",57,61,83,51,11,9,29,38,0,11,6,8,10,9,17,22,18,14,177,85,30,23,65,58,19,22]
[null,"Nonfamily households:",687,241,5152,453,688,151,961,278,563,237,68,26,144,37,365,117,165,55,3762,374,237,59,1507,277,174,76]
[null,"Male householder:",291,161,2336,312,296,97,595,237,369,182,59,24,120,37,169,79,110,47,1714,264,110,42,599,164,68,52]
[null,"Householder under 25 years",0,16,286,109,82,48,64,99,0,11,3,5,5,7,0,11,0,11,263,151,0,11,32,51,15,25]
[null,"Householder 25 to 44 years",42,51,993,238,109,73,130,122,44,70,20,15,25,18,65,48,51,28,540,164,23,16,307,140,23,38]
[null,"Householder 45 to 64 years",187,129,606,180,36,29,270,148,284,166,17,15,60,25,89,49,32,24,496,138,47,29,172,78,22,20]
[null,"Householder 65 years and over",62,60,451,146,69,38,131,73,41,32,19,11,30,21,15,18,27,28,415,138,40,31,88,72,8,12]
[null,"Female householder:",396,192,2816,396,392,106,366,166,194,141,9,8,24,13,196,85,55,28,2048,306,127,50,908,212,106,47]
[null,"Householder under 25 years",0,16,339,159,105,68,0,16,0,11,0,11,0,11,0,11,0,11,183,139,0,11,0,18,12,19]
[null,"Householder 25 to 44 years",42,49,1023,264,14,11,70,60,0,11,0,11,4,6,29,28,6,9,280,103,26,20,161,125,0,11]
[null,"Householder 45 to 64 years",197,155,596,147,96,58,121,119,105,90,5,7,6,7,85,55,6,9,700,156,56,38,420,132,62,39]
[null,"Householder 65 years and over",157,111,858,214,177,61,175,110,89,96,4,4,14,10,82,58,43,24,885,180,45,24,327,117,32,26]
[]
[]
[]
[]
[]
[]
[]
[]
[]
[null,"B17017. POVERTY STATUS IN THE PAST 12 MONTHS BY HOUSEHOLD TYPE BY AGE OF HOUSEHOLDER"]
[null,"Universe: HOUSEHOLDS"]
[null,"Data Set: 2010-2014 American Community Survey 5-Year Estimates"]
[]
[null,null,"Barrington",null,"Dover",null,"Durham",null,"Farmington",null,"Lee",null,"Madbury",null,"Middleton",null,"Milton",null,"New Durham",null,"Rochester",null,"Rollinsford",null,"Somersworth",null,"Strafford"]
[null,null,"Estimate","Margin Of Error","Estimate","Margin Of Error","Estimate","Margin Of Error","Estimate","Margin Of Error","Estimate","Margin Of Error","Estimate","Margin Of Error","Estimate","Margin Of Error","Estimate","Margin Of Error","Estimate","Margin Of Error","Estimate","Margin Of Error","Estimate","Margin Of Error","Estimate","Margin Of Error","Estimate","Margin Of Error"]
[null,"Total:",3307,184,12586,374,3073,263,2625,158,1774,134,655,62,553,65,1656,120,1001,64,12715,331,1024,67,4492,207,1430,118]
[null,"Income in the past 12 months below poverty level:",239,116,1269,266,636,122,313,171,83,74,46,32,71,32,99,53,58,29,1738,300,51,31,685,173,40,26]
[null,"Family households:",91,63,445,191,24,18,138,109,11,19,11,10,52,29,51,37,36,24,1000,189,36,29,379,159,7,10]
[null,"Married-couple family:",12,19,134,92,24,18,138,109,0,11,0,11,14,9,0,11,12,13,245,121,10,12,140,111,0,11]
[null,"Householder under 25 years",0,15,0,23,0,17,0,15,0,11,0,11,0,11,0,11,0,11,0,20,0,11,0,17,0,11]
[null,"Householder 25 to 44 years",0,15,103,87,8,10,77,53,0,11,0,11,3,5,0,11,0,11,113,93,0,11,81,88,0,11]
[null,"Householder 45 to 64 years",12,19,31,30,9,13,61,92,0,11,0,11,11,9,0,11,12,13,69,50,10,12,59,67,0,11]
[null,"Householder 65 years and over",0,15,0,23,7,11,0,15,0,11,0,11,0,11,0,11,0,11,63,45,0,11,0,17,0,11]
[null,"Other family:",79,58,311,153,0,17,0,15,11,19,11,10,38,28,51,37,24,20,755,161,26,27,239,122,7,10]
[null,"Male householder, no wife present:",0,15,103,95,0,17,0,15,11,19,2,4,3,4,0,11,8,9,133,73,0,11,41,37,0,11]
[null,"Householder under 25 years",0,15,0,23,0,17,0,15,11,19,0,11,0,11,0,11,0,11,0,20,0,11,12,20,0,11]
[null,"Householder 25 to 44 years",0,15,67,87,0,17,0,15,0,11,0,11,0,11,0,11,0,11,114,67,0,11,13,20,0,11]
[null,"Householder 45 to 64 years",0,15,36,42,0,17,0,15,0,11,2,4,3,4,0,11,8,9,19,28,0,11,16,25,0,11]
[null,"Householder 65 years and over",0,15,0,23,0,17,0,15,0,11,0,11,0,11,0,11,0,11,0,20,0,11,0,17,0,11]
[null,"Female householder, no husband present:",79,58,208,116,0,17,0,15,0,11,9,10,35,28,51,37,16,20,622,162,26,27,198,113,7,10]
[null,"Householder under 25 years",0,15,16,25,0,17,0,15,0,11,6,8,0,11,0,11,0,11,85,94,0,11,23,37,0,11]
[null,"Householder 25 to 44 years",65,53,177,111,0,17,0,15,0,11,0,11,35,28,25,19,12,17,326,128,26,27,116,88,0,11]
[null,"Householder 45 to 64 years",14,24,15,25,0,17,0,15,0,11,3,4,0,11,26,31,4,6,161,85,0,11,49,47,7,10]
[null,"Householder 65 years and over",0,15,0,23,0,17,0,15,0,11,0,11,0,11,0,11,0,11,50,42,0,11,10,17,0,11]
[null,"Nonfamily households:",148,103,824,199,612,123,175,137,72,72,35,30,19,12,48,39,22,14,738,215,15,13,306,131,33,27]
[null,"Male householder:",98,93,330,122,262,82,118,129,0,11,35,30,14,9,27,35,6,8,207,115,10,11,204,122,9,14]
[null,"Householder under 25 years",0,15,81,87,256,81,64,93,0,11,32,30,0,11,7,12,0,11,0,20,0,11,0,17,0,11]
[null,"Householder 25 to 44 years",48,74,129,93,0,17,0,15,0,11,0,11,0,11,20,32,0,11,75,76,5,8,75,78,0,11]
[null,"Householder 45 to 64 years",50,57,75,58,6,8,54,79,0,11,0,11,14,9,0,11,6,8,132,91,5,7,129,89,9,14]
[null,"Householder 65 years and over",0,15,45,43,0,17,0,15,0,11,3,5,0,11,0,11,0,11,0,20,0,11,0,17,0,11]
[null,"Female householder:",50,60,494,157,350,109,57,46,72,72,0,11,5,8,21,18,16,14,531,197,5,7,102,61,24,22]
[null,"Householder under 25 years",0,15,112,76,243,86,0,15,0,11,0,11,5,8,8,13,0,11,82,66,0,11,9,16,6,11]
[null,"Householder 25 to 44 years",0,15,67,46,36,45,0,15,0,11,0,11,0,11,0,11,4,7,73,70,0,11,14,24,0,11]
[null,"Householder 45 to 64 years",50,60,179,109,29,27,35,40,55,66,0,11,0,11,8,11,5,8,180,100,5,7,25,28,8,13]
[null,"Householder 65 years and over",0,15,136,73,42,57,22,25,17,28,0,11,0,11,5,8,7,10,196,126,0,11,54,45,10,16]
[null,"Income in the past 12 months at or above poverty level:",3068,196,11317,406,2437,239,2312,230,1691,139,609,60,482,65,1557,114,943,67,10977,365,973,74,3807,255,1390,120]
[null,"Family households:",2394,181,6845,336,1788,162,1659,186,1178,128,492,53,364,53,1216,93,714,62,6480,322,677,60,2799,226,1121,87]
[null,"Married-couple family:",2131,205,5281,321,1609,166,1237,208,1072,146,460,53,288,48,867,114,645,60,4843,342,558,57,2300,227,1044,103]
[null,"Householder under 25 years",0,15,128,97,0,17,0,15,0,11,0,11,8,12,21,24,5,8,42,41,17,23,91,96,0,11]
[null,"Householder 25 to 44 years",732,142,1916,214,464,85,394,142,360,123,191,55,85,25,259,77,201,54,1582,223,162,58,928,177,233,66]
[null,"Householder 45 to 64 years",1148,190,2257,184,792,120,653,134,494,94,198,39,142,30,419,94,323,57,2177,205,270,35,882,162,669,110]
[null,"Householder 65 years and over",251,92,980,156,353,65,190,95,218,93,71,32,53,21,168,60,116,39,1042,186,109,30,399,109,142,52]
[null,"Other family:",263,157,1564,237,179,69,422,186,106,68,32,19,76,33,349,98,69,35,1637,279,119,45,499,152,77,48]
[null,"Male householder, no wife present:",112,115,457,147,60,53,143,110,20,31,15,12,35,22,212,77,34,26,568,196,33,26,154,94,25,40]
[null,"Householder under 25 years",27,46,0,23,0,17,0,15,0,11,0,11,0,11,0,11,0,11,108,88,15,22,0,17,0,11]
[null,"Householder 25 to 44 years",66,101,290,123,31,46,18,30,0,11,7,9,12,14,85,48,15,13,276,139,13,10,71,66,25,40]
[null,"Householder 45 to 64 years",15,24,151,79,29,25,81,78,20,31,4,7,23,17,87,58,19,23,140,74,5,7,68,50,0,11]
[null,"Householder 65 years and over",4,13,16,27,0,17,44,69,0,11,4,6,0,11,40,41,0,11,44,65,0,11,15,23,0,11]
[null,"Female householder, no husband present:",151,98,1107,226,119,53,279,161,86,62,17,12,41,28,137,62,35,22,1069,223,86,37,345,106,52,32]
[null,"Householder under 25 years",0,15,34,51,5,8,22,35,0,11,0,11,0,11,20,32,0,11,46,66,16,26,0,17,0,11]
[null,"Householder 25 to 44 years",51,57,475,140,69,41,76,66,25,39,12,10,23,24,19,21,19,16,354,129,42,30,144,92,6,11]
[null,"Householder 45 to 64 years",62,55,307,118,45,34,181,125,20,30,3,6,18,12,83,46,6,8,515,172,19,15,164,99,36,26]
[null,"Householder 65 years and over",38,59,291,135,0,17,0,15,41,44,2,4,0,11,15,18,10,10,154,94,9,9,37,28,10,14]
[null,"Nonfamily households:",674,212,4472,453,649,139,653,203,513,181,117,44,118,35,341,96,229,69,4497,364,296,72,1008,215,269,101]
[null,"Male householder:",402,172,2012,303,300,96,253,96,169,128,61,30,51,21,151,63,162,61,2025,272,142,57,369,133,126,69]
[null,"Householder under 25 years",0,15,257,113,124,77,0,15,0,11,0,11,3,4,20,33,0,11,130,106,39,40,42,65,0,11]
[null,"Householder 25 to 44 years",91,76,741,214,43,38,69,69,75,102,19,25,5,5,38,45,5,8,555,165,1,4,217,101,26,33]
[null,"Householder 45 to 64 years",261,144,707,184,69,34,86,47,58,61,32,20,22,12,77,46,128,54,906,206,58,40,75,53,33,29]
[null,"Householder 65 years and over",50,62,307,102,64,44,98,65,36,39,10,9,21,13,16,19,29,22,434,136,44,32,35,34,67,51]
[null,"Female householder:",272,154,2460,345,349,94,400,177,344,168,56,32,67,28,190,83,67,31,2472,294,154,54,639,158,143,76]
[null,"Householder under 25 years",0,15,429,189,3,6,59,89,31,46,5,8,3,5,0,11,0,11,135,108,0,11,73,83,0,11]
[null,"Householder 25 to 44 years",48,73,645,166,42,30,16,27,43,50,17,21,10,13,19,19,25,18,314,165,15,15,59,41,0,11]
[null,"Householder 45 to 64 years",127,81,582,168,78,42,185,115,139,103,15,11,34,18,84,56,10,10,937,212,79,40,206,79,35,35]
[null,"Householder 65 years and over",97,90,804,199,226,76,140,109,131,113,19,22,20,17,87,64,32,20,1086,171,60,26,301,114,108,68]
[]
[]
[]
[]
[]
[]
[]
[]
[]
[null,"B17017. POVERTY STATUS IN THE PAST 12 MONTHS BY HOUSEHOLD TYPE BY AGE OF HOUSEHOLDER"]
[null,"Universe: HOUSEHOLDS"]
[null,"Data Set: 2005-2009 American Community Survey 5-Year Estimates"]
[]
[null,null,"Barrington",null,"Dover",null,"Durham",null,"Farmington",null,"Lee",null,"Madbury",null,"Middleton",null,"Milton",null,"New Durham",null,"Rochester",null,"Rollinsford",null,"Somersworth",null,"Strafford"]
[null,null,"Estimate","Margin Of Error","Estimate","Margin Of Error","Estimate","Margin Of Error","Estimate","Margin Of Error","Estimate","Margin Of Error","Estimate","Margin Of Error","Estimate","Margin Of Error","Estimate","Margin Of Error","Estimate","Margin Of Error","Estimate","Margin Of Error","Estimate","Margin Of Error","Estimate","Margin Of Error","Estimate","Margin Of Error"]
[null,"Total:",2961,178,11856,425,3312,328,2466,249,1900,146,586,49,602,65,1730,133,905,63,12268,366,1065,64,4949,265,1373,127]
[null,"Income in the past 12 months below poverty level:",97,83,1189,237,1036,205,431,173,350,119,23,21,50,27,158,99,54,33,1396,273,137,65,731,199,49,46]
[null,"Family households:",43,67,355,95,142,80,160,66,37,61,2,4,16,15,128,96,28,28,791,218,88,54,213,126,49,46]
[null,"Married-couple family:",0,114,106,62,25,38,134,61,0,114,2,4,6,4,108,103,17,26,241,106,21,18,43,42,19,20]
[null,"Householder under 25 years",0,114,0,114,0,114,0,114,0,114,0,114,0,114,0,114,0,114,0,114,0,114,0,114,0,114]
[null,"Householder 25 to 44 years",0,114,44,39,0,114,78,69,0,114,0,114,3,5,0,114,0,114,202,111,6,9,0,114,10,16]
[null,"Householder 45 to 64 years",0,114,47,44,25,38,56,40,0,114,0,114,3,5,108,103,0,114,9,15,0,114,24,26,0,114]
[null,"Householder 65 years and over",0,114,15,24,0,114,0,114,0,114,2,4,0,114,0,114,17,26,30,43,15,15,19,32,9,15]
[null,"Other family:",43,67,249,88,117,76,26,30,37,61,0,114,10,15,20,23,11,12,550,207,67,51,170,120,30,39]
[null,"Male householder, no wife present:",0,114,4,6,25,28,0,114,0,114,0,114,0,114,0,114,11,12,86,83,0,114,13,22,30,39]
[null,"Householder under 25 years",0,114,0,114,25,28,0,114,0,114,0,114,0,114,0,114,0,114,0,114,0,114,13,22,0,114]
[null,"Householder 25 to 44 years",0,114,0,114,0,114,0,114,0,114,0,114,0,114,0,114,5,8,68,80,0,114,0,114,0,114]
[null,"Householder 45 to 64 years",0,114,4,6,0,114,0,114,0,114,0,114,0,114,0,114,6,9,18,21,0,114,0,114,30,39]
[null,"Householder 65 years and over",0,114,0,114,0,114,0,114,0,114,0,114,0,114,0,114,0,114,0,114,0,114,0,114,0,114]
[null,"Female householder, no husband present:",43,67,245,89,92,73,26,30,37,61,0,114,10,15,20,23,0,114,464,167,67,51,157,120,0,114]
[null,"Householder under 25 years",0,114,58,48,36,55,15,24,0,114,0,114,0,114,0,114,0,114,175,119,0,114,84,112,0,114]
[null,"Householder 25 to 44 years",43,67,168,84,0,114,11,18,37,61,0,114,0,114,20,23,0,114,216,108,47,44,60,43,0,114]
[null,"Householder 45 to 64 years",0,114,19,23,56,54,0,114,0,114,0,114,10,15,0,114,0,114,62,66,20,23,13,21,0,114]
[null,"Householder 65 years and over",0,114,0,114,0,114,0,114,0,114,0,114,0,114,0,114,0,114,11,18,0,114,0,114,0,114]
[null,"Nonfamily households:",54,46,834,218,894,201,271,153,313,110,21,21,34,21,30,37,26,20,605,193,49,40,518,166,0,114]
[null,"Male householder:",25,30,430,173,331,103,121,114,162,87,7,8,18,18,30,37,20,17,315,178,7,11,244,129,0,114]
[null,"Householder under 25 years",0,114,163,121,322,101,92,108,87,46,4,6,0,114,0,114,0,114,88,133,0,114,23,37,0,114]
[null,"Householder 25 to 44 years",0,114,85,66,0,114,12,20,0,114,0,114,10,16,0,114,0,114,53,55,0,114,82,80,0,114]
[null,"Householder 45 to 64 years",25,30,101,86,9,14,17,27,22,26,0,114,4,5,30,37,20,17,161,116,7,11,108,90,0,114]
[null,"Householder 65 years and over",0,114,81,73,0,114,0,114,53,64,3,5,4,5,0,114,0,114,13,21,0,114,31,34,0,114]
[null,"Female householder:",29,32,404,125,563,149,150,105,151,65,14,19,16,11,0,114,6,9,290,112,42,38,274,128,0,114]
[null,"Householder under 25 years",16,25,156,84,508,141,0,114,131,58,11,18,0,114,0,114,0,114,0,114,0,114,0,114,0,114]
[null,"Householder 25 to 44 years",0,114,59,65,36,47,0,114,0,114,3,4,0,114,0,114,0,114,71,72,27,33,62,62,0,114]
[null,"Householder 45 to 64 years",13,21,75,49,0,114,53,64,0,114,0,114,10,9,0,114,0,114,116,71,0,114,72,58,0,114]
[null,"Householder 65 years and over",0,114,114,61,19,21,97,85,20,33,0,114,6,6,0,114,6,9,103,58,15,16,140,87,0,114]
[null,"Income in the past 12 months at or above poverty level:",2864,200,10667,448,2276,255,2035,218,1550,130,563,53,552,65,1572,140,851,68,10872,442,928,97,4218,283,1324,138]
[null,"Family households:",2263,169,6466,354,1725,204,1538,182,1080,114,448,52,446,55,1075,119,673,55,7632,435,678,79,2748,198,1108,129]
[null,"Married-couple family:",1973,183,5485,332,1542,192,1193,184,952,113,402,45,371,53,794,135,648,54,6338,373,517,73,2091,210,964,152]
[null,"Householder under 25 years",0,114,173,131,0,114,0,114,0,114,0,114,17,27,11,16,8,12,150,160,0,114,51,69,0,114]
[null,"Householder 25 to 44 years",912,119,2330,246,341,80,523,131,236,62,165,37,107,31,293,98,242,50,2178,258,153,43,895,137,299,60]
[null,"Householder 45 to 64 years",882,130,2108,200,870,139,515,147,606,113,187,34,192,40,351,91,286,65,2702,238,256,37,841,156,506,135]
[null,"Householder 65 years and over",179,65,874,111,331,54,155,77,110,52,50,22,55,18,139,88,112,43,1308,179,108,39,304,112,159,60]
[null,"Other family:",290,95,981,214,183,72,345,126,128,66,46,29,75,29,281,97,25,20,1294,272,161,67,657,173,144,80]
[null,"Male householder, no wife present:",96,60,353,165,56,41,199,111,63,47,11,15,31,19,146,78,19,18,362,147,77,45,192,130,60,67]
[null,"Householder under 25 years",26,41,91,112,0,114,26,34,0,114,0,114,0,114,26,42,0,114,0,114,0,114,3,8,0,114]
[null,"Householder 25 to 44 years",27,25,121,86,16,27,48,61,18,29,8,14,21,17,98,65,6,10,215,120,62,43,121,108,0,114]
[null,"Householder 45 to 64 years",29,32,141,86,40,29,106,89,45,36,3,5,10,8,22,26,13,15,138,69,15,16,68,75,60,67]
[null,"Householder 65 years and over",14,21,0,114,0,114,19,21,0,114,0,114,0,114,0,114,0,114,9,15,0,114,0,114,0,114]
[null,"Female householder, no husband present:",194,82,628,164,127,63,146,67,65,41,35,24,44,24,135,80,6,9,932,227,84,51,465,145,84,56]
[null,"Householder under 25 years",0,114,33,35,0,114,0,114,0,114,0,114,0,114,8,13,0,114,61,76,0,114,61,54,0,114]
[null,"Householder 25 to 44 years",114,68,178,90,35,35,55,44,11,17,9,9,20,16,85,68,6,9,398,128,13,14,96,62,43,51]
[null,"Householder 45 to 64 years",80,50,353,111,70,40,71,45,22,23,23,23,24,17,42,39,0,114,324,127,37,41,218,104,28,25]
[null,"Householder 65 years and over",0,114,64,43,22,19,20,25,32,29,3,5,0,114,0,114,0,114,149,66,34,25,90,57,13,20]
[null,"Nonfamily households:",601,176,4201,410,551,151,497,147,470,151,115,40,106,32,497,167,178,67,3240,382,250,73,1470,354,216,93]
[null,"Male householder:",256,114,2108,280,220,86,216,96,268,106,52,35,66,30,223,98,95,45,1618,298,107,61,679,245,99,66]
[null,"Householder under 25 years",0,114,211,122,81,52,0,114,61,65,29,31,0,114,45,72,0,114,267,194,15,23,25,44,0,114]
[null,"Householder 25 to 44 years",110,58,1083,224,59,44,44,35,91,66,4,6,35,25,106,59,32,21,583,179,33,37,298,137,40,36]
[null,"Householder 45 to 64 years",133,91,574,176,32,26,129,73,97,72,9,8,21,14,72,39,45,36,540,139,18,18,218,119,46,50]
[null,"Householder 65 years and over",13,21,240,92,48,39,43,32,19,23,10,10,10,9,0,114,18,15,228,89,41,42,138,82,13,15]
[null,"Female householder:",345,128,2093,270,331,115,281,120,202,96,63,24,40,20,274,114,83,46,1622,235,143,45,791,191,117,63]
[null,"Householder under 25 years",40,46,271,135,120,91,26,44,24,40,0,114,0,114,0,114,0,114,32,33,0,114,37,43,0,114]
[null,"Householder 25 to 44 years",92,83,479,168,19,21,40,39,64,65,21,16,12,16,56,51,4,6,296,110,60,26,225,106,45,54]
[null,"Householder 45 to 64 years",120,57,729,188,64,37,83,48,79,48,29,18,22,13,125,66,53,39,724,154,40,23,293,114,46,30]
[null,"Householder 65 years and over",93,71,614,138,128,52,132,79,35,32,13,13,6,6,93,73,26,26,570,128,43,28,236,99,26,19]

{"sheet":"ACS_Table_B03002","index":48,"n_rows":108,"n_cols":28,"rows_kept":108,"cut":false,"hidden":true,"merged":[]}
[null,"B03002. HISPANIC OR LATINO ORIGIN BY RACE"]
[null,"Universe:  TOTAL POPULATION"]
[null,"Data Set: 2015-2019 American Community Survey 5-Year Estimates"]
[]
[null,null,"Barrington",null,"Dover",null,"Durham",null,"Farmington",null,"Lee",null,"Madbury",null,"Middleton",null,"Milton",null,"New Durham",null,"Rochester",null,"Rollinsford",null,"Somersworth",null,"Strafford"]
[null,null,"Estimate","Margin Of Error","Estimate","Margin Of Error","Estimate","Margin Of Error","Estimate","Margin Of Error","Estimate","Margin Of Error","Estimate","Margin Of Error","Estimate","Margin Of Error","Estimate","Margin Of Error","Estimate","Margin Of Error","Estimate","Margin Of Error","Estimate","Margin Of Error","Estimate","Margin Of Error","Estimate","Margin Of Error"]
[null,"Total:",9063,31,31577,22,16481,21,6930,17,4485,18,1901,157,1783,159,4620,24,2697,17,30955,38,2567,21,11925,22,4140,18]
[null,"Not Hispanic or Latino:",8983,98,30420,267,16153,92,6841,93,4310,153,1891,156,1756,161,4609,32,2684,19,30127,265,2519,40,11633,170,3967,164]
[null,"White alone",8653,313,27808,437,14786,221,6646,181,3801,271,1779,154,1682,160,4512,70,2592,64,28561,457,2398,110,9892,510,3917,170]
[null,"Black or African American alone",0,16,357,212,124,57,0,16,2,7,0,11,30,26,1,3,0,11,210,164,63,86,386,249,37,43]
[null,"American Indian and Alaska Native alone",0,16,27,25,0,18,0,16,0,11,5,9,0,11,0,11,25,26,18,29,0,11,19,30,0,11]
[null,"Asian alone",257,291,1289,339,803,159,67,105,392,226,74,70,6,10,12,17,0,11,572,310,0,11,787,333,4,6]
[null,"Native Hawaiian and Other Pacific Islander alone",0,16,0,24,0,18,0,16,0,11,0,11,0,11,0,11,0,11,53,73,0,11,0,18,0,11]
[null,"Some other race alone",0,16,0,24,28,30,0,16,0,11,0,11,0,11,0,11,0,11,0,24,0,11,33,54,0,11]
[null,"Two or more races:",73,74,939,297,412,115,128,97,115,101,33,28,38,28,84,64,67,58,713,281,58,46,516,258,9,14]
[null,"Two races including Some other race",0,16,86,112,0,18,0,16,0,11,0,11,0,11,0,11,0,11,0,24,0,11,198,190,0,11]
[null,"Two races excluding Some other race, and three or more races",73,74,853,282,412,115,128,97,115,101,33,28,38,28,84,64,67,58,713,281,58,46,318,180,9,14]
[null,"Hispanic or Latino:",80,95,1157,266,328,95,89,94,175,151,10,17,27,22,11,20,13,11,828,265,48,38,292,169,173,164]
[null,"White alone",80,95,1042,257,266,87,89,94,131,127,3,5,16,15,11,20,13,11,609,249,43,37,110,84,159,156]
[null,"Black or African American alone",0,16,49,53,4,9,0,16,0,11,0,11,0,11,0,11,0,11,2,4,5,8,0,18,14,21]
[null,"American Indian and Alaska Native alone",0,16,0,24,0,18,0,16,0,11,0,11,0,11,0,11,0,11,0,24,0,11,0,18,0,11]
[null,"Asian alone",0,16,0,24,0,18,0,16,43,63,0,11,0,11,0,11,0,11,8,13,0,11,17,27,0,11]
[null,"Native Hawaiian and Other Pacific Islander alone",0,16,0,24,0,18,0,16,0,11,0,11,0,11,0,11,0,11,0,24,0,11,0,18,0,11]
[null,"Some other race alone",0,16,60,67,24,24,0,16,1,4,7,16,11,15,0,11,0,11,104,73,0,11,123,116,0,11]
[null,"Two or more races:",0,16,6,13,34,41,0,16,0,11,0,11,0,11,0,11,0,11,105,74,0,11,42,45,0,11]
[null,"Two races including Some other race",0,16,0,24,0,18,0,16,0,11,0,11,0,11,0,11,0,11,75,83,0,11,17,25,0,11]
[null,"Two races excluding Some other race, and three or more races",0,16,6,13,34,41,0,16,0,11,0,11,0,11,0,11,0,11,30,36,0,11,25,39,0,11]
[]
[null,"Calculated- B03002. HISPANIC OR LATINO ORIGIN BY RACE"]
[null,"Universe:  TOTAL POPULATION"]
[null,"Data Set: 2015-2019 American Community Survey 5-Year Estimates","Barrington",null,"Dover",null,"Durham",null,"Farmington",null,"Lee",null,"Madbury",null,"Middleton",null,"Milton",null,"New Durham",null,"Rochester",null,"Rollinsford",null,"Somersworth",null,"Strafford"]
[null,null,"Estimate","Margin Of Error","Estimate","Margin Of Error","Estimate","Margin Of Error","Estimate","Margin Of Error","Estimate","Margin Of Error","Estimate","Margin Of Error","Estimate","Margin Of Error","Estimate","Margin Of Error","Estimate","Margin Of Error","Estimate","Margin Of Error","Estimate","Margin Of Error","Estimate","Margin Of Error","Estimate","Margin Of Error"]
[null,"Total:",{"$f":"C7","v":9063},31,31577,22,16481,21,6930,17,4485,18,1901,157,1783,159,4620,24,2697,17,30955,38,2567,21,{"$f":"Y7","v":11925},22,4140,18]
[null,"Not Hispanic or Latino:",{"$f":"C8","v":8983},98,30420,267,16153,92,6841,93,4310,153,1891,156,1756,161,4609,32,{"$f":"S8","v":2684},19,30127,265,2519,40,11633,170,3967,164]
[null,"White",8653,313,27808,437,14786,221,6646,181,3801,271,1779,154,1682,160,4512,70,2592,64,28561,457,2398,110,9892,510,3917,170]
[null,"Black",0,16,357,212,124,57,0,16,2,{"$f":"IF(F36=\"-\",\"\",IF(I36=\"-\",\"\",(I36-F36)/F36))","v":-1},0,11,30,26,1,3,0,11,210,164,63,86,386,249,37,43]
[null,"American Indian",{"$f":"$C$11","v":0},{"$f":"D11","v":16},{"$f":"E11","v":27},25,0,18,0,16,0,11,5,9,0,11,0,11,25,26,18,29,0,11,19,30,0,11]
[null,"Asian &Pacific Is.",{"$f":"C12+C13","v":257},{"$f":"SQRT((D12^2)+(D13^2))","v":291.4395306062649},{"$f":"E12+E13","v":1289},{"$f":"SQRT((F12^2)+(F13^2))","v":339.84849565652047},{"$f":"G12+G13","v":803},{"$f":"SQRT((H12^2)+(H13^2))","v":160.01562423713506},{"$f":"I12+I13","v":67},{"$f":"SQRT((J12^2)+(J13^2))","v":106.21205204683694},{"$f":"K12+K13","v":392},{"$f":"SQRT((L12^2)+(L13^2))","v":226.2675407565124},{"$f":"M12+M13","v":74},{"$f":"SQRT((N12^2)+(N13^2))","v":70.859014952227497},{"$f":"O12+O13","v":6},{"$f":"SQRT((P12^2)+(P13^2))","v":14.866068747318506},{"$f":"Q12+Q13","v":12},{"$f":"SQRT((R12^2)+(R13^2))","v":20.248456731316587},{"$f":"S12+S13","v":0},{"$f":"SQRT((T12^2)+(T13^2))","v":15.556349186104045},{"$f":"U12+U13","v":625},{"$f":"SQRT((V12^2)+(V13^2))","v":318.47919869278746},{"$f":"W12+W13","v":0},{"$f":"SQRT((X12^2)+(X13^2))","v":15.556349186104045},{"$f":"Y12+Y13","v":787},{"$f":"SQRT((Z12^2)+(Z13^2))","v":333.4861316456803},{"$f":"AA12+AA13","v":4},{"$f":"SQRT((AB12^2)+(AB13^2))","v":12.529964086141668}]
[null,"Other*",{"$f":"C14+C15","v":73},{"$f":"SQRT((D14^2)+(D15^2))","v":75.709972922990801},{"$f":"E14+E15","v":939},{"$f":"SQRT((F14^2)+(F15^2))","v":297.96811910001378},{"$f":"G14+G15","v":440},{"$f":"SQRT((H14^2)+(H15^2))","v":118.84864324004712},{"$f":"I14+I15","v":128},{"$f":"SQRT((J14^2)+(J15^2))","v":98.310731865854805},{"$f":"K14+K15","v":115},{"$f":"SQRT((L14^2)+(L15^2))","v":101.59724405711013},{"$f":"M14+M15","v":33},{"$f":"SQRT((N14^2)+(N15^2))","v":30.083217912982647},{"$f":"O14+O15","v":38},{"$f":"SQRT((P14^2)+(P15^2))","v":30.083217912982647},{"$f":"Q14+Q15","v":84},{"$f":"SQRT((R14^2)+(R15^2))","v":64.938432380216881},{"$f":"S14+S15","v":67},{"$f":"SQRT((T14^2)+(T15^2))","v":59.033888572581766},{"$f":"U14+U15","v":713},{"$f":"SQRT((V14^2)+(V15^2))","v":282.02304870347035},{"$f":"W14+W15","v":58},{"$f":"SQRT((X14^2)+(X15^2))","v":47.296934361541872},{"$f":"Y14+Y15","v":549},{"$f":"SQRT((Z14^2)+(Z15^2))","v":263.59059163786554},{"$f":"AA14+AA15","v":9},{"$f":"SQRT((AB14^2)+(AB15^2))","v":17.804493814764857}]
[null,"Hispanic or Latino:",{"$f":"C18","v":80},{"$f":"D18","v":95},{"$f":"E18","v":1157},266,328,95,89,94,175,151,10,17,27,22,11,20,13,11,828,265,48,38,{"$f":"Y18","v":292},{"$f":"Z18","v":169},{"$f":"AA18","v":173},{"$f":"AB18","v":164}]
[]
[]
[]
[]
[]
[]
[]
[]
[]
[]
[]
[]
[]
[]
[]
[]
[]
[]
[]
[]
[]
[]
[]
[]
[]
[]
[]
[]
[]
[]
[]
[]
[]
[]
[]
[]
[]
["Calculated- B03002. HISPANIC OR LATINO ORIGIN BY RACE"]
["Universe:  TOTAL POPULATION"]
["Data Set: 2010-2014 American Community Survey 5-Year Estimates"]
[]
[null,null,"Barrington",null,"Dover",null,"Durham",null,"Farmington",null,"Lee",null,"Madbury",null,"Middleton",null,"Milton",null,"New Durham",null,"Rochester",null,"Rollinsford",null,"Somersworth",null,"Strafford"]
[null,null,"Estimate","Margin Of Error","Estimate","Margin Of Error","Estimate","Margin Of Error","Estimate","Margin Of Error","Estimate","Margin Of Error","Estimate","Margin Of Error","Estimate","Margin Of Error","Estimate","Margin Of Error","Estimate","Margin Of Error","Estimate","Margin Of Error","Estimate","Margin Of Error","Estimate","Margin Of Error","Estimate","Margin Of Error"]
[null,"Total:",8691,17,30332,27,15180,30,6824,32,4357,15,2003,170,1567,167,4592,23,2648,16,29883,38,2528,18,11765,34,4017,28]
[null,"Not Hispanic or Latino:",8629,54,29837,254,14890,148,6778,72,4246,90,1997,171,1550,165,4583,26,2638,22,29370,191,2437,87,11202,286,3743,176]
[null,"White",62,54,495,256,290,142,46,66,111,91,6,9,17,21,9,15,10,16,513,187,91,85,563,283,274,175]
[null,"Black",0,16,305,192,77,58,0,16,1,4,8,13,6,9,0,11,0,11,211,127,22,33,340,191,34,41]
[null,"American Indian",5,9,36,30,7,16,0,16,0,11,3,6,3,5,8,15,0,11,41,33,1,5,4,9,0,11]
[null,"Asian &Pacific Is.",11,27.202941017470888,1158,338.85099970340946,733,202.80039447693389,71,84.528101836016646,129,104.58011283222064,203,162.3730273167314,0,15.556349186104045,0,15.556349186104045,0,15.556349186104045,209,141.56623891309678,29,31.953090617340916,606,331.48906467634794,0,15.556349186104045]
[null,"Other*",48,54.589376255824725,818,244.18230894149559,397,144.68241081762497,64,69.856996786291916,7,14.866068747318506,67,55.081757415681643,10,16.278820596099706,41,49.244289008980523,1,11.704699910719626,663,211.74749113035554,46,47.074409183759279,445,238.30442715149042,132,103.27632836231156]
[null,"Hispanic or Latino:",143,142,331,136,257,117,29,37,89,69,28,33,5,8,41,45,9,15,597,228,89,85,575,287,178,136]
[]
[]
[]
["Calculated- B03002. HISPANIC OR LATINO ORIGIN BY RACE"]
["Universe:  TOTAL POPULATION"]
["Data Set: 2005-2009 American Community Survey 5-Year Estimates"]
[]
[null,null,"Barrington",null,"Dover",null,"Durham",null,"Farmington",null,"Lee",null,"Madbury",null,"Middleton",null,"Milton",null,"New Durham",null,"Rochester",null,"Rollinsford",null,"Somersworth",null,"Strafford"]
[null,null,"Estimate","Margin Of Error","Estimate","Margin Of Error","Estimate","Margin Of Error","Estimate","Margin Of Error","Estimate","Margin Of Error","Estimate","Margin Of Error","Estimate","Margin Of Error","Estimate","Margin Of Error","Estimate","Margin Of Error","Estimate","Margin Of Error","Estimate","Margin Of Error","Estimate","Margin Of Error","Estimate","Margin Of Error"]
[null,"Total:",8389,19,28595,21,13991,26,6621,32,4446,14,1857,153,1630,157,4509,19,2516,18,30568,44,2629,37,11876,20,4029,28]
[null,"Not Hispanic or Latino:",8255,123,28252,126,13693,125,6611,35,4380,86,1825,150,1606,163,4476,37,2511,19,30053,205,2605,46,11533,172,4013,33]
[null,"White",8083,162,26362,386,12841,247,6380,168,4282,143,1547,228,1582,166,4401,95,2503,24,29199,346,2504,101,10739,306,3964,67]
[null,"Black",60,88,420,193,124,76,0,114,0,114,0,114,7,9,0,114,8,12,220,109,14,25,92,83,0,114]
[null,"American Indian",14,22,8,16,9,15,0,114,0,114,2,4,0,114,22,32,0,114,75,51,34,51,129,97,0,114]
[null,"Asian &Pacific Is.",54,124.88794977899188,1032,280.84515306481615,520,152.32859219463691,116,172.15400082484288,88,154.31137352768266,214,225.01555501786981,0,161.22034611053283,0,161.22034611053283,0,161.22034611053283,124,156.34896865665601,0,161.22034611053283,266,162.11724152600181,0,161.22034611053283]
[null,"Other*",44,126.57408897558773,430,195.88772294352702,199,151.6443206981389,115,153.63918770938616,10,115.26057435220423,62,41.303752856126764,17,114.85643212288984,53,141.60508465447137,0,161.22034611053283,435,225.87828580897281,53,138.69751259485514,307,164.93938280471406,49,52.630789467763066]
[null,"Hispanic or Latino:",134,122,343,129,298,123,10,15,66,86,32,29,24,25,33,33,5,8,515,202,24,36,343,169,16,20]

{"sheet":"RentalHousingCost","index":49,"n_rows":124,"n_cols":21,"rows_kept":124,"cut":false,"hidden":true,"merged":[]}
[]
[null,null,"HIDE THIS COLUMN",{"$f":"CntyDataLink!A70","v":"Barrington"}]
[]
[null,null,null,"RENTAL HOUSING COST CHARACTERISTICS"]
[]
[]
[]
[]
[]
[]
[]
[]
[]
[]
[]
[]
[]
[]
[]
[]
[]
[]
[]
[]
[]
[]
[]
[]
[]
[]
[]
[]
[]
[]
[]
[]
[]
[]
[null,null,null,"Source:  2015-2019 American Community Survey Table B25074"]
[]
[null,null,null,"Income in 2019  Inflation Adjusted Dollars"]
[null,null,null,"Data from the American Community Survey are estimates"]
[null,null,null,{"$f":"CntyDataLink!A70","v":"Barrington"}]
[]
[null,null,null,{"$f":"D4","v":"RENTAL HOUSING COST CHARACTERISTICS"}]
[]
[null,null,null,"Renter Households by "]
[null,null,null,"Gross Rent as a Percent of 2019 Household Income"]
[null,null,{"$f":"CntyDataLink!AO$69","v":"H73RenterOccHU"},null,null,null,"By Household Income"]
[null,null,null,null,"Specified Renter Occ Housing Units",{"$f":"\"Margin of Error Renter Occupied Units\"","v":"Margin of Error Renter Occupied Units"},null,"Less than $10,000",{"$f":"\"Margin of Error \"&H50","v":"Margin of Error Less than $10,000"},"$10,000 to $19,999",{"$f":"\"Margin of Error \"&J50","v":"Margin of Error $10,000 to $19,999"},"$20,000 to $34,999",{"$f":"\"Margin of Error \"&L50","v":"Margin of Error $20,000 to $34,999"},"$35,000 to $49,999",{"$f":"\"Margin of Error \"&N50","v":"Margin of Error $35,000 to $49,999"},"$50,000 to $74,999",{"$f":"\"Margin of Error \"&P50","v":"Margin of Error $50,000 to $74,999"},"$75,000 to $99,999",{"$f":"\"Margin of Error \"&R50","v":"Margin of Error $75,000 to $99,999"},"$100,000 or More",{"$f":"\"Margin of Error \"&T50","v":"Margin of Error $100,000 or More"}]
[]
[null,null,null,"All Renter Households",{"$f":"CntyDataLink!$B$156","v":279},{"$f":"CntyDataLink!$C$156","v":139},null,{"$f":"CntyDataLink!$BH$148","v":0},{"$f":"CntyDataLink!$BI$148","v":16},{"$f":"CntyDataLink!$BZ$148","v":0},{"$f":"CntyDataLink!$CA$148","v":16},{"$f":"CntyDataLink!$CR$148","v":106},{"$f":"CntyDataLink!$CS$148","v":87},{"$f":"CntyDataLink!$DJ$148","v":0},{"$f":"CntyDataLink!$DK$148","v":16},{"$f":"CntyDataLink!$EB$148","v":85},{"$f":"CntyDataLink!$EC$148","v":105},{"$f":"CntyDataLink!$ET$148","v":69},{"$f":"CntyDataLink!$EU$148","v":67},{"$f":"CntyDataLink!$FL$148","v":19},{"$f":"CntyDataLink!$FM$148","v":32}]
[null,null,null,"Rent Less than 20% of HH Income",{"$f":"CntyDataLink!$D$156","v":60},{"$f":"CntyDataLink!$E$156","v":55.659680200302986},null,{"$f":"CntyDataLink!$BJ$148","v":0},{"$f":"CntyDataLink!$BK$148","v":16},{"$f":"CntyDataLink!$CB$148","v":0},{"$f":"CntyDataLink!$CC$148","v":16},{"$f":"CntyDataLink!$CT$148","v":42},{"$f":"CntyDataLink!$CU$148","v":46},{"$f":"CntyDataLink!$DL$148","v":0},{"$f":"CntyDataLink!$DM$148","v":16},{"$f":"CntyDataLink!$ED$148","v":0},{"$f":"CntyDataLink!$EE$148","v":16},{"$f":"CntyDataLink!$EV$148","v":18},{"$f":"CntyDataLink!$EW$148","v":30},{"$f":"CntyDataLink!$FN$148","v":0},{"$f":"CntyDataLink!$FO$148","v":16}]
[null,null,null,"Rent 20% to 24.9% of HH Income",{"$f":"CntyDataLink!$F$156","v":0},{"$f":"CntyDataLink!$G$156","v":16},null,{"$f":"CntyDataLink!$BL$148","v":0},{"$f":"CntyDataLink!$BM$148","v":16},{"$f":"CntyDataLink!$CD$148","v":0},{"$f":"CntyDataLink!$CE$148","v":16},{"$f":"CntyDataLink!$CV$148","v":0},{"$f":"CntyDataLink!$CW$148","v":16},{"$f":"CntyDataLink!$DN$148","v":0},{"$f":"CntyDataLink!$DO$148","v":16},{"$f":"CntyDataLink!$EF$148","v":0},{"$f":"CntyDataLink!$EG$148","v":16},{"$f":"CntyDataLink!$EX$148","v":0},{"$f":"CntyDataLink!$EY$148","v":16},{"$f":"CntyDataLink!$FP$148","v":0},{"$f":"CntyDataLink!$FQ$148","v":16}]
[null,null,null,"Rent 25% to 29.9% of HH Income",{"$f":"CntyDataLink!$H$156","v":53},{"$f":"CntyDataLink!$I$156","v":62},null,{"$f":"CntyDataLink!$BN$148","v":0},{"$f":"CntyDataLink!$BO$148","v":16},{"$f":"CntyDataLink!$CF$148","v":0},{"$f":"CntyDataLink!$CG$148","v":16},{"$f":"CntyDataLink!$CX$148","v":0},{"$f":"CntyDataLink!$CY$148","v":16},{"$f":"CntyDataLink!$DP$148","v":0},{"$f":"CntyDataLink!$DQ$148","v":16},{"$f":"CntyDataLink!$EH$148","v":0},{"$f":"CntyDataLink!$EI$148","v":16},{"$f":"CntyDataLink!$EZ$148","v":34},{"$f":"CntyDataLink!$FA$148","v":54},{"$f":"CntyDataLink!$FR$148","v":19},{"$f":"CntyDataLink!$FS$148","v":32}]
[null,null,null,"Rent Less Than 30% of HH Income",{"$f":"CntyDataLink!$J$156","v":113},{"$f":"CntyDataLink!$K$156","v":84.841027810841609},null,{"$f":"SUM(H53:H55)","v":0},{"$f":"SQRT((I53^2)+(I54^2)+(I55^2))","v":27.712812921102035},{"$f":"SUM(J53:J55)","v":0},{"$f":"SQRT((K53^2)+(K54^2)+(K55^2))","v":27.712812921102035},{"$f":"SUM(L53:L55)","v":42},{"$f":"SQRT((M53^2)+(M54^2)+(M55^2))","v":51.264022471905186},{"$f":"SUM(N53:N55)","v":0},{"$f":"SQRT((O53^2)+(O54^2)+(O55^2))","v":27.712812921102035},{"$f":"SUM(P53:P55)","v":0},{"$f":"SQRT((Q53^2)+(Q54^2)+(Q55^2))","v":27.712812921102035},{"$f":"SUM(R53:R55)","v":52},{"$f":"SQRT((S53^2)+(S54^2)+(S55^2))","v":63.812224534175265},{"$f":"SUM(T53:T55)","v":19},{"$f":"SQRT((U53^2)+(U54^2)+(U55^2))","v":39.191835884530846}]
[null,null,null,"Rent 30% or More of HH Income",{"$f":"CntyDataLink!$L$156","v":153},{"$f":"CntyDataLink!$M$156","v":130.46838697554284},null,{"$f":"H60+H58","v":0},{"$f":"SQRT((I58^2)+(I60^2))","v":32},{"$f":"J60+J58","v":0},{"$f":"SQRT((K58^2)+(K60^2))","v":32},{"$f":"L60+L58","v":64},{"$f":"SQRT((M58^2)+(M60^2))","v":79.075912893876861},{"$f":"N60+N58","v":0},{"$f":"SQRT((O58^2)+(O60^2))","v":32},72,{"$f":"SQRT((Q58^2)+(Q60^2))","v":107.62899237658968},{"$f":"R60+R58","v":17},{"$f":"SQRT((S58^2)+(S60^2))","v":38},0,{"$f":"SQRT((U58^2)+(U60^2))","v":32}]
[null,null,null,"Rent 30% to 34.9% of HH Income",{"$f":"CntyDataLink!$N$156","v":89},{"$f":"CntyDataLink!$O$156","v":105},null,{"$f":"CntyDataLink!$BP$148","v":0},{"$f":"CntyDataLink!$BQ$148","v":16},{"$f":"CntyDataLink!$CH$148","v":0},{"$f":"CntyDataLink!$CI$148","v":16},{"$f":"CntyDataLink!$CZ$148","v":0},{"$f":"CntyDataLink!$DA$148","v":16},{"$f":"CntyDataLink!$DR$148","v":0},{"$f":"CntyDataLink!$DS$148","v":16},{"$f":"CntyDataLink!$EJ$148","v":72},{"$f":"CntyDataLink!$EK$148","v":104},{"$f":"CntyDataLink!$FB$148","v":17},{"$f":"CntyDataLink!$FC$148","v":26},{"$f":"CntyDataLink!$FT$148","v":0},{"$f":"CntyDataLink!$FU$148","v":16}]
[null,null,null,"Rent Less Than 35% of HH Income",{"$f":"CntyDataLink!$P$156","v":202},{"$f":"CntyDataLink!$Q$156","v":134.9925923893604},null,{"$f":"SUM(H56,H58)","v":0},{"$f":"SQRT((I56^2)+(I58^2))","v":32},{"$f":"SUM(J56,J58)","v":0},{"$f":"SQRT((K56^2)+(K58^2))","v":32},{"$f":"SUM(L56,L58)","v":42},{"$f":"SQRT((M56^2)+(M58^2))","v":53.702886328390207},0,43.712812921102035,72,{"$f":"SQRT((Q58^2)+(Q56^2))","v":107.62899237658968},{"$f":"SUM(R56,R58)","v":69},{"$f":"SQRT((S58^2)+(S56^2))","v":68.905732707808866},19,{"$f":"SQRT((U58^2)+(U56^2))","v":42.332020977033444}]
[null,null,null,"Rent 35% or More of HH Income",{"$f":"CntyDataLink!$R$156","v":64},{"$f":"CntyDataLink!$S$156","v":77.440299586197369},null,{"$f":"CntyDataLink!$BR$148+CntyDataLink!$BT$148+CntyDataLink!$BV$148","v":0},{"$f":"SQRT((CntyDataLink!$BS$148^2)+(CntyDataLink!$BU$148^2)+(CntyDataLink!$BW$148^2))","v":27.712812921102035},{"$f":"CntyDataLink!$CJ$148+CntyDataLink!$CL$148+CntyDataLink!$CN$148","v":0},{"$f":"SQRT((CntyDataLink!$CK$148^2)+(CntyDataLink!$CM$148^2)+(CntyDataLink!$CO$148^2))","v":27.712812921102035},{"$f":"CntyDataLink!$DB$148+CntyDataLink!$DD$148+CntyDataLink!$DF$148","v":64},{"$f":"SQRT((CntyDataLink!$DC$148^2)+(CntyDataLink!$DE$148^2)+(CntyDataLink!$DG$148^2))","v":77.440299586197369},{"$f":"CntyDataLink!$DT$148+CntyDataLink!$DV$148+CntyDataLink!$DX$148","v":0},{"$f":"SQRT((CntyDataLink!$DU$148^2)+(CntyDataLink!$DW$148^2)+(CntyDataLink!$DY$148^2))","v":27.712812921102035},{"$f":"CntyDataLink!$EL$148+CntyDataLink!$EN$148+CntyDataLink!$EP$148","v":0},{"$f":"SQRT((CntyDataLink!$EM$148^2)+(CntyDataLink!$EO$148^2)+(CntyDataLink!$EQ$148^2))","v":27.712812921102035},{"$f":"CntyDataLink!$FD$148+CntyDataLink!$FF$148+CntyDataLink!$FH$148","v":0},{"$f":"SQRT((CntyDataLink!$FE$148^2)+(CntyDataLink!$FG$148^2)+(CntyDataLink!$FI$148^2))","v":27.712812921102035},{"$f":"CntyDataLink!$FV$148+CntyDataLink!$FX$148+CntyDataLink!$FZ$148","v":0},{"$f":"SQRT((CntyDataLink!$FW$148^2)+(CntyDataLink!$FY$148^2)+(CntyDataLink!$GA$148^2))","v":27.712812921102035}]
[null,null,null,"Rent 50% or More of HH Income",{"$f":"CntyDataLink!$T$156","v":45},{"$f":"CntyDataLink!$U$156","v":70},null,{"$f":"CntyDataLink!$BV$148","v":0},{"$f":"CntyDataLink!$BW$148","v":16},{"$f":"CntyDataLink!$CN$148","v":0},{"$f":"CntyDataLink!$CO$148","v":16},{"$f":"CntyDataLink!$DF$148","v":45},{"$f":"CntyDataLink!$DG$148","v":70},{"$f":"CntyDataLink!$DX$148","v":0},{"$f":"CntyDataLink!$DY$148","v":16},{"$f":"CntyDataLink!$EP$148","v":0},{"$f":"CntyDataLink!$EQ$148","v":16},{"$f":"CntyDataLink!$FH$148","v":0},{"$f":"CntyDataLink!$FI$148","v":16},{"$f":"CntyDataLink!$FZ$148","v":0},{"$f":"CntyDataLink!$GA$148","v":16}]
[null,null,null,"Percent not computed",{"$f":"CntyDataLink!$V$156","v":13},{"$f":"CntyDataLink!$W$156","v":22},null,{"$f":"CntyDataLink!$BX$148","v":0},{"$f":"CntyDataLink!$BY$148","v":16},{"$f":"CntyDataLink!$CP$148","v":0},{"$f":"CntyDataLink!$CQ$148","v":16},{"$f":"CntyDataLink!$DH$148","v":0},{"$f":"CntyDataLink!$DI$148","v":16},{"$f":"CntyDataLink!$DZ$148","v":0},{"$f":"CntyDataLink!$EA$148","v":16},{"$f":"CntyDataLink!$ER$148","v":13},{"$f":"CntyDataLink!$ES$148","v":22},{"$f":"CntyDataLink!$FJ$148","v":0},{"$f":"CntyDataLink!$FK$148","v":16},{"$f":"CntyDataLink!$GB$148","v":0},{"$f":"CntyDataLink!$GC148","v":16}]
[]
[]
[]
[null,null,null,"Percent of Households Paying ",null,null,null,"By Household Income"]
[null,null,null,{"$f":"D56","v":"Rent Less Than 30% of HH Income"},{"$f":"E56/E$52","v":0.4050179211469534},null,null,{"$f":"H56/H$52","v":{"$error":"#DIV/0!"}},null,{"$f":"J56/J$52","v":{"$error":"#DIV/0!"}},null,{"$f":"L56/L$52","v":0.39622641509433965},null,{"$f":"N56/N$52","v":{"$error":"#DIV/0!"}},null,{"$f":"P56/P$52","v":0},null,{"$f":"R56/R$52","v":0.75362318840579712},null,{"$f":"T56/T$52","v":1}]
[null,null,null,{"$f":"D57","v":"Rent 30% or More of HH Income"},{"$f":"E57/E$52","v":0.54838709677419351},null,null,{"$f":"H57/H$52","v":{"$error":"#DIV/0!"}},null,{"$f":"J57/J$52","v":{"$error":"#DIV/0!"}},null,{"$f":"L57/L$52","v":0.60377358490566035},null,{"$f":"N57/N$52","v":{"$error":"#DIV/0!"}},null,{"$f":"P57/P$52","v":0.84705882352941175},null,{"$f":"R57/R$52","v":0.24637681159420291},null,{"$f":"T57/T$52","v":0}]
[null,null,null,{"$f":"D59","v":"Rent Less Than 35% of HH Income"},{"$f":"E59/E$52","v":0.72401433691756267},null,null,{"$f":"H59/H$52","v":{"$error":"#DIV/0!"}},null,{"$f":"J59/J$52","v":{"$error":"#DIV/0!"}},null,{"$f":"L59/L$52","v":0.39622641509433965},null,{"$f":"N59/N$52","v":{"$error":"#DIV/0!"}},null,{"$f":"P59/P$52","v":0.84705882352941175},null,{"$f":"R59/R$52","v":1},null,{"$f":"T59/T$52","v":1}]
[null,null,null,{"$f":"D60","v":"Rent 35% or More of HH Income"},{"$f":"E60/E$52","v":0.22939068100358423},null,null,{"$f":"H60/H$52","v":{"$error":"#DIV/0!"}},null,{"$f":"J60/J$52","v":{"$error":"#DIV/0!"}},null,{"$f":"L60/L$52","v":0.60377358490566035},null,{"$f":"N60/N$52","v":{"$error":"#DIV/0!"}},null,{"$f":"P60/P$52","v":0},null,{"$f":"R60/R$52","v":0},null,{"$f":"T60/T$52","v":0}]
[null,null,null,"Rent 50% or More of HH Income",{"$f":"E61/E$52","v":0.16129032258064516},null,null,{"$f":"H61/H$52","v":{"$error":"#DIV/0!"}},null,{"$f":"J61/J$52","v":{"$error":"#DIV/0!"}},null,{"$f":"L61/L$52","v":0.42452830188679247},null,{"$f":"N61/N$52","v":{"$error":"#DIV/0!"}},null,{"$f":"P61/P$52","v":0},null,{"$f":"R61/R$52","v":0},null,{"$f":"T61/T$52","v":0}]
[null,null,null,"Percent not computed",{"$f":"E62/E$52","v":4.6594982078853049E-2},null,null,{"$f":"H62/H$52","v":{"$error":"#DIV/0!"}},null,{"$f":"J62/J$52","v":{"$error":"#DIV/0!"}},null,{"$f":"L62/L$52","v":0},null,{"$f":"N62/N$52","v":{"$error":"#DIV/0!"}},null,{"$f":"P62/P$52","v":0.15294117647058825},null,{"$f":"R62/R$52","v":0},null,{"$f":"T62/T$52","v":0}]
[]
[]
[null,null,null,"Source:  2015-2019 American Community Survey Table B25070; B25074"]
[]
[null,null,null,{"$f":"D41","v":"Income in 2019  Inflation Adjusted Dollars"}]
[null,null,null,"Data from the American Community Survey are estimates"]
[]
[null,null,null,{"$f":"CntyDataLink!A70","v":"Barrington"}]
[null,null,null,{"$f":"D4","v":"RENTAL HOUSING COST CHARACTERISTICS"}]
[]
[null,null,null,"Rental Housing Costs"]
[]
[null,null,null,"Renter Occupied Housing Units By Gross Rent "]
[]
[null,null,null,null,"Units","Margin of Error"]
[null,null,{"$f":"CntyDataLink!E$69","v":"H62RntrOccHU"},"Specified Renter Occ Housing Units",{"$f":"CntyDataLink!$B$148","v":279},{"$f":"CntyDataLink!$C$148","v":139}]
[null,null,{"$f":"CntyDataLink!F$69","v":"H62RntrOccHUwRent"},"Renter Occ. Housing Units w/ Cash Rent",{"$f":"CntyDataLink!$D$148","v":266},{"$f":"CntyDataLink!$E$148","v":138}]
[]
[null,null,{"$f":"CntyDataLink!G$69","v":"H62ROHUGRent<100"},"Gross Rent","Units","Margin of Error 2015-2019"]
[null,null,{"$f":"CntyDataLink!H$69","v":"H62ROHUGRent100to149"},"Less than $100",{"$f":"CntyDataLink!$F$148","v":15},{"$f":"CntyDataLink!$G$148","v":21}]
[null,null,{"$f":"CntyDataLink!I$69","v":"H62ROHUGRent150to199"},"$100 to $149",{"$f":"CntyDataLink!$H$148","v":0},{"$f":"CntyDataLink!$I$148","v":16}]
[null,null,{"$f":"CntyDataLink!J$69","v":"H62ROHUGRent200to249"},"$150 to $199",{"$f":"CntyDataLink!J$148","v":0},{"$f":"CntyDataLink!$K$148","v":16}]
[null,null,{"$f":"CntyDataLink!K$69","v":"H62ROHUGRent250to299"},"$200 to $249",{"$f":"CntyDataLink!$L$148","v":0},{"$f":"CntyDataLink!$M$148","v":16}]
[null,null,{"$f":"CntyDataLink!L$69","v":"H62ROHUGRent300to349"},"$250 to $299",{"$f":"CntyDataLink!$N$148","v":0},{"$f":"CntyDataLink!$O$148","v":16}]
[null,null,{"$f":"CntyDataLink!M$69","v":"H62ROHUGRent350to399"},"$300 to $349",{"$f":"CntyDataLink!$P$148","v":0},{"$f":"CntyDataLink!$Q$148","v":16}]
[null,null,{"$f":"CntyDataLink!N$69","v":"H62ROHUGRent400to449"},"$350 to $399",{"$f":"CntyDataLink!$R$148","v":0},{"$f":"CntyDataLink!$S$148","v":16}]
[null,null,{"$f":"CntyDataLink!O$69","v":"H62ROHUGRent450to499"},"$400 to $449",{"$f":"CntyDataLink!$T$148","v":0},{"$f":"CntyDataLink!$U$148","v":16}]
[null,null,{"$f":"CntyDataLink!P$69","v":"H62ROHUGRent500to549"},"$450 to $499",{"$f":"CntyDataLink!$V$148","v":0},{"$f":"CntyDataLink!$W$148","v":16}]
[null,null,{"$f":"CntyDataLink!Q$69","v":"H62ROHUGRent550to599"},"$500 to $549",{"$f":"CntyDataLink!$X$148","v":27},{"$f":"CntyDataLink!$Y$148","v":40}]
[null,null,{"$f":"CntyDataLink!R$69","v":"H62ROHUGRent600to649"},"$550 to $599",{"$f":"CntyDataLink!$Z$148","v":0},{"$f":"CntyDataLink!$AA$148","v":16}]
[null,null,{"$f":"CntyDataLink!S$69","v":"H62ROHUGRent650to699"},"$600 to $649",{"$f":"CntyDataLink!$AB$148","v":0},{"$f":"CntyDataLink!$AC$148","v":16}]
[null,null,{"$f":"CntyDataLink!T$69","v":"H62ROHUGRent700to749"},"$650 to $699",{"$f":"CntyDataLink!$AD$148","v":0},{"$f":"CntyDataLink!$AE$148","v":16}]
[null,null,{"$f":"CntyDataLink!U$69","v":"H62ROHUGRent750to799"},"$700 to $749",{"$f":"CntyDataLink!$AF$148","v":0},{"$f":"CntyDataLink!$AG$148","v":16}]
[null,null,{"$f":"CntyDataLink!V$69","v":"H62ROHUGRent800to899"},"$750 to $799",{"$f":"CntyDataLink!$AH$148","v":0},{"$f":"CntyDataLink!$AI$148","v":16}]
[null,null,{"$f":"CntyDataLink!W$69","v":"H62ROHUGRent900to999"},"$800 to $899",{"$f":"CntyDataLink!$AJ$148","v":19},{"$f":"CntyDataLink!$AK$148","v":29}]
[null,null,{"$f":"CntyDataLink!X$69","v":"H62ROHUGRent1000to1249"},"$900 to $999",{"$f":"CntyDataLink!$AL$148","v":0},{"$f":"CntyDataLink!$AM$148","v":16}]
[null,null,{"$f":"CntyDataLink!Y$69","v":"H62ROHUGRent1250to1499"},"$1000 to $1249",{"$f":"CntyDataLink!$AN$148","v":18},{"$f":"CntyDataLink!$AO$148","v":30}]
[null,null,{"$f":"CntyDataLink!Z$69","v":"H62ROHUGRent1500to1999"},"$1250 to $1499",{"$f":"CntyDataLink!$AP$148","v":0},{"$f":"CntyDataLink!$AQ$148","v":16}]
[null,null,{"$f":"CntyDataLink!AA$69","v":"H62ROHUGRent2000>"},"$1500 to $1999",{"$f":"CntyDataLink!$AR$148","v":151},{"$f":"CntyDataLink!$AS$148","v":111}]
[null,null,{"$f":"CntyDataLink!AB$69","v":"H62ROHUNoGRent"},"$2,000 to $2,499",{"$f":"CntyDataLink!$AT$148","v":17},{"$f":"CntyDataLink!$AU$148","v":26}]
[null,null,{"$f":"CntyDataLink!AC$69","v":"H63MedianGrossRnt"},"$2,500 to $2,999",{"$f":"CntyDataLink!$AV$148","v":0},{"$f":"CntyDataLink!$AW$148","v":16}]
[null,null,null,"$3,000 to $3,499",{"$f":"CntyDataLink!$AX$148","v":19},{"$f":"CntyDataLink!$AY$148","v":32}]
[null,null,null,"$3,500 or more",{"$f":"CntyDataLink!$AZ$148","v":0},{"$f":"CntyDataLink!$BA$148","v":16}]
[null,null,null,"Renter Occ. Housing Units w/ No Cash Rent",{"$f":"CntyDataLink!$BB$148","v":13},{"$f":"CntyDataLink!$BC$148","v":22}]
[]
[null,null,null,"Median Gross Rent",{"$f":"CntyDataLink!$BD$148","v":1679},{"$f":"CntyDataLink!$BE$148","v":145}]
[]
[]
[]
[]
[null,null,null,"Source: 2015-2019 American Community Survey Table B25063; B25064"]
[null,null,null,"Data from the American Community Survey are estimates"]

{"sheet":"RentalHousingCost-Prior5Yr","index":50,"n_rows":76,"n_cols":21,"rows_kept":76,"cut":false,"hidden":true,"merged":[]}
[]
[null,null,"HIDE THIS COLUMN",{"$f":"CntyDataLink!A70","v":"Barrington"}]
[]
[null,null,null,"RENTAL HOUSING COST CHARACTERISTICS"]
[]
[]
[]
[]
[]
[]
[]
[]
[]
[]
[]
[]
[]
[]
[]
[]
[]
[]
[]
[]
[]
[]
[]
[]
[]
[]
[]
[]
[]
[]
[]
[]
[]
[]
[null,null,null,"Source:  2010-2014 American Community Survey Table B25074"]
[]
[null,null,null,"Income in 2014 Inflation Adjusted Dollars"]
[null,null,null,"Data from the American Community Survey are estimates"]
[null,null,null,{"$f":"CntyDataLinkPrior5YearEstimates!A120","v":"Barrington"}]
[]
[null,null,null,{"$f":"D4","v":"RENTAL HOUSING COST CHARACTERISTICS"}]
[]
[null,null,null,"Renter Households by "]
[null,null,null,"Gross Rent as a Percent of 2014 Household Income"]
[null,null,null,null,null,null,"By Household Income"]
[null,null,{"$f":"CntyDataLinkPrior5YearEstimates!AO$69","v":"H73RenterOccHU"},null,"Specified Renter Occ Housing Units",{"$f":"\"Margin of Error Renter Occupied Units\"","v":"Margin of Error Renter Occupied Units"},null,"Less than $10,000",{"$f":"\"Margin of Error \"&H50","v":"Margin of Error Less than $10,000"},"$10,000 to $19,999",{"$f":"\"Margin of Error \"&J50","v":"Margin of Error $10,000 to $19,999"},"$20,000 to $34,999",{"$f":"\"Margin of Error \"&L50","v":"Margin of Error $20,000 to $34,999"},"$35,000 to $49,999",{"$f":"\"Margin of Error \"&N50","v":"Margin of Error $35,000 to $49,999"},"$50,000 to $74,999",{"$f":"\"Margin of Error \"&P50","v":"Margin of Error $50,000 to $74,999"},"$75,000 to $99,999",{"$f":"\"Margin of Error \"&R50","v":"Margin of Error $75,000 to $99,999"},"$100,000 or More",{"$f":"\"Margin of Error \"&T50","v":"Margin of Error $100,000 or More"}]
[]
[null,null,null,"All Renter Households",{"$f":"CntyDataLinkPrior5YearEstimates!$B$156","v":359},{"$f":"CntyDataLinkPrior5YearEstimates!$C$156","v":153},null,{"$f":"CntyDataLinkPrior5YearEstimates!$BB$148","v":10},{"$f":"CntyDataLinkPrior5YearEstimates!$BC$148","v":17},{"$f":"CntyDataLinkPrior5YearEstimates!$BT$148","v":122},{"$f":"CntyDataLinkPrior5YearEstimates!$BU$148","v":92},{"$f":"CntyDataLinkPrior5YearEstimates!$CL$148","v":13},{"$f":"CntyDataLinkPrior5YearEstimates!$CM$148","v":20},{"$f":"CntyDataLinkPrior5YearEstimates!$DD$148","v":101},{"$f":"CntyDataLinkPrior5YearEstimates!$DE$148","v":96},{"$f":"CntyDataLinkPrior5YearEstimates!$DV$148","v":46},{"$f":"CntyDataLinkPrior5YearEstimates!$DW$148","v":51},{"$f":"CntyDataLinkPrior5YearEstimates!$EN$148","v":12},{"$f":"CntyDataLinkPrior5YearEstimates!$EO$148","v":22},{"$f":"CntyDataLinkPrior5YearEstimates!$FF$148","v":55},{"$f":"CntyDataLinkPrior5YearEstimates!$FG$148","v":52}]
[null,null,null,"Rent Less than 20% of HH Income",{"$f":"CntyDataLinkPrior5YearEstimates!$D$156","v":108},{"$f":"CntyDataLinkPrior5YearEstimates!$E$156","v":84.793867702800299},null,{"$f":"CntyDataLinkPrior5YearEstimates!$BD$148","v":0},{"$f":"CntyDataLinkPrior5YearEstimates!$BE$148","v":15},{"$f":"CntyDataLinkPrior5YearEstimates!$BV$148","v":0},{"$f":"CntyDataLinkPrior5YearEstimates!$BW$148","v":15},{"$f":"CntyDataLinkPrior5YearEstimates!$CN$148","v":0},{"$f":"CntyDataLinkPrior5YearEstimates!$CO$148","v":15},{"$f":"CntyDataLinkPrior5YearEstimates!$DF$148","v":53},{"$f":"CntyDataLinkPrior5YearEstimates!$DG$148","v":67},{"$f":"CntyDataLinkPrior5YearEstimates!$DX$148","v":0},{"$f":"CntyDataLinkPrior5YearEstimates!$DY$148","v":15},{"$f":"CntyDataLinkPrior5YearEstimates!$EP$148","v":0},{"$f":"CntyDataLinkPrior5YearEstimates!$EQ$148","v":15},{"$f":"CntyDataLinkPrior5YearEstimates!$FH$148","v":55},{"$f":"CntyDataLinkPrior5YearEstimates!$FI$148","v":52}]
[null,null,null,"Rent 20% to 24.9% of HH Income",{"$f":"CntyDataLinkPrior5YearEstimates!$F$156","v":0},{"$f":"CntyDataLinkPrior5YearEstimates!$G$156","v":15},null,{"$f":"CntyDataLinkPrior5YearEstimates!$BF$148","v":0},{"$f":"CntyDataLinkPrior5YearEstimates!$BG$148","v":15},{"$f":"CntyDataLinkPrior5YearEstimates!$BX$148","v":0},{"$f":"CntyDataLinkPrior5YearEstimates!$BY$148","v":15},{"$f":"CntyDataLinkPrior5YearEstimates!$CP$148","v":0},{"$f":"CntyDataLinkPrior5YearEstimates!$CQ$148","v":15},{"$f":"CntyDataLinkPrior5YearEstimates!$DH$148","v":0},{"$f":"CntyDataLinkPrior5YearEstimates!$DI$148","v":15},{"$f":"CntyDataLinkPrior5YearEstimates!$DZ$148","v":0},{"$f":"CntyDataLinkPrior5YearEstimates!$EA$148","v":15},{"$f":"CntyDataLinkPrior5YearEstimates!$ER$148","v":0},{"$f":"CntyDataLinkPrior5YearEstimates!$ES$148","v":15},{"$f":"CntyDataLinkPrior5YearEstimates!$FJ$148","v":0},{"$f":"CntyDataLinkPrior5YearEstimates!$FK$148","v":15}]
[null,null,null,"Rent 25% to 29.9% of HH Income",{"$f":"CntyDataLinkPrior5YearEstimates!$H$156","v":46},{"$f":"CntyDataLinkPrior5YearEstimates!$I$156","v":51},null,{"$f":"CntyDataLinkPrior5YearEstimates!$BH$148","v":0},{"$f":"CntyDataLinkPrior5YearEstimates!$BI$148","v":15},{"$f":"CntyDataLinkPrior5YearEstimates!$BZ$148","v":0},{"$f":"CntyDataLinkPrior5YearEstimates!$CA$148","v":15},{"$f":"CntyDataLinkPrior5YearEstimates!$CR$148","v":0},{"$f":"CntyDataLinkPrior5YearEstimates!$CS$148","v":15},{"$f":"CntyDataLinkPrior5YearEstimates!$DJ$148","v":0},{"$f":"CntyDataLinkPrior5YearEstimates!$DK$148","v":15},{"$f":"CntyDataLinkPrior5YearEstimates!$EB$148","v":46},{"$f":"CntyDataLinkPrior5YearEstimates!$EC$148","v":51},{"$f":"CntyDataLinkPrior5YearEstimates!$ET$148","v":0},{"$f":"CntyDataLinkPrior5YearEstimates!$EU$148","v":15},{"$f":"CntyDataLinkPrior5YearEstimates!$FL$148","v":0},{"$f":"CntyDataLinkPrior5YearEstimates!$FM$148","v":15}]
[null,null,null,"Rent Less Than 30% of HH Income",{"$f":"CntyDataLinkPrior5YearEstimates!$J$156","v":154},{"$f":"CntyDataLinkPrior5YearEstimates!$K$156","v":100.07996802557443},null,{"$f":"SUM(H53:H55)","v":0},{"$f":"SQRT((I53^2)+(I54^2)+(I55^2))","v":25.98076211353316},{"$f":"SUM(J53:J55)","v":0},{"$f":"SQRT((K53^2)+(K54^2)+(K55^2))","v":25.98076211353316},{"$f":"SUM(L53:L55)","v":0},{"$f":"SQRT((M53^2)+(M54^2)+(M55^2))","v":25.98076211353316},{"$f":"SUM(N53:N55)","v":53},{"$f":"SQRT((O53^2)+(O54^2)+(O55^2))","v":70.278019323256402},{"$f":"SUM(P53:P55)","v":46},{"$f":"SQRT((Q53^2)+(Q54^2)+(Q55^2))","v":55.235857918565905},{"$f":"SUM(R53:R55)","v":0},{"$f":"SQRT((S53^2)+(S54^2)+(S55^2))","v":25.98076211353316},{"$f":"SUM(T53:T55)","v":55},{"$f":"SQRT((U53^2)+(U54^2)+(U55^2))","v":56.160484328395889}]
[null,null,null,"Rent 30% or More of HH Income",{"$f":"CntyDataLinkPrior5YearEstimates!$L$156","v":170},{"$f":"CntyDataLinkPrior5YearEstimates!$M$156","v":108.30512453249847},null,{"$f":"H60+H58","v":10},{"$f":"SQRT((I58^2)+(I60^2))","v":31.048349392520048},{"$f":"J60+J58","v":87},{"$f":"SQRT((K58^2)+(K60^2))","v":76.54410493303844},{"$f":"L60+L58","v":13},{"$f":"SQRT((M58^2)+(M60^2))","v":32.787192621510002},{"$f":"N60+N58","v":48},{"$f":"SQRT((O58^2)+(O60^2))","v":77.485482511242068},0,{"$f":"SQRT((Q58^2)+(Q60^2))","v":30},{"$f":"R60+R58","v":12},{"$f":"SQRT((S58^2)+(S60^2))","v":34.044089061098404},0,{"$f":"SQRT((U58^2)+(U60^2))","v":30}]
[null,null,null,"Rent 30% to 34.9% of HH Income",{"$f":"CntyDataLinkPrior5YearEstimates!$N$156","v":60},{"$f":"CntyDataLinkPrior5YearEstimates!$O$156","v":76},null,{"$f":"CntyDataLinkPrior5YearEstimates!$BJ$148","v":0},{"$f":"CntyDataLinkPrior5YearEstimates!$BK$148","v":15},{"$f":"CntyDataLinkPrior5YearEstimates!$CB$148","v":0},{"$f":"CntyDataLinkPrior5YearEstimates!$CC$148","v":15},{"$f":"CntyDataLinkPrior5YearEstimates!$CT$148","v":0},{"$f":"CntyDataLinkPrior5YearEstimates!$CU$148","v":15},{"$f":"CntyDataLinkPrior5YearEstimates!$DL$148","v":48},{"$f":"CntyDataLinkPrior5YearEstimates!$DM$148","v":73},{"$f":"CntyDataLinkPrior5YearEstimates!$ED$148","v":0},{"$f":"CntyDataLinkPrior5YearEstimates!$EE$148","v":15},{"$f":"CntyDataLinkPrior5YearEstimates!$EV$148","v":12},{"$f":"CntyDataLinkPrior5YearEstimates!$EW$148","v":22},{"$f":"CntyDataLinkPrior5YearEstimates!$FN$148","v":0},{"$f":"CntyDataLinkPrior5YearEstimates!$FO$148","v":15}]
[null,null,null,"Rent Less Than 35% of HH Income",{"$f":"CntyDataLinkPrior5YearEstimates!$P$156","v":214},{"$f":"CntyDataLinkPrior5YearEstimates!$Q$156","v":125.66622457924007},null,{"$f":"SUM(H56,H58)","v":0},{"$f":"SQRT((I56^2)+(I58^2))","v":30},{"$f":"SUM(J56,J58)","v":0},{"$f":"SQRT((K56^2)+(K58^2))","v":30},{"$f":"SUM(L56,L58)","v":0},{"$f":"SQRT((M56^2)+(M58^2))","v":30},101,143.27801932325639,46,{"$f":"SQRT((Q58^2)+(Q56^2))","v":57.23635208501674},{"$f":"SUM(R56,R58)","v":12},{"$f":"SQRT((S58^2)+(S56^2))","v":34.044089061098404},55,{"$f":"SQRT((U58^2)+(U56^2))","v":58.129166517334482}]
[null,null,null,"Rent 35% or More of HH Income",{"$f":"CntyDataLinkPrior5YearEstimates!$R$156","v":110},{"$f":"CntyDataLinkPrior5YearEstimates!$S$156","v":77.1621668954417},null,{"$f":"CntyDataLinkPrior5YearEstimates!$BL$148+CntyDataLinkPrior5YearEstimates!$BN$148+CntyDataLinkPrior5YearEstimates!$BP$148","v":10},{"$f":"SQRT((CntyDataLinkPrior5YearEstimates!$BM$148^2)+(CntyDataLinkPrior5YearEstimates!$BO$148^2)+(CntyDataLinkPrior5YearEstimates!$BQ$148^2))","v":27.184554438136374},{"$f":"CntyDataLinkPrior5YearEstimates!$CD$148+CntyDataLinkPrior5YearEstimates!$CF$148+CntyDataLinkPrior5YearEstimates!$CH$148","v":87},{"$f":"SQRT((CntyDataLinkPrior5YearEstimates!$CE$148^2)+(CntyDataLinkPrior5YearEstimates!$CG$148^2)+(CntyDataLinkPrior5YearEstimates!$CI$148^2))","v":75.059976019180823},{"$f":"CntyDataLinkPrior5YearEstimates!$CV$148+CntyDataLinkPrior5YearEstimates!$CX$148+CntyDataLinkPrior5YearEstimates!$CZ$148","v":13},{"$f":"SQRT((CntyDataLinkPrior5YearEstimates!$CW$148^2)+(CntyDataLinkPrior5YearEstimates!$CY$148^2)+(CntyDataLinkPrior5YearEstimates!$DA$148^2))","v":29.154759474226502},{"$f":"CntyDataLinkPrior5YearEstimates!$DN$148+CntyDataLinkPrior5YearEstimates!$DP$148+CntyDataLinkPrior5YearEstimates!$DR$148","v":0},{"$f":"SQRT((CntyDataLinkPrior5YearEstimates!$DO$148^2)+(CntyDataLinkPrior5YearEstimates!$DQ$148^2)+(CntyDataLinkPrior5YearEstimates!$DS$148^2))","v":25.98076211353316},{"$f":"CntyDataLinkPrior5YearEstimates!$EF$148+CntyDataLinkPrior5YearEstimates!$EH$148+CntyDataLinkPrior5YearEstimates!$EJ$148","v":0},{"$f":"SQRT((CntyDataLinkPrior5YearEstimates!$EG$148^2)+(CntyDataLinkPrior5YearEstimates!$EI$148^2)+(CntyDataLinkPrior5YearEstimates!$EK$148^2))","v":25.98076211353316},{"$f":"CntyDataLinkPrior5YearEstimates!$EX$148+CntyDataLinkPrior5YearEstimates!$EZ$148+CntyDataLinkPrior5YearEstimates!$FB$148","v":0},{"$f":"SQRT((CntyDataLinkPrior5YearEstimates!$EY$148^2)+(CntyDataLinkPrior5YearEstimates!$FA$148^2)+(CntyDataLinkPrior5YearEstimates!$FC$148^2))","v":25.98076211353316},{"$f":"CntyDataLinkPrior5YearEstimates!$FP$148+CntyDataLinkPrior5YearEstimates!$FR$148+CntyDataLinkPrior5YearEstimates!$FT$148","v":0},{"$f":"SQRT((CntyDataLinkPrior5YearEstimates!$FQ$148^2)+(CntyDataLinkPrior5YearEstimates!$FS$148^2)+(CntyDataLinkPrior5YearEstimates!$FU$148^2))","v":25.98076211353316}]
[null,null,null,"Percent not computed",{"$f":"CntyDataLinkPrior5YearEstimates!$V$156","v":35},{"$f":"CntyDataLinkPrior5YearEstimates!$W$156","v":57},null,{"$f":"CntyDataLinkPrior5YearEstimates!$BR$148","v":0},{"$f":"CntyDataLinkPrior5YearEstimates!$BS$148","v":15},{"$f":"CntyDataLinkPrior5YearEstimates!$CJ$148","v":35},{"$f":"CntyDataLinkPrior5YearEstimates!$CK$148","v":57},{"$f":"CntyDataLinkPrior5YearEstimates!$DB$148","v":0},{"$f":"CntyDataLinkPrior5YearEstimates!$DC$148","v":15},{"$f":"CntyDataLinkPrior5YearEstimates!$DT$148","v":0},{"$f":"CntyDataLinkPrior5YearEstimates!$DU$148","v":15},{"$f":"CntyDataLinkPrior5YearEstimates!$EL$148","v":0},{"$f":"CntyDataLinkPrior5YearEstimates!$EM$148","v":15},{"$f":"CntyDataLinkPrior5YearEstimates!$FD$148","v":0},{"$f":"CntyDataLinkPrior5YearEstimates!$FE$148","v":15},{"$f":"CntyDataLinkPrior5YearEstimates!$FV$148","v":0},{"$f":"CntyDataLinkPrior5YearEstimates!$FW149","v":0}]
[]
[]
[]
[null,null,null,"Percent of Households Paying ",null,null,null,"By Household Income"]
[null,null,null,{"$f":"D56","v":"Rent Less Than 30% of HH Income"},{"$f":"E56/E$52","v":0.42896935933147634},null,null,{"$f":"H56/H$52","v":0},null,{"$f":"J56/J$52","v":0},null,{"$f":"L56/L$52","v":0},null,{"$f":"N56/N$52","v":0.52475247524752477},null,{"$f":"P56/P$52","v":1},null,{"$f":"R56/R$52","v":0},null,{"$f":"T56/T$52","v":1}]
[null,null,null,{"$f":"D57","v":"Rent 30% or More of HH Income"},{"$f":"E57/E$52","v":0.47353760445682452},null,null,{"$f":"H57/H$52","v":1},null,{"$f":"J57/J$52","v":0.71311475409836067},null,{"$f":"L57/L$52","v":1},null,{"$f":"N57/N$52","v":0.47524752475247523},null,{"$f":"P57/P$52","v":0},null,{"$f":"R57/R$52","v":1},null,{"$f":"T57/T$52","v":0}]
[null,null,null,{"$f":"D59","v":"Rent Less Than 35% of HH Income"},{"$f":"E59/E$52","v":0.59610027855153203},null,null,{"$f":"H59/H$52","v":0},null,{"$f":"J59/J$52","v":0},null,{"$f":"L59/L$52","v":0},null,{"$f":"N59/N$52","v":1},null,{"$f":"P59/P$52","v":1},null,{"$f":"R59/R$52","v":1},null,{"$f":"T59/T$52","v":1}]
[null,null,null,{"$f":"D60","v":"Rent 35% or More of HH Income"},{"$f":"E60/E$52","v":0.30640668523676878},null,null,{"$f":"H60/H$52","v":1},null,{"$f":"J60/J$52","v":0.71311475409836067},null,{"$f":"L60/L$52","v":1},null,{"$f":"N60/N$52","v":0},null,{"$f":"P60/P$52","v":0},null,{"$f":"R60/R$52","v":0},null,{"$f":"T60/T$52","v":0}]
[null,null,null,"Percent not computed",{"$f":"E61/E$52","v":9.7493036211699163E-2},null,null,{"$f":"H61/H$52","v":0},null,{"$f":"J61/J$52","v":0.28688524590163933},null,{"$f":"L61/L$52","v":0},null,{"$f":"N61/N$52","v":0},null,{"$f":"P61/P$52","v":0},null,{"$f":"R61/R$52","v":0},null,{"$f":"T61/T$52","v":0}]
[]
[]
[null,null,null,"Source:  2010-2014 American Community Survey Table B25070; B25074"]
[]
[null,null,null,{"$f":"D41","v":"Income in 2014 Inflation Adjusted Dollars"}]
[null,null,null,"Data from the American Community Survey are estimates"]

{"sheet":"ACS_Table_B25063_&_B25064","index":51,"n_rows":159,"n_cols":28,"rows_kept":159,"cut":false,"hidden":true,"merged":[]}
[null,"B25063. GROSS RENT"]
[null,"Universe:  RENTER-OCCUPIED HOUSING UNITS"]
[null,"Data Set: 2015-2019 American Community Survey 5-Year Estimates"]
[]
[null,null,"Barrington",null,"Dover",null,"Durham",null,"Farmington",null,"Lee",null,"Madbury",null,"Middleton",null,"Milton",null,"New Durham",null,"Rochester",null,"Rollinsford",null,"Somersworth",null,"Strafford"]
[null,null,"Estimate","Margin Of Error","Estimate","Margin Of Error","Estimate","Margin Of Error","Estimate","Margin Of Error","Estimate","Margin Of Error","Estimate","Margin Of Error","Estimate","Margin Of Error","Estimate","Margin Of Error","Estimate","Margin Of Error","Estimate","Margin Of Error","Estimate","Margin Of Error","Estimate","Margin Of Error","Estimate","Margin Of Error"]
[null,"Total:",279,139,6540,359,1333,135,937,230,257,135,82,31,73,33,209,92,60,37,4179,368,242,56,2332,330,124,57]
[null,"With cash rent:",266,138,6414,352,1285,142,811,226,257,135,70,29,61,33,209,92,60,37,4092,373,226,55,2332,330,124,57]
[null,"Less than $100",15,21,0,24,0,18,0,16,0,11,0,11,0,11,0,11,0,11,12,19,21,24,22,36,0,11]
[null,"$100 to $149",0,16,0,24,9,14,54,85,0,11,0,11,0,11,0,11,0,11,0,24,0,11,0,18,0,11]
[null,"$150 to $199",0,16,74,99,0,18,0,16,0,11,0,11,0,11,0,11,0,11,0,24,0,11,83,118,0,11]
[null,"$200 to $249",0,16,57,53,17,19,0,16,0,11,0,11,0,11,0,11,0,11,139,94,0,11,19,31,0,11]
[null,"$250 to $299",0,16,76,58,4,7,0,16,0,11,0,11,0,11,0,11,0,11,54,48,0,11,0,18,0,11]
[null,"$300 to $349",0,16,80,54,5,7,0,16,0,11,0,11,0,11,0,11,0,11,83,56,0,11,50,51,9,13]
[null,"$350 to $399",0,16,70,56,14,17,0,16,0,11,0,11,0,11,0,11,0,11,34,40,0,11,19,30,0,11]
[null,"$400 to $449",0,16,96,81,3,5,0,16,0,11,0,11,3,5,0,11,0,11,105,93,0,11,35,43,0,11]
[null,"$450 to $499",0,16,39,44,4,8,17,30,0,11,2,4,2,5,0,11,0,11,46,43,0,11,19,31,0,11]
[null,"$500 to $549",27,40,22,26,20,23,0,16,0,11,0,11,0,11,0,11,0,11,55,69,0,11,0,18,0,11]
[null,"$550 to $599",0,16,87,71,53,52,21,33,0,11,0,11,0,11,0,11,0,11,57,43,4,7,0,18,12,19]
[null,"$600 to $649",0,16,122,93,39,54,0,16,14,21,0,11,0,11,27,41,0,11,73,60,0,11,56,44,0,11]
[null,"$650 to $699",0,16,36,41,56,51,0,16,0,11,6,7,0,11,30,39,0,11,18,28,13,16,37,43,0,11]
[null,"$700 to $749",0,16,75,57,73,59,75,83,0,11,0,11,0,11,0,11,0,11,123,103,0,11,25,38,0,11]
[null,"$750 to $799",0,16,164,95,50,50,41,47,44,70,7,8,4,6,10,16,0,11,220,150,5,8,43,49,0,11]
[null,"$800 to $899",19,29,491,137,133,60,105,96,52,82,3,5,9,14,23,35,0,11,220,123,29,35,110,79,8,12]
[null,"$900 to $999",0,16,792,179,109,70,90,109,0,11,0,11,0,11,9,16,0,11,613,195,24,17,453,197,23,38]
[null,"$1,000 to $1,249",18,30,1484,264,301,92,223,152,92,74,6,7,17,17,61,49,48,35,1180,290,79,44,683,234,61,53]
[null,"$1,250 to $1,499",0,16,1101,254,110,58,71,58,34,37,17,19,4,6,38,47,0,11,661,170,38,30,341,143,11,19]
[null,"$1,500 to $1,999",151,111,1025,228,148,82,105,93,21,32,16,11,22,19,0,11,6,8,347,102,0,11,323,146,0,11]
[null,"$2,000 to $2,499",17,26,360,122,83,57,9,22,0,11,13,12,0,11,11,17,6,10,52,49,13,14,14,22,0,11]
[null,"$2,500 to $2,999",0,16,95,73,19,23,0,16,0,11,0,11,0,11,0,11,0,11,0,24,0,11,0,18,0,11]
[null,"$3,000 to $3,499",19,32,17,27,25,32,0,16,0,11,0,11,0,11,0,11,0,11,0,24,0,11,0,18,0,11]
[null,"$3,500 or more",0,16,51,46,10,14,0,16,0,11,0,11,0,11,0,11,0,11,0,24,0,11,0,18,0,11]
[null,"No cash rent",13,22,126,95,48,37,126,106,0,11,12,13,12,10,0,11,0,11,87,57,16,20,0,18,0,11]
[]
[]
[]
[null,"B25064. MEDIAN GROSS RENT (DOLLARS)"]
[null,"Universe:  RENTER-OCCUPIED HOUSING UNITS PAYING CASH RENT"]
[null,"Data Set: 2015-2019 American Community Survey 5-Year Estimates"]
[null,{"$f":"RentalHousingCost!D41","v":"Income in 2019  Inflation Adjusted Dollars"}]
[null,null,"Barrington",null,"Dover",null,"Durham",null,"Farmington",null,"Lee",null,"Madbury",null,"Middleton",null,"Milton",null,"New Durham",null,"Rochester",null,"Rollinsford",null,"Somersworth",null,"Strafford"]
[null,null,"Estimate","Margin Of Error","Estimate","Margin Of Error","Estimate","Margin Of Error","Estimate","Margin Of Error","Estimate","Margin Of Error","Estimate","Margin Of Error","Estimate","Margin Of Error","Estimate","Margin Of Error","Estimate","Margin Of Error","Estimate","Margin Of Error","Estimate","Margin Of Error","Estimate","Margin Of Error","Estimate","Margin Of Error"]
[null,"Median gross rent",1679,145,1156,41,1044,83,1003,136,1050,242,1412,247,1184,350,1023,261,1156,45,1041,54,1054,119,1071,67,1041,133]
[]
[]
[]
[]
[]
[]
[]
[]
[]
[]
[]
[]
[]
[]
[]
[]
[]
[]
[]
[]
[]
[]
[]
[]
[]
[]
[null,"B25063. GROSS RENT"]
[null,"Universe:  RENTER-OCCUPIED HOUSING UNITS"]
[null,"Data Set: 2010-2014 American Community Survey 5-Year Estimates"]
[]
[null,null,"Barrington",null,"Dover",null,"Durham",null,"Farmington",null,"Lee",null,"Madbury",null,"Middleton",null,"Milton",null,"New Durham",null,"Rochester",null,"Rollinsford",null,"Somersworth",null,"Strafford"]
[null,null,"Estimate","Margin Of Error","Estimate","Margin Of Error","Estimate","Margin Of Error","Estimate","Margin Of Error","Estimate","Margin Of Error","Estimate","Margin Of Error","Estimate","Margin Of Error","Estimate","Margin Of Error","Estimate","Margin Of Error","Estimate","Margin Of Error","Estimate","Margin Of Error","Estimate","Margin Of Error","Estimate","Margin Of Error"]
[null,"Total:",359,153,6211,406,1179,177,773,254,287,156,138,51,70,36,260,89,113,55,4580,453,259,64,1954,238,117,67]
[null,"With cash rent:",324,147,6101,383,1163,178,764,253,287,156,135,51,66,36,239,86,92,55,4430,442,259,64,1891,234,109,68]
[null,"Less than $100",0,15,12,20,0,17,0,15,0,11,0,11,3,4,0,11,0,11,0,20,0,11,0,17,0,11]
[null,"$100 to $149",25,39,0,23,10,15,0,15,0,11,0,11,0,11,0,11,0,11,33,36,0,11,0,17,0,11]
[null,"$150 to $199",0,15,36,34,0,17,0,15,0,11,0,11,0,11,0,11,0,11,42,40,0,11,0,17,0,11]
[null,"$200 to $249",0,15,123,70,36,56,0,15,0,11,0,11,0,11,17,27,0,11,95,104,5,8,65,73,0,11]
[null,"$250 to $299",0,15,60,58,8,13,0,15,0,11,0,11,0,11,0,11,0,11,136,106,0,11,46,41,0,11]
[null,"$300 to $349",0,15,56,48,14,23,0,15,0,11,0,11,0,11,0,11,22,34,52,50,0,11,15,24,0,11]
[null,"$350 to $399",0,15,57,47,12,10,16,27,0,11,0,11,0,11,0,11,0,11,125,88,0,11,10,17,0,11]
[null,"$400 to $449",0,15,65,60,37,35,0,15,0,11,0,11,0,11,0,11,0,11,164,127,20,31,24,31,8,12]
[null,"$450 to $499",0,15,43,42,7,11,54,79,0,11,0,11,0,11,7,12,0,11,0,20,0,11,40,38,0,11]
[null,"$500 to $549",15,23,29,34,18,22,0,15,0,11,0,11,0,11,0,11,0,11,76,61,0,11,63,60,10,18]
[null,"$550 to $599",0,15,62,47,8,13,0,15,0,11,5,7,0,11,20,32,0,11,55,42,6,9,0,17,0,11]
[null,"$600 to $649",53,67,130,100,36,40,59,89,0,11,7,9,0,11,0,11,0,11,161,111,0,11,0,17,0,11]
[null,"$650 to $699",0,15,110,86,38,29,26,41,0,11,5,7,0,11,6,10,0,11,170,115,0,11,0,17,0,11]
[null,"$700 to $749",0,15,116,63,40,39,15,24,0,11,4,6,2,5,11,17,0,11,175,90,0,11,57,43,0,11]
[null,"$750 to $799",0,15,300,114,55,52,65,82,0,11,4,6,0,11,0,11,0,11,170,98,0,11,40,39,0,11]
[null,"$800 to $899",13,20,1066,245,73,60,68,80,28,43,6,8,10,14,34,39,0,11,660,215,11,11,205,113,20,32]
[null,"$900 to $999",56,52,809,195,157,80,131,108,88,103,28,32,8,12,37,38,17,17,674,185,86,53,527,156,8,13]
[null,"$1,000 to $1,249",56,58,1564,311,110,66,219,115,103,113,42,34,17,21,50,44,34,31,1048,270,57,43,486,157,56,60]
[null,"$1,250 to $1,499",66,79,679,183,52,43,76,72,39,45,5,8,8,10,57,52,4,7,262,112,50,33,186,119,0,11]
[null,"$1,500 to $1,999",28,48,525,168,316,107,17,27,25,39,15,13,18,22,0,11,15,16,297,112,14,14,87,52,7,10]
[null,"$2,000 or more",12,22,259,135,136,69,18,28,4,11,14,21,0,11,0,11,0,11,35,32,10,11,40,43,0,11]
[null,"No cash rent",35,57,110,73,16,19,9,15,0,11,3,5,4,6,21,21,21,19,150,74,0,11,63,51,8,12]
[]
[]
[]
[]
[]
[]
[null,"B25064. MEDIAN GROSS RENT (DOLLARS)"]
[null,"Universe:  RENTER-OCCUPIED HOUSING UNITS PAYING CASH RENT"]
[null,"Data Set: 2010-2014 American Community Survey 5-Year Estimates"]
[null,"Income in 2014 Inflation Adjusted Dollars"]
[null,null,"Barrington",null,"Dover",null,"Durham",null,"Farmington",null,"Lee",null,"Madbury",null,"Middleton",null,"Milton",null,"New Durham",null,"Rochester",null,"Rollinsford",null,"Somersworth",null,"Strafford"]
[null,null,"Estimate","Margin Of Error","Estimate","Margin Of Error","Estimate","Margin Of Error","Estimate","Margin Of Error","Estimate","Margin Of Error","Estimate","Margin Of Error","Estimate","Margin Of Error","Estimate","Margin Of Error","Estimate","Margin Of Error","Estimate","Margin Of Error","Estimate","Margin Of Error","Estimate","Margin Of Error","Estimate","Margin Of Error"]
[null,"Median gross rent",1000,264,997,38,1074,186,960,87,1067,162,1051,135,1147,315,966,159,1051,153,915,43,1007,131,972,26,1038,216]
[]
[]
[]
[]
[null,"B25063. GROSS RENT"]
[null,"Universe:  RENTER-OCCUPIED HOUSING UNITS"]
[null,"Data Set: 2005-2009 American Community Survey 5-Year Estimates"]
[]
[null,null,"Barrington",null,"Dover",null,"Durham",null,"Farmington",null,"Lee",null,"Madbury",null,"Middleton",null,"Milton",null,"New Durham",null,"Rochester",null,"Rollinsford",null,"Somersworth",null,"Strafford"]
[null,null,"Estimate","Margin Of Error","Estimate","Margin Of Error","Estimate","Margin Of Error","Estimate","Margin Of Error","Estimate","Margin Of Error","Estimate","Margin Of Error","Estimate","Margin Of Error","Estimate","Margin Of Error","Estimate","Margin Of Error","Estimate","Margin Of Error","Estimate","Margin Of Error","Estimate","Margin Of Error","Estimate","Margin Of Error"]
[null,"Total:",569,151,4926,393,1372,207,802,191,536,127,124,49,37,20,292,116,134,56,3672,386,304,57,2097,223,106,51]
[null,"With cash rent:",555,150,4836,386,1202,179,802,191,483,121,119,48,37,20,273,113,126,55,3544,384,304,57,2020,231,98,50]
[null,"Less than $100",0,114,26,31,0,114,0,114,0,114,0,114,0,114,0,114,0,114,0,114,0,114,0,114,0,114]
[null,"$100 to $149",0,114,0,114,0,114,0,114,0,114,0,114,0,114,0,114,0,114,8,14,0,114,7,11,0,114]
[null,"$150 to $199",0,114,16,24,16,18,99,74,6,9,0,114,0,114,0,114,0,114,102,76,0,114,78,63,0,114]
[null,"$200 to $249",0,114,62,49,0,114,0,114,0,114,0,114,0,114,0,114,0,114,131,78,6,9,45,41,0,114]
[null,"$250 to $299",0,114,197,111,6,10,0,114,0,114,0,114,0,114,0,114,0,114,86,71,0,114,36,40,0,114]
[null,"$300 to $349",0,114,56,51,10,17,0,114,0,114,1,3,0,114,21,33,0,114,40,39,0,114,28,31,0,114]
[null,"$350 to $399",0,114,112,75,78,70,16,25,0,114,0,114,0,114,14,24,0,114,53,57,0,114,45,43,0,114]
[null,"$400 to $449",47,76,52,42,51,63,0,114,13,17,0,114,0,114,0,114,0,114,95,63,0,114,46,73,0,114]
[null,"$450 to $499",21,35,62,66,93,59,0,114,24,25,4,6,7,7,0,114,0,114,37,29,0,114,49,46,0,114]
[null,"$500 to $549",0,114,59,63,23,22,12,18,8,13,0,114,0,114,0,114,16,23,48,60,0,114,32,35,0,114]
[null,"$550 to $599",25,41,98,66,31,31,35,47,17,20,2,4,0,114,0,114,0,114,92,88,18,26,72,73,0,114]
[null,"$600 to $649",0,114,66,48,113,68,48,63,30,29,0,114,0,114,0,114,11,12,29,32,0,114,12,19,14,22]
[null,"$650 to $699",15,23,212,112,79,49,28,27,81,59,6,6,4,6,0,114,0,114,147,109,36,37,77,51,0,114]
[null,"$700 to $749",0,114,438,148,151,79,126,78,21,20,10,17,3,6,22,20,0,114,212,117,27,33,51,40,0,114]
[null,"$750 to $799",35,39,273,135,78,50,40,35,76,69,3,4,3,5,0,114,0,114,128,81,0,114,69,56,11,17]
[null,"$800 to $899",130,79,1014,233,102,51,61,49,37,35,3,4,3,5,71,83,27,33,536,221,50,34,278,119,0,114]
[null,"$900 to $999",55,69,585,174,22,26,82,92,22,24,0,114,3,6,71,51,0,114,579,222,44,46,255,119,14,17]
[null,"$1,000 to $1,249",121,86,723,214,115,78,228,118,48,24,14,12,0,114,42,39,44,43,627,225,60,33,602,180,17,24]
[null,"$1,250 to $1,499",56,43,445,183,61,51,27,44,88,64,13,12,9,13,32,23,11,13,442,196,42,34,167,127,27,37]
[null,"$1,500 to $1,999",50,66,289,145,77,57,0,114,0,114,25,28,5,6,0,114,17,21,152,79,21,32,71,54,5,8]
[null,"$2,000 or more",0,114,51,46,96,60,0,114,12,19,38,30,0,114,0,114,0,114,0,114,0,114,0,114,10,10]
[null,"No cash rent",14,23,90,57,170,68,0,114,53,36,5,6,0,114,19,21,8,12,128,77,0,114,77,62,8,12]
[]
[]
[]
[]
[]
[]
[null,"B25064. MEDIAN GROSS RENT (DOLLARS)"]
[null,"Universe:  RENTER-OCCUPIED HOUSING UNITS PAYING CASH RENT"]
[null,"Data Set: 2005-2009 American Community Survey 5-Year Estimates"]
[null,"Income in 2009 Inflation Adjusted Dollars"]
[null,null,"Barrington",null,"Dover",null,"Durham",null,"Farmington",null,"Lee",null,"Madbury",null,"Middleton",null,"Milton",null,"New Durham",null,"Rochester",null,"Rollinsford",null,"Somersworth",null,"Strafford"]
[null,null,"Estimate","Margin Of Error","Estimate","Margin Of Error","Estimate","Margin Of Error","Estimate","Margin Of Error","Estimate","Margin Of Error","Estimate","Margin Of Error","Estimate","Margin Of Error","Estimate","Margin Of Error","Estimate","Margin Of Error","Estimate","Margin Of Error","Estimate","Margin Of Error","Estimate","Margin Of Error","Estimate","Margin Of Error"]
[null,"Median gross rent",908,139,868,26,733,40,796,132,777,45,1570,439,850,452,912,77,1051,242,905,42,934,105,933,66,1147,360]

{"sheet":"ACS_Table_B25070","index":52,"n_rows":174,"n_cols":28,"rows_kept":174,"cut":false,"hidden":true,"merged":[]}
[null,"B25070. GROSS RENT AS A PERCENTAGE OF HOUSEHOLD INCOME IN THE PAST 12 MONTHS"]
[null,"Universe:  RENTER-OCCUPIED HOUSING UNITS"]
[null,"Data Set: 2015-2019 American Community Survey 5-Year Estimates"]
[]
[null,null,"Barrington",null,"Dover",null,"Durham",null,"Farmington",null,"Lee",null,"Madbury",null,"Middleton",null,"Milton",null,"New Durham",null,"Rochester",null,"Rollinsford",null,"Somersworth",null,"Strafford"]
[null,null,"Estimate","Margin Of Error",170,98,63,47,9,15,0,11,3,5,6,7,21,21,21,19,203,97,0,11,63,51,8,12]
[null,"Total:",279,139,6540,359,1333,135,937,230,257,135,82,31,73,33,209,92,60,37,4179,368,242,56,2332,330,124,57]
[null,"Less than 10.0 percent",15,21,327,137,0,18,71,91,0,11,0,11,3,5,0,11,0,11,53,44,6,9,58,57,0,11]
[null,"10.0 to 14.9 percent",0,16,441,166,96,62,24,39,52,82,3,5,3,4,0,11,0,11,436,175,16,15,135,107,21,17]
[null,"15.0 to 19.9 percent",45,49,1046,210,82,40,109,96,36,41,21,13,12,14,18,20,22,18,699,247,33,34,628,234,8,12]
[null,"20.0 to 24.9 percent",0,16,1070,262,149,84,98,94,58,73,21,15,15,17,24,33,8,12,377,134,15,14,360,155,64,45]
[null,"25.0 to 29.9 percent",53,62,738,179,75,36,78,100,30,35,8,7,0,11,36,46,0,11,623,166,45,32,292,123,11,19]
[null,"30.0 to 34.9 percent",89,105,636,185,103,68,38,34,0,11,11,17,11,17,9,16,0,11,331,117,0,11,180,109,0,11]
[null,"35.0 to 39.9 percent",19,29,213,104,35,26,182,147,0,11,0,11,4,6,17,19,0,11,140,92,15,25,90,71,0,11]
[null,"40.0 to 49.9 percent",0,16,781,278,147,65,103,94,0,11,0,11,0,11,33,36,0,11,306,128,20,32,87,74,0,11]
[null,"50.0 percent or more",45,70,1086,192,550,152,108,75,81,80,6,7,13,11,72,53,30,30,1068,260,55,34,479,200,20,30]
[null,"Not computed",13,22,202,120,96,61,126,106,0,11,12,13,12,10,0,11,0,11,146,90,37,32,23,35,0,11]
[]
[]
[]
[]
[]
[]
[]
[]
[]
[]
[]
[]
[]
[]
[]
[]
[]
[null,"Calculated B25070. GROSS RENT AS A PERCENTAGE OF HOUSEHOLD INCOME IN THE PAST 12 MONTHS"]
[null,"Universe:  RENTER-OCCUPIED HOUSING UNITS"]
[null,"Data Set: 2015-2019 American Community Survey 5-Year Estimates"]
[]
[null,null,"Barrington",null,"Dover",null,"Durham",null,"Farmington",null,"Lee",null,"Madbury",null,"Middleton",null,"Milton",null,"New Durham",null,"Rochester",null,"Rollinsford",null,"Somersworth",null,"Strafford"]
[null," ","Estimate","Margin of Error","Estimate","Margin of Error","Estimate","Margin of Error","Estimate","Margin of Error","Estimate","Margin of Error","Estimate","Margin of Error","Estimate","Margin of Error","Estimate","Margin of Error","Estimate","Margin of Error","Estimate","Margin of Error","Estimate","Margin of Error","Estimate","Margin of Error","Estimate","Margin of Error"]
[null,{"$f":"B7","v":"Total:"},279,139,6540,359,1333,135,937,230,257,135,82,31,73,33,209,92,60,37,4179,368,242,56,2332,330,124,57]
[null," Less Than 20% of HH Income",{"$f":"C8+C9+C10","v":60},{"$f":"SQRT((D8^2)+(D9^2)+(D10^2))","v":55.659680200302986},{"$f":"E8+E9+E10","v":1814},{"$f":"SQRT((F8^2)+(F9^2)+(F10^2))","v":300.70749907509787},{"$f":"G8+G9+G10","v":178},{"$f":"SQRT((H8^2)+(H9^2)+(H10^2))","v":75.9473501841901},{"$f":"I8+I9+I10","v":204},{"$f":"SQRT((J8^2)+(J9^2)+(J10^2))","v":137.90576492663388},{"$f":"K8+K9+K10","v":88},{"$f":"SQRT((L8^2)+(L9^2)+(L10^2))","v":92.336341707910435},{"$f":"M8+M9+M10","v":24},{"$f":"SQRT((N8^2)+(N9^2)+(N10^2))","v":17.748239349298849},{"$f":"O8+O9+O10","v":18},{"$f":"SQRT((P8^2)+(P9^2)+(P10^2))","v":15.394804318340652},{"$f":"Q8+Q9+Q10","v":18},{"$f":"SQRT((R8^2)+(R9^2)+(R10^2))","v":25.337718918639855},{"$f":"S8+S9+S10","v":22},{"$f":"SQRT((T8^2)+(T9^2)+(T10^2))","v":23.790754506740637},{"$f":"U8+U9+U10","v":1188},{"$f":"SQRT((V8^2)+(V9^2)+(V10^2))","v":305.89213785254435},{"$f":"W8+W9+W10","v":55},{"$f":"SQRT((X8^2)+(X9^2)+(X10^2))","v":38.236108588610321},{"$f":"Y8+Y9+Y10","v":821},{"$f":"SQRT((Z8^2)+(Z9^2)+(Z10^2))","v":263.54126811564066},{"$f":"AA8+AA9+AA10","v":29},{"$f":"SQRT((AB8^2)+(AB9^2)+(AB10^2))","v":23.53720459187964}]
[null," 20% to 24.9% of HH Income",{"$f":"C11","v":0},{"$f":"D11","v":16},{"$f":"E11","v":1070},262,149,84,98,94,58,73,21,15,15,17,24,33,8,12,377,134,15,14,{"$f":"Y11","v":360},155,64,45]
[null," 25% to 29.9% of HH Income",{"$f":"C12","v":53},{"$f":"D12","v":62},738,179,75,36,78,100,30,35,8,7,0,11,36,46,0,11,623,166,45,32,292,123,11,19]
[null," Less Than 30% of HH Income",{"$f":"C12+C11+C10+C9+C8","v":113},{"$f":"SQRT((D12^2)+(D11^2)+(D10^2)+(D9^2)+(D8^2))","v":84.841027810841609},{"$f":"E12+E11+E10+E9+E8","v":3622},{"$f":"SQRT((F12^2)+(F11^2)+(F10^2)+(F9^2)+(F8^2))","v":437.16129746353346},{"$f":"G12+G11+G10+G9+G8","v":402},{"$f":"SQRT((H12^2)+(H11^2)+(H10^2)+(H9^2)+(H8^2))","v":118.82760622010359},{"$f":"I12+I11+I10+I9+I8","v":380},{"$f":"SQRT((J12^2)+(J11^2)+(J10^2)+(J9^2)+(J8^2))","v":194.56104440509154},{"$f":"K12+K11+K10+K9+K8","v":176},{"$f":"SQRT((L12^2)+(L11^2)+(L10^2)+(L9^2)+(L8^2))","v":122.80065146407001},{"$f":"M12+M11+M10+M9+M8","v":53},{"$f":"SQRT((N12^2)+(N11^2)+(N10^2)+(N9^2)+(N8^2))","v":24.269322199023193},{"$f":"O12+O11+O10+O9+O8","v":33},{"$f":"SQRT((P12^2)+(P11^2)+(P10^2)+(P9^2)+(P8^2))","v":25.436194683953808},{"$f":"Q12+Q11+Q10+Q9+Q8","v":78},{"$f":"SQRT((R12^2)+(R11^2)+(R10^2)+(R9^2)+(R8^2))","v":62.024188829842828},{"$f":"S12+S11+S10+S9+S8","v":30},{"$f":"SQRT((T12^2)+(T11^2)+(T10^2)+(T9^2)+(T8^2))","v":28.827070610799147},{"$f":"U12+U11+U10+U9+U8","v":2188},{"$f":"SQRT((V12^2)+(V11^2)+(V10^2)+(V9^2)+(V8^2))","v":372.93699199730776},{"$f":"W12+W11+W10+W9+W8","v":115},{"$f":"SQRT((X12^2)+(X11^2)+(X10^2)+(X9^2)+(X8^2))","v":51.788029504896208},{"$f":"Y12+Y11+Y10+Y9+Y8","v":1473},{"$f":"SQRT((Z12^2)+(Z11^2)+(Z10^2)+(Z9^2)+(Z8^2))","v":329.55727878473567},{"$f":"AA12+AA11+AA10+AA9+AA8","v":104},{"$f":"SQRT((AB12^2)+(AB11^2)+(AB10^2)+(AB9^2)+(AB8^2))","v":54.221766846903833}]
[null," 30% or More of HH Income",{"$f":"C13+C14+C15+C16","v":153},{"$f":"SQRT((D13^2)+(D14^2)+(D15^2)+(D16^2))","v":130.46838697554284},{"$f":"E13+E14+E15+E16","v":2716},{"$f":"SQRT((F13^2)+(F14^2)+(F15^2)+(F16^2))","v":398.98496212263439},{"$f":"G13+G14+G15+G16","v":835},{"$f":"SQRT((H13^2)+(H14^2)+(H15^2)+(H16^2))","v":180.63499107315835},{"$f":"I13+I14+I15+I16","v":431},{"$f":"SQRT((J13^2)+(J14^2)+(J15^2)+(J16^2))","v":192.94040530692374},{"$f":"K13+K14+K15+K16","v":81},{"$f":"SQRT((L13^2)+(L14^2)+(L15^2)+(L16^2))","v":82.237461050302372},{"$f":"M13+M14+M15+M16","v":17},{"$f":"SQRT((N13^2)+(N14^2)+(N15^2)+(N16^2))","v":24.083189157584592},{"$f":"O13+O14+O15+O16","v":28},{"$f":"SQRT((P13^2)+(P14^2)+(P15^2)+(P16^2))","v":23.811761799581316},{"$f":"Q13+Q14+Q15+Q16","v":131},{"$f":"SQRT((R13^2)+(R14^2)+(R15^2)+(R16^2))","v":68.716810170437924},{"$f":"S13+S14+S15+S16","v":30},{"$f":"SQRT((T13^2)+(T14^2)+(T15^2)+(T16^2))","v":35.538711287833721},{"$f":"U13+U14+U15+U16","v":1845},{"$f":"SQRT((V13^2)+(V14^2)+(V15^2)+(V16^2))","v":325.78674006165443},{"$f":"W13+W14+W15+W16","v":90},{"$f":"SQRT((X13^2)+(X14^2)+(X15^2)+(X16^2))","v":54.092513345194085},{"$f":"Y13+Y14+Y15+Y16","v":836},{"$f":"SQRT((Z13^2)+(Z14^2)+(Z15^2)+(Z16^2))","v":249.79591670001332},{"$f":"AA13+AA14+AA15+AA16","v":20},{"$f":"SQRT((AB13^2)+(AB14^2)+(AB15^2)+(AB16^2))","v":35.538711287833721}]
[null," 30% to 34.9% of HH Income",{"$f":"C13","v":89},{"$f":"D13","v":105},{"$f":"E13","v":636},185,103,68,38,34,0,11,11,17,11,17,9,16,0,11,331,117,0,11,{"$f":"Y13","v":180},{"$f":"Z13","v":109},{"$f":"AA13","v":0},{"$f":"AB13","v":11}]
[null," Less Than 35% of HH Income",{"$f":"C13+C12+C11+C10+C9+C8","v":202},{"$f":"SQRT((D13^2)+(D12^2)+(D11^2)+(D10^2)+(D9^2)+(D8^2))","v":134.9925923893604},{"$f":"E13+E12+E11+E10+E9+E8","v":4258},{"$f":"SQRT((F13^2)+(F12^2)+(F11^2)+(F10^2)+(F9^2)+(F8^2))","v":474.69463868891546},{"$f":"G13+G12+G11+G10+G9+G8","v":505},{"$f":"SQRT((H13^2)+(H12^2)+(H11^2)+(H10^2)+(H9^2)+(H8^2))","v":136.90872872099865},{"$f":"I13+I12+I11+I10+I9+I8","v":418},{"$f":"SQRT((J13^2)+(J12^2)+(J11^2)+(J10^2)+(J9^2)+(J8^2))","v":197.50949344272036},{"$f":"K13+K12+K11+K10+K9+K8","v":176},{"$f":"SQRT((L13^2)+(L12^2)+(L11^2)+(L10^2)+(L9^2)+(L8^2))","v":123.2923355282071},{"$f":"M13+M12+M11+M10+M9+M8","v":64},{"$f":"SQRT((N13^2)+(N12^2)+(N11^2)+(N10^2)+(N9^2)+(N8^2))","v":29.631064780058107},{"$f":"O13+O12+O11+O10+O9+O8","v":44},{"$f":"SQRT((P13^2)+(P12^2)+(P11^2)+(P10^2)+(P9^2)+(P8^2))","v":30.594117081556711},{"$f":"Q13+Q12+Q11+Q10+Q9+Q8","v":87},{"$f":"SQRT((R13^2)+(R12^2)+(R11^2)+(R10^2)+(R9^2)+(R8^2))","v":64.054664154923174},{"$f":"S13+S12+S11+S10+S9+S8","v":30},{"$f":"SQRT((T13^2)+(T12^2)+(T11^2)+(T10^2)+(T9^2)+(T8^2))","v":30.854497241083024},{"$f":"U13+U12+U11+U10+U9+U8","v":2519},{"$f":"SQRT((V13^2)+(V12^2)+(V11^2)+(V10^2)+(V9^2)+(V8^2))","v":390.85930972665852},{"$f":"W13+W12+W11+W10+W9+W8","v":115},{"$f":"SQRT((X13^2)+(X12^2)+(X11^2)+(X10^2)+(X9^2)+(X8^2))","v":52.94336596779619},{"$f":"Y13+Y12+Y11+Y10+Y9+Y8","v":1653},{"$f":"SQRT((Z13^2)+(Z12^2)+(Z11^2)+(Z10^2)+(Z9^2)+(Z8^2))","v":347.11525463453779},{"$f":"AA13+AA12+AA11+AA10+AA9+AA8","v":104},{"$f":"SQRT((AB13^2)+(AB12^2)+(AB11^2)+(AB10^2)+(AB9^2)+(AB8^2))","v":55.326304774492215}]
[null," 35% or More of HH Income",{"$f":"C14+C15+C16","v":64},{"$f":"SQRT((D14^2)+(D15^2)+(D16^2))","v":77.440299586197369},{"$f":"E14+E15+E16","v":2080},{"$f":"SQRT((F14^2)+(F15^2)+(F16^2))","v":353.50247523885884},{"$f":"G14+G15+G16","v":732},{"$f":"SQRT((H14^2)+(H15^2)+(H16^2))","v":167.34694499751109},{"$f":"I14+I15+I16","v":393},{"$f":"SQRT((J14^2)+(J15^2)+(J16^2))","v":189.92103622295241},{"$f":"K14+K15+K16","v":81},{"$f":"SQRT((L14^2)+(L15^2)+(L16^2))","v":81.498466243236749},{"$f":"M14+M15+M16","v":6},{"$f":"SQRT((N14^2)+(N15^2)+(N16^2))","v":17.058722109231979},{"$f":"O14+O15+O16","v":17},{"$f":"SQRT((P14^2)+(P15^2)+(P16^2))","v":16.673332000533065},{"$f":"Q14+Q15+Q16","v":122},{"$f":"SQRT((R14^2)+(R15^2)+(R16^2))","v":66.828137786414487},{"$f":"S14+S15+S16","v":30},{"$f":"SQRT((T14^2)+(T15^2)+(T16^2))","v":33.793490497431605},{"$f":"U14+U15+U16","v":1514},{"$f":"SQRT((V14^2)+(V15^2)+(V16^2))","v":304.05262702367827},{"$f":"W14+W15+W16","v":90},{"$f":"SQRT((X14^2)+(X15^2)+(X16^2))","v":52.962250707461443},{"$f":"Y14+Y15+Y16","v":656},{"$f":"SQRT((Z14^2)+(Z15^2)+(Z16^2))","v":224.75987186328436},{"$f":"AA14+AA15+AA16","v":20},{"$f":"SQRT((AB14^2)+(AB15^2)+(AB16^2))","v":33.793490497431605}]
[null," 50% or More of HH Income",{"$f":"C16","v":45},{"$f":"D16","v":70},{"$f":"E16","v":1086},192,550,152,108,75,81,80,6,7,13,11,72,53,30,30,1068,260,55,34,{"$f":"Y16","v":479},200,20,30]
[null,"Not computed",{"$f":"C17","v":13},{"$f":"D17","v":22},202,120,96,61,126,106,0,11,12,13,12,10,0,11,0,11,146,90,37,32,23,35,0,11]
[]
[]
[]
[]
[]
[]
[]
[]
[]
[]
[]
[]
[]
[]
[]
[]
[]
[]
[]
[]
[]
[]
[]
[]
[]
[]
[]
[]
[]
[]
[]
[]
[]
[]
[]
[]
[]
[]
[]
[]
[]
[]
[]
[]
[]
[]
[]
[]
[]
[]
[]
[]
[null,"Calculated B25070. GROSS RENT AS A PERCENTAGE OF HOUSEHOLD INCOME IN THE PAST 12 MONTHS"]
[null,"Universe:  RENTER-OCCUPIED HOUSING UNITS"]
[null,"Data Set: 2010-2014 American Community Survey 5-Year Estimates"]
[]
[null,null,"Barrington",null,"Dover",null,"Durham",null,"Farmington",null,"Lee",null,"Madbury",null,"Middleton",null,"Milton",null,"New Durham",null,"Rochester",null,"Rollinsford",null,"Somersworth",null,"Strafford"]
[null," ","Estimate","Margin of Error","Estimate","Margin of Error","Estimate","Margin of Error","Estimate","Margin of Error","Estimate","Margin of Error","Estimate","Margin of Error","Estimate","Margin of Error","Estimate","Margin of Error","Estimate","Margin of Error","Estimate","Margin of Error","Estimate","Margin of Error","Estimate","Margin of Error","Estimate","Margin of Error"]
[null,"Total:",359,153,6211,406,1179,177,773,254,287,156,138,51,70,36,260,89,113,55,4580,453,259,64,1954,238,117,67]
[null," Less Than 20% of HH Income",108,84.793867702800299,1404,266.40195194480089,159,77.839578621675486,86,80.932070281193234,80,110.1044958210154,52,34.496376621320678,9,7.5498344352707498,55,54.277066980447643,45,46.65833258915282,637,248.00604831334255,11,20.273134932713294,492,192.47857023575378,42,47]
[null," 20% to 24.9% of HH Income",0,15,861,225,86,48,93,99,14,22,22,23,32,28,36,35,9,15,501,160,58,47,205,124,8,12]
[null," 25% to 29.9% of HH Income",46,51,766,170,90,69,49,47,81,83,25,17,2,5,23,30,0,11,820,233,50,36,277,120,0,11]
[null," Less Than 30% of HH Income",154,100.07996802557443,3031,387.93685053111415,335,114.56002793295748,228,136.23509092741122,175,139.62807740565648,99,44.810713004816158,43,29.427877939124322,114,71.210954213519713,54,50.229473419497438,1958,376.02659480414411,119,62.57795138864806,974,258.50338489079792,50,49.739320461783549]
[null," 30% or More of HH Income",170,108.30512453249847,3010,399.01127803609762,781,144.11453778158537,536,221.27132665575991,112,108.6830253535482,36,35.538711287833721,21,24.392621835300936,125,71.840100222647237,38,26.419689627245813,2419,353.21523183464217,140,61.522353661088097,917,217.52930837015964,59,60.630025564896471]
[null," 30% to 34.9% of HH Income",60,76,633,176,60,45,40,44,0,11,0,11,0,11,11,17,0,11,414,146,18,22,110,61,0,11]
[null," Less Than 35% of HH Income",214,125.66622457924007,3664,425.99413141497621,395,123.08127396155761,268,143.16424134538624,175,140.06070112633307,99,46.141087980237309,43,31.416556144810016,125,73.212020870892502,54,51.419840528729765,2372,403.37575534481493,137,66.332495807108003,1084,265.60308733145405,50,50.941142507800116]
[null," 35% or More of HH Income",110,77.1621668954417,2377,358.09775201751825,721,136.90872872099865,496,216.85248442201441,112,108.1249277456406,36,33.793490497431605,21,21.77154105707724,114,69.799713466460588,38,24.020824298928627,2005,321.62866787648142,122,57.454329688892898,807,208.80134099186242,59,59.623820743055369]
[null," 50% or More of HH Income",97,73,1211,243,539,116,265,153,112,107,36,30,16,17,73,58,13,12,1213,272,49,31,556,166,31,47]
[null,"Not computed",35,57,170,98,63,47,9,15,0,11,3,5,6,7,21,21,21,19,203,97,0,11,63,51,8,12]
[]
[]
[]
[null,"B25070. GROSS RENT AS A PERCENTAGE OF HOUSEHOLD INCOME IN THE PAST 12 MONTHS"]
[null,"Universe:  RENTER-OCCUPIED HOUSING UNITS"]
[null,"Data Set: 2005-2009 American Community Survey 5-Year Estimates"]
[]
[null,null,"Barrington",null,"Dover",null,"Durham",null,"Farmington",null,"Lee",null,"Madbury",null,"Middleton",null,"Milton",null,"New Durham",null,"Rochester",null,"Rollinsford",null,"Somersworth",null,"Strafford"]
[null,null,"Estimate","Margin Of Error","Estimate","Margin Of Error","Estimate","Margin Of Error","Estimate","Margin Of Error","Estimate","Margin Of Error","Estimate","Margin Of Error","Estimate","Margin Of Error","Estimate","Margin Of Error","Estimate","Margin Of Error","Estimate","Margin Of Error","Estimate","Margin Of Error","Estimate","Margin Of Error","Estimate","Margin Of Error"]
[null,"Total:",569,151,4926,393,1372,207,802,191,536,127,124,49,37,20,292,116,134,56,3672,386,304,57,2097,223,106,51]
[null,"Less than 10.0 percent",0,114,145,91,63,69,31,50,18,21,2,5,6,7,28,39,16,23,131,81,21,33,30,38,7,13]
[null,"10.0 to 14.9 percent",113,94,344,129,86,82,41,66,31,28,8,7,0,114,0,114,0,114,155,103,0,114,108,74,0,114]
[null,"15.0 to 19.9 percent",89,80,828,186,0,114,42,43,76,69,5,6,12,14,111,94,7,10,354,129,45,40,480,193,51,37]
[null,"20.0 to 24.9 percent",69,52,649,204,41,50,91,79,91,60,28,28,8,8,8,12,6,10,487,155,6,12,284,129,11,17]
[null,"25.0 to 29.9 percent",69,51,498,164,105,81,71,57,40,41,6,8,5,6,14,23,42,37,447,180,92,39,226,123,14,22]
[null,"30.0 to 34.9 percent",90,74,621,219,87,42,64,67,0,114,26,28,0,114,36,35,6,8,284,136,0,114,208,111,0,114]
[null,"35.0 to 39.9 percent",0,114,397,147,45,36,0,114,6,9,0,114,0,114,8,12,24,25,348,206,0,114,115,77,0,114]
[null,"40.0 to 49.9 percent",18,21,432,156,74,57,118,90,32,29,8,13,3,6,29,35,20,32,354,186,0,114,85,53,0,114]
[null,"50.0 percent or more",107,89,881,245,618,143,344,167,145,58,36,24,3,5,39,32,5,9,948,250,140,67,445,170,15,10]
[null,"Not computed",14,23,131,84,253,96,0,114,97,67,5,6,0,114,19,21,8,12,164,97,0,114,116,80,8,12]
[]
[]
[]
[]
[]
[]
[]
[]
[]
[]
[]
[]
[]
[]
[]
[]
[]
[null,"Calculated B25070. GROSS RENT AS A PERCENTAGE OF HOUSEHOLD INCOME IN THE PAST 12 MONTHS"]
[null,"Universe:  RENTER-OCCUPIED HOUSING UNITS"]
[null,"Data Set: 2005-2009 American Community Survey 5-Year Estimates"]
[]
[null,null,"Barrington",null,"Dover",null,"Durham",null,"Farmington",null,"Lee",null,"Madbury",null,"Middleton",null,"Milton",null,"New Durham",null,"Rochester",null,"Rollinsford",null,"Somersworth",null,"Strafford"]
[null," ","Estimate","Margin of Error","Estimate","Margin of Error","Estimate","Margin of Error","Estimate","Margin of Error","Estimate","Margin of Error","Estimate","Margin of Error","Estimate","Margin of Error","Estimate","Margin of Error","Estimate","Margin of Error","Estimate","Margin of Error","Estimate","Margin of Error","Estimate","Margin of Error","Estimate","Margin of Error"]
[null,"Total:",569,151,4926,393,1372,207,802,191,536,127,124,49,37,20,292,116,134,56,3672,386,304,57,2097,223,106,51]
[null," Less Than 20% of HH Income",202,168.02380783686579,1317,243.96311196572321,149,156.46405337968207,114,93.300589494386372,125,77.369244535538797,15,10.488088481701515,18,115.06954418958998,139,152.81688388394784,23,116.72617529928752,640,183.87767673102681,66,125.23977004130916,618,210.16422150309029,58,120.55704044144414]
[null," 20% to 24.9% of HH Income",69,52,649,204,41,50,91,79,91,60,28,28,8,8,8,12,6,10,487,155,6,12,284,129,11,17]
[null," 25% to 29.9% of HH Income",69,51,498,164,105,81,71,57,40,41,6,8,5,6,14,23,42,37,447,180,92,39,226,123,14,22]
[null," Less Than 30% of HH Income",340,183.13110058097723,2464,357.81280021821465,295,183.1447514945487,276,134.88884312647951,256,106.14612569472331,49,30.951575081084322,31,115.50324670761424,161,155.00322577288512,71,122.8576411950026,1574,300.39307581900084,164,131.7193987231949,1128,275.57031770493717,83,123.72146135574054]
[null," 30% or More of HH Income",215,163.81086655042151,2331,392.3404134167165,824,163.57872722331592,526,231.2444593930847,183,131.46102083887831,70,120.51970793193949,6,161.40941732129511,112,60.149812967290266,55,42.355637169094742,1934,397.52735754913772,140,208.51139057615055,853,223.51510016104058,15,197.70685370011836]
[null," 30% to 34.9% of HH Income",90,74,621,219,87,42,64,67,0,114,26,28,0,114,36,35,6,8,284,136,0,114,208,111,0,114]
[null," Less Than 35% of HH Income",430,197.51708786836647,3085,419.51281267680014,382,187.89890899097844,340,150.61208450851478,256,155.76584991582718,75,41.737273509418415,31,162.28678319567493,197,158.90563237343099,77,123.11782974045636,1858,329.74535629785601,164,174.20103329199858,1336,297.08584617918103,83,168.23495475078894]
[null," 35% or More of HH Income",125,146.14376483449439,1710,325.53033652794943,737,158.09490820390135,462,221.32555207205516,183,65.467549213331637,44,117.22201158485551,6,114.26723064816089,76,48.918299234540036,49,41.593268686170845,1650,373.53982384747144,140,174.58808664969095,645,194.0051545706969,15,161.5301829380503]
[null," 50% or More of HH Income",107,89,881,245,618,143,344,167,145,58,36,24,3,5,39,32,5,9,948,250,140,67,445,170,15,10]
[null,"Not computed",14,23,131,84,253,96,0,114,97,67,5,6,0,114,19,21,8,12,164,97,0,114,116,80,8,12]

{"sheet":"ACS_Table_B25074","index":53,"n_rows":491,"n_cols":28,"rows_kept":491,"cut":false,"hidden":true,"merged":[]}
[null,"B25074. HOUSEHOLD INCOME BY GROSS RENT AS A PERCENTAGE OF HOUSEHOLD INCOME IN THE PAST 12 MONTHS"]
[null,"Universe:  RENTER-OCCUPIED HOUSING UNITS",null,null,null,null,null,{"$f":"RentalHousingCost!D41","v":"Income in 2019  Inflation Adjusted Dollars"}]
[null,"Data Set: 2015-2019 American Community Survey 5-Year Estimates"]
[]
[null,null,"Barrington",null,"Dover",null,"Durham",null,"Farmington",null,"Lee",null,"Madbury",null,"Middleton",null,"Milton",null,"New Durham",null,"Rochester",null,"Rollinsford",null,"Somersworth",null,"Strafford"]
[null,null,"Estimate","Margin Of Error","Estimate","Margin Of Error","Estimate","Margin Of Error","Estimate","Margin Of Error","Estimate","Margin Of Error","Estimate","Margin Of Error","Estimate","Margin Of Error","Estimate","Margin Of Error","Estimate","Margin Of Error","Estimate","Margin Of Error","Estimate","Margin Of Error","Estimate","Margin Of Error","Estimate","Margin Of Error"]
[null,"Total:",279,139,6540,359,1333,135,937,230,257,135,82,31,73,33,209,92,60,37,4179,368,242,56,2332,330,124,57]
[null,"Less than $10,000:",0,16,361,117,353,124,87,98,42,68,3,5,2,5,27,41,18,27,496,224,26,25,299,176,0,11]
[null,"Less than 20.0 percent",0,16,0,24,9,14,0,16,0,11,0,11,0,11,0,11,0,11,12,19,0,11,0,18,0,11]
[null,"20.0 to 24.9 percent",0,16,6,9,0,18,0,16,0,11,0,11,0,11,0,11,0,11,0,24,0,11,0,18,0,11]
[null,"25.0 to 29.9 percent",0,16,37,44,8,13,0,16,0,11,0,11,0,11,0,11,0,11,20,33,0,11,0,18,0,11]
[null,"30.0 to 34.9 percent",0,16,0,24,0,18,0,16,0,11,0,11,0,11,0,11,0,11,0,24,0,11,0,18,0,11]
[null,"35.0 to 39.9 percent",0,16,17,27,0,18,0,16,0,11,0,11,0,11,0,11,0,11,0,24,0,11,0,18,0,11]
[null,"40.0 to 49.9 percent",0,16,0,24,0,18,0,16,0,11,0,11,0,11,0,11,0,11,0,24,0,11,0,18,0,11]
[null,"50.0 percent or more",0,16,225,99,268,117,28,41,42,68,3,5,2,5,27,41,18,27,397,194,5,8,276,177,0,11]
[null,"Not computed",0,16,76,65,68,54,59,92,0,11,0,11,0,11,0,11,0,11,67,77,21,25,23,35,0,11]
[null,"$10,000 to $19,999:",0,16,762,171,224,88,124,101,0,11,6,7,4,6,55,55,0,11,619,189,32,26,229,136,0,11]
[null,"Less than 20.0 percent",0,16,14,23,0,18,54,85,0,11,0,11,0,11,0,11,0,11,0,24,0,11,83,118,0,11]
[null,"20.0 to 24.9 percent",0,16,20,31,13,13,0,16,0,11,0,11,0,11,0,11,0,11,36,40,0,11,18,29,0,11]
[null,"25.0 to 29.9 percent",0,16,58,37,9,14,0,16,0,11,0,11,0,11,0,11,0,11,133,90,0,11,33,39,0,11]
[null,"30.0 to 34.9 percent",0,16,81,52,5,7,17,30,0,11,0,11,0,11,0,11,0,11,63,51,0,11,19,31,0,11]
[null,"35.0 to 39.9 percent",0,16,18,29,11,17,0,16,0,11,0,11,0,11,0,11,0,11,0,24,0,11,0,18,0,11]
[null,"40.0 to 49.9 percent",0,16,0,24,14,23,0,16,0,11,0,11,0,11,10,16,0,11,16,17,0,11,22,35,0,11]
[null,"50.0 percent or more",0,16,501,151,172,86,53,51,0,11,3,5,4,6,45,50,0,11,330,155,32,26,54,46,0,11]
[null,"Not computed",0,16,70,90,0,18,0,16,0,11,3,6,0,11,0,11,0,11,41,37,0,11,0,18,0,11]
[null,"$20,000 to $34,999:",106,87,978,229,279,78,252,147,39,41,2,4,7,6,38,40,12,12,817,203,61,34,259,94,20,30]
[null,"Less than 20.0 percent",42,46,88,104,0,18,0,16,0,11,0,11,0,11,0,11,0,11,55,51,0,11,22,36,0,11]
[null,"20.0 to 24.9 percent",0,16,23,36,57,49,0,16,0,11,0,11,0,11,0,11,0,11,46,45,4,7,17,28,0,11]
[null,"25.0 to 29.9 percent",0,16,72,61,8,13,17,29,0,11,2,4,0,11,8,13,0,11,71,82,0,11,18,31,0,11]
[null,"30.0 to 34.9 percent",0,16,118,78,29,44,21,33,0,11,0,11,0,11,0,11,0,11,96,62,0,11,55,53,0,11]
[null,"35.0 to 39.9 percent",19,29,53,48,17,14,93,121,0,11,0,11,4,6,7,13,0,11,17,20,15,25,16,27,0,11]
[null,"40.0 to 49.9 percent",0,16,395,160,78,51,103,94,0,11,0,11,0,11,23,32,0,11,231,120,20,32,16,26,0,11]
[null,"50.0 percent or more",45,70,229,99,90,53,18,30,39,41,0,11,0,11,0,11,12,12,301,130,12,14,115,80,20,30]
[null,"Not computed",0,16,0,24,0,18,0,16,0,11,0,11,3,4,0,11,0,11,0,24,10,16,0,18,0,11]
[null,"$35,000 to $49,999:",0,16,1150,271,189,75,238,168,58,72,6,7,11,10,19,24,0,11,518,180,28,19,348,138,9,13]
[null,"Less than 20.0 percent",0,16,109,92,0,18,0,16,14,21,3,5,0,11,0,11,0,11,67,79,6,9,39,45,9,13]
[null,"20.0 to 24.9 percent",0,16,11,19,7,11,58,80,44,70,0,11,0,11,0,11,0,11,25,40,5,8,25,38,0,11]
[null,"25.0 to 29.9 percent",0,16,216,131,39,27,61,95,0,11,3,5,0,11,0,11,0,11,103,76,11,12,87,64,0,11]
[null,"30.0 to 34.9 percent",0,16,259,113,58,54,0,16,0,11,0,11,0,11,9,16,0,11,123,75,0,11,58,57,0,11]
[null,"35.0 to 39.9 percent",0,16,94,74,0,18,89,102,0,11,0,11,0,11,10,17,0,11,94,82,0,11,56,61,0,11]
[null,"40.0 to 49.9 percent",0,16,337,178,50,39,0,16,0,11,0,11,0,11,0,11,0,11,45,44,0,11,49,57,0,11]
[null,"50.0 percent or more",0,16,89,60,10,17,0,16,0,11,0,11,7,8,0,11,0,11,40,45,6,9,34,44,0,11]
[null,"Not computed",0,16,35,39,25,29,30,37,0,11,0,11,4,6,0,11,0,11,21,25,0,11,0,18,0,11]
[null,"$50,000 to $74,999:",85,105,1489,298,108,48,29,38,44,41,28,21,22,22,59,57,16,17,891,204,52,29,513,174,95,54]
[null,"Less than 20.0 percent",0,16,437,150,42,30,0,16,0,11,7,8,9,14,7,11,8,11,383,168,6,9,213,136,20,23]
[null,"20.0 to 24.9 percent",0,16,568,203,43,37,0,16,14,22,3,5,0,11,24,33,8,12,163,90,6,10,133,94,64,45]
[null,"25.0 to 29.9 percent",0,16,241,104,0,18,0,16,30,35,3,5,0,11,28,45,0,11,246,113,34,30,101,72,11,19]
[null,"30.0 to 34.9 percent",72,104,171,107,5,8,0,16,0,11,11,17,11,17,0,11,0,11,39,38,0,11,48,53,0,11]
[null,"35.0 to 39.9 percent",0,16,14,15,0,18,0,16,0,11,0,11,0,11,0,11,0,11,29,39,0,11,18,29,0,11]
[null,"40.0 to 49.9 percent",0,16,21,26,5,9,0,16,0,11,0,11,0,11,0,11,0,11,14,23,0,11,0,18,0,11]
[null,"50.0 percent or more",0,16,23,37,10,14,9,22,0,11,0,11,0,11,0,11,0,11,0,24,0,11,0,18,0,11]
[null,"Not computed",13,22,14,23,3,6,20,30,0,11,4,7,2,4,0,11,0,11,17,29,6,10,0,18,0,11]
[null,"$75,000 to $99,999:",69,67,848,208,85,50,107,86,74,89,13,14,27,19,0,11,8,10,383,158,27,35,503,194,0,11]
[null,"Less than 20.0 percent",18,30,376,150,57,47,50,57,74,89,3,5,9,7,0,11,8,10,216,128,27,35,334,162,0,11]
[null,"20.0 to 24.9 percent",0,16,311,130,4,7,40,46,0,11,5,7,15,17,0,11,0,11,107,78,0,11,116,97,0,11]
[null,"25.0 to 29.9 percent",34,54,83,59,11,11,0,16,0,11,0,11,0,11,0,11,0,11,50,42,0,11,53,49,0,11]
[null,"30.0 to 34.9 percent",17,26,7,13,6,9,0,16,0,11,0,11,0,11,0,11,0,11,10,17,0,11,0,18,0,11]
[null,"35.0 to 39.9 percent",0,16,17,27,7,10,0,16,0,11,0,11,0,11,0,11,0,11,0,24,0,11,0,18,0,11]
[null,"40.0 to 49.9 percent",0,16,28,53,0,18,0,16,0,11,0,11,0,11,0,11,0,11,0,24,0,11,0,18,0,11]
[null,"50.0 percent or more",0,16,19,29,0,18,0,16,0,11,0,11,0,11,0,11,0,11,0,24,0,11,0,18,0,11]
[null,"Not computed",0,16,7,10,0,18,17,29,0,11,5,8,3,5,0,11,0,11,0,24,0,11,0,18,0,11]
[null,"$100,000 or more:",19,32,952,233,95,54,100,92,0,11,24,14,0,11,11,17,6,10,455,159,16,15,181,115,0,11]
[null,"Less than 20.0 percent",0,16,790,215,70,45,100,92,0,11,11,10,0,11,11,17,6,10,455,159,16,15,130,100,0,11]
[null,"20.0 to 24.9 percent",0,16,131,88,25,32,0,16,0,11,13,11,0,11,0,11,0,11,0,24,0,11,51,60,0,11]
[null,"25.0 to 29.9 percent",19,32,31,36,0,18,0,16,0,11,0,11,0,11,0,11,0,11,0,24,0,11,0,18,0,11]
[null,"30.0 to 34.9 percent",0,16,0,24,0,18,0,16,0,11,0,11,0,11,0,11,0,11,0,24,0,11,0,18,0,11]
[null,"35.0 to 39.9 percent",0,16,0,24,0,18,0,16,0,11,0,11,0,11,0,11,0,11,0,24,0,11,0,18,0,11]
[null,"40.0 to 49.9 percent",0,16,0,24,0,18,0,16,0,11,0,11,0,11,0,11,0,11,0,24,0,11,0,18,0,11]
[null,"50.0 percent or more",0,16,0,24,0,18,0,16,0,11,0,11,0,11,0,11,0,11,0,24,0,11,0,18,0,11]
[null,"Not computed",0,16,0,24,0,18,0,16,0,11,0,11,0,11,0,11,0,11,0,24,0,11,0,18,0,11]
[]
[]
[]
[]
[]
[]
[]
[]
[]
[]
[]
[]
[]
[]
[]
[null,"Calculated B25074. HOUSEHOLD INCOME BY GROSS RENT AS A PERCENTAGE OF HOUSEHOLD INCOME IN THE PAST 12 MONTHS"]
[null,"Universe:  RENTER-OCCUPIED HOUSING UNITS"]
[null,"Data Set: 2015-2019 American Community Survey 5-Year Estimates"]
[]
[null,null,"Barrington",null,"Dover",null,"Durham",null,"Farmington",null,"Lee",null,"Madbury",null,"Middleton",null,"Milton",null,"New Durham",null,"Rochester",null,"Rollinsford",null,"Somersworth",null,"Strafford"]
[null,null,"Estimate","Margin Of Error","Estimate","Margin Of Error","Estimate","Margin Of Error","Estimate","Margin Of Error","Estimate","Margin Of Error","Estimate","Margin Of Error","Estimate","Margin Of Error","Estimate","Margin Of Error","Estimate","Margin Of Error","Estimate","Margin Of Error","Estimate","Margin Of Error","Estimate","Margin Of Error","Estimate","Margin Of Error"]
[null,"Total:",{"$f":"C7","v":279},{"$f":"D7","v":139},{"$f":"E7","v":6540},359,1333,135,937,230,257,135,82,31,73,33,209,92,{"$f":"S7","v":60},37,4179,368,242,56,2332,330,124,57]
[null,"Less than $10,000:",{"$f":"C8","v":0},{"$f":"D8","v":16},361,117,353,124,87,98,42,68,3,5,2,5,27,41,18,27,496,224,26,25,299,176,0,11]
[null,"Less than 30.0 percent",{"$f":"C9+C10+C11","v":0},{"$f":"SQRT((D9^2)+(D10^2)+(D11^2))","v":27.712812921102035},{"$f":"E9+E10+E11","v":43},{"$f":"SQRT((F9^2)+(F10^2)+(F11^2))","v":50.921508225896062},{"$f":"G9+G10+G11","v":17},{"$f":"SQRT((H9^2)+(H10^2)+(H11^2))","v":26.248809496813376},{"$f":"I9+I10+I11","v":0},{"$f":"SQRT((J9^2)+(J10^2)+(J11^2))","v":27.712812921102035},{"$f":"K9+K10+K11","v":0},{"$f":"SQRT((L9^2)+(L10^2)+(L11^2))","v":19.05255888325765},{"$f":"M9+M10+M11","v":0},{"$f":"SQRT((N9^2)+(N10^2)+(N11^2))","v":19.05255888325765},{"$f":"O9+O10+O11","v":0},{"$f":"SQRT((P9^2)+(P10^2)+(P11^2))","v":19.05255888325765},{"$f":"Q9+Q10+Q11","v":0},{"$f":"SQRT((R9^2)+(R10^2)+(R11^2))","v":19.05255888325765},{"$f":"S9+S10+S11","v":0},{"$f":"SQRT((T9^2)+(T10^2)+(T11^2))","v":19.05255888325765},{"$f":"U9+U10+U11","v":32},{"$f":"SQRT((V9^2)+(V10^2)+(V11^2))","v":45.011109739707599},{"$f":"W9+W10+W11","v":0},{"$f":"SQRT((X9^2)+(X10^2)+(X11^2))","v":19.05255888325765},{"$f":"Y9+Y10+Y11","v":0},{"$f":"SQRT((Z9^2)+(Z10^2)+(Z11^2))","v":31.176914536239792},{"$f":"AA9+AA10+AA11","v":0},{"$f":"SQRT((AB9^2)+(AB10^2)+(AB11^2))","v":19.05255888325765}]
[null,"More than 30.0 percent",{"$f":"C12+C13+C14+C15","v":0},{"$f":"SQRT((D12^2)+(D13^2)+(D14^2)+(D15^2))","v":32},{"$f":"E12+E13+E14+E15","v":242},{"$f":"SQRT((F12^2)+(F13^2)+(F14^2)+(F15^2))","v":108.08330120791094},{"$f":"G12+G13+G14+G15","v":268},{"$f":"SQRT((H12^2)+(H13^2)+(H14^2)+(H15^2))","v":121.0826164236634},{"$f":"I12+I13+I14+I15","v":28},{"$f":"SQRT((J12^2)+(J13^2)+(J14^2)+(J15^2))","v":49.48737212663449},{"$f":"K12+K13+K14+K15","v":42},{"$f":"SQRT((L12^2)+(L13^2)+(L14^2)+(L15^2))","v":70.618694408775355},{"$f":"M12+M13+M14+M15","v":3},{"$f":"SQRT((N12^2)+(N13^2)+(N14^2)+(N15^2))","v":19.697715603592208},{"$f":"O12+O13+O14+O15","v":2},{"$f":"SQRT((P12^2)+(P13^2)+(P14^2)+(P15^2))","v":19.697715603592208},{"$f":"Q12+Q13+Q14+Q15","v":27},{"$f":"SQRT((R12^2)+(R13^2)+(R14^2)+(R15^2))","v":45.210618221829257},{"$f":"S12+S13+S14+S15","v":18},{"$f":"SQRT((T12^2)+(T13^2)+(T14^2)+(T15^2))","v":33.045423283716609},{"$f":"U12+U13+U14+U15","v":397},{"$f":"SQRT((V12^2)+(V13^2)+(V14^2)+(V15^2))","v":198.40362899906847},{"$f":"W12+W13+W14+W15","v":5},{"$f":"SQRT((X12^2)+(X13^2)+(X14^2)+(X15^2))","v":20.663978319771825},{"$f":"Y12+Y13+Y14+Y15","v":276},{"$f":"SQRT((Z12^2)+(Z13^2)+(Z14^2)+(Z15^2))","v":179.7247896090019},{"$f":"AA12+AA13+AA14+AA15","v":0},{"$f":"SQRT((AB12^2)+(AB13^2)+(AB14^2)+(AB15^2))","v":22}]
[null,"Less Than 35% of HH Income",{"$f":"C9+C10+C11+C12","v":0},{"$f":"SQRT((D9^2)+(D10^2)+(D11^2)+(D12^2))","v":32},{"$f":"E9+E10+E11+E12","v":43},{"$f":"SQRT((F9^2)+(F10^2)+(F11^2)+(F12^2))","v":56.293871780150276},{"$f":"G9+G10+G11+G12","v":17},{"$f":"SQRT((H9^2)+(H10^2)+(H11^2)+(H12^2))","v":31.827660925679098},{"$f":"I9+I10+I11+I12","v":0},{"$f":"SQRT((J9^2)+(J10^2)+(J11^2)+(J12^2))","v":32},{"$f":"K9+K10+K11+K12","v":0},{"$f":"SQRT((L9^2)+(L10^2)+(L11^2)+(L12^2))","v":22},{"$f":"M9+M10+M11+M12","v":0},{"$f":"SQRT((N9^2)+(N10^2)+(N11^2)+(N12^2))","v":22},{"$f":"O9+O10+O11+O12","v":0},{"$f":"SQRT((P9^2)+(P10^2)+(P11^2)+(P12^2))","v":22},{"$f":"Q9+Q10+Q11+Q12","v":0},{"$f":"SQRT((R9^2)+(R10^2)+(R11^2)+(R12^2))","v":22},{"$f":"S9+S10+S11+S12","v":0},{"$f":"SQRT((T9^2)+(T10^2)+(T11^2)+(T12^2))","v":22},{"$f":"U9+U10+U11+U12","v":32},{"$f":"SQRT((V9^2)+(V10^2)+(V11^2)+(V12^2))","v":51.009802979427398},{"$f":"W9+W10+W11+W12","v":0},{"$f":"SQRT((X9^2)+(X10^2)+(X11^2)+(X12^2))","v":22},{"$f":"Y9+Y10+Y11+Y12","v":0},{"$f":"SQRT((Z9^2)+(Z10^2)+(Z11^2)+(Z12^2))","v":36},{"$f":"AA9+AA10+AA11+AA12","v":0},{"$f":"SQRT((AB9^2)+(AB10^2)+(AB11^2)+(AB12^2))","v":22}]
[null,"35.0 percent or more",{"$f":"C13+C14++C15","v":0},{"$f":"SQRT((D13^2)+(D14^2)+(D15^2))","v":27.712812921102035},{"$f":"E13+E14++E15","v":242},{"$f":"SQRT((F13^2)+(F14^2)+(F15^2))","v":105.38500842150178},{"$f":"G13+G14++G15","v":268},{"$f":"SQRT((H13^2)+(H14^2)+(H15^2))","v":119.73721226085064},{"$f":"I13+I14++I15","v":28},{"$f":"SQRT((J13^2)+(J14^2)+(J15^2))","v":46.82947789587238},{"$f":"K13+K14++K15","v":42},{"$f":"SQRT((L13^2)+(L14^2)+(L15^2))","v":69.756720106381152},{"$f":"M13+M14++M15","v":3},{"$f":"SQRT((N13^2)+(N14^2)+(N15^2))","v":16.340134638368191},{"$f":"O13+O14++O15","v":2},{"$f":"SQRT((P13^2)+(P14^2)+(P15^2))","v":16.340134638368191},{"$f":"Q13+Q14++Q15","v":27},{"$f":"SQRT((R13^2)+(R14^2)+(R15^2))","v":43.852023898561399},{"$f":"S13+S14++S15","v":18},{"$f":"SQRT((T13^2)+(T14^2)+(T15^2))","v":31.160872901765767},{"$f":"U13+U14++U15","v":397},{"$f":"SQRT((V13^2)+(V14^2)+(V15^2))","v":196.94669329541941},{"$f":"W13+W14++W15","v":5},{"$f":"SQRT((X13^2)+(X14^2)+(X15^2))","v":17.4928556845359},{"$f":"Y13+Y14++Y15","v":276},{"$f":"SQRT((Z13^2)+(Z14^2)+(Z15^2))","v":178.82113968991473},{"$f":"AA13+AA14++AA15","v":0},{"$f":"SQRT((AB13^2)+(AB14^2)+(AB15^2))","v":19.05255888325765}]
[null,"50.0 percent or more",{"$f":"C15","v":0},16,225,99,268,117,28,41,42,68,3,5,2,5,27,41,18,27,397,194,5,8,276,177,0,11]
[null,"Not Computed",{"$f":"C16","v":0},16,76,65,68,54,59,92,0,11,0,11,0,11,0,11,0,11,67,77,21,25,23,35,0,11]
[null,"$10,000 to $19,999:",{"$f":"C17","v":0},{"$f":"D17","v":16},{"$f":"E17","v":762},171,224,88,124,101,0,11,6,7,4,6,55,55,0,11,619,189,32,26,229,136,0,11]
[null,"Less than 30.0 percent",{"$f":"C18+C19+C20","v":0},{"$f":"SQRT((D18^2)+(D19^2)+(D20^2))","v":27.712812921102035},{"$f":"E18+E19+E20","v":92},{"$f":"SQRT((F18^2)+(F19^2)+(F20^2))","v":53.469617541179403},{"$f":"G18+G19+G20","v":22},{"$f":"SQRT((H18^2)+(H19^2)+(H20^2))","v":26.248809496813376},{"$f":"I18+I19+I20","v":54},{"$f":"SQRT((J18^2)+(J19^2)+(J20^2))","v":87.960218280766},{"$f":"K18+K19+K20","v":0},{"$f":"SQRT((L18^2)+(L19^2)+(L20^2))","v":19.05255888325765},{"$f":"M18+M19+M20","v":0},{"$f":"SQRT((N18^2)+(N19^2)+(N20^2))","v":19.05255888325765},{"$f":"O18+O19+O20","v":0},{"$f":"SQRT((P18^2)+(P19^2)+(P20^2))","v":19.05255888325765},{"$f":"Q18+Q19+Q20","v":0},{"$f":"SQRT((R18^2)+(R19^2)+(R20^2))","v":19.05255888325765},{"$f":"S18+S19+S20","v":0},{"$f":"SQRT((T18^2)+(T19^2)+(T20^2))","v":19.05255888325765},{"$f":"U18+U19+U20","v":169},{"$f":"SQRT((V18^2)+(V19^2)+(V20^2))","v":101.3706071797935},{"$f":"W18+W19+W20","v":0},{"$f":"SQRT((X18^2)+(X19^2)+(X20^2))","v":19.05255888325765},{"$f":"Y18+Y19+Y20","v":134},{"$f":"SQRT((Z18^2)+(Z19^2)+(Z20^2))","v":127.61661333854617},{"$f":"AA18+AA19+AA20","v":0},{"$f":"SQRT((AB18^2)+(AB19^2)+(AB20^2))","v":19.05255888325765}]
[null,"More than 30.0 percent",{"$f":"C21+C22+C23+C24","v":0},{"$f":"SQRT((D21^2)+(D22^2)+(D23^2)+(D24^2))","v":32},{"$f":"E21+E22+E23+E24","v":600},{"$f":"SQRT((F21^2)+(F22^2)+(F23^2)+(F24^2))","v":164.07924914503965},{"$f":"G21+G22+G23+G24","v":202},{"$f":"SQRT((H21^2)+(H22^2)+(H23^2)+(H24^2))","v":90.901045098502578},{"$f":"I21+I22+I23+I24","v":70},{"$f":"SQRT((J21^2)+(J22^2)+(J23^2)+(J24^2))","v":63.348243858847418},{"$f":"K21+K22+K23+K24","v":0},{"$f":"SQRT((L21^2)+(L22^2)+(L23^2)+(L24^2))","v":22},{"$f":"M21+M22+M23+M24","v":3},{"$f":"SQRT((N21^2)+(N22^2)+(N23^2)+(N24^2))","v":19.697715603592208},{"$f":"O21+O22+O23+O24","v":4},{"$f":"SQRT((P21^2)+(P22^2)+(P23^2)+(P24^2))","v":19.974984355438178},{"$f":"Q21+Q22+Q23+Q24","v":55},{"$f":"SQRT((R21^2)+(R22^2)+(R23^2)+(R24^2))","v":54.753995288015282},{"$f":"S21+S22+S23+S24","v":0},{"$f":"SQRT((T21^2)+(T22^2)+(T23^2)+(T24^2))","v":22},{"$f":"U21+U22+U23+U24","v":409},{"$f":"SQRT((V21^2)+(V22^2)+(V23^2)+(V24^2))","v":165.80410127617472},{"$f":"W21+W22+W23+W24","v":32},{"$f":"SQRT((X21^2)+(X22^2)+(X23^2)+(X24^2))","v":32.233522922572398},{"$f":"Y21+Y22+Y23+Y24","v":95},{"$f":"SQRT((Z21^2)+(Z22^2)+(Z23^2)+(Z24^2))","v":68.01470429252781},{"$f":"AA21+AA22+AA23+AA24","v":0},{"$f":"SQRT((AB21^2)+(AB22^2)+(AB23^2)+(AB24^2))","v":22}]
[null,"Less Than 35% of HH Income",{"$f":"C18+C19+C20+C21","v":0},{"$f":"SQRT((D18^2)+(D19^2)+(D20^2)+(D21^2))","v":32},{"$f":"E18+E19+E20+E21","v":173},{"$f":"SQRT((F18^2)+(F19^2)+(F20^2)+(F21^2))","v":74.585521383174637},{"$f":"G18+G19+G20+G21","v":27},{"$f":"SQRT((H18^2)+(H19^2)+(H20^2)+(H21^2))","v":27.166155414412248},{"$f":"I18+I19+I20+I21","v":71},{"$f":"SQRT((J18^2)+(J19^2)+(J20^2)+(J21^2))","v":92.93546147730693},{"$f":"K18+K19+K20+K21","v":0},{"$f":"SQRT((L18^2)+(L19^2)+(L20^2)+(L21^2))","v":22},{"$f":"M18+M19+M20+M21","v":0},{"$f":"SQRT((N18^2)+(N19^2)+(N20^2)+(N21^2))","v":22},{"$f":"O18+O19+O20+O21","v":0},{"$f":"SQRT((P18^2)+(P19^2)+(P20^2)+(P21^2))","v":22},{"$f":"Q18+Q19+Q20+Q21","v":0},{"$f":"SQRT((R18^2)+(R19^2)+(R20^2)+(R21^2))","v":22},{"$f":"S18+S19+S20+S21","v":0},{"$f":"SQRT((T18^2)+(T19^2)+(T20^2)+(T21^2))","v":22},{"$f":"U18+U19+U20+U21","v":232},{"$f":"SQRT((V18^2)+(V19^2)+(V20^2)+(V21^2))","v":113.47686988985905},{"$f":"W18+W19+W20+W21","v":0},{"$f":"SQRT((X18^2)+(X19^2)+(X20^2)+(X21^2))","v":22},{"$f":"Y18+Y19+Y20+Y21","v":153},{"$f":"SQRT((Z18^2)+(Z19^2)+(Z20^2)+(Z21^2))","v":131.32783406422266},{"$f":"AA18+AA19+AA20+AA21","v":0},{"$f":"SQRT((AB18^2)+(AB19^2)+(AB20^2)+(AB21^2))","v":22}]
[null,"35.0 percent or more",{"$f":"C22+C23++C24","v":0},{"$f":"SQRT((D22^2)+(D23^2)+(D24^2))","v":27.712812921102035},{"$f":"E22+E23++E24","v":519},{"$f":"SQRT((F22^2)+(F23^2)+(F24^2))","v":155.62133529821674},{"$f":"G22+G23++G24","v":197},{"$f":"SQRT((H22^2)+(H23^2)+(H24^2))","v":90.631120482977593},{"$f":"I22+I23++I24","v":53},{"$f":"SQRT((J22^2)+(J23^2)+(J24^2))","v":55.794264938253285},{"$f":"K22+K23++K24","v":0},{"$f":"SQRT((L22^2)+(L23^2)+(L24^2))","v":19.05255888325765},{"$f":"M22+M23++M24","v":3},{"$f":"SQRT((N22^2)+(N23^2)+(N24^2))","v":16.340134638368191},{"$f":"O22+O23++O24","v":4},{"$f":"SQRT((P22^2)+(P23^2)+(P24^2))","v":16.673332000533065},{"$f":"Q22+Q23++Q24","v":55},{"$f":"SQRT((R22^2)+(R23^2)+(R24^2))","v":53.637673327615545},{"$f":"S22+S23++S24","v":0},{"$f":"SQRT((T22^2)+(T23^2)+(T24^2))","v":19.05255888325765},{"$f":"U22+U23++U24","v":346},{"$f":"SQRT((V22^2)+(V23^2)+(V24^2))","v":157.76564898608316},{"$f":"W22+W23++W24","v":32},{"$f":"SQRT((X22^2)+(X23^2)+(X24^2))","v":30.298514815086232},{"$f":"Y22+Y23++Y24","v":76},{"$f":"SQRT((Z22^2)+(Z23^2)+(Z24^2))","v":60.539243470661241},{"$f":"AA22+AA23++AA24","v":0},{"$f":"SQRT((AB22^2)+(AB23^2)+(AB24^2))","v":19.05255888325765}]
[null,"50.0 percent or more",{"$f":"C24","v":0},{"$f":"D24","v":16},{"$f":"E24","v":501},{"$f":"F24","v":151},{"$f":"G24","v":172},86,{"$f":"I24","v":53},51,{"$f":"K24","v":0},11,{"$f":"M24","v":3},5,{"$f":"O24","v":4},6,{"$f":"Q24","v":45},50,{"$f":"S24","v":0},11,{"$f":"U24","v":330},155,{"$f":"W24","v":32},26,{"$f":"Y24","v":54},46,{"$f":"AA24","v":0},11]
[null,"Not Computed",{"$f":"C25","v":0},{"$f":"D25","v":16},{"$f":"E25","v":70},90,0,18,0,16,0,11,3,6,0,11,0,11,{"$f":"S25","v":0},11,41,37,0,11,0,18,0,11]
[null,"$20,000 to $34,999:",{"$f":"C26","v":106},{"$f":"D26","v":87},978,229,279,78,252,147,39,41,2,4,7,6,38,40,12,12,817,203,61,34,259,94,20,30]
[null,"Less than 30.0 percent",{"$f":"C27+C28+C29","v":42},{"$f":"SQRT((D27^2)+(D28^2)+(D29^2))","v":51.264022471905186},{"$f":"E27+E28+E29","v":183},{"$f":"SQRT((F27^2)+(F28^2)+(F29^2))","v":125.8292493818508},{"$f":"G27+G28+G29","v":65},{"$f":"SQRT((H27^2)+(H28^2)+(H29^2))","v":53.795910625251061},{"$f":"I27+I28+I29","v":17},{"$f":"SQRT((J27^2)+(J28^2)+(J29^2))","v":36.783148315499041},{"$f":"K27+K28+K29","v":0},{"$f":"SQRT((L27^2)+(L28^2)+(L29^2))","v":19.05255888325765},{"$f":"M27+M28+M29","v":2},{"$f":"SQRT((N27^2)+(N28^2)+(N29^2))","v":16.06237840420901},{"$f":"O27+O28+O29","v":0},{"$f":"SQRT((P27^2)+(P28^2)+(P29^2))","v":19.05255888325765},{"$f":"Q27+Q28+Q29","v":8},{"$f":"SQRT((R27^2)+(R28^2)+(R29^2))","v":20.273134932713294},{"$f":"S27+S28+S29","v":0},{"$f":"SQRT((T27^2)+(T28^2)+(T29^2))","v":19.05255888325765},{"$f":"U27+U28+U29","v":172},{"$f":"SQRT((V27^2)+(V28^2)+(V29^2))","v":106.53637876331258},{"$f":"W27+W28+W29","v":4},{"$f":"SQRT((X27^2)+(X28^2)+(X29^2))","v":17.058722109231979},{"$f":"Y27+Y28+Y29","v":57},{"$f":"SQRT((Z27^2)+(Z28^2)+(Z29^2))","v":55.145262715848951},{"$f":"AA27+AA28+AA29","v":0},{"$f":"SQRT((AB27^2)+(AB28^2)+(AB29^2))","v":19.05255888325765}]
[null,"More than 30.0 percent",{"$f":"C30+C31+C32+C33","v":64},{"$f":"SQRT((D30^2)+(D31^2)+(D32^2)+(D33^2))","v":79.075912893876861},{"$f":"E30+E31+E32+E33","v":795},{"$f":"SQRT((F30^2)+(F31^2)+(F32^2)+(F33^2))","v":209.25821369781403},{"$f":"G30+G31+G32+G33","v":214},{"$f":"SQRT((H30^2)+(H31^2)+(H32^2)+(H33^2))","v":86.844688956780772},{"$f":"I30+I31+I32+I33","v":235},{"$f":"SQRT((J30^2)+(J31^2)+(J32^2)+(J33^2))","v":159.58070058750837},{"$f":"K30+K31+K32+K33","v":39},{"$f":"SQRT((L30^2)+(L31^2)+(L32^2)+(L33^2))","v":45.210618221829257},{"$f":"M30+M31+M32+M33","v":0},{"$f":"SQRT((N30^2)+(N31^2)+(N32^2)+(N33^2))","v":22},{"$f":"O30+O31+O32+O33","v":4},{"$f":"SQRT((P30^2)+(P31^2)+(P32^2)+(P33^2))","v":19.974984355438178},{"$f":"Q30+Q31+Q32+Q33","v":30},{"$f":"SQRT((R30^2)+(R31^2)+(R32^2)+(R33^2))","v":37.881393849751625},{"$f":"S30+S31+S32+S33","v":12},{"$f":"SQRT((T30^2)+(T31^2)+(T32^2)+(T33^2))","v":22.516660498395403},{"$f":"U30+U31+U32+U33","v":645},{"$f":"SQRT((V30^2)+(V31^2)+(V32^2)+(V33^2))","v":188.53116453255149},{"$f":"W30+W31+W32+W33","v":47},{"$f":"SQRT((X30^2)+(X31^2)+(X32^2)+(X33^2))","v":44.339598554790726},{"$f":"Y30+Y31+Y32+Y33","v":202},{"$f":"SQRT((Z30^2)+(Z31^2)+(Z32^2)+(Z33^2))","v":103.02426898551623},{"$f":"AA30+AA31+AA32+AA33","v":20},{"$f":"SQRT((AB30^2)+(AB31^2)+(AB32^2)+(AB33^2))","v":35.538711287833721}]
[null,"Less Than 35% of HH Income",{"$f":"C27+C28+C29+C30","v":42},{"$f":"SQRT((D27^2)+(D28^2)+(D29^2)+(D30^2))","v":53.702886328390207},{"$f":"E27+E28+E29+E30","v":301},{"$f":"SQRT((F27^2)+(F28^2)+(F29^2)+(F30^2))","v":148.0439124043944},{"$f":"G27+G28+G29+G30","v":94},{"$f":"SQRT((H27^2)+(H28^2)+(H29^2)+(H30^2))","v":69.498201415576219},{"$f":"I27+I28+I29+I30","v":38},{"$f":"SQRT((J27^2)+(J28^2)+(J29^2)+(J30^2))","v":49.416596402423345},{"$f":"K27+K28+K29+K30","v":0},{"$f":"SQRT((L27^2)+(L28^2)+(L29^2)+(L30^2))","v":22},{"$f":"M27+M28+M29+M30","v":2},{"$f":"SQRT((N27^2)+(N28^2)+(N29^2)+(N30^2))","v":19.467922333931785},{"$f":"O27+O28+O29+O30","v":0},{"$f":"SQRT((P27^2)+(P28^2)+(P29^2)+(P30^2))","v":22},{"$f":"Q27+Q28+Q29+Q30","v":8},{"$f":"SQRT((R27^2)+(R28^2)+(R29^2)+(R30^2))","v":23.065125189341593},{"$f":"S27+S28+S29+S30","v":0},{"$f":"SQRT((T27^2)+(T28^2)+(T29^2)+(T30^2))","v":22},{"$f":"U27+U28+U29+U30","v":268},{"$f":"SQRT((V27^2)+(V28^2)+(V29^2)+(V30^2))","v":123.26394444443193},{"$f":"W27+W28+W29+W30","v":4},{"$f":"SQRT((X27^2)+(X28^2)+(X29^2)+(X30^2))","v":20.297783130184438},{"$f":"Y27+Y28+Y29+Y30","v":112},{"$f":"SQRT((Z27^2)+(Z28^2)+(Z29^2)+(Z30^2))","v":76.485292703891773},{"$f":"AA27+AA28+AA29+AA30","v":0},{"$f":"SQRT((AB27^2)+(AB28^2)+(AB29^2)+(AB30^2))","v":22}]
[null,"35.0 percent or more",{"$f":"C31+C32+C33","v":64},{"$f":"SQRT((D31^2)+(D32^2)+(D33^2))","v":77.440299586197369},{"$f":"E31+E32+E33","v":677},{"$f":"SQRT((F31^2)+(F32^2)+(F33^2))","v":194.17775361765828},{"$f":"G31+G32+G33","v":185},{"$f":"SQRT((H31^2)+(H32^2)+(H33^2))","v":74.873226189339533},{"$f":"I31+I32+I33","v":214},{"$f":"SQRT((J31^2)+(J32^2)+(J33^2))","v":156.13135495473034},{"$f":"K31+K32+K33","v":39},{"$f":"SQRT((L31^2)+(L32^2)+(L33^2))","v":43.852023898561399},{"$f":"M31+M32+M33","v":0},{"$f":"SQRT((N31^2)+(N32^2)+(N33^2))","v":19.05255888325765},{"$f":"O31+O32+O33","v":4},{"$f":"SQRT((P31^2)+(P32^2)+(P33^2))","v":16.673332000533065},{"$f":"Q31+Q32+Q33","v":30},{"$f":"SQRT((R31^2)+(R32^2)+(R33^2))","v":36.249137920783717},{"$f":"S31+S32+S33","v":12},{"$f":"SQRT((T31^2)+(T32^2)+(T33^2))","v":19.646882704388499},{"$f":"U31+U32+U33","v":549},{"$f":"SQRT((V31^2)+(V32^2)+(V33^2))","v":178.04493814764857},{"$f":"W31+W32+W33","v":47},{"$f":"SQRT((X31^2)+(X32^2)+(X33^2))","v":42.953463189829058},{"$f":"Y31+Y32+Y33","v":147},{"$f":"SQRT((Z31^2)+(Z32^2)+(Z33^2))","v":88.345911054219144},{"$f":"AA31+AA32+AA33","v":20},{"$f":"SQRT((AB31^2)+(AB32^2)+(AB33^2))","v":33.793490497431605}]
[null,"50.0 percent or more",{"$f":"C33","v":45},70,{"$f":"E33","v":229},99,90,53,18,30,39,41,0,11,0,11,0,11,{"$f":"S33","v":12},12,301,130,12,14,115,80,20,30]
[null,"Not Computed",0,16,0,24,0,18,0,16,0,11,0,11,3,4,0,11,0,11,0,24,10,16,0,18,0,11]
[null,"$35,000 to $49,999:",0,16,1150,271,189,75,238,168,58,72,6,7,11,10,19,24,0,11,518,180,28,19,348,138,9,13]
[null,"Less than 30.0 percent",{"$f":"C36+C37+C38","v":0},{"$f":"SQRT((D36^2)+(D37^2)+(D38^2))","v":27.712812921102035},{"$f":"E36+E37+E38","v":336},{"$f":"SQRT((F36^2)+(F37^2)+(F38^2))","v":161.20173696334663},{"$f":"G36+G37+G38","v":46},{"$f":"SQRT((H36^2)+(H37^2)+(H38^2))","v":34.26368339802363},{"$f":"I36+I37+I38","v":119},{"$f":"SQRT((J36^2)+(J37^2)+(J38^2))","v":125.22379965485794},{"$f":"K36+K37+K38","v":58},{"$f":"SQRT((L36^2)+(L37^2)+(L38^2))","v":73.905344867607511},{"$f":"M36+M37+M38","v":6},{"$f":"SQRT((N36^2)+(N37^2)+(N38^2))","v":13.076696830622021},{"$f":"O36+O37+O38","v":0},{"$f":"SQRT((P36^2)+(P37^2)+(P38^2))","v":19.05255888325765},{"$f":"Q36+Q37+Q38","v":0},{"$f":"SQRT((R36^2)+(R37^2)+(R38^2))","v":19.05255888325765},{"$f":"S36+S37+S38","v":0},{"$f":"SQRT((T36^2)+(T37^2)+(T38^2))","v":19.05255888325765},{"$f":"U36+U37+U38","v":195},{"$f":"SQRT((V36^2)+(V37^2)+(V38^2))","v":116.69190203266035},{"$f":"W36+W37+W38","v":22},{"$f":"SQRT((X36^2)+(X37^2)+(X38^2))","v":17},{"$f":"Y36+Y37+Y38","v":151},{"$f":"SQRT((Z36^2)+(Z37^2)+(Z38^2))","v":86.977008456258133},{"$f":"AA36+AA37+AA38","v":9},{"$f":"SQRT((AB36^2)+(AB37^2)+(AB38^2))","v":20.273134932713294}]
[null,"More than 30.0 percent",{"$f":"C39+C40+C41+C42","v":0},{"$f":"SQRT((D39^2)+(D40^2)+(D41^2)+(D42^2))","v":32},{"$f":"E39+E40+E41+E42","v":779},{"$f":"SQRT((F39^2)+(F40^2)+(F41^2)+(F42^2))","v":231.36335059814465},{"$f":"G39+G40+G41+G42","v":118},{"$f":"SQRT((H39^2)+(H40^2)+(H41^2)+(H42^2))","v":71.06335201775947},{"$f":"I39+I40+I41+I42","v":89},{"$f":"SQRT((J39^2)+(J40^2)+(J41^2)+(J42^2))","v":105.69768209379049},{"$f":"K39+K40+K41+K42","v":0},{"$f":"SQRT((L39^2)+(L40^2)+(L41^2)+(L42^2))","v":22},{"$f":"M39+M40+M41+M42","v":0},{"$f":"SQRT((N39^2)+(N40^2)+(N41^2)+(N42^2))","v":22},{"$f":"O39+O40+O41+O42","v":7},{"$f":"SQRT((P39^2)+(P40^2)+(P41^2)+(P42^2))","v":20.663978319771825},{"$f":"Q39+Q40+Q41+Q42","v":19},{"$f":"SQRT((R39^2)+(R40^2)+(R41^2)+(R42^2))","v":28.053520278211074},{"$f":"S39+S40+S41+S42","v":0},{"$f":"SQRT((T39^2)+(T40^2)+(T41^2)+(T42^2))","v":22},{"$f":"U39+U40+U41+U42","v":302},{"$f":"SQRT((V39^2)+(V40^2)+(V41^2)+(V42^2))","v":127.71061036577971},{"$f":"W39+W40+W41+W42","v":6},{"$f":"SQRT((X39^2)+(X40^2)+(X41^2)+(X42^2))","v":21.071307505705477},{"$f":"Y39+Y40+Y41+Y42","v":197},{"$f":"SQRT((Z39^2)+(Z40^2)+(Z41^2)+(Z42^2))","v":110.24971655292362},{"$f":"AA39+AA40+AA41+AA42","v":0},{"$f":"SQRT((AB39^2)+(AB40^2)+(AB41^2)+(AB42^2))","v":22}]
[null,"Less Than 35% of HH Income",{"$f":"C36+C37+C38+C39","v":0},{"$f":"SQRT((D36^2)+(D37^2)+(D38^2)+(D39^2))","v":32},{"$f":"E36+E37+E38+E39","v":595},{"$f":"SQRT((F36^2)+(F37^2)+(F38^2)+(F39^2))","v":196.86289645334389},{"$f":"G36+G37+G38+G39","v":104},{"$f":"SQRT((H36^2)+(H37^2)+(H38^2)+(H39^2))","v":63.953107821277925},{"$f":"I36+I37+I38+I39","v":119},{"$f":"SQRT((J36^2)+(J37^2)+(J38^2)+(J39^2))","v":126.24183141890805},{"$f":"K36+K37+K38+K39","v":58},{"$f":"SQRT((L36^2)+(L37^2)+(L38^2)+(L39^2))","v":74.719475372890571},{"$f":"M36+M37+M38+M39","v":6},{"$f":"SQRT((N36^2)+(N37^2)+(N38^2)+(N39^2))","v":17.088007490635061},{"$f":"O36+O37+O38+O39","v":0},{"$f":"SQRT((P36^2)+(P37^2)+(P38^2)+(P39^2))","v":22},{"$f":"Q36+Q37+Q38+Q39","v":9},{"$f":"SQRT((R36^2)+(R37^2)+(R38^2)+(R39^2))","v":24.879710609249457},{"$f":"S36+S37+S38+S39","v":0},{"$f":"SQRT((T36^2)+(T37^2)+(T38^2)+(T39^2))","v":22},{"$f":"U36+U37+U38+U39","v":318},{"$f":"SQRT((V36^2)+(V37^2)+(V38^2)+(V39^2))","v":138.71553626036271},{"$f":"W36+W37+W38+W39","v":22},{"$f":"SQRT((X36^2)+(X37^2)+(X38^2)+(X39^2))","v":20.248456731316587},{"$f":"Y36+Y37+Y38+Y39","v":209},{"$f":"SQRT((Z36^2)+(Z37^2)+(Z38^2)+(Z39^2))","v":103.99038417084533},{"$f":"AA36+AA37+AA38+AA39","v":9},{"$f":"SQRT((AB36^2)+(AB37^2)+(AB38^2)+(AB39^2))","v":23.065125189341593}]
[null,"35.0 percent or more",{"$f":"C40+C41+C42","v":0},{"$f":"SQRT((D40^2)+(D41^2)+(D42^2))","v":27.712812921102035},{"$f":"E40+E41+E42","v":520},{"$f":"SQRT((F40^2)+(F41^2)+(F42^2))","v":201.89105973271822},{"$f":"G40+G41+G42","v":60},{"$f":"SQRT((H40^2)+(H41^2)+(H42^2))","v":46.195237849804386},{"$f":"I40+I41+I42","v":89},{"$f":"SQRT((J40^2)+(J41^2)+(J42^2))","v":104.47966309287182},{"$f":"K40+K41+K42","v":0},{"$f":"SQRT((L40^2)+(L41^2)+(L42^2))","v":19.05255888325765},{"$f":"M40+M41+M42","v":0},{"$f":"SQRT((N40^2)+(N41^2)+(N42^2))","v":19.05255888325765},{"$f":"O40+O41+O42","v":7},{"$f":"SQRT((P40^2)+(P41^2)+(P42^2))","v":17.4928556845359},{"$f":"Q40+Q41+Q42","v":10},{"$f":"SQRT((R40^2)+(R41^2)+(R42^2))","v":23.043437243605826},{"$f":"S40+S41+S42","v":0},{"$f":"SQRT((T40^2)+(T41^2)+(T42^2))","v":19.05255888325765},{"$f":"U40+U41+U42","v":179},{"$f":"SQRT((V40^2)+(V41^2)+(V42^2))","v":103.36827366266692},{"$f":"W40+W41+W42","v":6},{"$f":"SQRT((X40^2)+(X41^2)+(X42^2))","v":17.972200755611428},{"$f":"Y40+Y41+Y42","v":139},{"$f":"SQRT((Z40^2)+(Z41^2)+(Z42^2))","v":94.371605899232208},{"$f":"AA40+AA41+AA42","v":0},{"$f":"SQRT((AB40^2)+(AB41^2)+(AB42^2))","v":19.05255888325765}]
[null,"50.0 percent or more",{"$f":"C42","v":0},16,89,{"$f":"F42","v":60},{"$f":"G42","v":10},17,{"$f":"I42","v":0},16,{"$f":"K42","v":0},11,{"$f":"M42","v":0},11,{"$f":"O42","v":7},8,{"$f":"Q42","v":0},11,{"$f":"S42","v":0},11,{"$f":"U42","v":40},45,{"$f":"W42","v":6},9,{"$f":"Y42","v":34},44,{"$f":"AA42","v":0},11]
[null,"Not Computed",0,16,35,39,{"$f":"G43","v":25},29,{"$f":"I43","v":30},37,{"$f":"K43","v":0},11,{"$f":"M43","v":0},11,{"$f":"O43","v":4},6,{"$f":"Q43","v":0},11,{"$f":"S43","v":0},11,{"$f":"U43","v":21},25,{"$f":"W43","v":0},11,{"$f":"Y43","v":0},18,{"$f":"AA43","v":0},11]
[null,"$50,000 to $74,999:",{"$f":"C44","v":85},{"$f":"D44","v":105},{"$f":"E44","v":1489},298,108,48,29,38,44,41,28,21,22,22,59,57,16,17,891,204,52,29,513,174,95,54]
[null,"Less than 30.0 percent",{"$f":"C45+C46+C47","v":0},{"$f":"SQRT((D45^2)+(D46^2)+(D47^2))","v":27.712812921102035},{"$f":"E45+E46+E47","v":1246},{"$f":"SQRT((F45^2)+(F46^2)+(F47^2))","v":272.99267389437392},{"$f":"G45+G46+G47","v":85},{"$f":"SQRT((H45^2)+(H46^2)+(H47^2))","v":50.921508225896062},{"$f":"I45+I46+I47","v":0},{"$f":"SQRT((J45^2)+(J46^2)+(J47^2))","v":27.712812921102035},{"$f":"K45+K46+K47","v":44},{"$f":"SQRT((L45^2)+(L46^2)+(L47^2))","v":42.778499272414876},{"$f":"M45+M46+M47","v":13},{"$f":"SQRT((N45^2)+(N46^2)+(N47^2))","v":10.677078252031311},{"$f":"O45+O46+O47","v":9},{"$f":"SQRT((P45^2)+(P46^2)+(P47^2))","v":20.928449536456348},{"$f":"Q45+Q46+Q47","v":59},{"$f":"SQRT((R45^2)+(R46^2)+(R47^2))","v":56.877060402239493},{"$f":"S45+S46+S47","v":16},{"$f":"SQRT((T45^2)+(T46^2)+(T47^2))","v":19.646882704388499},{"$f":"U45+U46+U47","v":792},{"$f":"SQRT((V45^2)+(V46^2)+(V47^2))","v":221.56940221971084},{"$f":"W45+W46+W47","v":46},{"$f":"SQRT((X45^2)+(X46^2)+(X47^2))","v":32.878564445547191},{"$f":"Y45+Y46+Y47","v":447},{"$f":"SQRT((Z45^2)+(Z46^2)+(Z47^2))","v":180.32193432857801},{"$f":"AA45+AA46+AA47","v":95},{"$f":"SQRT((AB45^2)+(AB46^2)+(AB47^2))","v":53.990739946772351}]
[null,"More than 30.0 percent",{"$f":"C48+C49+C50+C51","v":72},{"$f":"SQRT((D48^2)+(D49^2)+(D50^2)+(D51^2))","v":107.62899237658968},{"$f":"E48+E49+E50+E51","v":229},{"$f":"SQRT((F48^2)+(F49^2)+(F50^2)+(F51^2))","v":117.12813496338103},{"$f":"G48+G49+G50+G51","v":20},{"$f":"SQRT((H48^2)+(H49^2)+(H50^2)+(H51^2))","v":25.787593916455254},{"$f":"I48+I49+I50+I51","v":9},{"$f":"SQRT((J48^2)+(J49^2)+(J50^2)+(J51^2))","v":35.383612025908263},{"$f":"K48+K49+K50+K51","v":0},{"$f":"SQRT((L48^2)+(L49^2)+(L50^2)+(L51^2))","v":22},{"$f":"M48+M49+M50+M51","v":11},{"$f":"SQRT((N48^2)+(N49^2)+(N50^2)+(N51^2))","v":25.534290669607408},{"$f":"O48+O49+O50+O51","v":11},{"$f":"SQRT((P48^2)+(P49^2)+(P50^2)+(P51^2))","v":25.534290669607408},{"$f":"Q48+Q49+Q50+Q51","v":0},{"$f":"SQRT((R48^2)+(R49^2)+(R50^2)+(R51^2))","v":22},{"$f":"S48+S49+S50+S51","v":0},{"$f":"SQRT((T48^2)+(T49^2)+(T50^2)+(T51^2))","v":22},{"$f":"U48+U49+U50+U51","v":82},{"$f":"SQRT((V48^2)+(V49^2)+(V50^2)+(V51^2))","v":63.796551630946325},{"$f":"W48+W49+W50+W51","v":0},{"$f":"SQRT((X48^2)+(X49^2)+(X50^2)+(X51^2))","v":22},{"$f":"Y48+Y49+Y50+Y51","v":66},{"$f":"SQRT((Z48^2)+(Z49^2)+(Z50^2)+(Z51^2))","v":65.55913361233506},{"$f":"AA48+AA49+AA50+AA51","v":0},{"$f":"SQRT((AB48^2)+(AB49^2)+(AB50^2)+(AB51^2))","v":22}]
[null,"Less Than 35% of HH Income",{"$f":"C48+C47+C46+C45","v":72},{"$f":"SQRT((D48^2)+(D47^2)+(D46^2)+(D45^2))","v":107.62899237658968},{"$f":"E48+E47+E46+E45","v":1417},{"$f":"SQRT((F48^2)+(F47^2)+(F46^2)+(F45^2))","v":293.21323298923602},{"$f":"G48+G47+G46+G45","v":90},{"$f":"SQRT((H48^2)+(H47^2)+(H46^2)+(H45^2))","v":51.546095875439491},{"$f":"I48+I47+I46+I45","v":0},{"$f":"SQRT((J48^2)+(J47^2)+(J46^2)+(J45^2))","v":32},{"$f":"K48+K47+K46+K45","v":44},{"$f":"SQRT((L48^2)+(L47^2)+(L46^2)+(L45^2))","v":44.170125650715555},{"$f":"M48+M47+M46+M45","v":24},{"$f":"SQRT((N48^2)+(N47^2)+(N46^2)+(N45^2))","v":20.074859899884732},{"$f":"O48+O47+O46+O45","v":20},{"$f":"SQRT((P48^2)+(P47^2)+(P46^2)+(P45^2))","v":26.962937525425527},{"$f":"Q48+Q47+Q46+Q45","v":59},{"$f":"SQRT((R48^2)+(R47^2)+(R46^2)+(R45^2))","v":57.930993431840953},{"$f":"S48+S47+S46+S45","v":16},{"$f":"SQRT((T48^2)+(T47^2)+(T46^2)+(T45^2))","v":22.516660498395403},{"$f":"U48+U47+U46+U45","v":831},{"$f":"SQRT((V48^2)+(V47^2)+(V46^2)+(V45^2))","v":224.80435938833571},{"$f":"W48+W47+W46+W45","v":46},{"$f":"SQRT((X48^2)+(X47^2)+(X46^2)+(X45^2))","v":34.669871646719429},{"$f":"Y48+Y47+Y46+Y45","v":495},{"$f":"SQRT((Z48^2)+(Z47^2)+(Z46^2)+(Z45^2))","v":187.94946129212502},{"$f":"AA48+AA47+AA46+AA45","v":95},{"$f":"SQRT((AB48^2)+(AB47^2)+(AB46^2)+(AB45^2))","v":55.09990925582364}]
[null,"35.0 percent or more",{"$f":"C49+C50+C51","v":0},{"$f":"SQRT((D49^2)+(D50^2)+(D51^2))","v":27.712812921102035},{"$f":"E49+E50+E51","v":58},{"$f":"SQRT((F49^2)+(F50^2)+(F51^2))","v":47.644516998286385},{"$f":"G49+G50+G51","v":15},{"$f":"SQRT((H49^2)+(H50^2)+(H51^2))","v":24.515301344262525},{"$f":"I49+I50+I51","v":9},{"$f":"SQRT((J49^2)+(J50^2)+(J51^2))","v":31.559467676118999},{"$f":"K49+K50+K51","v":0},{"$f":"SQRT((L49^2)+(L50^2)+(L51^2))","v":19.05255888325765},{"$f":"M49+M50+M51","v":0},{"$f":"SQRT((N49^2)+(N50^2)+(N51^2))","v":19.05255888325765},{"$f":"O49+O50+O51","v":0},{"$f":"SQRT((P49^2)+(P50^2)+(P51^2))","v":19.05255888325765},{"$f":"Q49+Q50+Q51","v":0},{"$f":"SQRT((R49^2)+(R50^2)+(R51^2))","v":19.05255888325765},{"$f":"S49+S50+S51","v":0},{"$f":"SQRT((T49^2)+(T50^2)+(T51^2))","v":19.05255888325765},{"$f":"U49+U50+U51","v":43},{"$f":"SQRT((V49^2)+(V50^2)+(V51^2))","v":51.244511901275828},{"$f":"W49+W50+W51","v":0},{"$f":"SQRT((X49^2)+(X50^2)+(X51^2))","v":19.05255888325765},{"$f":"Y49+Y50+Y51","v":18},{"$f":"SQRT((Z49^2)+(Z50^2)+(Z51^2))","v":38.587562763149478},{"$f":"AA49+AA50+AA51","v":0},{"$f":"SQRT((AB49^2)+(AB50^2)+(AB51^2))","v":19.05255888325765}]
[null,"50.0 percent or more",{"$f":"C51","v":0},16,23,{"$f":"F51","v":37},{"$f":"G51","v":10},14,{"$f":"I51","v":9},22,{"$f":"K51","v":0},11,{"$f":"M51","v":0},11,{"$f":"O51","v":0},11,{"$f":"Q51","v":0},11,{"$f":"S51","v":0},11,{"$f":"U51","v":0},24,{"$f":"W51","v":0},11,{"$f":"Y51","v":0},18,{"$f":"AA51","v":0},11]
[null,"Not Computed",13,22,14,23,{"$f":"G52","v":3},6,{"$f":"I52","v":20},30,{"$f":"K52","v":0},11,{"$f":"M52","v":4},7,{"$f":"O52","v":2},4,{"$f":"Q52","v":0},11,{"$f":"S52","v":0},11,{"$f":"U52","v":17},29,{"$f":"W52","v":6},10,{"$f":"Y52","v":0},18,{"$f":"AA52","v":0},11]
[null,"$75,000 to $99,999:",69,67,848,208,{"$f":"G53","v":85},50,{"$f":"I53","v":107},86,{"$f":"K53","v":74},89,{"$f":"M53","v":13},14,{"$f":"O53","v":27},19,{"$f":"Q53","v":0},11,{"$f":"S53","v":8},10,{"$f":"U53","v":383},158,{"$f":"W53","v":27},35,{"$f":"Y53","v":503},194,{"$f":"AA53","v":0},11]
[null,"Less than 30.0 percent",{"$f":"C54+C55+C56","v":52},{"$f":"SQRT((D54^2)+(D55^2)+(D56^2))","v":63.812224534175265},{"$f":"E54+E55+E56","v":770},{"$f":"SQRT((F54^2)+(F55^2)+(F56^2))","v":207.07728026029315},{"$f":"G54+G55+G56","v":72},{"$f":"SQRT((H54^2)+(H55^2)+(H56^2))","v":48.774993593028796},{"$f":"I54+I55+I56","v":90},{"$f":"SQRT((J54^2)+(J55^2)+(J56^2))","v":74.973328590906249},{"$f":"K54+K55+K56","v":74},{"$f":"SQRT((L54^2)+(L55^2)+(L56^2))","v":90.349322078253579},{"$f":"M54+M55+M56","v":8},{"$f":"SQRT((N54^2)+(N55^2)+(N56^2))","v":13.964240043768941},{"$f":"O54+O55+O56","v":24},{"$f":"SQRT((P54^2)+(P55^2)+(P56^2))","v":21.42428528562855},{"$f":"Q54+Q55+Q56","v":0},{"$f":"SQRT((R54^2)+(R55^2)+(R56^2))","v":19.05255888325765},{"$f":"S54+S55+S56","v":8},{"$f":"SQRT((T54^2)+(T55^2)+(T56^2))","v":18.493242008906929},{"$f":"U54+U55+U56","v":373},{"$f":"SQRT((V54^2)+(V55^2)+(V56^2))","v":155.66630977832037},{"$f":"W54+W55+W56","v":27},{"$f":"SQRT((X54^2)+(X55^2)+(X56^2))","v":38.301436004411116},{"$f":"Y54+Y55+Y56","v":503},{"$f":"SQRT((Z54^2)+(Z55^2)+(Z56^2))","v":195.07434480218049},{"$f":"AA54+AA55+AA56","v":0},{"$f":"SQRT((AB54^2)+(AB55^2)+(AB56^2))","v":19.05255888325765}]
[null,"More than 30.0 percent",{"$f":"C57+C58+C59+C60","v":17},{"$f":"SQRT((D57^2)+(D58^2)+(D59^2)+(D60^2))","v":38},{"$f":"E57+E58+E59+E60","v":71},{"$f":"SQRT((F57^2)+(F58^2)+(F59^2)+(F60^2))","v":67.438861200349464},{"$f":"G57+G58+G59+G60","v":13},{"$f":"SQRT((H57^2)+(H58^2)+(H59^2)+(H60^2))","v":28.792360097775937},{"$f":"I57+I58+I59+I60","v":0},{"$f":"SQRT((J57^2)+(J58^2)+(J59^2)+(J60^2))","v":32},{"$f":"K57+K58+K59+K60","v":0},{"$f":"SQRT((L57^2)+(L58^2)+(L59^2)+(L60^2))","v":22},{"$f":"M57+M58+M59+M60","v":0},{"$f":"SQRT((N57^2)+(N58^2)+(N59^2)+(N60^2))","v":22},{"$f":"O57+O58+O59+O60","v":0},{"$f":"SQRT((P57^2)+(P58^2)+(P59^2)+(P60^2))","v":22},{"$f":"Q57+Q58+Q59+Q60","v":0},{"$f":"SQRT((R57^2)+(R58^2)+(R59^2)+(R60^2))","v":22},{"$f":"S57+S58+S59+S60","v":0},{"$f":"SQRT((T57^2)+(T58^2)+(T59^2)+(T60^2))","v":22},{"$f":"U57+U58+U59+U60","v":10},{"$f":"SQRT((V57^2)+(V58^2)+(V59^2)+(V60^2))","v":44.911023145771239},{"$f":"W57+W58+W59+W60","v":0},{"$f":"SQRT((X57^2)+(X58^2)+(X59^2)+(X60^2))","v":22},{"$f":"Y57+Y58+Y59+Y60","v":0},{"$f":"SQRT((Z57^2)+(Z58^2)+(Z59^2)+(Z60^2))","v":36},{"$f":"AA57+AA58+AA59+AA60","v":0},{"$f":"SQRT((AB57^2)+(AB58^2)+(AB59^2)+(AB60^2))","v":22}]
[null,"Less Than 35% of HH Income",{"$f":"C54+C55+C56+C57","v":69},{"$f":"SQRT((D54^2)+(D55^2)+(D56^2)+(D57^2))","v":68.905732707808866},{"$f":"E54+E55+E56+E57","v":777},{"$f":"SQRT((F54^2)+(F55^2)+(F56^2)+(F57^2))","v":207.4849392124643},{"$f":"G54+G55+G56+G57","v":78},{"$f":"SQRT((H54^2)+(H55^2)+(H56^2)+(H57^2))","v":49.598387070548981},{"$f":"I54+I55+I56+I57","v":90},{"$f":"SQRT((J54^2)+(J55^2)+(J56^2)+(J57^2))","v":76.661594035083823},{"$f":"K54+K55+K56+K57","v":74},{"$f":"SQRT((L54^2)+(L55^2)+(L56^2)+(L57^2))","v":91.016482023862025},{"$f":"M54+M55+M56+M57","v":8},{"$f":"SQRT((N54^2)+(N55^2)+(N56^2)+(N57^2))","v":17.776388834631177},{"$f":"O54+O55+O56+O57","v":24},{"$f":"SQRT((P54^2)+(P55^2)+(P56^2)+(P57^2))","v":24.083189157584592},{"$f":"Q54+Q55+Q56+Q57","v":0},{"$f":"SQRT((R54^2)+(R55^2)+(R56^2)+(R57^2))","v":22},{"$f":"S54+S55+S56+S57","v":8},{"$f":"SQRT((T54^2)+(T55^2)+(T56^2)+(T57^2))","v":21.517434791350013},{"$f":"U54+U55+U56+U57","v":383},{"$f":"SQRT((V54^2)+(V55^2)+(V56^2)+(V57^2))","v":156.59182609574486},{"$f":"W54+W55+W56+W57","v":27},{"$f":"SQRT((X54^2)+(X55^2)+(X56^2)+(X57^2))","v":39.849717690342551},{"$f":"Y54+Y55+Y56+Y57","v":503},{"$f":"SQRT((Z54^2)+(Z55^2)+(Z56^2)+(Z57^2))","v":195.90303724036542},{"$f":"AA54+AA55+AA56+AA57","v":0},{"$f":"SQRT((AB54^2)+(AB55^2)+(AB56^2)+(AB57^2))","v":22}]
[null,"35.0 percent or more",{"$f":"C58+C59+C60","v":0},{"$f":"SQRT((D58^2)+(D59^2)+(D60^2))","v":27.712812921102035},{"$f":"E58+E59+E60","v":64},{"$f":"SQRT((F58^2)+(F59^2)+(F60^2))","v":66.174013026262813},{"$f":"G58+G59+G60","v":7},{"$f":"SQRT((H58^2)+(H59^2)+(H60^2))","v":27.349588662354687},{"$f":"I58+I59+I60","v":0},{"$f":"SQRT((J58^2)+(J59^2)+(J60^2))","v":27.712812921102035},{"$f":"K58+K59+K60","v":0},{"$f":"SQRT((L58^2)+(L59^2)+(L60^2))","v":19.05255888325765},{"$f":"M58+M59+M60","v":0},{"$f":"SQRT((N58^2)+(N59^2)+(N60^2))","v":19.05255888325765},{"$f":"O58+O59+O60","v":0},{"$f":"SQRT((P58^2)+(P59^2)+(P60^2))","v":19.05255888325765},{"$f":"Q58+Q59+Q60","v":0},{"$f":"SQRT((R58^2)+(R59^2)+(R60^2))","v":19.05255888325765},{"$f":"S58+S59+S60","v":0},{"$f":"SQRT((T58^2)+(T59^2)+(T60^2))","v":19.05255888325765},{"$f":"U58+U59+U60","v":0},{"$f":"SQRT((V58^2)+(V59^2)+(V60^2))","v":41.569219381653056},{"$f":"W58+W59+W60","v":0},{"$f":"SQRT((X58^2)+(X59^2)+(X60^2))","v":19.05255888325765},{"$f":"Y58+Y59+Y60","v":0},{"$f":"SQRT((Z58^2)+(Z59^2)+(Z60^2))","v":31.176914536239792},{"$f":"AA58+AA59+AA60","v":0},{"$f":"SQRT((AB58^2)+(AB59^2)+(AB60^2))","v":19.05255888325765}]
[null,"50.0 percent or more",{"$f":"C60","v":0},16,{"$f":"E60","v":19},29,0,18,0,16,0,11,0,11,0,11,0,11,{"$f":"S60","v":0},11,0,24,0,11,0,18,0,11]
[null,"Not Computed",0,16,7,10,0,18,17,29,0,11,5,8,3,5,0,11,0,11,0,24,0,11,0,18,0,11]
[null,"$100,000 or more:",19,32,952,233,95,54,100,92,0,11,24,14,0,11,11,17,6,10,455,159,16,15,181,115,0,11]
[null,"Less than 30.0 percent",{"$f":"C63+C64+C65","v":19},{"$f":"SQRT((D63^2)+(D64^2)+(D65^2))","v":39.191835884530846},{"$f":"E63+E64+E65","v":952},{"$f":"SQRT((F63^2)+(F64^2)+(F65^2))","v":235.08509097771386},{"$f":"G63+G64+G65","v":95},{"$f":"SQRT((H63^2)+(H64^2)+(H65^2))","v":58.077534382926416},{"$f":"I63+I64+I65","v":100},{"$f":"SQRT((J63^2)+(J64^2)+(J65^2))","v":94.741754258616083},{"$f":"K63+K64+K65","v":0},{"$f":"SQRT((L63^2)+(L64^2)+(L65^2))","v":19.05255888325765},{"$f":"M63+M64+M65","v":24},{"$f":"SQRT((N63^2)+(N64^2)+(N65^2))","v":18.493242008906929},{"$f":"O63+O64+O65","v":0},{"$f":"SQRT((P63^2)+(P64^2)+(P65^2))","v":19.05255888325765},{"$f":"Q63+Q64+Q65","v":11},{"$f":"SQRT((R63^2)+(R64^2)+(R65^2))","v":23.043437243605826},{"$f":"S63+S64+S65","v":6},{"$f":"SQRT((T63^2)+(T64^2)+(T65^2))","v":18.493242008906929},{"$f":"U63+U64+U65","v":455},{"$f":"SQRT((V63^2)+(V64^2)+(V65^2))","v":162.58228685807074},{"$f":"W63+W64+W65","v":16},{"$f":"SQRT((X63^2)+(X64^2)+(X65^2))","v":21.61018278497431},{"$f":"Y63+Y64+Y65","v":181},{"$f":"SQRT((Z63^2)+(Z64^2)+(Z65^2))","v":118},{"$f":"AA63+AA64+AA65","v":0},{"$f":"SQRT((AB63^2)+(AB64^2)+(AB65^2))","v":19.05255888325765}]
[null,"More than 30.0 percent",{"$f":"C66+C67+C68+C69","v":0},{"$f":"SQRT((D66^2)+(D67^2)+(D68^2)+(D69^2))","v":32},{"$f":"E66+E67+E68+E69","v":0},{"$f":"SQRT((F66^2)+(F67^2)+(F68^2)+(F69^2))","v":48},{"$f":"G66+G67+G68+G69","v":0},{"$f":"SQRT((H66^2)+(H67^2)+(H68^2)+(H69^2))","v":36},{"$f":"I66+I67+I68+I69","v":0},{"$f":"SQRT((J66^2)+(J67^2)+(J68^2)+(J69^2))","v":32},{"$f":"K66+K67+K68+K69","v":0},{"$f":"SQRT((L66^2)+(L67^2)+(L68^2)+(L69^2))","v":22},{"$f":"M66+M67+M68+M69","v":0},{"$f":"SQRT((N66^2)+(N67^2)+(N68^2)+(N69^2))","v":22},{"$f":"O66+O67+O68+O69","v":0},{"$f":"SQRT((P66^2)+(P67^2)+(P68^2)+(P69^2))","v":22},{"$f":"Q66+Q67+Q68+Q69","v":0},{"$f":"SQRT((R66^2)+(R67^2)+(R68^2)+(R69^2))","v":22},{"$f":"S66+S67+S68+S69","v":0},{"$f":"SQRT((T66^2)+(T67^2)+(T68^2)+(T69^2))","v":22},{"$f":"U66+U67+U68+U69","v":0},{"$f":"SQRT((V66^2)+(V67^2)+(V68^2)+(V69^2))","v":48},{"$f":"W66+W67+W68+W69","v":0},{"$f":"SQRT((X66^2)+(X67^2)+(X68^2)+(X69^2))","v":22},{"$f":"Y66+Y67+Y68+Y69","v":0},{"$f":"SQRT((Z66^2)+(Z67^2)+(Z68^2)+(Z69^2))","v":36},{"$f":"AA66+AA67+AA68+AA69","v":0},{"$f":"SQRT((AB66^2)+(AB67^2)+(AB68^2)+(AB69^2))","v":22}]
[null,"Less Than 35% of HH Income",{"$f":"C63+C64+C65+C66","v":19},{"$f":"SQRT(((D63^2)+(D64^2)+(D65^2)+(D66^2)))","v":42.332020977033451},{"$f":"E63+E64+E65+E66","v":952},{"$f":"SQRT(((F63^2)+(F64^2)+(F65^2)+(F66^2)))","v":236.30700370492619},{"$f":"G63+G64+G65+G66","v":95},{"$f":"SQRT(((H63^2)+(H64^2)+(H65^2)+(H66^2)))","v":60.802960454241045},{"$f":"I63+I64+I65+I66","v":100},{"$f":"SQRT(((J63^2)+(J64^2)+(J65^2)+(J66^2)))","v":96.083297195714508},{"$f":"K63+K64+K65+K66","v":0},{"$f":"SQRT(((L63^2)+(L64^2)+(L65^2)+(L66^2)))","v":22},{"$f":"M63+M64+M65+M66","v":24},{"$f":"SQRT(((N63^2)+(N64^2)+(N65^2)+(N66^2)))","v":21.517434791350013},{"$f":"O63+O64+O65+O66","v":0},{"$f":"SQRT(((P63^2)+(P64^2)+(P65^2)+(P66^2)))","v":22},{"$f":"Q63+Q64+Q65+Q66","v":11},{"$f":"SQRT(((R63^2)+(R64^2)+(R65^2)+(R66^2)))","v":25.534290669607408},{"$f":"S63+S64+S65+S66","v":6},{"$f":"SQRT(((T63^2)+(T64^2)+(T65^2)+(T66^2)))","v":21.517434791350013},{"$f":"U63+U64+U65+U66","v":455},{"$f":"SQRT(((V63^2)+(V64^2)+(V65^2)+(V66^2)))","v":164.34415109762804},{"$f":"W63+W64+W65+W66","v":16},{"$f":"SQRT(((X63^2)+(X64^2)+(X65^2)+(X66^2)))","v":24.248711305964282},{"$f":"Y63+Y64+Y65+Y66","v":181},{"$f":"SQRT(((Z63^2)+(Z64^2)+(Z65^2)+(Z66^2)))","v":119.36498649101419},{"$f":"AA63+AA64+AA65+AA66","v":0},{"$f":"SQRT(((AB63^2)+(AB64^2)+(AB65^2)+(AB66^2)))","v":22}]
[null,"35.0 percent or more",{"$f":"C67+C68+C69","v":0},{"$f":"SQRT((D67^2)+(D68^2)+(D69^2))","v":27.712812921102035},{"$f":"E67+E68+E69","v":0},{"$f":"SQRT((F67^2)+(F68^2)+(F69^2))","v":41.569219381653056},{"$f":"G67+G68+G69","v":0},{"$f":"SQRT((H67^2)+(H68^2)+(H69^2))","v":31.176914536239792},{"$f":"I67+I68+I69","v":0},{"$f":"SQRT((J67^2)+(J68^2)+(J69^2))","v":27.712812921102035},{"$f":"K67+K68+K69","v":0},{"$f":"SQRT((L67^2)+(L68^2)+(L69^2))","v":19.05255888325765},{"$f":"M67+M68+M69","v":0},{"$f":"SQRT((N67^2)+(N68^2)+(N69^2))","v":19.05255888325765},{"$f":"O67+O68+O69","v":0},{"$f":"SQRT((P67^2)+(P68^2)+(P69^2))","v":19.05255888325765},{"$f":"Q67+Q68+Q69","v":0},{"$f":"SQRT((R67^2)+(R68^2)+(R69^2))","v":19.05255888325765},{"$f":"S67+S68+S69","v":0},{"$f":"SQRT((T67^2)+(T68^2)+(T69^2))","v":19.05255888325765},{"$f":"U67+U68+U69","v":0},{"$f":"SQRT((V67^2)+(V68^2)+(V69^2))","v":41.569219381653056},{"$f":"W67+W68+W69","v":0},{"$f":"SQRT((X67^2)+(X68^2)+(X69^2))","v":19.05255888325765},{"$f":"Y67+Y68+Y69","v":0},{"$f":"SQRT((Z67^2)+(Z68^2)+(Z69^2))","v":31.176914536239792},{"$f":"AA67+AA68+AA69","v":0},{"$f":"SQRT((AB67^2)+(AB68^2)+(AB69^2))","v":19.05255888325765}]
[null,"50.0 percent or more",{"$f":"C69","v":0},16,0,{"$f":"F69","v":24},{"$f":"G69","v":0},18,{"$f":"I69","v":0},16,{"$f":"K69","v":0},11,{"$f":"M69","v":0},11,{"$f":"O69","v":0},11,{"$f":"Q69","v":0},11,{"$f":"S69","v":0},11,{"$f":"U69","v":0},24,{"$f":"W69","v":0},11,{"$f":"Y69","v":0},18,{"$f":"AA69","v":0},11]
[null,"Not Computed",0,16,0,24,{"$f":"G70","v":0},18,{"$f":"I70","v":0},16,{"$f":"K70","v":0},11,{"$f":"M70","v":0},11,{"$f":"O70","v":0},11,{"$f":"Q70","v":0},11,{"$f":"S70","v":0},11,{"$f":"U70","v":0},24,{"$f":"W70","v":0},11,{"$f":"Y70","v":0},18,{"$f":"AA70","v":0},11]
[]
[]
[null,"Calculated GROSS RENT AS A PERCENTAGE OF HOUSEHOLD INCOME IN THE PAST 12 MONTHS"]
[null,"Universe:  RENTER-OCCUPIED HOUSING UNITS"]
[null,"Data Set: 2015-2019 American Community Survey 5-Year Estimates"]
[]
[null,null,"Barrington",null,"Dover",null,"Durham",null,"Farmington",null,"Lee",null,"Madbury",null,"Middleton",null,"Milton",null,"New Durham",null,"Rochester",null,"Rollinsford",null,"Somersworth",null,"Strafford"]
[null,null,"Estimate","Margin Of Error","Estimate","Margin Of Error","Estimate","Margin Of Error","Estimate","Margin Of Error","Estimate","Margin Of Error","Estimate","Margin Of Error","Estimate","Margin Of Error","Estimate","Margin Of Error","Estimate","Margin Of Error","Estimate","Margin Of Error","Estimate","Margin Of Error","Estimate","Margin Of Error","Estimate","Margin Of Error"]
[null,{"$f":"B92","v":"Total:"},279,139,6540,359,1333,135,937,230,257,135,82,31,73,33,209,92,60,37,4179,368,242,56,2332,330,124,57]
[null,"Less than 30.0 percent",{"$f":"C136+C129+C122+C115+C108+C101+C94","v":113},{"$f":"SQRT((D136^2)+(D129^2)+(D122^2)+(D115^2)+(D108^2)+(D101^2)+(D94^2))","v":106.33908030446756},{"$f":"E136+E129+E122+E115+E108+E101+E94","v":3622},{"$f":"SQRT((F136^2)+(F129^2)+(F122^2)+(F115^2)+(F108^2)+(F101^2)+(F94^2))","v":468.97974369902158},{"$f":"G136+G129+G122+G115+G108+G101+G94","v":402},{"$f":"SQRT((H136^2)+(H129^2)+(H122^2)+(H115^2)+(H108^2)+(H101^2)+(H94^2))","v":117.43508845315355},{"$f":"I136+I129+I122+I115+I108+I101+I94","v":380},{"$f":"SQRT((J136^2)+(J129^2)+(J122^2)+(J115^2)+(J108^2)+(J101^2)+(J94^2))","v":202.24737328331361},{"$f":"K136+K129+K122+K115+K108+K101+K94","v":176},{"$f":"SQRT((L136^2)+(L129^2)+(L122^2)+(L115^2)+(L108^2)+(L101^2)+(L94^2))","v":130.02692028960772},{"$f":"M136+M129+M122+M115+M108+M101+M94","v":53},{"$f":"SQRT((N136^2)+(N129^2)+(N122^2)+(N115^2)+(N108^2)+(N101^2)+(N94^2))","v":42.497058721751557},{"$f":"O136+O129+O122+O115+O108+O101+O94","v":33},{"$f":"SQRT((P136^2)+(P129^2)+(P122^2)+(P115^2)+(P108^2)+(P101^2)+(P94^2))","v":52.076866265166146},{"$f":"Q136+Q129+Q122+Q115+Q108+Q101+Q94","v":78},{"$f":"SQRT((R136^2)+(R129^2)+(R122^2)+(R115^2)+(R108^2)+(R101^2)+(R94^2))","v":75.026661927610775},{"$f":"S136+S129+S122+S115+S108+S101+S94","v":30},{"$f":"SQRT((T136^2)+(T129^2)+(T122^2)+(T115^2)+(T108^2)+(T101^2)+(T94^2))","v":50.219518117958877},{"$f":"U136+U129+U122+U115+U108+U101+U94","v":2188},{"$f":"SQRT((V136^2)+(V129^2)+(V122^2)+(V115^2)+(V108^2)+(V101^2)+(V94^2))","v":370.17158183739605},{"$f":"W136+W129+W122+W115+W108+W101+W94","v":115},{"$f":"SQRT((X136^2)+(X129^2)+(X122^2)+(X115^2)+(X108^2)+(X101^2)+(X94^2))","v":65.73431371817918},{"$f":"Y136+Y129+Y122+Y115+Y108+Y101+Y94","v":1473},{"$f":"SQRT((Z136^2)+(Z129^2)+(Z122^2)+(Z115^2)+(Z108^2)+(Z101^2)+(Z94^2))","v":335.19844868376106},{"$f":"AA136+AA129+AA122+AA115+AA108+AA101+AA94","v":104},{"$f":"SQRT((AB136^2)+(AB129^2)+(AB122^2)+(AB115^2)+(AB108^2)+(AB101^2)+(AB94^2))","v":71.700767080973407}]
[null,"More than 30.0 percent",{"$f":"C137+C130+C123+C116+C109+C102+C95","v":153},{"$f":"SQRT((D137^2)+(D130^2)+(D123^2)+(D116^2)+(D109^2)+(D102^2)+(D95^2))","v":152.89538907370621},{"$f":"E137+E130+E123+E116+E109+E102+E95","v":2716},{"$f":"SQRT((F137^2)+(F130^2)+(F123^2)+(F116^2)+(F109^2)+(F102^2)+(F95^2))","v":395.59196149568055},{"$f":"G137+G130+G123+G116+G109+G102+G95","v":835},{"$f":"SQRT((H137^2)+(H130^2)+(H123^2)+(H116^2)+(H109^2)+(H102^2)+(H95^2))","v":195.71918659140192},{"$f":"I137+I130+I123+I116+I109+I102+I95","v":431},{"$f":"SQRT((J137^2)+(J130^2)+(J123^2)+(J116^2)+(J109^2)+(J102^2)+(J95^2))","v":215.40659228538016},{"$f":"K137+K130+K123+K116+K109+K102+K95","v":81},{"$f":"SQRT((L137^2)+(L130^2)+(L123^2)+(L116^2)+(L109^2)+(L102^2)+(L95^2))","v":97.216253785053865},{"$f":"M137+M130+M123+M116+M109+M102+M95","v":17},{"$f":"SQRT((N137^2)+(N130^2)+(N123^2)+(N116^2)+(N109^2)+(N102^2)+(N95^2))","v":58},{"$f":"O137+O130+O123+O116+O109+O102+O95","v":28},{"$f":"SQRT((P137^2)+(P130^2)+(P123^2)+(P116^2)+(P109^2)+(P102^2)+(P95^2))","v":56.859475903318},{"$f":"Q137+Q130+Q123+Q116+Q109+Q102+Q95","v":131},{"$f":"SQRT((R137^2)+(R130^2)+(R123^2)+(R116^2)+(R109^2)+(R102^2)+(R95^2))","v":93.359520135870454},{"$f":"S137+S130+S123+S116+S109+S102+S95","v":30},{"$f":"SQRT((T137^2)+(T130^2)+(T123^2)+(T116^2)+(T109^2)+(T102^2)+(T95^2))","v":63.395583442381849},{"$f":"U137+U130+U123+U116+U109+U102+U95","v":1845},{"$f":"SQRT((V137^2)+(V130^2)+(V123^2)+(V116^2)+(V109^2)+(V102^2)+(V95^2))","v":356.51086939951773},{"$f":"W137+W130+W123+W116+W109+W102+W95","v":90},{"$f":"SQRT((X137^2)+(X130^2)+(X123^2)+(X116^2)+(X109^2)+(X102^2)+(X95^2))","v":72.993150363578636},{"$f":"Y137+Y130+Y123+Y116+Y109+Y102+Y95","v":836},{"$f":"SQRT((Z137^2)+(Z130^2)+(Z123^2)+(Z116^2)+(Z109^2)+(Z102^2)+(Z95^2))","v":258.04263213662972},{"$f":"AA137+AA130+AA123+AA116+AA109+AA102+AA95","v":20},{"$f":"SQRT((AB137^2)+(AB130^2)+(AB123^2)+(AB116^2)+(AB109^2)+(AB102^2)+(AB95^2))","v":64.552304374050038}]
[null,"Less Than 35% of HH Income",{"$f":"C138+C131+C124+C117+C110+C103+C96","v":202},{"$f":"SQRT((D138^2)+(D131^2)+(D124^2)+(D117^2)+(D110^2)+(D103^2)+(D96^2))","v":155.17731793016659},{"$f":"E138+E131+E124+E117+E110+E103+E96","v":4258},{"$f":"SQRT((F138^2)+(F131^2)+(F124^2)+(F117^2)+(F110^2)+(F103^2)+(F96^2))","v":504.25092959755659},{"$f":"G138+G131+G124+G117+G110+G103+G96","v":505},{"$f":"SQRT((H138^2)+(H131^2)+(H124^2)+(H117^2)+(H110^2)+(H103^2)+(H96^2))","v":139.58868148958209},{"$f":"I138+I131+I124+I117+I110+I103+I96","v":418},{"$f":"SQRT((J138^2)+(J131^2)+(J124^2)+(J117^2)+(J110^2)+(J103^2)+(J96^2))","v":210.17373765530269},{"$f":"K138+K131+K124+K117+K110+K103+K96","v":176},{"$f":"SQRT((L138^2)+(L131^2)+(L124^2)+(L117^2)+(L110^2)+(L103^2)+(L96^2))","v":133.24413683160697},{"$f":"M138+M131+M124+M117+M110+M103+M96","v":64},{"$f":"SQRT((N138^2)+(N131^2)+(N124^2)+(N117^2)+(N110^2)+(N103^2)+(N96^2))","v":53.113086899558006},{"$f":"O138+O131+O124+O117+O110+O103+O96","v":44},{"$f":"SQRT((P138^2)+(P131^2)+(P124^2)+(P117^2)+(P110^2)+(P103^2)+(P96^2))","v":61.049160518388781},{"$f":"Q138+Q131+Q124+Q117+Q110+Q103+Q96","v":87},{"$f":"SQRT((R138^2)+(R131^2)+(R124^2)+(R117^2)+(R110^2)+(R103^2)+(R96^2))","v":81.308056181414145},{"$f":"S138+S131+S124+S117+S110+S103+S96","v":30},{"$f":"SQRT((T138^2)+(T131^2)+(T124^2)+(T117^2)+(T110^2)+(T103^2)+(T96^2))","v":58.043087443725803},{"$f":"U138+U131+U124+U117+U110+U103+U96","v":2519},{"$f":"SQRT((V138^2)+(V131^2)+(V124^2)+(V117^2)+(V110^2)+(V103^2)+(V96^2))","v":389.8486885959731},{"$f":"W138+W131+W124+W117+W110+W103+W96","v":115},{"$f":"SQRT((X138^2)+(X131^2)+(X124^2)+(X117^2)+(X110^2)+(X103^2)+(X96^2))","v":71.888803022445714},{"$f":"Y138+Y131+Y124+Y117+Y110+Y103+Y96","v":1653},{"$f":"SQRT((Z138^2)+(Z131^2)+(Z124^2)+(Z117^2)+(Z110^2)+(Z103^2)+(Z96^2))","v":350.93874109308592},{"$f":"AA138+AA131+AA124+AA117+AA110+AA103+AA96","v":104},{"$f":"SQRT((AB138^2)+(AB131^2)+(AB124^2)+(AB117^2)+(AB110^2)+(AB103^2)+(AB96^2))","v":77.382168488612407}]
[null,"35.0 percent or more",{"$f":"C139+C132+C125+C118+C111+C104+C97","v":64},{"$f":"SQRT((D139^2)+(D132^2)+(D125^2)+(D118^2)+(D111^2)+(D104^2)+(D97^2))","v":102.9805806936434},{"$f":"E139+E132+E125+E118+E111+E104+E97","v":2080},{"$f":"SQRT((F139^2)+(F132^2)+(F125^2)+(F118^2)+(F111^2)+(F104^2)+(F97^2))","v":349.52253146256538},{"$f":"G139+G132+G125+G118+G111+G104+G97","v":732},{"$f":"SQRT((H139^2)+(H132^2)+(H125^2)+(H118^2)+(H111^2)+(H104^2)+(H97^2))","v":180.58792872171716},{"$f":"I139+I132+I125+I118+I111+I104+I97","v":393},{"$f":"SQRT((J139^2)+(J132^2)+(J125^2)+(J118^2)+(J111^2)+(J104^2)+(J97^2))","v":207.68004237287704},{"$f":"K139+K132+K125+K118+K111+K104+K97","v":81},{"$f":"SQRT((L139^2)+(L132^2)+(L125^2)+(L118^2)+(L111^2)+(L104^2)+(L97^2))","v":92.757749002441841},{"$f":"M139+M132+M125+M118+M111+M104+M97","v":6},{"$f":"SQRT((N139^2)+(N132^2)+(N125^2)+(N118^2)+(N111^2)+(N104^2)+(N97^2))","v":48.466483264210538},{"$f":"O139+O132+O125+O118+O111+O104+O97","v":17},{"$f":"SQRT((P139^2)+(P132^2)+(P125^2)+(P118^2)+(P111^2)+(P104^2)+(P97^2))","v":47.095647357266465},{"$f":"Q139+Q132+Q125+Q118+Q111+Q104+Q97","v":122},{"$f":"SQRT((R139^2)+(R132^2)+(R125^2)+(R118^2)+(R111^2)+(R104^2)+(R97^2))","v":87.943163463682609},{"$f":"S139+S132+S125+S118+S111+S104+S97","v":30},{"$f":"SQRT((T139^2)+(T132^2)+(T125^2)+(T118^2)+(T111^2)+(T104^2)+(T97^2))","v":56.320511361314892},{"$f":"U139+U132+U125+U118+U111+U104+U97","v":1514},{"$f":"SQRT((V139^2)+(V132^2)+(V125^2)+(V118^2)+(V111^2)+(V104^2)+(V97^2))","v":334.88057572812431},{"$f":"W139+W132+W125+W118+W111+W104+W97","v":90},{"$f":"SQRT((X139^2)+(X132^2)+(X125^2)+(X118^2)+(X111^2)+(X104^2)+(X97^2))","v":66.940271884718243},{"$f":"Y139+Y132+Y125+Y118+Y111+Y104+Y97","v":656},{"$f":"SQRT((Z139^2)+(Z132^2)+(Z125^2)+(Z118^2)+(Z111^2)+(Z104^2)+(Z97^2))","v":236.19060099843094},{"$f":"AA139+AA132+AA125+AA118+AA111+AA104+AA97","v":20},{"$f":"SQRT((AB139^2)+(AB132^2)+(AB125^2)+(AB118^2)+(AB111^2)+(AB104^2)+(AB97^2))","v":57.619441163551734}]
[null,"50.0 percent or more",{"$f":"C140+C133+C126+C119+C112+C105+C98","v":45},{"$f":"SQRT((D140^2)+(D133^2)+(D126^2)+(D119^2)+(D112^2)+(D105^2)+(D98^2))","v":80.224684480526321},{"$f":"E140+E133+E126+E119+E112+E105+E98","v":1086},{"$f":"SQRT((F140^2)+(F133^2)+(F126^2)+(F119^2)+(F112^2)+(F105^2)+(F98^2))","v":220.8823216103996},{"$f":"G140+G133+G126+G119+G112+G105+G98","v":550},{"$f":"SQRT((H140^2)+(H133^2)+(H126^2)+(H119^2)+(H112^2)+(H105^2)+(H98^2))","v":158.1992414646796},{"$f":"I140+I133+I126+I119+I112+I105+I98","v":108},{"$f":"SQRT((J140^2)+(J133^2)+(J126^2)+(J119^2)+(J112^2)+(J105^2)+(J98^2))","v":80.212218520621903},{"$f":"K140+K133+K126+K119+K112+K105+K98","v":81},{"$f":"SQRT((L140^2)+(L133^2)+(L126^2)+(L119^2)+(L112^2)+(L105^2)+(L98^2))","v":83.126409762481629},{"$f":"M140+M133+M126+M119+M112+M105+M98","v":6},{"$f":"SQRT((N140^2)+(N133^2)+(N126^2)+(N119^2)+(N112^2)+(N105^2)+(N98^2))","v":25.592967784139454},{"$f":"O140+O133+O126+O119+O112+O105+O98","v":13},{"$f":"SQRT((P140^2)+(P133^2)+(P126^2)+(P119^2)+(P112^2)+(P105^2)+(P98^2))","v":24.677925358506133},{"$f":"Q140+Q133+Q126+Q119+Q112+Q105+Q98","v":72},{"$f":"SQRT((R140^2)+(R133^2)+(R126^2)+(R119^2)+(R112^2)+(R105^2)+(R98^2))","v":69.18092222571191},{"$f":"S140+S133+S126+S119+S112+S105+S98","v":30},{"$f":"SQRT((T140^2)+(T133^2)+(T126^2)+(T119^2)+(T112^2)+(T105^2)+(T98^2))","v":38.444765573482172},{"$f":"U140+U133+U126+U119+U112+U105+U98","v":1068},{"$f":"SQRT((V140^2)+(V133^2)+(V126^2)+(V119^2)+(V112^2)+(V105^2)+(V98^2))","v":286.90416518412553},{"$f":"W140+W133+W126+W119+W112+W105+W98","v":55},{"$f":"SQRT((X140^2)+(X133^2)+(X126^2)+(X119^2)+(X112^2)+(X105^2)+(X98^2))","v":37.148351242013419},{"$f":"Y140+Y133+Y126+Y119+Y112+Y105+Y98","v":479},{"$f":"SQRT((Z140^2)+(Z133^2)+(Z126^2)+(Z119^2)+(Z112^2)+(Z105^2)+(Z98^2))","v":206.76798591658235},{"$f":"AA140+AA133+AA126+AA119+AA112+AA105+AA98","v":20},{"$f":"SQRT((AB140^2)+(AB133^2)+(AB126^2)+(AB119^2)+(AB112^2)+(AB105^2)+(AB98^2))","v":40.323690307311907}]
[null,"Not Computed",{"$f":"C140+C134+C127+C120+C113+C106+C99","v":13},{"$f":"SQRT((D140^2)+(D134^2)+(D127^2)+(D120^2)+(D113^2)+(D106^2)+(D99^2))","v":44.944410108488462},{"$f":"E140+E134+E127+E120+E113+E106+E99","v":202},{"$f":"SQRT((F140^2)+(F134^2)+(F127^2)+(F120^2)+(F113^2)+(F106^2)+(F99^2))","v":125.00799974401639},{"$f":"G140+G134+G127+G120+G113+G106+G99","v":96},{"$f":"SQRT((H140^2)+(H134^2)+(H127^2)+(H120^2)+(H113^2)+(H106^2)+(H99^2))","v":71.337227308047233},{"$f":"I140+I134+I127+I120+I113+I106+I99","v":126},{"$f":"SQRT((J140^2)+(J134^2)+(J127^2)+(J120^2)+(J113^2)+(J106^2)+(J99^2))","v":111.09455432198286},{"$f":"K140+K134+K127+K120+K113+K106+K99","v":0},{"$f":"SQRT((L140^2)+(L134^2)+(L127^2)+(L120^2)+(L113^2)+(L106^2)+(L99^2))","v":29.103264421710495},{"$f":"M140+M134+M127+M120+M113+M106+M99","v":12},{"$f":"SQRT((N140^2)+(N134^2)+(N127^2)+(N120^2)+(N113^2)+(N106^2)+(N99^2))","v":25.159491250818249},{"$f":"O140+O134+O127+O120+O113+O106+O99","v":12},{"$f":"SQRT((P140^2)+(P134^2)+(P127^2)+(P120^2)+(P113^2)+(P106^2)+(P99^2))","v":21.354156504062622},{"$f":"Q140+Q134+Q127+Q120+Q113+Q106+Q99","v":0},{"$f":"SQRT((R140^2)+(R134^2)+(R127^2)+(R120^2)+(R113^2)+(R106^2)+(R99^2))","v":29.103264421710495},{"$f":"S140+S134+S127+S120+S113+S106+S99","v":0},{"$f":"SQRT((T140^2)+(T134^2)+(T127^2)+(T120^2)+(T113^2)+(T106^2)+(T99^2))","v":29.103264421710495},{"$f":"U140+U134+U127+U120+U113+U106+U99","v":146},{"$f":"SQRT((V140^2)+(V134^2)+(V127^2)+(V120^2)+(V113^2)+(V106^2)+(V99^2))","v":102.43046421841503},{"$f":"W140+W134+W127+W120+W113+W106+W99","v":37},{"$f":"SQRT((X140^2)+(X134^2)+(X127^2)+(X120^2)+(X113^2)+(X106^2)+(X99^2))","v":38.275318418009277},{"$f":"Y140+Y134+Y127+Y120+Y113+Y106+Y99","v":23},{"$f":"SQRT((Z140^2)+(Z134^2)+(Z127^2)+(Z120^2)+(Z113^2)+(Z106^2)+(Z99^2))","v":56.293871780150276},{"$f":"AA140+AA134+AA127+AA120+AA113+AA106+AA99","v":0},{"$f":"SQRT((AB140^2)+(AB134^2)+(AB127^2)+(AB120^2)+(AB113^2)+(AB106^2)+(AB99^2))","v":29.103264421710495}]
[]
[]
[]
[]
[]
[]
[]
[]
[]
[]
[]
[null,"B25074. HOUSEHOLD INCOME BY GROSS RENT AS A PERCENTAGE OF HOUSEHOLD INCOME IN THE PAST 12 MONTHS"]
[null,"Universe:  RENTER-OCCUPIED HOUSING UNITS"]
[null,"Data Set: 2010-2014 American Community Survey 5-Year Estimates",null,null,null,null,"Income in 2014 Inflation Adjusted Dollars"]
[]
[null,null,"Barrington",null,"Dover",null,"Durham",null,"Farmington",null,"Lee",null,"Madbury",null,"Middleton",null,"Milton",null,"New Durham",null,"Rochester",null,"Rollinsford",null,"Somersworth",null,"Strafford"]
[null,null,"Estimate","Margin Of Error","Estimate","Margin Of Error","Estimate","Margin Of Error","Estimate","Margin Of Error","Estimate","Margin Of Error","Estimate","Margin Of Error","Estimate","Margin Of Error","Estimate","Margin Of Error","Estimate","Margin Of Error","Estimate","Margin Of Error","Estimate","Margin Of Error","Estimate","Margin Of Error","Estimate","Margin Of Error"]
[null,"Total:",359,153,6211,406,1179,177,773,254,287,156,138,51,70,36,260,89,113,55,4580,453,259,64,1954,238,117,67]
[null,"Less than $10,000:",10,17,485,170,241,92,9,15,0,11,18,22,2,4,27,35,8,9,517,169,0,11,279,149,0,11]
[null,"Less than 20.0 percent",0,15,0,23,0,17,0,15,0,11,0,11,0,11,0,11,0,11,0,20,0,11,0,17,0,11]
[null,"20.0 to 24.9 percent",0,15,13,20,0,17,0,15,0,11,0,11,0,11,0,11,0,11,15,24,0,11,0,17,0,11]
[null,"25.0 to 29.9 percent",0,15,90,60,0,17,0,15,0,11,0,11,0,11,0,11,0,11,6,10,0,11,40,61,0,11]
[null,"30.0 to 34.9 percent",0,15,0,23,0,17,0,15,0,11,0,11,0,11,0,11,0,11,0,20,0,11,0,17,0,11]
[null,"35.0 to 39.9 percent",0,15,14,22,0,17,0,15,0,11,0,11,0,11,0,11,0,11,14,21,0,11,0,17,0,11]
[null,"40.0 to 49.9 percent",0,15,5,10,8,13,0,15,0,11,0,11,0,11,0,11,0,11,43,51,0,11,0,17,0,11]
[null,"50.0 percent or more",10,17,303,137,186,85,0,15,0,11,18,22,0,11,27,35,8,9,360,156,0,11,210,134,0,11]
[null,"Not computed",0,15,60,70,47,46,9,15,0,11,0,11,2,4,0,11,0,11,79,69,0,11,29,33,0,11]
[null,"$10,000 to $19,999:",122,92,713,186,321,100,253,147,85,100,0,11,15,12,31,32,6,9,1039,254,35,35,255,110,0,11]
[null,"Less than 20.0 percent",0,15,0,23,0,17,0,15,0,11,0,11,3,4,0,11,0,11,108,108,0,11,25,42,0,11]
[null,"20.0 to 24.9 percent",0,15,22,29,14,23,0,15,0,11,0,11,0,11,0,11,0,11,18,28,0,11,19,23,0,11]
[null,"25.0 to 29.9 percent",0,15,81,52,42,57,16,27,0,11,0,11,0,11,17,27,0,11,159,111,25,32,13,22,0,11]
[null,"30.0 to 34.9 percent",0,15,76,60,13,20,0,15,0,11,0,11,0,11,0,11,0,11,92,66,0,11,34,33,0,11]
[null,"35.0 to 39.9 percent",0,15,0,23,17,26,0,15,0,11,0,11,0,11,0,11,0,11,53,51,0,11,14,24,0,11]
[null,"40.0 to 49.9 percent",0,15,88,70,0,17,54,79,0,11,0,11,0,11,0,11,0,11,16,17,0,11,15,25,0,11]
[null,"50.0 percent or more",87,72,440,142,235,94,183,131,85,100,0,11,8,13,6,9,0,11,585,222,10,11,135,72,0,11]
[null,"Not computed",35,57,6,10,0,17,0,15,0,11,0,11,4,6,8,13,6,9,8,13,0,11,0,17,0,11]
[null,"$20,000 to $34,999:",13,20,1393,285,188,69,225,130,27,43,25,24,10,13,92,59,32,24,1071,237,91,50,480,156,67,54]
[null,"Less than 20.0 percent",0,15,31,35,23,21,0,15,0,11,0,11,0,11,0,11,0,11,17,26,0,11,0,17,0,11]
[null,"20.0 to 24.9 percent",0,15,21,25,0,17,0,15,0,11,0,11,0,11,0,11,0,11,54,85,0,11,0,17,8,12]
[null,"25.0 to 29.9 percent",0,15,103,99,14,16,0,15,0,11,7,9,2,5,0,11,0,11,105,72,6,9,37,39,0,11]
[null,"30.0 to 34.9 percent",0,15,217,115,7,10,0,15,0,11,0,11,0,11,11,17,0,11,152,78,5,7,16,26,0,11]
[null,"35.0 to 39.9 percent",0,15,248,134,27,26,96,96,0,11,0,11,0,11,21,22,7,9,276,114,0,11,87,76,0,11]
[null,"40.0 to 49.9 percent",13,20,330,132,47,34,64,81,0,11,0,11,0,11,20,32,12,17,276,88,41,41,114,94,28,35]
[null,"50.0 percent or more",0,15,411,169,70,47,65,72,27,43,18,22,8,12,40,46,5,7,191,112,39,27,211,107,31,47]
[null,"Not computed",0,15,32,38,0,17,0,15,0,11,0,11,0,11,0,11,8,13,0,20,0,11,15,23,0,11]
[null,"$35,000 to $49,999:",101,96,1138,215,125,71,133,108,31,46,18,11,5,8,12,13,22,34,911,224,32,28,279,130,10,18]
[null,"Less than 20.0 percent",53,67,35,29,13,20,0,15,0,11,5,7,0,11,0,11,22,34,30,35,0,11,25,30,10,18]
[null,"20.0 to 24.9 percent",0,15,207,94,5,9,59,89,0,11,4,6,0,11,6,10,0,11,114,58,0,11,44,71,0,11]
[null,"25.0 to 29.9 percent",0,15,300,105,7,10,18,27,31,46,6,7,0,11,6,9,0,11,434,163,6,10,145,86,0,11]
[null,"30.0 to 34.9 percent",48,73,268,120,31,46,22,35,0,11,0,11,0,11,0,11,0,11,137,100,0,11,36,37,0,11]
[null,"35.0 to 39.9 percent",0,15,42,35,17,18,0,15,0,11,0,11,0,11,0,11,0,11,60,58,17,23,0,17,0,11]
[null,"40.0 to 49.9 percent",0,15,201,104,14,21,17,27,0,11,0,11,5,8,0,11,0,11,11,18,9,11,10,18,0,11]
[null,"50.0 percent or more",0,15,57,44,38,37,17,27,0,11,0,11,0,11,0,11,0,11,77,78,0,11,0,17,0,11]
[null,"Not computed",0,15,28,35,0,17,0,15,0,11,3,5,0,11,0,11,0,11,48,46,0,11,19,31,0,11]
[null,"$50,000 to $74,999:",46,51,1278,288,159,80,67,50,50,55,43,31,17,21,33,31,36,32,692,209,82,55,283,123,33,40]
[null,"Less than 20.0 percent",0,15,477,170,37,36,18,30,0,11,23,23,0,11,20,33,23,30,228,156,0,11,117,69,25,40]
[null,"20.0 to 24.9 percent",0,15,432,183,37,33,34,37,0,11,13,21,17,21,0,11,0,11,292,134,58,47,113,85,0,11]
[null,"25.0 to 29.9 percent",46,51,118,78,14,16,15,25,50,55,7,8,0,11,0,11,0,11,66,52,5,8,42,50,0,11]
[null,"30.0 to 34.9 percent",0,15,58,43,9,16,0,15,0,11,0,11,0,11,0,11,0,11,22,35,13,20,0,17,0,11]
[null,"35.0 to 39.9 percent",0,15,66,80,10,15,0,15,0,11,0,11,0,11,0,11,6,8,43,52,6,9,0,17,0,11]
[null,"40.0 to 49.9 percent",0,15,127,94,42,51,0,15,0,11,0,11,0,11,0,11,0,11,0,20,0,11,11,17,0,11]
[null,"50.0 percent or more",0,15,0,23,10,17,0,15,0,11,0,11,0,11,0,11,0,11,0,20,0,11,0,17,0,11]
[null,"Not computed",0,15,0,23,0,17,0,15,0,11,0,11,0,11,13,17,7,10,41,39,0,11,0,17,8,12]
[null,"$75,000 to $99,999:",12,22,721,158,47,32,44,50,14,22,27,22,15,21,38,36,9,15,247,105,13,10,263,154,0,11]
[null,"Less than 20.0 percent",0,15,469,145,12,13,26,41,0,11,17,20,0,11,8,13,0,11,161,88,5,8,227,150,0,11]
[null,"20.0 to 24.9 percent",0,15,142,75,22,23,0,15,14,22,5,8,15,21,30,33,9,15,8,13,0,11,12,21,0,11]
[null,"25.0 to 29.9 percent",0,15,35,38,13,19,0,15,0,11,5,8,0,11,0,11,0,11,50,47,8,10,0,17,0,11]
[null,"30.0 to 34.9 percent",12,22,5,9,0,17,18,28,0,11,0,11,0,11,0,11,0,11,11,16,0,11,24,29,0,11]
[null,"35.0 to 39.9 percent",0,15,45,63,0,17,0,15,0,11,0,11,0,11,0,11,0,11,0,20,0,11,0,17,0,11]
[null,"40.0 to 49.9 percent",0,15,0,23,0,17,0,15,0,11,0,11,0,11,0,11,0,11,0,20,0,11,0,17,0,11]
[null,"50.0 percent or more",0,15,0,23,0,17,0,15,0,11,0,11,0,11,0,11,0,11,0,20,0,11,0,17,0,11]
[null,"Not computed",0,15,25,38,0,17,0,15,0,11,0,11,0,11,0,11,0,11,17,25,0,11,0,17,0,11]
[null,"$100,000 or more:",55,52,483,146,98,57,42,63,80,109,7,8,6,6,27,40,0,11,103,61,6,10,115,88,7,10]
[null,"Less than 20.0 percent",55,52,392,130,74,55,42,63,80,109,7,8,6,6,27,40,0,11,93,58,6,10,98,85,7,10]
[null,"20.0 to 24.9 percent",0,15,24,36,8,13,0,15,0,11,0,11,0,11,0,11,0,11,0,20,0,11,17,27,0,11]
[null,"25.0 to 29.9 percent",0,15,39,43,0,17,0,15,0,11,0,11,0,11,0,11,0,11,0,20,0,11,0,17,0,11]
[null,"30.0 to 34.9 percent",0,15,9,13,0,17,0,15,0,11,0,11,0,11,0,11,0,11,0,20,0,11,0,17,0,11]
[null,"35.0 to 39.9 percent",0,15,0,23,0,17,0,15,0,11,0,11,0,11,0,11,0,11,0,20,0,11,0,17,0,11]
[null,"40.0 to 49.9 percent",0,15,0,23,0,17,0,15,0,11,0,11,0,11,0,11,0,11,0,20,0,11,0,17,0,11]
[null,"50.0 percent or more",0,15,0,23,0,17,0,15,0,11,0,11,0,11,0,11,0,11,0,20,0,11,0,17,0,11]
[null,"Not computed",0,15,19,17,16,19,0,15,0,11,0,11,0,11,0,11,0,11,10,15,0,11,0,17,0,11]
[]
[]
[]
[]
[]
[]
[]
[]
[]
[]
[]
[]
[]
[]
[]
[null,"Calculated B25074. HOUSEHOLD INCOME BY GROSS RENT AS A PERCENTAGE OF HOUSEHOLD INCOME IN THE PAST 12 MONTHS"]
[null,"Universe:  RENTER-OCCUPIED HOUSING UNITS"]
[null,"Data Set: 2010-2014 American Community Survey 5-Year Estimates"]
[]
[null,null,"Barrington",null,"Dover",null,"Durham",null,"Farmington",null,"Lee",null,"Madbury",null,"Middleton",null,"Milton",null,"New Durham",null,"Rochester",null,"Rollinsford",null,"Somersworth",null,"Strafford"]
[null,null,"Estimate","Margin Of Error","Estimate","Margin Of Error","Estimate","Margin Of Error","Estimate","Margin Of Error","Estimate","Margin Of Error","Estimate","Margin Of Error","Estimate","Margin Of Error","Estimate","Margin Of Error","Estimate","Margin Of Error","Estimate","Margin Of Error","Estimate","Margin Of Error","Estimate","Margin Of Error","Estimate","Margin Of Error"]
[null,"Total:",359,153,6211,406,1179,177,773,254,287,156,138,51,70,36,260,89,113,55,4580,453,259,64,1954,238,117,67]
[null,"Less than $10,000:",10,17,485,170,241,92,9,15,0,11,18,22,2,4,27,35,8,9,517,169,0,11,279,149,0,11]
[null,"Less than 30.0 percent",0,25.98076211353316,103,67.297845433564959,0,29.444863728670914,0,25.98076211353316,0,19.05255888325765,0,19.05255888325765,0,19.05255888325765,0,19.05255888325765,0,19.05255888325765,21,32.802438933713454,0,19.05255888325765,40,65.566759871142025,0,19.05255888325765]
[null,"More than 30.0 percent",10,31.048349392520048,322,141.00354605470034,194,89.286057142198857,0,30,0,22,18,29.103264421710495,0,22,27,39.849717690342551,8,21.071307505705477,417,166.667333332,0,22,210,137.19693874135822,0,22]
[null,"Less Than 35% of HH Income",0,30,103,71.119617546778187,0,34,0,30,0,22,0,22,0,22,0,22,0,22,21,38.418745424597091,0,22,40,67.734776887504395,0,22]
[null,"35.0 percent or more",10,27.184554438136374,322,139.11506029183181,194,87.652723859558407,0,25.98076211353316,0,19.05255888325765,18,26.944387170614959,0,19.05255888325765,27,38.301436004411116,8,17.972200755611428,417,165.46298679765212,0,19.05255888325765,210,136.13963419959671,0,19.05255888325765]
[null,"50.0 percent or more",10,17,303,137,186,85,0,15,0,11,18,22,0,11,27,35,8,9,360,156,0,11,210,134,0,11]
[null,"Not Computed",0,15,60,70,47,46,9,15,0,11,0,11,2,4,0,11,0,11,79,69,0,11,29,33,0,11]
[null,"$10,000 to $19,999:",122,92,713,186,321,100,253,147,85,100,0,11,15,12,31,32,6,9,1039,254,35,35,255,110,0,11]
[null,"Less than 30.0 percent",0,25.98076211353316,103,63.827893588931794,56,63.773035054010094,16,34.336569426778794,0,19.05255888325765,0,19.05255888325765,3,16.06237840420901,17,31.160872901765767,0,19.05255888325765,285,157.38170160472913,25,35.580893749314392,57,52.697248505021591,0,19.05255888325765]
[null,"More than 30.0 percent",87,76.54410493303844,604,170.85959147791499,265,101,237,154.44092721814383,85,101.79882121124979,0,22,8,23.065125189341593,6,21.071307505705477,0,22,746,237.76038357977134,10,22,198,86.452298986203942,0,22]
[null,"Less Than 35% of HH Income",0,30,179,87.601369852303108,69,66.83561924602779,16,37.469987990390386,0,22,0,22,3,19.467922333931785,17,33.045423283716609,0,22,377,170.66048165876012,25,37.242448899072144,91,62.177166226839255,0,22]
[null,"35.0 percent or more",87,75.059976019180823,528,159.97812350443419,252,99,237,153.71076735219299,85,101.20276676059801,0,19.05255888325765,8,20.273134932713294,6,17.972200755611428,0,19.05255888325765,654,228.4162866347319,10,19.05255888325765,164,79.906195003891909,0,19.05255888325765]
[null,"50.0 percent or more",87,72,440,142,235,94,183,131,85,100,0,11,8,13,6,9,0,11,585,222,10,11,135,72,0,11]
[null,"Not Computed",35,57,6,10,0,17,0,15,0,11,0,11,4,6,8,13,6,9,8,13,0,11,0,17,0,11]
[null,"$20,000 to $34,999:",13,20,1393,285,188,69,225,130,27,43,25,24,10,13,92,59,32,24,1071,237,91,50,480,156,67,54]
[null,"Less than 30.0 percent",0,25.98076211353316,155,107.93979803575695,37,31.400636936215164,0,25.98076211353316,0,19.05255888325765,7,17.972200755611428,2,16.340134638368191,0,19.05255888325765,0,19.05255888325765,176,114.38968484964018,6,17.972200755611428,37,45.814844755821227,8,19.646882704388499]
[null,"More than 30.0 percent",13,32.787192621510002,1206,277.78768871208098,151,64.350602172784676,225,145.55411364849843,27,47.031904065219386,18,29.103264421710495,8,22.516660498395403,92,62.553976692133652,24,23.2379000772445,895,198.41370920377452,85,50.793700396801178,428,163.51452534866741,59,60.630025564896471]
[null,"Less Than 35% of HH Income",0,30,372,157.72127313713898,44,32.954514106568162,0,30,0,22,7,21.071307505705477,2,19.697715603592208,11,25.534290669607408,0,22,328,138.45215780189199,11,19.28730152198591,53,52.678268764263692,8,22.516660498395403]
[null,"35.0 percent or more",13,29.154759474226502,989,252.86557693762904,144,63.56886030125127,225,144.77914214416384,27,45.727453460694704,18,26.944387170614959,8,19.646882704388499,81,60.199667773169644,24,20.46948949045872,743,182.43903091169938,80,50.309044912421065,412,161.43419712068444,59,59.623820743055369]
[null,"50.0 percent or more",0,15,411,169,70,47,65,72,27,43,18,22,8,12,40,46,5,7,191,112,39,27,211,107,31,47]
[null,"Not Computed",0,15,32,38,0,17,0,15,0,11,0,11,0,11,0,11,8,13,0,20,0,11,15,23,0,11]
[null,"$35,000 to $49,999:",101,96,1138,215,125,71,133,108,31,46,18,11,5,8,12,13,22,34,911,224,32,28,279,130,10,18]
[null,"Less than 30.0 percent",53,70.278019323256402,542,143.88189601197226,25,24.103941586387901,77,94.207218407083857,31,48.559242168715933,15,11.575836902790225,0,19.05255888325765,12,17.378147196982766,22,37.389838191679836,578,176.51628820026781,6,18.493242008906929,214,115.48592987892508,10,23.790754506740637]
[null,"More than 30.0 percent",48,77.485482511242068,568,168.45474169639749,100,65.192024052026483,56,53.925875050851054,0,22,0,22,5,20.663978319771825,0,22,0,22,285,140.61294392764842,26,29.866369046136157,46,47.655010229775421,0,22]
[null,"Less Than 35% of HH Income",101,101.33114032714721,810,187.3552774810467,56,51.932648690395141,99,100.4987562112089,31,49.789557138018409,15,15.968719422671311,0,22,12,20.566963801203133,22,38.974350539810153,715,202.87434534706452,6,21.517434791350013,250,121.26829758844642,10,26.210684844162312]
[null,"35.0 percent or more",0,25.98076211353316,300,118.22436297142819,69,46.195237849804386,34,41.024382993532029,0,19.05255888325765,0,19.05255888325765,5,17.4928556845359,0,19.05255888325765,0,19.05255888325765,148,98.853426850059179,26,27.766886753829642,10,30.033314835362415,0,19.05255888325765]
[null,"50.0 percent or more",0,15,57,44,38,37,17,27,0,11,0,11,0,11,0,11,0,11,77,78,0,11,0,17,0,11]
[null,"Not Computed",0,15,28,35,0,17,0,15,0,11,3,5,0,11,0,11,0,11,48,46,0,11,19,31,0,11]
[null,"$50,000 to $74,999:",46,51,1278,288,159,80,67,50,50,55,43,31,17,21,33,31,36,32,692,209,82,55,283,123,33,40]
[null,"Less than 30.0 percent",46,55.235857918565905,1027,261.67346063366841,88,51.39066063011839,67,53.795910625251061,50,57.157676649772952,43,32.155870381627054,17,26.134268690743959,20,36.4828726939094,23,33.793490497431605,586,212.122606056026,63,48.928519290900269,272,120.3577999134248,25,42.918527467749868]
[null,"More than 30.0 percent",0,30,251,132.71774561075094,71,58.060313467979142,0,30,0,22,0,22,0,22,0,22,6,20.663978319771825,65,68.767724987816777,19,26.888659319497503,11,34,0,22]
[null,"Less Than 35% of HH Income",46,57.23635208501674,1085,265.18295571171234,97,53.823786563191554,67,55.848008021772806,50,58.20652884342099,43,33.985290935932859,17,28.354893757515651,20,38.105117766515299,23,35.538711287833721,608,214.99069747316975,76,52.858301145610042,272,121.55245781143218,25,44.305755833751441]
[null,"35.0 percent or more",0,25.98076211353316,193,125.55875118843768,62,55.812185049503306,0,25.98076211353316,0,19.05255888325765,0,19.05255888325765,0,19.05255888325765,0,19.05255888325765,6,17.4928556845359,43,59.194594347794968,6,17.972200755611428,11,29.444863728670914,0,19.05255888325765]
[null,"50.0 percent or more",0,15,0,23,10,17,0,15,0,11,0,11,0,11,0,11,0,11,0,20,0,11,0,17,0,11]
[null,"Not Computed",0,15,0,23,0,17,0,15,0,11,0,11,0,11,13,17,7,10,41,39,0,11,0,17,8,12]
[null,"$75,000 to $99,999:",12,22,721,158,47,32,44,50,14,22,27,22,15,21,38,36,9,15,247,105,13,10,263,154,0,11]
[null,"Less than 30.0 percent",0,25.98076211353316,646,167.61264868738277,47,32.542280190545959,26,46.162755550335163,14,26.944387170614959,27,22.978250586152114,15,26.134268690743959,38,37.134889255254286,9,21.61018278497431,219,100.60815076324582,13,16.881943016134134,239,152.41391012633986,0,19.05255888325765]
[null,"More than 30.0 percent",12,34.044089061098404,50,71.470273540822546,0,34,18,38.196858509568557,0,22,0,22,0,22,0,22,0,22,11,38.157568056677825,0,22,24,41.32795663954365,0,22]
[null,"Less Than 35% of HH Income",12,34.044089061098404,651,167.8541033159452,47,36.715119501371639,44,53.990739946772351,14,29.103264421710495,27,25.475478405713993,15,28.354893757515651,38,38.729833462074168,9,24.248711305964282,230,101.87246929372037,13,20.149441679609886,263,155.14831613652788,0,22]
[null,"35.0 percent or more",0,25.98076211353316,45,70.901339902712692,0,29.444863728670914,0,25.98076211353316,0,19.05255888325765,0,19.05255888325765,0,19.05255888325765,0,19.05255888325765,0,19.05255888325765,0,34.641016151377549,0,19.05255888325765,0,29.444863728670914,0,19.05255888325765]
[null,"50.0 percent or more",0,15,0,23,0,17,0,15,0,11,0,11,0,11,0,11,0,11,0,20,0,11,0,17,0,11]
[null,"Not Computed",0,15,25,38,0,17,0,15,0,11,0,11,0,11,0,11,0,11,17,25,0,11,0,17,0,11]
[null,"$100,000 or more:",55,52,483,146,98,57,42,63,80,109,7,8,6,6,27,40,0,11,103,61,6,10,115,88,7,10]
[null,"Less than 30.0 percent",55,56.160484328395889,455,141.58036587041298,82,59.016946718718003,42,66.475559418481012,80,110.1044958210154,7,17.4928556845359,6,16.673332000533065,27,42.918527467749868,0,19.05255888325765,93,64.529063219606712,6,18.493242008906929,115,90.790968713853914,7,18.493242008906929]
[null,"More than 30.0 percent",0,30,9,41.904653679513928,0,34,0,30,0,22,0,22,0,22,0,22,0,22,0,40,0,22,0,34,0,22]
[null,"Less Than 35% of HH Income",55,58.129166517334482,464,142.17594733287342,82,61.416610131136352,42,68.146900149603283,80,110.65260954898443,7,20.663978319771825,6,19.974984355438178,27,44.305755833751441,0,22,93,67.557383016218139,6,21.517434791350013,115,92.36882591004391,7,21.517434791350013]
[null,"35.0 percent or more",0,25.98076211353316,0,39.837168574084181,0,29.444863728670914,0,25.98076211353316,0,19.05255888325765,0,19.05255888325765,0,19.05255888325765,0,19.05255888325765,0,19.05255888325765,0,34.641016151377549,0,19.05255888325765,0,29.444863728670914,0,19.05255888325765]
[null,"50.0 percent or more",0,15,0,23,0,17,0,15,0,11,0,11,0,11,0,11,0,11,0,20,0,11,0,17,0,11]
[null,"Not Computed",0,15,19,17,16,19,0,15,0,11,0,11,0,11,0,11,0,11,10,15,0,11,0,17,0,11]
[]
[]
[null,"Calculated GROSS RENT AS A PERCENTAGE OF HOUSEHOLD INCOME IN THE PAST 12 MONTHS"]
[null,"Universe:  RENTER-OCCUPIED HOUSING UNITS"]
[null,"Data Set: 2010-2014 American Community Survey 5-Year Estimates"]
[]
[null,null,"Barrington",null,"Dover",null,"Durham",null,"Farmington",null,"Lee",null,"Madbury",null,"Middleton",null,"Milton",null,"New Durham",null,"Rochester",null,"Rollinsford",null,"Somersworth",null,"Strafford"]
[null,null,"Estimate","Margin Of Error","Estimate","Margin Of Error","Estimate","Margin Of Error","Estimate","Margin Of Error","Estimate","Margin Of Error","Estimate","Margin Of Error","Estimate","Margin Of Error","Estimate","Margin Of Error","Estimate","Margin Of Error","Estimate","Margin Of Error","Estimate","Margin Of Error","Estimate","Margin Of Error","Estimate","Margin Of Error"]
[null,"Total:",359,153,6211,406,1179,177,773,254,287,156,138,51,70,36,260,89,113,55,4580,453,259,64,1954,238,117,67]
[null,"Less than 30.0 percent",154,117.66052864066182,3031,396.94835936176889,335,116.97863052711807,228,144.38836518224036,175,139.86779472058603,99,55.235857918565905,43,53.805204209258413,114,80.938248066041069,54,66.775744099186198,1958,359.68041370082972,119,72.904046526924688,974,261.66963904893515,50,65]
[null,"More than 30.0 percent",170,129.84991336154215,3010,423.19735348888941,781,179.57449707572621,536,228.26519664635694,112,122.4540730233176,36,64.140470843298303,21,58.32666628567074,125,88.774996479864754,38,57.853262656482912,2419,388.88687301064812,140,78.300702423413796,917,243.567239176372,59,81.117199162692984]
[null,"Less Than 35% of HH Income",214,144.15963373982331,3664,437.51685681811165,395,131.99621206686197,268,154.86122820125121,175,142.86357128393507,99,62.433965115151864,43,61.171888968708494,125,86.982756911930537,54,72.842295405897246,2372,389.98846136776916,137,79.806014810915102,1084,270.76373464701658,50,71.217975259059429]
[null,"35.0 percent or more",110,99.61425600786265,2377,381.10759635567484,721,168.84312245395131,496,221.29392219399068,112,118.94536560959406,36,57.157676649772952,21,50.547007824400445,114,82.861329943466387,38,50,2005,358.48570403852926,122,71.253070109294242,807,233.4159377591856,59,75.716576784743779]
[null,"50.0 percent or more",97,81.228073964609052,1211,266.49014991177444,539,143.19916200872126,265,154.83539646992867,112,111.59749101122301,36,39.66106403010388,16,30.298514815086232,73,62.497999967998979,13,27.110883423451916,1213,305.69265611067596,49,38.144462245521304,556,189.0634814024115,31,54.17564028232615]
[null,"Not Computed",35,67.815927332743897,151,100.85137579626765,47,62.048368229954285,9,39.686269665968858,0,29.103264421710495,3,27.404379212089442,6,25.632011235952593,21,32.603680773802211,21,28.879058156387302,193,99.959991996798394,0,29.103264421710495,63,61.11464636239009,8,29.49576240750525]
[]
[]
[]
[]
[null,"B25074. HOUSEHOLD INCOME BY GROSS RENT AS A PERCENTAGE OF HOUSEHOLD INCOME IN THE PAST 12 MONTHS"]
[null,"Universe:  RENTER OCCUPIED HOUSING UNITS"]
[null,"Data Set: 2005-2009 American Community Survey 5-Year Estimates",null,null,null,null,"Income in 2009 Inflation Adjusted Dollars"]
[]
[null,null,"Barrington",null,"Dover",null,"Durham",null,"Farmington",null,"Lee",null,"Madbury",null,"Middleton",null,"Milton",null,"New Durham",null,"Rochester",null,"Rollinsford",null,"Somersworth",null,"Strafford"]
[null,null,"Estimate","Margin Of Error","Estimate","Margin Of Error","Estimate","Margin Of Error","Estimate","Margin Of Error","Estimate","Margin Of Error","Estimate","Margin Of Error","Estimate","Margin Of Error","Estimate","Margin Of Error","Estimate","Margin Of Error","Estimate","Margin Of Error","Estimate","Margin Of Error","Estimate","Margin Of Error","Estimate","Margin Of Error"]
[null,"Total:",569,151,4926,393,1372,207,802,191,536,127,124,49,37,20,292,116,134,56,3672,386,304,57,2097,223,106,51]
[null,"Less than $10,000:",16,25,432,165,617,160,156,123,234,86,4,6,3,5,30,36,0,114,386,147,74,57,361,135,0,114]
[null,"Less than 20.0 percent",0,114,26,31,0,114,0,114,0,114,0,114,0,114,0,114,0,114,0,114,0,114,0,114,0,114]
[null,"20.0 to 24.9 percent",0,114,0,114,0,114,40,66,0,114,0,114,0,114,0,114,0,114,12,20,0,114,16,26,0,114]
[null,"25.0 to 29.9 percent",0,114,0,114,0,114,0,114,0,114,0,114,0,114,0,114,0,114,13,22,0,114,37,43,0,114]
[null,"30.0 to 34.9 percent",0,114,23,26,8,11,0,114,0,114,0,114,0,114,0,114,0,114,13,21,0,114,14,23,0,114]
[null,"35.0 percent or more",16,25,331,150,422,128,116,101,151,59,4,6,3,5,30,36,0,114,312,146,74,57,242,116,0,114]
[null,"Not computed",0,114,52,64,187,84,0,114,83,64,0,114,0,114,0,114,0,114,36,55,0,114,52,51,0,114]
[null,"$10,000 to $19,999:",77,85,695,196,322,89,227,118,9,15,16,19,0,114,45,38,5,8,822,217,61,46,358,146,18,14]
[null,"Less than 20.0 percent",0,114,21,25,0,114,11,19,0,114,0,114,0,114,0,114,0,114,58,67,6,9,7,11,0,114]
[null,"20.0 to 24.9 percent",0,114,44,30,8,15,0,114,0,114,0,114,0,114,0,114,0,114,60,39,0,114,29,23,0,114]
[null,"25.0 to 29.9 percent",0,114,87,48,10,18,0,114,0,114,0,114,0,114,0,114,0,114,117,92,0,114,0,114,0,114]
[null,"30.0 to 34.9 percent",0,114,77,71,20,23,0,114,0,114,0,114,0,114,14,24,0,114,9,14,0,114,0,114,0,114]
[null,"35.0 percent or more",77,85,440,181,243,85,216,114,9,15,14,19,0,114,22,25,5,8,532,186,55,45,283,147,10,9]
[null,"Not computed",0,114,26,31,41,26,0,114,0,114,2,3,0,114,9,14,0,114,46,35,0,114,39,47,8,12]
[null,"$20,000 to $34,999:",81,49,1247,250,137,69,178,102,41,33,37,28,7,7,26,24,31,34,1057,271,44,37,368,135,14,22]
[null,"Less than 20.0 percent",0,114,51,59,0,114,0,114,0,114,1,3,0,114,0,114,0,114,85,69,0,114,22,24,0,114]
[null,"20.0 to 24.9 percent",0,114,16,19,0,114,0,114,6,9,0,114,4,5,0,114,0,114,65,43,0,114,68,77,0,114]
[null,"25.0 to 29.9 percent",20,32,107,91,10,16,32,29,12,18,2,4,0,114,0,114,0,114,58,51,33,32,10,19,14,22]
[null,"30.0 to 34.9 percent",29,23,261,126,40,33,26,29,0,114,13,17,0,114,0,114,6,8,100,81,0,114,135,84,0,114]
[null,"35.0 percent or more",32,31,797,211,72,44,120,99,23,26,18,17,3,6,16,20,25,33,688,237,11,13,117,75,0,114]
[null,"Not computed",0,114,15,25,15,24,0,114,0,114,3,5,0,114,10,15,0,114,61,65,0,114,16,25,0,114]
[null,"$35,000 to $49,999:",174,111,770,242,142,82,88,75,67,59,15,15,4,6,22,25,47,43,656,219,47,44,313,126,16,19]
[null,"Less than 20.0 percent",68,84,171,111,51,65,17,29,42,63,4,6,0,114,0,114,0,114,95,85,0,114,57,43,0,114]
[null,"20.0 to 24.9 percent",56,49,212,135,0,114,11,18,25,27,0,114,4,6,0,114,0,114,170,113,0,114,99,64,11,17]
[null,"25.0 to 29.9 percent",15,24,201,104,62,65,12,19,0,114,3,5,0,114,0,114,20,32,204,133,47,44,86,67,0,114]
[null,"30.0 to 34.9 percent",21,33,55,62,19,14,38,60,0,114,0,114,0,114,14,23,0,114,57,52,0,114,59,61,0,114]
[null,"35.0 percent or more",0,114,117,85,0,114,10,17,0,114,8,13,0,114,8,12,19,28,109,78,0,114,3,9,5,9]
[null,"Not computed",14,23,14,22,10,16,0,114,0,114,0,114,0,114,0,114,8,12,21,24,0,114,9,16,0,114]
[null,"$50,000 to $74,999:",112,75,1253,259,41,64,153,103,124,78,12,12,8,8,115,90,29,25,439,160,33,29,414,178,7,11]
[null,"Less than 20.0 percent",25,41,682,201,39,64,86,85,34,32,3,4,3,6,85,85,7,10,135,78,15,23,271,166,7,11]
[null,"20.0 to 24.9 percent",13,21,229,101,2,6,40,38,48,59,9,11,0,114,8,12,0,114,169,96,6,12,50,45,0,114]
[null,"25.0 to 29.9 percent",34,34,88,56,0,114,27,44,28,37,0,114,5,6,14,23,22,22,43,33,12,18,93,91,0,114]
[null,"30.0 to 34.9 percent",40,64,205,140,0,114,0,114,0,114,0,114,0,114,8,11,0,114,83,84,0,114,0,114,0,114]
[null,"35.0 percent or more",0,114,25,27,0,114,0,114,0,114,0,114,0,114,0,114,0,114,9,16,0,114,0,114,0,114]
[null,"Not computed",0,114,24,27,0,114,0,114,14,22,0,114,0,114,0,114,0,114,0,114,0,114,0,114,0,114]
[null,"$75,000 to $99,999:",82,75,307,154,81,71,0,114,20,18,16,21,0,114,26,41,22,26,204,115,24,34,147,94,17,24]
[null,"Less than 20.0 percent",82,75,163,94,35,54,0,114,8,13,3,4,0,114,26,41,16,23,159,104,24,34,125,91,17,24]
[null,"20.0 to 24.9 percent",0,114,129,111,31,43,0,114,12,19,0,114,0,114,0,114,6,10,11,16,0,114,22,26,0,114]
[null,"25.0 to 29.9 percent",0,114,15,24,15,23,0,114,0,114,0,114,0,114,0,114,0,114,12,18,0,114,0,114,0,114]
[null,"30.0 to 34.9 percent",0,114,0,114,0,114,0,114,0,114,13,21,0,114,0,114,0,114,22,34,0,114,0,114,0,114]
[null,"35.0 percent or more",0,114,0,114,0,114,0,114,0,114,0,114,0,114,0,114,0,114,0,114,0,114,0,114,0,114]
[null,"Not computed",0,114,0,114,0,114,0,114,0,114,0,114,0,114,0,114,0,114,0,114,0,114,0,114,0,114]
[null,"$100,000 or more:",27,30,222,106,32,31,0,114,41,34,24,25,15,13,28,39,0,114,108,66,21,33,136,82,34,39]
[null,"Less than 20.0 percent",27,30,203,107,24,28,0,114,41,34,4,6,15,13,28,39,0,114,108,66,21,33,136,82,34,39]
[null,"20.0 to 24.9 percent",0,114,19,30,0,114,0,114,0,114,19,25,0,114,0,114,0,114,0,114,0,114,0,114,0,114]
[null,"25.0 to 29.9 percent",0,114,0,114,8,13,0,114,0,114,1,4,0,114,0,114,0,114,0,114,0,114,0,114,0,114]
[null,"30.0 to 34.9 percent",0,114,0,114,0,114,0,114,0,114,0,114,0,114,0,114,0,114,0,114,0,114,0,114,0,114]
[null,"35.0 percent or more",0,114,0,114,0,114,0,114,0,114,0,114,0,114,0,114,0,114,0,114,0,114,0,114,0,114]
[null,"Not computed",0,114,0,114,0,114,0,114,0,114,0,114,0,114,0,114,0,114,0,114,0,114,0,114,0,114]
[]
[]
[]
[]
[]
[]
[]
[]
[]
[]
[]
[]
[]
[]
[]
[]
[]
[]
[]
[]
[]
[]
[]
[]
[]
[]
[]
[]
[]
[]
[]
[]
[]
[]
[]
[]
[]
[]
[]
[]
[]
[]
[]
[]
[]
[null,"Calculated B25074. HOUSEHOLD INCOME BY GROSS RENT AS A PERCENTAGE OF HOUSEHOLD INCOME IN THE PAST 12 MONTHS"]
[null,"Universe:  RENTER-OCCUPIED HOUSING UNITS"]
[null,"Data Set: 2005-2009 American Community Survey 5-Year Estimates"]
[]
[null,null,"Barrington",null,"Dover",null,"Durham",null,"Farmington",null,"Lee",null,"Madbury",null,"Middleton",null,"Milton",null,"New Durham",null,"Rochester",null,"Rollinsford",null,"Somersworth",null,"Strafford"]
[null,null,"Estimate","Margin Of Error","Estimate","Margin Of Error","Estimate","Margin Of Error","Estimate","Margin Of Error","Estimate","Margin Of Error","Estimate","Margin Of Error","Estimate","Margin Of Error","Estimate","Margin Of Error","Estimate","Margin Of Error","Estimate","Margin Of Error","Estimate","Margin Of Error","Estimate","Margin Of Error","Estimate","Margin Of Error"]
[null,"Total:",569,151,4926,393,1372,207,802,191,536,127,124,49,37,20,292,116,134,56,3672,386,304,57,2097,223,106,51]
[null,"Less than $10,000:",16,25,432,165,617,160,156,123,234,86,4,6,3,5,30,36,0,114,386,147,74,57,361,135,0,114]
[null,"Less than 30.0 percent",0,197.45379206285202,26,164.17368851311102,0,197.45379206285202,40,174.2067736914957,0,197.45379206285202,0,197.45379206285202,0,197.45379206285202,0,197.45379206285202,0,197.45379206285202,25,117.81341180018512,0,197.45379206285202,53,124.58330546265017,0,197.45379206285202]
[null,"More than 30.0 percent",16,116.70903992407786,354,152.23665787188051,430,128.47178678604885,116,152.30561381643159,151,128.36276718737409,4,114.15778554264269,3,114.10959644131601,30,119.54915307102765,0,161.22034611053283,325,147.50254235097103,74,127.45587471748802,256,118.25819210524064,0,161.22034611053283]
[null,"Less Than 35% of HH Income",0,228,49,166.2197340871414,8,197.75995550161312,40,208.19221887476968,0,228,0,228,0,228,0,228,0,228,38,119.67038062946069,0,228,67,126.68859459319927,0,228]
[null,"35.0 percent or more",16,25,331,150,422,128,116,101,151,59,4,6,3,5,30,36,0,114,312,146,74,57,242,116,0,114]
[null,"Not Computed",0,114,52,64,187,84,0,114,83,64,0,114,0,114,0,114,0,114,36,55,0,114,52,51,0,114]
[null,"$10,000 to $19,999:",77,85,695,196,322,89,227,118,9,15,16,19,0,114,45,38,5,8,822,217,61,46,358,146,18,14]
[null,"Less than 30.0 percent",0,197.45379206285202,152,61.878914017619927,18,116.38298844762494,11,162.33607116103309,0,197.45379206285202,0,197.45379206285202,0,197.45379206285202,0,197.45379206285202,0,197.45379206285202,235,120.30793822520607,6,161.47135968957468,36,116.81609478149832,0,197.45379206285202]
[null,"More than 30.0 percent",77,142.20056258679148,517,194.42736432920137,263,88.056799851005266,216,161.22034611053283,9,114.9826073804208,14,115.57248807566617,0,161.22034611053283,36,34.655446902326915,5,114.28035701729323,541,186.52613757862463,55,122.56018929489298,283,186.02419197512995,10,114.35471131527551]
[null,"Less Than 35% of HH Income",0,228,229,94.180677423768827,38,118.63389060466659,11,198.36582366930045,0,228,0,228,0,228,14,198.90701345100931,0,228,244,121.11977542911809,6,197.6587969203496,36,163.2237727783548,0,228]
[null,"35.0 percent or more",77,85,440,181,243,85,216,114,9,15,14,19,0,114,22,25,5,8,532,186,55,45,283,147,10,9]
[null,"Not Computed",0,114,26,31,41,26,0,114,0,114,2,3,0,114,9,14,0,114,46,35,0,114,39,47,8,12]
[null,"$20,000 to $34,999:",81,49,1247,250,137,69,178,102,41,33,37,28,7,7,26,24,31,34,1057,271,44,37,368,135,14,22]
[null,"Less than 30.0 percent",20,164.36544649043483,174,110.1044958210154,10,162.01234520862909,32,163.80781422142229,18,115.76268828944843,3,114.10959644131601,4,161.29786111415117,0,197.45379206285202,0,197.45379206285202,208,95.973954800247753,33,164.36544649043483,100,82.861329943466387,14,162.71447384913242]
[null,"More than 30.0 percent",61,38.600518131237564,1058,245.75801105966008,112,55,146,103.16006979447037,23,116.92732785794773,31,24.041630560342615,3,114.15778554264269,16,115.7410903698423,31,33.955853692699293,788,250.45957757690161,11,114.73883387938018,252,112.60994627474076,0,161.22034611053283]
[null,"Less Than 35% of HH Income",49,165.96686416269966,435,167.3290172086121,50,165.33904560024533,58,166.35504200354134,18,162.47153596861205,16,115.36897329871667,4,197.51708786836647,0,228,6,197.61578884289585,308,125.5866234915168,33,200.02999775033743,235,117.99152511939153,14,198.67561501100229]
[null,"35.0 percent or more",32,31,797,211,72,44,120,99,23,26,18,17,3,6,16,20,25,33,688,237,11,13,117,75,0,114]
[null,"Not Computed",0,114,15,25,15,24,0,114,0,114,3,5,0,114,10,15,0,114,61,65,0,114,16,25,0,114]
[null,"$35,000 to $49,999:",174,111,770,242,142,82,88,75,67,59,15,15,4,6,22,25,47,43,656,219,47,44,313,126,16,19]
[null,"Less than 30.0 percent",139,102.69371937952194,584,185.44540975715736,113,131.97348218486925,40,69.028979421689272,67,133.01879566437219,7,161.33195591698504,4,161.33195591698504,0,162.85269417482783,20,197.45379206285202,469,150.65855435387664,47,197.45379206285202,242,98.315817649043638,11,162.11415730897781]
[null,"More than 30.0 percent",21,118.68024266911489,172,105.20931517693668,19,114.85643212288984,48,62.361847310675458,0,161.22034611053283,8,114.73883387938018,0,161.22034611053283,22,25.942243542145693,19,117.38824472663352,166,93.744333162063725,0,161.22034611053283,62,61.660360037871982,5,114.35471131527551]
[null,"Less Than 35% of HH Income",160,105.46089322587781,639,212.61702659947062,132,147.11220207719006,78,71.596089278674995,67,175.18561584787719,7,161.40941732129511,4,197.54493159785193,14,198.78883268433364,20,200.02999775033743,526,200.96517111181231,47,202.29681164071766,301,118.97478724502936,11,198.18425769974769]
[null,"35.0 percent or more",0,114,117,85,0,114,10,17,0,114,8,13,0,114,8,12,19,28,109,78,0,114,3,9,5,9]
[null,"Not Computed",14,23,14,22,10,16,0,114,0,114,0,114,0,114,0,114,8,12,21,24,0,114,9,16,0,114]
[null,"$50,000 to $74,999:",112,75,1253,259,41,64,153,103,124,78,12,12,8,8,115,90,29,25,439,160,33,29,414,178,7,11]
[null,"Less than 30.0 percent",72,57.253820833198546,999,231.81458107720488,41,130.87398519186308,153,102.9805806936434,110,76.642025025438883,12,114.59930191759459,8,114.3153532995459,107,88.870692581975533,29,116.53325705565771,347,128.0195297601112,33,31.575306807693888,414,194.5816024191393,7,161.59517319524119]
[null,"More than 30.0 percent",40,130.73637596323374,230,142.57980221616245,0,161.22034611053283,0,161.22034611053283,0,161.22034611053283,0,161.22034611053283,0,161.22034611053283,8,114.52947218947619,0,161.22034611053283,92,85.510233305727795,0,161.22034611053283,0,161.22034611053283,0,161.22034611053283]
[null,"Less Than 35% of HH Income",112,85.871997764113999,1204,270.80989642182578,41,173.56266879718115,153,153.62616964566942,110,137.36811857195977,12,161.64467204334326,8,161.44348856488452,115,89.548869339595797,29,163.02147097851866,430,153.11760186209813,33,118.29201156460228,414,225.51718338077922,7,197.75995550161312]
[null,"35.0 percent or more",0,114,25,27,0,114,0,114,0,114,0,114,0,114,0,114,0,114,9,16,0,114,0,114,0,114]
[null,"Not Computed",0,114,24,27,0,114,0,114,14,22,0,114,0,114,0,114,0,114,0,114,0,114,0,114,0,114]
[null,"$75,000 to $99,999:",82,75,307,154,81,71,0,114,20,18,16,21,0,114,26,41,22,26,204,115,24,34,147,94,17,24]
[null,"Less than 30.0 percent",82,177.81169815284932,307,147.42116537322585,81,72.759879054324983,0,197.45379206285202,20,116.30133275246678,3,161.26996000495566,0,197.45379206285202,26,166.35203635663737,22,116.72617529928752,182,106.75204916066015,24,164.76650144977893,147,148.16544806398016,17,162.9969324864735]
[null,"More than 30.0 percent",0,161.22034611053283,0,161.22034611053283,0,161.22034611053283,0,161.22034611053283,0,161.22034611053283,13,115.91807451816995,0,161.22034611053283,0,161.22034611053283,0,161.22034611053283,22,118.96217886370441,0,161.22034611053283,0,161.22034611053283,0,161.22034611053283]
[null,"Less Than 35% of HH Income",82,211.21789696898318,307,186.35718392377581,81,135.24052647043342,0,228,20,162.85576440519384,16,162.63148526653748,0,228,26,201.66556473528146,22,163.15943123215402,204,112.03570859328734,24,200.35967658189111,147,186.94651641579205,17,198.90701345100931]
[null,"35.0 percent or more",0,114,0,114,0,114,0,114,0,114,0,114,0,114,0,114,0,114,0,114,0,114,0,114,0,114]
[null,"Not Computed",0,114,0,114,0,114,0,114,0,114,0,114,0,114,0,114,0,114,0,114,0,114,0,114,0,114]
[null,"$100,000 or more:",27,30,222,106,32,31,0,114,41,34,24,25,15,13,28,39,0,114,108,66,21,33,136,82,34,39]
[null,"Less than 30.0 percent",27,163.98780442459739,222,159.20113064925135,32,118.10588469674151,0,197.45379206285202,41,164.76650144977893,24,26.019223662515376,15,161.74362429474616,28,165.87043136134903,0,197.45379206285202,108,174.2067736914957,21,164.56305782282973,136,180.87564789103038,34,165.87043136134903]
[null,"More than 30.0 percent",0,161.22034611053283,0,161.22034611053283,0,161.22034611053283,0,161.22034611053283,0,161.22034611053283,0,161.22034611053283,0,161.22034611053283,0,161.22034611053283,0,161.22034611053283,0,161.22034611053283,0,161.22034611053283,0,161.22034611053283,0,161.22034611053283]
[null,"Less Than 35% of HH Income",27,199.71980372511885,222,195.80857999587249,32,164.14932226482082,0,228,41,200.35967658189111,24,116.93160394008115,15,197.88127753782064,28,201.2684774126341,0,228,108,208.19221887476968,21,200.19240744843447,136,213.80364823828427,34,201.2684774126341]
[null,"35.0 percent or more",0,114,0,114,0,114,0,114,0,114,0,114,0,114,0,114,0,114,0,114,0,114,0,114,0,114]
[null,"Not Computed",0,114,0,114,0,114,0,114,0,114,0,114,0,114,0,114,0,114,0,114,0,114,0,114,0,114]
[]
[]
[null,"Calculated GROSS RENT AS A PERCENTAGE OF HOUSEHOLD INCOME IN THE PAST 12 MONTHS"]
[null,"Universe:  RENTER-OCCUPIED HOUSING UNITS"]
[null,"Data Set: 2005-2009 American Community Survey 5-Year Estimates"]
[]
[null,null,"Barrington",null,"Dover",null,"Durham",null,"Farmington",null,"Lee",null,"Madbury",null,"Middleton",null,"Milton",null,"New Durham",null,"Rochester",null,"Rollinsford",null,"Somersworth",null,"Strafford"]
[null,null,"Estimate","Margin Of Error","Estimate","Margin Of Error","Estimate","Margin Of Error","Estimate","Margin Of Error","Estimate","Margin Of Error","Estimate","Margin Of Error","Estimate","Margin Of Error","Estimate","Margin Of Error","Estimate","Margin Of Error","Estimate","Margin Of Error","Estimate","Margin Of Error","Estimate","Margin Of Error","Estimate","Margin Of Error"]
[null,"Total:",569,151,4926,393,1372,207,802,191,536,127,124,49,37,20,292,116,134,56,3672,386,304,57,2097,223,106,51]
[null,"Less than 30.0 percent",340,421.09975065297772,2464,422.03198930886742,295,364.10026091723694,276,420.57104037249167,256,394.48574118718159,49,396.03408944180552,31,456.33102020353601,161,454.49862486040593,71,471.32260713867737,1574,344.08719825067601,164,431.61441125152436,1128,371.79295313386456,83,459.26789567745749]
[null,"More than 30.0 percent",215,344.22812203537353,2331,452.50082872852289,824,344.16856335232012,526,376.42529139259494,183,383.84632341602543,70,324.88921188614432,6,394.98480983450492,112,307.67352827307064,55,363.26436654315546,1934,418.95465148390463,140,385.22590774764876,853,378.21819099562094,15,395.11264216676238]
[null,"Less Than 35% of HH Income",430,484.26232560462518,3085,506.0750932420998,382,421.33241033654178,340,493.01318440788174,256,496.57929880332307,75,457.80126692703681,31,547.00091407601872,197,521.77198084987276,77,536.85472895374596,1858,405.57490060406843,164,515.948640854882,1336,449.76438276057388,83,549.45336471806229]
[null,"35.0 percent or more",125,246.56642107148329,1710,365.68839194046069,737,278.44029880748224,462,268.84010117540129,183,237.41524803600967,44,199.60711410167724,6,255.03137061938085,76,203.60009823180343,49,232.20895762222437,1650,380.01710487818832,140,239.63931230079925,645,282.41635929952781,15,255.22930866183845]
[null,"Not Computed",14,280.18743726298652,131,181.34773227145686,253,218.06421072702418,0,301.61564946136332,97,263.74229846575616,5,254.97843046030383,0,301.61564946136332,19,255.73619219813219,8,279.49955277245078,164,219.17800984587848,0,301.61564946136332,116,211.37407598851851,8,279.49955277245078]

{"sheet":"PlaceOfBirthAndPriorRes","index":54,"n_rows":57,"n_cols":16,"rows_kept":57,"cut":false,"hidden":true,"merged":[[40,11,40,13],[53,2,54,14],[4,3,4,5],[4,7,4,9],[40,3,40,5],[40,7,40,9]]}
[]
[null,null,{"$f":"CntyDataLink!A50","v":"Barrington"}]
[null,null,"SOCIAL CHARACTERISTICS"]
[]
[null,null,"Place of Birth","2005-2009",null,null,null,"2009-2013",null,null,null,"2015-2019"]
[null,null,"Universe: Total Population","Estimate","Margin of Error",null,null,"Estimate","Margin of Error",null,null,"Estimate","Margin of Error",null,"10 Year Statistically Significant Change ","5 Year Statistically Significant Change "]
[null,null,"  Total:",{"$f":"CntyDataLinkPrior10YearEstimate!$B$136","v":8389},{"$f":"CntyDataLinkPrior10YearEstimate!$C$136","v":19},null,null,{"$f":"CntyDataLinkPrior5YearEstimates!$B$136","v":8691},{"$f":"CntyDataLinkPrior5YearEstimates!$C$136","v":17},null,null,{"$f":"CntyDataLink!$B$136","v":9063},{"$f":"CntyDataLink!$C$136","v":31}]
[null,null,"   United States Native",{"$f":"CntyDataLinkPrior10YearEstimate!$D$136","v":8269},{"$f":"CntyDataLinkPrior10YearEstimate!$E$136","v":81},{"$f":"D8/$D$7","v":0.98569555370127548},null,{"$f":"CntyDataLinkPrior5YearEstimates!$D$136","v":8604},{"$f":"CntyDataLinkPrior5YearEstimates!$E$136","v":70},{"$f":"H8/$H$7","v":0.98998964445978599},null,{"$f":"CntyDataLink!$D$136","v":8781},{"$f":"CntyDataLink!$E$136","v":221},{"$f":"L8/$L$7","v":0.96888447533929167},{"$f":"StatisticallySignificantCalcs!A25","v":"N"},{"$f":"StatisticallySignificantCalcs!J25","v":"Y"}]
[null,null,"      New Hampshire Native",{"$f":"CntyDataLinkPrior10YearEstimate!$F$136","v":4712},{"$f":"CntyDataLinkPrior10YearEstimate!$G$136","v":307},{"$f":"D9/$D$7","v":0.56168792466324946},null,{"$f":"CntyDataLinkPrior5YearEstimates!$F$136","v":4697},{"$f":"CntyDataLinkPrior5YearEstimates!$G$136","v":442},{"$f":"H9/$H$7","v":0.54044413761362331},null,{"$f":"CntyDataLink!$F$136","v":4980},{"$f":"CntyDataLink!$G$136","v":522},{"$f":"L9/$L$7","v":0.54948692485931816},{"$f":"StatisticallySignificantCalcs!A26","v":"Y"},{"$f":"StatisticallySignificantCalcs!J26","v":"N"}]
[null,null,"      Born in Different State",{"$f":"CntyDataLinkPrior10YearEstimate!$H$136","v":3516},{"$f":"CntyDataLinkPrior10YearEstimate!$I$136","v":328},0.41912027655262846,null,{"$f":"CntyDataLinkPrior5YearEstimates!$H$136","v":3727},{"$f":"CntyDataLinkPrior5YearEstimates!$I$136","v":464},0.42883442641813369,null,{"$f":"CntyDataLink!$H$136","v":3747},{"$f":"CntyDataLink!$I$136","v":513},0.41343925852366764,{"$f":"StatisticallySignificantCalcs!A27","v":"N"},{"$f":"StatisticallySignificantCalcs!J27","v":"N"}]
[null,null,"          Northeast",{"$f":"CntyDataLinkPrior10YearEstimate!$J$136","v":2949},{"$f":"CntyDataLinkPrior10YearEstimate!$K$136","v":287},0.35153176779115508,null,{"$f":"CntyDataLinkPrior5YearEstimates!$J$136","v":3032},{"$f":"CntyDataLinkPrior5YearEstimates!$K$136","v":417},0.3488666436543551,null,{"$f":"CntyDataLink!$J$136","v":2839},{"$f":"CntyDataLink!$K$136","v":564},0.31325168266578396,{"$f":"StatisticallySignificantCalcs!A28","v":"N"},{"$f":"StatisticallySignificantCalcs!J28","v":"N"}]
[null,null,"          Midwest",{"$f":"CntyDataLinkPrior10YearEstimate!$L$136","v":230},{"$f":"CntyDataLinkPrior10YearEstimate!$M$136","v":106},{"$f":"D12/$D$7","v":2.7416855405888663E-2},null,{"$f":"CntyDataLinkPrior5YearEstimates!$L$136","v":313},{"$f":"CntyDataLinkPrior5YearEstimates!$M$136","v":167},3.6014267633183751E-2,null,{"$f":"CntyDataLink!$L$136","v":217},{"$f":"CntyDataLink!$M$136","v":107},{"$f":"L12/$L$7","v":2.3943506565155027E-2},{"$f":"StatisticallySignificantCalcs!A29","v":"N"},{"$f":"StatisticallySignificantCalcs!J29","v":"N"}]
[null,null,"          South",{"$f":"CntyDataLinkPrior10YearEstimate!$N$136","v":190},{"$f":"CntyDataLinkPrior10YearEstimate!$O$136","v":109},2.2648706639647156E-2,null,{"$f":"CntyDataLinkPrior5YearEstimates!$N$136","v":271},{"$f":"CntyDataLinkPrior5YearEstimates!$O$136","v":137},{"$f":"H13/$H$7","v":3.1181682199976989E-2},null,{"$f":"CntyDataLink!$N$136","v":318},{"$f":"CntyDataLink!$O$136","v":149},3.5087719298245612E-2,{"$f":"StatisticallySignificantCalcs!A30","v":"N"},{"$f":"StatisticallySignificantCalcs!J30","v":"N"}]
[null,null,"          West",{"$f":"CntyDataLinkPrior10YearEstimate!$P$136","v":147},{"$f":"CntyDataLinkPrior10YearEstimate!$Q$136","v":87},1.7522946715937536E-2,null,{"$f":"CntyDataLinkPrior5YearEstimates!$P$136","v":111},{"$f":"CntyDataLinkPrior5YearEstimates!$Q$136","v":81},1.277183293061788E-2,null,{"$f":"CntyDataLink!$P$136","v":373},{"$f":"CntyDataLink!$Q$136","v":246},4.115634999448306E-2,{"$f":"StatisticallySignificantCalcs!A31","v":"N"},{"$f":"StatisticallySignificantCalcs!J31","v":"N"}]
[null,null,"      Native Born Outside US",{"$f":"CntyDataLinkPrior10YearEstimate!$R136","v":41},{"$f":"CntyDataLinkPrior10YearEstimate!$S$136","v":42},4.8873524853975444E-3,null,{"$f":"CntyDataLinkPrior5YearEstimates!$R136","v":180},{"$f":"CntyDataLinkPrior5YearEstimates!$S$136","v":135},2.0711080428028994E-2,null,{"$f":"CntyDataLink!$R136","v":54},{"$f":"CntyDataLink!$S$136","v":54},5.9582919563058593E-3,{"$f":"StatisticallySignificantCalcs!A32","v":"N"},{"$f":"StatisticallySignificantCalcs!J32","v":"Y"}]
[null,null,"   Foreign Born",{"$f":"CntyDataLinkPrior10YearEstimate!$Z136","v":120},{"$f":"CntyDataLinkPrior10YearEstimate!$AA$136","v":77},1.4304446298724521E-2,null,{"$f":"CntyDataLinkPrior5YearEstimates!$Z136","v":87},{"$f":"CntyDataLinkPrior5YearEstimates!$AA$136","v":69},1.0010355540214014E-2,null,{"$f":"CntyDataLink!$Z136","v":282},{"$f":"CntyDataLink!$AA$136","v":221},3.1115524660708375E-2,{"$f":"StatisticallySignificantCalcs!A33","v":"N"},{"$f":"StatisticallySignificantCalcs!J33","v":"N"}]
[null,null,"      Naturalized Citizen",{"$f":"CntyDataLinkPrior10YearEstimate!$AB136","v":89},{"$f":"CntyDataLinkPrior10YearEstimate!$AC$136","v":57},{"$f":"D17/$L$7","v":9.8201478539115088E-3},null,{"$f":"CntyDataLinkPrior5YearEstimates!$AB136","v":48},{"$f":"CntyDataLinkPrior5YearEstimates!$AC$136","v":46},5.5229547808077319E-3,null,{"$f":"CntyDataLink!$AB136","v":207},{"$f":"CntyDataLink!$AC$136","v":212},2.2840119165839126E-2,{"$f":"StatisticallySignificantCalcs!A34","v":"N"},{"$f":"StatisticallySignificantCalcs!J34","v":"N"}]
[null,null,"      Not a Citizen",{"$f":"CntyDataLinkPrior10YearEstimate!$AD$136","v":31},{"$f":"CntyDataLinkPrior10YearEstimate!$AE$136","v":49},{"$f":"D18/$L$7","v":3.4205009378792894E-3},null,{"$f":"CntyDataLinkPrior5YearEstimates!$AD$136","v":39},{"$f":"CntyDataLinkPrior5YearEstimates!$AE$136","v":53},4.4874007594062825E-3,null,{"$f":"CntyDataLink!$AD$136","v":75},{"$f":"CntyDataLink!$AE$136","v":90},8.2754054948692493E-3,{"$f":"StatisticallySignificantCalcs!A35","v":"N"},{"$f":"StatisticallySignificantCalcs!J35","v":"N"}]
[null,null,null,{"$f":"\"Source: \"&D41&\", \"&H41&\" and \"&L41& \" American Community Survey Table B05002.\"","v":"Source: 2005-2009, 2010-2014 and 2015-2019 American Community Survey Table B05002."}]
[]
[]
[]
[]
[]
[]
[]
[]
[]
[]
[]
[]
[]
[]
[]
[]
[]
[]
[]
[]
[null,null,"Place of Residence Prior year for Population"]
[null,null,"Universe: Population","2005-2009",null,null,null,"2010-2014",null,null,null,"2015-2019"]
[null,null,null,"Estimate","Margin of Error",null,null,"Estimate","Margin of Error",null,null,"Estimate","Margin of Error",null,"10 Year Statistically Significant Change ","5 Year Statistically Significant Change "]
[null,null,"  Total:",{"$f":"CntyDataLinkPrior10YearEstimate!$AF$136","v":8257},{"$f":"CntyDataLinkPrior10YearEstimate!$AG$136","v":64},null,null,{"$f":"CntyDataLinkPrior5YearEstimates!$AF$136","v":8587},{"$f":"CntyDataLinkPrior5YearEstimates!$AG$136","v":72},null,null,{"$f":"CntyDataLink!$AF$136","v":9004},{"$f":"CntyDataLink!$AG$136","v":69},null,{"$f":"StatisticallySignificantCalcs!$A36","v":"N"},{"$f":"StatisticallySignificantCalcs!$J36","v":"N"}]
["Same House",null,"    Same House ",{"$f":"CntyDataLinkPrior10YearEstimate!$AH$136","v":7202},{"$f":"CntyDataLinkPrior10YearEstimate!$AI$136","v":438},{"$f":"IF($D$44=\"-\",\"-\",VALUE(D44/$D$43))","v":0.87222962334988496},null,{"$f":"CntyDataLinkPrior5YearEstimates!$AH$136","v":7921},{"$f":"CntyDataLinkPrior5YearEstimates!$AI$136","v":352},{"$f":"IF($D$44=\"-\",\"-\",VALUE(H44/$H$43))","v":0.92244089903342263},null,{"$f":"CntyDataLink!$AH$136","v":8305},{"$f":"CntyDataLink!$AI$136","v":257},{"$f":"IF($L$44=\"-\",\"-\",VALUE(L44/$L$43))","v":0.92236783651710352},{"$f":"StatisticallySignificantCalcs!$A37","v":"Y"},{"$f":"StatisticallySignificantCalcs!$J37","v":"Y"}]
["Different House",null,"    Different House 1  ",{"$f":"CntyDataLinkPrior10YearEstimate!$AJ$136","v":1055},{"$f":"CntyDataLinkPrior10YearEstimate!$AK$136","v":456.36936794662279},{"$f":"IF($D$45=\"-\",\"-\",VALUE(D45/$D$43))","v":0.12777037665011506},null,{"$f":"CntyDataLinkPrior5YearEstimates!$AJ$136","v":666},{"$f":"CntyDataLinkPrior5YearEstimates!$AK$136","v":317.70583878802103},{"$f":"IF($D$44=\"-\",\"-\",VALUE(H45/$H$43))","v":7.755910096657738E-2},null,{"$f":"CntyDataLink!$AJ$136","v":699},{"$f":"CntyDataLink!$AK$136","v":284.74374444401758},{"$f":"IF($L$44=\"-\",\"-\",VALUE(L45/$L$43))","v":7.7632163482896491E-2},{"$f":"StatisticallySignificantCalcs!$A38","v":"Y"},{"$f":"StatisticallySignificantCalcs!$J38","v":"N"}]
[null,null,"      in New Hampshire",{"$f":"CntyDataLinkPrior10YearEstimate!$AL$136","v":951},{"$f":"CntyDataLinkPrior10YearEstimate!$AM$136","v":429.96860350495359},{"$f":"IF($D$46=\"-\",\"-\",VALUE(D46/$D$43))","v":0.11517500302773405},null,{"$f":"CntyDataLinkPrior5YearEstimates!$AL$136","v":588},{"$f":"CntyDataLinkPrior5YearEstimates!$AM$136","v":299.82661656364002},6.8475602655176424E-2,null,{"$f":"CntyDataLink!$AL$136","v":544},{"$f":"CntyDataLink!$AM$136","v":259.09457732650446},6.0417592181252776E-2,{"$f":"StatisticallySignificantCalcs!$A39","v":"N"},{"$f":"StatisticallySignificantCalcs!$J39","v":"N"}]
[null,null,"          Same county",{"$f":"CntyDataLinkPrior10YearEstimate!$AN$136","v":794},{"$f":"CntyDataLinkPrior10YearEstimate!$AO$136","v":412},{"$f":"IF($D$47=\"-\",\"-\",VALUE(D47/$D$43))","v":9.6160833232408871E-2},null,{"$f":"CntyDataLinkPrior5YearEstimates!$AN$136","v":347},{"$f":"CntyDataLinkPrior5YearEstimates!$AO$136","v":210},4.040992197507861E-2,null,{"$f":"CntyDataLink!$AN$136","v":350},{"$f":"CntyDataLink!$AO$136","v":203},3.8871612616614835E-2,{"$f":"StatisticallySignificantCalcs!$A40","v":"N"},{"$f":"StatisticallySignificantCalcs!$J40","v":"N"}]
[null,null,"          Different county",{"$f":"CntyDataLinkPrior10YearEstimate!$AP$136","v":157},{"$f":"CntyDataLinkPrior10YearEstimate!$AQ$136","v":123},{"$f":"IF($D$48=\"-\",\"-\",VALUE(D48/$D$43))","v":1.9014169795325178E-2},null,{"$f":"CntyDataLinkPrior5YearEstimates!$AP$136","v":241},{"$f":"CntyDataLinkPrior5YearEstimates!$AQ$136","v":214},2.8065680680097821E-2,null,{"$f":"CntyDataLink!$AP$136","v":194},{"$f":"CntyDataLink!$AQ$136","v":161},2.154597956463794E-2,{"$f":"StatisticallySignificantCalcs!$A41","v":"N"},{"$f":"StatisticallySignificantCalcs!$J41","v":"N"}]
["Different State",null,"      in Different state",{"$f":"CntyDataLinkPrior10YearEstimate!$AR$136","v":104},{"$f":"CntyDataLinkPrior10YearEstimate!$AS$136","v":102},{"$f":"IF($D$49=\"-\",\"-\",VALUE(D49/$D$43))","v":1.259537362238101E-2},null,{"$f":"CntyDataLinkPrior5YearEstimates!$AR$136","v":78},{"$f":"CntyDataLinkPrior5YearEstimates!$AS$136","v":104},9.0834983114009542E-3,null,{"$f":"CntyDataLink!$AR$136","v":103},{"$f":"CntyDataLink!$AS$136","v":82},1.143936028431808E-2,{"$f":"StatisticallySignificantCalcs!$A42","v":"N"},{"$f":"StatisticallySignificantCalcs!$J42","v":"N"}]
["Eleswhere",null,"       Elsewhere",{"$f":"CntyDataLinkPrior10YearEstimate!$AT$136","v":0},{"$f":"CntyDataLinkPrior10YearEstimate!$AU$136","v":114},{"$f":"IF($D$50=\"-\",\"-\",VALUE(D50/$D$43))","v":0},null,{"$f":"CntyDataLinkPrior5YearEstimates!$AT$136","v":0},{"$f":"CntyDataLinkPrior5YearEstimates!$AU$136","v":15},0,null,{"$f":"CntyDataLink!$AT$136","v":52},{"$f":"CntyDataLink!$AU$136","v":85},5.7752110173256328E-3,{"$f":"StatisticallySignificantCalcs!$A43","v":"N"},{"$f":"StatisticallySignificantCalcs!$J43","v":"N"}]
[]
[null,null,"Data from the American Community Survey are estimates"]
[]
[null,null,"1   The number for Different House was calculated by adding In New Hampshire, In Different State, and Elsewhere totals. The number is not located in the source Table B07003."]
[]
[]
[null,null,{"$f":"\"Source: \"&D41&\", \"&H41&\" and \"&L41& \" American Community Survey Table B07003.\"","v":"Source: 2005-2009, 2010-2014 and 2015-2019 American Community Survey Table B07003."}]

{"sheet":"ACS_Table_B05002","index":55,"n_rows":84,"n_cols":28,"rows_kept":84,"cut":false,"hidden":true,"merged":[]}
[null,"B05002. PLACE OF BIRTH BY CITIZENSHIP STATUS"]
[null,"Universe: TOTAL POPULATION"]
[null,"Data Set: 2015-2019 American Community Survey 5-Year Estimates"]
[]
[null,null,"Barrington",null,"Dover",null,"Durham",null,"Farmington",null,"Lee",null,"Madbury",null,"Middleton",null,"Milton",null,"New Durham",null,"Rochester",null,"Rollinsford",null,"Somersworth",null,"Strafford"]
[null,null,"Estimate","Margin Of Error","Estimate","Margin Of Error","Estimate","Margin Of Error","Estimate","Margin Of Error","Estimate","Margin Of Error","Estimate","Margin Of Error","Estimate","Margin Of Error","Estimate","Margin Of Error","Estimate","Margin Of Error","Estimate","Margin Of Error","Estimate","Margin Of Error","Estimate","Margin Of Error","Estimate","Margin Of Error"]
[null,"Total:",9063,31,31577,22,16481,21,6930,17,4485,18,1901,157,1783,159,4620,24,2697,17,30955,38,2567,21,11925,22,4140,18]
[null,"Native:",8781,221,29303,397,15270,210,6855,70,4129,172,1759,152,1767,162,4524,66,2675,22,29893,350,2543,27,10920,386,4051,57]
[null,"Born in state of residence",4980,522,13910,852,4731,377,4282,460,1550,269,865,121,939,147,2428,227,1446,149,16463,819,1371,128,5779,555,1770,230]
[null,"Born in other state in the United States:",3747,513,14827,857,10389,411,2391,450,2444,327,833,105,828,106,2029,231,1196,154,13000,752,1110,132,4984,559,2244,211]
[null,"Northeast",2839,564,10689,744,8159,454,1706,393,1817,322,577,93,623,96,1752,245,995,140,9779,676,947,126,3807,514,1567,203]
[null,"Midwest",217,107,1321,334,679,152,188,128,267,138,88,30,77,36,117,63,88,39,593,163,38,22,332,142,155,71]
[null,"South",318,149,1650,353,1000,212,324,195,225,126,112,37,90,41,105,69,68,41,1614,387,100,42,507,206,313,160]
[null,"West",373,246,1167,301,551,125,173,146,135,93,56,31,38,23,55,41,45,28,1014,368,25,18,338,156,209,127]
[null,"Born outside the United States:",54,54,566,172,150,75,182,122,135,117,61,26,0,11,67,56,33,36,430,159,62,49,157,102,37,27]
[null,"Puerto Rico",0,16,116,75,0,18,51,83,0,11,0,11,0,11,0,11,0,11,52,64,0,11,41,46,0,11]
[null,"U.S. Island Areas",0,16,0,24,0,18,0,16,0,11,0,11,0,11,0,11,0,11,34,47,0,11,0,18,0,11]
[null,"Born abroad of American parent(s)",54,54,450,155,150,75,131,81,135,117,61,26,0,11,67,56,33,36,344,144,62,49,116,93,37,27]
[null,"Foreign born:",282,221,2274,393,1211,207,75,70,356,173,142,76,16,13,96,61,22,16,1062,346,24,18,1005,386,89,52]
[null,"Naturalized U.S. citizen",207,212,974,259,468,126,21,34,210,122,92,61,11,10,44,38,16,14,430,184,24,18,338,168,72,50]
[null,"Europe",52,62,261,103,160,71,21,34,65,97,20,17,7,8,32,35,10,10,98,46,6,10,49,45,9,13]
[null,"Asia",155,202,484,193,199,83,0,16,98,76,58,50,0,11,0,11,0,11,137,97,0,11,211,157,11,17]
[null,"Africa",0,16,38,67,24,20,0,16,0,11,0,11,0,11,0,11,0,11,0,24,0,11,0,18,26,38]
[null,"Oceania",0,16,0,24,0,18,0,16,0,11,0,11,0,11,0,11,0,11,0,24,0,11,0,18,0,11]
[null,"Latin America",0,16,130,93,34,28,0,16,15,22,0,11,0,11,0,11,0,11,195,152,8,11,40,37,0,11]
[null,"Northern America",0,16,61,61,51,47,0,16,32,38,14,19,4,6,12,18,6,9,0,24,10,10,38,43,26,23]
[null,"Not a U.S. citizen",75,90,1300,340,743,168,54,63,146,103,50,43,5,8,52,35,6,8,632,268,0,11,667,320,17,20]
[null,"Europe",75,90,117,60,132,59,0,16,18,28,8,8,0,11,33,30,6,8,53,45,0,11,0,18,7,11]
[null,"Asia",0,16,729,297,453,121,33,53,106,93,42,42,2,5,12,17,0,11,341,209,0,11,606,317,10,16]
[null,"Africa",0,16,7,13,37,25,0,16,0,11,0,11,0,11,0,11,0,11,0,24,0,11,0,18,0,11]
[null,"Oceania",0,16,0,24,10,17,0,16,0,11,0,11,0,11,0,11,0,11,0,24,0,11,0,18,0,11]
[null,"Latin America",0,16,297,159,18,22,0,16,2,5,0,11,0,11,0,11,0,11,148,142,0,11,43,52,0,11]
[null,"Northern America",0,16,150,95,93,88,21,33,20,32,0,11,3,6,7,11,0,11,90,85,0,11,18,30,0,11]
[]
[]
[]
[]
[]
[]
[null,"B05002. PLACE OF BIRTH BY CITIZENSHIP STATUS"]
[null,"Universe: TOTAL POPULATION"]
[null,"Data Set: 2010-2014 American Community Survey 5-Year Estimates"]
[]
[null,null,"Barrington",null,"Dover",null,"Durham",null,"Farmington",null,"Lee",null,"Madbury",null,"Middleton",null,"Milton",null,"New Durham",null,"Rochester",null,"Rollinsford",null,"Somersworth",null,"Strafford"]
[null,null,"Estimate","Margin Of Error","Estimate","Margin Of Error","Estimate","Margin Of Error","Estimate","Margin Of Error","Estimate","Margin Of Error","Estimate","Margin Of Error","Estimate","Margin Of Error","Estimate","Margin Of Error","Estimate","Margin Of Error","Estimate","Margin Of Error","Estimate","Margin Of Error","Estimate","Margin Of Error","Estimate","Margin Of Error"]
[null,"Total:",8691,17,30332,27,15180,30,6824,32,4357,15,2003,170,1567,167,4592,23,2648,16,29883,38,2528,18,11765,34,4017,28]
[null,"Native:",8604,70,28367,355,13995,236,6685,115,4080,169,1850,188,1556,168,4500,59,2614,32,29109,199,2464,43,10468,347,3906,70]
[null,"Born in state of residence",4697,442,13354,726,4477,320,4126,442,1469,300,901,162,1002,143,2736,235,1519,135,16642,856,1537,111,6057,623,1939,209]
[null,"Born in other state in the United States:",3727,464,14789,699,9389,355,2504,453,2492,316,926,111,551,82,1764,232,1067,133,12032,804,912,105,4306,600,1927,206]
[null,"Northeast",3032,417,10713,783,7335,357,1883,389,1771,294,659,115,369,77,1508,211,825,129,9295,660,684,91,3268,535,1436,178]
[null,"Midwest",313,167,1162,224,644,166,103,74,327,147,121,47,81,51,84,49,101,41,592,181,87,38,381,169,159,67]
[null,"South",271,137,1774,264,884,207,296,191,323,156,84,36,75,35,77,45,92,44,1288,296,94,46,417,191,243,86]
[null,"West",111,81,1140,287,526,169,222,132,71,69,62,32,26,13,95,48,49,31,857,243,47,27,240,107,89,51]
[null,"Born outside the United States:",180,135,224,86,129,60,55,44,119,67,23,15,3,5,0,11,28,17,435,193,15,14,105,67,40,29]
[null,"Puerto Rico",0,15,36,33,6,15,10,19,35,51,0,11,0,11,0,11,0,11,13,26,0,11,1,3,8,12]
[null,"U.S. Island Areas",0,15,0,23,0,17,0,15,0,11,0,11,0,11,0,11,0,11,0,20,0,11,0,17,0,11]
[null,"Born abroad of American parent(s)",180,135,188,79,123,58,45,39,84,67,23,15,3,5,0,11,28,17,422,190,15,14,104,67,32,26]
[null,"Foreign born:",87,69,1965,360,1185,230,139,110,277,167,153,95,11,11,92,54,34,27,774,200,64,37,1297,341,111,64]
[null,"Naturalized U.S. citizen",48,46,885,233,502,155,105,94,160,101,67,35,8,9,46,46,24,25,471,134,58,35,480,163,64,47]
[null,"Not a U.S. citizen",39,53,1080,275,683,196,34,38,117,118,86,90,3,5,46,64,10,10,303,144,6,10,817,295,47,46]
[]
[]
[]
[null,"B05002. PLACE OF BIRTH BY CITIZENSHIP STATUS"]
[null,"Universe: TOTAL POPULATION"]
[null,"Data Set: 2005-2009 American Community Survey 3-Year Estimates"]
[]
[null,null,"Barrington",null,"Dover",null,"Durham",null,"Farmington",null,"Lee",null,"Madbury",null,"Middleton",null,"Milton",null,"New Durham",null,"Rochester",null,"Rollinsford",null,"Somersworth",null,"Strafford"]
[null,null,"Estimate","Margin Of Error","Estimate","Margin Of Error","Estimate","Margin Of Error","Estimate","Margin Of Error","Estimate","Margin Of Error","Estimate","Margin Of Error","Estimate","Margin Of Error","Estimate","Margin Of Error","Estimate","Margin Of Error","Estimate","Margin Of Error","Estimate","Margin Of Error","Estimate","Margin Of Error","Estimate","Margin Of Error"]
[null,"Total:",8389,19,28595,21,13991,26,6621,32,4446,14,1857,153,1630,157,4509,19,2516,18,30568,44,2629,37,11876,20,4029,28]
[null,"Native:",8269,81,26747,334,13134,210,6493,93,4325,63,1714,169,1623,157,4452,52,2455,51,30061,149,2585,47,11231,240,3951,96]
[null,"Born in state of residence",4712,307,13148,752,4522,433,3721,324,1973,231,740,156,900,129,2555,332,1427,169,16959,790,1508,119,6060,514,2035,282]
[null,"Born in other state in the United States:",3516,328,13294,789,8462,425,2757,311,2281,230,955,121,709,98,1878,328,1017,152,12832,797,1051,123,5043,545,1852,302]
[null,"Northeast",2949,287,10293,742,6631,417,2038,310,1924,222,575,103,605,85,1380,279,853,138,9784,697,866,134,3568,451,1364,251]
[null,"Midwest",230,106,949,234,692,193,83,45,149,78,197,113,16,11,28,44,62,32,1123,300,60,35,269,114,182,124]
[null,"South",190,109,1162,260,809,205,451,191,89,52,145,54,57,27,280,170,73,40,1342,351,52,30,828,497,167,75]
[null,"West",147,87,890,276,330,95,185,84,119,85,38,29,31,21,190,112,29,20,583,135,73,55,378,157,139,81]
[null,"Born outside the United States:",41,42,305,141,150,69,15,18,71,98,19,20,14,12,19,23,11,11,270,100,26,21,128,78,64,38]
[null,"Puerto Rico",0,114,9,15,10,16,0,114,0,114,3,6,0,114,0,114,0,114,0,114,0,114,10,17,0,114]
[null,"U.S. Island Areas",0,114,34,57,0,114,0,114,0,114,0,114,0,114,0,114,0,114,39,64,0,114,0,114,0,114]
[null,"Born abroad of American parent(s)",41,42,262,121,140,66,15,18,71,98,16,19,14,12,19,23,11,11,231,89,26,21,118,75,64,38]
[null,"Foreign born:",120,77,1848,341,857,211,128,93,121,60,143,83,7,7,57,49,61,45,507,141,44,31,645,240,78,90]
[null,"Naturalized U.S. citizen",89,57,676,191,288,123,93,76,73,47,78,39,7,7,23,29,37,39,276,100,38,27,299,183,48,52]
[null,"Not a U.S. citizen",31,49,1172,307,569,156,35,36,48,35,65,52,0,114,34,39,24,22,231,110,6,9,346,149,30,39]

{"sheet":"ACS_Table_B07003","index":56,"n_rows":89,"n_cols":28,"rows_kept":89,"cut":false,"hidden":true,"merged":[]}
[null,"B07003. GEOGRAPHICAL MOBILITY IN THE PAST YEAR BY SEX FOR CURRENT RESIDENCE IN THE UNITED STATES - Universe:  POPULATION 1 YEAR AND OVER IN THE UNITED STATES"]
[null,"Data Set: 2015-2019 American Community Survey 5-Year Estimates"]
[]
[]
[null,null,"Barrington",null,"Dover",null,"Durham",null,"Farmington",null,"Lee",null,"Madbury",null,"Middleton",null,"Milton",null,"New Durham",null,"Rochester",null,"Rollinsford",null,"Somersworth",null,"Strafford"]
[null,null,"Estimate","Margin Of Error","Estimate","Margin Of Error","Estimate","Margin Of Error","Estimate","Margin Of Error","Estimate","Margin Of Error","Estimate","Margin Of Error","Estimate","Margin Of Error","Estimate","Margin Of Error","Estimate","Margin Of Error","Estimate","Margin Of Error","Estimate","Margin Of Error","Estimate","Margin Of Error","Estimate","Margin Of Error"]
[null,"Total:",9004,69,31109,178,16454,31,6833,120,4485,18,1874,153,1759,159,4602,39,2678,36,30846,91,2522,35,11842,73,4091,50]
[null,"Male",4525,271,14796,459,7727,356,3625,297,2173,185,980,98,878,84,2381,149,1319,84,15385,373,1164,77,5793,343,2005,138]
[null,"Female",4479,279,16313,454,8727,353,3208,252,2312,183,894,94,881,103,2221,143,1359,73,15461,373,1358,75,6049,350,2086,143]
[null,"Same house 1 year ago:",8305,257,24727,730,7375,438,6066,402,4108,210,1696,147,1585,169,4273,154,2574,56,26785,933,2245,106,9852,556,3938,90]
[null,"Male",4295,281,11851,542,3627,279,3252,346,1952,193,876,95,779,87,2199,181,1281,88,13173,575,1048,85,4727,371,1913,136]
[null,"Female",4010,302,12876,533,3748,336,2814,288,2156,228,820,91,806,105,2074,145,1293,77,13612,596,1197,96,5125,396,2025,142]
[null,"Moved within same county:",350,203,3148,681,4014,467,523,285,66,87,73,36,83,44,138,90,28,23,2740,771,123,77,1035,420,72,49]
[null,"Male",130,108,1250,249,1857,307,270,180,24,31,47,23,56,34,67,41,0,11,1449,450,60,38,570,270,28,28]
[null,"Female",220,168,1898,506,2157,341,253,169,42,57,26,17,27,15,71,75,28,23,1291,363,63,49,465,265,44,37]
[null,"Moved from different county within same state:",194,161,1421,341,2080,363,151,130,208,161,54,38,48,34,88,91,16,21,448,191,32,29,427,312,66,46]
[null,"Male",41,45,660,195,856,171,95,89,111,88,35,28,18,12,54,51,8,10,233,121,0,11,274,283,56,38]
[null,"Female",153,123,761,228,1224,323,56,58,97,79,19,18,30,30,34,44,8,11,215,119,32,29,153,147,10,16]
[null,"Moved from different state:",103,82,1582,426,2759,286,42,48,19,25,46,30,33,33,103,79,60,33,791,308,122,68,489,245,15,22]
[null,"Male",33,38,910,274,1257,182,0,16,2,4,18,14,19,22,61,67,30,22,522,233,56,34,222,160,8,11]
[null,"Female",70,54,672,228,1502,212,42,48,17,25,28,19,14,14,42,35,30,23,269,149,66,40,267,123,7,11]
[null,"Moved from abroad:",52,85,231,146,226,88,51,83,84,91,5,8,10,15,0,11,0,11,82,78,0,11,39,43,0,11]
[null,"Male",26,42,125,108,130,64,8,14,84,91,4,7,6,11,0,11,0,11,8,16,0,11,0,18,0,11]
[null,"Female",26,43,106,66,96,59,43,70,0,11,1,4,4,6,0,11,0,11,74,77,0,11,39,43,0,11]
[]
[null,"Calculated B07003. GEOGRAPHICAL MOBILITY IN THE PAST YEAR BY SEX FOR CURRENT RESIDENCE IN THE UNITED STATES "]
[null,null,{"$f":"C5","v":"Barrington"},null,"Dover",null,"Durham",null,"Farmington",null,"Lee",null,"Madbury",null,"Middleton",null,"Milton",null,"New Durham",null,"Rochester",null,"Rollinsford",null,{"$f":"Y5","v":"Somersworth"},null,{"$f":"AA5","v":"Strafford"}]
[null,null,"Estimate","Margin Of Error","Estimate","Margin Of Error","Estimate","Margin Of Error","Estimate","Margin Of Error","Estimate","Margin Of Error","Estimate","Margin Of Error","Estimate","Margin Of Error","Estimate","Margin Of Error","Estimate","Margin Of Error","Estimate","Margin Of Error","Estimate",{"$f":"X6","v":"Margin Of Error"},{"$f":"Y6","v":"Estimate"},{"$f":"Z6","v":"Margin Of Error"},{"$f":"AA6","v":"Estimate"},{"$f":"AB6","v":"Margin Of Error"}]
[]
[null,"  Total:",{"$f":"C7","v":9004},{"$f":"D7","v":69},{"$f":"E7","v":31109},178,16454,31,6833,120,4485,18,1874,153,1759,159,4602,39,2678,36,30846,91,2522,35,{"$f":"Y7","v":11842},{"$f":"Z7","v":73},{"$f":"AA7","v":4091},{"$f":"AB7","v":50}]
[null,"    Same house ",{"$f":"C10","v":8305},{"$f":"D10","v":257},{"$f":"E10","v":24727},730,7375,438,6066,402,4108,210,1696,147,1585,169,4273,154,2574,56,26785,933,2245,106,{"$f":"Y10","v":9852},{"$f":"Z10","v":556},{"$f":"AA10","v":3938},{"$f":"AB10","v":90}]
[null,"    Different house 2",{"$f":"C13+C16+C19+C22","v":699},{"$f":"SQRT((D13^2)+(D16^2)+(D19^2)+(D22^2))","v":284.74374444401758},{"$f":"E13+E16+E19+E22","v":6382},{"$f":"SQRT((F13^2)+(F16^2)+(F19^2)+(F22^2))","v":884.7790684685076},{"$f":"G13+G16+G19+G22","v":9079},{"$f":"SQRT((H13^2)+(H16^2)+(H19^2)+(H22^2))","v":662.87102817969048},{"$f":"I13+I16+I19+I22","v":767},{"$f":"SQRT((J13^2)+(J16^2)+(J19^2)+(J22^2))","v":327.59426124399675},{"$f":"K13+K16+K19+K22","v":377},{"$f":"SQRT((L13^2)+(L16^2)+(L19^2)+(L22^2))","v":205.90288973202877},{"$f":"M13+M16+M19+M22","v":178},{"$f":"SQRT((N13^2)+(N16^2)+(N19^2)+(N22^2))","v":60.860496218811754},{"$f":"O13+O16+O19+O22","v":174},{"$f":"SQRT((P13^2)+(P16^2)+(P19^2)+(P22^2))","v":66.377707101104363},{"$f":"Q13+Q16+Q19+Q22","v":329},{"$f":"SQRT((R13^2)+(R16^2)+(R19^2)+(R22^2))","v":150.80782473068166},{"$f":"S13+S16+S19+S22","v":104},{"$f":"SQRT((T13^2)+(T16^2)+(T19^2)+(T22^2))","v":46.690470119715009},{"$f":"U13+U16+U19+U22","v":4061},{"$f":"SQRT((V13^2)+(V16^2)+(V19^2)+(V22^2))","v":855.49400933028164},{"$f":"W13+W16+W19+W22","v":277},{"$f":"SQRT((X13^2)+(X16^2)+(X19^2)+(X22^2))","v":107.30796801729124},{"$f":"Y13+Y16+Y19+Y22","v":1990},{"$f":"SQRT((Z13^2)+(Z16^2)+(Z19^2)+(Z22^2))","v":579.32546983539396},{"$f":"AA13+AA16+AA19+AA22","v":153},{"$f":"SQRT((AB13^2)+(AB16^2)+(AB19^2)+(AB22^2))","v":71.568149340331559}]
[null,"      in New Hampshire",{"$f":"C16+C13","v":544},{"$f":"SQRT((D16^2)+(D13^2))","v":259.09457732650446},{"$f":"E16+E13","v":4569},{"$f":"SQRT((F16^2)+(F13^2))","v":761.60488443811857},{"$f":"G16+G13","v":6094},{"$f":"SQRT((H16^2)+(H13^2))","v":591.48795423068418},{"$f":"I16+I13","v":674},{"$f":"SQRT((J16^2)+(J13^2))","v":313.24910215354168},{"$f":"K16+K13","v":274},{"$f":"SQRT((L16^2)+(L13^2))","v":183.00273222004091},{"$f":"M16+M13","v":127},{"$f":"SQRT((N16^2)+(N13^2))","v":52.345009313209601},{"$f":"O16+O13","v":131},{"$f":"SQRT((P16^2)+(P13^2))","v":55.605755097831377},{"$f":"Q16+Q13","v":226},{"$f":"SQRT((R16^2)+(R13^2))","v":127.98828071350908},{"$f":"S16+S13","v":44},{"$f":"SQRT((T16^2)+(T13^2))","v":31.144823004794873},{"$f":"U16+U13","v":3188},{"$f":"SQRT((V16^2)+(V13^2))","v":794.30598638056358},{"$f":"W16+W13","v":155},{"$f":"SQRT((X16^2)+(X13^2))","v":82.28000972289685},{"$f":"Y16+Y13","v":1462},{"$f":"SQRT((Z16^2)+(Z13^2))","v":523.20550455819944},{"$f":"AA16+AA13","v":138},{"$f":"SQRT((AB16^2)+(AB13^2))","v":67.208630398186216}]
[null,"          Same county",{"$f":"C13","v":350},{"$f":"D13","v":203},{"$f":"E13","v":3148},681,4014,467,523,285,66,87,73,36,83,44,138,90,28,23,2740,771,123,77,{"$f":"Y13","v":1035},{"$f":"Z13","v":420},{"$f":"AA13","v":72},{"$f":"AB13","v":49}]
[null,"          Different county",{"$f":"C16","v":194},{"$f":"D16","v":161},{"$f":"E16","v":1421},341,2080,363,151,130,208,161,54,38,48,34,88,91,16,21,448,191,32,29,{"$f":"Y16","v":427},{"$f":"Z16","v":312},{"$f":"AA16","v":66},{"$f":"AB16","v":46}]
[null,"      in Different state",{"$f":"C19","v":103},{"$f":"D19","v":82},{"$f":"E19","v":1582},426,2759,286,42,48,19,25,46,30,33,33,103,79,60,33,791,308,122,68,{"$f":"Y19","v":489},{"$f":"Z19","v":245},{"$f":"AA19","v":15},{"$f":"AB19","v":22}]
[null,"       Elsewhere",{"$f":"C22","v":52},{"$f":"D22","v":85},{"$f":"E22","v":231},146,226,88,51,83,84,91,5,8,10,15,0,11,0,11,82,78,0,11,{"$f":"Y22","v":39},{"$f":"Z22","v":43},{"$f":"AA22","v":0},{"$f":"AB22","v":11}]
[]
[]
[]
[]
[]
[]
[]
[]
[]
[]
[]
[]
[]
[]
[]
[]
[]
[]
[]
[]
[]
[]
[null,"Calculated GEOGRAPHICAL MOBILITY IN THE PAST YEAR BY SEX FOR CURRENT RESIDENCE IN THE UNITED STATES"]
[null,"Universe:  POPULATION 1 YEAR AND OVER IN THE UNITED STATES"]
[null,"Data Set: 2010-2014 American Community Survey 5-Year Estimates"]
[null,null,"Barrington",null,"Dover",null,"Durham",null,"Farmington",null,"Lee",null,"Madbury",null,"Middleton",null,"Milton",null,"New Durham",null,"Rochester",null,"Rollinsford",null,"Somersworth",null,"Strafford"]
[null,null,"Estimate","Margin Of Error","Estimate","Margin Of Error","Estimate","Margin Of Error","Estimate","Margin Of Error","Estimate","Margin Of Error","Estimate","Margin Of Error","Estimate","Margin Of Error","Estimate","Margin Of Error","Estimate","Margin Of Error","Estimate","Margin Of Error","Estimate","Margin Of Error","Estimate","Margin Of Error","Estimate","Margin Of Error"]
[]
[null,"  Total:",8587,72,29896,168,15132,35,6775,57,4356,15,1989,169,1537,165,4537,45,2628,21,29609,127,2471,40,11551,112,4017,28]
[null,"    Same house ",7921,352,23643,890,8127,559,5782,427,3847,285,1730,167,1330,160,4126,180,2437,103,24976,804,2033,139,9148,558,3546,291]
[null,"    Different house 2",666,317.70583878802103,6253,852.48225787989281,7005,596.671601469351,993,441.04534914223956,509,292.77807294946115,259,135.60973416388663,207,137.33899664698296,411,174.99428562098819,191,103.99519219656263,4633,786.25822730194693,438,147.99662158306182,2403,518.55665071426859,471,288.75941543090852]
[null,"      in New Hampshire",588,299.82661656364002,4488,740.705744543675,4389,481.57761575887224,888,431.50434528518946,276,186.45374761586316,166,120.10412149464314,189,135.95955280891445,362,170.09703113223347,169,100.34440691936945,3881,735.46515893004744,342,124.95199078045935,1773,445.50196408096787,444,286.98606237934274]
[null,"          Same county",347,210,3119,634,2732,406,859,430,158,122,99,99,153,134,311,158,107,87,3153,678,317,122,1296,366,151,100]
[null,"          Different county",241,214,1369,383,1657,259,29,36,118,141,67,68,36,23,51,63,62,50,728,285,25,27,477,254,293,269]
[null,"      in Different state",78,104,1529,384,2365,334,105,90,200,223,93,62,18,16,48,41,22,25,751,278,91,79,434,245,7,11]
[null,"       Elsewhere",0,15,236,175,251,112,0,15,33,35,0,11,0,11,1,3,0,11,1,3,5,7,196,102,20,30]
[]
[]
[]
[null,"Calculated GEOGRAPHICAL MOBILITY IN THE PAST YEAR BY SEX FOR CURRENT RESIDENCE IN THE UNITED STATES"]
[null,"Universe:  POPULATION 1 YEAR AND OVER IN THE UNITED STATES"]
[null,"Data Set: 2005-2009 American Community Survey 5-Year Estimates"]
[null,null,"Barrington",null,"Dover",null,"Durham",null,"Farmington",null,"Lee",null,"Madbury",null,"Middleton",null,"Milton",null,"New Durham",null,"Rochester",null,"Rollinsford",null,"Somersworth",null,"Strafford"]
[null,null,"Estimate","Margin Of Error","Estimate","Margin Of Error","Estimate","Margin Of Error","Estimate","Margin Of Error","Estimate","Margin Of Error","Estimate","Margin Of Error","Estimate","Margin Of Error","Estimate","Margin Of Error","Estimate","Margin Of Error","Estimate","Margin Of Error","Estimate","Margin Of Error","Estimate","Margin Of Error","Estimate","Margin Of Error"]
[null,"Total",8257,64,28185,143,13931,50,6567,66,4425,28,1838,152,1624,157,4464,43,2503,23,30305,128,2622,40,11738,82,4014,35]
[null,"    Same house ",7202,438,22660,822,8562,631,5612,339,3865,164,1638,177,1513,149,4163,184,2139,148,25362,740,2212,160,9359,592,3761,119]
[null,"    Different house ",1055,456.36936794662279,5525,869.60565775528403,5369,666.97975981284469,955,384.34099443072682,560,155.94229702040431,200,103.39245620450265,111,129.71507237017602,301,169.27492430953853,364,173.95689121158725,4943,818.31656466186723,410,170.39366185395514,2379,678.55655622799782,253,133.31541546272885]
[null,"      in New Hampshire",951,429.96860350495359,4404,762.47819640957607,3489,563.21665458329619,650,309.69824022748338,364,115,108,67.416615162732697,108,61.684682053164543,259,164.14932226482082,298,168.7601848778319,3604,628.90778338322389,317,156.34896865665601,1624,390.63281992172648,199,125.60254774486066]
[null,"          Same county",794,412,3215,693,1523,422,355,192,202,92,85,63,91,59,102,71,112,88,2941,542,190,107,1304,355,126,100]
[null,"          Different county",157,123,1189,318,1966,373,295,243,162,69,23,24,17,18,157,148,186,144,663,319,127,114,320,163,73,76]
[null,"      in Different state",104,102,926,405,1672,343,305,197,175,103,61,68,3,5,25,35,59,41,1339,511,61,58,755,543,36,34]
[null,"       Elsewhere",0,114,195,104,208,100,0,114,21,22,31,39,0,114,17,22,7,10,0,114,32,35,0,114,18,29]

{"sheet":"ACS_Table_B14001","index":57,"n_rows":98,"n_cols":28,"rows_kept":98,"cut":false,"hidden":true,"merged":[]}
[null,"B14001. SCHOOL ENROLLMENT BY LEVEL OF SCHOOL FOR THE POPULATION 3 YEARS AND OVER"]
[null,"Universe: POPULATION 3 YEARS AND OVER"]
[null,"Data Set: 2015-2019 American Community Survey 5-Year Estimates"]
[]
[null,null,"Barrington",null,"Dover",null,"Durham",null,"Farmington",null,"Lee",null,"Madbury",null,"Middleton",null,"Milton",null,"New Durham",null,"Rochester",null,"Rollinsford",null,"Somersworth",null,"Strafford"]
[null,null,"Estimate","Margin Of Error","Estimate","Margin Of Error","Estimate","Margin Of Error","Estimate","Margin Of Error","Estimate","Margin Of Error","Estimate","Margin Of Error","Estimate","Margin Of Error","Estimate","Margin Of Error","Estimate","Margin Of Error","Estimate","Margin Of Error","Estimate","Margin Of Error","Estimate","Margin Of Error","Estimate","Margin Of Error"]
[null,"Total:",8827,158,30206,277,16337,70,6672,160,4417,57,1820,144,1709,154,4528,60,2645,42,30377,183,2489,38,11539,175,3947,84]
[null,"Enrolled in school:",2043,284,6357,453,11984,387,1288,243,1025,177,494,95,385,85,703,152,655,124,6906,468,531,68,2253,279,825,167]
[null,"Enrolled in nursery school, preschool",134,95,450,180,87,43,24,42,62,58,32,21,0,11,31,47,14,15,365,121,21,19,251,150,39,35]
[null,"Enrolled in kindergarten",177,103,474,169,86,49,89,74,89,66,28,20,21,13,54,48,63,29,372,164,10,11,75,68,36,32]
[null,"Enrolled in grade 1 to grade 4",424,159,1292,243,313,91,218,175,203,116,88,35,89,42,162,89,112,48,1364,255,113,52,443,186,164,75]
[null,"Enrolled in grade 5 to grade 8",750,192,1121,229,333,96,351,126,252,105,132,45,91,38,133,60,150,56,1650,278,146,49,544,194,233,112]
[null,"Enrolled in grade 9 to grade 12",303,116,1032,209,295,79,398,162,140,96,128,52,82,29,208,97,194,76,1592,240,81,38,571,133,198,86]
[null,"Enrolled in college, undergraduate years",255,138,1278,293,10490,501,186,113,151,120,65,37,76,36,86,63,101,41,1392,325,114,39,213,89,138,66]
[null,"Graduate or professional school",0,16,710,224,380,121,22,38,128,83,21,13,26,21,29,27,21,17,171,83,46,28,156,87,17,19]
[null,"Not enrolled in school",6784,262,23849,428,4353,377,5384,241,3392,187,1326,116,1324,130,3825,156,1990,103,23471,500,1958,63,9286,309,3122,165]
[]
[]
[]
[null,"B14001. Calculated  SCHOOL ENROLLMENT BY LEVEL OF SCHOOL FOR THE POPULATION 3 YEARS AND OVER "]
[null,"Universe: POPULATION 3 YEARS AND OVER"]
[null,"Data Set: 2015-2019 American Community Survey 5-Year Estimates"]
[]
[null,null,"Alton",null,"Barnstead",null,"Belmont",null,"Center Harbor",null,"Gilford",null,"Gilmanton",null,"Laconia",null,"Meredith",null,"New Hampton",null,"Sanbornton",null,"Tilton"]
[null,null,"Estimate","Margin Of Error","Estimate","Margin Of Error","Estimate","Margin Of Error","Estimate","Margin Of Error","Estimate","Margin Of Error","Estimate","Margin Of Error","Estimate","Margin Of Error","Estimate","Margin Of Error","Estimate","Margin Of Error","Estimate","Margin Of Error","Estimate","Margin Of Error"]
[null,"Total:",{"$f":"C7","v":8827},158,30206,277,16337,70,6672,160,4417,57,1820,144,1709,154,4528,60,2645,42,30377,183,2489,38]
[null,"Enrolled in school:",2043,284,6357,453,11984,387,1288,243,1025,177,494,95,385,85,703,152,655,124,6906,468,531,68]
[null,"Enrolled in nursery school, preschool, and Kindergarten",{"$f":"C9+C10","v":311},{"$f":"SQRT((D9^2)+(D10^2))","v":140.12137595670404},{"$f":"E9+E10","v":924},{"$f":"SQRT((F9^2)+(F10^2))","v":246.90281488877361},{"$f":"G9+G10","v":173},{"$f":"SQRT((H9^2)+(H10^2))","v":65.192024052026483},{"$f":"I9+I10","v":113},{"$f":"SQRT((J9^2)+(J10^2))","v":85.088189544730596},{"$f":"K9+K10","v":151},{"$f":"SQRT((L9^2)+(L10^2))","v":87.863530545955186},{"$f":"M9+M10","v":60},{"$f":"SQRT((N9^2)+(N10^2))","v":29},{"$f":"O9+O10","v":21},{"$f":"SQRT((P9^2)+(P10^2))","v":17.029386365926403},{"$f":"Q9+Q10","v":85},{"$f":"SQRT((R9^2)+(R10^2))","v":67.178865724273734},{"$f":"S9+S10","v":77},{"$f":"SQRT((T9^2)+(T10^2))","v":32.649655434629018},{"$f":"U9+U10","v":737},{"$f":"SQRT((V9^2)+(V10^2))","v":203.80628057054571},{"$f":"W9+W10","v":31},{"$f":"SQRT((X9^2)+(X10^2))","v":21.95449840010015}]
[null,"Enrolled in nursery school, preschool",97,82,46,54,42,49,10,12,40,51,121,63,109,56,102,90,6,10,61,27,64,74]
[null,"Enrolled in kindergarten",0,16,73,49,135,102,4,6,78,61,14,21,202,118,43,36,17,19,11,13,58,46]
[null,"Enrolled in grade Elementary School (grade 1 to grade 8)",{"$f":"C11+C12","v":1174},{"$f":"SQRT((D11^2)+(D12^2))","v":249.28898892650673},{"$f":"E11+E12","v":2413},{"$f":"SQRT((F11^2)+(F12^2))","v":333.90118298682319},{"$f":"G11+G12","v":646},{"$f":"SQRT((H11^2)+(H12^2))","v":132.27622613304328},{"$f":"I11+I12","v":569},{"$f":"SQRT((J11^2)+(J12^2))","v":215.64090521049107},{"$f":"K11+K12","v":455},{"$f":"SQRT((L11^2)+(L12^2))","v":156.46405337968207},{"$f":"M11+M12","v":220},{"$f":"SQRT((N11^2)+(N12^2))","v":57.008771254956898},{"$f":"O11+O12","v":180},{"$f":"SQRT((P11^2)+(P12^2))","v":56.639209034025185},{"$f":"Q11+Q12","v":295},{"$f":"SQRT((R11^2)+(R12^2))","v":107.33592129385204},{"$f":"S11+S12","v":262},{"$f":"SQRT((T11^2)+(T12^2))","v":73.756355658343097},{"$f":"U11+U12","v":3014},{"$f":"SQRT((V11^2)+(V12^2))","v":377.23865125408344},{"$f":"W11+W12","v":259},{"$f":"SQRT((X11^2)+(X12^2))","v":71.449282711584999}]
[null,"Enrolled in grade 9 to grade 12",{"$f":"C13","v":303},116,1032,209,295,79,398,162,140,96,128,52,82,29,208,97,194,76,1592,240,81,38]
[null,"Enrolled in Elementary and High School",{"$f":"C11+C12+C13","v":1477},{"$f":"SQRT((D11^2)+(D12^2)+(D13^2))","v":274.95636017375557},{"$f":"E11+E12+E13","v":3445},{"$f":"SQRT((F11^2)+(F12^2)+(F13^2))","v":393.91750405383107},{"$f":"G11+G12+G13","v":941},{"$f":"SQRT((H11^2)+(H12^2)+(H13^2))","v":154.07141201403977},{"$f":"I11+I12+I13","v":967},{"$f":"SQRT((J11^2)+(J12^2)+(J13^2))","v":269.71281022598833},{"$f":"K11+K12+K13","v":595},{"$f":"SQRT((L11^2)+(L12^2)+(L13^2))","v":183.56742630434192},{"$f":"M11+M12+M13","v":348},{"$f":"SQRT((N11^2)+(N12^2)+(N13^2))","v":77.1621668954417},{"$f":"O11+O12+O13","v":262},{"$f":"SQRT((P11^2)+(P12^2)+(P13^2))","v":63.631753079732135},{"$f":"Q11+Q12+Q13","v":503},{"$f":"SQRT((R11^2)+(R12^2)+(R13^2))","v":144.67204291085406},{"$f":"S11+S12+S13","v":456},{"$f":"SQRT((T11^2)+(T12^2)+(T13^2))","v":105.90561835898981},{"$f":"U11+U12+U13","v":4606},{"$f":"SQRT((V11^2)+(V12^2)+(V13^2))","v":447.11184283129876},{"$f":"W11+W12+W13","v":340},{"$f":"SQRT((X11^2)+(X12^2)+(X13^2))","v":80.925892024740762}]
[null,"Enrolled in College or Graduate School",{"$f":"C14+C15","v":255},{"$f":"SQRT((D14^2)+(D15^2))","v":138.92443989449805},{"$f":"E14+E15","v":1988},{"$f":"SQRT((F14^2)+(F15^2))","v":368.81567211820055},{"$f":"G14+G15","v":10870},{"$f":"SQRT((H14^2)+(H15^2))","v":515.4046953608397},{"$f":"I14+I15","v":208},{"$f":"SQRT((J14^2)+(J15^2))","v":119.21828718783037},{"$f":"K14+K15","v":279},{"$f":"SQRT((L14^2)+(L15^2))","v":145.90750494748377},{"$f":"M14+M15","v":86},{"$f":"SQRT((N14^2)+(N15^2))","v":39.217343102255157},{"$f":"O14+O15","v":102},{"$f":"SQRT((P14^2)+(P15^2))","v":41.677331968349414},{"$f":"Q14+Q15","v":115},{"$f":"SQRT((R14^2)+(R15^2))","v":68.541957952775178},{"$f":"S14+S15","v":122},{"$f":"SQRT((T14^2)+(T15^2))","v":44.384682042344295},{"$f":"U14+U15","v":1563},{"$f":"SQRT((V14^2)+(V15^2))","v":335.43106594351099},{"$f":"W14+W15","v":160},{"$f":"SQRT((X14^2)+(X15^2))","v":48.010415536631214}]
[null,"Not enrolled in school",{"$f":"C16","v":6784},262,23849,428,4353,377,5384,241,3392,187,1326,116,1324,130,3825,156,1990,103,23471,500,1958,63]
[]
[]
[null,"B14001. Calculated  SCHOOL ENROLLMENT BY LEVEL OF SCHOOL FOR THE POPULATION 3 YEARS AND OVER "]
[null,"Universe: POPULATION 3 YEARS AND OVER"]
[null,"Data Set: 2010-2014 American Community Survey 5-Year Estimates"]
[]
[null,null,"Barrington",null,"Dover",null,"Durham",null,"Farmington",null,"Lee",null,"Madbury",null,"Middleton",null,"Milton",null,"New Durham",null,"Rochester",null,"Rollinsford",null,"Somersworth",null,"Strafford"]
[null,null,"Estimate","Margin Of Error","Estimate","Margin Of Error","Estimate","Margin Of Error","Estimate","Margin Of Error","Estimate","Margin Of Error","Estimate","Margin Of Error","Estimate","Margin Of Error","Estimate","Margin Of Error","Estimate","Margin Of Error","Estimate","Margin Of Error","Estimate","Margin Of Error","Estimate","Margin Of Error","Estimate","Margin Of Error"]
[null,"Total:",8366,134,29271,253,15010,74,6681,84,4312,46,1955,167,1504,163,4466,65,2569,38,28870,239,2383,57,11186,181,3946,64]
[null,"Enrolled in school:",1968,287,7765,557,10605,396,1584,262,1247,199,678,133,346,83,1066,139,606,113,5742,480,613,118,2570,271,1134,121]
[null,"Enrolled in nursery school, preschool, and Kindergarten",309,132.98120167903431,839,191.84629264074925,297,118.59595271340417,223,124.55520864259351,119,97.416631023660429,75,32.249030993194197,40,22.203603311174518,122,53.814496188294839,76,39.05124837953327,596,163.37992532744039,66,39.924929555354261,308,124.67958934805648,70,47.853944456021594]
[null,"Enrolled in nursery school, preschool",284,130,342,129,225,112,96,67,94,93,41,28,9,13,65,40,36,30,286,118,50,37,77,64,19,21]
[null,"Enrolled in kindergarten",25,28,497,142,72,39,127,105,25,29,34,16,31,18,57,36,40,25,310,113,16,15,231,107,51,43]
[null,"Enrolled in grade Elementary School (grade 1 to grade 8)",943,211.43556938225885,2791,370.64538308199661,820,160.20611723651504,681,184.22811946062956,432,176.69465187152667,297,72.249567472753768,175,45.343136195018538,458,115.10864433221339,272,91.831367190083796,2387,310.51731030652701,294,67.178865724273734,1004,199.2786993132984,494,104.06248123122954]
[null,"Enrolled in grade 9 to grade 12",361,146,1418,256,243,82,264,121,451,131,127,55,68,30,254,95,127,41,1492,266,80,37,628,191,323,108]
[null,"Enrolled in Elementary and High School",1304,256.94551951727044,4209,450.45976512891804,1063,179.97222007854435,945,220.41097976280582,883,219.9590871048523,424,90.801982357215081,243,54.369108876272747,712,149.248115565993,399,100.56838469419701,3879,408.87284086864952,374,76.694197955256044,1632,276.0307953834137,817,149.9766648515695]
[null,"Enrolled in College or Graduate School",355,157.63248396190426,2717,441.26409325935413,9245,514.17603989295344,416,181.02486017119307,245,134.97036711811967,179,103.75451797391764,63,28.635642126552707,232,86.400231481171389,131,45.880278987817846,1267,276.14670014323906,173,64.381674411279491,630,201.8142710513803,247,77.794601355106892]
[null,"Not enrolled in school",6398,323,21506,523,4405,376,5097,254,3065,191,1277,134,1158,127,3400,132,1963,113,23128,437,1770,108,8616,248,2812,115]
[]
[]
[]
[]
[]
[]
[]
[]
[]
[]
[]
[]
[]
[]
[]
[]
[]
[]
[]
[]
[]
[]
[]
[]
[]
[]
[]
[]
[]
[null,"B14001.Calculated  SCHOOL ENROLLMENT BY LEVEL OF SCHOOL FOR THE POPULATION 3 YEARS AND OVER "]
[null,"Universe: POPULATION 3 YEARS AND OVER"]
[null,"Data Set: 2005-2009 American Community Survey 5-Year Estimates"]
[]
[null,null,"Barrington",null,"Dover",null,"Durham",null,"Farmington",null,"Lee",null,"Madbury",null,"Middleton",null,"Milton",null,"New Durham",null,"Rochester",null,"Rollinsford",null,"Somersworth",null,"Strafford"]
[null,null,"Estimate","Margin Of Error","Estimate","Margin Of Error","Estimate","Margin Of Error","Estimate","Margin Of Error","Estimate","Margin Of Error","Estimate","Margin Of Error","Estimate","Margin Of Error","Estimate","Margin Of Error","Estimate","Margin Of Error","Estimate","Margin Of Error","Estimate","Margin Of Error","Estimate","Margin Of Error","Estimate","Margin Of Error"]
[null,"Total:",8025,121,27331,245,13823,70,6394,126,4317,74,1783,152,1604,157,4389,70,2450,45,29582,210,2536,66,11414,133,3944,68]
[null,"Enrolled in school:",2398,275,7723,754,9471,513,1410,276,1250,200,573,117,336,78,1223,254,714,133,6878,492,607,97,2619,343,1050,192]
[null,"Enrolled in nursery school, preschool, and Kindergarten",325,101.82337649086284,859,216.36312070221209,152,61.619802012015583,129,70.213958726167832,80,48.795491595023407,51,24.166091947189145,9,114.35471131527551,91,57.801384066473702,31,23.409399821439251,669,187.40864441108366,50,23.323807579381203,490,162.40997506310995,69,49.648766349225639]
[null,"Enrolled in nursery school, preschool",189,72,560,178,87,46,48,41,41,35,40,22,9,9,48,35,26,22,234,111,39,20,328,139,17,28]
[null,"Enrolled in kindergarten",136,72,299,123,65,41,81,57,39,34,11,10,0,114,43,46,5,8,435,151,11,12,162,84,52,41]
[null,"Enrolled in grade Elementary School (grade 1 to grade 8)",1204,230.48210342670859,2202,285.11225859299702,672,119.60351165413162,683,210.58252539087852,377,119.75391434103521,241,66.219332524573218,177,53.712196007983138,584,194.60986614249546,316,65.946948375190189,2931,418.72425293980763,318,82.462112512353215,1028,189.50461735799473,576,153.68799562750502]
[null,"Enrolled in grade 9 to grade 12",512,145,1408,230,427,119,296,120,202,86,109,41,102,40,363,131,183,53,1742,245,101,47,587,197,198,90]
[null,"Enrolled in Elementary and High School",1716,272.29946749856123,3610,366.31816771762766,1099,168.71870080106709,979,242.37367843889319,579,147.4347313220328,350,77.884529914483011,279,66.970142601012881,947,234.59326503546515,499,84.604964393349874,4673,485.13400210663445,419,94.915752117338243,1615,273.35142216568033,774,178.10109488714548]
[null,"Enrolled in College or Graduate School",357,120.10412149464314,3254,716.77960350445244,8220,660.98108898817975,302,111.22050170719426,591,114.48143954370944,172,102.96115772464877,48,118.1397477566293,185,148.39474384222643,184,89.98888820293314,1536,317.23335259710632,138,66.528189513919585,514,194.5507645834372,207,112.25417586887359]
[null,"Not enrolled in school",5627,235,19608,735,4352,503,4984,334,3067,177,1210,124,1268,133,3166,244,1736,138,22704,440,1929,97,8795,315,2894,202]

{"sheet":"ACS_Table_B15002","index":58,"n_rows":141,"n_cols":28,"rows_kept":141,"cut":false,"hidden":true,"merged":[]}
[null,"B15002. SEX BY EDUCATIONAL ATTAINMENT FOR THE POPULATION 25 YEARS AND OVER"]
[null,"Universe: Population 25 years an over"]
[null,"Data Set: 2015-2019 American Community Survey 5-Year Estimates"]
[]
[null,null,"Barrington",null,"Dover",null,"Durham",null,"Farmington",null,"Lee",null,"Madbury",null,"Middleton",null,"Milton",null,"New Durham",null,"Rochester",null,"Rollinsford",null,"Somersworth",null,"Strafford"]
[null,null,"Estimate","Margin Of Error","Estimate","Margin Of Error","Estimate","Margin Of Error","Estimate","Margin Of Error","Estimate","Margin Of Error","Estimate","Margin Of Error","Estimate","Margin Of Error","Estimate","Margin Of Error","Estimate","Margin Of Error","Estimate","Margin Of Error","Estimate","Margin Of Error","Estimate","Margin Of Error","Estimate","Margin Of Error"]
[null,"Total:",6164,271,22388,542,4363,368,4910,282,3199,175,1224,102,1293,116,3483,121,1926,92,21983,467,1847,95,8744,415,2924,148]
[null,"Male:",2995,223,10786,408,2226,203,2588,223,1609,172,653,70,655,65,1757,108,957,71,10469,362,872,62,4230,297,1444,91]
[null,"No schooling completed",35,40,53,50,0,18,0,16,43,59,0,11,3,4,9,14,0,11,165,81,0,11,0,18,8,12]
[null,"Nursery to 4th grade",0,16,85,101,0,18,0,16,0,11,0,11,0,11,0,11,0,11,0,24,0,11,0,18,0,11]
[null,"5th and 6th grade",0,16,31,27,8,12,0,16,0,11,0,11,0,11,0,11,0,11,0,24,0,11,23,36,0,11]
[null,"7th and 8th grade",79,89,134,74,0,18,56,50,13,21,2,3,3,4,27,25,12,12,175,132,5,8,18,30,17,18]
[null,"9th grade",0,16,91,56,8,13,66,84,42,68,15,19,6,8,1,3,7,9,98,71,0,11,15,26,0,11]
[null,"10th grade",53,77,89,50,0,18,66,74,0,11,0,11,5,7,40,41,6,8,279,142,19,26,105,86,8,12]
[null,"11th grade",0,16,160,87,0,18,39,50,12,18,17,19,38,24,13,19,6,9,336,141,0,11,18,31,6,10]
[null,"12th grade, no diploma",28,46,125,94,39,37,56,52,32,34,13,11,12,10,47,64,7,10,283,116,5,8,108,77,0,11]
[null,"High school graduate, GED, or alternative",652,191,2233,314,108,48,1126,262,238,128,115,40,251,56,612,125,294,59,3567,420,265,62,1614,276,384,91]
[null,"Some college, less than 1 year",163,130,700,221,87,45,293,162,64,59,12,10,66,25,163,81,94,40,946,203,50,27,362,147,122,69]
[null,"Some college, 1 or more years, no degree",500,189,1061,192,133,47,371,204,231,128,93,45,82,30,195,88,93,42,1361,277,103,45,527,179,139,64]
[null,"Associate's degree",326,142,807,242,172,85,154,115,79,66,50,26,93,30,199,84,144,59,1110,227,127,50,452,109,146,64]
[null,"Bachelor's degree",776,238,3354,426,717,154,247,115,418,127,175,37,68,29,292,103,208,51,1664,303,202,62,781,201,431,101]
[null,"Master's degree",240,134,1344,281,500,93,93,77,388,136,103,36,28,16,150,71,49,35,393,118,61,26,153,89,140,73]
[null,"Professional school degree",40,45,325,126,137,53,21,33,31,35,27,19,0,11,0,11,18,14,53,44,30,19,21,33,21,23]
[null,"Doctorate degree",103,129,194,99,317,100,0,16,18,28,31,16,0,11,9,15,19,17,39,39,5,7,33,38,22,25]
[null,"Female:",3169,182,11602,421,2137,203,2322,205,1590,156,571,49,638,68,1726,114,969,70,11514,346,975,71,4514,287,1480,108]
[null,"No schooling completed",26,42,26,31,29,42,0,16,20,28,6,7,0,11,9,15,0,11,153,88,0,11,15,25,9,14]
[null,"Nursery to 4th grade",0,16,0,24,0,18,0,16,0,11,0,11,0,11,0,11,0,11,17,27,21,32,0,18,0,11]
[null,"5th and 6th grade",0,16,18,31,0,18,0,16,0,11,0,11,3,5,0,11,0,11,6,13,0,11,13,24,0,11]
[null,"7th and 8th grade",0,16,51,40,0,18,44,49,21,32,0,11,10,10,0,11,0,11,191,112,0,11,32,37,0,11]
[null,"9th grade",0,16,91,74,0,18,57,62,0,11,8,12,3,4,29,47,7,10,192,110,22,20,33,37,0,11]
[null,"10th grade",46,68,166,117,1,3,62,76,16,25,0,11,15,10,36,46,23,27,191,93,0,11,50,39,33,29]
[null,"11th grade",42,51,154,82,0,18,32,42,14,19,4,6,18,18,0,11,6,8,91,58,0,11,62,61,15,18]
[null,"12th grade, no diploma",27,42,96,73,7,10,0,16,13,20,2,5,16,10,27,30,25,17,147,70,0,11,52,48,23,26]
[null,"High school graduate, GED, or alternative",765,224,2491,289,132,57,711,194,208,111,73,28,238,44,697,148,250,76,4178,382,250,51,1614,281,247,88]
[null,"Some college, less than 1 year",174,117,687,187,59,38,270,147,14,21,28,16,42,20,93,65,75,29,911,188,52,33,301,132,87,47]
[null,"Some college, 1 or more years, no degree",373,187,1430,300,188,101,317,127,207,137,66,34,55,20,288,104,131,61,1447,280,153,59,570,178,212,80]
[null,"Associate's degree",225,120,1188,243,118,56,459,189,132,79,47,18,100,32,130,58,146,43,1375,263,92,46,507,146,225,80]
[null,"Bachelor's degree",855,270,3019,437,769,142,290,131,488,158,163,34,91,31,247,100,195,54,1977,295,234,53,910,206,320,84]
[null,"Master's degree",517,178,1848,312,612,93,35,40,307,119,118,33,21,14,149,66,99,36,563,162,124,40,318,129,246,78]
[null,"Professional school degree",36,43,132,74,88,48,0,16,102,105,26,15,26,36,12,21,7,10,60,47,22,16,37,46,9,14]
[null,"Doctorate degree",83,87,205,91,134,47,45,55,48,46,30,19,0,11,9,14,5,7,15,24,5,6,0,18,54,68]
[]
[]
[]
[]
[]
[]
[]
[]
[null,"Calculated B15002. SEX BY EDUCATIONAL ATTAINMENT FOR THE POPULATION 25 YEARS AND OVER"]
[null,{"$f":"B2","v":"Universe: Population 25 years an over"}]
[null,{"$f":"B3","v":"Data Set: 2015-2019 American Community Survey 5-Year Estimates"},"Barrington",null,"Dover",null,"Durham",null,"Farmington",null,"Lee",null,"Madbury",null,"Middleton",null,"Milton",null,"New Durham",null,"Rochester",null,"Rollinsford",null,"Somersworth",null,"Strafford"]
[null,null,"Estimate","Margin Of Error","Estimate","Margin Of Error","Estimate","Margin Of Error","Estimate","Margin Of Error","Estimate","Margin Of Error","Estimate","Margin Of Error","Estimate","Margin Of Error","Estimate","Margin Of Error","Estimate","Margin Of Error","Estimate","Margin Of Error","Estimate","Margin Of Error","Estimate","Margin Of Error","Estimate","Margin Of Error"]
[null,"Total:",{"$f":"C7","v":6164},271,22388,542,4363,368,4910,282,3199,175,1224,102,1293,116,3483,121,1926,92,21983,467,1847,95,8744,415,2924,148]
[null,"Less than 9th grade",{"$f":"(C12+C11+C10)+(C27+C28+C29)","v":79},{"$f":"SQRT((D12^2)+(D11^2)+(D10^2)+(D27^2)+(D28^2)+(D29^2))","v":95.921843184959698},{"$f":"(E12+E11+E10)+(E27+E28+E29)","v":319},{"$f":"SQRT((F12^2)+(F11^2)+(F10^2)+(F27^2)+(F28^2)+(F29^2))","v":139.79628035108803},{"$f":"(G12+G11+G10)+(G27+G28+G29)","v":8},{"$f":"SQRT((H12^2)+(H11^2)+(H10^2)+(H27^2)+(H28^2)+(H29^2))","v":42},{"$f":"(I12+I11+I10)+(I27+I28+I29)","v":100},{"$f":"SQRT((J12^2)+(J11^2)+(J10^2)+(J27^2)+(J28^2)+(J29^2))","v":76.974021591703263},{"$f":"(K12+K11+K10)+(K27+K28+K29)","v":34},{"$f":"SQRT((L12^2)+(L11^2)+(L10^2)+(L27^2)+(L28^2)+(L29^2))","v":44.147480109288232},{"$f":"(M12+M11+M10)+(M27+M28+M29)","v":2},{"$f":"SQRT((N12^2)+(N11^2)+(N10^2)+(N27^2)+(N28^2)+(N29^2))","v":24.779023386727733},{"$f":"(O12+O11+O10)+(O27+O28+O29)","v":16},{"$f":"SQRT((P12^2)+(P11^2)+(P10^2)+(P27^2)+(P28^2)+(P29^2))","v":22.449944320643649},{"$f":"(Q12+Q11+Q10)+(Q27+Q28+Q29)","v":27},{"$f":"SQRT((R12^2)+(R11^2)+(R10^2)+(R27^2)+(R28^2)+(R29^2))","v":35.071355833500363},{"$f":"(S12+S11+S10)+(S27+S28+S29)","v":12},{"$f":"SQRT((T12^2)+(T11^2)+(T10^2)+(T27^2)+(T28^2)+(T29^2))","v":27.367864366808018},{"$f":"(U12+U11+U10)+(U27+U28+U29)","v":389},{"$f":"SQRT((V12^2)+(V11^2)+(V10^2)+(V27^2)+(V28^2)+(V29^2))","v":178.93574265640726},{"$f":"(W12+W11+W10)+(W27+W28+W29)","v":26},{"$f":"SQRT((X12^2)+(X11^2)+(X10^2)+(X27^2)+(X28^2)+(X29^2))","v":39.648455203198019},{"$f":"(Y12+Y11+Y10)+(Y27+Y28+Y29)","v":86},{"$f":"SQRT((Z12^2)+(Z11^2)+(Z10^2)+(Z27^2)+(Z28^2)+(Z29^2))","v":69.202601107183824},{"$f":"(AA12+AA11+AA10)+(AA27+AA28+AA29)","v":17},{"$f":"SQRT((AB12^2)+(AB11^2)+(AB10^2)+(AB27^2)+(AB28^2)+(AB29^2))","v":30.479501308256342}]
[null,"9th to 12th grade, no diploma",{"$f":"(C13+C14+C15+C16)+(C30+C31+C32+C33)","v":196},{"$f":"SQRT((D13^2)+(D14^2)+(D15^2)+(D16^2)+(D30^2)+(D31^2)+(D32^2)+(D33^2))","v":133.4241357476225},{"$f":"(E13+E14+E15+E16)+(E30+E31+E32+E33)","v":972},{"$f":"SQRT((F13^2)+(F14^2)+(F15^2)+(F16^2)+(F30^2)+(F31^2)+(F32^2)+(F33^2))","v":230.77911517292893},{"$f":"(G13+G14+G15+G16)+(G30+G31+G32+G33)","v":55},{"$f":"SQRT((H13^2)+(H14^2)+(H15^2)+(H16^2)+(H30^2)+(H31^2)+(H32^2)+(H33^2))","v":54.249423960075376},{"$f":"(I13+I14+I15+I16)+(I30+I31+I32+I33)","v":378},{"$f":"SQRT((J13^2)+(J14^2)+(J15^2)+(J16^2)+(J30^2)+(J31^2)+(J32^2)+(J33^2))","v":171.3942822850284},{"$f":"(K13+K14+K15+K16)+(K30+K31+K32+K33)","v":129},{"$f":"SQRT((L13^2)+(L14^2)+(L15^2)+(L16^2)+(L30^2)+(L31^2)+(L32^2)+(L33^2))","v":87.931791747922432},{"$f":"(M13+M14+M15+M16)+(M30+M31+M32+M33)","v":59},{"$f":"SQRT((N13^2)+(N14^2)+(N15^2)+(N16^2)+(N30^2)+(N31^2)+(N32^2)+(N33^2))","v":35.91656999213594},{"$f":"(O13+O14+O15+O16)+(O30+O31+O32+O33)","v":113},{"$f":"SQRT((P13^2)+(P14^2)+(P15^2)+(P16^2)+(P30^2)+(P31^2)+(P32^2)+(P33^2))","v":36.455452267116371},{"$f":"(Q13+Q14+Q15+Q16)+(Q30+Q31+Q32+Q33)","v":193},{"$f":"SQRT((R13^2)+(R14^2)+(R15^2)+(R16^2)+(R30^2)+(R31^2)+(R32^2)+(R33^2))","v":107.20541031123382},{"$f":"(S13+S14+S15+S16)+(S30+S31+S32+S33)","v":87},{"$f":"SQRT((T13^2)+(T14^2)+(T15^2)+(T16^2)+(T30^2)+(T31^2)+(T32^2)+(T33^2))","v":38.832975677895199},{"$f":"(U13+U14+U15+U16)+(U30+U31+U32+U33)","v":1617},{"$f":"SQRT((V13^2)+(V14^2)+(V15^2)+(V16^2)+(V30^2)+(V31^2)+(V32^2)+(V33^2))","v":295.89694151849557},{"$f":"(W13+W14+W15+W16)+(W30+W31+W32+W33)","v":46},{"$f":"SQRT((X13^2)+(X14^2)+(X15^2)+(X16^2)+(X30^2)+(X31^2)+(X32^2)+(X33^2))","v":41.773197148410844},{"$f":"(Y13+Y14+Y15+Y16)+(Y30+Y31+Y32+Y33)","v":443},{"$f":"SQRT((Z13^2)+(Z14^2)+(Z15^2)+(Z16^2)+(Z30^2)+(Z31^2)+(Z32^2)+(Z33^2))","v":154.52184311611094},{"$f":"(AA13+AA14+AA15+AA16)+(AA30+AA31+AA32+AA33)","v":85},{"$f":"SQRT((AB13^2)+(AB14^2)+(AB15^2)+(AB16^2)+(AB30^2)+(AB31^2)+(AB32^2)+(AB33^2))","v":49.477267507411923}]
[null,"High school graduate (includes equivalency)",{"$f":"C17+C34","v":1417},{"$f":"SQRT((D17^2)+(D34^2))","v":294.37561040276415},{"$f":"E17+E34","v":4724},{"$f":"SQRT((F17^2)+(F34^2))","v":426.75168423803552},{"$f":"G17+G34","v":240},{"$f":"SQRT((H17^2)+(H34^2))","v":74.518454090245328},{"$f":"I17+I34","v":1837},{"$f":"SQRT((J17^2)+(J34^2))","v":326.00613491159947},{"$f":"K17+K34","v":446},{"$f":"SQRT((L17^2)+(L34^2))","v":169.42549985170473},{"$f":"M17+M34","v":188},{"$f":"SQRT((N17^2)+(N34^2))","v":48.826222462934808},{"$f":"O17+O34","v":489},{"$f":"SQRT((P17^2)+(P34^2))","v":71.217975259059429},{"$f":"Q17+Q34","v":1309},{"$f":"SQRT((R17^2)+(R34^2))","v":193.72403051764127},{"$f":"S17+S34","v":544},{"$f":"SQRT((T17^2)+(T34^2))","v":96.213304693269947},{"$f":"U17+U34","v":7745},{"$f":"SQRT((V17^2)+(V34^2))","v":567.73585407300106},{"$f":"W17+W34","v":515},{"$f":"SQRT((X17^2)+(X34^2))","v":80.280757345705197},{"$f":"Y17+Y34","v":3228},{"$f":"SQRT((Z17^2)+(Z34^2))","v":393.87434544534631},{"$f":"AA17+AA34","v":631},{"$f":"SQRT((AB17^2)+(AB34^2))","v":126.58988901172162}]
[null,"Some college, no degree",{"$f":"(C18+C19)+(C35+C36)","v":1210},{"$f":"SQRT((D18^2)+(D19^2)+(D35^2)+(D36^2))","v":318.2436173751172},{"$f":"(E18+E19)+(E35+E36)","v":3878},{"$f":"SQRT((F18^2)+(F19^2)+(F35^2)+(F36^2))","v":458.99237466432925},{"$f":"(G18+G19)+(G35+G36)","v":467},{"$f":"SQRT((H18^2)+(H19^2)+(H35^2)+(H36^2))","v":126.01190419956362},{"$f":"(I18+I19)+(I35+I36)","v":1251},{"$f":"SQRT((J18^2)+(J19^2)+(J35^2)+(J36^2))","v":324.95845888359332},{"$f":"(K18+K19)+(K35+K36)","v":516},{"$f":"SQRT((L18^2)+(L19^2)+(L35^2)+(L36^2))","v":197.67397400770795},{"$f":"(M18+M19)+(M35+M36)","v":199},{"$f":"SQRT((N18^2)+(N19^2)+(N35^2)+(N36^2))","v":59.472682804797024},{"$f":"(O18+O19)+(O35+O36)","v":245},{"$f":"SQRT((P18^2)+(P19^2)+(P35^2)+(P36^2))","v":48.218253804964775},{"$f":"(Q18+Q19)+(Q35+Q36)","v":739},{"$f":"SQRT((R18^2)+(R19^2)+(R35^2)+(R36^2))","v":171.30674242422566},{"$f":"(S18+S19)+(S35+S36)","v":393},{"$f":"SQRT((T18^2)+(T19^2)+(T35^2)+(T36^2))","v":89.028085456219941},{"$f":"(U18+U19)+(U35+U36)","v":4665},{"$f":"SQRT((V18^2)+(V19^2)+(V35^2)+(V36^2))","v":481.3335641735365},{"$f":"(W18+W19)+(W35+W36)","v":358},{"$f":"SQRT((X18^2)+(X19^2)+(X35^2)+(X36^2))","v":85.580371581338667},{"$f":"(Y18+Y19)+(Y35+Y36)","v":1760},{"$f":"SQRT((Z18^2)+(Z19^2)+(Z35^2)+(Z36^2))","v":320.55888694590891},{"$f":"(AA18+AA19)+(AA35+AA36)","v":560},{"$f":"SQRT((AB18^2)+(AB19^2)+(AB35^2)+(AB36^2))","v":132.15899515356494}]
[null,"Associate's degree",{"$f":"C20+C37","v":551},{"$f":"SQRT((D20^2)+(D37^2))","v":185.91395859375379},{"$f":"E20+E37","v":1995},{"$f":"SQRT((F20^2)+(F37^2))","v":342.94751785076386},{"$f":"G20+G37","v":290},{"$f":"SQRT((H20^2)+(H37^2))","v":101.78899744078434},{"$f":"I20+I37","v":613},{"$f":"SQRT((J20^2)+(J37^2))","v":221.23742902140225},{"$f":"K20+K37","v":211},{"$f":"SQRT((L20^2)+(L37^2))","v":102.94173109094289},{"$f":"M20+M37","v":97},{"$f":"SQRT((N20^2)+(N37^2))","v":31.622776601683793},{"$f":"O20+O37","v":193},{"$f":"SQRT((P20^2)+(P37^2))","v":43.863424398922618},{"$f":"Q20+Q37","v":329},{"$f":"SQRT((R20^2)+(R37^2))","v":102.07840124139877},{"$f":"S20+S37","v":290},{"$f":"SQRT((T20^2)+(T37^2))","v":73.006848993775918},{"$f":"U20+U37","v":2485},{"$f":"SQRT((V20^2)+(V37^2))","v":347.41617694056794},{"$f":"W20+W37","v":219},{"$f":"SQRT((X20^2)+(X37^2))","v":67.94115100585212},{"$f":"Y20+Y37","v":959},{"$f":"SQRT((Z20^2)+(Z37^2))","v":182.20043907740728},{"$f":"AA20+AA37","v":371},{"$f":"SQRT((AB20^2)+(AB37^2))","v":102.44998779892558}]
[null,"Bachelor's degree",{"$f":"C21+C38","v":1631},{"$f":"SQRT((D21^2)+(D38^2))","v":359.92221381848606},{"$f":"E21+E38","v":6373},{"$f":"SQRT((F21^2)+(F38^2))","v":610.28272136772807},{"$f":"G21+G38","v":1486},{"$f":"SQRT((H21^2)+(H38^2))","v":209.47553556441861},{"$f":"I21+I38","v":537},{"$f":"SQRT((J21^2)+(J38^2))","v":174.31580536486069},{"$f":"K21+K38","v":906},{"$f":"SQRT((L21^2)+(L38^2))","v":202.71408436514716},{"$f":"M21+M38","v":338},{"$f":"SQRT((N21^2)+(N38^2))","v":50.24937810560445},{"$f":"O21+O38","v":159},{"$f":"SQRT((P21^2)+(P38^2))","v":42.449970553582247},{"$f":"Q21+Q38","v":539},{"$f":"SQRT((R21^2)+(R38^2))","v":143.55835050598765},{"$f":"S21+S38","v":403},{"$f":"SQRT((T21^2)+(T38^2))","v":74.276510418839678},{"$f":"U21+U38","v":3641},{"$f":"SQRT((V21^2)+(V38^2))","v":422.88769194669169},{"$f":"W21+W38","v":436},{"$f":"SQRT((X21^2)+(X38^2))","v":81.565924257621205},{"$f":"Y21+Y38","v":1691},{"$f":"SQRT((Z21^2)+(Z38^2))","v":287.81417616232875},{"$f":"AA21+AA38","v":751},{"$f":"SQRT((AB21^2)+(AB38^2))","v":131.36590120727678}]
[null,"Graduate or professional degree",{"$f":"(C22+C23+C24)+(C39+C40+C41)","v":1019},{"$f":"SQRT((D22^2)+(D23^2)+(D24^2)+(D39^2)+(D41^2)+(D40^2))","v":278.79024373173462},{"$f":"(E22+E23+E24)+(E39+E40+E41)","v":4048},{"$f":"SQRT((F22^2)+(F23^2)+(F24^2)+(F39^2)+(F41^2)+(F40^2))","v":464.47712537863475},{"$f":"(G22+G23+G24)+(G39+G40+G41)","v":1788},{"$f":"SQRT((H22^2)+(H23^2)+(H24^2)+(H39^2)+(H41^2)+(H40^2))","v":186.06450494385004},{"$f":"(I22+I23+I24)+(I39+I40+I41)","v":194},{"$f":"SQRT((J22^2)+(J23^2)+(J24^2)+(J39^2)+(J41^2)+(J40^2))","v":110.24971655292362},{"$f":"(K22+K23+K24)+(K39+K40+K41)","v":894},{"$f":"SQRT((L22^2)+(L23^2)+(L24^2)+(L39^2)+(L41^2)+(L40^2))","v":218.64811913208857},{"$f":"(M22+M23+M24)+(M39+M40+M41)","v":335},{"$f":"SQRT((N22^2)+(N23^2)+(N24^2)+(N39^2)+(N41^2)+(N40^2))","v":59.899916527487747},{"$f":"(O22+O23+O24)+(O39+O40+O41)","v":75},{"$f":"SQRT((P22^2)+(P23^2)+(P24^2)+(P39^2)+(P41^2)+(P40^2))","v":45.945620030640569},{"$f":"(Q22+Q23+Q24)+(Q39+Q40+Q41)","v":329},{"$f":"SQRT((R22^2)+(R23^2)+(R24^2)+(R39^2)+(R41^2)+(R40^2))","v":101.88228501560023},{"$f":"(S22+S23+S24)+(S39+S40+S41)","v":197},{"$f":"SQRT((T22^2)+(T23^2)+(T24^2)+(T39^2)+(T41^2)+(T40^2))","v":56.169386679934469},{"$f":"(U22+U23+U24)+(U39+U40+U41)","v":1123},{"$f":"SQRT((V22^2)+(V23^2)+(V24^2)+(V39^2)+(V41^2)+(V40^2))","v":215.42980295214494},{"$f":"(W22+W23+W24)+(W39+W40+W41)","v":247},{"$f":"SQRT((X22^2)+(X23^2)+(X24^2)+(X39^2)+(X41^2)+(X40^2))","v":54.571054598569013},{"$f":"(Y22+Y23+Y24)+(Y39+Y40+Y41)","v":562},{"$f":"SQRT((Z22^2)+(Z23^2)+(Z24^2)+(Z39^2)+(Z41^2)+(Z40^2))","v":171.85749910900017},{"$f":"(AA22+AA23+AA24)+(AA39+AA40+AA41)","v":492},{"$f":"SQRT((AB22^2)+(AB23^2)+(AB24^2)+(AB39^2)+(AB41^2)+(AB40^2))","v":131.85977400253651}]
[]
[]
[]
[]
[]
[]
[]
[]
[]
[]
[]
[]
[]
[]
[]
[]
[]
[]
[]
[]
[]
[]
[]
[]
[]
[]
[]
[null,"Calculated B15002. SEX BY EDUCATIONAL ATTAINMENT FOR THE POPULATION 25 YEARS AND OVER"]
[null,"Universe:  POPULATION 25 YEARS AND OVER"]
[null,"Data Set: 2010-2014 American Community Survey 5-Year Estimates"]
[null,null,"Barrington",null,"Dover",null,"Durham",null,"Farmington",null,"Lee",null,"Madbury",null,"Middleton",null,"Milton",null,"New Durham",null,"Rochester",null,"Rollinsford",null,"Somersworth",null,"Strafford"]
[null,null,"Estimate","Margin Of Error","Estimate","Margin Of Error","Estimate","Margin Of Error","Estimate","Margin Of Error","Estimate","Margin Of Error","Estimate","Margin Of Error","Estimate","Margin Of Error","Estimate","Margin Of Error","Estimate","Margin Of Error","Estimate","Margin Of Error","Estimate","Margin Of Error","Estimate","Margin Of Error","Estimate","Margin Of Error"]
[null,"Total:",6180,286,20658,433,4546,400,4662,301,3143,184,1186,106,1077,118,3109,155,1880,104,21191,412,1593,98,7843,292,2771,140]
[null,"Less than 9th grade",31,43.692104549906958,422,142.7935572776307,1,38.131351929875237,77,70.292247083159893,42,48.466483264210538,6,23.108440016582687,30,31.511902513177461,82,63.063460101710248,22,27.820855486487112,523,182.75666882497066,19,26.627053911388696,189,79.755877526361658,13,32.341923257592455]
[null,"9th to 12th grade, no diploma",206,104.71867073258713,1391,304.86554413380333,40,46.722585544894663,520,224.24986064655647,50,47.233462714478172,40,28.390139133156779,112,34.928498393145958,125,65.130637951735125,77,44.844174649557324,1455,262.10303317588676,80,39.635842365212831,399,164.74222288168872,64,44.45222154178574]
[null,"High school graduate (includes equivalency)",1628,338.66207345966569,4129,426.64387959983674,363,109.07795377618706,1783,266.58769664033633,465,144.01388821915754,225,56.080299571239813,385,66.468037431535464,1311,178.89941307897016,577,86.452298986203942,8376,545.8937625582472,393,71.06335201775947,2788,358.87184342046118,514,124.20144926690671]
[null,"Some college, no degree",1081,273.243481166523,4317,520.6419114900375,550,153.89931773727915,897,252.62422686670413,397,150.86417732516887,146,43.393547907494266,279,62.657800791282163,564,129.3290377293514,433,89.66604708583958,4283,430.99419949693061,315,76.05918747922567,1579,271.71676429694213,799,149.28161306738349]
[null,"Associate's degree",682,187.25650856512306,2099,319.71549852955206,143,55.803225713214822,615,200.32224040280698,434,141.65097952361643,148,52.345009313209601,141,36.61966684720111,412,98.493654617949886,201,54.203320931470607,2055,306.01470552899906,117,48.836461788299118,876,208.69355524308841,251,87.80091115700337]
[null,"Bachelor's degree",1798,315.57249563293692,4770,453.25599830559332,1450,239.61009995407122,554,182.23611058184929,1082,233.20591759215716,321,51.855568649856693,74,22.671568097509269,404,116.2841347734075,379,71.421285342676384,3159,355.14785653302204,467,84.219950130595535,1471,270.60118255469615,777,126.81088281373961]
[null,"Graduate or professional degree",703,212.05895406702354,3421,372.47281780017181,1999,228.74221298221281,200,112.73863579093016,673,196.81971445970549,300,59.152345684681009,42,28.705400188814647,129,49.869830559166729,191,65.574385243020004,1113,204.37954887904024,198,56.008927859761783,486,149.82322917358309,345,89.11789943664516]
[]
[]
[]
[]
[]
[]
[]
[]
[]
[]
[]
[]
[]
[]
[]
[]
[]
[]
[]
[]
[]
[]
[]
[]
[]
[]
[]
[null,"Calculated B15002. SEX BY EDUCATIONAL ATTAINMENT FOR THE POPULATION 25 YEARS AND OVER"]
[null,"Universe:  POPULATION 25 YEARS AND OVER"]
[null,"Data Set: 2005-2009 American Community Survey 5-Year Estimates"]
[null,null,"Barrington",null,"Dover",null,"Durham",null,"Farmington",null,"Lee",null,"Madbury",null,"Middleton",null,"Milton",null,"New Durham",null,"Rochester",null,"Rollinsford",null,"Somersworth",null,"Strafford"]
[null,null,"Estimate","Margin Of Error","Estimate","Margin Of Error","Estimate","Margin Of Error","Estimate","Margin Of Error","Estimate","Margin Of Error","Estimate","Margin Of Error","Estimate","Margin Of Error","Estimate","Margin Of Error","Estimate","Margin Of Error","Estimate","Margin Of Error","Estimate","Margin Of Error","Estimate","Margin Of Error","Estimate","Margin Of Error"]
[null,"Total:",5405,239,18779,523,4184,447,4295,327,2936,180,1090,108,1121,104,2953,215,1732,105,20490,457,1874,108,8119,342,2676,212]
[null,"Less than 9th grade",79,207.76188293332345,564,219.39462162961061,64,169.091691102786,238,242.43143360546296,70,241.15762480170517,7,228.11400658442699,29,228.43817544359786,172,242.33035303073365,37,198.77374072044827,800,227.03303724348137,47,258.03100588882722,442,241.82431639518802,0,279.24183067728228]
[null,"9th to 12th grade, no diploma",266,102.25458424931374,687,169.99117624159203,120,209.86900676374299,569,247.64288804647711,85,205.86160399647139,44,198.67058161690673,181,45.639894828976104,211,186.26593891530464,156,64.521314307754153,1836,297.58528189411521,145,129.18204209564115,651,193.74725804511402,218,187.15768752578666]
[null,"High school graduate (includes equivalency)",1535,233.77339455121918,5052,466.24671580612767,345,95.775779819325933,1801,246.81369491987272,630,163.51758315239374,177,47.634021455258214,495,74.330343736592525,1319,231.70023737579555,573,104.04326023342406,7645,555.4979747937881,623,101.91172650877817,3059,351.74564673923118,551,129.41792766073794]
[null,"Some college, no degree",1060,211.1539722572133,3569,449.36733303612533,385,106.29205050237765,879,212.00471692865705,463,133.77966960640919,194,53.047148839499378,183,44.474711915874174,521,130.51436702524362,329,80.684571015777237,4434,415.71745212343444,365,85.720475966947362,1072,222.00450445880597,526,140.77997016621364]
[null,"Associate's degree",821,200.12246250733574,1768,240.68236329236922,162,59.908263203000637,286,120.8056290079233,248,98.35141076771599,110,36.359317925395686,108,33.241540277189323,280,96.607453128627711,220,63.253458403473878,2082,369.04335788630584,161,61.220911460055866,873,179.8054504179448,340,123.06502346320826]
[null,"Bachelor's degree",1033,190.3943276465977,4674,422.0011848324599,1260,187.49133313302778,302,111.82575731914361,870,151.09268678529745,232,48.836461788299118,88,30.413812651491099,318,102.17631819555841,247,64.350602172784676,2488,333.67798848590536,387,82.97590011563598,1352,210.37585412779671,796,166.50825805346713]
[null,"Graduate or professional degree",286,92.612094242598786,1219,191.87235340194272,924,161.24825580452026,79,74.269778510508573,344,126.82665335015349,116,36.345563690772494,10,161.44968256394932,57,167.32304085211933,89,120.6979701569169,621,159.5054857990784,24,198.36582366930045,456,223.30472453577869,99,127.18097341976905]

{"sheet":"PopComparison","index":59,"n_rows":48,"n_cols":14,"rows_kept":48,"cut":false,"hidden":true,"merged":[[35,1,35,2],[26,12,26,14],[27,3,27,4],[27,5,27,6],[27,7,27,8],[27,9,27,10],[29,1,29,2],[30,1,30,2],[31,1,31,2],[32,1,32,2],[33,1,33,2],[34,1,34,2],[43,1,43,2],[42,1,42,2],[44,1,44,2],[45,1,45,2],[36,1,36,2],[37,1,37,2],[38,1,38,2],[39,1,39,2],[40,1,40,2],[41,1,41,2]]}
[]
[]
[]
[]
[]
[]
[]
[]
[]
[]
[]
[]
[]
[]
[]
[]
[]
[]
[]
[]
[]
[]
[]
[]
[]
[]
[]
[null,null,null,2000,null,2010,null,2020,null,2030,null,null,"2000-2010","2010-2030"]
[null,null,null,"#","%","#","%","#","%","#","%",null,"% Change","% Change"]
[null,"Barrington",null,{"$f":"CntyQuery!G118","v":7475},{"$f":"D30/$D$45","v":6.6602514411982214E-2},{"$f":"CntyQuery!H118","v":8576},{"$f":"F30/$F$45","v":6.9642610623421544E-2},{"$f":"CntyQuery!$I118","v":9536},{"$f":"H30/$H$45","v":7.2684034817603924E-2},{"$f":"CntyQuery!J118","v":9730},{"$f":"J30/$J$45","v":7.2683539008575618E-2},null,{"$f":"(F30-D30)/D30","v":0.14729096989966556},{"$f":"(J30-F30)/F30","v":0.13456156716417911}]
[null,"Dover",null,{"$f":"CntyQuery!G119","v":26884},{"$f":"D31/$D$45","v":0.23953739096344212},{"$f":"CntyQuery!H119","v":29987},{"$f":"F31/$F$45","v":0.24351363861526842},{"$f":"CntyQuery!$I119","v":32470},0.2474885287885486,{"$f":"CntyQuery!J119","v":33131},{"$f":"J31/$J$45","v":0.24749006483999164},null,{"$f":"(F31-D31)/D31","v":0.11542181223032287},{"$f":"(J31-F31)/F31","v":0.10484543302097575}]
[null,"Durham",null,{"$f":"CntyQuery!G120","v":12664},0.11283668796165121,{"$f":"CntyQuery!H120","v":14638},0.11886993170541565,{"$f":"CntyQuery!$I120","v":16387},0.12490281864052806,{"$f":"CntyQuery!J120","v":16720},0.12489915439089253,null,0.15587492103600759,0.14223254542970351]
[null,"Farmington",null,{"$f":"CntyQuery!G121","v":5774},5.1446544242780647E-2,{"$f":"CntyQuery!H121","v":6786},5.5106664609437805E-2,{"$f":"CntyQuery!$I121","v":7710},5.8766139727739752E-2,{"$f":"CntyQuery!J121","v":7867},5.8766844951743509E-2,null,0.17526844475233808,0.15929855585027999]
[null,"Lee",null,{"$f":"CntyQuery!G122","v":4145},3.6932096620423585E-2,{"$f":"CntyQuery!H122","v":4330},3.5162372201424361E-2,{"$f":"CntyQuery!$I122","v":4381},3.339227732130063E-2,{"$f":"CntyQuery!J122","v":4470},3.3391101682254162E-2,null,4.4632086851628471E-2,3.2332563510392612E-2]
[null,"Madbury",null,{"$f":"CntyQuery!G123","v":1509},1.344524337761621E-2,{"$f":"CntyQuery!H123","v":1771},1.4381653849589502E-2,{"$f":"CntyQuery!$I123","v":2010},1.5320355493223982E-2,{"$f":"CntyQuery!J123","v":2051},1.5321062539217736E-2,null,0.17362491716368456,0.15810276679841898]
[null,"Middleton",null,{"$f":"CntyQuery!G124","v":1440},1.283045093689022E-2,{"$f":"CntyQuery!H124","v":1783},1.4479101532364811E-2,{"$f":"CntyQuery!$I124","v":2116},1.6128294638637783E-2,{"$f":"CntyQuery!J124","v":2159},1.6127827412077567E-2,null,0.23819444444444443,0.21088053841839596]
[null,"Milton",null,{"$f":"CntyQuery!G125","v":3910},3.483823830780608E-2,{"$f":"CntyQuery!H125","v":4598},3.7338703783406285E-2,{"$f":"CntyQuery!$I125","v":5227},3.9840546349791915E-2,{"$f":"CntyQuery!J125","v":5333},3.9837750620013747E-2,null,0.17595907928388746,0.15985210961287516]
[null,"New Durham",null,{"$f":"CntyQuery!G126","v":2220},1.9780278527705756E-2,{"$f":"CntyQuery!H126","v":2638},2.142224893010565E-2,{"$f":"CntyQuery!$I126","v":3026},2.306437598134118E-2,{"$f":"CntyQuery!J126","v":3088},2.3067499327695938E-2,null,0.18828828828828828,0.17058377558756635]
[null,"Rochester",null,{"$f":"CntyQuery!G127","v":28461},0.25358851674641147,{"$f":"CntyQuery!H127","v":29752},0.24160528816091861,{"$f":"CntyQuery!$I127","v":30126},0.2296224027805302,{"$f":"CntyQuery!J127","v":30739},0.22962171691517017,null,4.5360317627630792E-2,3.3174240387200862E-2]
[null,"Rollinsford",null,{"$f":"CntyQuery!G128","v":2648},2.3593773667281458E-2,{"$f":"CntyQuery!H128","v":2527},2.0520857864434031E-2,{"$f":"CntyQuery!$I128","v":2289},1.7446912300492386E-2,{"$f":"CntyQuery!J128","v":2336},1.7450025398153404E-2,null,-4.569486404833837E-2,-7.5583696082311039E-2]
[null,"Somersworth",null,{"$f":"CntyQuery!G129","v":11477},0.10226047597408962,{"$f":"CntyQuery!H129","v":11766},9.5547452961191465E-2,{"$f":"CntyQuery!$I129","v":11655},8.8835195658470409E-2,{"$f":"CntyQuery!J129","v":11892},8.8833776556010394E-2,null,2.5180796375359416E-2,1.0708822029576747E-2]
[null,"Strafford",null,{"$f":"CntyQuery!G130","v":3626},3.23077882619194E-2,{"$f":"CntyQuery!H130","v":3991},3.2409475163021853E-2,{"$f":"CntyQuery!$I130","v":4265},3.2508117501791188E-2,{"$f":"CntyQuery!J130","v":4352},3.25096363582036E-2,null,0.10066188637617209,9.0453520420947134E-2]
[]
[]
[null,"Strafford County",null,{"$f":"SUM(D30:D44)","v":112233},null,{"$f":"SUM(F30:F44)","v":123143},null,{"$f":"SUM(H30:H44)","v":131198},null,{"$f":"SUM(J30:J42)","v":133868},null,null,{"$f":"(F45-D45)/D45","v":9.7208485917689089E-2},{"$f":"(J45-F45)/F45","v":8.7093866480433324E-2}]
[]
[]
[null,"Source: US Census and NH Office of Strategic Initiatives."]

{"sheet":"DropDownList","index":60,"n_rows":47,"n_cols":3,"rows_kept":47,"cut":false,"hidden":true,"merged":[]}
["List Range for Combo Box on Start Page"]
["Barrington"]
["Dover"]
["Durham"]
["Farmington"]
["Lee"]
["Madbury"]
["Middleton"]
["Milton"]
["New Durham"]
["Rochester"]
["Rollinsford"]
["Somersworth"]
["Strafford"]
[]
[]
[]
[]
[]
[]
[]
[]
[]
[]
[]
[]
[]
[]
[]
[]
[]
[]
[]
[]
[]
[]
[]
[]
[]
[]
[]
[]
[]
[]
[]
[]
[{"$f":"B47","v":"Barrington"},"Barrington","Barrington"]

{"sheet":"CntyQryCensus","index":61,"n_rows":541,"n_cols":216,"rows_kept":541,"cut":false,"hidden":true,"merged":[]}
[]
["Census 2000 SF1   -           Query Name:  TownAllQuery3"]
["NAME","COUNTY","LOGRECNO","COUSUB","TRACT","AREALAND","AREAWATR","POP100","HU100","P01TotalPopulation","P03PopOfOneRace","P03PopWhite","P03PopBlack","P03PopAmIndian","P03PopAsian","P03PopHawaiian","P03PopOtherRace","P03Pop2orMoreRaces","P04PopHispanicLatino","P04PopNotHispanicLatino","P12PopMale","P12PopMale<15","P12PopMale15to24","P12PopMale25to34","P12PopMale35to44","P12PopMale45to54","P12PopMale55to64","P12PopMale65to74","P12PopMale75to84","P12PopMale85andOver","P12PopFemale","P12PopFemale<15","P12PopFemale15to24","P12PopFemale25to34","P12PopFemale35t44","P12PopFemale45to54","P12PopFemale55to64","P12PopFemale65to74","P12PopFemale75to84","P12PopFemale85andOver","P15Households2000","P16PopInHH","P17AvgHHSize","P18HHs1Person","P18HHs2orMorePerson","P18HHsFamily","P18HHMarriedCoupleFam","P18HHSingleParentFam","P18HHsNonFamily","P31Families","P32PopInFam","P33AvgFamSize","H01TotHsUnits","H04OccHsUnits","H04OwnerOccHU","H04RenterOccHU","H05VctHsUnits","H05VctHUForRent","H05VctHUForSale","H05VctHUSeasonal","H10PopInOccHU","H11PopInOwnOccHU","H11PopInRntOccHU","H12AvgHHSize2","H12AvgHHSizOwnOcc","H12AvgHHSizRntOcc","H14OwnOccWhtHsHldr","H14OwnOccBlkHsHldr","H14OwnOccAmIHsHldr","H14OwnOccAsnHsHldr","H14OwnOccPIsHsHldr","H14OwnOccORHsHldr","H14OwnOcc2RcHsHldr","H14RntOccWhtHsHldr","H14RntOccBlkHsHldr","H14RntOccAmIHsHldr","H14RntOccAsnHsHldr","H14RntOccPIsHsHldr","H14RntOccORHsHldr","H14RntOcc2RcHsHldr","H16OwnOccHH15to24","H16OwnOccHH25to34","H16OwnOccHH35to44","H16OwnOccHH45to54","H16OwnOccHH55to64","H16OwnOccHH65to74","H16OwnOccHH75to84","H16OwnOccHH85Over","H16RntOccHH15to24","H16RntOccHH25to34","H16RntOccHH35to44","H16RntOccHH45to54","H16RntOccHH55to64","H16RntOccHH65to74","H16RntOccHH75to84","H16RntOccHH85Over","P27TotalPop","P27PopInHseHlds","P27PopInGrpQtrs","P13MedianPopTotal","P13MedianPopMale","P13MedianPopFemale"]
["Barrington","017","0033389","03460","","     120656252","       5005827",7475,"     3147",7475,7415,7334,19,10,31,4,17,60,69,7406,3813,890,418,478,822,594,363,154,83,11,3662,832,340,537,788,580,308,162,90,25,2756,7467,2.71,465,2291,2076,1781,295,215,2076,6374,3.07,3147,2756,2349,407,391,9,18,310,7467,6513,954,2.71,2.77,2.34,2315,6,1,5,1,5,16,398,1,1,2,0,1,4,18,315,750,611,368,174,98,15,44,133,113,50,35,17,12,3,7475,7467,8,36.6,36.6,36.6]
["Dover","017","0033614","18820","","      69201907","       6048921",26884,"    11924",26884,26493,25396,301,53,635,15,93,391,306,26578,12914,2329,1878,2412,2266,1660,969,786,459,155,13970,2323,2072,2221,2229,1725,1108,952,878,462,11573,26127,2.2599999999999998,3593,7980,6496,4920,1576,1484,6496,18627,2.87,11924,11573,5920,5653,351,106,41,69,26127,15040,11087,2.2599999999999998,2.54,1.96,5794,30,4,59,1,5,27,5308,86,18,140,2,15,84,35,668,1488,1326,902,793,548,160,997,1799,1128,688,345,297,277,122,26884,26127,757,35.5,34.299999999999997,36.6]
["Durham","017","0034049","19700","","      57997657","       6139313",12664,"     2923",12664,12541,11974,98,27,392,16,34,123,157,12507,5719,621,3140,376,483,462,271,203,132,31,6945,607,4307,320,499,504,300,211,146,51,2882,8048,2.79,581,2301,1581,1392,189,720,1581,4786,3.03,2923,2882,1628,1254,41,4,7,17,8048,4521,3527,2.79,2.78,2.81,1594,4,0,23,0,0,7,1150,14,1,69,2,5,13,7,106,368,433,293,214,163,44,776,161,120,91,25,34,38,9,12664,8048,4616,21.2,21.6,20.9]
["Farmington","017","0034265","26020","","      96208101","        863183",5774,"     2337",5774,5716,5670,2,25,7,0,12,58,58,5716,2866,685,348,357,510,445,255,158,89,19,2908,656,350,378,545,412,240,173,117,37,2146,5747,2.68,458,1688,1529,1156,373,159,1529,4731,3.09,2337,2146,1516,630,191,35,12,82,5747,4216,1531,2.68,2.78,2.4300000000000002,1501,1,4,0,0,1,9,612,0,6,1,0,1,10,12,194,408,390,231,153,108,20,80,152,145,91,67,49,36,10,5774,5747,27,36.1,36,36.1]
["Lee","017","0034403","41460","","      51661481","        554502",4145,"     1534",4145,4101,3980,23,9,65,8,16,44,49,4096,2077,521,289,230,405,339,153,89,40,11,2068,505,268,229,450,324,136,89,49,18,1466,4126,2.81,260,1206,1092,900,192,114,1092,3496,3.2,1534,1466,1104,362,68,8,5,40,4126,3233,893,2.81,2.93,2.4700000000000002,1077,4,0,18,0,1,4,346,4,2,3,2,3,2,7,109,361,327,145,94,51,10,58,102,104,55,25,12,5,1,4145,4126,19,35.4,34.9,35.799999999999997]
["Madbury","017","0034535","44820","","      30261419","       1452782",1509,"      543",1509,1493,1458,6,4,19,0,6,16,7,1502,753,191,92,86,149,118,65,31,18,3,756,177,89,88,164,116,59,34,24,5,534,1509,2.83,80,454,411,337,74,43,411,1288,3.13,543,534,412,122,9,2,1,3,1509,1218,291,2.83,2.96,2.39,403,0,1,5,0,0,3,120,1,0,1,0,0,0,2,39,128,112,64,40,24,3,21,37,33,16,7,3,4,1,1509,1509,0,36.299999999999997,36,36.4]
["Middleton","017","0034594","47700","","      46850041","       1095146",1440,"      706",1440,1432,1419,2,3,8,0,0,8,5,1435,757,177,98,79,167,95,58,60,17,6,683,153,80,85,160,84,55,45,19,2,514,1438,2.8,85,429,389,324,65,40,389,1219,3.13,706,514,466,48,192,0,7,175,1438,1320,118,2.8,2.83,2.46,462,0,0,1,0,0,3,47,0,0,0,0,0,1,6,61,165,96,54,60,20,4,4,10,15,7,8,2,1,1,1440,1438,2,36.6,36.799999999999997,36.299999999999997]
["Milton","017","0034663","48660","","      85748791","       3037284",3910,"     1815",3910,3859,3826,8,12,10,0,3,51,16,3894,1943,426,232,225,389,292,188,133,49,9,1967,453,206,246,378,280,196,131,51,26,1456,3910,2.69,272,1184,1084,857,227,100,1084,3285,3.03,1815,1456,1160,296,359,13,13,310,3910,3156,754,2.69,2.72,2.5499999999999998,1139,2,5,3,0,1,10,289,0,4,0,0,0,3,13,127,323,277,192,145,62,21,42,85,80,40,19,16,12,2,3910,3910,0,37.4,37.4,37.299999999999997]
["New Durham","017","0034810","51220","","     107984735","       6366178",2220,"     1309",2220,2206,2179,5,4,12,0,6,14,9,2211,1151,265,104,133,238,182,107,84,34,4,1069,237,95,136,221,169,95,77,33,6,819,2219,2.71,139,680,631,550,81,49,631,1922,3.05,1309,819,740,79,490,7,7,460,2219,1989,230,2.71,2.69,2.91,731,1,1,1,0,1,5,79,0,0,0,0,0,0,3,97,218,180,104,91,44,3,1,22,30,14,5,5,2,0,2220,2219,1,38.1,38.5,37.799999999999997]
["Rochester","017","0034907","65140","","     116940933","       1625224",28461,"    11836",28461,28182,27640,149,62,248,9,74,279,255,28206,13838,3142,1655,2002,2422,1852,1202,955,499,109,14623,2847,1731,2031,2519,1976,1248,1116,843,312,11434,28168,2.46,2936,8498,7648,5819,1829,850,7648,22584,2.95,11836,11434,7643,3791,402,110,68,77,28168,19590,8578,2.46,2.56,2.2599999999999998,7538,20,15,29,1,8,32,3647,35,15,42,0,13,39,127,986,1890,1632,1155,1073,639,141,434,1021,919,552,301,261,232,71,28461,28168,293,36.700000000000003,35.5,37.799999999999997]
["Rollinsford","017","0035404","65540","","      18893418","        638032",2648,"     1060",2648,2625,2589,18,2,14,0,2,23,16,2632,1309,288,154,186,248,182,116,90,37,8,1339,271,137,203,238,179,120,106,70,15,1033,2648,2.56,230,803,721,603,118,82,721,2188,3.03,1060,1033,722,311,27,13,3,3,2648,1957,691,2.56,2.71,2.2200000000000002,714,4,0,0,0,0,4,300,5,1,2,0,0,3,5,74,190,151,119,107,65,11,40,103,76,50,18,13,9,2,2648,2648,0,36.9,36.1,38]
["Somersworth","017","0035480","69940","","      25333575","        594182",11477,"     4841",11477,11304,11037,66,22,110,1,68,173,185,11292,5521,1296,696,875,1011,715,403,302,188,35,5956,1256,692,948,963,757,492,446,315,87,4687,11444,2.44,1263,3424,3079,2227,852,345,3079,9068,2.95,4841,4687,2659,2028,154,56,16,22,11444,6940,4504,2.44,2.61,2.2200000000000002,2597,6,4,21,0,9,22,1941,21,5,15,0,9,37,45,358,698,580,404,325,212,37,223,574,458,257,174,154,133,55,11477,11444,33,34.9,33.700000000000003,35.799999999999997]
["Strafford","017","0035663","73860","","     127348390","       5827208",3626,"     1564",3626,3592,3571,5,5,9,0,2,34,23,3603,1814,462,212,168,369,328,144,82,42,7,1812,410,178,221,406,321,128,91,42,15,1281,3617,2.82,193,1088,1022,877,145,66,1022,3205,3.14,1564,1281,1139,142,283,7,4,255,3617,3297,320,2.82,2.89,2.25,1126,2,1,1,0,1,8,139,1,0,1,0,0,1,8,117,383,339,145,90,42,15,10,45,30,28,14,9,5,1,3626,3617,9,37.4,37.200000000000003,37.6]
[]
[]
[]
[]
[]
[]
[]
[]
[]
[]
[]
[]
[]
[]
[]
[]
[]
[]
[]
[]
[]
[]
[]
[]
[]
[]
[]
[]
[]
[]
[]
[]
[]
[]
["Census 2000 DemoProfile Sample Data Tables 2&3   -  DPTab23TownQry"]
[]
["TOWN_NAME","COUSUB","AREANAME","PopInSchool","Preschool","Kindergarten","Elementary","HighSchool","College","Pop25andOver","HighSchoolGrad","SomeCollege","AssocDegree","BachelDegree","GradDegree","HSGradorHigher","CollegeGradorHigher","Pop5to20yrs","Pop5to20wDis","Pop21to64","Pop21to64wDis","Pop65over","Pop65overwDis","Pop5yrsOver","SameHUin95","DiffHUinUSin95","HUinSameCountyin95","HUinSameStatein95","TotalPop","NativePop","NatPopBornUS","NatPopBornInStatRes","NatPopBornDiffState","NatPopBornOutUS","FornBornPop","FornPopEnt90to00","FornPopNatCit","FornPopNotCit","Households","HHIncLessThn10k","HHInc10to15K","HHInc15to25K","HHInc25to35K","HHInc35to50K","HHInc50to75K","HHInc75to100K","HHInc100to150K","HHInc150to200K","HHIncOver200K","MedianHHInc","HHwithPubAssistInc","MeanPubAssist","FamilyHH","FHHIncLessThn10k","FHHInc10to15K","FHHInc15to25K","FHHInc25to35K","FHHInc35to50K","FHHInc50to75K","FHHInc75to100K","FHHInc100to150K","FHHInc150to200K","FHHIncOver200K","MedianFHHInc","PerCapitaInc","PovStatFamilies","PovStatFHHwChilUnd18","PovStatFHHwChilUnd5","PovStFmalHH","DP3088","DP3089","PovStatIndiv","PovStatIndiv18yrOver","PovStatIndiv65yrOver","DP3093","DP3094","DP3095","CNTY_NAME"]
["Barrington","03460","Barrington town, Strafford County, New Hampshire",2084,64,152,1000,447,421,4986,1458,1124,587,983,386,4538,1369,1800,100,4666,658,528,173,7017,4296,2692,1241,1451,7475,7333,7284,3863,3421,49,142,70,48,94,2767,73,106,184,442,548,660,538,164,52,0,50630,64,1115,2096,43,47,138,288,359,523,508,151,39,0,56136,21012,76,70,9,42,36,9,411,259,0,141,131,136,"Strafford"]
["Dover","18820","Dover city, New Hampshire",6794,410,325,2508,1261,2290,18267,4578,3915,1669,4023,1901,16086,5924,4869,411,16570,2250,3219,1175,25347,11568,13411,6000,7411,26884,25530,25115,12388,12727,415,1354,544,714,640,11542,785,665,1187,1764,2073,2642,1236,843,200,147,43873,366,2627,6525,215,176,436,849,1052,1750,1087,679,151,130,57050,23459,310,271,133,202,202,79,2193,1641,183,501,347,1289,"Strafford"]
["Durham","19700","Durham town, Strafford County, New Hampshire",8623,148,92,680,350,7353,3988,278,442,242,1325,1603,3890,2928,5659,231,5868,416,810,184,12346,4030,7814,677,7137,12664,11857,11694,3629,8065,163,807,547,213,594,2887,270,235,360,228,286,475,372,368,165,128,51697,45,2389,1577,24,35,92,78,94,340,299,333,158,124,83609,17210,44,40,9,26,26,0,2246,2167,9,79,71,2108,"Strafford"]
["Farmington","26020","Farmington town, Strafford County, New Hampshire",1501,82,123,783,384,129,3712,1311,774,260,257,110,2712,367,1488,245,3317,920,597,274,5402,3338,2052,1215,837,5774,5690,5625,3528,2097,65,84,8,60,24,2134,207,139,332,218,411,497,193,112,22,3,40971,118,2690,1509,51,65,191,193,326,421,189,70,0,3,44788,16574,95,75,40,35,28,9,545,392,67,127,72,269,"Strafford"]
["Lee","41460","Lee town, Strafford County, New Hampshire",1296,67,55,637,309,228,2569,432,463,198,787,564,2444,1351,1078,86,2438,305,292,84,3875,1975,1850,694,1156,4145,3901,3890,1703,2187,11,244,62,131,113,1469,61,59,104,134,240,332,281,208,32,18,57993,5,3500,1082,20,32,29,92,193,267,227,172,32,18,62330,23905,47,47,18,34,34,18,211,137,17,70,47,94,"Strafford"]
["Madbury","44820","Madbury town, Strafford County, New Hampshire",495,37,25,228,112,93,964,178,164,61,272,215,890,487,418,18,894,56,118,47,1433,906,516,227,289,1509,1444,1430,666,764,14,65,30,28,37,535,19,28,50,41,96,115,104,41,22,19,57981,7,471,409,9,12,25,29,66,97,93,39,21,18,67981,26524,16,7,5,6,3,3,87,69,4,18,11,41,"Strafford"]
["Middleton","47700","Middleton town, Strafford County, New Hampshire",381,19,15,191,115,41,943,396,187,71,52,23,729,75,361,17,829,146,143,40,1339,772,562,373,189,1441,1413,1398,823,575,15,28,5,26,2,526,22,19,50,80,139,128,52,23,8,5,43942,7,800,396,11,11,28,60,98,110,49,19,10,0,48529,18415,18,8,8,2,2,2,104,74,9,22,6,51,"Strafford"]
["Milton","48660","Milton town, Strafford County, New Hampshire",976,25,65,548,219,119,2587,1077,620,177,153,86,2113,239,946,145,2320,451,399,178,3674,2310,1364,849,515,3910,3888,3853,2322,1531,35,22,0,19,3,1440,68,58,164,199,373,370,140,41,27,0,44194,73,3464,1076,37,50,103,145,251,312,127,24,27,0,48033,18092,66,61,34,15,15,5,307,144,18,163,101,46,"Strafford"]
["New Durham","51220","New Durham town, Strafford County, New Hampshire",596,11,47,301,139,98,1504,508,338,133,263,111,1353,374,522,55,1300,289,243,89,2069,1289,776,389,387,2219,2190,2174,1180,994,16,29,4,16,13,805,33,23,79,81,152,248,105,58,11,15,52270,22,2300,630,14,10,57,70,126,205,83,44,6,15,52941,22139,23,17,5,6,6,0,112,74,16,35,30,39,"Strafford"]
["Rochester","65140","Rochester city, New Hampshire",6893,489,302,3387,1635,1080,19122,7264,4004,1666,1953,955,15842,2908,6221,538,16484,3336,3609,1534,26567,13721,12721,7981,4740,28461,27738,27389,16186,11203,349,723,160,417,306,11397,857,765,1546,1600,2453,2501,965,509,118,83,40596,625,2802,7671,307,345,776,930,1757,2051,858,480,96,71,47324,18859,481,399,197,325,313,155,2357,1481,316,823,579,903,"Strafford"]
["Rollinsford","65540","Rollinsford town, Strafford County, New Hampshire",715,70,24,320,155,146,1799,649,313,155,357,124,1598,481,591,42,1555,281,324,143,2470,1617,853,505,348,2648,2602,2585,1614,971,17,46,0,37,9,1043,47,62,110,91,242,248,141,52,23,27,48588,13,408,740,11,21,36,72,145,225,150,44,14,22,60625,24444,19,15,0,12,12,0,98,64,11,34,34,40,"Strafford"]
["Somersworth","69940","Somersworth city, New Hampshire",2894,167,187,1450,579,511,7518,2628,1552,745,1009,408,6342,1417,2611,281,6646,1320,1359,548,10673,5191,5471,3314,2157,11477,11272,11182,6483,4699,90,205,15,83,122,4704,427,249,559,623,1035,1107,457,190,45,12,42739,286,2717,3092,140,138,298,360,734,841,377,153,45,6,47933,19592,196,189,135,155,148,108,995,671,122,315,185,442,"Strafford"]
["Strafford","73860","Strafford town, Strafford County, New Hampshire",1085,42,68,566,262,147,2360,655,516,347,469,203,2190,672,958,79,2166,224,279,112,3411,2160,1235,588,647,3626,3562,3513,1928,1585,49,64,9,39,25,1282,29,43,68,123,227,355,256,139,21,21,59044,19,2900,1037,6,15,43,85,176,341,214,115,21,21,62238,23500,10,10,6,10,10,6,67,51,15,16,8,41,"Strafford"]
[]
[]
[]
[]
[]
[]
[]
[]
[]
[]
[]
[]
[]
[]
[]
[]
[]
[]
[]
[]
[]
[]
[]
[]
[]
[]
[]
[]
[]
[]
[]
[]
[]
[]
["Census 2000 DemoProfile Sample Data Table 4   -  DPTab4TownQry"]
[]
["TOWN_NAME","COUSUB","TotHousingUnits","1UnitDet","1UnitAtt","2Units","3to4Units","5to9Units","10to19Units","20orMoreUnits","MobileHomes","BoatRvVan","SingleFamilyUnits","MultiFamUnits","MobileHomeUnits","YearBuilt99to00","YearBuilt95to98","YearBUilt90to94","YearBuilt80to89","YearBuilt70to79","YearBuilt60to69","YearBuilt40to59","YearBuilt39orEarlier","Rooms1","Rooms2","Rooms3","Rooms4","Rooms5","Rooms6","Rooms7","Rooms8","Rooms9orMore","MedianRooms","OccHU1","YrHHMvdIn99to00","YrHHMvdIn95to98","YrHHMvdIn90to94","YrHHMvdIn80to89","YrHHMvdIn70to79","YrHHMvdIn69orBefore","HeatFuelNatGas","HeatFuelBotGas","HeatFuelElectric","HeatFuelOil","HeatFuelCoal","HeatFuelWood","HeatFuelSolar","HeatFuelOther","HeatFuelNone","LackCompPlumb","LackCompKit","NoTelephone","OccHU","OccPerRm1orLess","OccPerRm1to1_5","OccPerRm1_5orMore","SpecOwnOccUnits","Value<50K","Value50to100K","Value100to150K","Value150to200K","Value200to300K","Value300to500K","Value500Kto1mil","Value1MilorMore","MedianValue","WithMortg","MnthOwnCst<300","MnthOwnCst300to500","MnthOwnCst500to700","MnthOwnCst700to1000","MnthOwnCst1000to1500","MnthOwnCst1500to2000","MnthOwnCst2000orMore","MediMnthOwnCst","NotMrtg","NotMrtgMediMnthOwnCst","OwnCst%HHInc<15","OwnCst%HHInc15to20","OwnCst%HHInc20to25","OwnCst%HHInc25to30","OwnCst%HHInc30to35","OwnCst%HHInc35orMor","NotComputed","SpecRntOccUnits","Rnt<200","Rnt200to300","Rnt300to500","Rnt500to750","Rnt750to1000","Rnt1000to1500","Rnt1500orMore","NoRent","MedianRent","Rnt%HHInc<15","Rnt%HHInc15to20","Rnt%HHInc20to25","Rnt%HHInc25to30","Rnt%HHInc30to35","Rnt%HHInc35orMore","Rnt%NotCompute","CNTY_NAME"]
["Barrington","03460",3147,2290,28,40,47,92,46,0,556,48,2290,253,604,68,329,229,844,813,282,284,298,41,127,166,642,662,605,447,268,189,5.4,2756,435,867,457,571,319,107,13,588,102,1872,8,139,0,9,25,45,29,17,2756,2727,29,0,1667,38,282,728,500,119,0,0,0,136400,1345,0,14,88,339,626,218,60,1195,322,433,452,292,318,223,92,275,15,411,18,0,46,188,84,38,0,37,674,88,37,41,34,39,127,45,"Strafford"]
["Dover","18820",11924,5243,628,1134,1425,1102,630,1355,407,0,5243,6274,407,212,481,464,2033,1628,1302,2196,3608,178,523,1851,2495,1968,2005,1263,951,690,5,11573,2869,3679,1570,1558,761,1136,3377,611,1212,6242,5,79,0,25,22,71,62,159,11573,11423,107,43,4747,5,977,2055,877,691,113,29,0,132800,3371,0,21,167,825,1492,591,275,1187,1376,442,1514,925,873,582,282,540,31,5652,218,298,618,2874,1076,469,25,74,639,1067,927,915,816,380,1392,155,"Strafford"]
["Durham","19700",2923,1747,119,144,198,275,155,285,0,0,1747,1176,0,38,99,203,600,557,592,462,372,110,177,261,392,359,297,380,479,468,6,2882,1009,620,352,365,320,216,118,260,619,1806,0,67,0,6,6,14,20,5,2882,2713,140,29,1408,7,43,175,584,462,115,16,6,191200,927,0,0,6,52,276,295,298,1610,481,564,437,226,249,188,79,229,0,1214,28,44,417,279,50,225,115,56,531,163,104,123,60,117,551,96,"Strafford"]
["Farmington","26020",2337,1400,14,104,117,129,93,47,416,17,1400,504,433,91,94,156,457,337,157,225,820,34,54,201,519,424,508,286,174,137,5.4,2146,432,539,394,379,173,229,18,228,139,1660,0,101,0,0,0,18,15,73,2146,2118,28,0,1043,61,593,322,24,15,28,0,0,88400,747,0,0,65,347,310,9,16,968,296,313,326,225,150,115,49,170,8,629,78,46,148,168,150,24,0,15,561,95,125,104,129,27,134,15,"Strafford"]
["Lee","41460",1534,1013,88,94,53,92,24,0,170,0,1013,351,170,59,132,72,555,277,136,94,209,13,39,95,299,221,264,209,188,206,5.9,1466,266,436,266,276,156,66,32,264,50,971,0,143,0,6,0,6,5,0,1466,1409,41,16,701,10,27,204,283,154,23,0,0,169300,529,0,5,0,37,234,116,137,1482,172,521,136,158,149,105,37,116,0,340,0,0,53,82,127,39,27,12,788,38,81,73,45,12,79,12,"Strafford"]
["Madbury","44820",543,363,34,48,20,3,0,3,72,0,363,108,72,13,37,40,136,125,31,48,113,3,11,18,77,88,89,102,81,74,6.3,534,81,135,107,129,43,39,6,48,42,417,0,19,2,0,0,0,0,0,534,532,2,0,259,0,32,41,120,46,18,2,0,169600,215,0,0,3,33,82,57,40,1444,44,543,54,55,45,29,29,47,0,102,0,0,13,38,30,14,2,5,729,12,23,18,3,5,34,7,"Strafford"]
["Middleton","47700",707,629,8,2,0,0,0,0,67,1,629,10,68,27,24,37,257,138,129,43,52,3,0,34,167,202,174,69,33,25,5.2,516,78,143,53,139,68,35,0,98,5,360,2,51,0,0,0,4,4,0,516,508,6,2,339,15,185,114,19,4,2,0,0,95800,270,0,9,38,111,108,4,0,945,69,325,92,69,50,30,30,68,0,45,0,0,5,23,6,0,0,11,615,9,8,0,7,3,7,11,"Strafford"]
["Milton","48660",1815,1260,11,73,48,30,23,0,349,21,1260,185,370,12,68,102,466,317,93,214,543,7,42,67,340,463,431,247,106,112,5.5,1456,226,327,216,385,182,120,23,166,6,1197,0,64,0,0,0,0,0,18,1456,1443,13,0,719,6,358,286,46,23,0,0,0,99600,540,0,37,45,185,240,26,7,1004,179,337,207,122,126,120,40,97,7,280,0,21,43,124,63,5,0,24,609,54,17,44,29,31,76,29,"Strafford"]
["New Durham","51220",1308,1175,11,12,4,0,0,2,104,0,1175,29,104,32,76,123,327,191,159,231,169,4,30,99,237,305,305,176,86,66,5.4,817,119,208,140,210,80,60,9,105,12,603,0,88,0,0,0,12,6,4,817,803,6,8,532,6,180,221,59,55,11,0,0,117700,383,0,12,10,113,189,46,13,1144,149,397,144,97,98,70,37,82,4,71,0,0,10,23,18,11,0,9,733,18,10,3,9,6,14,11,"Strafford"]
["Rochester","65140",11836,5727,402,707,1133,890,169,563,2239,6,5727,3864,2245,252,647,726,2520,1966,925,1799,3001,55,281,1391,2703,2850,2026,1263,751,516,5,11434,2293,3618,1710,1929,854,1030,2273,1063,739,7069,7,188,0,54,41,86,32,199,11434,11228,157,49,4928,68,2442,1780,427,173,38,0,0,99400,3576,15,62,281,1282,1541,268,127,1036,1352,393,1190,1004,1039,505,458,702,30,3777,217,204,726,1743,595,174,7,111,601,660,594,464,519,267,1123,150,"Strafford"]
["Rollinsford","65540",1060,700,7,109,80,112,19,11,22,0,700,338,22,13,12,52,175,121,90,222,375,0,22,106,151,195,230,176,82,98,5.7,1033,152,247,121,213,96,204,17,138,42,790,12,26,0,5,3,0,0,8,1033,1028,5,0,551,0,113,272,80,47,35,4,0,132000,364,0,0,42,90,155,60,17,1147,187,453,169,138,89,51,24,80,0,301,0,0,73,162,45,4,0,17,621,47,97,40,14,29,57,17,"Strafford"]
["Somersworth","69940",4841,2159,139,489,733,300,159,365,497,0,2159,2185,497,88,116,131,566,916,398,1100,1526,26,146,598,1124,920,994,491,245,297,5.0999999999999996,4687,1164,1397,643,743,374,366,1011,212,257,3157,0,41,0,9,0,24,26,60,4687,4579,91,17,1906,0,842,820,196,39,9,0,0,105500,1380,0,7,103,442,619,174,35,1088,526,454,476,442,364,223,137,256,8,2021,127,179,296,957,321,81,0,60,621,350,396,257,188,204,539,87,"Strafford"]
["Strafford","73860",1564,1389,15,50,13,0,0,0,97,0,1389,78,97,59,85,144,458,297,148,113,260,5,31,84,220,267,396,286,144,131,5.9,1281,146,307,289,288,148,103,7,220,33,855,0,160,0,6,0,0,11,0,1281,1267,14,0,770,4,155,342,194,52,16,7,0,135100,625,0,14,46,142,286,121,16,1219,145,428,223,151,148,103,40,97,8,134,0,4,19,57,13,9,0,32,628,22,30,24,18,4,4,32,"Strafford"]
[]
[]
[]
[]
[]
[]
[]
[]
[]
[]
[]
[]
[]
[]
[]
[]
[]
[]
[]
[]
[]
[]
[]
[]
[]
[]
[]
[]
[]
[]
[]
[]
[]
[]
[]
[]
["Census 2000 SummaryFile3 Sample Data  -  SF3TownQry1SocialChar"]
[]
["TOWN_NAME","LOGRECNO","COUSUB","P01TotalPopulation","P02SampleCountOfPop","P03Pop100pctCount","P05UrbanPopulation","P05RuralPopulation","P06WhiteAlone","P06BlackOrAfAm","P06AmIndAlone","P06AsianAlone","P06HawaiianOrPI","P06OtherRace","P06TwoPlusRaces","P07NotHispanicOrLatino","P07HispanicOrLatino","P08MalePop","P08FemalePop","P09PopInHouseholds","P09PopInFamHH","P09PopInNonFamHH","P09PopInGroupQtr","P13TotalHH","P13FamilyHH","P13FamHHolder15to24yrs","P13FamHHolder25to34yrs","P13FamHHolder35to44yrs","P13FamHHolder45to54yrs","P13FamHHolder55to64yrs","P13FamHHolder65to74yrs","P13FamHHolder75to84yrs","P13FamHHolder85yrsOver","P13NonFamilyHH","P13NonFamHHolder15to24yrs","P13NonFamHHolder25to34yrs","P13NonFamHHolder35to44yrs","P13NonFamHHolder45to54yrs","P13NonFamHHolder55to64yrs","P13NonFamHHolder65to74yrs","P13NonFamHHolder75to84yrs","P13NonFamHHolder85yrsOver","P18Pop15yrsOver","P18MaritalStatNeverMarried","P18MaritalStatNowMarried","P18MaritalStatSeparated","P18MaritalStatWidowed","P18MaritalStatWidowFemale","P18MaritalStatDivorced","P18MaritalStatDivorcedFemale","P21NativeBornPop","P21NatPopBornInState","P21NatPopBornOtherState","P021005","P021006","P021007","P021008","P21NatPopBornOutUS","P21ForeignBornPop","P021014","P021015","P24Pop5YrsPlus","P24ResSameHouseIn95","P24ResDiffHouseIn95","P24ResDiffHouseInUSIn95","P24ResDiffHouseSameCountyIn95","P24ResDiffHouseDiffCountyIn95","P24ResDiffHouseDiffCntySamStIn95","P24ResDiffHouseDiffCntyDifStIn95","P24ResDiffHouseDiffCntyNEStIn95","P24ResDiffHouseDiffCntyMWStIn95","P24ResDiffHouseDiffCntySoStIn95","P24ResDiffHouseDiffCntyWstStIn95","P24ResDiffInPR","P24ResDiffElsewhereIn95","P26Workers16yrsOver","P26WorkedInState","P26WorkedInCnty","P26WorkedOutsideCnty","P26WorkedOutsideState","P30Workers16Over","P30TranspToWrkCar","P30TranspToWrkPublic","P30TranspToWrkOther","P30WrkdAtHome","P31WrkrsNotWrkAtHom","P31TravTim<5min","P31TravTim5to9Min","P31TravTim10to14Min","P31TravTim15to19Min","P31TravTim20to24Min","P31TravTim25to29Min","P31TravTim30to34Min","P31TravTim35to39Min","P31TravTim40to44Min","P31TravTim45to59Min","P31TravTim60to89Min","P31TravTim90MinMore","P31WorkAtHome","P36SchEnrlPop3yrOver","P36NurserSchEnrl","P36KinderSchEnrl","P36ElemSchEnrl","P36HighSchEnrl","P36CollGradSchEnrl","P37Pop25yrsOver","P37EduAtain<9grd","P37EduAtainHSnoDip","P37EduAtainHSgrad","P37EduAtainCollNoDeg","P37EduAtainAssocDeg","P37EduAtainBachDeg","P37EduAtainGradProfDeg","P42NIPop5to15","P42NIPop5to15wDisabl","P42NIPop16to20","P42NIPop16to20wDisab","P42NIPop16to20wDisEmp","P42NIPop16to21NoDis","P42NIPop16to21NoDisEmpl","P42NIPop21to64","P42NIPop21to64wDis","P42NIPop21to64wDisEmp","P42NIPop21to64NoDis","P42NIPop21to64NoDisEmp","P42NIPop65to74","P42NIPop65to74wDis","P42NIPop75Over","P42NIPop75OverwDis","P43Pop16YrsOver","P43Pop16OvrInLaborForce","P43Pop16OvrCivlLabFrc","P43Pop16OvrCivlLbrFrcEmp","P48Families","P48MarriedFam","P48MarrFamNoWorkers","P48MarrFam1Worker","P48MarrFam2Worker","P48MarrFamHusbWifeWorked","P48MarrFamOther","P48MarrFam3PlusWorker","P48MarrFam3WorkHsbWif","P48MarrFam3PlsWrkOther","P48OtherFam","P48MaleHHNoWif","P48MaleHHNoWifNoWorker","P48MaleHHNoWif1Worker","P48MaleHHNoWif2Worker","P48MaleHHNoWif3PlusWorker","P48FemaleHHNoHsb","P48FemaleHHNoHsbNoWorker","P48FemaleHHNoHsb1Worker","P48FemaleHHNoHsb2Worker","P48FemaleHHNoHsb3Worker","P49EmpCivPop16YrOver","P49IndustAgricult","P49IndustConst","P49IndustMnftg","P49IndustWhlslTrd","P49IndustRtlTrd","P49IndustTrspWrhsUtlt","P49IndustInfrm","P49IndustFinInsRE","P49IndustPrfsScntfMngmt","P49IndustEduHlthSocSrv","P49IndustArtsEntRec","P49IndustOthrSrvc","P49IndustPubAdm","P50OccupMngmtProfs","P50OccupService","P50OccupSalesOff","P50OccupFarmFishForest","P50OccupConstExtrctMaint","P50OccupPrdctTrnspMatMv"]
["Barrington","0003823","03460",7475,889,7475,0,7475,7328,78,0,40,0,18,11,7405,70,3821,3654,7467,6552,915,8,2767,2096,29,325,705,513,289,176,53,6,671,14,118,144,166,121,78,30,0,5757,1261,3586,21,263,211,626,284,7333,3863,3421,2687,193,283,258,49,142,48,94,7017,4296,2721,2692,1241,1451,631,820,463,59,158,140,0,29,4192,3779,2361,1418,413,4192,3912,42,359,194,3998,34,238,390,613,781,379,624,140,178,299,243,79,194,7155,64,152,1000,447,421,4986,92,356,1458,1124,587,983,386,1377,64,423,36,18,387,226,4666,658,420,4008,3455,368,96,160,77,5640,4314,4299,4221,2096,1727,125,268,1036,994,42,298,298,0,369,159,0,102,21,36,210,23,122,53,12,4221,86,365,760,78,584,268,37,268,349,887,197,150,192,1593,507,1054,16,450,601]
["Dover","0003832","18820",26884,3679,26884,24900,1984,25266,292,82,712,0,66,466,26611,273,12983,13901,26125,19168,6957,759,11542,6525,179,1346,1884,1301,764,654,346,51,5017,876,1121,847,669,462,416,394,232,22237,7159,10716,433,1437,1223,2492,1397,25530,12388,12727,9623,1101,1262,741,415,1354,714,640,25347,11568,13779,13411,6000,7411,3409,4002,2814,310,575,303,0,368,15022,13479,7668,5811,1543,15022,13976,148,2004,414,14608,631,1802,2600,2744,2751,971,1191,205,143,627,703,240,414,25939,410,325,2508,1261,2290,18267,821,1360,4578,3915,1669,4023,1901,3423,181,1446,230,158,1216,819,16570,2250,1339,14320,12424,1793,527,1426,648,21908,15782,15747,15261,6525,4963,582,909,2822,2736,86,650,622,28,1562,482,26,232,224,0,1080,86,705,240,49,15261,73,686,2349,513,2251,537,461,1492,1290,3164,1208,665,572,5992,1973,4477,66,889,1864]
["Durham","0003871","19700",12664,1742,12664,10597,2067,12007,99,32,318,11,42,155,12508,156,5781,6883,8078,4771,3307,4586,2887,1577,15,192,408,394,239,198,108,23,1310,778,127,55,110,38,85,91,26,11485,7592,3312,73,181,149,327,208,11857,3629,8065,6077,699,733,556,163,807,213,594,12346,4030,8316,7814,677,7137,3083,4054,3315,215,316,208,0,502,5858,5471,3786,1685,387,5858,3692,213,1939,243,5615,574,1284,966,983,725,205,314,31,69,239,162,63,243,12475,148,92,680,350,7353,3988,40,58,278,442,242,1325,1603,957,45,4702,186,112,4516,1786,5868,416,291,5452,3838,450,86,360,98,11389,6946,6937,6171,1577,1387,154,326,740,673,67,167,147,20,190,30,5,12,5,8,160,10,143,3,4,6171,75,126,352,132,790,138,129,276,585,2168,1078,172,150,2684,1353,1604,39,185,306]
["Farmington","0003904","26020",5774,745,5774,0,5774,5701,0,31,0,0,15,27,5700,74,2856,2918,5747,4941,806,27,2134,1509,74,280,435,367,162,108,74,9,625,40,52,70,127,182,89,47,18,4424,1043,2520,115,251,176,495,251,5690,3528,2097,1774,134,118,71,65,84,60,24,5402,3338,2064,2052,1215,837,281,556,412,14,104,26,0,12,2741,2472,1847,625,269,2741,2597,7,430,55,2686,67,287,325,311,369,267,310,95,85,353,135,82,55,5561,82,123,783,384,129,3712,380,620,1311,774,260,257,110,1046,134,442,111,49,331,165,3317,920,532,2397,1987,335,137,262,137,4356,2951,2951,2792,1509,1199,110,222,656,577,79,211,185,26,310,100,7,69,15,9,210,22,121,52,15,2792,50,186,856,90,321,135,80,90,134,473,186,103,88,649,423,543,25,386,766]
["Lee","0003919","41460",4145,623,4145,17,4128,3986,11,0,104,0,0,44,4069,76,2120,2025,4126,3536,590,19,1469,1082,15,195,356,318,108,60,27,3,387,52,56,100,51,42,53,22,11,3132,772,1905,63,104,67,288,161,3901,1703,2187,1624,239,232,92,11,244,131,113,3875,1975,1900,1850,694,1156,592,564,326,52,93,93,0,50,2339,1999,1138,861,340,2339,2102,0,303,186,2153,20,255,300,219,326,229,359,68,55,120,138,64,186,3992,67,55,637,309,228,2569,36,89,432,463,198,787,564,826,69,252,17,17,235,116,2438,305,230,2133,1894,176,23,116,61,3049,2401,2334,2305,1082,921,55,114,613,605,8,139,125,14,161,35,9,26,0,0,126,12,94,8,12,2305,27,95,270,51,245,44,69,148,312,687,129,63,165,1184,263,530,3,147,178]
["Madbury","0003928","44820",1509,723,1509,203,1306,1451,0,2,21,0,9,26,1495,14,757,752,1509,1324,185,0,535,409,4,36,145,112,58,35,17,2,126,17,37,20,14,10,18,10,0,1145,287,716,14,44,37,84,43,1444,666,764,544,88,80,52,14,65,28,37,1433,906,527,516,227,289,119,170,78,19,47,26,0,11,803,738,472,266,65,803,728,2,63,59,744,16,72,127,187,120,48,71,3,16,30,30,24,59,1477,37,25,228,112,93,964,10,64,178,164,61,272,215,312,16,106,2,2,104,48,894,56,32,838,712,76,24,42,23,1121,843,840,820,409,337,24,63,215,205,10,35,32,3,72,24,4,11,4,5,48,5,21,20,2,820,13,55,112,14,64,35,21,36,98,244,74,27,27,395,115,170,5,71,64]
["Middleton","0003935","47700",1441,665,1440,0,1441,1411,0,0,4,0,3,23,1432,9,746,695,1441,1263,178,0,526,396,4,51,151,76,51,44,17,2,130,6,12,40,27,26,12,6,1,1119,243,662,24,43,23,147,77,1413,823,575,495,20,39,21,15,28,26,2,1339,772,567,562,373,189,92,97,60,2,29,6,0,5,750,691,467,224,59,750,691,11,9,26,724,8,37,52,78,124,45,102,20,37,120,60,41,26,1376,19,15,191,115,41,943,54,160,396,187,71,52,23,235,10,126,7,6,119,60,829,146,85,683,576,103,22,40,18,1104,781,775,758,396,319,33,76,154,141,13,56,53,3,77,37,0,28,7,2,40,2,21,5,12,758,9,110,199,15,82,33,5,25,43,121,44,40,32,157,125,140,5,142,189]
["Milton","0003940","48660",3910,585,3910,1329,2581,3771,0,33,0,0,0,106,3905,5,1938,1972,3910,3447,463,0,1440,1076,16,165,355,244,136,108,52,0,364,37,29,93,70,55,47,29,4,3026,712,1798,67,135,114,314,144,3888,2322,1531,1269,86,132,44,35,22,19,3,3674,2310,1364,1364,849,515,169,346,286,17,31,12,0,0,1945,1794,1360,434,151,1945,1854,0,166,40,1905,87,100,149,277,241,117,308,124,129,127,139,107,40,3756,25,65,548,219,119,2587,196,278,1077,620,177,153,86,707,76,239,69,50,170,70,2320,451,285,1869,1504,267,103,132,75,2967,2047,2038,1981,1076,858,91,149,517,454,63,101,94,7,218,94,5,69,14,6,124,20,68,36,0,1981,0,171,623,72,264,113,13,116,112,278,94,80,45,399,272,567,5,231,507]
["New Durham","0003950","51220",2219,1020,2220,0,2219,2195,4,5,3,0,8,4,2203,16,1158,1061,2216,1976,240,3,805,630,4,94,202,153,77,71,29,0,175,6,17,41,33,22,28,24,4,1709,324,1138,19,78,61,150,66,2190,1180,994,810,44,95,45,16,29,16,13,2069,1289,780,776,389,387,184,203,113,6,44,40,0,4,1159,1072,646,426,87,1159,1084,0,14,44,1115,20,61,118,97,126,57,154,64,77,181,98,62,44,2133,11,47,301,139,98,1504,29,122,508,338,133,263,111,399,37,123,18,16,105,58,1300,289,226,1011,867,164,59,79,30,1670,1219,1215,1189,630,554,77,81,311,295,16,85,82,3,76,38,2,29,7,0,38,2,18,16,2,1189,12,95,294,43,142,41,19,50,107,219,67,44,56,386,158,249,6,139,251]
["Rochester","0003956","65140",28461,3853,28461,22614,5847,27753,110,5,191,11,76,315,28129,332,13857,14604,28168,23509,4659,293,11397,7671,266,1520,2076,1578,985,832,370,44,3726,216,592,605,568,504,510,539,192,22490,5246,12431,401,1468,1278,2944,1665,27738,16186,11203,8937,819,955,492,349,723,417,306,26567,13721,12846,12721,7981,4740,1603,3137,1890,240,695,312,0,125,14407,13412,9640,3772,995,14407,13616,86,1659,332,14075,450,1681,2294,2125,2202,813,1870,406,451,929,587,267,332,27274,489,302,3387,1635,1080,19122,1009,2271,7264,4004,1666,1953,955,4502,384,1719,154,70,1565,941,16484,3336,2104,13148,11223,2074,779,1535,755,22045,15252,15232,14668,7671,5986,719,1072,3216,3116,100,979,931,48,1685,457,43,267,124,23,1228,110,795,213,110,14668,119,767,3525,384,2394,634,407,846,997,2549,852,567,627,3673,2288,4022,53,1425,3207]
["Rollinsford","0004003","65540",2648,631,2648,2428,220,2597,18,0,0,0,0,33,2631,17,1314,1334,2648,2275,373,0,1043,740,21,119,216,136,117,86,36,9,303,31,62,58,44,25,39,37,7,2089,467,1286,15,130,97,191,88,2602,1614,971,761,44,104,62,17,46,37,9,2470,1617,853,853,505,348,89,259,186,37,21,15,0,0,1481,1269,864,405,212,1481,1406,4,126,50,1431,34,164,246,220,218,129,193,34,31,67,53,42,50,2550,70,24,320,155,146,1799,76,125,649,313,155,357,124,423,30,168,12,12,156,115,1555,281,219,1274,1117,197,79,127,64,2047,1535,1535,1511,740,639,81,105,337,322,15,116,113,3,101,47,4,19,19,5,54,4,34,12,4,1511,16,97,250,84,277,65,19,95,96,263,111,54,84,471,205,511,8,104,212]
["Somersworth","0004012","69940",11477,1370,11477,11175,302,11007,82,19,81,41,20,227,11299,178,5447,6030,11445,9417,2028,32,4704,3092,157,773,781,638,283,287,158,15,1612,55,228,328,255,305,163,185,93,8923,2147,4696,130,594,508,1356,870,11272,6483,4699,3721,329,403,246,90,205,83,122,10673,5191,5482,5471,3314,2157,807,1350,780,59,276,235,0,11,5721,5070,3159,1911,651,5721,5406,43,705,82,5639,146,664,831,891,897,533,677,147,205,375,147,126,82,10988,167,187,1450,579,511,7518,462,714,2628,1552,745,1009,408,1861,228,750,53,34,697,380,6646,1320,763,5326,4461,729,145,630,403,8780,6117,6092,5853,3092,2323,259,425,1325,1284,41,314,295,19,769,170,0,118,39,13,599,79,404,97,19,5853,63,295,1369,184,859,213,110,229,386,1145,422,321,257,1849,822,1470,33,572,1107]
["Strafford","0004033","73860",3626,851,3626,0,3626,3578,8,0,3,0,0,37,3602,24,1821,1805,3617,3316,301,9,1282,1037,9,165,321,336,112,67,21,6,245,5,10,58,46,43,38,25,20,2754,569,1789,26,156,118,214,134,3562,1928,1585,1256,115,154,60,49,64,39,25,3411,2160,1251,1235,588,647,465,182,111,4,55,12,0,16,1985,1851,956,895,134,1985,1930,0,0,55,1930,25,87,170,106,194,93,329,152,140,396,159,79,55,3508,42,68,566,262,147,2360,38,132,655,516,347,469,203,735,54,223,25,16,198,109,2166,224,147,1942,1683,181,52,98,60,2676,2078,2070,2004,1037,879,33,119,560,530,30,167,164,3,158,34,0,31,3,0,124,11,52,49,12,2004,28,161,363,44,265,100,51,103,168,483,84,82,72,782,221,481,13,216,291]
[]
[]
[]
[]
[]
[]
[]
[]
[]
[]
[]
[]
[]
[]
[]
[]
[]
[]
[]
[]
[]
[]
[]
[]
[]
[]
[]
[]
[]
[]
[]
[]
[]
[]
["Census 2000 SummaryFile3 Sample Data  -  SF3TownQry2aIncomeChar"]
[]
["TOWN_NAME","LOGRECNO","COUSUB","TotalPop","P52Households1","P52HHInc<10K","P52HHInc10to15K","P52HHInc15to20K","P52HHInc20to25K","P52HHInc25to30K","P52HHInc30to35K","P52HHInc35to40K","P52HHInc40to45K","P52HHInc45to50K","P52HHInc50to60K","P52HHInc60to75K","P52HHInc75to100K","P52HHInc100to125K","P52HHInc125to150K","P52HHInc150to200K","P52HHInc>200K","P53MedianHHInc","P54AggregHHInc","P55Households2","P55HHUnder25yrs","P55HH<25HHInc<10K","P55HH<25HHInc10to15K","P55HH<25HHInc15to20K","P55HH<25HHInc20to25K","P55HH<25HHInc25to30K","P55HH<25HHInc30to35K","P55HH<25HHInc35to40K","P55HH<25HHInc40to45K","P55HH<25HHInc45to50K","P55HH<25HHInc50to60K","P55HH<25HHInc60to75K","P55HH<25HHInc75to100K","P55HH<25HHInc100to125K","P55HH<25HHInc125to150K","P55HH<25HHInc150to200K","P55HH<25HHInc>200K","P55HH25to34yrs","P55HH25to34HHInc<10K","P55HH25to34HHInc10to15K","P55HH25to34HHInc15to20K","P55HH25to34HHInc20to25K","P55HH25to34HHInc25to30K","P55HH25to34HHInc30to35K","P55HH25to34HHInc35to40K","P55HH25to34HHInc40to45K","P55HH25to34HHInc45to50K","P55HH25to34HHInc50to60K","P55HH25to34HHInc60to75K","P55HH25to34HHInc75to100K","P55HH25to34HHInc100to125K","P55HH25to34HHInc125to150K","P55HH25to34HHInc150to200K","P55HH25to34HHInc>200K","P55HH35to44yrs","P55HH35to44HHInc<10K","P55HH35to44HHInc10to15K","P55HH35to44HHInc15to20K","P55HH35to44HHInc20to25K","P55HH35to44HHInc25to30K","P55HH35to44HHInc30to35K","P55HH35to44HHInc35to40K","P55HH35to44HHInc40to45K","P55HH35to44HHInc45to50K","P55HH35to44HHInc50to60K","P55HH35to44HHInc60to75K","P55HH35to44HHInc75to100K","P55HH35to44HHInc100to125K","P55HH35to44HHInc125to150K","P55HH35to44HHInc150to200K","P55HH35to44HHInc>200K","P55HH45to54yrs","P55HH45to55HHInc<10K","P55HH45to55HHInc10to15K","P55HH45to55HHInc15to20K","P55HH45to55HHInc20to25K","P55HH45to55HHInc25to30K","P55HH45to55HHInc30to35K","P55HH45to55HHInc35to40K","P55HH45to55HHInc40to45K","P55HH45to55HHInc45to50K","P55HH45to55HHInc50to60K","P55HH45to55HHInc60to75K","P55HH45to55HHInc75to100K","P55HH45to55HHInc100to125K","P55HH45to55HHInc125to150K","P55HH45to55HHInc150to200K","P55HH45to55HHInc>200K","P55HH55to64yrs","P55HH55to64HHInc<10K","P55HH55to64HHInc10to15K","P55HH55to64HHInc15to20K","P55HH55to64HHInc20to25K","P55HH55to64HHInc25to30K","P55HH55to64HHInc30to35K","P55HH55to64HHInc35to40K","P55HH55to64HHInc40to45K","P55HH55to64HHInc45to50K","P55HH55to64HHInc50to60K","P55HH55to64HHInc60to75K","P55HH55to64HHInc75to100K","P55HH55to64HHInc100to125K","P55HH55to64HHInc125to150K","P55HH55to64HHInc150to200K","P55HH55to64HHInc>200K","P55HH65to74yrs","P55HH65to74HHInc<10K","P55HH65to74HHInc10to15K","P55HH65to74HHInc15to20K","P55HH65to74HHInc20to25K","P55HH65to74HHInc25to30K","P55HH65to74HHInc30to35K","P55HH65to74HHInc35to40K","P55HH65to74HHInc40to45K","P55HH65to74HHInc45to50K","P55HH65to74HHInc50to60K","P55HH65to74HHInc60to75K","P55HH65to74HHInc75to100K","P55HH65to74HHInc100to125K","P55HH65to74HHInc125to150K","P55HH65to74HHInc150to200K","P55HH65to74HHInc>200K","P55HH>75yrs","P55HH>75HHInc<10K","P55HH>75HHInc10to15K","P55HH>75HHInc15to20K","P55HH>75HHInc20to25K","P55HH>75HHInc25to30K","P55HH>75HHInc30to35K","P55HH>75HHInc35to40K","P55HH>75HHInc40to45K","P55HH>75HHInc45to50K","P55HH>75HHInc50to60K","P55HH>75HHInc60to75K","P55HH>75HHInc75to100K","P55HH>75HHInc100to125K","P55HH>75HHInc125to150K","P55HH>75HHInc150to200K","P55HH>75HHInc>200K","P56MedHHInc","P56MedHHIncHH<25y","P56MedHHIncHH25to34y","P56MedHHIncHH35to44y","P56MedHHIncHH45to54y","P56MedHHIncHH55to64y","P56MedHHIncHH65to74y","P56MedHHIncHH>75y","P58Households3","P58HHwithEarnings","P58HHNoEarnings","P59HHwWageSalInc","P59HHNoWageSalInc","P60HHwSelfEmpInc","P60HHNoSelfEmpInc","P61HHwIndDivInc","P61HHNoIndDivInc","P62HHwSocSecInc","P62HHNoSocSecInc","P63HHwSSI","P63HHNoSSI","P64HHwPubAssInc","P64HHNoPubAssInc","P65HHwRetInc","P65HHNoRetInc","P66HHwOtherTypInc","P66HHNoOtherTypInc","P67AggregEarnings","P68AggregWageSalInc","P69AggregSelfEmpInc","P70AggregIntDivInc","P71AggregSocSecInc","P72AggregSSIInc","P73AggregPublicAssInc","P74AggregRetireInc","P76Families1","P76FamInc<10K","P76FamInc10to15K","P76FamInc15to20K","P76FamInc20to25K","P76FamInc25to30K","P76FamInc30to35K","P76FamInc35to40K","P76FamInc40to45K","P76FamInc45to50K","P76FamInc50to60K","P76FamInc60to75K","P76FamInc75to100K","P76FamInc100to125K","P76FamInc125to150K","P76FamInc150to200K","P76FamInc>200K","P77MedFamInc","P78AggregFamInc","P79NonFamHH","P79NonFamHHwInc<10K","P79NonFamHHwInc10to15K","P79NonFamHHwInc15to20K","P79NonFamHHwInc20to25K","P79NonFamHHwInc25to30K","P79NonFamHHwInc30to35K","P79NonFamHHwInc35to40K","P79NonFamHHwInc40to45K","P79NonFamHHwInc45to50K","P79NonFamHHwInc50to60K","P79NonFamHHwInc60to75K","P79NonFamHHwInc75to100K","P79NonFamHHwInc100to125K","P79NonFamHHwInc125to150K","P79NonFamHHwInc150to200K","P79NonFamHHwInc200KorMore","P80MedNonFamInc","P82PerCapitaInc"]
["Barrington","0003823","03460",7475,2767,73,106,54,130,233,209,174,154,220,300,360,538,146,18,52,0,50630,155379000,2767,43,4,0,0,10,0,10,7,0,12,0,0,0,0,0,0,0,443,36,17,5,8,23,28,29,45,22,72,43,69,35,0,11,0,849,0,23,11,31,47,30,35,42,71,98,167,229,45,0,20,0,679,13,21,11,28,70,41,45,41,64,71,72,138,33,18,13,0,410,0,0,9,9,33,58,35,8,33,44,69,71,33,0,8,0,254,8,32,18,35,44,32,18,9,18,9,0,31,0,0,0,0,89,12,13,0,9,16,10,5,9,0,6,9,0,0,0,0,0,50630,31875,51012,62974,50724,51429,28611,29141,2767,2489,278,2413,354,459,2308,1043,1724,502,2265,36,2731,64,2703,453,2314,361,2406,135568400,123014900,12553500,4444500,5970100,163100,71300,6515700,2096,43,47,33,105,160,128,93,116,150,212,311,508,133,18,39,0,56136,126321800,671,38,67,31,44,84,72,64,46,51,77,49,22,17,0,9,0,34963,21012]
["Dover","0003832","18820",26884,11542,785,665,619,568,843,921,666,809,598,1132,1510,1236,604,239,200,147,43873,617325200,11542,1055,125,134,139,90,131,78,80,41,76,65,69,17,0,10,0,0,2467,77,49,102,120,152,182,185,216,156,339,445,269,98,38,26,13,2731,140,103,46,72,159,225,203,224,153,239,422,363,226,69,47,40,1970,78,38,52,91,113,167,44,144,71,217,326,337,168,53,43,28,1226,111,82,46,26,99,61,27,57,43,146,126,182,74,29,71,46,1070,53,100,120,101,107,91,88,69,59,69,90,47,28,30,5,13,1023,201,159,114,68,82,117,39,58,40,57,32,21,10,10,8,7,43873,26317,49824,51985,58295,53938,33150,22939,11542,9714,1828,9422,2120,1310,10232,4838,6704,2528,9014,265,11277,366,11176,1884,9658,1360,10182,509542900,471652700,37890300,34470500,28953900,1739200,961400,31810400,6525,215,176,187,249,378,471,300,421,331,745,1005,1087,503,176,151,130,57050,424292600,5017,593,491,461,328,490,456,385,414,287,360,470,131,66,32,36,17,31246,23459]
["Durham","0003871","19700",12664,2887,270,235,212,148,135,93,101,55,130,295,180,372,272,96,165,128,51697,196677100,2887,793,210,106,129,77,46,28,36,14,55,33,24,35,0,0,0,0,319,21,19,29,17,45,4,9,18,8,62,26,30,11,6,14,0,463,17,28,21,13,0,12,5,0,16,52,50,102,54,26,34,33,504,15,7,0,22,7,19,24,13,38,39,40,88,87,27,42,36,277,0,0,8,0,0,5,0,10,13,13,16,67,42,18,54,31,283,7,32,11,7,17,11,11,0,0,62,6,32,46,0,19,22,248,0,43,14,12,20,14,16,0,0,34,18,18,32,19,2,6,51697,18622,43750,77365,85315,103038,56902,51250,2887,2485,402,2434,453,559,2328,1669,1218,563,2324,23,2864,45,2842,486,2401,325,2562,152019200,139411200,12608000,17678800,7750900,164700,107500,15429400,1577,24,35,47,45,31,47,24,18,52,186,154,299,247,86,158,124,83609,155059400,1310,246,203,165,100,104,51,77,37,93,109,35,53,20,12,5,0,22621,17210]
["Farmington","0003904","26020",5774,2134,207,139,121,211,72,146,138,184,89,237,260,193,93,19,22,3,40971,97227000,2134,114,16,16,9,15,6,17,9,10,8,0,8,0,0,0,0,0,332,14,30,5,37,8,8,37,0,24,64,70,24,11,0,0,0,505,20,0,23,30,17,29,36,60,24,74,44,86,44,9,6,3,494,14,26,0,14,17,24,15,92,12,75,106,50,32,10,7,0,344,72,34,27,64,0,44,0,16,14,24,13,21,6,0,9,0,197,43,8,30,27,18,18,22,0,0,0,19,12,0,0,0,0,148,28,25,27,24,6,6,19,6,7,0,0,0,0,0,0,0,40971,25417,50536,51250,53203,23438,21620,19286,2134,1819,315,1801,333,194,1940,563,1571,549,1585,128,2006,118,2016,318,1816,312,1822,84494000,81948900,2545100,1835100,5256300,827900,317500,2353300,1509,51,65,82,109,61,132,110,150,66,180,241,189,61,9,0,3,44788,75184000,625,172,58,45,112,26,23,37,24,23,51,19,0,9,10,16,0,21736,16574]
["Lee","0003919","41460",4145,1469,61,59,32,72,62,72,49,88,103,167,165,281,123,85,32,18,57993,96838400,1469,67,9,9,10,8,0,8,0,6,0,0,0,3,14,0,0,0,251,9,19,0,14,6,10,12,34,50,0,45,22,11,19,0,0,456,19,14,0,25,12,9,18,27,20,54,80,108,37,15,18,0,369,0,0,0,7,13,26,6,21,21,65,12,103,48,34,7,6,150,4,6,4,12,13,8,0,0,6,16,10,37,13,9,7,5,113,10,11,18,6,18,6,6,0,0,18,4,8,0,8,0,0,63,10,0,0,0,0,5,7,0,6,14,14,0,0,0,0,7,57993,21719,46629,66136,76130,62143,28839,51094,1469,1311,158,1263,206,292,1177,702,767,230,1239,29,1440,5,1464,178,1291,152,1317,83184200,77995600,5188600,5832200,3058400,219200,17500,3813300,1082,20,32,7,22,40,52,21,73,99,134,133,227,96,76,32,18,62330,79159300,387,41,36,25,50,18,37,28,23,4,33,14,49,22,7,0,0,31895,23905]
["Madbury","0003928","44820",1509,535,19,28,25,25,15,26,21,44,31,44,71,104,24,17,22,19,57981,38691700,535,21,1,4,6,0,1,0,0,3,3,0,0,0,0,0,0,3,73,7,14,3,9,0,0,2,0,5,8,11,5,5,0,1,3,165,2,4,2,6,7,11,8,12,4,24,22,32,13,10,3,5,126,0,0,1,1,2,7,6,4,12,1,28,39,4,4,15,2,68,5,2,4,4,2,0,2,5,0,9,8,18,2,0,3,4,53,0,4,2,5,3,5,0,17,7,2,2,4,0,0,0,2,29,4,0,7,0,0,3,3,3,0,0,0,6,0,3,0,0,57981,19375,45938,61563,76605,63750,41705,35417,535,480,55,463,72,97,438,277,258,93,442,10,525,7,528,83,452,52,483,33074600,30480300,2594400,2382400,927700,67100,3300,1776800,409,9,12,12,13,8,21,12,39,15,33,64,93,21,18,21,18,67981,32894400,126,10,19,13,12,7,4,9,7,12,16,5,8,3,0,0,1,32500,26524]
["Middleton","0003935","47700",1440,526,22,19,19,31,52,28,52,51,36,71,57,52,16,7,8,5,43942,26551700,526,10,2,0,1,0,5,0,0,0,0,0,0,0,2,0,0,0,63,0,0,2,2,3,7,4,9,7,9,10,4,0,3,0,3,191,2,2,4,4,20,16,21,11,13,30,30,24,6,2,6,0,103,6,4,4,2,0,2,16,12,6,18,9,12,6,2,2,2,77,7,5,4,11,8,1,9,10,4,8,2,8,0,0,0,0,56,2,4,4,8,11,2,2,4,5,6,2,4,2,0,0,0,26,3,4,0,4,5,0,0,5,1,0,4,0,0,0,0,0,43942,27500,46607,50893,49688,35893,28750,27500,526,465,61,444,82,103,423,160,366,122,404,19,507,7,519,76,450,83,443,22801800,20733200,2068600,466800,1301900,153900,5600,1083800,396,11,11,6,22,34,26,35,33,30,64,46,49,14,5,10,0,48529,21149500,130,13,10,11,12,15,8,16,15,6,12,7,0,2,0,0,3,33333,18415]
["Milton","0003940","48660",3910,1440,68,58,64,100,99,100,133,108,132,166,204,140,27,14,27,0,44194,69519000,1440,53,5,0,6,0,5,9,19,0,0,9,0,0,0,0,0,0,194,21,0,7,25,26,5,21,19,9,21,30,5,5,0,0,0,448,7,19,7,7,31,24,32,44,37,64,92,59,12,0,13,0,314,0,10,14,21,17,15,28,22,27,12,69,52,10,6,11,0,191,18,6,6,19,6,13,6,11,29,37,13,16,0,8,3,0,155,5,10,18,5,5,30,24,10,30,14,0,4,0,0,0,0,85,12,13,6,23,9,4,3,2,0,9,0,4,0,0,0,0,44194,35469,37167,52794,51250,48073,35703,21917,1440,1232,208,1204,236,211,1229,496,944,345,1095,92,1348,73,1367,248,1192,183,1257,57427800,51470200,5957600,2688700,4150900,682800,252900,2748900,1076,37,50,28,75,75,70,67,82,102,136,176,127,10,14,27,0,48033,55135500,364,37,32,43,26,28,32,55,12,30,30,24,4,11,0,0,0,33095,18092]
["New Durham","0003950","51220",2220,805,33,23,32,47,53,28,46,64,42,132,116,105,52,6,11,15,52270,48331900,805,10,1,0,2,0,0,0,2,0,2,0,0,3,0,0,0,0,111,2,2,0,6,4,4,0,13,3,26,38,10,2,0,1,0,243,6,2,5,6,14,4,20,17,21,43,33,33,29,0,5,5,186,7,5,9,9,4,4,4,8,6,37,28,43,11,2,5,4,99,4,0,4,10,4,10,8,10,4,12,9,8,10,0,0,6,99,9,8,7,8,13,4,8,14,6,6,6,6,0,4,0,0,57,4,6,5,8,14,2,4,2,0,8,2,2,0,0,0,0,52270,41250,56806,55859,60000,42375,35417,26250,805,670,135,651,154,129,676,304,501,194,611,33,772,22,783,138,667,128,677,39028900,36935400,2093500,3824400,2148700,204300,50600,2199000,630,14,10,25,32,41,29,42,51,33,109,96,83,40,4,6,15,52941,39306800,175,21,13,7,17,15,4,10,8,11,15,15,22,10,2,5,0,40156,22139]
["Rochester","0003956","65140",28461,11397,857,765,696,850,702,898,816,904,733,1170,1331,965,401,108,118,83,40596,531067100,11397,482,60,56,17,75,30,43,69,41,33,8,27,23,0,0,0,0,2112,117,117,130,133,154,130,159,203,210,285,304,113,31,26,0,0,2681,105,102,68,130,179,181,171,226,186,358,435,295,184,30,19,12,2146,125,59,72,128,86,167,150,201,101,270,276,329,87,52,31,12,1489,119,53,69,113,51,130,111,131,153,128,143,138,66,0,48,36,1342,130,141,200,121,114,173,108,67,31,57,122,39,25,0,14,0,1145,201,237,140,150,88,74,48,35,19,64,24,28,8,0,6,23,40596,30313,42302,49740,49149,43917,28250,19771,11397,9126,2271,8956,2441,994,10403,3672,7725,3160,8237,439,10958,625,10772,2234,9163,1743,9654,427659500,407922300,19737300,23516400,34125200,2767100,1751100,27282400,7671,307,345,383,393,375,555,499,628,630,991,1060,858,378,102,96,71,47324,411636500,3726,603,501,345,473,312,379,273,255,86,154,208,86,11,6,22,12,24244,18859]
["Rollinsford","0004003","65540",2648,1043,47,62,62,48,42,49,103,62,77,85,163,141,37,15,23,27,48588,64554500,1043,52,0,10,19,0,5,0,0,0,13,0,0,0,0,0,0,5,181,7,9,0,9,13,8,46,12,14,24,14,14,3,3,5,0,274,8,12,6,4,0,19,25,14,21,16,63,59,11,0,9,7,180,16,5,0,4,4,5,11,13,10,8,42,40,3,8,0,11,142,8,0,5,3,4,4,9,12,3,28,40,12,14,0,0,0,125,0,5,17,19,16,5,12,4,11,5,0,16,6,4,5,0,89,8,21,15,9,0,8,0,7,5,4,4,0,0,0,4,4,48588,19605,39830,61579,65000,53958,37604,20208,1043,867,176,853,190,127,916,456,587,285,758,16,1027,13,1030,226,817,154,889,49318300,45621600,3696600,4888700,3152500,146400,5300,5915600,740,11,21,17,19,30,42,58,26,61,77,148,150,28,16,14,22,60625,53319300,303,36,41,45,29,18,11,39,36,12,8,18,0,0,0,5,5,25250,24444]
["Somersworth","0004012","69940",11477,4704,427,249,213,346,320,303,262,374,399,499,608,457,173,17,45,12,42739,223938000,4704,212,61,22,10,6,10,9,24,11,27,5,17,10,0,0,0,0,1001,57,45,32,77,70,62,43,116,118,119,137,80,45,0,0,0,1109,37,14,28,64,80,63,70,62,132,162,176,110,89,9,13,0,893,60,21,19,24,65,39,44,71,58,160,136,152,30,8,0,6,588,44,36,43,76,28,52,26,69,44,24,75,62,9,0,0,0,450,40,49,42,34,36,42,41,30,11,7,53,27,0,0,32,6,451,128,62,39,65,31,36,14,15,9,22,14,16,0,0,0,0,42739,26750,44896,50163,53609,38690,33448,19583,4704,3821,883,3803,901,318,4386,1594,3110,1224,3480,217,4487,286,4418,879,3825,807,3897,178476500,173811900,4664600,5561300,13185500,1116300,777200,19192200,3092,140,138,128,170,149,211,174,256,304,328,513,377,136,17,45,6,47933,162672000,1612,315,122,100,210,158,92,94,111,109,139,71,56,29,0,0,6,26536,19592]
["Strafford","0004033","73860",3626,1282,29,43,21,47,55,68,54,84,89,164,191,256,108,31,21,21,59044,85354300,1282,14,0,0,0,5,6,0,3,0,0,0,0,0,0,0,0,0,175,6,4,0,4,8,20,6,16,6,14,24,44,9,10,4,0,379,0,0,0,0,4,25,20,39,29,74,68,63,34,12,6,5,382,4,5,3,12,8,11,17,4,38,39,59,121,33,4,8,16,155,4,0,4,14,8,4,4,14,7,11,37,25,20,0,3,0,105,0,15,4,7,21,4,4,11,4,20,3,3,4,5,0,0,72,15,19,10,5,0,4,0,0,5,6,0,0,8,0,0,0,59044,25833,65313,59750,72250,63281,35938,16000,1282,1156,126,1132,150,248,1034,589,693,253,1029,25,1257,19,1263,167,1115,145,1137,71847600,65155200,6692400,6304200,3235100,117600,55100,2848000,1037,6,15,7,36,30,55,46,62,68,155,186,214,89,26,21,21,62238,73803000,245,23,28,14,18,25,17,11,14,25,15,15,20,15,5,0,0,34306,23500]
[]
[]
[]
[]
[]
[]
[]
[]
[]
[]
[]
[]
[]
[]
[]
[]
[]
[]
[]
[]
[]
[]
[]
[]
[]
[]
[]
[]
[]
[]
[]
[]
[]
[]
["Census 2000 SummaryFile3 Sample Data  -  SF3TownQry2bPovertyChar"]
[]
["TOWN_NAME","LOGRECNO","COUSUB","TotalPop","P52Households1","P82PerCapitaInc","P87PopForPovStatus","P87PopWIncBelowPovStatus","P87PopUnder5yrBelowPoverty","P87Pop5yrBelowPoverty","P87Pop5to11yrBelowPoverty","P87Pop12to17yrBelowPoverty","P87Pop18to64yrBelowPoverty","P87Pop65to74yrBelowPoverty","P87PopOver75yrBelowPoverty","P87PopWIncAbovePovStatus","P87PopUnder5yrAbovePoverty","P87Pop5yrAbovePoverty","P87Pop5to11yrAbovePoverty","P87Pop12to17yrAbovePoverty","P87Pop18to64yrAbovePoverty","P87Pop65to74yrAbovePoverty","P87PopOver75yrAbovePoverty","P90Families","P90FamWIncBelowPov","P90MarCupFamWIncBelowPov","P90MCFamWRltdChld<18WIncBelowPov","P90MCFamWRltdChld<5WIncBelowPov","P90MaleHhlrWIncBelowPov","P90MaleHhlrWRltdChld<18yrWIncBelowPov","P90MaleHhlrWRltdChld<5yrWIncBelowPov","P90FemaleHhlrWIncBelowPov","P90FemaleHhlrWRltdChld<18yWIncBelowPov","P90FemaleHhlrWRltdChld<5yWIncBelowPov","P90FamWIncAbovePov","P90MarCupFamWIncAbovePov","P90MCFamWRltdChld<18WIncAbovePov","P90MCFamWRltdChld<5WIncAbovePov","P90MaleHhlrWIncAbovePov","P90MaleHhlrWRltdChld<18yrWIncAbovePov","P90MaleHhlrWRltdChld<5yrWIncAbovePov","P90FemaleHhlrWIncAbovePov","P90FemaleHhlrWRltdChld<18yWIncAbovePov","P90FemaleHhlrWRltdChld<5yWIncAbovePov","P92Households","P92HHwIncBelowPov","P92FamHHwIncBelowPov","P92MCFamHHwIncBelowPov","P92MaleFamHHwIncBelowPov","P92FemaleFamHHwIncBelowPov","P92NonFamHHwIncBelowPov","P92NonFamMaleHHwIncBelowPov","P92NonFamFemaleHHwIncBelowPov","P92HHwIncAbovePov","P92FamHHwIncAbovePov","P92MCFamHHwIncAbovePov","P92MaleFamHHwIncAbovePov","P92FemaleFamHHwIncAbovePov","P92NonFamHHwIncAbovePov","P92NonFamMaleHHwIncAbovePov","P92NonFamFemaleHHwIncAbovePov"]
["Barrington","0003823","03460",7475,2767,21012,7441,411,10,19,71,52,259,0,0,7030,448,143,566,722,4623,368,160,2096,76,34,34,0,0,0,0,42,36,0,2020,1693,839,207,159,110,18,168,136,12,2767,125,76,34,0,42,49,30,19,2642,2020,1693,159,168,622,348,274]
["Dover","0003832","18820",26884,11542,23459,26079,2193,154,44,155,199,1458,51,132,23886,1354,308,1680,1506,16002,1742,1294,6525,310,75,45,13,33,24,16,202,202,41,6215,4888,2175,535,449,226,34,878,571,98,11542,911,310,75,33,202,601,212,389,10631,6215,4888,449,878,4416,2225,2191]
["Durham","0003871","19700",12664,2887,17210,8110,2246,8,7,36,28,2158,7,2,5864,310,84,493,462,3714,443,358,1577,44,18,14,9,0,0,0,26,26,0,1533,1369,653,135,30,12,4,134,121,8,2887,669,44,18,0,26,625,263,362,2218,1533,1369,30,134,685,339,346]
["Farmington","0003904","26020",5774,2134,16574,5727,545,55,9,41,48,325,43,24,5182,304,82,486,561,3219,292,238,1509,95,40,27,17,20,20,14,35,28,0,1414,1159,585,82,80,51,0,175,119,14,2134,230,95,40,20,35,135,65,70,1904,1414,1159,80,175,490,265,225]
["Lee","0003919","41460",4145,1469,23905,4114,211,23,0,30,21,120,6,11,3903,247,46,390,462,2483,170,105,1082,47,0,0,0,13,13,0,34,34,9,1035,921,539,99,22,22,0,92,84,10,1469,95,47,0,13,34,48,27,21,1374,1035,921,22,92,339,216,123]
["Madbury","0003928","44820",1509,535,26524,1501,87,7,4,5,2,65,0,4,1414,69,34,136,184,877,76,38,409,16,10,4,0,0,0,0,6,3,0,393,327,192,16,24,13,2,42,28,2,535,32,16,10,0,6,16,6,10,503,393,327,24,42,110,52,58]
["Middleton","0003935","47700",1440,526,18415,1433,104,16,0,2,12,65,6,3,1329,86,7,132,149,821,97,37,396,18,12,4,0,4,2,2,2,2,2,378,307,151,23,33,26,6,38,25,0,526,35,18,12,4,2,17,7,10,491,378,307,33,38,113,81,32]
["Milton","0003940","48660",3910,1440,18092,3903,307,62,26,39,36,126,9,9,3596,167,48,346,324,2330,258,123,1076,66,16,11,0,35,35,0,15,15,0,1010,842,371,66,59,29,18,109,81,0,1440,87,66,16,35,15,21,0,21,1353,1010,842,59,109,343,190,153]
["New Durham","0003950","51220",2220,805,22139,2200,112,5,0,13,20,58,9,7,2088,140,27,195,195,1304,155,72,630,23,15,9,0,2,2,2,6,6,0,607,539,261,47,36,29,4,32,17,0,805,40,23,15,2,6,17,8,9,765,607,539,36,32,158,105,53]
["Rochester","0003956","65140",28461,11397,18859,28140,2357,244,66,276,290,1165,114,202,25783,1611,257,2061,2297,16264,1960,1333,7671,481,130,65,15,26,21,0,325,313,87,7190,5856,2674,608,431,301,80,903,594,118,11397,986,481,130,26,325,505,133,372,10411,7190,5856,431,903,3221,1579,1642]
["Rollinsford","0004003","65540",2648,1043,24444,2644,98,0,0,13,21,53,0,11,2546,178,27,241,179,1608,197,116,740,19,7,3,0,0,0,0,12,12,0,721,632,313,61,47,26,13,42,26,7,1043,46,19,7,0,12,27,22,5,997,721,632,47,42,276,125,151]
["Somersworth","0004012","69940",11477,4704,19592,11334,995,130,30,106,58,549,41,81,10339,664,135,945,820,6538,688,549,3092,196,27,27,19,14,14,0,155,148,77,2896,2296,1053,290,156,72,18,444,356,67,4704,473,196,27,14,155,277,99,178,4231,2896,2296,156,444,1335,639,696]
["Strafford","0004033","73860",3626,1282,23500,3620,67,8,0,4,4,36,0,15,3553,201,44,375,448,2221,181,83,1037,10,0,0,0,0,0,0,10,10,6,1027,879,487,63,34,27,4,114,61,4,1282,33,10,0,0,10,23,5,18,1249,1027,879,34,114,222,116,106]
[]
[]
[]
[]
[]
[]
[]
[]
[]
[]
[]
[]
[]
[]
[]
[]
[]
[]
[]
[]
[]
[]
[]
[]
[]
[]
[]
[]
[]
[]
[]
[]
[]
[]
["Census 2000 SummaryFile3 Sample Data  -  SF3TownQry7HousingA"]
[]
["TOWN_NAME","LOGRECNO","COUSUB","TotalPop","H1HousingUnitsTotal","H2SampleHU","H2SampleOccHU","H2SampleVacHU","H3HU100pctCount","H5HUTotal","H5HUUrban","H5HUUrbanInUrbanAreas","H5HUUrbanInUrbanClusters","H5HURural","H5HURuralFarm","H5HURuralNonFarm","H7HUOcc","H7HUOwnrOcc","H7HURentrOcc","H8HUVacant","H8HUVacantForRent","H8HUVacantForSale","H8HUVacRentedorSold","H8HUVacSeasonal","H8HUVacForMigrantWrkrs","H8HUOtherVacant","H14OccHUa","H14OwnerOccHU","H14OwnOccHuHh15to24","H14OwnOccHuHh25to34","H14OwnOccHuHh35to44","H14OwnOccHuHh45to54","H14OwnOccHuHh55to59","H14OwnOccHuHh60to64","H14OwnOccHuHh65to74","H14OwnOccHuHh75to84","H14OwnOccHuHh85Over","H14RenterOccHU1","H14RntrOccHuHh15to24","H14RntrOccHuHh25to34","H14RntrOccHuHh35to44","H14RntrOccHuHh45to54","H14RntrOccHuHh55to59","H14RntrOccHuHh60to64","H14RntrOccHuHh65to74","H14RntrOccHuHh75to84","H14RntrOccHuHh85Over","H15PopInOccHU","H15PopInOwnOccHU1","H15PopInRentOccHU1","H17OccupHUb","H17OwnOccHU2","H17OwnOccHU1PersonHH","H17OwnOccHU2PersonHH","H17OwnOccHU3PersonHH","H17OwnOccHU4PersonHH","H17OwnOccHU5PersonHH","H17OwnOccHU6PersonHH","H17OwnOccHU7PlusPersonHH","H17RentOccHU2","H17RntOccHU1PersonHH","H17RntOccHU2PersonHH","H17RntOccHU3PersonHH","H17RntOccHU4PersonHH","H17RntOccHU5PersonHH","H17RntOccHU6PersonHH","H17RntOccHU7PlusPersonHH","H18AvgHHSize","H18AvgHHSizeOwnOcc","H18AvgHHSizeRentOcc","H23TotHU","H23HU1Room","H23HU2Room","H23HU3Room","H23HU4Room","H23HU5Room","H23HU6Room","H23HU7Room","H23HU8Room","H23HU9orMoreRoom","H24MedianNumRooms","H25AggregNumRooms","H30TotalHU","H30Det1HU","H30Att1HU","H30Units2","H30Units3or4","H30Units5to9","H30Units10to19","H30Units20to49","H30Units50orMore","H30UnitsMobileHome","H30UnitsBoatRv","H32OccHUcTotal","H32OwnerOccHU3","H32OwnOccHU1Det","H32OwnOccHU1Att","H32OwnOccHU2Unit","H32OwnOccHU3to4Unit","H32OwnOccHU5to9Unit","H32OwnOccHU10to19Unit","H32OwnOccHU20to49Unit","H32OwnOccHU50plusUnit","H32OwnOccHUMobHom","H32OwnOccHUBoatRVOth","H32RentrOccHU3","H32RntrOccHU1Det","H32RntrOccHU1Att","H32RntrOccHU2Unit","H32RntrOccHU3to4Unit","H32RntrOccHU5to9Unit","H32RntrOccHU10to19Unit","H32RntrOccHU20to49Unit","H32RntrOccHU50PlusUnit","H32RntrOccHUMobHom","H32RntrOccHUBoatRVOth","H33TotPopInOccHU","H33PopInOwnOccHU2","H33PopInOOHU1Det","H33PopInOOHU1Att","H33PopInOOHU2unit","H33PopInOOHU3to4Unit","H33PopInOOHU5to9Unit","H33PopInOOHU10to19Unit","H33PopInOOHU20to49Unit","H33PopInOOHU50PlusUnit","H33PopInOOHUMobilHome","H33PopInOOHUOtherUnit","H33PopInRentOccHU2","H33PopInROHU1Det","H33PopInROHU1Att","H33PopInROHU2Unit","H33PopInROHU3to4Unit","H33PopInROHU5to9Unit","H33PopInROHU10to19Unit","H33PopInROHU20to49Unit","H33PopInROHU50PlusUnit","H33PopInROHUMobilHome","H33PopInROHUOtherUnit","H36OccHousingUnitsdTotal","H36OwnerOccHU4","H36OOHUBuilt99to0300","H36OOHUBuilt95to98","H36OOHUBuilt90to94","H36OOHUBuilt80to89","H36OOHUBuilt70to79","H36OOHUBuilt60to69","H36OOHUBuilt50to59","H36OOHUBuilt40to49","H36OOHUBuilt39Earlier","H36RentOccHU4","H36ROHUBuilt99to0300","H36ROHUBuilt95to98","H36ROHUBuilt90to94","H36ROHUBuilt80to89","H36ROHUBuilt70to79","H36ROHUBuilt60to69","H36ROHUBuilt50to59","H36ROHUBuilt40to49","H36ROHUBuilt39Earlier","H40OccupHousUnitse","H40HeatFuelUtilGas","H40HeatFuelBotGas","H40HeatFuelElect","H40HeatFuelOilKero","H40HeatFuelCoal","H40HeatFuelWood","H40HeatFuelSolar","H40HeatFuelOther","H40HeatFuelNone","H41TotalHU","H41HUNoBdrm","H41HU1Bdrm","H41HU2Bdrm","H41HU3Bdrm","H41HU4Bdrm","H41HU5MoreBdrm","H42OccuHousUnitf","H42OwnerOccHU5","H42OOHUNoBdrm","H42OOHU1Bdrm","H42OOHU2Bdrm","H42OOHU3Bdrm","H42OOHU4Bdrm","H42OOHU5PlusBdrm","H42RentOccHU5","H42ROHUNoBdrm","H42ROHU1Bdrm","H42ROHU2Bdrm","H42ROHU3Bdrm","H42ROHU4Bdrm","H42ROHU5PlusBdrm","H48OccupHousUnitsg","H48OwnerOccHU6","H48OOHUwCompltPlumFacil","H48OOHULackCompltPlumFacil","H48RentOccHU6","H48ROHUwCompltPlumFacil","H48ROHULackCompltPlumFacil","H51OccupHousUnitf","H51OwnerOccHU7","H51OOHUwCompleteKitFacil","H51OOHULackCompleteKitFacil","H51RenterOccHU7","H51ROHUwCompleteKitFacil","H51ROHULackCompleteKitFacil"]
["Barrington","0003823","03460",7475,3147,379,343,36,3147,3147,0,0,0,3147,15,3132,2756,2345,411,391,0,20,0,314,0,57,2756,2345,18,319,756,603,241,114,208,78,8,411,29,173,116,75,0,0,18,0,0,7467,6781,686,2756,2345,332,823,448,508,178,47,9,411,135,170,70,13,11,12,0,3,3,2,3147,41,127,166,642,662,605,447,268,189,5,17464,3147,2290,28,40,47,92,46,0,0,556,48,2756,2345,1864,28,32,6,0,0,0,0,415,0,411,159,0,8,41,92,46,0,0,57,8,7467,6781,5554,63,87,5,0,0,0,0,1072,0,686,288,0,6,80,133,76,0,0,96,7,2756,2345,55,300,209,626,564,175,116,59,241,411,0,9,20,105,111,56,63,8,39,2756,13,588,102,1872,8,139,0,9,25,3147,49,265,1052,1301,370,110,2756,2345,0,102,606,1185,363,89,411,23,76,239,73,0,0,2756,2345,2319,26,411,392,19,2756,2345,2335,10,411,392,19]
["Dover","0003832","18820",26884,11924,1632,1586,46,11924,11924,11216,11216,0,708,0,708,11573,5909,5664,351,74,124,15,97,0,41,11573,5909,37,831,1472,1182,453,395,852,553,134,5664,999,1742,1227,732,188,124,283,218,151,26125,15329,10796,11573,5909,1159,2408,1025,888,332,59,38,5664,2429,1863,718,460,132,41,21,2,3,2,11924,178,523,1851,2495,1968,2005,1263,951,690,5,61976,11924,5243,628,1134,1425,1102,630,833,522,407,0,11573,5909,4644,429,270,143,80,7,0,0,336,0,5664,466,179,774,1249,1006,612,811,510,57,0,26125,15329,12655,888,695,272,118,12,0,0,689,0,10796,1163,435,1929,2414,1757,1017,1410,583,88,0,11573,5909,152,305,296,1132,590,670,1043,362,1359,5664,56,167,156,892,985,579,383,357,2089,11573,3377,611,1212,6242,5,79,0,25,22,11924,184,2255,4150,3779,1226,330,11573,5909,0,166,1509,3014,953,267,5664,170,2034,2461,696,240,63,11573,5909,5892,17,5664,5610,54,11573,5909,5892,17,5664,5619,45]
["Durham","0003871","19700",12664,2923,441,432,9,2923,2923,2200,2193,7,723,0,723,2882,1627,1255,41,10,14,1,16,0,0,2882,1627,9,128,303,439,138,143,250,189,28,1255,754,185,96,112,17,0,50,24,17,8078,4474,3604,2882,1627,223,605,305,327,148,19,0,1255,354,266,192,296,58,84,5,3,3,3,2923,110,177,261,392,359,297,380,479,468,6,17564,2923,1747,119,144,198,275,155,260,25,0,0,2882,1627,1510,61,42,14,0,0,0,0,0,0,1255,204,53,102,184,272,155,260,25,0,0,8078,4474,4235,138,90,11,0,0,0,0,0,0,3604,464,120,245,562,819,433,888,73,0,0,2882,1627,38,99,87,321,283,326,196,75,202,1255,0,0,116,260,271,258,139,46,165,2882,118,260,619,1806,0,67,0,6,6,2923,116,341,688,906,682,190,2882,1627,0,13,183,632,638,161,1255,116,320,500,260,33,26,2882,1627,1620,7,1255,1248,7,2882,1627,1627,0,1255,1235,20]
["Farmington","0003904","26020",5774,2337,293,269,24,2337,2337,0,0,0,2337,18,2319,2146,1511,635,191,31,16,0,94,0,50,2146,1511,8,248,381,421,122,90,114,111,16,635,107,132,110,77,75,53,58,15,8,5747,4251,1496,2146,1511,224,567,258,285,112,40,25,635,238,164,99,92,31,6,5,3,3,2,2337,34,54,201,519,424,508,286,174,137,5,12753,2337,1400,14,104,117,129,93,47,0,416,17,2146,1511,1214,14,22,5,0,0,8,0,248,0,635,113,0,82,105,107,85,39,0,104,0,5747,4251,3515,30,60,33,0,0,14,0,599,0,1496,378,0,226,206,245,140,49,0,252,0,2146,1511,52,82,125,301,193,79,33,60,586,635,33,0,23,104,115,36,58,69,197,2146,18,228,139,1660,0,101,0,0,0,2337,40,285,811,860,272,69,2146,1511,17,72,427,673,259,63,635,6,190,295,125,13,6,2146,1511,1503,8,635,625,10,2146,1511,1496,15,635,635,0]
["Lee","0003919","41460",4145,1534,244,233,11,1534,1534,7,7,0,1527,17,1510,1466,1101,365,68,10,3,0,55,0,0,1466,1101,6,110,363,306,89,71,99,42,15,365,44,123,95,47,29,7,15,5,0,4126,3068,1058,1466,1101,156,380,167,281,71,37,9,365,104,95,62,64,35,5,0,3,3,3,1534,13,39,95,299,221,264,209,188,206,6,9288,1534,1013,88,94,53,92,24,0,0,170,0,1466,1101,894,38,36,7,0,0,0,0,126,0,365,74,50,58,43,92,24,0,0,24,0,4126,3068,2605,94,112,12,0,0,0,0,245,0,1058,274,145,186,111,272,45,0,0,25,0,1466,1101,53,100,72,419,191,101,23,14,128,365,0,32,0,131,68,27,32,0,75,1466,32,264,50,971,0,143,0,6,0,1534,13,117,449,613,304,38,1466,1101,0,30,247,539,253,32,365,13,78,158,74,36,6,1466,1101,1095,6,365,365,0,1466,1101,1096,5,365,365,0]
["Madbury","0003928","44820",1509,543,257,251,6,543,543,80,80,0,463,14,449,534,410,124,9,1,2,2,2,0,2,534,410,1,29,140,129,23,32,38,18,0,124,24,48,29,12,2,2,2,2,3,1509,1239,270,534,410,51,142,78,84,36,17,2,124,30,46,16,19,10,3,0,3,3,2,543,3,11,18,77,88,89,102,81,74,6,3463,543,363,34,48,20,3,0,3,0,72,0,534,410,333,8,13,0,0,0,0,0,56,0,124,25,25,33,20,3,0,3,0,15,0,1509,1239,1051,16,27,0,0,0,0,0,145,0,270,76,47,75,36,3,0,4,0,29,0,534,410,13,33,31,117,93,29,26,6,62,124,0,4,9,18,28,2,11,5,47,534,6,48,42,417,0,19,2,0,0,543,3,32,140,205,135,28,534,410,0,5,83,171,131,20,124,3,27,50,34,2,8,534,410,410,0,124,124,0,534,410,410,0,124,124,0]
["Middleton","0003935","47700",1440,707,336,242,94,706,707,0,0,0,707,12,695,516,464,52,191,0,7,2,177,0,5,516,464,6,55,168,92,34,25,59,21,4,52,4,8,17,6,8,6,2,1,0,1441,1307,134,516,464,59,174,87,85,40,13,6,52,17,14,6,12,3,0,0,3,3,3,707,3,0,34,167,202,174,69,33,25,5,3824,707,629,8,2,0,0,0,0,0,67,1,516,464,409,4,2,0,0,0,0,0,49,0,52,41,2,0,0,0,0,0,0,8,1,1441,1307,1180,9,5,0,0,0,0,0,113,0,134,104,2,0,0,0,0,0,0,26,2,516,464,9,18,29,167,83,76,22,12,48,52,3,0,0,9,14,15,5,2,4,516,0,98,5,360,2,51,0,0,0,707,3,37,278,308,65,16,516,464,0,14,173,213,50,14,52,1,9,19,18,5,0,516,464,461,3,52,51,1,516,464,461,3,52,51,1]
["Milton","0003940","48660",3910,1815,288,232,56,1815,1815,695,695,0,1120,5,1115,1456,1158,298,359,11,15,14,313,0,6,1456,1158,18,87,305,292,133,41,174,103,5,298,24,87,75,47,11,14,13,27,0,3910,3097,813,1456,1158,186,441,198,212,81,31,9,298,88,73,83,29,21,4,0,3,3,3,1815,7,42,67,340,463,431,247,106,112,6,10250,1815,1260,11,73,48,30,23,0,0,349,21,1456,1158,881,0,0,6,0,6,0,0,265,0,298,75,11,51,36,30,17,0,0,78,0,3910,3097,2397,0,0,6,0,11,0,0,683,0,813,158,77,122,97,71,35,0,0,253,0,1456,1158,12,63,76,364,187,20,79,22,335,298,0,5,26,54,52,10,39,12,100,1456,23,166,6,1197,0,64,0,0,0,1815,7,142,604,782,231,49,1456,1158,0,56,301,555,197,49,298,0,47,149,102,0,0,1456,1158,1158,0,298,298,0,1456,1158,1158,0,298,298,0]
["New Durham","0003950","51220",2220,1308,615,381,234,1309,1308,0,0,0,1308,8,1300,817,744,73,491,9,4,0,469,0,9,817,744,8,83,226,178,57,40,97,51,4,73,2,19,32,10,2,0,4,4,0,2216,1975,241,817,744,126,277,152,112,51,22,4,73,14,18,10,15,10,3,3,3,3,3,1308,4,30,99,237,305,305,176,86,66,5,7244,1308,1175,11,12,4,0,0,2,0,104,0,817,744,655,7,4,2,0,0,2,0,74,0,73,47,0,6,2,0,0,0,0,18,0,2216,1975,1779,10,3,4,0,0,4,0,175,0,241,141,0,23,2,0,0,0,0,75,0,817,744,24,47,66,224,122,68,33,24,136,73,0,11,8,22,8,8,0,6,10,817,9,105,12,603,0,88,0,0,0,1308,6,111,467,581,131,12,817,744,2,28,228,383,91,12,73,0,6,38,26,3,0,817,744,732,12,73,73,0,817,744,738,6,73,73,0]
["Rochester","0003956","65140",28461,11836,1590,1542,48,11836,11836,9512,9512,0,2324,41,2283,11434,7637,3797,402,104,25,16,106,0,151,11434,7637,111,985,1835,1652,662,543,1089,646,114,3797,351,1068,935,516,160,118,296,237,116,28168,20039,8129,11434,7637,1506,2834,1401,1300,464,108,24,3797,1431,1166,556,370,185,89,0,2,3,2,11836,55,281,1391,2703,2850,2026,1263,751,516,5,62017,11836,5727,402,707,1133,890,169,351,212,2239,6,11434,7637,5154,277,164,91,65,0,9,0,1871,6,3797,467,125,527,963,750,165,342,200,258,0,28168,20039,14516,635,457,170,139,0,7,0,4105,10,8129,1271,236,1316,2168,1459,277,619,229,554,0,11434,7637,151,469,573,1841,1227,688,709,473,1506,3797,82,168,147,657,627,237,333,246,1300,11434,2273,1063,739,7069,7,188,0,54,41,11836,103,1671,4384,4227,1281,170,11434,7637,0,252,2561,3568,1111,145,3797,95,1315,1609,589,164,25,11434,7637,7572,65,3797,3776,21,11434,7637,7623,14,3797,3779,18]
["Rollinsford","0004003","65540",2648,1060,252,246,6,1060,1060,984,984,0,76,0,76,1033,722,311,27,12,9,0,6,0,0,1033,722,4,61,204,121,61,70,102,83,16,311,38,115,82,37,14,8,8,9,0,2648,1957,691,1033,722,124,258,127,146,48,16,3,311,103,105,63,31,6,3,0,3,3,2,1060,0,22,106,151,195,230,176,82,98,6,6189,1060,700,7,109,80,112,19,11,0,22,0,1033,722,646,3,37,17,0,0,0,0,19,0,311,43,4,64,59,112,15,11,0,3,0,2648,1957,1772,13,75,64,0,0,0,0,33,0,691,132,4,137,105,253,37,20,0,3,0,1033,722,13,12,52,145,88,70,97,66,179,311,0,0,0,30,33,15,26,27,180,1033,17,138,42,790,12,26,0,5,3,1060,4,148,235,485,150,38,1033,722,0,24,98,432,141,27,311,4,106,132,49,9,11,1033,722,722,0,311,311,0,1033,722,722,0,311,311,0]
["Somersworth","0004012","69940",11477,4841,579,569,10,4841,4841,4731,4731,0,110,6,104,4687,2660,2027,154,115,22,8,9,0,0,4687,2660,12,393,755,631,180,119,299,248,23,2027,173,651,411,263,95,90,141,123,80,11445,7249,4196,4687,2660,514,990,467,447,178,44,20,2027,744,606,369,213,81,0,14,2,3,2,4841,26,146,598,1124,920,994,491,245,297,5,25539,4841,2159,139,489,733,300,159,341,24,497,0,4687,2660,1890,99,139,49,18,0,0,0,465,0,2027,220,40,350,640,256,159,316,24,22,0,11445,7249,5398,213,385,120,95,0,0,0,1038,0,4196,556,109,902,1197,499,307,493,38,95,0,4687,2660,30,87,106,428,489,201,440,228,651,2027,46,19,25,138,394,197,233,199,776,4687,1011,212,257,3157,0,41,0,9,0,4841,34,808,1650,1506,715,128,4687,2660,0,75,761,1107,589,128,2027,34,653,827,399,114,0,4687,2660,2654,6,2027,2009,18,4687,2660,2644,16,2027,2017,10]
["Strafford","0004033","73860",3626,1564,360,305,55,1564,1564,0,0,0,1564,39,1525,1281,1138,143,283,7,4,16,247,0,9,1281,1138,4,121,366,333,91,54,108,38,23,143,12,32,30,32,19,5,9,4,0,3617,3330,287,1281,1138,153,390,206,250,94,40,5,143,43,65,17,13,5,0,0,3,3,2,1564,5,31,84,220,267,396,286,144,131,6,9374,1564,1389,15,50,13,0,0,0,0,97,0,1281,1138,1053,7,4,0,0,0,0,0,74,0,143,69,8,36,13,0,0,0,0,17,0,3617,3330,3112,22,8,0,0,0,0,0,188,0,287,140,26,85,16,0,0,0,0,20,0,1281,1138,53,80,129,338,216,62,61,12,187,143,0,0,15,50,17,4,9,6,42,1281,7,220,33,855,0,160,0,6,0,1564,5,91,490,682,268,28,1281,1138,0,16,293,576,225,28,143,0,39,68,23,13,0,1281,1138,1138,0,143,143,0,1281,1138,1127,11,143,143,0]
[]
[]
[]
[]
[]
[]
[]
[]
[]
[]
[]
[]
[]
[]
[]
[]
[]
[]
[]
[]
[]
[]
[]
[]
[]
[]
[]
[]
[]
[]
[]
[]
[]
[]
[]
["Census 2000 SummaryFile3 Sample Data  -  SF3TownQry8HousingCostA"]
[]
["TOWN_NAME","LOGRECNO","COUSUB","TotalPop","H62RntrOccHU","H62RntrOccHUwRent","H62ROHUGRent<100","H62ROHUGRent100to149","H62ROHUGRent150to199","H62ROHUGRent200to249","H62ROHUGRent250to299","H62ROHUGRent300to349","H62ROHUGRent350to399","H62ROHUGRent400to449","H62ROHUGRent450to499","H62ROHUGRent500to549","H62ROHUGRent550to599","H62ROHUGRent600to649","H62ROHUGRent650to699","H62ROHUGRent700to749","H62ROHUGRent750to799","H62ROHUGRent800to899","H62ROHUGRent900to999","H62ROHUGRent1000to1249","H62ROHUGRent1250to1499","H62ROHUGRent1500to1999","H62ROHUGRent2000>","H62ROHUNoGRent","H63MedianGrossRnt","H69RenterOccHsU","H69GRnt<10PctHHInc","H69GRnt10to15PctHHInc","H69GRnt15to20PctHHInc","H69GRnt20to25PctHHInc","H69GRnt25to30PctHHInc","H69GRnt30to35PctHHInc","H69GRnt35to40PctHHInc","H69GRnt40to50PctHHInc","H69GRnt>50PctHHInc","H69GRntPctNotcomputed","H73RenterOccHU","H73ROHUHhInc<10k","H73ROHUHhInc<10kRnt<20pct","H73ROHUHhInc<10kRnt20to25pct","H73ROHUHhInc<10kRnt25to30pct","H73ROHUHhInc<10kRnt30to35pct","H73ROHUHhInc<10kRnt>35pct","H73ROHUHhInc<10kPctNotComput","H73ROHUHhInc10to20k","H73ROHUHhInc10to20kRnt<20pct","H73ROHUHhInc10to20kRnt20to25pct","H73ROHUHhInc10to20kRnt25to30pct","H73ROHUHhInc10to20kRnt30to35pct","H73ROHUHhInc10to20kRnt>35pct","H73ROHUHhInc10to20kRntPctNC","H73ROHUHhInc20to35k","H73ROHUHhInc20to35kRnt<20pct","H73ROHUHhInc20to35kRnt20to25pct","H73ROHUHhInc20to35kRnt25to30pct","H73ROHUHhInc20to35kRnt30to35pct","H73ROHUHhInc20to35kRnt>35pct","H73ROHUHhInc20to35kRntPctNC","H73ROHUHhInc35to40k","H73ROHUHhInc35to40kRnt<20pct","H73ROHUHhInc35to40kRnt20to25pct","H73ROHUHhInc35to40kRnt25to30pct","H73ROHUHhInc35to40kRnt30to35pct","H73ROHUHhInc35to40kRnt>35pct","H73ROHUHhInc35to40kRntPctNC","H73ROHUHhInc50to75k","H73ROHUHhInc50to75kRnt<20pct","H73ROHUHhInc50to75kRnt20to25pct","H73ROHUHhInc50to75kRnt25to30pct","H73ROHUHhInc50to75kRnt30to35pct","H73ROHUHhInc50to75kRnt>35pct","H73ROHUHhInc50to75kRntPctNC","H73ROHUHhInc75to100k","H73ROHUHhInc75to100kRnt<20pct","H73ROHUHhInc75to100kRnt20to25pct","H73ROHUHhInc75to100kRnt25to30pct","H73ROHUHhInc75to100kRnt30to35pct","H73ROHUHhInc75to100kRnt>35pct","H73ROHUHhInc75to100kRntPctNC","H73ROHUHhInc>100k","H73ROHUHhInc>100kRnt<20pct","H73ROHUHhInc>100kRnt20to25pct","H73ROHUHhInc>100kRnt25to30pct","H73ROHUHhInc>100kRnt30to35pct","H73ROHUHhInc>100kRnt>35pct","H73ROHUHhInc>100kRntPctNC"]
["Barrington","0003823","03460",7475,411,374,0,8,10,0,0,0,9,8,29,24,28,53,37,46,66,8,10,38,0,0,0,37,674,411,8,80,37,41,34,39,35,52,40,45,411,24,0,0,0,0,9,15,63,10,0,0,0,53,0,157,0,31,24,39,55,8,94,52,0,10,0,10,22,73,63,10,0,0,0,0,0,0,0,0,0,0,0,0,0,0,0,0,0,0]
["Dover","0003832","18820",26884,5652,5578,25,38,155,145,153,104,94,147,273,484,709,586,637,458,363,479,234,364,105,25,0,74,639,5652,323,744,927,915,816,380,242,400,750,155,5652,651,15,15,53,37,442,89,906,89,39,54,61,647,16,1469,166,292,484,240,274,13,1250,578,401,190,28,29,24,979,793,147,25,14,0,0,242,204,21,10,0,0,7,155,149,0,0,0,0,6]
["Durham","0003871","19700",12664,1214,1158,0,0,28,18,26,54,94,189,80,144,18,43,50,24,14,7,29,114,111,108,7,56,531,1214,92,71,104,123,60,117,47,70,434,96,1214,254,0,0,0,6,208,40,350,24,5,33,62,218,8,233,35,69,15,6,90,18,149,82,23,0,12,28,4,152,61,15,12,31,7,26,44,33,11,0,0,0,0,32,32,0,0,0,0,0]
["Farmington","0003904","26020",5774,629,614,0,37,41,29,17,25,23,57,43,24,49,41,38,16,29,30,91,24,0,0,0,15,561,629,20,75,125,104,129,27,0,41,93,15,629,111,0,16,46,0,49,0,110,16,0,26,9,59,0,124,42,23,16,10,26,7,146,81,16,41,8,0,0,118,61,49,0,0,0,8,0,0,0,0,0,0,0,20,20,0,0,0,0,0]
["Lee","0003919","41460",4145,340,328,0,0,0,0,0,0,7,16,30,27,5,12,5,33,38,41,48,22,17,21,6,12,788,340,14,24,81,73,45,12,8,15,56,12,340,34,0,0,0,0,34,0,34,0,7,0,0,27,0,70,9,15,32,0,9,5,81,14,39,13,5,3,7,81,61,7,0,7,6,0,18,13,5,0,0,0,0,22,22,0,0,0,0,0]
["Madbury","0003928","44820",1509,102,97,0,0,0,0,0,0,5,3,5,5,14,13,0,6,7,15,8,9,5,2,0,5,729,102,3,9,23,18,3,5,3,9,22,7,102,6,0,0,0,0,4,2,32,0,0,0,3,24,5,13,0,7,0,0,6,0,19,5,11,3,0,0,0,22,20,0,0,2,0,0,5,5,0,0,0,0,0,5,5,0,0,0,0,0]
["Middleton","0003935","47700",1440,45,34,0,0,0,0,0,0,0,5,0,2,6,13,2,0,1,0,5,0,0,0,0,11,615,45,3,6,8,0,7,3,4,0,3,11,45,2,0,0,0,0,0,2,7,0,0,0,2,3,2,14,0,0,7,0,4,3,9,6,0,0,1,0,2,8,8,0,0,0,0,0,3,3,0,0,0,0,0,2,0,0,0,0,0,2]
["Milton","0003940","48660",3910,280,256,0,0,0,0,21,0,11,21,11,23,38,16,47,0,16,36,11,0,5,0,0,24,609,280,5,49,17,44,29,31,22,33,21,29,280,31,0,0,0,6,15,10,56,0,0,11,11,29,5,84,5,15,18,8,32,6,42,17,19,0,6,0,0,45,35,10,0,0,0,0,14,14,0,0,0,0,0,8,0,0,0,0,0,8]
["New Durham","0003950","51220",2220,71,62,0,0,0,0,0,2,2,2,4,0,4,8,5,6,2,6,10,11,0,0,0,9,733,71,6,12,10,3,9,6,2,3,9,11,71,4,0,0,0,0,2,2,11,0,2,0,0,7,2,17,2,0,2,4,5,4,13,8,1,2,2,0,0,20,12,0,5,0,0,3,2,2,0,0,0,0,0,4,4,0,0,0,0,0]
["Rochester","0003956","65140",28461,3777,3666,44,108,65,101,103,112,170,164,280,340,340,358,450,255,238,273,84,137,37,0,7,111,601,3777,212,448,594,464,519,267,209,232,682,150,3777,575,25,56,37,0,423,34,740,83,46,79,57,459,16,1016,180,150,259,166,212,49,751,339,188,136,44,29,15,486,439,16,8,0,0,23,135,119,8,0,0,0,8,74,69,0,0,0,0,5]
["Rollinsford","0004003","65540",2648,301,284,0,0,0,0,0,4,15,41,13,30,22,40,45,25,23,22,0,4,0,0,0,17,621,301,8,39,97,40,14,29,9,16,32,17,301,27,0,0,0,0,19,8,59,0,0,8,10,38,3,38,15,4,0,19,0,0,116,68,36,6,0,0,6,61,61,0,0,0,0,0,0,0,0,0,0,0,0,0,0,0,0,0,0,0]
["Somersworth","0004012","69940",11477,2021,1961,0,25,102,70,109,39,84,62,111,116,169,228,269,175,98,180,43,75,6,0,0,60,621,2021,131,219,396,257,188,204,173,144,222,87,2021,365,9,17,36,67,201,35,273,17,0,26,18,204,8,542,105,71,104,119,126,17,439,267,138,16,0,8,10,309,255,31,6,0,0,17,68,68,0,0,0,0,0,25,25,0,0,0,0,0]
["Strafford","0004033","73860",3626,134,102,0,0,0,4,0,0,0,10,9,12,0,29,8,8,5,4,4,5,4,0,0,32,628,134,18,4,30,24,18,4,0,0,4,32,134,0,0,0,0,0,0,0,8,0,0,0,0,4,4,42,10,4,18,0,0,10,40,12,15,0,4,0,9,17,12,5,0,0,0,0,18,13,0,0,0,0,5,9,5,0,0,0,0,4]
[]
[]
[]
[]
[]
[]
[]
[]
[]
[]
[]
[]
[]
[]
[]
[]
[]
[]
[]
[]
[]
[]
[]
[]
[]
[]
[]
[]
[]
[]
[]
[]
[]
[]
[]
["Census 2000 SummaryFile3 Sample Data  -  SF3TownQry8HousingCostB"]
[]
["TOWN_NAME","LOGRECNO","COUSUB","TotalPop","H74SpecOwnerOccHU","H74OOHU<10k","H74OOHU10to15k","H74OOHU15to20k","H74OOHU20to25k","H74OOHU25to30k","H74OOHU30to35k","H74OOHU35to40k","H74OOHU40to50k","H74OOHU50to60k","H74OOHU60to70k","H74OOHU70to80k","H74OOHU80to90k","H74OOHU90to100k","H74OOHU100to125k","H74OOHU125to150k","H74OOHU150to175k","H74OOHU175to200k","H74OOHU200to250k","H74OOHU250to300k","H74OOHU300to400k","H74OOHU400to500k","H74OOHU500to750k","H74OOHU750to1000k","H74OOHU1000kmore","H76OOHUMedianVal","H84OwnerOccHU","H84AllOOHU<10k","H84AllOOHU10to15k","H84AllOOHU15to20k","H84AllOOHU20to25k","H84AllOOHU25to30k","H84AllOOHU30to35k","H84AllOOHU35to40k","H84AllOOHU40to50k","H84AllOOHU50to60k","H84AllOOHU60to70k","H84AllOOHU70to80k","H84AllOOHU80to90k","H84AllOOHU90to100k","H84AllOOHU100to125k","H84AllOOHU125to150k","H84AllOOHU150to175k","H84AllOOHU175to200k","H84AllOOHU200to250k","H84AllOOHU250to300k","H84AllOOHU300to400k","H84AllOOHU400to500k","H84AllOOHU500to750k","H84AllOOHU750to1000k","H84AllOOHU1000kmore","H85OOHUMedVal","H90SOOHU","H90HUwMorgt","H90HUwMtgHC<200","H90HUwMtgHC200to300","H90HUwMtgHC300to400","H90HUwMtgHC400to500","H90HUwMtgHC500to600","H90HUwMtgHC600to700","H90HUwMtgHC700to800","H90HUwMtgHC800to900","H90HUwMtgHC900to1000","H90HUwMtgHC1000to1250","H90HUwMtgHC1250to1500","H90HUwMtgHC1500to2000","H90HUwMtgHC2000to2500","H90HUwMtgHC2500to3000","H90HUwMtgHC3000orMore","H90HUwOutMorgt","H90HUwOutMtgHC<100","H90HUwOutMtgHC100to150","H90HUwOutMtgHC150to200","H90HUwOutMtgHC200to250","H90HUwOutMtgHC250to300","H90HUwOutMtgHC300to350","H90HUwOutMtgHC350to400","H90HUwOutMtgHC400to500","H90HUwOutMtgHC500to600","H90HUwOutMtgHC600to700","H90HUwOutMtgHC700to800","H90HUwOutMtgHC800to900","H90HUwOutMtgHC900to1000","H90HUwOutMtgHC1000orMore","H91MedianOCHUwMtg","H91MedianOCHUwOutMtg","H94SpecOOHU","H94HUwMortg","H94HUwMtgHC<10pct","H94HUwMtgHC10to15pct","H94HUwMtgHC15to20pct","H94HUwMtgHC20to25pct","H94HUwMtgHC25to30pct","H94HUwMtgHC30to35pct","H94HUwMtgHC35to40pct","H94HUwMtgHC40to50pct","H94HUwMtgHC50pctOrMore","H94HUwMtgHCpctNotComp","H94HUWOutMortg","H94HUWOutMortgHC<10pct","H94HUWOutMortgHC10to15pct","H94HUWOutMortgHC15to20pct","H94HUWOutMortgHC20to25pct","H94HUWOutMortgHC25to30pct","H94HUWOutMortgHC30to35pct","H94HUWOutMortgHC35to40pct","H94HUWOutMortgHC40to50pct","H94HUWOutMortgHC50pctOrMore","H94HUWOutMortgHCpctNotComp","H97SpecifOwnOccHU","H97SOOHUInc<10k","H97SOOHUInc<10kHC<20pct","H97SOOHUInc<10kHC20to25pct","H97SOOHUInc<10kHC25to30pct","H97SOOHUInc<10kHC30to35pct","H97SOOHUInc<10kHC>35pct","H97SOOHUInc<10kHCpctNotComput","H97SOOHUInc10to20k","H97SOOHUInc10to20kHC<20pct","H97SOOHUInc10to20kHC20to25pct","H97SOOHUInc10to20kHC25to30pct","H97SOOHUInc10to20kHC30to35pct","H97SOOHUInc10to20kHC>35pct","H97SOOHUInc10to20kHCpctNotComput","H97SOOHUInc20to35k","H97SOOHUInc20to35kRC<20pct","H97SOOHUInc20to35kRC20to25pct","H97SOOHUInc20to35kRC25to30pct","H97SOOHUInc20to35kRC30to35pct","H97SOOHUInc20to35kRC>35pct","H97SOOHUInc20to35kRCpctNotComput","H97SOOHUInc35to50k","H97SOOHUInc35to50kRC<20pct","H97SOOHUInc35to50kRC20to25pct","H97SOOHUInc35to50kRC25to30pct","H97SOOHUInc35to50kRC30to35pct","H97SOOHUInc35to50kRC>35pct","H97SOOHUInc35to50kRCpctNotCompute","H97SOOHUInc50to75k","H97SOOHUInc50to75kRC<20pct","H97SOOHUInc50to75kRC20to25pct","H97SOOHUInc50to75kRC25to30pct","H97SOOHUInc50to75kRC30to35pct","H97SOOHUInc50to75kRC>35pct","H97SOOHUInc50to75kRCpctNotComput","H97SOOHUInc75to100k","H97SOOHUInc75to100kRC<20pct","H97SOOHUInc75to100kRC20to25pct","H97SOOHUInc75to100kRC25to30pct","H97SOOHUInc75to100kRC30to35pct","H97SOOHUInc75to100kRC>35pct","H97SOOHUInc75to100kRCpctNotCompute","H97SOOHUInc100to150k","H97SOOHUInc100to150kRC<20pct","H97SOOHUInc100to150kRC20to25pct","H97SOOHUInc100to150kRC25to30pct","H97SOOHUInc100to150kRC30to35pct","H97SOOHUInc100to150kRC>35pct","H97SOOHUInc100to150kRCpctNotCompute","H97SOOHUInc>150k","H97SOOHUInc>150kRC<20pct","H97SOOHUInc>150kRC20to25pct","H97SOOHUInc>150kRC25to30pct","H97SOOHUInc>150kRC30to35pct","H97SOOHUInc>150kRC>35pct","H97SOOHUInc>150kRCpctNotCompute"]
["Barrington","0003823","03460",7475,1667,0,0,0,0,10,7,0,21,15,14,49,99,105,334,394,336,164,85,34,0,0,0,0,0,136400,2345,13,37,29,38,61,68,23,28,55,59,73,123,148,383,409,369,221,126,57,17,0,0,8,0,127100,1667,1345,0,0,6,8,0,88,99,106,134,297,329,218,52,8,0,322,0,0,24,31,16,13,37,120,49,8,17,7,0,0,1195,433,1667,1345,60,161,247,318,208,85,88,86,83,9,322,140,91,45,0,15,7,6,12,0,6,1667,15,0,0,0,0,0,15,41,0,0,0,7,34,0,290,77,0,49,32,132,0,294,78,62,41,29,84,0,430,148,136,105,16,25,0,427,288,111,28,0,0,0,120,103,9,0,8,0,0,50,50,0,0,0,0,0]
["Dover","0003832","18820",26884,4747,0,0,0,0,0,0,0,5,8,86,123,326,434,1089,966,520,357,512,179,80,33,29,0,0,132800,5909,46,29,23,31,19,54,23,33,53,123,150,418,499,1216,1080,643,462,572,245,86,38,51,7,8,130500,4747,3371,0,0,0,21,66,101,182,251,392,898,594,591,205,26,44,1376,0,0,7,43,60,151,227,473,193,131,48,18,14,11,1187,442,4747,3371,158,659,686,699,478,235,134,123,189,10,1376,372,325,239,174,104,47,0,37,57,21,4747,104,0,0,0,0,73,31,281,15,44,69,31,122,0,622,227,126,47,76,146,0,659,248,138,113,85,75,0,1367,580,392,232,62,101,0,862,572,129,110,28,23,0,630,581,38,11,0,0,0,222,216,6,0,0,0,0]
["Durham","0003871","19700",12664,1408,0,0,7,0,0,0,0,0,0,0,13,17,13,41,134,286,298,303,159,105,10,11,5,6,191200,1627,0,0,7,0,0,0,0,0,0,0,20,17,13,48,152,322,331,335,188,131,28,11,11,13,192700,1408,927,0,0,0,0,0,6,5,18,29,108,168,295,176,90,32,481,0,0,0,0,0,0,20,49,96,123,110,38,27,18,1680,661,1408,927,47,119,155,203,174,58,48,52,71,0,481,197,74,71,46,14,21,13,6,39,0,1408,9,0,0,0,0,9,0,63,0,0,0,0,63,0,140,0,33,20,21,66,0,98,30,26,7,4,31,0,261,104,19,71,18,49,0,280,133,56,61,25,5,0,324,194,90,29,11,0,0,233,202,25,0,0,6,0]
["Farmington","0003904","26020",5774,1043,9,8,17,0,0,8,7,12,56,74,174,186,103,221,101,8,16,9,6,20,8,0,0,0,88400,1511,9,8,34,29,24,34,32,52,63,99,224,263,127,258,147,13,40,9,18,20,8,0,0,0,85600,1043,747,0,0,0,0,7,58,63,165,119,215,95,9,8,8,0,296,8,9,5,49,62,59,30,48,18,0,8,0,0,0,968,313,1043,747,39,129,160,134,90,49,13,83,50,0,296,73,85,65,16,25,0,14,0,10,8,1043,48,8,0,0,0,32,8,85,25,8,25,0,27,0,185,81,6,9,9,80,0,223,75,58,43,33,14,0,269,142,65,38,7,17,0,149,136,13,0,0,0,0,67,67,0,0,0,0,0,17,17,0,0,0,0,0]
["Lee","0003919","41460",4145,701,0,0,0,5,0,0,0,5,0,0,5,6,16,61,143,142,141,101,53,14,9,0,0,0,169300,1101,11,12,0,28,42,6,0,15,0,0,27,6,22,81,200,199,162,135,84,53,9,6,3,0,162600,701,529,0,0,5,0,0,0,5,7,25,72,162,116,120,17,0,172,0,0,0,0,0,12,6,49,53,33,19,0,0,0,1482,536,701,529,9,41,125,128,93,37,38,28,30,0,172,65,21,33,21,12,0,0,6,14,0,701,14,0,0,0,0,14,0,22,0,0,11,0,11,0,55,18,12,6,0,19,0,93,23,16,6,0,48,0,147,30,26,62,14,15,0,178,89,46,20,14,9,0,150,92,49,0,9,0,0,42,42,0,0,0,0,0]
["Madbury","0003928","44820",1509,259,0,0,0,0,0,0,0,0,2,0,9,11,10,30,11,72,48,27,19,16,2,0,2,0,169600,410,2,2,7,5,5,3,0,6,16,4,11,11,14,39,25,80,65,46,27,25,4,4,6,3,167200,259,215,0,0,0,0,3,0,9,13,11,35,47,57,34,0,6,44,0,0,0,0,1,0,4,4,18,8,4,3,2,0,1444,572,259,215,10,20,48,45,27,25,12,10,18,0,44,17,7,7,0,2,4,0,2,5,0,259,5,0,0,0,0,5,0,13,0,0,2,0,11,0,19,1,0,2,4,12,0,31,6,1,4,9,11,0,54,27,9,6,6,6,0,81,36,26,11,8,0,0,35,18,9,4,2,2,0,21,21,0,0,0,0,0]
["Middleton","0003935","47700",1440,339,0,0,0,0,0,3,3,9,8,37,26,42,72,74,40,13,6,4,0,2,0,0,0,0,95800,464,2,0,0,0,7,6,8,16,16,44,53,59,83,87,44,21,8,6,2,2,0,0,0,0,92500,339,270,0,0,2,7,20,18,37,32,42,71,37,4,0,0,0,69,0,0,0,4,21,19,0,14,7,4,0,0,0,0,945,325,339,270,16,31,58,46,28,30,16,20,25,0,69,29,16,11,4,2,0,0,3,4,0,339,12,0,0,0,0,12,0,12,0,0,4,2,6,0,65,20,6,0,10,29,0,112,32,28,13,18,21,0,84,55,16,13,0,0,0,36,36,0,0,0,0,0,13,13,0,0,0,0,0,5,5,0,0,0,0,0]
["Milton","0003940","48660",3910,719,0,0,0,0,0,0,0,6,41,22,70,97,128,156,130,46,0,10,13,0,0,0,0,0,99600,1158,0,34,27,19,35,0,11,20,79,41,103,152,138,193,151,89,18,30,18,0,0,0,0,0,94200,719,540,0,0,14,23,28,17,49,64,72,177,63,26,0,0,7,179,0,5,5,13,35,43,32,22,18,0,6,0,0,0,1004,337,719,540,14,82,117,104,109,34,13,12,55,0,179,60,51,5,22,11,6,0,6,11,7,719,29,0,0,0,0,22,7,56,5,16,11,0,24,0,109,45,11,10,17,26,0,179,59,20,70,12,18,0,215,102,73,29,11,0,0,86,73,6,0,0,7,0,28,28,0,0,0,0,0,17,17,0,0,0,0,0]
["New Durham","0003950","51220",2220,532,2,0,0,0,0,0,0,4,18,26,24,36,76,113,108,38,21,34,21,9,2,0,0,0,117700,744,2,2,2,0,0,10,2,14,36,43,33,55,88,128,161,47,27,48,27,11,2,4,0,2,116600,532,383,0,0,3,9,2,8,23,48,42,98,91,46,11,2,0,149,0,0,4,4,10,21,38,29,22,11,8,2,0,0,1144,397,532,383,15,47,79,73,64,35,17,10,43,0,149,54,28,18,25,6,2,4,0,8,4,532,16,0,0,0,0,12,4,33,0,4,4,4,21,0,62,18,21,6,0,17,0,102,33,14,18,16,21,0,171,67,46,30,17,11,0,79,60,11,8,0,0,0,51,45,2,4,0,0,0,18,18,0,0,0,0,0]
["Rochester","0003956","65140",28461,4928,0,6,0,8,7,14,0,33,107,357,487,765,726,1087,693,329,98,124,49,27,11,0,0,0,99400,7637,130,140,260,252,212,229,180,164,261,496,682,876,861,1329,771,387,134,150,61,34,22,6,0,0,89300,4928,3576,0,15,7,55,93,188,324,480,478,1039,502,268,104,9,14,1352,0,0,14,60,138,233,269,340,215,61,22,0,0,0,1036,393,4928,3576,104,413,763,897,443,385,152,148,258,13,1352,363,310,241,142,62,73,19,68,57,17,4928,138,0,0,0,0,108,30,405,38,75,52,54,186,0,781,285,90,58,123,225,0,1067,349,217,178,184,139,0,1437,653,499,182,80,23,0,612,430,130,29,8,15,0,344,295,28,6,9,6,0,144,144,0,0,0,0,0]
["Rollinsford","0004003","65540",2648,551,0,0,0,0,0,0,0,0,0,0,12,51,50,120,152,59,21,36,11,22,13,0,4,0,132000,722,5,0,0,0,0,0,0,0,4,8,12,65,56,157,191,59,21,62,26,25,13,0,10,8,132100,551,364,0,0,0,0,12,30,39,30,21,85,70,60,12,5,0,187,0,0,0,5,12,13,27,69,19,16,15,11,0,0,1147,453,551,364,9,53,107,68,47,20,15,15,30,0,187,48,59,31,21,4,4,4,0,16,0,551,12,0,0,0,0,12,0,43,0,8,0,4,31,0,68,31,9,11,0,17,0,97,54,14,8,16,5,0,150,73,39,19,4,15,0,110,78,19,13,0,0,0,34,34,0,0,0,0,0,37,37,0,0,0,0,0]
["Somersworth","0004012","69940",11477,1906,0,0,0,0,0,0,0,0,58,42,90,326,326,507,313,87,109,39,0,9,0,0,0,0,105500,2660,25,50,89,90,47,49,67,43,65,92,103,358,409,555,353,108,109,39,0,9,0,0,0,0,96200,1906,1380,0,0,0,7,40,63,79,112,251,391,228,174,26,9,0,526,0,0,0,7,0,64,73,219,114,22,17,10,0,0,1088,454,1906,1380,30,213,363,292,200,82,96,35,69,0,526,86,147,79,72,23,55,10,23,23,8,1906,22,0,0,0,7,7,8,132,0,10,16,31,75,0,262,103,52,15,23,69,0,387,98,105,80,23,81,0,596,307,143,88,34,24,0,338,257,46,16,19,0,0,136,120,8,8,0,0,0,33,33,0,0,0,0,0]
["Strafford","0004033","73860",3626,770,0,0,0,0,0,0,0,4,8,10,23,40,74,147,195,113,81,40,12,12,4,7,0,0,135100,1138,5,0,0,6,0,4,0,8,11,31,36,61,100,194,231,183,112,86,20,30,13,7,0,0,137200,770,625,0,0,10,4,16,30,39,59,44,126,160,121,9,4,3,145,0,0,5,0,9,43,8,27,24,22,0,0,3,4,1219,428,770,625,25,111,131,139,87,40,34,29,26,3,145,63,24,20,9,16,0,4,0,4,5,770,15,0,0,0,0,7,8,21,0,0,4,0,17,0,83,21,9,22,9,22,0,127,44,31,14,3,35,0,224,101,36,51,20,16,0,191,108,67,12,4,0,0,80,71,5,0,4,0,0,29,29,0,0,0,0,0]
[]
[]
[]
[]
[]
[]
[]
[]
[]
[]
[]
[]
[]
[]
[]
[]
[]
[]
[]
[]
[]
[]
[]
[]
[]
[]
[]
[]
[]
[]
[]
[]
[]
[]
[]
["Census 2000 SummaryFile3 Sample Data  -  SF3TownQry9HHIncomeByTenure"]
[]
["TOWN_NAME","LOGRECNO","COUSUB","NAME","COUNTY","TotalPop","HCT11OccHU","HCT11OwnOccHU","HCT11OOHUInc<5K","HCT11OOHUInc5to10K","HCT11OOHUInc10to15K","HCT11OOHUInc15to20K","HCT11OOHUInc20to25K","HCT11OOHUInc25to35K","HCT11OOHUInc35to50K","HCT11OOHUInc50to75K","HCT11OOHUInc75to100K","HCT11OOHUInc100to150K","HCT11OOHUInc>150K","HCT11RentOccHU","HCT11ROHUInc<5K","HCT11ROHUInc5to10K","HCT11ROHUInc10to15K","HCT11ROHUInc15to20K","HCT11ROHUInc20to25K","HCT11ROHUInc25to35K","HCT11ROHUInc35to50K","HCT11ROHUInc50to75K","HCT11ROHUInc75to100K","HCT11ROHUInc100to150K","HCT11ROHUInc>150K","HCT12MedHHInc","HCT12MedOwnOccHHInc","HCT12MedRentOccHHInc","SummaryLevel"]
["Barrington","0003823","03460","Barrington town","017",7475,2756,2345,25,33,82,24,79,327,450,588,523,164,50,411,17,7,30,33,56,101,94,73,0,0,0,50435,54272,30382,"060"]
["Dover","0003832","18820","Dover city","017",26884,11573,5909,62,86,185,213,199,672,871,1667,982,708,264,5664,212,439,501,405,393,1088,1250,979,242,110,45,43070,59780,32889,"060"]
["Durham","0003871","19700","Durham town","017",12664,2882,1627,0,9,47,29,36,111,111,314,330,358,282,1255,98,156,163,187,118,144,155,152,44,26,12,52139,84718,21306,"060"]
["Farmington","0003904","26020","Farmington town","017",5774,2146,1511,17,71,72,76,153,160,269,391,189,85,28,635,25,86,68,42,68,56,146,118,6,20,0,41221,44133,30809,"060"]
["Lee","0003919","41460","Lee town","017",4145,1466,1101,10,16,33,24,39,78,152,246,261,187,55,365,22,12,27,7,24,51,81,88,25,28,0,59211,68688,43698,"060"]
["Madbury","0003928","44820","Madbury town","017",1509,534,410,0,7,11,7,15,35,69,89,98,39,40,124,2,7,18,17,12,7,22,27,5,2,5,59167,68250,33750,"060"]
["Middleton","0003935","47700","Middleton town","017",1440,516,464,2,13,13,17,25,65,130,116,50,21,12,52,3,2,4,3,6,8,11,10,3,2,0,44375,45294,35000,"060"]
["Milton","0003940","48660","Milton town","017",3910,1456,1158,18,17,37,44,57,148,333,301,132,35,36,298,5,26,28,28,45,50,49,45,14,8,0,43547,47685,26250,"060"]
["New Durham","0003950","51220","New Durham town","017",2220,817,744,23,12,20,25,42,67,140,228,105,60,22,73,2,2,2,9,6,13,13,20,2,0,4,52257,53077,37083,"060"]
["Rochester","0003956","65140","Rochester city","017",28461,11434,7637,85,207,326,402,467,1003,1704,1968,829,469,177,3797,169,406,440,300,404,617,757,495,135,37,37,40279,46359,27936,"060"]
["Rollinsford","0004003","65540","Rollinsford town","017",2648,1033,722,8,4,33,31,39,59,119,192,136,51,50,311,12,18,28,31,13,29,116,61,0,3,0,48776,60345,36655,"060"]
["Somersworth","0004012","69940","Somersworth city","017",11477,4687,2660,30,22,101,97,118,301,579,817,385,159,51,2027,77,294,157,116,222,320,439,309,68,25,0,42790,52384,29175,"060"]
["Strafford","0004033","73860","Strafford town","017",3626,1281,1138,15,14,34,22,46,94,187,336,223,129,38,143,0,0,8,0,6,36,40,22,22,5,4,57831,59191,39821,"060"]
[]
[]
[]
[]
["TownName","LOGRECNO","COUNTY","TotalPop","TotalPop1Race","TotalPopWhite","TotalPopAfricanAmerican","TotalPopAmericanIndAlaska","TotalPopAsian","TotalPopNativeHawaiianPIsland","TotalPopSomeOtherRace","TotalPopTwoOrMoreRaces","TotalPopHispanicLatino","TotalNonHispanicLatino","TotPopUnder15yrs","TotPop15to24yrs","TotPop25to34yrs","TotPop35to44yrs","TotPop45to54yrs","TotPop55to64yrs","TotPop65to74yrs","TotPopOver74yrs","MedianAge","MedianAgeMale","MedianAgeFemale","TotalHH","TotalPopInHouseholds","TotalPopInFamilyHH","TotalPopInNonFamilyHH","AvgHHSize","TotalFamilyHH","TotalFamilyHHSpouse","TotalSingleParentHH","TotalNonFamilyHH","AvgFamilyHHSize","AvgNonFamilyHHSize","AverageHHSizeOwnerOccupied","AverageHHSizeRentalOccupied","TotalHousingUnits","TotalOccupiedHU","TotalOwnerOccupiedHUs","TotalRentalOccupiedHU","TotalVacantHU","VacantHUForRent","VacantHURentNotOccupied","VacantHUForSale","VacantHUsSoldNotOccupied","VacantHUSeasonalRecreational","VacantHUsAllOtherVacants","HomeOwnerVacancyRate","HomeRentalVacancyRate"]
["Barrington","0000216","017",8576,8473,8312,40,20,83,0,18,103,112,8464,1689,966,933,1368,1691,1110,535,284,40.700000000000003,40.299999999999997,41.1,3229,8576,4816,3760,2.66,2382,1973,409,847,3.02,4.4391971664698939,2.71,2.2599999999999998,3661,3229,2813,416,432,35,2,63,5,286,41,2.2000000000000002,7.7]
["Dover","0000263","017",29987,29307,27155,521,59,1371,14,187,680,660,29327,5103,4292,4926,4242,4363,3143,1804,2114,36.700000000000003,35.200000000000003,38.200000000000003,12827,29091,13324,15767,2.27,7059,5239,1820,5768,2.89,2.7335298196948683,2.48,2.0299999999999998,13685,12827,6790,6037,858,437,37,122,15,82,165,1.8,6.7]
["Durham","0000217","017",14638,14401,13730,126,10,474,2,59,237,300,14338,969,9712,457,664,959,865,500,512,21,21.1,20.9,2960,7372,2989,4383,2.4900000000000002,1544,1357,187,1416,2.94,3.0953389830508473,2.67,2.25,3092,2960,1713,1247,132,41,4,21,6,24,36,1.2,3.2]
["Farmington","0000218","017",6786,6671,6566,33,17,36,7,12,115,52,6734,1343,858,831,956,1181,867,455,295,39.200000000000003,38.9,39.6,2592,6786,3647,3139,2.62,1813,1321,492,779,3.01,4.0295250320924261,2.72,2.36,2832,2592,1879,713,240,69,2,40,7,58,64,2.1,8.8000000000000007]
["Lee","0000219","017",4330,4245,4063,39,3,127,1,12,85,70,4260,844,582,382,617,880,603,256,166,41,40.5,41.8,1661,4330,2370,1960,2.61,1177,928,249,484,3.01,4.0495867768595044,2.72,2.2000000000000002,1765,1661,1294,367,104,31,0,18,2,34,19,1.4,7.8]
["Madbury","0000220","017",1771,1734,1668,8,3,52,1,2,37,18,1753,385,209,145,283,347,227,112,63,40.6,39.5,41.5,626,1771,1023,748,2.83,480,417,63,146,3.13,5.1232876712328768,2.9,2.4900000000000002,653,626,514,112,27,4,0,6,1,2,14,1.2,3.4]
["Middleton","0000221","017",1783,1767,1736,9,7,13,0,2,16,15,1768,349,185,248,268,351,218,107,57,39,38.6,39.299999999999997,661,1783,1010,773,2.7,516,426,90,145,2.96,5.3310344827586205,2.68,2.93,851,661,607,54,190,1,0,20,0,149,20,3.2,1.8]
["New Durham","0000223","017",2638,2606,2586,4,3,8,0,5,32,22,2616,490,279,245,356,548,402,192,126,43.7,43.9,43.5,1014,2638,1479,1159,2.6,757,640,117,257,2.95,4.5097276264591439,2.6,2.65,1523,1014,923,91,509,7,2,24,4,446,26,2.5,7]
["Rochester","0000318","017",29752,29238,28388,251,92,361,15,131,514,547,29205,5457,3381,3779,4024,4863,3851,2334,2063,40.700000000000003,39.5,42.1,12378,29512,14994,14518,2.38,7936,5788,2148,4442,2.89,3.2683475911751465,2.46,2.23,13372,12378,8359,4019,994,376,15,231,18,80,274,2.7,8.5]
["Rollinsford","0000224","017",2527,2474,2422,17,6,21,1,7,53,24,2503,474,272,269,344,485,334,196,153,42.7,41.8,43.1,1032,2527,1352,1175,2.4500000000000002,703,562,141,329,2.92,3.5714285714285716,2.5299999999999998,2.2200000000000002,1099,1032,758,274,67,32,1,13,5,4,12,1.7,10.4]
["Somersworth","0000321","017",11766,11455,10523,162,40,621,2,107,311,296,11470,2312,1378,1761,1678,1912,1331,709,685,37.799999999999997,37,38.6,4862,11754,5936,5818,2.42,3044,2135,909,1818,2.95,3.2002200220022003,2.5299999999999998,2.2599999999999998,5199,4862,2791,2071,337,161,4,68,8,22,74,2.4,7.2]
["Strafford","0000225","017",3991,3953,3918,10,6,13,0,6,38,43,3948,730,500,298,552,903,604,261,143,44,43.6,44.2,1458,3985,2352,1633,2.73,1168,998,170,290,3.01,5.6310344827586203,2.76,2.4900000000000002,1784,1458,1289,169,326,15,2,16,6,258,29,1.2,8.1]
[]
[]
[]
[]
[]
[]
[]
[]
[]
[]
[]
[]
[]
[]
[null,null,null,null,null,null,null,null,null,null,null,null,null,null,null,null,null,null,null,null,null,null,null,null,null,null,null,null,null,null,null,null,null,null,null,null,null,null,null,null,null,null,null,null,null,null,null,null,null,null,null,null,null,null,null,null,null,null,null,null,null,null,null,null,null,null,null,null,null,null,null,null,null,null,null,null,null,null,null,null,null,null,null,null,null,null,null,null,null,null,null,null,null,null,null,null,null,null,null,null,0,7,3,4,28,"Coos"]
[null,null,null,null,null,null,null,null,null,null,null,null,null,null,null,null,null,null,null,null,null,null,null,null,null,null,null,null,null,null,null,null,null,null,null,null,null,null,null,null,null,null,null,null,null,null,null,null,null,null,null,null,null,null,null,null,null,null,null,null,null,null,null,null,null,null,null,null,null,null,null,null,null,null,null,null,null,null,null,null,null,null,null,null,null,null,null,null,null,null,null,null,null,null,null,null,null,null,null,null,3,20,7,13,29,"Coos"]
[null,null,null,null,null,null,null,null,null,null,null,null,null,null,null,null,null,null,null,null,null,null,null,null,null,null,null,null,null,null,null,null,null,null,null,null,null,null,null,null,null,null,null,null,null,null,null,null,null,null,null,null,null,null,null,null,null,null,null,null,null,null,null,null,null,null,null,null,null,null,null,null,null,null,null,null,null,null,null,null,null,null,null,null,null,null,null,null,null,null,null,null,null,null,null,null,null,null,null,null,0,0,0,0,0,"Coos"]
[null,null,null,null,null,null,null,null,null,null,null,null,null,null,null,null,null,null,null,null,null,null,null,null,null,null,null,null,null,null,null,null,null,null,null,null,null,null,null,null,null,null,null,null,null,null,null,null,null,null,null,null,null,null,null,null,null,null,null,null,null,null,null,null,null,null,null,null,null,null,null,null,null,null,null,null,null,null,null,null,null,null,null,null,null,null,null,null,null,null,null,null,null,null,null,null,null,null,null,null,0,0,0,0,0,"Coos"]
["Census 2000 SummaryFile3 Sample Data - SF3TownQry10aDisabil",null,null,null,null,null,null,null,null,null,null,null,null,null,null,null,null,null,null,null,null,null,null,null,null,null,null,null,null,null,null,null,null,null,null,null,null,null,null,null,null,null,null,null,null,null,null,null,null,null,null,null,null,null,null,null,null,null,null,null,null,null,null,null,null,null,null,null,null,null,null,null,null,null,null,null,null,null,null,null,null,null,null,null,null,null,null,null,null,null,null,null,null,null,null,null,null,null,null,null,0,0,0,0,0,"Coos"]
[null,null,null,null,null,null,null,null,null,null,null,null,null,null,null,null,null,null,null,null,null,null,null,null,null,null,null,null,null,null,null,null,null,null,null,null,null,null,null,null,null,null,null,null,null,null,null,null,null,null,null,null,null,null,null,null,null,null,null,null,null,null,null,null,null,null,null,null,null,null,null,null,null,null,null,null,null,null,null,null,null,null,null,null,null,null,null,null,null,null,null,null,null,null,null,null,null,null,null,null,2,38,9,29,98,"Coos"]
["TOWN_NAME","LOGRECNO","COUSUB","TotalPop","PCT026001","PCT026002","PCT026003","PCT026004","PCT026005","PCT026006","PCT026007","PCT026008","PCT026009","PCT026010","PCT026011","PCT026012","PCT026013","PCT026014","PCT026015","PCT026016","PCT026017","PCT026018","PCT026019","PCT026020","PCT026021","PCT026022","PCT026023","PCT026024","PCT026025","PCT026026","PCT026027","PCT026028","PCT026029","PCT026030","PCT026031","PCT026032","PCT026033","PCT026034","PCT026035","PCT026036","PCT026037","PCT026038","PCT026039","PCT026040","PCT026041","PCT026042","PCT026043","PCT026044","PCT026045","PCT026046","PCT026047","PCT026048","PCT026049","PCT026050","PCT026051","PCT026052","PCT026053","PCT026054","PCT026055","PCT026056","PCT026057","PCT026058","PCT026059","PCT026060","PCT026061","PCT026062","PCT026063","PCT026064","PCT026065","PCT026066","PCT026067","PCT026068","PCT026069","PCT026070","PCT026071","PCT026072","PCT026073","PCT026074","PCT026075","PCT026076","PCT026077","PCT026078","PCT026079","PCT026080","PCT026081","PCT026082","PCT026083","PCT026084","PCT026085","PCT026086","PCT026087","PCT026088","PCT026089","PCT026090","PCT026091","PCT026092","PCT026093","PCT026094","PCT026095","PCT026096","PCT026097","PCT026098","PCT026099","PCT026100","PCT026101"]
["Barrington","0003823","03460",7475,6994,3568,753,48,10,9,29,0,0,0,0,705,219,24,0,0,22,0,0,2,0,0,0,0,0,195,2346,197,33,8,42,0,8,106,138,37,101,44,57,2011,250,25,0,25,0,0,0,28,8,20,197,3426,624,7,0,0,7,0,9,0,9,608,204,12,0,0,0,0,0,12,0,0,0,0,0,192,2320,157,0,7,0,0,0,150,166,17,149,31,118,1997,278,70,28,13,0,0,29,50,0,50,158]
["Dover","0003832","18820",26884,24658,11953,1725,114,12,0,102,0,7,0,7,1604,734,107,0,0,70,0,0,37,22,0,22,0,22,605,8178,726,90,170,133,0,13,320,427,65,362,73,289,7025,1316,304,82,164,10,0,48,165,60,105,847,12705,1698,48,0,11,37,0,12,12,0,1638,712,101,7,0,33,0,12,49,0,0,0,0,0,611,8392,509,11,120,55,0,39,284,588,130,458,98,360,7295,1903,403,63,184,0,2,154,303,185,118,1197]
["Durham","0003871","19700",12664,12337,5589,480,33,0,0,33,0,0,0,0,447,1774,58,11,8,32,0,0,7,11,3,8,0,8,1705,2953,122,15,18,13,0,5,71,89,17,72,15,57,2742,382,44,9,29,6,0,0,46,22,24,292,6748,477,12,0,0,12,0,0,0,0,465,2928,85,18,16,44,0,0,7,32,0,32,16,16,2811,2915,154,0,11,26,0,0,117,51,6,45,29,16,2710,428,62,4,31,0,0,27,32,4,28,334]
["Farmington","0003904","26020",5774,5402,2672,528,67,0,0,67,0,23,9,14,438,217,41,0,0,17,0,7,17,29,21,8,8,0,147,1662,222,42,36,11,0,0,133,223,65,158,30,128,1217,265,48,12,18,0,0,18,65,12,53,152,2730,518,44,22,0,22,0,0,0,0,474,225,32,5,0,0,0,7,20,9,0,9,0,9,184,1655,261,29,111,12,0,0,109,214,71,143,31,112,1180,332,68,0,27,31,0,10,93,33,60,171]
["Lee","0003919","41460",4145,3808,1913,448,46,6,0,40,0,0,0,0,402,115,0,0,0,0,0,0,0,0,0,0,0,0,115,1209,133,31,11,10,3,9,69,55,22,33,9,24,1021,141,16,0,16,0,0,0,23,12,11,102,1895,378,23,0,0,23,0,0,0,0,355,137,8,0,0,8,0,0,0,9,0,9,0,9,120,1229,65,8,4,20,9,0,24,52,12,40,22,18,1112,151,10,5,5,0,0,0,35,12,23,106]
["Madbury","0003928","44820",1509,1430,719,169,7,2,0,5,0,0,0,0,162,57,0,0,0,0,0,0,0,0,0,0,0,0,57,439,12,2,6,0,0,0,4,16,9,7,0,7,411,54,8,2,6,0,0,0,9,2,7,37,711,143,6,0,0,6,0,3,3,0,134,49,2,0,0,2,0,0,0,0,0,0,0,0,47,455,16,2,8,0,0,0,6,12,6,6,0,6,427,64,12,0,5,0,0,7,18,6,12,34]
["Middleton","0003935","47700",1440,1333,677,113,8,0,0,8,0,0,0,0,105,71,4,0,0,2,0,0,2,1,1,0,0,0,66,415,47,10,8,2,0,0,27,38,2,36,10,26,330,78,12,0,4,0,0,8,8,2,6,58,656,122,2,0,0,2,0,0,0,0,120,55,2,0,0,0,0,2,0,0,0,0,0,0,53,414,27,2,6,5,0,0,14,34,4,30,6,24,353,65,10,4,6,0,0,0,10,6,4,45]
["Milton","0003940","48660",3910,3665,1810,353,60,8,0,52,0,0,0,0,293,124,40,0,0,9,0,0,31,10,0,10,0,10,74,1142,144,27,28,20,0,0,69,118,19,99,37,62,880,191,49,26,20,0,0,3,33,0,33,109,1855,354,16,0,0,16,0,0,0,0,338,115,19,0,0,7,0,12,0,0,0,0,0,0,96,1178,137,16,19,17,0,0,85,52,13,39,0,39,989,208,59,12,38,0,0,9,37,10,27,112]
["New Durham","0003950","51220",2220,2065,1077,225,27,0,4,23,0,7,2,5,191,58,8,0,0,0,0,0,8,4,0,4,2,2,46,670,104,12,12,4,0,0,76,58,5,53,4,49,508,124,32,8,13,0,0,11,15,2,13,77,988,174,0,0,0,0,0,3,3,0,171,65,2,0,0,0,0,0,2,4,0,4,0,4,59,630,103,6,11,11,0,0,75,24,8,16,2,14,503,119,32,17,14,1,0,0,10,4,6,77]
["Rochester","0003956","65140",28461,26314,12732,2359,250,0,7,243,0,35,26,9,2074,821,52,0,0,21,0,0,31,39,0,39,8,31,730,8055,1029,202,162,102,0,0,563,578,77,501,119,382,6448,1497,329,60,193,41,0,35,279,102,177,889,13582,2143,71,10,7,54,0,28,28,0,2044,898,63,0,6,30,0,5,22,0,0,0,0,0,835,8429,917,88,249,82,0,40,458,812,144,668,127,541,6700,2112,472,46,273,15,0,138,454,210,244,1186]
["Rollinsford","0004003","65540",2648,2470,1223,220,25,2,0,23,0,0,0,0,195,90,5,5,0,0,0,0,0,0,0,0,0,0,85,776,115,34,14,14,0,9,44,78,17,61,14,47,583,137,33,4,5,6,5,13,35,16,19,69,1247,203,5,0,0,5,0,0,0,0,198,78,7,0,0,0,0,0,7,0,0,0,0,0,71,779,66,0,17,7,0,4,38,22,5,17,0,17,691,187,31,5,7,3,0,16,44,10,34,112]
["Somersworth","0004012","69940",11477,10616,4984,883,103,0,10,93,0,10,0,10,770,346,29,19,0,10,0,0,0,8,0,8,0,8,309,3241,333,17,112,29,0,11,164,326,141,185,31,154,2582,514,121,49,50,0,0,22,53,0,53,340,5632,978,102,28,0,74,0,13,0,13,863,404,6,0,0,6,0,0,0,10,0,10,10,0,388,3405,375,19,111,50,0,9,186,286,71,215,13,202,2744,845,192,35,78,7,0,72,182,56,126,471]
["Strafford","0004033","73860",3626,3403,1708,397,38,0,0,38,0,0,0,0,359,140,21,3,3,15,0,0,0,0,0,0,0,0,119,1037,76,14,25,0,0,0,37,52,15,37,22,15,909,134,33,4,20,4,5,0,22,13,9,79,1695,338,16,0,0,16,0,0,0,0,322,83,4,0,0,4,0,0,0,0,0,0,0,0,79,1129,56,4,8,0,0,0,44,40,4,36,6,30,1033,145,38,7,18,0,0,13,19,16,3,88]
[]
[]
[]
[]
["2010 Census Demographic Profile Data -  QRY_CountyState"]
["TownName","LOGRECNO","COUNTY","TotalPop","TotalPop1Race","TotalPopWhite","TotalPopAfricanAmerican","TotalPopAmericanIndAlaska","TotalPopAsian","TotalPopNativeHawaiianPIsland","TotalPopSomeOtherRace","TotalPopTwoOrMoreRaces","TotalPopHispanicLatino","TotalNonHispanicLatino","TotPopUnder15yrs","TotPop15to24yrs","TotPop25to34yrs","TotPop35to44yrs","TotPop45to54yrs","TotPop55to64yrs","TotPop65to74yrs","TotPopOver74yrs","MedianAge","MedianAgeMale","MedianAgeFemale","TotalHH","TotalPopInHouseholds","TotalPopInFamilyHH","TotalPopInNonFamilyHH","AvgHHSize","TotalFamilyHH","TotalFamilyHHSpouse","TotalSingleParentHH","TotalNonFamilyHH","AvgFamilyHHSize","AvgNonFamilyHHSize","AverageHHSizeOwnerOccupied","AverageHHSizeRentalOccupied","TotalHousingUnits","TotalOccupiedHU","TotalOwnerOccupiedHUs","TotalRentalOccupiedHU","TotalVacantHU","VacantHUForRent","VacantHURentNotOccupied","VacantHUForSale","VacantHUsSoldNotOccupied","VacantHUSeasonalRecreational","VacantHUsAllOtherVacants","HomeOwnerVacancyRate","HomeRentalVacancyRate","TotalHousingUnits2010","SingFamHU2010","MultiFamHU2010","MobileHom2010"]
["Barrington","0000216","017",8576,8473,8312,40,20,83,0,18,103,112,8464,1689,966,933,1368,1691,1110,535,284,40.700000000000003,40.299999999999997,41.1,3229,8576,4816,3760,2.66,2382,1973,409,847,3.02,4.4391971664698939,2.71,2.2599999999999998,3661,3229,2813,416,432,35,2,63,5,286,41,2.2000000000000002,7.7,3661,3022,239,400]
["Dover","0000263","017",29987,29307,27155,521,59,1371,14,187,680,660,29327,5103,4292,4926,4242,4363,3143,1804,2114,36.700000000000003,35.200000000000003,38.200000000000003,12827,29091,13324,15767,2.27,7059,5239,1820,5768,2.89,2.7335298196948683,2.48,2.0299999999999998,13685,12827,6790,6037,858,437,37,122,15,82,165,1.8,6.7,13685,6182,7124,379]
["Durham","0000217","017",14638,14401,13730,126,10,474,2,59,237,300,14338,969,9712,457,664,959,865,500,512,21,21.1,20.9,2960,7372,2989,4383,2.4900000000000002,1544,1357,187,1416,2.94,3.0953389830508473,2.67,2.25,3092,2960,1713,1247,132,41,4,21,6,24,36,1.2,3.2,3092,1764,1318,9]
["Farmington","0000218","017",6786,6671,6566,33,17,36,7,12,115,52,6734,1343,858,831,956,1181,867,455,295,39.200000000000003,38.9,39.6,2592,6786,3647,3139,2.62,1813,1321,492,779,3.01,4.0295250320924261,2.72,2.36,2832,2592,1879,713,240,69,2,40,7,58,64,2.1,8.8000000000000007,2832,1630,685,517]
["Lee","0000219","017",4330,4245,4063,39,3,127,1,12,85,70,4260,844,582,382,617,880,603,256,166,41,40.5,41.8,1661,4330,2370,1960,2.61,1177,928,249,484,3.01,4.0495867768595044,2.72,2.2000000000000002,1765,1661,1294,367,104,31,0,18,2,34,19,1.4,7.8,1765,1162,346,258]
["Madbury","0000220","017",1771,1734,1668,8,3,52,1,2,37,18,1753,385,209,145,283,347,227,112,63,40.6,39.5,41.5,626,1771,1023,748,2.83,480,417,63,146,3.13,5.1232876712328768,2.9,2.4900000000000002,653,626,514,112,27,4,0,6,1,2,14,1.2,3.4,653,498,105,50]
["Middleton","0000221","017",1783,1767,1736,9,7,13,0,2,16,15,1768,349,185,248,268,351,218,107,57,39,38.6,39.299999999999997,661,1783,1010,773,2.7,516,426,90,145,2.96,5.3310344827586205,2.68,2.93,851,661,607,54,190,1,0,20,0,149,20,3.2,1.8,851,778,3,70]
["Milton","0000222","017",4598,4529,4478,22,9,11,1,8,69,42,4556,852,539,510,659,874,641,325,198,41.3,41.7,40.799999999999997,1800,4597,2480,2117,2.5499999999999998,1283,1013,270,517,2.93,4.094777562862669,2.57,2.4900000000000002,2181,1800,1512,288,381,41,1,42,5,225,67,2.7,12.4,2181,1617,223,341]
["New Durham","0000223","017",2638,2606,2586,4,3,8,0,5,32,22,2616,490,279,245,356,548,402,192,126,43.7,43.9,43.5,1014,2638,1479,1159,2.6,757,640,117,257,2.95,4.5097276264591439,2.6,2.65,1523,1014,923,91,509,7,2,24,4,446,26,2.5,7,1523,1417,39,67]
["Rochester","0000318","017",29752,29238,28388,251,92,361,15,131,514,547,29205,5457,3381,3779,4024,4863,3851,2334,2063,40.700000000000003,39.5,42.1,12378,29512,14994,14518,2.38,7936,5788,2148,4442,2.89,3.2683475911751465,2.46,2.23,13372,12378,8359,4019,994,376,15,231,18,80,274,2.7,8.5,13372,6622,4349,2402]
["Rollinsford","0000224","017",2527,2474,2422,17,6,21,1,7,53,24,2503,474,272,269,344,485,334,196,153,42.7,41.8,43.1,1032,2527,1352,1175,2.4500000000000002,703,562,141,329,2.92,3.5714285714285716,2.5299999999999998,2.2200000000000002,1099,1032,758,274,67,32,1,13,5,4,12,1.7,10.4,1099,797,300,2]
["Somersworth","0000321","017",11766,11455,10523,162,40,621,2,107,311,296,11470,2312,1378,1761,1678,1912,1331,709,685,37.799999999999997,37,38.6,4862,11754,5936,5818,2.42,3044,2135,909,1818,2.95,3.2002200220022003,2.5299999999999998,2.2599999999999998,5199,4862,2791,2071,337,161,4,68,8,22,74,2.4,7.2,5199,2447,2282,470]
["Strafford","0000225","017",3991,3953,3918,10,6,13,0,6,38,43,3948,730,500,298,552,903,604,261,143,44,43.6,44.2,1458,3985,2352,1633,2.73,1168,998,170,290,3.01,5.6310344827586203,2.76,2.4900000000000002,1784,1458,1289,169,326,15,2,16,6,258,29,1.2,8.1,1784,1549,114,122]

{"sheet":"SmallTownEmploymentandWages","index":62,"n_rows":77,"n_cols":14,"rows_kept":77,"cut":false,"hidden":true,"merged":[[73,1,73,2],[35,1,35,2],[66,1,67,3]]}
[]
[null,{"$f":"CntyDataLink!A35","v":"Barrington"}]
[]
[null,"EMPLOYMENT CHARACTERISTICS"]
[]
[]
[]
[]
[]
[]
[]
[]
[]
[]
[]
[]
[]
[]
[]
[]
[]
[]
[]
[]
[]
[]
[]
[]
[null,"Annual Average Covered Private Employment "]
[null,null,"Source: NH Department of Employment Security, Covered Private Employment by location of employment"]
[null,null,2009,{"$f":"C31+1","v":2010},{"$f":"D31+1","v":2011},2012,2013,2014,2015,2016,2017,2018,2019,"Total Change  "]
[null,"Goods Producing",{"$f":"IF((CntyDataLink!$BQ$25)=\"n\",NA(),IF(VALUE(CntyDataLink!$BQ$25)=\"\",NA(),VALUE(CntyDataLink!$BQ$25)))","v":323},{"$f":"IF((CntyDataLink!$BY$25)=\"n\",NA(),IF(VALUE(CntyDataLink!$BY$25)=\"\",NA(),VALUE(CntyDataLink!$BY$25)))","v":354},{"$f":"IF((CntyDataLink!$CG$25)=\"n\",NA(),IF(VALUE(CntyDataLink!$CG$25)=\"\",NA(),VALUE(CntyDataLink!$CG$25)))","v":396},{"$f":"IF((CntyDataLink!$CO$25)=\"n\",NA(),IF(VALUE(CntyDataLink!$CO$25)=\"\",NA(),VALUE(CntyDataLink!$CO$25)))","v":457},{"$f":"IF((CntyDataLink!$CW$25)=\"n\",NA(),IF(VALUE(CntyDataLink!$CW$25)=\"\",NA(),VALUE(CntyDataLink!$CW$25)))","v":487},{"$f":"IF((CntyDataLink!$DE$25)=\"n\",NA(),IF(VALUE(CntyDataLink!$DE$25)=\"\",NA(),VALUE(CntyDataLink!$DE$25)))","v":505},{"$f":"IF((CntyDataLink!$DM$25)=\"n\",NA(),IF(VALUE(CntyDataLink!$DM$25)=\"\",NA(),VALUE(CntyDataLink!$DM$25)))","v":607},{"$f":"IF((CntyDataLink!$DU$25)=\"n\",NA(),IF(VALUE(CntyDataLink!$DU$25)=\"\",NA(),VALUE(CntyDataLink!$DU$25)))","v":673},{"$f":"IF((CntyDataLink!$EC$25)=\"n\",NA(),IF(VALUE(CntyDataLink!$EC$25)=\"\",NA(),VALUE(CntyDataLink!$EC$25)))","v":721},{"$f":"IF((CntyDataLink!$EK$25)=\"n\",NA(),IF(VALUE(CntyDataLink!$EK$25)=\"\",NA(),VALUE(CntyDataLink!$EK$25)))","v":791},{"$f":"IF((CntyDataLink!$ET$25)=\"n\",NA(),IF(VALUE(CntyDataLink!$ET$25)=\"\",NA(),VALUE(CntyDataLink!$ET$25)))","v":811},{"$f":"$M32-C32","v":488}]
[null,"Service Providing",{"$f":"IF((CntyDataLink!$BR$25)=\"n\",NA(),IF(VALUE(CntyDataLink!$BR$25)=\"\",NA(),VALUE(CntyDataLink!$BR$25)))","v":861},{"$f":"IF((CntyDataLink!$BZ$25)=\"n\",NA(),IF(VALUE(CntyDataLink!$BZ$25)=\"\",NA(),VALUE(CntyDataLink!$BZ$25)))","v":834},{"$f":"IF((CntyDataLink!$CH$25)=\"n\",NA(),IF(VALUE(CntyDataLink!$CH$25)=\"\",NA(),VALUE(CntyDataLink!$CH$25)))","v":840},{"$f":"IF((CntyDataLink!$CP$25)=\"n\",NA(),IF(VALUE(CntyDataLink!$CP$25)=\"\",NA(),VALUE(CntyDataLink!$CP$25)))","v":849},{"$f":"IF((CntyDataLink!$CX$25)=\"n\",NA(),IF(VALUE(CntyDataLink!$CX$25)=\"\",NA(),VALUE(CntyDataLink!$CX$25)))","v":883},{"$f":"IF((CntyDataLink!$DF$25)=\"n\",NA(),IF(VALUE(CntyDataLink!$DF$25)=\"\",NA(),VALUE(CntyDataLink!$DF$25)))","v":883},{"$f":"IF((CntyDataLink!$DN$25)=\"n\",NA(),IF(VALUE(CntyDataLink!$DN$25)=\"\",NA(),VALUE(CntyDataLink!$DN$25)))","v":895},{"$f":"IF((CntyDataLink!$DV$25)=\"n\",NA(),IF(VALUE(CntyDataLink!$DV$25)=\"\",NA(),VALUE(CntyDataLink!$DV$25)))","v":910},{"$f":"IF((CntyDataLink!$ED$25)=\"n\",NA(),IF(VALUE(CntyDataLink!$ED$25)=\"\",NA(),VALUE(CntyDataLink!$ED$25)))","v":939},{"$f":"IF((CntyDataLink!$EL$25)=\"n\",NA(),IF(VALUE(CntyDataLink!$EL$25)=\"\",NA(),VALUE(CntyDataLink!$EL$25)))","v":928},{"$f":"IF((CntyDataLink!$EU$25)=\"n\",NA(),IF(VALUE(CntyDataLink!$EU$25)=\"\",NA(),VALUE(CntyDataLink!$EU$25)))","v":958},{"$f":"$M33-C33","v":97}]
[null,"Total Private Emp",{"$f":"IF((CntyDataLink!$BP$25)=\"n\",NA(),IF(VALUE(CntyDataLink!$BP$25)=\"\",NA(),VALUE(CntyDataLink!$BP$25)))","v":1184},{"$f":"IF((CntyDataLink!$BX$25)=\"n\",NA(),IF(VALUE(CntyDataLink!$BX$25)=\"\",NA(),VALUE(CntyDataLink!$BX$25)))","v":1188},{"$f":"IF((CntyDataLink!$CF$25)=\"n\",NA(),IF(VALUE(CntyDataLink!$CF$25)=\"\",NA(),VALUE(CntyDataLink!$CF$25)))","v":1236},{"$f":"IF((CntyDataLink!$CN$25)=\"n\",NA(),IF(VALUE(CntyDataLink!$CN$25)=\"\",NA(),VALUE(CntyDataLink!$CN$25)))","v":1306},{"$f":"IF((CntyDataLink!$CV$25)=\"n\",NA(),IF(VALUE(CntyDataLink!$CV$25)=\"\",NA(),VALUE(CntyDataLink!$CV$25)))","v":1370},{"$f":"IF((CntyDataLink!$DD$25)=\"n\",NA(),IF(VALUE(CntyDataLink!$DD$25)=\"\",NA(),VALUE(CntyDataLink!$DD$25)))","v":1387},{"$f":"IF((CntyDataLink!$DL$25)=\"n\",NA(),IF(VALUE(CntyDataLink!$DL$25)=\"\",NA(),VALUE(CntyDataLink!$DL$25)))","v":1502},{"$f":"IF((CntyDataLink!$DT$25)=\"n\",NA(),IF(VALUE(CntyDataLink!$DT$25)=\"\",NA(),VALUE(CntyDataLink!$DT$25)))","v":1583},{"$f":"IF((CntyDataLink!$EB$25)=\"n\",NA(),IF(VALUE(CntyDataLink!$EB$25)=\"\",NA(),VALUE(CntyDataLink!$EB$25)))","v":1661},{"$f":"IF((CntyDataLink!$EJ$25)=\"n\",NA(),IF(VALUE(CntyDataLink!$EJ$25)=\"\",NA(),VALUE(CntyDataLink!$EJ$25)))","v":1719},{"$f":"IF((CntyDataLink!$ER$25)=\"n\",NA(),IF(VALUE(CntyDataLink!$ER$25)=\"\",NA(),VALUE(CntyDataLink!$ER$25)))","v":1769},{"$f":"$M34-C34","v":585}]
[]
[null,"% Change from prior Year",null,"09-10","10-11","11-12","12-13","13-14","14-15","15-16","16-17","17-18","18-19","Total % Change"]
[null,"Goods Producing",null,{"$f":"(D32-C32)/C32","v":9.5975232198142413E-2},0.11864406779661017,0.15404040404040403,6.5645514223194742E-2,3.6960985626283367E-2,{"$f":"(I32-H32)/H32","v":0.20198019801980199},0.10873146622734761,7.1322436849925702E-2,9.7087378640776698E-2,2.5284450063211124E-2,{"$f":"N32/C32","v":1.5108359133126934}]
[null,"Service Providing",null,-3.1358885017421602E-2,7.1942446043165471E-3,1.0714285714285714E-2,{"$f":"(G33-F33)/F33","v":4.0047114252061249E-2},0,1.3590033975084938E-2,1.6759776536312849E-2,3.1868131868131866E-2,-1.1714589989350373E-2,3.2327586206896554E-2,{"$f":"N33/C33","v":0.11265969802555169}]
[null,"Total Private Emp",null,3.3783783783783786E-3,4.0404040404040407E-2,5.6634304207119741E-2,4.9004594180704443E-2,1.2408759124087591E-2,8.2912761355443398E-2,5.3928095872170442E-2,4.9273531269740996E-2,3.4918723660445516E-2,2.9086678301337987E-2,{"$f":"N34/C34","v":0.49408783783783783}]
[]
[]
[null,"EMPLOYMENT CHARACTERISTICS"]
[]
[]
[]
[]
[]
[]
[]
[]
[]
[]
[]
[]
[]
[]
[]
[]
[]
[]
[]
[]
[]
[]
[]
[]
[null,"Covered Private Employment Average Wages",null,null,"Source: NH Department of Employment Security, Covered Private Employment"]
[]
[null,null,2009,{"$f":"C69+1","v":2010},{"$f":"D69+1","v":2011},{"$f":"E69+1","v":2012},2013,2014,2015,2016,2017,2018,2019,"Total $ Change"]
[null,"Goods Producing",{"$f":"IF((CntyDataLink!$BU$25)=\"n\",NA(),IF(VALUE(CntyDataLink!$BU$25)=\"\",NA(),VALUE(CntyDataLink!$BU$25)))","v":932.29},{"$f":"IF((CntyDataLink!$CC$25)=\"n\",NA(),IF(VALUE(CntyDataLink!$CC$25)=\"\",NA(),VALUE(CntyDataLink!$CC$25)))","v":1067.45},{"$f":"IF((CntyDataLink!$CK$25)=\"n\",NA(),IF(VALUE(CntyDataLink!$CK$25)=\"\",NA(),VALUE(CntyDataLink!$CK$25)))","v":994.51},{"$f":"IF((CntyDataLink!$CS$25)=\"n\",NA(),IF(VALUE(CntyDataLink!$CS$25)=\"\",NA(),VALUE(CntyDataLink!$CS$25)))","v":1006},{"$f":"IF((CntyDataLink!$DA$25)=\"n\",NA(),IF(VALUE(CntyDataLink!$DA$25)=\"\",NA(),VALUE(CntyDataLink!$DA$25)))","v":1118.82},{"$f":"IF((CntyDataLink!$DI$25)=\"n\",NA(),IF(VALUE(CntyDataLink!$DI$25)=\"\",NA(),VALUE(CntyDataLink!$DI$25)))","v":1124.94},{"$f":"IF((CntyDataLink!$DQ$25)=\"n\",NA(),IF(VALUE(CntyDataLink!$DQ$25)=\"\",NA(),VALUE(CntyDataLink!$DQ$25)))","v":1163.26},{"$f":"IF((CntyDataLink!$DY$25)=\"n\",NA(),IF(VALUE(CntyDataLink!$DY$25)=\"\",NA(),VALUE(CntyDataLink!$DY$25)))","v":1107.7},{"$f":"IF((CntyDataLink!$EG$25)=\"n\",NA(),IF(VALUE(CntyDataLink!$EG$25)=\"\",NA(),VALUE(CntyDataLink!$EG$25)))","v":1123.82},{"$f":"IF((CntyDataLink!$EO$25)=\"n\",NA(),IF(VALUE(CntyDataLink!$EO$25)=\"\",NA(),VALUE(CntyDataLink!$EO$25)))","v":1209.45},{"$f":"IF((CntyDataLink!$EY$25)=\"n\",NA(),IF(VALUE(CntyDataLink!$EY$25)=\"\",NA(),VALUE(CntyDataLink!$EY$25)))","v":1174.99},{"$f":"M70-C70","v":242.70000000000005}]
[null,"Service Providing",{"$f":"IF((CntyDataLink!$BV$25)=\"n\",NA(),IF(VALUE(CntyDataLink!$BV$25)=\"\",NA(),VALUE(CntyDataLink!$BV$25)))","v":721.2},{"$f":"IF((CntyDataLink!$CD$25)=\"n\",NA(),IF(VALUE(CntyDataLink!$CD$25)=\"\",NA(),VALUE(CntyDataLink!$CD$25)))","v":681.53},{"$f":"IF((CntyDataLink!$CL$25)=\"n\",NA(),IF(VALUE(CntyDataLink!$CL$25)=\"\",NA(),VALUE(CntyDataLink!$CL$25)))","v":729.74},{"$f":"IF((CntyDataLink!$CT$25)=\"n\",NA(),IF(VALUE(CntyDataLink!$CT$25)=\"\",NA(),VALUE(CntyDataLink!$CT$25)))","v":724.85},{"$f":"IF((CntyDataLink!$DB$25)=\"n\",NA(),IF(VALUE(CntyDataLink!$DB$25)=\"\",NA(),VALUE(CntyDataLink!$DB$25)))","v":738.04},{"$f":"IF((CntyDataLink!$DJ$25)=\"n\",NA(),IF(VALUE(CntyDataLink!$DJ$25)=\"\",NA(),VALUE(CntyDataLink!$DJ$25)))","v":712.28},{"$f":"IF((CntyDataLink!$DR$25)=\"n\",NA(),IF(VALUE(CntyDataLink!$DR$25)=\"\",NA(),VALUE(CntyDataLink!$DR$25)))","v":775.14},{"$f":"IF((CntyDataLink!$DZ$25)=\"n\",NA(),IF(VALUE(CntyDataLink!$DZ$25)=\"\",NA(),VALUE(CntyDataLink!$DZ$25)))","v":783.48},{"$f":"IF((CntyDataLink!EG$25)=\"n\",NA(),IF(VALUE(CntyDataLink!$EH$25)=\"\",NA(),VALUE(CntyDataLink!$EH$25)))","v":826.39},{"$f":"IF((CntyDataLink!EO$25)=\"n\",NA(),IF(VALUE(CntyDataLink!$EP$25)=\"\",NA(),VALUE(CntyDataLink!$EP$25)))","v":860.86},{"$f":"IF((CntyDataLink!EZ$25)=\"n\",NA(),IF(VALUE(CntyDataLink!$EZ$25)=\"\",NA(),VALUE(CntyDataLink!$EZ$25)))","v":912.8},{"$f":"M71-C71","v":191.59999999999991}]
[null,"Total Private Emp",{"$f":"IF((CntyDataLink!$BT$25)=\"n\",NA(),IF(VALUE(CntyDataLink!$BT$25)=\"\",NA(),VALUE(CntyDataLink!$BT$25)))","v":778.79},{"$f":"IF((CntyDataLink!$CB$25)=\"n\",NA(),IF(VALUE(CntyDataLink!$CB$25)=\"\",NA(),VALUE(CntyDataLink!$CB$25)))","v":796.47},{"$f":"IF((CntyDataLink!$CJ$25)=\"n\",NA(),IF(VALUE(CntyDataLink!$CJ$25)=\"\",NA(),VALUE(CntyDataLink!$CJ$25)))","v":814.57},{"$f":"IF((CntyDataLink!$CR$25)=\"n\",NA(),IF(VALUE(CntyDataLink!$CR$25)=\"\",NA(),VALUE(CntyDataLink!$CR$25)))","v":823.23},{"$f":"IF((CntyDataLink!$CZ$25)=\"n\",NA(),IF(VALUE(CntyDataLink!$CZ$25)=\"\",NA(),VALUE(CntyDataLink!$CZ$25)))","v":873.52},{"$f":"IF((CntyDataLink!$DH$25)=\"n\",NA(),IF(VALUE(CntyDataLink!$DH$25)=\"\",NA(),VALUE(CntyDataLink!$DH$25)))","v":862.33},{"$f":"IF((CntyDataLink!$DP$25)=\"n\",NA(),IF(VALUE(CntyDataLink!$DP$25)=\"\",NA(),VALUE(CntyDataLink!$DP$25)))","v":931.95},{"$f":"IF((CntyDataLink!$DX$25)=\"n\",NA(),IF(VALUE(CntyDataLink!$DX$25)=\"\",NA(),VALUE(CntyDataLink!$DX$25)))","v":921.27},{"$f":"IF((CntyDataLink!$EF$25)=\"n\",NA(),IF(VALUE(CntyDataLink!$EF$25)=\"\",NA(),VALUE(CntyDataLink!$EF$25)))","v":955.59},{"$f":"IF((CntyDataLink!$EN$25)=\"n\",NA(),IF(VALUE(CntyDataLink!$EN$25)=\"\",NA(),VALUE(CntyDataLink!$EN$25)))","v":1021.32},{"$f":"IF((CntyDataLink!$EW$25)=\"n\",NA(),IF(VALUE(CntyDataLink!$EW$25)=\"\",NA(),VALUE(CntyDataLink!$EW$25)))","v":1033.02},{"$f":"M72-C72","v":254.23000000000002}]
[]
[null,"% Change from prior Year",null,{"$f":"D36","v":"09-10"},"10-11","11-12","12-13","13-14","14-15","15-16","16-17","17-18","18-19","Total % Change"]
[null,"Goods Producing",null,{"$f":"(D70-C70)/C70","v":0.14497634856107014},-6.8331069370930766E-2,1.1553428321484961E-2,0.11214711729622261,5.4700488014158832E-3,3.4064038970967284E-2,-4.7762323126386147E-2,1.4552676717522696E-2,7.6195476143866556E-2,-2.8492289883831522E-2,{"$f":"N70/C70","v":0.26032672237179422}]
[null,"Service Providing",null,-5.5005546311702812E-2,7.0737898551787942E-2,-6.7010168005042703E-3,1.8196868317582868E-2,-3.4903257276028388E-2,8.8251811085528181E-2,1.0759346698660929E-2,5.476846888242197E-2,4.1711540555911891E-2,6.0335013823385845E-2,{"$f":"N71/C71","v":0.26566833056017736}]
[null,"Total Private Emp",null,2.2701883691367459E-2,2.2725275277160499E-2,1.0631376063444477E-2,6.1088638655053824E-2,-1.2810239032878401E-2,8.0734753516635158E-2,-1.1459842266216066E-2,3.7252922595981688E-2,6.8784729852761142E-2,1.1455763130066904E-2,{"$f":"N72/C72","v":0.32644230151902315}]

{"sheet":"HousingComparison","index":63,"n_rows":50,"n_cols":15,"rows_kept":50,"cut":false,"hidden":true,"merged":[[28,3,28,4],[28,5,28,8],[28,9,28,14],[29,5,29,6],[29,7,29,8],[29,9,29,10],[29,11,29,12],[29,13,29,14]]}
[]
[]
[]
[]
[]
[]
[]
[]
[]
[]
[]
[]
[]
[]
[]
[]
[]
[]
[]
[]
[]
[]
[]
[]
[]
[]
[]
[null,"Housing Units",null,"In 2019"]
[null,null,null,"Total Units",null,"Occupied Units",null,null,null,"Vacant Units"]
[null,null,null,null,null,"Owner",null,"Renter",null,"For Sale",null,"For Rent",null,"Seasonal"]
[null,null,null,"#","%","#","%","#","%","#","%","#","%","#","%"]
[]
[null,"Barrington",null,{"$f":"ACS_Table_B25001!$C$7","v":3593},{"$f":"D33/D$47","v":6.6681513649945248E-2},{"$f":"ACS_Table_B25003!$C$8","v":2904},{"$f":"F33/$F$47","v":8.9809803618370182E-2},{"$f":"ACS_Table_B25003!$C$9","v":279},{"$f":"H33/$H$47","v":1.6759776536312849E-2},{"$f":"ACS_Table_B25004!$C$10","v":0},{"$f":"J33/$J$47","v":0},{"$f":"ACS_Table_B25004!$C$8","v":0},{"$f":"L33/$L$47","v":0},{"$f":"ACS_Table_B25004!$C$12","v":244},{"$f":"N33/$N$47","v":0.14336075205640422}]
[null,"Dover",null,{"$f":"ACS_Table_B25001!$E$7","v":14226},0.26401648015143925,{"$f":"ACS_Table_B25003!$E$8","v":6949},0.21490644812123086,{"$f":"ACS_Table_B25003!$E$9","v":6540},0.39286357902324742,{"$f":"ACS_Table_B25004!$E$10","v":104},0.23423423423423423,{"$f":"ACS_Table_B25004!$E$8","v":417},0.42638036809815949,{"$f":"ACS_Table_B25004!$E$12","v":15},8.8131609870740306E-3]
[null,"Durham",null,{"$f":"ACS_Table_B25001!$G$7","v":3812},7.0745875322457921E-2,{"$f":"ACS_Table_B25003!$G$8","v":1854},5.733725065718262E-2,{"$f":"ACS_Table_B25003!$G$9","v":1333},8.0074487895716945E-2,{"$f":"ACS_Table_B25004!$G$10","v":17},3.8288288288288286E-2,{"$f":"ACS_Table_B25004!$G$8","v":162},0.16564417177914109,{"$f":"ACS_Table_B25004!$G$12","v":5},2.9377203290246769E-3]
[null,"Farmington",null,{"$f":"ACS_Table_B25001!$I$7","v":3130},5.8088822077464138E-2,{"$f":"ACS_Table_B25003!$I$8","v":1931},5.9718571207669706E-2,{"$f":"ACS_Table_B25003!$I$9","v":937},5.6286417973208387E-2,{"$f":"ACS_Table_B25004!$I$10","v":0},0,{"$f":"ACS_Table_B25004!$I$8","v":0},0,{"$f":"ACS_Table_B25004!$I$12","v":130},7.6380728554641591E-2]
[null,"Lee",null,{"$f":"ACS_Table_B25001!$K$7","v":1968},3.6523578865319303E-2,{"$f":"ACS_Table_B25003!$K$8","v":1619},5.0069584042059689E-2,{"$f":"ACS_Table_B25003!$K$9","v":257},1.5438217096173485E-2,{"$f":"ACS_Table_B25004!$K$10","v":0},0,{"$f":"ACS_Table_B25004!$K$8","v":47},4.8057259713701429E-2,{"$f":"ACS_Table_B25004!$K$12","v":0},0]
[null,"Madbury",null,{"$f":"ACS_Table_B25001!$M$7","v":666},1.236011357942208E-2,{"$f":"ACS_Table_B25003!$M$8","v":533},1.6483686407917118E-2,{"$f":"ACS_Table_B25003!$M$9","v":82},4.9258124587012678E-3,{"$f":"ACS_Table_B25004!$M$10","v":0},0,{"$f":"ACS_Table_B25004!$M$8","v":0},0,{"$f":"ACS_Table_B25004!$M$12","v":13},7.6380728554641597E-3]
[null,"Middleton",null,{"$f":"ACS_Table_B25001!$O$7","v":840},1.5589332442514337E-2,{"$f":"ACS_Table_B25003!$O$8","v":585},1.8091850935518787E-2,{"$f":"ACS_Table_B25003!$O$9","v":73},4.3851745059169823E-3,{"$f":"ACS_Table_B25004!$O$10","v":13},2.9279279279279279E-2,{"$f":"ACS_Table_B25004!$O$8","v":0},0,{"$f":"ACS_Table_B25004!$O$12","v":166},9.7532314923619273E-2]
[null,"Milton",null,{"$f":"ACS_Table_B25001!$Q$7","v":2140},3.9715680270215097E-2,{"$f":"ACS_Table_B25003!$Q$8","v":1602},4.9543837946497603E-2,{"$f":"ACS_Table_B25003!$Q$9","v":209},1.2554814681323962E-2,{"$f":"ACS_Table_B25004!$Q$10","v":25},5.6306306306306307E-2,{"$f":"ACS_Table_B25004!$Q$8","v":34},3.4764826175869123E-2,{"$f":"ACS_Table_B25004!$Q$12","v":187},0.10987074030552292]
[null,"New Durham",null,{"$f":"ACS_Table_B25001!$S$7","v":1601},2.9712525286268398E-2,{"$f":"ACS_Table_B25003!$S$8","v":893},2.761713313746714E-2,{"$f":"ACS_Table_B25003!$S$9","v":60},3.6042530185619029E-3,{"$f":"ACS_Table_B25004!$S$10","v":32},7.2072072072072071E-2,{"$f":"ACS_Table_B25004!$S$8","v":0},0,{"$f":"ACS_Table_B25004!$S$12","v":594},0.34900117508813161]
[null,"Rochester",null,{"$f":"ACS_Table_B25001!$U$7","v":13522},0.25095113486628434,{"$f":"ACS_Table_B25003!$U$8","v":8601},0.26599659811349929,{"$f":"ACS_Table_B25003!$U$9","v":4179},0.25103622274283655,{"$f":"ACS_Table_B25004!$U$10","v":202},0.45495495495495497,{"$f":"ACS_Table_B25004!$U$8","v":269},0.27505112474437626,{"$f":"ACS_Table_B25004!$U$12","v":31},1.8213866039952998E-2]
[null,"Rollinsford",null,{"$f":"ACS_Table_B25001!$W$7","v":1115},2.0692982944527958E-2,{"$f":"ACS_Table_B25003!$W$8","v":798},2.4679140250502551E-2,{"$f":"ACS_Table_B25003!$W$9","v":242},1.4537153841533009E-2,{"$f":"ACS_Table_B25004!$W$10","v":31},6.9819819819819814E-2,{"$f":"ACS_Table_B25004!$W$8","v":10},1.0224948875255624E-2,{"$f":"ACS_Table_B25004!$W$12","v":16},9.4007050528789656E-3]
[null,"Somersworth",null,{"$f":"ACS_Table_B25001!$Y$7","v":5501},0.10209156876937067,{"$f":"ACS_Table_B25003!$Y$8","v":2795},8.643884335858977E-2,{"$f":"ACS_Table_B25003!$Y$9","v":2332},0.14008530065477262,{"$f":"ACS_Table_B25004!$Y$10","v":20},4.5045045045045043E-2,{"$f":"ACS_Table_B25004!$Y$8","v":39},3.9877300613496931E-2,{"$f":"ACS_Table_B25004!$Y$12","v":0},0]
[null,"Strafford",null,{"$f":"ACS_Table_B25001!$AA$7","v":1769},3.2830391774771261E-2,{"$f":"ACS_Table_B25003!$AA$8","v":1271},3.9307252203494666E-2,{"$f":"ACS_Table_B25003!$AA$9","v":124},7.4487895716945996E-3,{"$f":"ACS_Table_B25004!$AA$10","v":0},0,{"$f":"ACS_Table_B25004!$AA$8","v":0},0,{"$f":"ACS_Table_B25004!$AA$12","v":301},0.17685076380728554]
[]
[null,"Sullivan County",null,{"$f":"SUM(D33:D45)","v":53883},null,{"$f":"SUM(F33:F45)","v":32335},null,{"$f":"SUM(H33:H45)","v":16647},null,{"$f":"SUM(J33:J45)","v":444},null,{"$f":"SUM(L33:L45)","v":978},null,{"$f":"SUM(N33:N45)","v":1702}]
[]
[null,"Source: 2015-2019 American Community Survey Tables B25001; B25003; and B25004"]
[null,"Margin of error is not displayed.  The American Community Survey data are estimates only."]

{"sheet":"Housing_EmploymentComparison","index":64,"n_rows":52,"n_cols":11,"rows_kept":52,"cut":false,"hidden":true,"merged":[[49,2,49,13],[50,2,50,13],[51,2,51,13],[28,3,28,4],[28,5,28,10],[29,3,29,4],[29,5,29,6],[29,7,29,8],[29,9,29,10]]}
[]
[]
[]
[]
[]
[]
[]
[]
[]
[]
[]
[]
[]
[]
[]
[]
[]
[]
[]
[]
[]
[]
[]
[]
[]
[]
[]
[null,null,null,"In 2019"]
[null,null,null,"Total Units",null,"Employment"]
[null,null,null,null,null,"Total Private",null,"Goods Producing",null,"Service Providing"]
[null,null,null,"#","%","#","%","#","%","#","%"]
[]
[null,"Barrington",null,{"$f":"ACS_Table_B25001!$C$7","v":3593},{"$f":"D33/D$47","v":6.6681513649945248E-2},{"$f":"CntyQuery!EQ171","v":2070},{"$f":"IF(F33=\"n\",\"n\",F33/$F$47)","v":5.2583447645176043E-2},{"$f":"CntyQuery!ET171","v":811},{"$f":"IF(H33=\"n\",\"n\",H33/$F$47)","v":2.0601534318955443E-2},{"$f":"CntyQuery!EU171","v":958},{"$f":"IF(J33=\"n\",\"n\",J33/$F$47)","v":2.4335721180714323E-2}]
[null,"Dover",null,{"$f":"ACS_Table_B25001!$E$7","v":14226},0.26401648015143925,{"$f":"CntyQuery!EQ172","v":17768},0.45135396027028402,{"$f":"CntyQuery!ET172","v":1428},3.6274958085657671E-2,{"$f":"CntyQuery!EU172","v":14462},0.36737285982827822]
[null,"Durham",null,{"$f":"ACS_Table_B25001!$G$7","v":3812},7.0745875322457921E-2,{"$f":"CntyQuery!EQ173","v":6000},0.15241579027587257,{"$f":"CntyQuery!ET173","v":212},5.3853579230808309E-3,{"$f":"CntyQuery!EU173","v":1485},3.7722908093278461E-2]
[null,"Farmington",null,{"$f":"ACS_Table_B25001!$I$7","v":3130},5.8088822077464138E-2,{"$f":"CntyQuery!EQ174","v":954},2.4234110653863741E-2,{"$f":"CntyQuery!ET174","v":207},5.2583447645176036E-3,{"$f":"CntyQuery!EU174","v":409},1.0389676370471982E-2]
[null,"Lee",null,{"$f":"ACS_Table_B25001!K$7","v":1968},3.6523578865319303E-2,{"$f":"CntyQuery!EQ175","v":1330},3.3785500177818423E-2,{"$f":"CntyQuery!ET175","v":100},2.540263171264543E-3,{"$f":"CntyQuery!EU175","v":1092},2.7739673830208811E-2]
[null,"Madbury",null,{"$f":"ACS_Table_B25001!$M$7","v":666},1.236011357942208E-2,{"$f":"CntyQuery!EQ176","v":333},8.4590763603109281E-3,{"$f":"CntyQuery!ET176","v":50},1.2701315856322715E-3,{"$f":"CntyQuery!EU176","v":190},4.8265000254026314E-3]
[null,"Middleton",null,{"$f":"ACS_Table_B25001!$O$7","v":840},1.5589332442514337E-2,{"$f":"CntyQuery!EQ177","v":155},3.9374079154600415E-3,{"$f":"CntyQuery!ET177","v":0},0,{"$f":"CntyQuery!EU177","v":0},0]
[null,"Milton",null,{"$f":"ACS_Table_B25001!$Q$7","v":2140},3.9715680270215097E-2,{"$f":"CntyQuery!EQ178","v":608},1.5444800081288422E-2,{"$f":"CntyQuery!ET178","v":302},7.6715947772189198E-3,{"$f":"CntyQuery!EU178","v":235},5.9696184524716759E-3]
[null,"New Durham",null,{"$f":"ACS_Table_B25001!$S$7","v":1601},2.9712525286268398E-2,{"$f":"CntyQuery!EQ179","v":275},6.9857237209774931E-3,{"$f":"CntyQuery!ET179","v":13},3.3023421226439058E-4,{"$f":"CntyQuery!EU179","v":159},4.0390184423106231E-3]
[null,"Rochester",null,{"$f":"ACS_Table_B25001!$U$7","v":13522},0.25095113486628434,{"$f":"CntyQuery!EQ180","v":12483},0.31710105166895292,{"$f":"CntyQuery!ET180","v":2370},6.0204237158969671E-2,{"$f":"CntyQuery!EU180","v":8697},0.2209266880048773]
[null,"Rollinsford",null,{"$f":"ACS_Table_B25001!$W$7","v":1115},2.0692982944527958E-2,{"$f":"CntyQuery!EQ181","v":594},1.5089163237311385E-2,{"$f":"CntyQuery!ET181","v":266},6.7571000355636842E-3,{"$f":"CntyQuery!EU181","v":246},6.249047401310776E-3]
[null,"Somersworth",null,{"$f":"ACS_Table_B25001!$Y$7","v":5501},0.10209156876937067,{"$f":"CntyQuery!EQ182","v":5740},0.14581110603058478,{"$f":"CntyQuery!ET182","v":1182},3.0025910684346898E-2,{"$f":"CntyQuery!EU182","v":4093},0.10397297159985774]
[null,"Strafford",null,{"$f":"ACS_Table_B25001!$AA$7","v":1769},3.2830391774771261E-2,{"$f":"CntyQuery!EQ183","v":404},1.0262663211908754E-2,{"$f":"CntyQuery!ET183","v":144},3.6579789666209418E-3,{"$f":"CntyQuery!EU183","v":112},2.8450947518162883E-3]
[]
[null,"Sullivan County",null,{"$f":"SUM(D33:D46)","v":53883},null,{"$f":"CntyQuery!$ER$198","v":39366},null,{"$f":"CntyQuery!$ET$198","v":7127},null,{"$f":"CntyQuery!$EU$198","v":32239}]
[]
[null,"Source: ","2015-2019 American Community Survey Table B25001"]
[null,null,"Employment data provided by NH Department of Employment Security 2019 Covered Private Employment."]
[null,null,"Margin of error is not displayed.  The American Community Survey data are estimates only. Total Employment "]
[null,null,"at the county level is the number provided by NH Department of Employment Security."]

{"sheet":"CntyDataLinkPrior5YearEstimates","index":65,"n_rows":167,"n_cols":255,"rows_kept":167,"cut":false,"hidden":true,"merged":[]}
[1,{"$f":"A1+1","v":2},{"$f":"B1+1","v":3},4,5,6,7,8,9,10,11,12,13,14,15,{"$f":"O1+1","v":16},17,18,19,20,21,22,23,24,25,26,27,28,29,30,31,32,33,34,35,36,37,38,39,40,41,42,43,44,45,46,47,48,49,50,51,52,53,54,55,56,57,58,59,60,61,62,63,64,65,66,{"$f":"BN1+1","v":67},68,69,70,71,72,73,74,75,76,77,78,79,80,81,82,83,84,85,86,87,88,89,90,91,92,93,94,95,96,97,98,99,100,101,102,103,104,105,106,107,108,109,110,111,112,113,114,115,116,117,118,119,120,121,122,123,124,125,126,127,128,129,130,{"$f":"DZ1+1","v":131},132,133,134,135,136,137,138,139,140,141,142,143,144,145,146,147,148,149,150,151,152,153,154,155,156,157,158,159,160,161,162,163,164,165,166,167,168,169,170,171,172,173,174,175,176,177,178,179,180,181,182,183,184,185,186,187,188,189,190,191,192,193,194,{"$f":"GL1+1","v":195},196,197,198,199,200,201,202,203,204,205,206,207,208,209,210,211,212,213,214,215,216,217,218,219,220,221,222,223,224,225,226,227,228,229,230,231,232,233,234,235,236,237,238,239,240,241,242,243,244,245,246,247,248,249,250,251,252,253,254,255]
[]
["Census 1990 Data -           Query Name:  DPCnty90Census"]
["TownName","Cnty_Code","Census_Cnty_Code","LandAcres","WaterAcres","HousingUnits90Cen","Persons90Cen","Families90Cen","Households90cen","MalePop90cen","FemalePop90cen","WhitePop","BlackPop","AmerIndianPop","AsianPIPop","OtherRacePop","HispanicOrPop","AgeUnder15_90cen","Age15to24_90cen","Age25to34_90cen","Age35to44_90cen","Age45to54_90cen","Age55to64_90cen","Age65to74_90cen","Age75andOver_90cen","PersonsInHH90cen","PersonsInFamHH90cen","PersonsInGC","PersonsPerHH90cen","PersonsPerFam90Cen","SinglePersonHH90cen","MarriedCoupleHH90cen","SingleParentHH90cen","NonFamilyHH90cen","TotalHousingUnits","OccupiedHousingUnits","VacantHousingUnits","OwnerOccHU","RenterOccHU","VacantForRent90","VacantForSale90","VacantSeasonalRec","SingFamHU90cen","MultiFamHU90cen","MobileHom90cen","SingFamOwnHU90cen","MultiFamOwnHU90cen","MobileHomOwnHU90cen","SingFamRntrHU90cen","MultiFamRntrHU90cen","MobileHomRntrHU90cen","HU<5yrs90cen","HU5to20yrs90cen","HU20to50yrs90cen","HU>50yrs90cen","Units0Bedroom90cen","Units1Bedroom90cen","Units2Bedroom90cen","Units3Bedroom90cen","Units4+Bedroom90cen","HI<5K","HI5Kto10K","HI10Kto15K","HI15Kto25K","HI25Kto35K","HI35Kto50K","HI50Kto75K","HI75Kto100K","HI>100K","MedHI","HH<25HI<5K","HH<25HI5Kto10K","HH<25HI10Kto15K","HH<25HI15Kto25K","HH<25HI25Kto35K","HH<25HI35Kto50K","HH<25HI50Kto75K","HH<25HI75Kto100K","HH<25HI>100K","HH25to34HI<5K","HH25to34HI5Kto10K","HH25to34HI10Kto15K","HH25to34HI15Kto25K","HH25to34HI25Kto35K","HH25to34HI35Kto50K","HH25to34HI50Kto75K","HH25to34HI75Kto100K","HH25to34HI>100K","HH35to44HI<5K","HH35to44HI5Kto10K","HH35to44HI10Kto15K","HH35to44HI15Kto25K","HH35to44HI25Kto35K","HH35to44HI35Kto50K","HH35to44HI50Kto75K","HH35to44HI75Kto100K","HH35to44HI>100K","HH45to54HI<5K","HH45to54HI5Kto10K","HH45to54HI10Kto15K","HH45to54HI15Kto25K","HH45to54HI25Kto35K","HH45to54HI35Kto50K","HH45to54HI50Kto75K","HH45to54HI75Kto100K","HH45to54HI>100K","HH55to64HI<5K","HH55to64HI5Kto10K","HH55to64HI10Kto15K","HH55to64HI15Kto25K","HH55to64HI25Kto35K","HH55to64HI35Kto50K","HH55to64HI50Kto75K","HH55to64HI75Kto100K","HH55to64HI>100K","HH65to74HI<5K","HH65to74HI5Kto10K","HH65to74HI10Kto15K","HH65to74HI15Kto25K","HH65to74HI25Kto35K","HH65to74HI35Kto50K","HH65to74HI50Kto75K","HH65to74HI75Kto100K","HH65to74HI>100K","HH>75HI<5K","HH>75HI5Kto10K","HH>75HI10Kto15K","HH>75HI15Kto25K","HH>75HI25Kto35K","HH>75HI35Kto50K","HH>75HI50Kto75K","HH>75HI75Kto100K","HH>75HI>100K","SchoolEnrollment1thru12","Pop25andOver","HSGradorHigher","CollGradorHigher","NativePop","ForeignBornPop","BornStateOfRes","NativePop2","ForeignBornPop2","DroveAlone","CarPooled","PublicTranspt","Walked","OtherMeans","WorkedAtHome","HHInc<10K","HHInc10to15K","HHInc15to25K","HHInc25to35K","HHInc35to50K","HHInc50to75K","HHInc75to100K","HHInc100to150K","HHInc>150K"]
[{"$f":"VLOOKUP(DropDownList!$A$47,CntyQuery!$A$4:$FI$46,A1)","v":"Barrington"},{"$f":"VLOOKUP(DropDownList!$A$47,CntyQuery!$A$4:$FA$46,B1)","v":17005},{"$f":"VLOOKUP(DropDownList!$A$47,CntyQuery!$A$4:$FA$46,C1)","v":"03460"},{"$f":"VLOOKUP(DropDownList!$A$47,CntyQuery!$A$4:$FA$46,D1)","v":29886.99},{"$f":"VLOOKUP(DropDownList!$A$47,CntyQuery!$A$4:$FA$46,E1)","v":1230.17},{"$f":"VLOOKUP(DropDownList!$A$47,CntyQuery!$A$4:$FA$46,F1)","v":2640},{"$f":"VLOOKUP(DropDownList!$A$47,CntyQuery!$A$4:$FA$46,G1)","v":6164},{"$f":"VLOOKUP(DropDownList!$A$47,CntyQuery!$A$4:$FA$46,H1)","v":1698},{"$f":"VLOOKUP(DropDownList!$A$47,CntyQuery!$A$4:$FA$46,I1)","v":2217},{"$f":"VLOOKUP(DropDownList!$A$47,CntyQuery!$A$4:$FA$46,J1)","v":3053},{"$f":"VLOOKUP(DropDownList!$A$47,CntyQuery!$A$4:$FA$46,K1)","v":3111},{"$f":"VLOOKUP(DropDownList!$A$47,CntyQuery!$A$4:$FA$46,L1)","v":6100},{"$f":"VLOOKUP(DropDownList!$A$47,CntyQuery!$A$4:$FA$46,M1)","v":19},{"$f":"VLOOKUP(DropDownList!$A$47,CntyQuery!$A$4:$FA$46,N1)","v":16},{"$f":"VLOOKUP(DropDownList!$A$47,CntyQuery!$A$4:$FA$46,O1)","v":15},{"$f":"VLOOKUP(DropDownList!$A$47,CntyQuery!$A$4:$FA$46,P1)","v":14},{"$f":"VLOOKUP(DropDownList!$A$47,CntyQuery!$A$4:$FA$46,Q1)","v":53},{"$f":"VLOOKUP(DropDownList!$A$47,CntyQuery!$A$4:$FA$46,R1)","v":1479},{"$f":"VLOOKUP(DropDownList!$A$47,CntyQuery!$A$4:$FA$46,S1)","v":700},{"$f":"VLOOKUP(DropDownList!$A$47,CntyQuery!$A$4:$FA$46,T1)","v":1303},{"$f":"VLOOKUP(DropDownList!$A$47,CntyQuery!$A$4:$FA$46,U1)","v":1142},{"$f":"VLOOKUP(DropDownList!$A$47,CntyQuery!$A$4:$FA$46,V1)","v":673},{"$f":"VLOOKUP(DropDownList!$A$47,CntyQuery!$A$4:$FA$46,W1)","v":402},{"$f":"VLOOKUP(DropDownList!$A$47,CntyQuery!$A$4:$FA$46,X1)","v":317},{"$f":"VLOOKUP(DropDownList!$A$47,CntyQuery!$A$4:$FA$46,Y1)","v":148},{"$f":"VLOOKUP(DropDownList!$A$47,CntyQuery!$A$4:$FA$46,Z1)","v":6164},{"$f":"VLOOKUP(DropDownList!$A$47,CntyQuery!$A$4:$FA$46,AA1)","v":5438},{"$f":"VLOOKUP(DropDownList!$A$47,CntyQuery!$A$4:$FA$46,AB1)","v":0},{"$f":"VLOOKUP(DropDownList!$A$47,CntyQuery!$A$4:$FA$46,AC1)","v":2.7803337843933242},{"$f":"VLOOKUP(DropDownList!$A$47,CntyQuery!$A$4:$FA$46,AD1)","v":3.2025912838633688},{"$f":"VLOOKUP(DropDownList!$A$47,CntyQuery!$A$4:$FA$46,AE1)","v":360},{"$f":"VLOOKUP(DropDownList!$A$47,CntyQuery!$A$4:$FA$46,AF1)","v":1497},{"$f":"VLOOKUP(DropDownList!$A$47,CntyQuery!$A$4:$FA$46,AG1)","v":201},{"$f":"VLOOKUP(DropDownList!$A$47,CntyQuery!$A$4:$FA$46,AH1)","v":159},{"$f":"VLOOKUP(DropDownList!$A$47,CntyQuery!$A$4:$FA$46,AI1)","v":2640},{"$f":"VLOOKUP(DropDownList!$A$47,CntyQuery!$A$4:$FA$46,AJ1)","v":2217},{"$f":"VLOOKUP(DropDownList!$A$47,CntyQuery!$A$4:$FA$46,AK1)","v":423},{"$f":"VLOOKUP(DropDownList!$A$47,CntyQuery!$A$4:$FA$46,AL1)","v":1911},{"$f":"VLOOKUP(DropDownList!$A$47,CntyQuery!$A$4:$FA$46,AM1)","v":306},{"$f":"VLOOKUP(DropDownList!$A$47,CntyQuery!$A$4:$FA$46,AN1)","v":59},{"$f":"VLOOKUP(DropDownList!$A$47,CntyQuery!$A$4:$FA$46,AO1)","v":44},{"$f":"VLOOKUP(DropDownList!$A$47,CntyQuery!$A$4:$FA$46,AP1)","v":280},{"$f":"VLOOKUP(DropDownList!$A$47,CntyQuery!$A$4:$FA$46,AQ1)","v":1809},{"$f":"VLOOKUP(DropDownList!$A$47,CntyQuery!$A$4:$FA$46,AR1)","v":244},{"$f":"VLOOKUP(DropDownList!$A$47,CntyQuery!$A$4:$FA$46,AS1)","v":587},{"$f":"VLOOKUP(DropDownList!$A$47,CntyQuery!$A$4:$FA$46,AT1)","v":1402},{"$f":"VLOOKUP(DropDownList!$A$47,CntyQuery!$A$4:$FA$46,AU1)","v":39},{"$f":"VLOOKUP(DropDownList!$A$47,CntyQuery!$A$4:$FA$46,AV1)","v":587},{"$f":"VLOOKUP(DropDownList!$A$47,CntyQuery!$A$4:$FA$46,AW1)","v":108},{"$f":"VLOOKUP(DropDownList!$A$47,CntyQuery!$A$4:$FA$46,AX1)","v":152},{"$f":"VLOOKUP(DropDownList!$A$47,CntyQuery!$A$4:$FA$46,AY1)","v":46},{"$f":"VLOOKUP(DropDownList!$A$47,CntyQuery!$A$4:$FA$46,AZ1)","v":452},{"$f":"VLOOKUP(DropDownList!$A$47,CntyQuery!$A$4:$FA$46,BA1)","v":1375},{"$f":"VLOOKUP(DropDownList!$A$47,CntyQuery!$A$4:$FA$46,BB1)","v":531},{"$f":"VLOOKUP(DropDownList!$A$47,CntyQuery!$A$4:$FA$46,BC1)","v":322},{"$f":"VLOOKUP(DropDownList!$A$47,CntyQuery!$A$4:$FA$46,BD1)","v":18},{"$f":"VLOOKUP(DropDownList!$A$47,CntyQuery!$A$4:$FA$46,BE1)","v":182},{"$f":"VLOOKUP(DropDownList!$A$47,CntyQuery!$A$4:$FA$46,BF1)","v":955},{"$f":"VLOOKUP(DropDownList!$A$47,CntyQuery!$A$4:$FA$46,BG1)","v":1206},{"$f":"VLOOKUP(DropDownList!$A$47,CntyQuery!$A$4:$FA$46,BH1)","v":319},{"$f":"VLOOKUP(DropDownList!$A$47,CntyQuery!$A$4:$FA$46,BI1)","v":17},{"$f":"VLOOKUP(DropDownList!$A$47,CntyQuery!$A$4:$FA$46,BJ1)","v":97},{"$f":"VLOOKUP(DropDownList!$A$47,CntyQuery!$A$4:$FA$46,BK1)","v":140},{"$f":"VLOOKUP(DropDownList!$A$47,CntyQuery!$A$4:$FA$46,BL1)","v":301},{"$f":"VLOOKUP(DropDownList!$A$47,CntyQuery!$A$4:$FA$46,BM1)","v":521},{"$f":"VLOOKUP(DropDownList!$A$47,CntyQuery!$A$4:$FA$46,BN1)","v":606},{"$f":"VLOOKUP(DropDownList!$A$47,CntyQuery!$A$4:$FA$46,BO1)","v":398},{"$f":"VLOOKUP(DropDownList!$A$47,CntyQuery!$A$4:$FA$46,BP1)","v":99},{"$f":"VLOOKUP(DropDownList!$A$47,CntyQuery!$A$4:$FA$46,BQ1)","v":38},{"$f":"VLOOKUP(DropDownList!$A$47,CntyQuery!$A$4:$FA$46,BR1)","v":35542},{"$f":"VLOOKUP(DropDownList!$A$47,CntyQuery!$A$4:$FA$46,BS1)","v":0},{"$f":"VLOOKUP(DropDownList!$A$47,CntyQuery!$A$4:$FA$46,BT1)","v":0},{"$f":"VLOOKUP(DropDownList!$A$47,CntyQuery!$A$4:$FA$46,BU1)","v":0},{"$f":"VLOOKUP(DropDownList!$A$47,CntyQuery!$A$4:$FA$46,BV1)","v":12},{"$f":"VLOOKUP(DropDownList!$A$47,CntyQuery!$A$4:$FA$46,BW1)","v":0},{"$f":"VLOOKUP(DropDownList!$A$47,CntyQuery!$A$4:$FA$46,BX1)","v":41},{"$f":"VLOOKUP(DropDownList!$A$47,CntyQuery!$A$4:$FA$46,BY1)","v":11},{"$f":"VLOOKUP(DropDownList!$A$47,CntyQuery!$A$4:$FA$46,BZ1)","v":0},{"$f":"VLOOKUP(DropDownList!$A$47,CntyQuery!$A$4:$FA$46,CA1)","v":0},{"$f":"VLOOKUP(DropDownList!$A$47,CntyQuery!$A$4:$FA$46,CB1)","v":0},{"$f":"VLOOKUP(DropDownList!$A$47,CntyQuery!$A$4:$FA$46,CC1)","v":9},{"$f":"VLOOKUP(DropDownList!$A$47,CntyQuery!$A$4:$FA$46,CD1)","v":14},{"$f":"VLOOKUP(DropDownList!$A$47,CntyQuery!$A$4:$FA$46,CE1)","v":111},{"$f":"VLOOKUP(DropDownList!$A$47,CntyQuery!$A$4:$FA$46,CF1)","v":216},{"$f":"VLOOKUP(DropDownList!$A$47,CntyQuery!$A$4:$FA$46,CG1)","v":211},{"$f":"VLOOKUP(DropDownList!$A$47,CntyQuery!$A$4:$FA$46,CH1)","v":68},{"$f":"VLOOKUP(DropDownList!$A$47,CntyQuery!$A$4:$FA$46,CI1)","v":17},{"$f":"VLOOKUP(DropDownList!$A$47,CntyQuery!$A$4:$FA$46,CJ1)","v":0},{"$f":"VLOOKUP(DropDownList!$A$47,CntyQuery!$A$4:$FA$46,CK1)","v":0},{"$f":"VLOOKUP(DropDownList!$A$47,CntyQuery!$A$4:$FA$46,CL1)","v":34},{"$f":"VLOOKUP(DropDownList!$A$47,CntyQuery!$A$4:$FA$46,CM1)","v":8},{"$f":"VLOOKUP(DropDownList!$A$47,CntyQuery!$A$4:$FA$46,CN1)","v":81},{"$f":"VLOOKUP(DropDownList!$A$47,CntyQuery!$A$4:$FA$46,CO1)","v":120},{"$f":"VLOOKUP(DropDownList!$A$47,CntyQuery!$A$4:$FA$46,CP1)","v":193},{"$f":"VLOOKUP(DropDownList!$A$47,CntyQuery!$A$4:$FA$46,CQ1)","v":192},{"$f":"VLOOKUP(DropDownList!$A$47,CntyQuery!$A$4:$FA$46,CR1)","v":17},{"$f":"VLOOKUP(DropDownList!$A$47,CntyQuery!$A$4:$FA$46,CS1)","v":7},{"$f":"VLOOKUP(DropDownList!$A$47,CntyQuery!$A$4:$FA$46,CT1)","v":0},{"$f":"VLOOKUP(DropDownList!$A$47,CntyQuery!$A$4:$FA$46,CU1)","v":0},{"$f":"VLOOKUP(DropDownList!$A$47,CntyQuery!$A$4:$FA$46,CV1)","v":34},{"$f":"VLOOKUP(DropDownList!$A$47,CntyQuery!$A$4:$FA$46,CW1)","v":38},{"$f":"VLOOKUP(DropDownList!$A$47,CntyQuery!$A$4:$FA$46,CX1)","v":56},{"$f":"VLOOKUP(DropDownList!$A$47,CntyQuery!$A$4:$FA$46,CY1)","v":66},{"$f":"VLOOKUP(DropDownList!$A$47,CntyQuery!$A$4:$FA$46,CZ1)","v":87},{"$f":"VLOOKUP(DropDownList!$A$47,CntyQuery!$A$4:$FA$46,DA1)","v":32},{"$f":"VLOOKUP(DropDownList!$A$47,CntyQuery!$A$4:$FA$46,DB1)","v":13},{"$f":"VLOOKUP(DropDownList!$A$47,CntyQuery!$A$4:$FA$46,DC1)","v":17},{"$f":"VLOOKUP(DropDownList!$A$47,CntyQuery!$A$4:$FA$46,DD1)","v":26},{"$f":"VLOOKUP(DropDownList!$A$47,CntyQuery!$A$4:$FA$46,DE1)","v":26},{"$f":"VLOOKUP(DropDownList!$A$47,CntyQuery!$A$4:$FA$46,DF1)","v":37},{"$f":"VLOOKUP(DropDownList!$A$47,CntyQuery!$A$4:$FA$46,DG1)","v":25},{"$f":"VLOOKUP(DropDownList!$A$47,CntyQuery!$A$4:$FA$46,DH1)","v":32},{"$f":"VLOOKUP(DropDownList!$A$47,CntyQuery!$A$4:$FA$46,DI1)","v":40},{"$f":"VLOOKUP(DropDownList!$A$47,CntyQuery!$A$4:$FA$46,DJ1)","v":33},{"$f":"VLOOKUP(DropDownList!$A$47,CntyQuery!$A$4:$FA$46,DK1)","v":8},{"$f":"VLOOKUP(DropDownList!$A$47,CntyQuery!$A$4:$FA$46,DL1)","v":0},{"$f":"VLOOKUP(DropDownList!$A$47,CntyQuery!$A$4:$FA$46,DM1)","v":14},{"$f":"VLOOKUP(DropDownList!$A$47,CntyQuery!$A$4:$FA$46,DN1)","v":22},{"$f":"VLOOKUP(DropDownList!$A$47,CntyQuery!$A$4:$FA$46,DO1)","v":14},{"$f":"VLOOKUP(DropDownList!$A$47,CntyQuery!$A$4:$FA$46,DP1)","v":96},{"$f":"VLOOKUP(DropDownList!$A$47,CntyQuery!$A$4:$FA$46,DQ1)","v":42},{"$f":"VLOOKUP(DropDownList!$A$47,CntyQuery!$A$4:$FA$46,DR1)","v":0},{"$f":"VLOOKUP(DropDownList!$A$47,CntyQuery!$A$4:$FA$46,DS1)","v":0},{"$f":"VLOOKUP(DropDownList!$A$47,CntyQuery!$A$4:$FA$46,DT1)","v":10},{"$f":"VLOOKUP(DropDownList!$A$47,CntyQuery!$A$4:$FA$46,DU1)","v":0},{"$f":"VLOOKUP(DropDownList!$A$47,CntyQuery!$A$4:$FA$46,DV1)","v":14},{"$f":"VLOOKUP(DropDownList!$A$47,CntyQuery!$A$4:$FA$46,DW1)","v":36},{"$f":"VLOOKUP(DropDownList!$A$47,CntyQuery!$A$4:$FA$46,DX1)","v":8},{"$f":"VLOOKUP(DropDownList!$A$47,CntyQuery!$A$4:$FA$46,DY1)","v":8},{"$f":"VLOOKUP(DropDownList!$A$47,CntyQuery!$A$4:$FA$46,DZ1)","v":21},{"$f":"VLOOKUP(DropDownList!$A$47,CntyQuery!$A$4:$FA$46,EA1)","v":0},{"$f":"VLOOKUP(DropDownList!$A$47,CntyQuery!$A$4:$FA$46,EB1)","v":0},{"$f":"VLOOKUP(DropDownList!$A$47,CntyQuery!$A$4:$FA$46,EC1)","v":0},{"$f":"VLOOKUP(DropDownList!$A$47,CntyQuery!$A$4:$FA$46,ED1)","v":1146},{"$f":"VLOOKUP(DropDownList!$A$47,CntyQuery!$A$4:$FA$46,EE1)","v":3943},{"$f":"VLOOKUP(DropDownList!$A$47,CntyQuery!$A$4:$FA$46,EF1)","v":3358},{"$f":"VLOOKUP(DropDownList!$A$47,CntyQuery!$A$4:$FA$46,EG1)","v":893},{"$f":"VLOOKUP(DropDownList!$A$47,CntyQuery!$A$4:$FA$46,EH1)","v":6022},{"$f":"VLOOKUP(DropDownList!$A$47,CntyQuery!$A$4:$FA$46,EI1)","v":187},{"$f":"VLOOKUP(DropDownList!$A$47,CntyQuery!$A$4:$FA$46,EJ1)","v":3502},{"$f":"VLOOKUP(DropDownList!$A$47,CntyQuery!$A$4:$FA$46,EK1)","v":6022},{"$f":"VLOOKUP(DropDownList!$A$47,CntyQuery!$A$4:$FA$46,EL1)","v":187},{"$f":"VLOOKUP(DropDownList!$A$47,CntyQuery!$A$4:$FA$46,EM1)","v":2520},{"$f":"VLOOKUP(DropDownList!$A$47,CntyQuery!$A$4:$FA$46,EN1)","v":619},{"$f":"VLOOKUP(DropDownList!$A$47,CntyQuery!$A$4:$FA$46,EO1)","v":28},{"$f":"VLOOKUP(DropDownList!$A$47,CntyQuery!$A$4:$FA$46,EP1)","v":29},{"$f":"VLOOKUP(DropDownList!$A$47,CntyQuery!$A$4:$FA$46,EQ1)","v":25},{"$f":"VLOOKUP(DropDownList!$A$47,CntyQuery!$A$4:$FA$46,ER1)","v":100},{"$f":"VLOOKUP(DropDownList!$A$47,CntyQuery!$A$4:$FA$46,ES1)","v":114},{"$f":"VLOOKUP(DropDownList!$A$47,CntyQuery!$A$4:$FA$46,ET1)","v":140},{"$f":"VLOOKUP(DropDownList!$A$47,CntyQuery!$A$4:$FA$46,EU1)","v":301},{"$f":"VLOOKUP(DropDownList!$A$47,CntyQuery!$A$4:$FA$46,EV1)","v":521},{"$f":"VLOOKUP(DropDownList!$A$47,CntyQuery!$A$4:$FA$46,EW1)","v":606},{"$f":"VLOOKUP(DropDownList!$A$47,CntyQuery!$A$4:$FA$46,EX1)","v":398},{"$f":"VLOOKUP(DropDownList!$A$47,CntyQuery!$A$4:$FA$46,EY1)","v":99},{"$f":"VLOOKUP(DropDownList!$A$47,CntyQuery!$A$4:$FA$46,EZ1)","v":21},{"$f":"VLOOKUP(DropDownList!$A$47,CntyQuery!$A$4:$FA$46,FA1)","v":17}]
[]
[]
["Census 1990 Data -    Query Name:  TownSTF1Qry1"]
["NAME","COUSUBFP","Census_Cnty_Code","FIPS","LandAcres","WaterAcres","HousingUnits90Cen","P01Persons90Cen","P02Families90Cen","P03Households90cen","P05MalePop90cen","P05FemalePop90cen","P06WhitePop","P06BlackPop","P06AmerIndianPop","P06AsianPIPop","P06OtherRacePop","P08HispanicOrPop","P11AgeUnder15_90cen","P11Age15to24_90cen","P11Age25to34_90cen","P11Age35to44_90cen","P11Age45to54_90cen","P11Age55to64_90cen","P11Age65to74_90cen","P11Age75andOver_90cen","P15PersonsInHH90cen","P15PersonsInFamHH90cen","P15PersonsInGC","PersonsPerHH90cen","PersonsPerFam90Cen","P16SinglePersonHH90cen","P16MarriedCoupleHH90cen","P16SingleParentHH90cen","P16NonFamilyHH90cen","H01TotalHousingUnits","H02OccupiedHousingUnits","H02VacantHousingUnits","H03OwnerOccHU","H03RenterOccHU","H05VacantForRent90","H05VacantForSale90","H05VacantSeasonalRec","H23OOHUVal<15k","H23OOHUVal15to19k","H23OOHUVal20to24k","H23OOHUVal25to29k","H23OOHUVal30to34k","H23OOHUVal35to39k","H23OOHUVal40to44k","H23OOHUVal45to49k","H23OOHUVal50to59k","H23OOHUVal60to74k","H23OOHUVal75to99k","H23OOHUVal100to124k","H23OOHUVal125to149k","H23OOHUVal150to174k","H23OOHUVal175to199k","H23OOHUVal200to249k","H23OOHUVal250to299k","H23OOHUVal300to399k","H23OOHUVal400to499k","H23OOHUVal500kOrMore","H23BOOHUMedVal","H41SingFamHU90cen","H41MultiFamHU90cen","H41MobileHom90cen","H43SingFamOwnHU90cen","H43MultiFamOwnHU90cen","H43MobileHomOwnHU90cen","H43SingFamRntrHU90cen","H43MultiFamRntrHU90cen","H43MobileHomRntrHU90cen","H41HU1UnitDet","H41HU1UnitAtt","H41HU2Unit","H41HU3to4Unit","H41HU5to9Unit","H41HU10to19Unit","H41HU20to49Unit","H41HU50PlusUnit","H41HUMobilH","H41HUOther"]
[{"$f":"VLOOKUP(DropDownList!$B$47,CntyQuery!$A$51:$CE$93,A$1)","v":"Barrington"},{"$f":"VLOOKUP(DropDownList!$B$47,CntyQuery!$A$51:$CE$93,B$1)","v":901},{"$f":"VLOOKUP(DropDownList!$B$47,CntyQuery!$A$51:$CE$93,C$1)","v":17005},{"$f":"VLOOKUP(DropDownList!$B$47,CntyQuery!$A$51:$CE$93,D$1)","v":"03460"},{"$f":"VLOOKUP(DropDownList!$B$47,CntyQuery!$A$51:$CE$93,E$1)","v":29886.99},{"$f":"VLOOKUP(DropDownList!$B$47,CntyQuery!$A$51:$CE$93,F$1)","v":1230.17},{"$f":"VLOOKUP(DropDownList!$B$47,CntyQuery!$A$51:$CE$93,G$1)","v":2640},{"$f":"VLOOKUP(DropDownList!$B$47,CntyQuery!$A$51:$CE$93,H$1)","v":6164},{"$f":"VLOOKUP(DropDownList!$B$47,CntyQuery!$A$51:$CE$93,I$1)","v":1698},{"$f":"VLOOKUP(DropDownList!$B$47,CntyQuery!$A$51:$CE$93,J$1)","v":2217},{"$f":"VLOOKUP(DropDownList!$B$47,CntyQuery!$A$51:$CE$93,K$1)","v":3053},{"$f":"VLOOKUP(DropDownList!$B$47,CntyQuery!$A$51:$CE$93,L$1)","v":3111},{"$f":"VLOOKUP(DropDownList!$B$47,CntyQuery!$A$51:$CE$93,M$1)","v":6100},{"$f":"VLOOKUP(DropDownList!$B$47,CntyQuery!$A$51:$CE$93,N$1)","v":19},{"$f":"VLOOKUP(DropDownList!$B$47,CntyQuery!$A$51:$CE$93,O$1)","v":16},{"$f":"VLOOKUP(DropDownList!$B$47,CntyQuery!$A$51:$CE$93,P$1)","v":15},{"$f":"VLOOKUP(DropDownList!$B$47,CntyQuery!$A$51:$CE$93,Q$1)","v":14},{"$f":"VLOOKUP(DropDownList!$B$47,CntyQuery!$A$51:$CE$93,R$1)","v":53},{"$f":"VLOOKUP(DropDownList!$B$47,CntyQuery!$A$51:$CE$93,S$1)","v":1479},{"$f":"VLOOKUP(DropDownList!$B$47,CntyQuery!$A$51:$CE$93,T$1)","v":700},{"$f":"VLOOKUP(DropDownList!$B$47,CntyQuery!$A$51:$CE$93,U$1)","v":1303},{"$f":"VLOOKUP(DropDownList!$B$47,CntyQuery!$A$51:$CE$93,V$1)","v":1142},{"$f":"VLOOKUP(DropDownList!$B$47,CntyQuery!$A$51:$CE$93,W$1)","v":673},{"$f":"VLOOKUP(DropDownList!$B$47,CntyQuery!$A$51:$CE$93,X$1)","v":402},{"$f":"VLOOKUP(DropDownList!$B$47,CntyQuery!$A$51:$CE$93,Y$1)","v":317},{"$f":"VLOOKUP(DropDownList!$B$47,CntyQuery!$A$51:$CE$93,Z$1)","v":148},{"$f":"VLOOKUP(DropDownList!$B$47,CntyQuery!$A$51:$CE$93,AA$1)","v":6164},{"$f":"VLOOKUP(DropDownList!$B$47,CntyQuery!$A$51:$CE$93,AB$1)","v":5438},{"$f":"VLOOKUP(DropDownList!$B$47,CntyQuery!$A$51:$CE$93,AC$1)","v":0},{"$f":"VLOOKUP(DropDownList!$B$47,CntyQuery!$A$51:$CE$93,AD$1)","v":2.7803337843933242},{"$f":"VLOOKUP(DropDownList!$B$47,CntyQuery!$A$51:$CE$93,AE$1)","v":3.2025912838633688},{"$f":"VLOOKUP(DropDownList!$B$47,CntyQuery!$A$51:$CE$93,AF$1)","v":360},{"$f":"VLOOKUP(DropDownList!$B$47,CntyQuery!$A$51:$CE$93,AG$1)","v":1497},{"$f":"VLOOKUP(DropDownList!$B$47,CntyQuery!$A$51:$CE$93,AH$1)","v":201},{"$f":"VLOOKUP(DropDownList!$B$47,CntyQuery!$A$51:$CE$93,AI$1)","v":159},{"$f":"VLOOKUP(DropDownList!$B$47,CntyQuery!$A$51:$CE$93,AJ$1)","v":2640},{"$f":"VLOOKUP(DropDownList!$B$47,CntyQuery!$A$51:$CE$93,AK$1)","v":2217},{"$f":"VLOOKUP(DropDownList!$B$47,CntyQuery!$A$51:$CE$93,AL$1)","v":423},{"$f":"VLOOKUP(DropDownList!$B$47,CntyQuery!$A$51:$CE$93,AM$1)","v":1911},{"$f":"VLOOKUP(DropDownList!$B$47,CntyQuery!$A$51:$CE$93,AN$1)","v":306},{"$f":"VLOOKUP(DropDownList!$B$47,CntyQuery!$A$51:$CE$93,AO$1)","v":59},{"$f":"VLOOKUP(DropDownList!$B$47,CntyQuery!$A$51:$CE$93,AP$1)","v":44},{"$f":"VLOOKUP(DropDownList!$B$47,CntyQuery!$A$51:$CE$93,AQ$1)","v":280},{"$f":"VLOOKUP(DropDownList!$B$47,CntyQuery!$A$51:$CE$93,AR$1)","v":3},{"$f":"VLOOKUP(DropDownList!$B$47,CntyQuery!$A$51:$CE$93,AS$1)","v":0},{"$f":"VLOOKUP(DropDownList!$B$47,CntyQuery!$A$51:$CE$93,AT$1)","v":3},{"$f":"VLOOKUP(DropDownList!$B$47,CntyQuery!$A$51:$CE$93,AU$1)","v":6},{"$f":"VLOOKUP(DropDownList!$B$47,CntyQuery!$A$51:$CE$93,AV$1)","v":5},{"$f":"VLOOKUP(DropDownList!$B$47,CntyQuery!$A$51:$CE$93,AW$1)","v":4},{"$f":"VLOOKUP(DropDownList!$B$47,CntyQuery!$A$51:$CE$93,AX$1)","v":5},{"$f":"VLOOKUP(DropDownList!$B$47,CntyQuery!$A$51:$CE$93,AY$1)","v":4},{"$f":"VLOOKUP(DropDownList!$B$47,CntyQuery!$A$51:$CE$93,AZ$1)","v":20},{"$f":"VLOOKUP(DropDownList!$B$47,CntyQuery!$A$51:$CE$93,BA$1)","v":51},{"$f":"VLOOKUP(DropDownList!$B$47,CntyQuery!$A$51:$CE$93,BB$1)","v":185},{"$f":"VLOOKUP(DropDownList!$B$47,CntyQuery!$A$51:$CE$93,BC$1)","v":324},{"$f":"VLOOKUP(DropDownList!$B$47,CntyQuery!$A$51:$CE$93,BD$1)","v":257},{"$f":"VLOOKUP(DropDownList!$B$47,CntyQuery!$A$51:$CE$93,BE$1)","v":143},{"$f":"VLOOKUP(DropDownList!$B$47,CntyQuery!$A$51:$CE$93,BF$1)","v":48},{"$f":"VLOOKUP(DropDownList!$B$47,CntyQuery!$A$51:$CE$93,BG$1)","v":41},{"$f":"VLOOKUP(DropDownList!$B$47,CntyQuery!$A$51:$CE$93,BH$1)","v":17},{"$f":"VLOOKUP(DropDownList!$B$47,CntyQuery!$A$51:$CE$93,BI$1)","v":6},{"$f":"VLOOKUP(DropDownList!$B$47,CntyQuery!$A$51:$CE$93,BJ$1)","v":2},{"$f":"VLOOKUP(DropDownList!$B$47,CntyQuery!$A$51:$CE$93,BK$1)","v":2},{"$f":"VLOOKUP(DropDownList!$B$47,CntyQuery!$A$51:$CE$93,BL$1)","v":121400},{"$f":"VLOOKUP(DropDownList!$B$47,CntyQuery!$A$51:$CE$93,BM$1)","v":1809},{"$f":"VLOOKUP(DropDownList!$B$47,CntyQuery!$A$51:$CE$93,BN$1)","v":244},{"$f":"VLOOKUP(DropDownList!$B$47,CntyQuery!$A$51:$CE$93,BO$1)","v":587},{"$f":"VLOOKUP(DropDownList!$B$47,CntyQuery!$A$51:$CE$93,BP$1)","v":1402},{"$f":"VLOOKUP(DropDownList!$B$47,CntyQuery!$A$51:$CE$93,BQ$1)","v":39},{"$f":"VLOOKUP(DropDownList!$B$47,CntyQuery!$A$51:$CE$93,BR$1)","v":470},{"$f":"VLOOKUP(DropDownList!$B$47,CntyQuery!$A$51:$CE$93,BS$1)","v":108},{"$f":"VLOOKUP(DropDownList!$B$47,CntyQuery!$A$51:$CE$93,BT$1)","v":152},{"$f":"VLOOKUP(DropDownList!$B$47,CntyQuery!$A$51:$CE$93,BU$1)","v":46},{"$f":"VLOOKUP(DropDownList!$B$47,CntyQuery!$A$51:$CE$93,BV$1)","v":1809},{"$f":"VLOOKUP(DropDownList!$B$47,CntyQuery!$A$51:$CE$93,BW$1)","v":21},{"$f":"VLOOKUP(DropDownList!$B$47,CntyQuery!$A$51:$CE$93,BX$1)","v":45},{"$f":"VLOOKUP(DropDownList!$B$47,CntyQuery!$A$51:$CE$93,BY$1)","v":36},{"$f":"VLOOKUP(DropDownList!$B$47,CntyQuery!$A$51:$CE$93,BZ$1)","v":99},{"$f":"VLOOKUP(DropDownList!$B$47,CntyQuery!$A$51:$CE$93,CA$1)","v":43},{"$f":"VLOOKUP(DropDownList!$B$47,CntyQuery!$A$51:$CE$93,CB$1)","v":0},{"$f":"VLOOKUP(DropDownList!$B$47,CntyQuery!$A$51:$CE$93,CC$1)","v":0},{"$f":"VLOOKUP(DropDownList!$B$47,CntyQuery!$A$51:$CE$93,CD$1)","v":569},{"$f":"VLOOKUP(DropDownList!$B$47,CntyQuery!$A$51:$CE$93,CE$1)","v":18}]
[]
[]
["Census 1990 Data -          Query Name: TownSTF3Qry1"]
["NAME","FIPS","COUSUBFP","LandAcres","WaterAcres","HousingUnits90Cen","P01Persons90Cen","P02Families90Cen","P03Households90cen","H25HU<5yrs90cen","H25HU5to20yrs90cen","H25HU20to50yrs90cen","H25HU>50yrs90cen","H31Units0Bedroom90cen","H31Units1Bedroom90cen","H31Units2Bedroom90cen","H31Units3Bedroom90cen","H31Units4Bedroom90cen","H31Units5+Bedroom90cen","P80HI<5K","P80HI5Kto10K","P80HI10Kto15K","P80HI15Kto25K","P80HI25Kto35K","P80HI35Kto50K","P80HI50Kto75K","P80HI75Kto100K","P80HI>100K","P80AMedHI","P86HH<25HI<5K","P86HH<25HI5Kto10K","P86HH<25HI10Kto15K","P86HH<25HI15Kto25K","P86HH<25HI25Kto35K","P86HH<25HI35Kto50K","P86HH<25HI50Kto75K","P86HH<25HI75Kto100K","P86HH<25HI>100K","P86HH25to34HI<5K","P86HH25to34HI5Kto10K","P86HH25to34HI10Kto15K","P86HH25to34HI15Kto25K","P86HH25to34HI25Kto35K","P86HH25to34HI35Kto50K","P86HH25to34HI50Kto75K","P86HH25to34HI75Kto100K","P86HH25to34HI>100K","P86HH35to44HI<5K","P86HH35to44HI5Kto10K","P86HH35to44HI10Kto15K","P86HH35to44HI15Kto25K","P86HH35to44HI25Kto35K","P86HH35to44HI35Kto50K","P86HH35to44HI50Kto75K","P86HH35to44HI75Kto100K","P86HH35to44HI>100K","P86HH45to54HI<5K","P86HH45to54HI5Kto10K","P86HH45to54HI10Kto15K","P86HH45to54HI15Kto25K","P86HH45to54HI25Kto35K","P86HH45to54HI35Kto50K","P86HH45to54HI50Kto75K","P86HH45to54HI75Kto100K","P86HH45to54HI>100K","P86HH55to64HI<5K","P86HH55to64HI5Kto10K","P86HH55to64HI10Kto15K","P86HH55to64HI15Kto25K","P86HH55to64HI25Kto35K","P86HH55to64HI35Kto50K","P86HH55to64HI50Kto75K","P86HH55to64HI75Kto100K","P86HH55to64HI>100K","P86HH65to74HI<5K","P86HH65to74HI5Kto10K","P86HH65to74HI10Kto15K","P86HH65to74HI15Kto25K","P86HH65to74HI25Kto35K","P86HH65to74HI35Kto50K","P86HH65to74HI50Kto75K","P86HH65to74HI75Kto100K","P86HH65to74HI>100K","P86HH>75HI<5K","P86HH>75HI5Kto10K","P86HH>75HI10Kto15K","P86HH>75HI15Kto25K","P86HH>75HI25Kto35K","P86HH>75HI35Kto50K","P86HH>75HI50Kto75K","P86HH>75HI75Kto100K","P86HH>75HI>100K","P54SchlEnrlPrePrim","P54SchlEnrlElemThrHS","P54SchlEnrlCollege","P54NotEnrlInSch","P57Pop25andOver","P57LessThan9thGrade","P579thto12thNoDip","P57HSGrad","P57SomeCollege","P57AssocDeg","P57BachelDeg","P57GradorProfDeg","P57HSGradorHigher","P57CollGradorHigher","P42NativePop","P42ForeignBornPop","P42BornStateOfRes","P37NativePop2","P37ForeignBornPop2","P49DroveAlone","P49CarPooled","P49PublicTranspt","P49Walked","P49OtherMeans","P49WorkedAtHome","P80HHInc<10K","P80HHInc10to15K","P80HHInc15to25K","P80HHInc25to35K","P80HHInc35to50K","P80HHInc50to75K","P80HHInc75to100K","P80HHInc100to150K","P80HHInc>150K","H25YearStBlt89to90","H25YearStBlt85to88","H25YearStBlt80to84","H25YearStBlt70to79","H25YearStBlt60to69","H25YearStBlt50to59","H25YearStBlt40to49","H25YearStBlt39earlier","P107FamInc<10K","P107FamInc10to15K","P107FamInc15to25K","P107FamInc25to35K","P107FamInc35to50K","P107FamInc50to75K","P107FamInc75to100K","P107FamInc100to150K","P107FamInc>150K","P107AMedFamInc","P110NonFamInc<10K","P110NonFamInc10to15K","P110NonFamInc15to25K","P110NonFamInc25to35K","P110NonFamInc35to50K","P110NonFamInc50to75K","P110NonFamInc75to100K","P110NonFamInc100to150K","P110NonFamInc>150K","P110AMedNonFamInc","H16HU1Room","H16HU2Room","H16HU3Room","H16HU4Room","H16HU5Room","H16HU6Room","H16HU7Room","H16HU8Room","H16HU9+Room","H43GrossRnt<100","H43GrossRnt100to149","H43GrossRnt150to199","H43GrossRnt200to249","H43GrossRnt250to299","H43GrossRnt300to349","H43GrossRnt350to399","H43GrossRnt400to449","H43GrossRnt450to499","H43GrossRnt500to549","H43GrossRnt550to599","H43GrossRnt600to649","H43GrossRnt650to699","H43GrossRnt700to749","H43GrossRnt750to999","H43GrossRnt1000Plus","H43NoCashRent","H43MedGrossRent","H51GrossRnt<20PctHHInc","H51GrossRnt20to24PctHHInc","H51GrossRnt25to29PctHHInc","H51GrossRnt30to34PctHHInc","H51GrossRnt35PctOrMoreHHInc","H51GrossRntAsPctHHIncNotComp","H52HUwMtgMoOwnCst<200","H52HUwMtgMoOwnCst200to299","H52HUwMtgMoOwnCst300to399","H52HUwMtgMoOwnCst400to499","H52HUwMtgMoOwnCst500to599","H52HUwMtgMoOwnCst600to699","H52HUwMtgMoOwnCst700to799","H52HUwMtgMoOwnCst800to899","H52HUwMtgMoOwnCst900to999","H52HUwMtgMoOwnCst1000to1249","H52HUwMtgMoOwnCst1250to1499","H52HUwMtgMoOwnCst1500to1999","H52HUwMtgMoOwnCst2000More","H52HUwNoMtgMoOwnCst<100","H52HUwNoMtgMoOwnCst100to149","H52HUwNoMtgMoOwnCst150to199","H52HUwNoMtgMoOwnCst200to249","H52HUwNoMtgMoOwnCst250to299","H52HUwNoMtgMoOwnCst300to349","H52HUwNoMtgMoOwnCst350to399","H52HUwNoMtgMoOwnCst400More","H52AMedMoOwnCstWMortg","H52AMedMoOwnCstWNoMortg","H58HUwMtgMOC<20pHHInc","H58HUwMtgMOC20to24pHHInc","H58HUwMtgMOC25to29pHHInc","H58HUwMtgMOC30to34pHHInc","H58wMtgMOC>35pHHInc","H58HUwMtgMOCNotComp","H58HUwNoMtgMOC<20pHHInc","H58HUwNoMtgMOC20to24pHHInc","H58HUwNoMtgMOC25to29pHHInc","H58HUwNoMtgMOC30to34pHHInc","H58wNoMtgMOC>35pHHInc","H58HUwNoMtgMOCNotComp","H61OOHUVal<15k","H61OOHUVal15to19k","H61OOHUVal20to24k","H61OOHUVal25to29k","H61OOHUVal30to34k","H61OOHUVal35to39k","H61OOHUVal40to44k","H61OOHUVal45to49k","H61OOHUVal50to59k","H61OOHUVal60to74k","H61OOHUVal75to99k","H61OOHUVal100to124k","H61OOHUVal125to149k","H61OOHUVal150to174k","H61OOHUVal175to199k","H61OOHUVal200to249k","H61OOHUVal250to299k","H61OOHUVal300to399k","H61OOHUVal400to499k","H61OOHUVal500kOrMore","H61aOOHUMedVal"]
[]
[]
[]
["Other Demo Data -             Query Name: QryAllTowns-ACSDemographicSheet"]
["TOWN_NAME","FIPS","TOWNCNTY","COUSUB","POP80","POP90CDCEN","POP2000CEN","POP2010CEN","POP2020-Proj","POP2025-Proj","POP2030-Proj","SF80","MF80","MH80","SF81","MF81","MH81","SF82","MF82","MH82","SF83","MF83","MH83","SF84_OSP","MF84_OSP","MH84_OSP","SF85_OSP","MF85_OSP","MH85_OSP","SF86_OSP","MF86_OSP","MH86_OSP","SF87_OSP","MF87_OSP","MH87_OSP","SF88_OSP","MF88_OSP","MH88_OSP","SF89_OSP","MF89_OSP","MH89_OSP","SF90_OSP","MF90_OSP","MH90_OSP","SF91_OSP","MF91_OSP","MH91_OSP","SF92_OSP","MF92_OSP","MH92_OSP","SF93_OSP","MF93_OSP","MH93_OSP","SF94_OSP","MF94_OSP","MH94_OSP","SF95_OSP","MF95_OSP","MH95_OSP","SF96_OSP","MF96_OSP","MH96_OSP","SF97_OSP","MF97_OSP","MH97_OSP","SF98_OSP","MF98_OSP","MH98_OSP","SF99_OSP","MF99_OSP","MH99_OSP","SF00_OSP","MF00_OSP","MH00_OSP","SF01_OSP","MF01_OSP","MH01_OSP","SF02_OSP","MF02_OSP","MH02_OSP","SF03_OSP","MF03_OSP","MH03_OSP","SF04_OSP","MF04_OSP","MH04_OSP","SF05_OSP","MF05_OSP","MH05_OSP","SF06_OSP","MF06_OSP","MH06_OSP","SF07_OSP","MF07_OSP","MH07_OSP","SF08_OSP","MF08_OSP","MH08_OSP","SF09_OSP","MF09_OSP","MH09_OSP","SF10_OSP","MF10_OSP","MH10_OSP","SF11_OSP","MF11_OSP","MH11_OSP","SF12_OSP","MF12_OSP","MH12_OSP","SF13_OSP","MF13_OSP","MH13_OSP","SF14_OSP","MF14_OSP","MH14_OSP","SF15_OSP","MF15_OSP","MH15_OSP","SF16_OSP","MF16_OSP","MH16_OSP","SF17_OSP","MF17_OSP","MH17_OSP","SF18_OSP","MF18_OSP","MH18_OSP","COMMENTS"]
[{"$f":"VLOOKUP(DropDownList!$B$47,CntyQuery!$A$118:$FZ$130,A$1)","v":"Barrington"},{"$f":"VLOOKUP(DropDownList!$B$47,CntyQuery!$A$118:$FZ$130,B$1)","v":17005},{"$f":"VLOOKUP(DropDownList!$B$47,CntyQuery!$A$118:$FZ$130,C$1)","v":901},{"$f":"VLOOKUP(DropDownList!$B$47,CntyQuery!$A$118:$FZ$130,D$1)","v":"03460"},{"$f":"VLOOKUP(DropDownList!$B$47,CntyQuery!$A$118:$FZ$130,E$1)","v":4404},{"$f":"VLOOKUP(DropDownList!$B$47,CntyQuery!$A$118:$FZ$130,F$1)","v":6164},{"$f":"VLOOKUP(DropDownList!$B$47,CntyQuery!$A$118:$FZ$130,G$1)","v":7475},{"$f":"VLOOKUP(DropDownList!$B$47,CntyQuery!$A$118:$FZ$130,H$1)","v":8576},{"$f":"VLOOKUP(DropDownList!$B$47,CntyQuery!$A$118:$FZ$130,I$1)","v":9536},{"$f":"VLOOKUP(DropDownList!$B$47,CntyQuery!$A$118:$FZ$130,J$1)","v":9730},{"$f":"VLOOKUP(DropDownList!$B$47,CntyQuery!$A$118:$FZ$130,K$1)","v":9970},{"$f":"VLOOKUP(DropDownList!$B$47,CntyQuery!$A$118:$FZ$130,L$1)","v":26},{"$f":"VLOOKUP(DropDownList!$B$47,CntyQuery!$A$118:$FZ$130,M$1)","v":0},{"$f":"VLOOKUP(DropDownList!$B$47,CntyQuery!$A$118:$FZ$130,N$1)","v":15},{"$f":"VLOOKUP(DropDownList!$B$47,CntyQuery!$A$118:$FZ$130,O$1)","v":22},{"$f":"VLOOKUP(DropDownList!$B$47,CntyQuery!$A$118:$FZ$130,P$1)","v":0},{"$f":"VLOOKUP(DropDownList!$B$47,CntyQuery!$A$118:$FZ$130,Q$1)","v":9},{"$f":"VLOOKUP(DropDownList!$B$47,CntyQuery!$A$118:$FZ$130,R$1)","v":37},{"$f":"VLOOKUP(DropDownList!$B$47,CntyQuery!$A$118:$FZ$130,S$1)","v":6},{"$f":"VLOOKUP(DropDownList!$B$47,CntyQuery!$A$118:$FZ$130,T$1)","v":20},{"$f":"VLOOKUP(DropDownList!$B$47,CntyQuery!$A$118:$FZ$130,U$1)","v":41},{"$f":"VLOOKUP(DropDownList!$B$47,CntyQuery!$A$118:$FZ$130,V$1)","v":0},{"$f":"VLOOKUP(DropDownList!$B$47,CntyQuery!$A$118:$FZ$130,W$1)","v":14},{"$f":"VLOOKUP(DropDownList!$B$47,CntyQuery!$A$118:$FZ$130,X$1)","v":45},{"$f":"VLOOKUP(DropDownList!$B$47,CntyQuery!$A$118:$FZ$130,Y$1)","v":10},{"$f":"VLOOKUP(DropDownList!$B$47,CntyQuery!$A$118:$FZ$130,Z$1)","v":15},{"$f":"VLOOKUP(DropDownList!$B$47,CntyQuery!$A$118:$FZ$130,AA$1)","v":62},{"$f":"VLOOKUP(DropDownList!$B$47,CntyQuery!$A$118:$FZ$130,AB$1)","v":1},{"$f":"VLOOKUP(DropDownList!$B$47,CntyQuery!$A$118:$FZ$130,AC$1)","v":6},{"$f":"VLOOKUP(DropDownList!$B$47,CntyQuery!$A$118:$FZ$130,AD$1)","v":68},{"$f":"VLOOKUP(DropDownList!$B$47,CntyQuery!$A$118:$FZ$130,AE$1)","v":18},{"$f":"VLOOKUP(DropDownList!$B$47,CntyQuery!$A$118:$FZ$130,AF$1)","v":4},{"$f":"VLOOKUP(DropDownList!$B$47,CntyQuery!$A$118:$FZ$130,AG$1)","v":62},{"$f":"VLOOKUP(DropDownList!$B$47,CntyQuery!$A$118:$FZ$130,AH$1)","v":0},{"$f":"VLOOKUP(DropDownList!$B$47,CntyQuery!$A$118:$FZ$130,AI$1)","v":3},{"$f":"VLOOKUP(DropDownList!$B$47,CntyQuery!$A$118:$FZ$130,AJ$1)","v":79},{"$f":"VLOOKUP(DropDownList!$B$47,CntyQuery!$A$118:$FZ$130,AK$1)","v":6},{"$f":"VLOOKUP(DropDownList!$B$47,CntyQuery!$A$118:$FZ$130,AL$1)","v":11},{"$f":"VLOOKUP(DropDownList!$B$47,CntyQuery!$A$118:$FZ$130,AM$1)","v":67},{"$f":"VLOOKUP(DropDownList!$B$47,CntyQuery!$A$118:$FZ$130,AN$1)","v":5},{"$f":"VLOOKUP(DropDownList!$B$47,CntyQuery!$A$118:$FZ$130,AO$1)","v":4},{"$f":"VLOOKUP(DropDownList!$B$47,CntyQuery!$A$118:$FZ$130,AP$1)","v":52},{"$f":"VLOOKUP(DropDownList!$B$47,CntyQuery!$A$118:$FZ$130,AQ$1)","v":0},{"$f":"VLOOKUP(DropDownList!$B$47,CntyQuery!$A$118:$FZ$130,AR$1)","v":6},{"$f":"VLOOKUP(DropDownList!$B$47,CntyQuery!$A$118:$FZ$130,AS$1)","v":37},{"$f":"VLOOKUP(DropDownList!$B$47,CntyQuery!$A$118:$FZ$130,AT$1)","v":1},{"$f":"VLOOKUP(DropDownList!$B$47,CntyQuery!$A$118:$FZ$130,AU$1)","v":7},{"$f":"VLOOKUP(DropDownList!$B$47,CntyQuery!$A$118:$FZ$130,AV$1)","v":31},{"$f":"VLOOKUP(DropDownList!$B$47,CntyQuery!$A$118:$FZ$130,AW$1)","v":2},{"$f":"VLOOKUP(DropDownList!$B$47,CntyQuery!$A$118:$FZ$130,AX$1)","v":11},{"$f":"VLOOKUP(DropDownList!$B$47,CntyQuery!$A$118:$FZ$130,AY$1)","v":30},{"$f":"VLOOKUP(DropDownList!$B$47,CntyQuery!$A$118:$FZ$130,AZ$1)","v":0},{"$f":"VLOOKUP(DropDownList!$B$47,CntyQuery!$A$118:$FZ$130,BA$1)","v":10},{"$f":"VLOOKUP(DropDownList!$B$47,CntyQuery!$A$118:$FZ$130,BB$1)","v":33},{"$f":"VLOOKUP(DropDownList!$B$47,CntyQuery!$A$118:$FZ$130,BC$1)","v":0},{"$f":"VLOOKUP(DropDownList!$B$47,CntyQuery!$A$118:$FZ$130,BD$1)","v":8},{"$f":"VLOOKUP(DropDownList!$B$47,CntyQuery!$A$118:$FZ$130,BE$1)","v":50},{"$f":"VLOOKUP(DropDownList!$B$47,CntyQuery!$A$118:$FZ$130,BF$1)","v":2},{"$f":"VLOOKUP(DropDownList!$B$47,CntyQuery!$A$118:$FZ$130,BG$1)","v":10},{"$f":"VLOOKUP(DropDownList!$B$47,CntyQuery!$A$118:$FZ$130,BH$1)","v":36},{"$f":"VLOOKUP(DropDownList!$B$47,CntyQuery!$A$118:$FZ$130,BI$1)","v":4},{"$f":"VLOOKUP(DropDownList!$B$47,CntyQuery!$A$118:$FZ$130,BJ$1)","v":14},{"$f":"VLOOKUP(DropDownList!$B$47,CntyQuery!$A$118:$FZ$130,BK$1)","v":52},{"$f":"VLOOKUP(DropDownList!$B$47,CntyQuery!$A$118:$FZ$130,BL$1)","v":0},{"$f":"VLOOKUP(DropDownList!$B$47,CntyQuery!$A$118:$FZ$130,BM$1)","v":14},{"$f":"VLOOKUP(DropDownList!$B$47,CntyQuery!$A$118:$FZ$130,BN$1)","v":54},{"$f":"VLOOKUP(DropDownList!$B$47,CntyQuery!$A$118:$FZ$130,BO$1)","v":0},{"$f":"VLOOKUP(DropDownList!$B$47,CntyQuery!$A$118:$FZ$130,BP$1)","v":7},{"$f":"VLOOKUP(DropDownList!$B$47,CntyQuery!$A$118:$FZ$130,BQ$1)","v":67},{"$f":"VLOOKUP(DropDownList!$B$47,CntyQuery!$A$118:$FZ$130,BR$1)","v":4},{"$f":"VLOOKUP(DropDownList!$B$47,CntyQuery!$A$118:$FZ$130,BS$1)","v":0},{"$f":"VLOOKUP(DropDownList!$B$47,CntyQuery!$A$118:$FZ$130,BT$1)","v":69},{"$f":"VLOOKUP(DropDownList!$B$47,CntyQuery!$A$118:$FZ$130,BU$1)","v":0},{"$f":"VLOOKUP(DropDownList!$B$47,CntyQuery!$A$118:$FZ$130,BV$1)","v":6},{"$f":"VLOOKUP(DropDownList!$B$47,CntyQuery!$A$118:$FZ$130,BW$1)","v":51},{"$f":"VLOOKUP(DropDownList!$B$47,CntyQuery!$A$118:$FZ$130,BX$1)","v":6},{"$f":"VLOOKUP(DropDownList!$B$47,CntyQuery!$A$118:$FZ$130,BY$1)","v":1},{"$f":"VLOOKUP(DropDownList!$B$47,CntyQuery!$A$118:$FZ$130,BZ$1)","v":59},{"$f":"VLOOKUP(DropDownList!$B$47,CntyQuery!$A$118:$FZ$130,CA$1)","v":10},{"$f":"VLOOKUP(DropDownList!$B$47,CntyQuery!$A$118:$FZ$130,CB$1)","v":0},{"$f":"VLOOKUP(DropDownList!$B$47,CntyQuery!$A$118:$FZ$130,CC$1)","v":44},{"$f":"VLOOKUP(DropDownList!$B$47,CntyQuery!$A$118:$FZ$130,CD$1)","v":0},{"$f":"VLOOKUP(DropDownList!$B$47,CntyQuery!$A$118:$FZ$130,CE$1)","v":1},{"$f":"VLOOKUP(DropDownList!$B$47,CntyQuery!$A$118:$FZ$130,CF$1)","v":77},{"$f":"VLOOKUP(DropDownList!$B$47,CntyQuery!$A$118:$FZ$130,CG$1)","v":2},{"$f":"VLOOKUP(DropDownList!$B$47,CntyQuery!$A$118:$FZ$130,CH$1)","v":0},{"$f":"VLOOKUP(DropDownList!$B$47,CntyQuery!$A$118:$FZ$130,CI$1)","v":63},{"$f":"VLOOKUP(DropDownList!$B$47,CntyQuery!$A$118:$FZ$130,CJ$1)","v":4},{"$f":"VLOOKUP(DropDownList!$B$47,CntyQuery!$A$118:$FZ$130,CK$1)","v":15},{"$f":"VLOOKUP(DropDownList!$B$47,CntyQuery!$A$118:$FZ$130,CL$1)","v":52},{"$f":"VLOOKUP(DropDownList!$B$47,CntyQuery!$A$118:$FZ$130,CM$1)","v":0},{"$f":"VLOOKUP(DropDownList!$B$47,CntyQuery!$A$118:$FZ$130,CN$1)","v":22},{"$f":"VLOOKUP(DropDownList!$B$47,CntyQuery!$A$118:$FZ$130,CO$1)","v":37},{"$f":"VLOOKUP(DropDownList!$B$47,CntyQuery!$A$118:$FZ$130,CP$1)","v":6},{"$f":"VLOOKUP(DropDownList!$B$47,CntyQuery!$A$118:$FZ$130,CQ$1)","v":0},{"$f":"VLOOKUP(DropDownList!$B$47,CntyQuery!$A$118:$FZ$130,CR$1)","v":42},{"$f":"VLOOKUP(DropDownList!$B$47,CntyQuery!$A$118:$FZ$130,CS$1)","v":0},{"$f":"VLOOKUP(DropDownList!$B$47,CntyQuery!$A$118:$FZ$130,CT$1)","v":0},{"$f":"VLOOKUP(DropDownList!$B$47,CntyQuery!$A$118:$FZ$130,CU$1)","v":29},{"$f":"VLOOKUP(DropDownList!$B$47,CntyQuery!$A$118:$FZ$130,CV$1)","v":0},{"$f":"VLOOKUP(DropDownList!$B$47,CntyQuery!$A$118:$FZ$130,CW$1)","v":0},{"$f":"VLOOKUP(DropDownList!$B$47,CntyQuery!$A$118:$FZ$130,CX$1)","v":37},{"$f":"VLOOKUP(DropDownList!$B$47,CntyQuery!$A$118:$FZ$130,CY$1)","v":0},{"$f":"VLOOKUP(DropDownList!$B$47,CntyQuery!$A$118:$FZ$130,CZ$1)","v":2},{"$f":"VLOOKUP(DropDownList!$B$47,CntyQuery!$A$118:$FZ$130,DA$1)","v":20},{"$f":"VLOOKUP(DropDownList!$B$47,CntyQuery!$A$118:$FZ$130,DB$1)","v":2},{"$f":"VLOOKUP(DropDownList!$B$47,CntyQuery!$A$118:$FZ$130,DC$1)","v":0},{"$f":"VLOOKUP(DropDownList!$B$47,CntyQuery!$A$118:$FZ$130,DD$1)","v":19},{"$f":"VLOOKUP(DropDownList!$B$47,CntyQuery!$A$118:$FZ$130,DE$1)","v":0},{"$f":"VLOOKUP(DropDownList!$B$47,CntyQuery!$A$118:$FZ$130,DF$1)","v":2},{"$f":"VLOOKUP(DropDownList!$B$47,CntyQuery!$A$118:$FZ$130,DG$1)","v":17},{"$f":"VLOOKUP(DropDownList!$B$47,CntyQuery!$A$118:$FZ$130,DH$1)","v":0},{"$f":"VLOOKUP(DropDownList!$B$47,CntyQuery!$A$118:$FZ$130,DI$1)","v":3},{"$f":"VLOOKUP(DropDownList!$B$47,CntyQuery!$A$118:$FZ$130,DJ$1)","v":26},{"$f":"VLOOKUP(DropDownList!$B$47,CntyQuery!$A$118:$FZ$130,DK$1)","v":0},{"$f":"VLOOKUP(DropDownList!$B$47,CntyQuery!$A$118:$FZ$130,DL$1)","v":2},{"$f":"VLOOKUP(DropDownList!$B$47,CntyQuery!$A$118:$FZ$130,DM$1)","v":26},{"$f":"VLOOKUP(DropDownList!$B$47,CntyQuery!$A$118:$FZ$130,DN$1)","v":0},{"$f":"VLOOKUP(DropDownList!$B$47,CntyQuery!$A$118:$FZ$130,DO$1)","v":0},{"$f":"VLOOKUP(DropDownList!$B$47,CntyQuery!$A$118:$FZ$130,DP$1)","v":26},{"$f":"VLOOKUP(DropDownList!$B$47,CntyQuery!$A$118:$FZ$130,DQ$1)","v":0},{"$f":"VLOOKUP(DropDownList!$B$47,CntyQuery!$A$118:$FZ$130,DR$1)","v":5},{"$f":"VLOOKUP(DropDownList!$B$47,CntyQuery!$A$118:$FZ$130,DS$1)","v":41},{"$f":"VLOOKUP(DropDownList!$B$47,CntyQuery!$A$118:$FZ$130,DT$1)","v":0},{"$f":"VLOOKUP(DropDownList!$B$47,CntyQuery!$A$118:$FZ$130,DU$1)","v":0},{"$f":"VLOOKUP(DropDownList!$B$47,CntyQuery!$A$118:$FZ$130,DV$1)","v":33},{"$f":"VLOOKUP(DropDownList!$B$47,CntyQuery!$A$118:$FZ$130,DW$1)","v":8},{"$f":"VLOOKUP(DropDownList!$B$47,CntyQuery!$A$118:$FZ$130,DX$1)","v":1},{"$f":"VLOOKUP(DropDownList!$B$47,CntyQuery!$A$118:$FZ$130,DY$1)","v":15}]
[]
[]
[]
["AreaName","COUNTYCODE","TOTP & G2001","TOT2001","GOODPRO2001","SERVICEPROMAN2001","WAGEP & G2001","WAGETOT2001","WAGEGOODPRO2001","WAGESERVICEPRO2001","TOTP & G2002","TOT2002","GOODPRO2002","SERVICEPROMAN2002","WAGEP & G2002","WAGETOT2002","WAGEGOODPRO2002","WAGESERVICEPRO2002","TOTP & G2003","TOT2003","GOODPRO2003","SERVICEPROMAN2003","WAGEP & G2003","WAGETOT2003","WAGEGOODPRO2003","WAGESERVICEPRO2003","TOTP & G2004","TOT2004","GOODPRO2004","SERVICEPROMAN2004","WAGEP & G2004","WAGETOT2004","WAGEGOODPRO2004","WAGESERVICEPRO2004","TOTP & G2005","TOT2005","GOODPRO2005","SERVICEPROMAN2005","WAGEP & G2005","WAGETOT2005","WAGEGOODPRO2005","WAGESERVICEPRO2005","TOTP & G2006","TOT2006","GOODPRO2006","SERVICEPROMAN2006","WAGEP & G2006","WAGETOT2006","WAGEGOODPRO2006","WAGESERVICEPRO2006","TOTP & G2007","TOT2007","GOODPRO2007","SERVICEPROMAN2007","WAGEP & G2007","WAGETOT2007","WAGEGOODPRO2007","WAGESERVICEPRO2007","TOTP & G2008","TOT2008","GOODPRO2008","SERVICEPROMAN2008","WAGEP & G2008","WAGETOT2008","WAGEGOODPRO2008","WAGESERVICEPRO2008","TOTP & G2009","TOT2009","GOODPRO2009","SERVICEPROMAN2009","WAGEP & G2009","WAGETOT2009","WAGEGOODPRO2009","WAGESERVICEPRO2009","TOTP & G2010","TOT2010","GOODPRO2010","SERVICEPROMAN2010","WAGEP & G2010","WAGETOT2010","WAGEGOODPRO2010","WAGESERVICEPRO2010","TOTP & G2011","TOT2011","GOODPRO2011","SERVICEPROMAN2011","WAGEP & G2011","WAGETOT2011","WAGEGOODPRO2011","WAGESERVICEPRO2011","TOTP & G2012","TOT2012","GOODPRO2012","SERVICEPROMAN2012","WAGEP & G2012","WAGETOT2012","WAGEGOODPRO2012","WAGESERVICEPRO2012","TOTP & G2013","TOT2013","GOODPRO2013","SERVICEPROMAN2013","WAGEP & G2013","WAGETOT2013","WAGEGOODPRO2013","WAGESERVICEPRO2013","TOTP & G2014","TOT2014","GOODPRO2014","SERVICEPROMAN2014","WAGEP & G2014","WAGETOT2014","WAGEGOODPRO2014","WAGESERVICEPRO2014","TOTP & G2015","TOT2015","GOODPRO2015","SERVICEPROMAN2015","WAGEP & G2015","WAGETOT2015","WAGEGOODPRO2015","WAGESERVICEPRO2015","TOTP & G2016","TOT2016","GOODPRO2016","SERVICEPROMAN2016","WAGEP & G2016","WAGETOT2016","WAGEGOODPRO2016","WAGESERVICEPRO2016","TOTP & G2017","TOT2017","GOODPRO2017","SERVICEPROMAN2017","WAGEP & G2017","WAGETOT2017","WAGEGOODPRO2017","WAGESERVICEPRO2017","TOTP & G2018","TOT2018","GOODPRO2018","SERVICEPROMAN2018","WAGEP & G2018","WAGETOT2018","WAGEGOODPRO2018","WAGESERVICEPRO2018","TOTP & G2019","TOT2019","TOTGov2019","GOODPRO2019","SERVICEPROMAN2019","WAGEP & G2019","WAGETOT2019","WAGEGov2019","WAGEGOODPRO2019","WAGESERVICEPRO2019","SummaryLevel"]
[{"$f":"VLOOKUP(DropDownList!$B$47,CntyQuery!$A$170:$FT$183,A$1)","v":"Barrington"},{"$f":"VLOOKUP(DropDownList!$B$47,CntyQuery!$A$170:$FT$183,B$1)","v":9},"v",{"$f":"VLOOKUP(DropDownList!$B$47,CntyQuery!$A$170:$FT$183,D$1)","v":766},{"$f":"VLOOKUP(DropDownList!$B$47,CntyQuery!$A$170:$FT$183,E$1)","v":128},{"$f":"VLOOKUP(DropDownList!$B$47,CntyQuery!$A$170:$FT$183,F$1)","v":637},{"$f":"VLOOKUP(DropDownList!$B$47,CntyQuery!$A$170:$FT$183,G$1)","v":576.54},{"$f":"VLOOKUP(DropDownList!$B$47,CntyQuery!$A$170:$FT$183,H$1)","v":591.1},{"$f":"VLOOKUP(DropDownList!$B$47,CntyQuery!$A$170:$FT$183,I$1)","v":545.95000000000005},{"$f":"VLOOKUP(DropDownList!$B$47,CntyQuery!$A$170:$FT$183,J$1)","v":600.17999999999995},{"$f":"VLOOKUP(DropDownList!$B$47,CntyQuery!$A$170:$FT$183,K$1)","v":1011},{"$f":"VLOOKUP(DropDownList!$B$47,CntyQuery!$A$170:$FT$183,L$1)","v":803},{"$f":"VLOOKUP(DropDownList!$B$47,CntyQuery!$A$170:$FT$183,M$1)","v":121},{"$f":"VLOOKUP(DropDownList!$B$47,CntyQuery!$A$170:$FT$183,N$1)","v":682},{"$f":"VLOOKUP(DropDownList!$B$47,CntyQuery!$A$170:$FT$183,O$1)","v":597.25},{"$f":"VLOOKUP(DropDownList!$B$47,CntyQuery!$A$170:$FT$183,P$1)","v":612.87},{"$f":"VLOOKUP(DropDownList!$B$47,CntyQuery!$A$170:$FT$183,Q$1)","v":557.24},{"$f":"VLOOKUP(DropDownList!$B$47,CntyQuery!$A$170:$FT$183,R$1)","v":622.72},{"$f":"VLOOKUP(DropDownList!$B$47,CntyQuery!$A$170:$FT$183,S$1)","v":984},{"$f":"VLOOKUP(DropDownList!$B$47,CntyQuery!$A$170:$FT$183,T$1)","v":777},{"$f":"VLOOKUP(DropDownList!$B$47,CntyQuery!$A$170:$FT$183,U$1)","v":139},{"$f":"VLOOKUP(DropDownList!$B$47,CntyQuery!$A$170:$FT$183,V$1)","v":638},{"$f":"VLOOKUP(DropDownList!$B$47,CntyQuery!$A$170:$FT$183,W$1)","v":585.84},{"$f":"VLOOKUP(DropDownList!$B$47,CntyQuery!$A$170:$FT$183,X$1)","v":584.16999999999996},{"$f":"VLOOKUP(DropDownList!$B$47,CntyQuery!$A$170:$FT$183,Y$1)","v":534.86},{"$f":"VLOOKUP(DropDownList!$B$47,CntyQuery!$A$170:$FT$183,Z$1)","v":594.92999999999995},{"$f":"VLOOKUP(DropDownList!$B$47,CntyQuery!$A$170:$FT$183,AA$1)","v":1065},{"$f":"VLOOKUP(DropDownList!$B$47,CntyQuery!$A$170:$FT$183,AB$1)","v":841},{"$f":"VLOOKUP(DropDownList!$B$47,CntyQuery!$A$170:$FT$183,AC$1)","v":144},{"$f":"VLOOKUP(DropDownList!$B$47,CntyQuery!$A$170:$FT$183,AD$1)","v":697},{"$f":"VLOOKUP(DropDownList!$B$47,CntyQuery!$A$170:$FT$183,AE$1)","v":624.84},{"$f":"VLOOKUP(DropDownList!$B$47,CntyQuery!$A$170:$FT$183,AF$1)","v":632.54999999999995},{"$f":"VLOOKUP(DropDownList!$B$47,CntyQuery!$A$170:$FT$183,AG$1)","v":555.78},{"$f":"VLOOKUP(DropDownList!$B$47,CntyQuery!$A$170:$FT$183,AH$1)","v":648.38},{"$f":"VLOOKUP(DropDownList!$B$47,CntyQuery!$A$170:$FT$183,AI$1)","v":1165},{"$f":"VLOOKUP(DropDownList!$B$47,CntyQuery!$A$170:$FT$183,AJ$1)","v":923},{"$f":"VLOOKUP(DropDownList!$B$47,CntyQuery!$A$170:$FT$183,AK$1)","v":140},{"$f":"VLOOKUP(DropDownList!$B$47,CntyQuery!$A$170:$FT$183,AL$1)","v":783},{"$f":"VLOOKUP(DropDownList!$B$47,CntyQuery!$A$170:$FT$183,AM$1)","v":635.08000000000004},{"$f":"VLOOKUP(DropDownList!$B$47,CntyQuery!$A$170:$FT$183,AN$1)","v":650.46},{"$f":"VLOOKUP(DropDownList!$B$47,CntyQuery!$A$170:$FT$183,AO$1)","v":585.94000000000005},{"$f":"VLOOKUP(DropDownList!$B$47,CntyQuery!$A$170:$FT$183,AP$1)","v":662},{"$f":"VLOOKUP(DropDownList!$B$47,CntyQuery!$A$170:$FT$183,AQ$1)","v":1246},{"$f":"VLOOKUP(DropDownList!$B$47,CntyQuery!$A$170:$FT$183,AR$1)","v":992},{"$f":"VLOOKUP(DropDownList!$B$47,CntyQuery!$A$170:$FT$183,AS$1)","v":150},{"$f":"VLOOKUP(DropDownList!$B$47,CntyQuery!$A$170:$FT$183,AT$1)","v":843},{"$f":"VLOOKUP(DropDownList!$B$47,CntyQuery!$A$170:$FT$183,AU$1)","v":643.59},{"$f":"VLOOKUP(DropDownList!$B$47,CntyQuery!$A$170:$FT$183,AV$1)","v":658.49},{"$f":"VLOOKUP(DropDownList!$B$47,CntyQuery!$A$170:$FT$183,AW$1)","v":636.42999999999995},{"$f":"VLOOKUP(DropDownList!$B$47,CntyQuery!$A$170:$FT$183,AX$1)","v":662.41},{"$f":"VLOOKUP(DropDownList!$B$47,CntyQuery!$A$170:$FT$183,AY$1)","v":1309},{"$f":"VLOOKUP(DropDownList!$B$47,CntyQuery!$A$170:$FT$183,AZ$1)","v":1033},{"$f":"VLOOKUP(DropDownList!$B$47,CntyQuery!$A$170:$FT$183,BA$1)","v":141},{"$f":"VLOOKUP(DropDownList!$B$47,CntyQuery!$A$170:$FT$183,BB$1)","v":892},{"$f":"VLOOKUP(DropDownList!$B$47,CntyQuery!$A$170:$FT$183,BC$1)","v":645.05999999999995},{"$f":"VLOOKUP(DropDownList!$B$47,CntyQuery!$A$170:$FT$183,BD$1)","v":658.62},{"$f":"VLOOKUP(DropDownList!$B$47,CntyQuery!$A$170:$FT$183,BE$1)","v":599.33000000000004},{"$f":"VLOOKUP(DropDownList!$B$47,CntyQuery!$A$170:$FT$183,BF$1)","v":668},{"$f":"VLOOKUP(DropDownList!$B$47,CntyQuery!$A$170:$FT$183,BG$1)","v":1536},{"$f":"VLOOKUP(DropDownList!$B$47,CntyQuery!$A$170:$FT$183,BH$1)","v":1253},{"$f":"VLOOKUP(DropDownList!$B$47,CntyQuery!$A$170:$FT$183,BI$1)","v":352},{"$f":"VLOOKUP(DropDownList!$B$47,CntyQuery!$A$170:$FT$183,BJ$1)","v":901},{"$f":"VLOOKUP(DropDownList!$B$47,CntyQuery!$A$170:$FT$183,BK$1)","v":739.01},{"$f":"VLOOKUP(DropDownList!$B$47,CntyQuery!$A$170:$FT$183,BL$1)","v":766.39},{"$f":"VLOOKUP(DropDownList!$B$47,CntyQuery!$A$170:$FT$183,BM$1)","v":955.73},{"$f":"VLOOKUP(DropDownList!$B$47,CntyQuery!$A$170:$FT$183,BN$1)","v":692.46},{"$f":"VLOOKUP(DropDownList!$B$47,CntyQuery!$A$170:$FT$183,BO$1)","v":1475},{"$f":"VLOOKUP(DropDownList!$B$47,CntyQuery!$A$170:$FT$183,BP$1)","v":1184},{"$f":"VLOOKUP(DropDownList!$B$47,CntyQuery!$A$170:$FT$183,BQ$1)","v":323},{"$f":"VLOOKUP(DropDownList!$B$47,CntyQuery!$A$170:$FT$183,BR$1)","v":861},{"$f":"VLOOKUP(DropDownList!$B$47,CntyQuery!$A$170:$FT$183,BS$1)","v":744.65},{"$f":"VLOOKUP(DropDownList!$B$47,CntyQuery!$A$170:$FT$183,BT$1)","v":778.79},{"$f":"VLOOKUP(DropDownList!$B$47,CntyQuery!$A$170:$FT$183,BU$1)","v":932.29},{"$f":"VLOOKUP(DropDownList!$B$47,CntyQuery!$A$170:$FT$183,BV$1)","v":721.2},{"$f":"VLOOKUP(DropDownList!$B$47,CntyQuery!$A$170:$FT$183,BW$1)","v":1468},{"$f":"VLOOKUP(DropDownList!$B$47,CntyQuery!$A$170:$FT$183,BX$1)","v":1188},{"$f":"VLOOKUP(DropDownList!$B$47,CntyQuery!$A$170:$FT$183,BY$1)","v":354},{"$f":"VLOOKUP(DropDownList!$B$47,CntyQuery!$A$170:$FT$183,BZ$1)","v":834},{"$f":"VLOOKUP(DropDownList!$B$47,CntyQuery!$A$170:$FT$183,CA$1)","v":769.31},{"$f":"VLOOKUP(DropDownList!$B$47,CntyQuery!$A$170:$FT$183,CB$1)","v":796.47},{"$f":"VLOOKUP(DropDownList!$B$47,CntyQuery!$A$170:$FT$183,CC$1)","v":1067.45},{"$f":"VLOOKUP(DropDownList!$B$47,CntyQuery!$A$170:$FT$183,CD$1)","v":681.53},{"$f":"VLOOKUP(DropDownList!$B$47,CntyQuery!$A$170:$FT$183,CE$1)","v":1522},{"$f":"VLOOKUP(DropDownList!$B$47,CntyQuery!$A$170:$FT$183,CF$1)","v":1236},{"$f":"VLOOKUP(DropDownList!$B$47,CntyQuery!$A$170:$FT$183,CG$1)","v":396},{"$f":"VLOOKUP(DropDownList!$B$47,CntyQuery!$A$170:$FT$183,CH$1)","v":840},{"$f":"VLOOKUP(DropDownList!$B$47,CntyQuery!$A$170:$FT$183,CI$1)","v":783.83},{"$f":"VLOOKUP(DropDownList!$B$47,CntyQuery!$A$170:$FT$183,CJ$1)","v":814.57},{"$f":"VLOOKUP(DropDownList!$B$47,CntyQuery!$A$170:$FT$183,CK$1)","v":994.51},{"$f":"VLOOKUP(DropDownList!$B$47,CntyQuery!$A$170:$FT$183,CL$1)","v":729.74},{"$f":"VLOOKUP(DropDownList!$B$47,CntyQuery!$A$170:$FT$183,CM$1)","v":1591},{"$f":"VLOOKUP(DropDownList!$B$47,CntyQuery!$A$170:$FT$183,CN$1)","v":1306},{"$f":"VLOOKUP(DropDownList!$B$47,CntyQuery!$A$170:$FT$183,CO$1)","v":457},{"$f":"VLOOKUP(DropDownList!$B$47,CntyQuery!$A$170:$FT$183,CP$1)","v":849},{"$f":"VLOOKUP(DropDownList!$B$47,CntyQuery!$A$170:$FT$183,CQ$1)","v":793.41},{"$f":"VLOOKUP(DropDownList!$B$47,CntyQuery!$A$170:$FT$183,CR$1)","v":823.23},{"$f":"VLOOKUP(DropDownList!$B$47,CntyQuery!$A$170:$FT$183,CS$1)","v":1006},{"$f":"VLOOKUP(DropDownList!$B$47,CntyQuery!$A$170:$FT$183,CT$1)","v":724.85},{"$f":"VLOOKUP(DropDownList!$B$47,CntyQuery!$A$170:$FT$183,CU$1)","v":1650},{"$f":"VLOOKUP(DropDownList!$B$47,CntyQuery!$A$170:$FT$183,CV$1)","v":1370},{"$f":"VLOOKUP(DropDownList!$B$47,CntyQuery!$A$170:$FT$183,CW$1)","v":487},{"$f":"VLOOKUP(DropDownList!$B$47,CntyQuery!$A$170:$FT$183,CX$1)","v":883},{"$f":"VLOOKUP(DropDownList!$B$47,CntyQuery!$A$170:$FT$183,CY$1)","v":840.65},{"$f":"VLOOKUP(DropDownList!$B$47,CntyQuery!$A$170:$FT$183,CZ$1)","v":873.52},{"$f":"VLOOKUP(DropDownList!$B$47,CntyQuery!$A$170:$FT$183,DA$1)","v":1118.82},{"$f":"VLOOKUP(DropDownList!$B$47,CntyQuery!$A$170:$FT$183,DB$1)","v":738.04},{"$f":"VLOOKUP(DropDownList!$B$47,CntyQuery!$A$170:$FT$183,DC$1)","v":1661},{"$f":"VLOOKUP(DropDownList!$B$47,CntyQuery!$A$170:$FT$183,DD$1)","v":1387},{"$f":"VLOOKUP(DropDownList!$B$47,CntyQuery!$A$170:$FT$183,DE$1)","v":505},{"$f":"VLOOKUP(DropDownList!$B$47,CntyQuery!$A$170:$FT$183,DF$1)","v":883},{"$f":"VLOOKUP(DropDownList!$B$47,CntyQuery!$A$170:$FT$183,DG$1)","v":839.24},{"$f":"VLOOKUP(DropDownList!$B$47,CntyQuery!$A$170:$FT$183,DH$1)","v":862.33},{"$f":"VLOOKUP(DropDownList!$B$47,CntyQuery!$A$170:$FT$183,DI$1)","v":1124.94},{"$f":"VLOOKUP(DropDownList!$B$47,CntyQuery!$A$170:$FT$183,DJ$1)","v":712.28},{"$f":"VLOOKUP(DropDownList!$B$47,CntyQuery!$A$170:$FT$183,DK$1)","v":1785},{"$f":"VLOOKUP(DropDownList!$B$47,CntyQuery!$A$170:$FT$183,DL$1)","v":1502},{"$f":"VLOOKUP(DropDownList!$B$47,CntyQuery!$A$170:$FT$183,DM$1)","v":607},{"$f":"VLOOKUP(DropDownList!$B$47,CntyQuery!$A$170:$FT$183,DN$1)","v":895},{"$f":"VLOOKUP(DropDownList!$B$47,CntyQuery!$A$170:$FT$183,DO$1)","v":900.26},{"$f":"VLOOKUP(DropDownList!$B$47,CntyQuery!$A$170:$FT$183,DP$1)","v":931.95},{"$f":"VLOOKUP(DropDownList!$B$47,CntyQuery!$A$170:$FT$183,DQ$1)","v":1163.26},{"$f":"VLOOKUP(DropDownList!$B$47,CntyQuery!$A$170:$FT$183,DR$1)","v":775.14},{"$f":"VLOOKUP(DropDownList!$B$47,CntyQuery!$A$170:$FT$183,DS$1)","v":1880},{"$f":"VLOOKUP(DropDownList!$B$47,CntyQuery!$A$170:$FT$183,DT$1)","v":1583},{"$f":"VLOOKUP(DropDownList!$B$47,CntyQuery!$A$170:$FT$183,DU$1)","v":673},{"$f":"VLOOKUP(DropDownList!$B$47,CntyQuery!$A$170:$FT$183,DV$1)","v":910},{"$f":"VLOOKUP(DropDownList!$B$47,CntyQuery!$A$170:$FT$183,DW$1)","v":886.48},{"$f":"VLOOKUP(DropDownList!$B$47,CntyQuery!$A$170:$FT$183,DX$1)","v":921.27},{"$f":"VLOOKUP(DropDownList!$B$47,CntyQuery!$A$170:$FT$183,DY$1)","v":1107.7},{"$f":"VLOOKUP(DropDownList!$B$47,CntyQuery!$A$170:$FT$183,DZ$1)","v":783.48},{"$f":"VLOOKUP(DropDownList!$B$47,CntyQuery!$A$170:$FT$183,EA$1)","v":1947},{"$f":"VLOOKUP(DropDownList!$B$47,CntyQuery!$A$170:$FT$183,EB$1)","v":1661},{"$f":"VLOOKUP(DropDownList!$B$47,CntyQuery!$A$170:$FT$183,EC$1)","v":721},{"$f":"VLOOKUP(DropDownList!$B$47,CntyQuery!$A$170:$FT$183,ED$1)","v":939},{"$f":"VLOOKUP(DropDownList!$B$47,CntyQuery!$A$170:$FT$183,EE$1)","v":927.55},{"$f":"VLOOKUP(DropDownList!$B$47,CntyQuery!$A$170:$FT$183,EF$1)","v":955.59},{"$f":"VLOOKUP(DropDownList!$B$47,CntyQuery!$A$170:$FT$183,EG$1)","v":1123.82},{"$f":"VLOOKUP(DropDownList!$B$47,CntyQuery!$A$170:$FT$183,EH$1)","v":826.39},{"$f":"VLOOKUP(DropDownList!$B$47,CntyQuery!$A$170:$FT$183,EI$1)","v":2015},{"$f":"VLOOKUP(DropDownList!$B$47,CntyQuery!$A$170:$FT$183,EJ$1)","v":1719},{"$f":"VLOOKUP(DropDownList!$B$47,CntyQuery!$A$170:$FT$183,EK$1)","v":791},{"$f":"VLOOKUP(DropDownList!$B$47,CntyQuery!$A$170:$FT$183,EL$1)","v":928},{"$f":"VLOOKUP(DropDownList!$B$47,CntyQuery!$A$170:$FT$183,EM$1)","v":985.51},{"$f":"VLOOKUP(DropDownList!$B$47,CntyQuery!$A$170:$FT$183,EN$1)","v":1021.32},{"$f":"VLOOKUP(DropDownList!$B$47,CntyQuery!$A$170:$FT$183,EO$1)","v":1209.45},{"$f":"VLOOKUP(DropDownList!$B$47,CntyQuery!$A$170:$FT$183,EP$1)","v":860.86},{"$f":"VLOOKUP(DropDownList!$B$47,CntyQuery!$A$170:$FT$183,EQ$1)","v":2070},{"$f":"VLOOKUP(DropDownList!$B$47,CntyQuery!$A$170:$FT$183,ER$1)","v":1769},{"$f":"VLOOKUP(DropDownList!$B$47,CntyQuery!$A$170:$FT$183,ES$1)","v":302},{"$f":"VLOOKUP(DropDownList!$B$47,CntyQuery!$A$170:$FT$183,ET$1)","v":811},{"$f":"VLOOKUP(DropDownList!$B$47,CntyQuery!$A$170:$FT$183,EU$1)","v":958},{"$f":"VLOOKUP(DropDownList!$B$47,CntyQuery!$A$170:$FT$183,EV$1)","v":996.42},{"$f":"VLOOKUP(DropDownList!$B$47,CntyQuery!$A$170:$FT$183,EW$1)","v":1033.02},{"$f":"VLOOKUP(DropDownList!$B$47,CntyQuery!$A$170:$FT$183,EX$1)","v":781.75},{"$f":"VLOOKUP(DropDownList!$B$47,CntyQuery!$A$170:$FT$183,EY$1)","v":1174.99},{"$f":"VLOOKUP(DropDownList!$B$47,CntyQuery!$A$170:$FT$183,EZ$1)","v":912.8},{"$f":"VLOOKUP(DropDownList!$B$47,CntyQuery!$A$170:$FT$183,FA$1)","v":60}]
[]
[]
["Labor Force and Unemployment Rate","Query Name: DPQryUnempByCnty"]
["PlaceName","LaborForce1990","LaborForce1991","LaborForce1992","LaborForce1993","LaborForce1994","LaborForce1995","LaborForce1996","LaborForce1997","LaborForce1998","LaborForce1999","LaborForce2000","LaborForce2001","LaborForce2002","LaborForce2003","NumbEmployed1990","NumbEmployed1991","NumbEmployed1992","NumbEmployed1993","NumbEmployed1994","NumbEmployed1995","NumbEmployed1996","NumbEmployed1997","NumbEmployed1998","NumbEmployed1999","NumbEmployed2000","NumbEmployed2001","NumbEmployed2002","NumbEmployed2003","UnempRate1990","UnempRate1991","UnempRate1992","UnempRate1993","UnempRate1994","UnempRate1995","UnempRate1996","UnempRate1997","UnempRate1998","UnempRate1999","UnempRate2000","UnempRate2001","UnempRate2002","UnempRate2003","NumbUnEmp1990","NumbUnEmp1991","NumbUnEmp1992","NumbUnEmp1993","NumbUnEmp1994","NumbUnEmp1995","NumbUnEmp1996","NumbUnEmp1997","NumbUnEmp1998","NumbUnEmp1999","NumbUnEmp2000","NumbUnEmp2001","NumbUnEmp2002","NumbUnEmp2003","LaborForce2004","NumbEmployed2004","UnempRate2004","NumbUnEmp2004","LaborForce2005","NumbEmployed2005","NumbUnEmp2005","UnempRate2005","LaborForce2006","NumbEmployed2006","NumbUnEmp2006","UnempRate2006","LaborForce2007","NumbEmployed2007","NumbUnEmp2007","UnempRate2007","LaborForce2008","NumbEmployed2008","NumbUnEmp2008","UnempRate2008","LaborForce2009","NumbEmployed2009","NumbUnEmp2009","UnempRate2009","LaborForce2010","NumbEmployed2010","NumbUnEmp2010","UnempRate2010","LaborForce2011","NumbEmployed2011","NumbUnEmp2011","UnempRate2011","LaborForce2012","NumbEmployed2012","NumbUnEmp2012","UnempRate2012","LaborForce2013","NumbEmployed2013","NumbUnEmp2013","UnempRate2013","LaborForce2014","NumbEmployed2014","NumbUnEmp2014","UnempRate2014","LaborForce2015","NumbEmployed2015","NumbUnEmp2015","UnempRate2015","LaborForce2016","NumbEmployed2016","NumbUnEmp2016","UnempRate2016","LaborForce2017","NumbEmployed2017","NumbUnEmp2017","UnempRate2017","LaborForce2018","NumbEmployed2018","NumbUnEmp2018","UnempRate2018","LaborForce2019","NumbEmployed2019","NumbUnEmp2019","UnempRate2019","Place-TownIDNumber"]
[{"$f":"VLOOKUP(DropDownList!$B$47,CntyQuery!$A$220:$EF$229,A$1)","v":{"$error":"#N/A"}},{"$f":"VLOOKUP(DropDownList!$B$47,CntyQuery!$A$220:$EF$229,B$1)","v":{"$error":"#N/A"}},{"$f":"VLOOKUP(DropDownList!$B$47,CntyQuery!$A$220:$EF$229,C$1)","v":{"$error":"#N/A"}},{"$f":"VLOOKUP(DropDownList!$B$47,CntyQuery!$A$220:$EF$229,D$1)","v":{"$error":"#N/A"}},{"$f":"VLOOKUP(DropDownList!$B$47,CntyQuery!$A$220:$EF$229,E$1)","v":{"$error":"#N/A"}},{"$f":"VLOOKUP(DropDownList!$B$47,CntyQuery!$A$220:$EF$229,F$1)","v":{"$error":"#N/A"}},{"$f":"VLOOKUP(DropDownList!$B$47,CntyQuery!$A$220:$EF$229,G$1)","v":{"$error":"#N/A"}},{"$f":"VLOOKUP(DropDownList!$B$47,CntyQuery!$A$220:$EF$229,H$1)","v":{"$error":"#N/A"}},{"$f":"VLOOKUP(DropDownList!$B$47,CntyQuery!$A$220:$EF$229,I$1)","v":{"$error":"#N/A"}},{"$f":"VLOOKUP(DropDownList!$B$47,CntyQuery!$A$220:$EF$229,J$1)","v":{"$error":"#N/A"}},{"$f":"VLOOKUP(DropDownList!$B$47,CntyQuery!$A$220:$EF$229,K$1)","v":{"$error":"#N/A"}},{"$f":"VLOOKUP(DropDownList!$B$47,CntyQuery!$A$220:$EF$229,L$1)","v":{"$error":"#N/A"}},{"$f":"VLOOKUP(DropDownList!$B$47,CntyQuery!$A$220:$EF$229,M$1)","v":{"$error":"#N/A"}},{"$f":"VLOOKUP(DropDownList!$B$47,CntyQuery!$A$220:$EF$229,N$1)","v":{"$error":"#N/A"}},{"$f":"VLOOKUP(DropDownList!$B$47,CntyQuery!$A$220:$EF$229,O$1)","v":{"$error":"#N/A"}},{"$f":"VLOOKUP(DropDownList!$B$47,CntyQuery!$A$220:$EF$229,P$1)","v":{"$error":"#N/A"}},{"$f":"VLOOKUP(DropDownList!$B$47,CntyQuery!$A$220:$EF$229,Q$1)","v":{"$error":"#N/A"}},{"$f":"VLOOKUP(DropDownList!$B$47,CntyQuery!$A$220:$EF$229,R$1)","v":{"$error":"#N/A"}},{"$f":"VLOOKUP(DropDownList!$B$47,CntyQuery!$A$220:$EF$229,S$1)","v":{"$error":"#N/A"}},{"$f":"VLOOKUP(DropDownList!$B$47,CntyQuery!$A$220:$EF$229,T$1)","v":{"$error":"#N/A"}},{"$f":"VLOOKUP(DropDownList!$B$47,CntyQuery!$A$220:$EF$229,U$1)","v":{"$error":"#N/A"}},{"$f":"VLOOKUP(DropDownList!$B$47,CntyQuery!$A$220:$EF$229,V$1)","v":{"$error":"#N/A"}},{"$f":"VLOOKUP(DropDownList!$B$47,CntyQuery!$A$220:$EF$229,W$1)","v":{"$error":"#N/A"}},{"$f":"VLOOKUP(DropDownList!$B$47,CntyQuery!$A$220:$EF$229,X$1)","v":{"$error":"#N/A"}},{"$f":"VLOOKUP(DropDownList!$B$47,CntyQuery!$A$220:$EF$229,Y$1)","v":{"$error":"#N/A"}},{"$f":"VLOOKUP(DropDownList!$B$47,CntyQuery!$A$220:$EF$229,Z$1)","v":{"$error":"#N/A"}},{"$f":"VLOOKUP(DropDownList!$B$47,CntyQuery!$A$220:$EF$229,AA$1)","v":{"$error":"#N/A"}},{"$f":"VLOOKUP(DropDownList!$B$47,CntyQuery!$A$220:$EF$229,AB$1)","v":{"$error":"#N/A"}},{"$f":"VLOOKUP(DropDownList!$B$47,CntyQuery!$A$220:$EF$229,AC$1)","v":{"$error":"#N/A"}},{"$f":"VLOOKUP(DropDownList!$B$47,CntyQuery!$A$220:$EF$229,AD$1)","v":{"$error":"#N/A"}},{"$f":"VLOOKUP(DropDownList!$B$47,CntyQuery!$A$220:$EF$229,AE$1)","v":{"$error":"#N/A"}},{"$f":"VLOOKUP(DropDownList!$B$47,CntyQuery!$A$220:$EF$229,AF$1)","v":{"$error":"#N/A"}},{"$f":"VLOOKUP(DropDownList!$B$47,CntyQuery!$A$220:$EF$229,AG$1)","v":{"$error":"#N/A"}},{"$f":"VLOOKUP(DropDownList!$B$47,CntyQuery!$A$220:$EF$229,AH$1)","v":{"$error":"#N/A"}},{"$f":"VLOOKUP(DropDownList!$B$47,CntyQuery!$A$220:$EF$229,AI$1)","v":{"$error":"#N/A"}},{"$f":"VLOOKUP(DropDownList!$B$47,CntyQuery!$A$220:$EF$229,AJ$1)","v":{"$error":"#N/A"}},{"$f":"VLOOKUP(DropDownList!$B$47,CntyQuery!$A$220:$EF$229,AK$1)","v":{"$error":"#N/A"}},{"$f":"VLOOKUP(DropDownList!$B$47,CntyQuery!$A$220:$EF$229,AL$1)","v":{"$error":"#N/A"}},{"$f":"VLOOKUP(DropDownList!$B$47,CntyQuery!$A$220:$EF$229,AM$1)","v":{"$error":"#N/A"}},{"$f":"VLOOKUP(DropDownList!$B$47,CntyQuery!$A$220:$EF$229,AN$1)","v":{"$error":"#N/A"}},{"$f":"VLOOKUP(DropDownList!$B$47,CntyQuery!$A$220:$EF$229,AO$1)","v":{"$error":"#N/A"}},{"$f":"VLOOKUP(DropDownList!$B$47,CntyQuery!$A$220:$EF$229,AP$1)","v":{"$error":"#N/A"}},{"$f":"VLOOKUP(DropDownList!$B$47,CntyQuery!$A$220:$EF$229,AQ$1)","v":{"$error":"#N/A"}},{"$f":"VLOOKUP(DropDownList!$B$47,CntyQuery!$A$220:$EF$229,AR$1)","v":{"$error":"#N/A"}},{"$f":"VLOOKUP(DropDownList!$B$47,CntyQuery!$A$220:$EF$229,AS$1)","v":{"$error":"#N/A"}},{"$f":"VLOOKUP(DropDownList!$B$47,CntyQuery!$A$220:$EF$229,AT$1)","v":{"$error":"#N/A"}},{"$f":"VLOOKUP(DropDownList!$B$47,CntyQuery!$A$220:$EF$229,AU$1)","v":{"$error":"#N/A"}},{"$f":"VLOOKUP(DropDownList!$B$47,CntyQuery!$A$220:$EF$229,AV$1)","v":{"$error":"#N/A"}},{"$f":"VLOOKUP(DropDownList!$B$47,CntyQuery!$A$220:$EF$229,AW$1)","v":{"$error":"#N/A"}},{"$f":"VLOOKUP(DropDownList!$B$47,CntyQuery!$A$220:$EF$229,AX$1)","v":{"$error":"#N/A"}},{"$f":"VLOOKUP(DropDownList!$B$47,CntyQuery!$A$220:$EF$229,AY$1)","v":{"$error":"#N/A"}},{"$f":"VLOOKUP(DropDownList!$B$47,CntyQuery!$A$220:$EF$229,AZ$1)","v":{"$error":"#N/A"}},{"$f":"VLOOKUP(DropDownList!$B$47,CntyQuery!$A$220:$EF$229,BA$1)","v":{"$error":"#N/A"}},{"$f":"VLOOKUP(DropDownList!$B$47,CntyQuery!$A$220:$EF$229,BB$1)","v":{"$error":"#N/A"}},{"$f":"VLOOKUP(DropDownList!$B$47,CntyQuery!$A$220:$EF$229,BC$1)","v":{"$error":"#N/A"}},{"$f":"VLOOKUP(DropDownList!$B$47,CntyQuery!$A$220:$EF$229,BD$1)","v":{"$error":"#N/A"}},{"$f":"VLOOKUP(DropDownList!$B$47,CntyQuery!$A$220:$EF$229,BE$1)","v":{"$error":"#N/A"}},{"$f":"VLOOKUP(DropDownList!$B$47,CntyQuery!$A$220:$EF$229,BF$1)","v":{"$error":"#N/A"}},{"$f":"VLOOKUP(DropDownList!$B$47,CntyQuery!$A$220:$EF$229,BG$1)","v":{"$error":"#N/A"}},{"$f":"VLOOKUP(DropDownList!$B$47,CntyQuery!$A$220:$EF$229,BH$1)","v":{"$error":"#N/A"}},{"$f":"VLOOKUP(DropDownList!$B$47,CntyQuery!$A$220:$EF$229,BI$1)","v":{"$error":"#N/A"}},{"$f":"VLOOKUP(DropDownList!$B$47,CntyQuery!$A$220:$EF$229,BJ$1)","v":{"$error":"#N/A"}},{"$f":"VLOOKUP(DropDownList!$B$47,CntyQuery!$A$220:$EF$229,BK$1)","v":{"$error":"#N/A"}},{"$f":"VLOOKUP(DropDownList!$B$47,CntyQuery!$A$220:$EF$229,BL$1)","v":{"$error":"#N/A"}},{"$f":"VLOOKUP(DropDownList!$B$47,CntyQuery!$A$220:$EF$229,BM$1)","v":{"$error":"#N/A"}},{"$f":"VLOOKUP(DropDownList!$B$47,CntyQuery!$A$220:$EF$229,BN$1)","v":{"$error":"#N/A"}},{"$f":"VLOOKUP(DropDownList!$B$47,CntyQuery!$A$220:$EF$229,BO$1)","v":{"$error":"#N/A"}},{"$f":"VLOOKUP(DropDownList!$B$47,CntyQuery!$A$220:$EF$229,BP$1)","v":{"$error":"#N/A"}},{"$f":"VLOOKUP(DropDownList!$B$47,CntyQuery!$A$220:$EF$229,BQ$1)","v":{"$error":"#N/A"}},{"$f":"VLOOKUP(DropDownList!$B$47,CntyQuery!$A$220:$EF$229,BR$1)","v":{"$error":"#N/A"}},{"$f":"VLOOKUP(DropDownList!$B$47,CntyQuery!$A$220:$EF$229,BS$1)","v":{"$error":"#N/A"}},{"$f":"VLOOKUP(DropDownList!$B$47,CntyQuery!$A$220:$EF$229,BT$1)","v":{"$error":"#N/A"}},{"$f":"VLOOKUP(DropDownList!$B$47,CntyQuery!$A$220:$EF$229,BU$1)","v":{"$error":"#N/A"}},{"$f":"VLOOKUP(DropDownList!$B$47,CntyQuery!$A$220:$EF$229,BV$1)","v":{"$error":"#N/A"}},{"$f":"VLOOKUP(DropDownList!$B$47,CntyQuery!$A$220:$EF$229,BW$1)","v":{"$error":"#N/A"}},{"$f":"VLOOKUP(DropDownList!$B$47,CntyQuery!$A$220:$EF$229,BX$1)","v":{"$error":"#N/A"}},{"$f":"VLOOKUP(DropDownList!$B$47,CntyQuery!$A$220:$EF$229,BY$1)","v":{"$error":"#N/A"}},{"$f":"VLOOKUP(DropDownList!$B$47,CntyQuery!$A$220:$EF$229,BZ$1)","v":{"$error":"#N/A"}},{"$f":"VLOOKUP(DropDownList!$B$47,CntyQuery!$A$220:$EF$229,CA$1)","v":{"$error":"#N/A"}},{"$f":"VLOOKUP(DropDownList!$B$47,CntyQuery!$A$220:$EF$229,CB$1)","v":{"$error":"#N/A"}},{"$f":"VLOOKUP(DropDownList!$B$47,CntyQuery!$A$220:$EF$229,CC$1)","v":{"$error":"#N/A"}},{"$f":"VLOOKUP(DropDownList!$B$47,CntyQuery!$A$220:$EF$229,CD$1)","v":{"$error":"#N/A"}},{"$f":"VLOOKUP(DropDownList!$B$47,CntyQuery!$A$220:$EF$229,CE$1)","v":{"$error":"#N/A"}},{"$f":"VLOOKUP(DropDownList!$B$47,CntyQuery!$A$220:$EF$229,CF$1)","v":{"$error":"#N/A"}},{"$f":"VLOOKUP(DropDownList!$B$47,CntyQuery!$A$220:$EF$229,CG$1)","v":{"$error":"#N/A"}},{"$f":"VLOOKUP(DropDownList!$B$47,CntyQuery!$A$220:$EF$229,CH$1)","v":{"$error":"#N/A"}},{"$f":"VLOOKUP(DropDownList!$B$47,CntyQuery!$A$220:$EF$229,CI$1)","v":{"$error":"#N/A"}},{"$f":"VLOOKUP(DropDownList!$B$47,CntyQuery!$A$220:$EF$229,CJ$1)","v":{"$error":"#N/A"}},{"$f":"VLOOKUP(DropDownList!$B$47,CntyQuery!$A$220:$EF$229,CK$1)","v":{"$error":"#N/A"}},{"$f":"VLOOKUP(DropDownList!$B$47,CntyQuery!$A$220:$EF$229,CL$1)","v":{"$error":"#N/A"}},{"$f":"VLOOKUP(DropDownList!$B$47,CntyQuery!$A$220:$EF$229,CM$1)","v":{"$error":"#N/A"}},{"$f":"VLOOKUP(DropDownList!$B$47,CntyQuery!$A$220:$EF$229,CN$1)","v":{"$error":"#N/A"}},{"$f":"VLOOKUP(DropDownList!$B$47,CntyQuery!$A$220:$EF$229,CO$1)","v":{"$error":"#N/A"}},{"$f":"VLOOKUP(DropDownList!$B$47,CntyQuery!$A$220:$EF$229,CP$1)","v":{"$error":"#N/A"}},{"$f":"VLOOKUP(DropDownList!$B$47,CntyQuery!$A$220:$EF$229,CQ$1)","v":{"$error":"#N/A"}},{"$f":"VLOOKUP(DropDownList!$B$47,CntyQuery!$A$220:$EF$229,CR$1)","v":{"$error":"#N/A"}},{"$f":"VLOOKUP(DropDownList!$B$47,CntyQuery!$A$220:$EF$229,CS$1)","v":{"$error":"#N/A"}},{"$f":"VLOOKUP(DropDownList!$B$47,CntyQuery!$A$220:$EF$229,CT$1)","v":{"$error":"#N/A"}},{"$f":"VLOOKUP(DropDownList!$B$47,CntyQuery!$A$220:$EF$229,CU$1)","v":{"$error":"#N/A"}},{"$f":"VLOOKUP(DropDownList!$B$47,CntyQuery!$A$220:$EF$229,CV$1)","v":{"$error":"#N/A"}},{"$f":"VLOOKUP(DropDownList!$B$47,CntyQuery!$A$220:$EF$229,CW$1)","v":{"$error":"#N/A"}},{"$f":"VLOOKUP(DropDownList!$B$47,CntyQuery!$A$220:$EF$229,CX$1)","v":{"$error":"#N/A"}},{"$f":"VLOOKUP(DropDownList!$B$47,CntyQuery!$A$220:$EF$229,CY$1)","v":{"$error":"#N/A"}},{"$f":"VLOOKUP(DropDownList!$B$47,CntyQuery!$A$220:$EF$229,CZ$1)","v":{"$error":"#N/A"}},{"$f":"VLOOKUP(DropDownList!$B$47,CntyQuery!$A$220:$EF$229,DA$1)","v":{"$error":"#N/A"}},{"$f":"VLOOKUP(DropDownList!$B$47,CntyQuery!$A$220:$EF$229,DB$1)","v":{"$error":"#N/A"}},{"$f":"VLOOKUP(DropDownList!$B$47,CntyQuery!$A$220:$EF$229,DC$1)","v":{"$error":"#N/A"}},{"$f":"VLOOKUP(DropDownList!$B$47,CntyQuery!$A$220:$EF$229,DD$1)","v":{"$error":"#N/A"}},{"$f":"VLOOKUP(DropDownList!$B$47,CntyQuery!$A$220:$EF$229,DE$1)","v":{"$error":"#N/A"}},{"$f":"VLOOKUP(DropDownList!$B$47,CntyQuery!$A$220:$EF$229,DF$1)","v":{"$error":"#N/A"}},{"$f":"VLOOKUP(DropDownList!$B$47,CntyQuery!$A$220:$EF$229,DG$1)","v":{"$error":"#N/A"}},{"$f":"VLOOKUP(DropDownList!$B$47,CntyQuery!$A$220:$EF$229,DH$1)","v":{"$error":"#N/A"}},{"$f":"VLOOKUP(DropDownList!$B$47,CntyQuery!$A$220:$EF$229,DI$1)","v":{"$error":"#N/A"}},{"$f":"VLOOKUP(DropDownList!$B$47,CntyQuery!$A$220:$EF$229,DJ$1)","v":{"$error":"#N/A"}},{"$f":"VLOOKUP(DropDownList!$B$47,CntyQuery!$A$220:$EF$229,DK$1)","v":{"$error":"#N/A"}},{"$f":"VLOOKUP(DropDownList!$B$47,CntyQuery!$A$220:$EF$229,DL$1)","v":{"$error":"#N/A"}},{"$f":"VLOOKUP(DropDownList!$B$47,CntyQuery!$A$220:$EF$229,DM$1)","v":{"$error":"#N/A"}},{"$f":"VLOOKUP(DropDownList!$B$47,CntyQuery!$A$220:$EF$229,DN$1)","v":{"$error":"#N/A"}},{"$f":"VLOOKUP(DropDownList!$B$47,CntyQuery!$A$220:$EF$229,DO$1)","v":{"$error":"#N/A"}},{"$f":"VLOOKUP(DropDownList!$B$47,CntyQuery!$A$220:$EF$229,DP$1)","v":{"$error":"#N/A"}},{"$f":"VLOOKUP(DropDownList!$B$47,CntyQuery!$A$220:$EF$229,DQ$1)","v":{"$error":"#N/A"}},{"$f":"VLOOKUP(DropDownList!$B$47,CntyQuery!$A$220:$EF$229,DR$1)","v":{"$error":"#N/A"}}]
[]
[null,null,null,null,null,null,null,null,null,null,null,null,{"$f":"IF((CntyDataLink!$BL$25)=\"n\",NA(),IF(VALUE(CntyDataLink!$BL$25)=\"\",NA(),VALUE(CntyDataLink!$BL$25)))","v":766.39}]
["Census 2000   -           Query Name:  TownAllQuery3",2,{"$f":"B33+1","v":3},{"$f":"C33+1","v":4},5,6,7,8,9,10,11,12,13,14,15,16,17,18,19,20,21,22,23,24,25,26,27,28,29,30,31,32,33,34,35,36,37,38,39,40,41,42,43,44,45,46,47,48,49,50,51,52,53,54,55,56,57,58,59,60,61,62,63,64,65,66,67,{"$f":"BO33+1","v":68},69,70,71,72,73,74,75,76,77,78,79,80,81,82,83,84,85,86,87,88,89,90,91,92,93,94,95,96,97,98,99,100,101,102]
["NAME","COUNTY","LOGRECNO","COUSUB","TRACT","AREALAND","AREAWATR","POP100","HU100","2000Population","PopOfOneRace","PopWhite","PopBlack","PopAmIndian","PopAsian","PopHawaiian","PopOtherRace","Pop2orMoreRaces","PopHispanicLatino","PopNotHispanicLatino","PopMale","PopMale<15","PopMale15to24","PopMale25to34","PopMale35to44","PopMale45to54","PopMale55to64","PopMale65to74","PopMale75to84","PopMale85andOver","PopFemale","PopFemale<15","PopFemale15to24","PopFemale25to34","PopFemale35t44","PopFemale45to54","PopFemale55to64","PopFemale65to74","PopFemale75to84","PopFemale85andOver","Households2000","PopInHH","AvgHHSize","HHs1Person","HHs2orMorePerson","HHsFamily","HHMarriedCoupleFam","HHSingleParentFam","HHsNonFamily","Families","PopInFam","AvgFamSize","TotHsUnits","OccHsUnits","OwnerOccHU","RenterOccHU","VctHsUnits","VctHUForRent","VctHUForSale","VctHUSeasonal","PopInOccHU","PopInOwnOccHU","PopInRntOccHU","AvgHHSize2","AvgHHSizOwnOcc","AvgHHSizRntOcc","OwnOccWhtHsHldr","OwnOccBlkHsHldr","OwnOccAmIHsHldr","OwnOccAsnHsHldr","OwnOccPIsHsHldr","OwnOccORHsHldr","OwnOcc2RcHsHldr","RntOccWhtHsHldr","RntOccBlkHsHldr","RntOccAmIHsHldr","RntOccAsnHsHldr","RntOccPIsHsHldr","RntOccORHsHldr","RntOcc2RcHsHldr","OwnOccHH15to24","OwnOccHH25to34","OwnOccHH35to44","OwnOccHH45to54","OwnOccHH55to64","OwnOccHH65to74","OwnOccHH75to84","OwnOccHH85Over","RntOccHH15to24","RntOccHH25to34","RntOccHH35to44","RntOccHH45to54","RntOccHH55to64","RntOccHH65to74","RntOccHH75to84","RntOccHH85Over","P27TotalPop","P27PopInHseHlds","P27PopInGrpQtrs","Median Age Total","Median Age (Male)","Median Age (Female)"]
[{"$f":"VLOOKUP(DropDownList!$B$47,CntyQryCensus!$A$4:$CW$46,A$1)","v":"Barrington"},{"$f":"VLOOKUP(DropDownList!$B$47,CntyQryCensus!$A$4:$CW$46,B$1)","v":"017"},{"$f":"VLOOKUP(DropDownList!$B$47,CntyQryCensus!$A$4:$CW$46,C$1)","v":"0033389"},{"$f":"VLOOKUP(DropDownList!$B$47,CntyQryCensus!$A$4:$CW$46,D$1)","v":"03460"},{"$f":"VLOOKUP(DropDownList!$B$47,CntyQryCensus!$A$4:$CW$46,E$1)","v":""},{"$f":"VLOOKUP(DropDownList!$B$47,CntyQryCensus!$A$4:$CW$46,F$1)","v":"     120656252"},{"$f":"VLOOKUP(DropDownList!$B$47,CntyQryCensus!$A$4:$CW$46,G$1)","v":"       5005827"},{"$f":"VLOOKUP(DropDownList!$B$47,CntyQryCensus!$A$4:$CW$46,H$1)","v":7475},{"$f":"VLOOKUP(DropDownList!$B$47,CntyQryCensus!$A$4:$CW$46,I$1)","v":"     3147"},{"$f":"VLOOKUP(DropDownList!$B$47,CntyQryCensus!$A$4:$CW$46,J$1)","v":7475},{"$f":"VLOOKUP(DropDownList!$B$47,CntyQryCensus!$A$4:$CW$46,K$1)","v":7415},{"$f":"VLOOKUP(DropDownList!$B$47,CntyQryCensus!$A$4:$CW$46,L$1)","v":7334},{"$f":"VLOOKUP(DropDownList!$B$47,CntyQryCensus!$A$4:$CW$46,M$1)","v":19},{"$f":"VLOOKUP(DropDownList!$B$47,CntyQryCensus!$A$4:$CW$46,N$1)","v":10},{"$f":"VLOOKUP(DropDownList!$B$47,CntyQryCensus!$A$4:$CW$46,O$1)","v":31},{"$f":"VLOOKUP(DropDownList!$B$47,CntyQryCensus!$A$4:$CW$46,P$1)","v":4},{"$f":"VLOOKUP(DropDownList!$B$47,CntyQryCensus!$A$4:$CW$46,Q$1)","v":17},{"$f":"VLOOKUP(DropDownList!$B$47,CntyQryCensus!$A$4:$CW$46,R$1)","v":60},{"$f":"VLOOKUP(DropDownList!$B$47,CntyQryCensus!$A$4:$CW$46,S$1)","v":69},{"$f":"VLOOKUP(DropDownList!$B$47,CntyQryCensus!$A$4:$CW$46,T$1)","v":7406},{"$f":"VLOOKUP(DropDownList!$B$47,CntyQryCensus!$A$4:$CW$46,U$1)","v":3813},{"$f":"VLOOKUP(DropDownList!$B$47,CntyQryCensus!$A$4:$CW$46,V$1)","v":890},{"$f":"VLOOKUP(DropDownList!$B$47,CntyQryCensus!$A$4:$CW$46,W$1)","v":418},{"$f":"VLOOKUP(DropDownList!$B$47,CntyQryCensus!$A$4:$CW$46,X$1)","v":478},{"$f":"VLOOKUP(DropDownList!$B$47,CntyQryCensus!$A$4:$CW$46,Y$1)","v":822},{"$f":"VLOOKUP(DropDownList!$B$47,CntyQryCensus!$A$4:$CW$46,Z$1)","v":594},{"$f":"VLOOKUP(DropDownList!$B$47,CntyQryCensus!$A$4:$CW$46,AA$1)","v":363},{"$f":"VLOOKUP(DropDownList!$B$47,CntyQryCensus!$A$4:$CW$46,AB$1)","v":154},{"$f":"VLOOKUP(DropDownList!$B$47,CntyQryCensus!$A$4:$CW$46,AC$1)","v":83},{"$f":"VLOOKUP(DropDownList!$B$47,CntyQryCensus!$A$4:$CW$46,AD$1)","v":11},{"$f":"VLOOKUP(DropDownList!$B$47,CntyQryCensus!$A$4:$CW$46,AE$1)","v":3662},{"$f":"VLOOKUP(DropDownList!$B$47,CntyQryCensus!$A$4:$CW$46,AF$1)","v":832},{"$f":"VLOOKUP(DropDownList!$B$47,CntyQryCensus!$A$4:$CW$46,AG$1)","v":340},{"$f":"VLOOKUP(DropDownList!$B$47,CntyQryCensus!$A$4:$CW$46,AH$1)","v":537},{"$f":"VLOOKUP(DropDownList!$B$47,CntyQryCensus!$A$4:$CW$46,AI$1)","v":788},{"$f":"VLOOKUP(DropDownList!$B$47,CntyQryCensus!$A$4:$CW$46,AJ$1)","v":580},{"$f":"VLOOKUP(DropDownList!$B$47,CntyQryCensus!$A$4:$CW$46,AK$1)","v":308},{"$f":"VLOOKUP(DropDownList!$B$47,CntyQryCensus!$A$4:$CW$46,AL$1)","v":162},{"$f":"VLOOKUP(DropDownList!$B$47,CntyQryCensus!$A$4:$CW$46,AM$1)","v":90},{"$f":"VLOOKUP(DropDownList!$B$47,CntyQryCensus!$A$4:$CW$46,AN$1)","v":25},{"$f":"VLOOKUP(DropDownList!$B$47,CntyQryCensus!$A$4:$CW$46,AO$1)","v":2756},{"$f":"VLOOKUP(DropDownList!$B$47,CntyQryCensus!$A$4:$CW$46,AP$1)","v":7467},{"$f":"VLOOKUP(DropDownList!$B$47,CntyQryCensus!$A$4:$CW$46,AQ$1)","v":2.71},{"$f":"VLOOKUP(DropDownList!$B$47,CntyQryCensus!$A$4:$CW$46,AR$1)","v":465},{"$f":"VLOOKUP(DropDownList!$B$47,CntyQryCensus!$A$4:$CW$46,AS$1)","v":2291},{"$f":"VLOOKUP(DropDownList!$B$47,CntyQryCensus!$A$4:$CW$46,AT$1)","v":2076},{"$f":"VLOOKUP(DropDownList!$B$47,CntyQryCensus!$A$4:$CW$46,AU$1)","v":1781},{"$f":"VLOOKUP(DropDownList!$B$47,CntyQryCensus!$A$4:$CW$46,AV$1)","v":295},{"$f":"VLOOKUP(DropDownList!$B$47,CntyQryCensus!$A$4:$CW$46,AW$1)","v":215},{"$f":"VLOOKUP(DropDownList!$B$47,CntyQryCensus!$A$4:$CW$46,AX$1)","v":2076},{"$f":"VLOOKUP(DropDownList!$B$47,CntyQryCensus!$A$4:$CW$46,AY$1)","v":6374},{"$f":"VLOOKUP(DropDownList!$B$47,CntyQryCensus!$A$4:$CW$46,AZ$1)","v":3.07},{"$f":"VLOOKUP(DropDownList!$B$47,CntyQryCensus!$A$4:$CW$46,BA$1)","v":3147},{"$f":"VLOOKUP(DropDownList!$B$47,CntyQryCensus!$A$4:$CW$46,BB$1)","v":2756},{"$f":"VLOOKUP(DropDownList!$B$47,CntyQryCensus!$A$4:$CW$46,BC$1)","v":2349},{"$f":"VLOOKUP(DropDownList!$B$47,CntyQryCensus!$A$4:$CW$46,BD$1)","v":407},{"$f":"VLOOKUP(DropDownList!$B$47,CntyQryCensus!$A$4:$CW$46,BE$1)","v":391},{"$f":"VLOOKUP(DropDownList!$B$47,CntyQryCensus!$A$4:$CW$46,BF$1)","v":9},{"$f":"VLOOKUP(DropDownList!$B$47,CntyQryCensus!$A$4:$CW$46,BG$1)","v":18},{"$f":"VLOOKUP(DropDownList!$B$47,CntyQryCensus!$A$4:$CW$46,BH$1)","v":310},{"$f":"VLOOKUP(DropDownList!$B$47,CntyQryCensus!$A$4:$CW$46,BI$1)","v":7467},{"$f":"VLOOKUP(DropDownList!$B$47,CntyQryCensus!$A$4:$CW$46,BJ$1)","v":6513},{"$f":"VLOOKUP(DropDownList!$B$47,CntyQryCensus!$A$4:$CW$46,BK$1)","v":954},{"$f":"VLOOKUP(DropDownList!$B$47,CntyQryCensus!$A$4:$CW$46,BL$1)","v":2.71},{"$f":"VLOOKUP(DropDownList!$B$47,CntyQryCensus!$A$4:$CW$46,BM$1)","v":2.77},{"$f":"VLOOKUP(DropDownList!$B$47,CntyQryCensus!$A$4:$CW$46,BN$1)","v":2.34},{"$f":"VLOOKUP(DropDownList!$B$47,CntyQryCensus!$A$4:$CW$46,BO$1)","v":2315},{"$f":"VLOOKUP(DropDownList!$B$47,CntyQryCensus!$A$4:$CW$46,BP$1)","v":6},{"$f":"VLOOKUP(DropDownList!$B$47,CntyQryCensus!$A$4:$CW$46,BQ$1)","v":1},{"$f":"VLOOKUP(DropDownList!$B$47,CntyQryCensus!$A$4:$CW$46,BR$1)","v":5},{"$f":"VLOOKUP(DropDownList!$B$47,CntyQryCensus!$A$4:$CW$46,BS$1)","v":1},{"$f":"VLOOKUP(DropDownList!$B$47,CntyQryCensus!$A$4:$CW$46,BT$1)","v":5},{"$f":"VLOOKUP(DropDownList!$B$47,CntyQryCensus!$A$4:$CW$46,BU$1)","v":16},{"$f":"VLOOKUP(DropDownList!$B$47,CntyQryCensus!$A$4:$CW$46,BV$1)","v":398},{"$f":"VLOOKUP(DropDownList!$B$47,CntyQryCensus!$A$4:$CW$46,BW$1)","v":1},{"$f":"VLOOKUP(DropDownList!$B$47,CntyQryCensus!$A$4:$CW$46,BX$1)","v":1},{"$f":"VLOOKUP(DropDownList!$B$47,CntyQryCensus!$A$4:$CW$46,BY$1)","v":2},{"$f":"VLOOKUP(DropDownList!$B$47,CntyQryCensus!$A$4:$CW$46,BZ$1)","v":0},{"$f":"VLOOKUP(DropDownList!$B$47,CntyQryCensus!$A$4:$CW$46,CA$1)","v":1},{"$f":"VLOOKUP(DropDownList!$B$47,CntyQryCensus!$A$4:$CW$46,CB$1)","v":4},{"$f":"VLOOKUP(DropDownList!$B$47,CntyQryCensus!$A$4:$CW$46,CC$1)","v":18},{"$f":"VLOOKUP(DropDownList!$B$47,CntyQryCensus!$A$4:$CW$46,CD$1)","v":315},{"$f":"VLOOKUP(DropDownList!$B$47,CntyQryCensus!$A$4:$CW$46,CE$1)","v":750},{"$f":"VLOOKUP(DropDownList!$B$47,CntyQryCensus!$A$4:$CW$46,CF$1)","v":611},{"$f":"VLOOKUP(DropDownList!$B$47,CntyQryCensus!$A$4:$CW$46,CG$1)","v":368},{"$f":"VLOOKUP(DropDownList!$B$47,CntyQryCensus!$A$4:$CW$46,CH$1)","v":174},{"$f":"VLOOKUP(DropDownList!$B$47,CntyQryCensus!$A$4:$CW$46,CI$1)","v":98},{"$f":"VLOOKUP(DropDownList!$B$47,CntyQryCensus!$A$4:$CW$46,CJ$1)","v":15},{"$f":"VLOOKUP(DropDownList!$B$47,CntyQryCensus!$A$4:$CW$46,CK$1)","v":44},{"$f":"VLOOKUP(DropDownList!$B$47,CntyQryCensus!$A$4:$CW$46,CL$1)","v":133},{"$f":"VLOOKUP(DropDownList!$B$47,CntyQryCensus!$A$4:$CW$46,CM$1)","v":113},{"$f":"VLOOKUP(DropDownList!$B$47,CntyQryCensus!$A$4:$CW$46,CN$1)","v":50},{"$f":"VLOOKUP(DropDownList!$B$47,CntyQryCensus!$A$4:$CW$46,CO$1)","v":35},{"$f":"VLOOKUP(DropDownList!$B$47,CntyQryCensus!$A$4:$CW$46,CP$1)","v":17},{"$f":"VLOOKUP(DropDownList!$B$47,CntyQryCensus!$A$4:$CW$46,CQ$1)","v":12},{"$f":"VLOOKUP(DropDownList!$B$47,CntyQryCensus!$A$4:$CW$46,CR$1)","v":3},{"$f":"VLOOKUP(DropDownList!$B$47,CntyQryCensus!$A$4:$CW$46,CS$1)","v":7475},{"$f":"VLOOKUP(DropDownList!$B$47,CntyQryCensus!$A$4:$CW$46,CT$1)","v":7467},{"$f":"VLOOKUP(DropDownList!$B$47,CntyQryCensus!$A$4:$CW$46,CU$1)","v":8},{"$f":"VLOOKUP(DropDownList!$B$47,CntyQryCensus!$A$4:$CW$46,CV$1)","v":36.6},{"$f":"VLOOKUP(DropDownList!$B$47,CntyQryCensus!$A$4:$CW$46,CW$1)","v":36.6},{"$f":"VLOOKUP(DropDownList!$B$47,CntyQryCensus!$A$4:$CW$46,CX$1)","v":{"$error":"#REF!"}}]
[]
[]
["Census 2000 DemoProfile Sample Data Tables 2&3   -  DPTab23TownQry"]
["NAME","COUSUB","AREANAME","PopInSchool","Preschool","Kindergarten","Elementary","HighSchool","College","Pop25andOver","HighSchoolGrad","SomeCollege","AssocDegree","BachelDegree","GradDegree","HSGradorHigher","CollegeGradorHigher","Pop5to20yrs","Pop5to20wDis","Pop21to64","Pop21to64wDis","Pop65over","Pop65overwDis","Pop5yrsOver","SameHUin95","DiffHUinUSin95","HUinSameCountyin95","HUinSameStatein95","TotalPop","NativePop","NatPopBornUS","NatPopBornInStatRes","NatPopBornDiffState","NatPopBornOutUS","FornBornPop","FornPopEnt90to00","FornPopNatCit","FornPopNotCit","Households","HHIncLessThn10k","HHInc10to15K","HHInc15to25K","HHInc25to35K","HHInc35to50K","HHInc50to75K","HHInc75to100K","HHInc100to150K","HHInc150to200K","HHIncOver200K","MedianHHInc","HHwithPubAssistInc","MeanPubAssist","FamilyHH","FHHIncLessThn10k","FHHInc10to15K","FHHInc15to25K","FHHInc25to35K","FHHInc35to50K","FHHInc50to75K","FHHInc75to100K","FHHInc100to150K","FHHInc150to200K","FHHIncOver200K","MedianFHHInc","PerCapitaInc","PovStatFamilies","PovStatFHHwChilUnd18","PovStatFHHwChilUnd5","PovStFmalHH","DP3088","DP3089","PovStatIndiv","PovStatIndiv18yrOver","PovStatIndiv65yrOver","DP3093","DP3094","DP3095"]
[{"$f":"VLOOKUP(DropDownList!$B$47,CntyQryCensus!$A$53:$BY$96,A$1)","v":"Barrington"},{"$f":"VLOOKUP(DropDownList!$B$47,CntyQryCensus!$A$53:$BY$96,B$1)","v":"03460"},{"$f":"VLOOKUP(DropDownList!$B$47,CntyQryCensus!$A$53:$BY$96,C$1)","v":"Barrington town, Strafford County, New Hampshire"},{"$f":"VLOOKUP(DropDownList!$B$47,CntyQryCensus!$A$53:$BY$96,D$1)","v":2084},{"$f":"VLOOKUP(DropDownList!$B$47,CntyQryCensus!$A$53:$BY$96,E$1)","v":64},{"$f":"VLOOKUP(DropDownList!$B$47,CntyQryCensus!$A$53:$BY$96,F$1)","v":152},{"$f":"VLOOKUP(DropDownList!$B$47,CntyQryCensus!$A$53:$BY$96,G$1)","v":1000},{"$f":"VLOOKUP(DropDownList!$B$47,CntyQryCensus!$A$53:$BY$96,H$1)","v":447},{"$f":"VLOOKUP(DropDownList!$B$47,CntyQryCensus!$A$53:$BY$96,I$1)","v":421},{"$f":"VLOOKUP(DropDownList!$B$47,CntyQryCensus!$A$53:$BY$96,J$1)","v":4986},{"$f":"VLOOKUP(DropDownList!$B$47,CntyQryCensus!$A$53:$BY$96,K$1)","v":1458},{"$f":"VLOOKUP(DropDownList!$B$47,CntyQryCensus!$A$53:$BY$96,L$1)","v":1124},{"$f":"VLOOKUP(DropDownList!$B$47,CntyQryCensus!$A$53:$BY$96,M$1)","v":587},{"$f":"VLOOKUP(DropDownList!$B$47,CntyQryCensus!$A$53:$BY$96,N$1)","v":983},{"$f":"VLOOKUP(DropDownList!$B$47,CntyQryCensus!$A$53:$BY$96,O$1)","v":386},{"$f":"VLOOKUP(DropDownList!$B$47,CntyQryCensus!$A$53:$BY$96,P$1)","v":4538},{"$f":"VLOOKUP(DropDownList!$B$47,CntyQryCensus!$A$53:$BY$96,Q$1)","v":1369},{"$f":"VLOOKUP(DropDownList!$B$47,CntyQryCensus!$A$53:$BY$96,R$1)","v":1800},{"$f":"VLOOKUP(DropDownList!$B$47,CntyQryCensus!$A$53:$BY$96,S$1)","v":100},{"$f":"VLOOKUP(DropDownList!$B$47,CntyQryCensus!$A$53:$BY$96,T$1)","v":4666},{"$f":"VLOOKUP(DropDownList!$B$47,CntyQryCensus!$A$53:$BY$96,U$1)","v":658},{"$f":"VLOOKUP(DropDownList!$B$47,CntyQryCensus!$A$53:$BY$96,V$1)","v":528},{"$f":"VLOOKUP(DropDownList!$B$47,CntyQryCensus!$A$53:$BY$96,W$1)","v":173},{"$f":"VLOOKUP(DropDownList!$B$47,CntyQryCensus!$A$53:$BY$96,X$1)","v":7017},{"$f":"VLOOKUP(DropDownList!$B$47,CntyQryCensus!$A$53:$BY$96,Y$1)","v":4296},{"$f":"VLOOKUP(DropDownList!$B$47,CntyQryCensus!$A$53:$BY$96,Z$1)","v":2692},{"$f":"VLOOKUP(DropDownList!$B$47,CntyQryCensus!$A$53:$BY$96,AA$1)","v":1241},{"$f":"VLOOKUP(DropDownList!$B$47,CntyQryCensus!$A$53:$BY$96,AB$1)","v":1451},{"$f":"VLOOKUP(DropDownList!$B$47,CntyQryCensus!$A$53:$BY$96,AC$1)","v":7475},{"$f":"VLOOKUP(DropDownList!$B$47,CntyQryCensus!$A$53:$BY$96,AD$1)","v":7333},{"$f":"VLOOKUP(DropDownList!$B$47,CntyQryCensus!$A$53:$BY$96,AE$1)","v":7284},{"$f":"VLOOKUP(DropDownList!$B$47,CntyQryCensus!$A$53:$BY$96,AF$1)","v":3863},{"$f":"VLOOKUP(DropDownList!$B$47,CntyQryCensus!$A$53:$BY$96,AG$1)","v":3421},{"$f":"VLOOKUP(DropDownList!$B$47,CntyQryCensus!$A$53:$BY$96,AH$1)","v":49},{"$f":"VLOOKUP(DropDownList!$B$47,CntyQryCensus!$A$53:$BY$96,AI$1)","v":142},{"$f":"VLOOKUP(DropDownList!$B$47,CntyQryCensus!$A$53:$BY$96,AJ$1)","v":70},{"$f":"VLOOKUP(DropDownList!$B$47,CntyQryCensus!$A$53:$BY$96,AK$1)","v":48},{"$f":"VLOOKUP(DropDownList!$B$47,CntyQryCensus!$A$53:$BY$96,AL$1)","v":94},{"$f":"VLOOKUP(DropDownList!$B$47,CntyQryCensus!$A$53:$BY$96,AM$1)","v":2767},{"$f":"VLOOKUP(DropDownList!$B$47,CntyQryCensus!$A$53:$BY$96,AN$1)","v":73},{"$f":"VLOOKUP(DropDownList!$B$47,CntyQryCensus!$A$53:$BY$96,AO$1)","v":106},{"$f":"VLOOKUP(DropDownList!$B$47,CntyQryCensus!$A$53:$BY$96,AP$1)","v":184},{"$f":"VLOOKUP(DropDownList!$B$47,CntyQryCensus!$A$53:$BY$96,AQ$1)","v":442},{"$f":"VLOOKUP(DropDownList!$B$47,CntyQryCensus!$A$53:$BY$96,AR$1)","v":548},{"$f":"VLOOKUP(DropDownList!$B$47,CntyQryCensus!$A$53:$BY$96,AS$1)","v":660},{"$f":"VLOOKUP(DropDownList!$B$47,CntyQryCensus!$A$53:$BY$96,AT$1)","v":538},{"$f":"VLOOKUP(DropDownList!$B$47,CntyQryCensus!$A$53:$BY$96,AU$1)","v":164},{"$f":"VLOOKUP(DropDownList!$B$47,CntyQryCensus!$A$53:$BY$96,AV$1)","v":52},{"$f":"VLOOKUP(DropDownList!$B$47,CntyQryCensus!$A$53:$BY$96,AW$1)","v":0},{"$f":"VLOOKUP(DropDownList!$B$47,CntyQryCensus!$A$53:$BY$96,AX$1)","v":50630},{"$f":"VLOOKUP(DropDownList!$B$47,CntyQryCensus!$A$53:$BY$96,AY$1)","v":64},{"$f":"VLOOKUP(DropDownList!$B$47,CntyQryCensus!$A$53:$BY$96,AZ$1)","v":1115},{"$f":"VLOOKUP(DropDownList!$B$47,CntyQryCensus!$A$53:$BY$96,BA$1)","v":2096},{"$f":"VLOOKUP(DropDownList!$B$47,CntyQryCensus!$A$53:$BY$96,BB$1)","v":43},{"$f":"VLOOKUP(DropDownList!$B$47,CntyQryCensus!$A$53:$BY$96,BC$1)","v":47},{"$f":"VLOOKUP(DropDownList!$B$47,CntyQryCensus!$A$53:$BY$96,BD$1)","v":138},{"$f":"VLOOKUP(DropDownList!$B$47,CntyQryCensus!$A$53:$BY$96,BE$1)","v":288},{"$f":"VLOOKUP(DropDownList!$B$47,CntyQryCensus!$A$53:$BY$96,BF$1)","v":359},{"$f":"VLOOKUP(DropDownList!$B$47,CntyQryCensus!$A$53:$BY$96,BG$1)","v":523},{"$f":"VLOOKUP(DropDownList!$B$47,CntyQryCensus!$A$53:$BY$96,BH$1)","v":508},{"$f":"VLOOKUP(DropDownList!$B$47,CntyQryCensus!$A$53:$BY$96,BI$1)","v":151},{"$f":"VLOOKUP(DropDownList!$B$47,CntyQryCensus!$A$53:$BY$96,BJ$1)","v":39},{"$f":"VLOOKUP(DropDownList!$B$47,CntyQryCensus!$A$53:$BY$96,BK$1)","v":0},{"$f":"VLOOKUP(DropDownList!$B$47,CntyQryCensus!$A$53:$BY$96,BL$1)","v":56136},{"$f":"VLOOKUP(DropDownList!$B$47,CntyQryCensus!$A$53:$BY$96,BM$1)","v":21012},{"$f":"VLOOKUP(DropDownList!$B$47,CntyQryCensus!$A$53:$BY$96,BN$1)","v":76},{"$f":"VLOOKUP(DropDownList!$B$47,CntyQryCensus!$A$53:$BY$96,BO$1)","v":70},{"$f":"VLOOKUP(DropDownList!$B$47,CntyQryCensus!$A$53:$BY$96,BP$1)","v":9},{"$f":"VLOOKUP(DropDownList!$B$47,CntyQryCensus!$A$53:$BY$96,BQ$1)","v":42},{"$f":"VLOOKUP(DropDownList!$B$47,CntyQryCensus!$A$53:$BY$96,BR$1)","v":36},{"$f":"VLOOKUP(DropDownList!$B$47,CntyQryCensus!$A$53:$BY$96,BS$1)","v":9},{"$f":"VLOOKUP(DropDownList!$B$47,CntyQryCensus!$A$53:$BY$96,BT$1)","v":411},{"$f":"VLOOKUP(DropDownList!$B$47,CntyQryCensus!$A$53:$BY$96,BU$1)","v":259},{"$f":"VLOOKUP(DropDownList!$B$47,CntyQryCensus!$A$53:$BY$96,BV$1)","v":0},{"$f":"VLOOKUP(DropDownList!$B$47,CntyQryCensus!$A$53:$BY$96,BW$1)","v":141},{"$f":"VLOOKUP(DropDownList!$B$47,CntyQryCensus!$A$53:$BY$96,BX$1)","v":131},{"$f":"VLOOKUP(DropDownList!$B$47,CntyQryCensus!$A$53:$BY$96,BY$1)","v":136}]
[]
[]
["Census 2000 DemoProfile Sample Data Table 4   -  DPTab4TownQry"]
["NAME","COUSUB","TotHousingUnits","1UnitDet","1UnitAtt","2Units","3to4Units","5to9Units","10to19Units","20orMoreUnits","MobileHomes","BoatRvVan","SingleFamilyUnits","MultiFamUnits","MobileHomeUnits","YearBuilt99to00","YearBuilt95to98","YearBUilt90to94","YearBuilt80to89","YearBuilt70to79","YearBuilt60to69","YearBuilt40to59","YearBuilt39orEarlier","Rooms1","Rooms2","Rooms3","Rooms4","Rooms5","Rooms6","Rooms7","Rooms8","Rooms9orMore","MedianRooms","OccHU1","YrHHMvdIn99to00","YrHHMvdIn95to98","YrHHMvdIn90to94","YrHHMvdIn80to89","YrHHMvdIn70to79","YrHHMvdIn69orBefore","HeatFuelNatGas","HeatFuelBotGas","HeatFuelElectric","HeatFuelOil","HeatFuelCoal","HeatFuelWood","HeatFuelSolar","HeatFuelOther","HeatFuelNone","LackCompPlumb","LackCompKit","NoTelephone","OccHU","OccPerRm1orLess","OccPerRm1to1_5","OccPerRm1_5orMore","SpecOwnOccUnits","Value<50K","Value50to100K","Value100to150K","Value150to200K","Value200to300K","Value300to500K","Value500Kto1mil","Value1MilorMore","MedianValue","WithMortg","MnthOwnCst<300","MnthOwnCst300to500","MnthOwnCst500to700","MnthOwnCst700to1000","MnthOwnCst1000to1500","MnthOwnCst1500to2000","MnthOwnCst2000orMore","MediMnthOwnCst","NotMrtg","NotMrtgMediMnthOwnCst","OwnCst%HHInc<15","OwnCst%HHInc15to20","OwnCst%HHInc20to25","OwnCst%HHInc25to30","OwnCst%HHInc30to35","OwnCst%HHInc35orMor","NotComputed","SpecRntOccUnits","Rnt<200","Rnt200to300","Rnt300to500","Rnt500to750","Rnt750to1000","Rnt1000to1500","Rnt1500orMore","NoRent","MedianRent","Rnt%HHInc<15","Rnt%HHInc15to20","Rnt%HHInc20to25","Rnt%HHInc25to30","Rnt%HHInc30to35","Rnt%HHInc35orMore","Rnt%NotCompute"]
[{"$f":"VLOOKUP(DropDownList!$B$47,CntyQryCensus!$A$103:$CX$146,A$1)","v":"Barrington"},{"$f":"VLOOKUP(DropDownList!$B$47,CntyQryCensus!$A$103:$CX$146,B$1)","v":"03460"},{"$f":"VLOOKUP(DropDownList!$B$47,CntyQryCensus!$A$103:$CX$146,C$1)","v":3147},{"$f":"VLOOKUP(DropDownList!$B$47,CntyQryCensus!$A$103:$CX$146,D$1)","v":2290},{"$f":"VLOOKUP(DropDownList!$B$47,CntyQryCensus!$A$103:$CX$146,E$1)","v":28},{"$f":"VLOOKUP(DropDownList!$B$47,CntyQryCensus!$A$103:$CX$146,F$1)","v":40},{"$f":"VLOOKUP(DropDownList!$B$47,CntyQryCensus!$A$103:$CX$146,G$1)","v":47},{"$f":"VLOOKUP(DropDownList!$B$47,CntyQryCensus!$A$103:$CX$146,H$1)","v":92},{"$f":"VLOOKUP(DropDownList!$B$47,CntyQryCensus!$A$103:$CX$146,I$1)","v":46},{"$f":"VLOOKUP(DropDownList!$B$47,CntyQryCensus!$A$103:$CX$146,J$1)","v":0},{"$f":"VLOOKUP(DropDownList!$B$47,CntyQryCensus!$A$103:$CX$146,K$1)","v":556},{"$f":"VLOOKUP(DropDownList!$B$47,CntyQryCensus!$A$103:$CX$146,L$1)","v":48},{"$f":"VLOOKUP(DropDownList!$B$47,CntyQryCensus!$A$103:$CX$146,M$1)","v":2290},{"$f":"VLOOKUP(DropDownList!$B$47,CntyQryCensus!$A$103:$CX$146,N$1)","v":253},{"$f":"VLOOKUP(DropDownList!$B$47,CntyQryCensus!$A$103:$CX$146,O$1)","v":604},{"$f":"VLOOKUP(DropDownList!$B$47,CntyQryCensus!$A$103:$CX$146,P$1)","v":68},{"$f":"VLOOKUP(DropDownList!$B$47,CntyQryCensus!$A$103:$CX$146,Q$1)","v":329},{"$f":"VLOOKUP(DropDownList!$B$47,CntyQryCensus!$A$103:$CX$146,R$1)","v":229},{"$f":"VLOOKUP(DropDownList!$B$47,CntyQryCensus!$A$103:$CX$146,S$1)","v":844},{"$f":"VLOOKUP(DropDownList!$B$47,CntyQryCensus!$A$103:$CX$146,T$1)","v":813},{"$f":"VLOOKUP(DropDownList!$B$47,CntyQryCensus!$A$103:$CX$146,U$1)","v":282},{"$f":"VLOOKUP(DropDownList!$B$47,CntyQryCensus!$A$103:$CX$146,V$1)","v":284},{"$f":"VLOOKUP(DropDownList!$B$47,CntyQryCensus!$A$103:$CX$146,W$1)","v":298},{"$f":"VLOOKUP(DropDownList!$B$47,CntyQryCensus!$A$103:$CX$146,X$1)","v":41},{"$f":"VLOOKUP(DropDownList!$B$47,CntyQryCensus!$A$103:$CX$146,Y$1)","v":127},{"$f":"VLOOKUP(DropDownList!$B$47,CntyQryCensus!$A$103:$CX$146,Z$1)","v":166},{"$f":"VLOOKUP(DropDownList!$B$47,CntyQryCensus!$A$103:$CX$146,AA$1)","v":642},{"$f":"VLOOKUP(DropDownList!$B$47,CntyQryCensus!$A$103:$CX$146,AB$1)","v":662},{"$f":"VLOOKUP(DropDownList!$B$47,CntyQryCensus!$A$103:$CX$146,AC$1)","v":605},{"$f":"VLOOKUP(DropDownList!$B$47,CntyQryCensus!$A$103:$CX$146,AD$1)","v":447},{"$f":"VLOOKUP(DropDownList!$B$47,CntyQryCensus!$A$103:$CX$146,AE$1)","v":268},{"$f":"VLOOKUP(DropDownList!$B$47,CntyQryCensus!$A$103:$CX$146,AF$1)","v":189},{"$f":"VLOOKUP(DropDownList!$B$47,CntyQryCensus!$A$103:$CX$146,AG$1)","v":5.4},{"$f":"VLOOKUP(DropDownList!$B$47,CntyQryCensus!$A$103:$CX$146,AH$1)","v":2756},{"$f":"VLOOKUP(DropDownList!$B$47,CntyQryCensus!$A$103:$CX$146,AI$1)","v":435},{"$f":"VLOOKUP(DropDownList!$B$47,CntyQryCensus!$A$103:$CX$146,AJ$1)","v":867},{"$f":"VLOOKUP(DropDownList!$B$47,CntyQryCensus!$A$103:$CX$146,AK$1)","v":457},{"$f":"VLOOKUP(DropDownList!$B$47,CntyQryCensus!$A$103:$CX$146,AL$1)","v":571},{"$f":"VLOOKUP(DropDownList!$B$47,CntyQryCensus!$A$103:$CX$146,AM$1)","v":319},{"$f":"VLOOKUP(DropDownList!$B$47,CntyQryCensus!$A$103:$CX$146,AN$1)","v":107},{"$f":"VLOOKUP(DropDownList!$B$47,CntyQryCensus!$A$103:$CX$146,AO$1)","v":13},{"$f":"VLOOKUP(DropDownList!$B$47,CntyQryCensus!$A$103:$CX$146,AP$1)","v":588},{"$f":"VLOOKUP(DropDownList!$B$47,CntyQryCensus!$A$103:$CX$146,AQ$1)","v":102},{"$f":"VLOOKUP(DropDownList!$B$47,CntyQryCensus!$A$103:$CX$146,AR$1)","v":1872},{"$f":"VLOOKUP(DropDownList!$B$47,CntyQryCensus!$A$103:$CX$146,AS$1)","v":8},{"$f":"VLOOKUP(DropDownList!$B$47,CntyQryCensus!$A$103:$CX$146,AT$1)","v":139},{"$f":"VLOOKUP(DropDownList!$B$47,CntyQryCensus!$A$103:$CX$146,AU$1)","v":0},{"$f":"VLOOKUP(DropDownList!$B$47,CntyQryCensus!$A$103:$CX$146,AV$1)","v":9},{"$f":"VLOOKUP(DropDownList!$B$47,CntyQryCensus!$A$103:$CX$146,AW$1)","v":25},{"$f":"VLOOKUP(DropDownList!$B$47,CntyQryCensus!$A$103:$CX$146,AX$1)","v":45},{"$f":"VLOOKUP(DropDownList!$B$47,CntyQryCensus!$A$103:$CX$146,AY$1)","v":29},{"$f":"VLOOKUP(DropDownList!$B$47,CntyQryCensus!$A$103:$CX$146,AZ$1)","v":17},{"$f":"VLOOKUP(DropDownList!$B$47,CntyQryCensus!$A$103:$CX$146,BA$1)","v":2756},{"$f":"VLOOKUP(DropDownList!$B$47,CntyQryCensus!$A$103:$CX$146,BB$1)","v":2727},{"$f":"VLOOKUP(DropDownList!$B$47,CntyQryCensus!$A$103:$CX$146,BC$1)","v":29},{"$f":"VLOOKUP(DropDownList!$B$47,CntyQryCensus!$A$103:$CX$146,BD$1)","v":0},{"$f":"VLOOKUP(DropDownList!$B$47,CntyQryCensus!$A$103:$CX$146,BE$1)","v":1667},{"$f":"VLOOKUP(DropDownList!$B$47,CntyQryCensus!$A$103:$CX$146,BF$1)","v":38},{"$f":"VLOOKUP(DropDownList!$B$47,CntyQryCensus!$A$103:$CX$146,BG$1)","v":282},{"$f":"VLOOKUP(DropDownList!$B$47,CntyQryCensus!$A$103:$CX$146,BH$1)","v":728},{"$f":"VLOOKUP(DropDownList!$B$47,CntyQryCensus!$A$103:$CX$146,BI$1)","v":500},{"$f":"VLOOKUP(DropDownList!$B$47,CntyQryCensus!$A$103:$CX$146,BJ$1)","v":119},{"$f":"VLOOKUP(DropDownList!$B$47,CntyQryCensus!$A$103:$CX$146,BK$1)","v":0},{"$f":"VLOOKUP(DropDownList!$B$47,CntyQryCensus!$A$103:$CX$146,BL$1)","v":0},{"$f":"VLOOKUP(DropDownList!$B$47,CntyQryCensus!$A$103:$CX$146,BM$1)","v":0},{"$f":"VLOOKUP(DropDownList!$B$47,CntyQryCensus!$A$103:$CX$146,BN$1)","v":136400},{"$f":"VLOOKUP(DropDownList!$B$47,CntyQryCensus!$A$103:$CX$146,BO$1)","v":1345},{"$f":"VLOOKUP(DropDownList!$B$47,CntyQryCensus!$A$103:$CX$146,BP$1)","v":0},{"$f":"VLOOKUP(DropDownList!$B$47,CntyQryCensus!$A$103:$CX$146,BQ$1)","v":14},{"$f":"VLOOKUP(DropDownList!$B$47,CntyQryCensus!$A$103:$CX$146,BR$1)","v":88},{"$f":"VLOOKUP(DropDownList!$B$47,CntyQryCensus!$A$103:$CX$146,BS$1)","v":339},{"$f":"VLOOKUP(DropDownList!$B$47,CntyQryCensus!$A$103:$CX$146,BT$1)","v":626},{"$f":"VLOOKUP(DropDownList!$B$47,CntyQryCensus!$A$103:$CX$146,BU$1)","v":218},{"$f":"VLOOKUP(DropDownList!$B$47,CntyQryCensus!$A$103:$CX$146,BV$1)","v":60},{"$f":"VLOOKUP(DropDownList!$B$47,CntyQryCensus!$A$103:$CX$146,BW$1)","v":1195},{"$f":"VLOOKUP(DropDownList!$B$47,CntyQryCensus!$A$103:$CX$146,BX$1)","v":322},{"$f":"VLOOKUP(DropDownList!$B$47,CntyQryCensus!$A$103:$CX$146,BY$1)","v":433},{"$f":"VLOOKUP(DropDownList!$B$47,CntyQryCensus!$A$103:$CX$146,BZ$1)","v":452},{"$f":"VLOOKUP(DropDownList!$B$47,CntyQryCensus!$A$103:$CX$146,CA$1)","v":292},{"$f":"VLOOKUP(DropDownList!$B$47,CntyQryCensus!$A$103:$CX$146,CB$1)","v":318},{"$f":"VLOOKUP(DropDownList!$B$47,CntyQryCensus!$A$103:$CX$146,CC$1)","v":223},{"$f":"VLOOKUP(DropDownList!$B$47,CntyQryCensus!$A$103:$CX$146,CD$1)","v":92},{"$f":"VLOOKUP(DropDownList!$B$47,CntyQryCensus!$A$103:$CX$146,CE$1)","v":275},{"$f":"VLOOKUP(DropDownList!$B$47,CntyQryCensus!$A$103:$CX$146,CF$1)","v":15},{"$f":"VLOOKUP(DropDownList!$B$47,CntyQryCensus!$A$103:$CX$146,CG$1)","v":411},{"$f":"VLOOKUP(DropDownList!$B$47,CntyQryCensus!$A$103:$CX$146,CH$1)","v":18},{"$f":"VLOOKUP(DropDownList!$B$47,CntyQryCensus!$A$103:$CX$146,CI$1)","v":0},{"$f":"VLOOKUP(DropDownList!$B$47,CntyQryCensus!$A$103:$CX$146,CJ$1)","v":46},{"$f":"VLOOKUP(DropDownList!$B$47,CntyQryCensus!$A$103:$CX$146,CK$1)","v":188},{"$f":"VLOOKUP(DropDownList!$B$47,CntyQryCensus!$A$103:$CX$146,CL$1)","v":84},{"$f":"VLOOKUP(DropDownList!$B$47,CntyQryCensus!$A$103:$CX$146,CM$1)","v":38},{"$f":"VLOOKUP(DropDownList!$B$47,CntyQryCensus!$A$103:$CX$146,CN$1)","v":0},{"$f":"VLOOKUP(DropDownList!$B$47,CntyQryCensus!$A$103:$CX$146,CO$1)","v":37},{"$f":"VLOOKUP(DropDownList!$B$47,CntyQryCensus!$A$103:$CX$146,CP$1)","v":674},{"$f":"VLOOKUP(DropDownList!$B$47,CntyQryCensus!$A$103:$CX$146,CQ$1)","v":88},{"$f":"VLOOKUP(DropDownList!$B$47,CntyQryCensus!$A$103:$CX$146,CR$1)","v":37},{"$f":"VLOOKUP(DropDownList!$B$47,CntyQryCensus!$A$103:$CX$146,CS$1)","v":41},{"$f":"VLOOKUP(DropDownList!$B$47,CntyQryCensus!$A$103:$CX$146,CT$1)","v":34},{"$f":"VLOOKUP(DropDownList!$B$47,CntyQryCensus!$A$103:$CX$146,CU$1)","v":39},{"$f":"VLOOKUP(DropDownList!$B$47,CntyQryCensus!$A$103:$CX$146,CV$1)","v":127},{"$f":"VLOOKUP(DropDownList!$B$47,CntyQryCensus!$A$103:$CX$146,CW$1)","v":45}]
[]
[]
["Census 2000 SummaryFile3 Sample Data  -  SF3TownQry1SocialChar"]
["TOWN_NAME","LOGRECNO","COUSUB","P01TotalPopulation","P02SampleCountOfPop","P03Pop100pctCount","P05UrbanPopulation","P05RuralPopulation","P06WhiteAlone","P06BlackOrAfAm","P06AmIndAlone","P06AsianAlone","P06HawaiianOrPI","P06OtherRace","P06TwoPlusRaces","P07NotHispanicOrLatino","P07HispanicOrLatino","P08MalePop","P08FemalePop","P09PopInHouseholds","P09PopInFamHH","P09PopInNonFamHH","P09PopInGroupQtr","P13TotalHH","P13FamilyHH","P13FamHHolder15to24yrs","P13FamHHolder25to34yrs","P13FamHHolder35to44yrs","P13FamHHolder45to54yrs","P13FamHHolder55to64yrs","P13FamHHolder65to74yrs","P13FamHHolder75to84yrs","P13FamHHolder85yrsOver","P13NonFamilyHH","P13NonFamHHolder15to24yrs","P13NonFamHHolder25to34yrs","P13NonFamHHolder35to44yrs","P13NonFamHHolder45to54yrs","P13NonFamHHolder55to64yrs","P13NonFamHHolder65to74yrs","P13NonFamHHolder75to84yrs","P13NonFamHHolder85yrsOver","P18Pop15yrsOver","P18MaritalStatNeverMarried","P18MaritalStatNowMarried","P18MaritalStatSeparated","P18MaritalStatWidowed","P18MaritalStatWidowFemale","P18MaritalStatDivorced","P18MaritalStatDivorcedFemale","P21NativeBornPop","P21NatPopBornInState","P21NatPopBornOtherState","P021005","P021006","P021007","P021008","P21NatPopBornOutUS","P21ForeignBornPop","P021014","P021015","P24Pop5YrsPlus","P24ResSameHouseIn95","P24ResDiffHouseIn95","P24ResDiffHouseInUSIn95","P24ResDiffHouseSameCountyIn95","P24ResDiffHouseDiffCountyIn95","P24ResDiffHouseDiffCntySamStIn95","P24ResDiffHouseDiffCntyDifStIn95","P24ResDiffHouseDiffCntyNEStIn95","P24ResDiffHouseDiffCntyMWStIn95","P24ResDiffHouseDiffCntySoStIn95","P24ResDiffHouseDiffCntyWstStIn95","P24ResDiffInPR","P24ResDiffElsewhereIn95","P26Workers16yrsOver","P26WorkedInState","P26WorkedInCnty","P26WorkedOutsideCnty","P26WorkedOutsideState","P30Workers16Over","P30TranspToWrkCar","P30TranspToWrkPublic","P30TranspToWrkOther","P30WrkdAtHome","P31WrkrsNotWrkAtHom","P31TravTim<5min","P31TravTim5to9Min","P31TravTim10to14Min","P31TravTim15to19Min","P31TravTim20to24Min","P31TravTim25to29Min","P31TravTim30to34Min","P31TravTim35to39Min","P31TravTim40to44Min","P31TravTim45to59Min","P31TravTim60to89Min","P31TravTim90MinMore","P31WorkAtHome","P36SchEnrlPop3yrOver","P36NurserSchEnrl","P36KinderSchEnrl","P36ElemSchEnrl","P36HighSchEnrl","P36CollGradSchEnrl","P37Pop25yrsOver","P37EduAtain<9grd","P37EduAtainHSnoDip","P37EduAtainHSgrad","P37EduAtainCollNoDeg","P37EduAtainAssocDeg","P37EduAtainBachDeg","P37EduAtainGradProfDeg","P42NIPop5to15","P42NIPop5to15wDisabl","P42NIPop16to20","P42NIPop16to20wDisab","P42NIPop16to20wDisEmp","P42NIPop16to21NoDis","P42NIPop16to21NoDisEmpl","P42NIPop21to64","P42NIPop21to64wDis","P42NIPop21to64wDisEmp","P42NIPop21to64NoDis","P42NIPop21to64NoDisEmp","P42NIPop65to74","P42NIPop65to74wDis","P42NIPop75Over","P42NIPop75OverwDis","P43Pop16YrsOver","P43Pop16OvrInLaborForce","P43Pop16OvrCivlLabFrc","P43Pop16OvrCivlLbrFrcEmp","P48Families","P48MarriedFam","P48MarrFamNoWorkers","P48MarrFam1Worker","P48MarrFam2Worker","P48MarrFamHusbWifeWorked","P48MarrFamOther","P48MarrFam3PlusWorker","P48MarrFam3WorkHsbWif","P48MarrFam3PlsWrkOther","P48OtherFam","P48MaleHHNoWif","P48MaleHHNoWifNoWorker","P48MaleHHNoWif1Worker","P48MaleHHNoWif2Worker","P48MaleHHNoWif3PlusWorker","P48FemaleHHNoHsb","P48FemaleHHNoHsbNoWorker","P48FemaleHHNoHsb1Worker","P48FemaleHHNoHsb2Worker","P48FemaleHHNoHsb3Worker","P49EmpCivPop16YrOver","P49IndustAgricult","P49IndustConst","P49IndustMnftg","P49IndustWhlslTrd","P49IndustRtlTrd","P49IndustTrspWrhsUtlt","P49IndustInfrm","P49IndustFinInsRE","P49IndustPrfsScntfMngmt","P49IndustEduHlthSocSrv","P49IndustArtsEntRec","P49IndustOthrSrvc","P49IndustPubAdm","P50OccupMngmtProfs","P50OccupService","P50OccupSalesOff","P50OccupFarmFishForest","P50OccupConstExtrctMaint","P50OccupPrdctTrnspMatMv"]
[{"$f":"VLOOKUP(DropDownList!$B$47,CntyQryCensus!$A$156:$FR$198,A$1)","v":"Barrington"},{"$f":"VLOOKUP(DropDownList!$B$47,CntyQryCensus!$A$156:$FR$198,B$1)","v":"0003823"},{"$f":"VLOOKUP(DropDownList!$B$47,CntyQryCensus!$A$156:$FR$198,C$1)","v":"03460"},{"$f":"VLOOKUP(DropDownList!$B$47,CntyQryCensus!$A$156:$FR$198,D$1)","v":7475},{"$f":"VLOOKUP(DropDownList!$B$47,CntyQryCensus!$A$156:$FR$198,E$1)","v":889},{"$f":"VLOOKUP(DropDownList!$B$47,CntyQryCensus!$A$156:$FR$198,F$1)","v":7475},{"$f":"VLOOKUP(DropDownList!$B$47,CntyQryCensus!$A$156:$FR$198,G$1)","v":0},{"$f":"VLOOKUP(DropDownList!$B$47,CntyQryCensus!$A$156:$FR$198,H$1)","v":7475},{"$f":"VLOOKUP(DropDownList!$B$47,CntyQryCensus!$A$156:$FR$198,I$1)","v":7328},{"$f":"VLOOKUP(DropDownList!$B$47,CntyQryCensus!$A$156:$FR$198,J$1)","v":78},{"$f":"VLOOKUP(DropDownList!$B$47,CntyQryCensus!$A$156:$FR$198,K$1)","v":0},{"$f":"VLOOKUP(DropDownList!$B$47,CntyQryCensus!$A$156:$FR$198,L$1)","v":40},{"$f":"VLOOKUP(DropDownList!$B$47,CntyQryCensus!$A$156:$FR$198,M$1)","v":0},{"$f":"VLOOKUP(DropDownList!$B$47,CntyQryCensus!$A$156:$FR$198,N$1)","v":18},{"$f":"VLOOKUP(DropDownList!$B$47,CntyQryCensus!$A$156:$FR$198,O$1)","v":11},{"$f":"VLOOKUP(DropDownList!$B$47,CntyQryCensus!$A$156:$FR$198,P$1)","v":7405},{"$f":"VLOOKUP(DropDownList!$B$47,CntyQryCensus!$A$156:$FR$198,Q$1)","v":70},{"$f":"VLOOKUP(DropDownList!$B$47,CntyQryCensus!$A$156:$FR$198,R$1)","v":3821},{"$f":"VLOOKUP(DropDownList!$B$47,CntyQryCensus!$A$156:$FR$198,S$1)","v":3654},{"$f":"VLOOKUP(DropDownList!$B$47,CntyQryCensus!$A$156:$FR$198,T$1)","v":7467},{"$f":"VLOOKUP(DropDownList!$B$47,CntyQryCensus!$A$156:$FR$198,U$1)","v":6552},{"$f":"VLOOKUP(DropDownList!$B$47,CntyQryCensus!$A$156:$FR$198,V$1)","v":915},{"$f":"VLOOKUP(DropDownList!$B$47,CntyQryCensus!$A$156:$FR$198,W$1)","v":8},{"$f":"VLOOKUP(DropDownList!$B$47,CntyQryCensus!$A$156:$FR$198,X$1)","v":2767},{"$f":"VLOOKUP(DropDownList!$B$47,CntyQryCensus!$A$156:$FR$198,Y$1)","v":2096},{"$f":"VLOOKUP(DropDownList!$B$47,CntyQryCensus!$A$156:$FR$198,Z$1)","v":29},{"$f":"VLOOKUP(DropDownList!$B$47,CntyQryCensus!$A$156:$FR$198,AA$1)","v":325},{"$f":"VLOOKUP(DropDownList!$B$47,CntyQryCensus!$A$156:$FR$198,AB$1)","v":705},{"$f":"VLOOKUP(DropDownList!$B$47,CntyQryCensus!$A$156:$FR$198,AC$1)","v":513},{"$f":"VLOOKUP(DropDownList!$B$47,CntyQryCensus!$A$156:$FR$198,AD$1)","v":289},{"$f":"VLOOKUP(DropDownList!$B$47,CntyQryCensus!$A$156:$FR$198,AE$1)","v":176},{"$f":"VLOOKUP(DropDownList!$B$47,CntyQryCensus!$A$156:$FR$198,AF$1)","v":53},{"$f":"VLOOKUP(DropDownList!$B$47,CntyQryCensus!$A$156:$FR$198,AG$1)","v":6},{"$f":"VLOOKUP(DropDownList!$B$47,CntyQryCensus!$A$156:$FR$198,AH$1)","v":671},{"$f":"VLOOKUP(DropDownList!$B$47,CntyQryCensus!$A$156:$FR$198,AI$1)","v":14},{"$f":"VLOOKUP(DropDownList!$B$47,CntyQryCensus!$A$156:$FR$198,AJ$1)","v":118},{"$f":"VLOOKUP(DropDownList!$B$47,CntyQryCensus!$A$156:$FR$198,AK$1)","v":144},{"$f":"VLOOKUP(DropDownList!$B$47,CntyQryCensus!$A$156:$FR$198,AL$1)","v":166},{"$f":"VLOOKUP(DropDownList!$B$47,CntyQryCensus!$A$156:$FR$198,AM$1)","v":121},{"$f":"VLOOKUP(DropDownList!$B$47,CntyQryCensus!$A$156:$FR$198,AN$1)","v":78},{"$f":"VLOOKUP(DropDownList!$B$47,CntyQryCensus!$A$156:$FR$198,AO$1)","v":30},{"$f":"VLOOKUP(DropDownList!$B$47,CntyQryCensus!$A$156:$FR$198,AP$1)","v":0},{"$f":"VLOOKUP(DropDownList!$B$47,CntyQryCensus!$A$156:$FR$198,AQ$1)","v":5757},{"$f":"VLOOKUP(DropDownList!$B$47,CntyQryCensus!$A$156:$FR$198,AR$1)","v":1261},{"$f":"VLOOKUP(DropDownList!$B$47,CntyQryCensus!$A$156:$FR$198,AS$1)","v":3586},{"$f":"VLOOKUP(DropDownList!$B$47,CntyQryCensus!$A$156:$FR$198,AT$1)","v":21},{"$f":"VLOOKUP(DropDownList!$B$47,CntyQryCensus!$A$156:$FR$198,AU$1)","v":263},{"$f":"VLOOKUP(DropDownList!$B$47,CntyQryCensus!$A$156:$FR$198,AV$1)","v":211},{"$f":"VLOOKUP(DropDownList!$B$47,CntyQryCensus!$A$156:$FR$198,AW$1)","v":626},{"$f":"VLOOKUP(DropDownList!$B$47,CntyQryCensus!$A$156:$FR$198,AX$1)","v":284},{"$f":"VLOOKUP(DropDownList!$B$47,CntyQryCensus!$A$156:$FR$198,AY$1)","v":7333},{"$f":"VLOOKUP(DropDownList!$B$47,CntyQryCensus!$A$156:$FR$198,AZ$1)","v":3863},{"$f":"VLOOKUP(DropDownList!$B$47,CntyQryCensus!$A$156:$FR$198,BA$1)","v":3421},{"$f":"VLOOKUP(DropDownList!$B$47,CntyQryCensus!$A$156:$FR$198,BB$1)","v":2687},{"$f":"VLOOKUP(DropDownList!$B$47,CntyQryCensus!$A$156:$FR$198,BC$1)","v":193},{"$f":"VLOOKUP(DropDownList!$B$47,CntyQryCensus!$A$156:$FR$198,BD$1)","v":283},{"$f":"VLOOKUP(DropDownList!$B$47,CntyQryCensus!$A$156:$FR$198,BE$1)","v":258},{"$f":"VLOOKUP(DropDownList!$B$47,CntyQryCensus!$A$156:$FR$198,BF$1)","v":49},{"$f":"VLOOKUP(DropDownList!$B$47,CntyQryCensus!$A$156:$FR$198,BG$1)","v":142},{"$f":"VLOOKUP(DropDownList!$B$47,CntyQryCensus!$A$156:$FR$198,BH$1)","v":48},{"$f":"VLOOKUP(DropDownList!$B$47,CntyQryCensus!$A$156:$FR$198,BI$1)","v":94},{"$f":"VLOOKUP(DropDownList!$B$47,CntyQryCensus!$A$156:$FR$198,BJ$1)","v":7017},{"$f":"VLOOKUP(DropDownList!$B$47,CntyQryCensus!$A$156:$FR$198,BK$1)","v":4296},{"$f":"VLOOKUP(DropDownList!$B$47,CntyQryCensus!$A$156:$FR$198,BL$1)","v":2721},{"$f":"VLOOKUP(DropDownList!$B$47,CntyQryCensus!$A$156:$FR$198,BM$1)","v":2692},{"$f":"VLOOKUP(DropDownList!$B$47,CntyQryCensus!$A$156:$FR$198,BN$1)","v":1241},{"$f":"VLOOKUP(DropDownList!$B$47,CntyQryCensus!$A$156:$FR$198,BO$1)","v":1451},{"$f":"VLOOKUP(DropDownList!$B$47,CntyQryCensus!$A$156:$FR$198,BP$1)","v":631},{"$f":"VLOOKUP(DropDownList!$B$47,CntyQryCensus!$A$156:$FR$198,BQ$1)","v":820},{"$f":"VLOOKUP(DropDownList!$B$47,CntyQryCensus!$A$156:$FR$198,BR$1)","v":463},{"$f":"VLOOKUP(DropDownList!$B$47,CntyQryCensus!$A$156:$FR$198,BS$1)","v":59},{"$f":"VLOOKUP(DropDownList!$B$47,CntyQryCensus!$A$156:$FR$198,BT$1)","v":158},{"$f":"VLOOKUP(DropDownList!$B$47,CntyQryCensus!$A$156:$FR$198,BU$1)","v":140},{"$f":"VLOOKUP(DropDownList!$B$47,CntyQryCensus!$A$156:$FR$198,BV$1)","v":0},{"$f":"VLOOKUP(DropDownList!$B$47,CntyQryCensus!$A$156:$FR$198,BW$1)","v":29},{"$f":"VLOOKUP(DropDownList!$B$47,CntyQryCensus!$A$156:$FR$198,BX$1)","v":4192},{"$f":"VLOOKUP(DropDownList!$B$47,CntyQryCensus!$A$156:$FR$198,BY$1)","v":3779},{"$f":"VLOOKUP(DropDownList!$B$47,CntyQryCensus!$A$156:$FR$198,BZ$1)","v":2361},{"$f":"VLOOKUP(DropDownList!$B$47,CntyQryCensus!$A$156:$FR$198,CA$1)","v":1418},{"$f":"VLOOKUP(DropDownList!$B$47,CntyQryCensus!$A$156:$FR$198,CB$1)","v":413},{"$f":"VLOOKUP(DropDownList!$B$47,CntyQryCensus!$A$156:$FR$198,CC$1)","v":4192},{"$f":"VLOOKUP(DropDownList!$B$47,CntyQryCensus!$A$156:$FR$198,CD$1)","v":3912},{"$f":"VLOOKUP(DropDownList!$B$47,CntyQryCensus!$A$156:$FR$198,CE$1)","v":42},{"$f":"VLOOKUP(DropDownList!$B$47,CntyQryCensus!$A$156:$FR$198,CF$1)","v":359},{"$f":"VLOOKUP(DropDownList!$B$47,CntyQryCensus!$A$156:$FR$198,CG$1)","v":194},{"$f":"VLOOKUP(DropDownList!$B$47,CntyQryCensus!$A$156:$FR$198,CH$1)","v":3998},{"$f":"VLOOKUP(DropDownList!$B$47,CntyQryCensus!$A$156:$FR$198,CI$1)","v":34},{"$f":"VLOOKUP(DropDownList!$B$47,CntyQryCensus!$A$156:$FR$198,CJ$1)","v":238},{"$f":"VLOOKUP(DropDownList!$B$47,CntyQryCensus!$A$156:$FR$198,CK$1)","v":390},{"$f":"VLOOKUP(DropDownList!$B$47,CntyQryCensus!$A$156:$FR$198,CL$1)","v":613},{"$f":"VLOOKUP(DropDownList!$B$47,CntyQryCensus!$A$156:$FR$198,CM$1)","v":781},{"$f":"VLOOKUP(DropDownList!$B$47,CntyQryCensus!$A$156:$FR$198,CN$1)","v":379},{"$f":"VLOOKUP(DropDownList!$B$47,CntyQryCensus!$A$156:$FR$198,CO$1)","v":624},{"$f":"VLOOKUP(DropDownList!$B$47,CntyQryCensus!$A$156:$FR$198,CP$1)","v":140},{"$f":"VLOOKUP(DropDownList!$B$47,CntyQryCensus!$A$156:$FR$198,CQ$1)","v":178},{"$f":"VLOOKUP(DropDownList!$B$47,CntyQryCensus!$A$156:$FR$198,CR$1)","v":299},{"$f":"VLOOKUP(DropDownList!$B$47,CntyQryCensus!$A$156:$FR$198,CS$1)","v":243},{"$f":"VLOOKUP(DropDownList!$B$47,CntyQryCensus!$A$156:$FR$198,CT$1)","v":79},{"$f":"VLOOKUP(DropDownList!$B$47,CntyQryCensus!$A$156:$FR$198,CU$1)","v":194},{"$f":"VLOOKUP(DropDownList!$B$47,CntyQryCensus!$A$156:$FR$198,CV$1)","v":7155},{"$f":"VLOOKUP(DropDownList!$B$47,CntyQryCensus!$A$156:$FR$198,CW$1)","v":64},{"$f":"VLOOKUP(DropDownList!$B$47,CntyQryCensus!$A$156:$FR$198,CX$1)","v":152},{"$f":"VLOOKUP(DropDownList!$B$47,CntyQryCensus!$A$156:$FR$198,CY$1)","v":1000},{"$f":"VLOOKUP(DropDownList!$B$47,CntyQryCensus!$A$156:$FR$198,CZ$1)","v":447},{"$f":"VLOOKUP(DropDownList!$B$47,CntyQryCensus!$A$156:$FR$198,DA$1)","v":421},{"$f":"VLOOKUP(DropDownList!$B$47,CntyQryCensus!$A$156:$FR$198,DB$1)","v":4986},{"$f":"VLOOKUP(DropDownList!$B$47,CntyQryCensus!$A$156:$FR$198,DC$1)","v":92},{"$f":"VLOOKUP(DropDownList!$B$47,CntyQryCensus!$A$156:$FR$198,DD$1)","v":356},{"$f":"VLOOKUP(DropDownList!$B$47,CntyQryCensus!$A$156:$FR$198,DE$1)","v":1458},{"$f":"VLOOKUP(DropDownList!$B$47,CntyQryCensus!$A$156:$FR$198,DF$1)","v":1124},{"$f":"VLOOKUP(DropDownList!$B$47,CntyQryCensus!$A$156:$FR$198,DG$1)","v":587},{"$f":"VLOOKUP(DropDownList!$B$47,CntyQryCensus!$A$156:$FR$198,DH$1)","v":983},{"$f":"VLOOKUP(DropDownList!$B$47,CntyQryCensus!$A$156:$FR$198,DI$1)","v":386},{"$f":"VLOOKUP(DropDownList!$B$47,CntyQryCensus!$A$156:$FR$198,DJ$1)","v":1377},{"$f":"VLOOKUP(DropDownList!$B$47,CntyQryCensus!$A$156:$FR$198,DK$1)","v":64},{"$f":"VLOOKUP(DropDownList!$B$47,CntyQryCensus!$A$156:$FR$198,DL$1)","v":423},{"$f":"VLOOKUP(DropDownList!$B$47,CntyQryCensus!$A$156:$FR$198,DM$1)","v":36},{"$f":"VLOOKUP(DropDownList!$B$47,CntyQryCensus!$A$156:$FR$198,DN$1)","v":18},{"$f":"VLOOKUP(DropDownList!$B$47,CntyQryCensus!$A$156:$FR$198,DO$1)","v":387},{"$f":"VLOOKUP(DropDownList!$B$47,CntyQryCensus!$A$156:$FR$198,DP$1)","v":226},{"$f":"VLOOKUP(DropDownList!$B$47,CntyQryCensus!$A$156:$FR$198,DQ$1)","v":4666},{"$f":"VLOOKUP(DropDownList!$B$47,CntyQryCensus!$A$156:$FR$198,DR$1)","v":658},{"$f":"VLOOKUP(DropDownList!$B$47,CntyQryCensus!$A$156:$FR$198,DS$1)","v":420},{"$f":"VLOOKUP(DropDownList!$B$47,CntyQryCensus!$A$156:$FR$198,DT$1)","v":4008},{"$f":"VLOOKUP(DropDownList!$B$47,CntyQryCensus!$A$156:$FR$198,DU$1)","v":3455},{"$f":"VLOOKUP(DropDownList!$B$47,CntyQryCensus!$A$156:$FR$198,DV$1)","v":368},{"$f":"VLOOKUP(DropDownList!$B$47,CntyQryCensus!$A$156:$FR$198,DW$1)","v":96},{"$f":"VLOOKUP(DropDownList!$B$47,CntyQryCensus!$A$156:$FR$198,DX$1)","v":160},{"$f":"VLOOKUP(DropDownList!$B$47,CntyQryCensus!$A$156:$FR$198,DY$1)","v":77},{"$f":"VLOOKUP(DropDownList!$B$47,CntyQryCensus!$A$156:$FR$198,DZ$1)","v":5640},{"$f":"VLOOKUP(DropDownList!$B$47,CntyQryCensus!$A$156:$FR$198,EA$1)","v":4314},{"$f":"VLOOKUP(DropDownList!$B$47,CntyQryCensus!$A$156:$FR$198,EB$1)","v":4299},{"$f":"VLOOKUP(DropDownList!$B$47,CntyQryCensus!$A$156:$FR$198,EC$1)","v":4221},{"$f":"VLOOKUP(DropDownList!$B$47,CntyQryCensus!$A$156:$FR$198,ED$1)","v":2096},{"$f":"VLOOKUP(DropDownList!$B$47,CntyQryCensus!$A$156:$FR$198,EE$1)","v":1727},{"$f":"VLOOKUP(DropDownList!$B$47,CntyQryCensus!$A$156:$FR$198,EF$1)","v":125},{"$f":"VLOOKUP(DropDownList!$B$47,CntyQryCensus!$A$156:$FR$198,EG$1)","v":268},{"$f":"VLOOKUP(DropDownList!$B$47,CntyQryCensus!$A$156:$FR$198,EH$1)","v":1036},{"$f":"VLOOKUP(DropDownList!$B$47,CntyQryCensus!$A$156:$FR$198,EI$1)","v":994},{"$f":"VLOOKUP(DropDownList!$B$47,CntyQryCensus!$A$156:$FR$198,EJ$1)","v":42},{"$f":"VLOOKUP(DropDownList!$B$47,CntyQryCensus!$A$156:$FR$198,EK$1)","v":298},{"$f":"VLOOKUP(DropDownList!$B$47,CntyQryCensus!$A$156:$FR$198,EL$1)","v":298},{"$f":"VLOOKUP(DropDownList!$B$47,CntyQryCensus!$A$156:$FR$198,EM$1)","v":0},{"$f":"VLOOKUP(DropDownList!$B$47,CntyQryCensus!$A$156:$FR$198,EN$1)","v":369},{"$f":"VLOOKUP(DropDownList!$B$47,CntyQryCensus!$A$156:$FR$198,EO$1)","v":159},{"$f":"VLOOKUP(DropDownList!$B$47,CntyQryCensus!$A$156:$FR$198,EP$1)","v":0},{"$f":"VLOOKUP(DropDownList!$B$47,CntyQryCensus!$A$156:$FR$198,EQ$1)","v":102},{"$f":"VLOOKUP(DropDownList!$B$47,CntyQryCensus!$A$156:$FR$198,ER$1)","v":21},{"$f":"VLOOKUP(DropDownList!$B$47,CntyQryCensus!$A$156:$FR$198,ES$1)","v":36},{"$f":"VLOOKUP(DropDownList!$B$47,CntyQryCensus!$A$156:$FR$198,ET$1)","v":210},{"$f":"VLOOKUP(DropDownList!$B$47,CntyQryCensus!$A$156:$FR$198,EU$1)","v":23},{"$f":"VLOOKUP(DropDownList!$B$47,CntyQryCensus!$A$156:$FR$198,EV$1)","v":122},{"$f":"VLOOKUP(DropDownList!$B$47,CntyQryCensus!$A$156:$FR$198,EW$1)","v":53},{"$f":"VLOOKUP(DropDownList!$B$47,CntyQryCensus!$A$156:$FR$198,EX$1)","v":12},{"$f":"VLOOKUP(DropDownList!$B$47,CntyQryCensus!$A$156:$FR$198,EY$1)","v":4221},{"$f":"VLOOKUP(DropDownList!$B$47,CntyQryCensus!$A$156:$FR$198,EZ$1)","v":86},{"$f":"VLOOKUP(DropDownList!$B$47,CntyQryCensus!$A$156:$FR$198,FA$1)","v":365},{"$f":"VLOOKUP(DropDownList!$B$47,CntyQryCensus!$A$156:$FR$198,FB$1)","v":760},{"$f":"VLOOKUP(DropDownList!$B$47,CntyQryCensus!$A$156:$FR$198,FC$1)","v":78},{"$f":"VLOOKUP(DropDownList!$B$47,CntyQryCensus!$A$156:$FR$198,FD$1)","v":584},{"$f":"VLOOKUP(DropDownList!$B$47,CntyQryCensus!$A$156:$FR$198,FE$1)","v":268},{"$f":"VLOOKUP(DropDownList!$B$47,CntyQryCensus!$A$156:$FR$198,FF$1)","v":37},{"$f":"VLOOKUP(DropDownList!$B$47,CntyQryCensus!$A$156:$FR$198,FG$1)","v":268},{"$f":"VLOOKUP(DropDownList!$B$47,CntyQryCensus!$A$156:$FR$198,FH$1)","v":349},{"$f":"VLOOKUP(DropDownList!$B$47,CntyQryCensus!$A$156:$FR$198,FI$1)","v":887},{"$f":"VLOOKUP(DropDownList!$B$47,CntyQryCensus!$A$156:$FR$198,FJ$1)","v":197},{"$f":"VLOOKUP(DropDownList!$B$47,CntyQryCensus!$A$156:$FR$198,FK$1)","v":150},{"$f":"VLOOKUP(DropDownList!$B$47,CntyQryCensus!$A$156:$FR$198,FL$1)","v":192},{"$f":"VLOOKUP(DropDownList!$B$47,CntyQryCensus!$A$156:$FR$198,FM$1)","v":1593},{"$f":"VLOOKUP(DropDownList!$B$47,CntyQryCensus!$A$156:$FR$198,FN$1)","v":507},{"$f":"VLOOKUP(DropDownList!$B$47,CntyQryCensus!$A$156:$FR$198,FO$1)","v":1054},{"$f":"VLOOKUP(DropDownList!$B$47,CntyQryCensus!$A$156:$FR$198,FP$1)","v":16},{"$f":"VLOOKUP(DropDownList!$B$47,CntyQryCensus!$A$156:$FR$198,FQ$1)","v":450},{"$f":"VLOOKUP(DropDownList!$B$47,CntyQryCensus!$A$156:$FR$198,FR$1)","v":601}]
[]
[]
["Census 2000 SummaryFile3 Sample Data  -  SF3TownQry2aIncomeChar"]
["NAME","LOGRECNO","COUNTY","TotalPop","P52Households1","P52HHInc<10K","P52HHInc10to15K","P52HHInc15to20K","P52HHInc20to25K","P52HHInc25to30K","P52HHInc30to35K","P52HHInc35to40K","P52HHInc40to45K","P52HHInc45to50K","P52HHInc50to60K","P52HHInc60to75K","P52HHInc75to100K","P52HHInc100to125K","P52HHInc125to150K","P52HHInc150to200K","P52HHInc>200K","P53MedianHHInc","P54AggregHHInc","P55Households2","P55HHUnder25yrs","P55HH<25HHInc<10K","P55HH<25HHInc10to15K","P55HH<25HHInc15to20K","P55HH<25HHInc20to25K","P55HH<25HHInc25to30K","P55HH<25HHInc30to35K","P55HH<25HHInc35to40K","P55HH<25HHInc40to45K","P55HH<25HHInc45to50K","P55HH<25HHInc50to60K","P55HH<25HHInc60to75K","P55HH<25HHInc75to100K","P55HH<25HHInc100to125K","P55HH<25HHInc125to150K","P55HH<25HHInc150to200K","P55HH<25HHInc>200K","P55HH25to34yrs","P55HH25to34HHInc<10K","P55HH25to34HHInc10to15K","P55HH25to34HHInc15to20K","P55HH25to34HHInc20to25K","P55HH25to34HHInc25to30K","P55HH25to34HHInc30to35K","P55HH25to34HHInc35to40K","P55HH25to34HHInc40to45K","P55HH25to34HHInc45to50K","P55HH25to34HHInc50to60K","P55HH25to34HHInc60to75K","P55HH25to34HHInc75to100K","P55HH25to34HHInc100to125K","P55HH25to34HHInc125to150K","P55HH25to34HHInc150to200K","P55HH25to34HHInc>200K","P55HH35to44yrs","P55HH35to44HHInc<10K","P55HH35to44HHInc10to15K","P55HH35to44HHInc15to20K","P55HH35to44HHInc20to25K","P55HH35to44HHInc25to30K","P55HH35to44HHInc30to35K","P55HH35to44HHInc35to40K","P55HH35to44HHInc40to45K","P55HH35to44HHInc45to50K","P55HH35to44HHInc50to60K","P55HH35to44HHInc60to75K","P55HH35to44HHInc75to100K","P55HH35to44HHInc100to125K","P55HH35to44HHInc125to150K","P55HH35to44HHInc150to200K","P55HH35to44HHInc>200K","P55HH45to54yrs","P55HH45to55HHInc<10K","P55HH45to55HHInc10to15K","P55HH45to55HHInc15to20K","P55HH45to55HHInc20to25K","P55HH45to55HHInc25to30K","P55HH45to55HHInc30to35K","P55HH45to55HHInc35to40K","P55HH45to55HHInc40to45K","P55HH45to55HHInc45to50K","P55HH45to55HHInc50to60K","P55HH45to55HHInc60to75K","P55HH45to55HHInc75to100K","P55HH45to55HHInc100to125K","P55HH45to55HHInc125to150K","P55HH45to55HHInc150to200K","P55HH45to55HHInc>200K","P55HH55to64yrs","P55HH55to64HHInc<10K","P55HH55to64HHInc10to15K","P55HH55to64HHInc15to20K","P55HH55to64HHInc20to25K","P55HH55to64HHInc25to30K","P55HH55to64HHInc30to35K","P55HH55to64HHInc35to40K","P55HH55to64HHInc40to45K","P55HH55to64HHInc45to50K","P55HH55to64HHInc50to60K","P55HH55to64HHInc60to75K","P55HH55to64HHInc75to100K","P55HH55to64HHInc100to125K","P55HH55to64HHInc125to150K","P55HH55to64HHInc150to200K","P55HH55to64HHInc>200K","P55HH65to74yrs","P55HH65to74HHInc<10K","P55HH65to74HHInc10to15K","P55HH65to74HHInc15to20K","P55HH65to74HHInc20to25K","P55HH65to74HHInc25to30K","P55HH65to74HHInc30to35K","P55HH65to74HHInc35to40K","P55HH65to74HHInc40to45K","P55HH65to74HHInc45to50K","P55HH65to74HHInc50to60K","P55HH65to74HHInc60to75K","P55HH65to74HHInc75to100K","P55HH65to74HHInc100to125K","P55HH65to74HHInc125to150K","P55HH65to74HHInc150to200K","P55HH65to74HHInc>200K","P55HH>75yrs","P55HH>75HHInc<10K","P55HH>75HHInc10to15K","P55HH>75HHInc15to20K","P55HH>75HHInc20to25K","P55HH>75HHInc25to30K","P55HH>75HHInc30to35K","P55HH>75HHInc35to40K","P55HH>75HHInc40to45K","P55HH>75HHInc45to50K","P55HH>75HHInc50to60K","P55HH>75HHInc60to75K","P55HH>75HHInc75to100K","P55HH>75HHInc100to125K","P55HH>75HHInc125to150K","P55HH>75HHInc150to200K","P55HH>75HHInc>200K","P56MedHHInc","P56MedHHIncHH<25y","P56MedHHIncHH25to34y","P56MedHHIncHH35to44y","P56MedHHIncHH45to54y","P56MedHHIncHH55to64y","P56MedHHIncHH65to74y","P56MedHHIncHH>75y","P58Households3","P58HHwithEarnings","P58HHNoEarnings","P59HHwWageSalInc","P59HHNoWageSalInc","P60HHwSelfEmpInc","P60HHNoSelfEmpInc","P61HHwIndDivInc","P61HHNoIndDivInc","P62HHwSocSecInc","P62HHNoSocSecInc","P63HHwSSI","P63HHNoSSI","P64HHwPubAssInc","P64HHNoPubAssInc","P65HHwRetInc","P65HHNoRetInc","P66HHwOtherTypInc","P66HHNoOtherTypInc","P67AggregEarnings","P68AggregWageSalInc","P69AggregSelfEmpInc","P70AggregIntDivInc","P71AggregSocSecInc","P72AggregSSIInc","P73AggregPublicAssInc","P74AggregRetireInc","P76Families1","P76FamInc<10K","P76FamInc10to15K","P76FamInc15to20K","P76FamInc20to25K","P76FamInc25to30K","P76FamInc30to35K","P76FamInc35to40K","P76FamInc40to45K","P76FamInc45to50K","P76FamInc50to60K","P76FamInc60to75K","P76FamInc75to100K","P76FamInc100to125K","P76FamInc125to150K","P76FamInc150to200K","P76FamInc>200K","P77MedFamInc","P78AggregFamInc","P79NonFamHH","P79NonFamHHwInc<10K","P79NonFamHHwInc10to15K","P79NonFamHHwInc15to20K","P79NonFamHHwInc20to25K","P79NonFamHHwInc25to30K","P79NonFamHHwInc30to35K","P79NonFamHHwInc35to40K","P79NonFamHHwInc40to45K","P79NonFamHHwInc45to50K","P79NonFamHHwInc50to60K","P79NonFamHHwInc60to75K","P79NonFamHHwInc75to100K","P79NonFamHHwInc100to125K","P79NonFamHHwInc125to150K","P79NonFamHHwInc150to200K","P79NonFamHHwInc200KorMore","P80MedNonFamInc","P82PerCapitaInc"]
[{"$f":"VLOOKUP(DropDownList!$B$47,CntyQryCensus!$A$206:$HH$248,A$1)","v":"Barrington"},{"$f":"VLOOKUP(DropDownList!$B$47,CntyQryCensus!$A$206:$HH$248,B$1)","v":"0003823"},{"$f":"VLOOKUP(DropDownList!$B$47,CntyQryCensus!$A$206:$HH$248,C$1)","v":"03460"},{"$f":"VLOOKUP(DropDownList!$B$47,CntyQryCensus!$A$206:$HH$248,D$1)","v":7475},{"$f":"VLOOKUP(DropDownList!$B$47,CntyQryCensus!$A$206:$HH$248,E$1)","v":2767},{"$f":"VLOOKUP(DropDownList!$B$47,CntyQryCensus!$A$206:$HH$248,F$1)","v":73},{"$f":"VLOOKUP(DropDownList!$B$47,CntyQryCensus!$A$206:$HH$248,G$1)","v":106},{"$f":"VLOOKUP(DropDownList!$B$47,CntyQryCensus!$A$206:$HH$248,H$1)","v":54},{"$f":"VLOOKUP(DropDownList!$B$47,CntyQryCensus!$A$206:$HH$248,I$1)","v":130},{"$f":"VLOOKUP(DropDownList!$B$47,CntyQryCensus!$A$206:$HH$248,J$1)","v":233},{"$f":"VLOOKUP(DropDownList!$B$47,CntyQryCensus!$A$206:$HH$248,K$1)","v":209},{"$f":"VLOOKUP(DropDownList!$B$47,CntyQryCensus!$A$206:$HH$248,L$1)","v":174},{"$f":"VLOOKUP(DropDownList!$B$47,CntyQryCensus!$A$206:$HH$248,M$1)","v":154},{"$f":"VLOOKUP(DropDownList!$B$47,CntyQryCensus!$A$206:$HH$248,N$1)","v":220},{"$f":"VLOOKUP(DropDownList!$B$47,CntyQryCensus!$A$206:$HH$248,O$1)","v":300},{"$f":"VLOOKUP(DropDownList!$B$47,CntyQryCensus!$A$206:$HH$248,P$1)","v":360},{"$f":"VLOOKUP(DropDownList!$B$47,CntyQryCensus!$A$206:$HH$248,Q$1)","v":538},{"$f":"VLOOKUP(DropDownList!$B$47,CntyQryCensus!$A$206:$HH$248,R$1)","v":146},{"$f":"VLOOKUP(DropDownList!$B$47,CntyQryCensus!$A$206:$HH$248,S$1)","v":18},{"$f":"VLOOKUP(DropDownList!$B$47,CntyQryCensus!$A$206:$HH$248,T$1)","v":52},{"$f":"VLOOKUP(DropDownList!$B$47,CntyQryCensus!$A$206:$HH$248,U$1)","v":0},{"$f":"VLOOKUP(DropDownList!$B$47,CntyQryCensus!$A$206:$HH$248,V$1)","v":50630},{"$f":"VLOOKUP(DropDownList!$B$47,CntyQryCensus!$A$206:$HH$248,W$1)","v":155379000},{"$f":"VLOOKUP(DropDownList!$B$47,CntyQryCensus!$A$206:$HH$248,X$1)","v":2767},{"$f":"VLOOKUP(DropDownList!$B$47,CntyQryCensus!$A$206:$HH$248,Y$1)","v":43},{"$f":"VLOOKUP(DropDownList!$B$47,CntyQryCensus!$A$206:$HH$248,Z$1)","v":4},{"$f":"VLOOKUP(DropDownList!$B$47,CntyQryCensus!$A$206:$HH$248,AA$1)","v":0},{"$f":"VLOOKUP(DropDownList!$B$47,CntyQryCensus!$A$206:$HH$248,AB$1)","v":0},{"$f":"VLOOKUP(DropDownList!$B$47,CntyQryCensus!$A$206:$HH$248,AC$1)","v":10},{"$f":"VLOOKUP(DropDownList!$B$47,CntyQryCensus!$A$206:$HH$248,AD$1)","v":0},{"$f":"VLOOKUP(DropDownList!$B$47,CntyQryCensus!$A$206:$HH$248,AE$1)","v":10},{"$f":"VLOOKUP(DropDownList!$B$47,CntyQryCensus!$A$206:$HH$248,AF$1)","v":7},{"$f":"VLOOKUP(DropDownList!$B$47,CntyQryCensus!$A$206:$HH$248,AG$1)","v":0},{"$f":"VLOOKUP(DropDownList!$B$47,CntyQryCensus!$A$206:$HH$248,AH$1)","v":12},{"$f":"VLOOKUP(DropDownList!$B$47,CntyQryCensus!$A$206:$HH$248,AI$1)","v":0},{"$f":"VLOOKUP(DropDownList!$B$47,CntyQryCensus!$A$206:$HH$248,AJ$1)","v":0},{"$f":"VLOOKUP(DropDownList!$B$47,CntyQryCensus!$A$206:$HH$248,AK$1)","v":0},{"$f":"VLOOKUP(DropDownList!$B$47,CntyQryCensus!$A$206:$HH$248,AL$1)","v":0},{"$f":"VLOOKUP(DropDownList!$B$47,CntyQryCensus!$A$206:$HH$248,AM$1)","v":0},{"$f":"VLOOKUP(DropDownList!$B$47,CntyQryCensus!$A$206:$HH$248,AN$1)","v":0},{"$f":"VLOOKUP(DropDownList!$B$47,CntyQryCensus!$A$206:$HH$248,AO$1)","v":0},{"$f":"VLOOKUP(DropDownList!$B$47,CntyQryCensus!$A$206:$HH$248,AP$1)","v":443},{"$f":"VLOOKUP(DropDownList!$B$47,CntyQryCensus!$A$206:$HH$248,AQ$1)","v":36},{"$f":"VLOOKUP(DropDownList!$B$47,CntyQryCensus!$A$206:$HH$248,AR$1)","v":17},{"$f":"VLOOKUP(DropDownList!$B$47,CntyQryCensus!$A$206:$HH$248,AS$1)","v":5},{"$f":"VLOOKUP(DropDownList!$B$47,CntyQryCensus!$A$206:$HH$248,AT$1)","v":8},{"$f":"VLOOKUP(DropDownList!$B$47,CntyQryCensus!$A$206:$HH$248,AU$1)","v":23},{"$f":"VLOOKUP(DropDownList!$B$47,CntyQryCensus!$A$206:$HH$248,AV$1)","v":28},{"$f":"VLOOKUP(DropDownList!$B$47,CntyQryCensus!$A$206:$HH$248,AW$1)","v":29},{"$f":"VLOOKUP(DropDownList!$B$47,CntyQryCensus!$A$206:$HH$248,AX$1)","v":45},{"$f":"VLOOKUP(DropDownList!$B$47,CntyQryCensus!$A$206:$HH$248,AY$1)","v":22},{"$f":"VLOOKUP(DropDownList!$B$47,CntyQryCensus!$A$206:$HH$248,AZ$1)","v":72},{"$f":"VLOOKUP(DropDownList!$B$47,CntyQryCensus!$A$206:$HH$248,BA$1)","v":43},{"$f":"VLOOKUP(DropDownList!$B$47,CntyQryCensus!$A$206:$HH$248,BB$1)","v":69},{"$f":"VLOOKUP(DropDownList!$B$47,CntyQryCensus!$A$206:$HH$248,BC$1)","v":35},{"$f":"VLOOKUP(DropDownList!$B$47,CntyQryCensus!$A$206:$HH$248,BD$1)","v":0},{"$f":"VLOOKUP(DropDownList!$B$47,CntyQryCensus!$A$206:$HH$248,BE$1)","v":11},{"$f":"VLOOKUP(DropDownList!$B$47,CntyQryCensus!$A$206:$HH$248,BF$1)","v":0},{"$f":"VLOOKUP(DropDownList!$B$47,CntyQryCensus!$A$206:$HH$248,BG$1)","v":849},{"$f":"VLOOKUP(DropDownList!$B$47,CntyQryCensus!$A$206:$HH$248,BH$1)","v":0},{"$f":"VLOOKUP(DropDownList!$B$47,CntyQryCensus!$A$206:$HH$248,BI$1)","v":23},{"$f":"VLOOKUP(DropDownList!$B$47,CntyQryCensus!$A$206:$HH$248,BJ$1)","v":11},{"$f":"VLOOKUP(DropDownList!$B$47,CntyQryCensus!$A$206:$HH$248,BK$1)","v":31},{"$f":"VLOOKUP(DropDownList!$B$47,CntyQryCensus!$A$206:$HH$248,BL$1)","v":47},{"$f":"VLOOKUP(DropDownList!$B$47,CntyQryCensus!$A$206:$HH$248,BM$1)","v":30},{"$f":"VLOOKUP(DropDownList!$B$47,CntyQryCensus!$A$206:$HH$248,BN$1)","v":35},{"$f":"VLOOKUP(DropDownList!$B$47,CntyQryCensus!$A$206:$HH$248,BO$1)","v":42},{"$f":"VLOOKUP(DropDownList!$B$47,CntyQryCensus!$A$206:$HH$248,BP$1)","v":71},{"$f":"VLOOKUP(DropDownList!$B$47,CntyQryCensus!$A$206:$HH$248,BQ$1)","v":98},{"$f":"VLOOKUP(DropDownList!$B$47,CntyQryCensus!$A$206:$HH$248,BR$1)","v":167},{"$f":"VLOOKUP(DropDownList!$B$47,CntyQryCensus!$A$206:$HH$248,BS$1)","v":229},{"$f":"VLOOKUP(DropDownList!$B$47,CntyQryCensus!$A$206:$HH$248,BT$1)","v":45},{"$f":"VLOOKUP(DropDownList!$B$47,CntyQryCensus!$A$206:$HH$248,BU$1)","v":0},{"$f":"VLOOKUP(DropDownList!$B$47,CntyQryCensus!$A$206:$HH$248,BV$1)","v":20},{"$f":"VLOOKUP(DropDownList!$B$47,CntyQryCensus!$A$206:$HH$248,BW$1)","v":0},{"$f":"VLOOKUP(DropDownList!$B$47,CntyQryCensus!$A$206:$HH$248,BX$1)","v":679},{"$f":"VLOOKUP(DropDownList!$B$47,CntyQryCensus!$A$206:$HH$248,BY$1)","v":13},{"$f":"VLOOKUP(DropDownList!$B$47,CntyQryCensus!$A$206:$HH$248,BZ$1)","v":21},{"$f":"VLOOKUP(DropDownList!$B$47,CntyQryCensus!$A$206:$HH$248,CA$1)","v":11},{"$f":"VLOOKUP(DropDownList!$B$47,CntyQryCensus!$A$206:$HH$248,CB$1)","v":28},{"$f":"VLOOKUP(DropDownList!$B$47,CntyQryCensus!$A$206:$HH$248,CC$1)","v":70},{"$f":"VLOOKUP(DropDownList!$B$47,CntyQryCensus!$A$206:$HH$248,CD$1)","v":41},{"$f":"VLOOKUP(DropDownList!$B$47,CntyQryCensus!$A$206:$HH$248,CE$1)","v":45},{"$f":"VLOOKUP(DropDownList!$B$47,CntyQryCensus!$A$206:$HH$248,CF$1)","v":41},{"$f":"VLOOKUP(DropDownList!$B$47,CntyQryCensus!$A$206:$HH$248,CG$1)","v":64},{"$f":"VLOOKUP(DropDownList!$B$47,CntyQryCensus!$A$206:$HH$248,CH$1)","v":71},{"$f":"VLOOKUP(DropDownList!$B$47,CntyQryCensus!$A$206:$HH$248,CI$1)","v":72},{"$f":"VLOOKUP(DropDownList!$B$47,CntyQryCensus!$A$206:$HH$248,CJ$1)","v":138},{"$f":"VLOOKUP(DropDownList!$B$47,CntyQryCensus!$A$206:$HH$248,CK$1)","v":33},{"$f":"VLOOKUP(DropDownList!$B$47,CntyQryCensus!$A$206:$HH$248,CL$1)","v":18},{"$f":"VLOOKUP(DropDownList!$B$47,CntyQryCensus!$A$206:$HH$248,CM$1)","v":13},{"$f":"VLOOKUP(DropDownList!$B$47,CntyQryCensus!$A$206:$HH$248,CN$1)","v":0},{"$f":"VLOOKUP(DropDownList!$B$47,CntyQryCensus!$A$206:$HH$248,CO$1)","v":410},{"$f":"VLOOKUP(DropDownList!$B$47,CntyQryCensus!$A$206:$HH$248,CP$1)","v":0},{"$f":"VLOOKUP(DropDownList!$B$47,CntyQryCensus!$A$206:$HH$248,CQ$1)","v":0},{"$f":"VLOOKUP(DropDownList!$B$47,CntyQryCensus!$A$206:$HH$248,CR$1)","v":9},{"$f":"VLOOKUP(DropDownList!$B$47,CntyQryCensus!$A$206:$HH$248,CS$1)","v":9},{"$f":"VLOOKUP(DropDownList!$B$47,CntyQryCensus!$A$206:$HH$248,CT$1)","v":33},{"$f":"VLOOKUP(DropDownList!$B$47,CntyQryCensus!$A$206:$HH$248,CU$1)","v":58},{"$f":"VLOOKUP(DropDownList!$B$47,CntyQryCensus!$A$206:$HH$248,CV$1)","v":35},{"$f":"VLOOKUP(DropDownList!$B$47,CntyQryCensus!$A$206:$HH$248,CW$1)","v":8},{"$f":"VLOOKUP(DropDownList!$B$47,CntyQryCensus!$A$206:$HH$248,CX$1)","v":33},{"$f":"VLOOKUP(DropDownList!$B$47,CntyQryCensus!$A$206:$HH$248,CY$1)","v":44},{"$f":"VLOOKUP(DropDownList!$B$47,CntyQryCensus!$A$206:$HH$248,CZ$1)","v":69},{"$f":"VLOOKUP(DropDownList!$B$47,CntyQryCensus!$A$206:$HH$248,DA$1)","v":71},{"$f":"VLOOKUP(DropDownList!$B$47,CntyQryCensus!$A$206:$HH$248,DB$1)","v":33},{"$f":"VLOOKUP(DropDownList!$B$47,CntyQryCensus!$A$206:$HH$248,DC$1)","v":0},{"$f":"VLOOKUP(DropDownList!$B$47,CntyQryCensus!$A$206:$HH$248,DD$1)","v":8},{"$f":"VLOOKUP(DropDownList!$B$47,CntyQryCensus!$A$206:$HH$248,DE$1)","v":0},{"$f":"VLOOKUP(DropDownList!$B$47,CntyQryCensus!$A$206:$HH$248,DF$1)","v":254},{"$f":"VLOOKUP(DropDownList!$B$47,CntyQryCensus!$A$206:$HH$248,DG$1)","v":8},{"$f":"VLOOKUP(DropDownList!$B$47,CntyQryCensus!$A$206:$HH$248,DH$1)","v":32},{"$f":"VLOOKUP(DropDownList!$B$47,CntyQryCensus!$A$206:$HH$248,DI$1)","v":18},{"$f":"VLOOKUP(DropDownList!$B$47,CntyQryCensus!$A$206:$HH$248,DJ$1)","v":35},{"$f":"VLOOKUP(DropDownList!$B$47,CntyQryCensus!$A$206:$HH$248,DK$1)","v":44},{"$f":"VLOOKUP(DropDownList!$B$47,CntyQryCensus!$A$206:$HH$248,DL$1)","v":32},{"$f":"VLOOKUP(DropDownList!$B$47,CntyQryCensus!$A$206:$HH$248,DM$1)","v":18},{"$f":"VLOOKUP(DropDownList!$B$47,CntyQryCensus!$A$206:$HH$248,DN$1)","v":9},{"$f":"VLOOKUP(DropDownList!$B$47,CntyQryCensus!$A$206:$HH$248,DO$1)","v":18},{"$f":"VLOOKUP(DropDownList!$B$47,CntyQryCensus!$A$206:$HH$248,DP$1)","v":9},{"$f":"VLOOKUP(DropDownList!$B$47,CntyQryCensus!$A$206:$HH$248,DQ$1)","v":0},{"$f":"VLOOKUP(DropDownList!$B$47,CntyQryCensus!$A$206:$HH$248,DR$1)","v":31},{"$f":"VLOOKUP(DropDownList!$B$47,CntyQryCensus!$A$206:$HH$248,DS$1)","v":0},{"$f":"VLOOKUP(DropDownList!$B$47,CntyQryCensus!$A$206:$HH$248,DT$1)","v":0},{"$f":"VLOOKUP(DropDownList!$B$47,CntyQryCensus!$A$206:$HH$248,DU$1)","v":0},{"$f":"VLOOKUP(DropDownList!$B$47,CntyQryCensus!$A$206:$HH$248,DV$1)","v":0},{"$f":"VLOOKUP(DropDownList!$B$47,CntyQryCensus!$A$206:$HH$248,DW$1)","v":89},{"$f":"VLOOKUP(DropDownList!$B$47,CntyQryCensus!$A$206:$HH$248,DX$1)","v":12},{"$f":"VLOOKUP(DropDownList!$B$47,CntyQryCensus!$A$206:$HH$248,DY$1)","v":13},{"$f":"VLOOKUP(DropDownList!$B$47,CntyQryCensus!$A$206:$HH$248,DZ$1)","v":0},{"$f":"VLOOKUP(DropDownList!$B$47,CntyQryCensus!$A$206:$HH$248,EA$1)","v":9},{"$f":"VLOOKUP(DropDownList!$B$47,CntyQryCensus!$A$206:$HH$248,EB$1)","v":16},{"$f":"VLOOKUP(DropDownList!$B$47,CntyQryCensus!$A$206:$HH$248,EC$1)","v":10},{"$f":"VLOOKUP(DropDownList!$B$47,CntyQryCensus!$A$206:$HH$248,ED$1)","v":5},{"$f":"VLOOKUP(DropDownList!$B$47,CntyQryCensus!$A$206:$HH$248,EE$1)","v":9},{"$f":"VLOOKUP(DropDownList!$B$47,CntyQryCensus!$A$206:$HH$248,EF$1)","v":0},{"$f":"VLOOKUP(DropDownList!$B$47,CntyQryCensus!$A$206:$HH$248,EG$1)","v":6},{"$f":"VLOOKUP(DropDownList!$B$47,CntyQryCensus!$A$206:$HH$248,EH$1)","v":9},{"$f":"VLOOKUP(DropDownList!$B$47,CntyQryCensus!$A$206:$HH$248,EI$1)","v":0},{"$f":"VLOOKUP(DropDownList!$B$47,CntyQryCensus!$A$206:$HH$248,EJ$1)","v":0},{"$f":"VLOOKUP(DropDownList!$B$47,CntyQryCensus!$A$206:$HH$248,EK$1)","v":0},{"$f":"VLOOKUP(DropDownList!$B$47,CntyQryCensus!$A$206:$HH$248,EL$1)","v":0},{"$f":"VLOOKUP(DropDownList!$B$47,CntyQryCensus!$A$206:$HH$248,EM$1)","v":0},{"$f":"VLOOKUP(DropDownList!$B$47,CntyQryCensus!$A$206:$HH$248,EN$1)","v":50630},{"$f":"VLOOKUP(DropDownList!$B$47,CntyQryCensus!$A$206:$HH$248,EO$1)","v":31875},{"$f":"VLOOKUP(DropDownList!$B$47,CntyQryCensus!$A$206:$HH$248,EP$1)","v":51012},{"$f":"VLOOKUP(DropDownList!$B$47,CntyQryCensus!$A$206:$HH$248,EQ$1)","v":62974},{"$f":"VLOOKUP(DropDownList!$B$47,CntyQryCensus!$A$206:$HH$248,ER$1)","v":50724},{"$f":"VLOOKUP(DropDownList!$B$47,CntyQryCensus!$A$206:$HH$248,ES$1)","v":51429},{"$f":"VLOOKUP(DropDownList!$B$47,CntyQryCensus!$A$206:$HH$248,ET$1)","v":28611},{"$f":"VLOOKUP(DropDownList!$B$47,CntyQryCensus!$A$206:$HH$248,EU$1)","v":29141},{"$f":"VLOOKUP(DropDownList!$B$47,CntyQryCensus!$A$206:$HH$248,EV$1)","v":2767},{"$f":"VLOOKUP(DropDownList!$B$47,CntyQryCensus!$A$206:$HH$248,EW$1)","v":2489},{"$f":"VLOOKUP(DropDownList!$B$47,CntyQryCensus!$A$206:$HH$248,EX$1)","v":278},{"$f":"VLOOKUP(DropDownList!$B$47,CntyQryCensus!$A$206:$HH$248,EY$1)","v":2413},{"$f":"VLOOKUP(DropDownList!$B$47,CntyQryCensus!$A$206:$HH$248,EZ$1)","v":354},{"$f":"VLOOKUP(DropDownList!$B$47,CntyQryCensus!$A$206:$HH$248,FA$1)","v":459},{"$f":"VLOOKUP(DropDownList!$B$47,CntyQryCensus!$A$206:$HH$248,FB$1)","v":2308},{"$f":"VLOOKUP(DropDownList!$B$47,CntyQryCensus!$A$206:$HH$248,FC$1)","v":1043},{"$f":"VLOOKUP(DropDownList!$B$47,CntyQryCensus!$A$206:$HH$248,FD$1)","v":1724},{"$f":"VLOOKUP(DropDownList!$B$47,CntyQryCensus!$A$206:$HH$248,FE$1)","v":502},{"$f":"VLOOKUP(DropDownList!$B$47,CntyQryCensus!$A$206:$HH$248,FF$1)","v":2265},{"$f":"VLOOKUP(DropDownList!$B$47,CntyQryCensus!$A$206:$HH$248,FG$1)","v":36},{"$f":"VLOOKUP(DropDownList!$B$47,CntyQryCensus!$A$206:$HH$248,FH$1)","v":2731},{"$f":"VLOOKUP(DropDownList!$B$47,CntyQryCensus!$A$206:$HH$248,FI$1)","v":64},{"$f":"VLOOKUP(DropDownList!$B$47,CntyQryCensus!$A$206:$HH$248,FJ$1)","v":2703},{"$f":"VLOOKUP(DropDownList!$B$47,CntyQryCensus!$A$206:$HH$248,FK$1)","v":453},{"$f":"VLOOKUP(DropDownList!$B$47,CntyQryCensus!$A$206:$HH$248,FL$1)","v":2314},{"$f":"VLOOKUP(DropDownList!$B$47,CntyQryCensus!$A$206:$HH$248,FM$1)","v":361},{"$f":"VLOOKUP(DropDownList!$B$47,CntyQryCensus!$A$206:$HH$248,FN$1)","v":2406},{"$f":"VLOOKUP(DropDownList!$B$47,CntyQryCensus!$A$206:$HH$248,FO$1)","v":135568400},{"$f":"VLOOKUP(DropDownList!$B$47,CntyQryCensus!$A$206:$HH$248,FP$1)","v":123014900},{"$f":"VLOOKUP(DropDownList!$B$47,CntyQryCensus!$A$206:$HH$248,FQ$1)","v":12553500},{"$f":"VLOOKUP(DropDownList!$B$47,CntyQryCensus!$A$206:$HH$248,FR$1)","v":4444500},{"$f":"VLOOKUP(DropDownList!$B$47,CntyQryCensus!$A$206:$HH$248,FS$1)","v":5970100},{"$f":"VLOOKUP(DropDownList!$B$47,CntyQryCensus!$A$206:$HH$248,FT$1)","v":163100},{"$f":"VLOOKUP(DropDownList!$B$47,CntyQryCensus!$A$206:$HH$248,FU$1)","v":71300},{"$f":"VLOOKUP(DropDownList!$B$47,CntyQryCensus!$A$206:$HH$248,FV$1)","v":6515700},{"$f":"VLOOKUP(DropDownList!$B$47,CntyQryCensus!$A$206:$HH$248,FW$1)","v":2096},{"$f":"VLOOKUP(DropDownList!$B$47,CntyQryCensus!$A$206:$HH$248,FX$1)","v":43},{"$f":"VLOOKUP(DropDownList!$B$47,CntyQryCensus!$A$206:$HH$248,FY$1)","v":47},{"$f":"VLOOKUP(DropDownList!$B$47,CntyQryCensus!$A$206:$HH$248,FZ$1)","v":33},{"$f":"VLOOKUP(DropDownList!$B$47,CntyQryCensus!$A$206:$HH$248,GA$1)","v":105},{"$f":"VLOOKUP(DropDownList!$B$47,CntyQryCensus!$A$206:$HH$248,GB$1)","v":160},{"$f":"VLOOKUP(DropDownList!$B$47,CntyQryCensus!$A$206:$HH$248,GC$1)","v":128},{"$f":"VLOOKUP(DropDownList!$B$47,CntyQryCensus!$A$206:$HH$248,GD$1)","v":93},{"$f":"VLOOKUP(DropDownList!$B$47,CntyQryCensus!$A$206:$HH$248,GE$1)","v":116},{"$f":"VLOOKUP(DropDownList!$B$47,CntyQryCensus!$A$206:$HH$248,GF$1)","v":150},{"$f":"VLOOKUP(DropDownList!$B$47,CntyQryCensus!$A$206:$HH$248,GG$1)","v":212},{"$f":"VLOOKUP(DropDownList!$B$47,CntyQryCensus!$A$206:$HH$248,GH$1)","v":311},{"$f":"VLOOKUP(DropDownList!$B$47,CntyQryCensus!$A$206:$HH$248,GI$1)","v":508},{"$f":"VLOOKUP(DropDownList!$B$47,CntyQryCensus!$A$206:$HH$248,GJ$1)","v":133},{"$f":"VLOOKUP(DropDownList!$B$47,CntyQryCensus!$A$206:$HH$248,GK$1)","v":18},{"$f":"VLOOKUP(DropDownList!$B$47,CntyQryCensus!$A$206:$HH$248,GL$1)","v":39},{"$f":"VLOOKUP(DropDownList!$B$47,CntyQryCensus!$A$206:$HH$248,GM$1)","v":0},{"$f":"VLOOKUP(DropDownList!$B$47,CntyQryCensus!$A$206:$HH$248,GN$1)","v":56136},{"$f":"VLOOKUP(DropDownList!$B$47,CntyQryCensus!$A$206:$HH$248,GO$1)","v":126321800},{"$f":"VLOOKUP(DropDownList!$B$47,CntyQryCensus!$A$206:$HH$248,GP$1)","v":671},{"$f":"VLOOKUP(DropDownList!$B$47,CntyQryCensus!$A$206:$HH$248,GQ$1)","v":38},{"$f":"VLOOKUP(DropDownList!$B$47,CntyQryCensus!$A$206:$HH$248,GR$1)","v":67},{"$f":"VLOOKUP(DropDownList!$B$47,CntyQryCensus!$A$206:$HH$248,GS$1)","v":31},{"$f":"VLOOKUP(DropDownList!$B$47,CntyQryCensus!$A$206:$HH$248,GT$1)","v":44},{"$f":"VLOOKUP(DropDownList!$B$47,CntyQryCensus!$A$206:$HH$248,GU$1)","v":84},{"$f":"VLOOKUP(DropDownList!$B$47,CntyQryCensus!$A$206:$HH$248,GV$1)","v":72},{"$f":"VLOOKUP(DropDownList!$B$47,CntyQryCensus!$A$206:$HH$248,GW$1)","v":64},{"$f":"VLOOKUP(DropDownList!$B$47,CntyQryCensus!$A$206:$HH$248,GX$1)","v":46},{"$f":"VLOOKUP(DropDownList!$B$47,CntyQryCensus!$A$206:$HH$248,GY$1)","v":51},{"$f":"VLOOKUP(DropDownList!$B$47,CntyQryCensus!$A$206:$HH$248,GZ$1)","v":77},{"$f":"VLOOKUP(DropDownList!$B$47,CntyQryCensus!$A$206:$HH$248,HA$1)","v":49},{"$f":"VLOOKUP(DropDownList!$B$47,CntyQryCensus!$A$206:$HH$248,HB$1)","v":22},{"$f":"VLOOKUP(DropDownList!$B$47,CntyQryCensus!$A$206:$HH$248,HC$1)","v":17},{"$f":"VLOOKUP(DropDownList!$B$47,CntyQryCensus!$A$206:$HH$248,HD$1)","v":0},{"$f":"VLOOKUP(DropDownList!$B$47,CntyQryCensus!$A$206:$HH$248,HE$1)","v":9},{"$f":"VLOOKUP(DropDownList!$B$47,CntyQryCensus!$A$206:$HH$248,HF$1)","v":0},{"$f":"VLOOKUP(DropDownList!$B$47,CntyQryCensus!$A$206:$HH$248,HG$1)","v":34963},{"$f":"VLOOKUP(DropDownList!$B$47,CntyQryCensus!$A$206:$HH$248,HH$1)","v":21012}]
[]
[]
["Census 2000 SummaryFile3 Sample Data  -  SF3TownQry2bPovertyChar"]
["NAME","LOGRECNO","COUNTY","TotalPop","P52Households1","P82PerCapitaInc","P87PopForPovStatus","P87PopWIncBelowPovStatus","P87PopUnder5yrBelowPoverty","P87Pop5yrBelowPoverty","P87Pop5to11yrBelowPoverty","P87Pop12to17yrBelowPoverty","P87Pop18to64yrBelowPoverty","P87Pop65to74yrBelowPoverty","P87PopOver75yrBelowPoverty","P87PopWIncAbovePovStatus","P87PopUnder5yrAbovePoverty","P87Pop5yrAbovePoverty","P87Pop5to11yrAbovePoverty","P87Pop12to17yrAbovePoverty","P87Pop18to64yrAbovePoverty","P87Pop65to74yrAbovePoverty","P87PopOver75yrAbovePoverty","P90Families","P90FamWIncBelowPov","P90MarCupFamWIncBelowPov","P90MCFamWRltdChld<18WIncBelowPov","P90MCFamWRltdChld<5WIncBelowPov","P90MaleHhlrWIncBelowPov","P90MaleHhlrWRltdChld<18yrWIncBelowPov","P90MaleHhlrWRltdChld<5yrWIncBelowPov","P90FemaleHhlrWIncBelowPov","P90FemaleHhlrWRltdChld<18yWIncBelowPov","P90FemaleHhlrWRltdChld<5yWIncBelowPov","P90FamWIncAbovePov","P90MarCupFamWIncAbovePov","P90MCFamWRltdChld<18WIncAbovePov","P90MCFamWRltdChld<5WIncAbovePov","P90MaleHhlrWIncAbovePov","P90MaleHhlrWRltdChld<18yrWIncAbovePov","P90MaleHhlrWRltdChld<5yrWIncAbovePov","P90FemaleHhlrWIncAbovePov","P90FemaleHhlrWRltdChld<18yWIncAbovePov","P90FemaleHhlrWRltdChld<5yWIncAbovePov","P92Households","P92HHwIncBelowPov","P92FamHHwIncBelowPov","P92MCFamHHwIncBelowPov","P92MaleFamHHwIncBelowPov","P92FemaleFamHHwIncBelowPov","P92NonFamHHwIncBelowPov","P92NonFamMaleHHwIncBelowPov","P92NonFamFemaleHHwIncBelowPov","P92HHwIncAbovePov","P92FamHHwIncAbovePov","P92MCFamHHwIncAbovePov","P92MaleFamHHwIncAbovePov","P92FemaleFamHHwIncAbovePov","P92NonFamHHwIncAbovePov","P92NonFamMaleHHwIncAbovePov","P92NonFamFemaleHHwIncAbovePov"]
[{"$f":"VLOOKUP(DropDownList!$B$47,CntyQryCensus!$A$256:$BI$298,A$1)","v":"Barrington"},{"$f":"VLOOKUP(DropDownList!$B$47,CntyQryCensus!$A$256:$BI$298,B$1)","v":"0003823"},{"$f":"VLOOKUP(DropDownList!$B$47,CntyQryCensus!$A$256:$BI$298,C$1)","v":"03460"},{"$f":"VLOOKUP(DropDownList!$B$47,CntyQryCensus!$A$256:$BI$298,D$1)","v":7475},{"$f":"VLOOKUP(DropDownList!$B$47,CntyQryCensus!$A$256:$BI$298,E$1)","v":2767},{"$f":"VLOOKUP(DropDownList!$B$47,CntyQryCensus!$A$256:$BI$298,F$1)","v":21012},{"$f":"VLOOKUP(DropDownList!$B$47,CntyQryCensus!$A$256:$BI$298,G$1)","v":7441},{"$f":"VLOOKUP(DropDownList!$B$47,CntyQryCensus!$A$256:$BI$298,H$1)","v":411},{"$f":"VLOOKUP(DropDownList!$B$47,CntyQryCensus!$A$256:$BI$298,I$1)","v":10},{"$f":"VLOOKUP(DropDownList!$B$47,CntyQryCensus!$A$256:$BI$298,J$1)","v":19},{"$f":"VLOOKUP(DropDownList!$B$47,CntyQryCensus!$A$256:$BI$298,K$1)","v":71},{"$f":"VLOOKUP(DropDownList!$B$47,CntyQryCensus!$A$256:$BI$298,L$1)","v":52},{"$f":"VLOOKUP(DropDownList!$B$47,CntyQryCensus!$A$256:$BI$298,M$1)","v":259},{"$f":"VLOOKUP(DropDownList!$B$47,CntyQryCensus!$A$256:$BI$298,N$1)","v":0},{"$f":"VLOOKUP(DropDownList!$B$47,CntyQryCensus!$A$256:$BI$298,O$1)","v":0},{"$f":"VLOOKUP(DropDownList!$B$47,CntyQryCensus!$A$256:$BI$298,P$1)","v":7030},{"$f":"VLOOKUP(DropDownList!$B$47,CntyQryCensus!$A$256:$BI$298,Q$1)","v":448},{"$f":"VLOOKUP(DropDownList!$B$47,CntyQryCensus!$A$256:$BI$298,R$1)","v":143},{"$f":"VLOOKUP(DropDownList!$B$47,CntyQryCensus!$A$256:$BI$298,S$1)","v":566},{"$f":"VLOOKUP(DropDownList!$B$47,CntyQryCensus!$A$256:$BI$298,T$1)","v":722},{"$f":"VLOOKUP(DropDownList!$B$47,CntyQryCensus!$A$256:$BI$298,U$1)","v":4623},{"$f":"VLOOKUP(DropDownList!$B$47,CntyQryCensus!$A$256:$BI$298,V$1)","v":368},{"$f":"VLOOKUP(DropDownList!$B$47,CntyQryCensus!$A$256:$BI$298,W$1)","v":160},{"$f":"VLOOKUP(DropDownList!$B$47,CntyQryCensus!$A$256:$BI$298,X$1)","v":2096},{"$f":"VLOOKUP(DropDownList!$B$47,CntyQryCensus!$A$256:$BI$298,Y$1)","v":76},{"$f":"VLOOKUP(DropDownList!$B$47,CntyQryCensus!$A$256:$BI$298,Z$1)","v":34},{"$f":"VLOOKUP(DropDownList!$B$47,CntyQryCensus!$A$256:$BI$298,AA$1)","v":34},{"$f":"VLOOKUP(DropDownList!$B$47,CntyQryCensus!$A$256:$BI$298,AB$1)","v":0},{"$f":"VLOOKUP(DropDownList!$B$47,CntyQryCensus!$A$256:$BI$298,AC$1)","v":0},{"$f":"VLOOKUP(DropDownList!$B$47,CntyQryCensus!$A$256:$BI$298,AD$1)","v":0},{"$f":"VLOOKUP(DropDownList!$B$47,CntyQryCensus!$A$256:$BI$298,AE$1)","v":0},{"$f":"VLOOKUP(DropDownList!$B$47,CntyQryCensus!$A$256:$BI$298,AF$1)","v":42},{"$f":"VLOOKUP(DropDownList!$B$47,CntyQryCensus!$A$256:$BI$298,AG$1)","v":36},{"$f":"VLOOKUP(DropDownList!$B$47,CntyQryCensus!$A$256:$BI$298,AH$1)","v":0},{"$f":"VLOOKUP(DropDownList!$B$47,CntyQryCensus!$A$256:$BI$298,AI$1)","v":2020},{"$f":"VLOOKUP(DropDownList!$B$47,CntyQryCensus!$A$256:$BI$298,AJ$1)","v":1693},{"$f":"VLOOKUP(DropDownList!$B$47,CntyQryCensus!$A$256:$BI$298,AK$1)","v":839},{"$f":"VLOOKUP(DropDownList!$B$47,CntyQryCensus!$A$256:$BI$298,AL$1)","v":207},{"$f":"VLOOKUP(DropDownList!$B$47,CntyQryCensus!$A$256:$BI$298,AM$1)","v":159},{"$f":"VLOOKUP(DropDownList!$B$47,CntyQryCensus!$A$256:$BI$298,AN$1)","v":110},{"$f":"VLOOKUP(DropDownList!$B$47,CntyQryCensus!$A$256:$BI$298,AO$1)","v":18},{"$f":"VLOOKUP(DropDownList!$B$47,CntyQryCensus!$A$256:$BI$298,AP$1)","v":168},{"$f":"VLOOKUP(DropDownList!$B$47,CntyQryCensus!$A$256:$BI$298,AQ$1)","v":136},{"$f":"VLOOKUP(DropDownList!$B$47,CntyQryCensus!$A$256:$BI$298,AR$1)","v":12},{"$f":"VLOOKUP(DropDownList!$B$47,CntyQryCensus!$A$256:$BI$298,AS$1)","v":2767},{"$f":"VLOOKUP(DropDownList!$B$47,CntyQryCensus!$A$256:$BI$298,AT$1)","v":125},{"$f":"VLOOKUP(DropDownList!$B$47,CntyQryCensus!$A$256:$BI$298,AU$1)","v":76},{"$f":"VLOOKUP(DropDownList!$B$47,CntyQryCensus!$A$256:$BI$298,AV$1)","v":34},{"$f":"VLOOKUP(DropDownList!$B$47,CntyQryCensus!$A$256:$BI$298,AW$1)","v":0},{"$f":"VLOOKUP(DropDownList!$B$47,CntyQryCensus!$A$256:$BI$298,AX$1)","v":42},{"$f":"VLOOKUP(DropDownList!$B$47,CntyQryCensus!$A$256:$BI$298,AY$1)","v":49},{"$f":"VLOOKUP(DropDownList!$B$47,CntyQryCensus!$A$256:$BI$298,AZ$1)","v":30},{"$f":"VLOOKUP(DropDownList!$B$47,CntyQryCensus!$A$256:$BI$298,BA$1)","v":19},{"$f":"VLOOKUP(DropDownList!$B$47,CntyQryCensus!$A$256:$BI$298,BB$1)","v":2642},{"$f":"VLOOKUP(DropDownList!$B$47,CntyQryCensus!$A$256:$BI$298,BC$1)","v":2020},{"$f":"VLOOKUP(DropDownList!$B$47,CntyQryCensus!$A$256:$BI$298,BD$1)","v":1693},{"$f":"VLOOKUP(DropDownList!$B$47,CntyQryCensus!$A$256:$BI$298,BE$1)","v":159},{"$f":"VLOOKUP(DropDownList!$B$47,CntyQryCensus!$A$256:$BI$298,BF$1)","v":168},{"$f":"VLOOKUP(DropDownList!$B$47,CntyQryCensus!$A$256:$BI$298,BG$1)","v":622},{"$f":"VLOOKUP(DropDownList!$B$47,CntyQryCensus!$A$256:$BI$298,BH$1)","v":348},{"$f":"VLOOKUP(DropDownList!$B$47,CntyQryCensus!$A$256:$BI$298,BI$1)","v":274}]
[null,null,null,null,null,null,null,null,null,null,null,null,null,null,null,null,null,null,{"$f":"SUM(R60:T60)","v":1431}]
[]
["Census 2000 SummaryFile3 Sample Data  -  SF3TownQry7HousingA"]
["NAME","LOGRECNO","COUNTY","TotalPop","H1HousingUnitsTotal","H2SampleHU","H2SampleOccHU","H2SampleVacHU","H3HU100pctCount","H5HUTotal","H5HUUrban","H5HUUrbanInUrbanAreas","H5HUUrbanInUrbanClusters","H5HURural","H5HURuralFarm","H5HURuralNonFarm","H7HUOcc","H7HUOwnrOcc","H7HURentrOcc","H8HUVacant","H8HUVacantForRent","H8HUVacantForSale","H8HUVacRentedorSold","H8HUVacSeasonal","H8HUVacForMigrantWrkrs","H8HUOtherVacant","H14OccHUa","H14OwnerOccHU","H14OwnOccHuHh15to24","H14OwnOccHuHh25to34","H14OwnOccHuHh35to44","H14OwnOccHuHh45to54","H14OwnOccHuHh55to59","H14OwnOccHuHh60to64","H14OwnOccHuHh65to74","H14OwnOccHuHh75to84","H14OwnOccHuHh85Over","H14RenterOccHU1","H14RntrOccHuHh15to24","H14RntrOccHuHh25to34","H14RntrOccHuHh35to44","H14RntrOccHuHh45to54","H14RntrOccHuHh55to59","H14RntrOccHuHh60to64","H14RntrOccHuHh65to74","H14RntrOccHuHh75to84","H14RntrOccHuHh85Over","H15PopInOccHU","H15PopInOwnOccHU1","H15PopInRentOccHU1","H17OccupHUb","H17OwnOccHU2","H17OwnOccHU1PersonHH","H17OwnOccHU2PersonHH","H17OwnOccHU3PersonHH","H17OwnOccHU4PersonHH","H17OwnOccHU5PersonHH","H17OwnOccHU6PersonHH","H17OwnOccHU7PlusPersonHH","H17RentOccHU2","H17RntOccHU1PersonHH","H17RntOccHU2PersonHH","H17RntOccHU3PersonHH","H17RntOccHU4PersonHH","H17RntOccHU5PersonHH","H17RntOccHU6PersonHH","H17RntOccHU7PlusPersonHH","H18AvgHHSize","H18AvgHHSizeOwnOcc","H18AvgHHSizeRentOcc","H23TotHU","H23HU1Room","H23HU2Room","H23HU3Room","H23HU4Room","H23HU5Room","H23HU6Room","H23HU7Room","H23HU8Room","H23HU9orMoreRoom","H24MedianNumRooms","H25AggregNumRooms","H30TotalHU","H30Det1HU","H30Att1HU","H30Units2","H30Units3or4","H30Units5to9","H30Units10to19","H30Units20to49","H30Units50orMore","H30UnitsMobileHome","H30UnitsBoatRv","H32OccHUcTotal","H32OwnerOccHU3","H32OwnOccHU1Det","H32OwnOccHU1Att","H32OwnOccHU2Unit","H32OwnOccHU3to4Unit","H32OwnOccHU5to9Unit","H32OwnOccHU10to19Unit","H32OwnOccHU20to49Unit","H32OwnOccHU50plusUnit","H32OwnOccHUMobHom","H32OwnOccHUBoatRVOth","H32RentrOccHU3","H32RntrOccHU1Det","H32RntrOccHU1Att","H32RntrOccHU2Unit","H32RntrOccHU3to4Unit","H32RntrOccHU5to9Unit","H32RntrOccHU10to19Unit","H32RntrOccHU20to49Unit","H32RntrOccHU50PlusUnit","H32RntrOccHUMobHom","H32RntrOccHUBoatRVOth","H33TotPopInOccHU","H33PopInOwnOccHU2","H33PopInOOHU1Det","H33PopInOOHU1Att","H33PopInOOHU2unit","H33PopInOOHU3to4Unit","H33PopInOOHU5to9Unit","H33PopInOOHU10to19Unit","H33PopInOOHU20to49Unit","H33PopInOOHU50PlusUnit","H33PopInOOHUMobilHome","H33PopInOOHUOtherUnit","H33PopInRentOccHU2","H33PopInROHU1Det","H33PopInROHU1Att","H33PopInROHU2Unit","H33PopInROHU3to4Unit","H33PopInROHU5to9Unit","H33PopInROHU10to19Unit","H33PopInROHU20to49Unit","H33PopInROHU50PlusUnit","H33PopInROHUMobilHome","H33PopInROHUOtherUnit","H36OccHousingUnitsdTotal","H36OwnerOccHU4","H36OOHUBuilt99to0300","H36OOHUBuilt95to98","H36OOHUBuilt90to94","H36OOHUBuilt80to89","H36OOHUBuilt70to79","H36OOHUBuilt60to69","H36OOHUBuilt50to59","H36OOHUBuilt40to49","H36OOHUBuilt39Earlier","H36RentOccHU4","H36ROHUBuilt99to0300","H36ROHUBuilt95to98","H36ROHUBuilt90to94","H36ROHUBuilt80to89","H36ROHUBuilt70to79","H36ROHUBuilt60to69","H36ROHUBuilt50to59","H36ROHUBuilt40to49","H36ROHUBuilt39Earlier","H40OccupHousUnitse","H40HeatFuelUtilGas","H40HeatFuelBotGas","H40HeatFuelElect","H40HeatFuelOilKero","H40HeatFuelCoal","H40HeatFuelWood","H40HeatFuelSolar","H40HeatFuelOther","H40HeatFuelNone","H41TotalHU","H41HUNoBdrm","H41HU1Bdrm","H41HU2Bdrm","H41HU3Bdrm","H41HU4Bdrm","H41HU5MoreBdrm","H42OccuHousUnitf","H42OwnerOccHU5","H42OOHUNoBdrm","H42OOHU1Bdrm","H42OOHU2Bdrm","H42OOHU3Bdrm","H42OOHU4Bdrm","H42OOHU5PlusBdrm","H42RentOccHU5","H42ROHUNoBdrm","H42ROHU1Bdrm","H42ROHU2Bdrm","H42ROHU3Bdrm","H42ROHU4Bdrm","H42ROHU5PlusBdrm","H48OccupHousUnitsg","H48OwnerOccHU6","H48OOHUwCompltPlumFacil","H48OOHULackCompltPlumFacil","H48RentOccHU6","H48ROHUwCompltPlumFacil","H48ROHULackCompltPlumFacil","H51OccupHousUnitf","H51OwnerOccHU7","H51OOHUwCompleteKitFacil","H51OOHULackCompleteKitFacil","H51RenterOccHU7","H51ROHUwCompleteKitFacil","H51ROHULackCompleteKitFacil"]
[{"$f":"VLOOKUP(DropDownList!$B47,CntyQryCensus!$A$306:$GX$348,A$1)","v":"Barrington"},{"$f":"VLOOKUP(DropDownList!$B47,CntyQryCensus!$A$306:$GX$348,B$1)","v":"0003823"},{"$f":"VLOOKUP(DropDownList!$B47,CntyQryCensus!$A$306:$GX$348,C$1)","v":"03460"},{"$f":"VLOOKUP(DropDownList!$B47,CntyQryCensus!$A$306:$GX$348,D$1)","v":7475},{"$f":"VLOOKUP(DropDownList!$B47,CntyQryCensus!$A$306:$GX$348,E$1)","v":3147},{"$f":"VLOOKUP(DropDownList!$B47,CntyQryCensus!$A$306:$GX$348,F$1)","v":379},{"$f":"VLOOKUP(DropDownList!$B47,CntyQryCensus!$A$306:$GX$348,G$1)","v":343},{"$f":"VLOOKUP(DropDownList!$B47,CntyQryCensus!$A$306:$GX$348,H$1)","v":36},{"$f":"VLOOKUP(DropDownList!$B47,CntyQryCensus!$A$306:$GX$348,I$1)","v":3147},{"$f":"VLOOKUP(DropDownList!$B47,CntyQryCensus!$A$306:$GX$348,J$1)","v":3147},{"$f":"VLOOKUP(DropDownList!$B47,CntyQryCensus!$A$306:$GX$348,K$1)","v":0},{"$f":"VLOOKUP(DropDownList!$B47,CntyQryCensus!$A$306:$GX$348,L$1)","v":0},{"$f":"VLOOKUP(DropDownList!$B47,CntyQryCensus!$A$306:$GX$348,M$1)","v":0},{"$f":"VLOOKUP(DropDownList!$B47,CntyQryCensus!$A$306:$GX$348,N$1)","v":3147},{"$f":"VLOOKUP(DropDownList!$B47,CntyQryCensus!$A$306:$GX$348,O$1)","v":15},{"$f":"VLOOKUP(DropDownList!$B47,CntyQryCensus!$A$306:$GX$348,P$1)","v":3132},{"$f":"VLOOKUP(DropDownList!$B47,CntyQryCensus!$A$306:$GX$348,Q$1)","v":2756},{"$f":"VLOOKUP(DropDownList!$B47,CntyQryCensus!$A$306:$GX$348,R$1)","v":2345},{"$f":"VLOOKUP(DropDownList!$B47,CntyQryCensus!$A$306:$GX$348,S$1)","v":411},{"$f":"VLOOKUP(DropDownList!$B47,CntyQryCensus!$A$306:$GX$348,T$1)","v":391},{"$f":"VLOOKUP(DropDownList!$B47,CntyQryCensus!$A$306:$GX$348,U$1)","v":0},{"$f":"VLOOKUP(DropDownList!$B47,CntyQryCensus!$A$306:$GX$348,V$1)","v":20},{"$f":"VLOOKUP(DropDownList!$B47,CntyQryCensus!$A$306:$GX$348,W$1)","v":0},{"$f":"VLOOKUP(DropDownList!$B47,CntyQryCensus!$A$306:$GX$348,X$1)","v":314},{"$f":"VLOOKUP(DropDownList!$B47,CntyQryCensus!$A$306:$GX$348,Y$1)","v":0},{"$f":"VLOOKUP(DropDownList!$B47,CntyQryCensus!$A$306:$GX$348,Z$1)","v":57},{"$f":"VLOOKUP(DropDownList!$B47,CntyQryCensus!$A$306:$GX$348,AA$1)","v":2756},{"$f":"VLOOKUP(DropDownList!$B47,CntyQryCensus!$A$306:$GX$348,AB$1)","v":2345},{"$f":"VLOOKUP(DropDownList!$B47,CntyQryCensus!$A$306:$GX$348,AC$1)","v":18},{"$f":"VLOOKUP(DropDownList!$B47,CntyQryCensus!$A$306:$GX$348,AD$1)","v":319},{"$f":"VLOOKUP(DropDownList!$B47,CntyQryCensus!$A$306:$GX$348,AE$1)","v":756},{"$f":"VLOOKUP(DropDownList!$B47,CntyQryCensus!$A$306:$GX$348,AF$1)","v":603},{"$f":"VLOOKUP(DropDownList!$B47,CntyQryCensus!$A$306:$GX$348,AG$1)","v":241},{"$f":"VLOOKUP(DropDownList!$B47,CntyQryCensus!$A$306:$GX$348,AH$1)","v":114},{"$f":"VLOOKUP(DropDownList!$B47,CntyQryCensus!$A$306:$GX$348,AI$1)","v":208},{"$f":"VLOOKUP(DropDownList!$B47,CntyQryCensus!$A$306:$GX$348,AJ$1)","v":78},{"$f":"VLOOKUP(DropDownList!$B47,CntyQryCensus!$A$306:$GX$348,AK$1)","v":8},{"$f":"VLOOKUP(DropDownList!$B47,CntyQryCensus!$A$306:$GX$348,AL$1)","v":411},{"$f":"VLOOKUP(DropDownList!$B47,CntyQryCensus!$A$306:$GX$348,AM$1)","v":29},{"$f":"VLOOKUP(DropDownList!$B47,CntyQryCensus!$A$306:$GX$348,AN$1)","v":173},{"$f":"VLOOKUP(DropDownList!$B47,CntyQryCensus!$A$306:$GX$348,AO$1)","v":116},{"$f":"VLOOKUP(DropDownList!$B47,CntyQryCensus!$A$306:$GX$348,AP$1)","v":75},{"$f":"VLOOKUP(DropDownList!$B47,CntyQryCensus!$A$306:$GX$348,AQ$1)","v":0},{"$f":"VLOOKUP(DropDownList!$B47,CntyQryCensus!$A$306:$GX$348,AR$1)","v":0},{"$f":"VLOOKUP(DropDownList!$B47,CntyQryCensus!$A$306:$GX$348,AS$1)","v":18},{"$f":"VLOOKUP(DropDownList!$B47,CntyQryCensus!$A$306:$GX$348,AT$1)","v":0},{"$f":"VLOOKUP(DropDownList!$B47,CntyQryCensus!$A$306:$GX$348,AU$1)","v":0},{"$f":"VLOOKUP(DropDownList!$B47,CntyQryCensus!$A$306:$GX$348,AV$1)","v":7467},{"$f":"VLOOKUP(DropDownList!$B47,CntyQryCensus!$A$306:$GX$348,AW$1)","v":6781},{"$f":"VLOOKUP(DropDownList!$B47,CntyQryCensus!$A$306:$GX$348,AX$1)","v":686},{"$f":"VLOOKUP(DropDownList!$B47,CntyQryCensus!$A$306:$GX$348,AY$1)","v":2756},{"$f":"VLOOKUP(DropDownList!$B47,CntyQryCensus!$A$306:$GX$348,AZ$1)","v":2345},{"$f":"VLOOKUP(DropDownList!$B47,CntyQryCensus!$A$306:$GX$348,BA$1)","v":332},{"$f":"VLOOKUP(DropDownList!$B47,CntyQryCensus!$A$306:$GX$348,BB$1)","v":823},{"$f":"VLOOKUP(DropDownList!$B47,CntyQryCensus!$A$306:$GX$348,BC$1)","v":448},{"$f":"VLOOKUP(DropDownList!$B47,CntyQryCensus!$A$306:$GX$348,BD$1)","v":508},{"$f":"VLOOKUP(DropDownList!$B47,CntyQryCensus!$A$306:$GX$348,BE$1)","v":178},{"$f":"VLOOKUP(DropDownList!$B47,CntyQryCensus!$A$306:$GX$348,BF$1)","v":47},{"$f":"VLOOKUP(DropDownList!$B47,CntyQryCensus!$A$306:$GX$348,BG$1)","v":9},{"$f":"VLOOKUP(DropDownList!$B47,CntyQryCensus!$A$306:$GX$348,BH$1)","v":411},{"$f":"VLOOKUP(DropDownList!$B47,CntyQryCensus!$A$306:$GX$348,BI$1)","v":135},{"$f":"VLOOKUP(DropDownList!$B47,CntyQryCensus!$A$306:$GX$348,BJ$1)","v":170},{"$f":"VLOOKUP(DropDownList!$B47,CntyQryCensus!$A$306:$GX$348,BK$1)","v":70},{"$f":"VLOOKUP(DropDownList!$B47,CntyQryCensus!$A$306:$GX$348,BL$1)","v":13},{"$f":"VLOOKUP(DropDownList!$B47,CntyQryCensus!$A$306:$GX$348,BM$1)","v":11},{"$f":"VLOOKUP(DropDownList!$B47,CntyQryCensus!$A$306:$GX$348,BN$1)","v":12},{"$f":"VLOOKUP(DropDownList!$B47,CntyQryCensus!$A$306:$GX$348,BO$1)","v":0},{"$f":"VLOOKUP(DropDownList!$B47,CntyQryCensus!$A$306:$GX$348,BP$1)","v":3},{"$f":"VLOOKUP(DropDownList!$B47,CntyQryCensus!$A$306:$GX$348,BQ$1)","v":3},{"$f":"VLOOKUP(DropDownList!$B47,CntyQryCensus!$A$306:$GX$348,BR$1)","v":2},{"$f":"VLOOKUP(DropDownList!$B47,CntyQryCensus!$A$306:$GX$348,BS$1)","v":3147},{"$f":"VLOOKUP(DropDownList!$B47,CntyQryCensus!$A$306:$GX$348,BT$1)","v":41},{"$f":"VLOOKUP(DropDownList!$B47,CntyQryCensus!$A$306:$GX$348,BU$1)","v":127},{"$f":"VLOOKUP(DropDownList!$B47,CntyQryCensus!$A$306:$GX$348,BV$1)","v":166},{"$f":"VLOOKUP(DropDownList!$B47,CntyQryCensus!$A$306:$GX$348,BW$1)","v":642},{"$f":"VLOOKUP(DropDownList!$B47,CntyQryCensus!$A$306:$GX$348,BX$1)","v":662},{"$f":"VLOOKUP(DropDownList!$B47,CntyQryCensus!$A$306:$GX$348,BY$1)","v":605},{"$f":"VLOOKUP(DropDownList!$B47,CntyQryCensus!$A$306:$GX$348,BZ$1)","v":447},{"$f":"VLOOKUP(DropDownList!$B47,CntyQryCensus!$A$306:$GX$348,CA$1)","v":268},{"$f":"VLOOKUP(DropDownList!$B47,CntyQryCensus!$A$306:$GX$348,CB$1)","v":189},{"$f":"VLOOKUP(DropDownList!$B47,CntyQryCensus!$A$306:$GX$348,CC$1)","v":5},{"$f":"VLOOKUP(DropDownList!$B47,CntyQryCensus!$A$306:$GX$348,CD$1)","v":17464},{"$f":"VLOOKUP(DropDownList!$B47,CntyQryCensus!$A$306:$GX$348,CE$1)","v":3147},{"$f":"VLOOKUP(DropDownList!$B47,CntyQryCensus!$A$306:$GX$348,CF$1)","v":2290},{"$f":"VLOOKUP(DropDownList!$B47,CntyQryCensus!$A$306:$GX$348,CG$1)","v":28},{"$f":"VLOOKUP(DropDownList!$B47,CntyQryCensus!$A$306:$GX$348,CH$1)","v":40},{"$f":"VLOOKUP(DropDownList!$B47,CntyQryCensus!$A$306:$GX$348,CI$1)","v":47},{"$f":"VLOOKUP(DropDownList!$B47,CntyQryCensus!$A$306:$GX$348,CJ$1)","v":92},{"$f":"VLOOKUP(DropDownList!$B47,CntyQryCensus!$A$306:$GX$348,CK$1)","v":46},{"$f":"VLOOKUP(DropDownList!$B47,CntyQryCensus!$A$306:$GX$348,CL$1)","v":0},{"$f":"VLOOKUP(DropDownList!$B47,CntyQryCensus!$A$306:$GX$348,CM$1)","v":0},{"$f":"VLOOKUP(DropDownList!$B47,CntyQryCensus!$A$306:$GX$348,CN$1)","v":556},{"$f":"VLOOKUP(DropDownList!$B47,CntyQryCensus!$A$306:$GX$348,CO$1)","v":48},{"$f":"VLOOKUP(DropDownList!$B47,CntyQryCensus!$A$306:$GX$348,CP$1)","v":2756},{"$f":"VLOOKUP(DropDownList!$B47,CntyQryCensus!$A$306:$GX$348,CQ$1)","v":2345},{"$f":"VLOOKUP(DropDownList!$B47,CntyQryCensus!$A$306:$GX$348,CR$1)","v":1864},{"$f":"VLOOKUP(DropDownList!$B47,CntyQryCensus!$A$306:$GX$348,CS$1)","v":28},{"$f":"VLOOKUP(DropDownList!$B47,CntyQryCensus!$A$306:$GX$348,CT$1)","v":32},{"$f":"VLOOKUP(DropDownList!$B47,CntyQryCensus!$A$306:$GX$348,CU$1)","v":6},{"$f":"VLOOKUP(DropDownList!$B47,CntyQryCensus!$A$306:$GX$348,CV$1)","v":0},{"$f":"VLOOKUP(DropDownList!$B47,CntyQryCensus!$A$306:$GX$348,CW$1)","v":0},{"$f":"VLOOKUP(DropDownList!$B47,CntyQryCensus!$A$306:$GX$348,CX$1)","v":0},{"$f":"VLOOKUP(DropDownList!$B47,CntyQryCensus!$A$306:$GX$348,CY$1)","v":0},{"$f":"VLOOKUP(DropDownList!$B47,CntyQryCensus!$A$306:$GX$348,CZ$1)","v":415},{"$f":"VLOOKUP(DropDownList!$B47,CntyQryCensus!$A$306:$GX$348,DA$1)","v":0},{"$f":"VLOOKUP(DropDownList!$B47,CntyQryCensus!$A$306:$GX$348,DB$1)","v":411},{"$f":"VLOOKUP(DropDownList!$B47,CntyQryCensus!$A$306:$GX$348,DC$1)","v":159},{"$f":"VLOOKUP(DropDownList!$B47,CntyQryCensus!$A$306:$GX$348,DD$1)","v":0},{"$f":"VLOOKUP(DropDownList!$B47,CntyQryCensus!$A$306:$GX$348,DE$1)","v":8},{"$f":"VLOOKUP(DropDownList!$B47,CntyQryCensus!$A$306:$GX$348,DF$1)","v":41},{"$f":"VLOOKUP(DropDownList!$B47,CntyQryCensus!$A$306:$GX$348,DG$1)","v":92},{"$f":"VLOOKUP(DropDownList!$B47,CntyQryCensus!$A$306:$GX$348,DH$1)","v":46},{"$f":"VLOOKUP(DropDownList!$B47,CntyQryCensus!$A$306:$GX$348,DI$1)","v":0},{"$f":"VLOOKUP(DropDownList!$B47,CntyQryCensus!$A$306:$GX$348,DJ$1)","v":0},{"$f":"VLOOKUP(DropDownList!$B47,CntyQryCensus!$A$306:$GX$348,DK$1)","v":57},{"$f":"VLOOKUP(DropDownList!$B47,CntyQryCensus!$A$306:$GX$348,DL$1)","v":8},{"$f":"VLOOKUP(DropDownList!$B47,CntyQryCensus!$A$306:$GX$348,DM$1)","v":7467},{"$f":"VLOOKUP(DropDownList!$B47,CntyQryCensus!$A$306:$GX$348,DN$1)","v":6781},{"$f":"VLOOKUP(DropDownList!$B47,CntyQryCensus!$A$306:$GX$348,DO$1)","v":5554},{"$f":"VLOOKUP(DropDownList!$B47,CntyQryCensus!$A$306:$GX$348,DP$1)","v":63},{"$f":"VLOOKUP(DropDownList!$B47,CntyQryCensus!$A$306:$GX$348,DQ$1)","v":87},{"$f":"VLOOKUP(DropDownList!$B47,CntyQryCensus!$A$306:$GX$348,DR$1)","v":5},{"$f":"VLOOKUP(DropDownList!$B47,CntyQryCensus!$A$306:$GX$348,DS$1)","v":0},{"$f":"VLOOKUP(DropDownList!$B47,CntyQryCensus!$A$306:$GX$348,DT$1)","v":0},{"$f":"VLOOKUP(DropDownList!$B47,CntyQryCensus!$A$306:$GX$348,DU$1)","v":0},{"$f":"VLOOKUP(DropDownList!$B47,CntyQryCensus!$A$306:$GX$348,DV$1)","v":0},{"$f":"VLOOKUP(DropDownList!$B47,CntyQryCensus!$A$306:$GX$348,DW$1)","v":1072},{"$f":"VLOOKUP(DropDownList!$B47,CntyQryCensus!$A$306:$GX$348,DX$1)","v":0},{"$f":"VLOOKUP(DropDownList!$B47,CntyQryCensus!$A$306:$GX$348,DY$1)","v":686},{"$f":"VLOOKUP(DropDownList!$B47,CntyQryCensus!$A$306:$GX$348,DZ$1)","v":288},{"$f":"VLOOKUP(DropDownList!$B47,CntyQryCensus!$A$306:$GX$348,EA$1)","v":0},{"$f":"VLOOKUP(DropDownList!$B47,CntyQryCensus!$A$306:$GX$348,EB$1)","v":6},{"$f":"VLOOKUP(DropDownList!$B47,CntyQryCensus!$A$306:$GX$348,EC$1)","v":80},{"$f":"VLOOKUP(DropDownList!$B47,CntyQryCensus!$A$306:$GX$348,ED$1)","v":133},{"$f":"VLOOKUP(DropDownList!$B47,CntyQryCensus!$A$306:$GX$348,EE$1)","v":76},{"$f":"VLOOKUP(DropDownList!$B47,CntyQryCensus!$A$306:$GX$348,EF$1)","v":0},{"$f":"VLOOKUP(DropDownList!$B47,CntyQryCensus!$A$306:$GX$348,EG$1)","v":0},{"$f":"VLOOKUP(DropDownList!$B47,CntyQryCensus!$A$306:$GX$348,EH$1)","v":96},{"$f":"VLOOKUP(DropDownList!$B47,CntyQryCensus!$A$306:$GX$348,EI$1)","v":7},{"$f":"VLOOKUP(DropDownList!$B47,CntyQryCensus!$A$306:$GX$348,EJ$1)","v":2756},{"$f":"VLOOKUP(DropDownList!$B47,CntyQryCensus!$A$306:$GX$348,EK$1)","v":2345},{"$f":"VLOOKUP(DropDownList!$B47,CntyQryCensus!$A$306:$GX$348,EL$1)","v":55},{"$f":"VLOOKUP(DropDownList!$B47,CntyQryCensus!$A$306:$GX$348,EM$1)","v":300},{"$f":"VLOOKUP(DropDownList!$B47,CntyQryCensus!$A$306:$GX$348,EN$1)","v":209},{"$f":"VLOOKUP(DropDownList!$B47,CntyQryCensus!$A$306:$GX$348,EO$1)","v":626},{"$f":"VLOOKUP(DropDownList!$B47,CntyQryCensus!$A$306:$GX$348,EP$1)","v":564},{"$f":"VLOOKUP(DropDownList!$B47,CntyQryCensus!$A$306:$GX$348,EQ$1)","v":175},{"$f":"VLOOKUP(DropDownList!$B47,CntyQryCensus!$A$306:$GX$348,ER$1)","v":116},{"$f":"VLOOKUP(DropDownList!$B47,CntyQryCensus!$A$306:$GX$348,ES$1)","v":59},{"$f":"VLOOKUP(DropDownList!$B47,CntyQryCensus!$A$306:$GX$348,ET$1)","v":241},{"$f":"VLOOKUP(DropDownList!$B47,CntyQryCensus!$A$306:$GX$348,EU$1)","v":411},{"$f":"VLOOKUP(DropDownList!$B47,CntyQryCensus!$A$306:$GX$348,EV$1)","v":0},{"$f":"VLOOKUP(DropDownList!$B47,CntyQryCensus!$A$306:$GX$348,EW$1)","v":9},{"$f":"VLOOKUP(DropDownList!$B47,CntyQryCensus!$A$306:$GX$348,EX$1)","v":20},{"$f":"VLOOKUP(DropDownList!$B47,CntyQryCensus!$A$306:$GX$348,EY$1)","v":105},{"$f":"VLOOKUP(DropDownList!$B47,CntyQryCensus!$A$306:$GX$348,EZ$1)","v":111},{"$f":"VLOOKUP(DropDownList!$B47,CntyQryCensus!$A$306:$GX$348,FA$1)","v":56},{"$f":"VLOOKUP(DropDownList!$B47,CntyQryCensus!$A$306:$GX$348,FB$1)","v":63},{"$f":"VLOOKUP(DropDownList!$B47,CntyQryCensus!$A$306:$GX$348,FC$1)","v":8},{"$f":"VLOOKUP(DropDownList!$B47,CntyQryCensus!$A$306:$GX$348,FD$1)","v":39},{"$f":"VLOOKUP(DropDownList!$B47,CntyQryCensus!$A$306:$GX$348,FE$1)","v":2756},{"$f":"VLOOKUP(DropDownList!$B47,CntyQryCensus!$A$306:$GX$348,FF$1)","v":13},{"$f":"VLOOKUP(DropDownList!$B47,CntyQryCensus!$A$306:$GX$348,FG$1)","v":588},{"$f":"VLOOKUP(DropDownList!$B47,CntyQryCensus!$A$306:$GX$348,FH$1)","v":102},{"$f":"VLOOKUP(DropDownList!$B47,CntyQryCensus!$A$306:$GX$348,FI$1)","v":1872},{"$f":"VLOOKUP(DropDownList!$B47,CntyQryCensus!$A$306:$GX$348,FJ$1)","v":8},{"$f":"VLOOKUP(DropDownList!$B47,CntyQryCensus!$A$306:$GX$348,FK$1)","v":139},{"$f":"VLOOKUP(DropDownList!$B47,CntyQryCensus!$A$306:$GX$348,FL$1)","v":0},{"$f":"VLOOKUP(DropDownList!$B47,CntyQryCensus!$A$306:$GX$348,FM$1)","v":9},{"$f":"VLOOKUP(DropDownList!$B47,CntyQryCensus!$A$306:$GX$348,FN$1)","v":25},{"$f":"VLOOKUP(DropDownList!$B47,CntyQryCensus!$A$306:$GX$348,FO$1)","v":3147},{"$f":"VLOOKUP(DropDownList!$B47,CntyQryCensus!$A$306:$GX$348,FP$1)","v":49},{"$f":"VLOOKUP(DropDownList!$B47,CntyQryCensus!$A$306:$GX$348,FQ$1)","v":265},{"$f":"VLOOKUP(DropDownList!$B47,CntyQryCensus!$A$306:$GX$348,FR$1)","v":1052},{"$f":"VLOOKUP(DropDownList!$B47,CntyQryCensus!$A$306:$GX$348,FS$1)","v":1301},{"$f":"VLOOKUP(DropDownList!$B47,CntyQryCensus!$A$306:$GX$348,FT$1)","v":370},{"$f":"VLOOKUP(DropDownList!$B47,CntyQryCensus!$A$306:$GX$348,FU$1)","v":110},{"$f":"VLOOKUP(DropDownList!$B47,CntyQryCensus!$A$306:$GX$348,FV$1)","v":2756},{"$f":"VLOOKUP(DropDownList!$B47,CntyQryCensus!$A$306:$GX$348,FW$1)","v":2345},{"$f":"VLOOKUP(DropDownList!$B47,CntyQryCensus!$A$306:$GX$348,FX$1)","v":0},{"$f":"VLOOKUP(DropDownList!$B47,CntyQryCensus!$A$306:$GX$348,FY$1)","v":102},{"$f":"VLOOKUP(DropDownList!$B47,CntyQryCensus!$A$306:$GX$348,FZ$1)","v":606},{"$f":"VLOOKUP(DropDownList!$B47,CntyQryCensus!$A$306:$GX$348,GA$1)","v":1185},{"$f":"VLOOKUP(DropDownList!$B47,CntyQryCensus!$A$306:$GX$348,GB$1)","v":363},{"$f":"VLOOKUP(DropDownList!$B47,CntyQryCensus!$A$306:$GX$348,GC$1)","v":89},{"$f":"VLOOKUP(DropDownList!$B47,CntyQryCensus!$A$306:$GX$348,GD$1)","v":411},{"$f":"VLOOKUP(DropDownList!$B47,CntyQryCensus!$A$306:$GX$348,GE$1)","v":23},{"$f":"VLOOKUP(DropDownList!$B47,CntyQryCensus!$A$306:$GX$348,GF$1)","v":76},{"$f":"VLOOKUP(DropDownList!$B47,CntyQryCensus!$A$306:$GX$348,GG$1)","v":239},{"$f":"VLOOKUP(DropDownList!$B47,CntyQryCensus!$A$306:$GX$348,GH$1)","v":73},{"$f":"VLOOKUP(DropDownList!$B47,CntyQryCensus!$A$306:$GX$348,GI$1)","v":0},{"$f":"VLOOKUP(DropDownList!$B47,CntyQryCensus!$A$306:$GX$348,GJ$1)","v":0},{"$f":"VLOOKUP(DropDownList!$B47,CntyQryCensus!$A$306:$GX$348,GK$1)","v":2756},{"$f":"VLOOKUP(DropDownList!$B47,CntyQryCensus!$A$306:$GX$348,GL$1)","v":2345},{"$f":"VLOOKUP(DropDownList!$B47,CntyQryCensus!$A$306:$GX$348,GM$1)","v":2319},{"$f":"VLOOKUP(DropDownList!$B47,CntyQryCensus!$A$306:$GX$348,GN$1)","v":26},{"$f":"VLOOKUP(DropDownList!$B47,CntyQryCensus!$A$306:$GX$348,GO$1)","v":411},{"$f":"VLOOKUP(DropDownList!$B47,CntyQryCensus!$A$306:$GX$348,GP$1)","v":392},{"$f":"VLOOKUP(DropDownList!$B47,CntyQryCensus!$A$306:$GX$348,GQ$1)","v":19},{"$f":"VLOOKUP(DropDownList!$B47,CntyQryCensus!$A$306:$GX$348,GR$1)","v":2756},{"$f":"VLOOKUP(DropDownList!$B47,CntyQryCensus!$A$306:$GX$348,GS$1)","v":2345},{"$f":"VLOOKUP(DropDownList!$B47,CntyQryCensus!$A$306:$GX$348,GT$1)","v":2335},{"$f":"VLOOKUP(DropDownList!$B47,CntyQryCensus!$A$306:$GX$348,GU$1)","v":10},{"$f":"VLOOKUP(DropDownList!$B47,CntyQryCensus!$A$306:$GX$348,GV$1)","v":411},{"$f":"VLOOKUP(DropDownList!$B47,CntyQryCensus!$A$306:$GX$348,GW$1)","v":392},{"$f":"VLOOKUP(DropDownList!$B47,CntyQryCensus!$A$306:$GX$348,GX$1)","v":19}]
[]
[]
["Census 2000 SummaryFile3 Sample Data  -  SF3TownQry8HousingCostA"]
["NAME","LOGRECNO","COUNTY","TotalPop","H62RntrOccHU","H62RntrOccHUwRent","H62ROHUGRent<100","H62ROHUGRent100to149","H62ROHUGRent150to199","H62ROHUGRent200to249","H62ROHUGRent250to299","H62ROHUGRent300to349","H62ROHUGRent350to399","H62ROHUGRent400to449","H62ROHUGRent450to499","H62ROHUGRent500to549","H62ROHUGRent550to599","H62ROHUGRent600to649","H62ROHUGRent650to699","H62ROHUGRent700to749","H62ROHUGRent750to799","H62ROHUGRent800to899","H62ROHUGRent900to999","H62ROHUGRent1000to1249","H62ROHUGRent1250to1499","H62ROHUGRent1500to1999","H62ROHUGRent2000>","H62ROHUNoGRent","H63MedianGrossRnt","H69RenterOccHsU","H69GRnt<10PctHHInc","H69GRnt10to15PctHHInc","H69GRnt15to20PctHHInc","H69GRnt20to25PctHHInc","H69GRnt25to30PctHHInc","H69GRnt30to35PctHHInc","H69GRnt35to40PctHHInc","H69GRnt40to50PctHHInc","H69GRnt>50PctHHInc","H69GRntPctNotcomputed","H73RenterOccHU","H73ROHUHhInc<10k","H73ROHUHhInc<10kRnt<20pct","H73ROHUHhInc<10kRnt20to25pct","H73ROHUHhInc<10kRnt25to30pct","H73ROHUHhInc<10kRnt30to35pct","H73ROHUHhInc<10kRnt>35pct","H73ROHUHhInc<10kPctNotComput","H73ROHUHhInc10to20k","H73ROHUHhInc10to20kRnt<20pct","H73ROHUHhInc10to20kRnt20to25pct","H73ROHUHhInc10to20kRnt25to30pct","H73ROHUHhInc10to20kRnt30to35pct","H73ROHUHhInc10to20kRnt>35pct","H73ROHUHhInc10to20kRntPctNC","H73ROHUHhInc20to35k","H73ROHUHhInc20to35kRnt<20pct","H73ROHUHhInc20to35kRnt20to25pct","H73ROHUHhInc20to35kRnt25to30pct","H73ROHUHhInc20to35kRnt30to35pct","H73ROHUHhInc20to35kRnt>35pct","H73ROHUHhInc20to35kRntPctNC","H73ROHUHhInc35to40k","H73ROHUHhInc35to40kRnt<20pct","H73ROHUHhInc35to40kRnt20to25pct","H73ROHUHhInc35to40kRnt25to30pct","H73ROHUHhInc35to40kRnt30to35pct","H73ROHUHhInc35to40kRnt>35pct","H73ROHUHhInc35to40kRntPctNC","H73ROHUHhInc50to75k","H73ROHUHhInc50to75kRnt<20pct","H73ROHUHhInc50to75kRnt20to25pct","H73ROHUHhInc50to75kRnt25to30pct","H73ROHUHhInc50to75kRnt30to35pct","H73ROHUHhInc50to75kRnt>35pct","H73ROHUHhInc50to75kRntPctNC","H73ROHUHhInc75to100k","H73ROHUHhInc75to100kRnt<20pct","H73ROHUHhInc75to100kRnt20to25pct","H73ROHUHhInc75to100kRnt25to30pct","H73ROHUHhInc75to100kRnt30to35pct","H73ROHUHhInc75to100kRnt>35pct","H73ROHUHhInc75to100kRntPctNC","H73ROHUHhInc>100k","H73ROHUHhInc>100kRnt<20pct","H73ROHUHhInc>100kRnt20to25pct","H73ROHUHhInc>100kRnt25to30pct","H73ROHUHhInc>100kRnt30to35pct","H73ROHUHhInc>100kRnt>35pct","H73ROHUHhInc>100kRntPctNC","H73ROHUHhInc>100kRntPctNC"]
[{"$f":"VLOOKUP(DropDownList!$B$47,CntyQryCensus!$A$357:$CM$399,A$1)","v":"Barrington"},{"$f":"VLOOKUP(DropDownList!$B$47,CntyQryCensus!$A$357:$CM$399,B$1)","v":"0003823"},{"$f":"VLOOKUP(DropDownList!$B$47,CntyQryCensus!$A$357:$CM$399,C$1)","v":"03460"},{"$f":"VLOOKUP(DropDownList!$B$47,CntyQryCensus!$A$357:$CM$399,D$1)","v":7475},{"$f":"VLOOKUP(DropDownList!$B$47,CntyQryCensus!$A$357:$CM$399,E$1)","v":411},{"$f":"VLOOKUP(DropDownList!$B$47,CntyQryCensus!$A$357:$CM$399,F$1)","v":374},{"$f":"VLOOKUP(DropDownList!$B$47,CntyQryCensus!$A$357:$CM$399,G$1)","v":0},{"$f":"VLOOKUP(DropDownList!$B$47,CntyQryCensus!$A$357:$CM$399,H$1)","v":8},{"$f":"VLOOKUP(DropDownList!$B$47,CntyQryCensus!$A$357:$CM$399,I$1)","v":10},{"$f":"VLOOKUP(DropDownList!$B$47,CntyQryCensus!$A$357:$CM$399,J$1)","v":0},{"$f":"VLOOKUP(DropDownList!$B$47,CntyQryCensus!$A$357:$CM$399,K$1)","v":0},{"$f":"VLOOKUP(DropDownList!$B$47,CntyQryCensus!$A$357:$CM$399,L$1)","v":0},{"$f":"VLOOKUP(DropDownList!$B$47,CntyQryCensus!$A$357:$CM$399,M$1)","v":9},{"$f":"VLOOKUP(DropDownList!$B$47,CntyQryCensus!$A$357:$CM$399,N$1)","v":8},{"$f":"VLOOKUP(DropDownList!$B$47,CntyQryCensus!$A$357:$CM$399,O$1)","v":29},{"$f":"VLOOKUP(DropDownList!$B$47,CntyQryCensus!$A$357:$CM$399,P$1)","v":24},{"$f":"VLOOKUP(DropDownList!$B$47,CntyQryCensus!$A$357:$CM$399,Q$1)","v":28},{"$f":"VLOOKUP(DropDownList!$B$47,CntyQryCensus!$A$357:$CM$399,R$1)","v":53},{"$f":"VLOOKUP(DropDownList!$B$47,CntyQryCensus!$A$357:$CM$399,S$1)","v":37},{"$f":"VLOOKUP(DropDownList!$B$47,CntyQryCensus!$A$357:$CM$399,T$1)","v":46},{"$f":"VLOOKUP(DropDownList!$B$47,CntyQryCensus!$A$357:$CM$399,U$1)","v":66},{"$f":"VLOOKUP(DropDownList!$B$47,CntyQryCensus!$A$357:$CM$399,V$1)","v":8},{"$f":"VLOOKUP(DropDownList!$B$47,CntyQryCensus!$A$357:$CM$399,W$1)","v":10},{"$f":"VLOOKUP(DropDownList!$B$47,CntyQryCensus!$A$357:$CM$399,X$1)","v":38},{"$f":"VLOOKUP(DropDownList!$B$47,CntyQryCensus!$A$357:$CM$399,Y$1)","v":0},{"$f":"VLOOKUP(DropDownList!$B$47,CntyQryCensus!$A$357:$CM$399,Z$1)","v":0},{"$f":"VLOOKUP(DropDownList!$B$47,CntyQryCensus!$A$357:$CM$399,AA$1)","v":0},{"$f":"VLOOKUP(DropDownList!$B$47,CntyQryCensus!$A$357:$CM$399,AB$1)","v":37},{"$f":"VLOOKUP(DropDownList!$B$47,CntyQryCensus!$A$357:$CM$399,AC$1)","v":674},{"$f":"VLOOKUP(DropDownList!$B$47,CntyQryCensus!$A$357:$CM$399,AD$1)","v":411},{"$f":"VLOOKUP(DropDownList!$B$47,CntyQryCensus!$A$357:$CM$399,AE$1)","v":8},{"$f":"VLOOKUP(DropDownList!$B$47,CntyQryCensus!$A$357:$CM$399,AF$1)","v":80},{"$f":"VLOOKUP(DropDownList!$B$47,CntyQryCensus!$A$357:$CM$399,AG$1)","v":37},{"$f":"VLOOKUP(DropDownList!$B$47,CntyQryCensus!$A$357:$CM$399,AH$1)","v":41},{"$f":"VLOOKUP(DropDownList!$B$47,CntyQryCensus!$A$357:$CM$399,AI$1)","v":34},{"$f":"VLOOKUP(DropDownList!$B$47,CntyQryCensus!$A$357:$CM$399,AJ$1)","v":39},{"$f":"VLOOKUP(DropDownList!$B$47,CntyQryCensus!$A$357:$CM$399,AK$1)","v":35},{"$f":"VLOOKUP(DropDownList!$B$47,CntyQryCensus!$A$357:$CM$399,AL$1)","v":52},{"$f":"VLOOKUP(DropDownList!$B$47,CntyQryCensus!$A$357:$CM$399,AM$1)","v":40},{"$f":"VLOOKUP(DropDownList!$B$47,CntyQryCensus!$A$357:$CM$399,AN$1)","v":45},{"$f":"VLOOKUP(DropDownList!$B$47,CntyQryCensus!$A$357:$CM$399,AO$1)","v":411},{"$f":"VLOOKUP(DropDownList!$B$47,CntyQryCensus!$A$357:$CM$399,AP$1)","v":24},{"$f":"VLOOKUP(DropDownList!$B$47,CntyQryCensus!$A$357:$CM$399,AQ$1)","v":0},{"$f":"VLOOKUP(DropDownList!$B$47,CntyQryCensus!$A$357:$CM$399,AR$1)","v":0},{"$f":"VLOOKUP(DropDownList!$B$47,CntyQryCensus!$A$357:$CM$399,AS$1)","v":0},{"$f":"VLOOKUP(DropDownList!$B$47,CntyQryCensus!$A$357:$CM$399,AT$1)","v":0},{"$f":"VLOOKUP(DropDownList!$B$47,CntyQryCensus!$A$357:$CM$399,AU$1)","v":9},{"$f":"VLOOKUP(DropDownList!$B$47,CntyQryCensus!$A$357:$CM$399,AV$1)","v":15},{"$f":"VLOOKUP(DropDownList!$B$47,CntyQryCensus!$A$357:$CM$399,AW$1)","v":63},{"$f":"VLOOKUP(DropDownList!$B$47,CntyQryCensus!$A$357:$CM$399,AX$1)","v":10},{"$f":"VLOOKUP(DropDownList!$B$47,CntyQryCensus!$A$357:$CM$399,AY$1)","v":0},{"$f":"VLOOKUP(DropDownList!$B$47,CntyQryCensus!$A$357:$CM$399,AZ$1)","v":0},{"$f":"VLOOKUP(DropDownList!$B$47,CntyQryCensus!$A$357:$CM$399,BA$1)","v":0},{"$f":"VLOOKUP(DropDownList!$B$47,CntyQryCensus!$A$357:$CM$399,BB$1)","v":53},{"$f":"VLOOKUP(DropDownList!$B$47,CntyQryCensus!$A$357:$CM$399,BC$1)","v":0},{"$f":"VLOOKUP(DropDownList!$B$47,CntyQryCensus!$A$357:$CM$399,BD$1)","v":157},{"$f":"VLOOKUP(DropDownList!$B$47,CntyQryCensus!$A$357:$CM$399,BE$1)","v":0},{"$f":"VLOOKUP(DropDownList!$B$47,CntyQryCensus!$A$357:$CM$399,BF$1)","v":31},{"$f":"VLOOKUP(DropDownList!$B$47,CntyQryCensus!$A$357:$CM$399,BG$1)","v":24},{"$f":"VLOOKUP(DropDownList!$B$47,CntyQryCensus!$A$357:$CM$399,BH$1)","v":39},{"$f":"VLOOKUP(DropDownList!$B$47,CntyQryCensus!$A$357:$CM$399,BI$1)","v":55},{"$f":"VLOOKUP(DropDownList!$B$47,CntyQryCensus!$A$357:$CM$399,BJ$1)","v":8},{"$f":"VLOOKUP(DropDownList!$B$47,CntyQryCensus!$A$357:$CM$399,BK$1)","v":94},{"$f":"VLOOKUP(DropDownList!$B$47,CntyQryCensus!$A$357:$CM$399,BL$1)","v":52},{"$f":"VLOOKUP(DropDownList!$B$47,CntyQryCensus!$A$357:$CM$399,BM$1)","v":0},{"$f":"VLOOKUP(DropDownList!$B$47,CntyQryCensus!$A$357:$CM$399,BN$1)","v":10},{"$f":"VLOOKUP(DropDownList!$B$47,CntyQryCensus!$A$357:$CM$399,BO$1)","v":0},{"$f":"VLOOKUP(DropDownList!$B$47,CntyQryCensus!$A$357:$CM$399,BP$1)","v":10},{"$f":"VLOOKUP(DropDownList!$B$47,CntyQryCensus!$A$357:$CM$399,BQ$1)","v":22},{"$f":"VLOOKUP(DropDownList!$B$47,CntyQryCensus!$A$357:$CM$399,BR$1)","v":73},{"$f":"VLOOKUP(DropDownList!$B$47,CntyQryCensus!$A$357:$CM$399,BS$1)","v":63},{"$f":"VLOOKUP(DropDownList!$B$47,CntyQryCensus!$A$357:$CM$399,BT$1)","v":10},{"$f":"VLOOKUP(DropDownList!$B$47,CntyQryCensus!$A$357:$CM$399,BU$1)","v":0},{"$f":"VLOOKUP(DropDownList!$B$47,CntyQryCensus!$A$357:$CM$399,BV$1)","v":0},{"$f":"VLOOKUP(DropDownList!$B$47,CntyQryCensus!$A$357:$CM$399,BW$1)","v":0},{"$f":"VLOOKUP(DropDownList!$B$47,CntyQryCensus!$A$357:$CM$399,BX$1)","v":0},{"$f":"VLOOKUP(DropDownList!$B$47,CntyQryCensus!$A$357:$CM$399,BY$1)","v":0},{"$f":"VLOOKUP(DropDownList!$B$47,CntyQryCensus!$A$357:$CM$399,BZ$1)","v":0},{"$f":"VLOOKUP(DropDownList!$B$47,CntyQryCensus!$A$357:$CM$399,CA$1)","v":0},{"$f":"VLOOKUP(DropDownList!$B$47,CntyQryCensus!$A$357:$CM$399,CB$1)","v":0},{"$f":"VLOOKUP(DropDownList!$B$47,CntyQryCensus!$A$357:$CM$399,CC$1)","v":0},{"$f":"VLOOKUP(DropDownList!$B$47,CntyQryCensus!$A$357:$CM$399,CD$1)","v":0},{"$f":"VLOOKUP(DropDownList!$B$47,CntyQryCensus!$A$357:$CM$399,CE$1)","v":0},{"$f":"VLOOKUP(DropDownList!$B$47,CntyQryCensus!$A$357:$CM$399,CF$1)","v":0},{"$f":"VLOOKUP(DropDownList!$B$47,CntyQryCensus!$A$357:$CM$399,CG$1)","v":0},{"$f":"VLOOKUP(DropDownList!$B$47,CntyQryCensus!$A$357:$CM$399,CH$1)","v":0},{"$f":"VLOOKUP(DropDownList!$B$47,CntyQryCensus!$A$357:$CM$399,CI$1)","v":0},{"$f":"VLOOKUP(DropDownList!$B$47,CntyQryCensus!$A$357:$CM$399,CJ$1)","v":0},{"$f":"VLOOKUP(DropDownList!$B$47,CntyQryCensus!$A$357:$CM$399,CK$1)","v":0},{"$f":"VLOOKUP(DropDownList!$B$47,CntyQryCensus!$A$357:$CM$399,CL$1)","v":0},{"$f":"VLOOKUP(DropDownList!$B$47,CntyQryCensus!$A$357:$CM$399,CM$1)","v":0}]
[]
[]
["Census 2000 SummaryFile3 Sample Data  -  SF3TownQry8HousingCostB"]
["NAME","LOGRECNO","COUNTY","TotalPop","H74SpecOwnerOccHU","H74OOHU<10k","H74OOHU10to15k","H74OOHU15to20k","H74OOHU20to25k","H74OOHU25to30k","H74OOHU30to35k","H74OOHU35to40k","H74OOHU40to50k","H74OOHU50to60k","H74OOHU60to70k","H74OOHU70to80k","H74OOHU80to90k","H74OOHU90to100k","H74OOHU100to125k","H74OOHU125to150k","H74OOHU150to175k","H74OOHU175to200k","H74OOHU200to250k","H74OOHU250to300k","H74OOHU300to400k","H74OOHU400to500k","H74OOHU500to750k","H74OOHU750to1000k","H74OOHU1000kmore","H76OOHUMedianVal","H84OwnerOccHU","H84AllOOHU<10k","H84AllOOHU10to15k","H84AllOOHU15to20k","H84AllOOHU20to25k","H84AllOOHU25to30k","H84AllOOHU30to35k","H84AllOOHU35to40k","H84AllOOHU40to50k","H84AllOOHU50to60k","H84AllOOHU60to70k","H84AllOOHU70to80k","H84AllOOHU80to90k","H84AllOOHU90to100k","H84AllOOHU100to125k","H84AllOOHU125to150k","H84AllOOHU150to175k","H84AllOOHU175to200k","H84AllOOHU200to250k","H84AllOOHU250to300k","H84AllOOHU300to400k","H84AllOOHU400to500k","H84AllOOHU500to750k","H84AllOOHU750to1000k","H84AllOOHU1000kmore","H85OOHUMedVal","H90SOOHU","H90HUwMorgt","H90HUwMtgHC<200","H90HUwMtgHC200to300","H90HUwMtgHC300to400","H90HUwMtgHC400to500","H90HUwMtgHC500to600","H90HUwMtgHC600to700","H90HUwMtgHC700to800","H90HUwMtgHC800to900","H90HUwMtgHC900to1000","H90HUwMtgHC1000to1250","H90HUwMtgHC1250to1500","H90HUwMtgHC1500to2000","H90HUwMtgHC2000to2500","H90HUwMtgHC2500to3000","H90HUwMtgHC3000orMore","H90HUwOutMorgt","H90HUwOutMtgHC<100","H90HUwOutMtgHC100to150","H90HUwOutMtgHC150to200","H90HUwOutMtgHC200to250","H90HUwOutMtgHC250to300","H90HUwOutMtgHC300to350","H90HUwOutMtgHC350to400","H90HUwOutMtgHC400to500","H90HUwOutMtgHC500to600","H90HUwOutMtgHC600to700","H90HUwOutMtgHC700to800","H90HUwOutMtgHC800to900","H90HUwOutMtgHC900to1000","H90HUwOutMtgHC1000orMore","H91MedianOCHUwMtg","H91MedianOCHUwOutMtg","H94SpecOOHU","H94HUwMortg","H94HUwMtgHC<10pct","H94HUwMtgHC10to15pct","H94HUwMtgHC15to20pct","H94HUwMtgHC20to25pct","H94HUwMtgHC25to30pct","H94HUwMtgHC30to35pct","H94HUwMtgHC35to40pct","H94HUwMtgHC40to50pct","H94HUwMtgHC50pctOrMore","H94HUwMtgHCpctNotComp","H94HUWOutMortg","H94HUWOutMortgHC<10pct","H94HUWOutMortgHC10to15pct","H94HUWOutMortgHC15to20pct","H94HUWOutMortgHC20to25pct","H94HUWOutMortgHC25to30pct","H94HUWOutMortgHC30to35pct","H94HUWOutMortgHC35to40pct","H94HUWOutMortgHC40to50pct","H94HUWOutMortgHC50pctOrMore","H94HUWOutMortgHCpctNotComp","H97SpecifOwnOccHU","H97SOOHUInc<10k","H97SOOHUInc<10kHC<20pct","H97SOOHUInc<10kHC20to25pct","H97SOOHUInc<10kHC25to30pct","H97SOOHUInc<10kHC30to35pct","H97SOOHUInc<10kHC>35pct","H97SOOHUInc<10kHCpctNotComput","H97SOOHUInc10to20k","H97SOOHUInc10to20kHC<20pct","H97SOOHUInc10to20kHC20to25pct","H97SOOHUInc10to20kHC25to30pct","H97SOOHUInc10to20kHC30to35pct","H97SOOHUInc10to20kHC>35pct","H97SOOHUInc10to20kHCpctNotComput","H97SOOHUInc20to35k","H97SOOHUInc20to35kRC<20pct","H97SOOHUInc20to35kRC20to25pct","H97SOOHUInc20to35kRC25to30pct","H97SOOHUInc20to35kRC30to35pct","H97SOOHUInc20to35kRC>35pct","H97SOOHUInc20to35kRCpctNotComput","H97SOOHUInc35to50k","H97SOOHUInc35to50kRC<20pct","H97SOOHUInc35to50kRC20to25pct","H97SOOHUInc35to50kRC25to30pct","H97SOOHUInc35to50kRC30to35pct","H97SOOHUInc35to50kRC>35pct","H97SOOHUInc35to50kRCpctNotCompute","H97SOOHUInc50to75k","H97SOOHUInc50to75kRC<20pct","H97SOOHUInc50to75kRC20to25pct","H97SOOHUInc50to75kRC25to30pct","H97SOOHUInc50to75kRC30to35pct","H97SOOHUInc50to75kRC>35pct","H97SOOHUInc50to75kRCpctNotComput","H97SOOHUInc75to100k","H97SOOHUInc75to100kRC<20pct","H97SOOHUInc75to100kRC20to25pct","H97SOOHUInc75to100kRC25to30pct","H97SOOHUInc75to100kRC30to35pct","H97SOOHUInc75to100kRC>35pct","H97SOOHUInc75to100kRCpctNotCompute","H97SOOHUInc100to150k","H97SOOHUInc100to150kRC<20pct","H97SOOHUInc100to150kRC20to25pct","H97SOOHUInc100to150kRC25to30pct","H97SOOHUInc100to150kRC30to35pct","H97SOOHUInc100to150kRC>35pct","H97SOOHUInc100to150kRCpctNotCompute","H97SOOHUInc>150k","H97SOOHUInc>150kRC<20pct","H97SOOHUInc>150kRC20to25pct","H97SOOHUInc>150kRC25to30pct","H97SOOHUInc>150kRC30to35pct","H97SOOHUInc>150kRC>35pct","H97SOOHUInc>150kRCpctNotCompute"]
[{"$f":"VLOOKUP(DropDownList!$B$47,CntyQryCensus!$A$408:$FN$450,A$1)","v":"Barrington"},{"$f":"VLOOKUP(DropDownList!$B$47,CntyQryCensus!$A$408:$FN$450,B$1)","v":"0003823"},{"$f":"VLOOKUP(DropDownList!$B$47,CntyQryCensus!$A$408:$FN$450,C$1)","v":"03460"},{"$f":"VLOOKUP(DropDownList!$B$47,CntyQryCensus!$A$408:$FN$450,D$1)","v":7475},{"$f":"VLOOKUP(DropDownList!$B$47,CntyQryCensus!$A$408:$FN$450,E$1)","v":1667},{"$f":"VLOOKUP(DropDownList!$B$47,CntyQryCensus!$A$408:$FN$450,F$1)","v":0},{"$f":"VLOOKUP(DropDownList!$B$47,CntyQryCensus!$A$408:$FN$450,G$1)","v":0},{"$f":"VLOOKUP(DropDownList!$B$47,CntyQryCensus!$A$408:$FN$450,H$1)","v":0},{"$f":"VLOOKUP(DropDownList!$B$47,CntyQryCensus!$A$408:$FN$450,I$1)","v":0},{"$f":"VLOOKUP(DropDownList!$B$47,CntyQryCensus!$A$408:$FN$450,J$1)","v":10},{"$f":"VLOOKUP(DropDownList!$B$47,CntyQryCensus!$A$408:$FN$450,K$1)","v":7},{"$f":"VLOOKUP(DropDownList!$B$47,CntyQryCensus!$A$408:$FN$450,L$1)","v":0},{"$f":"VLOOKUP(DropDownList!$B$47,CntyQryCensus!$A$408:$FN$450,M$1)","v":21},{"$f":"VLOOKUP(DropDownList!$B$47,CntyQryCensus!$A$408:$FN$450,N$1)","v":15},{"$f":"VLOOKUP(DropDownList!$B$47,CntyQryCensus!$A$408:$FN$450,O$1)","v":14},{"$f":"VLOOKUP(DropDownList!$B$47,CntyQryCensus!$A$408:$FN$450,P$1)","v":49},{"$f":"VLOOKUP(DropDownList!$B$47,CntyQryCensus!$A$408:$FN$450,Q$1)","v":99},{"$f":"VLOOKUP(DropDownList!$B$47,CntyQryCensus!$A$408:$FN$450,R$1)","v":105},{"$f":"VLOOKUP(DropDownList!$B$47,CntyQryCensus!$A$408:$FN$450,S$1)","v":334},{"$f":"VLOOKUP(DropDownList!$B$47,CntyQryCensus!$A$408:$FN$450,T$1)","v":394},{"$f":"VLOOKUP(DropDownList!$B$47,CntyQryCensus!$A$408:$FN$450,U$1)","v":336},{"$f":"VLOOKUP(DropDownList!$B$47,CntyQryCensus!$A$408:$FN$450,V$1)","v":164},{"$f":"VLOOKUP(DropDownList!$B$47,CntyQryCensus!$A$408:$FN$450,W$1)","v":85},{"$f":"VLOOKUP(DropDownList!$B$47,CntyQryCensus!$A$408:$FN$450,X$1)","v":34},{"$f":"VLOOKUP(DropDownList!$B$47,CntyQryCensus!$A$408:$FN$450,Y$1)","v":0},{"$f":"VLOOKUP(DropDownList!$B$47,CntyQryCensus!$A$408:$FN$450,Z$1)","v":0},{"$f":"VLOOKUP(DropDownList!$B$47,CntyQryCensus!$A$408:$FN$450,AA$1)","v":0},{"$f":"VLOOKUP(DropDownList!$B$47,CntyQryCensus!$A$408:$FN$450,AB$1)","v":0},{"$f":"VLOOKUP(DropDownList!$B$47,CntyQryCensus!$A$408:$FN$450,AC$1)","v":0},{"$f":"VLOOKUP(DropDownList!$B$47,CntyQryCensus!$A$408:$FN$450,AD$1)","v":136400},{"$f":"VLOOKUP(DropDownList!$B$47,CntyQryCensus!$A$408:$FN$450,AE$1)","v":2345},{"$f":"VLOOKUP(DropDownList!$B$47,CntyQryCensus!$A$408:$FN$450,AF$1)","v":13},{"$f":"VLOOKUP(DropDownList!$B$47,CntyQryCensus!$A$408:$FN$450,AG$1)","v":37},{"$f":"VLOOKUP(DropDownList!$B$47,CntyQryCensus!$A$408:$FN$450,AH$1)","v":29},{"$f":"VLOOKUP(DropDownList!$B$47,CntyQryCensus!$A$408:$FN$450,AI$1)","v":38},{"$f":"VLOOKUP(DropDownList!$B$47,CntyQryCensus!$A$408:$FN$450,AJ$1)","v":61},{"$f":"VLOOKUP(DropDownList!$B$47,CntyQryCensus!$A$408:$FN$450,AK$1)","v":68},{"$f":"VLOOKUP(DropDownList!$B$47,CntyQryCensus!$A$408:$FN$450,AL$1)","v":23},{"$f":"VLOOKUP(DropDownList!$B$47,CntyQryCensus!$A$408:$FN$450,AM$1)","v":28},{"$f":"VLOOKUP(DropDownList!$B$47,CntyQryCensus!$A$408:$FN$450,AN$1)","v":55},{"$f":"VLOOKUP(DropDownList!$B$47,CntyQryCensus!$A$408:$FN$450,AO$1)","v":59},{"$f":"VLOOKUP(DropDownList!$B$47,CntyQryCensus!$A$408:$FN$450,AP$1)","v":73},{"$f":"VLOOKUP(DropDownList!$B$47,CntyQryCensus!$A$408:$FN$450,AQ$1)","v":123},{"$f":"VLOOKUP(DropDownList!$B$47,CntyQryCensus!$A$408:$FN$450,AR$1)","v":148},{"$f":"VLOOKUP(DropDownList!$B$47,CntyQryCensus!$A$408:$FN$450,AS$1)","v":383},{"$f":"VLOOKUP(DropDownList!$B$47,CntyQryCensus!$A$408:$FN$450,AT$1)","v":409},{"$f":"VLOOKUP(DropDownList!$B$47,CntyQryCensus!$A$408:$FN$450,AU$1)","v":369},{"$f":"VLOOKUP(DropDownList!$B$47,CntyQryCensus!$A$408:$FN$450,AV$1)","v":221},{"$f":"VLOOKUP(DropDownList!$B$47,CntyQryCensus!$A$408:$FN$450,AW$1)","v":126},{"$f":"VLOOKUP(DropDownList!$B$47,CntyQryCensus!$A$408:$FN$450,AX$1)","v":57},{"$f":"VLOOKUP(DropDownList!$B$47,CntyQryCensus!$A$408:$FN$450,AY$1)","v":17},{"$f":"VLOOKUP(DropDownList!$B$47,CntyQryCensus!$A$408:$FN$450,AZ$1)","v":0},{"$f":"VLOOKUP(DropDownList!$B$47,CntyQryCensus!$A$408:$FN$450,BA$1)","v":0},{"$f":"VLOOKUP(DropDownList!$B$47,CntyQryCensus!$A$408:$FN$450,BB$1)","v":8},{"$f":"VLOOKUP(DropDownList!$B$47,CntyQryCensus!$A$408:$FN$450,BC$1)","v":0},{"$f":"VLOOKUP(DropDownList!$B$47,CntyQryCensus!$A$408:$FN$450,BD$1)","v":127100},{"$f":"VLOOKUP(DropDownList!$B$47,CntyQryCensus!$A$408:$FN$450,BE$1)","v":1667},{"$f":"VLOOKUP(DropDownList!$B$47,CntyQryCensus!$A$408:$FN$450,BF$1)","v":1345},{"$f":"VLOOKUP(DropDownList!$B$47,CntyQryCensus!$A$408:$FN$450,BG$1)","v":0},{"$f":"VLOOKUP(DropDownList!$B$47,CntyQryCensus!$A$408:$FN$450,BH$1)","v":0},{"$f":"VLOOKUP(DropDownList!$B$47,CntyQryCensus!$A$408:$FN$450,BI$1)","v":6},{"$f":"VLOOKUP(DropDownList!$B$47,CntyQryCensus!$A$408:$FN$450,BJ$1)","v":8},{"$f":"VLOOKUP(DropDownList!$B$47,CntyQryCensus!$A$408:$FN$450,BK$1)","v":0},{"$f":"VLOOKUP(DropDownList!$B$47,CntyQryCensus!$A$408:$FN$450,BL$1)","v":88},{"$f":"VLOOKUP(DropDownList!$B$47,CntyQryCensus!$A$408:$FN$450,BM$1)","v":99},{"$f":"VLOOKUP(DropDownList!$B$47,CntyQryCensus!$A$408:$FN$450,BN$1)","v":106},{"$f":"VLOOKUP(DropDownList!$B$47,CntyQryCensus!$A$408:$FN$450,BO$1)","v":134},{"$f":"VLOOKUP(DropDownList!$B$47,CntyQryCensus!$A$408:$FN$450,BP$1)","v":297},{"$f":"VLOOKUP(DropDownList!$B$47,CntyQryCensus!$A$408:$FN$450,BQ$1)","v":329},{"$f":"VLOOKUP(DropDownList!$B$47,CntyQryCensus!$A$408:$FN$450,BR$1)","v":218},{"$f":"VLOOKUP(DropDownList!$B$47,CntyQryCensus!$A$408:$FN$450,BS$1)","v":52},{"$f":"VLOOKUP(DropDownList!$B$47,CntyQryCensus!$A$408:$FN$450,BT$1)","v":8},{"$f":"VLOOKUP(DropDownList!$B$47,CntyQryCensus!$A$408:$FN$450,BU$1)","v":0},{"$f":"VLOOKUP(DropDownList!$B$47,CntyQryCensus!$A$408:$FN$450,BV$1)","v":322},{"$f":"VLOOKUP(DropDownList!$B$47,CntyQryCensus!$A$408:$FN$450,BW$1)","v":0},{"$f":"VLOOKUP(DropDownList!$B$47,CntyQryCensus!$A$408:$FN$450,BX$1)","v":0},{"$f":"VLOOKUP(DropDownList!$B$47,CntyQryCensus!$A$408:$FN$450,BY$1)","v":24},{"$f":"VLOOKUP(DropDownList!$B$47,CntyQryCensus!$A$408:$FN$450,BZ$1)","v":31},{"$f":"VLOOKUP(DropDownList!$B$47,CntyQryCensus!$A$408:$FN$450,CA$1)","v":16},{"$f":"VLOOKUP(DropDownList!$B$47,CntyQryCensus!$A$408:$FN$450,CB$1)","v":13},{"$f":"VLOOKUP(DropDownList!$B$47,CntyQryCensus!$A$408:$FN$450,CC$1)","v":37},{"$f":"VLOOKUP(DropDownList!$B$47,CntyQryCensus!$A$408:$FN$450,CD$1)","v":120},{"$f":"VLOOKUP(DropDownList!$B$47,CntyQryCensus!$A$408:$FN$450,CE$1)","v":49},{"$f":"VLOOKUP(DropDownList!$B$47,CntyQryCensus!$A$408:$FN$450,CF$1)","v":8},{"$f":"VLOOKUP(DropDownList!$B$47,CntyQryCensus!$A$408:$FN$450,CG$1)","v":17},{"$f":"VLOOKUP(DropDownList!$B$47,CntyQryCensus!$A$408:$FN$450,CH$1)","v":7},{"$f":"VLOOKUP(DropDownList!$B$47,CntyQryCensus!$A$408:$FN$450,CI$1)","v":0},{"$f":"VLOOKUP(DropDownList!$B$47,CntyQryCensus!$A$408:$FN$450,CJ$1)","v":0},{"$f":"VLOOKUP(DropDownList!$B$47,CntyQryCensus!$A$408:$FN$450,CK$1)","v":1195},{"$f":"VLOOKUP(DropDownList!$B$47,CntyQryCensus!$A$408:$FN$450,CL$1)","v":433},{"$f":"VLOOKUP(DropDownList!$B$47,CntyQryCensus!$A$408:$FN$450,CM$1)","v":1667},{"$f":"VLOOKUP(DropDownList!$B$47,CntyQryCensus!$A$408:$FN$450,CN$1)","v":1345},{"$f":"VLOOKUP(DropDownList!$B$47,CntyQryCensus!$A$408:$FN$450,CO$1)","v":60},{"$f":"VLOOKUP(DropDownList!$B$47,CntyQryCensus!$A$408:$FN$450,CP$1)","v":161},{"$f":"VLOOKUP(DropDownList!$B$47,CntyQryCensus!$A$408:$FN$450,CQ$1)","v":247},{"$f":"VLOOKUP(DropDownList!$B$47,CntyQryCensus!$A$408:$FN$450,CR$1)","v":318},{"$f":"VLOOKUP(DropDownList!$B$47,CntyQryCensus!$A$408:$FN$450,CS$1)","v":208},{"$f":"VLOOKUP(DropDownList!$B$47,CntyQryCensus!$A$408:$FN$450,CT$1)","v":85},{"$f":"VLOOKUP(DropDownList!$B$47,CntyQryCensus!$A$408:$FN$450,CU$1)","v":88},{"$f":"VLOOKUP(DropDownList!$B$47,CntyQryCensus!$A$408:$FN$450,CV$1)","v":86},{"$f":"VLOOKUP(DropDownList!$B$47,CntyQryCensus!$A$408:$FN$450,CW$1)","v":83},{"$f":"VLOOKUP(DropDownList!$B$47,CntyQryCensus!$A$408:$FN$450,CX$1)","v":9},{"$f":"VLOOKUP(DropDownList!$B$47,CntyQryCensus!$A$408:$FN$450,CY$1)","v":322},{"$f":"VLOOKUP(DropDownList!$B$47,CntyQryCensus!$A$408:$FN$450,CZ$1)","v":140},{"$f":"VLOOKUP(DropDownList!$B$47,CntyQryCensus!$A$408:$FN$450,DA$1)","v":91},{"$f":"VLOOKUP(DropDownList!$B$47,CntyQryCensus!$A$408:$FN$450,DB$1)","v":45},{"$f":"VLOOKUP(DropDownList!$B$47,CntyQryCensus!$A$408:$FN$450,DC$1)","v":0},{"$f":"VLOOKUP(DropDownList!$B$47,CntyQryCensus!$A$408:$FN$450,DD$1)","v":15},{"$f":"VLOOKUP(DropDownList!$B$47,CntyQryCensus!$A$408:$FN$450,DE$1)","v":7},{"$f":"VLOOKUP(DropDownList!$B$47,CntyQryCensus!$A$408:$FN$450,DF$1)","v":6},{"$f":"VLOOKUP(DropDownList!$B$47,CntyQryCensus!$A$408:$FN$450,DG$1)","v":12},{"$f":"VLOOKUP(DropDownList!$B$47,CntyQryCensus!$A$408:$FN$450,DH$1)","v":0},{"$f":"VLOOKUP(DropDownList!$B$47,CntyQryCensus!$A$408:$FN$450,DI$1)","v":6},{"$f":"VLOOKUP(DropDownList!$B$47,CntyQryCensus!$A$408:$FN$450,DJ$1)","v":1667},{"$f":"VLOOKUP(DropDownList!$B$47,CntyQryCensus!$A$408:$FN$450,DK$1)","v":15},{"$f":"VLOOKUP(DropDownList!$B$47,CntyQryCensus!$A$408:$FN$450,DL$1)","v":0},{"$f":"VLOOKUP(DropDownList!$B$47,CntyQryCensus!$A$408:$FN$450,DM$1)","v":0},{"$f":"VLOOKUP(DropDownList!$B$47,CntyQryCensus!$A$408:$FN$450,DN$1)","v":0},{"$f":"VLOOKUP(DropDownList!$B$47,CntyQryCensus!$A$408:$FN$450,DO$1)","v":0},{"$f":"VLOOKUP(DropDownList!$B$47,CntyQryCensus!$A$408:$FN$450,DP$1)","v":0},{"$f":"VLOOKUP(DropDownList!$B$47,CntyQryCensus!$A$408:$FN$450,DQ$1)","v":15},{"$f":"VLOOKUP(DropDownList!$B$47,CntyQryCensus!$A$408:$FN$450,DR$1)","v":41},{"$f":"VLOOKUP(DropDownList!$B$47,CntyQryCensus!$A$408:$FN$450,DS$1)","v":0},{"$f":"VLOOKUP(DropDownList!$B$47,CntyQryCensus!$A$408:$FN$450,DT$1)","v":0},{"$f":"VLOOKUP(DropDownList!$B$47,CntyQryCensus!$A$408:$FN$450,DU$1)","v":0},{"$f":"VLOOKUP(DropDownList!$B$47,CntyQryCensus!$A$408:$FN$450,DV$1)","v":7},{"$f":"VLOOKUP(DropDownList!$B$47,CntyQryCensus!$A$408:$FN$450,DW$1)","v":34},{"$f":"VLOOKUP(DropDownList!$B$47,CntyQryCensus!$A$408:$FN$450,DX$1)","v":0},{"$f":"VLOOKUP(DropDownList!$B$47,CntyQryCensus!$A$408:$FN$450,DY$1)","v":290},{"$f":"VLOOKUP(DropDownList!$B$47,CntyQryCensus!$A$408:$FN$450,DZ$1)","v":77},{"$f":"VLOOKUP(DropDownList!$B$47,CntyQryCensus!$A$408:$FN$450,EA$1)","v":0},{"$f":"VLOOKUP(DropDownList!$B$47,CntyQryCensus!$A$408:$FN$450,EB$1)","v":49},{"$f":"VLOOKUP(DropDownList!$B$47,CntyQryCensus!$A$408:$FN$450,EC$1)","v":32},{"$f":"VLOOKUP(DropDownList!$B$47,CntyQryCensus!$A$408:$FN$450,ED$1)","v":132},{"$f":"VLOOKUP(DropDownList!$B$47,CntyQryCensus!$A$408:$FN$450,EE$1)","v":0},{"$f":"VLOOKUP(DropDownList!$B$47,CntyQryCensus!$A$408:$FN$450,EF$1)","v":294},{"$f":"VLOOKUP(DropDownList!$B$47,CntyQryCensus!$A$408:$FN$450,EG$1)","v":78},{"$f":"VLOOKUP(DropDownList!$B$47,CntyQryCensus!$A$408:$FN$450,EH$1)","v":62},{"$f":"VLOOKUP(DropDownList!$B$47,CntyQryCensus!$A$408:$FN$450,EI$1)","v":41},{"$f":"VLOOKUP(DropDownList!$B$47,CntyQryCensus!$A$408:$FN$450,EJ$1)","v":29},{"$f":"VLOOKUP(DropDownList!$B$47,CntyQryCensus!$A$408:$FN$450,EK$1)","v":84},{"$f":"VLOOKUP(DropDownList!$B$47,CntyQryCensus!$A$408:$FN$450,EL$1)","v":0},{"$f":"VLOOKUP(DropDownList!$B$47,CntyQryCensus!$A$408:$FN$450,EM$1)","v":430},{"$f":"VLOOKUP(DropDownList!$B$47,CntyQryCensus!$A$408:$FN$450,EN$1)","v":148},{"$f":"VLOOKUP(DropDownList!$B$47,CntyQryCensus!$A$408:$FN$450,EO$1)","v":136},{"$f":"VLOOKUP(DropDownList!$B$47,CntyQryCensus!$A$408:$FN$450,EP$1)","v":105},{"$f":"VLOOKUP(DropDownList!$B$47,CntyQryCensus!$A$408:$FN$450,EQ$1)","v":16},{"$f":"VLOOKUP(DropDownList!$B$47,CntyQryCensus!$A$408:$FN$450,ER$1)","v":25},{"$f":"VLOOKUP(DropDownList!$B$47,CntyQryCensus!$A$408:$FN$450,ES$1)","v":0},{"$f":"VLOOKUP(DropDownList!$B$47,CntyQryCensus!$A$408:$FN$450,ET$1)","v":427},{"$f":"VLOOKUP(DropDownList!$B$47,CntyQryCensus!$A$408:$FN$450,EU$1)","v":288},{"$f":"VLOOKUP(DropDownList!$B$47,CntyQryCensus!$A$408:$FN$450,EV$1)","v":111},{"$f":"VLOOKUP(DropDownList!$B$47,CntyQryCensus!$A$408:$FN$450,EW$1)","v":28},{"$f":"VLOOKUP(DropDownList!$B$47,CntyQryCensus!$A$408:$FN$450,EX$1)","v":0},{"$f":"VLOOKUP(DropDownList!$B$47,CntyQryCensus!$A$408:$FN$450,EY$1)","v":0},{"$f":"VLOOKUP(DropDownList!$B$47,CntyQryCensus!$A$408:$FN$450,EZ$1)","v":0},{"$f":"VLOOKUP(DropDownList!$B$47,CntyQryCensus!$A$408:$FN$450,FA$1)","v":120},{"$f":"VLOOKUP(DropDownList!$B$47,CntyQryCensus!$A$408:$FN$450,FB$1)","v":103},{"$f":"VLOOKUP(DropDownList!$B$47,CntyQryCensus!$A$408:$FN$450,FC$1)","v":9},{"$f":"VLOOKUP(DropDownList!$B$47,CntyQryCensus!$A$408:$FN$450,FD$1)","v":0},{"$f":"VLOOKUP(DropDownList!$B$47,CntyQryCensus!$A$408:$FN$450,FE$1)","v":8},{"$f":"VLOOKUP(DropDownList!$B$47,CntyQryCensus!$A$408:$FN$450,FF$1)","v":0},{"$f":"VLOOKUP(DropDownList!$B$47,CntyQryCensus!$A$408:$FN$450,FG$1)","v":0},{"$f":"VLOOKUP(DropDownList!$B$47,CntyQryCensus!$A$408:$FN$450,FH$1)","v":50},{"$f":"VLOOKUP(DropDownList!$B$47,CntyQryCensus!$A$408:$FN$450,FI$1)","v":50},{"$f":"VLOOKUP(DropDownList!$B$47,CntyQryCensus!$A$408:$FN$450,FJ$1)","v":0},{"$f":"VLOOKUP(DropDownList!$B$47,CntyQryCensus!$A$408:$FN$450,FK$1)","v":0},{"$f":"VLOOKUP(DropDownList!$B$47,CntyQryCensus!$A$408:$FN$450,FL$1)","v":0},{"$f":"VLOOKUP(DropDownList!$B$47,CntyQryCensus!$A$408:$FN$450,FM$1)","v":0},{"$f":"VLOOKUP(DropDownList!$B$47,CntyQryCensus!$A$408:$FN$450,FN$1)","v":0}]
[]
[]
["Census 2000 SummaryFile3 Sample Data  -  SF3TownQry9HHIncomeByTenure"]
["NAME","LOGRECNO","COUNTY","TotalPop","HCT11OccHU","HCT11OwnOccHU","HCT11OOHUInc<5K","HCT11OOHUInc5to10K","HCT11OOHUInc10to15K","HCT11OOHUInc15to20K","HCT11OOHUInc20to25K","HCT11OOHUInc25to35K","HCT11OOHUInc35to50K","HCT11OOHUInc50to75K","HCT11OOHUInc75to100K","HCT11OOHUInc100to150K","HCT11OOHUInc>150K","HCT11RentOccHU","HCT11ROHUInc<5K","HCT11ROHUInc5to10K","HCT11ROHUInc10to15K","HCT11ROHUInc15to20K","HCT11ROHUInc20to25K","HCT11ROHUInc25to35K","HCT11ROHUInc35to50K","HCT11ROHUInc50to75K","HCT11ROHUInc75to100K","HCT11ROHUInc100to150K","HCT11ROHUInc>150K","HCT12MedHHInc","HCT12MedOwnOccHHInc","HCT12MedRentOccHHInc","Summary Level"]
[{"$f":"VLOOKUP(DropDownList!$B$47,CntyQryCensus!$A$459:$AG$501,A$1)","v":"Barrington"},{"$f":"VLOOKUP(DropDownList!$B$47,CntyQryCensus!$A$459:$AG$501,B$1)","v":"0003823"},{"$f":"VLOOKUP(DropDownList!$B$47,CntyQryCensus!$A$459:$AG$501,C$1)","v":"03460"},{"$f":"VLOOKUP(DropDownList!$B$47,CntyQryCensus!$A$459:$AG$501,D$1)","v":"Barrington town"},{"$f":"VLOOKUP(DropDownList!$B$47,CntyQryCensus!$A$459:$AG$501,E$1)","v":"017"},{"$f":"VLOOKUP(DropDownList!$B$47,CntyQryCensus!$A$459:$AG$501,F$1)","v":7475},{"$f":"VLOOKUP(DropDownList!$B$47,CntyQryCensus!$A$459:$AG$501,G$1)","v":2756},{"$f":"VLOOKUP(DropDownList!$B$47,CntyQryCensus!$A$459:$AG$501,H$1)","v":2345},{"$f":"VLOOKUP(DropDownList!$B$47,CntyQryCensus!$A$459:$AG$501,I$1)","v":25},{"$f":"VLOOKUP(DropDownList!$B$47,CntyQryCensus!$A$459:$AG$501,J$1)","v":33},{"$f":"VLOOKUP(DropDownList!$B$47,CntyQryCensus!$A$459:$AG$501,K$1)","v":82},{"$f":"VLOOKUP(DropDownList!$B$47,CntyQryCensus!$A$459:$AG$501,L$1)","v":24},{"$f":"VLOOKUP(DropDownList!$B$47,CntyQryCensus!$A$459:$AG$501,M$1)","v":79},{"$f":"VLOOKUP(DropDownList!$B$47,CntyQryCensus!$A$459:$AG$501,N$1)","v":327},{"$f":"VLOOKUP(DropDownList!$B$47,CntyQryCensus!$A$459:$AG$501,O$1)","v":450},{"$f":"VLOOKUP(DropDownList!$B$47,CntyQryCensus!$A$459:$AG$501,P$1)","v":588},{"$f":"VLOOKUP(DropDownList!$B$47,CntyQryCensus!$A$459:$AG$501,Q$1)","v":523},{"$f":"VLOOKUP(DropDownList!$B$47,CntyQryCensus!$A$459:$AG$501,R$1)","v":164},{"$f":"VLOOKUP(DropDownList!$B$47,CntyQryCensus!$A$459:$AG$501,S$1)","v":50},{"$f":"VLOOKUP(DropDownList!$B$47,CntyQryCensus!$A$459:$AG$501,T$1)","v":411},{"$f":"VLOOKUP(DropDownList!$B$47,CntyQryCensus!$A$459:$AG$501,U$1)","v":17},{"$f":"VLOOKUP(DropDownList!$B$47,CntyQryCensus!$A$459:$AG$501,V$1)","v":7},{"$f":"VLOOKUP(DropDownList!$B$47,CntyQryCensus!$A$459:$AG$501,W$1)","v":30},{"$f":"VLOOKUP(DropDownList!$B$47,CntyQryCensus!$A$459:$AG$501,X$1)","v":33},{"$f":"VLOOKUP(DropDownList!$B$47,CntyQryCensus!$A$459:$AG$501,Y$1)","v":56},{"$f":"VLOOKUP(DropDownList!$B$47,CntyQryCensus!$A$459:$AG$501,Z$1)","v":101},{"$f":"VLOOKUP(DropDownList!$B$47,CntyQryCensus!$A$459:$AG$501,AA$1)","v":94},{"$f":"VLOOKUP(DropDownList!$B$47,CntyQryCensus!$A$459:$AG$501,AB$1)","v":73},{"$f":"VLOOKUP(DropDownList!$B$47,CntyQryCensus!$A$459:$AG$501,AC$1)","v":0},{"$f":"VLOOKUP(DropDownList!$B$47,CntyQryCensus!$A$459:$AG$501,AD$1)","v":0},{"$f":"VLOOKUP(DropDownList!$B$47,CntyQryCensus!$A$459:$AG$501,AE$1)","v":0},{"$f":"VLOOKUP(DropDownList!$B$47,CntyQryCensus!$A$459:$AG$501,AF$1)","v":50435},{"$f":"VLOOKUP(DropDownList!$B$47,CntyQryCensus!$A$459:$AG$501,AG$1)","v":54272}]
[]
[]
[]
[]
[]
[{"$f":"VLOOKUP(DropDownList!$B$47,CntyQryCensus!$A$510:$DA$522,A$1)","v":"Barrington"}]
[]
[]
[]
[]
[]
[]
[]
["Census 2000 SummaryFile3 Sample Data - SF3TownQry10Disabil"]
["NAME","LOGRECNO","COUNTY","TotalPop","PCT026001-NonInstPop5yrs+","PCT026002-MaleNonInstPop5yrs+","PCT026003","PCT026004","PCT026005","PCT026006","PCT026007","PCT026008","PCT026009","PCT026010","PCT026011","PCT026012","PCT026013","PCT026014","PCT026015","PCT026016","PCT026017","PCT026018","PCT026019","PCT026020","PCT026021","PCT026022","PCT026023","PCT026024","PCT026025","PCT026026","PCT026027","PCT026028","PCT026029","PCT026030","PCT026031","PCT026032","PCT026033","PCT026034","PCT026035","PCT026036","PCT026037","PCT026038","PCT026039","PCT026040","PCT026041","PCT026042","PCT026043","PCT026044","PCT026045","PCT026046","PCT026047","PCT026048","PCT026049","PCT026050","PCT026051","PCT026052","PCT026053","PCT026054","PCT026055","PCT026056","PCT026057","PCT026058","PCT026059","PCT026060","PCT026061","PCT026062","PCT026063","PCT026064","PCT026065","PCT026066","PCT026067","PCT026068","PCT026069","PCT026070","PCT026071","PCT026072","PCT026073","PCT026074","PCT026075","PCT026076","PCT026077","PCT026078","PCT026079","PCT026080","PCT026081","PCT026082","PCT026083","PCT026084","PCT026085","PCT026086","PCT026087","PCT026088","PCT026089","PCT026090","PCT026091","PCT026092","PCT026093","PCT026094","PCT026095","PCT026096","PCT026097","PCT026098","PCT026099","PCT026100","PCT026101"]
[{"$f":"VLOOKUP(DropDownList!$B$47,CntyQryCensus!$A$510:$DA$522,A$1)","v":"Barrington"},{"$f":"VLOOKUP(DropDownList!$B$47,CntyQryCensus!$A$510:$DA$522,B$1)","v":"0003823"},{"$f":"VLOOKUP(DropDownList!$B$47,CntyQryCensus!$A$510:$DA$522,C$1)","v":"03460"},{"$f":"VLOOKUP(DropDownList!$B$47,CntyQryCensus!$A$510:$DA$522,D$1)","v":7475},{"$f":"VLOOKUP(DropDownList!$B$47,CntyQryCensus!$A$510:$DA$522,E$1)","v":6994},{"$f":"VLOOKUP(DropDownList!$B$47,CntyQryCensus!$A$510:$DA$522,F$1)","v":3568},{"$f":"VLOOKUP(DropDownList!$B$47,CntyQryCensus!$A$510:$DA$522,G$1)","v":753},{"$f":"VLOOKUP(DropDownList!$B$47,CntyQryCensus!$A$510:$DA$522,H$1)","v":48},{"$f":"VLOOKUP(DropDownList!$B$47,CntyQryCensus!$A$510:$DA$522,I$1)","v":10},{"$f":"VLOOKUP(DropDownList!$B$47,CntyQryCensus!$A$510:$DA$522,J$1)","v":9},{"$f":"VLOOKUP(DropDownList!$B$47,CntyQryCensus!$A$510:$DA$522,K$1)","v":29},{"$f":"VLOOKUP(DropDownList!$B$47,CntyQryCensus!$A$510:$DA$522,L$1)","v":0},{"$f":"VLOOKUP(DropDownList!$B$47,CntyQryCensus!$A$510:$DA$522,M$1)","v":0},{"$f":"VLOOKUP(DropDownList!$B$47,CntyQryCensus!$A$510:$DA$522,N$1)","v":0},{"$f":"VLOOKUP(DropDownList!$B$47,CntyQryCensus!$A$510:$DA$522,O$1)","v":0},{"$f":"VLOOKUP(DropDownList!$B$47,CntyQryCensus!$A$510:$DA$522,P$1)","v":705},{"$f":"VLOOKUP(DropDownList!$B$47,CntyQryCensus!$A$510:$DA$522,Q$1)","v":219},{"$f":"VLOOKUP(DropDownList!$B$47,CntyQryCensus!$A$510:$DA$522,R$1)","v":24},{"$f":"VLOOKUP(DropDownList!$B$47,CntyQryCensus!$A$510:$DA$522,S$1)","v":0},{"$f":"VLOOKUP(DropDownList!$B$47,CntyQryCensus!$A$510:$DA$522,T$1)","v":0},{"$f":"VLOOKUP(DropDownList!$B$47,CntyQryCensus!$A$510:$DA$522,U$1)","v":22},{"$f":"VLOOKUP(DropDownList!$B$47,CntyQryCensus!$A$510:$DA$522,V$1)","v":0},{"$f":"VLOOKUP(DropDownList!$B$47,CntyQryCensus!$A$510:$DA$522,W$1)","v":0},{"$f":"VLOOKUP(DropDownList!$B$47,CntyQryCensus!$A$510:$DA$522,X$1)","v":2},{"$f":"VLOOKUP(DropDownList!$B$47,CntyQryCensus!$A$510:$DA$522,Y$1)","v":0},{"$f":"VLOOKUP(DropDownList!$B$47,CntyQryCensus!$A$510:$DA$522,Z$1)","v":0},{"$f":"VLOOKUP(DropDownList!$B$47,CntyQryCensus!$A$510:$DA$522,AA$1)","v":0},{"$f":"VLOOKUP(DropDownList!$B$47,CntyQryCensus!$A$510:$DA$522,AB$1)","v":0},{"$f":"VLOOKUP(DropDownList!$B$47,CntyQryCensus!$A$510:$DA$522,AC$1)","v":0},{"$f":"VLOOKUP(DropDownList!$B$47,CntyQryCensus!$A$510:$DA$522,AD$1)","v":195},{"$f":"VLOOKUP(DropDownList!$B$47,CntyQryCensus!$A$510:$DA$522,AE$1)","v":2346},{"$f":"VLOOKUP(DropDownList!$B$47,CntyQryCensus!$A$510:$DA$522,AF$1)","v":197},{"$f":"VLOOKUP(DropDownList!$B$47,CntyQryCensus!$A$510:$DA$522,AG$1)","v":33},{"$f":"VLOOKUP(DropDownList!$B$47,CntyQryCensus!$A$510:$DA$522,AH$1)","v":8},{"$f":"VLOOKUP(DropDownList!$B$47,CntyQryCensus!$A$510:$DA$522,AI$1)","v":42},{"$f":"VLOOKUP(DropDownList!$B$47,CntyQryCensus!$A$510:$DA$522,AJ$1)","v":0},{"$f":"VLOOKUP(DropDownList!$B$47,CntyQryCensus!$A$510:$DA$522,AK$1)","v":8},{"$f":"VLOOKUP(DropDownList!$B$47,CntyQryCensus!$A$510:$DA$522,AL$1)","v":106},{"$f":"VLOOKUP(DropDownList!$B$47,CntyQryCensus!$A$510:$DA$522,AM$1)","v":138},{"$f":"VLOOKUP(DropDownList!$B$47,CntyQryCensus!$A$510:$DA$522,AN$1)","v":37},{"$f":"VLOOKUP(DropDownList!$B$47,CntyQryCensus!$A$510:$DA$522,AO$1)","v":101},{"$f":"VLOOKUP(DropDownList!$B$47,CntyQryCensus!$A$510:$DA$522,AP$1)","v":44},{"$f":"VLOOKUP(DropDownList!$B$47,CntyQryCensus!$A$510:$DA$522,AQ$1)","v":57},{"$f":"VLOOKUP(DropDownList!$B$47,CntyQryCensus!$A$510:$DA$522,AR$1)","v":2011},{"$f":"VLOOKUP(DropDownList!$B$47,CntyQryCensus!$A$510:$DA$522,AS$1)","v":250},{"$f":"VLOOKUP(DropDownList!$B$47,CntyQryCensus!$A$510:$DA$522,AT$1)","v":25},{"$f":"VLOOKUP(DropDownList!$B$47,CntyQryCensus!$A$510:$DA$522,AU$1)","v":0},{"$f":"VLOOKUP(DropDownList!$B$47,CntyQryCensus!$A$510:$DA$522,AV$1)","v":25},{"$f":"VLOOKUP(DropDownList!$B$47,CntyQryCensus!$A$510:$DA$522,AW$1)","v":0},{"$f":"VLOOKUP(DropDownList!$B$47,CntyQryCensus!$A$510:$DA$522,AX$1)","v":0},{"$f":"VLOOKUP(DropDownList!$B$47,CntyQryCensus!$A$510:$DA$522,AY$1)","v":0},{"$f":"VLOOKUP(DropDownList!$B$47,CntyQryCensus!$A$510:$DA$522,AZ$1)","v":28},{"$f":"VLOOKUP(DropDownList!$B$47,CntyQryCensus!$A$510:$DA$522,BA$1)","v":8},{"$f":"VLOOKUP(DropDownList!$B$47,CntyQryCensus!$A$510:$DA$522,BB$1)","v":20},{"$f":"VLOOKUP(DropDownList!$B$47,CntyQryCensus!$A$510:$DA$522,BC$1)","v":197},{"$f":"VLOOKUP(DropDownList!$B$47,CntyQryCensus!$A$510:$DA$522,BD$1)","v":3426},{"$f":"VLOOKUP(DropDownList!$B$47,CntyQryCensus!$A$510:$DA$522,BE$1)","v":624},{"$f":"VLOOKUP(DropDownList!$B$47,CntyQryCensus!$A$510:$DA$522,BF$1)","v":7},{"$f":"VLOOKUP(DropDownList!$B$47,CntyQryCensus!$A$510:$DA$522,BG$1)","v":0},{"$f":"VLOOKUP(DropDownList!$B$47,CntyQryCensus!$A$510:$DA$522,BH$1)","v":0},{"$f":"VLOOKUP(DropDownList!$B$47,CntyQryCensus!$A$510:$DA$522,BI$1)","v":7},{"$f":"VLOOKUP(DropDownList!$B$47,CntyQryCensus!$A$510:$DA$522,BJ$1)","v":0},{"$f":"VLOOKUP(DropDownList!$B$47,CntyQryCensus!$A$510:$DA$522,BK$1)","v":9},{"$f":"VLOOKUP(DropDownList!$B$47,CntyQryCensus!$A$510:$DA$522,BL$1)","v":0},{"$f":"VLOOKUP(DropDownList!$B$47,CntyQryCensus!$A$510:$DA$522,BM$1)","v":9},{"$f":"VLOOKUP(DropDownList!$B$47,CntyQryCensus!$A$510:$DA$522,BN$1)","v":608},{"$f":"VLOOKUP(DropDownList!$B$47,CntyQryCensus!$A$510:$DA$522,BO$1)","v":204},{"$f":"VLOOKUP(DropDownList!$B$47,CntyQryCensus!$A$510:$DA$522,BP$1)","v":12},{"$f":"VLOOKUP(DropDownList!$B$47,CntyQryCensus!$A$510:$DA$522,BQ$1)","v":0},{"$f":"VLOOKUP(DropDownList!$B$47,CntyQryCensus!$A$510:$DA$522,BR$1)","v":0},{"$f":"VLOOKUP(DropDownList!$B$47,CntyQryCensus!$A$510:$DA$522,BS$1)","v":0},{"$f":"VLOOKUP(DropDownList!$B$47,CntyQryCensus!$A$510:$DA$522,BT$1)","v":0},{"$f":"VLOOKUP(DropDownList!$B$47,CntyQryCensus!$A$510:$DA$522,BU$1)","v":0},{"$f":"VLOOKUP(DropDownList!$B$47,CntyQryCensus!$A$510:$DA$522,BV$1)","v":12},{"$f":"VLOOKUP(DropDownList!$B$47,CntyQryCensus!$A$510:$DA$522,BW$1)","v":0},{"$f":"VLOOKUP(DropDownList!$B$47,CntyQryCensus!$A$510:$DA$522,BX$1)","v":0},{"$f":"VLOOKUP(DropDownList!$B$47,CntyQryCensus!$A$510:$DA$522,BY$1)","v":0},{"$f":"VLOOKUP(DropDownList!$B$47,CntyQryCensus!$A$510:$DA$522,BZ$1)","v":0},{"$f":"VLOOKUP(DropDownList!$B$47,CntyQryCensus!$A$510:$DA$522,CA$1)","v":0},{"$f":"VLOOKUP(DropDownList!$B$47,CntyQryCensus!$A$510:$DA$522,CB$1)","v":192},{"$f":"VLOOKUP(DropDownList!$B$47,CntyQryCensus!$A$510:$DA$522,CC$1)","v":2320},{"$f":"VLOOKUP(DropDownList!$B$47,CntyQryCensus!$A$510:$DA$522,CD$1)","v":157},{"$f":"VLOOKUP(DropDownList!$B$47,CntyQryCensus!$A$510:$DA$522,CE$1)","v":0},{"$f":"VLOOKUP(DropDownList!$B$47,CntyQryCensus!$A$510:$DA$522,CF$1)","v":7},{"$f":"VLOOKUP(DropDownList!$B$47,CntyQryCensus!$A$510:$DA$522,CG$1)","v":0},{"$f":"VLOOKUP(DropDownList!$B$47,CntyQryCensus!$A$510:$DA$522,CH$1)","v":0},{"$f":"VLOOKUP(DropDownList!$B$47,CntyQryCensus!$A$510:$DA$522,CI$1)","v":0},{"$f":"VLOOKUP(DropDownList!$B$47,CntyQryCensus!$A$510:$DA$522,CJ$1)","v":150},{"$f":"VLOOKUP(DropDownList!$B$47,CntyQryCensus!$A$510:$DA$522,CK$1)","v":166},{"$f":"VLOOKUP(DropDownList!$B$47,CntyQryCensus!$A$510:$DA$522,CL$1)","v":17},{"$f":"VLOOKUP(DropDownList!$B$47,CntyQryCensus!$A$510:$DA$522,CM$1)","v":149},{"$f":"VLOOKUP(DropDownList!$B$47,CntyQryCensus!$A$510:$DA$522,CN$1)","v":31},{"$f":"VLOOKUP(DropDownList!$B$47,CntyQryCensus!$A$510:$DA$522,CO$1)","v":118},{"$f":"VLOOKUP(DropDownList!$B$47,CntyQryCensus!$A$510:$DA$522,CP$1)","v":1997},{"$f":"VLOOKUP(DropDownList!$B$47,CntyQryCensus!$A$510:$DA$522,CQ$1)","v":278},{"$f":"VLOOKUP(DropDownList!$B$47,CntyQryCensus!$A$510:$DA$522,CR$1)","v":70},{"$f":"VLOOKUP(DropDownList!$B$47,CntyQryCensus!$A$510:$DA$522,CS$1)","v":28},{"$f":"VLOOKUP(DropDownList!$B$47,CntyQryCensus!$A$510:$DA$522,CT$1)","v":13},{"$f":"VLOOKUP(DropDownList!$B$47,CntyQryCensus!$A$510:$DA$522,CU$1)","v":0},{"$f":"VLOOKUP(DropDownList!$B$47,CntyQryCensus!$A$510:$DA$522,CV$1)","v":0},{"$f":"VLOOKUP(DropDownList!$B$47,CntyQryCensus!$A$510:$DA$522,CW$1)","v":29},{"$f":"VLOOKUP(DropDownList!$B$47,CntyQryCensus!$A$510:$DA$522,CX$1)","v":50},{"$f":"VLOOKUP(DropDownList!$B$47,CntyQryCensus!$A$510:$DA$522,CY$1)","v":0},{"$f":"VLOOKUP(DropDownList!$B$47,CntyQryCensus!$A$510:$DA$522,CZ$1)","v":50},{"$f":"VLOOKUP(DropDownList!$B$47,CntyQryCensus!$A$510:$DA$522,DA$1)","v":158}]
[]
[]
[]
[]
[{"$f":"VLOOKUP(DropDownList!$B$47,CntyQryCensus!$A$510:$DA$522,A$1)","v":"Barrington"}]
[]
[]
[]
["ACS",2,{"$f":"B105+1","v":3},{"$f":"C105+1","v":4},5,6,7,8,9,10,11,{"$f":"K105+1","v":12},13,14,15,{"$f":"O105+1","v":16},17,18,19,20,21,22,23,24,25,26,27,28,29,30,31,32,33,34,35,36,37,38,39,40,41,42,43,44,45,46,47,48,49,50,51,52,53,54,55,56,57,58,59,60,61,62,63,64,65,66,67,{"$f":"BO105+1","v":68},69,70,71,72,73,74,75,76,77,78,79,80,81,82,83,84,85,86,87,88,89,90,91,92,93,94,95,96,97,98,99,100,101,102,103,104,105,106,107,108,109,110,111,112,113,114,115,116,117,118,119,120,121,122,123,124,125]
["Househould Data (Housing Unit Type)"]
["NAME","TotalHU",{"$f":"\"MOE \"&B107","v":"MOE TotalHU"},"TotalOccHU",{"$f":"\"MOE \"&D107","v":"MOE TotalOccHU"},"TotalOwnerOccUn",{"$f":"\"MOE \"&F107","v":"MOE TotalOwnerOccUn"},"TotalRenterOccn",{"$f":"\"MOE \"&H107","v":"MOE TotalRenterOccn"},"TotalVacantUntis",{"$f":"\"MOE \"&J107","v":"MOE TotalVacantUntis"},"VacantUnitsForRent",{"$f":"\"MOE \"&L107","v":"MOE VacantUnitsForRent"},"VacantUnitRentedNotOcc",{"$f":"\"MOE \"&N107","v":"MOE VacantUnitRentedNotOcc"},"VacantUnitForSale",{"$f":"\"MOE \"&P107","v":"MOE VacantUnitForSale"},"VacantUnitSoldNotOcc",{"$f":"\"MOE \"&R107","v":"MOE VacantUnitSoldNotOcc"},"VacantUnitSeasonalRec",{"$f":"\"MOE \"&T107","v":"MOE VacantUnitSeasonalRec"},"TotalPopInHousingUnits",{"$f":"\"MOE \"&V107","v":"MOE TotalPopInHousingUnits"},"OwnerOccPopHousingUnits",{"$f":"\"MOE \"&X107","v":"MOE OwnerOccPopHousingUnits"},"RenterOccPopHousingUnits",{"$f":"\"MOE \"&Z107","v":"MOE RenterOccPopHousingUnits"},"TotalUntis",{"$f":"\"MOE \"&AB107","v":"MOE TotalUntis"},"TotalOwnerOccUnits",{"$f":"\"MOE \"&AD107","v":"MOE TotalOwnerOccUnits"},"SigFamOwnerOcc",{"$f":"\"MOE \"&AF107","v":"MOE SigFamOwnerOcc"},"MultiFamOwnerOcc",{"$f":"\"MOE \"&AH107","v":"MOE MultiFamOwnerOcc"},"MobileOwnerOcc",{"$f":"\"MOE \"&AJ107","v":"MOE MobileOwnerOcc"},"TotalRenterOccUnits",{"$f":"\"MOE \"&AL107","v":"MOE TotalRenterOccUnits"},"SigFamRenterOcc",{"$f":"\"MOE \"&AN107","v":"MOE SigFamRenterOcc"},"MultiFamRenterOcc",{"$f":"\"MOE \"&AP107","v":"MOE MultiFamRenterOcc"},"MobileRenterOcc",{"$f":"\"MOE \"&AR107","v":"MOE MobileRenterOcc"},"TotalSigFamilyUnits",{"$f":"\"MOE \"&AT107","v":"MOE TotalSigFamilyUnits"},"TotalMultiFamilyUnits",{"$f":"\"MOE \"&AV107","v":"MOE TotalMultiFamilyUnits"},"TotalMobileUnits",{"$f":"\"MOE \"&AX107","v":"MOE TotalMobileUnits"},"YrHouseBuilt2014Later",{"$f":"\"MOE \"&AZ107","v":"MOE YrHouseBuilt2014Later"},"YrHouseBuilt2010-2013",{"$f":"\"MOE \"&BB107","v":"MOE YrHouseBuilt2010-2013"},"YrHouseBuilt2000-2009",{"$f":"\"MOE \"&BD107","v":"MOE YrHouseBuilt2000-2009"},"YrHouseBuilt1990-1999",{"$f":"\"MOE \"&BF107","v":"MOE YrHouseBuilt1990-1999"},"YrHouseBuilt1980-1989",{"$f":"\"MOE \"&BH107","v":"MOE YrHouseBuilt1980-1989"},"YrHouseBuilt1970-1979",{"$f":"\"MOE \"&BJ107","v":"MOE YrHouseBuilt1970-1979"},"YrHouseBuilt1960-1969",{"$f":"\"MOE \"&BL107","v":"MOE YrHouseBuilt1960-1969"},"YrHouseBuilt1950-1959",{"$f":"\"MOE \"&BN107","v":"MOE YrHouseBuilt1950-1959"},"YrHouseBuilt1940-1949",{"$f":"\"MOE \"&BP107","v":"MOE YrHouseBuilt1940-1949"},"YrHouseBuilt1939orEarlier",{"$f":"\"MOE \"&BR107","v":"MOE YrHouseBuilt1939orEarlier"},"NoBedrooms",{"$f":"\"MOE \"&BT107","v":"MOE NoBedrooms"},"1Bedroom",{"$f":"\"MOE \"&BV107","v":"MOE 1Bedroom"},"2Bedroom",{"$f":"\"MOE \"&BX107","v":"MOE 2Bedroom"},"3Bedroom",{"$f":"\"MOE \"&BZ107","v":"MOE 3Bedroom"},"4+Bedroom",{"$f":"\"MOE \"&CB107","v":"MOE 4+Bedroom"}]
[{"$f":"VLOOKUP(DropDownList!$B$47,CntyQryCensus!$A$510:$DA$522,A$1)","v":"Barrington"},3588,198,3307,184,2948,207,359,153,281,127,0,15,0,15,38,60,0,15,191,108,8690,17,7900,348,790,347,3307,184,2948,207,2410,214,111,93.085981758801893,427,138.81282361511128,359,153,233,139,126,87.321245982864909,0,21.213203435596427,2884,222,260,127.83192089615176,444,133.843191832831,26,31,543,197,463,176,981,239,661,184,246,125,174,121,65,56,429,144,0,15,252,154,1199,235,1290,220,847,242.03305559365234,657,230.31500168247834,null,null,null,null,28]
[]
["Disability Data"]
["NAME","TotalPop",{"$f":"\"MOE \"&B111","v":"MOE TotalPop"},"PopUnder 5 years:",{"$f":"\"MOE \"&D111","v":"MOE PopUnder 5 years:"},{"$f":"D$111&\"-WithDisability\"","v":"PopUnder 5 years:-WithDisability"},{"$f":"\"MOE \"&F111","v":"MOE PopUnder 5 years:-WithDisability"},{"$f":"D111&\"-NoDisability\"","v":"PopUnder 5 years:-NoDisability"},{"$f":"\"MOE \"&H111","v":"MOE PopUnder 5 years:-NoDisability"},"PopUnder 5 to 17years:",{"$f":"\"MOE \"&J111","v":"MOE PopUnder 5 to 17years:"},{"$f":"J$111&\"-WithDisability\"","v":"PopUnder 5 to 17years:-WithDisability"},{"$f":"\"MOE \"&L111","v":"MOE PopUnder 5 to 17years:-WithDisability"},{"$f":"J111&\"-NoDisability\"","v":"PopUnder 5 to 17years:-NoDisability"},{"$f":"\"MOE \"&N111","v":"MOE PopUnder 5 to 17years:-NoDisability"},"PopUnder 18 to 34 years:",{"$f":"\"MOE \"&P111","v":"MOE PopUnder 18 to 34 years:"},{"$f":"P$111&\"-WithDisability\"","v":"PopUnder 18 to 34 years:-WithDisability"},{"$f":"\"MOE \"&R111","v":"MOE PopUnder 18 to 34 years:-WithDisability"},{"$f":"P111&\"-NoDisability\"","v":"PopUnder 18 to 34 years:-NoDisability"},{"$f":"\"MOE \"&T111","v":"MOE PopUnder 18 to 34 years:-NoDisability"},"Pop 35 years to 64:",{"$f":"\"MOE \"&V111","v":"MOE Pop 35 years to 64:"},{"$f":"$V$111&\"-WithDisability\"","v":"Pop 35 years to 64:-WithDisability"},{"$f":"\"MOE \"&X111","v":"MOE Pop 35 years to 64:-WithDisability"},{"$f":"$V$111&\"-NoDisability\"","v":"Pop 35 years to 64:-NoDisability"},{"$f":"\"MOE \"&Z111","v":"MOE Pop 35 years to 64:-NoDisability"},"Pop 65 years to 74:",{"$f":"\"MOE \"&AB111","v":"MOE Pop 65 years to 74:"},{"$f":"$AB$111&\"-WithDisability\"","v":"Pop 65 years to 74:-WithDisability"},{"$f":"\"MOE \"&AD111","v":"MOE Pop 65 years to 74:-WithDisability"},{"$f":"$AB$111&\"-NoDisability\"","v":"Pop 65 years to 74:-NoDisability"},{"$f":"\"MOE \"&AF111","v":"MOE Pop 65 years to 74:-NoDisability"},"Pop 75 and older:",{"$f":"\"MOE \"&AH111","v":"MOE Pop 75 and older:"},{"$f":"$AH$111&\"-WithDisability\"","v":"Pop 75 and older:-WithDisability"},{"$f":"\"MOE \"&AJ111","v":"MOE Pop 75 and older:-WithDisability"},{"$f":"$AH$111&\"-NoDisability\"","v":"Pop 75 and older:-NoDisability"},{"$f":"\"MOE \"&AL111","v":"MOE Pop 75 and older:-NoDisability"},"TotalPopUnder5_HearingDisability",{"$f":"\"MOE \"&AN111","v":"MOE TotalPopUnder5_HearingDisability"},"TotalPopUnder5_HearingDisability",{"$f":"\"MOE \"&AP111","v":"MOE TotalPopUnder5_HearingDisability"},"TotalPop18To34_HearingDisability",{"$f":"\"MOE \"&AR111","v":"MOE TotalPop18To34_HearingDisability"},"TotalPop35To64_HearingDisability",{"$f":"\"MOE \"&AT111","v":"MOE TotalPop35To64_HearingDisability"},"TotalPop65To74_HearingDisability",{"$f":"\"MOE \"&AV111","v":"MOE TotalPop65To74_HearingDisability"},"TotalPop75andOlder_HearingDisability",{"$f":"\"MOE \"&AX111","v":"MOE TotalPop75andOlder_HearingDisability"},"TotalPopUnder5_VisionDisability",{"$f":"\"MOE \"&AZ111","v":"MOE TotalPopUnder5_VisionDisability"},"TotalPop5To17_VisionDisability",{"$f":"\"MOE \"&BB111","v":"MOE TotalPop5To17_VisionDisability"},"TotalPop18To34_VisionDisability",{"$f":"\"MOE \"&BD111","v":"MOE TotalPop18To34_VisionDisability"},"TotalPop35To64_VisionDisability",{"$f":"\"MOE \"&BF111","v":"MOE TotalPop35To64_VisionDisability"},"TotalPop65To74_VisionDisability",{"$f":"\"MOE \"&BH111","v":"MOE TotalPop65To74_VisionDisability"},"TotalPop75andOlder_VisionDisability",{"$f":"\"MOE \"&BJ111","v":"MOE TotalPop75andOlder_VisionDisability"},"TotalPop5To17_CongnitiveDisability",{"$f":"\"MOE \"&BL111","v":"MOE TotalPop5To17_CongnitiveDisability"},"TotalPop18To34_CongnitiveDisability",{"$f":"\"MOE \"&BN111","v":"MOE TotalPop18To34_CongnitiveDisability"},"TotalPop35To64_CongnitiveDisability",{"$f":"\"MOE \"&BP111","v":"MOE TotalPop35To64_CongnitiveDisability"},"TotalPop65To74_CongnitiveDisability",{"$f":"\"MOE \"&BR111","v":"MOE TotalPop65To74_CongnitiveDisability"},"TotalPop75andOlder_CongnitiveDisability",{"$f":"\"MOE \"&BT111","v":"MOE TotalPop75andOlder_CongnitiveDisability"},"TotalPop5To17_AmbulatoryDisability",{"$f":"\"MOE \"&BV111","v":"MOE TotalPop5To17_AmbulatoryDisability"},"TotalPop18To34_AmbulatoryDisability",{"$f":"\"MOE \"&BX111","v":"MOE TotalPop18To34_AmbulatoryDisability"},"TotalPop35To64_AmbulatoryDisability",{"$f":"\"MOE \"&BZ111","v":"MOE TotalPop35To64_AmbulatoryDisability"},"TotalPop65To74_AmbulatoryDisability",{"$f":"\"MOE \"&CB111","v":"MOE TotalPop65To74_AmbulatoryDisability"},"TotalPop75andOlder_AmbulatoryDisability",{"$f":"\"MOE \"&CD111","v":"MOE TotalPop75andOlder_AmbulatoryDisability"},"TotalPop5To17_SelfCareDisability",{"$f":"\"MOE \"&CF111","v":"MOE TotalPop5To17_SelfCareDisability"},"TotalPop18To34_SelfCareDisability",{"$f":"\"MOE \"&CH111","v":"MOE TotalPop18To34_SelfCareDisability"},"TotalPop35To64_SelfCareDisability",{"$f":"\"MOE \"&CJ111","v":"MOE TotalPop35To64_SelfCareDisability"},"TotalPop65To74_SelfCareDisability",{"$f":"\"MOE \"&CL111","v":"MOE TotalPop65To74_SelfCareDisability"},"TotalPop75andOlder_SelfCareDisability",{"$f":"\"MOE \"&CN111","v":"MOE TotalPop75andOlder_SelfCareDisability"},"TotalPop18To34_IndependantLivingDisability",{"$f":"\"MOE \"&CP111","v":"MOE TotalPop18To34_IndependantLivingDisability"},"TotalPop35To64_IndependantLivingDisability",{"$f":"\"MOE \"&CR111","v":"MOE TotalPop35To64_IndependantLivingDisability"},"TotalPop65To74_IndependantLivingDisability",{"$f":"\"MOE \"&CT111","v":"MOE TotalPop65To74_IndependantLivingDisability"},"TotalPop75andOlder_IndependantLivingDisability",{"$f":"\"MOE \"&CV111","v":"MOE TotalPop75andOlder_IndependantLivingDisability"},"TotalUnder5_HearingorVisionDisability",{"$f":"\"MOE \"&CX111","v":"MOE TotalUnder5_HearingorVisionDisability"},"TotalUnder5_HearingandVisionDisability",{"$f":"\"MOE \"&CZ111","v":"MOE TotalUnder5_HearingandVisionDisability"},"5to17YearWIthOneDisability",{"$f":"\"MOE \"&DB111","v":"MOE 5to17YearWIthOneDisability"},"5to17YearWIthTwoOrMoreDisability",{"$f":"\"MOE \"&DD111","v":"MOE 5to17YearWIthTwoOrMoreDisability"},"18to34YearWIthOneDisability",{"$f":"\"MOE \"&DF111","v":"MOE 18to34YearWIthOneDisability"},"18to34YearWIthTwoOrMoreDisability",{"$f":"\"MOE \"&DH111","v":"MOE 18to34YearWIthTwoOrMoreDisability"},"35to64YearWIthOneDisability",{"$f":"\"MOE \"&DJ111","v":"MOE 35to64YearWIthOneDisability"},"35to64YearWIthTwoOrMoreDisability",{"$f":"\"MOE \"&DL111","v":"MOE 35to64YearWIthTwoOrMoreDisability"},"65to74YearWIthOneDisability",{"$f":"\"MOE \"&DN111","v":"MOE 65to74YearWIthOneDisability"},"65to74YearWIthTwoOrMoreDisability",{"$f":"\"MOE \"&DP111","v":"MOE 65to74YearWIthTwoOrMoreDisability"},"75AndOlderWIthOneDisability",{"$f":"\"MOE \"&DR111","v":"MOE 75AndOlderWIthOneDisability"},"75AndOlderWIthTwoOrMoreDisability",{"$f":"\"MOE \"&DT111","v":"MOE 75AndOlderWIthTwoOrMoreDisability"}]
[{"$f":"VLOOKUP(DropDownList!$B$47,CntyQryCensus!$A$510:$DA$522,A$1)","v":"Barrington"},8691,17,600,216.00462958001617,0,21.213203435596427,600,216.00462958001617,1307,308.52552568628744,23,41.785164831552358,1284,305.66812067992959,1527,249.0461804565571,57,53.413481444294568,1470,244.6752950340512,4301,257.0311265197272,364,155.05160431288675,3937,271.49401466699038,625,166.58031096140985,304,131.82564242210239,321,131.22880781291889,331,139.51702405083043,210,102.61578825892242,121,94.36630754670864,0,21.213203435596427,0,21.213203435596427,0,21.213203435596427,130,90.520715861066847,92,70.007142492748557,64,52.153619241621193,0,21.213203435596427,0,21.213203435596427,0,21.213203435596427,38,42.449970553582247,17,31.76476034853718,23,40.853396431630991,23,41.785164831552358,57,53.413481444294568,59,59.908263203000637,96,83.450584180100265,54,45.793012567421243,0,21.213203435596427,22,36.249137920783717,211,119.47384651043926,179,111.89280584559492,107,64.637450444769243,0,21.213203435596427,22,36.249137920783717,12,25.80697580112788,17,31.76476034853718,38,44.77722635447622,22,36.249137920783717,94,77.89736837660179,26,35.341194094144583,152,93.813645062965122,0,15,11,18,56,46,89,65,88,53,77,56,751,211]
[]
["Househould Income By Age"]
["NAME","TotalHouseholds",{"$f":"\"MOE \"&B115","v":"MOE TotalHouseholds"},"HHInc<10K",{"$f":"\"MOE \"&D115","v":"MOE HHInc<10K"},"HHInc10to15K",{"$f":"\"MOE \"&F115","v":"MOE HHInc10to15K"},"HHInc15to20K",{"$f":"\"MOE \"&H115","v":"MOE HHInc15to20K"},"HHInc20to25K",{"$f":"\"MOE \"&J115","v":"MOE HHInc20to25K"},"HHInc25to30K",{"$f":"\"MOE \"&L115","v":"MOE HHInc25to30K"},"HHInc30to35K",{"$f":"\"MOE \"&N115","v":"MOE HHInc30to35K"},"HHInc35to40K",{"$f":"\"MOE \"&P115","v":"MOE HHInc35to40K"},"HHInc40to45K",{"$f":"\"MOE \"&R115","v":"MOE HHInc40to45K"},"HHInc45to50K",{"$f":"\"MOE \"&T115","v":"MOE HHInc45to50K"},"HHInc50to60K",{"$f":"\"MOE \"&V115","v":"MOE HHInc50to60K"},"HHInc60to75K",{"$f":"\"MOE \"&X115","v":"MOE HHInc60to75K"},"HHInc75to100K",{"$f":"\"MOE \"&Z115","v":"MOE HHInc75to100K"},"HHInc100to125K",{"$f":"\"MOE \"&AB115","v":"MOE HHInc100to125K"},"HHInc125to150K",{"$f":"\"MOE \"&AD115","v":"MOE HHInc125to150K"},"HHInc150to200K",{"$f":"\"MOE \"&AF115","v":"MOE HHInc150to200K"},"HHInc>200K",{"$f":"\"MOE \"&AH115","v":"MOE HHInc>200K"},"TotalHH",{"$f":"\"MOE \"&AJ115","v":"MOE TotalHH"},"HHAgeHHUnder25yrs",{"$f":"\"MOE \"&AL115","v":"MOE HHAgeHHUnder25yrs"},"HHAgeHH<25HHInc<10K",{"$f":"\"MOE \"&AN115","v":"MOE HHAgeHH<25HHInc<10K"},"HHAgeHH<25HHInc10to15K",{"$f":"\"MOE \"&AP115","v":"MOE HHAgeHH<25HHInc10to15K"},"HHAgeHH<25HHInc15to20K",{"$f":"\"MOE \"&AR115","v":"MOE HHAgeHH<25HHInc15to20K"},"HHAgeHH<25HHInc20to25K",{"$f":"\"MOE \"&AT115","v":"MOE HHAgeHH<25HHInc20to25K"},"HHAgeHH<25HHInc25to30K",{"$f":"\"MOE \"&AV115","v":"MOE HHAgeHH<25HHInc25to30K"},"HHAgeHH<25HHInc30to35K",{"$f":"\"MOE \"&AX115","v":"MOE HHAgeHH<25HHInc30to35K"},"HHAgeHH<25HHInc35to40K",{"$f":"\"MOE \"&AZ115","v":"MOE HHAgeHH<25HHInc35to40K"},"HHAgeHH<25HHInc40to45K",{"$f":"\"MOE \"&BB115","v":"MOE HHAgeHH<25HHInc40to45K"},"HHAgeHH<25HHInc45to50K",{"$f":"\"MOE \"&BD115","v":"MOE HHAgeHH<25HHInc45to50K"},"HHAgeHH<25HHInc50to60K",{"$f":"\"MOE \"&BF115","v":"MOE HHAgeHH<25HHInc50to60K"},"HHAgeHH<25HHInc60to75K",{"$f":"\"MOE \"&BH115","v":"MOE HHAgeHH<25HHInc60to75K"},"HHAgeHH<25HHInc75to100K",{"$f":"\"MOE \"&BJ115","v":"MOE HHAgeHH<25HHInc75to100K"},"HHAgeHH<25HHInc100to125K",{"$f":"\"MOE \"&BL115","v":"MOE HHAgeHH<25HHInc100to125K"},"HHAgeHH<25HHInc125to150K",{"$f":"\"MOE \"&BN115","v":"MOE HHAgeHH<25HHInc125to150K"},"HHAgeHH<25HHInc150to200K",{"$f":"\"MOE \"&BP115","v":"MOE HHAgeHH<25HHInc150to200K"},"HHAge<25HHInc>200K",{"$f":"\"MOE \"&BR115","v":"MOE HHAge<25HHInc>200K"},"HHAgeHH25to44yrs",{"$f":"\"MOE \"&BT115","v":"MOE HHAgeHH25to44yrs"},"HHAgeHH25To44yrsHHInc<10K",{"$f":"\"MOE \"&BV115","v":"MOE HHAgeHH25To44yrsHHInc<10K"},"HHAgeHH25To44yrsHHInc10to15K",{"$f":"\"MOE \"&BX115","v":"MOE HHAgeHH25To44yrsHHInc10to15K"},"HHAgeHH25To44yrsHHInc15to20K",{"$f":"\"MOE \"&BZ115","v":"MOE HHAgeHH25To44yrsHHInc15to20K"},"HHAgeHH25To44yrsHHInc20to25K",{"$f":"\"MOE \"&CB115","v":"MOE HHAgeHH25To44yrsHHInc20to25K"},"HHAgeHH25To44yrsHHInc25to30K",{"$f":"\"MOE \"&CD115","v":"MOE HHAgeHH25To44yrsHHInc25to30K"},"HHAgeHH25To44yrsHHInc30to35K",{"$f":"\"MOE \"&CF115","v":"MOE HHAgeHH25To44yrsHHInc30to35K"},"HHAgeHH25To44yrsHHInc35to40K",{"$f":"\"MOE \"&CH115","v":"MOE HHAgeHH25To44yrsHHInc35to40K"},"HHAgeHH25To44yrsHHInc40to45K",{"$f":"\"MOE \"&CJ115","v":"MOE HHAgeHH25To44yrsHHInc40to45K"},"HHAgeHH25To44yrsHHInc45to50K",{"$f":"\"MOE \"&CL115","v":"MOE HHAgeHH25To44yrsHHInc45to50K"},"HHAgeHH25To44yrsHHInc50to60K",{"$f":"\"MOE \"&CN115","v":"MOE HHAgeHH25To44yrsHHInc50to60K"},"HHAgeHH25To44yrsHHInc60to75K",{"$f":"\"MOE \"&CP115","v":"MOE HHAgeHH25To44yrsHHInc60to75K"},"HHAgeHH25To44yrsHHInc75to100K",{"$f":"\"MOE \"&CR115","v":"MOE HHAgeHH25To44yrsHHInc75to100K"},"HHAgeHH25To44yrsHHInc100to125K",{"$f":"\"MOE \"&CT115","v":"MOE HHAgeHH25To44yrsHHInc100to125K"},"HHAgeHH25To44yrsHHInc125to150K",{"$f":"\"MOE \"&CV115","v":"MOE HHAgeHH25To44yrsHHInc125to150K"},"HHAgeHH25To44yrsHHInc150to200K",{"$f":"\"MOE \"&CX115","v":"MOE HHAgeHH25To44yrsHHInc150to200K"},"HHAge25To44yrsHHInc>200K",{"$f":"\"MOE \"&CZ115","v":"MOE HHAge25To44yrsHHInc>200K"},"HHAgeHH45To64yrs",{"$f":"\"MOE \"&DB115","v":"MOE HHAgeHH45To64yrs"},"HHAgeHH45To64yrsHHInc<10K",{"$f":"\"MOE \"&DD115","v":"MOE HHAgeHH45To64yrsHHInc<10K"},"HHAgeHH45To64yrsHHInc10to15K",{"$f":"\"MOE \"&DF115","v":"MOE HHAgeHH45To64yrsHHInc10to15K"},"HHAgeHH45To64yrsHHInc15to20K",{"$f":"\"MOE \"&DH115","v":"MOE HHAgeHH45To64yrsHHInc15to20K"},"HHAgeHH45To64yrsHHInc20to25K",{"$f":"\"MOE \"&DJ115","v":"MOE HHAgeHH45To64yrsHHInc20to25K"},"HHAgeHH45To64yrsHHInc25to30K",{"$f":"\"MOE \"&DL115","v":"MOE HHAgeHH45To64yrsHHInc25to30K"},"HHAgeHH45To64yrsHHInc30to35K",{"$f":"\"MOE \"&DN115","v":"MOE HHAgeHH45To64yrsHHInc30to35K"},"HHAgeHH45To64yrsHHInc35to40K",{"$f":"\"MOE \"&DP115","v":"MOE HHAgeHH45To64yrsHHInc35to40K"},"HHAgeHH45To64yrsHHInc40to45K",{"$f":"\"MOE \"&DR115","v":"MOE HHAgeHH45To64yrsHHInc40to45K"},"HHAgeHH45To64yrsHHInc45to50K",{"$f":"\"MOE \"&DT115","v":"MOE HHAgeHH45To64yrsHHInc45to50K"},"HHAgeHH45To64yrsHHInc50to60K",{"$f":"\"MOE \"&DV115","v":"MOE HHAgeHH45To64yrsHHInc50to60K"},"HHAgeHH45To64yrsHHInc60to75K",{"$f":"\"MOE \"&DX115","v":"MOE HHAgeHH45To64yrsHHInc60to75K"},"HHAgeHH45To64yrsHHInc75to100K",{"$f":"\"MOE \"&DZ115","v":"MOE HHAgeHH45To64yrsHHInc75to100K"},"HHAgeHH45To64yrsHHInc100to125K",{"$f":"\"MOE \"&EB115","v":"MOE HHAgeHH45To64yrsHHInc100to125K"},"HHAgeHH45To64yrsHHInc125to150K",{"$f":"\"MOE \"&ED115","v":"MOE HHAgeHH45To64yrsHHInc125to150K"},"HHAgeHH45To64yrsHHInc150to200K",{"$f":"\"MOE \"&EF115","v":"MOE HHAgeHH45To64yrsHHInc150to200K"},"HHAge45To64yrsHHInc>200K",{"$f":"\"MOE \"&EH115","v":"MOE HHAge45To64yrsHHInc>200K"},"HHAgeHH65yrsorOlder",{"$f":"\"MOE \"&EJ115","v":"MOE HHAgeHH65yrsorOlder"},"HHAgeHH65yrsorOlderHHInc<10K",{"$f":"\"MOE \"&EL115","v":"MOE HHAgeHH65yrsorOlderHHInc<10K"},"HHAgeHH65yrsorOlderHHInc10to15K",{"$f":"\"MOE \"&EN115","v":"MOE HHAgeHH65yrsorOlderHHInc10to15K"},"HHAgeHH65yrsorOlderHHInc15to20K",{"$f":"\"MOE \"&EP115","v":"MOE HHAgeHH65yrsorOlderHHInc15to20K"},"HHAgeHH65yrsorOlderHHInc20to25K",{"$f":"\"MOE \"&ER115","v":"MOE HHAgeHH65yrsorOlderHHInc20to25K"},"HHAgeHH65yrsorOlderHHInc25to30K",{"$f":"\"MOE \"&ET115","v":"MOE HHAgeHH65yrsorOlderHHInc25to30K"},"HHAgeHH65yrsorOlderHHInc30to35K",{"$f":"\"MOE \"&EV115","v":"MOE HHAgeHH65yrsorOlderHHInc30to35K"},"HHAgeHH65yrsorOlderHHInc35to40K",{"$f":"\"MOE \"&EX115","v":"MOE HHAgeHH65yrsorOlderHHInc35to40K"},"HHAgeHH65yrsorOlderHHInc40to45K",{"$f":"\"MOE \"&EZ115","v":"MOE HHAgeHH65yrsorOlderHHInc40to45K"},"HHAgeHH65yrsorOlderHHInc45to50K",{"$f":"\"MOE \"&FB115","v":"MOE HHAgeHH65yrsorOlderHHInc45to50K"},"HHAgeHH65yrsorOlderHHInc50to60K",{"$f":"\"MOE \"&FD115","v":"MOE HHAgeHH65yrsorOlderHHInc50to60K"},"HHAgeHH65yrsorOlderHHInc60to75K",{"$f":"\"MOE \"&FF115","v":"MOE HHAgeHH65yrsorOlderHHInc60to75K"},"HHAgeHH65yrsorOlderHHInc75to100K",{"$f":"\"MOE \"&FH115","v":"MOE HHAgeHH65yrsorOlderHHInc75to100K"},"HHAgeHH65yrsorOlderHHInc100to125K",{"$f":"\"MOE \"&FJ115","v":"MOE HHAgeHH65yrsorOlderHHInc100to125K"},"HHAgeHH65yrsorOlderHHInc125to150K",{"$f":"\"MOE \"&FL115","v":"MOE HHAgeHH65yrsorOlderHHInc125to150K"},"HHAgeHH65yrsorOlderHHInc150to200K",{"$f":"\"MOE \"&FN115","v":"MOE HHAgeHH65yrsorOlderHHInc150to200K"},"HHAge65yrsorOlderHHInc>200K",{"$f":"\"MOE \"&FP115","v":"MOE HHAge65yrsorOlderHHInc>200K"},"MedianHHInc",{"$f":"\"MOE \"&FR115","v":"MOE MedianHHInc"},"HH under 25 years",{"$f":"\"MOE \"&FT115","v":"MOE HH under 25 years"},"Householder 25 to 44 years",{"$f":"\"MOE \"&FV115","v":"MOE Householder 25 to 44 years"},"Householder 45 to 64 years",{"$f":"\"MOE \"&FX115","v":"MOE Householder 45 to 64 years"},"Householder 65 years and over",{"$f":"\"MOE \"&FZ115","v":"MOE Householder 65 years and over"}]
[{"$f":"VLOOKUP(DropDownList!$B$47,CntyQryCensus!$A$510:$DA$522,A$1)","v":"Barrington"},3307,184,91,83,174,103,56,64,44,53,115,96,138,102,152,123,98,93,97,79,177,93,320,142,590,173,453,169,205,116,365,185,232,131,3307,184,27,46,0,15,0,15,0,15,0,15,0,15,0,15,0,15,0,15,0,15,0,15,27,46,0,15,0,15,0,15,0,15,0,15,1101,165,48,74,56,52,0,15,0,15,63,83,32,53,100,103,0,15,59,74,59,62,103,69,150,104,150,103,41,40,143,131,97,79,1739,191,43,44,83,76,0,15,44,53,52,42,97,85,0,15,61,74,26,30,96,64,145,79,381,128,260,134,155,105,161,110,135,113,440,156,0,15,35,57,56,64,0,15,0,15,9,15,52,66,37,60,12,20,22,27,45,59,59,52,43,48,9,17,61,70,0,15,82431,7227,"-","**",82243,24773,88375,13694,56964,40579,297,135,195,132,null,null,null,null,null,null,null,null,null,null,null,null,null,null,"Barrington",null,"Esitimate","Margin Of Error",2987,193,null,null,48,47,65,66,137,96.566039579139826,253,97.082439194738001,245,120.47406359876801,477,151.40013210033868,816,184,549,172.15400082484288,216,91,181,122]
[]
["Number of Households by Income"]
["NAME","HHIncLessThn10k",{"$f":"\"MOE \"&B119","v":"MOE HHIncLessThn10k"},"HHInc10to15K",{"$f":"\"MOE \"&D119","v":"MOE HHInc10to15K"},"HHInc15to25K",{"$f":"\"MOE \"&F119","v":"MOE HHInc15to25K"},"HHInc25to35K",{"$f":"\"MOE \"&H119","v":"MOE HHInc25to35K"},"HHInc35to50K",{"$f":"\"MOE \"&J119","v":"MOE HHInc35to50K"},"HHInc50to75K",{"$f":"\"MOE \"&L119","v":"MOE HHInc50to75K"},"HHInc75to100K",{"$f":"\"MOE \"&N119","v":"MOE HHInc75to100K"},"HHInc100to150K",{"$f":"\"MOE \"&P119","v":"MOE HHInc100to150K"},"HHInc150to200K",{"$f":"\"MOE \"&R119","v":"MOE HHInc150to200K"},"HHIncOver200K",{"$f":"\"MOE \"&T119","v":"MOE HHIncOver200K"}]
[{"$f":"VLOOKUP(DropDownList!$B$47,CntyQryCensus!$A$510:$DA$522,A$1)","v":"Barrington"},91,83,174,103,100,83.096329642168911,253,140.07141035914503,347,173.25992035089939,497,169.74392478082979,590,173,658,204.98048687619024,365,185,232,131,533,149,637,143,397,109,163,71,186,95,27,25,null,null,null,null,null,null,null,null,null,null,null,null,null,null,null,null,null,null,null,null,null,null,null,null,null,null,null,null,null,null,null,null,null,null,null,null,null,null,null,null,null,40,80,51,13,20,12,19,104,88,115,65,276,90,254,107,166,59,152,59,206,97,79,43,null,null,null,null,null,null,null,null,null,null,null,null,null,null,"Lee",null,"Esitimate","Margin Of Error",1774,134,null,null,83,74,28,43,92,104.58011283222064,43,49.244289008980523,174,91.586025134842487,256,114.63420083029322,271,92,490,193.9922678871506,225,98,112,70]
[]
[]
["NAME","TotalPop",{"$f":"\"MOE \"&B123","v":"MOE TotalPop"},"Total Individuals living in Poverty",{"$f":"\"MOE \"&D123","v":"MOE Total Individuals living in Poverty"},"Under 5 yrs.",{"$f":"\"MOE \"&F123","v":"MOE Under 5 yrs."},"5 to 17 yrs.",{"$f":"\"MOE \"&H123","v":"MOE 5 to 17 yrs."},"18 to 64 yrs.",{"$f":"\"MOE \"&J123","v":"MOE 18 to 64 yrs."},"65 to 74 yrs.",{"$f":"\"MOE \"&L123","v":"MOE 65 to 74 yrs."},"75 yrs. & Over",{"$f":"\"MOE \"&N123","v":"MOE 75 yrs. & Over"},"Total Individuals  Not living Poverty",{"$f":"\"MOE \"&P123","v":"MOE Total Individuals  Not living Poverty"},"Under 5 yrs.",{"$f":"\"MOE \"&R123","v":"MOE Under 5 yrs."},"5 to 17 yrs.",{"$f":"\"MOE \"&T123","v":"MOE 5 to 17 yrs."},"18 to 64 yrs.",{"$f":"\"MOE \"&V123","v":"MOE 18 to 64 yrs."},"65 to 74 yrs.",{"$f":"\"MOE \"&X123","v":"MOE 65 to 74 yrs."},"75 yrs. & Over",{"$f":"\"MOE \"&Z123","v":"MOE 75 yrs. & Over"},"Total HH",{"$f":"\"MOE \"&AB123","v":"MOE Total HH"},"Total Households Below Poverty",{"$f":"\"MOE \"&AD123","v":"MOE Total Households Below Poverty"},"Family Households in Poverty",{"$f":"\"MOE \"&AF123","v":"MOE Family Households in Poverty"},"Married Couple Fam HH",{"$f":"\"MOE \"&AH123","v":"MOE Married Couple Fam HH"},"Other Family",{"$f":"\"MOE \"&AJ123","v":"MOE Other Family"},"Male Head of Family HH no wife",{"$f":"\"MOE \"&AL123","v":"MOE Male Head of Family HH no wife"},"Female Head of Family HH no husband",{"$f":"\"MOE \"&AN123","v":"MOE Female Head of Family HH no husband"},"Non-Family HH",{"$f":"\"MOE \"&AP123","v":"MOE Non-Family HH"},"Non-Family Male HH",{"$f":"\"MOE \"&AR123","v":"MOE Non-Family Male HH"},"Non-Family Female HH",{"$f":"\"MOE \"&AT123","v":"MOE Non-Family Female HH"},"Total Households at or Above Poverty",{"$f":"\"MOE \"&AV123","v":"MOE Total Households at or Above Poverty"},"Family Households above Poverty",{"$f":"\"MOE \"&AX123","v":"MOE Family Households above Poverty"},"Married Couple Fam HH",{"$f":"\"MOE \"&AZ123","v":"MOE Married Couple Fam HH"},"Other Family",{"$f":"\"MOE \"&BB123","v":"MOE Other Family"},"Male Head of Family HH no wife",{"$f":"\"MOE \"&BD123","v":"MOE Male Head of Family HH no wife"},"Female Head of Family HH no husband",{"$f":"\"MOE \"&BF123","v":"MOE Female Head of Family HH no husband"},"Non-Family HH",{"$f":"\"MOE \"&BH123","v":"MOE Non-Family HH"},"Non-Family Male HH",{"$f":"\"MOE \"&BJ123","v":"MOE Non-Family Male HH"},"Non-Family Female HH",{"$f":"\"MOE \"&BL123","v":"MOE Non-Family Female HH"},"Married Couple with Children Below Poverty",{"$f":"\"MOE \"&BN123","v":"MOE Married Couple with Children Below Poverty"},"Male HH with children below poverty",{"$f":"\"MOE \"&BP123","v":"MOE Male HH with children below poverty"},"Female HH with children below poverty",{"$f":"\"MOE \"&BR123","v":"MOE Female HH with children below poverty"},"Married Couple with Children At or Above Poverty",{"$f":"\"MOE \"&BT123","v":"MOE Married Couple with Children At or Above Poverty"},"Male HH with children at or above poverty",{"$f":"\"MOE \"&BV123","v":"MOE Male HH with children at or above poverty"},"Female HH with children at or above poverty",{"$f":"\"MOE \"&BX123","v":"MOE Female HH with children at or above poverty"}]
[{"$f":"VLOOKUP(DropDownList!$B$47,CntyQryCensus!$A$510:$DA$522,A$1)","v":"Barrington"},8669,37,546,228,10,36.891733491393431,102,96.881370758262918,418,170.98830369355676,0,21.213203435596427,16,27.459060435491963,8123,237,590,216.00462958001617,1183,268.04477237954109,5410,486.60661729984724,625,166.58031096140985,315,136.85759021698431,239,116,91,63,12,19,0,15,79,58,0,15,79,58,148,103,98,93,50,60,3068,196,2394,181,2131,205,263,157,112,115,151,98,674,212,674,212,272,154,0,15,0,15,65,53,809,132,81,102,88,71]
[]
["Household Income By Tenure"]
["NAME","TotalOccHU",{"$f":"\"MOE \"&B127","v":"MOE TotalOccHU"},"OwnOccHU",{"$f":"\"MOE \"&D127","v":"MOE OwnOccHU"},"OOHUInc<5K",{"$f":"\"MOE \"&F127","v":"MOE OOHUInc<5K"},"OOHUInc5to10K",{"$f":"\"MOE \"&H127","v":"MOE OOHUInc5to10K"},"OOHUInc10to15K",{"$f":"\"MOE \"&J127","v":"MOE OOHUInc10to15K"},"OOHUInc15to20K",{"$f":"\"MOE \"&L127","v":"MOE OOHUInc15to20K"},"OOHUInc20to25K",{"$f":"\"MOE \"&N127","v":"MOE OOHUInc20to25K"},"OOHUInc25to35K",{"$f":"\"MOE \"&P127","v":"MOE OOHUInc25to35K"},"OOHUInc35to50K",{"$f":"\"MOE \"&R127","v":"MOE OOHUInc35to50K"},"OOHUInc50to75K",{"$f":"\"MOE \"&T127","v":"MOE OOHUInc50to75K"},"OOHUInc75to100K",{"$f":"\"MOE \"&V127","v":"MOE OOHUInc75to100K"},"OOHUInc100to150K",{"$f":"\"MOE \"&X127","v":"MOE OOHUInc100to150K"},"OOHUInc>150K",{"$f":"\"MOE \"&Z127","v":"MOE OOHUInc>150K"},"RentOccHU",{"$f":"\"MOE \"&AB127","v":"MOE RentOccHU"},"ROHUInc<5K",{"$f":"\"MOE \"&AD127","v":"MOE ROHUInc<5K"},"ROHUInc5to10K",{"$f":"\"MOE \"&AF127","v":"MOE ROHUInc5to10K"},"ROHUInc10to15K",{"$f":"\"MOE \"&AH127","v":"MOE ROHUInc10to15K"},"ROHUInc15to20K",{"$f":"\"MOE \"&AJ127","v":"MOE ROHUInc15to20K"},"ROHUInc20to25K",{"$f":"\"MOE \"&AL127","v":"MOE ROHUInc20to25K"},"ROHUInc25to35K",{"$f":"\"MOE \"&AN127","v":"MOE ROHUInc25to35K"},"ROHUInc35to50K",{"$f":"\"MOE \"&AP127","v":"MOE ROHUInc35to50K"},"ROHUInc50to75K",{"$f":"\"MOE \"&AR127","v":"MOE ROHUInc50to75K"},"ROHUInc75to100K",{"$f":"\"MOE \"&AT127","v":"MOE ROHUInc75to100K"},"ROHUInc100to150K",{"$f":"\"MOE \"&AV127","v":"MOE ROHUInc100to150K"},"ROHUInc>150K",{"$f":"\"MOE \"&AX127","v":"MOE ROHUInc>150K"},"Total OCC HUInc<5K",{"$f":"\"MOE \"&AZ127","v":"MOE Total OCC HUInc<5K"},"Total OCC HUInc5to10K",{"$f":"\"MOE \"&BB127","v":"MOE Total OCC HUInc5to10K"},"Total OCC HUInc10to15K",{"$f":"\"MOE \"&BD127","v":"MOE Total OCC HUInc10to15K"},"Total OCC HUInc15to20K",{"$f":"\"MOE \"&BF127","v":"MOE Total OCC HUInc15to20K"},"Total OCC HUInc20to25K",{"$f":"\"MOE \"&BH127","v":"MOE Total OCC HUInc20to25K"},"Total OCC HUInc25to35K",{"$f":"\"MOE \"&BJ127","v":"MOE Total OCC HUInc25to35K"},"Total OCC HUInc35to50K",{"$f":"\"MOE \"&BL127","v":"MOE Total OCC HUInc35to50K"},"Total OCC HUInc50to75K",{"$f":"\"MOE \"&BN127","v":"MOE Total OCC HUInc50to75K"},"Total OCC HUInc75to100K",{"$f":"\"MOE \"&BP127","v":"MOE Total OCC HUInc75to100K"},"Total OCC HUInc100to150K",{"$f":"\"MOE \"&BR127","v":"MOE Total OCC HUInc100to150K"},"Total OCC HUInc>150K",{"$f":"\"MOE \"&BT127","v":"MOE Total OCC HUInc>150K"},"MedHHInc",{"$f":"\"MOE \"&BV127","v":"MOE MedHHInc"},"MedOwnOccHHInc",{"$f":"\"MOE \"&BX127","v":"MOE MedOwnOccHHInc"},"MedRentOccHHInc",{"$f":"\"MOE \"&BZ127","v":"MOE MedRentOccHHInc"}]
[{"$f":"VLOOKUP(DropDownList!$B$47,CntyQryCensus!$A$510:$DA$522,A$1)","v":"Barrington"},3307,184,2948,207,48,74,33,40,52,61,56,64,31,50,253,152,246,116,451,162,578,170,643,189,557,190,359,153,10,17,0,15,122,92,0,15,13,20,0,15,101,96,46,51,12,22,15,26,40,45,58,75.927597090912869,33,42.720018726587654,174,110.38568747804219,56,65.73431371817918,44,53.851648071345039,253,152.73833834371774,347,150.57224179774968,497,169.83815825661793,590,171.41761869772895,658,190.77997798511248,597,195.25624189766637,82431,7227,86389,11117,44554,26087]
[]
["Population Data"]
["NAME","Total Population","MOE Total Population","Under 15 Years","MOE Under 15 yrs.","15 to 24 yrs.","MOE 15 to 24 yrs.","25 to 34 yrs.","MOE 25 to 34 yrs.","35 to 44 yrs.","MOE 35 to 44 yrs.","45 to 54 yrs.","MOE 45 to 54 yrs.","55 to 64 yrs.","MOE 55 to 64 yrs.","65 to 74 yrs.","MOE 65 to 74 yrs.","Over 74 yrs. ","MOE Over 74 yrs. ","TotalHH","MOE TotalHH","FamilyHH","MOE FamilyHH","MarriedFamilyHH","MOE MarriedFamilyHH","SingleFamilyHH","MOE SingleFamilyHH","Sfamily-MaleHH","MOE Sfamily-MaleHH","Sfamily-FemaleHH","MOE Sfamily-FemaleHH","NonFamilyHH","MOE NonFamilyHH","NonFamilyHH-LivingAlone","MOE NonFamilyHH-LivingAlone","NonFamilyHH-NotLivingAlone","MOE NonFamilyHH-NotLivingAlone","PopRaceWhite","MOE PopRaceWhite","PopRaceBlack","MOE PopRaceBlack","PopRaceAmerican Indian","MOE PopRaceAmerican Indian","PopRaceAsian &Pacific Is.","MOE PopRaceAsian &Pacific Is.","PopRaceOther*","MOE PopRaceOther*","PopRaceHispanic or Latino:","MOE PopRaceHispanic or Latino:","MedianAgeTotalPop","MOE MedianAgeTotalPop","MedianAgeMale","MOE MedianAgeMale","MedianAgeFemale","MOE MedianAgeFemale","AvgHHSizeTotal","MOE AvgHHSizeTotal","AvgHHSizeFamilyHH","MOE AvgHHSizeFamilyHH","AvgHHSizeNonFamilyHH","MOE AvgHHSizeNonFamilyHH"]
[{"$f":"VLOOKUP(DropDownList!$B$47,CntyQryCensus!$A$510:$DA$522,A$1)","v":"Barrington"},8691,17,1667,343.71499821800035,844,229.01964981197574,923,220.94343167426362,1198,270.16476454193651,1627,299.71152797314954,1476,301.90892666497956,625,187.12829823412599,331,144.58561477546789,3307,184,2485,177,2143,202,342,171,112,115,230,115,822,221,604,175,218,142,62,54,0,16,5,9,11,27.202941017470888,48,54.589376255824725,143,142,43.4,2.7,44.5,2.6,41.7,3.6,2.6277592984578169,0.15,3.0414486921529176,0.26424329023433368,1.3771289537712896,0.5875436131349423,null,null,null,null,null,null,null,null,null,null,null,null,null,null,null,null,null,null,null,null,null,null,null,null,null,null,null,null,null,null,null,null,null,null,null,null,null,null,null,null,null,null,null,null,29,535,534]
[]
["Nativity and Prior Place of Residence"]
["NAME","TotalPop",{"$f":"\"MOE \"&B135","v":"MOE TotalPop"},"Native:",{"$f":"\"MOE \"&D135","v":"MOE Native:"},"NatBornInStateOfResidence",{"$f":"\"MOE \"&F135","v":"MOE NatBornInStateOfResidence"},"Born in other state in the United States:",{"$f":"\"MOE \"&H135","v":"MOE Born in other state in the United States:"},"Northeast",{"$f":"\"MOE \"&J135","v":"MOE Northeast"},"Midwest",{"$f":"\"MOE \"&L135","v":"MOE Midwest"},"South",{"$f":"\"MOE \"&N135","v":"MOE South"},"West",{"$f":"\"MOE \"&P135","v":"MOE West"},"Born outside the United States:",{"$f":"\"MOE \"&R135","v":"MOE Born outside the United States:"},"Puerto Rico",{"$f":"\"MOE \"&T135","v":"MOE Puerto Rico"},"U.S. Island Areas",{"$f":"\"MOE \"&V135","v":"MOE U.S. Island Areas"},"Born abroad of American parent(s)",{"$f":"\"MOE \"&X135","v":"MOE Born abroad of American parent(s)"},"Foreign born:",{"$f":"\"MOE \"&Z135","v":"MOE Foreign born:"},"Naturalized U.S. citizen",{"$f":"\"MOE \"&AB135","v":"MOE Naturalized U.S. citizen"},"Not a U.S. citizen",{"$f":"\"MOE \"&AD135","v":"MOE Not a U.S. citizen"},"CurrentResidenceTotal:",{"$f":"\"MOE \"&AF135","v":"MOE CurrentResidenceTotal:"},"SameHouse:",{"$f":"\"MOE \"&AH135","v":"MOE SameHouse:"},"DifferentHouse:",{"$f":"\"MOE \"&AJ135","v":"MOE DifferentHouse:"},"DiffHouseInNH",{"$f":"\"MOE \"&AL135","v":"MOE DiffHouseInNH"},"DiffHouseInNHSameCnty",{"$f":"\"MOE \"&AN135","v":"MOE DiffHouseInNHSameCnty"},"DiffHouseInNHDiffCnty",{"$f":"\"MOE \"&AP135","v":"MOE DiffHouseInNHDiffCnty"},"DiffHouseInDiffState",{"$f":"\"MOE \"&AR135","v":"MOE DiffHouseInDiffState"},"DiffHouseInElsewhere",{"$f":"\"MOE \"&AT135","v":"MOE DiffHouseInElsewhere"}]
[{"$f":"VLOOKUP(DropDownList!$B$47,CntyQryCensus!$A$510:$DA$522,A$1)","v":"Barrington"},8691,17,8604,70,4697,442,3727,464,3032,417,313,167,271,137,111,81,180,135,0,15,0,15,180,135,87,69,48,46,39,53,8587,72,7921,352,666,317.70583878802103,588,299.82661656364002,347,210,241,214,78,104,0,15]
[]
["School Enrollment - Education"]
["NAME","Total Pop 3 Years and Older","MOE Total Pop 3 Years and Older","SchEnrlPop3yrOver",{"$f":"\"MOE \"&D139","v":"MOE SchEnrlPop3yrOver"},"TotalEnrollNursy&Kinder",{"$f":"\"MOE \"&F139","v":"MOE TotalEnrollNursy&Kinder"},"NurserSchEnrl",{"$f":"\"MOE \"&H139","v":"MOE NurserSchEnrl"},"KinderSchEnrl",{"$f":"\"MOE \"&J139","v":"MOE KinderSchEnrl"},"ElemSchEnrl (1-8)",{"$f":"\"MOE \"&L139","v":"MOE ElemSchEnrl (1-8)"},"HighSchEnrl(9-12)",{"$f":"\"MOE \"&N139","v":"MOE HighSchEnrl(9-12)"},"TotalElementry&HSEnroll",{"$f":"\"MOE \"&P139","v":"MOE TotalElementry&HSEnroll"},"CollGradSchEnrl",{"$f":"\"MOE \"&R139","v":"MOE CollGradSchEnrl"},"PopNotEnrolled","MOE PopNotEnrolled","Pop25yrsOver",{"$f":"\"MOE \"&V139","v":"MOE Pop25yrsOver"},"EduAtain<9grd",{"$f":"\"MOE \"&X139","v":"MOE EduAtain<9grd"},"EduAtainHSnoDip",{"$f":"\"MOE \"&Z139","v":"MOE EduAtainHSnoDip"},"EduAtainHSgrad",{"$f":"\"MOE \"&AB139","v":"MOE EduAtainHSgrad"},"EduAtainCollNoDeg",{"$f":"\"MOE \"&AD139","v":"MOE EduAtainCollNoDeg"},"EduAtainAssocDeg",{"$f":"\"MOE \"&AF139","v":"MOE EduAtainAssocDeg"},"EduAtainBachDeg",{"$f":"\"MOE \"&AH139","v":"MOE EduAtainBachDeg"},"EduAtainGradProfDeg",{"$f":"\"MOE \"&AJ139","v":"MOE EduAtainGradProfDeg"}]
[{"$f":"VLOOKUP(DropDownList!$B$47,CntyQryCensus!$A$510:$DA$522,A$1)","v":"Barrington"},8366,134,1968,287,309,132.98120167903431,284,130,25,28,943,211.43556938225885,361,146,1304,256.94551951727044,355,157.63248396190426,6398,323,6180,286,31,43.692104549906958,206,104.71867073258713,1628,338.66207345966569,1081,273.243481166523,682,187.25650856512306,1798,315.57249563293692,703,212.05895406702354]
[]
["Occupied Owner Housing Value"]
["NAME","OwnerOccHU","MOE OwnerOccHU","AllOOHU<10k","MOE AllOOHU<10k","AllOOHU10to15k","MOE AllOOHU10to15k","AllOOHU15to20k","MOE AllOOHU15to20k","AllOOHU20to25k","MOE AllOOHU20to25k","AllOOHU25to30k","MOE AllOOHU25to30k","AllOOHU30to35k","MOE AllOOHU30to35k","AllOOHU35to40k","MOE AllOOHU35to40k","AllOOHU40to50k","MOE AllOOHU40to50k","AllOOHU50to60k","MOE AllOOHU50to60k","AllOOHU60to70k","MOE AllOOHU60to70k","AllOOHU70to80k","MOE AllOOHU70to80k","AllOOHU80to90k","MOE AllOOHU80to90k","AllOOHU90to100k","MOE AllOOHU90to100k","AllOOHU100to125k","MOE AllOOHU100to125k","AllOOHU125to150k","MOE AllOOHU125to150k","AllOOHU150to175k","MOE AllOOHU150to175k","AllOOHU175to200k","MOE AllOOHU175to200k","AllOOHU200to250k","MOE AllOOHU200to250k","AllOOHU250to300k","MOE AllOOHU250to300k","AllOOHU300to400k","MOE AllOOHU300to400k","AllOOHU400to500k","MOE AllOOHU400to500k","AllOOHU500to750k","MOE AllOOHU500to750k","AllOOHU750to1000k","MOE AllOOHU750to1000k","AllOOHU1000kmore","MOE AllOOHU1000kmore","MedianOwnOCCHomeValue","MOE MedianOwnOCCHomeValue","OnwerOccHsU","MOE OnwerOccHsU","OwnerCosts>20PctHHInc","MOE OwnerCosts>20PctHHInc","OwnerCosts20to29.9PctHHInc","MOE OwnerCosts20to29.9PctHHInc","OwnerCosts<30PctHHInc","MOE OwnerCosts<30PctHHInc","OwnerCosts>30PctHHInc","MOE OwnerCosts>30PctHHInc","OwnerCosts30to34.9PctHHInc","MOE OwnerCosts30to34.9PctHHInc","OwnerCosts<35PctHHInc","MOE OwnerCosts<35PctHHInc","OwnerCosts>35PctHHInc","MOE OwnerCosts>35PctHHInc","OwnerCosts>50PctHHInc","MOE OwnerCosts>50PctHHInc","OwnerCostsPctNotcomputed","MOE OwnerCostsPctNotcomputed","OwnerOHUHhInc<20k","MOE OwnerOHUHhInc<20k","OwnerOHUHhInc<20kHCosts<20pct","MOE OwnerOHUHhInc<20kHCosts<20pct","OwnerOHUHhInc<20kHCosts20to29pct","MOE OwnerOHUHhInc<20kHCosts20to29pct","OwnerOHUHhInc>20kHCosts30pct","MOE OwnerOHUHhInc>20kHCosts30pct","OwnerOHUHhInc20kTo34999","MOE OwnerOHUHhInc20kTo34999","OwnerOHUHhInc20kTo34999HCosts<20pct","MOE OwnerOHUHhInc20kTo34999HCosts<20pct","OwnerOHUHhInc20kTo34999HCosts20to29pct","MOE OwnerOHUHhInc20kTo34999HCosts20to29pct","OwnerOHUHhInc20kTo34999HCosts30pct","MOE OwnerOHUHhInc20kTo34999HCosts30pct","OwnerOHUHhInc35kTo49999","MOE OwnerOHUHhInc35kTo49999","OwnerOHUHhInc35kTo49999HCosts<20pct","MOE OwnerOHUHhInc35kTo49999HCosts<20pct","OwnerOHUHhInc35kTo49999HCosts20to29pct","MOE OwnerOHUHhInc35kTo49999HCosts20to29pct","OwnerOHUHhInc35kTo49999HCosts30pct","MOE OwnerOHUHhInc35kTo49999HCosts30pct","OwnerOHUHhInc50kTo74999","MOE OwnerOHUHhInc50kTo74999","OwnerOHUHhInc50kTo74999HCosts<20pct","MOE OwnerOHUHhInc50kTo74999HCosts<20pct","OwnerOHUHhInc50kTo74999HCosts20to29pct","MOE OwnerOHUHhInc50kTo74999HCosts20to29pct","OwnerOHUHhInc50kTo74999HCosts30pct","MOE OwnerOHUHhInc50kTo74999HCosts30pct","OwnerOHUHhInc>75000","MOE OwnerOHUHhInc>75000","OwnerOHUHhInc>75000HCosts<20pct","MOE OwnerOHUHhInc>75000HCosts<20pct","OwnerOHUHhInc>75000HCosts20to29pct","MOE OwnerOHUHhInc>75000HCosts20to29pct","OwnerOHUHhInc>75000HCosts30pct","MOE OwnerOHUHhInc>75000HCosts30pct","ZeroOrNegativeIncome","MOE ZeroOrNegativeIncome"]
[{"$f":"VLOOKUP(DropDownList!$B$47,CntyQryCensus!$A$510:$DA$522,A$1)","v":"Barrington"},2948,207,0,15,44,56,50,58,122,99,16,27,0,15,0,15,67,68,15,25,81,90,9,18,43,70,53,67,82,76,18,29,284,155,70,57,483,143,649,181,624,200,141,86,97,78,0,15,0,15,null,null,null,null,252900,17303,2948,207,1149,286.16603572052361,745,231.60094991169618,1894,368.1439935677343,1054,295.40142179752621,265,129.40247292845683,2159,390.22429447690723,789,265.55037186944401,466,205.9368835347374,0,21.213203435596427,189,118,0,15,0,15,189,118,284,161,0,15,58,63,226,143,246,116,40,64,22,25,184,106,451,162,154,91,74,58,223,125,1778,217,955,192,591,199,232,132,0,15]
[]
["Occupied Rental Housing Value"]
["NAME","Estimate; Total:","Margin of Error; Total:","Estimate; Total: - Less than $10,000","Margin of Error; Total: - Less than $10,000","Estimate; Total: - $10,000 to $14,999","Margin of Error; Total: - $10,000 to $14,999","Estimate; Total: - $15,000 to $19,999","Margin of Error; Total: - $15,000 to $19,999","Estimate; Total: - $20,000 to $24,999","Margin of Error; Total: - $20,000 to $24,999","Estimate; Total: - $25,000 to $29,999","Margin of Error; Total: - $25,000 to $29,999","Estimate; Total: - $30,000 to $34,999","Margin of Error; Total: - $30,000 to $34,999","Estimate; Total: - $35,000 to $39,999","Margin of Error; Total: - $35,000 to $39,999","Estimate; Total: - $40,000 to $49,999","Margin of Error; Total: - $40,000 to $49,999","Estimate; Total: - $50,000 to $59,999","Margin of Error; Total: - $50,000 to $59,999","Estimate; Total: - $60,000 to $69,999","Margin of Error; Total: - $60,000 to $69,999","Estimate; Total: - $70,000 to $79,999","Margin of Error; Total: - $70,000 to $79,999","Estimate; Total: - $80,000 to $89,999","Margin of Error; Total: - $80,000 to $89,999","Estimate; Total: - $90,000 to $99,999","Margin of Error; Total: - $90,000 to $99,999","Estimate; Total: - $100,000 to $124,999","Margin of Error; Total: - $100,000 to $124,999","Estimate; Total: - $125,000 to $149,999","Margin of Error; Total: - $125,000 to $149,999","Estimate; Total: - $150,000 to $174,999","Margin of Error; Total: - $150,000 to $174,999","Estimate; Total: - $175,000 to $199,999","Margin of Error; Total: - $175,000 to $199,999","Estimate; Total: - $200,000 to $249,999","Margin of Error; Total: - $200,000 to $249,999","Estimate; Total: - $250,000 to $299,999","Margin of Error; Total: - $250,000 to $299,999","Estimate; Total: - $300,000 to $399,999","Margin of Error; Total: - $300,000 to $399,999","Estimate; Total: - $400,000 to $499,999","Margin of Error; Total: - $400,000 to $499,999","Estimate; Total: - $500,000 to $749,999","Margin of Error; Total: - $500,000 to $749,999","Estimate; Total: - $750,000 to $999,999","Margin of Error; Total: - $750,000 to $999,999","Estimate; Total: - $1,000,000 to $1,499,999","Margin of Error; Total: - $1,000,000 to $1,499,999","Estimate; Total: - $1,500,000 to $1,999,999","Margin of Error; Total: - $1,500,000 to $1,999,999","Estimate; Total: - $2,000,000 or more","Margin of Error; Total: - $2,000,000 or more","MedianOwnOCCHomeValue","MOE MedianOwnOCCHomeValue","OnwerOccHsU","MOE OnwerOccHsU","OwnerCosts>20PctHHInc","MOE OwnerCosts>20PctHHInc","OwnerCosts20to29.9PctHHInc","MOE OwnerCosts20to29.9PctHHInc","OwnerCosts<30PctHHInc","MOE OwnerCosts<30PctHHInc","OwnerCosts>30PctHHInc","MOE OwnerCosts>30PctHHInc","OwnerCosts30to34.9PctHHInc","MOE OwnerCosts30to34.9PctHHInc","OwnerCosts<35PctHHInc","MOE OwnerCosts<35PctHHInc","OwnerCosts>35PctHHInc","MOE OwnerCosts>35PctHHInc","OwnerCosts>50PctHHInc","MOE OwnerCosts>50PctHHInc","OwnerCostsPctNotcomputed","MOE OwnerCostsPctNotcomputed","OwnerOHUHhInc<20k","MOE OwnerOHUHhInc<20k","OwnerOHUHhInc<20kHCosts<20pct","MOE OwnerOHUHhInc<20kHCosts<20pct","OwnerOHUHhInc<20kHCosts20to29pct","MOE OwnerOHUHhInc<20kHCosts20to29pct","OwnerOHUHhInc>20kHCosts30pct","MOE OwnerOHUHhInc>20kHCosts30pct","OwnerOHUHhInc20kTo34999","MOE OwnerOHUHhInc20kTo34999","OwnerOHUHhInc20kTo34999HCosts<20pct","MOE OwnerOHUHhInc20kTo34999HCosts<20pct","OwnerOHUHhInc20kTo34999HCosts20to29pct","MOE OwnerOHUHhInc20kTo34999HCosts20to29pct","OwnerOHUHhInc20kTo34999HCosts30pct","MOE OwnerOHUHhInc20kTo34999HCosts30pct","OwnerOHUHhInc35kTo49999","MOE OwnerOHUHhInc35kTo49999","OwnerOHUHhInc35kTo49999HCosts<20pct","MOE OwnerOHUHhInc35kTo49999HCosts<20pct","OwnerOHUHhInc35kTo49999HCosts20to29pct","MOE OwnerOHUHhInc35kTo49999HCosts20to29pct","OwnerOHUHhInc35kTo49999HCosts30pct","MOE OwnerOHUHhInc35kTo49999HCosts30pct","OwnerOHUHhInc50kTo74999","MOE OwnerOHUHhInc50kTo74999","OwnerOHUHhInc50kTo74999HCosts<20pct","MOE OwnerOHUHhInc50kTo74999HCosts<20pct","OwnerOHUHhInc50kTo74999HCosts20to29pct","MOE OwnerOHUHhInc50kTo74999HCosts20to29pct","OwnerOHUHhInc50kTo74999HCosts30pct","MOE OwnerOHUHhInc50kTo74999HCosts30pct","OwnerOHUHhInc>75000","MOE OwnerOHUHhInc>75000","OwnerOHUHhInc>75000HCosts<20pct","MOE OwnerOHUHhInc>75000HCosts<20pct","OwnerOHUHhInc>75000HCosts20to29pct","MOE OwnerOHUHhInc>75000HCosts20to29pct","OwnerOHUHhInc>75000HCosts30pct","MOE OwnerOHUHhInc>75000HCosts30pct","ZeroOrNegativeIncome","MOE ZeroOrNegativeIncome"]
[{"$f":"VLOOKUP(DropDownList!$B$47,CntyQryCensus!$A$510:$DA$522,A$1)","v":"Barrington"},359,153,324,147,0,15,25,39,0,15,0,15,0,15,0,15,0,15,0,15,0,15,15,23,0,15,53,67,0,15,0,15,0,15,13,20,56,52,56,58,66,79,28,48,12,22,35,57,1000,264,359,153,10,17,0,15,0,15,0,15,0,15,0,15,0,15,10,17,0,15,122,92,0,15,0,15,0,15,0,15,0,15,0,15,87,72,35,57,13,20,0,15,0,15,0,15,0,15,0,15,13,20,0,15,0,15,101,96,53,67,0,15,0,15,48,73,0,15,0,15,0,15,0,15,46,51,0,15,0,15,46,51,0,15,0,15,0,15,0,15,0,15,12,22,0,15,0,15,0,15,12,22,0,15,0,15,0,15,0,15,55,52,55,52,0,15,0,15,0,15,0,15,0,15,0,15,0,15,0,16,0,16,0,16]
[]
[]
[]
[]
[]
["Occupied Rental Housing Cost Burdern All Incomes"]
["NAME","RntrOccHU","MOE RntrOccHU","RntrOccHUwRent","MOE RntrOccHUwRent","ROHUGRent<100","MOE ROHUGRent<100","ROHUGRent100to149","MOE ROHUGRent100to149","ROHUGRent150to199","MOE ROHUGRent150to199","ROHUGRent200to249","MOE ROHUGRent200to249","ROHUGRent250to299","MOE ROHUGRent250to299","ROHUGRent300to349","MOE ROHUGRent300to349","ROHUGRent350to399","MOE ROHUGRent350to399","ROHUGRent400to449","MOE ROHUGRent400to449","ROHUGRent450to499","MOE ROHUGRent450to499","ROHUGRent500to549","MOE ROHUGRent500to549","ROHUGRent550to599","MOE ROHUGRent550to599","ROHUGRent600to649","MOE ROHUGRent600to649","ROHUGRent650to699","MOE ROHUGRent650to699","ROHUGRent700to749","MOE ROHUGRent700to749","ROHUGRent750to799","MOE ROHUGRent750to799","ROHUGRent800to899","MOE ROHUGRent800to899","ROHUGRent900to999","MOE ROHUGRent900to999","ROHUGRent1000to1249","MOE ROHUGRent1000to1249","ROHUGRent1250to1499","MOE ROHUGRent1250to1499","ROHUGRent1500to1999","MOE ROHUGRent1500to1999","ROHUGRent2000-2499","MOE ROHUGRent2000-2499","ROHUGRent2500-2999","MOE ROHUGRent2500-2999","ROHUGRent3000-3499","MOE ROHUGRent3000-3499","ROHUGRent3500<","MOE ROHUGRent3500<","ROHUNoGRent","MOE ROHUNoGRent","MedianGrossRnt","MOE MedianGrossRnt","H73RenterOccHU","MOE H73RenterOccHU","H73ROHUHhInc<10k","MOE H73ROHUHhInc<10k","H73ROHUHhInc<10kRnt<20pct","MOE H73ROHUHhInc<10kRnt<20pct","H73ROHUHhInc<10kRnt20to25pct","MOE H73ROHUHhInc<10kRnt20to25pct","H73ROHUHhInc<10kRnt25to30pct","MOE H73ROHUHhInc<10kRnt25to30pct","H73ROHUHhInc<10kRnt30to35pct","MOE H73ROHUHhInc<10kRnt30to35pct","H73ROHUHhInc<10kRnt35to39.9","MOE H73ROHUHhInc<10kRnt35to39.9","H73ROHUHhInc<10kRnt40to49.9","MOE H73ROHUHhInc<10kRnt40to49.9","H73ROHUHhInc<10kRnt>50pct","MOE H73ROHUHhInc<10kRnt>50pct","H73ROHUHhInc<10kPctNotComput","MOE H73ROHUHhInc<10kPctNotComput","H73ROHUHhInc10to20k","MOE H73ROHUHhInc10to20k","H73ROHUHhInc10to20kRnt<20pct","MOE H73ROHUHhInc10to20kRnt<20pct","H73ROHUHhInc10to20kRnt20to25pct","MOE H73ROHUHhInc10to20kRnt20to25pct","H73ROHUHhInc10to20kRnt25to30pct","MOE H73ROHUHhInc10to20kRnt25to30pct","H73ROHUHhInc10to20kRnt30to35pct","MOE H73ROHUHhInc10to20kRnt30to35pct","H73ROHUHhInc10to20kRnt35to39.9","MOE H73ROHUHhInc10to20kRnt35to39.9","H73ROHUHhInc10to20kRnt40to49.9","MOE H73ROHUHhInc10to20kRnt40to49.9","H73ROHUHhInc10to20kRnt>50pct","MOE H73ROHUHhInc10to20kRnt>50pct","H73ROHUHhInc10to20kRntPctNC","MOE H73ROHUHhInc10to20kRntPctNC","H73ROHUHhInc20to34.9k","MOE H73ROHUHhInc20to34.9k","H73ROHUHhInc20to34.9kRnt<20pct","MOE H73ROHUHhInc20to34.9kRnt<20pct","H73ROHUHhInc20to34.9kRnt20to25pct","MOE H73ROHUHhInc20to34.9kRnt20to25pct","H73ROHUHhInc20to34.9kRnt25to30pct","MOE H73ROHUHhInc20to34.9kRnt25to30pct","H73ROHUHhInc20to34.9kRnt30to35pct","MOE H73ROHUHhInc20to34.9kRnt30to35pct","H73ROHUHhInc20to34.9kRnt35to39.9","MOE H73ROHUHhInc20to34.9kRnt35to39.9","H73ROHUHhInc20to34.9kRnt40to49.9","MOE H73ROHUHhInc20to34.9kRnt40to49.9","H73ROHUHhInc20to34.9kRnt>50pct","MOE H73ROHUHhInc20to34.9kRnt>50pct","H73ROHUHhInc20to34.9kRntPctNC","MOE H73ROHUHhInc20to34.9kRntPctNC","H73ROHUHhInc35to49.9k","MOE H73ROHUHhInc35to49.9k","H73ROHUHhInc35to49.9kRnt<20pct","MOE H73ROHUHhInc35to49.9kRnt<20pct","H73ROHUHhInc35to49.9kRnt20to25pct","MOE H73ROHUHhInc35to49.9kRnt20to25pct","H73ROHUHhInc35to49.9kRnt25to30pct","MOE H73ROHUHhInc35to49.9kRnt25to30pct","H73ROHUHhInc35to49.9kRnt30to35pct","MOE H73ROHUHhInc35to49.9kRnt30to35pct","H73ROHUHhInc35to49.9kRnt35to39.9","MOE H73ROHUHhInc35to49.9kRnt35to39.9","H73ROHUHhInc35to49.9kRnt40to49.9","MOE H73ROHUHhInc35to49.9kRnt40to49.9","H73ROHUHhInc35to49.9kRnt>50pct","MOE H73ROHUHhInc35to49.9kRnt>50pct","H73ROHUHhInc35to49.9kRntPctNC","MOE H73ROHUHhInc35to49.9kRntPctNC","H73ROHUHhInc50to74.9k","MOE H73ROHUHhInc50to74.9k","H73ROHUHhInc50to74.9kRnt<20pct","MOE H73ROHUHhInc50to74.9kRnt<20pct","H73ROHUHhInc50to74.9kRnt20to25pct","MOE H73ROHUHhInc50to74.9kRnt20to25pct","H73ROHUHhInc50to74.9kRnt25to30pct","MOE H73ROHUHhInc50to74.9kRnt25to30pct","H73ROHUHhInc50to74.9kRnt30to35pct","MOE H73ROHUHhInc50to74.9kRnt30to35pct","H73ROHUHhInc50to74.9kRnt35to39.9","MOE H73ROHUHhInc50to74.9kRnt35to39.9","H73ROHUHhInc50to74.9kRnt40to49.9","MOE H73ROHUHhInc50to74.9kRnt40to49.9","H73ROHUHhInc50to74.9kRnt>50pct","MOE H73ROHUHhInc50to74.9kRnt>50pct","H73ROHUHhInc50to74.9kRntPctNC","MOE H73ROHUHhInc50to74.9kRntPctNC","H73ROHUHhInc75to99.9k","MOE H73ROHUHhInc75to99.9k","H73ROHUHhInc75to99.9kRnt<20pct","MOE H73ROHUHhInc75to99.9kRnt<20pct","H73ROHUHhInc75to99.9kRnt20to25pct","MOE H73ROHUHhInc75to99.9kRnt20to25pct","H73ROHUHhInc75to99.9kRnt25to30pct","MOE H73ROHUHhInc75to99.9kRnt25to30pct","H73ROHUHhInc75to99.9kRnt30to35pct","MOE H73ROHUHhInc75to99.9kRnt30to35pct","H73ROHUHhInc75to99.9kRnt35to39.9","MOE H73ROHUHhInc75to99.9kRnt35to39.9","H73ROHUHhInc75to99.9kRnt40to49.9","MOE H73ROHUHhInc75to99.9kRnt40to49.9","H73ROHUHhInc75to99.9kRnt>50pct","MOE H73ROHUHhInc75to99.9kRnt>50pct","H73ROHUHhInc75to99.9kRntPctNC","MOE H73ROHUHhInc75to99.9kRntPctNC","H73ROHUHhInc>100k","MOE H73ROHUHhInc>100k","H73ROHUHhInc>100kRnt<20pct","MOE H73ROHUHhInc>100kRnt<20pct","H73ROHUHhInc>100kRnt20to25pct","MOE H73ROHUHhInc>100kRnt20to25pct","H73ROHUHhInc>100kRnt25to30pct","MOE H73ROHUHhInc>100kRnt25to30pct","H73ROHUHhInc>100kRnt30to35pct","MOE H73ROHUHhInc>100kRnt30to35pct","H73ROHUHhInc>100kRnt35to39.9","MOE H73ROHUHhInc>100kRnt35to39.9","H73ROHUHhInc>100kRnt40to49.9","MOE H73ROHUHhInc>100kRnt40to49.9","H73ROHUHhInc>100kRnt>50pct","MOE H73ROHUHhInc>100kRnt>50pct","H73ROHUHhInc>100kRntPctNC","MOE H73ROHUHhInc>100kRntPctNC"]
[{"$f":"VLOOKUP(DropDownList!$B$47,CntyQryCensus!$A$510:$DA$522,A$1)","v":"Barrington"},359,153,108,84.793867702800299,0,15,46,51,154,100.07996802557443,170,108.30512453249847,60,76,214,125.66622457924007,110,77.1621668954417,97,73,35,57]
[]
["Income By Household Type and Tenure"]
["NAME","TotalFamilyHouseholds",{"$f":"\"MOE \"&B159","v":"MOE TotalFamilyHouseholds"},"FamInc<10K",{"$f":"\"MOE \"&D159","v":"MOE FamInc<10K"},"FamInc10to15K",{"$f":"\"MOE \"&F159","v":"MOE FamInc10to15K"},"FamInc15to20K",{"$f":"\"MOE \"&H159","v":"MOE FamInc15to20K"},"FamInc20to25K",{"$f":"\"MOE \"&J159","v":"MOE FamInc20to25K"},"FamInc25to30K",{"$f":"\"MOE \"&L159","v":"MOE FamInc25to30K"},"FamInc30to35K",{"$f":"\"MOE \"&N159","v":"MOE FamInc30to35K"},"FamInc35to40K",{"$f":"\"MOE \"&P159","v":"MOE FamInc35to40K"},"FamInc40to45K",{"$f":"\"MOE \"&R159","v":"MOE FamInc40to45K"},"FamInc45to50K",{"$f":"\"MOE \"&T159","v":"MOE FamInc45to50K"},"FamInc50to60K",{"$f":"\"MOE \"&V159","v":"MOE FamInc50to60K"},"FamInc60to75K",{"$f":"\"MOE \"&X159","v":"MOE FamInc60to75K"},"FamInc75to100K",{"$f":"\"MOE \"&Z159","v":"MOE FamInc75to100K"},"FamInc100to125K",{"$f":"\"MOE \"&AB159","v":"MOE FamInc100to125K"},"FamInc125to150K",{"$f":"\"MOE \"&AD159","v":"MOE FamInc125to150K"},"FamInc150to200K",{"$f":"\"MOE \"&AF159","v":"MOE FamInc150to200K"},"FamInc>200K",{"$f":"\"MOE \"&AH159","v":"MOE FamInc>200K"},"MedFamInc",{"$f":"\"MOE \"&AJ159","v":"MOE MedFamInc"},"TotalNonNonFamilyHouseholds",{"$f":"\"MOE \"&AL159","v":"MOE TotalNonNonFamilyHouseholds"},"NonFamInc<10K",{"$f":"\"MOE \"&AN159","v":"MOE NonFamInc<10K"},"NonFamInc10to15K",{"$f":"\"MOE \"&AP159","v":"MOE NonFamInc10to15K"},"NonFamInc15to20K",{"$f":"\"MOE \"&AR159","v":"MOE NonFamInc15to20K"},"NonFamInc20to25K",{"$f":"\"MOE \"&AT159","v":"MOE NonFamInc20to25K"},"NonFamInc25to30K",{"$f":"\"MOE \"&AV159","v":"MOE NonFamInc25to30K"},"NonFamInc30to35K",{"$f":"\"MOE \"&AX159","v":"MOE NonFamInc30to35K"},"NonFamInc35to40K",{"$f":"\"MOE \"&AZ159","v":"MOE NonFamInc35to40K"},"NonFamInc40to45K",{"$f":"\"MOE \"&BB159","v":"MOE NonFamInc40to45K"},"NonFamInc45to50K",{"$f":"\"MOE \"&BD159","v":"MOE NonFamInc45to50K"},"NonFamInc50to60K",{"$f":"\"MOE \"&BF159","v":"MOE NonFamInc50to60K"},"NonFamInc60to75K",{"$f":"\"MOE \"&BH159","v":"MOE NonFamInc60to75K"},"NonFamInc75to100K",{"$f":"\"MOE \"&BJ159","v":"MOE NonFamInc75to100K"},"NonFamInc100to125K",{"$f":"\"MOE \"&BL159","v":"MOE NonFamInc100to125K"},"NonFamInc125to150K",{"$f":"\"MOE \"&BN159","v":"MOE NonFamInc125to150K"},"NonFamInc150to200K",{"$f":"\"MOE \"&BP159","v":"MOE NonFamInc150to200K"},"NonFamInc>200K",{"$f":"\"MOE \"&BR159","v":"MOE NonFamInc>200K"},"MedNonFamInc",{"$f":"\"MOE \"&BT159","v":"MOE MedNonFamInc"},"PerCapitaIncome","MOE PerCapitaIncome"]
[{"$f":"VLOOKUP(DropDownList!$B$47,CntyQryCensus!$A$510:$DA$522,A$1)","v":"Barrington"},2485,177,14,24,68,54,17,23,85,91,12,20,93,80,81,102,41,62,37,41,158,88,264,134,477,179,433,175,183,110,342,180,180,115,92820,10018,822,221,77,79,106,90,48,62,13,20,40,41,45,58,86,83,61,74,60,75,34,40,41,53,94,92,43,52,41,49,33,36,0,15,null,null,39865,8297]
[]
[]
[]
["2010 Census"]
[]
["TownName","LOGRECNO","COUNTY","TotalPop","TotalPop1Race","TotalPopWhite","TotalPopAfricanAmerican","TotalPopAmericanIndAlaska","TotalPopAsian","TotalPopNativeHawaiianPIsland","TotalPopSomeOtherRace","TotalPopTwoOrMoreRaces","TotalPopHispanicLatino","TotalNonHispanicLatino","TotPopUnder15yrs","TotPop15to24yrs","TotPop25to34yrs","TotPop35to44yrs","TotPop45to54yrs","TotPop55to64yrs","TotPop65to74yrs","TotPopOver74yrs","MedianAge","MedianAgeMale","MedianAgeFemale","TotalHH","TotalPopInHouseholds","TotalPopInFamilyHH","TotalPopInNonFamilyHH","AvgHHSize","TotalFamilyHH","TotalFamilyHHSpouse","TotalSingleParentHH","TotalNonFamilyHH","AvgFamilyHHSize","AvgNonFamilyHHSize","AverageHHSizeOwnerOccupied","AverageHHSizeRentalOccupied","TotalHousingUnits","TotalOccupiedHU","TotalOwnerOccupiedHUs","TotalRentalOccupiedHU","TotalVacantHU","VacantHUForRent","VacantHURentNotOccupied","VacantHUForSale","VacantHUsSoldNotOccupied","VacantHUSeasonalRecreational","VacantHUsAllOtherVacants","HomeOwnerVacancyRate","HomeRentalVacancyRate","Total HH","Total Single Family HU","Total Multi-Family HU","Total Manufacture HU"]
[{"$f":"VLOOKUP(DropDownList!$B$47,CntyQryCensus!$A$529:$DA$540,A$1)","v":"Barrington"},{"$f":"VLOOKUP(DropDownList!$B$47,CntyQryCensus!$A$529:$DA$540,B$1)","v":"0000216"},{"$f":"VLOOKUP(DropDownList!$B$47,CntyQryCensus!$A$529:$DA$540,C$1)","v":"017"},{"$f":"VLOOKUP(DropDownList!$B$47,CntyQryCensus!$A$529:$DA$540,D$1)","v":8576},{"$f":"VLOOKUP(DropDownList!$B$47,CntyQryCensus!$A$529:$DA$540,E$1)","v":8473},{"$f":"VLOOKUP(DropDownList!$B$47,CntyQryCensus!$A$529:$DA$540,F$1)","v":8312},{"$f":"VLOOKUP(DropDownList!$B$47,CntyQryCensus!$A$529:$DA$540,G$1)","v":40},{"$f":"VLOOKUP(DropDownList!$B$47,CntyQryCensus!$A$529:$DA$540,H$1)","v":20},{"$f":"VLOOKUP(DropDownList!$B$47,CntyQryCensus!$A$529:$DA$540,I$1)","v":83},{"$f":"VLOOKUP(DropDownList!$B$47,CntyQryCensus!$A$529:$DA$540,J$1)","v":0},{"$f":"VLOOKUP(DropDownList!$B$47,CntyQryCensus!$A$529:$DA$540,K$1)","v":18},{"$f":"VLOOKUP(DropDownList!$B$47,CntyQryCensus!$A$529:$DA$540,L$1)","v":103},{"$f":"VLOOKUP(DropDownList!$B$47,CntyQryCensus!$A$529:$DA$540,M$1)","v":112},{"$f":"VLOOKUP(DropDownList!$B$47,CntyQryCensus!$A$529:$DA$540,N$1)","v":8464},{"$f":"VLOOKUP(DropDownList!$B$47,CntyQryCensus!$A$529:$DA$540,O$1)","v":1689},{"$f":"VLOOKUP(DropDownList!$B$47,CntyQryCensus!$A$529:$DA$540,P$1)","v":966},{"$f":"VLOOKUP(DropDownList!$B$47,CntyQryCensus!$A$529:$DA$540,Q$1)","v":933},{"$f":"VLOOKUP(DropDownList!$B$47,CntyQryCensus!$A$529:$DA$540,R$1)","v":1368},{"$f":"VLOOKUP(DropDownList!$B$47,CntyQryCensus!$A$529:$DA$540,S$1)","v":1691},{"$f":"VLOOKUP(DropDownList!$B$47,CntyQryCensus!$A$529:$DA$540,T$1)","v":1110},{"$f":"VLOOKUP(DropDownList!$B$47,CntyQryCensus!$A$529:$DA$540,U$1)","v":535},{"$f":"VLOOKUP(DropDownList!$B$47,CntyQryCensus!$A$529:$DA$540,V$1)","v":284},{"$f":"VLOOKUP(DropDownList!$B$47,CntyQryCensus!$A$529:$DA$540,W$1)","v":40.700000000000003},{"$f":"VLOOKUP(DropDownList!$B$47,CntyQryCensus!$A$529:$DA$540,X$1)","v":40.299999999999997},{"$f":"VLOOKUP(DropDownList!$B$47,CntyQryCensus!$A$529:$DA$540,Y$1)","v":41.1},{"$f":"VLOOKUP(DropDownList!$B$47,CntyQryCensus!$A$529:$DA$540,Z$1)","v":3229},{"$f":"VLOOKUP(DropDownList!$B$47,CntyQryCensus!$A$529:$DA$540,AA$1)","v":8576},{"$f":"VLOOKUP(DropDownList!$B$47,CntyQryCensus!$A$529:$DA$540,AB$1)","v":4816},{"$f":"VLOOKUP(DropDownList!$B$47,CntyQryCensus!$A$529:$DA$540,AC$1)","v":3760},{"$f":"VLOOKUP(DropDownList!$B$47,CntyQryCensus!$A$529:$DA$540,AD$1)","v":2.66},{"$f":"VLOOKUP(DropDownList!$B$47,CntyQryCensus!$A$529:$DA$540,AE$1)","v":2382},{"$f":"VLOOKUP(DropDownList!$B$47,CntyQryCensus!$A$529:$DA$540,AF$1)","v":1973},{"$f":"VLOOKUP(DropDownList!$B$47,CntyQryCensus!$A$529:$DA$540,AG$1)","v":409},{"$f":"VLOOKUP(DropDownList!$B$47,CntyQryCensus!$A$529:$DA$540,AH$1)","v":847},{"$f":"VLOOKUP(DropDownList!$B$47,CntyQryCensus!$A$529:$DA$540,AI$1)","v":3.02},{"$f":"VLOOKUP(DropDownList!$B$47,CntyQryCensus!$A$529:$DA$540,AJ$1)","v":4.4391971664698939},{"$f":"VLOOKUP(DropDownList!$B$47,CntyQryCensus!$A$529:$DA$540,AK$1)","v":2.71},{"$f":"VLOOKUP(DropDownList!$B$47,CntyQryCensus!$A$529:$DA$540,AL$1)","v":2.2599999999999998},{"$f":"VLOOKUP(DropDownList!$B$47,CntyQryCensus!$A$529:$DA$540,AM$1)","v":3661},{"$f":"VLOOKUP(DropDownList!$B$47,CntyQryCensus!$A$529:$DA$540,AN$1)","v":3229},{"$f":"VLOOKUP(DropDownList!$B$47,CntyQryCensus!$A$529:$DA$540,AO$1)","v":2813},{"$f":"VLOOKUP(DropDownList!$B$47,CntyQryCensus!$A$529:$DA$540,AP$1)","v":416},{"$f":"VLOOKUP(DropDownList!$B$47,CntyQryCensus!$A$529:$DA$540,AQ$1)","v":432},{"$f":"VLOOKUP(DropDownList!$B$47,CntyQryCensus!$A$529:$DA$540,AR$1)","v":35},{"$f":"VLOOKUP(DropDownList!$B$47,CntyQryCensus!$A$529:$DA$540,AS$1)","v":2},{"$f":"VLOOKUP(DropDownList!$B$47,CntyQryCensus!$A$529:$DA$540,AT$1)","v":63},{"$f":"VLOOKUP(DropDownList!$B$47,CntyQryCensus!$A$529:$DA$540,AU$1)","v":5},{"$f":"VLOOKUP(DropDownList!$B$47,CntyQryCensus!$A$529:$DA$540,AV$1)","v":286},{"$f":"VLOOKUP(DropDownList!$B$47,CntyQryCensus!$A$529:$DA$540,AW$1)","v":41},{"$f":"VLOOKUP(DropDownList!$B$47,CntyQryCensus!$A$529:$DA$540,AX$1)","v":2.2000000000000002},{"$f":"VLOOKUP(DropDownList!$B$47,CntyQryCensus!$A$529:$DA$540,AY$1)","v":7.7},{"$f":"VLOOKUP(DropDownList!$B$47,CntyQryCensus!$A$529:$DA$540,AZ$1)","v":3661},{"$f":"VLOOKUP(DropDownList!$B$47,CntyQryCensus!$A$529:$DA$540,BA$1)","v":3022},{"$f":"VLOOKUP(DropDownList!$B$47,CntyQryCensus!$A$529:$DA$540,BB$1)","v":239},{"$f":"VLOOKUP(DropDownList!$B$47,CntyQryCensus!$A$529:$DA$540,BC$1)","v":400}]

{"sheet":"CntyDataLinkPrior10YearEstimate","index":66,"n_rows":167,"n_cols":255,"rows_kept":167,"cut":false,"hidden":true,"merged":[]}
[1,{"$f":"A1+1","v":2},{"$f":"B1+1","v":3},4,5,6,7,8,9,10,11,12,13,14,15,{"$f":"O1+1","v":16},17,18,19,20,21,22,23,24,25,26,27,28,29,30,31,32,33,34,35,36,37,38,39,40,41,42,43,44,45,46,47,48,49,50,51,52,53,54,55,56,57,58,59,60,61,62,63,64,65,66,{"$f":"BN1+1","v":67},68,69,70,71,72,73,74,75,76,77,78,79,80,81,82,83,84,85,86,87,88,89,90,91,92,93,94,95,96,97,98,99,100,101,102,103,104,105,106,107,108,109,110,111,112,113,114,115,116,117,118,119,120,121,122,123,124,125,126,127,128,129,130,{"$f":"DZ1+1","v":131},132,133,134,135,136,137,138,139,140,141,142,143,144,145,146,147,148,149,150,151,152,153,154,155,156,157,158,159,160,161,162,163,164,165,166,167,168,169,170,171,172,173,174,175,176,177,178,179,180,181,182,183,184,185,186,187,188,189,190,191,192,193,194,{"$f":"GL1+1","v":195},196,197,198,199,200,201,202,203,204,205,206,207,208,209,210,211,212,213,214,215,216,217,218,219,220,221,222,223,224,225,226,227,228,229,230,231,232,233,234,235,236,237,238,239,240,241,242,243,244,245,246,247,248,249,250,251,252,253,254,255]
[]
["Census 1990 Data -           Query Name:  DPCnty90Census"]
["TownName","Cnty_Code","Census_Cnty_Code","LandAcres","WaterAcres","HousingUnits90Cen","Persons90Cen","Families90Cen","Households90cen","MalePop90cen","FemalePop90cen","WhitePop","BlackPop","AmerIndianPop","AsianPIPop","OtherRacePop","HispanicOrPop","AgeUnder15_90cen","Age15to24_90cen","Age25to34_90cen","Age35to44_90cen","Age45to54_90cen","Age55to64_90cen","Age65to74_90cen","Age75andOver_90cen","PersonsInHH90cen","PersonsInFamHH90cen","PersonsInGC","PersonsPerHH90cen","PersonsPerFam90Cen","SinglePersonHH90cen","MarriedCoupleHH90cen","SingleParentHH90cen","NonFamilyHH90cen","TotalHousingUnits","OccupiedHousingUnits","VacantHousingUnits","OwnerOccHU","RenterOccHU","VacantForRent90","VacantForSale90","VacantSeasonalRec","SingFamHU90cen","MultiFamHU90cen","MobileHom90cen","SingFamOwnHU90cen","MultiFamOwnHU90cen","MobileHomOwnHU90cen","SingFamRntrHU90cen","MultiFamRntrHU90cen","MobileHomRntrHU90cen","HU<5yrs90cen","HU5to20yrs90cen","HU20to50yrs90cen","HU>50yrs90cen","Units0Bedroom90cen","Units1Bedroom90cen","Units2Bedroom90cen","Units3Bedroom90cen","Units4+Bedroom90cen","HI<5K","HI5Kto10K","HI10Kto15K","HI15Kto25K","HI25Kto35K","HI35Kto50K","HI50Kto75K","HI75Kto100K","HI>100K","MedHI","HH<25HI<5K","HH<25HI5Kto10K","HH<25HI10Kto15K","HH<25HI15Kto25K","HH<25HI25Kto35K","HH<25HI35Kto50K","HH<25HI50Kto75K","HH<25HI75Kto100K","HH<25HI>100K","HH25to34HI<5K","HH25to34HI5Kto10K","HH25to34HI10Kto15K","HH25to34HI15Kto25K","HH25to34HI25Kto35K","HH25to34HI35Kto50K","HH25to34HI50Kto75K","HH25to34HI75Kto100K","HH25to34HI>100K","HH35to44HI<5K","HH35to44HI5Kto10K","HH35to44HI10Kto15K","HH35to44HI15Kto25K","HH35to44HI25Kto35K","HH35to44HI35Kto50K","HH35to44HI50Kto75K","HH35to44HI75Kto100K","HH35to44HI>100K","HH45to54HI<5K","HH45to54HI5Kto10K","HH45to54HI10Kto15K","HH45to54HI15Kto25K","HH45to54HI25Kto35K","HH45to54HI35Kto50K","HH45to54HI50Kto75K","HH45to54HI75Kto100K","HH45to54HI>100K","HH55to64HI<5K","HH55to64HI5Kto10K","HH55to64HI10Kto15K","HH55to64HI15Kto25K","HH55to64HI25Kto35K","HH55to64HI35Kto50K","HH55to64HI50Kto75K","HH55to64HI75Kto100K","HH55to64HI>100K","HH65to74HI<5K","HH65to74HI5Kto10K","HH65to74HI10Kto15K","HH65to74HI15Kto25K","HH65to74HI25Kto35K","HH65to74HI35Kto50K","HH65to74HI50Kto75K","HH65to74HI75Kto100K","HH65to74HI>100K","HH>75HI<5K","HH>75HI5Kto10K","HH>75HI10Kto15K","HH>75HI15Kto25K","HH>75HI25Kto35K","HH>75HI35Kto50K","HH>75HI50Kto75K","HH>75HI75Kto100K","HH>75HI>100K","SchoolEnrollment1thru12","Pop25andOver","HSGradorHigher","CollGradorHigher","NativePop","ForeignBornPop","BornStateOfRes","NativePop2","ForeignBornPop2","DroveAlone","CarPooled","PublicTranspt","Walked","OtherMeans","WorkedAtHome","HHInc<10K","HHInc10to15K","HHInc15to25K","HHInc25to35K","HHInc35to50K","HHInc50to75K","HHInc75to100K","HHInc100to150K","HHInc>150K"]
[{"$f":"VLOOKUP(DropDownList!$A$47,CntyQuery!$A$4:$FI$46,A1)","v":"Barrington"},{"$f":"VLOOKUP(DropDownList!$A$47,CntyQuery!$A$4:$FA$46,B1)","v":17005},{"$f":"VLOOKUP(DropDownList!$A$47,CntyQuery!$A$4:$FA$46,C1)","v":"03460"},{"$f":"VLOOKUP(DropDownList!$A$47,CntyQuery!$A$4:$FA$46,D1)","v":29886.99},{"$f":"VLOOKUP(DropDownList!$A$47,CntyQuery!$A$4:$FA$46,E1)","v":1230.17},{"$f":"VLOOKUP(DropDownList!$A$47,CntyQuery!$A$4:$FA$46,F1)","v":2640},{"$f":"VLOOKUP(DropDownList!$A$47,CntyQuery!$A$4:$FA$46,G1)","v":6164},{"$f":"VLOOKUP(DropDownList!$A$47,CntyQuery!$A$4:$FA$46,H1)","v":1698},{"$f":"VLOOKUP(DropDownList!$A$47,CntyQuery!$A$4:$FA$46,I1)","v":2217},{"$f":"VLOOKUP(DropDownList!$A$47,CntyQuery!$A$4:$FA$46,J1)","v":3053},{"$f":"VLOOKUP(DropDownList!$A$47,CntyQuery!$A$4:$FA$46,K1)","v":3111},{"$f":"VLOOKUP(DropDownList!$A$47,CntyQuery!$A$4:$FA$46,L1)","v":6100},{"$f":"VLOOKUP(DropDownList!$A$47,CntyQuery!$A$4:$FA$46,M1)","v":19},{"$f":"VLOOKUP(DropDownList!$A$47,CntyQuery!$A$4:$FA$46,N1)","v":16},{"$f":"VLOOKUP(DropDownList!$A$47,CntyQuery!$A$4:$FA$46,O1)","v":15},{"$f":"VLOOKUP(DropDownList!$A$47,CntyQuery!$A$4:$FA$46,P1)","v":14},{"$f":"VLOOKUP(DropDownList!$A$47,CntyQuery!$A$4:$FA$46,Q1)","v":53},{"$f":"VLOOKUP(DropDownList!$A$47,CntyQuery!$A$4:$FA$46,R1)","v":1479},{"$f":"VLOOKUP(DropDownList!$A$47,CntyQuery!$A$4:$FA$46,S1)","v":700},{"$f":"VLOOKUP(DropDownList!$A$47,CntyQuery!$A$4:$FA$46,T1)","v":1303},{"$f":"VLOOKUP(DropDownList!$A$47,CntyQuery!$A$4:$FA$46,U1)","v":1142},{"$f":"VLOOKUP(DropDownList!$A$47,CntyQuery!$A$4:$FA$46,V1)","v":673},{"$f":"VLOOKUP(DropDownList!$A$47,CntyQuery!$A$4:$FA$46,W1)","v":402},{"$f":"VLOOKUP(DropDownList!$A$47,CntyQuery!$A$4:$FA$46,X1)","v":317},{"$f":"VLOOKUP(DropDownList!$A$47,CntyQuery!$A$4:$FA$46,Y1)","v":148},{"$f":"VLOOKUP(DropDownList!$A$47,CntyQuery!$A$4:$FA$46,Z1)","v":6164},{"$f":"VLOOKUP(DropDownList!$A$47,CntyQuery!$A$4:$FA$46,AA1)","v":5438},{"$f":"VLOOKUP(DropDownList!$A$47,CntyQuery!$A$4:$FA$46,AB1)","v":0},{"$f":"VLOOKUP(DropDownList!$A$47,CntyQuery!$A$4:$FA$46,AC1)","v":2.7803337843933242},{"$f":"VLOOKUP(DropDownList!$A$47,CntyQuery!$A$4:$FA$46,AD1)","v":3.2025912838633688},{"$f":"VLOOKUP(DropDownList!$A$47,CntyQuery!$A$4:$FA$46,AE1)","v":360},{"$f":"VLOOKUP(DropDownList!$A$47,CntyQuery!$A$4:$FA$46,AF1)","v":1497},{"$f":"VLOOKUP(DropDownList!$A$47,CntyQuery!$A$4:$FA$46,AG1)","v":201},{"$f":"VLOOKUP(DropDownList!$A$47,CntyQuery!$A$4:$FA$46,AH1)","v":159},{"$f":"VLOOKUP(DropDownList!$A$47,CntyQuery!$A$4:$FA$46,AI1)","v":2640},{"$f":"VLOOKUP(DropDownList!$A$47,CntyQuery!$A$4:$FA$46,AJ1)","v":2217},{"$f":"VLOOKUP(DropDownList!$A$47,CntyQuery!$A$4:$FA$46,AK1)","v":423},{"$f":"VLOOKUP(DropDownList!$A$47,CntyQuery!$A$4:$FA$46,AL1)","v":1911},{"$f":"VLOOKUP(DropDownList!$A$47,CntyQuery!$A$4:$FA$46,AM1)","v":306},{"$f":"VLOOKUP(DropDownList!$A$47,CntyQuery!$A$4:$FA$46,AN1)","v":59},{"$f":"VLOOKUP(DropDownList!$A$47,CntyQuery!$A$4:$FA$46,AO1)","v":44},{"$f":"VLOOKUP(DropDownList!$A$47,CntyQuery!$A$4:$FA$46,AP1)","v":280},{"$f":"VLOOKUP(DropDownList!$A$47,CntyQuery!$A$4:$FA$46,AQ1)","v":1809},{"$f":"VLOOKUP(DropDownList!$A$47,CntyQuery!$A$4:$FA$46,AR1)","v":244},{"$f":"VLOOKUP(DropDownList!$A$47,CntyQuery!$A$4:$FA$46,AS1)","v":587},{"$f":"VLOOKUP(DropDownList!$A$47,CntyQuery!$A$4:$FA$46,AT1)","v":1402},{"$f":"VLOOKUP(DropDownList!$A$47,CntyQuery!$A$4:$FA$46,AU1)","v":39},{"$f":"VLOOKUP(DropDownList!$A$47,CntyQuery!$A$4:$FA$46,AV1)","v":587},{"$f":"VLOOKUP(DropDownList!$A$47,CntyQuery!$A$4:$FA$46,AW1)","v":108},{"$f":"VLOOKUP(DropDownList!$A$47,CntyQuery!$A$4:$FA$46,AX1)","v":152},{"$f":"VLOOKUP(DropDownList!$A$47,CntyQuery!$A$4:$FA$46,AY1)","v":46},{"$f":"VLOOKUP(DropDownList!$A$47,CntyQuery!$A$4:$FA$46,AZ1)","v":452},{"$f":"VLOOKUP(DropDownList!$A$47,CntyQuery!$A$4:$FA$46,BA1)","v":1375},{"$f":"VLOOKUP(DropDownList!$A$47,CntyQuery!$A$4:$FA$46,BB1)","v":531},{"$f":"VLOOKUP(DropDownList!$A$47,CntyQuery!$A$4:$FA$46,BC1)","v":322},{"$f":"VLOOKUP(DropDownList!$A$47,CntyQuery!$A$4:$FA$46,BD1)","v":18},{"$f":"VLOOKUP(DropDownList!$A$47,CntyQuery!$A$4:$FA$46,BE1)","v":182},{"$f":"VLOOKUP(DropDownList!$A$47,CntyQuery!$A$4:$FA$46,BF1)","v":955},{"$f":"VLOOKUP(DropDownList!$A$47,CntyQuery!$A$4:$FA$46,BG1)","v":1206},{"$f":"VLOOKUP(DropDownList!$A$47,CntyQuery!$A$4:$FA$46,BH1)","v":319},{"$f":"VLOOKUP(DropDownList!$A$47,CntyQuery!$A$4:$FA$46,BI1)","v":17},{"$f":"VLOOKUP(DropDownList!$A$47,CntyQuery!$A$4:$FA$46,BJ1)","v":97},{"$f":"VLOOKUP(DropDownList!$A$47,CntyQuery!$A$4:$FA$46,BK1)","v":140},{"$f":"VLOOKUP(DropDownList!$A$47,CntyQuery!$A$4:$FA$46,BL1)","v":301},{"$f":"VLOOKUP(DropDownList!$A$47,CntyQuery!$A$4:$FA$46,BM1)","v":521},{"$f":"VLOOKUP(DropDownList!$A$47,CntyQuery!$A$4:$FA$46,BN1)","v":606},{"$f":"VLOOKUP(DropDownList!$A$47,CntyQuery!$A$4:$FA$46,BO1)","v":398},{"$f":"VLOOKUP(DropDownList!$A$47,CntyQuery!$A$4:$FA$46,BP1)","v":99},{"$f":"VLOOKUP(DropDownList!$A$47,CntyQuery!$A$4:$FA$46,BQ1)","v":38},{"$f":"VLOOKUP(DropDownList!$A$47,CntyQuery!$A$4:$FA$46,BR1)","v":35542},{"$f":"VLOOKUP(DropDownList!$A$47,CntyQuery!$A$4:$FA$46,BS1)","v":0},{"$f":"VLOOKUP(DropDownList!$A$47,CntyQuery!$A$4:$FA$46,BT1)","v":0},{"$f":"VLOOKUP(DropDownList!$A$47,CntyQuery!$A$4:$FA$46,BU1)","v":0},{"$f":"VLOOKUP(DropDownList!$A$47,CntyQuery!$A$4:$FA$46,BV1)","v":12},{"$f":"VLOOKUP(DropDownList!$A$47,CntyQuery!$A$4:$FA$46,BW1)","v":0},{"$f":"VLOOKUP(DropDownList!$A$47,CntyQuery!$A$4:$FA$46,BX1)","v":41},{"$f":"VLOOKUP(DropDownList!$A$47,CntyQuery!$A$4:$FA$46,BY1)","v":11},{"$f":"VLOOKUP(DropDownList!$A$47,CntyQuery!$A$4:$FA$46,BZ1)","v":0},{"$f":"VLOOKUP(DropDownList!$A$47,CntyQuery!$A$4:$FA$46,CA1)","v":0},{"$f":"VLOOKUP(DropDownList!$A$47,CntyQuery!$A$4:$FA$46,CB1)","v":0},{"$f":"VLOOKUP(DropDownList!$A$47,CntyQuery!$A$4:$FA$46,CC1)","v":9},{"$f":"VLOOKUP(DropDownList!$A$47,CntyQuery!$A$4:$FA$46,CD1)","v":14},{"$f":"VLOOKUP(DropDownList!$A$47,CntyQuery!$A$4:$FA$46,CE1)","v":111},{"$f":"VLOOKUP(DropDownList!$A$47,CntyQuery!$A$4:$FA$46,CF1)","v":216},{"$f":"VLOOKUP(DropDownList!$A$47,CntyQuery!$A$4:$FA$46,CG1)","v":211},{"$f":"VLOOKUP(DropDownList!$A$47,CntyQuery!$A$4:$FA$46,CH1)","v":68},{"$f":"VLOOKUP(DropDownList!$A$47,CntyQuery!$A$4:$FA$46,CI1)","v":17},{"$f":"VLOOKUP(DropDownList!$A$47,CntyQuery!$A$4:$FA$46,CJ1)","v":0},{"$f":"VLOOKUP(DropDownList!$A$47,CntyQuery!$A$4:$FA$46,CK1)","v":0},{"$f":"VLOOKUP(DropDownList!$A$47,CntyQuery!$A$4:$FA$46,CL1)","v":34},{"$f":"VLOOKUP(DropDownList!$A$47,CntyQuery!$A$4:$FA$46,CM1)","v":8},{"$f":"VLOOKUP(DropDownList!$A$47,CntyQuery!$A$4:$FA$46,CN1)","v":81},{"$f":"VLOOKUP(DropDownList!$A$47,CntyQuery!$A$4:$FA$46,CO1)","v":120},{"$f":"VLOOKUP(DropDownList!$A$47,CntyQuery!$A$4:$FA$46,CP1)","v":193},{"$f":"VLOOKUP(DropDownList!$A$47,CntyQuery!$A$4:$FA$46,CQ1)","v":192},{"$f":"VLOOKUP(DropDownList!$A$47,CntyQuery!$A$4:$FA$46,CR1)","v":17},{"$f":"VLOOKUP(DropDownList!$A$47,CntyQuery!$A$4:$FA$46,CS1)","v":7},{"$f":"VLOOKUP(DropDownList!$A$47,CntyQuery!$A$4:$FA$46,CT1)","v":0},{"$f":"VLOOKUP(DropDownList!$A$47,CntyQuery!$A$4:$FA$46,CU1)","v":0},{"$f":"VLOOKUP(DropDownList!$A$47,CntyQuery!$A$4:$FA$46,CV1)","v":34},{"$f":"VLOOKUP(DropDownList!$A$47,CntyQuery!$A$4:$FA$46,CW1)","v":38},{"$f":"VLOOKUP(DropDownList!$A$47,CntyQuery!$A$4:$FA$46,CX1)","v":56},{"$f":"VLOOKUP(DropDownList!$A$47,CntyQuery!$A$4:$FA$46,CY1)","v":66},{"$f":"VLOOKUP(DropDownList!$A$47,CntyQuery!$A$4:$FA$46,CZ1)","v":87},{"$f":"VLOOKUP(DropDownList!$A$47,CntyQuery!$A$4:$FA$46,DA1)","v":32},{"$f":"VLOOKUP(DropDownList!$A$47,CntyQuery!$A$4:$FA$46,DB1)","v":13},{"$f":"VLOOKUP(DropDownList!$A$47,CntyQuery!$A$4:$FA$46,DC1)","v":17},{"$f":"VLOOKUP(DropDownList!$A$47,CntyQuery!$A$4:$FA$46,DD1)","v":26},{"$f":"VLOOKUP(DropDownList!$A$47,CntyQuery!$A$4:$FA$46,DE1)","v":26},{"$f":"VLOOKUP(DropDownList!$A$47,CntyQuery!$A$4:$FA$46,DF1)","v":37},{"$f":"VLOOKUP(DropDownList!$A$47,CntyQuery!$A$4:$FA$46,DG1)","v":25},{"$f":"VLOOKUP(DropDownList!$A$47,CntyQuery!$A$4:$FA$46,DH1)","v":32},{"$f":"VLOOKUP(DropDownList!$A$47,CntyQuery!$A$4:$FA$46,DI1)","v":40},{"$f":"VLOOKUP(DropDownList!$A$47,CntyQuery!$A$4:$FA$46,DJ1)","v":33},{"$f":"VLOOKUP(DropDownList!$A$47,CntyQuery!$A$4:$FA$46,DK1)","v":8},{"$f":"VLOOKUP(DropDownList!$A$47,CntyQuery!$A$4:$FA$46,DL1)","v":0},{"$f":"VLOOKUP(DropDownList!$A$47,CntyQuery!$A$4:$FA$46,DM1)","v":14},{"$f":"VLOOKUP(DropDownList!$A$47,CntyQuery!$A$4:$FA$46,DN1)","v":22},{"$f":"VLOOKUP(DropDownList!$A$47,CntyQuery!$A$4:$FA$46,DO1)","v":14},{"$f":"VLOOKUP(DropDownList!$A$47,CntyQuery!$A$4:$FA$46,DP1)","v":96},{"$f":"VLOOKUP(DropDownList!$A$47,CntyQuery!$A$4:$FA$46,DQ1)","v":42},{"$f":"VLOOKUP(DropDownList!$A$47,CntyQuery!$A$4:$FA$46,DR1)","v":0},{"$f":"VLOOKUP(DropDownList!$A$47,CntyQuery!$A$4:$FA$46,DS1)","v":0},{"$f":"VLOOKUP(DropDownList!$A$47,CntyQuery!$A$4:$FA$46,DT1)","v":10},{"$f":"VLOOKUP(DropDownList!$A$47,CntyQuery!$A$4:$FA$46,DU1)","v":0},{"$f":"VLOOKUP(DropDownList!$A$47,CntyQuery!$A$4:$FA$46,DV1)","v":14},{"$f":"VLOOKUP(DropDownList!$A$47,CntyQuery!$A$4:$FA$46,DW1)","v":36},{"$f":"VLOOKUP(DropDownList!$A$47,CntyQuery!$A$4:$FA$46,DX1)","v":8},{"$f":"VLOOKUP(DropDownList!$A$47,CntyQuery!$A$4:$FA$46,DY1)","v":8},{"$f":"VLOOKUP(DropDownList!$A$47,CntyQuery!$A$4:$FA$46,DZ1)","v":21},{"$f":"VLOOKUP(DropDownList!$A$47,CntyQuery!$A$4:$FA$46,EA1)","v":0},{"$f":"VLOOKUP(DropDownList!$A$47,CntyQuery!$A$4:$FA$46,EB1)","v":0},{"$f":"VLOOKUP(DropDownList!$A$47,CntyQuery!$A$4:$FA$46,EC1)","v":0},{"$f":"VLOOKUP(DropDownList!$A$47,CntyQuery!$A$4:$FA$46,ED1)","v":1146},{"$f":"VLOOKUP(DropDownList!$A$47,CntyQuery!$A$4:$FA$46,EE1)","v":3943},{"$f":"VLOOKUP(DropDownList!$A$47,CntyQuery!$A$4:$FA$46,EF1)","v":3358},{"$f":"VLOOKUP(DropDownList!$A$47,CntyQuery!$A$4:$FA$46,EG1)","v":893},{"$f":"VLOOKUP(DropDownList!$A$47,CntyQuery!$A$4:$FA$46,EH1)","v":6022},{"$f":"VLOOKUP(DropDownList!$A$47,CntyQuery!$A$4:$FA$46,EI1)","v":187},{"$f":"VLOOKUP(DropDownList!$A$47,CntyQuery!$A$4:$FA$46,EJ1)","v":3502},{"$f":"VLOOKUP(DropDownList!$A$47,CntyQuery!$A$4:$FA$46,EK1)","v":6022},{"$f":"VLOOKUP(DropDownList!$A$47,CntyQuery!$A$4:$FA$46,EL1)","v":187},{"$f":"VLOOKUP(DropDownList!$A$47,CntyQuery!$A$4:$FA$46,EM1)","v":2520},{"$f":"VLOOKUP(DropDownList!$A$47,CntyQuery!$A$4:$FA$46,EN1)","v":619},{"$f":"VLOOKUP(DropDownList!$A$47,CntyQuery!$A$4:$FA$46,EO1)","v":28},{"$f":"VLOOKUP(DropDownList!$A$47,CntyQuery!$A$4:$FA$46,EP1)","v":29},{"$f":"VLOOKUP(DropDownList!$A$47,CntyQuery!$A$4:$FA$46,EQ1)","v":25},{"$f":"VLOOKUP(DropDownList!$A$47,CntyQuery!$A$4:$FA$46,ER1)","v":100},{"$f":"VLOOKUP(DropDownList!$A$47,CntyQuery!$A$4:$FA$46,ES1)","v":114},{"$f":"VLOOKUP(DropDownList!$A$47,CntyQuery!$A$4:$FA$46,ET1)","v":140},{"$f":"VLOOKUP(DropDownList!$A$47,CntyQuery!$A$4:$FA$46,EU1)","v":301},{"$f":"VLOOKUP(DropDownList!$A$47,CntyQuery!$A$4:$FA$46,EV1)","v":521},{"$f":"VLOOKUP(DropDownList!$A$47,CntyQuery!$A$4:$FA$46,EW1)","v":606},{"$f":"VLOOKUP(DropDownList!$A$47,CntyQuery!$A$4:$FA$46,EX1)","v":398},{"$f":"VLOOKUP(DropDownList!$A$47,CntyQuery!$A$4:$FA$46,EY1)","v":99},{"$f":"VLOOKUP(DropDownList!$A$47,CntyQuery!$A$4:$FA$46,EZ1)","v":21},{"$f":"VLOOKUP(DropDownList!$A$47,CntyQuery!$A$4:$FA$46,FA1)","v":17}]
[]
[]
["Census 1990 Data -    Query Name:  TownSTF1Qry1"]
["NAME","COUSUBFP","Census_Cnty_Code","FIPS","LandAcres","WaterAcres","HousingUnits90Cen","P01Persons90Cen","P02Families90Cen","P03Households90cen","P05MalePop90cen","P05FemalePop90cen","P06WhitePop","P06BlackPop","P06AmerIndianPop","P06AsianPIPop","P06OtherRacePop","P08HispanicOrPop","P11AgeUnder15_90cen","P11Age15to24_90cen","P11Age25to34_90cen","P11Age35to44_90cen","P11Age45to54_90cen","P11Age55to64_90cen","P11Age65to74_90cen","P11Age75andOver_90cen","P15PersonsInHH90cen","P15PersonsInFamHH90cen","P15PersonsInGC","PersonsPerHH90cen","PersonsPerFam90Cen","P16SinglePersonHH90cen","P16MarriedCoupleHH90cen","P16SingleParentHH90cen","P16NonFamilyHH90cen","H01TotalHousingUnits","H02OccupiedHousingUnits","H02VacantHousingUnits","H03OwnerOccHU","H03RenterOccHU","H05VacantForRent90","H05VacantForSale90","H05VacantSeasonalRec","H23OOHUVal<15k","H23OOHUVal15to19k","H23OOHUVal20to24k","H23OOHUVal25to29k","H23OOHUVal30to34k","H23OOHUVal35to39k","H23OOHUVal40to44k","H23OOHUVal45to49k","H23OOHUVal50to59k","H23OOHUVal60to74k","H23OOHUVal75to99k","H23OOHUVal100to124k","H23OOHUVal125to149k","H23OOHUVal150to174k","H23OOHUVal175to199k","H23OOHUVal200to249k","H23OOHUVal250to299k","H23OOHUVal300to399k","H23OOHUVal400to499k","H23OOHUVal500kOrMore","H23BOOHUMedVal","H41SingFamHU90cen","H41MultiFamHU90cen","H41MobileHom90cen","H43SingFamOwnHU90cen","H43MultiFamOwnHU90cen","H43MobileHomOwnHU90cen","H43SingFamRntrHU90cen","H43MultiFamRntrHU90cen","H43MobileHomRntrHU90cen","H41HU1UnitDet","H41HU1UnitAtt","H41HU2Unit","H41HU3to4Unit","H41HU5to9Unit","H41HU10to19Unit","H41HU20to49Unit","H41HU50PlusUnit","H41HUMobilH","H41HUOther"]
[{"$f":"VLOOKUP(DropDownList!$B$47,CntyQuery!$A$51:$CE$93,A$1)","v":"Barrington"},{"$f":"VLOOKUP(DropDownList!$B$47,CntyQuery!$A$51:$CE$93,B$1)","v":901},{"$f":"VLOOKUP(DropDownList!$B$47,CntyQuery!$A$51:$CE$93,C$1)","v":17005},{"$f":"VLOOKUP(DropDownList!$B$47,CntyQuery!$A$51:$CE$93,D$1)","v":"03460"},{"$f":"VLOOKUP(DropDownList!$B$47,CntyQuery!$A$51:$CE$93,E$1)","v":29886.99},{"$f":"VLOOKUP(DropDownList!$B$47,CntyQuery!$A$51:$CE$93,F$1)","v":1230.17},{"$f":"VLOOKUP(DropDownList!$B$47,CntyQuery!$A$51:$CE$93,G$1)","v":2640},{"$f":"VLOOKUP(DropDownList!$B$47,CntyQuery!$A$51:$CE$93,H$1)","v":6164},{"$f":"VLOOKUP(DropDownList!$B$47,CntyQuery!$A$51:$CE$93,I$1)","v":1698},{"$f":"VLOOKUP(DropDownList!$B$47,CntyQuery!$A$51:$CE$93,J$1)","v":2217},{"$f":"VLOOKUP(DropDownList!$B$47,CntyQuery!$A$51:$CE$93,K$1)","v":3053},{"$f":"VLOOKUP(DropDownList!$B$47,CntyQuery!$A$51:$CE$93,L$1)","v":3111},{"$f":"VLOOKUP(DropDownList!$B$47,CntyQuery!$A$51:$CE$93,M$1)","v":6100},{"$f":"VLOOKUP(DropDownList!$B$47,CntyQuery!$A$51:$CE$93,N$1)","v":19},{"$f":"VLOOKUP(DropDownList!$B$47,CntyQuery!$A$51:$CE$93,O$1)","v":16},{"$f":"VLOOKUP(DropDownList!$B$47,CntyQuery!$A$51:$CE$93,P$1)","v":15},{"$f":"VLOOKUP(DropDownList!$B$47,CntyQuery!$A$51:$CE$93,Q$1)","v":14},{"$f":"VLOOKUP(DropDownList!$B$47,CntyQuery!$A$51:$CE$93,R$1)","v":53},{"$f":"VLOOKUP(DropDownList!$B$47,CntyQuery!$A$51:$CE$93,S$1)","v":1479},{"$f":"VLOOKUP(DropDownList!$B$47,CntyQuery!$A$51:$CE$93,T$1)","v":700},{"$f":"VLOOKUP(DropDownList!$B$47,CntyQuery!$A$51:$CE$93,U$1)","v":1303},{"$f":"VLOOKUP(DropDownList!$B$47,CntyQuery!$A$51:$CE$93,V$1)","v":1142},{"$f":"VLOOKUP(DropDownList!$B$47,CntyQuery!$A$51:$CE$93,W$1)","v":673},{"$f":"VLOOKUP(DropDownList!$B$47,CntyQuery!$A$51:$CE$93,X$1)","v":402},{"$f":"VLOOKUP(DropDownList!$B$47,CntyQuery!$A$51:$CE$93,Y$1)","v":317},{"$f":"VLOOKUP(DropDownList!$B$47,CntyQuery!$A$51:$CE$93,Z$1)","v":148},{"$f":"VLOOKUP(DropDownList!$B$47,CntyQuery!$A$51:$CE$93,AA$1)","v":6164},{"$f":"VLOOKUP(DropDownList!$B$47,CntyQuery!$A$51:$CE$93,AB$1)","v":5438},{"$f":"VLOOKUP(DropDownList!$B$47,CntyQuery!$A$51:$CE$93,AC$1)","v":0},{"$f":"VLOOKUP(DropDownList!$B$47,CntyQuery!$A$51:$CE$93,AD$1)","v":2.7803337843933242},{"$f":"VLOOKUP(DropDownList!$B$47,CntyQuery!$A$51:$CE$93,AE$1)","v":3.2025912838633688},{"$f":"VLOOKUP(DropDownList!$B$47,CntyQuery!$A$51:$CE$93,AF$1)","v":360},{"$f":"VLOOKUP(DropDownList!$B$47,CntyQuery!$A$51:$CE$93,AG$1)","v":1497},{"$f":"VLOOKUP(DropDownList!$B$47,CntyQuery!$A$51:$CE$93,AH$1)","v":201},{"$f":"VLOOKUP(DropDownList!$B$47,CntyQuery!$A$51:$CE$93,AI$1)","v":159},{"$f":"VLOOKUP(DropDownList!$B$47,CntyQuery!$A$51:$CE$93,AJ$1)","v":2640},{"$f":"VLOOKUP(DropDownList!$B$47,CntyQuery!$A$51:$CE$93,AK$1)","v":2217},{"$f":"VLOOKUP(DropDownList!$B$47,CntyQuery!$A$51:$CE$93,AL$1)","v":423},{"$f":"VLOOKUP(DropDownList!$B$47,CntyQuery!$A$51:$CE$93,AM$1)","v":1911},{"$f":"VLOOKUP(DropDownList!$B$47,CntyQuery!$A$51:$CE$93,AN$1)","v":306},{"$f":"VLOOKUP(DropDownList!$B$47,CntyQuery!$A$51:$CE$93,AO$1)","v":59},{"$f":"VLOOKUP(DropDownList!$B$47,CntyQuery!$A$51:$CE$93,AP$1)","v":44},{"$f":"VLOOKUP(DropDownList!$B$47,CntyQuery!$A$51:$CE$93,AQ$1)","v":280},{"$f":"VLOOKUP(DropDownList!$B$47,CntyQuery!$A$51:$CE$93,AR$1)","v":3},{"$f":"VLOOKUP(DropDownList!$B$47,CntyQuery!$A$51:$CE$93,AS$1)","v":0},{"$f":"VLOOKUP(DropDownList!$B$47,CntyQuery!$A$51:$CE$93,AT$1)","v":3},{"$f":"VLOOKUP(DropDownList!$B$47,CntyQuery!$A$51:$CE$93,AU$1)","v":6},{"$f":"VLOOKUP(DropDownList!$B$47,CntyQuery!$A$51:$CE$93,AV$1)","v":5},{"$f":"VLOOKUP(DropDownList!$B$47,CntyQuery!$A$51:$CE$93,AW$1)","v":4},{"$f":"VLOOKUP(DropDownList!$B$47,CntyQuery!$A$51:$CE$93,AX$1)","v":5},{"$f":"VLOOKUP(DropDownList!$B$47,CntyQuery!$A$51:$CE$93,AY$1)","v":4},{"$f":"VLOOKUP(DropDownList!$B$47,CntyQuery!$A$51:$CE$93,AZ$1)","v":20},{"$f":"VLOOKUP(DropDownList!$B$47,CntyQuery!$A$51:$CE$93,BA$1)","v":51},{"$f":"VLOOKUP(DropDownList!$B$47,CntyQuery!$A$51:$CE$93,BB$1)","v":185},{"$f":"VLOOKUP(DropDownList!$B$47,CntyQuery!$A$51:$CE$93,BC$1)","v":324},{"$f":"VLOOKUP(DropDownList!$B$47,CntyQuery!$A$51:$CE$93,BD$1)","v":257},{"$f":"VLOOKUP(DropDownList!$B$47,CntyQuery!$A$51:$CE$93,BE$1)","v":143},{"$f":"VLOOKUP(DropDownList!$B$47,CntyQuery!$A$51:$CE$93,BF$1)","v":48},{"$f":"VLOOKUP(DropDownList!$B$47,CntyQuery!$A$51:$CE$93,BG$1)","v":41},{"$f":"VLOOKUP(DropDownList!$B$47,CntyQuery!$A$51:$CE$93,BH$1)","v":17},{"$f":"VLOOKUP(DropDownList!$B$47,CntyQuery!$A$51:$CE$93,BI$1)","v":6},{"$f":"VLOOKUP(DropDownList!$B$47,CntyQuery!$A$51:$CE$93,BJ$1)","v":2},{"$f":"VLOOKUP(DropDownList!$B$47,CntyQuery!$A$51:$CE$93,BK$1)","v":2},{"$f":"VLOOKUP(DropDownList!$B$47,CntyQuery!$A$51:$CE$93,BL$1)","v":121400},{"$f":"VLOOKUP(DropDownList!$B$47,CntyQuery!$A$51:$CE$93,BM$1)","v":1809},{"$f":"VLOOKUP(DropDownList!$B$47,CntyQuery!$A$51:$CE$93,BN$1)","v":244},{"$f":"VLOOKUP(DropDownList!$B$47,CntyQuery!$A$51:$CE$93,BO$1)","v":587},{"$f":"VLOOKUP(DropDownList!$B$47,CntyQuery!$A$51:$CE$93,BP$1)","v":1402},{"$f":"VLOOKUP(DropDownList!$B$47,CntyQuery!$A$51:$CE$93,BQ$1)","v":39},{"$f":"VLOOKUP(DropDownList!$B$47,CntyQuery!$A$51:$CE$93,BR$1)","v":470},{"$f":"VLOOKUP(DropDownList!$B$47,CntyQuery!$A$51:$CE$93,BS$1)","v":108},{"$f":"VLOOKUP(DropDownList!$B$47,CntyQuery!$A$51:$CE$93,BT$1)","v":152},{"$f":"VLOOKUP(DropDownList!$B$47,CntyQuery!$A$51:$CE$93,BU$1)","v":46},{"$f":"VLOOKUP(DropDownList!$B$47,CntyQuery!$A$51:$CE$93,BV$1)","v":1809},{"$f":"VLOOKUP(DropDownList!$B$47,CntyQuery!$A$51:$CE$93,BW$1)","v":21},{"$f":"VLOOKUP(DropDownList!$B$47,CntyQuery!$A$51:$CE$93,BX$1)","v":45},{"$f":"VLOOKUP(DropDownList!$B$47,CntyQuery!$A$51:$CE$93,BY$1)","v":36},{"$f":"VLOOKUP(DropDownList!$B$47,CntyQuery!$A$51:$CE$93,BZ$1)","v":99},{"$f":"VLOOKUP(DropDownList!$B$47,CntyQuery!$A$51:$CE$93,CA$1)","v":43},{"$f":"VLOOKUP(DropDownList!$B$47,CntyQuery!$A$51:$CE$93,CB$1)","v":0},{"$f":"VLOOKUP(DropDownList!$B$47,CntyQuery!$A$51:$CE$93,CC$1)","v":0},{"$f":"VLOOKUP(DropDownList!$B$47,CntyQuery!$A$51:$CE$93,CD$1)","v":569},{"$f":"VLOOKUP(DropDownList!$B$47,CntyQuery!$A$51:$CE$93,CE$1)","v":18}]
[]
[]
["Census 1990 Data -          Query Name: TownSTF3Qry1"]
["NAME","FIPS","COUSUBFP","LandAcres","WaterAcres","HousingUnits90Cen","P01Persons90Cen","P02Families90Cen","P03Households90cen","H25HU<5yrs90cen","H25HU5to20yrs90cen","H25HU20to50yrs90cen","H25HU>50yrs90cen","H31Units0Bedroom90cen","H31Units1Bedroom90cen","H31Units2Bedroom90cen","H31Units3Bedroom90cen","H31Units4Bedroom90cen","H31Units5+Bedroom90cen","P80HI<5K","P80HI5Kto10K","P80HI10Kto15K","P80HI15Kto25K","P80HI25Kto35K","P80HI35Kto50K","P80HI50Kto75K","P80HI75Kto100K","P80HI>100K","P80AMedHI","P86HH<25HI<5K","P86HH<25HI5Kto10K","P86HH<25HI10Kto15K","P86HH<25HI15Kto25K","P86HH<25HI25Kto35K","P86HH<25HI35Kto50K","P86HH<25HI50Kto75K","P86HH<25HI75Kto100K","P86HH<25HI>100K","P86HH25to34HI<5K","P86HH25to34HI5Kto10K","P86HH25to34HI10Kto15K","P86HH25to34HI15Kto25K","P86HH25to34HI25Kto35K","P86HH25to34HI35Kto50K","P86HH25to34HI50Kto75K","P86HH25to34HI75Kto100K","P86HH25to34HI>100K","P86HH35to44HI<5K","P86HH35to44HI5Kto10K","P86HH35to44HI10Kto15K","P86HH35to44HI15Kto25K","P86HH35to44HI25Kto35K","P86HH35to44HI35Kto50K","P86HH35to44HI50Kto75K","P86HH35to44HI75Kto100K","P86HH35to44HI>100K","P86HH45to54HI<5K","P86HH45to54HI5Kto10K","P86HH45to54HI10Kto15K","P86HH45to54HI15Kto25K","P86HH45to54HI25Kto35K","P86HH45to54HI35Kto50K","P86HH45to54HI50Kto75K","P86HH45to54HI75Kto100K","P86HH45to54HI>100K","P86HH55to64HI<5K","P86HH55to64HI5Kto10K","P86HH55to64HI10Kto15K","P86HH55to64HI15Kto25K","P86HH55to64HI25Kto35K","P86HH55to64HI35Kto50K","P86HH55to64HI50Kto75K","P86HH55to64HI75Kto100K","P86HH55to64HI>100K","P86HH65to74HI<5K","P86HH65to74HI5Kto10K","P86HH65to74HI10Kto15K","P86HH65to74HI15Kto25K","P86HH65to74HI25Kto35K","P86HH65to74HI35Kto50K","P86HH65to74HI50Kto75K","P86HH65to74HI75Kto100K","P86HH65to74HI>100K","P86HH>75HI<5K","P86HH>75HI5Kto10K","P86HH>75HI10Kto15K","P86HH>75HI15Kto25K","P86HH>75HI25Kto35K","P86HH>75HI35Kto50K","P86HH>75HI50Kto75K","P86HH>75HI75Kto100K","P86HH>75HI>100K","P54SchlEnrlPrePrim","P54SchlEnrlElemThrHS","P54SchlEnrlCollege","P54NotEnrlInSch","P57Pop25andOver","P57LessThan9thGrade","P579thto12thNoDip","P57HSGrad","P57SomeCollege","P57AssocDeg","P57BachelDeg","P57GradorProfDeg","P57HSGradorHigher","P57CollGradorHigher","P42NativePop","P42ForeignBornPop","P42BornStateOfRes","P37NativePop2","P37ForeignBornPop2","P49DroveAlone","P49CarPooled","P49PublicTranspt","P49Walked","P49OtherMeans","P49WorkedAtHome","P80HHInc<10K","P80HHInc10to15K","P80HHInc15to25K","P80HHInc25to35K","P80HHInc35to50K","P80HHInc50to75K","P80HHInc75to100K","P80HHInc100to150K","P80HHInc>150K","H25YearStBlt89to90","H25YearStBlt85to88","H25YearStBlt80to84","H25YearStBlt70to79","H25YearStBlt60to69","H25YearStBlt50to59","H25YearStBlt40to49","H25YearStBlt39earlier","P107FamInc<10K","P107FamInc10to15K","P107FamInc15to25K","P107FamInc25to35K","P107FamInc35to50K","P107FamInc50to75K","P107FamInc75to100K","P107FamInc100to150K","P107FamInc>150K","P107AMedFamInc","P110NonFamInc<10K","P110NonFamInc10to15K","P110NonFamInc15to25K","P110NonFamInc25to35K","P110NonFamInc35to50K","P110NonFamInc50to75K","P110NonFamInc75to100K","P110NonFamInc100to150K","P110NonFamInc>150K","P110AMedNonFamInc","H16HU1Room","H16HU2Room","H16HU3Room","H16HU4Room","H16HU5Room","H16HU6Room","H16HU7Room","H16HU8Room","H16HU9+Room","H43GrossRnt<100","H43GrossRnt100to149","H43GrossRnt150to199","H43GrossRnt200to249","H43GrossRnt250to299","H43GrossRnt300to349","H43GrossRnt350to399","H43GrossRnt400to449","H43GrossRnt450to499","H43GrossRnt500to549","H43GrossRnt550to599","H43GrossRnt600to649","H43GrossRnt650to699","H43GrossRnt700to749","H43GrossRnt750to999","H43GrossRnt1000Plus","H43NoCashRent","H43MedGrossRent","H51GrossRnt<20PctHHInc","H51GrossRnt20to24PctHHInc","H51GrossRnt25to29PctHHInc","H51GrossRnt30to34PctHHInc","H51GrossRnt35PctOrMoreHHInc","H51GrossRntAsPctHHIncNotComp","H52HUwMtgMoOwnCst<200","H52HUwMtgMoOwnCst200to299","H52HUwMtgMoOwnCst300to399","H52HUwMtgMoOwnCst400to499","H52HUwMtgMoOwnCst500to599","H52HUwMtgMoOwnCst600to699","H52HUwMtgMoOwnCst700to799","H52HUwMtgMoOwnCst800to899","H52HUwMtgMoOwnCst900to999","H52HUwMtgMoOwnCst1000to1249","H52HUwMtgMoOwnCst1250to1499","H52HUwMtgMoOwnCst1500to1999","H52HUwMtgMoOwnCst2000More","H52HUwNoMtgMoOwnCst<100","H52HUwNoMtgMoOwnCst100to149","H52HUwNoMtgMoOwnCst150to199","H52HUwNoMtgMoOwnCst200to249","H52HUwNoMtgMoOwnCst250to299","H52HUwNoMtgMoOwnCst300to349","H52HUwNoMtgMoOwnCst350to399","H52HUwNoMtgMoOwnCst400More","H52AMedMoOwnCstWMortg","H52AMedMoOwnCstWNoMortg","H58HUwMtgMOC<20pHHInc","H58HUwMtgMOC20to24pHHInc","H58HUwMtgMOC25to29pHHInc","H58HUwMtgMOC30to34pHHInc","H58wMtgMOC>35pHHInc","H58HUwMtgMOCNotComp","H58HUwNoMtgMOC<20pHHInc","H58HUwNoMtgMOC20to24pHHInc","H58HUwNoMtgMOC25to29pHHInc","H58HUwNoMtgMOC30to34pHHInc","H58wNoMtgMOC>35pHHInc","H58HUwNoMtgMOCNotComp","H61OOHUVal<15k","H61OOHUVal15to19k","H61OOHUVal20to24k","H61OOHUVal25to29k","H61OOHUVal30to34k","H61OOHUVal35to39k","H61OOHUVal40to44k","H61OOHUVal45to49k","H61OOHUVal50to59k","H61OOHUVal60to74k","H61OOHUVal75to99k","H61OOHUVal100to124k","H61OOHUVal125to149k","H61OOHUVal150to174k","H61OOHUVal175to199k","H61OOHUVal200to249k","H61OOHUVal250to299k","H61OOHUVal300to399k","H61OOHUVal400to499k","H61OOHUVal500kOrMore","H61aOOHUMedVal"]
[]
[]
[]
["Other Demo Data -             Query Name: QryAllTowns-ACSDemographicSheet"]
["TOWN_NAME","FIPS","TOWNCNTY","COUSUB","POP80","POP90CDCEN","POP2000CEN","POP2010CEN","POP2020-Proj","POP2025-Proj","POP2030-Proj","SF80","MF80","MH80","SF81","MF81","MH81","SF82","MF82","MH82","SF83","MF83","MH83","SF84_OSP","MF84_OSP","MH84_OSP","SF85_OSP","MF85_OSP","MH85_OSP","SF86_OSP","MF86_OSP","MH86_OSP","SF87_OSP","MF87_OSP","MH87_OSP","SF88_OSP","MF88_OSP","MH88_OSP","SF89_OSP","MF89_OSP","MH89_OSP","SF90_OSP","MF90_OSP","MH90_OSP","SF91_OSP","MF91_OSP","MH91_OSP","SF92_OSP","MF92_OSP","MH92_OSP","SF93_OSP","MF93_OSP","MH93_OSP","SF94_OSP","MF94_OSP","MH94_OSP","SF95_OSP","MF95_OSP","MH95_OSP","SF96_OSP","MF96_OSP","MH96_OSP","SF97_OSP","MF97_OSP","MH97_OSP","SF98_OSP","MF98_OSP","MH98_OSP","SF99_OSP","MF99_OSP","MH99_OSP","SF00_OSP","MF00_OSP","MH00_OSP","SF01_OSP","MF01_OSP","MH01_OSP","SF02_OSP","MF02_OSP","MH02_OSP","SF03_OSP","MF03_OSP","MH03_OSP","SF04_OSP","MF04_OSP","MH04_OSP","SF05_OSP","MF05_OSP","MH05_OSP","SF06_OSP","MF06_OSP","MH06_OSP","SF07_OSP","MF07_OSP","MH07_OSP","SF08_OSP","MF08_OSP","MH08_OSP","SF09_OSP","MF09_OSP","MH09_OSP","SF10_OSP","MF10_OSP","MH10_OSP","SF11_OSP","MF11_OSP","MH11_OSP","SF12_OSP","MF12_OSP","MH12_OSP","SF13_OSP","MF13_OSP","MH13_OSP","SF14_OSP","MF14_OSP","MH14_OSP","SF15_OSP","MF15_OSP","MH15_OSP","SF16_OSP","MF16_OSP","MH16_OSP","SF17_OSP","MF17_OSP","MH17_OSP","SF18_OSP","MF18_OSP","MH18_OSP","COMMENTS"]
[{"$f":"VLOOKUP(DropDownList!$B$47,CntyQuery!$A$118:$FZ$130,A$1)","v":"Barrington"},{"$f":"VLOOKUP(DropDownList!$B$47,CntyQuery!$A$118:$FZ$130,B$1)","v":17005},{"$f":"VLOOKUP(DropDownList!$B$47,CntyQuery!$A$118:$FZ$130,C$1)","v":901},{"$f":"VLOOKUP(DropDownList!$B$47,CntyQuery!$A$118:$FZ$130,D$1)","v":"03460"},{"$f":"VLOOKUP(DropDownList!$B$47,CntyQuery!$A$118:$FZ$130,E$1)","v":4404},{"$f":"VLOOKUP(DropDownList!$B$47,CntyQuery!$A$118:$FZ$130,F$1)","v":6164},{"$f":"VLOOKUP(DropDownList!$B$47,CntyQuery!$A$118:$FZ$130,G$1)","v":7475},{"$f":"VLOOKUP(DropDownList!$B$47,CntyQuery!$A$118:$FZ$130,H$1)","v":8576},{"$f":"VLOOKUP(DropDownList!$B$47,CntyQuery!$A$118:$FZ$130,I$1)","v":9536},{"$f":"VLOOKUP(DropDownList!$B$47,CntyQuery!$A$118:$FZ$130,J$1)","v":9730},{"$f":"VLOOKUP(DropDownList!$B$47,CntyQuery!$A$118:$FZ$130,K$1)","v":9970},{"$f":"VLOOKUP(DropDownList!$B$47,CntyQuery!$A$118:$FZ$130,L$1)","v":26},{"$f":"VLOOKUP(DropDownList!$B$47,CntyQuery!$A$118:$FZ$130,M$1)","v":0},{"$f":"VLOOKUP(DropDownList!$B$47,CntyQuery!$A$118:$FZ$130,N$1)","v":15},{"$f":"VLOOKUP(DropDownList!$B$47,CntyQuery!$A$118:$FZ$130,O$1)","v":22},{"$f":"VLOOKUP(DropDownList!$B$47,CntyQuery!$A$118:$FZ$130,P$1)","v":0},{"$f":"VLOOKUP(DropDownList!$B$47,CntyQuery!$A$118:$FZ$130,Q$1)","v":9},{"$f":"VLOOKUP(DropDownList!$B$47,CntyQuery!$A$118:$FZ$130,R$1)","v":37},{"$f":"VLOOKUP(DropDownList!$B$47,CntyQuery!$A$118:$FZ$130,S$1)","v":6},{"$f":"VLOOKUP(DropDownList!$B$47,CntyQuery!$A$118:$FZ$130,T$1)","v":20},{"$f":"VLOOKUP(DropDownList!$B$47,CntyQuery!$A$118:$FZ$130,U$1)","v":41},{"$f":"VLOOKUP(DropDownList!$B$47,CntyQuery!$A$118:$FZ$130,V$1)","v":0},{"$f":"VLOOKUP(DropDownList!$B$47,CntyQuery!$A$118:$FZ$130,W$1)","v":14},{"$f":"VLOOKUP(DropDownList!$B$47,CntyQuery!$A$118:$FZ$130,X$1)","v":45},{"$f":"VLOOKUP(DropDownList!$B$47,CntyQuery!$A$118:$FZ$130,Y$1)","v":10},{"$f":"VLOOKUP(DropDownList!$B$47,CntyQuery!$A$118:$FZ$130,Z$1)","v":15},{"$f":"VLOOKUP(DropDownList!$B$47,CntyQuery!$A$118:$FZ$130,AA$1)","v":62},{"$f":"VLOOKUP(DropDownList!$B$47,CntyQuery!$A$118:$FZ$130,AB$1)","v":1},{"$f":"VLOOKUP(DropDownList!$B$47,CntyQuery!$A$118:$FZ$130,AC$1)","v":6},{"$f":"VLOOKUP(DropDownList!$B$47,CntyQuery!$A$118:$FZ$130,AD$1)","v":68},{"$f":"VLOOKUP(DropDownList!$B$47,CntyQuery!$A$118:$FZ$130,AE$1)","v":18},{"$f":"VLOOKUP(DropDownList!$B$47,CntyQuery!$A$118:$FZ$130,AF$1)","v":4},{"$f":"VLOOKUP(DropDownList!$B$47,CntyQuery!$A$118:$FZ$130,AG$1)","v":62},{"$f":"VLOOKUP(DropDownList!$B$47,CntyQuery!$A$118:$FZ$130,AH$1)","v":0},{"$f":"VLOOKUP(DropDownList!$B$47,CntyQuery!$A$118:$FZ$130,AI$1)","v":3},{"$f":"VLOOKUP(DropDownList!$B$47,CntyQuery!$A$118:$FZ$130,AJ$1)","v":79},{"$f":"VLOOKUP(DropDownList!$B$47,CntyQuery!$A$118:$FZ$130,AK$1)","v":6},{"$f":"VLOOKUP(DropDownList!$B$47,CntyQuery!$A$118:$FZ$130,AL$1)","v":11},{"$f":"VLOOKUP(DropDownList!$B$47,CntyQuery!$A$118:$FZ$130,AM$1)","v":67},{"$f":"VLOOKUP(DropDownList!$B$47,CntyQuery!$A$118:$FZ$130,AN$1)","v":5},{"$f":"VLOOKUP(DropDownList!$B$47,CntyQuery!$A$118:$FZ$130,AO$1)","v":4},{"$f":"VLOOKUP(DropDownList!$B$47,CntyQuery!$A$118:$FZ$130,AP$1)","v":52},{"$f":"VLOOKUP(DropDownList!$B$47,CntyQuery!$A$118:$FZ$130,AQ$1)","v":0},{"$f":"VLOOKUP(DropDownList!$B$47,CntyQuery!$A$118:$FZ$130,AR$1)","v":6},{"$f":"VLOOKUP(DropDownList!$B$47,CntyQuery!$A$118:$FZ$130,AS$1)","v":37},{"$f":"VLOOKUP(DropDownList!$B$47,CntyQuery!$A$118:$FZ$130,AT$1)","v":1},{"$f":"VLOOKUP(DropDownList!$B$47,CntyQuery!$A$118:$FZ$130,AU$1)","v":7},{"$f":"VLOOKUP(DropDownList!$B$47,CntyQuery!$A$118:$FZ$130,AV$1)","v":31},{"$f":"VLOOKUP(DropDownList!$B$47,CntyQuery!$A$118:$FZ$130,AW$1)","v":2},{"$f":"VLOOKUP(DropDownList!$B$47,CntyQuery!$A$118:$FZ$130,AX$1)","v":11},{"$f":"VLOOKUP(DropDownList!$B$47,CntyQuery!$A$118:$FZ$130,AY$1)","v":30},{"$f":"VLOOKUP(DropDownList!$B$47,CntyQuery!$A$118:$FZ$130,AZ$1)","v":0},{"$f":"VLOOKUP(DropDownList!$B$47,CntyQuery!$A$118:$FZ$130,BA$1)","v":10},{"$f":"VLOOKUP(DropDownList!$B$47,CntyQuery!$A$118:$FZ$130,BB$1)","v":33},{"$f":"VLOOKUP(DropDownList!$B$47,CntyQuery!$A$118:$FZ$130,BC$1)","v":0},{"$f":"VLOOKUP(DropDownList!$B$47,CntyQuery!$A$118:$FZ$130,BD$1)","v":8},{"$f":"VLOOKUP(DropDownList!$B$47,CntyQuery!$A$118:$FZ$130,BE$1)","v":50},{"$f":"VLOOKUP(DropDownList!$B$47,CntyQuery!$A$118:$FZ$130,BF$1)","v":2},{"$f":"VLOOKUP(DropDownList!$B$47,CntyQuery!$A$118:$FZ$130,BG$1)","v":10},{"$f":"VLOOKUP(DropDownList!$B$47,CntyQuery!$A$118:$FZ$130,BH$1)","v":36},{"$f":"VLOOKUP(DropDownList!$B$47,CntyQuery!$A$118:$FZ$130,BI$1)","v":4},{"$f":"VLOOKUP(DropDownList!$B$47,CntyQuery!$A$118:$FZ$130,BJ$1)","v":14},{"$f":"VLOOKUP(DropDownList!$B$47,CntyQuery!$A$118:$FZ$130,BK$1)","v":52},{"$f":"VLOOKUP(DropDownList!$B$47,CntyQuery!$A$118:$FZ$130,BL$1)","v":0},{"$f":"VLOOKUP(DropDownList!$B$47,CntyQuery!$A$118:$FZ$130,BM$1)","v":14},{"$f":"VLOOKUP(DropDownList!$B$47,CntyQuery!$A$118:$FZ$130,BN$1)","v":54},{"$f":"VLOOKUP(DropDownList!$B$47,CntyQuery!$A$118:$FZ$130,BO$1)","v":0},{"$f":"VLOOKUP(DropDownList!$B$47,CntyQuery!$A$118:$FZ$130,BP$1)","v":7},{"$f":"VLOOKUP(DropDownList!$B$47,CntyQuery!$A$118:$FZ$130,BQ$1)","v":67},{"$f":"VLOOKUP(DropDownList!$B$47,CntyQuery!$A$118:$FZ$130,BR$1)","v":4},{"$f":"VLOOKUP(DropDownList!$B$47,CntyQuery!$A$118:$FZ$130,BS$1)","v":0},{"$f":"VLOOKUP(DropDownList!$B$47,CntyQuery!$A$118:$FZ$130,BT$1)","v":69},{"$f":"VLOOKUP(DropDownList!$B$47,CntyQuery!$A$118:$FZ$130,BU$1)","v":0},{"$f":"VLOOKUP(DropDownList!$B$47,CntyQuery!$A$118:$FZ$130,BV$1)","v":6},{"$f":"VLOOKUP(DropDownList!$B$47,CntyQuery!$A$118:$FZ$130,BW$1)","v":51},{"$f":"VLOOKUP(DropDownList!$B$47,CntyQuery!$A$118:$FZ$130,BX$1)","v":6},{"$f":"VLOOKUP(DropDownList!$B$47,CntyQuery!$A$118:$FZ$130,BY$1)","v":1},{"$f":"VLOOKUP(DropDownList!$B$47,CntyQuery!$A$118:$FZ$130,BZ$1)","v":59},{"$f":"VLOOKUP(DropDownList!$B$47,CntyQuery!$A$118:$FZ$130,CA$1)","v":10},{"$f":"VLOOKUP(DropDownList!$B$47,CntyQuery!$A$118:$FZ$130,CB$1)","v":0},{"$f":"VLOOKUP(DropDownList!$B$47,CntyQuery!$A$118:$FZ$130,CC$1)","v":44},{"$f":"VLOOKUP(DropDownList!$B$47,CntyQuery!$A$118:$FZ$130,CD$1)","v":0},{"$f":"VLOOKUP(DropDownList!$B$47,CntyQuery!$A$118:$FZ$130,CE$1)","v":1},{"$f":"VLOOKUP(DropDownList!$B$47,CntyQuery!$A$118:$FZ$130,CF$1)","v":77},{"$f":"VLOOKUP(DropDownList!$B$47,CntyQuery!$A$118:$FZ$130,CG$1)","v":2},{"$f":"VLOOKUP(DropDownList!$B$47,CntyQuery!$A$118:$FZ$130,CH$1)","v":0},{"$f":"VLOOKUP(DropDownList!$B$47,CntyQuery!$A$118:$FZ$130,CI$1)","v":63},{"$f":"VLOOKUP(DropDownList!$B$47,CntyQuery!$A$118:$FZ$130,CJ$1)","v":4},{"$f":"VLOOKUP(DropDownList!$B$47,CntyQuery!$A$118:$FZ$130,CK$1)","v":15},{"$f":"VLOOKUP(DropDownList!$B$47,CntyQuery!$A$118:$FZ$130,CL$1)","v":52},{"$f":"VLOOKUP(DropDownList!$B$47,CntyQuery!$A$118:$FZ$130,CM$1)","v":0},{"$f":"VLOOKUP(DropDownList!$B$47,CntyQuery!$A$118:$FZ$130,CN$1)","v":22},{"$f":"VLOOKUP(DropDownList!$B$47,CntyQuery!$A$118:$FZ$130,CO$1)","v":37},{"$f":"VLOOKUP(DropDownList!$B$47,CntyQuery!$A$118:$FZ$130,CP$1)","v":6},{"$f":"VLOOKUP(DropDownList!$B$47,CntyQuery!$A$118:$FZ$130,CQ$1)","v":0},{"$f":"VLOOKUP(DropDownList!$B$47,CntyQuery!$A$118:$FZ$130,CR$1)","v":42},{"$f":"VLOOKUP(DropDownList!$B$47,CntyQuery!$A$118:$FZ$130,CS$1)","v":0},{"$f":"VLOOKUP(DropDownList!$B$47,CntyQuery!$A$118:$FZ$130,CT$1)","v":0},{"$f":"VLOOKUP(DropDownList!$B$47,CntyQuery!$A$118:$FZ$130,CU$1)","v":29},{"$f":"VLOOKUP(DropDownList!$B$47,CntyQuery!$A$118:$FZ$130,CV$1)","v":0},{"$f":"VLOOKUP(DropDownList!$B$47,CntyQuery!$A$118:$FZ$130,CW$1)","v":0},{"$f":"VLOOKUP(DropDownList!$B$47,CntyQuery!$A$118:$FZ$130,CX$1)","v":37},{"$f":"VLOOKUP(DropDownList!$B$47,CntyQuery!$A$118:$FZ$130,CY$1)","v":0},{"$f":"VLOOKUP(DropDownList!$B$47,CntyQuery!$A$118:$FZ$130,CZ$1)","v":2},{"$f":"VLOOKUP(DropDownList!$B$47,CntyQuery!$A$118:$FZ$130,DA$1)","v":20},{"$f":"VLOOKUP(DropDownList!$B$47,CntyQuery!$A$118:$FZ$130,DB$1)","v":2},{"$f":"VLOOKUP(DropDownList!$B$47,CntyQuery!$A$118:$FZ$130,DC$1)","v":0},{"$f":"VLOOKUP(DropDownList!$B$47,CntyQuery!$A$118:$FZ$130,DD$1)","v":19},{"$f":"VLOOKUP(DropDownList!$B$47,CntyQuery!$A$118:$FZ$130,DE$1)","v":0},{"$f":"VLOOKUP(DropDownList!$B$47,CntyQuery!$A$118:$FZ$130,DF$1)","v":2},{"$f":"VLOOKUP(DropDownList!$B$47,CntyQuery!$A$118:$FZ$130,DG$1)","v":17},{"$f":"VLOOKUP(DropDownList!$B$47,CntyQuery!$A$118:$FZ$130,DH$1)","v":0},{"$f":"VLOOKUP(DropDownList!$B$47,CntyQuery!$A$118:$FZ$130,DI$1)","v":3},{"$f":"VLOOKUP(DropDownList!$B$47,CntyQuery!$A$118:$FZ$130,DJ$1)","v":26},{"$f":"VLOOKUP(DropDownList!$B$47,CntyQuery!$A$118:$FZ$130,DK$1)","v":0},{"$f":"VLOOKUP(DropDownList!$B$47,CntyQuery!$A$118:$FZ$130,DL$1)","v":2},{"$f":"VLOOKUP(DropDownList!$B$47,CntyQuery!$A$118:$FZ$130,DM$1)","v":26},{"$f":"VLOOKUP(DropDownList!$B$47,CntyQuery!$A$118:$FZ$130,DN$1)","v":0},{"$f":"VLOOKUP(DropDownList!$B$47,CntyQuery!$A$118:$FZ$130,DO$1)","v":0},{"$f":"VLOOKUP(DropDownList!$B$47,CntyQuery!$A$118:$FZ$130,DP$1)","v":26},{"$f":"VLOOKUP(DropDownList!$B$47,CntyQuery!$A$118:$FZ$130,DQ$1)","v":0},{"$f":"VLOOKUP(DropDownList!$B$47,CntyQuery!$A$118:$FZ$130,DR$1)","v":5},{"$f":"VLOOKUP(DropDownList!$B$47,CntyQuery!$A$118:$FZ$130,DS$1)","v":41},{"$f":"VLOOKUP(DropDownList!$B$47,CntyQuery!$A$118:$FZ$130,DT$1)","v":0},{"$f":"VLOOKUP(DropDownList!$B$47,CntyQuery!$A$118:$FZ$130,DU$1)","v":0},{"$f":"VLOOKUP(DropDownList!$B$47,CntyQuery!$A$118:$FZ$130,DV$1)","v":33},{"$f":"VLOOKUP(DropDownList!$B$47,CntyQuery!$A$118:$FZ$130,DW$1)","v":8},{"$f":"VLOOKUP(DropDownList!$B$47,CntyQuery!$A$118:$FZ$130,DX$1)","v":1},{"$f":"VLOOKUP(DropDownList!$B$47,CntyQuery!$A$118:$FZ$130,DY$1)","v":15}]
[]
[]
[]
["AreaName","COUNTYCODE","TOTP & G2001","TOT2001","GOODPRO2001","SERVICEPROMAN2001","WAGEP & G2001","WAGETOT2001","WAGEGOODPRO2001","WAGESERVICEPRO2001","TOTP & G2002","TOT2002","GOODPRO2002","SERVICEPROMAN2002","WAGEP & G2002","WAGETOT2002","WAGEGOODPRO2002","WAGESERVICEPRO2002","TOTP & G2003","TOT2003","GOODPRO2003","SERVICEPROMAN2003","WAGEP & G2003","WAGETOT2003","WAGEGOODPRO2003","WAGESERVICEPRO2003","TOTP & G2004","TOT2004","GOODPRO2004","SERVICEPROMAN2004","WAGEP & G2004","WAGETOT2004","WAGEGOODPRO2004","WAGESERVICEPRO2004","TOTP & G2005","TOT2005","GOODPRO2005","SERVICEPROMAN2005","WAGEP & G2005","WAGETOT2005","WAGEGOODPRO2005","WAGESERVICEPRO2005","TOTP & G2006","TOT2006","GOODPRO2006","SERVICEPROMAN2006","WAGEP & G2006","WAGETOT2006","WAGEGOODPRO2006","WAGESERVICEPRO2006","TOTP & G2007","TOT2007","GOODPRO2007","SERVICEPROMAN2007","WAGEP & G2007","WAGETOT2007","WAGEGOODPRO2007","WAGESERVICEPRO2007","TOTP & G2008","TOT2008","GOODPRO2008","SERVICEPROMAN2008","WAGEP & G2008","WAGETOT2008","WAGEGOODPRO2008","WAGESERVICEPRO2008","TOTP & G2009","TOT2009","GOODPRO2009","SERVICEPROMAN2009","WAGEP & G2009","WAGETOT2009","WAGEGOODPRO2009","WAGESERVICEPRO2009","TOTP & G2010","TOT2010","GOODPRO2010","SERVICEPROMAN2010","WAGEP & G2010","WAGETOT2010","WAGEGOODPRO2010","WAGESERVICEPRO2010","TOTP & G2011","TOT2011","GOODPRO2011","SERVICEPROMAN2011","WAGEP & G2011","WAGETOT2011","WAGEGOODPRO2011","WAGESERVICEPRO2011","TOTP & G2012","TOT2012","GOODPRO2012","SERVICEPROMAN2012","WAGEP & G2012","WAGETOT2012","WAGEGOODPRO2012","WAGESERVICEPRO2012","TOTP & G2013","TOT2013","GOODPRO2013","SERVICEPROMAN2013","WAGEP & G2013","WAGETOT2013","WAGEGOODPRO2013","WAGESERVICEPRO2013","TOTP & G2014","TOT2014","GOODPRO2014","SERVICEPROMAN2014","WAGEP & G2014","WAGETOT2014","WAGEGOODPRO2014","WAGESERVICEPRO2014","TOTP & G2015","TOT2015","GOODPRO2015","SERVICEPROMAN2015","WAGEP & G2015","WAGETOT2015","WAGEGOODPRO2015","WAGESERVICEPRO2015","TOTP & G2016","TOT2016","GOODPRO2016","SERVICEPROMAN2016","WAGEP & G2016","WAGETOT2016","WAGEGOODPRO2016","WAGESERVICEPRO2016","TOTP & G2017","TOT2017","GOODPRO2017","SERVICEPROMAN2017","WAGEP & G2017","WAGETOT2017","WAGEGOODPRO2017","WAGESERVICEPRO2017","TOTP & G2018","TOT2018","GOODPRO2018","SERVICEPROMAN2018","WAGEP & G2018","WAGETOT2018","WAGEGOODPRO2018","WAGESERVICEPRO2018","TOTP & G2019","TOT2019","TOTGov2019","GOODPRO2019","SERVICEPROMAN2019","WAGEP & G2019","WAGETOT2019","WAGEGov2019","WAGEGOODPRO2019","WAGESERVICEPRO2019","SummaryLevel"]
[{"$f":"VLOOKUP(DropDownList!$B$47,CntyQuery!$A$170:$FT$183,A$1)","v":"Barrington"},{"$f":"VLOOKUP(DropDownList!$B$47,CntyQuery!$A$170:$FT$183,B$1)","v":9},"v",{"$f":"VLOOKUP(DropDownList!$B$47,CntyQuery!$A$170:$FT$183,D$1)","v":766},{"$f":"VLOOKUP(DropDownList!$B$47,CntyQuery!$A$170:$FT$183,E$1)","v":128},{"$f":"VLOOKUP(DropDownList!$B$47,CntyQuery!$A$170:$FT$183,F$1)","v":637},{"$f":"VLOOKUP(DropDownList!$B$47,CntyQuery!$A$170:$FT$183,G$1)","v":576.54},{"$f":"VLOOKUP(DropDownList!$B$47,CntyQuery!$A$170:$FT$183,H$1)","v":591.1},{"$f":"VLOOKUP(DropDownList!$B$47,CntyQuery!$A$170:$FT$183,I$1)","v":545.95000000000005},{"$f":"VLOOKUP(DropDownList!$B$47,CntyQuery!$A$170:$FT$183,J$1)","v":600.17999999999995},{"$f":"VLOOKUP(DropDownList!$B$47,CntyQuery!$A$170:$FT$183,K$1)","v":1011},{"$f":"VLOOKUP(DropDownList!$B$47,CntyQuery!$A$170:$FT$183,L$1)","v":803},{"$f":"VLOOKUP(DropDownList!$B$47,CntyQuery!$A$170:$FT$183,M$1)","v":121},{"$f":"VLOOKUP(DropDownList!$B$47,CntyQuery!$A$170:$FT$183,N$1)","v":682},{"$f":"VLOOKUP(DropDownList!$B$47,CntyQuery!$A$170:$FT$183,O$1)","v":597.25},{"$f":"VLOOKUP(DropDownList!$B$47,CntyQuery!$A$170:$FT$183,P$1)","v":612.87},{"$f":"VLOOKUP(DropDownList!$B$47,CntyQuery!$A$170:$FT$183,Q$1)","v":557.24},{"$f":"VLOOKUP(DropDownList!$B$47,CntyQuery!$A$170:$FT$183,R$1)","v":622.72},{"$f":"VLOOKUP(DropDownList!$B$47,CntyQuery!$A$170:$FT$183,S$1)","v":984},{"$f":"VLOOKUP(DropDownList!$B$47,CntyQuery!$A$170:$FT$183,T$1)","v":777},{"$f":"VLOOKUP(DropDownList!$B$47,CntyQuery!$A$170:$FT$183,U$1)","v":139},{"$f":"VLOOKUP(DropDownList!$B$47,CntyQuery!$A$170:$FT$183,V$1)","v":638},{"$f":"VLOOKUP(DropDownList!$B$47,CntyQuery!$A$170:$FT$183,W$1)","v":585.84},{"$f":"VLOOKUP(DropDownList!$B$47,CntyQuery!$A$170:$FT$183,X$1)","v":584.16999999999996},{"$f":"VLOOKUP(DropDownList!$B$47,CntyQuery!$A$170:$FT$183,Y$1)","v":534.86},{"$f":"VLOOKUP(DropDownList!$B$47,CntyQuery!$A$170:$FT$183,Z$1)","v":594.92999999999995},{"$f":"VLOOKUP(DropDownList!$B$47,CntyQuery!$A$170:$FT$183,AA$1)","v":1065},{"$f":"VLOOKUP(DropDownList!$B$47,CntyQuery!$A$170:$FT$183,AB$1)","v":841},{"$f":"VLOOKUP(DropDownList!$B$47,CntyQuery!$A$170:$FT$183,AC$1)","v":144},{"$f":"VLOOKUP(DropDownList!$B$47,CntyQuery!$A$170:$FT$183,AD$1)","v":697},{"$f":"VLOOKUP(DropDownList!$B$47,CntyQuery!$A$170:$FT$183,AE$1)","v":624.84},{"$f":"VLOOKUP(DropDownList!$B$47,CntyQuery!$A$170:$FT$183,AF$1)","v":632.54999999999995},{"$f":"VLOOKUP(DropDownList!$B$47,CntyQuery!$A$170:$FT$183,AG$1)","v":555.78},{"$f":"VLOOKUP(DropDownList!$B$47,CntyQuery!$A$170:$FT$183,AH$1)","v":648.38},{"$f":"VLOOKUP(DropDownList!$B$47,CntyQuery!$A$170:$FT$183,AI$1)","v":1165},{"$f":"VLOOKUP(DropDownList!$B$47,CntyQuery!$A$170:$FT$183,AJ$1)","v":923},{"$f":"VLOOKUP(DropDownList!$B$47,CntyQuery!$A$170:$FT$183,AK$1)","v":140},{"$f":"VLOOKUP(DropDownList!$B$47,CntyQuery!$A$170:$FT$183,AL$1)","v":783},{"$f":"VLOOKUP(DropDownList!$B$47,CntyQuery!$A$170:$FT$183,AM$1)","v":635.08000000000004},{"$f":"VLOOKUP(DropDownList!$B$47,CntyQuery!$A$170:$FT$183,AN$1)","v":650.46},{"$f":"VLOOKUP(DropDownList!$B$47,CntyQuery!$A$170:$FT$183,AO$1)","v":585.94000000000005},{"$f":"VLOOKUP(DropDownList!$B$47,CntyQuery!$A$170:$FT$183,AP$1)","v":662},{"$f":"VLOOKUP(DropDownList!$B$47,CntyQuery!$A$170:$FT$183,AQ$1)","v":1246},{"$f":"VLOOKUP(DropDownList!$B$47,CntyQuery!$A$170:$FT$183,AR$1)","v":992},{"$f":"VLOOKUP(DropDownList!$B$47,CntyQuery!$A$170:$FT$183,AS$1)","v":150},{"$f":"VLOOKUP(DropDownList!$B$47,CntyQuery!$A$170:$FT$183,AT$1)","v":843},{"$f":"VLOOKUP(DropDownList!$B$47,CntyQuery!$A$170:$FT$183,AU$1)","v":643.59},{"$f":"VLOOKUP(DropDownList!$B$47,CntyQuery!$A$170:$FT$183,AV$1)","v":658.49},{"$f":"VLOOKUP(DropDownList!$B$47,CntyQuery!$A$170:$FT$183,AW$1)","v":636.42999999999995},{"$f":"VLOOKUP(DropDownList!$B$47,CntyQuery!$A$170:$FT$183,AX$1)","v":662.41},{"$f":"VLOOKUP(DropDownList!$B$47,CntyQuery!$A$170:$FT$183,AY$1)","v":1309},{"$f":"VLOOKUP(DropDownList!$B$47,CntyQuery!$A$170:$FT$183,AZ$1)","v":1033},{"$f":"VLOOKUP(DropDownList!$B$47,CntyQuery!$A$170:$FT$183,BA$1)","v":141},{"$f":"VLOOKUP(DropDownList!$B$47,CntyQuery!$A$170:$FT$183,BB$1)","v":892},{"$f":"VLOOKUP(DropDownList!$B$47,CntyQuery!$A$170:$FT$183,BC$1)","v":645.05999999999995},{"$f":"VLOOKUP(DropDownList!$B$47,CntyQuery!$A$170:$FT$183,BD$1)","v":658.62},{"$f":"VLOOKUP(DropDownList!$B$47,CntyQuery!$A$170:$FT$183,BE$1)","v":599.33000000000004},{"$f":"VLOOKUP(DropDownList!$B$47,CntyQuery!$A$170:$FT$183,BF$1)","v":668},{"$f":"VLOOKUP(DropDownList!$B$47,CntyQuery!$A$170:$FT$183,BG$1)","v":1536},{"$f":"VLOOKUP(DropDownList!$B$47,CntyQuery!$A$170:$FT$183,BH$1)","v":1253},{"$f":"VLOOKUP(DropDownList!$B$47,CntyQuery!$A$170:$FT$183,BI$1)","v":352},{"$f":"VLOOKUP(DropDownList!$B$47,CntyQuery!$A$170:$FT$183,BJ$1)","v":901},{"$f":"VLOOKUP(DropDownList!$B$47,CntyQuery!$A$170:$FT$183,BK$1)","v":739.01},{"$f":"VLOOKUP(DropDownList!$B$47,CntyQuery!$A$170:$FT$183,BL$1)","v":766.39},{"$f":"VLOOKUP(DropDownList!$B$47,CntyQuery!$A$170:$FT$183,BM$1)","v":955.73},{"$f":"VLOOKUP(DropDownList!$B$47,CntyQuery!$A$170:$FT$183,BN$1)","v":692.46},{"$f":"VLOOKUP(DropDownList!$B$47,CntyQuery!$A$170:$FT$183,BO$1)","v":1475},{"$f":"VLOOKUP(DropDownList!$B$47,CntyQuery!$A$170:$FT$183,BP$1)","v":1184},{"$f":"VLOOKUP(DropDownList!$B$47,CntyQuery!$A$170:$FT$183,BQ$1)","v":323},{"$f":"VLOOKUP(DropDownList!$B$47,CntyQuery!$A$170:$FT$183,BR$1)","v":861},{"$f":"VLOOKUP(DropDownList!$B$47,CntyQuery!$A$170:$FT$183,BS$1)","v":744.65},{"$f":"VLOOKUP(DropDownList!$B$47,CntyQuery!$A$170:$FT$183,BT$1)","v":778.79},{"$f":"VLOOKUP(DropDownList!$B$47,CntyQuery!$A$170:$FT$183,BU$1)","v":932.29},{"$f":"VLOOKUP(DropDownList!$B$47,CntyQuery!$A$170:$FT$183,BV$1)","v":721.2},{"$f":"VLOOKUP(DropDownList!$B$47,CntyQuery!$A$170:$FT$183,BW$1)","v":1468},{"$f":"VLOOKUP(DropDownList!$B$47,CntyQuery!$A$170:$FT$183,BX$1)","v":1188},{"$f":"VLOOKUP(DropDownList!$B$47,CntyQuery!$A$170:$FT$183,BY$1)","v":354},{"$f":"VLOOKUP(DropDownList!$B$47,CntyQuery!$A$170:$FT$183,BZ$1)","v":834},{"$f":"VLOOKUP(DropDownList!$B$47,CntyQuery!$A$170:$FT$183,CA$1)","v":769.31},{"$f":"VLOOKUP(DropDownList!$B$47,CntyQuery!$A$170:$FT$183,CB$1)","v":796.47},{"$f":"VLOOKUP(DropDownList!$B$47,CntyQuery!$A$170:$FT$183,CC$1)","v":1067.45},{"$f":"VLOOKUP(DropDownList!$B$47,CntyQuery!$A$170:$FT$183,CD$1)","v":681.53},{"$f":"VLOOKUP(DropDownList!$B$47,CntyQuery!$A$170:$FT$183,CE$1)","v":1522},{"$f":"VLOOKUP(DropDownList!$B$47,CntyQuery!$A$170:$FT$183,CF$1)","v":1236},{"$f":"VLOOKUP(DropDownList!$B$47,CntyQuery!$A$170:$FT$183,CG$1)","v":396},{"$f":"VLOOKUP(DropDownList!$B$47,CntyQuery!$A$170:$FT$183,CH$1)","v":840},{"$f":"VLOOKUP(DropDownList!$B$47,CntyQuery!$A$170:$FT$183,CI$1)","v":783.83},{"$f":"VLOOKUP(DropDownList!$B$47,CntyQuery!$A$170:$FT$183,CJ$1)","v":814.57},{"$f":"VLOOKUP(DropDownList!$B$47,CntyQuery!$A$170:$FT$183,CK$1)","v":994.51},{"$f":"VLOOKUP(DropDownList!$B$47,CntyQuery!$A$170:$FT$183,CL$1)","v":729.74},{"$f":"VLOOKUP(DropDownList!$B$47,CntyQuery!$A$170:$FT$183,CM$1)","v":1591},{"$f":"VLOOKUP(DropDownList!$B$47,CntyQuery!$A$170:$FT$183,CN$1)","v":1306},{"$f":"VLOOKUP(DropDownList!$B$47,CntyQuery!$A$170:$FT$183,CO$1)","v":457},{"$f":"VLOOKUP(DropDownList!$B$47,CntyQuery!$A$170:$FT$183,CP$1)","v":849},{"$f":"VLOOKUP(DropDownList!$B$47,CntyQuery!$A$170:$FT$183,CQ$1)","v":793.41},{"$f":"VLOOKUP(DropDownList!$B$47,CntyQuery!$A$170:$FT$183,CR$1)","v":823.23},{"$f":"VLOOKUP(DropDownList!$B$47,CntyQuery!$A$170:$FT$183,CS$1)","v":1006},{"$f":"VLOOKUP(DropDownList!$B$47,CntyQuery!$A$170:$FT$183,CT$1)","v":724.85},{"$f":"VLOOKUP(DropDownList!$B$47,CntyQuery!$A$170:$FT$183,CU$1)","v":1650},{"$f":"VLOOKUP(DropDownList!$B$47,CntyQuery!$A$170:$FT$183,CV$1)","v":1370},{"$f":"VLOOKUP(DropDownList!$B$47,CntyQuery!$A$170:$FT$183,CW$1)","v":487},{"$f":"VLOOKUP(DropDownList!$B$47,CntyQuery!$A$170:$FT$183,CX$1)","v":883},{"$f":"VLOOKUP(DropDownList!$B$47,CntyQuery!$A$170:$FT$183,CY$1)","v":840.65},{"$f":"VLOOKUP(DropDownList!$B$47,CntyQuery!$A$170:$FT$183,CZ$1)","v":873.52},{"$f":"VLOOKUP(DropDownList!$B$47,CntyQuery!$A$170:$FT$183,DA$1)","v":1118.82},{"$f":"VLOOKUP(DropDownList!$B$47,CntyQuery!$A$170:$FT$183,DB$1)","v":738.04},{"$f":"VLOOKUP(DropDownList!$B$47,CntyQuery!$A$170:$FT$183,DC$1)","v":1661},{"$f":"VLOOKUP(DropDownList!$B$47,CntyQuery!$A$170:$FT$183,DD$1)","v":1387},{"$f":"VLOOKUP(DropDownList!$B$47,CntyQuery!$A$170:$FT$183,DE$1)","v":505},{"$f":"VLOOKUP(DropDownList!$B$47,CntyQuery!$A$170:$FT$183,DF$1)","v":883},{"$f":"VLOOKUP(DropDownList!$B$47,CntyQuery!$A$170:$FT$183,DG$1)","v":839.24},{"$f":"VLOOKUP(DropDownList!$B$47,CntyQuery!$A$170:$FT$183,DH$1)","v":862.33},{"$f":"VLOOKUP(DropDownList!$B$47,CntyQuery!$A$170:$FT$183,DI$1)","v":1124.94},{"$f":"VLOOKUP(DropDownList!$B$47,CntyQuery!$A$170:$FT$183,DJ$1)","v":712.28},{"$f":"VLOOKUP(DropDownList!$B$47,CntyQuery!$A$170:$FT$183,DK$1)","v":1785},{"$f":"VLOOKUP(DropDownList!$B$47,CntyQuery!$A$170:$FT$183,DL$1)","v":1502},{"$f":"VLOOKUP(DropDownList!$B$47,CntyQuery!$A$170:$FT$183,DM$1)","v":607},{"$f":"VLOOKUP(DropDownList!$B$47,CntyQuery!$A$170:$FT$183,DN$1)","v":895},{"$f":"VLOOKUP(DropDownList!$B$47,CntyQuery!$A$170:$FT$183,DO$1)","v":900.26},{"$f":"VLOOKUP(DropDownList!$B$47,CntyQuery!$A$170:$FT$183,DP$1)","v":931.95},{"$f":"VLOOKUP(DropDownList!$B$47,CntyQuery!$A$170:$FT$183,DQ$1)","v":1163.26},{"$f":"VLOOKUP(DropDownList!$B$47,CntyQuery!$A$170:$FT$183,DR$1)","v":775.14},{"$f":"VLOOKUP(DropDownList!$B$47,CntyQuery!$A$170:$FT$183,DS$1)","v":1880},{"$f":"VLOOKUP(DropDownList!$B$47,CntyQuery!$A$170:$FT$183,DT$1)","v":1583},{"$f":"VLOOKUP(DropDownList!$B$47,CntyQuery!$A$170:$FT$183,DU$1)","v":673},{"$f":"VLOOKUP(DropDownList!$B$47,CntyQuery!$A$170:$FT$183,DV$1)","v":910},{"$f":"VLOOKUP(DropDownList!$B$47,CntyQuery!$A$170:$FT$183,DW$1)","v":886.48},{"$f":"VLOOKUP(DropDownList!$B$47,CntyQuery!$A$170:$FT$183,DX$1)","v":921.27},{"$f":"VLOOKUP(DropDownList!$B$47,CntyQuery!$A$170:$FT$183,DY$1)","v":1107.7},{"$f":"VLOOKUP(DropDownList!$B$47,CntyQuery!$A$170:$FT$183,DZ$1)","v":783.48},{"$f":"VLOOKUP(DropDownList!$B$47,CntyQuery!$A$170:$FT$183,EA$1)","v":1947},{"$f":"VLOOKUP(DropDownList!$B$47,CntyQuery!$A$170:$FT$183,EB$1)","v":1661},{"$f":"VLOOKUP(DropDownList!$B$47,CntyQuery!$A$170:$FT$183,EC$1)","v":721},{"$f":"VLOOKUP(DropDownList!$B$47,CntyQuery!$A$170:$FT$183,ED$1)","v":939},{"$f":"VLOOKUP(DropDownList!$B$47,CntyQuery!$A$170:$FT$183,EE$1)","v":927.55},{"$f":"VLOOKUP(DropDownList!$B$47,CntyQuery!$A$170:$FT$183,EF$1)","v":955.59},{"$f":"VLOOKUP(DropDownList!$B$47,CntyQuery!$A$170:$FT$183,EG$1)","v":1123.82},{"$f":"VLOOKUP(DropDownList!$B$47,CntyQuery!$A$170:$FT$183,EH$1)","v":826.39},{"$f":"VLOOKUP(DropDownList!$B$47,CntyQuery!$A$170:$FT$183,EI$1)","v":2015},{"$f":"VLOOKUP(DropDownList!$B$47,CntyQuery!$A$170:$FT$183,EJ$1)","v":1719},{"$f":"VLOOKUP(DropDownList!$B$47,CntyQuery!$A$170:$FT$183,EK$1)","v":791},{"$f":"VLOOKUP(DropDownList!$B$47,CntyQuery!$A$170:$FT$183,EL$1)","v":928},{"$f":"VLOOKUP(DropDownList!$B$47,CntyQuery!$A$170:$FT$183,EM$1)","v":985.51},{"$f":"VLOOKUP(DropDownList!$B$47,CntyQuery!$A$170:$FT$183,EN$1)","v":1021.32},{"$f":"VLOOKUP(DropDownList!$B$47,CntyQuery!$A$170:$FT$183,EO$1)","v":1209.45},{"$f":"VLOOKUP(DropDownList!$B$47,CntyQuery!$A$170:$FT$183,EP$1)","v":860.86},{"$f":"VLOOKUP(DropDownList!$B$47,CntyQuery!$A$170:$FT$183,EQ$1)","v":2070},{"$f":"VLOOKUP(DropDownList!$B$47,CntyQuery!$A$170:$FT$183,ER$1)","v":1769},{"$f":"VLOOKUP(DropDownList!$B$47,CntyQuery!$A$170:$FT$183,ES$1)","v":302},{"$f":"VLOOKUP(DropDownList!$B$47,CntyQuery!$A$170:$FT$183,ET$1)","v":811},{"$f":"VLOOKUP(DropDownList!$B$47,CntyQuery!$A$170:$FT$183,EU$1)","v":958},{"$f":"VLOOKUP(DropDownList!$B$47,CntyQuery!$A$170:$FT$183,EV$1)","v":996.42},{"$f":"VLOOKUP(DropDownList!$B$47,CntyQuery!$A$170:$FT$183,EW$1)","v":1033.02},{"$f":"VLOOKUP(DropDownList!$B$47,CntyQuery!$A$170:$FT$183,EX$1)","v":781.75},{"$f":"VLOOKUP(DropDownList!$B$47,CntyQuery!$A$170:$FT$183,EY$1)","v":1174.99},{"$f":"VLOOKUP(DropDownList!$B$47,CntyQuery!$A$170:$FT$183,EZ$1)","v":912.8},{"$f":"VLOOKUP(DropDownList!$B$47,CntyQuery!$A$170:$FT$183,FA$1)","v":60}]
[]
[]
["Labor Force and Unemployment Rate","Query Name: DPQryUnempByCnty"]
["PlaceName","LaborForce1990","LaborForce1991","LaborForce1992","LaborForce1993","LaborForce1994","LaborForce1995","LaborForce1996","LaborForce1997","LaborForce1998","LaborForce1999","LaborForce2000","LaborForce2001","LaborForce2002","LaborForce2003","NumbEmployed1990","NumbEmployed1991","NumbEmployed1992","NumbEmployed1993","NumbEmployed1994","NumbEmployed1995","NumbEmployed1996","NumbEmployed1997","NumbEmployed1998","NumbEmployed1999","NumbEmployed2000","NumbEmployed2001","NumbEmployed2002","NumbEmployed2003","UnempRate1990","UnempRate1991","UnempRate1992","UnempRate1993","UnempRate1994","UnempRate1995","UnempRate1996","UnempRate1997","UnempRate1998","UnempRate1999","UnempRate2000","UnempRate2001","UnempRate2002","UnempRate2003","NumbUnEmp1990","NumbUnEmp1991","NumbUnEmp1992","NumbUnEmp1993","NumbUnEmp1994","NumbUnEmp1995","NumbUnEmp1996","NumbUnEmp1997","NumbUnEmp1998","NumbUnEmp1999","NumbUnEmp2000","NumbUnEmp2001","NumbUnEmp2002","NumbUnEmp2003","LaborForce2004","NumbEmployed2004","UnempRate2004","NumbUnEmp2004","LaborForce2005","NumbEmployed2005","NumbUnEmp2005","UnempRate2005","LaborForce2006","NumbEmployed2006","NumbUnEmp2006","UnempRate2006","LaborForce2007","NumbEmployed2007","NumbUnEmp2007","UnempRate2007","LaborForce2008","NumbEmployed2008","NumbUnEmp2008","UnempRate2008","LaborForce2009","NumbEmployed2009","NumbUnEmp2009","UnempRate2009","LaborForce2010","NumbEmployed2010","NumbUnEmp2010","UnempRate2010","LaborForce2011","NumbEmployed2011","NumbUnEmp2011","UnempRate2011","LaborForce2012","NumbEmployed2012","NumbUnEmp2012","UnempRate2012","LaborForce2013","NumbEmployed2013","NumbUnEmp2013","UnempRate2013","LaborForce2014","NumbEmployed2014","NumbUnEmp2014","UnempRate2014","LaborForce2015","NumbEmployed2015","NumbUnEmp2015","UnempRate2015","LaborForce2016","NumbEmployed2016","NumbUnEmp2016","UnempRate2016","LaborForce2017","NumbEmployed2017","NumbUnEmp2017","UnempRate2017","LaborForce2018","NumbEmployed2018","NumbUnEmp2018","UnempRate2018","LaborForce2019","NumbEmployed2019","NumbUnEmp2019","UnempRate2019","Place-TownIDNumber"]
[{"$f":"VLOOKUP(DropDownList!$B$47,CntyQuery!$A$220:$EF$229,A$1)","v":{"$error":"#N/A"}},{"$f":"VLOOKUP(DropDownList!$B$47,CntyQuery!$A$220:$EF$229,B$1)","v":{"$error":"#N/A"}},{"$f":"VLOOKUP(DropDownList!$B$47,CntyQuery!$A$220:$EF$229,C$1)","v":{"$error":"#N/A"}},{"$f":"VLOOKUP(DropDownList!$B$47,CntyQuery!$A$220:$EF$229,D$1)","v":{"$error":"#N/A"}},{"$f":"VLOOKUP(DropDownList!$B$47,CntyQuery!$A$220:$EF$229,E$1)","v":{"$error":"#N/A"}},{"$f":"VLOOKUP(DropDownList!$B$47,CntyQuery!$A$220:$EF$229,F$1)","v":{"$error":"#N/A"}},{"$f":"VLOOKUP(DropDownList!$B$47,CntyQuery!$A$220:$EF$229,G$1)","v":{"$error":"#N/A"}},{"$f":"VLOOKUP(DropDownList!$B$47,CntyQuery!$A$220:$EF$229,H$1)","v":{"$error":"#N/A"}},{"$f":"VLOOKUP(DropDownList!$B$47,CntyQuery!$A$220:$EF$229,I$1)","v":{"$error":"#N/A"}},{"$f":"VLOOKUP(DropDownList!$B$47,CntyQuery!$A$220:$EF$229,J$1)","v":{"$error":"#N/A"}},{"$f":"VLOOKUP(DropDownList!$B$47,CntyQuery!$A$220:$EF$229,K$1)","v":{"$error":"#N/A"}},{"$f":"VLOOKUP(DropDownList!$B$47,CntyQuery!$A$220:$EF$229,L$1)","v":{"$error":"#N/A"}},{"$f":"VLOOKUP(DropDownList!$B$47,CntyQuery!$A$220:$EF$229,M$1)","v":{"$error":"#N/A"}},{"$f":"VLOOKUP(DropDownList!$B$47,CntyQuery!$A$220:$EF$229,N$1)","v":{"$error":"#N/A"}},{"$f":"VLOOKUP(DropDownList!$B$47,CntyQuery!$A$220:$EF$229,O$1)","v":{"$error":"#N/A"}},{"$f":"VLOOKUP(DropDownList!$B$47,CntyQuery!$A$220:$EF$229,P$1)","v":{"$error":"#N/A"}},{"$f":"VLOOKUP(DropDownList!$B$47,CntyQuery!$A$220:$EF$229,Q$1)","v":{"$error":"#N/A"}},{"$f":"VLOOKUP(DropDownList!$B$47,CntyQuery!$A$220:$EF$229,R$1)","v":{"$error":"#N/A"}},{"$f":"VLOOKUP(DropDownList!$B$47,CntyQuery!$A$220:$EF$229,S$1)","v":{"$error":"#N/A"}},{"$f":"VLOOKUP(DropDownList!$B$47,CntyQuery!$A$220:$EF$229,T$1)","v":{"$error":"#N/A"}},{"$f":"VLOOKUP(DropDownList!$B$47,CntyQuery!$A$220:$EF$229,U$1)","v":{"$error":"#N/A"}},{"$f":"VLOOKUP(DropDownList!$B$47,CntyQuery!$A$220:$EF$229,V$1)","v":{"$error":"#N/A"}},{"$f":"VLOOKUP(DropDownList!$B$47,CntyQuery!$A$220:$EF$229,W$1)","v":{"$error":"#N/A"}},{"$f":"VLOOKUP(DropDownList!$B$47,CntyQuery!$A$220:$EF$229,X$1)","v":{"$error":"#N/A"}},{"$f":"VLOOKUP(DropDownList!$B$47,CntyQuery!$A$220:$EF$229,Y$1)","v":{"$error":"#N/A"}},{"$f":"VLOOKUP(DropDownList!$B$47,CntyQuery!$A$220:$EF$229,Z$1)","v":{"$error":"#N/A"}},{"$f":"VLOOKUP(DropDownList!$B$47,CntyQuery!$A$220:$EF$229,AA$1)","v":{"$error":"#N/A"}},{"$f":"VLOOKUP(DropDownList!$B$47,CntyQuery!$A$220:$EF$229,AB$1)","v":{"$error":"#N/A"}},{"$f":"VLOOKUP(DropDownList!$B$47,CntyQuery!$A$220:$EF$229,AC$1)","v":{"$error":"#N/A"}},{"$f":"VLOOKUP(DropDownList!$B$47,CntyQuery!$A$220:$EF$229,AD$1)","v":{"$error":"#N/A"}},{"$f":"VLOOKUP(DropDownList!$B$47,CntyQuery!$A$220:$EF$229,AE$1)","v":{"$error":"#N/A"}},{"$f":"VLOOKUP(DropDownList!$B$47,CntyQuery!$A$220:$EF$229,AF$1)","v":{"$error":"#N/A"}},{"$f":"VLOOKUP(DropDownList!$B$47,CntyQuery!$A$220:$EF$229,AG$1)","v":{"$error":"#N/A"}},{"$f":"VLOOKUP(DropDownList!$B$47,CntyQuery!$A$220:$EF$229,AH$1)","v":{"$error":"#N/A"}},{"$f":"VLOOKUP(DropDownList!$B$47,CntyQuery!$A$220:$EF$229,AI$1)","v":{"$error":"#N/A"}},{"$f":"VLOOKUP(DropDownList!$B$47,CntyQuery!$A$220:$EF$229,AJ$1)","v":{"$error":"#N/A"}},{"$f":"VLOOKUP(DropDownList!$B$47,CntyQuery!$A$220:$EF$229,AK$1)","v":{"$error":"#N/A"}},{"$f":"VLOOKUP(DropDownList!$B$47,CntyQuery!$A$220:$EF$229,AL$1)","v":{"$error":"#N/A"}},{"$f":"VLOOKUP(DropDownList!$B$47,CntyQuery!$A$220:$EF$229,AM$1)","v":{"$error":"#N/A"}},{"$f":"VLOOKUP(DropDownList!$B$47,CntyQuery!$A$220:$EF$229,AN$1)","v":{"$error":"#N/A"}},{"$f":"VLOOKUP(DropDownList!$B$47,CntyQuery!$A$220:$EF$229,AO$1)","v":{"$error":"#N/A"}},{"$f":"VLOOKUP(DropDownList!$B$47,CntyQuery!$A$220:$EF$229,AP$1)","v":{"$error":"#N/A"}},{"$f":"VLOOKUP(DropDownList!$B$47,CntyQuery!$A$220:$EF$229,AQ$1)","v":{"$error":"#N/A"}},{"$f":"VLOOKUP(DropDownList!$B$47,CntyQuery!$A$220:$EF$229,AR$1)","v":{"$error":"#N/A"}},{"$f":"VLOOKUP(DropDownList!$B$47,CntyQuery!$A$220:$EF$229,AS$1)","v":{"$error":"#N/A"}},{"$f":"VLOOKUP(DropDownList!$B$47,CntyQuery!$A$220:$EF$229,AT$1)","v":{"$error":"#N/A"}},{"$f":"VLOOKUP(DropDownList!$B$47,CntyQuery!$A$220:$EF$229,AU$1)","v":{"$error":"#N/A"}},{"$f":"VLOOKUP(DropDownList!$B$47,CntyQuery!$A$220:$EF$229,AV$1)","v":{"$error":"#N/A"}},{"$f":"VLOOKUP(DropDownList!$B$47,CntyQuery!$A$220:$EF$229,AW$1)","v":{"$error":"#N/A"}},{"$f":"VLOOKUP(DropDownList!$B$47,CntyQuery!$A$220:$EF$229,AX$1)","v":{"$error":"#N/A"}},{"$f":"VLOOKUP(DropDownList!$B$47,CntyQuery!$A$220:$EF$229,AY$1)","v":{"$error":"#N/A"}},{"$f":"VLOOKUP(DropDownList!$B$47,CntyQuery!$A$220:$EF$229,AZ$1)","v":{"$error":"#N/A"}},{"$f":"VLOOKUP(DropDownList!$B$47,CntyQuery!$A$220:$EF$229,BA$1)","v":{"$error":"#N/A"}},{"$f":"VLOOKUP(DropDownList!$B$47,CntyQuery!$A$220:$EF$229,BB$1)","v":{"$error":"#N/A"}},{"$f":"VLOOKUP(DropDownList!$B$47,CntyQuery!$A$220:$EF$229,BC$1)","v":{"$error":"#N/A"}},{"$f":"VLOOKUP(DropDownList!$B$47,CntyQuery!$A$220:$EF$229,BD$1)","v":{"$error":"#N/A"}},{"$f":"VLOOKUP(DropDownList!$B$47,CntyQuery!$A$220:$EF$229,BE$1)","v":{"$error":"#N/A"}},{"$f":"VLOOKUP(DropDownList!$B$47,CntyQuery!$A$220:$EF$229,BF$1)","v":{"$error":"#N/A"}},{"$f":"VLOOKUP(DropDownList!$B$47,CntyQuery!$A$220:$EF$229,BG$1)","v":{"$error":"#N/A"}},{"$f":"VLOOKUP(DropDownList!$B$47,CntyQuery!$A$220:$EF$229,BH$1)","v":{"$error":"#N/A"}},{"$f":"VLOOKUP(DropDownList!$B$47,CntyQuery!$A$220:$EF$229,BI$1)","v":{"$error":"#N/A"}},{"$f":"VLOOKUP(DropDownList!$B$47,CntyQuery!$A$220:$EF$229,BJ$1)","v":{"$error":"#N/A"}},{"$f":"VLOOKUP(DropDownList!$B$47,CntyQuery!$A$220:$EF$229,BK$1)","v":{"$error":"#N/A"}},{"$f":"VLOOKUP(DropDownList!$B$47,CntyQuery!$A$220:$EF$229,BL$1)","v":{"$error":"#N/A"}},{"$f":"VLOOKUP(DropDownList!$B$47,CntyQuery!$A$220:$EF$229,BM$1)","v":{"$error":"#N/A"}},{"$f":"VLOOKUP(DropDownList!$B$47,CntyQuery!$A$220:$EF$229,BN$1)","v":{"$error":"#N/A"}},{"$f":"VLOOKUP(DropDownList!$B$47,CntyQuery!$A$220:$EF$229,BO$1)","v":{"$error":"#N/A"}},{"$f":"VLOOKUP(DropDownList!$B$47,CntyQuery!$A$220:$EF$229,BP$1)","v":{"$error":"#N/A"}},{"$f":"VLOOKUP(DropDownList!$B$47,CntyQuery!$A$220:$EF$229,BQ$1)","v":{"$error":"#N/A"}},{"$f":"VLOOKUP(DropDownList!$B$47,CntyQuery!$A$220:$EF$229,BR$1)","v":{"$error":"#N/A"}},{"$f":"VLOOKUP(DropDownList!$B$47,CntyQuery!$A$220:$EF$229,BS$1)","v":{"$error":"#N/A"}},{"$f":"VLOOKUP(DropDownList!$B$47,CntyQuery!$A$220:$EF$229,BT$1)","v":{"$error":"#N/A"}},{"$f":"VLOOKUP(DropDownList!$B$47,CntyQuery!$A$220:$EF$229,BU$1)","v":{"$error":"#N/A"}},{"$f":"VLOOKUP(DropDownList!$B$47,CntyQuery!$A$220:$EF$229,BV$1)","v":{"$error":"#N/A"}},{"$f":"VLOOKUP(DropDownList!$B$47,CntyQuery!$A$220:$EF$229,BW$1)","v":{"$error":"#N/A"}},{"$f":"VLOOKUP(DropDownList!$B$47,CntyQuery!$A$220:$EF$229,BX$1)","v":{"$error":"#N/A"}},{"$f":"VLOOKUP(DropDownList!$B$47,CntyQuery!$A$220:$EF$229,BY$1)","v":{"$error":"#N/A"}},{"$f":"VLOOKUP(DropDownList!$B$47,CntyQuery!$A$220:$EF$229,BZ$1)","v":{"$error":"#N/A"}},{"$f":"VLOOKUP(DropDownList!$B$47,CntyQuery!$A$220:$EF$229,CA$1)","v":{"$error":"#N/A"}},{"$f":"VLOOKUP(DropDownList!$B$47,CntyQuery!$A$220:$EF$229,CB$1)","v":{"$error":"#N/A"}},{"$f":"VLOOKUP(DropDownList!$B$47,CntyQuery!$A$220:$EF$229,CC$1)","v":{"$error":"#N/A"}},{"$f":"VLOOKUP(DropDownList!$B$47,CntyQuery!$A$220:$EF$229,CD$1)","v":{"$error":"#N/A"}},{"$f":"VLOOKUP(DropDownList!$B$47,CntyQuery!$A$220:$EF$229,CE$1)","v":{"$error":"#N/A"}},{"$f":"VLOOKUP(DropDownList!$B$47,CntyQuery!$A$220:$EF$229,CF$1)","v":{"$error":"#N/A"}},{"$f":"VLOOKUP(DropDownList!$B$47,CntyQuery!$A$220:$EF$229,CG$1)","v":{"$error":"#N/A"}},{"$f":"VLOOKUP(DropDownList!$B$47,CntyQuery!$A$220:$EF$229,CH$1)","v":{"$error":"#N/A"}},{"$f":"VLOOKUP(DropDownList!$B$47,CntyQuery!$A$220:$EF$229,CI$1)","v":{"$error":"#N/A"}},{"$f":"VLOOKUP(DropDownList!$B$47,CntyQuery!$A$220:$EF$229,CJ$1)","v":{"$error":"#N/A"}},{"$f":"VLOOKUP(DropDownList!$B$47,CntyQuery!$A$220:$EF$229,CK$1)","v":{"$error":"#N/A"}},{"$f":"VLOOKUP(DropDownList!$B$47,CntyQuery!$A$220:$EF$229,CL$1)","v":{"$error":"#N/A"}},{"$f":"VLOOKUP(DropDownList!$B$47,CntyQuery!$A$220:$EF$229,CM$1)","v":{"$error":"#N/A"}},{"$f":"VLOOKUP(DropDownList!$B$47,CntyQuery!$A$220:$EF$229,CN$1)","v":{"$error":"#N/A"}},{"$f":"VLOOKUP(DropDownList!$B$47,CntyQuery!$A$220:$EF$229,CO$1)","v":{"$error":"#N/A"}},{"$f":"VLOOKUP(DropDownList!$B$47,CntyQuery!$A$220:$EF$229,CP$1)","v":{"$error":"#N/A"}},{"$f":"VLOOKUP(DropDownList!$B$47,CntyQuery!$A$220:$EF$229,CQ$1)","v":{"$error":"#N/A"}},{"$f":"VLOOKUP(DropDownList!$B$47,CntyQuery!$A$220:$EF$229,CR$1)","v":{"$error":"#N/A"}},{"$f":"VLOOKUP(DropDownList!$B$47,CntyQuery!$A$220:$EF$229,CS$1)","v":{"$error":"#N/A"}},{"$f":"VLOOKUP(DropDownList!$B$47,CntyQuery!$A$220:$EF$229,CT$1)","v":{"$error":"#N/A"}},{"$f":"VLOOKUP(DropDownList!$B$47,CntyQuery!$A$220:$EF$229,CU$1)","v":{"$error":"#N/A"}},{"$f":"VLOOKUP(DropDownList!$B$47,CntyQuery!$A$220:$EF$229,CV$1)","v":{"$error":"#N/A"}},{"$f":"VLOOKUP(DropDownList!$B$47,CntyQuery!$A$220:$EF$229,CW$1)","v":{"$error":"#N/A"}},{"$f":"VLOOKUP(DropDownList!$B$47,CntyQuery!$A$220:$EF$229,CX$1)","v":{"$error":"#N/A"}},{"$f":"VLOOKUP(DropDownList!$B$47,CntyQuery!$A$220:$EF$229,CY$1)","v":{"$error":"#N/A"}},{"$f":"VLOOKUP(DropDownList!$B$47,CntyQuery!$A$220:$EF$229,CZ$1)","v":{"$error":"#N/A"}},{"$f":"VLOOKUP(DropDownList!$B$47,CntyQuery!$A$220:$EF$229,DA$1)","v":{"$error":"#N/A"}},{"$f":"VLOOKUP(DropDownList!$B$47,CntyQuery!$A$220:$EF$229,DB$1)","v":{"$error":"#N/A"}},{"$f":"VLOOKUP(DropDownList!$B$47,CntyQuery!$A$220:$EF$229,DC$1)","v":{"$error":"#N/A"}},{"$f":"VLOOKUP(DropDownList!$B$47,CntyQuery!$A$220:$EF$229,DD$1)","v":{"$error":"#N/A"}},{"$f":"VLOOKUP(DropDownList!$B$47,CntyQuery!$A$220:$EF$229,DE$1)","v":{"$error":"#N/A"}},{"$f":"VLOOKUP(DropDownList!$B$47,CntyQuery!$A$220:$EF$229,DF$1)","v":{"$error":"#N/A"}},{"$f":"VLOOKUP(DropDownList!$B$47,CntyQuery!$A$220:$EF$229,DG$1)","v":{"$error":"#N/A"}},{"$f":"VLOOKUP(DropDownList!$B$47,CntyQuery!$A$220:$EF$229,DH$1)","v":{"$error":"#N/A"}},{"$f":"VLOOKUP(DropDownList!$B$47,CntyQuery!$A$220:$EF$229,DI$1)","v":{"$error":"#N/A"}},{"$f":"VLOOKUP(DropDownList!$B$47,CntyQuery!$A$220:$EF$229,DJ$1)","v":{"$error":"#N/A"}},{"$f":"VLOOKUP(DropDownList!$B$47,CntyQuery!$A$220:$EF$229,DK$1)","v":{"$error":"#N/A"}},{"$f":"VLOOKUP(DropDownList!$B$47,CntyQuery!$A$220:$EF$229,DL$1)","v":{"$error":"#N/A"}},{"$f":"VLOOKUP(DropDownList!$B$47,CntyQuery!$A$220:$EF$229,DM$1)","v":{"$error":"#N/A"}},{"$f":"VLOOKUP(DropDownList!$B$47,CntyQuery!$A$220:$EF$229,DN$1)","v":{"$error":"#N/A"}},{"$f":"VLOOKUP(DropDownList!$B$47,CntyQuery!$A$220:$EF$229,DO$1)","v":{"$error":"#N/A"}},{"$f":"VLOOKUP(DropDownList!$B$47,CntyQuery!$A$220:$EF$229,DP$1)","v":{"$error":"#N/A"}},{"$f":"VLOOKUP(DropDownList!$B$47,CntyQuery!$A$220:$EF$229,DQ$1)","v":{"$error":"#N/A"}},{"$f":"VLOOKUP(DropDownList!$B$47,CntyQuery!$A$220:$EF$229,DR$1)","v":{"$error":"#N/A"}}]
[]
[null,null,null,null,null,null,null,null,null,null,null,null,{"$f":"IF((CntyDataLink!$BL$25)=\"n\",NA(),IF(VALUE(CntyDataLink!$BL$25)=\"\",NA(),VALUE(CntyDataLink!$BL$25)))","v":766.39}]
["Census 2000   -           Query Name:  TownAllQuery3",2,{"$f":"B33+1","v":3},{"$f":"C33+1","v":4},5,6,7,8,9,10,11,12,13,14,15,16,17,18,19,20,21,22,23,24,25,26,27,28,29,30,31,32,33,34,35,36,37,38,39,40,41,42,43,44,45,46,47,48,49,50,51,52,53,54,55,56,57,58,59,60,61,62,63,64,65,66,67,{"$f":"BO33+1","v":68},69,70,71,72,73,74,75,76,77,78,79,80,81,82,83,84,85,86,87,88,89,90,91,92,93,94,95,96,97,98,99,100,101,102]
["NAME","COUNTY","LOGRECNO","COUSUB","TRACT","AREALAND","AREAWATR","POP100","HU100","2000Population","PopOfOneRace","PopWhite","PopBlack","PopAmIndian","PopAsian","PopHawaiian","PopOtherRace","Pop2orMoreRaces","PopHispanicLatino","PopNotHispanicLatino","PopMale","PopMale<15","PopMale15to24","PopMale25to34","PopMale35to44","PopMale45to54","PopMale55to64","PopMale65to74","PopMale75to84","PopMale85andOver","PopFemale","PopFemale<15","PopFemale15to24","PopFemale25to34","PopFemale35t44","PopFemale45to54","PopFemale55to64","PopFemale65to74","PopFemale75to84","PopFemale85andOver","Households2000","PopInHH","AvgHHSize","HHs1Person","HHs2orMorePerson","HHsFamily","HHMarriedCoupleFam","HHSingleParentFam","HHsNonFamily","Families","PopInFam","AvgFamSize","TotHsUnits","OccHsUnits","OwnerOccHU","RenterOccHU","VctHsUnits","VctHUForRent","VctHUForSale","VctHUSeasonal","PopInOccHU","PopInOwnOccHU","PopInRntOccHU","AvgHHSize2","AvgHHSizOwnOcc","AvgHHSizRntOcc","OwnOccWhtHsHldr","OwnOccBlkHsHldr","OwnOccAmIHsHldr","OwnOccAsnHsHldr","OwnOccPIsHsHldr","OwnOccORHsHldr","OwnOcc2RcHsHldr","RntOccWhtHsHldr","RntOccBlkHsHldr","RntOccAmIHsHldr","RntOccAsnHsHldr","RntOccPIsHsHldr","RntOccORHsHldr","RntOcc2RcHsHldr","OwnOccHH15to24","OwnOccHH25to34","OwnOccHH35to44","OwnOccHH45to54","OwnOccHH55to64","OwnOccHH65to74","OwnOccHH75to84","OwnOccHH85Over","RntOccHH15to24","RntOccHH25to34","RntOccHH35to44","RntOccHH45to54","RntOccHH55to64","RntOccHH65to74","RntOccHH75to84","RntOccHH85Over","P27TotalPop","P27PopInHseHlds","P27PopInGrpQtrs","Median Age Total","Median Age (Male)","Median Age (Female)"]
[{"$f":"VLOOKUP(DropDownList!$B$47,CntyQryCensus!$A$4:$CW$46,A$1)","v":"Barrington"},{"$f":"VLOOKUP(DropDownList!$B$47,CntyQryCensus!$A$4:$CW$46,B$1)","v":"017"},{"$f":"VLOOKUP(DropDownList!$B$47,CntyQryCensus!$A$4:$CW$46,C$1)","v":"0033389"},{"$f":"VLOOKUP(DropDownList!$B$47,CntyQryCensus!$A$4:$CW$46,D$1)","v":"03460"},{"$f":"VLOOKUP(DropDownList!$B$47,CntyQryCensus!$A$4:$CW$46,E$1)","v":""},{"$f":"VLOOKUP(DropDownList!$B$47,CntyQryCensus!$A$4:$CW$46,F$1)","v":"     120656252"},{"$f":"VLOOKUP(DropDownList!$B$47,CntyQryCensus!$A$4:$CW$46,G$1)","v":"       5005827"},{"$f":"VLOOKUP(DropDownList!$B$47,CntyQryCensus!$A$4:$CW$46,H$1)","v":7475},{"$f":"VLOOKUP(DropDownList!$B$47,CntyQryCensus!$A$4:$CW$46,I$1)","v":"     3147"},{"$f":"VLOOKUP(DropDownList!$B$47,CntyQryCensus!$A$4:$CW$46,J$1)","v":7475},{"$f":"VLOOKUP(DropDownList!$B$47,CntyQryCensus!$A$4:$CW$46,K$1)","v":7415},{"$f":"VLOOKUP(DropDownList!$B$47,CntyQryCensus!$A$4:$CW$46,L$1)","v":7334},{"$f":"VLOOKUP(DropDownList!$B$47,CntyQryCensus!$A$4:$CW$46,M$1)","v":19},{"$f":"VLOOKUP(DropDownList!$B$47,CntyQryCensus!$A$4:$CW$46,N$1)","v":10},{"$f":"VLOOKUP(DropDownList!$B$47,CntyQryCensus!$A$4:$CW$46,O$1)","v":31},{"$f":"VLOOKUP(DropDownList!$B$47,CntyQryCensus!$A$4:$CW$46,P$1)","v":4},{"$f":"VLOOKUP(DropDownList!$B$47,CntyQryCensus!$A$4:$CW$46,Q$1)","v":17},{"$f":"VLOOKUP(DropDownList!$B$47,CntyQryCensus!$A$4:$CW$46,R$1)","v":60},{"$f":"VLOOKUP(DropDownList!$B$47,CntyQryCensus!$A$4:$CW$46,S$1)","v":69},{"$f":"VLOOKUP(DropDownList!$B$47,CntyQryCensus!$A$4:$CW$46,T$1)","v":7406},{"$f":"VLOOKUP(DropDownList!$B$47,CntyQryCensus!$A$4:$CW$46,U$1)","v":3813},{"$f":"VLOOKUP(DropDownList!$B$47,CntyQryCensus!$A$4:$CW$46,V$1)","v":890},{"$f":"VLOOKUP(DropDownList!$B$47,CntyQryCensus!$A$4:$CW$46,W$1)","v":418},{"$f":"VLOOKUP(DropDownList!$B$47,CntyQryCensus!$A$4:$CW$46,X$1)","v":478},{"$f":"VLOOKUP(DropDownList!$B$47,CntyQryCensus!$A$4:$CW$46,Y$1)","v":822},{"$f":"VLOOKUP(DropDownList!$B$47,CntyQryCensus!$A$4:$CW$46,Z$1)","v":594},{"$f":"VLOOKUP(DropDownList!$B$47,CntyQryCensus!$A$4:$CW$46,AA$1)","v":363},{"$f":"VLOOKUP(DropDownList!$B$47,CntyQryCensus!$A$4:$CW$46,AB$1)","v":154},{"$f":"VLOOKUP(DropDownList!$B$47,CntyQryCensus!$A$4:$CW$46,AC$1)","v":83},{"$f":"VLOOKUP(DropDownList!$B$47,CntyQryCensus!$A$4:$CW$46,AD$1)","v":11},{"$f":"VLOOKUP(DropDownList!$B$47,CntyQryCensus!$A$4:$CW$46,AE$1)","v":3662},{"$f":"VLOOKUP(DropDownList!$B$47,CntyQryCensus!$A$4:$CW$46,AF$1)","v":832},{"$f":"VLOOKUP(DropDownList!$B$47,CntyQryCensus!$A$4:$CW$46,AG$1)","v":340},{"$f":"VLOOKUP(DropDownList!$B$47,CntyQryCensus!$A$4:$CW$46,AH$1)","v":537},{"$f":"VLOOKUP(DropDownList!$B$47,CntyQryCensus!$A$4:$CW$46,AI$1)","v":788},{"$f":"VLOOKUP(DropDownList!$B$47,CntyQryCensus!$A$4:$CW$46,AJ$1)","v":580},{"$f":"VLOOKUP(DropDownList!$B$47,CntyQryCensus!$A$4:$CW$46,AK$1)","v":308},{"$f":"VLOOKUP(DropDownList!$B$47,CntyQryCensus!$A$4:$CW$46,AL$1)","v":162},{"$f":"VLOOKUP(DropDownList!$B$47,CntyQryCensus!$A$4:$CW$46,AM$1)","v":90},{"$f":"VLOOKUP(DropDownList!$B$47,CntyQryCensus!$A$4:$CW$46,AN$1)","v":25},{"$f":"VLOOKUP(DropDownList!$B$47,CntyQryCensus!$A$4:$CW$46,AO$1)","v":2756},{"$f":"VLOOKUP(DropDownList!$B$47,CntyQryCensus!$A$4:$CW$46,AP$1)","v":7467},{"$f":"VLOOKUP(DropDownList!$B$47,CntyQryCensus!$A$4:$CW$46,AQ$1)","v":2.71},{"$f":"VLOOKUP(DropDownList!$B$47,CntyQryCensus!$A$4:$CW$46,AR$1)","v":465},{"$f":"VLOOKUP(DropDownList!$B$47,CntyQryCensus!$A$4:$CW$46,AS$1)","v":2291},{"$f":"VLOOKUP(DropDownList!$B$47,CntyQryCensus!$A$4:$CW$46,AT$1)","v":2076},{"$f":"VLOOKUP(DropDownList!$B$47,CntyQryCensus!$A$4:$CW$46,AU$1)","v":1781},{"$f":"VLOOKUP(DropDownList!$B$47,CntyQryCensus!$A$4:$CW$46,AV$1)","v":295},{"$f":"VLOOKUP(DropDownList!$B$47,CntyQryCensus!$A$4:$CW$46,AW$1)","v":215},{"$f":"VLOOKUP(DropDownList!$B$47,CntyQryCensus!$A$4:$CW$46,AX$1)","v":2076},{"$f":"VLOOKUP(DropDownList!$B$47,CntyQryCensus!$A$4:$CW$46,AY$1)","v":6374},{"$f":"VLOOKUP(DropDownList!$B$47,CntyQryCensus!$A$4:$CW$46,AZ$1)","v":3.07},{"$f":"VLOOKUP(DropDownList!$B$47,CntyQryCensus!$A$4:$CW$46,BA$1)","v":3147},{"$f":"VLOOKUP(DropDownList!$B$47,CntyQryCensus!$A$4:$CW$46,BB$1)","v":2756},{"$f":"VLOOKUP(DropDownList!$B$47,CntyQryCensus!$A$4:$CW$46,BC$1)","v":2349},{"$f":"VLOOKUP(DropDownList!$B$47,CntyQryCensus!$A$4:$CW$46,BD$1)","v":407},{"$f":"VLOOKUP(DropDownList!$B$47,CntyQryCensus!$A$4:$CW$46,BE$1)","v":391},{"$f":"VLOOKUP(DropDownList!$B$47,CntyQryCensus!$A$4:$CW$46,BF$1)","v":9},{"$f":"VLOOKUP(DropDownList!$B$47,CntyQryCensus!$A$4:$CW$46,BG$1)","v":18},{"$f":"VLOOKUP(DropDownList!$B$47,CntyQryCensus!$A$4:$CW$46,BH$1)","v":310},{"$f":"VLOOKUP(DropDownList!$B$47,CntyQryCensus!$A$4:$CW$46,BI$1)","v":7467},{"$f":"VLOOKUP(DropDownList!$B$47,CntyQryCensus!$A$4:$CW$46,BJ$1)","v":6513},{"$f":"VLOOKUP(DropDownList!$B$47,CntyQryCensus!$A$4:$CW$46,BK$1)","v":954},{"$f":"VLOOKUP(DropDownList!$B$47,CntyQryCensus!$A$4:$CW$46,BL$1)","v":2.71},{"$f":"VLOOKUP(DropDownList!$B$47,CntyQryCensus!$A$4:$CW$46,BM$1)","v":2.77},{"$f":"VLOOKUP(DropDownList!$B$47,CntyQryCensus!$A$4:$CW$46,BN$1)","v":2.34},{"$f":"VLOOKUP(DropDownList!$B$47,CntyQryCensus!$A$4:$CW$46,BO$1)","v":2315},{"$f":"VLOOKUP(DropDownList!$B$47,CntyQryCensus!$A$4:$CW$46,BP$1)","v":6},{"$f":"VLOOKUP(DropDownList!$B$47,CntyQryCensus!$A$4:$CW$46,BQ$1)","v":1},{"$f":"VLOOKUP(DropDownList!$B$47,CntyQryCensus!$A$4:$CW$46,BR$1)","v":5},{"$f":"VLOOKUP(DropDownList!$B$47,CntyQryCensus!$A$4:$CW$46,BS$1)","v":1},{"$f":"VLOOKUP(DropDownList!$B$47,CntyQryCensus!$A$4:$CW$46,BT$1)","v":5},{"$f":"VLOOKUP(DropDownList!$B$47,CntyQryCensus!$A$4:$CW$46,BU$1)","v":16},{"$f":"VLOOKUP(DropDownList!$B$47,CntyQryCensus!$A$4:$CW$46,BV$1)","v":398},{"$f":"VLOOKUP(DropDownList!$B$47,CntyQryCensus!$A$4:$CW$46,BW$1)","v":1},{"$f":"VLOOKUP(DropDownList!$B$47,CntyQryCensus!$A$4:$CW$46,BX$1)","v":1},{"$f":"VLOOKUP(DropDownList!$B$47,CntyQryCensus!$A$4:$CW$46,BY$1)","v":2},{"$f":"VLOOKUP(DropDownList!$B$47,CntyQryCensus!$A$4:$CW$46,BZ$1)","v":0},{"$f":"VLOOKUP(DropDownList!$B$47,CntyQryCensus!$A$4:$CW$46,CA$1)","v":1},{"$f":"VLOOKUP(DropDownList!$B$47,CntyQryCensus!$A$4:$CW$46,CB$1)","v":4},{"$f":"VLOOKUP(DropDownList!$B$47,CntyQryCensus!$A$4:$CW$46,CC$1)","v":18},{"$f":"VLOOKUP(DropDownList!$B$47,CntyQryCensus!$A$4:$CW$46,CD$1)","v":315},{"$f":"VLOOKUP(DropDownList!$B$47,CntyQryCensus!$A$4:$CW$46,CE$1)","v":750},{"$f":"VLOOKUP(DropDownList!$B$47,CntyQryCensus!$A$4:$CW$46,CF$1)","v":611},{"$f":"VLOOKUP(DropDownList!$B$47,CntyQryCensus!$A$4:$CW$46,CG$1)","v":368},{"$f":"VLOOKUP(DropDownList!$B$47,CntyQryCensus!$A$4:$CW$46,CH$1)","v":174},{"$f":"VLOOKUP(DropDownList!$B$47,CntyQryCensus!$A$4:$CW$46,CI$1)","v":98},{"$f":"VLOOKUP(DropDownList!$B$47,CntyQryCensus!$A$4:$CW$46,CJ$1)","v":15},{"$f":"VLOOKUP(DropDownList!$B$47,CntyQryCensus!$A$4:$CW$46,CK$1)","v":44},{"$f":"VLOOKUP(DropDownList!$B$47,CntyQryCensus!$A$4:$CW$46,CL$1)","v":133},{"$f":"VLOOKUP(DropDownList!$B$47,CntyQryCensus!$A$4:$CW$46,CM$1)","v":113},{"$f":"VLOOKUP(DropDownList!$B$47,CntyQryCensus!$A$4:$CW$46,CN$1)","v":50},{"$f":"VLOOKUP(DropDownList!$B$47,CntyQryCensus!$A$4:$CW$46,CO$1)","v":35},{"$f":"VLOOKUP(DropDownList!$B$47,CntyQryCensus!$A$4:$CW$46,CP$1)","v":17},{"$f":"VLOOKUP(DropDownList!$B$47,CntyQryCensus!$A$4:$CW$46,CQ$1)","v":12},{"$f":"VLOOKUP(DropDownList!$B$47,CntyQryCensus!$A$4:$CW$46,CR$1)","v":3},{"$f":"VLOOKUP(DropDownList!$B$47,CntyQryCensus!$A$4:$CW$46,CS$1)","v":7475},{"$f":"VLOOKUP(DropDownList!$B$47,CntyQryCensus!$A$4:$CW$46,CT$1)","v":7467},{"$f":"VLOOKUP(DropDownList!$B$47,CntyQryCensus!$A$4:$CW$46,CU$1)","v":8},{"$f":"VLOOKUP(DropDownList!$B$47,CntyQryCensus!$A$4:$CW$46,CV$1)","v":36.6},{"$f":"VLOOKUP(DropDownList!$B$47,CntyQryCensus!$A$4:$CW$46,CW$1)","v":36.6},{"$f":"VLOOKUP(DropDownList!$B$47,CntyQryCensus!$A$4:$CW$46,CX$1)","v":{"$error":"#REF!"}}]
[]
[]
["Census 2000 DemoProfile Sample Data Tables 2&3   -  DPTab23TownQry"]
["NAME","COUSUB","AREANAME","PopInSchool","Preschool","Kindergarten","Elementary","HighSchool","College","Pop25andOver","HighSchoolGrad","SomeCollege","AssocDegree","BachelDegree","GradDegree","HSGradorHigher","CollegeGradorHigher","Pop5to20yrs","Pop5to20wDis","Pop21to64","Pop21to64wDis","Pop65over","Pop65overwDis","Pop5yrsOver","SameHUin95","DiffHUinUSin95","HUinSameCountyin95","HUinSameStatein95","TotalPop","NativePop","NatPopBornUS","NatPopBornInStatRes","NatPopBornDiffState","NatPopBornOutUS","FornBornPop","FornPopEnt90to00","FornPopNatCit","FornPopNotCit","Households","HHIncLessThn10k","HHInc10to15K","HHInc15to25K","HHInc25to35K","HHInc35to50K","HHInc50to75K","HHInc75to100K","HHInc100to150K","HHInc150to200K","HHIncOver200K","MedianHHInc","HHwithPubAssistInc","MeanPubAssist","FamilyHH","FHHIncLessThn10k","FHHInc10to15K","FHHInc15to25K","FHHInc25to35K","FHHInc35to50K","FHHInc50to75K","FHHInc75to100K","FHHInc100to150K","FHHInc150to200K","FHHIncOver200K","MedianFHHInc","PerCapitaInc","PovStatFamilies","PovStatFHHwChilUnd18","PovStatFHHwChilUnd5","PovStFmalHH","DP3088","DP3089","PovStatIndiv","PovStatIndiv18yrOver","PovStatIndiv65yrOver","DP3093","DP3094","DP3095"]
[{"$f":"VLOOKUP(DropDownList!$B$47,CntyQryCensus!$A$53:$BY$96,A$1)","v":"Barrington"},{"$f":"VLOOKUP(DropDownList!$B$47,CntyQryCensus!$A$53:$BY$96,B$1)","v":"03460"},{"$f":"VLOOKUP(DropDownList!$B$47,CntyQryCensus!$A$53:$BY$96,C$1)","v":"Barrington town, Strafford County, New Hampshire"},{"$f":"VLOOKUP(DropDownList!$B$47,CntyQryCensus!$A$53:$BY$96,D$1)","v":2084},{"$f":"VLOOKUP(DropDownList!$B$47,CntyQryCensus!$A$53:$BY$96,E$1)","v":64},{"$f":"VLOOKUP(DropDownList!$B$47,CntyQryCensus!$A$53:$BY$96,F$1)","v":152},{"$f":"VLOOKUP(DropDownList!$B$47,CntyQryCensus!$A$53:$BY$96,G$1)","v":1000},{"$f":"VLOOKUP(DropDownList!$B$47,CntyQryCensus!$A$53:$BY$96,H$1)","v":447},{"$f":"VLOOKUP(DropDownList!$B$47,CntyQryCensus!$A$53:$BY$96,I$1)","v":421},{"$f":"VLOOKUP(DropDownList!$B$47,CntyQryCensus!$A$53:$BY$96,J$1)","v":4986},{"$f":"VLOOKUP(DropDownList!$B$47,CntyQryCensus!$A$53:$BY$96,K$1)","v":1458},{"$f":"VLOOKUP(DropDownList!$B$47,CntyQryCensus!$A$53:$BY$96,L$1)","v":1124},{"$f":"VLOOKUP(DropDownList!$B$47,CntyQryCensus!$A$53:$BY$96,M$1)","v":587},{"$f":"VLOOKUP(DropDownList!$B$47,CntyQryCensus!$A$53:$BY$96,N$1)","v":983},{"$f":"VLOOKUP(DropDownList!$B$47,CntyQryCensus!$A$53:$BY$96,O$1)","v":386},{"$f":"VLOOKUP(DropDownList!$B$47,CntyQryCensus!$A$53:$BY$96,P$1)","v":4538},{"$f":"VLOOKUP(DropDownList!$B$47,CntyQryCensus!$A$53:$BY$96,Q$1)","v":1369},{"$f":"VLOOKUP(DropDownList!$B$47,CntyQryCensus!$A$53:$BY$96,R$1)","v":1800},{"$f":"VLOOKUP(DropDownList!$B$47,CntyQryCensus!$A$53:$BY$96,S$1)","v":100},{"$f":"VLOOKUP(DropDownList!$B$47,CntyQryCensus!$A$53:$BY$96,T$1)","v":4666},{"$f":"VLOOKUP(DropDownList!$B$47,CntyQryCensus!$A$53:$BY$96,U$1)","v":658},{"$f":"VLOOKUP(DropDownList!$B$47,CntyQryCensus!$A$53:$BY$96,V$1)","v":528},{"$f":"VLOOKUP(DropDownList!$B$47,CntyQryCensus!$A$53:$BY$96,W$1)","v":173},{"$f":"VLOOKUP(DropDownList!$B$47,CntyQryCensus!$A$53:$BY$96,X$1)","v":7017},{"$f":"VLOOKUP(DropDownList!$B$47,CntyQryCensus!$A$53:$BY$96,Y$1)","v":4296},{"$f":"VLOOKUP(DropDownList!$B$47,CntyQryCensus!$A$53:$BY$96,Z$1)","v":2692},{"$f":"VLOOKUP(DropDownList!$B$47,CntyQryCensus!$A$53:$BY$96,AA$1)","v":1241},{"$f":"VLOOKUP(DropDownList!$B$47,CntyQryCensus!$A$53:$BY$96,AB$1)","v":1451},{"$f":"VLOOKUP(DropDownList!$B$47,CntyQryCensus!$A$53:$BY$96,AC$1)","v":7475},{"$f":"VLOOKUP(DropDownList!$B$47,CntyQryCensus!$A$53:$BY$96,AD$1)","v":7333},{"$f":"VLOOKUP(DropDownList!$B$47,CntyQryCensus!$A$53:$BY$96,AE$1)","v":7284},{"$f":"VLOOKUP(DropDownList!$B$47,CntyQryCensus!$A$53:$BY$96,AF$1)","v":3863},{"$f":"VLOOKUP(DropDownList!$B$47,CntyQryCensus!$A$53:$BY$96,AG$1)","v":3421},{"$f":"VLOOKUP(DropDownList!$B$47,CntyQryCensus!$A$53:$BY$96,AH$1)","v":49},{"$f":"VLOOKUP(DropDownList!$B$47,CntyQryCensus!$A$53:$BY$96,AI$1)","v":142},{"$f":"VLOOKUP(DropDownList!$B$47,CntyQryCensus!$A$53:$BY$96,AJ$1)","v":70},{"$f":"VLOOKUP(DropDownList!$B$47,CntyQryCensus!$A$53:$BY$96,AK$1)","v":48},{"$f":"VLOOKUP(DropDownList!$B$47,CntyQryCensus!$A$53:$BY$96,AL$1)","v":94},{"$f":"VLOOKUP(DropDownList!$B$47,CntyQryCensus!$A$53:$BY$96,AM$1)","v":2767},{"$f":"VLOOKUP(DropDownList!$B$47,CntyQryCensus!$A$53:$BY$96,AN$1)","v":73},{"$f":"VLOOKUP(DropDownList!$B$47,CntyQryCensus!$A$53:$BY$96,AO$1)","v":106},{"$f":"VLOOKUP(DropDownList!$B$47,CntyQryCensus!$A$53:$BY$96,AP$1)","v":184},{"$f":"VLOOKUP(DropDownList!$B$47,CntyQryCensus!$A$53:$BY$96,AQ$1)","v":442},{"$f":"VLOOKUP(DropDownList!$B$47,CntyQryCensus!$A$53:$BY$96,AR$1)","v":548},{"$f":"VLOOKUP(DropDownList!$B$47,CntyQryCensus!$A$53:$BY$96,AS$1)","v":660},{"$f":"VLOOKUP(DropDownList!$B$47,CntyQryCensus!$A$53:$BY$96,AT$1)","v":538},{"$f":"VLOOKUP(DropDownList!$B$47,CntyQryCensus!$A$53:$BY$96,AU$1)","v":164},{"$f":"VLOOKUP(DropDownList!$B$47,CntyQryCensus!$A$53:$BY$96,AV$1)","v":52},{"$f":"VLOOKUP(DropDownList!$B$47,CntyQryCensus!$A$53:$BY$96,AW$1)","v":0},{"$f":"VLOOKUP(DropDownList!$B$47,CntyQryCensus!$A$53:$BY$96,AX$1)","v":50630},{"$f":"VLOOKUP(DropDownList!$B$47,CntyQryCensus!$A$53:$BY$96,AY$1)","v":64},{"$f":"VLOOKUP(DropDownList!$B$47,CntyQryCensus!$A$53:$BY$96,AZ$1)","v":1115},{"$f":"VLOOKUP(DropDownList!$B$47,CntyQryCensus!$A$53:$BY$96,BA$1)","v":2096},{"$f":"VLOOKUP(DropDownList!$B$47,CntyQryCensus!$A$53:$BY$96,BB$1)","v":43},{"$f":"VLOOKUP(DropDownList!$B$47,CntyQryCensus!$A$53:$BY$96,BC$1)","v":47},{"$f":"VLOOKUP(DropDownList!$B$47,CntyQryCensus!$A$53:$BY$96,BD$1)","v":138},{"$f":"VLOOKUP(DropDownList!$B$47,CntyQryCensus!$A$53:$BY$96,BE$1)","v":288},{"$f":"VLOOKUP(DropDownList!$B$47,CntyQryCensus!$A$53:$BY$96,BF$1)","v":359},{"$f":"VLOOKUP(DropDownList!$B$47,CntyQryCensus!$A$53:$BY$96,BG$1)","v":523},{"$f":"VLOOKUP(DropDownList!$B$47,CntyQryCensus!$A$53:$BY$96,BH$1)","v":508},{"$f":"VLOOKUP(DropDownList!$B$47,CntyQryCensus!$A$53:$BY$96,BI$1)","v":151},{"$f":"VLOOKUP(DropDownList!$B$47,CntyQryCensus!$A$53:$BY$96,BJ$1)","v":39},{"$f":"VLOOKUP(DropDownList!$B$47,CntyQryCensus!$A$53:$BY$96,BK$1)","v":0},{"$f":"VLOOKUP(DropDownList!$B$47,CntyQryCensus!$A$53:$BY$96,BL$1)","v":56136},{"$f":"VLOOKUP(DropDownList!$B$47,CntyQryCensus!$A$53:$BY$96,BM$1)","v":21012},{"$f":"VLOOKUP(DropDownList!$B$47,CntyQryCensus!$A$53:$BY$96,BN$1)","v":76},{"$f":"VLOOKUP(DropDownList!$B$47,CntyQryCensus!$A$53:$BY$96,BO$1)","v":70},{"$f":"VLOOKUP(DropDownList!$B$47,CntyQryCensus!$A$53:$BY$96,BP$1)","v":9},{"$f":"VLOOKUP(DropDownList!$B$47,CntyQryCensus!$A$53:$BY$96,BQ$1)","v":42},{"$f":"VLOOKUP(DropDownList!$B$47,CntyQryCensus!$A$53:$BY$96,BR$1)","v":36},{"$f":"VLOOKUP(DropDownList!$B$47,CntyQryCensus!$A$53:$BY$96,BS$1)","v":9},{"$f":"VLOOKUP(DropDownList!$B$47,CntyQryCensus!$A$53:$BY$96,BT$1)","v":411},{"$f":"VLOOKUP(DropDownList!$B$47,CntyQryCensus!$A$53:$BY$96,BU$1)","v":259},{"$f":"VLOOKUP(DropDownList!$B$47,CntyQryCensus!$A$53:$BY$96,BV$1)","v":0},{"$f":"VLOOKUP(DropDownList!$B$47,CntyQryCensus!$A$53:$BY$96,BW$1)","v":141},{"$f":"VLOOKUP(DropDownList!$B$47,CntyQryCensus!$A$53:$BY$96,BX$1)","v":131},{"$f":"VLOOKUP(DropDownList!$B$47,CntyQryCensus!$A$53:$BY$96,BY$1)","v":136}]
[]
[]
["Census 2000 DemoProfile Sample Data Table 4   -  DPTab4TownQry"]
["NAME","COUSUB","TotHousingUnits","1UnitDet","1UnitAtt","2Units","3to4Units","5to9Units","10to19Units","20orMoreUnits","MobileHomes","BoatRvVan","SingleFamilyUnits","MultiFamUnits","MobileHomeUnits","YearBuilt99to00","YearBuilt95to98","YearBUilt90to94","YearBuilt80to89","YearBuilt70to79","YearBuilt60to69","YearBuilt40to59","YearBuilt39orEarlier","Rooms1","Rooms2","Rooms3","Rooms4","Rooms5","Rooms6","Rooms7","Rooms8","Rooms9orMore","MedianRooms","OccHU1","YrHHMvdIn99to00","YrHHMvdIn95to98","YrHHMvdIn90to94","YrHHMvdIn80to89","YrHHMvdIn70to79","YrHHMvdIn69orBefore","HeatFuelNatGas","HeatFuelBotGas","HeatFuelElectric","HeatFuelOil","HeatFuelCoal","HeatFuelWood","HeatFuelSolar","HeatFuelOther","HeatFuelNone","LackCompPlumb","LackCompKit","NoTelephone","OccHU","OccPerRm1orLess","OccPerRm1to1_5","OccPerRm1_5orMore","SpecOwnOccUnits","Value<50K","Value50to100K","Value100to150K","Value150to200K","Value200to300K","Value300to500K","Value500Kto1mil","Value1MilorMore","MedianValue","WithMortg","MnthOwnCst<300","MnthOwnCst300to500","MnthOwnCst500to700","MnthOwnCst700to1000","MnthOwnCst1000to1500","MnthOwnCst1500to2000","MnthOwnCst2000orMore","MediMnthOwnCst","NotMrtg","NotMrtgMediMnthOwnCst","OwnCst%HHInc<15","OwnCst%HHInc15to20","OwnCst%HHInc20to25","OwnCst%HHInc25to30","OwnCst%HHInc30to35","OwnCst%HHInc35orMor","NotComputed","SpecRntOccUnits","Rnt<200","Rnt200to300","Rnt300to500","Rnt500to750","Rnt750to1000","Rnt1000to1500","Rnt1500orMore","NoRent","MedianRent","Rnt%HHInc<15","Rnt%HHInc15to20","Rnt%HHInc20to25","Rnt%HHInc25to30","Rnt%HHInc30to35","Rnt%HHInc35orMore","Rnt%NotCompute"]
[{"$f":"VLOOKUP(DropDownList!$B$47,CntyQryCensus!$A$103:$CX$146,A$1)","v":"Barrington"},{"$f":"VLOOKUP(DropDownList!$B$47,CntyQryCensus!$A$103:$CX$146,B$1)","v":"03460"},{"$f":"VLOOKUP(DropDownList!$B$47,CntyQryCensus!$A$103:$CX$146,C$1)","v":3147},{"$f":"VLOOKUP(DropDownList!$B$47,CntyQryCensus!$A$103:$CX$146,D$1)","v":2290},{"$f":"VLOOKUP(DropDownList!$B$47,CntyQryCensus!$A$103:$CX$146,E$1)","v":28},{"$f":"VLOOKUP(DropDownList!$B$47,CntyQryCensus!$A$103:$CX$146,F$1)","v":40},{"$f":"VLOOKUP(DropDownList!$B$47,CntyQryCensus!$A$103:$CX$146,G$1)","v":47},{"$f":"VLOOKUP(DropDownList!$B$47,CntyQryCensus!$A$103:$CX$146,H$1)","v":92},{"$f":"VLOOKUP(DropDownList!$B$47,CntyQryCensus!$A$103:$CX$146,I$1)","v":46},{"$f":"VLOOKUP(DropDownList!$B$47,CntyQryCensus!$A$103:$CX$146,J$1)","v":0},{"$f":"VLOOKUP(DropDownList!$B$47,CntyQryCensus!$A$103:$CX$146,K$1)","v":556},{"$f":"VLOOKUP(DropDownList!$B$47,CntyQryCensus!$A$103:$CX$146,L$1)","v":48},{"$f":"VLOOKUP(DropDownList!$B$47,CntyQryCensus!$A$103:$CX$146,M$1)","v":2290},{"$f":"VLOOKUP(DropDownList!$B$47,CntyQryCensus!$A$103:$CX$146,N$1)","v":253},{"$f":"VLOOKUP(DropDownList!$B$47,CntyQryCensus!$A$103:$CX$146,O$1)","v":604},{"$f":"VLOOKUP(DropDownList!$B$47,CntyQryCensus!$A$103:$CX$146,P$1)","v":68},{"$f":"VLOOKUP(DropDownList!$B$47,CntyQryCensus!$A$103:$CX$146,Q$1)","v":329},{"$f":"VLOOKUP(DropDownList!$B$47,CntyQryCensus!$A$103:$CX$146,R$1)","v":229},{"$f":"VLOOKUP(DropDownList!$B$47,CntyQryCensus!$A$103:$CX$146,S$1)","v":844},{"$f":"VLOOKUP(DropDownList!$B$47,CntyQryCensus!$A$103:$CX$146,T$1)","v":813},{"$f":"VLOOKUP(DropDownList!$B$47,CntyQryCensus!$A$103:$CX$146,U$1)","v":282},{"$f":"VLOOKUP(DropDownList!$B$47,CntyQryCensus!$A$103:$CX$146,V$1)","v":284},{"$f":"VLOOKUP(DropDownList!$B$47,CntyQryCensus!$A$103:$CX$146,W$1)","v":298},{"$f":"VLOOKUP(DropDownList!$B$47,CntyQryCensus!$A$103:$CX$146,X$1)","v":41},{"$f":"VLOOKUP(DropDownList!$B$47,CntyQryCensus!$A$103:$CX$146,Y$1)","v":127},{"$f":"VLOOKUP(DropDownList!$B$47,CntyQryCensus!$A$103:$CX$146,Z$1)","v":166},{"$f":"VLOOKUP(DropDownList!$B$47,CntyQryCensus!$A$103:$CX$146,AA$1)","v":642},{"$f":"VLOOKUP(DropDownList!$B$47,CntyQryCensus!$A$103:$CX$146,AB$1)","v":662},{"$f":"VLOOKUP(DropDownList!$B$47,CntyQryCensus!$A$103:$CX$146,AC$1)","v":605},{"$f":"VLOOKUP(DropDownList!$B$47,CntyQryCensus!$A$103:$CX$146,AD$1)","v":447},{"$f":"VLOOKUP(DropDownList!$B$47,CntyQryCensus!$A$103:$CX$146,AE$1)","v":268},{"$f":"VLOOKUP(DropDownList!$B$47,CntyQryCensus!$A$103:$CX$146,AF$1)","v":189},{"$f":"VLOOKUP(DropDownList!$B$47,CntyQryCensus!$A$103:$CX$146,AG$1)","v":5.4},{"$f":"VLOOKUP(DropDownList!$B$47,CntyQryCensus!$A$103:$CX$146,AH$1)","v":2756},{"$f":"VLOOKUP(DropDownList!$B$47,CntyQryCensus!$A$103:$CX$146,AI$1)","v":435},{"$f":"VLOOKUP(DropDownList!$B$47,CntyQryCensus!$A$103:$CX$146,AJ$1)","v":867},{"$f":"VLOOKUP(DropDownList!$B$47,CntyQryCensus!$A$103:$CX$146,AK$1)","v":457},{"$f":"VLOOKUP(DropDownList!$B$47,CntyQryCensus!$A$103:$CX$146,AL$1)","v":571},{"$f":"VLOOKUP(DropDownList!$B$47,CntyQryCensus!$A$103:$CX$146,AM$1)","v":319},{"$f":"VLOOKUP(DropDownList!$B$47,CntyQryCensus!$A$103:$CX$146,AN$1)","v":107},{"$f":"VLOOKUP(DropDownList!$B$47,CntyQryCensus!$A$103:$CX$146,AO$1)","v":13},{"$f":"VLOOKUP(DropDownList!$B$47,CntyQryCensus!$A$103:$CX$146,AP$1)","v":588},{"$f":"VLOOKUP(DropDownList!$B$47,CntyQryCensus!$A$103:$CX$146,AQ$1)","v":102},{"$f":"VLOOKUP(DropDownList!$B$47,CntyQryCensus!$A$103:$CX$146,AR$1)","v":1872},{"$f":"VLOOKUP(DropDownList!$B$47,CntyQryCensus!$A$103:$CX$146,AS$1)","v":8},{"$f":"VLOOKUP(DropDownList!$B$47,CntyQryCensus!$A$103:$CX$146,AT$1)","v":139},{"$f":"VLOOKUP(DropDownList!$B$47,CntyQryCensus!$A$103:$CX$146,AU$1)","v":0},{"$f":"VLOOKUP(DropDownList!$B$47,CntyQryCensus!$A$103:$CX$146,AV$1)","v":9},{"$f":"VLOOKUP(DropDownList!$B$47,CntyQryCensus!$A$103:$CX$146,AW$1)","v":25},{"$f":"VLOOKUP(DropDownList!$B$47,CntyQryCensus!$A$103:$CX$146,AX$1)","v":45},{"$f":"VLOOKUP(DropDownList!$B$47,CntyQryCensus!$A$103:$CX$146,AY$1)","v":29},{"$f":"VLOOKUP(DropDownList!$B$47,CntyQryCensus!$A$103:$CX$146,AZ$1)","v":17},{"$f":"VLOOKUP(DropDownList!$B$47,CntyQryCensus!$A$103:$CX$146,BA$1)","v":2756},{"$f":"VLOOKUP(DropDownList!$B$47,CntyQryCensus!$A$103:$CX$146,BB$1)","v":2727},{"$f":"VLOOKUP(DropDownList!$B$47,CntyQryCensus!$A$103:$CX$146,BC$1)","v":29},{"$f":"VLOOKUP(DropDownList!$B$47,CntyQryCensus!$A$103:$CX$146,BD$1)","v":0},{"$f":"VLOOKUP(DropDownList!$B$47,CntyQryCensus!$A$103:$CX$146,BE$1)","v":1667},{"$f":"VLOOKUP(DropDownList!$B$47,CntyQryCensus!$A$103:$CX$146,BF$1)","v":38},{"$f":"VLOOKUP(DropDownList!$B$47,CntyQryCensus!$A$103:$CX$146,BG$1)","v":282},{"$f":"VLOOKUP(DropDownList!$B$47,CntyQryCensus!$A$103:$CX$146,BH$1)","v":728},{"$f":"VLOOKUP(DropDownList!$B$47,CntyQryCensus!$A$103:$CX$146,BI$1)","v":500},{"$f":"VLOOKUP(DropDownList!$B$47,CntyQryCensus!$A$103:$CX$146,BJ$1)","v":119},{"$f":"VLOOKUP(DropDownList!$B$47,CntyQryCensus!$A$103:$CX$146,BK$1)","v":0},{"$f":"VLOOKUP(DropDownList!$B$47,CntyQryCensus!$A$103:$CX$146,BL$1)","v":0},{"$f":"VLOOKUP(DropDownList!$B$47,CntyQryCensus!$A$103:$CX$146,BM$1)","v":0},{"$f":"VLOOKUP(DropDownList!$B$47,CntyQryCensus!$A$103:$CX$146,BN$1)","v":136400},{"$f":"VLOOKUP(DropDownList!$B$47,CntyQryCensus!$A$103:$CX$146,BO$1)","v":1345},{"$f":"VLOOKUP(DropDownList!$B$47,CntyQryCensus!$A$103:$CX$146,BP$1)","v":0},{"$f":"VLOOKUP(DropDownList!$B$47,CntyQryCensus!$A$103:$CX$146,BQ$1)","v":14},{"$f":"VLOOKUP(DropDownList!$B$47,CntyQryCensus!$A$103:$CX$146,BR$1)","v":88},{"$f":"VLOOKUP(DropDownList!$B$47,CntyQryCensus!$A$103:$CX$146,BS$1)","v":339},{"$f":"VLOOKUP(DropDownList!$B$47,CntyQryCensus!$A$103:$CX$146,BT$1)","v":626},{"$f":"VLOOKUP(DropDownList!$B$47,CntyQryCensus!$A$103:$CX$146,BU$1)","v":218},{"$f":"VLOOKUP(DropDownList!$B$47,CntyQryCensus!$A$103:$CX$146,BV$1)","v":60},{"$f":"VLOOKUP(DropDownList!$B$47,CntyQryCensus!$A$103:$CX$146,BW$1)","v":1195},{"$f":"VLOOKUP(DropDownList!$B$47,CntyQryCensus!$A$103:$CX$146,BX$1)","v":322},{"$f":"VLOOKUP(DropDownList!$B$47,CntyQryCensus!$A$103:$CX$146,BY$1)","v":433},{"$f":"VLOOKUP(DropDownList!$B$47,CntyQryCensus!$A$103:$CX$146,BZ$1)","v":452},{"$f":"VLOOKUP(DropDownList!$B$47,CntyQryCensus!$A$103:$CX$146,CA$1)","v":292},{"$f":"VLOOKUP(DropDownList!$B$47,CntyQryCensus!$A$103:$CX$146,CB$1)","v":318},{"$f":"VLOOKUP(DropDownList!$B$47,CntyQryCensus!$A$103:$CX$146,CC$1)","v":223},{"$f":"VLOOKUP(DropDownList!$B$47,CntyQryCensus!$A$103:$CX$146,CD$1)","v":92},{"$f":"VLOOKUP(DropDownList!$B$47,CntyQryCensus!$A$103:$CX$146,CE$1)","v":275},{"$f":"VLOOKUP(DropDownList!$B$47,CntyQryCensus!$A$103:$CX$146,CF$1)","v":15},{"$f":"VLOOKUP(DropDownList!$B$47,CntyQryCensus!$A$103:$CX$146,CG$1)","v":411},{"$f":"VLOOKUP(DropDownList!$B$47,CntyQryCensus!$A$103:$CX$146,CH$1)","v":18},{"$f":"VLOOKUP(DropDownList!$B$47,CntyQryCensus!$A$103:$CX$146,CI$1)","v":0},{"$f":"VLOOKUP(DropDownList!$B$47,CntyQryCensus!$A$103:$CX$146,CJ$1)","v":46},{"$f":"VLOOKUP(DropDownList!$B$47,CntyQryCensus!$A$103:$CX$146,CK$1)","v":188},{"$f":"VLOOKUP(DropDownList!$B$47,CntyQryCensus!$A$103:$CX$146,CL$1)","v":84},{"$f":"VLOOKUP(DropDownList!$B$47,CntyQryCensus!$A$103:$CX$146,CM$1)","v":38},{"$f":"VLOOKUP(DropDownList!$B$47,CntyQryCensus!$A$103:$CX$146,CN$1)","v":0},{"$f":"VLOOKUP(DropDownList!$B$47,CntyQryCensus!$A$103:$CX$146,CO$1)","v":37},{"$f":"VLOOKUP(DropDownList!$B$47,CntyQryCensus!$A$103:$CX$146,CP$1)","v":674},{"$f":"VLOOKUP(DropDownList!$B$47,CntyQryCensus!$A$103:$CX$146,CQ$1)","v":88},{"$f":"VLOOKUP(DropDownList!$B$47,CntyQryCensus!$A$103:$CX$146,CR$1)","v":37},{"$f":"VLOOKUP(DropDownList!$B$47,CntyQryCensus!$A$103:$CX$146,CS$1)","v":41},{"$f":"VLOOKUP(DropDownList!$B$47,CntyQryCensus!$A$103:$CX$146,CT$1)","v":34},{"$f":"VLOOKUP(DropDownList!$B$47,CntyQryCensus!$A$103:$CX$146,CU$1)","v":39},{"$f":"VLOOKUP(DropDownList!$B$47,CntyQryCensus!$A$103:$CX$146,CV$1)","v":127},{"$f":"VLOOKUP(DropDownList!$B$47,CntyQryCensus!$A$103:$CX$146,CW$1)","v":45}]
[]
[]
["Census 2000 SummaryFile3 Sample Data  -  SF3TownQry1SocialChar"]
["TOWN_NAME","LOGRECNO","COUSUB","P01TotalPopulation","P02SampleCountOfPop","P03Pop100pctCount","P05UrbanPopulation","P05RuralPopulation","P06WhiteAlone","P06BlackOrAfAm","P06AmIndAlone","P06AsianAlone","P06HawaiianOrPI","P06OtherRace","P06TwoPlusRaces","P07NotHispanicOrLatino","P07HispanicOrLatino","P08MalePop","P08FemalePop","P09PopInHouseholds","P09PopInFamHH","P09PopInNonFamHH","P09PopInGroupQtr","P13TotalHH","P13FamilyHH","P13FamHHolder15to24yrs","P13FamHHolder25to34yrs","P13FamHHolder35to44yrs","P13FamHHolder45to54yrs","P13FamHHolder55to64yrs","P13FamHHolder65to74yrs","P13FamHHolder75to84yrs","P13FamHHolder85yrsOver","P13NonFamilyHH","P13NonFamHHolder15to24yrs","P13NonFamHHolder25to34yrs","P13NonFamHHolder35to44yrs","P13NonFamHHolder45to54yrs","P13NonFamHHolder55to64yrs","P13NonFamHHolder65to74yrs","P13NonFamHHolder75to84yrs","P13NonFamHHolder85yrsOver","P18Pop15yrsOver","P18MaritalStatNeverMarried","P18MaritalStatNowMarried","P18MaritalStatSeparated","P18MaritalStatWidowed","P18MaritalStatWidowFemale","P18MaritalStatDivorced","P18MaritalStatDivorcedFemale","P21NativeBornPop","P21NatPopBornInState","P21NatPopBornOtherState","P021005","P021006","P021007","P021008","P21NatPopBornOutUS","P21ForeignBornPop","P021014","P021015","P24Pop5YrsPlus","P24ResSameHouseIn95","P24ResDiffHouseIn95","P24ResDiffHouseInUSIn95","P24ResDiffHouseSameCountyIn95","P24ResDiffHouseDiffCountyIn95","P24ResDiffHouseDiffCntySamStIn95","P24ResDiffHouseDiffCntyDifStIn95","P24ResDiffHouseDiffCntyNEStIn95","P24ResDiffHouseDiffCntyMWStIn95","P24ResDiffHouseDiffCntySoStIn95","P24ResDiffHouseDiffCntyWstStIn95","P24ResDiffInPR","P24ResDiffElsewhereIn95","P26Workers16yrsOver","P26WorkedInState","P26WorkedInCnty","P26WorkedOutsideCnty","P26WorkedOutsideState","P30Workers16Over","P30TranspToWrkCar","P30TranspToWrkPublic","P30TranspToWrkOther","P30WrkdAtHome","P31WrkrsNotWrkAtHom","P31TravTim<5min","P31TravTim5to9Min","P31TravTim10to14Min","P31TravTim15to19Min","P31TravTim20to24Min","P31TravTim25to29Min","P31TravTim30to34Min","P31TravTim35to39Min","P31TravTim40to44Min","P31TravTim45to59Min","P31TravTim60to89Min","P31TravTim90MinMore","P31WorkAtHome","P36SchEnrlPop3yrOver","P36NurserSchEnrl","P36KinderSchEnrl","P36ElemSchEnrl","P36HighSchEnrl","P36CollGradSchEnrl","P37Pop25yrsOver","P37EduAtain<9grd","P37EduAtainHSnoDip","P37EduAtainHSgrad","P37EduAtainCollNoDeg","P37EduAtainAssocDeg","P37EduAtainBachDeg","P37EduAtainGradProfDeg","P42NIPop5to15","P42NIPop5to15wDisabl","P42NIPop16to20","P42NIPop16to20wDisab","P42NIPop16to20wDisEmp","P42NIPop16to21NoDis","P42NIPop16to21NoDisEmpl","P42NIPop21to64","P42NIPop21to64wDis","P42NIPop21to64wDisEmp","P42NIPop21to64NoDis","P42NIPop21to64NoDisEmp","P42NIPop65to74","P42NIPop65to74wDis","P42NIPop75Over","P42NIPop75OverwDis","P43Pop16YrsOver","P43Pop16OvrInLaborForce","P43Pop16OvrCivlLabFrc","P43Pop16OvrCivlLbrFrcEmp","P48Families","P48MarriedFam","P48MarrFamNoWorkers","P48MarrFam1Worker","P48MarrFam2Worker","P48MarrFamHusbWifeWorked","P48MarrFamOther","P48MarrFam3PlusWorker","P48MarrFam3WorkHsbWif","P48MarrFam3PlsWrkOther","P48OtherFam","P48MaleHHNoWif","P48MaleHHNoWifNoWorker","P48MaleHHNoWif1Worker","P48MaleHHNoWif2Worker","P48MaleHHNoWif3PlusWorker","P48FemaleHHNoHsb","P48FemaleHHNoHsbNoWorker","P48FemaleHHNoHsb1Worker","P48FemaleHHNoHsb2Worker","P48FemaleHHNoHsb3Worker","P49EmpCivPop16YrOver","P49IndustAgricult","P49IndustConst","P49IndustMnftg","P49IndustWhlslTrd","P49IndustRtlTrd","P49IndustTrspWrhsUtlt","P49IndustInfrm","P49IndustFinInsRE","P49IndustPrfsScntfMngmt","P49IndustEduHlthSocSrv","P49IndustArtsEntRec","P49IndustOthrSrvc","P49IndustPubAdm","P50OccupMngmtProfs","P50OccupService","P50OccupSalesOff","P50OccupFarmFishForest","P50OccupConstExtrctMaint","P50OccupPrdctTrnspMatMv"]
[{"$f":"VLOOKUP(DropDownList!$B$47,CntyQryCensus!$A$156:$FR$198,A$1)","v":"Barrington"},{"$f":"VLOOKUP(DropDownList!$B$47,CntyQryCensus!$A$156:$FR$198,B$1)","v":"0003823"},{"$f":"VLOOKUP(DropDownList!$B$47,CntyQryCensus!$A$156:$FR$198,C$1)","v":"03460"},{"$f":"VLOOKUP(DropDownList!$B$47,CntyQryCensus!$A$156:$FR$198,D$1)","v":7475},{"$f":"VLOOKUP(DropDownList!$B$47,CntyQryCensus!$A$156:$FR$198,E$1)","v":889},{"$f":"VLOOKUP(DropDownList!$B$47,CntyQryCensus!$A$156:$FR$198,F$1)","v":7475},{"$f":"VLOOKUP(DropDownList!$B$47,CntyQryCensus!$A$156:$FR$198,G$1)","v":0},{"$f":"VLOOKUP(DropDownList!$B$47,CntyQryCensus!$A$156:$FR$198,H$1)","v":7475},{"$f":"VLOOKUP(DropDownList!$B$47,CntyQryCensus!$A$156:$FR$198,I$1)","v":7328},{"$f":"VLOOKUP(DropDownList!$B$47,CntyQryCensus!$A$156:$FR$198,J$1)","v":78},{"$f":"VLOOKUP(DropDownList!$B$47,CntyQryCensus!$A$156:$FR$198,K$1)","v":0},{"$f":"VLOOKUP(DropDownList!$B$47,CntyQryCensus!$A$156:$FR$198,L$1)","v":40},{"$f":"VLOOKUP(DropDownList!$B$47,CntyQryCensus!$A$156:$FR$198,M$1)","v":0},{"$f":"VLOOKUP(DropDownList!$B$47,CntyQryCensus!$A$156:$FR$198,N$1)","v":18},{"$f":"VLOOKUP(DropDownList!$B$47,CntyQryCensus!$A$156:$FR$198,O$1)","v":11},{"$f":"VLOOKUP(DropDownList!$B$47,CntyQryCensus!$A$156:$FR$198,P$1)","v":7405},{"$f":"VLOOKUP(DropDownList!$B$47,CntyQryCensus!$A$156:$FR$198,Q$1)","v":70},{"$f":"VLOOKUP(DropDownList!$B$47,CntyQryCensus!$A$156:$FR$198,R$1)","v":3821},{"$f":"VLOOKUP(DropDownList!$B$47,CntyQryCensus!$A$156:$FR$198,S$1)","v":3654},{"$f":"VLOOKUP(DropDownList!$B$47,CntyQryCensus!$A$156:$FR$198,T$1)","v":7467},{"$f":"VLOOKUP(DropDownList!$B$47,CntyQryCensus!$A$156:$FR$198,U$1)","v":6552},{"$f":"VLOOKUP(DropDownList!$B$47,CntyQryCensus!$A$156:$FR$198,V$1)","v":915},{"$f":"VLOOKUP(DropDownList!$B$47,CntyQryCensus!$A$156:$FR$198,W$1)","v":8},{"$f":"VLOOKUP(DropDownList!$B$47,CntyQryCensus!$A$156:$FR$198,X$1)","v":2767},{"$f":"VLOOKUP(DropDownList!$B$47,CntyQryCensus!$A$156:$FR$198,Y$1)","v":2096},{"$f":"VLOOKUP(DropDownList!$B$47,CntyQryCensus!$A$156:$FR$198,Z$1)","v":29},{"$f":"VLOOKUP(DropDownList!$B$47,CntyQryCensus!$A$156:$FR$198,AA$1)","v":325},{"$f":"VLOOKUP(DropDownList!$B$47,CntyQryCensus!$A$156:$FR$198,AB$1)","v":705},{"$f":"VLOOKUP(DropDownList!$B$47,CntyQryCensus!$A$156:$FR$198,AC$1)","v":513},{"$f":"VLOOKUP(DropDownList!$B$47,CntyQryCensus!$A$156:$FR$198,AD$1)","v":289},{"$f":"VLOOKUP(DropDownList!$B$47,CntyQryCensus!$A$156:$FR$198,AE$1)","v":176},{"$f":"VLOOKUP(DropDownList!$B$47,CntyQryCensus!$A$156:$FR$198,AF$1)","v":53},{"$f":"VLOOKUP(DropDownList!$B$47,CntyQryCensus!$A$156:$FR$198,AG$1)","v":6},{"$f":"VLOOKUP(DropDownList!$B$47,CntyQryCensus!$A$156:$FR$198,AH$1)","v":671},{"$f":"VLOOKUP(DropDownList!$B$47,CntyQryCensus!$A$156:$FR$198,AI$1)","v":14},{"$f":"VLOOKUP(DropDownList!$B$47,CntyQryCensus!$A$156:$FR$198,AJ$1)","v":118},{"$f":"VLOOKUP(DropDownList!$B$47,CntyQryCensus!$A$156:$FR$198,AK$1)","v":144},{"$f":"VLOOKUP(DropDownList!$B$47,CntyQryCensus!$A$156:$FR$198,AL$1)","v":166},{"$f":"VLOOKUP(DropDownList!$B$47,CntyQryCensus!$A$156:$FR$198,AM$1)","v":121},{"$f":"VLOOKUP(DropDownList!$B$47,CntyQryCensus!$A$156:$FR$198,AN$1)","v":78},{"$f":"VLOOKUP(DropDownList!$B$47,CntyQryCensus!$A$156:$FR$198,AO$1)","v":30},{"$f":"VLOOKUP(DropDownList!$B$47,CntyQryCensus!$A$156:$FR$198,AP$1)","v":0},{"$f":"VLOOKUP(DropDownList!$B$47,CntyQryCensus!$A$156:$FR$198,AQ$1)","v":5757},{"$f":"VLOOKUP(DropDownList!$B$47,CntyQryCensus!$A$156:$FR$198,AR$1)","v":1261},{"$f":"VLOOKUP(DropDownList!$B$47,CntyQryCensus!$A$156:$FR$198,AS$1)","v":3586},{"$f":"VLOOKUP(DropDownList!$B$47,CntyQryCensus!$A$156:$FR$198,AT$1)","v":21},{"$f":"VLOOKUP(DropDownList!$B$47,CntyQryCensus!$A$156:$FR$198,AU$1)","v":263},{"$f":"VLOOKUP(DropDownList!$B$47,CntyQryCensus!$A$156:$FR$198,AV$1)","v":211},{"$f":"VLOOKUP(DropDownList!$B$47,CntyQryCensus!$A$156:$FR$198,AW$1)","v":626},{"$f":"VLOOKUP(DropDownList!$B$47,CntyQryCensus!$A$156:$FR$198,AX$1)","v":284},{"$f":"VLOOKUP(DropDownList!$B$47,CntyQryCensus!$A$156:$FR$198,AY$1)","v":7333},{"$f":"VLOOKUP(DropDownList!$B$47,CntyQryCensus!$A$156:$FR$198,AZ$1)","v":3863},{"$f":"VLOOKUP(DropDownList!$B$47,CntyQryCensus!$A$156:$FR$198,BA$1)","v":3421},{"$f":"VLOOKUP(DropDownList!$B$47,CntyQryCensus!$A$156:$FR$198,BB$1)","v":2687},{"$f":"VLOOKUP(DropDownList!$B$47,CntyQryCensus!$A$156:$FR$198,BC$1)","v":193},{"$f":"VLOOKUP(DropDownList!$B$47,CntyQryCensus!$A$156:$FR$198,BD$1)","v":283},{"$f":"VLOOKUP(DropDownList!$B$47,CntyQryCensus!$A$156:$FR$198,BE$1)","v":258},{"$f":"VLOOKUP(DropDownList!$B$47,CntyQryCensus!$A$156:$FR$198,BF$1)","v":49},{"$f":"VLOOKUP(DropDownList!$B$47,CntyQryCensus!$A$156:$FR$198,BG$1)","v":142},{"$f":"VLOOKUP(DropDownList!$B$47,CntyQryCensus!$A$156:$FR$198,BH$1)","v":48},{"$f":"VLOOKUP(DropDownList!$B$47,CntyQryCensus!$A$156:$FR$198,BI$1)","v":94},{"$f":"VLOOKUP(DropDownList!$B$47,CntyQryCensus!$A$156:$FR$198,BJ$1)","v":7017},{"$f":"VLOOKUP(DropDownList!$B$47,CntyQryCensus!$A$156:$FR$198,BK$1)","v":4296},{"$f":"VLOOKUP(DropDownList!$B$47,CntyQryCensus!$A$156:$FR$198,BL$1)","v":2721},{"$f":"VLOOKUP(DropDownList!$B$47,CntyQryCensus!$A$156:$FR$198,BM$1)","v":2692},{"$f":"VLOOKUP(DropDownList!$B$47,CntyQryCensus!$A$156:$FR$198,BN$1)","v":1241},{"$f":"VLOOKUP(DropDownList!$B$47,CntyQryCensus!$A$156:$FR$198,BO$1)","v":1451},{"$f":"VLOOKUP(DropDownList!$B$47,CntyQryCensus!$A$156:$FR$198,BP$1)","v":631},{"$f":"VLOOKUP(DropDownList!$B$47,CntyQryCensus!$A$156:$FR$198,BQ$1)","v":820},{"$f":"VLOOKUP(DropDownList!$B$47,CntyQryCensus!$A$156:$FR$198,BR$1)","v":463},{"$f":"VLOOKUP(DropDownList!$B$47,CntyQryCensus!$A$156:$FR$198,BS$1)","v":59},{"$f":"VLOOKUP(DropDownList!$B$47,CntyQryCensus!$A$156:$FR$198,BT$1)","v":158},{"$f":"VLOOKUP(DropDownList!$B$47,CntyQryCensus!$A$156:$FR$198,BU$1)","v":140},{"$f":"VLOOKUP(DropDownList!$B$47,CntyQryCensus!$A$156:$FR$198,BV$1)","v":0},{"$f":"VLOOKUP(DropDownList!$B$47,CntyQryCensus!$A$156:$FR$198,BW$1)","v":29},{"$f":"VLOOKUP(DropDownList!$B$47,CntyQryCensus!$A$156:$FR$198,BX$1)","v":4192},{"$f":"VLOOKUP(DropDownList!$B$47,CntyQryCensus!$A$156:$FR$198,BY$1)","v":3779},{"$f":"VLOOKUP(DropDownList!$B$47,CntyQryCensus!$A$156:$FR$198,BZ$1)","v":2361},{"$f":"VLOOKUP(DropDownList!$B$47,CntyQryCensus!$A$156:$FR$198,CA$1)","v":1418},{"$f":"VLOOKUP(DropDownList!$B$47,CntyQryCensus!$A$156:$FR$198,CB$1)","v":413},{"$f":"VLOOKUP(DropDownList!$B$47,CntyQryCensus!$A$156:$FR$198,CC$1)","v":4192},{"$f":"VLOOKUP(DropDownList!$B$47,CntyQryCensus!$A$156:$FR$198,CD$1)","v":3912},{"$f":"VLOOKUP(DropDownList!$B$47,CntyQryCensus!$A$156:$FR$198,CE$1)","v":42},{"$f":"VLOOKUP(DropDownList!$B$47,CntyQryCensus!$A$156:$FR$198,CF$1)","v":359},{"$f":"VLOOKUP(DropDownList!$B$47,CntyQryCensus!$A$156:$FR$198,CG$1)","v":194},{"$f":"VLOOKUP(DropDownList!$B$47,CntyQryCensus!$A$156:$FR$198,CH$1)","v":3998},{"$f":"VLOOKUP(DropDownList!$B$47,CntyQryCensus!$A$156:$FR$198,CI$1)","v":34},{"$f":"VLOOKUP(DropDownList!$B$47,CntyQryCensus!$A$156:$FR$198,CJ$1)","v":238},{"$f":"VLOOKUP(DropDownList!$B$47,CntyQryCensus!$A$156:$FR$198,CK$1)","v":390},{"$f":"VLOOKUP(DropDownList!$B$47,CntyQryCensus!$A$156:$FR$198,CL$1)","v":613},{"$f":"VLOOKUP(DropDownList!$B$47,CntyQryCensus!$A$156:$FR$198,CM$1)","v":781},{"$f":"VLOOKUP(DropDownList!$B$47,CntyQryCensus!$A$156:$FR$198,CN$1)","v":379},{"$f":"VLOOKUP(DropDownList!$B$47,CntyQryCensus!$A$156:$FR$198,CO$1)","v":624},{"$f":"VLOOKUP(DropDownList!$B$47,CntyQryCensus!$A$156:$FR$198,CP$1)","v":140},{"$f":"VLOOKUP(DropDownList!$B$47,CntyQryCensus!$A$156:$FR$198,CQ$1)","v":178},{"$f":"VLOOKUP(DropDownList!$B$47,CntyQryCensus!$A$156:$FR$198,CR$1)","v":299},{"$f":"VLOOKUP(DropDownList!$B$47,CntyQryCensus!$A$156:$FR$198,CS$1)","v":243},{"$f":"VLOOKUP(DropDownList!$B$47,CntyQryCensus!$A$156:$FR$198,CT$1)","v":79},{"$f":"VLOOKUP(DropDownList!$B$47,CntyQryCensus!$A$156:$FR$198,CU$1)","v":194},{"$f":"VLOOKUP(DropDownList!$B$47,CntyQryCensus!$A$156:$FR$198,CV$1)","v":7155},{"$f":"VLOOKUP(DropDownList!$B$47,CntyQryCensus!$A$156:$FR$198,CW$1)","v":64},{"$f":"VLOOKUP(DropDownList!$B$47,CntyQryCensus!$A$156:$FR$198,CX$1)","v":152},{"$f":"VLOOKUP(DropDownList!$B$47,CntyQryCensus!$A$156:$FR$198,CY$1)","v":1000},{"$f":"VLOOKUP(DropDownList!$B$47,CntyQryCensus!$A$156:$FR$198,CZ$1)","v":447},{"$f":"VLOOKUP(DropDownList!$B$47,CntyQryCensus!$A$156:$FR$198,DA$1)","v":421},{"$f":"VLOOKUP(DropDownList!$B$47,CntyQryCensus!$A$156:$FR$198,DB$1)","v":4986},{"$f":"VLOOKUP(DropDownList!$B$47,CntyQryCensus!$A$156:$FR$198,DC$1)","v":92},{"$f":"VLOOKUP(DropDownList!$B$47,CntyQryCensus!$A$156:$FR$198,DD$1)","v":356},{"$f":"VLOOKUP(DropDownList!$B$47,CntyQryCensus!$A$156:$FR$198,DE$1)","v":1458},{"$f":"VLOOKUP(DropDownList!$B$47,CntyQryCensus!$A$156:$FR$198,DF$1)","v":1124},{"$f":"VLOOKUP(DropDownList!$B$47,CntyQryCensus!$A$156:$FR$198,DG$1)","v":587},{"$f":"VLOOKUP(DropDownList!$B$47,CntyQryCensus!$A$156:$FR$198,DH$1)","v":983},{"$f":"VLOOKUP(DropDownList!$B$47,CntyQryCensus!$A$156:$FR$198,DI$1)","v":386},{"$f":"VLOOKUP(DropDownList!$B$47,CntyQryCensus!$A$156:$FR$198,DJ$1)","v":1377},{"$f":"VLOOKUP(DropDownList!$B$47,CntyQryCensus!$A$156:$FR$198,DK$1)","v":64},{"$f":"VLOOKUP(DropDownList!$B$47,CntyQryCensus!$A$156:$FR$198,DL$1)","v":423},{"$f":"VLOOKUP(DropDownList!$B$47,CntyQryCensus!$A$156:$FR$198,DM$1)","v":36},{"$f":"VLOOKUP(DropDownList!$B$47,CntyQryCensus!$A$156:$FR$198,DN$1)","v":18},{"$f":"VLOOKUP(DropDownList!$B$47,CntyQryCensus!$A$156:$FR$198,DO$1)","v":387},{"$f":"VLOOKUP(DropDownList!$B$47,CntyQryCensus!$A$156:$FR$198,DP$1)","v":226},{"$f":"VLOOKUP(DropDownList!$B$47,CntyQryCensus!$A$156:$FR$198,DQ$1)","v":4666},{"$f":"VLOOKUP(DropDownList!$B$47,CntyQryCensus!$A$156:$FR$198,DR$1)","v":658},{"$f":"VLOOKUP(DropDownList!$B$47,CntyQryCensus!$A$156:$FR$198,DS$1)","v":420},{"$f":"VLOOKUP(DropDownList!$B$47,CntyQryCensus!$A$156:$FR$198,DT$1)","v":4008},{"$f":"VLOOKUP(DropDownList!$B$47,CntyQryCensus!$A$156:$FR$198,DU$1)","v":3455},{"$f":"VLOOKUP(DropDownList!$B$47,CntyQryCensus!$A$156:$FR$198,DV$1)","v":368},{"$f":"VLOOKUP(DropDownList!$B$47,CntyQryCensus!$A$156:$FR$198,DW$1)","v":96},{"$f":"VLOOKUP(DropDownList!$B$47,CntyQryCensus!$A$156:$FR$198,DX$1)","v":160},{"$f":"VLOOKUP(DropDownList!$B$47,CntyQryCensus!$A$156:$FR$198,DY$1)","v":77},{"$f":"VLOOKUP(DropDownList!$B$47,CntyQryCensus!$A$156:$FR$198,DZ$1)","v":5640},{"$f":"VLOOKUP(DropDownList!$B$47,CntyQryCensus!$A$156:$FR$198,EA$1)","v":4314},{"$f":"VLOOKUP(DropDownList!$B$47,CntyQryCensus!$A$156:$FR$198,EB$1)","v":4299},{"$f":"VLOOKUP(DropDownList!$B$47,CntyQryCensus!$A$156:$FR$198,EC$1)","v":4221},{"$f":"VLOOKUP(DropDownList!$B$47,CntyQryCensus!$A$156:$FR$198,ED$1)","v":2096},{"$f":"VLOOKUP(DropDownList!$B$47,CntyQryCensus!$A$156:$FR$198,EE$1)","v":1727},{"$f":"VLOOKUP(DropDownList!$B$47,CntyQryCensus!$A$156:$FR$198,EF$1)","v":125},{"$f":"VLOOKUP(DropDownList!$B$47,CntyQryCensus!$A$156:$FR$198,EG$1)","v":268},{"$f":"VLOOKUP(DropDownList!$B$47,CntyQryCensus!$A$156:$FR$198,EH$1)","v":1036},{"$f":"VLOOKUP(DropDownList!$B$47,CntyQryCensus!$A$156:$FR$198,EI$1)","v":994},{"$f":"VLOOKUP(DropDownList!$B$47,CntyQryCensus!$A$156:$FR$198,EJ$1)","v":42},{"$f":"VLOOKUP(DropDownList!$B$47,CntyQryCensus!$A$156:$FR$198,EK$1)","v":298},{"$f":"VLOOKUP(DropDownList!$B$47,CntyQryCensus!$A$156:$FR$198,EL$1)","v":298},{"$f":"VLOOKUP(DropDownList!$B$47,CntyQryCensus!$A$156:$FR$198,EM$1)","v":0},{"$f":"VLOOKUP(DropDownList!$B$47,CntyQryCensus!$A$156:$FR$198,EN$1)","v":369},{"$f":"VLOOKUP(DropDownList!$B$47,CntyQryCensus!$A$156:$FR$198,EO$1)","v":159},{"$f":"VLOOKUP(DropDownList!$B$47,CntyQryCensus!$A$156:$FR$198,EP$1)","v":0},{"$f":"VLOOKUP(DropDownList!$B$47,CntyQryCensus!$A$156:$FR$198,EQ$1)","v":102},{"$f":"VLOOKUP(DropDownList!$B$47,CntyQryCensus!$A$156:$FR$198,ER$1)","v":21},{"$f":"VLOOKUP(DropDownList!$B$47,CntyQryCensus!$A$156:$FR$198,ES$1)","v":36},{"$f":"VLOOKUP(DropDownList!$B$47,CntyQryCensus!$A$156:$FR$198,ET$1)","v":210},{"$f":"VLOOKUP(DropDownList!$B$47,CntyQryCensus!$A$156:$FR$198,EU$1)","v":23},{"$f":"VLOOKUP(DropDownList!$B$47,CntyQryCensus!$A$156:$FR$198,EV$1)","v":122},{"$f":"VLOOKUP(DropDownList!$B$47,CntyQryCensus!$A$156:$FR$198,EW$1)","v":53},{"$f":"VLOOKUP(DropDownList!$B$47,CntyQryCensus!$A$156:$FR$198,EX$1)","v":12},{"$f":"VLOOKUP(DropDownList!$B$47,CntyQryCensus!$A$156:$FR$198,EY$1)","v":4221},{"$f":"VLOOKUP(DropDownList!$B$47,CntyQryCensus!$A$156:$FR$198,EZ$1)","v":86},{"$f":"VLOOKUP(DropDownList!$B$47,CntyQryCensus!$A$156:$FR$198,FA$1)","v":365},{"$f":"VLOOKUP(DropDownList!$B$47,CntyQryCensus!$A$156:$FR$198,FB$1)","v":760},{"$f":"VLOOKUP(DropDownList!$B$47,CntyQryCensus!$A$156:$FR$198,FC$1)","v":78},{"$f":"VLOOKUP(DropDownList!$B$47,CntyQryCensus!$A$156:$FR$198,FD$1)","v":584},{"$f":"VLOOKUP(DropDownList!$B$47,CntyQryCensus!$A$156:$FR$198,FE$1)","v":268},{"$f":"VLOOKUP(DropDownList!$B$47,CntyQryCensus!$A$156:$FR$198,FF$1)","v":37},{"$f":"VLOOKUP(DropDownList!$B$47,CntyQryCensus!$A$156:$FR$198,FG$1)","v":268},{"$f":"VLOOKUP(DropDownList!$B$47,CntyQryCensus!$A$156:$FR$198,FH$1)","v":349},{"$f":"VLOOKUP(DropDownList!$B$47,CntyQryCensus!$A$156:$FR$198,FI$1)","v":887},{"$f":"VLOOKUP(DropDownList!$B$47,CntyQryCensus!$A$156:$FR$198,FJ$1)","v":197},{"$f":"VLOOKUP(DropDownList!$B$47,CntyQryCensus!$A$156:$FR$198,FK$1)","v":150},{"$f":"VLOOKUP(DropDownList!$B$47,CntyQryCensus!$A$156:$FR$198,FL$1)","v":192},{"$f":"VLOOKUP(DropDownList!$B$47,CntyQryCensus!$A$156:$FR$198,FM$1)","v":1593},{"$f":"VLOOKUP(DropDownList!$B$47,CntyQryCensus!$A$156:$FR$198,FN$1)","v":507},{"$f":"VLOOKUP(DropDownList!$B$47,CntyQryCensus!$A$156:$FR$198,FO$1)","v":1054},{"$f":"VLOOKUP(DropDownList!$B$47,CntyQryCensus!$A$156:$FR$198,FP$1)","v":16},{"$f":"VLOOKUP(DropDownList!$B$47,CntyQryCensus!$A$156:$FR$198,FQ$1)","v":450},{"$f":"VLOOKUP(DropDownList!$B$47,CntyQryCensus!$A$156:$FR$198,FR$1)","v":601}]
[]
[]
["Census 2000 SummaryFile3 Sample Data  -  SF3TownQry2aIncomeChar"]
["NAME","LOGRECNO","COUNTY","TotalPop","P52Households1","P52HHInc<10K","P52HHInc10to15K","P52HHInc15to20K","P52HHInc20to25K","P52HHInc25to30K","P52HHInc30to35K","P52HHInc35to40K","P52HHInc40to45K","P52HHInc45to50K","P52HHInc50to60K","P52HHInc60to75K","P52HHInc75to100K","P52HHInc100to125K","P52HHInc125to150K","P52HHInc150to200K","P52HHInc>200K","P53MedianHHInc","P54AggregHHInc","P55Households2","P55HHUnder25yrs","P55HH<25HHInc<10K","P55HH<25HHInc10to15K","P55HH<25HHInc15to20K","P55HH<25HHInc20to25K","P55HH<25HHInc25to30K","P55HH<25HHInc30to35K","P55HH<25HHInc35to40K","P55HH<25HHInc40to45K","P55HH<25HHInc45to50K","P55HH<25HHInc50to60K","P55HH<25HHInc60to75K","P55HH<25HHInc75to100K","P55HH<25HHInc100to125K","P55HH<25HHInc125to150K","P55HH<25HHInc150to200K","P55HH<25HHInc>200K","P55HH25to34yrs","P55HH25to34HHInc<10K","P55HH25to34HHInc10to15K","P55HH25to34HHInc15to20K","P55HH25to34HHInc20to25K","P55HH25to34HHInc25to30K","P55HH25to34HHInc30to35K","P55HH25to34HHInc35to40K","P55HH25to34HHInc40to45K","P55HH25to34HHInc45to50K","P55HH25to34HHInc50to60K","P55HH25to34HHInc60to75K","P55HH25to34HHInc75to100K","P55HH25to34HHInc100to125K","P55HH25to34HHInc125to150K","P55HH25to34HHInc150to200K","P55HH25to34HHInc>200K","P55HH35to44yrs","P55HH35to44HHInc<10K","P55HH35to44HHInc10to15K","P55HH35to44HHInc15to20K","P55HH35to44HHInc20to25K","P55HH35to44HHInc25to30K","P55HH35to44HHInc30to35K","P55HH35to44HHInc35to40K","P55HH35to44HHInc40to45K","P55HH35to44HHInc45to50K","P55HH35to44HHInc50to60K","P55HH35to44HHInc60to75K","P55HH35to44HHInc75to100K","P55HH35to44HHInc100to125K","P55HH35to44HHInc125to150K","P55HH35to44HHInc150to200K","P55HH35to44HHInc>200K","P55HH45to54yrs","P55HH45to55HHInc<10K","P55HH45to55HHInc10to15K","P55HH45to55HHInc15to20K","P55HH45to55HHInc20to25K","P55HH45to55HHInc25to30K","P55HH45to55HHInc30to35K","P55HH45to55HHInc35to40K","P55HH45to55HHInc40to45K","P55HH45to55HHInc45to50K","P55HH45to55HHInc50to60K","P55HH45to55HHInc60to75K","P55HH45to55HHInc75to100K","P55HH45to55HHInc100to125K","P55HH45to55HHInc125to150K","P55HH45to55HHInc150to200K","P55HH45to55HHInc>200K","P55HH55to64yrs","P55HH55to64HHInc<10K","P55HH55to64HHInc10to15K","P55HH55to64HHInc15to20K","P55HH55to64HHInc20to25K","P55HH55to64HHInc25to30K","P55HH55to64HHInc30to35K","P55HH55to64HHInc35to40K","P55HH55to64HHInc40to45K","P55HH55to64HHInc45to50K","P55HH55to64HHInc50to60K","P55HH55to64HHInc60to75K","P55HH55to64HHInc75to100K","P55HH55to64HHInc100to125K","P55HH55to64HHInc125to150K","P55HH55to64HHInc150to200K","P55HH55to64HHInc>200K","P55HH65to74yrs","P55HH65to74HHInc<10K","P55HH65to74HHInc10to15K","P55HH65to74HHInc15to20K","P55HH65to74HHInc20to25K","P55HH65to74HHInc25to30K","P55HH65to74HHInc30to35K","P55HH65to74HHInc35to40K","P55HH65to74HHInc40to45K","P55HH65to74HHInc45to50K","P55HH65to74HHInc50to60K","P55HH65to74HHInc60to75K","P55HH65to74HHInc75to100K","P55HH65to74HHInc100to125K","P55HH65to74HHInc125to150K","P55HH65to74HHInc150to200K","P55HH65to74HHInc>200K","P55HH>75yrs","P55HH>75HHInc<10K","P55HH>75HHInc10to15K","P55HH>75HHInc15to20K","P55HH>75HHInc20to25K","P55HH>75HHInc25to30K","P55HH>75HHInc30to35K","P55HH>75HHInc35to40K","P55HH>75HHInc40to45K","P55HH>75HHInc45to50K","P55HH>75HHInc50to60K","P55HH>75HHInc60to75K","P55HH>75HHInc75to100K","P55HH>75HHInc100to125K","P55HH>75HHInc125to150K","P55HH>75HHInc150to200K","P55HH>75HHInc>200K","P56MedHHInc","P56MedHHIncHH<25y","P56MedHHIncHH25to34y","P56MedHHIncHH35to44y","P56MedHHIncHH45to54y","P56MedHHIncHH55to64y","P56MedHHIncHH65to74y","P56MedHHIncHH>75y","P58Households3","P58HHwithEarnings","P58HHNoEarnings","P59HHwWageSalInc","P59HHNoWageSalInc","P60HHwSelfEmpInc","P60HHNoSelfEmpInc","P61HHwIndDivInc","P61HHNoIndDivInc","P62HHwSocSecInc","P62HHNoSocSecInc","P63HHwSSI","P63HHNoSSI","P64HHwPubAssInc","P64HHNoPubAssInc","P65HHwRetInc","P65HHNoRetInc","P66HHwOtherTypInc","P66HHNoOtherTypInc","P67AggregEarnings","P68AggregWageSalInc","P69AggregSelfEmpInc","P70AggregIntDivInc","P71AggregSocSecInc","P72AggregSSIInc","P73AggregPublicAssInc","P74AggregRetireInc","P76Families1","P76FamInc<10K","P76FamInc10to15K","P76FamInc15to20K","P76FamInc20to25K","P76FamInc25to30K","P76FamInc30to35K","P76FamInc35to40K","P76FamInc40to45K","P76FamInc45to50K","P76FamInc50to60K","P76FamInc60to75K","P76FamInc75to100K","P76FamInc100to125K","P76FamInc125to150K","P76FamInc150to200K","P76FamInc>200K","P77MedFamInc","P78AggregFamInc","P79NonFamHH","P79NonFamHHwInc<10K","P79NonFamHHwInc10to15K","P79NonFamHHwInc15to20K","P79NonFamHHwInc20to25K","P79NonFamHHwInc25to30K","P79NonFamHHwInc30to35K","P79NonFamHHwInc35to40K","P79NonFamHHwInc40to45K","P79NonFamHHwInc45to50K","P79NonFamHHwInc50to60K","P79NonFamHHwInc60to75K","P79NonFamHHwInc75to100K","P79NonFamHHwInc100to125K","P79NonFamHHwInc125to150K","P79NonFamHHwInc150to200K","P79NonFamHHwInc200KorMore","P80MedNonFamInc","P82PerCapitaInc"]
[{"$f":"VLOOKUP(DropDownList!$B$47,CntyQryCensus!$A$206:$HH$248,A$1)","v":"Barrington"},{"$f":"VLOOKUP(DropDownList!$B$47,CntyQryCensus!$A$206:$HH$248,B$1)","v":"0003823"},{"$f":"VLOOKUP(DropDownList!$B$47,CntyQryCensus!$A$206:$HH$248,C$1)","v":"03460"},{"$f":"VLOOKUP(DropDownList!$B$47,CntyQryCensus!$A$206:$HH$248,D$1)","v":7475},{"$f":"VLOOKUP(DropDownList!$B$47,CntyQryCensus!$A$206:$HH$248,E$1)","v":2767},{"$f":"VLOOKUP(DropDownList!$B$47,CntyQryCensus!$A$206:$HH$248,F$1)","v":73},{"$f":"VLOOKUP(DropDownList!$B$47,CntyQryCensus!$A$206:$HH$248,G$1)","v":106},{"$f":"VLOOKUP(DropDownList!$B$47,CntyQryCensus!$A$206:$HH$248,H$1)","v":54},{"$f":"VLOOKUP(DropDownList!$B$47,CntyQryCensus!$A$206:$HH$248,I$1)","v":130},{"$f":"VLOOKUP(DropDownList!$B$47,CntyQryCensus!$A$206:$HH$248,J$1)","v":233},{"$f":"VLOOKUP(DropDownList!$B$47,CntyQryCensus!$A$206:$HH$248,K$1)","v":209},{"$f":"VLOOKUP(DropDownList!$B$47,CntyQryCensus!$A$206:$HH$248,L$1)","v":174},{"$f":"VLOOKUP(DropDownList!$B$47,CntyQryCensus!$A$206:$HH$248,M$1)","v":154},{"$f":"VLOOKUP(DropDownList!$B$47,CntyQryCensus!$A$206:$HH$248,N$1)","v":220},{"$f":"VLOOKUP(DropDownList!$B$47,CntyQryCensus!$A$206:$HH$248,O$1)","v":300},{"$f":"VLOOKUP(DropDownList!$B$47,CntyQryCensus!$A$206:$HH$248,P$1)","v":360},{"$f":"VLOOKUP(DropDownList!$B$47,CntyQryCensus!$A$206:$HH$248,Q$1)","v":538},{"$f":"VLOOKUP(DropDownList!$B$47,CntyQryCensus!$A$206:$HH$248,R$1)","v":146},{"$f":"VLOOKUP(DropDownList!$B$47,CntyQryCensus!$A$206:$HH$248,S$1)","v":18},{"$f":"VLOOKUP(DropDownList!$B$47,CntyQryCensus!$A$206:$HH$248,T$1)","v":52},{"$f":"VLOOKUP(DropDownList!$B$47,CntyQryCensus!$A$206:$HH$248,U$1)","v":0},{"$f":"VLOOKUP(DropDownList!$B$47,CntyQryCensus!$A$206:$HH$248,V$1)","v":50630},{"$f":"VLOOKUP(DropDownList!$B$47,CntyQryCensus!$A$206:$HH$248,W$1)","v":155379000},{"$f":"VLOOKUP(DropDownList!$B$47,CntyQryCensus!$A$206:$HH$248,X$1)","v":2767},{"$f":"VLOOKUP(DropDownList!$B$47,CntyQryCensus!$A$206:$HH$248,Y$1)","v":43},{"$f":"VLOOKUP(DropDownList!$B$47,CntyQryCensus!$A$206:$HH$248,Z$1)","v":4},{"$f":"VLOOKUP(DropDownList!$B$47,CntyQryCensus!$A$206:$HH$248,AA$1)","v":0},{"$f":"VLOOKUP(DropDownList!$B$47,CntyQryCensus!$A$206:$HH$248,AB$1)","v":0},{"$f":"VLOOKUP(DropDownList!$B$47,CntyQryCensus!$A$206:$HH$248,AC$1)","v":10},{"$f":"VLOOKUP(DropDownList!$B$47,CntyQryCensus!$A$206:$HH$248,AD$1)","v":0},{"$f":"VLOOKUP(DropDownList!$B$47,CntyQryCensus!$A$206:$HH$248,AE$1)","v":10},{"$f":"VLOOKUP(DropDownList!$B$47,CntyQryCensus!$A$206:$HH$248,AF$1)","v":7},{"$f":"VLOOKUP(DropDownList!$B$47,CntyQryCensus!$A$206:$HH$248,AG$1)","v":0},{"$f":"VLOOKUP(DropDownList!$B$47,CntyQryCensus!$A$206:$HH$248,AH$1)","v":12},{"$f":"VLOOKUP(DropDownList!$B$47,CntyQryCensus!$A$206:$HH$248,AI$1)","v":0},{"$f":"VLOOKUP(DropDownList!$B$47,CntyQryCensus!$A$206:$HH$248,AJ$1)","v":0},{"$f":"VLOOKUP(DropDownList!$B$47,CntyQryCensus!$A$206:$HH$248,AK$1)","v":0},{"$f":"VLOOKUP(DropDownList!$B$47,CntyQryCensus!$A$206:$HH$248,AL$1)","v":0},{"$f":"VLOOKUP(DropDownList!$B$47,CntyQryCensus!$A$206:$HH$248,AM$1)","v":0},{"$f":"VLOOKUP(DropDownList!$B$47,CntyQryCensus!$A$206:$HH$248,AN$1)","v":0},{"$f":"VLOOKUP(DropDownList!$B$47,CntyQryCensus!$A$206:$HH$248,AO$1)","v":0},{"$f":"VLOOKUP(DropDownList!$B$47,CntyQryCensus!$A$206:$HH$248,AP$1)","v":443},{"$f":"VLOOKUP(DropDownList!$B$47,CntyQryCensus!$A$206:$HH$248,AQ$1)","v":36},{"$f":"VLOOKUP(DropDownList!$B$47,CntyQryCensus!$A$206:$HH$248,AR$1)","v":17},{"$f":"VLOOKUP(DropDownList!$B$47,CntyQryCensus!$A$206:$HH$248,AS$1)","v":5},{"$f":"VLOOKUP(DropDownList!$B$47,CntyQryCensus!$A$206:$HH$248,AT$1)","v":8},{"$f":"VLOOKUP(DropDownList!$B$47,CntyQryCensus!$A$206:$HH$248,AU$1)","v":23},{"$f":"VLOOKUP(DropDownList!$B$47,CntyQryCensus!$A$206:$HH$248,AV$1)","v":28},{"$f":"VLOOKUP(DropDownList!$B$47,CntyQryCensus!$A$206:$HH$248,AW$1)","v":29},{"$f":"VLOOKUP(DropDownList!$B$47,CntyQryCensus!$A$206:$HH$248,AX$1)","v":45},{"$f":"VLOOKUP(DropDownList!$B$47,CntyQryCensus!$A$206:$HH$248,AY$1)","v":22},{"$f":"VLOOKUP(DropDownList!$B$47,CntyQryCensus!$A$206:$HH$248,AZ$1)","v":72},{"$f":"VLOOKUP(DropDownList!$B$47,CntyQryCensus!$A$206:$HH$248,BA$1)","v":43},{"$f":"VLOOKUP(DropDownList!$B$47,CntyQryCensus!$A$206:$HH$248,BB$1)","v":69},{"$f":"VLOOKUP(DropDownList!$B$47,CntyQryCensus!$A$206:$HH$248,BC$1)","v":35},{"$f":"VLOOKUP(DropDownList!$B$47,CntyQryCensus!$A$206:$HH$248,BD$1)","v":0},{"$f":"VLOOKUP(DropDownList!$B$47,CntyQryCensus!$A$206:$HH$248,BE$1)","v":11},{"$f":"VLOOKUP(DropDownList!$B$47,CntyQryCensus!$A$206:$HH$248,BF$1)","v":0},{"$f":"VLOOKUP(DropDownList!$B$47,CntyQryCensus!$A$206:$HH$248,BG$1)","v":849},{"$f":"VLOOKUP(DropDownList!$B$47,CntyQryCensus!$A$206:$HH$248,BH$1)","v":0},{"$f":"VLOOKUP(DropDownList!$B$47,CntyQryCensus!$A$206:$HH$248,BI$1)","v":23},{"$f":"VLOOKUP(DropDownList!$B$47,CntyQryCensus!$A$206:$HH$248,BJ$1)","v":11},{"$f":"VLOOKUP(DropDownList!$B$47,CntyQryCensus!$A$206:$HH$248,BK$1)","v":31},{"$f":"VLOOKUP(DropDownList!$B$47,CntyQryCensus!$A$206:$HH$248,BL$1)","v":47},{"$f":"VLOOKUP(DropDownList!$B$47,CntyQryCensus!$A$206:$HH$248,BM$1)","v":30},{"$f":"VLOOKUP(DropDownList!$B$47,CntyQryCensus!$A$206:$HH$248,BN$1)","v":35},{"$f":"VLOOKUP(DropDownList!$B$47,CntyQryCensus!$A$206:$HH$248,BO$1)","v":42},{"$f":"VLOOKUP(DropDownList!$B$47,CntyQryCensus!$A$206:$HH$248,BP$1)","v":71},{"$f":"VLOOKUP(DropDownList!$B$47,CntyQryCensus!$A$206:$HH$248,BQ$1)","v":98},{"$f":"VLOOKUP(DropDownList!$B$47,CntyQryCensus!$A$206:$HH$248,BR$1)","v":167},{"$f":"VLOOKUP(DropDownList!$B$47,CntyQryCensus!$A$206:$HH$248,BS$1)","v":229},{"$f":"VLOOKUP(DropDownList!$B$47,CntyQryCensus!$A$206:$HH$248,BT$1)","v":45},{"$f":"VLOOKUP(DropDownList!$B$47,CntyQryCensus!$A$206:$HH$248,BU$1)","v":0},{"$f":"VLOOKUP(DropDownList!$B$47,CntyQryCensus!$A$206:$HH$248,BV$1)","v":20},{"$f":"VLOOKUP(DropDownList!$B$47,CntyQryCensus!$A$206:$HH$248,BW$1)","v":0},{"$f":"VLOOKUP(DropDownList!$B$47,CntyQryCensus!$A$206:$HH$248,BX$1)","v":679},{"$f":"VLOOKUP(DropDownList!$B$47,CntyQryCensus!$A$206:$HH$248,BY$1)","v":13},{"$f":"VLOOKUP(DropDownList!$B$47,CntyQryCensus!$A$206:$HH$248,BZ$1)","v":21},{"$f":"VLOOKUP(DropDownList!$B$47,CntyQryCensus!$A$206:$HH$248,CA$1)","v":11},{"$f":"VLOOKUP(DropDownList!$B$47,CntyQryCensus!$A$206:$HH$248,CB$1)","v":28},{"$f":"VLOOKUP(DropDownList!$B$47,CntyQryCensus!$A$206:$HH$248,CC$1)","v":70},{"$f":"VLOOKUP(DropDownList!$B$47,CntyQryCensus!$A$206:$HH$248,CD$1)","v":41},{"$f":"VLOOKUP(DropDownList!$B$47,CntyQryCensus!$A$206:$HH$248,CE$1)","v":45},{"$f":"VLOOKUP(DropDownList!$B$47,CntyQryCensus!$A$206:$HH$248,CF$1)","v":41},{"$f":"VLOOKUP(DropDownList!$B$47,CntyQryCensus!$A$206:$HH$248,CG$1)","v":64},{"$f":"VLOOKUP(DropDownList!$B$47,CntyQryCensus!$A$206:$HH$248,CH$1)","v":71},{"$f":"VLOOKUP(DropDownList!$B$47,CntyQryCensus!$A$206:$HH$248,CI$1)","v":72},{"$f":"VLOOKUP(DropDownList!$B$47,CntyQryCensus!$A$206:$HH$248,CJ$1)","v":138},{"$f":"VLOOKUP(DropDownList!$B$47,CntyQryCensus!$A$206:$HH$248,CK$1)","v":33},{"$f":"VLOOKUP(DropDownList!$B$47,CntyQryCensus!$A$206:$HH$248,CL$1)","v":18},{"$f":"VLOOKUP(DropDownList!$B$47,CntyQryCensus!$A$206:$HH$248,CM$1)","v":13},{"$f":"VLOOKUP(DropDownList!$B$47,CntyQryCensus!$A$206:$HH$248,CN$1)","v":0},{"$f":"VLOOKUP(DropDownList!$B$47,CntyQryCensus!$A$206:$HH$248,CO$1)","v":410},{"$f":"VLOOKUP(DropDownList!$B$47,CntyQryCensus!$A$206:$HH$248,CP$1)","v":0},{"$f":"VLOOKUP(DropDownList!$B$47,CntyQryCensus!$A$206:$HH$248,CQ$1)","v":0},{"$f":"VLOOKUP(DropDownList!$B$47,CntyQryCensus!$A$206:$HH$248,CR$1)","v":9},{"$f":"VLOOKUP(DropDownList!$B$47,CntyQryCensus!$A$206:$HH$248,CS$1)","v":9},{"$f":"VLOOKUP(DropDownList!$B$47,CntyQryCensus!$A$206:$HH$248,CT$1)","v":33},{"$f":"VLOOKUP(DropDownList!$B$47,CntyQryCensus!$A$206:$HH$248,CU$1)","v":58},{"$f":"VLOOKUP(DropDownList!$B$47,CntyQryCensus!$A$206:$HH$248,CV$1)","v":35},{"$f":"VLOOKUP(DropDownList!$B$47,CntyQryCensus!$A$206:$HH$248,CW$1)","v":8},{"$f":"VLOOKUP(DropDownList!$B$47,CntyQryCensus!$A$206:$HH$248,CX$1)","v":33},{"$f":"VLOOKUP(DropDownList!$B$47,CntyQryCensus!$A$206:$HH$248,CY$1)","v":44},{"$f":"VLOOKUP(DropDownList!$B$47,CntyQryCensus!$A$206:$HH$248,CZ$1)","v":69},{"$f":"VLOOKUP(DropDownList!$B$47,CntyQryCensus!$A$206:$HH$248,DA$1)","v":71},{"$f":"VLOOKUP(DropDownList!$B$47,CntyQryCensus!$A$206:$HH$248,DB$1)","v":33},{"$f":"VLOOKUP(DropDownList!$B$47,CntyQryCensus!$A$206:$HH$248,DC$1)","v":0},{"$f":"VLOOKUP(DropDownList!$B$47,CntyQryCensus!$A$206:$HH$248,DD$1)","v":8},{"$f":"VLOOKUP(DropDownList!$B$47,CntyQryCensus!$A$206:$HH$248,DE$1)","v":0},{"$f":"VLOOKUP(DropDownList!$B$47,CntyQryCensus!$A$206:$HH$248,DF$1)","v":254},{"$f":"VLOOKUP(DropDownList!$B$47,CntyQryCensus!$A$206:$HH$248,DG$1)","v":8},{"$f":"VLOOKUP(DropDownList!$B$47,CntyQryCensus!$A$206:$HH$248,DH$1)","v":32},{"$f":"VLOOKUP(DropDownList!$B$47,CntyQryCensus!$A$206:$HH$248,DI$1)","v":18},{"$f":"VLOOKUP(DropDownList!$B$47,CntyQryCensus!$A$206:$HH$248,DJ$1)","v":35},{"$f":"VLOOKUP(DropDownList!$B$47,CntyQryCensus!$A$206:$HH$248,DK$1)","v":44},{"$f":"VLOOKUP(DropDownList!$B$47,CntyQryCensus!$A$206:$HH$248,DL$1)","v":32},{"$f":"VLOOKUP(DropDownList!$B$47,CntyQryCensus!$A$206:$HH$248,DM$1)","v":18},{"$f":"VLOOKUP(DropDownList!$B$47,CntyQryCensus!$A$206:$HH$248,DN$1)","v":9},{"$f":"VLOOKUP(DropDownList!$B$47,CntyQryCensus!$A$206:$HH$248,DO$1)","v":18},{"$f":"VLOOKUP(DropDownList!$B$47,CntyQryCensus!$A$206:$HH$248,DP$1)","v":9},{"$f":"VLOOKUP(DropDownList!$B$47,CntyQryCensus!$A$206:$HH$248,DQ$1)","v":0},{"$f":"VLOOKUP(DropDownList!$B$47,CntyQryCensus!$A$206:$HH$248,DR$1)","v":31},{"$f":"VLOOKUP(DropDownList!$B$47,CntyQryCensus!$A$206:$HH$248,DS$1)","v":0},{"$f":"VLOOKUP(DropDownList!$B$47,CntyQryCensus!$A$206:$HH$248,DT$1)","v":0},{"$f":"VLOOKUP(DropDownList!$B$47,CntyQryCensus!$A$206:$HH$248,DU$1)","v":0},{"$f":"VLOOKUP(DropDownList!$B$47,CntyQryCensus!$A$206:$HH$248,DV$1)","v":0},{"$f":"VLOOKUP(DropDownList!$B$47,CntyQryCensus!$A$206:$HH$248,DW$1)","v":89},{"$f":"VLOOKUP(DropDownList!$B$47,CntyQryCensus!$A$206:$HH$248,DX$1)","v":12},{"$f":"VLOOKUP(DropDownList!$B$47,CntyQryCensus!$A$206:$HH$248,DY$1)","v":13},{"$f":"VLOOKUP(DropDownList!$B$47,CntyQryCensus!$A$206:$HH$248,DZ$1)","v":0},{"$f":"VLOOKUP(DropDownList!$B$47,CntyQryCensus!$A$206:$HH$248,EA$1)","v":9},{"$f":"VLOOKUP(DropDownList!$B$47,CntyQryCensus!$A$206:$HH$248,EB$1)","v":16},{"$f":"VLOOKUP(DropDownList!$B$47,CntyQryCensus!$A$206:$HH$248,EC$1)","v":10},{"$f":"VLOOKUP(DropDownList!$B$47,CntyQryCensus!$A$206:$HH$248,ED$1)","v":5},{"$f":"VLOOKUP(DropDownList!$B$47,CntyQryCensus!$A$206:$HH$248,EE$1)","v":9},{"$f":"VLOOKUP(DropDownList!$B$47,CntyQryCensus!$A$206:$HH$248,EF$1)","v":0},{"$f":"VLOOKUP(DropDownList!$B$47,CntyQryCensus!$A$206:$HH$248,EG$1)","v":6},{"$f":"VLOOKUP(DropDownList!$B$47,CntyQryCensus!$A$206:$HH$248,EH$1)","v":9},{"$f":"VLOOKUP(DropDownList!$B$47,CntyQryCensus!$A$206:$HH$248,EI$1)","v":0},{"$f":"VLOOKUP(DropDownList!$B$47,CntyQryCensus!$A$206:$HH$248,EJ$1)","v":0},{"$f":"VLOOKUP(DropDownList!$B$47,CntyQryCensus!$A$206:$HH$248,EK$1)","v":0},{"$f":"VLOOKUP(DropDownList!$B$47,CntyQryCensus!$A$206:$HH$248,EL$1)","v":0},{"$f":"VLOOKUP(DropDownList!$B$47,CntyQryCensus!$A$206:$HH$248,EM$1)","v":0},{"$f":"VLOOKUP(DropDownList!$B$47,CntyQryCensus!$A$206:$HH$248,EN$1)","v":50630},{"$f":"VLOOKUP(DropDownList!$B$47,CntyQryCensus!$A$206:$HH$248,EO$1)","v":31875},{"$f":"VLOOKUP(DropDownList!$B$47,CntyQryCensus!$A$206:$HH$248,EP$1)","v":51012},{"$f":"VLOOKUP(DropDownList!$B$47,CntyQryCensus!$A$206:$HH$248,EQ$1)","v":62974},{"$f":"VLOOKUP(DropDownList!$B$47,CntyQryCensus!$A$206:$HH$248,ER$1)","v":50724},{"$f":"VLOOKUP(DropDownList!$B$47,CntyQryCensus!$A$206:$HH$248,ES$1)","v":51429},{"$f":"VLOOKUP(DropDownList!$B$47,CntyQryCensus!$A$206:$HH$248,ET$1)","v":28611},{"$f":"VLOOKUP(DropDownList!$B$47,CntyQryCensus!$A$206:$HH$248,EU$1)","v":29141},{"$f":"VLOOKUP(DropDownList!$B$47,CntyQryCensus!$A$206:$HH$248,EV$1)","v":2767},{"$f":"VLOOKUP(DropDownList!$B$47,CntyQryCensus!$A$206:$HH$248,EW$1)","v":2489},{"$f":"VLOOKUP(DropDownList!$B$47,CntyQryCensus!$A$206:$HH$248,EX$1)","v":278},{"$f":"VLOOKUP(DropDownList!$B$47,CntyQryCensus!$A$206:$HH$248,EY$1)","v":2413},{"$f":"VLOOKUP(DropDownList!$B$47,CntyQryCensus!$A$206:$HH$248,EZ$1)","v":354},{"$f":"VLOOKUP(DropDownList!$B$47,CntyQryCensus!$A$206:$HH$248,FA$1)","v":459},{"$f":"VLOOKUP(DropDownList!$B$47,CntyQryCensus!$A$206:$HH$248,FB$1)","v":2308},{"$f":"VLOOKUP(DropDownList!$B$47,CntyQryCensus!$A$206:$HH$248,FC$1)","v":1043},{"$f":"VLOOKUP(DropDownList!$B$47,CntyQryCensus!$A$206:$HH$248,FD$1)","v":1724},{"$f":"VLOOKUP(DropDownList!$B$47,CntyQryCensus!$A$206:$HH$248,FE$1)","v":502},{"$f":"VLOOKUP(DropDownList!$B$47,CntyQryCensus!$A$206:$HH$248,FF$1)","v":2265},{"$f":"VLOOKUP(DropDownList!$B$47,CntyQryCensus!$A$206:$HH$248,FG$1)","v":36},{"$f":"VLOOKUP(DropDownList!$B$47,CntyQryCensus!$A$206:$HH$248,FH$1)","v":2731},{"$f":"VLOOKUP(DropDownList!$B$47,CntyQryCensus!$A$206:$HH$248,FI$1)","v":64},{"$f":"VLOOKUP(DropDownList!$B$47,CntyQryCensus!$A$206:$HH$248,FJ$1)","v":2703},{"$f":"VLOOKUP(DropDownList!$B$47,CntyQryCensus!$A$206:$HH$248,FK$1)","v":453},{"$f":"VLOOKUP(DropDownList!$B$47,CntyQryCensus!$A$206:$HH$248,FL$1)","v":2314},{"$f":"VLOOKUP(DropDownList!$B$47,CntyQryCensus!$A$206:$HH$248,FM$1)","v":361},{"$f":"VLOOKUP(DropDownList!$B$47,CntyQryCensus!$A$206:$HH$248,FN$1)","v":2406},{"$f":"VLOOKUP(DropDownList!$B$47,CntyQryCensus!$A$206:$HH$248,FO$1)","v":135568400},{"$f":"VLOOKUP(DropDownList!$B$47,CntyQryCensus!$A$206:$HH$248,FP$1)","v":123014900},{"$f":"VLOOKUP(DropDownList!$B$47,CntyQryCensus!$A$206:$HH$248,FQ$1)","v":12553500},{"$f":"VLOOKUP(DropDownList!$B$47,CntyQryCensus!$A$206:$HH$248,FR$1)","v":4444500},{"$f":"VLOOKUP(DropDownList!$B$47,CntyQryCensus!$A$206:$HH$248,FS$1)","v":5970100},{"$f":"VLOOKUP(DropDownList!$B$47,CntyQryCensus!$A$206:$HH$248,FT$1)","v":163100},{"$f":"VLOOKUP(DropDownList!$B$47,CntyQryCensus!$A$206:$HH$248,FU$1)","v":71300},{"$f":"VLOOKUP(DropDownList!$B$47,CntyQryCensus!$A$206:$HH$248,FV$1)","v":6515700},{"$f":"VLOOKUP(DropDownList!$B$47,CntyQryCensus!$A$206:$HH$248,FW$1)","v":2096},{"$f":"VLOOKUP(DropDownList!$B$47,CntyQryCensus!$A$206:$HH$248,FX$1)","v":43},{"$f":"VLOOKUP(DropDownList!$B$47,CntyQryCensus!$A$206:$HH$248,FY$1)","v":47},{"$f":"VLOOKUP(DropDownList!$B$47,CntyQryCensus!$A$206:$HH$248,FZ$1)","v":33},{"$f":"VLOOKUP(DropDownList!$B$47,CntyQryCensus!$A$206:$HH$248,GA$1)","v":105},{"$f":"VLOOKUP(DropDownList!$B$47,CntyQryCensus!$A$206:$HH$248,GB$1)","v":160},{"$f":"VLOOKUP(DropDownList!$B$47,CntyQryCensus!$A$206:$HH$248,GC$1)","v":128},{"$f":"VLOOKUP(DropDownList!$B$47,CntyQryCensus!$A$206:$HH$248,GD$1)","v":93},{"$f":"VLOOKUP(DropDownList!$B$47,CntyQryCensus!$A$206:$HH$248,GE$1)","v":116},{"$f":"VLOOKUP(DropDownList!$B$47,CntyQryCensus!$A$206:$HH$248,GF$1)","v":150},{"$f":"VLOOKUP(DropDownList!$B$47,CntyQryCensus!$A$206:$HH$248,GG$1)","v":212},{"$f":"VLOOKUP(DropDownList!$B$47,CntyQryCensus!$A$206:$HH$248,GH$1)","v":311},{"$f":"VLOOKUP(DropDownList!$B$47,CntyQryCensus!$A$206:$HH$248,GI$1)","v":508},{"$f":"VLOOKUP(DropDownList!$B$47,CntyQryCensus!$A$206:$HH$248,GJ$1)","v":133},{"$f":"VLOOKUP(DropDownList!$B$47,CntyQryCensus!$A$206:$HH$248,GK$1)","v":18},{"$f":"VLOOKUP(DropDownList!$B$47,CntyQryCensus!$A$206:$HH$248,GL$1)","v":39},{"$f":"VLOOKUP(DropDownList!$B$47,CntyQryCensus!$A$206:$HH$248,GM$1)","v":0},{"$f":"VLOOKUP(DropDownList!$B$47,CntyQryCensus!$A$206:$HH$248,GN$1)","v":56136},{"$f":"VLOOKUP(DropDownList!$B$47,CntyQryCensus!$A$206:$HH$248,GO$1)","v":126321800},{"$f":"VLOOKUP(DropDownList!$B$47,CntyQryCensus!$A$206:$HH$248,GP$1)","v":671},{"$f":"VLOOKUP(DropDownList!$B$47,CntyQryCensus!$A$206:$HH$248,GQ$1)","v":38},{"$f":"VLOOKUP(DropDownList!$B$47,CntyQryCensus!$A$206:$HH$248,GR$1)","v":67},{"$f":"VLOOKUP(DropDownList!$B$47,CntyQryCensus!$A$206:$HH$248,GS$1)","v":31},{"$f":"VLOOKUP(DropDownList!$B$47,CntyQryCensus!$A$206:$HH$248,GT$1)","v":44},{"$f":"VLOOKUP(DropDownList!$B$47,CntyQryCensus!$A$206:$HH$248,GU$1)","v":84},{"$f":"VLOOKUP(DropDownList!$B$47,CntyQryCensus!$A$206:$HH$248,GV$1)","v":72},{"$f":"VLOOKUP(DropDownList!$B$47,CntyQryCensus!$A$206:$HH$248,GW$1)","v":64},{"$f":"VLOOKUP(DropDownList!$B$47,CntyQryCensus!$A$206:$HH$248,GX$1)","v":46},{"$f":"VLOOKUP(DropDownList!$B$47,CntyQryCensus!$A$206:$HH$248,GY$1)","v":51},{"$f":"VLOOKUP(DropDownList!$B$47,CntyQryCensus!$A$206:$HH$248,GZ$1)","v":77},{"$f":"VLOOKUP(DropDownList!$B$47,CntyQryCensus!$A$206:$HH$248,HA$1)","v":49},{"$f":"VLOOKUP(DropDownList!$B$47,CntyQryCensus!$A$206:$HH$248,HB$1)","v":22},{"$f":"VLOOKUP(DropDownList!$B$47,CntyQryCensus!$A$206:$HH$248,HC$1)","v":17},{"$f":"VLOOKUP(DropDownList!$B$47,CntyQryCensus!$A$206:$HH$248,HD$1)","v":0},{"$f":"VLOOKUP(DropDownList!$B$47,CntyQryCensus!$A$206:$HH$248,HE$1)","v":9},{"$f":"VLOOKUP(DropDownList!$B$47,CntyQryCensus!$A$206:$HH$248,HF$1)","v":0},{"$f":"VLOOKUP(DropDownList!$B$47,CntyQryCensus!$A$206:$HH$248,HG$1)","v":34963},{"$f":"VLOOKUP(DropDownList!$B$47,CntyQryCensus!$A$206:$HH$248,HH$1)","v":21012}]
[]
[]
["Census 2000 SummaryFile3 Sample Data  -  SF3TownQry2bPovertyChar"]
["NAME","LOGRECNO","COUNTY","TotalPop","P52Households1","P82PerCapitaInc","P87PopForPovStatus","P87PopWIncBelowPovStatus","P87PopUnder5yrBelowPoverty","P87Pop5yrBelowPoverty","P87Pop5to11yrBelowPoverty","P87Pop12to17yrBelowPoverty","P87Pop18to64yrBelowPoverty","P87Pop65to74yrBelowPoverty","P87PopOver75yrBelowPoverty","P87PopWIncAbovePovStatus","P87PopUnder5yrAbovePoverty","P87Pop5yrAbovePoverty","P87Pop5to11yrAbovePoverty","P87Pop12to17yrAbovePoverty","P87Pop18to64yrAbovePoverty","P87Pop65to74yrAbovePoverty","P87PopOver75yrAbovePoverty","P90Families","P90FamWIncBelowPov","P90MarCupFamWIncBelowPov","P90MCFamWRltdChld<18WIncBelowPov","P90MCFamWRltdChld<5WIncBelowPov","P90MaleHhlrWIncBelowPov","P90MaleHhlrWRltdChld<18yrWIncBelowPov","P90MaleHhlrWRltdChld<5yrWIncBelowPov","P90FemaleHhlrWIncBelowPov","P90FemaleHhlrWRltdChld<18yWIncBelowPov","P90FemaleHhlrWRltdChld<5yWIncBelowPov","P90FamWIncAbovePov","P90MarCupFamWIncAbovePov","P90MCFamWRltdChld<18WIncAbovePov","P90MCFamWRltdChld<5WIncAbovePov","P90MaleHhlrWIncAbovePov","P90MaleHhlrWRltdChld<18yrWIncAbovePov","P90MaleHhlrWRltdChld<5yrWIncAbovePov","P90FemaleHhlrWIncAbovePov","P90FemaleHhlrWRltdChld<18yWIncAbovePov","P90FemaleHhlrWRltdChld<5yWIncAbovePov","P92Households","P92HHwIncBelowPov","P92FamHHwIncBelowPov","P92MCFamHHwIncBelowPov","P92MaleFamHHwIncBelowPov","P92FemaleFamHHwIncBelowPov","P92NonFamHHwIncBelowPov","P92NonFamMaleHHwIncBelowPov","P92NonFamFemaleHHwIncBelowPov","P92HHwIncAbovePov","P92FamHHwIncAbovePov","P92MCFamHHwIncAbovePov","P92MaleFamHHwIncAbovePov","P92FemaleFamHHwIncAbovePov","P92NonFamHHwIncAbovePov","P92NonFamMaleHHwIncAbovePov","P92NonFamFemaleHHwIncAbovePov"]
[{"$f":"VLOOKUP(DropDownList!$B$47,CntyQryCensus!$A$256:$BI$298,A$1)","v":"Barrington"},{"$f":"VLOOKUP(DropDownList!$B$47,CntyQryCensus!$A$256:$BI$298,B$1)","v":"0003823"},{"$f":"VLOOKUP(DropDownList!$B$47,CntyQryCensus!$A$256:$BI$298,C$1)","v":"03460"},{"$f":"VLOOKUP(DropDownList!$B$47,CntyQryCensus!$A$256:$BI$298,D$1)","v":7475},{"$f":"VLOOKUP(DropDownList!$B$47,CntyQryCensus!$A$256:$BI$298,E$1)","v":2767},{"$f":"VLOOKUP(DropDownList!$B$47,CntyQryCensus!$A$256:$BI$298,F$1)","v":21012},{"$f":"VLOOKUP(DropDownList!$B$47,CntyQryCensus!$A$256:$BI$298,G$1)","v":7441},{"$f":"VLOOKUP(DropDownList!$B$47,CntyQryCensus!$A$256:$BI$298,H$1)","v":411},{"$f":"VLOOKUP(DropDownList!$B$47,CntyQryCensus!$A$256:$BI$298,I$1)","v":10},{"$f":"VLOOKUP(DropDownList!$B$47,CntyQryCensus!$A$256:$BI$298,J$1)","v":19},{"$f":"VLOOKUP(DropDownList!$B$47,CntyQryCensus!$A$256:$BI$298,K$1)","v":71},{"$f":"VLOOKUP(DropDownList!$B$47,CntyQryCensus!$A$256:$BI$298,L$1)","v":52},{"$f":"VLOOKUP(DropDownList!$B$47,CntyQryCensus!$A$256:$BI$298,M$1)","v":259},{"$f":"VLOOKUP(DropDownList!$B$47,CntyQryCensus!$A$256:$BI$298,N$1)","v":0},{"$f":"VLOOKUP(DropDownList!$B$47,CntyQryCensus!$A$256:$BI$298,O$1)","v":0},{"$f":"VLOOKUP(DropDownList!$B$47,CntyQryCensus!$A$256:$BI$298,P$1)","v":7030},{"$f":"VLOOKUP(DropDownList!$B$47,CntyQryCensus!$A$256:$BI$298,Q$1)","v":448},{"$f":"VLOOKUP(DropDownList!$B$47,CntyQryCensus!$A$256:$BI$298,R$1)","v":143},{"$f":"VLOOKUP(DropDownList!$B$47,CntyQryCensus!$A$256:$BI$298,S$1)","v":566},{"$f":"VLOOKUP(DropDownList!$B$47,CntyQryCensus!$A$256:$BI$298,T$1)","v":722},{"$f":"VLOOKUP(DropDownList!$B$47,CntyQryCensus!$A$256:$BI$298,U$1)","v":4623},{"$f":"VLOOKUP(DropDownList!$B$47,CntyQryCensus!$A$256:$BI$298,V$1)","v":368},{"$f":"VLOOKUP(DropDownList!$B$47,CntyQryCensus!$A$256:$BI$298,W$1)","v":160},{"$f":"VLOOKUP(DropDownList!$B$47,CntyQryCensus!$A$256:$BI$298,X$1)","v":2096},{"$f":"VLOOKUP(DropDownList!$B$47,CntyQryCensus!$A$256:$BI$298,Y$1)","v":76},{"$f":"VLOOKUP(DropDownList!$B$47,CntyQryCensus!$A$256:$BI$298,Z$1)","v":34},{"$f":"VLOOKUP(DropDownList!$B$47,CntyQryCensus!$A$256:$BI$298,AA$1)","v":34},{"$f":"VLOOKUP(DropDownList!$B$47,CntyQryCensus!$A$256:$BI$298,AB$1)","v":0},{"$f":"VLOOKUP(DropDownList!$B$47,CntyQryCensus!$A$256:$BI$298,AC$1)","v":0},{"$f":"VLOOKUP(DropDownList!$B$47,CntyQryCensus!$A$256:$BI$298,AD$1)","v":0},{"$f":"VLOOKUP(DropDownList!$B$47,CntyQryCensus!$A$256:$BI$298,AE$1)","v":0},{"$f":"VLOOKUP(DropDownList!$B$47,CntyQryCensus!$A$256:$BI$298,AF$1)","v":42},{"$f":"VLOOKUP(DropDownList!$B$47,CntyQryCensus!$A$256:$BI$298,AG$1)","v":36},{"$f":"VLOOKUP(DropDownList!$B$47,CntyQryCensus!$A$256:$BI$298,AH$1)","v":0},{"$f":"VLOOKUP(DropDownList!$B$47,CntyQryCensus!$A$256:$BI$298,AI$1)","v":2020},{"$f":"VLOOKUP(DropDownList!$B$47,CntyQryCensus!$A$256:$BI$298,AJ$1)","v":1693},{"$f":"VLOOKUP(DropDownList!$B$47,CntyQryCensus!$A$256:$BI$298,AK$1)","v":839},{"$f":"VLOOKUP(DropDownList!$B$47,CntyQryCensus!$A$256:$BI$298,AL$1)","v":207},{"$f":"VLOOKUP(DropDownList!$B$47,CntyQryCensus!$A$256:$BI$298,AM$1)","v":159},{"$f":"VLOOKUP(DropDownList!$B$47,CntyQryCensus!$A$256:$BI$298,AN$1)","v":110},{"$f":"VLOOKUP(DropDownList!$B$47,CntyQryCensus!$A$256:$BI$298,AO$1)","v":18},{"$f":"VLOOKUP(DropDownList!$B$47,CntyQryCensus!$A$256:$BI$298,AP$1)","v":168},{"$f":"VLOOKUP(DropDownList!$B$47,CntyQryCensus!$A$256:$BI$298,AQ$1)","v":136},{"$f":"VLOOKUP(DropDownList!$B$47,CntyQryCensus!$A$256:$BI$298,AR$1)","v":12},{"$f":"VLOOKUP(DropDownList!$B$47,CntyQryCensus!$A$256:$BI$298,AS$1)","v":2767},{"$f":"VLOOKUP(DropDownList!$B$47,CntyQryCensus!$A$256:$BI$298,AT$1)","v":125},{"$f":"VLOOKUP(DropDownList!$B$47,CntyQryCensus!$A$256:$BI$298,AU$1)","v":76},{"$f":"VLOOKUP(DropDownList!$B$47,CntyQryCensus!$A$256:$BI$298,AV$1)","v":34},{"$f":"VLOOKUP(DropDownList!$B$47,CntyQryCensus!$A$256:$BI$298,AW$1)","v":0},{"$f":"VLOOKUP(DropDownList!$B$47,CntyQryCensus!$A$256:$BI$298,AX$1)","v":42},{"$f":"VLOOKUP(DropDownList!$B$47,CntyQryCensus!$A$256:$BI$298,AY$1)","v":49},{"$f":"VLOOKUP(DropDownList!$B$47,CntyQryCensus!$A$256:$BI$298,AZ$1)","v":30},{"$f":"VLOOKUP(DropDownList!$B$47,CntyQryCensus!$A$256:$BI$298,BA$1)","v":19},{"$f":"VLOOKUP(DropDownList!$B$47,CntyQryCensus!$A$256:$BI$298,BB$1)","v":2642},{"$f":"VLOOKUP(DropDownList!$B$47,CntyQryCensus!$A$256:$BI$298,BC$1)","v":2020},{"$f":"VLOOKUP(DropDownList!$B$47,CntyQryCensus!$A$256:$BI$298,BD$1)","v":1693},{"$f":"VLOOKUP(DropDownList!$B$47,CntyQryCensus!$A$256:$BI$298,BE$1)","v":159},{"$f":"VLOOKUP(DropDownList!$B$47,CntyQryCensus!$A$256:$BI$298,BF$1)","v":168},{"$f":"VLOOKUP(DropDownList!$B$47,CntyQryCensus!$A$256:$BI$298,BG$1)","v":622},{"$f":"VLOOKUP(DropDownList!$B$47,CntyQryCensus!$A$256:$BI$298,BH$1)","v":348},{"$f":"VLOOKUP(DropDownList!$B$47,CntyQryCensus!$A$256:$BI$298,BI$1)","v":274}]
[null,null,null,null,null,null,null,null,null,null,null,null,null,null,null,null,null,null,{"$f":"SUM(R60:T60)","v":1431}]
[]
["Census 2000 SummaryFile3 Sample Data  -  SF3TownQry7HousingA"]
["NAME","LOGRECNO","COUNTY","TotalPop","H1HousingUnitsTotal","H2SampleHU","H2SampleOccHU","H2SampleVacHU","H3HU100pctCount","H5HUTotal","H5HUUrban","H5HUUrbanInUrbanAreas","H5HUUrbanInUrbanClusters","H5HURural","H5HURuralFarm","H5HURuralNonFarm","H7HUOcc","H7HUOwnrOcc","H7HURentrOcc","H8HUVacant","H8HUVacantForRent","H8HUVacantForSale","H8HUVacRentedorSold","H8HUVacSeasonal","H8HUVacForMigrantWrkrs","H8HUOtherVacant","H14OccHUa","H14OwnerOccHU","H14OwnOccHuHh15to24","H14OwnOccHuHh25to34","H14OwnOccHuHh35to44","H14OwnOccHuHh45to54","H14OwnOccHuHh55to59","H14OwnOccHuHh60to64","H14OwnOccHuHh65to74","H14OwnOccHuHh75to84","H14OwnOccHuHh85Over","H14RenterOccHU1","H14RntrOccHuHh15to24","H14RntrOccHuHh25to34","H14RntrOccHuHh35to44","H14RntrOccHuHh45to54","H14RntrOccHuHh55to59","H14RntrOccHuHh60to64","H14RntrOccHuHh65to74","H14RntrOccHuHh75to84","H14RntrOccHuHh85Over","H15PopInOccHU","H15PopInOwnOccHU1","H15PopInRentOccHU1","H17OccupHUb","H17OwnOccHU2","H17OwnOccHU1PersonHH","H17OwnOccHU2PersonHH","H17OwnOccHU3PersonHH","H17OwnOccHU4PersonHH","H17OwnOccHU5PersonHH","H17OwnOccHU6PersonHH","H17OwnOccHU7PlusPersonHH","H17RentOccHU2","H17RntOccHU1PersonHH","H17RntOccHU2PersonHH","H17RntOccHU3PersonHH","H17RntOccHU4PersonHH","H17RntOccHU5PersonHH","H17RntOccHU6PersonHH","H17RntOccHU7PlusPersonHH","H18AvgHHSize","H18AvgHHSizeOwnOcc","H18AvgHHSizeRentOcc","H23TotHU","H23HU1Room","H23HU2Room","H23HU3Room","H23HU4Room","H23HU5Room","H23HU6Room","H23HU7Room","H23HU8Room","H23HU9orMoreRoom","H24MedianNumRooms","H25AggregNumRooms","H30TotalHU","H30Det1HU","H30Att1HU","H30Units2","H30Units3or4","H30Units5to9","H30Units10to19","H30Units20to49","H30Units50orMore","H30UnitsMobileHome","H30UnitsBoatRv","H32OccHUcTotal","H32OwnerOccHU3","H32OwnOccHU1Det","H32OwnOccHU1Att","H32OwnOccHU2Unit","H32OwnOccHU3to4Unit","H32OwnOccHU5to9Unit","H32OwnOccHU10to19Unit","H32OwnOccHU20to49Unit","H32OwnOccHU50plusUnit","H32OwnOccHUMobHom","H32OwnOccHUBoatRVOth","H32RentrOccHU3","H32RntrOccHU1Det","H32RntrOccHU1Att","H32RntrOccHU2Unit","H32RntrOccHU3to4Unit","H32RntrOccHU5to9Unit","H32RntrOccHU10to19Unit","H32RntrOccHU20to49Unit","H32RntrOccHU50PlusUnit","H32RntrOccHUMobHom","H32RntrOccHUBoatRVOth","H33TotPopInOccHU","H33PopInOwnOccHU2","H33PopInOOHU1Det","H33PopInOOHU1Att","H33PopInOOHU2unit","H33PopInOOHU3to4Unit","H33PopInOOHU5to9Unit","H33PopInOOHU10to19Unit","H33PopInOOHU20to49Unit","H33PopInOOHU50PlusUnit","H33PopInOOHUMobilHome","H33PopInOOHUOtherUnit","H33PopInRentOccHU2","H33PopInROHU1Det","H33PopInROHU1Att","H33PopInROHU2Unit","H33PopInROHU3to4Unit","H33PopInROHU5to9Unit","H33PopInROHU10to19Unit","H33PopInROHU20to49Unit","H33PopInROHU50PlusUnit","H33PopInROHUMobilHome","H33PopInROHUOtherUnit","H36OccHousingUnitsdTotal","H36OwnerOccHU4","H36OOHUBuilt99to0300","H36OOHUBuilt95to98","H36OOHUBuilt90to94","H36OOHUBuilt80to89","H36OOHUBuilt70to79","H36OOHUBuilt60to69","H36OOHUBuilt50to59","H36OOHUBuilt40to49","H36OOHUBuilt39Earlier","H36RentOccHU4","H36ROHUBuilt99to0300","H36ROHUBuilt95to98","H36ROHUBuilt90to94","H36ROHUBuilt80to89","H36ROHUBuilt70to79","H36ROHUBuilt60to69","H36ROHUBuilt50to59","H36ROHUBuilt40to49","H36ROHUBuilt39Earlier","H40OccupHousUnitse","H40HeatFuelUtilGas","H40HeatFuelBotGas","H40HeatFuelElect","H40HeatFuelOilKero","H40HeatFuelCoal","H40HeatFuelWood","H40HeatFuelSolar","H40HeatFuelOther","H40HeatFuelNone","H41TotalHU","H41HUNoBdrm","H41HU1Bdrm","H41HU2Bdrm","H41HU3Bdrm","H41HU4Bdrm","H41HU5MoreBdrm","H42OccuHousUnitf","H42OwnerOccHU5","H42OOHUNoBdrm","H42OOHU1Bdrm","H42OOHU2Bdrm","H42OOHU3Bdrm","H42OOHU4Bdrm","H42OOHU5PlusBdrm","H42RentOccHU5","H42ROHUNoBdrm","H42ROHU1Bdrm","H42ROHU2Bdrm","H42ROHU3Bdrm","H42ROHU4Bdrm","H42ROHU5PlusBdrm","H48OccupHousUnitsg","H48OwnerOccHU6","H48OOHUwCompltPlumFacil","H48OOHULackCompltPlumFacil","H48RentOccHU6","H48ROHUwCompltPlumFacil","H48ROHULackCompltPlumFacil","H51OccupHousUnitf","H51OwnerOccHU7","H51OOHUwCompleteKitFacil","H51OOHULackCompleteKitFacil","H51RenterOccHU7","H51ROHUwCompleteKitFacil","H51ROHULackCompleteKitFacil"]
[{"$f":"VLOOKUP(DropDownList!$B47,CntyQryCensus!$A$306:$GX$348,A$1)","v":"Barrington"},{"$f":"VLOOKUP(DropDownList!$B47,CntyQryCensus!$A$306:$GX$348,B$1)","v":"0003823"},{"$f":"VLOOKUP(DropDownList!$B47,CntyQryCensus!$A$306:$GX$348,C$1)","v":"03460"},{"$f":"VLOOKUP(DropDownList!$B47,CntyQryCensus!$A$306:$GX$348,D$1)","v":7475},{"$f":"VLOOKUP(DropDownList!$B47,CntyQryCensus!$A$306:$GX$348,E$1)","v":3147},{"$f":"VLOOKUP(DropDownList!$B47,CntyQryCensus!$A$306:$GX$348,F$1)","v":379},{"$f":"VLOOKUP(DropDownList!$B47,CntyQryCensus!$A$306:$GX$348,G$1)","v":343},{"$f":"VLOOKUP(DropDownList!$B47,CntyQryCensus!$A$306:$GX$348,H$1)","v":36},{"$f":"VLOOKUP(DropDownList!$B47,CntyQryCensus!$A$306:$GX$348,I$1)","v":3147},{"$f":"VLOOKUP(DropDownList!$B47,CntyQryCensus!$A$306:$GX$348,J$1)","v":3147},{"$f":"VLOOKUP(DropDownList!$B47,CntyQryCensus!$A$306:$GX$348,K$1)","v":0},{"$f":"VLOOKUP(DropDownList!$B47,CntyQryCensus!$A$306:$GX$348,L$1)","v":0},{"$f":"VLOOKUP(DropDownList!$B47,CntyQryCensus!$A$306:$GX$348,M$1)","v":0},{"$f":"VLOOKUP(DropDownList!$B47,CntyQryCensus!$A$306:$GX$348,N$1)","v":3147},{"$f":"VLOOKUP(DropDownList!$B47,CntyQryCensus!$A$306:$GX$348,O$1)","v":15},{"$f":"VLOOKUP(DropDownList!$B47,CntyQryCensus!$A$306:$GX$348,P$1)","v":3132},{"$f":"VLOOKUP(DropDownList!$B47,CntyQryCensus!$A$306:$GX$348,Q$1)","v":2756},{"$f":"VLOOKUP(DropDownList!$B47,CntyQryCensus!$A$306:$GX$348,R$1)","v":2345},{"$f":"VLOOKUP(DropDownList!$B47,CntyQryCensus!$A$306:$GX$348,S$1)","v":411},{"$f":"VLOOKUP(DropDownList!$B47,CntyQryCensus!$A$306:$GX$348,T$1)","v":391},{"$f":"VLOOKUP(DropDownList!$B47,CntyQryCensus!$A$306:$GX$348,U$1)","v":0},{"$f":"VLOOKUP(DropDownList!$B47,CntyQryCensus!$A$306:$GX$348,V$1)","v":20},{"$f":"VLOOKUP(DropDownList!$B47,CntyQryCensus!$A$306:$GX$348,W$1)","v":0},{"$f":"VLOOKUP(DropDownList!$B47,CntyQryCensus!$A$306:$GX$348,X$1)","v":314},{"$f":"VLOOKUP(DropDownList!$B47,CntyQryCensus!$A$306:$GX$348,Y$1)","v":0},{"$f":"VLOOKUP(DropDownList!$B47,CntyQryCensus!$A$306:$GX$348,Z$1)","v":57},{"$f":"VLOOKUP(DropDownList!$B47,CntyQryCensus!$A$306:$GX$348,AA$1)","v":2756},{"$f":"VLOOKUP(DropDownList!$B47,CntyQryCensus!$A$306:$GX$348,AB$1)","v":2345},{"$f":"VLOOKUP(DropDownList!$B47,CntyQryCensus!$A$306:$GX$348,AC$1)","v":18},{"$f":"VLOOKUP(DropDownList!$B47,CntyQryCensus!$A$306:$GX$348,AD$1)","v":319},{"$f":"VLOOKUP(DropDownList!$B47,CntyQryCensus!$A$306:$GX$348,AE$1)","v":756},{"$f":"VLOOKUP(DropDownList!$B47,CntyQryCensus!$A$306:$GX$348,AF$1)","v":603},{"$f":"VLOOKUP(DropDownList!$B47,CntyQryCensus!$A$306:$GX$348,AG$1)","v":241},{"$f":"VLOOKUP(DropDownList!$B47,CntyQryCensus!$A$306:$GX$348,AH$1)","v":114},{"$f":"VLOOKUP(DropDownList!$B47,CntyQryCensus!$A$306:$GX$348,AI$1)","v":208},{"$f":"VLOOKUP(DropDownList!$B47,CntyQryCensus!$A$306:$GX$348,AJ$1)","v":78},{"$f":"VLOOKUP(DropDownList!$B47,CntyQryCensus!$A$306:$GX$348,AK$1)","v":8},{"$f":"VLOOKUP(DropDownList!$B47,CntyQryCensus!$A$306:$GX$348,AL$1)","v":411},{"$f":"VLOOKUP(DropDownList!$B47,CntyQryCensus!$A$306:$GX$348,AM$1)","v":29},{"$f":"VLOOKUP(DropDownList!$B47,CntyQryCensus!$A$306:$GX$348,AN$1)","v":173},{"$f":"VLOOKUP(DropDownList!$B47,CntyQryCensus!$A$306:$GX$348,AO$1)","v":116},{"$f":"VLOOKUP(DropDownList!$B47,CntyQryCensus!$A$306:$GX$348,AP$1)","v":75},{"$f":"VLOOKUP(DropDownList!$B47,CntyQryCensus!$A$306:$GX$348,AQ$1)","v":0},{"$f":"VLOOKUP(DropDownList!$B47,CntyQryCensus!$A$306:$GX$348,AR$1)","v":0},{"$f":"VLOOKUP(DropDownList!$B47,CntyQryCensus!$A$306:$GX$348,AS$1)","v":18},{"$f":"VLOOKUP(DropDownList!$B47,CntyQryCensus!$A$306:$GX$348,AT$1)","v":0},{"$f":"VLOOKUP(DropDownList!$B47,CntyQryCensus!$A$306:$GX$348,AU$1)","v":0},{"$f":"VLOOKUP(DropDownList!$B47,CntyQryCensus!$A$306:$GX$348,AV$1)","v":7467},{"$f":"VLOOKUP(DropDownList!$B47,CntyQryCensus!$A$306:$GX$348,AW$1)","v":6781},{"$f":"VLOOKUP(DropDownList!$B47,CntyQryCensus!$A$306:$GX$348,AX$1)","v":686},{"$f":"VLOOKUP(DropDownList!$B47,CntyQryCensus!$A$306:$GX$348,AY$1)","v":2756},{"$f":"VLOOKUP(DropDownList!$B47,CntyQryCensus!$A$306:$GX$348,AZ$1)","v":2345},{"$f":"VLOOKUP(DropDownList!$B47,CntyQryCensus!$A$306:$GX$348,BA$1)","v":332},{"$f":"VLOOKUP(DropDownList!$B47,CntyQryCensus!$A$306:$GX$348,BB$1)","v":823},{"$f":"VLOOKUP(DropDownList!$B47,CntyQryCensus!$A$306:$GX$348,BC$1)","v":448},{"$f":"VLOOKUP(DropDownList!$B47,CntyQryCensus!$A$306:$GX$348,BD$1)","v":508},{"$f":"VLOOKUP(DropDownList!$B47,CntyQryCensus!$A$306:$GX$348,BE$1)","v":178},{"$f":"VLOOKUP(DropDownList!$B47,CntyQryCensus!$A$306:$GX$348,BF$1)","v":47},{"$f":"VLOOKUP(DropDownList!$B47,CntyQryCensus!$A$306:$GX$348,BG$1)","v":9},{"$f":"VLOOKUP(DropDownList!$B47,CntyQryCensus!$A$306:$GX$348,BH$1)","v":411},{"$f":"VLOOKUP(DropDownList!$B47,CntyQryCensus!$A$306:$GX$348,BI$1)","v":135},{"$f":"VLOOKUP(DropDownList!$B47,CntyQryCensus!$A$306:$GX$348,BJ$1)","v":170},{"$f":"VLOOKUP(DropDownList!$B47,CntyQryCensus!$A$306:$GX$348,BK$1)","v":70},{"$f":"VLOOKUP(DropDownList!$B47,CntyQryCensus!$A$306:$GX$348,BL$1)","v":13},{"$f":"VLOOKUP(DropDownList!$B47,CntyQryCensus!$A$306:$GX$348,BM$1)","v":11},{"$f":"VLOOKUP(DropDownList!$B47,CntyQryCensus!$A$306:$GX$348,BN$1)","v":12},{"$f":"VLOOKUP(DropDownList!$B47,CntyQryCensus!$A$306:$GX$348,BO$1)","v":0},{"$f":"VLOOKUP(DropDownList!$B47,CntyQryCensus!$A$306:$GX$348,BP$1)","v":3},{"$f":"VLOOKUP(DropDownList!$B47,CntyQryCensus!$A$306:$GX$348,BQ$1)","v":3},{"$f":"VLOOKUP(DropDownList!$B47,CntyQryCensus!$A$306:$GX$348,BR$1)","v":2},{"$f":"VLOOKUP(DropDownList!$B47,CntyQryCensus!$A$306:$GX$348,BS$1)","v":3147},{"$f":"VLOOKUP(DropDownList!$B47,CntyQryCensus!$A$306:$GX$348,BT$1)","v":41},{"$f":"VLOOKUP(DropDownList!$B47,CntyQryCensus!$A$306:$GX$348,BU$1)","v":127},{"$f":"VLOOKUP(DropDownList!$B47,CntyQryCensus!$A$306:$GX$348,BV$1)","v":166},{"$f":"VLOOKUP(DropDownList!$B47,CntyQryCensus!$A$306:$GX$348,BW$1)","v":642},{"$f":"VLOOKUP(DropDownList!$B47,CntyQryCensus!$A$306:$GX$348,BX$1)","v":662},{"$f":"VLOOKUP(DropDownList!$B47,CntyQryCensus!$A$306:$GX$348,BY$1)","v":605},{"$f":"VLOOKUP(DropDownList!$B47,CntyQryCensus!$A$306:$GX$348,BZ$1)","v":447},{"$f":"VLOOKUP(DropDownList!$B47,CntyQryCensus!$A$306:$GX$348,CA$1)","v":268},{"$f":"VLOOKUP(DropDownList!$B47,CntyQryCensus!$A$306:$GX$348,CB$1)","v":189},{"$f":"VLOOKUP(DropDownList!$B47,CntyQryCensus!$A$306:$GX$348,CC$1)","v":5},{"$f":"VLOOKUP(DropDownList!$B47,CntyQryCensus!$A$306:$GX$348,CD$1)","v":17464},{"$f":"VLOOKUP(DropDownList!$B47,CntyQryCensus!$A$306:$GX$348,CE$1)","v":3147},{"$f":"VLOOKUP(DropDownList!$B47,CntyQryCensus!$A$306:$GX$348,CF$1)","v":2290},{"$f":"VLOOKUP(DropDownList!$B47,CntyQryCensus!$A$306:$GX$348,CG$1)","v":28},{"$f":"VLOOKUP(DropDownList!$B47,CntyQryCensus!$A$306:$GX$348,CH$1)","v":40},{"$f":"VLOOKUP(DropDownList!$B47,CntyQryCensus!$A$306:$GX$348,CI$1)","v":47},{"$f":"VLOOKUP(DropDownList!$B47,CntyQryCensus!$A$306:$GX$348,CJ$1)","v":92},{"$f":"VLOOKUP(DropDownList!$B47,CntyQryCensus!$A$306:$GX$348,CK$1)","v":46},{"$f":"VLOOKUP(DropDownList!$B47,CntyQryCensus!$A$306:$GX$348,CL$1)","v":0},{"$f":"VLOOKUP(DropDownList!$B47,CntyQryCensus!$A$306:$GX$348,CM$1)","v":0},{"$f":"VLOOKUP(DropDownList!$B47,CntyQryCensus!$A$306:$GX$348,CN$1)","v":556},{"$f":"VLOOKUP(DropDownList!$B47,CntyQryCensus!$A$306:$GX$348,CO$1)","v":48},{"$f":"VLOOKUP(DropDownList!$B47,CntyQryCensus!$A$306:$GX$348,CP$1)","v":2756},{"$f":"VLOOKUP(DropDownList!$B47,CntyQryCensus!$A$306:$GX$348,CQ$1)","v":2345},{"$f":"VLOOKUP(DropDownList!$B47,CntyQryCensus!$A$306:$GX$348,CR$1)","v":1864},{"$f":"VLOOKUP(DropDownList!$B47,CntyQryCensus!$A$306:$GX$348,CS$1)","v":28},{"$f":"VLOOKUP(DropDownList!$B47,CntyQryCensus!$A$306:$GX$348,CT$1)","v":32},{"$f":"VLOOKUP(DropDownList!$B47,CntyQryCensus!$A$306:$GX$348,CU$1)","v":6},{"$f":"VLOOKUP(DropDownList!$B47,CntyQryCensus!$A$306:$GX$348,CV$1)","v":0},{"$f":"VLOOKUP(DropDownList!$B47,CntyQryCensus!$A$306:$GX$348,CW$1)","v":0},{"$f":"VLOOKUP(DropDownList!$B47,CntyQryCensus!$A$306:$GX$348,CX$1)","v":0},{"$f":"VLOOKUP(DropDownList!$B47,CntyQryCensus!$A$306:$GX$348,CY$1)","v":0},{"$f":"VLOOKUP(DropDownList!$B47,CntyQryCensus!$A$306:$GX$348,CZ$1)","v":415},{"$f":"VLOOKUP(DropDownList!$B47,CntyQryCensus!$A$306:$GX$348,DA$1)","v":0},{"$f":"VLOOKUP(DropDownList!$B47,CntyQryCensus!$A$306:$GX$348,DB$1)","v":411},{"$f":"VLOOKUP(DropDownList!$B47,CntyQryCensus!$A$306:$GX$348,DC$1)","v":159},{"$f":"VLOOKUP(DropDownList!$B47,CntyQryCensus!$A$306:$GX$348,DD$1)","v":0},{"$f":"VLOOKUP(DropDownList!$B47,CntyQryCensus!$A$306:$GX$348,DE$1)","v":8},{"$f":"VLOOKUP(DropDownList!$B47,CntyQryCensus!$A$306:$GX$348,DF$1)","v":41},{"$f":"VLOOKUP(DropDownList!$B47,CntyQryCensus!$A$306:$GX$348,DG$1)","v":92},{"$f":"VLOOKUP(DropDownList!$B47,CntyQryCensus!$A$306:$GX$348,DH$1)","v":46},{"$f":"VLOOKUP(DropDownList!$B47,CntyQryCensus!$A$306:$GX$348,DI$1)","v":0},{"$f":"VLOOKUP(DropDownList!$B47,CntyQryCensus!$A$306:$GX$348,DJ$1)","v":0},{"$f":"VLOOKUP(DropDownList!$B47,CntyQryCensus!$A$306:$GX$348,DK$1)","v":57},{"$f":"VLOOKUP(DropDownList!$B47,CntyQryCensus!$A$306:$GX$348,DL$1)","v":8},{"$f":"VLOOKUP(DropDownList!$B47,CntyQryCensus!$A$306:$GX$348,DM$1)","v":7467},{"$f":"VLOOKUP(DropDownList!$B47,CntyQryCensus!$A$306:$GX$348,DN$1)","v":6781},{"$f":"VLOOKUP(DropDownList!$B47,CntyQryCensus!$A$306:$GX$348,DO$1)","v":5554},{"$f":"VLOOKUP(DropDownList!$B47,CntyQryCensus!$A$306:$GX$348,DP$1)","v":63},{"$f":"VLOOKUP(DropDownList!$B47,CntyQryCensus!$A$306:$GX$348,DQ$1)","v":87},{"$f":"VLOOKUP(DropDownList!$B47,CntyQryCensus!$A$306:$GX$348,DR$1)","v":5},{"$f":"VLOOKUP(DropDownList!$B47,CntyQryCensus!$A$306:$GX$348,DS$1)","v":0},{"$f":"VLOOKUP(DropDownList!$B47,CntyQryCensus!$A$306:$GX$348,DT$1)","v":0},{"$f":"VLOOKUP(DropDownList!$B47,CntyQryCensus!$A$306:$GX$348,DU$1)","v":0},{"$f":"VLOOKUP(DropDownList!$B47,CntyQryCensus!$A$306:$GX$348,DV$1)","v":0},{"$f":"VLOOKUP(DropDownList!$B47,CntyQryCensus!$A$306:$GX$348,DW$1)","v":1072},{"$f":"VLOOKUP(DropDownList!$B47,CntyQryCensus!$A$306:$GX$348,DX$1)","v":0},{"$f":"VLOOKUP(DropDownList!$B47,CntyQryCensus!$A$306:$GX$348,DY$1)","v":686},{"$f":"VLOOKUP(DropDownList!$B47,CntyQryCensus!$A$306:$GX$348,DZ$1)","v":288},{"$f":"VLOOKUP(DropDownList!$B47,CntyQryCensus!$A$306:$GX$348,EA$1)","v":0},{"$f":"VLOOKUP(DropDownList!$B47,CntyQryCensus!$A$306:$GX$348,EB$1)","v":6},{"$f":"VLOOKUP(DropDownList!$B47,CntyQryCensus!$A$306:$GX$348,EC$1)","v":80},{"$f":"VLOOKUP(DropDownList!$B47,CntyQryCensus!$A$306:$GX$348,ED$1)","v":133},{"$f":"VLOOKUP(DropDownList!$B47,CntyQryCensus!$A$306:$GX$348,EE$1)","v":76},{"$f":"VLOOKUP(DropDownList!$B47,CntyQryCensus!$A$306:$GX$348,EF$1)","v":0},{"$f":"VLOOKUP(DropDownList!$B47,CntyQryCensus!$A$306:$GX$348,EG$1)","v":0},{"$f":"VLOOKUP(DropDownList!$B47,CntyQryCensus!$A$306:$GX$348,EH$1)","v":96},{"$f":"VLOOKUP(DropDownList!$B47,CntyQryCensus!$A$306:$GX$348,EI$1)","v":7},{"$f":"VLOOKUP(DropDownList!$B47,CntyQryCensus!$A$306:$GX$348,EJ$1)","v":2756},{"$f":"VLOOKUP(DropDownList!$B47,CntyQryCensus!$A$306:$GX$348,EK$1)","v":2345},{"$f":"VLOOKUP(DropDownList!$B47,CntyQryCensus!$A$306:$GX$348,EL$1)","v":55},{"$f":"VLOOKUP(DropDownList!$B47,CntyQryCensus!$A$306:$GX$348,EM$1)","v":300},{"$f":"VLOOKUP(DropDownList!$B47,CntyQryCensus!$A$306:$GX$348,EN$1)","v":209},{"$f":"VLOOKUP(DropDownList!$B47,CntyQryCensus!$A$306:$GX$348,EO$1)","v":626},{"$f":"VLOOKUP(DropDownList!$B47,CntyQryCensus!$A$306:$GX$348,EP$1)","v":564},{"$f":"VLOOKUP(DropDownList!$B47,CntyQryCensus!$A$306:$GX$348,EQ$1)","v":175},{"$f":"VLOOKUP(DropDownList!$B47,CntyQryCensus!$A$306:$GX$348,ER$1)","v":116},{"$f":"VLOOKUP(DropDownList!$B47,CntyQryCensus!$A$306:$GX$348,ES$1)","v":59},{"$f":"VLOOKUP(DropDownList!$B47,CntyQryCensus!$A$306:$GX$348,ET$1)","v":241},{"$f":"VLOOKUP(DropDownList!$B47,CntyQryCensus!$A$306:$GX$348,EU$1)","v":411},{"$f":"VLOOKUP(DropDownList!$B47,CntyQryCensus!$A$306:$GX$348,EV$1)","v":0},{"$f":"VLOOKUP(DropDownList!$B47,CntyQryCensus!$A$306:$GX$348,EW$1)","v":9},{"$f":"VLOOKUP(DropDownList!$B47,CntyQryCensus!$A$306:$GX$348,EX$1)","v":20},{"$f":"VLOOKUP(DropDownList!$B47,CntyQryCensus!$A$306:$GX$348,EY$1)","v":105},{"$f":"VLOOKUP(DropDownList!$B47,CntyQryCensus!$A$306:$GX$348,EZ$1)","v":111},{"$f":"VLOOKUP(DropDownList!$B47,CntyQryCensus!$A$306:$GX$348,FA$1)","v":56},{"$f":"VLOOKUP(DropDownList!$B47,CntyQryCensus!$A$306:$GX$348,FB$1)","v":63},{"$f":"VLOOKUP(DropDownList!$B47,CntyQryCensus!$A$306:$GX$348,FC$1)","v":8},{"$f":"VLOOKUP(DropDownList!$B47,CntyQryCensus!$A$306:$GX$348,FD$1)","v":39},{"$f":"VLOOKUP(DropDownList!$B47,CntyQryCensus!$A$306:$GX$348,FE$1)","v":2756},{"$f":"VLOOKUP(DropDownList!$B47,CntyQryCensus!$A$306:$GX$348,FF$1)","v":13},{"$f":"VLOOKUP(DropDownList!$B47,CntyQryCensus!$A$306:$GX$348,FG$1)","v":588},{"$f":"VLOOKUP(DropDownList!$B47,CntyQryCensus!$A$306:$GX$348,FH$1)","v":102},{"$f":"VLOOKUP(DropDownList!$B47,CntyQryCensus!$A$306:$GX$348,FI$1)","v":1872},{"$f":"VLOOKUP(DropDownList!$B47,CntyQryCensus!$A$306:$GX$348,FJ$1)","v":8},{"$f":"VLOOKUP(DropDownList!$B47,CntyQryCensus!$A$306:$GX$348,FK$1)","v":139},{"$f":"VLOOKUP(DropDownList!$B47,CntyQryCensus!$A$306:$GX$348,FL$1)","v":0},{"$f":"VLOOKUP(DropDownList!$B47,CntyQryCensus!$A$306:$GX$348,FM$1)","v":9},{"$f":"VLOOKUP(DropDownList!$B47,CntyQryCensus!$A$306:$GX$348,FN$1)","v":25},{"$f":"VLOOKUP(DropDownList!$B47,CntyQryCensus!$A$306:$GX$348,FO$1)","v":3147},{"$f":"VLOOKUP(DropDownList!$B47,CntyQryCensus!$A$306:$GX$348,FP$1)","v":49},{"$f":"VLOOKUP(DropDownList!$B47,CntyQryCensus!$A$306:$GX$348,FQ$1)","v":265},{"$f":"VLOOKUP(DropDownList!$B47,CntyQryCensus!$A$306:$GX$348,FR$1)","v":1052},{"$f":"VLOOKUP(DropDownList!$B47,CntyQryCensus!$A$306:$GX$348,FS$1)","v":1301},{"$f":"VLOOKUP(DropDownList!$B47,CntyQryCensus!$A$306:$GX$348,FT$1)","v":370},{"$f":"VLOOKUP(DropDownList!$B47,CntyQryCensus!$A$306:$GX$348,FU$1)","v":110},{"$f":"VLOOKUP(DropDownList!$B47,CntyQryCensus!$A$306:$GX$348,FV$1)","v":2756},{"$f":"VLOOKUP(DropDownList!$B47,CntyQryCensus!$A$306:$GX$348,FW$1)","v":2345},{"$f":"VLOOKUP(DropDownList!$B47,CntyQryCensus!$A$306:$GX$348,FX$1)","v":0},{"$f":"VLOOKUP(DropDownList!$B47,CntyQryCensus!$A$306:$GX$348,FY$1)","v":102},{"$f":"VLOOKUP(DropDownList!$B47,CntyQryCensus!$A$306:$GX$348,FZ$1)","v":606},{"$f":"VLOOKUP(DropDownList!$B47,CntyQryCensus!$A$306:$GX$348,GA$1)","v":1185},{"$f":"VLOOKUP(DropDownList!$B47,CntyQryCensus!$A$306:$GX$348,GB$1)","v":363},{"$f":"VLOOKUP(DropDownList!$B47,CntyQryCensus!$A$306:$GX$348,GC$1)","v":89},{"$f":"VLOOKUP(DropDownList!$B47,CntyQryCensus!$A$306:$GX$348,GD$1)","v":411},{"$f":"VLOOKUP(DropDownList!$B47,CntyQryCensus!$A$306:$GX$348,GE$1)","v":23},{"$f":"VLOOKUP(DropDownList!$B47,CntyQryCensus!$A$306:$GX$348,GF$1)","v":76},{"$f":"VLOOKUP(DropDownList!$B47,CntyQryCensus!$A$306:$GX$348,GG$1)","v":239},{"$f":"VLOOKUP(DropDownList!$B47,CntyQryCensus!$A$306:$GX$348,GH$1)","v":73},{"$f":"VLOOKUP(DropDownList!$B47,CntyQryCensus!$A$306:$GX$348,GI$1)","v":0},{"$f":"VLOOKUP(DropDownList!$B47,CntyQryCensus!$A$306:$GX$348,GJ$1)","v":0},{"$f":"VLOOKUP(DropDownList!$B47,CntyQryCensus!$A$306:$GX$348,GK$1)","v":2756},{"$f":"VLOOKUP(DropDownList!$B47,CntyQryCensus!$A$306:$GX$348,GL$1)","v":2345},{"$f":"VLOOKUP(DropDownList!$B47,CntyQryCensus!$A$306:$GX$348,GM$1)","v":2319},{"$f":"VLOOKUP(DropDownList!$B47,CntyQryCensus!$A$306:$GX$348,GN$1)","v":26},{"$f":"VLOOKUP(DropDownList!$B47,CntyQryCensus!$A$306:$GX$348,GO$1)","v":411},{"$f":"VLOOKUP(DropDownList!$B47,CntyQryCensus!$A$306:$GX$348,GP$1)","v":392},{"$f":"VLOOKUP(DropDownList!$B47,CntyQryCensus!$A$306:$GX$348,GQ$1)","v":19},{"$f":"VLOOKUP(DropDownList!$B47,CntyQryCensus!$A$306:$GX$348,GR$1)","v":2756},{"$f":"VLOOKUP(DropDownList!$B47,CntyQryCensus!$A$306:$GX$348,GS$1)","v":2345},{"$f":"VLOOKUP(DropDownList!$B47,CntyQryCensus!$A$306:$GX$348,GT$1)","v":2335},{"$f":"VLOOKUP(DropDownList!$B47,CntyQryCensus!$A$306:$GX$348,GU$1)","v":10},{"$f":"VLOOKUP(DropDownList!$B47,CntyQryCensus!$A$306:$GX$348,GV$1)","v":411},{"$f":"VLOOKUP(DropDownList!$B47,CntyQryCensus!$A$306:$GX$348,GW$1)","v":392},{"$f":"VLOOKUP(DropDownList!$B47,CntyQryCensus!$A$306:$GX$348,GX$1)","v":19}]
[]
[]
["Census 2000 SummaryFile3 Sample Data  -  SF3TownQry8HousingCostA"]
["NAME","LOGRECNO","COUNTY","TotalPop","H62RntrOccHU","H62RntrOccHUwRent","H62ROHUGRent<100","H62ROHUGRent100to149","H62ROHUGRent150to199","H62ROHUGRent200to249","H62ROHUGRent250to299","H62ROHUGRent300to349","H62ROHUGRent350to399","H62ROHUGRent400to449","H62ROHUGRent450to499","H62ROHUGRent500to549","H62ROHUGRent550to599","H62ROHUGRent600to649","H62ROHUGRent650to699","H62ROHUGRent700to749","H62ROHUGRent750to799","H62ROHUGRent800to899","H62ROHUGRent900to999","H62ROHUGRent1000to1249","H62ROHUGRent1250to1499","H62ROHUGRent1500to1999","H62ROHUGRent2000>","H62ROHUNoGRent","H63MedianGrossRnt","H69RenterOccHsU","H69GRnt<10PctHHInc","H69GRnt10to15PctHHInc","H69GRnt15to20PctHHInc","H69GRnt20to25PctHHInc","H69GRnt25to30PctHHInc","H69GRnt30to35PctHHInc","H69GRnt35to40PctHHInc","H69GRnt40to50PctHHInc","H69GRnt>50PctHHInc","H69GRntPctNotcomputed","H73RenterOccHU","H73ROHUHhInc<10k","H73ROHUHhInc<10kRnt<20pct","H73ROHUHhInc<10kRnt20to25pct","H73ROHUHhInc<10kRnt25to30pct","H73ROHUHhInc<10kRnt30to35pct","H73ROHUHhInc<10kRnt>35pct","H73ROHUHhInc<10kPctNotComput","H73ROHUHhInc10to20k","H73ROHUHhInc10to20kRnt<20pct","H73ROHUHhInc10to20kRnt20to25pct","H73ROHUHhInc10to20kRnt25to30pct","H73ROHUHhInc10to20kRnt30to35pct","H73ROHUHhInc10to20kRnt>35pct","H73ROHUHhInc10to20kRntPctNC","H73ROHUHhInc20to35k","H73ROHUHhInc20to35kRnt<20pct","H73ROHUHhInc20to35kRnt20to25pct","H73ROHUHhInc20to35kRnt25to30pct","H73ROHUHhInc20to35kRnt30to35pct","H73ROHUHhInc20to35kRnt>35pct","H73ROHUHhInc20to35kRntPctNC","H73ROHUHhInc35to40k","H73ROHUHhInc35to40kRnt<20pct","H73ROHUHhInc35to40kRnt20to25pct","H73ROHUHhInc35to40kRnt25to30pct","H73ROHUHhInc35to40kRnt30to35pct","H73ROHUHhInc35to40kRnt>35pct","H73ROHUHhInc35to40kRntPctNC","H73ROHUHhInc50to75k","H73ROHUHhInc50to75kRnt<20pct","H73ROHUHhInc50to75kRnt20to25pct","H73ROHUHhInc50to75kRnt25to30pct","H73ROHUHhInc50to75kRnt30to35pct","H73ROHUHhInc50to75kRnt>35pct","H73ROHUHhInc50to75kRntPctNC","H73ROHUHhInc75to100k","H73ROHUHhInc75to100kRnt<20pct","H73ROHUHhInc75to100kRnt20to25pct","H73ROHUHhInc75to100kRnt25to30pct","H73ROHUHhInc75to100kRnt30to35pct","H73ROHUHhInc75to100kRnt>35pct","H73ROHUHhInc75to100kRntPctNC","H73ROHUHhInc>100k","H73ROHUHhInc>100kRnt<20pct","H73ROHUHhInc>100kRnt20to25pct","H73ROHUHhInc>100kRnt25to30pct","H73ROHUHhInc>100kRnt30to35pct","H73ROHUHhInc>100kRnt>35pct","H73ROHUHhInc>100kRntPctNC","H73ROHUHhInc>100kRntPctNC"]
[{"$f":"VLOOKUP(DropDownList!$B$47,CntyQryCensus!$A$357:$CM$399,A$1)","v":"Barrington"},{"$f":"VLOOKUP(DropDownList!$B$47,CntyQryCensus!$A$357:$CM$399,B$1)","v":"0003823"},{"$f":"VLOOKUP(DropDownList!$B$47,CntyQryCensus!$A$357:$CM$399,C$1)","v":"03460"},{"$f":"VLOOKUP(DropDownList!$B$47,CntyQryCensus!$A$357:$CM$399,D$1)","v":7475},{"$f":"VLOOKUP(DropDownList!$B$47,CntyQryCensus!$A$357:$CM$399,E$1)","v":411},{"$f":"VLOOKUP(DropDownList!$B$47,CntyQryCensus!$A$357:$CM$399,F$1)","v":374},{"$f":"VLOOKUP(DropDownList!$B$47,CntyQryCensus!$A$357:$CM$399,G$1)","v":0},{"$f":"VLOOKUP(DropDownList!$B$47,CntyQryCensus!$A$357:$CM$399,H$1)","v":8},{"$f":"VLOOKUP(DropDownList!$B$47,CntyQryCensus!$A$357:$CM$399,I$1)","v":10},{"$f":"VLOOKUP(DropDownList!$B$47,CntyQryCensus!$A$357:$CM$399,J$1)","v":0},{"$f":"VLOOKUP(DropDownList!$B$47,CntyQryCensus!$A$357:$CM$399,K$1)","v":0},{"$f":"VLOOKUP(DropDownList!$B$47,CntyQryCensus!$A$357:$CM$399,L$1)","v":0},{"$f":"VLOOKUP(DropDownList!$B$47,CntyQryCensus!$A$357:$CM$399,M$1)","v":9},{"$f":"VLOOKUP(DropDownList!$B$47,CntyQryCensus!$A$357:$CM$399,N$1)","v":8},{"$f":"VLOOKUP(DropDownList!$B$47,CntyQryCensus!$A$357:$CM$399,O$1)","v":29},{"$f":"VLOOKUP(DropDownList!$B$47,CntyQryCensus!$A$357:$CM$399,P$1)","v":24},{"$f":"VLOOKUP(DropDownList!$B$47,CntyQryCensus!$A$357:$CM$399,Q$1)","v":28},{"$f":"VLOOKUP(DropDownList!$B$47,CntyQryCensus!$A$357:$CM$399,R$1)","v":53},{"$f":"VLOOKUP(DropDownList!$B$47,CntyQryCensus!$A$357:$CM$399,S$1)","v":37},{"$f":"VLOOKUP(DropDownList!$B$47,CntyQryCensus!$A$357:$CM$399,T$1)","v":46},{"$f":"VLOOKUP(DropDownList!$B$47,CntyQryCensus!$A$357:$CM$399,U$1)","v":66},{"$f":"VLOOKUP(DropDownList!$B$47,CntyQryCensus!$A$357:$CM$399,V$1)","v":8},{"$f":"VLOOKUP(DropDownList!$B$47,CntyQryCensus!$A$357:$CM$399,W$1)","v":10},{"$f":"VLOOKUP(DropDownList!$B$47,CntyQryCensus!$A$357:$CM$399,X$1)","v":38},{"$f":"VLOOKUP(DropDownList!$B$47,CntyQryCensus!$A$357:$CM$399,Y$1)","v":0},{"$f":"VLOOKUP(DropDownList!$B$47,CntyQryCensus!$A$357:$CM$399,Z$1)","v":0},{"$f":"VLOOKUP(DropDownList!$B$47,CntyQryCensus!$A$357:$CM$399,AA$1)","v":0},{"$f":"VLOOKUP(DropDownList!$B$47,CntyQryCensus!$A$357:$CM$399,AB$1)","v":37},{"$f":"VLOOKUP(DropDownList!$B$47,CntyQryCensus!$A$357:$CM$399,AC$1)","v":674},{"$f":"VLOOKUP(DropDownList!$B$47,CntyQryCensus!$A$357:$CM$399,AD$1)","v":411},{"$f":"VLOOKUP(DropDownList!$B$47,CntyQryCensus!$A$357:$CM$399,AE$1)","v":8},{"$f":"VLOOKUP(DropDownList!$B$47,CntyQryCensus!$A$357:$CM$399,AF$1)","v":80},{"$f":"VLOOKUP(DropDownList!$B$47,CntyQryCensus!$A$357:$CM$399,AG$1)","v":37},{"$f":"VLOOKUP(DropDownList!$B$47,CntyQryCensus!$A$357:$CM$399,AH$1)","v":41},{"$f":"VLOOKUP(DropDownList!$B$47,CntyQryCensus!$A$357:$CM$399,AI$1)","v":34},{"$f":"VLOOKUP(DropDownList!$B$47,CntyQryCensus!$A$357:$CM$399,AJ$1)","v":39},{"$f":"VLOOKUP(DropDownList!$B$47,CntyQryCensus!$A$357:$CM$399,AK$1)","v":35},{"$f":"VLOOKUP(DropDownList!$B$47,CntyQryCensus!$A$357:$CM$399,AL$1)","v":52},{"$f":"VLOOKUP(DropDownList!$B$47,CntyQryCensus!$A$357:$CM$399,AM$1)","v":40},{"$f":"VLOOKUP(DropDownList!$B$47,CntyQryCensus!$A$357:$CM$399,AN$1)","v":45},{"$f":"VLOOKUP(DropDownList!$B$47,CntyQryCensus!$A$357:$CM$399,AO$1)","v":411},{"$f":"VLOOKUP(DropDownList!$B$47,CntyQryCensus!$A$357:$CM$399,AP$1)","v":24},{"$f":"VLOOKUP(DropDownList!$B$47,CntyQryCensus!$A$357:$CM$399,AQ$1)","v":0},{"$f":"VLOOKUP(DropDownList!$B$47,CntyQryCensus!$A$357:$CM$399,AR$1)","v":0},{"$f":"VLOOKUP(DropDownList!$B$47,CntyQryCensus!$A$357:$CM$399,AS$1)","v":0},{"$f":"VLOOKUP(DropDownList!$B$47,CntyQryCensus!$A$357:$CM$399,AT$1)","v":0},{"$f":"VLOOKUP(DropDownList!$B$47,CntyQryCensus!$A$357:$CM$399,AU$1)","v":9},{"$f":"VLOOKUP(DropDownList!$B$47,CntyQryCensus!$A$357:$CM$399,AV$1)","v":15},{"$f":"VLOOKUP(DropDownList!$B$47,CntyQryCensus!$A$357:$CM$399,AW$1)","v":63},{"$f":"VLOOKUP(DropDownList!$B$47,CntyQryCensus!$A$357:$CM$399,AX$1)","v":10},{"$f":"VLOOKUP(DropDownList!$B$47,CntyQryCensus!$A$357:$CM$399,AY$1)","v":0},{"$f":"VLOOKUP(DropDownList!$B$47,CntyQryCensus!$A$357:$CM$399,AZ$1)","v":0},{"$f":"VLOOKUP(DropDownList!$B$47,CntyQryCensus!$A$357:$CM$399,BA$1)","v":0},{"$f":"VLOOKUP(DropDownList!$B$47,CntyQryCensus!$A$357:$CM$399,BB$1)","v":53},{"$f":"VLOOKUP(DropDownList!$B$47,CntyQryCensus!$A$357:$CM$399,BC$1)","v":0},{"$f":"VLOOKUP(DropDownList!$B$47,CntyQryCensus!$A$357:$CM$399,BD$1)","v":157},{"$f":"VLOOKUP(DropDownList!$B$47,CntyQryCensus!$A$357:$CM$399,BE$1)","v":0},{"$f":"VLOOKUP(DropDownList!$B$47,CntyQryCensus!$A$357:$CM$399,BF$1)","v":31},{"$f":"VLOOKUP(DropDownList!$B$47,CntyQryCensus!$A$357:$CM$399,BG$1)","v":24},{"$f":"VLOOKUP(DropDownList!$B$47,CntyQryCensus!$A$357:$CM$399,BH$1)","v":39},{"$f":"VLOOKUP(DropDownList!$B$47,CntyQryCensus!$A$357:$CM$399,BI$1)","v":55},{"$f":"VLOOKUP(DropDownList!$B$47,CntyQryCensus!$A$357:$CM$399,BJ$1)","v":8},{"$f":"VLOOKUP(DropDownList!$B$47,CntyQryCensus!$A$357:$CM$399,BK$1)","v":94},{"$f":"VLOOKUP(DropDownList!$B$47,CntyQryCensus!$A$357:$CM$399,BL$1)","v":52},{"$f":"VLOOKUP(DropDownList!$B$47,CntyQryCensus!$A$357:$CM$399,BM$1)","v":0},{"$f":"VLOOKUP(DropDownList!$B$47,CntyQryCensus!$A$357:$CM$399,BN$1)","v":10},{"$f":"VLOOKUP(DropDownList!$B$47,CntyQryCensus!$A$357:$CM$399,BO$1)","v":0},{"$f":"VLOOKUP(DropDownList!$B$47,CntyQryCensus!$A$357:$CM$399,BP$1)","v":10},{"$f":"VLOOKUP(DropDownList!$B$47,CntyQryCensus!$A$357:$CM$399,BQ$1)","v":22},{"$f":"VLOOKUP(DropDownList!$B$47,CntyQryCensus!$A$357:$CM$399,BR$1)","v":73},{"$f":"VLOOKUP(DropDownList!$B$47,CntyQryCensus!$A$357:$CM$399,BS$1)","v":63},{"$f":"VLOOKUP(DropDownList!$B$47,CntyQryCensus!$A$357:$CM$399,BT$1)","v":10},{"$f":"VLOOKUP(DropDownList!$B$47,CntyQryCensus!$A$357:$CM$399,BU$1)","v":0},{"$f":"VLOOKUP(DropDownList!$B$47,CntyQryCensus!$A$357:$CM$399,BV$1)","v":0},{"$f":"VLOOKUP(DropDownList!$B$47,CntyQryCensus!$A$357:$CM$399,BW$1)","v":0},{"$f":"VLOOKUP(DropDownList!$B$47,CntyQryCensus!$A$357:$CM$399,BX$1)","v":0},{"$f":"VLOOKUP(DropDownList!$B$47,CntyQryCensus!$A$357:$CM$399,BY$1)","v":0},{"$f":"VLOOKUP(DropDownList!$B$47,CntyQryCensus!$A$357:$CM$399,BZ$1)","v":0},{"$f":"VLOOKUP(DropDownList!$B$47,CntyQryCensus!$A$357:$CM$399,CA$1)","v":0},{"$f":"VLOOKUP(DropDownList!$B$47,CntyQryCensus!$A$357:$CM$399,CB$1)","v":0},{"$f":"VLOOKUP(DropDownList!$B$47,CntyQryCensus!$A$357:$CM$399,CC$1)","v":0},{"$f":"VLOOKUP(DropDownList!$B$47,CntyQryCensus!$A$357:$CM$399,CD$1)","v":0},{"$f":"VLOOKUP(DropDownList!$B$47,CntyQryCensus!$A$357:$CM$399,CE$1)","v":0},{"$f":"VLOOKUP(DropDownList!$B$47,CntyQryCensus!$A$357:$CM$399,CF$1)","v":0},{"$f":"VLOOKUP(DropDownList!$B$47,CntyQryCensus!$A$357:$CM$399,CG$1)","v":0},{"$f":"VLOOKUP(DropDownList!$B$47,CntyQryCensus!$A$357:$CM$399,CH$1)","v":0},{"$f":"VLOOKUP(DropDownList!$B$47,CntyQryCensus!$A$357:$CM$399,CI$1)","v":0},{"$f":"VLOOKUP(DropDownList!$B$47,CntyQryCensus!$A$357:$CM$399,CJ$1)","v":0},{"$f":"VLOOKUP(DropDownList!$B$47,CntyQryCensus!$A$357:$CM$399,CK$1)","v":0},{"$f":"VLOOKUP(DropDownList!$B$47,CntyQryCensus!$A$357:$CM$399,CL$1)","v":0},{"$f":"VLOOKUP(DropDownList!$B$47,CntyQryCensus!$A$357:$CM$399,CM$1)","v":0}]
[]
[]
["Census 2000 SummaryFile3 Sample Data  -  SF3TownQry8HousingCostB"]
["NAME","LOGRECNO","COUNTY","TotalPop","H74SpecOwnerOccHU","H74OOHU<10k","H74OOHU10to15k","H74OOHU15to20k","H74OOHU20to25k","H74OOHU25to30k","H74OOHU30to35k","H74OOHU35to40k","H74OOHU40to50k","H74OOHU50to60k","H74OOHU60to70k","H74OOHU70to80k","H74OOHU80to90k","H74OOHU90to100k","H74OOHU100to125k","H74OOHU125to150k","H74OOHU150to175k","H74OOHU175to200k","H74OOHU200to250k","H74OOHU250to300k","H74OOHU300to400k","H74OOHU400to500k","H74OOHU500to750k","H74OOHU750to1000k","H74OOHU1000kmore","H76OOHUMedianVal","H84OwnerOccHU","H84AllOOHU<10k","H84AllOOHU10to15k","H84AllOOHU15to20k","H84AllOOHU20to25k","H84AllOOHU25to30k","H84AllOOHU30to35k","H84AllOOHU35to40k","H84AllOOHU40to50k","H84AllOOHU50to60k","H84AllOOHU60to70k","H84AllOOHU70to80k","H84AllOOHU80to90k","H84AllOOHU90to100k","H84AllOOHU100to125k","H84AllOOHU125to150k","H84AllOOHU150to175k","H84AllOOHU175to200k","H84AllOOHU200to250k","H84AllOOHU250to300k","H84AllOOHU300to400k","H84AllOOHU400to500k","H84AllOOHU500to750k","H84AllOOHU750to1000k","H84AllOOHU1000kmore","H85OOHUMedVal","H90SOOHU","H90HUwMorgt","H90HUwMtgHC<200","H90HUwMtgHC200to300","H90HUwMtgHC300to400","H90HUwMtgHC400to500","H90HUwMtgHC500to600","H90HUwMtgHC600to700","H90HUwMtgHC700to800","H90HUwMtgHC800to900","H90HUwMtgHC900to1000","H90HUwMtgHC1000to1250","H90HUwMtgHC1250to1500","H90HUwMtgHC1500to2000","H90HUwMtgHC2000to2500","H90HUwMtgHC2500to3000","H90HUwMtgHC3000orMore","H90HUwOutMorgt","H90HUwOutMtgHC<100","H90HUwOutMtgHC100to150","H90HUwOutMtgHC150to200","H90HUwOutMtgHC200to250","H90HUwOutMtgHC250to300","H90HUwOutMtgHC300to350","H90HUwOutMtgHC350to400","H90HUwOutMtgHC400to500","H90HUwOutMtgHC500to600","H90HUwOutMtgHC600to700","H90HUwOutMtgHC700to800","H90HUwOutMtgHC800to900","H90HUwOutMtgHC900to1000","H90HUwOutMtgHC1000orMore","H91MedianOCHUwMtg","H91MedianOCHUwOutMtg","H94SpecOOHU","H94HUwMortg","H94HUwMtgHC<10pct","H94HUwMtgHC10to15pct","H94HUwMtgHC15to20pct","H94HUwMtgHC20to25pct","H94HUwMtgHC25to30pct","H94HUwMtgHC30to35pct","H94HUwMtgHC35to40pct","H94HUwMtgHC40to50pct","H94HUwMtgHC50pctOrMore","H94HUwMtgHCpctNotComp","H94HUWOutMortg","H94HUWOutMortgHC<10pct","H94HUWOutMortgHC10to15pct","H94HUWOutMortgHC15to20pct","H94HUWOutMortgHC20to25pct","H94HUWOutMortgHC25to30pct","H94HUWOutMortgHC30to35pct","H94HUWOutMortgHC35to40pct","H94HUWOutMortgHC40to50pct","H94HUWOutMortgHC50pctOrMore","H94HUWOutMortgHCpctNotComp","H97SpecifOwnOccHU","H97SOOHUInc<10k","H97SOOHUInc<10kHC<20pct","H97SOOHUInc<10kHC20to25pct","H97SOOHUInc<10kHC25to30pct","H97SOOHUInc<10kHC30to35pct","H97SOOHUInc<10kHC>35pct","H97SOOHUInc<10kHCpctNotComput","H97SOOHUInc10to20k","H97SOOHUInc10to20kHC<20pct","H97SOOHUInc10to20kHC20to25pct","H97SOOHUInc10to20kHC25to30pct","H97SOOHUInc10to20kHC30to35pct","H97SOOHUInc10to20kHC>35pct","H97SOOHUInc10to20kHCpctNotComput","H97SOOHUInc20to35k","H97SOOHUInc20to35kRC<20pct","H97SOOHUInc20to35kRC20to25pct","H97SOOHUInc20to35kRC25to30pct","H97SOOHUInc20to35kRC30to35pct","H97SOOHUInc20to35kRC>35pct","H97SOOHUInc20to35kRCpctNotComput","H97SOOHUInc35to50k","H97SOOHUInc35to50kRC<20pct","H97SOOHUInc35to50kRC20to25pct","H97SOOHUInc35to50kRC25to30pct","H97SOOHUInc35to50kRC30to35pct","H97SOOHUInc35to50kRC>35pct","H97SOOHUInc35to50kRCpctNotCompute","H97SOOHUInc50to75k","H97SOOHUInc50to75kRC<20pct","H97SOOHUInc50to75kRC20to25pct","H97SOOHUInc50to75kRC25to30pct","H97SOOHUInc50to75kRC30to35pct","H97SOOHUInc50to75kRC>35pct","H97SOOHUInc50to75kRCpctNotComput","H97SOOHUInc75to100k","H97SOOHUInc75to100kRC<20pct","H97SOOHUInc75to100kRC20to25pct","H97SOOHUInc75to100kRC25to30pct","H97SOOHUInc75to100kRC30to35pct","H97SOOHUInc75to100kRC>35pct","H97SOOHUInc75to100kRCpctNotCompute","H97SOOHUInc100to150k","H97SOOHUInc100to150kRC<20pct","H97SOOHUInc100to150kRC20to25pct","H97SOOHUInc100to150kRC25to30pct","H97SOOHUInc100to150kRC30to35pct","H97SOOHUInc100to150kRC>35pct","H97SOOHUInc100to150kRCpctNotCompute","H97SOOHUInc>150k","H97SOOHUInc>150kRC<20pct","H97SOOHUInc>150kRC20to25pct","H97SOOHUInc>150kRC25to30pct","H97SOOHUInc>150kRC30to35pct","H97SOOHUInc>150kRC>35pct","H97SOOHUInc>150kRCpctNotCompute"]
[{"$f":"VLOOKUP(DropDownList!$B$47,CntyQryCensus!$A$408:$FN$450,A$1)","v":"Barrington"},{"$f":"VLOOKUP(DropDownList!$B$47,CntyQryCensus!$A$408:$FN$450,B$1)","v":"0003823"},{"$f":"VLOOKUP(DropDownList!$B$47,CntyQryCensus!$A$408:$FN$450,C$1)","v":"03460"},{"$f":"VLOOKUP(DropDownList!$B$47,CntyQryCensus!$A$408:$FN$450,D$1)","v":7475},{"$f":"VLOOKUP(DropDownList!$B$47,CntyQryCensus!$A$408:$FN$450,E$1)","v":1667},{"$f":"VLOOKUP(DropDownList!$B$47,CntyQryCensus!$A$408:$FN$450,F$1)","v":0},{"$f":"VLOOKUP(DropDownList!$B$47,CntyQryCensus!$A$408:$FN$450,G$1)","v":0},{"$f":"VLOOKUP(DropDownList!$B$47,CntyQryCensus!$A$408:$FN$450,H$1)","v":0},{"$f":"VLOOKUP(DropDownList!$B$47,CntyQryCensus!$A$408:$FN$450,I$1)","v":0},{"$f":"VLOOKUP(DropDownList!$B$47,CntyQryCensus!$A$408:$FN$450,J$1)","v":10},{"$f":"VLOOKUP(DropDownList!$B$47,CntyQryCensus!$A$408:$FN$450,K$1)","v":7},{"$f":"VLOOKUP(DropDownList!$B$47,CntyQryCensus!$A$408:$FN$450,L$1)","v":0},{"$f":"VLOOKUP(DropDownList!$B$47,CntyQryCensus!$A$408:$FN$450,M$1)","v":21},{"$f":"VLOOKUP(DropDownList!$B$47,CntyQryCensus!$A$408:$FN$450,N$1)","v":15},{"$f":"VLOOKUP(DropDownList!$B$47,CntyQryCensus!$A$408:$FN$450,O$1)","v":14},{"$f":"VLOOKUP(DropDownList!$B$47,CntyQryCensus!$A$408:$FN$450,P$1)","v":49},{"$f":"VLOOKUP(DropDownList!$B$47,CntyQryCensus!$A$408:$FN$450,Q$1)","v":99},{"$f":"VLOOKUP(DropDownList!$B$47,CntyQryCensus!$A$408:$FN$450,R$1)","v":105},{"$f":"VLOOKUP(DropDownList!$B$47,CntyQryCensus!$A$408:$FN$450,S$1)","v":334},{"$f":"VLOOKUP(DropDownList!$B$47,CntyQryCensus!$A$408:$FN$450,T$1)","v":394},{"$f":"VLOOKUP(DropDownList!$B$47,CntyQryCensus!$A$408:$FN$450,U$1)","v":336},{"$f":"VLOOKUP(DropDownList!$B$47,CntyQryCensus!$A$408:$FN$450,V$1)","v":164},{"$f":"VLOOKUP(DropDownList!$B$47,CntyQryCensus!$A$408:$FN$450,W$1)","v":85},{"$f":"VLOOKUP(DropDownList!$B$47,CntyQryCensus!$A$408:$FN$450,X$1)","v":34},{"$f":"VLOOKUP(DropDownList!$B$47,CntyQryCensus!$A$408:$FN$450,Y$1)","v":0},{"$f":"VLOOKUP(DropDownList!$B$47,CntyQryCensus!$A$408:$FN$450,Z$1)","v":0},{"$f":"VLOOKUP(DropDownList!$B$47,CntyQryCensus!$A$408:$FN$450,AA$1)","v":0},{"$f":"VLOOKUP(DropDownList!$B$47,CntyQryCensus!$A$408:$FN$450,AB$1)","v":0},{"$f":"VLOOKUP(DropDownList!$B$47,CntyQryCensus!$A$408:$FN$450,AC$1)","v":0},{"$f":"VLOOKUP(DropDownList!$B$47,CntyQryCensus!$A$408:$FN$450,AD$1)","v":136400},{"$f":"VLOOKUP(DropDownList!$B$47,CntyQryCensus!$A$408:$FN$450,AE$1)","v":2345},{"$f":"VLOOKUP(DropDownList!$B$47,CntyQryCensus!$A$408:$FN$450,AF$1)","v":13},{"$f":"VLOOKUP(DropDownList!$B$47,CntyQryCensus!$A$408:$FN$450,AG$1)","v":37},{"$f":"VLOOKUP(DropDownList!$B$47,CntyQryCensus!$A$408:$FN$450,AH$1)","v":29},{"$f":"VLOOKUP(DropDownList!$B$47,CntyQryCensus!$A$408:$FN$450,AI$1)","v":38},{"$f":"VLOOKUP(DropDownList!$B$47,CntyQryCensus!$A$408:$FN$450,AJ$1)","v":61},{"$f":"VLOOKUP(DropDownList!$B$47,CntyQryCensus!$A$408:$FN$450,AK$1)","v":68},{"$f":"VLOOKUP(DropDownList!$B$47,CntyQryCensus!$A$408:$FN$450,AL$1)","v":23},{"$f":"VLOOKUP(DropDownList!$B$47,CntyQryCensus!$A$408:$FN$450,AM$1)","v":28},{"$f":"VLOOKUP(DropDownList!$B$47,CntyQryCensus!$A$408:$FN$450,AN$1)","v":55},{"$f":"VLOOKUP(DropDownList!$B$47,CntyQryCensus!$A$408:$FN$450,AO$1)","v":59},{"$f":"VLOOKUP(DropDownList!$B$47,CntyQryCensus!$A$408:$FN$450,AP$1)","v":73},{"$f":"VLOOKUP(DropDownList!$B$47,CntyQryCensus!$A$408:$FN$450,AQ$1)","v":123},{"$f":"VLOOKUP(DropDownList!$B$47,CntyQryCensus!$A$408:$FN$450,AR$1)","v":148},{"$f":"VLOOKUP(DropDownList!$B$47,CntyQryCensus!$A$408:$FN$450,AS$1)","v":383},{"$f":"VLOOKUP(DropDownList!$B$47,CntyQryCensus!$A$408:$FN$450,AT$1)","v":409},{"$f":"VLOOKUP(DropDownList!$B$47,CntyQryCensus!$A$408:$FN$450,AU$1)","v":369},{"$f":"VLOOKUP(DropDownList!$B$47,CntyQryCensus!$A$408:$FN$450,AV$1)","v":221},{"$f":"VLOOKUP(DropDownList!$B$47,CntyQryCensus!$A$408:$FN$450,AW$1)","v":126},{"$f":"VLOOKUP(DropDownList!$B$47,CntyQryCensus!$A$408:$FN$450,AX$1)","v":57},{"$f":"VLOOKUP(DropDownList!$B$47,CntyQryCensus!$A$408:$FN$450,AY$1)","v":17},{"$f":"VLOOKUP(DropDownList!$B$47,CntyQryCensus!$A$408:$FN$450,AZ$1)","v":0},{"$f":"VLOOKUP(DropDownList!$B$47,CntyQryCensus!$A$408:$FN$450,BA$1)","v":0},{"$f":"VLOOKUP(DropDownList!$B$47,CntyQryCensus!$A$408:$FN$450,BB$1)","v":8},{"$f":"VLOOKUP(DropDownList!$B$47,CntyQryCensus!$A$408:$FN$450,BC$1)","v":0},{"$f":"VLOOKUP(DropDownList!$B$47,CntyQryCensus!$A$408:$FN$450,BD$1)","v":127100},{"$f":"VLOOKUP(DropDownList!$B$47,CntyQryCensus!$A$408:$FN$450,BE$1)","v":1667},{"$f":"VLOOKUP(DropDownList!$B$47,CntyQryCensus!$A$408:$FN$450,BF$1)","v":1345},{"$f":"VLOOKUP(DropDownList!$B$47,CntyQryCensus!$A$408:$FN$450,BG$1)","v":0},{"$f":"VLOOKUP(DropDownList!$B$47,CntyQryCensus!$A$408:$FN$450,BH$1)","v":0},{"$f":"VLOOKUP(DropDownList!$B$47,CntyQryCensus!$A$408:$FN$450,BI$1)","v":6},{"$f":"VLOOKUP(DropDownList!$B$47,CntyQryCensus!$A$408:$FN$450,BJ$1)","v":8},{"$f":"VLOOKUP(DropDownList!$B$47,CntyQryCensus!$A$408:$FN$450,BK$1)","v":0},{"$f":"VLOOKUP(DropDownList!$B$47,CntyQryCensus!$A$408:$FN$450,BL$1)","v":88},{"$f":"VLOOKUP(DropDownList!$B$47,CntyQryCensus!$A$408:$FN$450,BM$1)","v":99},{"$f":"VLOOKUP(DropDownList!$B$47,CntyQryCensus!$A$408:$FN$450,BN$1)","v":106},{"$f":"VLOOKUP(DropDownList!$B$47,CntyQryCensus!$A$408:$FN$450,BO$1)","v":134},{"$f":"VLOOKUP(DropDownList!$B$47,CntyQryCensus!$A$408:$FN$450,BP$1)","v":297},{"$f":"VLOOKUP(DropDownList!$B$47,CntyQryCensus!$A$408:$FN$450,BQ$1)","v":329},{"$f":"VLOOKUP(DropDownList!$B$47,CntyQryCensus!$A$408:$FN$450,BR$1)","v":218},{"$f":"VLOOKUP(DropDownList!$B$47,CntyQryCensus!$A$408:$FN$450,BS$1)","v":52},{"$f":"VLOOKUP(DropDownList!$B$47,CntyQryCensus!$A$408:$FN$450,BT$1)","v":8},{"$f":"VLOOKUP(DropDownList!$B$47,CntyQryCensus!$A$408:$FN$450,BU$1)","v":0},{"$f":"VLOOKUP(DropDownList!$B$47,CntyQryCensus!$A$408:$FN$450,BV$1)","v":322},{"$f":"VLOOKUP(DropDownList!$B$47,CntyQryCensus!$A$408:$FN$450,BW$1)","v":0},{"$f":"VLOOKUP(DropDownList!$B$47,CntyQryCensus!$A$408:$FN$450,BX$1)","v":0},{"$f":"VLOOKUP(DropDownList!$B$47,CntyQryCensus!$A$408:$FN$450,BY$1)","v":24},{"$f":"VLOOKUP(DropDownList!$B$47,CntyQryCensus!$A$408:$FN$450,BZ$1)","v":31},{"$f":"VLOOKUP(DropDownList!$B$47,CntyQryCensus!$A$408:$FN$450,CA$1)","v":16},{"$f":"VLOOKUP(DropDownList!$B$47,CntyQryCensus!$A$408:$FN$450,CB$1)","v":13},{"$f":"VLOOKUP(DropDownList!$B$47,CntyQryCensus!$A$408:$FN$450,CC$1)","v":37},{"$f":"VLOOKUP(DropDownList!$B$47,CntyQryCensus!$A$408:$FN$450,CD$1)","v":120},{"$f":"VLOOKUP(DropDownList!$B$47,CntyQryCensus!$A$408:$FN$450,CE$1)","v":49},{"$f":"VLOOKUP(DropDownList!$B$47,CntyQryCensus!$A$408:$FN$450,CF$1)","v":8},{"$f":"VLOOKUP(DropDownList!$B$47,CntyQryCensus!$A$408:$FN$450,CG$1)","v":17},{"$f":"VLOOKUP(DropDownList!$B$47,CntyQryCensus!$A$408:$FN$450,CH$1)","v":7},{"$f":"VLOOKUP(DropDownList!$B$47,CntyQryCensus!$A$408:$FN$450,CI$1)","v":0},{"$f":"VLOOKUP(DropDownList!$B$47,CntyQryCensus!$A$408:$FN$450,CJ$1)","v":0},{"$f":"VLOOKUP(DropDownList!$B$47,CntyQryCensus!$A$408:$FN$450,CK$1)","v":1195},{"$f":"VLOOKUP(DropDownList!$B$47,CntyQryCensus!$A$408:$FN$450,CL$1)","v":433},{"$f":"VLOOKUP(DropDownList!$B$47,CntyQryCensus!$A$408:$FN$450,CM$1)","v":1667},{"$f":"VLOOKUP(DropDownList!$B$47,CntyQryCensus!$A$408:$FN$450,CN$1)","v":1345},{"$f":"VLOOKUP(DropDownList!$B$47,CntyQryCensus!$A$408:$FN$450,CO$1)","v":60},{"$f":"VLOOKUP(DropDownList!$B$47,CntyQryCensus!$A$408:$FN$450,CP$1)","v":161},{"$f":"VLOOKUP(DropDownList!$B$47,CntyQryCensus!$A$408:$FN$450,CQ$1)","v":247},{"$f":"VLOOKUP(DropDownList!$B$47,CntyQryCensus!$A$408:$FN$450,CR$1)","v":318},{"$f":"VLOOKUP(DropDownList!$B$47,CntyQryCensus!$A$408:$FN$450,CS$1)","v":208},{"$f":"VLOOKUP(DropDownList!$B$47,CntyQryCensus!$A$408:$FN$450,CT$1)","v":85},{"$f":"VLOOKUP(DropDownList!$B$47,CntyQryCensus!$A$408:$FN$450,CU$1)","v":88},{"$f":"VLOOKUP(DropDownList!$B$47,CntyQryCensus!$A$408:$FN$450,CV$1)","v":86},{"$f":"VLOOKUP(DropDownList!$B$47,CntyQryCensus!$A$408:$FN$450,CW$1)","v":83},{"$f":"VLOOKUP(DropDownList!$B$47,CntyQryCensus!$A$408:$FN$450,CX$1)","v":9},{"$f":"VLOOKUP(DropDownList!$B$47,CntyQryCensus!$A$408:$FN$450,CY$1)","v":322},{"$f":"VLOOKUP(DropDownList!$B$47,CntyQryCensus!$A$408:$FN$450,CZ$1)","v":140},{"$f":"VLOOKUP(DropDownList!$B$47,CntyQryCensus!$A$408:$FN$450,DA$1)","v":91},{"$f":"VLOOKUP(DropDownList!$B$47,CntyQryCensus!$A$408:$FN$450,DB$1)","v":45},{"$f":"VLOOKUP(DropDownList!$B$47,CntyQryCensus!$A$408:$FN$450,DC$1)","v":0},{"$f":"VLOOKUP(DropDownList!$B$47,CntyQryCensus!$A$408:$FN$450,DD$1)","v":15},{"$f":"VLOOKUP(DropDownList!$B$47,CntyQryCensus!$A$408:$FN$450,DE$1)","v":7},{"$f":"VLOOKUP(DropDownList!$B$47,CntyQryCensus!$A$408:$FN$450,DF$1)","v":6},{"$f":"VLOOKUP(DropDownList!$B$47,CntyQryCensus!$A$408:$FN$450,DG$1)","v":12},{"$f":"VLOOKUP(DropDownList!$B$47,CntyQryCensus!$A$408:$FN$450,DH$1)","v":0},{"$f":"VLOOKUP(DropDownList!$B$47,CntyQryCensus!$A$408:$FN$450,DI$1)","v":6},{"$f":"VLOOKUP(DropDownList!$B$47,CntyQryCensus!$A$408:$FN$450,DJ$1)","v":1667},{"$f":"VLOOKUP(DropDownList!$B$47,CntyQryCensus!$A$408:$FN$450,DK$1)","v":15},{"$f":"VLOOKUP(DropDownList!$B$47,CntyQryCensus!$A$408:$FN$450,DL$1)","v":0},{"$f":"VLOOKUP(DropDownList!$B$47,CntyQryCensus!$A$408:$FN$450,DM$1)","v":0},{"$f":"VLOOKUP(DropDownList!$B$47,CntyQryCensus!$A$408:$FN$450,DN$1)","v":0},{"$f":"VLOOKUP(DropDownList!$B$47,CntyQryCensus!$A$408:$FN$450,DO$1)","v":0},{"$f":"VLOOKUP(DropDownList!$B$47,CntyQryCensus!$A$408:$FN$450,DP$1)","v":0},{"$f":"VLOOKUP(DropDownList!$B$47,CntyQryCensus!$A$408:$FN$450,DQ$1)","v":15},{"$f":"VLOOKUP(DropDownList!$B$47,CntyQryCensus!$A$408:$FN$450,DR$1)","v":41},{"$f":"VLOOKUP(DropDownList!$B$47,CntyQryCensus!$A$408:$FN$450,DS$1)","v":0},{"$f":"VLOOKUP(DropDownList!$B$47,CntyQryCensus!$A$408:$FN$450,DT$1)","v":0},{"$f":"VLOOKUP(DropDownList!$B$47,CntyQryCensus!$A$408:$FN$450,DU$1)","v":0},{"$f":"VLOOKUP(DropDownList!$B$47,CntyQryCensus!$A$408:$FN$450,DV$1)","v":7},{"$f":"VLOOKUP(DropDownList!$B$47,CntyQryCensus!$A$408:$FN$450,DW$1)","v":34},{"$f":"VLOOKUP(DropDownList!$B$47,CntyQryCensus!$A$408:$FN$450,DX$1)","v":0},{"$f":"VLOOKUP(DropDownList!$B$47,CntyQryCensus!$A$408:$FN$450,DY$1)","v":290},{"$f":"VLOOKUP(DropDownList!$B$47,CntyQryCensus!$A$408:$FN$450,DZ$1)","v":77},{"$f":"VLOOKUP(DropDownList!$B$47,CntyQryCensus!$A$408:$FN$450,EA$1)","v":0},{"$f":"VLOOKUP(DropDownList!$B$47,CntyQryCensus!$A$408:$FN$450,EB$1)","v":49},{"$f":"VLOOKUP(DropDownList!$B$47,CntyQryCensus!$A$408:$FN$450,EC$1)","v":32},{"$f":"VLOOKUP(DropDownList!$B$47,CntyQryCensus!$A$408:$FN$450,ED$1)","v":132},{"$f":"VLOOKUP(DropDownList!$B$47,CntyQryCensus!$A$408:$FN$450,EE$1)","v":0},{"$f":"VLOOKUP(DropDownList!$B$47,CntyQryCensus!$A$408:$FN$450,EF$1)","v":294},{"$f":"VLOOKUP(DropDownList!$B$47,CntyQryCensus!$A$408:$FN$450,EG$1)","v":78},{"$f":"VLOOKUP(DropDownList!$B$47,CntyQryCensus!$A$408:$FN$450,EH$1)","v":62},{"$f":"VLOOKUP(DropDownList!$B$47,CntyQryCensus!$A$408:$FN$450,EI$1)","v":41},{"$f":"VLOOKUP(DropDownList!$B$47,CntyQryCensus!$A$408:$FN$450,EJ$1)","v":29},{"$f":"VLOOKUP(DropDownList!$B$47,CntyQryCensus!$A$408:$FN$450,EK$1)","v":84},{"$f":"VLOOKUP(DropDownList!$B$47,CntyQryCensus!$A$408:$FN$450,EL$1)","v":0},{"$f":"VLOOKUP(DropDownList!$B$47,CntyQryCensus!$A$408:$FN$450,EM$1)","v":430},{"$f":"VLOOKUP(DropDownList!$B$47,CntyQryCensus!$A$408:$FN$450,EN$1)","v":148},{"$f":"VLOOKUP(DropDownList!$B$47,CntyQryCensus!$A$408:$FN$450,EO$1)","v":136},{"$f":"VLOOKUP(DropDownList!$B$47,CntyQryCensus!$A$408:$FN$450,EP$1)","v":105},{"$f":"VLOOKUP(DropDownList!$B$47,CntyQryCensus!$A$408:$FN$450,EQ$1)","v":16},{"$f":"VLOOKUP(DropDownList!$B$47,CntyQryCensus!$A$408:$FN$450,ER$1)","v":25},{"$f":"VLOOKUP(DropDownList!$B$47,CntyQryCensus!$A$408:$FN$450,ES$1)","v":0},{"$f":"VLOOKUP(DropDownList!$B$47,CntyQryCensus!$A$408:$FN$450,ET$1)","v":427},{"$f":"VLOOKUP(DropDownList!$B$47,CntyQryCensus!$A$408:$FN$450,EU$1)","v":288},{"$f":"VLOOKUP(DropDownList!$B$47,CntyQryCensus!$A$408:$FN$450,EV$1)","v":111},{"$f":"VLOOKUP(DropDownList!$B$47,CntyQryCensus!$A$408:$FN$450,EW$1)","v":28},{"$f":"VLOOKUP(DropDownList!$B$47,CntyQryCensus!$A$408:$FN$450,EX$1)","v":0},{"$f":"VLOOKUP(DropDownList!$B$47,CntyQryCensus!$A$408:$FN$450,EY$1)","v":0},{"$f":"VLOOKUP(DropDownList!$B$47,CntyQryCensus!$A$408:$FN$450,EZ$1)","v":0},{"$f":"VLOOKUP(DropDownList!$B$47,CntyQryCensus!$A$408:$FN$450,FA$1)","v":120},{"$f":"VLOOKUP(DropDownList!$B$47,CntyQryCensus!$A$408:$FN$450,FB$1)","v":103},{"$f":"VLOOKUP(DropDownList!$B$47,CntyQryCensus!$A$408:$FN$450,FC$1)","v":9},{"$f":"VLOOKUP(DropDownList!$B$47,CntyQryCensus!$A$408:$FN$450,FD$1)","v":0},{"$f":"VLOOKUP(DropDownList!$B$47,CntyQryCensus!$A$408:$FN$450,FE$1)","v":8},{"$f":"VLOOKUP(DropDownList!$B$47,CntyQryCensus!$A$408:$FN$450,FF$1)","v":0},{"$f":"VLOOKUP(DropDownList!$B$47,CntyQryCensus!$A$408:$FN$450,FG$1)","v":0},{"$f":"VLOOKUP(DropDownList!$B$47,CntyQryCensus!$A$408:$FN$450,FH$1)","v":50},{"$f":"VLOOKUP(DropDownList!$B$47,CntyQryCensus!$A$408:$FN$450,FI$1)","v":50},{"$f":"VLOOKUP(DropDownList!$B$47,CntyQryCensus!$A$408:$FN$450,FJ$1)","v":0},{"$f":"VLOOKUP(DropDownList!$B$47,CntyQryCensus!$A$408:$FN$450,FK$1)","v":0},{"$f":"VLOOKUP(DropDownList!$B$47,CntyQryCensus!$A$408:$FN$450,FL$1)","v":0},{"$f":"VLOOKUP(DropDownList!$B$47,CntyQryCensus!$A$408:$FN$450,FM$1)","v":0},{"$f":"VLOOKUP(DropDownList!$B$47,CntyQryCensus!$A$408:$FN$450,FN$1)","v":0}]
[]
[]
["Census 2000 SummaryFile3 Sample Data  -  SF3TownQry9HHIncomeByTenure"]
["NAME","LOGRECNO","COUNTY","TotalPop","HCT11OccHU","HCT11OwnOccHU","HCT11OOHUInc<5K","HCT11OOHUInc5to10K","HCT11OOHUInc10to15K","HCT11OOHUInc15to20K","HCT11OOHUInc20to25K","HCT11OOHUInc25to35K","HCT11OOHUInc35to50K","HCT11OOHUInc50to75K","HCT11OOHUInc75to100K","HCT11OOHUInc100to150K","HCT11OOHUInc>150K","HCT11RentOccHU","HCT11ROHUInc<5K","HCT11ROHUInc5to10K","HCT11ROHUInc10to15K","HCT11ROHUInc15to20K","HCT11ROHUInc20to25K","HCT11ROHUInc25to35K","HCT11ROHUInc35to50K","HCT11ROHUInc50to75K","HCT11ROHUInc75to100K","HCT11ROHUInc100to150K","HCT11ROHUInc>150K","HCT12MedHHInc","HCT12MedOwnOccHHInc","HCT12MedRentOccHHInc","Summary Level"]
[{"$f":"VLOOKUP(DropDownList!$B$47,CntyQryCensus!$A$459:$AG$501,A$1)","v":"Barrington"},{"$f":"VLOOKUP(DropDownList!$B$47,CntyQryCensus!$A$459:$AG$501,B$1)","v":"0003823"},{"$f":"VLOOKUP(DropDownList!$B$47,CntyQryCensus!$A$459:$AG$501,C$1)","v":"03460"},{"$f":"VLOOKUP(DropDownList!$B$47,CntyQryCensus!$A$459:$AG$501,D$1)","v":"Barrington town"},{"$f":"VLOOKUP(DropDownList!$B$47,CntyQryCensus!$A$459:$AG$501,E$1)","v":"017"},{"$f":"VLOOKUP(DropDownList!$B$47,CntyQryCensus!$A$459:$AG$501,F$1)","v":7475},{"$f":"VLOOKUP(DropDownList!$B$47,CntyQryCensus!$A$459:$AG$501,G$1)","v":2756},{"$f":"VLOOKUP(DropDownList!$B$47,CntyQryCensus!$A$459:$AG$501,H$1)","v":2345},{"$f":"VLOOKUP(DropDownList!$B$47,CntyQryCensus!$A$459:$AG$501,I$1)","v":25},{"$f":"VLOOKUP(DropDownList!$B$47,CntyQryCensus!$A$459:$AG$501,J$1)","v":33},{"$f":"VLOOKUP(DropDownList!$B$47,CntyQryCensus!$A$459:$AG$501,K$1)","v":82},{"$f":"VLOOKUP(DropDownList!$B$47,CntyQryCensus!$A$459:$AG$501,L$1)","v":24},{"$f":"VLOOKUP(DropDownList!$B$47,CntyQryCensus!$A$459:$AG$501,M$1)","v":79},{"$f":"VLOOKUP(DropDownList!$B$47,CntyQryCensus!$A$459:$AG$501,N$1)","v":327},{"$f":"VLOOKUP(DropDownList!$B$47,CntyQryCensus!$A$459:$AG$501,O$1)","v":450},{"$f":"VLOOKUP(DropDownList!$B$47,CntyQryCensus!$A$459:$AG$501,P$1)","v":588},{"$f":"VLOOKUP(DropDownList!$B$47,CntyQryCensus!$A$459:$AG$501,Q$1)","v":523},{"$f":"VLOOKUP(DropDownList!$B$47,CntyQryCensus!$A$459:$AG$501,R$1)","v":164},{"$f":"VLOOKUP(DropDownList!$B$47,CntyQryCensus!$A$459:$AG$501,S$1)","v":50},{"$f":"VLOOKUP(DropDownList!$B$47,CntyQryCensus!$A$459:$AG$501,T$1)","v":411},{"$f":"VLOOKUP(DropDownList!$B$47,CntyQryCensus!$A$459:$AG$501,U$1)","v":17},{"$f":"VLOOKUP(DropDownList!$B$47,CntyQryCensus!$A$459:$AG$501,V$1)","v":7},{"$f":"VLOOKUP(DropDownList!$B$47,CntyQryCensus!$A$459:$AG$501,W$1)","v":30},{"$f":"VLOOKUP(DropDownList!$B$47,CntyQryCensus!$A$459:$AG$501,X$1)","v":33},{"$f":"VLOOKUP(DropDownList!$B$47,CntyQryCensus!$A$459:$AG$501,Y$1)","v":56},{"$f":"VLOOKUP(DropDownList!$B$47,CntyQryCensus!$A$459:$AG$501,Z$1)","v":101},{"$f":"VLOOKUP(DropDownList!$B$47,CntyQryCensus!$A$459:$AG$501,AA$1)","v":94},{"$f":"VLOOKUP(DropDownList!$B$47,CntyQryCensus!$A$459:$AG$501,AB$1)","v":73},{"$f":"VLOOKUP(DropDownList!$B$47,CntyQryCensus!$A$459:$AG$501,AC$1)","v":0},{"$f":"VLOOKUP(DropDownList!$B$47,CntyQryCensus!$A$459:$AG$501,AD$1)","v":0},{"$f":"VLOOKUP(DropDownList!$B$47,CntyQryCensus!$A$459:$AG$501,AE$1)","v":0},{"$f":"VLOOKUP(DropDownList!$B$47,CntyQryCensus!$A$459:$AG$501,AF$1)","v":50435},{"$f":"VLOOKUP(DropDownList!$B$47,CntyQryCensus!$A$459:$AG$501,AG$1)","v":54272}]
[]
[]
[]
[]
[]
[{"$f":"VLOOKUP(DropDownList!$B$47,CntyQryCensus!$A$510:$DA$522,A$1)","v":"Barrington"}]
[]
[]
[]
[]
[]
[]
[]
["Census 2000 SummaryFile3 Sample Data - SF3TownQry10Disabil"]
["NAME","LOGRECNO","COUNTY","TotalPop","PCT026001-NonInstPop5yrs+","PCT026002-MaleNonInstPop5yrs+","PCT026003","PCT026004","PCT026005","PCT026006","PCT026007","PCT026008","PCT026009","PCT026010","PCT026011","PCT026012","PCT026013","PCT026014","PCT026015","PCT026016","PCT026017","PCT026018","PCT026019","PCT026020","PCT026021","PCT026022","PCT026023","PCT026024","PCT026025","PCT026026","PCT026027","PCT026028","PCT026029","PCT026030","PCT026031","PCT026032","PCT026033","PCT026034","PCT026035","PCT026036","PCT026037","PCT026038","PCT026039","PCT026040","PCT026041","PCT026042","PCT026043","PCT026044","PCT026045","PCT026046","PCT026047","PCT026048","PCT026049","PCT026050","PCT026051","PCT026052","PCT026053","PCT026054","PCT026055","PCT026056","PCT026057","PCT026058","PCT026059","PCT026060","PCT026061","PCT026062","PCT026063","PCT026064","PCT026065","PCT026066","PCT026067","PCT026068","PCT026069","PCT026070","PCT026071","PCT026072","PCT026073","PCT026074","PCT026075","PCT026076","PCT026077","PCT026078","PCT026079","PCT026080","PCT026081","PCT026082","PCT026083","PCT026084","PCT026085","PCT026086","PCT026087","PCT026088","PCT026089","PCT026090","PCT026091","PCT026092","PCT026093","PCT026094","PCT026095","PCT026096","PCT026097","PCT026098","PCT026099","PCT026100","PCT026101"]
[{"$f":"VLOOKUP(DropDownList!$B$47,CntyQryCensus!$A$510:$DA$522,A$1)","v":"Barrington"},{"$f":"VLOOKUP(DropDownList!$B$47,CntyQryCensus!$A$510:$DA$522,B$1)","v":"0003823"},{"$f":"VLOOKUP(DropDownList!$B$47,CntyQryCensus!$A$510:$DA$522,C$1)","v":"03460"},{"$f":"VLOOKUP(DropDownList!$B$47,CntyQryCensus!$A$510:$DA$522,D$1)","v":7475},{"$f":"VLOOKUP(DropDownList!$B$47,CntyQryCensus!$A$510:$DA$522,E$1)","v":6994},{"$f":"VLOOKUP(DropDownList!$B$47,CntyQryCensus!$A$510:$DA$522,F$1)","v":3568},{"$f":"VLOOKUP(DropDownList!$B$47,CntyQryCensus!$A$510:$DA$522,G$1)","v":753},{"$f":"VLOOKUP(DropDownList!$B$47,CntyQryCensus!$A$510:$DA$522,H$1)","v":48},{"$f":"VLOOKUP(DropDownList!$B$47,CntyQryCensus!$A$510:$DA$522,I$1)","v":10},{"$f":"VLOOKUP(DropDownList!$B$47,CntyQryCensus!$A$510:$DA$522,J$1)","v":9},{"$f":"VLOOKUP(DropDownList!$B$47,CntyQryCensus!$A$510:$DA$522,K$1)","v":29},{"$f":"VLOOKUP(DropDownList!$B$47,CntyQryCensus!$A$510:$DA$522,L$1)","v":0},{"$f":"VLOOKUP(DropDownList!$B$47,CntyQryCensus!$A$510:$DA$522,M$1)","v":0},{"$f":"VLOOKUP(DropDownList!$B$47,CntyQryCensus!$A$510:$DA$522,N$1)","v":0},{"$f":"VLOOKUP(DropDownList!$B$47,CntyQryCensus!$A$510:$DA$522,O$1)","v":0},{"$f":"VLOOKUP(DropDownList!$B$47,CntyQryCensus!$A$510:$DA$522,P$1)","v":705},{"$f":"VLOOKUP(DropDownList!$B$47,CntyQryCensus!$A$510:$DA$522,Q$1)","v":219},{"$f":"VLOOKUP(DropDownList!$B$47,CntyQryCensus!$A$510:$DA$522,R$1)","v":24},{"$f":"VLOOKUP(DropDownList!$B$47,CntyQryCensus!$A$510:$DA$522,S$1)","v":0},{"$f":"VLOOKUP(DropDownList!$B$47,CntyQryCensus!$A$510:$DA$522,T$1)","v":0},{"$f":"VLOOKUP(DropDownList!$B$47,CntyQryCensus!$A$510:$DA$522,U$1)","v":22},{"$f":"VLOOKUP(DropDownList!$B$47,CntyQryCensus!$A$510:$DA$522,V$1)","v":0},{"$f":"VLOOKUP(DropDownList!$B$47,CntyQryCensus!$A$510:$DA$522,W$1)","v":0},{"$f":"VLOOKUP(DropDownList!$B$47,CntyQryCensus!$A$510:$DA$522,X$1)","v":2},{"$f":"VLOOKUP(DropDownList!$B$47,CntyQryCensus!$A$510:$DA$522,Y$1)","v":0},{"$f":"VLOOKUP(DropDownList!$B$47,CntyQryCensus!$A$510:$DA$522,Z$1)","v":0},{"$f":"VLOOKUP(DropDownList!$B$47,CntyQryCensus!$A$510:$DA$522,AA$1)","v":0},{"$f":"VLOOKUP(DropDownList!$B$47,CntyQryCensus!$A$510:$DA$522,AB$1)","v":0},{"$f":"VLOOKUP(DropDownList!$B$47,CntyQryCensus!$A$510:$DA$522,AC$1)","v":0},{"$f":"VLOOKUP(DropDownList!$B$47,CntyQryCensus!$A$510:$DA$522,AD$1)","v":195},{"$f":"VLOOKUP(DropDownList!$B$47,CntyQryCensus!$A$510:$DA$522,AE$1)","v":2346},{"$f":"VLOOKUP(DropDownList!$B$47,CntyQryCensus!$A$510:$DA$522,AF$1)","v":197},{"$f":"VLOOKUP(DropDownList!$B$47,CntyQryCensus!$A$510:$DA$522,AG$1)","v":33},{"$f":"VLOOKUP(DropDownList!$B$47,CntyQryCensus!$A$510:$DA$522,AH$1)","v":8},{"$f":"VLOOKUP(DropDownList!$B$47,CntyQryCensus!$A$510:$DA$522,AI$1)","v":42},{"$f":"VLOOKUP(DropDownList!$B$47,CntyQryCensus!$A$510:$DA$522,AJ$1)","v":0},{"$f":"VLOOKUP(DropDownList!$B$47,CntyQryCensus!$A$510:$DA$522,AK$1)","v":8},{"$f":"VLOOKUP(DropDownList!$B$47,CntyQryCensus!$A$510:$DA$522,AL$1)","v":106},{"$f":"VLOOKUP(DropDownList!$B$47,CntyQryCensus!$A$510:$DA$522,AM$1)","v":138},{"$f":"VLOOKUP(DropDownList!$B$47,CntyQryCensus!$A$510:$DA$522,AN$1)","v":37},{"$f":"VLOOKUP(DropDownList!$B$47,CntyQryCensus!$A$510:$DA$522,AO$1)","v":101},{"$f":"VLOOKUP(DropDownList!$B$47,CntyQryCensus!$A$510:$DA$522,AP$1)","v":44},{"$f":"VLOOKUP(DropDownList!$B$47,CntyQryCensus!$A$510:$DA$522,AQ$1)","v":57},{"$f":"VLOOKUP(DropDownList!$B$47,CntyQryCensus!$A$510:$DA$522,AR$1)","v":2011},{"$f":"VLOOKUP(DropDownList!$B$47,CntyQryCensus!$A$510:$DA$522,AS$1)","v":250},{"$f":"VLOOKUP(DropDownList!$B$47,CntyQryCensus!$A$510:$DA$522,AT$1)","v":25},{"$f":"VLOOKUP(DropDownList!$B$47,CntyQryCensus!$A$510:$DA$522,AU$1)","v":0},{"$f":"VLOOKUP(DropDownList!$B$47,CntyQryCensus!$A$510:$DA$522,AV$1)","v":25},{"$f":"VLOOKUP(DropDownList!$B$47,CntyQryCensus!$A$510:$DA$522,AW$1)","v":0},{"$f":"VLOOKUP(DropDownList!$B$47,CntyQryCensus!$A$510:$DA$522,AX$1)","v":0},{"$f":"VLOOKUP(DropDownList!$B$47,CntyQryCensus!$A$510:$DA$522,AY$1)","v":0},{"$f":"VLOOKUP(DropDownList!$B$47,CntyQryCensus!$A$510:$DA$522,AZ$1)","v":28},{"$f":"VLOOKUP(DropDownList!$B$47,CntyQryCensus!$A$510:$DA$522,BA$1)","v":8},{"$f":"VLOOKUP(DropDownList!$B$47,CntyQryCensus!$A$510:$DA$522,BB$1)","v":20},{"$f":"VLOOKUP(DropDownList!$B$47,CntyQryCensus!$A$510:$DA$522,BC$1)","v":197},{"$f":"VLOOKUP(DropDownList!$B$47,CntyQryCensus!$A$510:$DA$522,BD$1)","v":3426},{"$f":"VLOOKUP(DropDownList!$B$47,CntyQryCensus!$A$510:$DA$522,BE$1)","v":624},{"$f":"VLOOKUP(DropDownList!$B$47,CntyQryCensus!$A$510:$DA$522,BF$1)","v":7},{"$f":"VLOOKUP(DropDownList!$B$47,CntyQryCensus!$A$510:$DA$522,BG$1)","v":0},{"$f":"VLOOKUP(DropDownList!$B$47,CntyQryCensus!$A$510:$DA$522,BH$1)","v":0},{"$f":"VLOOKUP(DropDownList!$B$47,CntyQryCensus!$A$510:$DA$522,BI$1)","v":7},{"$f":"VLOOKUP(DropDownList!$B$47,CntyQryCensus!$A$510:$DA$522,BJ$1)","v":0},{"$f":"VLOOKUP(DropDownList!$B$47,CntyQryCensus!$A$510:$DA$522,BK$1)","v":9},{"$f":"VLOOKUP(DropDownList!$B$47,CntyQryCensus!$A$510:$DA$522,BL$1)","v":0},{"$f":"VLOOKUP(DropDownList!$B$47,CntyQryCensus!$A$510:$DA$522,BM$1)","v":9},{"$f":"VLOOKUP(DropDownList!$B$47,CntyQryCensus!$A$510:$DA$522,BN$1)","v":608},{"$f":"VLOOKUP(DropDownList!$B$47,CntyQryCensus!$A$510:$DA$522,BO$1)","v":204},{"$f":"VLOOKUP(DropDownList!$B$47,CntyQryCensus!$A$510:$DA$522,BP$1)","v":12},{"$f":"VLOOKUP(DropDownList!$B$47,CntyQryCensus!$A$510:$DA$522,BQ$1)","v":0},{"$f":"VLOOKUP(DropDownList!$B$47,CntyQryCensus!$A$510:$DA$522,BR$1)","v":0},{"$f":"VLOOKUP(DropDownList!$B$47,CntyQryCensus!$A$510:$DA$522,BS$1)","v":0},{"$f":"VLOOKUP(DropDownList!$B$47,CntyQryCensus!$A$510:$DA$522,BT$1)","v":0},{"$f":"VLOOKUP(DropDownList!$B$47,CntyQryCensus!$A$510:$DA$522,BU$1)","v":0},{"$f":"VLOOKUP(DropDownList!$B$47,CntyQryCensus!$A$510:$DA$522,BV$1)","v":12},{"$f":"VLOOKUP(DropDownList!$B$47,CntyQryCensus!$A$510:$DA$522,BW$1)","v":0},{"$f":"VLOOKUP(DropDownList!$B$47,CntyQryCensus!$A$510:$DA$522,BX$1)","v":0},{"$f":"VLOOKUP(DropDownList!$B$47,CntyQryCensus!$A$510:$DA$522,BY$1)","v":0},{"$f":"VLOOKUP(DropDownList!$B$47,CntyQryCensus!$A$510:$DA$522,BZ$1)","v":0},{"$f":"VLOOKUP(DropDownList!$B$47,CntyQryCensus!$A$510:$DA$522,CA$1)","v":0},{"$f":"VLOOKUP(DropDownList!$B$47,CntyQryCensus!$A$510:$DA$522,CB$1)","v":192},{"$f":"VLOOKUP(DropDownList!$B$47,CntyQryCensus!$A$510:$DA$522,CC$1)","v":2320},{"$f":"VLOOKUP(DropDownList!$B$47,CntyQryCensus!$A$510:$DA$522,CD$1)","v":157},{"$f":"VLOOKUP(DropDownList!$B$47,CntyQryCensus!$A$510:$DA$522,CE$1)","v":0},{"$f":"VLOOKUP(DropDownList!$B$47,CntyQryCensus!$A$510:$DA$522,CF$1)","v":7},{"$f":"VLOOKUP(DropDownList!$B$47,CntyQryCensus!$A$510:$DA$522,CG$1)","v":0},{"$f":"VLOOKUP(DropDownList!$B$47,CntyQryCensus!$A$510:$DA$522,CH$1)","v":0},{"$f":"VLOOKUP(DropDownList!$B$47,CntyQryCensus!$A$510:$DA$522,CI$1)","v":0},{"$f":"VLOOKUP(DropDownList!$B$47,CntyQryCensus!$A$510:$DA$522,CJ$1)","v":150},{"$f":"VLOOKUP(DropDownList!$B$47,CntyQryCensus!$A$510:$DA$522,CK$1)","v":166},{"$f":"VLOOKUP(DropDownList!$B$47,CntyQryCensus!$A$510:$DA$522,CL$1)","v":17},{"$f":"VLOOKUP(DropDownList!$B$47,CntyQryCensus!$A$510:$DA$522,CM$1)","v":149},{"$f":"VLOOKUP(DropDownList!$B$47,CntyQryCensus!$A$510:$DA$522,CN$1)","v":31},{"$f":"VLOOKUP(DropDownList!$B$47,CntyQryCensus!$A$510:$DA$522,CO$1)","v":118},{"$f":"VLOOKUP(DropDownList!$B$47,CntyQryCensus!$A$510:$DA$522,CP$1)","v":1997},{"$f":"VLOOKUP(DropDownList!$B$47,CntyQryCensus!$A$510:$DA$522,CQ$1)","v":278},{"$f":"VLOOKUP(DropDownList!$B$47,CntyQryCensus!$A$510:$DA$522,CR$1)","v":70},{"$f":"VLOOKUP(DropDownList!$B$47,CntyQryCensus!$A$510:$DA$522,CS$1)","v":28},{"$f":"VLOOKUP(DropDownList!$B$47,CntyQryCensus!$A$510:$DA$522,CT$1)","v":13},{"$f":"VLOOKUP(DropDownList!$B$47,CntyQryCensus!$A$510:$DA$522,CU$1)","v":0},{"$f":"VLOOKUP(DropDownList!$B$47,CntyQryCensus!$A$510:$DA$522,CV$1)","v":0},{"$f":"VLOOKUP(DropDownList!$B$47,CntyQryCensus!$A$510:$DA$522,CW$1)","v":29},{"$f":"VLOOKUP(DropDownList!$B$47,CntyQryCensus!$A$510:$DA$522,CX$1)","v":50},{"$f":"VLOOKUP(DropDownList!$B$47,CntyQryCensus!$A$510:$DA$522,CY$1)","v":0},{"$f":"VLOOKUP(DropDownList!$B$47,CntyQryCensus!$A$510:$DA$522,CZ$1)","v":50},{"$f":"VLOOKUP(DropDownList!$B$47,CntyQryCensus!$A$510:$DA$522,DA$1)","v":158}]
[]
[]
[]
[]
[{"$f":"VLOOKUP(DropDownList!$B$47,CntyQryCensus!$A$510:$DA$522,A$1)","v":"Barrington"}]
[]
[]
[]
["ACS",2,{"$f":"B105+1","v":3},{"$f":"C105+1","v":4},5,6,7,8,9,10,11,{"$f":"K105+1","v":12},13,14,15,{"$f":"O105+1","v":16},17,18,19,20,21,22,23,24,25,26,27,28,29,30,31,32,33,34,35,36,37,38,39,40,41,42,43,44,45,46,47,48,49,50,51,52,53,54,55,56,57,58,59,60,61,62,63,64,65,66,67,{"$f":"BO105+1","v":68},69,70,71,72,73,74,75,76,77,78,79,80,81,82,83,84,85,86,87,88,89,90,91,92,93,94,95,96,97,98,99,100,101,102,103,104,105,106,107,108,109,110,111,112,113,114,115,116,117,118,119,120,121,122,123,124,125]
["Househould Data (Housing Unit Type)"]
["NAME","TotalHU",{"$f":"\"MOE \"&B107","v":"MOE TotalHU"},"TotalOccHU",{"$f":"\"MOE \"&D107","v":"MOE TotalOccHU"},"TotalOwnerOccUn",{"$f":"\"MOE \"&F107","v":"MOE TotalOwnerOccUn"},"TotalRenterOccn",{"$f":"\"MOE \"&H107","v":"MOE TotalRenterOccn"},"TotalVacantUntis",{"$f":"\"MOE \"&J107","v":"MOE TotalVacantUntis"},"VacantUnitsForRent",{"$f":"\"MOE \"&L107","v":"MOE VacantUnitsForRent"},"VacantUnitRentedNotOcc",{"$f":"\"MOE \"&N107","v":"MOE VacantUnitRentedNotOcc"},"VacantUnitForSale",{"$f":"\"MOE \"&P107","v":"MOE VacantUnitForSale"},"VacantUnitSoldNotOcc",{"$f":"\"MOE \"&R107","v":"MOE VacantUnitSoldNotOcc"},"VacantUnitSeasonalRec",{"$f":"\"MOE \"&T107","v":"MOE VacantUnitSeasonalRec"},"TotalPopInHousingUnits",{"$f":"\"MOE \"&V107","v":"MOE TotalPopInHousingUnits"},"OwnerOccPopHousingUnits",{"$f":"\"MOE \"&X107","v":"MOE OwnerOccPopHousingUnits"},"RenterOccPopHousingUnits",{"$f":"\"MOE \"&Z107","v":"MOE RenterOccPopHousingUnits"},"TotalUntis",{"$f":"\"MOE \"&AB107","v":"MOE TotalUntis"},"TotalOwnerOccUnits",{"$f":"\"MOE \"&AD107","v":"MOE TotalOwnerOccUnits"},"SigFamOwnerOcc",{"$f":"\"MOE \"&AF107","v":"MOE SigFamOwnerOcc"},"MultiFamOwnerOcc",{"$f":"\"MOE \"&AH107","v":"MOE MultiFamOwnerOcc"},"MobileOwnerOcc",{"$f":"\"MOE \"&AJ107","v":"MOE MobileOwnerOcc"},"TotalRenterOccUnits",{"$f":"\"MOE \"&AL107","v":"MOE TotalRenterOccUnits"},"SigFamRenterOcc",{"$f":"\"MOE \"&AN107","v":"MOE SigFamRenterOcc"},"MultiFamRenterOcc",{"$f":"\"MOE \"&AP107","v":"MOE MultiFamRenterOcc"},"MobileRenterOcc",{"$f":"\"MOE \"&AR107","v":"MOE MobileRenterOcc"},"TotalSigFamilyUnits",{"$f":"\"MOE \"&AT107","v":"MOE TotalSigFamilyUnits"},"TotalMultiFamilyUnits",{"$f":"\"MOE \"&AV107","v":"MOE TotalMultiFamilyUnits"},"TotalMobileUnits",{"$f":"\"MOE \"&AX107","v":"MOE TotalMobileUnits"},"YrHouseBuilt2014Later",{"$f":"\"MOE \"&AZ107","v":"MOE YrHouseBuilt2014Later"},"YrHouseBuilt2010-2013",{"$f":"\"MOE \"&BB107","v":"MOE YrHouseBuilt2010-2013"},"YrHouseBuilt2000-2009",{"$f":"\"MOE \"&BD107","v":"MOE YrHouseBuilt2000-2009"},"YrHouseBuilt1990-1999",{"$f":"\"MOE \"&BF107","v":"MOE YrHouseBuilt1990-1999"},"YrHouseBuilt1980-1989",{"$f":"\"MOE \"&BH107","v":"MOE YrHouseBuilt1980-1989"},"YrHouseBuilt1970-1979",{"$f":"\"MOE \"&BJ107","v":"MOE YrHouseBuilt1970-1979"},"YrHouseBuilt1960-1969",{"$f":"\"MOE \"&BL107","v":"MOE YrHouseBuilt1960-1969"},"YrHouseBuilt1950-1959",{"$f":"\"MOE \"&BN107","v":"MOE YrHouseBuilt1950-1959"},"YrHouseBuilt1940-1949",{"$f":"\"MOE \"&BP107","v":"MOE YrHouseBuilt1940-1949"},"YrHouseBuilt1939orEarlier",{"$f":"\"MOE \"&BR107","v":"MOE YrHouseBuilt1939orEarlier"},"NoBedrooms",{"$f":"\"MOE \"&BT107","v":"MOE NoBedrooms"},"1Bedroom",{"$f":"\"MOE \"&BV107","v":"MOE 1Bedroom"},"2Bedroom",{"$f":"\"MOE \"&BX107","v":"MOE 2Bedroom"},"3Bedroom",{"$f":"\"MOE \"&BZ107","v":"MOE 3Bedroom"},"4+Bedroom",{"$f":"\"MOE \"&CB107","v":"MOE 4+Bedroom"}]
[{"$f":"VLOOKUP(DropDownList!$B$47,CntyQryCensus!$A$510:$DA$522,A$1)","v":"Barrington"},3244,196,2961,178,2392,209,569,151,283,138,0,114,0,114,61,69,0,114,200,117,8389,19,6868,472,1521,473,2961,178,2392,209,2021,185,21,256.09568524284043,350,155.66630977832037,569,151,236,108,249,224.64638879803965,84,134.83323032546539,2479,181,270,195.28440797974631,495,172.15400082484288,161,69,322,112,653,155,810,174,571,143,248,105,188,95,82,82,209,80,0,114,247,105,814,201,1686,219,497,135.60235986147143]
[]
["Disability Data"]
["NAME","TotalPop",{"$f":"\"MOE \"&B111","v":"MOE TotalPop"},"PopUnder 5 years:",{"$f":"\"MOE \"&D111","v":"MOE PopUnder 5 years:"},{"$f":"D$111&\"-WithDisability\"","v":"PopUnder 5 years:-WithDisability"},{"$f":"\"MOE \"&F111","v":"MOE PopUnder 5 years:-WithDisability"},{"$f":"D111&\"-NoDisability\"","v":"PopUnder 5 years:-NoDisability"},{"$f":"\"MOE \"&H111","v":"MOE PopUnder 5 years:-NoDisability"},"PopUnder 5 to 17years:",{"$f":"\"MOE \"&J111","v":"MOE PopUnder 5 to 17years:"},{"$f":"J$111&\"-WithDisability\"","v":"PopUnder 5 to 17years:-WithDisability"},{"$f":"\"MOE \"&L111","v":"MOE PopUnder 5 to 17years:-WithDisability"},{"$f":"J111&\"-NoDisability\"","v":"PopUnder 5 to 17years:-NoDisability"},{"$f":"\"MOE \"&N111","v":"MOE PopUnder 5 to 17years:-NoDisability"},"PopUnder 18 to 34 years:",{"$f":"\"MOE \"&P111","v":"MOE PopUnder 18 to 34 years:"},{"$f":"P$111&\"-WithDisability\"","v":"PopUnder 18 to 34 years:-WithDisability"},{"$f":"\"MOE \"&R111","v":"MOE PopUnder 18 to 34 years:-WithDisability"},{"$f":"P111&\"-NoDisability\"","v":"PopUnder 18 to 34 years:-NoDisability"},{"$f":"\"MOE \"&T111","v":"MOE PopUnder 18 to 34 years:-NoDisability"},"Pop 35 years to 64:",{"$f":"\"MOE \"&V111","v":"MOE Pop 35 years to 64:"},{"$f":"$V$111&\"-WithDisability\"","v":"Pop 35 years to 64:-WithDisability"},{"$f":"\"MOE \"&X111","v":"MOE Pop 35 years to 64:-WithDisability"},{"$f":"$V$111&\"-NoDisability\"","v":"Pop 35 years to 64:-NoDisability"},{"$f":"\"MOE \"&Z111","v":"MOE Pop 35 years to 64:-NoDisability"},"Pop 65 years to 74:",{"$f":"\"MOE \"&AB111","v":"MOE Pop 65 years to 74:"},{"$f":"$AB$111&\"-WithDisability\"","v":"Pop 65 years to 74:-WithDisability"},{"$f":"\"MOE \"&AD111","v":"MOE Pop 65 years to 74:-WithDisability"},{"$f":"$AB$111&\"-NoDisability\"","v":"Pop 65 years to 74:-NoDisability"},{"$f":"\"MOE \"&AF111","v":"MOE Pop 65 years to 74:-NoDisability"},"Pop 75 and older:",{"$f":"\"MOE \"&AH111","v":"MOE Pop 75 and older:"},{"$f":"$AH$111&\"-WithDisability\"","v":"Pop 75 and older:-WithDisability"},{"$f":"\"MOE \"&AJ111","v":"MOE Pop 75 and older:-WithDisability"},{"$f":"$AH$111&\"-NoDisability\"","v":"Pop 75 and older:-NoDisability"},{"$f":"\"MOE \"&AL111","v":"MOE Pop 75 and older:-NoDisability"},"TotalPopUnder5_HearingDisability",{"$f":"\"MOE \"&AN111","v":"MOE TotalPopUnder5_HearingDisability"},"TotalPopUnder5_HearingDisability",{"$f":"\"MOE \"&AP111","v":"MOE TotalPopUnder5_HearingDisability"},"TotalPop18To34_HearingDisability",{"$f":"\"MOE \"&AR111","v":"MOE TotalPop18To34_HearingDisability"},"TotalPop35To64_HearingDisability",{"$f":"\"MOE \"&AT111","v":"MOE TotalPop35To64_HearingDisability"},"TotalPop65To74_HearingDisability",{"$f":"\"MOE \"&AV111","v":"MOE TotalPop65To74_HearingDisability"},"TotalPop75andOlder_HearingDisability",{"$f":"\"MOE \"&AX111","v":"MOE TotalPop75andOlder_HearingDisability"},"TotalPopUnder5_VisionDisability",{"$f":"\"MOE \"&AZ111","v":"MOE TotalPopUnder5_VisionDisability"},"TotalPop5To17_VisionDisability",{"$f":"\"MOE \"&BB111","v":"MOE TotalPop5To17_VisionDisability"},"TotalPop18To34_VisionDisability",{"$f":"\"MOE \"&BD111","v":"MOE TotalPop18To34_VisionDisability"},"TotalPop35To64_VisionDisability",{"$f":"\"MOE \"&BF111","v":"MOE TotalPop35To64_VisionDisability"},"TotalPop65To74_VisionDisability",{"$f":"\"MOE \"&BH111","v":"MOE TotalPop65To74_VisionDisability"},"TotalPop75andOlder_VisionDisability",{"$f":"\"MOE \"&BJ111","v":"MOE TotalPop75andOlder_VisionDisability"},"TotalPop5To17_CongnitiveDisability",{"$f":"\"MOE \"&BL111","v":"MOE TotalPop5To17_CongnitiveDisability"},"TotalPop18To34_CongnitiveDisability",{"$f":"\"MOE \"&BN111","v":"MOE TotalPop18To34_CongnitiveDisability"},"TotalPop35To64_CongnitiveDisability",{"$f":"\"MOE \"&BP111","v":"MOE TotalPop35To64_CongnitiveDisability"},"TotalPop65To74_CongnitiveDisability",{"$f":"\"MOE \"&BR111","v":"MOE TotalPop65To74_CongnitiveDisability"},"TotalPop75andOlder_CongnitiveDisability",{"$f":"\"MOE \"&BT111","v":"MOE TotalPop75andOlder_CongnitiveDisability"},"TotalPop5To17_AmbulatoryDisability",{"$f":"\"MOE \"&BV111","v":"MOE TotalPop5To17_AmbulatoryDisability"},"TotalPop18To34_AmbulatoryDisability",{"$f":"\"MOE \"&BX111","v":"MOE TotalPop18To34_AmbulatoryDisability"},"TotalPop35To64_AmbulatoryDisability",{"$f":"\"MOE \"&BZ111","v":"MOE TotalPop35To64_AmbulatoryDisability"},"TotalPop65To74_AmbulatoryDisability",{"$f":"\"MOE \"&CB111","v":"MOE TotalPop65To74_AmbulatoryDisability"},"TotalPop75andOlder_AmbulatoryDisability",{"$f":"\"MOE \"&CD111","v":"MOE TotalPop75andOlder_AmbulatoryDisability"},"TotalPop5To17_SelfCareDisability",{"$f":"\"MOE \"&CF111","v":"MOE TotalPop5To17_SelfCareDisability"},"TotalPop18To34_SelfCareDisability",{"$f":"\"MOE \"&CH111","v":"MOE TotalPop18To34_SelfCareDisability"},"TotalPop35To64_SelfCareDisability",{"$f":"\"MOE \"&CJ111","v":"MOE TotalPop35To64_SelfCareDisability"},"TotalPop65To74_SelfCareDisability",{"$f":"\"MOE \"&CL111","v":"MOE TotalPop65To74_SelfCareDisability"},"TotalPop75andOlder_SelfCareDisability",{"$f":"\"MOE \"&CN111","v":"MOE TotalPop75andOlder_SelfCareDisability"},"TotalPop18To34_IndependantLivingDisability",{"$f":"\"MOE \"&CP111","v":"MOE TotalPop18To34_IndependantLivingDisability"},"TotalPop35To64_IndependantLivingDisability",{"$f":"\"MOE \"&CR111","v":"MOE TotalPop35To64_IndependantLivingDisability"},"TotalPop65To74_IndependantLivingDisability",{"$f":"\"MOE \"&CT111","v":"MOE TotalPop65To74_IndependantLivingDisability"},"TotalPop75andOlder_IndependantLivingDisability",{"$f":"\"MOE \"&CV111","v":"MOE TotalPop75andOlder_IndependantLivingDisability"},"TotalUnder5_HearingorVisionDisability",{"$f":"\"MOE \"&CX111","v":"MOE TotalUnder5_HearingorVisionDisability"},"TotalUnder5_HearingandVisionDisability",{"$f":"\"MOE \"&CZ111","v":"MOE TotalUnder5_HearingandVisionDisability"},"5to17YearWIthOneDisability",{"$f":"\"MOE \"&DB111","v":"MOE 5to17YearWIthOneDisability"},"5to17YearWIthTwoOrMoreDisability",{"$f":"\"MOE \"&DD111","v":"MOE 5to17YearWIthTwoOrMoreDisability"},"18to34YearWIthOneDisability",{"$f":"\"MOE \"&DF111","v":"MOE 18to34YearWIthOneDisability"},"18to34YearWIthTwoOrMoreDisability",{"$f":"\"MOE \"&DH111","v":"MOE 18to34YearWIthTwoOrMoreDisability"},"35to64YearWIthOneDisability",{"$f":"\"MOE \"&DJ111","v":"MOE 35to64YearWIthOneDisability"},"35to64YearWIthTwoOrMoreDisability",{"$f":"\"MOE \"&DL111","v":"MOE 35to64YearWIthTwoOrMoreDisability"},"65to74YearWIthOneDisability",{"$f":"\"MOE \"&DN111","v":"MOE 65to74YearWIthOneDisability"},"65to74YearWIthTwoOrMoreDisability",{"$f":"\"MOE \"&DP111","v":"MOE 65to74YearWIthTwoOrMoreDisability"},"75AndOlderWIthOneDisability",{"$f":"\"MOE \"&DR111","v":"MOE 75AndOlderWIthOneDisability"},"75AndOlderWIthTwoOrMoreDisability",{"$f":"\"MOE \"&DT111","v":"MOE 75AndOlderWIthTwoOrMoreDisability"}]
[{"$f":"VLOOKUP(DropDownList!$B$47,CntyQryCensus!$A$510:$DA$522,A$1)","v":"Barrington"},8979,19,598,211.45448682872635,0,22.627416997969522,598,211.45448682872635,1383,229.53866776645717,61,92.395887354362259,1322,248.96586111352696,1545,359.61090083588959,219,140.08925726121899,1326,383.04699450589612,4684,396.40887981981433,611,237.13498265755729,4073,384.06900421669019,561,184.20097719610501,154,119.07980517283357,407,141.76741515595182,208,135.09256086106296,92,100.62305898749054,116,89.627004859026727,0,22.627416997969522,0,22.627416997969522,0,22.627416997969522,66,65.76473218982953,85,81.584312217484552,57,91.411159056211517,0,22.627416997969522,61,92.395887354362259,38,59.203040462462738,49,66.940271884718243,37,45.880278987817846,23,42.154477816715982,59,47.75981574503821,45,42.720018726587654,70,55.758407437802596,103,98.290386101591849,58,42.80186911806539,0,22.627416997969522,15,28.0178514522438,136,88.76936408468859,134,102.95630140987001,95,58.728187440104094,0,22.627416997969522,0,22.627416997969522,143,143.45033983926285,17,32.249030993194197,23,42.154477816715982,96,104.80458005259122,235,174.1551032843999,17,32.249030993194197,80,98.086696345630884,61,91,0,16,448,216,382,216,112,115,134,110]
[]
["Househould Income By Age"]
["NAME","TotalHouseholds",{"$f":"\"MOE \"&B115","v":"MOE TotalHouseholds"},"HHInc<10K",{"$f":"\"MOE \"&D115","v":"MOE HHInc<10K"},"HHInc10to15K",{"$f":"\"MOE \"&F115","v":"MOE HHInc10to15K"},"HHInc15to20K",{"$f":"\"MOE \"&H115","v":"MOE HHInc15to20K"},"HHInc20to25K",{"$f":"\"MOE \"&J115","v":"MOE HHInc20to25K"},"HHInc25to30K",{"$f":"\"MOE \"&L115","v":"MOE HHInc25to30K"},"HHInc30to35K",{"$f":"\"MOE \"&N115","v":"MOE HHInc30to35K"},"HHInc35to40K",{"$f":"\"MOE \"&P115","v":"MOE HHInc35to40K"},"HHInc40to45K",{"$f":"\"MOE \"&R115","v":"MOE HHInc40to45K"},"HHInc45to50K",{"$f":"\"MOE \"&T115","v":"MOE HHInc45to50K"},"HHInc50to60K",{"$f":"\"MOE \"&V115","v":"MOE HHInc50to60K"},"HHInc60to75K",{"$f":"\"MOE \"&X115","v":"MOE HHInc60to75K"},"HHInc75to100K",{"$f":"\"MOE \"&Z115","v":"MOE HHInc75to100K"},"HHInc100to125K",{"$f":"\"MOE \"&AB115","v":"MOE HHInc100to125K"},"HHInc125to150K",{"$f":"\"MOE \"&AD115","v":"MOE HHInc125to150K"},"HHInc150to200K",{"$f":"\"MOE \"&AF115","v":"MOE HHInc150to200K"},"HHInc>200K",{"$f":"\"MOE \"&AH115","v":"MOE HHInc>200K"},"TotalHH",{"$f":"\"MOE \"&AJ115","v":"MOE TotalHH"},"HHAgeHHUnder25yrs",{"$f":"\"MOE \"&AL115","v":"MOE HHAgeHHUnder25yrs"},"HHAgeHH<25HHInc<10K",{"$f":"\"MOE \"&AN115","v":"MOE HHAgeHH<25HHInc<10K"},"HHAgeHH<25HHInc10to15K",{"$f":"\"MOE \"&AP115","v":"MOE HHAgeHH<25HHInc10to15K"},"HHAgeHH<25HHInc15to20K",{"$f":"\"MOE \"&AR115","v":"MOE HHAgeHH<25HHInc15to20K"},"HHAgeHH<25HHInc20to25K",{"$f":"\"MOE \"&AT115","v":"MOE HHAgeHH<25HHInc20to25K"},"HHAgeHH<25HHInc25to30K",{"$f":"\"MOE \"&AV115","v":"MOE HHAgeHH<25HHInc25to30K"},"HHAgeHH<25HHInc30to35K",{"$f":"\"MOE \"&AX115","v":"MOE HHAgeHH<25HHInc30to35K"},"HHAgeHH<25HHInc35to40K",{"$f":"\"MOE \"&AZ115","v":"MOE HHAgeHH<25HHInc35to40K"},"HHAgeHH<25HHInc40to45K",{"$f":"\"MOE \"&BB115","v":"MOE HHAgeHH<25HHInc40to45K"},"HHAgeHH<25HHInc45to50K",{"$f":"\"MOE \"&BD115","v":"MOE HHAgeHH<25HHInc45to50K"},"HHAgeHH<25HHInc50to60K",{"$f":"\"MOE \"&BF115","v":"MOE HHAgeHH<25HHInc50to60K"},"HHAgeHH<25HHInc60to75K",{"$f":"\"MOE \"&BH115","v":"MOE HHAgeHH<25HHInc60to75K"},"HHAgeHH<25HHInc75to100K",{"$f":"\"MOE \"&BJ115","v":"MOE HHAgeHH<25HHInc75to100K"},"HHAgeHH<25HHInc100to125K",{"$f":"\"MOE \"&BL115","v":"MOE HHAgeHH<25HHInc100to125K"},"HHAgeHH<25HHInc125to150K",{"$f":"\"MOE \"&BN115","v":"MOE HHAgeHH<25HHInc125to150K"},"HHAgeHH<25HHInc150to200K",{"$f":"\"MOE \"&BP115","v":"MOE HHAgeHH<25HHInc150to200K"},"HHAge<25HHInc>200K",{"$f":"\"MOE \"&BR115","v":"MOE HHAge<25HHInc>200K"},"HHAgeHH25to44yrs",{"$f":"\"MOE \"&BT115","v":"MOE HHAgeHH25to44yrs"},"HHAgeHH25To44yrsHHInc<10K",{"$f":"\"MOE \"&BV115","v":"MOE HHAgeHH25To44yrsHHInc<10K"},"HHAgeHH25To44yrsHHInc10to15K",{"$f":"\"MOE \"&BX115","v":"MOE HHAgeHH25To44yrsHHInc10to15K"},"HHAgeHH25To44yrsHHInc15to20K",{"$f":"\"MOE \"&BZ115","v":"MOE HHAgeHH25To44yrsHHInc15to20K"},"HHAgeHH25To44yrsHHInc20to25K",{"$f":"\"MOE \"&CB115","v":"MOE HHAgeHH25To44yrsHHInc20to25K"},"HHAgeHH25To44yrsHHInc25to30K",{"$f":"\"MOE \"&CD115","v":"MOE HHAgeHH25To44yrsHHInc25to30K"},"HHAgeHH25To44yrsHHInc30to35K",{"$f":"\"MOE \"&CF115","v":"MOE HHAgeHH25To44yrsHHInc30to35K"},"HHAgeHH25To44yrsHHInc35to40K",{"$f":"\"MOE \"&CH115","v":"MOE HHAgeHH25To44yrsHHInc35to40K"},"HHAgeHH25To44yrsHHInc40to45K",{"$f":"\"MOE \"&CJ115","v":"MOE HHAgeHH25To44yrsHHInc40to45K"},"HHAgeHH25To44yrsHHInc45to50K",{"$f":"\"MOE \"&CL115","v":"MOE HHAgeHH25To44yrsHHInc45to50K"},"HHAgeHH25To44yrsHHInc50to60K",{"$f":"\"MOE \"&CN115","v":"MOE HHAgeHH25To44yrsHHInc50to60K"},"HHAgeHH25To44yrsHHInc60to75K",{"$f":"\"MOE \"&CP115","v":"MOE HHAgeHH25To44yrsHHInc60to75K"},"HHAgeHH25To44yrsHHInc75to100K",{"$f":"\"MOE \"&CR115","v":"MOE HHAgeHH25To44yrsHHInc75to100K"},"HHAgeHH25To44yrsHHInc100to125K",{"$f":"\"MOE \"&CT115","v":"MOE HHAgeHH25To44yrsHHInc100to125K"},"HHAgeHH25To44yrsHHInc125to150K",{"$f":"\"MOE \"&CV115","v":"MOE HHAgeHH25To44yrsHHInc125to150K"},"HHAgeHH25To44yrsHHInc150to200K",{"$f":"\"MOE \"&CX115","v":"MOE HHAgeHH25To44yrsHHInc150to200K"},"HHAge25To44yrsHHInc>200K",{"$f":"\"MOE \"&CZ115","v":"MOE HHAge25To44yrsHHInc>200K"},"HHAgeHH45To64yrs",{"$f":"\"MOE \"&DB115","v":"MOE HHAgeHH45To64yrs"},"HHAgeHH45To64yrsHHInc<10K",{"$f":"\"MOE \"&DD115","v":"MOE HHAgeHH45To64yrsHHInc<10K"},"HHAgeHH45To64yrsHHInc10to15K",{"$f":"\"MOE \"&DF115","v":"MOE HHAgeHH45To64yrsHHInc10to15K"},"HHAgeHH45To64yrsHHInc15to20K",{"$f":"\"MOE \"&DH115","v":"MOE HHAgeHH45To64yrsHHInc15to20K"},"HHAgeHH45To64yrsHHInc20to25K",{"$f":"\"MOE \"&DJ115","v":"MOE HHAgeHH45To64yrsHHInc20to25K"},"HHAgeHH45To64yrsHHInc25to30K",{"$f":"\"MOE \"&DL115","v":"MOE HHAgeHH45To64yrsHHInc25to30K"},"HHAgeHH45To64yrsHHInc30to35K",{"$f":"\"MOE \"&DN115","v":"MOE HHAgeHH45To64yrsHHInc30to35K"},"HHAgeHH45To64yrsHHInc35to40K",{"$f":"\"MOE \"&DP115","v":"MOE HHAgeHH45To64yrsHHInc35to40K"},"HHAgeHH45To64yrsHHInc40to45K",{"$f":"\"MOE \"&DR115","v":"MOE HHAgeHH45To64yrsHHInc40to45K"},"HHAgeHH45To64yrsHHInc45to50K",{"$f":"\"MOE \"&DT115","v":"MOE HHAgeHH45To64yrsHHInc45to50K"},"HHAgeHH45To64yrsHHInc50to60K",{"$f":"\"MOE \"&DV115","v":"MOE HHAgeHH45To64yrsHHInc50to60K"},"HHAgeHH45To64yrsHHInc60to75K",{"$f":"\"MOE \"&DX115","v":"MOE HHAgeHH45To64yrsHHInc60to75K"},"HHAgeHH45To64yrsHHInc75to100K",{"$f":"\"MOE \"&DZ115","v":"MOE HHAgeHH45To64yrsHHInc75to100K"},"HHAgeHH45To64yrsHHInc100to125K",{"$f":"\"MOE \"&EB115","v":"MOE HHAgeHH45To64yrsHHInc100to125K"},"HHAgeHH45To64yrsHHInc125to150K",{"$f":"\"MOE \"&ED115","v":"MOE HHAgeHH45To64yrsHHInc125to150K"},"HHAgeHH45To64yrsHHInc150to200K",{"$f":"\"MOE \"&EF115","v":"MOE HHAgeHH45To64yrsHHInc150to200K"},"HHAge45To64yrsHHInc>200K",{"$f":"\"MOE \"&EH115","v":"MOE HHAge45To64yrsHHInc>200K"},"HHAgeHH65yrsorOlder",{"$f":"\"MOE \"&EJ115","v":"MOE HHAgeHH65yrsorOlder"},"HHAgeHH65yrsorOlderHHInc<10K",{"$f":"\"MOE \"&EL115","v":"MOE HHAgeHH65yrsorOlderHHInc<10K"},"HHAgeHH65yrsorOlderHHInc10to15K",{"$f":"\"MOE \"&EN115","v":"MOE HHAgeHH65yrsorOlderHHInc10to15K"},"HHAgeHH65yrsorOlderHHInc15to20K",{"$f":"\"MOE \"&EP115","v":"MOE HHAgeHH65yrsorOlderHHInc15to20K"},"HHAgeHH65yrsorOlderHHInc20to25K",{"$f":"\"MOE \"&ER115","v":"MOE HHAgeHH65yrsorOlderHHInc20to25K"},"HHAgeHH65yrsorOlderHHInc25to30K",{"$f":"\"MOE \"&ET115","v":"MOE HHAgeHH65yrsorOlderHHInc25to30K"},"HHAgeHH65yrsorOlderHHInc30to35K",{"$f":"\"MOE \"&EV115","v":"MOE HHAgeHH65yrsorOlderHHInc30to35K"},"HHAgeHH65yrsorOlderHHInc35to40K",{"$f":"\"MOE \"&EX115","v":"MOE HHAgeHH65yrsorOlderHHInc35to40K"},"HHAgeHH65yrsorOlderHHInc40to45K",{"$f":"\"MOE \"&EZ115","v":"MOE HHAgeHH65yrsorOlderHHInc40to45K"},"HHAgeHH65yrsorOlderHHInc45to50K",{"$f":"\"MOE \"&FB115","v":"MOE HHAgeHH65yrsorOlderHHInc45to50K"},"HHAgeHH65yrsorOlderHHInc50to60K",{"$f":"\"MOE \"&FD115","v":"MOE HHAgeHH65yrsorOlderHHInc50to60K"},"HHAgeHH65yrsorOlderHHInc60to75K",{"$f":"\"MOE \"&FF115","v":"MOE HHAgeHH65yrsorOlderHHInc60to75K"},"HHAgeHH65yrsorOlderHHInc75to100K",{"$f":"\"MOE \"&FH115","v":"MOE HHAgeHH65yrsorOlderHHInc75to100K"},"HHAgeHH65yrsorOlderHHInc100to125K",{"$f":"\"MOE \"&FJ115","v":"MOE HHAgeHH65yrsorOlderHHInc100to125K"},"HHAgeHH65yrsorOlderHHInc125to150K",{"$f":"\"MOE \"&FL115","v":"MOE HHAgeHH65yrsorOlderHHInc125to150K"},"HHAgeHH65yrsorOlderHHInc150to200K",{"$f":"\"MOE \"&FN115","v":"MOE HHAgeHH65yrsorOlderHHInc150to200K"},"HHAge65yrsorOlderHHInc>200K",{"$f":"\"MOE \"&FP115","v":"MOE HHAge65yrsorOlderHHInc>200K"},"MedianHHInc",{"$f":"\"MOE \"&FR115","v":"MOE MedianHHInc"},"HH under 25 years",{"$f":"\"MOE \"&FT115","v":"MOE HH under 25 years"},"Householder 25 to 44 years",{"$f":"\"MOE \"&FV115","v":"MOE Householder 25 to 44 years"},"Householder 45 to 64 years",{"$f":"\"MOE \"&FX115","v":"MOE Householder 45 to 64 years"},"Householder 65 years and over",{"$f":"\"MOE \"&FZ115","v":"MOE Householder 65 years and over"}]
[{"$f":"VLOOKUP(DropDownList!$B$47,CntyQryCensus!$A$510:$DA$522,A$1)","v":"Barrington"},2961,178,39,37,14,22,92,87,88,56,101,67,102,65,101,62,118,75,223,116,102,54,588,152,623,129,367,111,231,103,148,78,24,28,2961,178,82,65,16,25,0,114,0,114,0,114,26,41,20,32,0,114,0,114,0,114,0,114,0,114,0,114,0,114,20,33,0,114,0,114,1298,124,0,114,0,114,41,65,21,25,48,44,22,34,65,55,52,52,90,93,27,24,307,120,329,100,139,65,97,70,60,36,0,114,1282,148,23,27,14,22,0,114,55,43,27,31,30,32,36,33,52,48,87,66,46,35,220,98,249,88,228,93,103,58,88,73,24,28,299,91,0,114,0,114,51,59,12,20,0,114,30,34,0,114,14,23,46,41,29,32,61,42,45,40,0,114,11,18,0,114,0,114,73449,4244,29904,51400,73696,6938,81019,12297,49271,17394,297,135,195,132,null,null,null,null,null,null,null,null,null,null,null,null,null,null,"Barrington",null,"Esitimate","Margin Of Error",2987,193,null,null,48,47,65,66,137,96.566039579139826,253,97.082439194738001,245,120.47406359876801,477,151.40013210033868,816,184,549,172.15400082484288,216,91,181,122]
[]
["Number of Households by Income"]
["NAME","HHIncLessThn10k",{"$f":"\"MOE \"&B119","v":"MOE HHIncLessThn10k"},"HHInc10to15K",{"$f":"\"MOE \"&D119","v":"MOE HHInc10to15K"},"HHInc15to25K",{"$f":"\"MOE \"&F119","v":"MOE HHInc15to25K"},"HHInc25to35K",{"$f":"\"MOE \"&H119","v":"MOE HHInc25to35K"},"HHInc35to50K",{"$f":"\"MOE \"&J119","v":"MOE HHInc35to50K"},"HHInc50to75K",{"$f":"\"MOE \"&L119","v":"MOE HHInc50to75K"},"HHInc75to100K",{"$f":"\"MOE \"&N119","v":"MOE HHInc75to100K"},"HHInc100to150K",{"$f":"\"MOE \"&P119","v":"MOE HHInc100to150K"},"HHInc150to200K",{"$f":"\"MOE \"&R119","v":"MOE HHInc150to200K"},"HHIncOver200K",{"$f":"\"MOE \"&T119","v":"MOE HHIncOver200K"}]
[{"$f":"VLOOKUP(DropDownList!$B$47,CntyQryCensus!$A$510:$DA$522,A$1)","v":"Barrington"},39,37,14,22,92,87,88,56,101,67,102,65,101,62,118,75,223,116,102,54,588,152,623,129,367,111,231,103,148,78,24,28,null,null,null,null,null,null,null,null,null,null,null,null,null,null,null,null,null,null,null,null,null,null,null,null,null,null,null,null,null,null,null,null,null,null,null,null,null,null,null,null,null,40,80,51,13,20,12,19,104,88,115,65,276,90,254,107,166,59,152,59,206,97,79,43,null,null,null,null,null,null,null,null,null,null,null,null,null,null,"Lee",null,"Esitimate","Margin Of Error",1774,134,null,null,83,74,28,43,92,104.58011283222064,43,49.244289008980523,174,91.586025134842487,256,114.63420083029322,271,92,490,193.9922678871506,225,98,112,70]
[]
[]
["NAME","TotalPop",{"$f":"\"MOE \"&B123","v":"MOE TotalPop"},"Total Individuals living in Poverty",{"$f":"\"MOE \"&D123","v":"MOE Total Individuals living in Poverty"},"Under 5 yrs.",{"$f":"\"MOE \"&F123","v":"MOE Under 5 yrs."},"5 to 17 yrs.",{"$f":"\"MOE \"&H123","v":"MOE 5 to 17 yrs."},"18 to 64 yrs.",{"$f":"\"MOE \"&J123","v":"MOE 18 to 64 yrs."},"65 to 74 yrs.",{"$f":"\"MOE \"&L123","v":"MOE 65 to 74 yrs."},"75 yrs. & Over",{"$f":"\"MOE \"&N123","v":"MOE 75 yrs. & Over"},"Total Individuals  Not living Poverty",{"$f":"\"MOE \"&P123","v":"MOE Total Individuals  Not living Poverty"},"Under 5 yrs.",{"$f":"\"MOE \"&R123","v":"MOE Under 5 yrs."},"5 to 17 yrs.",{"$f":"\"MOE \"&T123","v":"MOE 5 to 17 yrs."},"18 to 64 yrs.",{"$f":"\"MOE \"&V123","v":"MOE 18 to 64 yrs."},"65 to 74 yrs.",{"$f":"\"MOE \"&X123","v":"MOE 65 to 74 yrs."},"75 yrs. & Over",{"$f":"\"MOE \"&Z123","v":"MOE 75 yrs. & Over"},"Total HH",{"$f":"\"MOE \"&AB123","v":"MOE Total HH"},"Total Households Below Poverty",{"$f":"\"MOE \"&AD123","v":"MOE Total Households Below Poverty"},"Family Households in Poverty",{"$f":"\"MOE \"&AF123","v":"MOE Family Households in Poverty"},"Married Couple Fam HH",{"$f":"\"MOE \"&AH123","v":"MOE Married Couple Fam HH"},"Other Family",{"$f":"\"MOE \"&AJ123","v":"MOE Other Family"},"Male Head of Family HH no wife",{"$f":"\"MOE \"&AL123","v":"MOE Male Head of Family HH no wife"},"Female Head of Family HH no husband",{"$f":"\"MOE \"&AN123","v":"MOE Female Head of Family HH no husband"},"Non-Family HH",{"$f":"\"MOE \"&AP123","v":"MOE Non-Family HH"},"Non-Family Male HH",{"$f":"\"MOE \"&AR123","v":"MOE Non-Family Male HH"},"Non-Family Female HH",{"$f":"\"MOE \"&AT123","v":"MOE Non-Family Female HH"},"Total Households at or Above Poverty",{"$f":"\"MOE \"&AV123","v":"MOE Total Households at or Above Poverty"},"Family Households above Poverty",{"$f":"\"MOE \"&AX123","v":"MOE Family Households above Poverty"},"Married Couple Fam HH",{"$f":"\"MOE \"&AZ123","v":"MOE Married Couple Fam HH"},"Other Family",{"$f":"\"MOE \"&BB123","v":"MOE Other Family"},"Male Head of Family HH no wife",{"$f":"\"MOE \"&BD123","v":"MOE Male Head of Family HH no wife"},"Female Head of Family HH no husband",{"$f":"\"MOE \"&BF123","v":"MOE Female Head of Family HH no husband"},"Non-Family HH",{"$f":"\"MOE \"&BH123","v":"MOE Non-Family HH"},"Non-Family Male HH",{"$f":"\"MOE \"&BJ123","v":"MOE Non-Family Male HH"},"Non-Family Female HH",{"$f":"\"MOE \"&BL123","v":"MOE Non-Family Female HH"},"Married Couple with Children Below Poverty",{"$f":"\"MOE \"&BN123","v":"MOE Married Couple with Children Below Poverty"},"Male HH with children below poverty",{"$f":"\"MOE \"&BP123","v":"MOE Male HH with children below poverty"},"Female HH with children below poverty",{"$f":"\"MOE \"&BR123","v":"MOE Female HH with children below poverty"},"Married Couple with Children At or Above Poverty",{"$f":"\"MOE \"&BT123","v":"MOE Married Couple with Children At or Above Poverty"},"Male HH with children at or above poverty",{"$f":"\"MOE \"&BV123","v":"MOE Male HH with children at or above poverty"},"Female HH with children at or above poverty",{"$f":"\"MOE \"&BX123","v":"MOE Female HH with children at or above poverty"}]
[{"$f":"VLOOKUP(DropDownList!$B$47,CntyQryCensus!$A$510:$DA$522,A$1)","v":"Barrington"},8389,19,349,274,0,120.48651376813922,80,314.08756740756229,269,173.55978796944873,0,161.22034611053283,0,161.22034611053283,8040,278,632,161.52399202595259,1763,263.02851556437753,5100,413.51058027576511,358,92.021736562618727,187,89.872131386765275,97,83,43,67,0,114,84,88,43,67,0,114,43,67,54,46,25,30,29,32,2864,200,2263,169,2009,215,601,176,96,60,194,82,256,114,601,176,345,128,null,null,43,67,0,114,809,132,2263,169,789,148]
[]
["Household Income By Tenure"]
["NAME","TotalOccHU",{"$f":"\"MOE \"&B127","v":"MOE TotalOccHU"},"OwnOccHU",{"$f":"\"MOE \"&D127","v":"MOE OwnOccHU"},"OOHUInc<5K",{"$f":"\"MOE \"&F127","v":"MOE OOHUInc<5K"},"OOHUInc5to10K",{"$f":"\"MOE \"&H127","v":"MOE OOHUInc5to10K"},"OOHUInc10to15K",{"$f":"\"MOE \"&J127","v":"MOE OOHUInc10to15K"},"OOHUInc15to20K",{"$f":"\"MOE \"&L127","v":"MOE OOHUInc15to20K"},"OOHUInc20to25K",{"$f":"\"MOE \"&N127","v":"MOE OOHUInc20to25K"},"OOHUInc25to35K",{"$f":"\"MOE \"&P127","v":"MOE OOHUInc25to35K"},"OOHUInc35to50K",{"$f":"\"MOE \"&R127","v":"MOE OOHUInc35to50K"},"OOHUInc50to75K",{"$f":"\"MOE \"&T127","v":"MOE OOHUInc50to75K"},"OOHUInc75to100K",{"$f":"\"MOE \"&V127","v":"MOE OOHUInc75to100K"},"OOHUInc100to150K",{"$f":"\"MOE \"&X127","v":"MOE OOHUInc100to150K"},"OOHUInc>150K",{"$f":"\"MOE \"&Z127","v":"MOE OOHUInc>150K"},"RentOccHU",{"$f":"\"MOE \"&AB127","v":"MOE RentOccHU"},"ROHUInc<5K",{"$f":"\"MOE \"&AD127","v":"MOE ROHUInc<5K"},"ROHUInc5to10K",{"$f":"\"MOE \"&AF127","v":"MOE ROHUInc5to10K"},"ROHUInc10to15K",{"$f":"\"MOE \"&AH127","v":"MOE ROHUInc10to15K"},"ROHUInc15to20K",{"$f":"\"MOE \"&AJ127","v":"MOE ROHUInc15to20K"},"ROHUInc20to25K",{"$f":"\"MOE \"&AL127","v":"MOE ROHUInc20to25K"},"ROHUInc25to35K",{"$f":"\"MOE \"&AN127","v":"MOE ROHUInc25to35K"},"ROHUInc35to50K",{"$f":"\"MOE \"&AP127","v":"MOE ROHUInc35to50K"},"ROHUInc50to75K",{"$f":"\"MOE \"&AR127","v":"MOE ROHUInc50to75K"},"ROHUInc75to100K",{"$f":"\"MOE \"&AT127","v":"MOE ROHUInc75to100K"},"ROHUInc100to150K",{"$f":"\"MOE \"&AV127","v":"MOE ROHUInc100to150K"},"ROHUInc>150K",{"$f":"\"MOE \"&AX127","v":"MOE ROHUInc>150K"},"Total OCC HUInc<5K",{"$f":"\"MOE \"&AZ127","v":"MOE Total OCC HUInc<5K"},"Total OCC HUInc5to10K",{"$f":"\"MOE \"&BB127","v":"MOE Total OCC HUInc5to10K"},"Total OCC HUInc10to15K",{"$f":"\"MOE \"&BD127","v":"MOE Total OCC HUInc10to15K"},"Total OCC HUInc15to20K",{"$f":"\"MOE \"&BF127","v":"MOE Total OCC HUInc15to20K"},"Total OCC HUInc20to25K",{"$f":"\"MOE \"&BH127","v":"MOE Total OCC HUInc20to25K"},"Total OCC HUInc25to35K",{"$f":"\"MOE \"&BJ127","v":"MOE Total OCC HUInc25to35K"},"Total OCC HUInc35to50K",{"$f":"\"MOE \"&BL127","v":"MOE Total OCC HUInc35to50K"},"Total OCC HUInc50to75K",{"$f":"\"MOE \"&BN127","v":"MOE Total OCC HUInc50to75K"},"Total OCC HUInc75to100K",{"$f":"\"MOE \"&BP127","v":"MOE Total OCC HUInc75to100K"},"Total OCC HUInc100to150K",{"$f":"\"MOE \"&BR127","v":"MOE Total OCC HUInc100to150K"},"Total OCC HUInc>150K",{"$f":"\"MOE \"&BT127","v":"MOE Total OCC HUInc>150K"},"MedHHInc",{"$f":"\"MOE \"&BV127","v":"MOE MedHHInc"},"MedOwnOccHHInc",{"$f":"\"MOE \"&BX127","v":"MOE MedOwnOccHHInc"},"MedRentOccHHInc",{"$f":"\"MOE \"&BZ127","v":"MOE MedRentOccHHInc"}]
[{"$f":"VLOOKUP(DropDownList!$B$47,CntyQryCensus!$A$510:$DA$522,A$1)","v":"Barrington"},2961,178,2392,209,0,114,23,27,14,22,15,25,66,51,144,77,268,119,578,151,541,133,571,138,172,78,569,151,0,114,16,25,0,114,77,85,22,26,59,43,174,111,112,75,82,75,27,30,0,114,0,161.22034611053283,39,36.796738985948195,14,116.10340218959993,92,88.600225733346747,88,57.245087125446844,203,88.192970241397362,442,162.73291000900832,690,168.60011862392031,623,152.68922686293229,598,141.22322755127783,172,138.13037319865606,73449,4244,78060,6232,45504,6746]
[]
["Population Data"]
["NAME","Total Population","MOE Total Population","Under 15 Years","MOE Under 15 yrs.","15 to 24 yrs.","MOE 15 to 24 yrs.","25 to 34 yrs.","MOE 25 to 34 yrs.","35 to 44 yrs.","MOE 35 to 44 yrs.","45 to 54 yrs.","MOE 45 to 54 yrs.","55 to 64 yrs.","MOE 55 to 64 yrs.","65 to 74 yrs.","MOE 65 to 74 yrs.","Over 74 yrs. ","MOE Over 74 yrs. ","TotalHH","MOE TotalHH","FamilyHH","MOE FamilyHH","MarriedFamilyHH","MOE MarriedFamilyHH","SingleFamilyHH","MOE SingleFamilyHH","Sfamily-MaleHH","MOE Sfamily-MaleHH","Sfamily-FemaleHH","MOE Sfamily-FemaleHH","NonFamilyHH","MOE NonFamilyHH","NonFamilyHH-LivingAlone","MOE NonFamilyHH-LivingAlone","NonFamilyHH-NotLivingAlone","MOE NonFamilyHH-NotLivingAlone","PopRaceWhite","MOE PopRaceWhite","PopRaceBlack","MOE PopRaceBlack","PopRaceAmerican Indian","MOE PopRaceAmerican Indian","PopRaceAsian &Pacific Is.","MOE PopRaceAsian &Pacific Is.","PopRaceOther*","MOE PopRaceOther*","PopRaceHispanic or Latino:","MOE PopRaceHispanic or Latino:","MedianAgeTotalPop","MOE MedianAgeTotalPop","MedianAgeMale","MOE MedianAgeMale","MedianAgeFemale","MOE MedianAgeFemale","AvgHHSizeTotal","MOE AvgHHSizeTotal","AvgHHSizeFamilyHH","MOE AvgHHSizeFamilyHH","AvgHHSizeNonFamilyHH","MOE AvgHHSizeNonFamilyHH"]
[{"$f":"VLOOKUP(DropDownList!$B$47,CntyQryCensus!$A$510:$DA$522,A$1)","v":"Barrington"},8389,19,2139,277.52837692747744,845,249.63373169505758,984,210.29978601986261,1601,250.93226177596216,1381,198.76619430879086,894,201.88610650562362,358,109.80437149767764,187,145.5403724057349,2961,178,2306,136,1973,183,333,113,96,60,237,103,655,188,510,171,145,78,8083,162,60,88,14,22,54,124.88794977899188,44,126.57408897558773,134,122,37.1,2.4,36.799999999999997,4.8,37.200000000000003,2,2.8331644714623438,0.17,3.2792714657415436,0.31610874941256284,1.2625954198473281,0.65567039607870381,null,null,null,null,null,null,null,null,null,null,null,null,null,null,null,null,null,null,null,null,null,null,null,null,null,null,null,null,null,null,null,null,null,null,null,null,null,null,null,null,null,null,null,null,29,535,534]
[]
["Nativity and Prior Place of Residence"]
["NAME","TotalPop",{"$f":"\"MOE \"&B135","v":"MOE TotalPop"},"Native:",{"$f":"\"MOE \"&D135","v":"MOE Native:"},"NatBornInStateOfResidence",{"$f":"\"MOE \"&F135","v":"MOE NatBornInStateOfResidence"},"Born in other state in the United States:",{"$f":"\"MOE \"&H135","v":"MOE Born in other state in the United States:"},"Northeast",{"$f":"\"MOE \"&J135","v":"MOE Northeast"},"Midwest",{"$f":"\"MOE \"&L135","v":"MOE Midwest"},"South",{"$f":"\"MOE \"&N135","v":"MOE South"},"West",{"$f":"\"MOE \"&P135","v":"MOE West"},"Born outside the United States:",{"$f":"\"MOE \"&R135","v":"MOE Born outside the United States:"},"Puerto Rico",{"$f":"\"MOE \"&T135","v":"MOE Puerto Rico"},"U.S. Island Areas",{"$f":"\"MOE \"&V135","v":"MOE U.S. Island Areas"},"Born abroad of American parent(s)",{"$f":"\"MOE \"&X135","v":"MOE Born abroad of American parent(s)"},"Foreign born:",{"$f":"\"MOE \"&Z135","v":"MOE Foreign born:"},"Naturalized U.S. citizen",{"$f":"\"MOE \"&AB135","v":"MOE Naturalized U.S. citizen"},"Not a U.S. citizen",{"$f":"\"MOE \"&AD135","v":"MOE Not a U.S. citizen"},"CurrentResidenceTotal:",{"$f":"\"MOE \"&AF135","v":"MOE CurrentResidenceTotal:"},"SameHouse:",{"$f":"\"MOE \"&AH135","v":"MOE SameHouse:"},"DifferentHouse:",{"$f":"\"MOE \"&AJ135","v":"MOE DifferentHouse:"},"DiffHouseInNH",{"$f":"\"MOE \"&AL135","v":"MOE DiffHouseInNH"},"DiffHouseInNHSameCnty",{"$f":"\"MOE \"&AN135","v":"MOE DiffHouseInNHSameCnty"},"DiffHouseInNHDiffCnty",{"$f":"\"MOE \"&AP135","v":"MOE DiffHouseInNHDiffCnty"},"DiffHouseInDiffState",{"$f":"\"MOE \"&AR135","v":"MOE DiffHouseInDiffState"},"DiffHouseInElsewhere",{"$f":"\"MOE \"&AT135","v":"MOE DiffHouseInElsewhere"}]
[{"$f":"VLOOKUP(DropDownList!$B$47,CntyQryCensus!$A$510:$DA$522,A$1)","v":"Barrington"},8389,19,8269,81,4712,307,3516,328,2949,287,230,106,190,109,147,87,41,42,0,114,0,114,41,42,120,77,89,57,31,49,8257,64,7202,438,1055,456.36936794662279,951,429.96860350495359,794,412,157,123,104,102,0,114]
[]
["School Enrollment - Education"]
["NAME","Total Pop 3 Years and Older","MOE Total Pop 3 Years and Older","SchEnrlPop3yrOver",{"$f":"\"MOE \"&D139","v":"MOE SchEnrlPop3yrOver"},"TotalEnrollNursy&Kinder",{"$f":"\"MOE \"&F139","v":"MOE TotalEnrollNursy&Kinder"},"NurserSchEnrl",{"$f":"\"MOE \"&H139","v":"MOE NurserSchEnrl"},"KinderSchEnrl",{"$f":"\"MOE \"&J139","v":"MOE KinderSchEnrl"},"ElemSchEnrl (1-8)",{"$f":"\"MOE \"&L139","v":"MOE ElemSchEnrl (1-8)"},"HighSchEnrl(9-12)",{"$f":"\"MOE \"&N139","v":"MOE HighSchEnrl(9-12)"},"TotalElementry&HSEnroll",{"$f":"\"MOE \"&P139","v":"MOE TotalElementry&HSEnroll"},"CollGradSchEnrl",{"$f":"\"MOE \"&R139","v":"MOE CollGradSchEnrl"},"PopNotEnrolled","MOE PopNotEnrolled","Pop25yrsOver",{"$f":"\"MOE \"&V139","v":"MOE Pop25yrsOver"},"EduAtain<9grd",{"$f":"\"MOE \"&X139","v":"MOE EduAtain<9grd"},"EduAtainHSnoDip",{"$f":"\"MOE \"&Z139","v":"MOE EduAtainHSnoDip"},"EduAtainHSgrad",{"$f":"\"MOE \"&AB139","v":"MOE EduAtainHSgrad"},"EduAtainCollNoDeg",{"$f":"\"MOE \"&AD139","v":"MOE EduAtainCollNoDeg"},"EduAtainAssocDeg",{"$f":"\"MOE \"&AF139","v":"MOE EduAtainAssocDeg"},"EduAtainBachDeg",{"$f":"\"MOE \"&AH139","v":"MOE EduAtainBachDeg"},"EduAtainGradProfDeg",{"$f":"\"MOE \"&AJ139","v":"MOE EduAtainGradProfDeg"}]
[{"$f":"VLOOKUP(DropDownList!$B$47,CntyQryCensus!$A$510:$DA$522,A$1)","v":"Barrington"},8025,121,2398,275,325,101.82337649086284,189,72,136,72,1204,230.48210342670859,512,145,1716,272.29946749856123,357,120.10412149464314,5627,235,5405,239,79,207.76188293332345,266,102.25458424931374,1535,233.77339455121918,1060,211.1539722572133,821,200.12246250733574,1033,190.3943276465977,286,92.612094242598786]
[]
["Occupied Owner Housing Value"]
["NAME","OwnerOccHU","MOE OwnerOccHU","AllOOHU<10k","MOE AllOOHU<10k","AllOOHU10to15k","MOE AllOOHU10to15k","AllOOHU15to20k","MOE AllOOHU15to20k","AllOOHU20to25k","MOE AllOOHU20to25k","AllOOHU25to30k","MOE AllOOHU25to30k","AllOOHU30to35k","MOE AllOOHU30to35k","AllOOHU35to40k","MOE AllOOHU35to40k","AllOOHU40to50k","MOE AllOOHU40to50k","AllOOHU50to60k","MOE AllOOHU50to60k","AllOOHU60to70k","MOE AllOOHU60to70k","AllOOHU70to80k","MOE AllOOHU70to80k","AllOOHU80to90k","MOE AllOOHU80to90k","AllOOHU90to100k","MOE AllOOHU90to100k","AllOOHU100to125k","MOE AllOOHU100to125k","AllOOHU125to150k","MOE AllOOHU125to150k","AllOOHU150to175k","MOE AllOOHU150to175k","AllOOHU175to200k","MOE AllOOHU175to200k","AllOOHU200to250k","MOE AllOOHU200to250k","AllOOHU250to300k","MOE AllOOHU250to300k","AllOOHU300to400k","MOE AllOOHU300to400k","AllOOHU400to500k","MOE AllOOHU400to500k","AllOOHU500to750k","MOE AllOOHU500to750k","AllOOHU750to1000k","MOE AllOOHU750to1000k","AllOOHU1000kmore","MOE AllOOHU1000kmore","MedianOwnOCCHomeValue","MOE MedianOwnOCCHomeValue","OnwerOccHsU","MOE OnwerOccHsU","OwnerCosts>20PctHHInc","MOE OwnerCosts>20PctHHInc","OwnerCosts20to29.9PctHHInc","MOE OwnerCosts20to29.9PctHHInc","OwnerCosts<30PctHHInc","MOE OwnerCosts<30PctHHInc","OwnerCosts>30PctHHInc","MOE OwnerCosts>30PctHHInc","OwnerCosts30to34.9PctHHInc","MOE OwnerCosts30to34.9PctHHInc","OwnerCosts<35PctHHInc","MOE OwnerCosts<35PctHHInc","OwnerCosts>35PctHHInc","MOE OwnerCosts>35PctHHInc","OwnerCosts>50PctHHInc","MOE OwnerCosts>50PctHHInc","OwnerCostsPctNotcomputed","MOE OwnerCostsPctNotcomputed","OwnerOHUHhInc<20k","MOE OwnerOHUHhInc<20k","OwnerOHUHhInc<20kHCosts<20pct","MOE OwnerOHUHhInc<20kHCosts<20pct","OwnerOHUHhInc<20kHCosts20to29pct","MOE OwnerOHUHhInc<20kHCosts20to29pct","OwnerOHUHhInc>20kHCosts30pct","MOE OwnerOHUHhInc>20kHCosts30pct","OwnerOHUHhInc20kTo34999","MOE OwnerOHUHhInc20kTo34999","OwnerOHUHhInc20kTo34999HCosts<20pct","MOE OwnerOHUHhInc20kTo34999HCosts<20pct","OwnerOHUHhInc20kTo34999HCosts20to29pct","MOE OwnerOHUHhInc20kTo34999HCosts20to29pct","OwnerOHUHhInc20kTo34999HCosts30pct","MOE OwnerOHUHhInc20kTo34999HCosts30pct","OwnerOHUHhInc35kTo49999","MOE OwnerOHUHhInc35kTo49999","OwnerOHUHhInc35kTo49999HCosts<20pct","MOE OwnerOHUHhInc35kTo49999HCosts<20pct","OwnerOHUHhInc35kTo49999HCosts20to29pct","MOE OwnerOHUHhInc35kTo49999HCosts20to29pct","OwnerOHUHhInc35kTo49999HCosts30pct","MOE OwnerOHUHhInc35kTo49999HCosts30pct","OwnerOHUHhInc50kTo74999","MOE OwnerOHUHhInc50kTo74999","OwnerOHUHhInc50kTo74999HCosts<20pct","MOE OwnerOHUHhInc50kTo74999HCosts<20pct","OwnerOHUHhInc50kTo74999HCosts20to29pct","MOE OwnerOHUHhInc50kTo74999HCosts20to29pct","OwnerOHUHhInc50kTo74999HCosts30pct","MOE OwnerOHUHhInc50kTo74999HCosts30pct","OwnerOHUHhInc>75000","MOE OwnerOHUHhInc>75000","OwnerOHUHhInc>75000HCosts<20pct","MOE OwnerOHUHhInc>75000HCosts<20pct","OwnerOHUHhInc>75000HCosts20to29pct","MOE OwnerOHUHhInc>75000HCosts20to29pct","OwnerOHUHhInc>75000HCosts30pct","MOE OwnerOHUHhInc>75000HCosts30pct","ZeroOrNegativeIncome","MOE ZeroOrNegativeIncome"]
[{"$f":"VLOOKUP(DropDownList!$B$47,CntyQryCensus!$A$510:$DA$522,A$1)","v":"Barrington"},2392,209,0,114,0,114,0,114,72,47,37,40,12,18,42,38,15,25,41,41,14,23,43,42,14,22,14,23,53,45,0,114,106,68,170,76,427,125,532,155,512,138,177,81,97,51,14,23,0,114,null,null,null,null,359900,14039,0,0,0,0,0,0,0,0,0,0,0,0,0,0,0,0,0,0,0,0]
[]
["Occupied Rental Housing Value"]
["NAME","Estimate; Total:","Margin of Error; Total:","Estimate; Total: - Less than $10,000","Margin of Error; Total: - Less than $10,000","Estimate; Total: - $10,000 to $14,999","Margin of Error; Total: - $10,000 to $14,999","Estimate; Total: - $15,000 to $19,999","Margin of Error; Total: - $15,000 to $19,999","Estimate; Total: - $20,000 to $24,999","Margin of Error; Total: - $20,000 to $24,999","Estimate; Total: - $25,000 to $29,999","Margin of Error; Total: - $25,000 to $29,999","Estimate; Total: - $30,000 to $34,999","Margin of Error; Total: - $30,000 to $34,999","Estimate; Total: - $35,000 to $39,999","Margin of Error; Total: - $35,000 to $39,999","Estimate; Total: - $40,000 to $49,999","Margin of Error; Total: - $40,000 to $49,999","Estimate; Total: - $50,000 to $59,999","Margin of Error; Total: - $50,000 to $59,999","Estimate; Total: - $60,000 to $69,999","Margin of Error; Total: - $60,000 to $69,999","Estimate; Total: - $70,000 to $79,999","Margin of Error; Total: - $70,000 to $79,999","Estimate; Total: - $80,000 to $89,999","Margin of Error; Total: - $80,000 to $89,999","Estimate; Total: - $90,000 to $99,999","Margin of Error; Total: - $90,000 to $99,999","Estimate; Total: - $100,000 to $124,999","Margin of Error; Total: - $100,000 to $124,999","Estimate; Total: - $125,000 to $149,999","Margin of Error; Total: - $125,000 to $149,999","Estimate; Total: - $150,000 to $174,999","Margin of Error; Total: - $150,000 to $174,999","Estimate; Total: - $175,000 to $199,999","Margin of Error; Total: - $175,000 to $199,999","Estimate; Total: - $200,000 to $249,999","Margin of Error; Total: - $200,000 to $249,999","Estimate; Total: - $250,000 to $299,999","Margin of Error; Total: - $250,000 to $299,999","Estimate; Total: - $300,000 to $399,999","Margin of Error; Total: - $300,000 to $399,999","Estimate; Total: - $400,000 to $499,999","Margin of Error; Total: - $400,000 to $499,999","Estimate; Total: - $500,000 to $749,999","Margin of Error; Total: - $500,000 to $749,999","Estimate; Total: - $750,000 to $999,999","Margin of Error; Total: - $750,000 to $999,999","Estimate; Total: - $1,000,000 to $1,499,999","Margin of Error; Total: - $1,000,000 to $1,499,999","Estimate; Total: - $1,500,000 to $1,999,999","Margin of Error; Total: - $1,500,000 to $1,999,999","Estimate; Total: - $2,000,000 or more","Margin of Error; Total: - $2,000,000 or more","MedianOwnOCCHomeValue","MOE MedianOwnOCCHomeValue","OnwerOccHsU","MOE OnwerOccHsU","OwnerCosts>20PctHHInc","MOE OwnerCosts>20PctHHInc","OwnerCosts20to29.9PctHHInc","MOE OwnerCosts20to29.9PctHHInc","OwnerCosts<30PctHHInc","MOE OwnerCosts<30PctHHInc","OwnerCosts>30PctHHInc","MOE OwnerCosts>30PctHHInc","OwnerCosts30to34.9PctHHInc","MOE OwnerCosts30to34.9PctHHInc","OwnerCosts<35PctHHInc","MOE OwnerCosts<35PctHHInc","OwnerCosts>35PctHHInc","MOE OwnerCosts>35PctHHInc","OwnerCosts>50PctHHInc","MOE OwnerCosts>50PctHHInc","OwnerCostsPctNotcomputed","MOE OwnerCostsPctNotcomputed","OwnerOHUHhInc<20k","MOE OwnerOHUHhInc<20k","OwnerOHUHhInc<20kHCosts<20pct","MOE OwnerOHUHhInc<20kHCosts<20pct","OwnerOHUHhInc<20kHCosts20to29pct","MOE OwnerOHUHhInc<20kHCosts20to29pct","OwnerOHUHhInc>20kHCosts30pct","MOE OwnerOHUHhInc>20kHCosts30pct","OwnerOHUHhInc20kTo34999","MOE OwnerOHUHhInc20kTo34999","OwnerOHUHhInc20kTo34999HCosts<20pct","MOE OwnerOHUHhInc20kTo34999HCosts<20pct","OwnerOHUHhInc20kTo34999HCosts20to29pct","MOE OwnerOHUHhInc20kTo34999HCosts20to29pct","OwnerOHUHhInc20kTo34999HCosts30pct","MOE OwnerOHUHhInc20kTo34999HCosts30pct","OwnerOHUHhInc35kTo49999","MOE OwnerOHUHhInc35kTo49999","OwnerOHUHhInc35kTo49999HCosts<20pct","MOE OwnerOHUHhInc35kTo49999HCosts<20pct","OwnerOHUHhInc35kTo49999HCosts20to29pct","MOE OwnerOHUHhInc35kTo49999HCosts20to29pct","OwnerOHUHhInc35kTo49999HCosts30pct","MOE OwnerOHUHhInc35kTo49999HCosts30pct","OwnerOHUHhInc50kTo74999","MOE OwnerOHUHhInc50kTo74999","OwnerOHUHhInc50kTo74999HCosts<20pct","MOE OwnerOHUHhInc50kTo74999HCosts<20pct","OwnerOHUHhInc50kTo74999HCosts20to29pct","MOE OwnerOHUHhInc50kTo74999HCosts20to29pct","OwnerOHUHhInc50kTo74999HCosts30pct","MOE OwnerOHUHhInc50kTo74999HCosts30pct","OwnerOHUHhInc>75000","MOE OwnerOHUHhInc>75000","OwnerOHUHhInc>75000HCosts<20pct","MOE OwnerOHUHhInc>75000HCosts<20pct","OwnerOHUHhInc>75000HCosts20to29pct","MOE OwnerOHUHhInc>75000HCosts20to29pct","OwnerOHUHhInc>75000HCosts30pct","MOE OwnerOHUHhInc>75000HCosts30pct","ZeroOrNegativeIncome","MOE ZeroOrNegativeIncome"]
[{"$f":"VLOOKUP(DropDownList!$B$47,CntyQryCensus!$A$510:$DA$522,A$1)","v":"Barrington"},291,158,271,157,13,23,0,16,0,16,0,16,0,16,0,16,0,16,0,16,21,37,0,16,0,16,16,25,0,16,0,16,0,16,16,25,0,16,57,79,33,53,78,89,19,31,0,16,908,139,569,151,16,25,0,114,0,114,0,114,0,114,16,25,0,114,77,85,0,114,0,114,0,114,0,114,77,85,0,114,81,49,0,114,0,114,20,32,29,23,32,31,0,114,174,111,68,84,56,49,15,24,21,33,0,114,14,23,112,75,25,41,13,21,34,34,40,64,0,114,0,114,82,75,82,75,0,114,0,114,0,114,0,114,0,114,27,30,27,30,0,114,0,114,0,114,0,114,0,114,9,17,0,16,78,89,19,31,0,16,0,16,0,16,0,16,18,30,0,16,0,16,18,30,0,16,0,16,0,16,0,16,0,16]
[]
[]
[]
[]
[]
["Occupied Rental Housing Cost Burdern All Incomes"]
["NAME","RntrOccHU","MOE RntrOccHU","RntrOccHUwRent","MOE RntrOccHUwRent","ROHUGRent<100","MOE ROHUGRent<100","ROHUGRent100to149","MOE ROHUGRent100to149","ROHUGRent150to199","MOE ROHUGRent150to199","ROHUGRent200to249","MOE ROHUGRent200to249","ROHUGRent250to299","MOE ROHUGRent250to299","ROHUGRent300to349","MOE ROHUGRent300to349","ROHUGRent350to399","MOE ROHUGRent350to399","ROHUGRent400to449","MOE ROHUGRent400to449","ROHUGRent450to499","MOE ROHUGRent450to499","ROHUGRent500to549","MOE ROHUGRent500to549","ROHUGRent550to599","MOE ROHUGRent550to599","ROHUGRent600to649","MOE ROHUGRent600to649","ROHUGRent650to699","MOE ROHUGRent650to699","ROHUGRent700to749","MOE ROHUGRent700to749","ROHUGRent750to799","MOE ROHUGRent750to799","ROHUGRent800to899","MOE ROHUGRent800to899","ROHUGRent900to999","MOE ROHUGRent900to999","ROHUGRent1000to1249","MOE ROHUGRent1000to1249","ROHUGRent1250to1499","MOE ROHUGRent1250to1499","ROHUGRent1500to1999","MOE ROHUGRent1500to1999","ROHUGRent2000-2499","MOE ROHUGRent2000-2499","ROHUGRent2500-2999","MOE ROHUGRent2500-2999","ROHUGRent3000-3499","MOE ROHUGRent3000-3499","ROHUGRent3500<","MOE ROHUGRent3500<","ROHUNoGRent","MOE ROHUNoGRent","MedianGrossRnt","MOE MedianGrossRnt","H73RenterOccHU","MOE H73RenterOccHU","H73ROHUHhInc<10k","MOE H73ROHUHhInc<10k","H73ROHUHhInc<10kRnt<20pct","MOE H73ROHUHhInc<10kRnt<20pct","H73ROHUHhInc<10kRnt20to25pct","MOE H73ROHUHhInc<10kRnt20to25pct","H73ROHUHhInc<10kRnt25to30pct","MOE H73ROHUHhInc<10kRnt25to30pct","H73ROHUHhInc<10kRnt30to35pct","MOE H73ROHUHhInc<10kRnt30to35pct","H73ROHUHhInc<10kRnt35to39.9","MOE H73ROHUHhInc<10kRnt35to39.9","H73ROHUHhInc<10kRnt40to49.9","MOE H73ROHUHhInc<10kRnt40to49.9","H73ROHUHhInc<10kRnt>50pct","MOE H73ROHUHhInc<10kRnt>50pct","H73ROHUHhInc<10kPctNotComput","MOE H73ROHUHhInc<10kPctNotComput","H73ROHUHhInc10to20k","MOE H73ROHUHhInc10to20k","H73ROHUHhInc10to20kRnt<20pct","MOE H73ROHUHhInc10to20kRnt<20pct","H73ROHUHhInc10to20kRnt20to25pct","MOE H73ROHUHhInc10to20kRnt20to25pct","H73ROHUHhInc10to20kRnt25to30pct","MOE H73ROHUHhInc10to20kRnt25to30pct","H73ROHUHhInc10to20kRnt30to35pct","MOE H73ROHUHhInc10to20kRnt30to35pct","H73ROHUHhInc10to20kRnt35to39.9","MOE H73ROHUHhInc10to20kRnt35to39.9","H73ROHUHhInc10to20kRnt40to49.9","MOE H73ROHUHhInc10to20kRnt40to49.9","H73ROHUHhInc10to20kRnt>50pct","MOE H73ROHUHhInc10to20kRnt>50pct","H73ROHUHhInc10to20kRntPctNC","MOE H73ROHUHhInc10to20kRntPctNC","H73ROHUHhInc20to34.9k","MOE H73ROHUHhInc20to34.9k","H73ROHUHhInc20to34.9kRnt<20pct","MOE H73ROHUHhInc20to34.9kRnt<20pct","H73ROHUHhInc20to34.9kRnt20to25pct","MOE H73ROHUHhInc20to34.9kRnt20to25pct","H73ROHUHhInc20to34.9kRnt25to30pct","MOE H73ROHUHhInc20to34.9kRnt25to30pct","H73ROHUHhInc20to34.9kRnt30to35pct","MOE H73ROHUHhInc20to34.9kRnt30to35pct","H73ROHUHhInc20to34.9kRnt35to39.9","MOE H73ROHUHhInc20to34.9kRnt35to39.9","H73ROHUHhInc20to34.9kRnt40to49.9","MOE H73ROHUHhInc20to34.9kRnt40to49.9","H73ROHUHhInc20to34.9kRnt>50pct","MOE H73ROHUHhInc20to34.9kRnt>50pct","H73ROHUHhInc20to34.9kRntPctNC","MOE H73ROHUHhInc20to34.9kRntPctNC","H73ROHUHhInc35to49.9k","MOE H73ROHUHhInc35to49.9k","H73ROHUHhInc35to49.9kRnt<20pct","MOE H73ROHUHhInc35to49.9kRnt<20pct","H73ROHUHhInc35to49.9kRnt20to25pct","MOE H73ROHUHhInc35to49.9kRnt20to25pct","H73ROHUHhInc35to49.9kRnt25to30pct","MOE H73ROHUHhInc35to49.9kRnt25to30pct","H73ROHUHhInc35to49.9kRnt30to35pct","MOE H73ROHUHhInc35to49.9kRnt30to35pct","H73ROHUHhInc35to49.9kRnt35to39.9","MOE H73ROHUHhInc35to49.9kRnt35to39.9","H73ROHUHhInc35to49.9kRnt40to49.9","MOE H73ROHUHhInc35to49.9kRnt40to49.9","H73ROHUHhInc35to49.9kRnt>50pct","MOE H73ROHUHhInc35to49.9kRnt>50pct","H73ROHUHhInc35to49.9kRntPctNC","MOE H73ROHUHhInc35to49.9kRntPctNC","H73ROHUHhInc50to74.9k","MOE H73ROHUHhInc50to74.9k","H73ROHUHhInc50to74.9kRnt<20pct","MOE H73ROHUHhInc50to74.9kRnt<20pct","H73ROHUHhInc50to74.9kRnt20to25pct","MOE H73ROHUHhInc50to74.9kRnt20to25pct","H73ROHUHhInc50to74.9kRnt25to30pct","MOE H73ROHUHhInc50to74.9kRnt25to30pct","H73ROHUHhInc50to74.9kRnt30to35pct","MOE H73ROHUHhInc50to74.9kRnt30to35pct","H73ROHUHhInc50to74.9kRnt35to39.9","MOE H73ROHUHhInc50to74.9kRnt35to39.9","H73ROHUHhInc50to74.9kRnt40to49.9","MOE H73ROHUHhInc50to74.9kRnt40to49.9","H73ROHUHhInc50to74.9kRnt>50pct","MOE H73ROHUHhInc50to74.9kRnt>50pct","H73ROHUHhInc50to74.9kRntPctNC","MOE H73ROHUHhInc50to74.9kRntPctNC","H73ROHUHhInc75to99.9k","MOE H73ROHUHhInc75to99.9k","H73ROHUHhInc75to99.9kRnt<20pct","MOE H73ROHUHhInc75to99.9kRnt<20pct","H73ROHUHhInc75to99.9kRnt20to25pct","MOE H73ROHUHhInc75to99.9kRnt20to25pct","H73ROHUHhInc75to99.9kRnt25to30pct","MOE H73ROHUHhInc75to99.9kRnt25to30pct","H73ROHUHhInc75to99.9kRnt30to35pct","MOE H73ROHUHhInc75to99.9kRnt30to35pct","H73ROHUHhInc75to99.9kRnt35to39.9","MOE H73ROHUHhInc75to99.9kRnt35to39.9","H73ROHUHhInc75to99.9kRnt40to49.9","MOE H73ROHUHhInc75to99.9kRnt40to49.9","H73ROHUHhInc75to99.9kRnt>50pct","MOE H73ROHUHhInc75to99.9kRnt>50pct","H73ROHUHhInc75to99.9kRntPctNC","MOE H73ROHUHhInc75to99.9kRntPctNC","H73ROHUHhInc>100k","MOE H73ROHUHhInc>100k","H73ROHUHhInc>100kRnt<20pct","MOE H73ROHUHhInc>100kRnt<20pct","H73ROHUHhInc>100kRnt20to25pct","MOE H73ROHUHhInc>100kRnt20to25pct","H73ROHUHhInc>100kRnt25to30pct","MOE H73ROHUHhInc>100kRnt25to30pct","H73ROHUHhInc>100kRnt30to35pct","MOE H73ROHUHhInc>100kRnt30to35pct","H73ROHUHhInc>100kRnt35to39.9","MOE H73ROHUHhInc>100kRnt35to39.9","H73ROHUHhInc>100kRnt40to49.9","MOE H73ROHUHhInc>100kRnt40to49.9","H73ROHUHhInc>100kRnt>50pct","MOE H73ROHUHhInc>100kRnt>50pct","H73ROHUHhInc>100kRntPctNC","MOE H73ROHUHhInc>100kRntPctNC"]
[{"$f":"VLOOKUP(DropDownList!$B$47,CntyQryCensus!$A$510:$DA$522,A$1)","v":"Barrington"},0,114,113,94,89,80,69,52,69,51,90,74,0,114,18,21,107,89,14,23]
[]
["Income By Household Type and Tenure"]
["NAME","TotalFamilyHouseholds",{"$f":"\"MOE \"&B159","v":"MOE TotalFamilyHouseholds"},"FamInc<10K",{"$f":"\"MOE \"&D159","v":"MOE FamInc<10K"},"FamInc10to15K",{"$f":"\"MOE \"&F159","v":"MOE FamInc10to15K"},"FamInc15to20K",{"$f":"\"MOE \"&H159","v":"MOE FamInc15to20K"},"FamInc20to25K",{"$f":"\"MOE \"&J159","v":"MOE FamInc20to25K"},"FamInc25to30K",{"$f":"\"MOE \"&L159","v":"MOE FamInc25to30K"},"FamInc30to35K",{"$f":"\"MOE \"&N159","v":"MOE FamInc30to35K"},"FamInc35to40K",{"$f":"\"MOE \"&P159","v":"MOE FamInc35to40K"},"FamInc40to45K",{"$f":"\"MOE \"&R159","v":"MOE FamInc40to45K"},"FamInc45to50K",{"$f":"\"MOE \"&T159","v":"MOE FamInc45to50K"},"FamInc50to60K",{"$f":"\"MOE \"&V159","v":"MOE FamInc50to60K"},"FamInc60to75K",{"$f":"\"MOE \"&X159","v":"MOE FamInc60to75K"},"FamInc75to100K",{"$f":"\"MOE \"&Z159","v":"MOE FamInc75to100K"},"FamInc100to125K",{"$f":"\"MOE \"&AB159","v":"MOE FamInc100to125K"},"FamInc125to150K",{"$f":"\"MOE \"&AD159","v":"MOE FamInc125to150K"},"FamInc150to200K",{"$f":"\"MOE \"&AF159","v":"MOE FamInc150to200K"},"FamInc>200K",{"$f":"\"MOE \"&AH159","v":"MOE FamInc>200K"},"MedFamInc",{"$f":"\"MOE \"&AJ159","v":"MOE MedFamInc"},"TotalNonNonFamilyHouseholds",{"$f":"\"MOE \"&AL159","v":"MOE TotalNonNonFamilyHouseholds"},"NonFamInc<10K",{"$f":"\"MOE \"&AN159","v":"MOE NonFamInc<10K"},"NonFamInc10to15K",{"$f":"\"MOE \"&AP159","v":"MOE NonFamInc10to15K"},"NonFamInc15to20K",{"$f":"\"MOE \"&AR159","v":"MOE NonFamInc15to20K"},"NonFamInc20to25K",{"$f":"\"MOE \"&AT159","v":"MOE NonFamInc20to25K"},"NonFamInc25to30K",{"$f":"\"MOE \"&AV159","v":"MOE NonFamInc25to30K"},"NonFamInc30to35K",{"$f":"\"MOE \"&AX159","v":"MOE NonFamInc30to35K"},"NonFamInc35to40K",{"$f":"\"MOE \"&AZ159","v":"MOE NonFamInc35to40K"},"NonFamInc40to45K",{"$f":"\"MOE \"&BB159","v":"MOE NonFamInc40to45K"},"NonFamInc45to50K",{"$f":"\"MOE \"&BD159","v":"MOE NonFamInc45to50K"},"NonFamInc50to60K",{"$f":"\"MOE \"&BF159","v":"MOE NonFamInc50to60K"},"NonFamInc60to75K",{"$f":"\"MOE \"&BH159","v":"MOE NonFamInc60to75K"},"NonFamInc75to100K",{"$f":"\"MOE \"&BJ159","v":"MOE NonFamInc75to100K"},"NonFamInc100to125K",{"$f":"\"MOE \"&BL159","v":"MOE NonFamInc100to125K"},"NonFamInc125to150K",{"$f":"\"MOE \"&BN159","v":"MOE NonFamInc125to150K"},"NonFamInc150to200K",{"$f":"\"MOE \"&BP159","v":"MOE NonFamInc150to200K"},"NonFamInc>200K",{"$f":"\"MOE \"&BR159","v":"MOE NonFamInc>200K"},"MedNonFamInc",{"$f":"\"MOE \"&BT159","v":"MOE MedNonFamInc"},"PerCapitaIncome","MOE PerCapitaIncome"]
[{"$f":"VLOOKUP(DropDownList!$B$47,CntyQryCensus!$A$510:$DA$522,A$1)","v":"Barrington"},2306,136,43,67,0,114,0,114,78,58,76,54,38,43,56,47,39,37,193,109,68,45,465,126,560,122,329,93,211,96,126,76,24,28,77740,6019,655,188,39,37,14,22,92,87,36,39,25,29,50,47,45,42,67,58,30,33,34,30,80,74,75,57,41,39,20,33,7,13,0,114,43313,9191]
[]
[]
[]
["2010 Census"]
[]
["TownName","LOGRECNO","COUNTY","TotalPop","TotalPop1Race","TotalPopWhite","TotalPopAfricanAmerican","TotalPopAmericanIndAlaska","TotalPopAsian","TotalPopNativeHawaiianPIsland","TotalPopSomeOtherRace","TotalPopTwoOrMoreRaces","TotalPopHispanicLatino","TotalNonHispanicLatino","TotPopUnder15yrs","TotPop15to24yrs","TotPop25to34yrs","TotPop35to44yrs","TotPop45to54yrs","TotPop55to64yrs","TotPop65to74yrs","TotPopOver74yrs","MedianAge","MedianAgeMale","MedianAgeFemale","TotalHH","TotalPopInHouseholds","TotalPopInFamilyHH","TotalPopInNonFamilyHH","AvgHHSize","TotalFamilyHH","TotalFamilyHHSpouse","TotalSingleParentHH","TotalNonFamilyHH","AvgFamilyHHSize","AvgNonFamilyHHSize","AverageHHSizeOwnerOccupied","AverageHHSizeRentalOccupied","TotalHousingUnits","TotalOccupiedHU","TotalOwnerOccupiedHUs","TotalRentalOccupiedHU","TotalVacantHU","VacantHUForRent","VacantHURentNotOccupied","VacantHUForSale","VacantHUsSoldNotOccupied","VacantHUSeasonalRecreational","VacantHUsAllOtherVacants","HomeOwnerVacancyRate","HomeRentalVacancyRate","Total HH","Total Single Family HU","Total Multi-Family HU","Total Manufacture HU"]
[{"$f":"VLOOKUP(DropDownList!$B$47,CntyQryCensus!$A$529:$DA$540,A$1)","v":"Barrington"},{"$f":"VLOOKUP(DropDownList!$B$47,CntyQryCensus!$A$529:$DA$540,B$1)","v":"0000216"},{"$f":"VLOOKUP(DropDownList!$B$47,CntyQryCensus!$A$529:$DA$540,C$1)","v":"017"},{"$f":"VLOOKUP(DropDownList!$B$47,CntyQryCensus!$A$529:$DA$540,D$1)","v":8576},{"$f":"VLOOKUP(DropDownList!$B$47,CntyQryCensus!$A$529:$DA$540,E$1)","v":8473},{"$f":"VLOOKUP(DropDownList!$B$47,CntyQryCensus!$A$529:$DA$540,F$1)","v":8312},{"$f":"VLOOKUP(DropDownList!$B$47,CntyQryCensus!$A$529:$DA$540,G$1)","v":40},{"$f":"VLOOKUP(DropDownList!$B$47,CntyQryCensus!$A$529:$DA$540,H$1)","v":20},{"$f":"VLOOKUP(DropDownList!$B$47,CntyQryCensus!$A$529:$DA$540,I$1)","v":83},{"$f":"VLOOKUP(DropDownList!$B$47,CntyQryCensus!$A$529:$DA$540,J$1)","v":0},{"$f":"VLOOKUP(DropDownList!$B$47,CntyQryCensus!$A$529:$DA$540,K$1)","v":18},{"$f":"VLOOKUP(DropDownList!$B$47,CntyQryCensus!$A$529:$DA$540,L$1)","v":103},{"$f":"VLOOKUP(DropDownList!$B$47,CntyQryCensus!$A$529:$DA$540,M$1)","v":112},{"$f":"VLOOKUP(DropDownList!$B$47,CntyQryCensus!$A$529:$DA$540,N$1)","v":8464},{"$f":"VLOOKUP(DropDownList!$B$47,CntyQryCensus!$A$529:$DA$540,O$1)","v":1689},{"$f":"VLOOKUP(DropDownList!$B$47,CntyQryCensus!$A$529:$DA$540,P$1)","v":966},{"$f":"VLOOKUP(DropDownList!$B$47,CntyQryCensus!$A$529:$DA$540,Q$1)","v":933},{"$f":"VLOOKUP(DropDownList!$B$47,CntyQryCensus!$A$529:$DA$540,R$1)","v":1368},{"$f":"VLOOKUP(DropDownList!$B$47,CntyQryCensus!$A$529:$DA$540,S$1)","v":1691},{"$f":"VLOOKUP(DropDownList!$B$47,CntyQryCensus!$A$529:$DA$540,T$1)","v":1110},{"$f":"VLOOKUP(DropDownList!$B$47,CntyQryCensus!$A$529:$DA$540,U$1)","v":535},{"$f":"VLOOKUP(DropDownList!$B$47,CntyQryCensus!$A$529:$DA$540,V$1)","v":284},{"$f":"VLOOKUP(DropDownList!$B$47,CntyQryCensus!$A$529:$DA$540,W$1)","v":40.700000000000003},{"$f":"VLOOKUP(DropDownList!$B$47,CntyQryCensus!$A$529:$DA$540,X$1)","v":40.299999999999997},{"$f":"VLOOKUP(DropDownList!$B$47,CntyQryCensus!$A$529:$DA$540,Y$1)","v":41.1},{"$f":"VLOOKUP(DropDownList!$B$47,CntyQryCensus!$A$529:$DA$540,Z$1)","v":3229},{"$f":"VLOOKUP(DropDownList!$B$47,CntyQryCensus!$A$529:$DA$540,AA$1)","v":8576},{"$f":"VLOOKUP(DropDownList!$B$47,CntyQryCensus!$A$529:$DA$540,AB$1)","v":4816},{"$f":"VLOOKUP(DropDownList!$B$47,CntyQryCensus!$A$529:$DA$540,AC$1)","v":3760},{"$f":"VLOOKUP(DropDownList!$B$47,CntyQryCensus!$A$529:$DA$540,AD$1)","v":2.66},{"$f":"VLOOKUP(DropDownList!$B$47,CntyQryCensus!$A$529:$DA$540,AE$1)","v":2382},{"$f":"VLOOKUP(DropDownList!$B$47,CntyQryCensus!$A$529:$DA$540,AF$1)","v":1973},{"$f":"VLOOKUP(DropDownList!$B$47,CntyQryCensus!$A$529:$DA$540,AG$1)","v":409},{"$f":"VLOOKUP(DropDownList!$B$47,CntyQryCensus!$A$529:$DA$540,AH$1)","v":847},{"$f":"VLOOKUP(DropDownList!$B$47,CntyQryCensus!$A$529:$DA$540,AI$1)","v":3.02},{"$f":"VLOOKUP(DropDownList!$B$47,CntyQryCensus!$A$529:$DA$540,AJ$1)","v":4.4391971664698939},{"$f":"VLOOKUP(DropDownList!$B$47,CntyQryCensus!$A$529:$DA$540,AK$1)","v":2.71},{"$f":"VLOOKUP(DropDownList!$B$47,CntyQryCensus!$A$529:$DA$540,AL$1)","v":2.2599999999999998},{"$f":"VLOOKUP(DropDownList!$B$47,CntyQryCensus!$A$529:$DA$540,AM$1)","v":3661},{"$f":"VLOOKUP(DropDownList!$B$47,CntyQryCensus!$A$529:$DA$540,AN$1)","v":3229},{"$f":"VLOOKUP(DropDownList!$B$47,CntyQryCensus!$A$529:$DA$540,AO$1)","v":2813},{"$f":"VLOOKUP(DropDownList!$B$47,CntyQryCensus!$A$529:$DA$540,AP$1)","v":416},{"$f":"VLOOKUP(DropDownList!$B$47,CntyQryCensus!$A$529:$DA$540,AQ$1)","v":432},{"$f":"VLOOKUP(DropDownList!$B$47,CntyQryCensus!$A$529:$DA$540,AR$1)","v":35},{"$f":"VLOOKUP(DropDownList!$B$47,CntyQryCensus!$A$529:$DA$540,AS$1)","v":2},{"$f":"VLOOKUP(DropDownList!$B$47,CntyQryCensus!$A$529:$DA$540,AT$1)","v":63},{"$f":"VLOOKUP(DropDownList!$B$47,CntyQryCensus!$A$529:$DA$540,AU$1)","v":5},{"$f":"VLOOKUP(DropDownList!$B$47,CntyQryCensus!$A$529:$DA$540,AV$1)","v":286},{"$f":"VLOOKUP(DropDownList!$B$47,CntyQryCensus!$A$529:$DA$540,AW$1)","v":41},{"$f":"VLOOKUP(DropDownList!$B$47,CntyQryCensus!$A$529:$DA$540,AX$1)","v":2.2000000000000002},{"$f":"VLOOKUP(DropDownList!$B$47,CntyQryCensus!$A$529:$DA$540,AY$1)","v":7.7},{"$f":"VLOOKUP(DropDownList!$B$47,CntyQryCensus!$A$529:$DA$540,AZ$1)","v":3661},{"$f":"VLOOKUP(DropDownList!$B$47,CntyQryCensus!$A$529:$DA$540,BA$1)","v":3022},{"$f":"VLOOKUP(DropDownList!$B$47,CntyQryCensus!$A$529:$DA$540,BB$1)","v":239},{"$f":"VLOOKUP(DropDownList!$B$47,CntyQryCensus!$A$529:$DA$540,BC$1)","v":400}]

{"sheet":"StatisticallySignificantCalcs","index":67,"n_rows":271,"n_cols":16,"rows_kept":271,"cut":false,"hidden":true,"merged":[]}
[]
["Statistically Significant Change  10 Year","Standard Error Estimate  1","Standard Error Estimate  2","Square Root of Sum of Squared SE","Difference between the estimates","Value","Test Statistic (90%) Confidence Interval",null,null,"Statistically Significant Change  5Year","Standard Error Estimate  1","Standard Error Estimate  2","Square Root of Sum of Squared SE","Difference between the estimates","Value","Test Statistic (90%) Confidence Interval"]
[{"$f":"IF(F3>G3,\"Y\",\"N\")","v":"Y"},{"$f":"PopulationCharacteristics!Q22/1.645","v":208.94528767051693},{"$f":"PopulationCharacteristics!T22/1.645","v":241.62585257490852},{"$f":"SQRT((B3^2)+(C3^2))","v":319.43886093001663},{"$f":"(PopulationCharacteristics!M22-PopulationCharacteristics!S22)","v":-1942},{"$f":"ABS((E3/D3))","v":6.0794106087970858},1.645,"Population By Age Under 15 yrs.",null,{"$f":"IF(O3>P3,\"Y\",\"N\")","v":"N"},{"$f":"PopulationCharacteristics!P22/1.645","v":1013.3738601823708},{"$f":"PopulationCharacteristics!T22/1.645","v":241.62585257490852},{"$f":"SQRT((K3^2)+(L3^2))","v":1041.7819508579857},{"$f":"(PopulationCharacteristics!P22-PopulationCharacteristics!S22)","v":-275},{"$f":"ABS((N3/M3))","v":0.26397078560779136},1.645]
["Y",{"$f":"PopulationCharacteristics!Q23/1.645","v":139.22167161822233},{"$f":"PopulationCharacteristics!T23/1.645","v":186.42802073735712},232.67591358845158,{"$f":"(PopulationCharacteristics!M23-PopulationCharacteristics!S23)","v":-957},4.1130170512307762,1.645,"Population By Age 15 to 24 yrs.",null,{"$f":"IF(O4>P4,\"Y\",\"N\")","v":"N"},{"$f":"PopulationCharacteristics!P23/1.645","v":513.06990881458967},{"$f":"PopulationCharacteristics!T23/1.645","v":186.42802073735712},545.89022545477019,{"$f":"(PopulationCharacteristics!P23-PopulationCharacteristics!S23)","v":-113},0.20700132504820354,1.645]
["Y",{"$f":"PopulationCharacteristics!Q24/1.645","v":134.3121165193092},{"$f":"PopulationCharacteristics!T24/1.645","v":154.09824754917955},204.41627758479683,{"$f":"(PopulationCharacteristics!M24-PopulationCharacteristics!S24)","v":-892},4.3636446692948745,1.645,"Population By Age 25 to 34 yrs.",null,"N",{"$f":"PopulationCharacteristics!P24/1.645","v":561.09422492401211},{"$f":"PopulationCharacteristics!T24/1.645","v":154.09824754917955},581.87025971500395,{"$f":"(PopulationCharacteristics!P24-PopulationCharacteristics!S24)","v":31},5.3276481281555078E-2,1.645]
["Y",{"$f":"PopulationCharacteristics!Q25/1.645","v":164.23389941759058},{"$f":"PopulationCharacteristics!T25/1.645","v":189.63252769720665},250.86504196228518,{"$f":"(PopulationCharacteristics!M25-PopulationCharacteristics!S25)","v":-1491},5.9434347182743608,1.645,"Population By Age 35 to 44 yrs.",null,"N",{"$f":"PopulationCharacteristics!P25/1.645","v":728.26747720364745},{"$f":"PopulationCharacteristics!T25/1.645","v":189.63252769720665},752.55166860050008,{"$f":"(PopulationCharacteristics!P25-PopulationCharacteristics!S25)","v":-293},0.38934203753063779,1.645]
["Y",{"$f":"PopulationCharacteristics!Q26/1.645","v":182.19545773443741},{"$f":"PopulationCharacteristics!T26/1.645","v":212.58785424477281},279.97996462507444,{"$f":"(PopulationCharacteristics!M26-PopulationCharacteristics!S26)","v":-1452},5.186085375588914,1.645,"Population By Age 45 to 54 yrs.",null,"N",{"$f":"PopulationCharacteristics!P26/1.645","v":989.05775075987845},{"$f":"PopulationCharacteristics!T26/1.645","v":212.58785424477281},1011.6465934853863,{"$f":"(PopulationCharacteristics!P26-PopulationCharacteristics!S26)","v":175},0.17298531041070317,1.645]
["Y",{"$f":"PopulationCharacteristics!Q27/1.645","v":183.53126241032192},{"$f":"PopulationCharacteristics!T27/1.645","v":178.23475991305253},255.83462221362831,{"$f":"(PopulationCharacteristics!M27-PopulationCharacteristics!S27)","v":-1528},5.9726083466688955,1.645,"Population By Age 55 to 64 yrs.",null,"N",{"$f":"PopulationCharacteristics!P27/1.645","v":897.26443768996955},{"$f":"PopulationCharacteristics!T27/1.645","v":178.23475991305253},914.79566067202177,{"$f":"(PopulationCharacteristics!P27-PopulationCharacteristics!S27)","v":-52},5.6843295432556021E-2,1.645]
["Y",{"$f":"PopulationCharacteristics!Q28/1.645","v":113.75580439764498},{"$f":"PopulationCharacteristics!T28/1.645","v":94.463860205251322},147.86414007132538,{"$f":"(PopulationCharacteristics!M28-PopulationCharacteristics!S28)","v":-497},3.3611935913620541,1.645,"Population By Age 65 to 74 yrs.",null,"N",{"$f":"PopulationCharacteristics!P28/1.645","v":379.93920972644378},{"$f":"PopulationCharacteristics!T28/1.645","v":94.463860205251322},391.50635240367671,{"$f":"(PopulationCharacteristics!P28-PopulationCharacteristics!S28)","v":128},0.32694233238908216,1.645]
["Y",{"$f":"PopulationCharacteristics!Q29/1.645","v":87.893990744965279},{"$f":"PopulationCharacteristics!T29/1.645","v":97.732536219594252},131.44201095916915,{"$f":"(PopulationCharacteristics!M29-PopulationCharacteristics!S29)","v":-304},2.3128069768685591,1.645,"Population By Age Over 74 yrs. ",null,"N",{"$f":"PopulationCharacteristics!P29/1.645","v":201.21580547112461},{"$f":"PopulationCharacteristics!T29/1.645","v":97.732536219594252},223.69499101970916,{"$f":"(PopulationCharacteristics!P29-PopulationCharacteristics!S29)","v":27},0.120700065195564,1.645]
["N",{"$f":"PopulationCharacteristics!Q$30/1.645","v":1.6413373860182372},{"$f":"PopulationCharacteristics!T$30/1.645","v":2.0668693009118542},2.639306181895734,{"$f":"(PopulationCharacteristics!P30-PopulationCharacteristics!S30)","v":3.7999999999999972},1.4397723257975972,1.645,"Population By Age Median Age        ",null,"N",{"$f":"PopulationCharacteristics!P30/1.645","v":26.382978723404253},{"$f":"PopulationCharacteristics!T30/1.645","v":2.0668693009118542},{"$f":"SQRT((K11^2)+(L11^2))","v":26.463815201641907},{"$f":"(PopulationCharacteristics!P30-PopulationCharacteristics!S30)","v":3.7999999999999972},0.14359229653947372,1.645]
["N",{"$f":"PopulationCharacteristics!E51/1.645","v":108.20668693009118},{"$f":"PopulationCharacteristics!K51/1.645","v":121.580547112462},162.7590751158053,{"$f":"PopulationCharacteristics!D51-PopulationCharacteristics!J51","v":-222},1.3639792425832107,1.645,"Total Households",null,"N",{"$f":"PopulationCharacteristics!H51/1.645","v":111.85410334346504},{"$f":"PopulationCharacteristics!K51/1.645","v":121.580547112462},165.20644621483797,{"$f":"PopulationCharacteristics!G51-PopulationCharacteristics!J51","v":124},0.75057603889589009,1.645]
["N",{"$f":"PopulationCharacteristics!E52/1.645","v":0.10334346504559271},{"$f":"PopulationCharacteristics!K52/1.645","v":0.10942249240121581},0.15050964623878355,{"$f":"PopulationCharacteristics!D52-PopulationCharacteristics!J52","v":-1.4149383391567572E-2},9.4009810966664387E-2,1.645,"Persons per Household",null,"N",{"$f":"PopulationCharacteristics!H52/1.645","v":9.1185410334346503E-2},{"$f":"PopulationCharacteristics!K52/1.645","v":0.10942249240121581},0.14243616430224904,{"$f":"PopulationCharacteristics!G52-PopulationCharacteristics!J52","v":-0.21955455639609456},1.5414242406177168,1.645]
["N",{"$f":"PopulationCharacteristics!E53/1.645","v":108.20668693009118},{"$f":"PopulationCharacteristics!K53/1.645","v":121.580547112462},162.7590751158053,{"$f":"PopulationCharacteristics!D53-PopulationCharacteristics!J53","v":-141},0.86631114055960678,1.645,"Family Households",null,"N",{"$f":"PopulationCharacteristics!H53/1.645","v":111.85410334346504},{"$f":"PopulationCharacteristics!K53/1.645","v":121.580547112462},165.20644621483797,{"$f":"PopulationCharacteristics!G53-PopulationCharacteristics!J53","v":38},0.23001523772615987,1.645]
["N",{"$f":"PopulationCharacteristics!E54/1.645","v":0.19216337350307772},{"$f":"PopulationCharacteristics!K54/1.645","v":0.18494824996267531},0.26670698768562395,{"$f":"PopulationCharacteristics!D54-PopulationCharacteristics!J54","v":-6.3844394484848799E-3},2.3938028410453283E-2,1.645,"Persons per Family Household",null,"N",{"$f":"PopulationCharacteristics!H54/1.645","v":0.16063421898743688},{"$f":"PopulationCharacteristics!K54/1.645","v":0.18494824996267531},0.24496776823484362,{"$f":"PopulationCharacteristics!G54-PopulationCharacteristics!J54","v":-0.2442072130371109},0.99689528461963373,1.645]
["N",{"$f":"PopulationCharacteristics!E55/1.645","v":111.24620060790274},{"$f":"PopulationCharacteristics!K55/1.645","v":127.05167173252279},168.87227256042499,{"$f":"PopulationCharacteristics!D55-PopulationCharacteristics!J55","v":-71},0.4204361019337568,1.645,"Married-Couple Family Hh",null,"N",{"$f":"PopulationCharacteristics!H55/1.645","v":122.79635258358662},{"$f":"PopulationCharacteristics!K55/1.645","v":127.05167173252279},176.69485419179941,{"$f":"PopulationCharacteristics!G55-PopulationCharacteristics!J55","v":99},0.56028796340914999,1.645]
["N",{"$f":"PopulationCharacteristics!E56/1.645","v":68.693009118541028},{"$f":"PopulationCharacteristics!K56/1.645","v":93.00911854103343},115.62623246279354,{"$f":"PopulationCharacteristics!D56-PopulationCharacteristics!J56","v":-70},0.60539895237462449,1.645,"Single-Parent Family Hh",null,"N",{"$f":"PopulationCharacteristics!H56/1.645","v":103.95136778115501},{"$f":"PopulationCharacteristics!K56/1.645","v":93.00911854103343},139.48685599493939,{"$f":"PopulationCharacteristics!G56-PopulationCharacteristics!J56","v":-61},0.4373171906764684,1.645]
["N",{"$f":"PopulationCharacteristics!E57/1.645","v":114.28571428571428},{"$f":"PopulationCharacteristics!K57/1.645","v":147.11246200607903},186.28822015169388,{"$f":"PopulationCharacteristics!D57-PopulationCharacteristics!J57","v":-81},0.43481010197017272,1.645,"Non-Family Households*",null,"N",{"$f":"PopulationCharacteristics!H57/1.645","v":134.34650455927053},{"$f":"PopulationCharacteristics!K57/1.645","v":147.11246200607903},199.22615231134728,{"$f":"PopulationCharacteristics!G57-PopulationCharacteristics!J57","v":86},0.43167023506833907,1.645]
["N",{"$f":"PopulationCharacteristics!E58/1.645","v":0.39858382740346737},{"$f":"PopulationCharacteristics!K58/1.645","v":0.38862350226876047},0.55668419591653073,{"$f":"PopulationCharacteristics!D58-PopulationCharacteristics!J58","v":-0.12735023232658493},0.22876566868745782,1.645,"Persons per Non-Family Hh",null,"N",{"$f":"PopulationCharacteristics!H58/1.645","v":0.357169369686895},{"$f":"PopulationCharacteristics!K58/1.645","v":0.38862350226876047},0.52782400964542253,{"$f":"PopulationCharacteristics!G58-PopulationCharacteristics!J58","v":-1.281669840262345E-2},2.4282143609255954E-2,1.645]
["Y",{"$f":"PopulationCharacteristics!D36/1.645","v":98.480243161094222},{"$f":"PopulationCharacteristics!J36/1.645","v":190.27355623100303},214.24841771611972,{"$f":"PopulationCharacteristics!C36-PopulationCharacteristics!I36","v":-570},2.6604630553456547,1.645,"Ethnicity -White",null,"Y",{"$f":"PopulationCharacteristics!G36/1.645","v":32.826747720364743},{"$f":"PopulationCharacteristics!J36/1.645","v":190.27355623100303},193.08449333566159,{"$f":"PopulationCharacteristics!F36-PopulationCharacteristics!I36","v":-8591},{"$f":"ABS((N20/M20))","v":44.493474600600109},1.645]
["N",{"$f":"PopulationCharacteristics!D37/1.645","v":53.495440729483285},{"$f":"PopulationCharacteristics!J37/1.645","v":9.7264437689969601},54.372473617016162,{"$f":"PopulationCharacteristics!C37-PopulationCharacteristics!I37","v":60},1.1034995468961462,1.645,"Ethnicity -Black",null,"N",{"$f":"PopulationCharacteristics!G37/1.645","v":9.7264437689969601},{"$f":"PopulationCharacteristics!J37/1.645","v":9.7264437689969601},13.755268691774784,{"$f":"PopulationCharacteristics!F37-PopulationCharacteristics!I37","v":0},{"$f":"ABS((N21/M21))","v":0},1.645]
["N",{"$f":"PopulationCharacteristics!D38/1.645","v":13.373860182370821},{"$f":"PopulationCharacteristics!J38/1.645","v":9.7264437689969601},16.536742259860723,{"$f":"PopulationCharacteristics!C38-PopulationCharacteristics!I38","v":14},0.84659963734101951,1.645,"Ethnicity -American Indian",null,"N",{"$f":"PopulationCharacteristics!G38/1.645","v":5.4711246200607899},{"$f":"PopulationCharacteristics!J38/1.645","v":9.7264437689969601},11.159610790690467,{"$f":"PopulationCharacteristics!F38-PopulationCharacteristics!I38","v":5},0.44804429955308867,1.645]
["N",{"$f":"PopulationCharacteristics!D39/1.645","v":75.919726309417555},{"$f":"PopulationCharacteristics!J39/1.645","v":177.16688790654402},192.74831001434694,{"$f":"PopulationCharacteristics!C39-PopulationCharacteristics!I39","v":-203},1.053186925399709,1.645,"Ethnicity -Asian &Pacific Is",null,"N",{"$f":"PopulationCharacteristics!G39/1.645","v":16.536742259860723},{"$f":"PopulationCharacteristics!J39/1.645","v":177.16688790654402},177.93698326952438,{"$f":"PopulationCharacteristics!F39-PopulationCharacteristics!I39","v":-246},1.3825119178702683,1.645]
["N",{"$f":"PopulationCharacteristics!D40/1.645","v":76.944734939567013},{"$f":"PopulationCharacteristics!J40/1.645","v":46.024299649234528},89.658956011782522,{"$f":"PopulationCharacteristics!C40-PopulationCharacteristics!I40","v":-29},0.3234478884205273,1.645,"Ethnicity -Other*",null,"N",{"$f":"PopulationCharacteristics!G40/1.645","v":33.185031158556065},{"$f":"PopulationCharacteristics!J40/1.645","v":46.024299649234528},56.740483353570987,{"$f":"PopulationCharacteristics!F40-PopulationCharacteristics!I40","v":-25},0.44060252085298129,1.645]
["N",{"$f":"PopulationCharacteristics!D42/1.645","v":74.164133738601819},{"$f":"PopulationCharacteristics!J42/1.645","v":57.750759878419451},93.99717548805431,{"$f":"PopulationCharacteristics!C42-PopulationCharacteristics!I42","v":54},0.57448534724176503,1.645,"Ethnicity -Hispanic",null,"Y",{"$f":"PopulationCharacteristics!G42/1.645","v":86.322188449848028},{"$f":"PopulationCharacteristics!J42/1.645","v":57.750759878419451},103.85889699638611,{"$f":"PopulationCharacteristics!F42-PopulationCharacteristics!I41","v":-8920},85.885757098983845,1.645]
["Y",{"$f":"PlaceOfBirthAndPriorRes!E8/1.645","v":49.240121580547111},{"$f":"PlaceOfBirthAndPriorRes!M8/1.645","v":134.34650455927053},143.08589329686262,{"$f":"PlaceOfBirthAndPriorRes!D8-PlaceOfBirthAndPriorRes!L8","v":-512},3.5782702836941813,1.645,"Place of Birth - United States Native",null,"N",{"$f":"PlaceOfBirthAndPriorRes!I8/1.645","v":42.553191489361701},{"$f":"PlaceOfBirthAndPriorRes!M8/1.645","v":134.34650455927053},140.92465147455354,{"$f":"PlaceOfBirthAndPriorRes!H8-PlaceOfBirthAndPriorRes!L8","v":-177},1.2559903334723557,1.645]
["N",{"$f":"PlaceOfBirthAndPriorRes!E9/1.645","v":186.62613981762917},{"$f":"PlaceOfBirthAndPriorRes!M9/1.645","v":317.32522796352583},368.13668163514069,{"$f":"PlaceOfBirthAndPriorRes!D9-PlaceOfBirthAndPriorRes!L9","v":-268},0.72799048117029019,1.645,"Place of Birth - New Hampshire Native",null,"N",{"$f":"PlaceOfBirthAndPriorRes!I9/1.645","v":268.69300911854106},{"$f":"PlaceOfBirthAndPriorRes!M9/1.645","v":317.32522796352583},415.80191612266538,{"$f":"PlaceOfBirthAndPriorRes!H9-PlaceOfBirthAndPriorRes!L9","v":-283},0.68061254416276529,1.645]
["N",{"$f":"PlaceOfBirthAndPriorRes!E10/1.645","v":199.39209726443769},{"$f":"PlaceOfBirthAndPriorRes!M10/1.645","v":311.85410334346506},370.14887575631991,{"$f":"PlaceOfBirthAndPriorRes!D10-PlaceOfBirthAndPriorRes!L10","v":-231},0.62407321791266013,1.645,"Place of Birth - Born in Different State",null,"N",{"$f":"PlaceOfBirthAndPriorRes!I10/1.645","v":282.06686930091183},{"$f":"PlaceOfBirthAndPriorRes!M10/1.645","v":311.85410334346506},420.49340129111926,{"$f":"PlaceOfBirthAndPriorRes!H10-PlaceOfBirthAndPriorRes!L10","v":-20},4.7563172070216257E-2,1.645]
["N",{"$f":"PlaceOfBirthAndPriorRes!E11/1.645","v":174.46808510638297},{"$f":"PlaceOfBirthAndPriorRes!M11/1.645","v":342.85714285714283},384.69485716454716,{"$f":"PlaceOfBirthAndPriorRes!D11-PlaceOfBirthAndPriorRes!L11","v":110},0.28594091642080161,1.645,"Place of Birth - Northeast",null,"N",{"$f":"PlaceOfBirthAndPriorRes!I11/1.645","v":253.49544072948328},{"$f":"PlaceOfBirthAndPriorRes!M11/1.645","v":342.85714285714283},426.39296297992331,{"$f":"PlaceOfBirthAndPriorRes!H11-PlaceOfBirthAndPriorRes!L11","v":193},0.45263411162132006,1.645]
["N",{"$f":"PlaceOfBirthAndPriorRes!E12/1.645","v":64.437689969604861},{"$f":"PlaceOfBirthAndPriorRes!M12/1.645","v":65.045592705167167},91.559516266663465,{"$f":"PlaceOfBirthAndPriorRes!D12-PlaceOfBirthAndPriorRes!L12","v":13},0.14198414900028539,1.645,"Place of Birth - Midwest",null,"N",{"$f":"PlaceOfBirthAndPriorRes!I12/1.645","v":101.51975683890578},{"$f":"PlaceOfBirthAndPriorRes!M12/1.645","v":65.045592705167167},120.57027062670571,{"$f":"PlaceOfBirthAndPriorRes!H12-PlaceOfBirthAndPriorRes!L12","v":96},0.79621617751214102,1.645]
["N",{"$f":"PlaceOfBirthAndPriorRes!E13/1.645","v":66.261398176291792},{"$f":"PlaceOfBirthAndPriorRes!M13/1.645","v":90.577507598784194},112.2268139576496,{"$f":"PlaceOfBirthAndPriorRes!D13-PlaceOfBirthAndPriorRes!L13","v":-128},1.1405473922506848,1.645,"Place of Birth - South",null,"N",{"$f":"PlaceOfBirthAndPriorRes!I13/1.645","v":83.282674772036472},{"$f":"PlaceOfBirthAndPriorRes!M13/1.645","v":90.577507598784194},123.04588087373185,{"$f":"PlaceOfBirthAndPriorRes!H13-PlaceOfBirthAndPriorRes!L13","v":-47},0.38197134000959215,1.645]
["N",{"$f":"PlaceOfBirthAndPriorRes!E14/1.645","v":52.887537993920972},{"$f":"PlaceOfBirthAndPriorRes!M14/1.645","v":149.54407294832828},158.6206841147565,{"$f":"PlaceOfBirthAndPriorRes!D14-PlaceOfBirthAndPriorRes!L14","v":-226},1.4247826584614711,1.645,"Place of Birth - West",null,"Y",{"$f":"PlaceOfBirthAndPriorRes!I14/1.645","v":49.240121580547111},{"$f":"PlaceOfBirthAndPriorRes!M14/1.645","v":149.54407294832828},157.44211421103944,{"$f":"PlaceOfBirthAndPriorRes!H14-PlaceOfBirthAndPriorRes!L14","v":-262},1.6641036695480886,1.645]
["N",{"$f":"PlaceOfBirthAndPriorRes!E15/1.645","v":25.531914893617021},{"$f":"PlaceOfBirthAndPriorRes!M15/1.645","v":32.826747720364743},41.586945596321144,{"$f":"PlaceOfBirthAndPriorRes!D15-PlaceOfBirthAndPriorRes!L15","v":-13},0.31259809571468034,1.645,"Place of Birth - Native Born Outside US",null,"N",{"$f":"PlaceOfBirthAndPriorRes!I15/1.645","v":82.066869300911847},{"$f":"PlaceOfBirthAndPriorRes!M15/1.645","v":32.826747720364743},88.388723278195499,{"$f":"PlaceOfBirthAndPriorRes!H15-PlaceOfBirthAndPriorRes!L15","v":126},1.4255212127391683,1.645]
["N",{"$f":"PlaceOfBirthAndPriorRes!E16/1.645","v":46.808510638297875},{"$f":"PlaceOfBirthAndPriorRes!M16/1.645","v":134.34650455927053},142.26742408390524,{"$f":"PlaceOfBirthAndPriorRes!D16-PlaceOfBirthAndPriorRes!L16","v":-162},1.1387005918126207,1.645,"Place of Birth - Foreign Born",null,"N",{"$f":"PlaceOfBirthAndPriorRes!I16/1.645","v":41.945288753799389},{"$f":"PlaceOfBirthAndPriorRes!M16/1.645","v":134.34650455927053},140.74228410798835,{"$f":"PlaceOfBirthAndPriorRes!H16-PlaceOfBirthAndPriorRes!L16","v":-195},1.3855111222323273,1.645]
["N",{"$f":"PlaceOfBirthAndPriorRes!E17/1.645","v":34.650455927051674},{"$f":"PlaceOfBirthAndPriorRes!M17/1.645","v":128.87537993920972},133.45230477750547,{"$f":"PlaceOfBirthAndPriorRes!D17-PlaceOfBirthAndPriorRes!L17","v":-118},0.88421103102514498,1.645,"Place of Birth - Naturalized Citizen",null,"N",{"$f":"PlaceOfBirthAndPriorRes!I17/1.645","v":27.96352583586626},{"$f":"PlaceOfBirthAndPriorRes!M17/1.645","v":128.87537993920972},131.87426713217715,{"$f":"PlaceOfBirthAndPriorRes!H17-PlaceOfBirthAndPriorRes!L17","v":-159},1.205693904184012,1.645]
["N",{"$f":"PlaceOfBirthAndPriorRes!E18/1.645","v":29.787234042553191},{"$f":"PlaceOfBirthAndPriorRes!M18/1.645","v":54.711246200607903},62.29446020898947,{"$f":"PlaceOfBirthAndPriorRes!D18-PlaceOfBirthAndPriorRes!L18","v":-44},0.70632283918001637,1.645,"Place of Birth - Not a Citizen",null,"N",{"$f":"PlaceOfBirthAndPriorRes!I18/1.645","v":32.218844984802431},{"$f":"PlaceOfBirthAndPriorRes!M18/1.645","v":54.711246200607903},63.493105397186717,{"$f":"PlaceOfBirthAndPriorRes!H18-PlaceOfBirthAndPriorRes!L18","v":-36},0.56699069567945726,1.645]
["Y",{"$f":"PlaceOfBirthAndPriorRes!E43/1.645","v":38.90577507598784},{"$f":"PlaceOfBirthAndPriorRes!I43/1.645","v":43.768996960486319},58.560946279840948,{"$f":"PlaceOfBirthAndPriorRes!D43-PlaceOfBirthAndPriorRes!H43","v":-330},5.6351548423253428,1.645,"Place of Residence for Population Total:",null,"Y",{"$f":"PlaceOfBirthAndPriorRes!I43/1.645","v":43.768996960486319},{"$f":"PlaceOfBirthAndPriorRes!M43/1.645","v":41.945288753799389},{"$f":"SQRT((K37^2)+(L37^2))","v":60.622869806424291},{"$f":"PlaceOfBirthAndPriorRes!H43-PlaceOfBirthAndPriorRes!L43","v":-417},6.8785922100278061,1.645]
["Y",{"$f":"PlaceOfBirthAndPriorRes!E44/1.645","v":266.26139817629178},{"$f":"PlaceOfBirthAndPriorRes!I44/1.645","v":213.98176291793314},341.58941292180054,{"$f":"PlaceOfBirthAndPriorRes!D44-PlaceOfBirthAndPriorRes!H44","v":-719},2.1048661720806887,1.645,"Place of Residence for Population  Same house ",null,"N",{"$f":"PlaceOfBirthAndPriorRes!I8/1.645","v":42.553191489361701},{"$f":"PlaceOfBirthAndPriorRes!M8/1.645","v":134.34650455927053},{"$f":"SQRT((K38^2)+(L38^2))","v":140.92465147455354},{"$f":"PlaceOfBirthAndPriorRes!H8-PlaceOfBirthAndPriorRes!L8","v":-177},1.2559903334723557,1.645]
["N",{"$f":"PlaceOfBirthAndPriorRes!E45/1.645","v":277.42818720159437},{"$f":"PlaceOfBirthAndPriorRes!I45/1.645","v":193.13424850335625},338.03437251102002,{"$f":"PlaceOfBirthAndPriorRes!D45-PlaceOfBirthAndPriorRes!H45","v":389},1.1507705477120334,1.645,"Place of Residence for Population  Different house",null,"N",{"$f":"PlaceOfBirthAndPriorRes!I9/1.645","v":268.69300911854106},{"$f":"PlaceOfBirthAndPriorRes!M9/1.645","v":317.32522796352583},415.80191612266538,{"$f":"PlaceOfBirthAndPriorRes!H9-PlaceOfBirthAndPriorRes!L9","v":-283},0.68061254416276529,1.645]
["N",{"$f":"PlaceOfBirthAndPriorRes!E46/1.645","v":261.37909027656752},{"$f":"PlaceOfBirthAndPriorRes!I46/1.645","v":182.26542040342858},318.65296532222101,{"$f":"PlaceOfBirthAndPriorRes!D46-PlaceOfBirthAndPriorRes!H46","v":363},1.1391703185091511,1.645,"Place of Residence for Population in New Hampshire",null,"N",{"$f":"PlaceOfBirthAndPriorRes!I10/1.645","v":282.06686930091183},{"$f":"PlaceOfBirthAndPriorRes!M10/1.645","v":311.85410334346506},420.49340129111926,{"$f":"PlaceOfBirthAndPriorRes!H10-PlaceOfBirthAndPriorRes!L10","v":-20},4.7563172070216257E-2,1.645]
["N",{"$f":"PlaceOfBirthAndPriorRes!E47/1.645","v":250.45592705167172},{"$f":"PlaceOfBirthAndPriorRes!I47/1.645","v":127.65957446808511},281.11410200963752,{"$f":"PlaceOfBirthAndPriorRes!D47-PlaceOfBirthAndPriorRes!H47","v":447},1.5901016590931301,1.645,"Place of Residence for Population Same county",null,"N",{"$f":"PlaceOfBirthAndPriorRes!I11/1.645","v":253.49544072948328},{"$f":"PlaceOfBirthAndPriorRes!M11/1.645","v":342.85714285714283},426.39296297992331,{"$f":"PlaceOfBirthAndPriorRes!H11-PlaceOfBirthAndPriorRes!L11","v":193},0.45263411162132006,1.645]
["N",{"$f":"PlaceOfBirthAndPriorRes!E48/1.645","v":74.772036474164139},{"$f":"PlaceOfBirthAndPriorRes!I48/1.645","v":130.09118541033433},150.04857200240099,{"$f":"PlaceOfBirthAndPriorRes!D48-PlaceOfBirthAndPriorRes!H48","v":-84},0.55981872322420956,1.645,"Place of Residence for Population Different county",null,"N",{"$f":"PlaceOfBirthAndPriorRes!I12/1.645","v":101.51975683890578},{"$f":"PlaceOfBirthAndPriorRes!M12/1.645","v":65.045592705167167},120.57027062670571,{"$f":"PlaceOfBirthAndPriorRes!H12-PlaceOfBirthAndPriorRes!L12","v":96},0.79621617751214102,1.645]
["N",{"$f":"PlaceOfBirthAndPriorRes!E49/1.645","v":62.006079027355625},{"$f":"PlaceOfBirthAndPriorRes!I49/1.645","v":63.221884498480243},88.55371542677274,{"$f":"PlaceOfBirthAndPriorRes!D49-PlaceOfBirthAndPriorRes!H49","v":26},0.29360710473520496,1.645,"Place of Residence for Population in Different state",null,"N",{"$f":"PlaceOfBirthAndPriorRes!I13/1.645","v":83.282674772036472},{"$f":"PlaceOfBirthAndPriorRes!M13/1.645","v":90.577507598784194},123.04588087373185,{"$f":"PlaceOfBirthAndPriorRes!H13-PlaceOfBirthAndPriorRes!L13","v":-47},0.38197134000959215,1.645]
["N",{"$f":"PlaceOfBirthAndPriorRes!E50/1.645","v":69.300911854103347},{"$f":"PlaceOfBirthAndPriorRes!I50/1.645","v":9.1185410334346511},69.898241568644863,{"$f":"PlaceOfBirthAndPriorRes!D50-PlaceOfBirthAndPriorRes!H50","v":0},0,1.645,"Place of Residence for Population Elsewhere",null,"Y",{"$f":"PlaceOfBirthAndPriorRes!I14/1.645","v":49.240121580547111},{"$f":"PlaceOfBirthAndPriorRes!M14/1.645","v":149.54407294832828},157.44211421103944,{"$f":"PlaceOfBirthAndPriorRes!H14-PlaceOfBirthAndPriorRes!L14","v":-262},1.6641036695480886,1.645]
["Y",{"$f":"SchoolEnrolEduAttain!G23/1.645","v":73.556231003039514},{"$f":"SchoolEnrolEduAttain!M23/1.645","v":168.38905775075989},{"$f":"SQRT((B45^2)+(C45^2))","v":183.75362279302485},{"$f":"SchoolEnrolEduAttain!F23-SchoolEnrolEduAttain!L23","v":-22181},120.71054525539387,1.645,"Total Population 3 years & over",null,"Y",{"$f":"SchoolEnrolEduAttain!J23/1.645","v":81.458966565349542},{"$f":"SchoolEnrolEduAttain!M23/1.645","v":168.38905775075989},{"$f":"SQRT((K45^2)+(L45^2))","v":187.05731208397998},{"$f":"SchoolEnrolEduAttain!I23-SchoolEnrolEduAttain!L23","v":-21840},116.75566037319547,1.645]
["Y",{"$f":"SchoolEnrolEduAttain!G24/1.645","v":167.17325227963525},{"$f":"SchoolEnrolEduAttain!M24/1.645","v":275.37993920972644},{"$f":"SQRT((B46^2)+(C46^2))","v":322.15059707674482},{"$f":"SchoolEnrolEduAttain!F24-SchoolEnrolEduAttain!L24","v":-3959},12.28928344670074,1.645,"Population 3 years & over enrolled in school",null,"Y",{"$f":"SchoolEnrolEduAttain!J24/1.645","v":174.46808510638297},{"$f":"SchoolEnrolEduAttain!M24/1.645","v":275.37993920972644},{"$f":"SQRT((K46^2)+(L46^2))","v":325.99574175108597},{"$f":"SchoolEnrolEduAttain!I24-SchoolEnrolEduAttain!L24","v":-4389},13.463366044060848,1.645]
["Y",{"$f":"SchoolEnrolEduAttain!G25/1.645","v":61.898709112986531},{"$f":"SchoolEnrolEduAttain!M25/1.645","v":150.09289658892013},162.35555979487242,{"$f":"SchoolEnrolEduAttain!F25-SchoolEnrolEduAttain!L25","v":-599},3.6894332461223041,1.645,"Preprimary (Nursery, Preschool, Kindergarten)",null,"Y",{"$f":"SchoolEnrolEduAttain!J25/1.645","v":80.839636279048207},{"$f":"SchoolEnrolEduAttain!M25/1.645","v":150.09289658892013},170.47851594902238,{"$f":"SchoolEnrolEduAttain!I25-SchoolEnrolEduAttain!L25","v":-615},3.6074926894829455,1.645]
["N",{"$f":"SchoolEnrolEduAttain!G26/1.645","v":43.768996960486319},{"$f":"SchoolEnrolEduAttain!M26/1.645","v":49.848024316109424},66.336646155398128,{"$f":"SchoolEnrolEduAttain!F26-SchoolEnrolEduAttain!L26","v":92},1.3868654104773961,1.645,"Nursery school and Preschool",null,"Y",{"$f":"SchoolEnrolEduAttain!J26/1.645","v":79.027355623100306},{"$f":"SchoolEnrolEduAttain!M26/1.645","v":49.848024316109424},93.435263498314171,{"$f":"SchoolEnrolEduAttain!I26-SchoolEnrolEduAttain!L26","v":187},2.0013856974179132,1.645]
["Y",{"$f":"SchoolEnrolEduAttain!G27/1.645","v":43.768996960486319},{"$f":"SchoolEnrolEduAttain!M27/1.645","v":9.7264437689969601},44.836690369813432,{"$f":"SchoolEnrolEduAttain!F27-SchoolEnrolEduAttain!L27","v":136},3.03323012644936,1.645,"Kindergarten",null,"N",{"$f":"SchoolEnrolEduAttain!J27/1.645","v":17.021276595744681},{"$f":"SchoolEnrolEduAttain!M27/1.645","v":9.7264437689969601},19.604274159996471,{"$f":"SchoolEnrolEduAttain!I27-SchoolEnrolEduAttain!L27","v":25},1.2752321149952996,1.645]
["Y",{"$f":"SchoolEnrolEduAttain!G28/1.645","v":165.5315911845357},{"$f":"SchoolEnrolEduAttain!M28/1.645","v":239.46352830020126},291.10734972869642,{"$f":"SchoolEnrolEduAttain!F28-SchoolEnrolEduAttain!L28","v":-1729},5.9393897186428912,1.645,"Elementary through High school",null,"Y",{"$f":"SchoolEnrolEduAttain!J28/1.645","v":156.19788420502763},{"$f":"SchoolEnrolEduAttain!M28/1.645","v":239.46352830020126},285.90306122199621,{"$f":"SchoolEnrolEduAttain!I28-SchoolEnrolEduAttain!L28","v":-2141},7.4885522066431101,1.645]
["Y",{"$f":"SchoolEnrolEduAttain!G29/1.645","v":140.11070117125143},{"$f":"SchoolEnrolEduAttain!M29/1.645","v":202.97944254518126},246.64075632111627,{"$f":"SchoolEnrolEduAttain!F29-SchoolEnrolEduAttain!L29","v":-1209},4.9018662528991399,1.645,"Elementary school (grades 1-8)",null,"Y",{"$f":"SchoolEnrolEduAttain!J29/1.645","v":128.53226102264975},{"$f":"SchoolEnrolEduAttain!M29/1.645","v":202.97944254518126},240.25235944636862,{"$f":"SchoolEnrolEduAttain!I29-SchoolEnrolEduAttain!L29","v":-1470},6.118566341606094,1.645]
["Y",{"$f":"SchoolEnrolEduAttain!G30/1.645","v":88.145896656534958},{"$f":"SchoolEnrolEduAttain!M30/1.645","v":127.05167173252279},154.63449287727906,{"$f":"SchoolEnrolEduAttain!F30-SchoolEnrolEduAttain!L30","v":-520},3.3627684892573231,1.645,"High school (grades 9-12)",null,"Y",{"$f":"SchoolEnrolEduAttain!J30/1.645","v":88.753799392097264},{"$f":"SchoolEnrolEduAttain!M30/1.645","v":127.05167173252279},154.98181892261226,{"$f":"SchoolEnrolEduAttain!I30-SchoolEnrolEduAttain!L30","v":-671},4.3295401013137758,1.645]
["Y",{"$f":"SchoolEnrolEduAttain!G31/1.645","v":73.011624008901606},{"$f":"SchoolEnrolEduAttain!M31/1.645","v":224.20405599890611},235.79261219719723,{"$f":"SchoolEnrolEduAttain!F31-SchoolEnrolEduAttain!L31","v":-1631},6.9170954289100797,1.645,"College or Graduate School",null,"Y",{"$f":"SchoolEnrolEduAttain!J31/1.645","v":95.825218213923563},{"$f":"SchoolEnrolEduAttain!M31/1.645","v":224.20405599890611},243.82356566194889,{"$f":"SchoolEnrolEduAttain!I31-SchoolEnrolEduAttain!L31","v":-1633},6.6974658317649478,1.645]
["Y",{"$f":"SchoolEnrolEduAttain!G52/1.645","v":145.28875379939208},{"$f":"SchoolEnrolEduAttain!M52/1.645","v":329.48328267477206},{"$f":"SQRT((B54^2)+(C54^2))","v":360.09450918158154},{"$f":"SchoolEnrolEduAttain!I52-SchoolEnrolEduAttain!L52","v":-16208},45.010405842725419,1.645,"Population 25 years and over",null,"Y",{"$f":"SchoolEnrolEduAttain!J52/1.645","v":173.86018237082067},{"$f":"SchoolEnrolEduAttain!M52/1.645","v":329.48328267477206},{"$f":"SQRT((K54^2)+(L54^2))","v":372.54073143236133},{"$f":"SchoolEnrolEduAttain!I52-SchoolEnrolEduAttain!L52","v":-16208},43.506652112059676,1.645]
["Y",{"$f":"SchoolEnrolEduAttain!G53/1.645","v":126.29901698074373},{"$f":"SchoolEnrolEduAttain!M53/1.645","v":84.982541246862027},{"$f":"SQRT((B55^2)+(C55^2))","v":152.22836137552292},{"$f":"SchoolEnrolEduAttain!I53-SchoolEnrolEduAttain!L53","v":-288},1.8918945024281661,1.645,"Less than 9th Grade",null,"Y",{"$f":"SchoolEnrolEduAttain!J53/1.645","v":26.560549878362892},{"$f":"SchoolEnrolEduAttain!M53/1.645","v":84.982541246862027},{"$f":"SQRT((K55^2)+(L55^2))","v":89.036481998198965},{"$f":"SchoolEnrolEduAttain!I53-SchoolEnrolEduAttain!L53","v":-288},3.2346291490473047,1.645]
["Y",{"$f":"SchoolEnrolEduAttain!G54/1.645","v":62.16084148894452},{"$f":"SchoolEnrolEduAttain!M54/1.645","v":140.29125542427289},153.44577727370756,{"$f":"SchoolEnrolEduAttain!I54-SchoolEnrolEduAttain!L54","v":-766},4.9919913966329243,1.645,"9th to 12th Grade, no Diploma",null,"Y",{"$f":"SchoolEnrolEduAttain!J54/1.645","v":63.65876640278853},{"$f":"SchoolEnrolEduAttain!M54/1.645","v":140.29125542427289},154.05867352552201,{"$f":"SchoolEnrolEduAttain!I54-SchoolEnrolEduAttain!L54","v":-766},4.972131607202896,1.645]
["Y",{"$f":"SchoolEnrolEduAttain!G55/1.645","v":142.11148604937335},{"$f":"SchoolEnrolEduAttain!M55/1.645","v":259.42351625412493},295.79762550232795,{"$f":"SchoolEnrolEduAttain!I55-SchoolEnrolEduAttain!L55","v":-3096},10.466615459614751,1.645,"High School Graduate ",null,"Y",{"$f":"SchoolEnrolEduAttain!J55/1.645","v":205.87360088733476},{"$f":"SchoolEnrolEduAttain!M55/1.645","v":259.42351625412493},331.18650384333574,{"$f":"SchoolEnrolEduAttain!I55-SchoolEnrolEduAttain!L55","v":-3096},9.3482070195243523,1.645]
["Y",{"$f":"SchoolEnrolEduAttain!G56/1.645","v":128.3610773600081},{"$f":"SchoolEnrolEduAttain!M56/1.645","v":279.02272016068645},307.13229160557302,{"$f":"SchoolEnrolEduAttain!I56-SchoolEnrolEduAttain!L56","v":-2797},9.1068248974353292,1.645,"Some College, No Degree",null,"Y",{"$f":"SchoolEnrolEduAttain!J56/1.645","v":166.10545967569786},{"$f":"SchoolEnrolEduAttain!M56/1.645","v":279.02272016068645},324.7225001442672,{"$f":"SchoolEnrolEduAttain!I56-SchoolEnrolEduAttain!L56","v":-2797},8.6135084533943704,1.645]
["Y",{"$f":"SchoolEnrolEduAttain!G57/1.645","v":121.65499240567522},{"$f":"SchoolEnrolEduAttain!M57/1.645","v":208.47873425578351},241.37796049788491,{"$f":"SchoolEnrolEduAttain!I57-SchoolEnrolEduAttain!L57","v":-1313},5.4396018480382562,1.645,"Associate Degree",null,"Y",{"$f":"SchoolEnrolEduAttain!J57/1.645","v":113.83374380858544},{"$f":"SchoolEnrolEduAttain!M57/1.645","v":208.47873425578351},237.53211123208641,{"$f":"SchoolEnrolEduAttain!I57-SchoolEnrolEduAttain!L57","v":-1313},5.5276736824736172,1.645]
["Y",{"$f":"SchoolEnrolEduAttain!G58/1.645","v":115.74123261191349},{"$f":"SchoolEnrolEduAttain!M58/1.645","v":370.99253578585291},388.62770685495707,{"$f":"SchoolEnrolEduAttain!I58-SchoolEnrolEduAttain!L58","v":-4575},11.772192047304216,1.645,"Bachelor's Degree",null,"Y",{"$f":"SchoolEnrolEduAttain!J58/1.645","v":191.83738336348748},{"$f":"SchoolEnrolEduAttain!M58/1.645","v":370.99253578585291},417.65660926719096,{"$f":"SchoolEnrolEduAttain!I58-SchoolEnrolEduAttain!L58","v":-4575},10.953974864727202,1.645]
["Y",{"$f":"SchoolEnrolEduAttain!G59/1.645","v":56.299145436230262},{"$f":"SchoolEnrolEduAttain!M59/1.645","v":282.35691512379015},287.91495496947192,{"$f":"SchoolEnrolEduAttain!I59-SchoolEnrolEduAttain!L59","v":-3345},11.618014077645517,1.645,"Graduate or Professional Degree",null,"Y",{"$f":"SchoolEnrolEduAttain!J59/1.645","v":128.91121827782587},{"$f":"SchoolEnrolEduAttain!M59/1.645","v":282.35691512379015},310.39254133451163,{"$f":"SchoolEnrolEduAttain!I59-SchoolEnrolEduAttain!L59","v":-3345},10.776676480750471,1.645]
["Y",{"$f":"HousingCharacteristics!D32/1.645","v":120.36474164133739},{"$f":"HousingCharacteristics!J32/1.645","v":158.05471124620061},198.66797119190036,{"$f":"HousingCharacteristics!C32-HousingCharacteristics!I32","v":-349},1.7566998741980844,1.645,"Total Housing Units",null,"N",{"$f":"HousingCharacteristics!G32/1.645","v":120.36474164133739},{"$f":"HousingCharacteristics!J32/1.645","v":158.05471124620061},{"$f":"SQRT((K62^2)+(L62^2))","v":198.66797119190036},{"$f":"HousingCharacteristics!F32-HousingCharacteristics!I32","v":-5},{"$f":"ABS((N62/M62))","v":2.5167619974184589E-2},1.645]
["N",{"$f":"HousingCharacteristics!D33/1.645","v":111.85410334346504},{"$f":"HousingCharacteristics!J33/1.645","v":121.580547112462},165.20644621483797,{"$f":"HousingCharacteristics!C33-HousingCharacteristics!I33","v":-222},1.3437732309265129,1.645,"Occupied Units",null,"N",{"$f":"HousingCharacteristics!G33/1.645","v":111.85410334346504},{"$f":"HousingCharacteristics!J33/1.645","v":121.580547112462},{"$f":"SQRT((K63^2)+(L63^2))","v":165.20644621483797},{"$f":"HousingCharacteristics!F33-HousingCharacteristics!I33","v":124},{"$f":"ABS((N63/M63))","v":0.75057603889589009},1.645]
["Y",{"$f":"HousingCharacteristics!D34/1.645","v":125.83586626139818},{"$f":"HousingCharacteristics!J34/1.645","v":129.48328267477203},180.55632287458505,{"$f":"HousingCharacteristics!C34-HousingCharacteristics!I34","v":-512},2.8356802567121213,1.645,"Owner Occupied",null,"N",{"$f":"HousingCharacteristics!G34/1.645","v":125.83586626139818},{"$f":"HousingCharacteristics!J34/1.645","v":129.48328267477203},180.55632287458505,{"$f":"HousingCharacteristics!F34-HousingCharacteristics!I34","v":44},0.24369127206119792,1.645]
["Y",{"$f":"HousingCharacteristics!D35/1.645","v":93.00911854103343},{"$f":"HousingCharacteristics!J35/1.645","v":84.498480243161097},125.66100944678065,{"$f":"HousingCharacteristics!C35-HousingCharacteristics!I35","v":290},2.3077961992882079,1.645,"Renter Occupied",null,"N",{"$f":"HousingCharacteristics!G35/1.645","v":93.00911854103343},{"$f":"HousingCharacteristics!J35/1.645","v":84.498480243161097},125.66100944678065,{"$f":"HousingCharacteristics!F35-HousingCharacteristics!I35","v":80},0.63663343428640218,1.645]
["N",{"$f":"HousingCharacteristics!D36/1.645","v":77.203647416413375},{"$f":"HousingCharacteristics!J36/1.645","v":135.56231003039514},156.00494567536902,{"$f":"HousingCharacteristics!C36-HousingCharacteristics!I36","v":-127},0.81407675538873325,1.645,"Vacant Units",null,"N",{"$f":"HousingCharacteristics!G36/1.645","v":77.203647416413375},{"$f":"HousingCharacteristics!J36/1.645","v":135.56231003039514},156.00494567536902,{"$f":"HousingCharacteristics!F36-HousingCharacteristics!I36","v":-129},0.82689686177280775,1.645]
["N",{"$f":"HousingCharacteristics!D37/1.645","v":36.474164133738604},{"$f":"HousingCharacteristics!J37/1.645","v":9.7264437689969601},37.74875306081465,{"$f":"HousingCharacteristics!C37-HousingCharacteristics!I37","v":61},1.6159474169047843,1.645,"Vacant For Sale",null,"N",{"$f":"HousingCharacteristics!G37/1.645","v":36.474164133738604},{"$f":"HousingCharacteristics!J37/1.645","v":9.7264437689969601},37.74875306081465,{"$f":"HousingCharacteristics!F37-HousingCharacteristics!I37","v":38},1.0066557679078985,1.645]
[{"$f":"IF(F68>G68,\"Y\",\"N\")","v":"N"},{"$f":"HousingCharacteristics!D38/1.645","v":9.1185410334346511},{"$f":"HousingCharacteristics!J38/1.645","v":9.7264437689969601},13.332347841617818,{"$f":"HousingCharacteristics!C38-HousingCharacteristics!I38","v":0},{"$f":"ABS((E68/D68))","v":0},1.645,"Vacant For Rent",null,"N",{"$f":"HousingCharacteristics!G38/1.645","v":9.1185410334346511},{"$f":"HousingCharacteristics!J38/1.645","v":9.7264437689969601},13.332347841617818,{"$f":"HousingCharacteristics!F38-HousingCharacteristics!I38","v":0},0,1.645]
["N",{"$f":"HousingCharacteristics!D39/1.645","v":65.653495440729486},{"$f":"HousingCharacteristics!J39/1.645","v":98.480243161094222},118.35852211249569,{"$f":"HousingCharacteristics!C39-HousingCharacteristics!I39","v":-44},0.37175185372946373,1.645,"Vacant Seasonal",null,{"$f":"IF(O69>P69,\"Y\",\"N\")","v":"N"},{"$f":"HousingCharacteristics!G39/1.645","v":65.653495440729486},{"$f":"HousingCharacteristics!J39/1.645","v":98.480243161094222},118.35852211249569,{"$f":"HousingCharacteristics!F39-HousingCharacteristics!I39","v":-53},0.44779200562867227,1.645]
["Y",{"$f":"HousingCharacteristics!E71/1.645","v":119.14893617021276},{"$f":"HousingCharacteristics!K71/1.645","v":158.05471124620061},197.93372814559243,{"$f":"HousingCharacteristics!D71-HousingCharacteristics!J71","v":-349},1.7632164223334845,1.645,"Total Housing Units",null,"N",{"$f":"HousingCharacteristics!H71/1.645","v":120.36474164133739},{"$f":"HousingCharacteristics!K71/1.645","v":158.05471124620061},198.66797119190036,{"$f":"HousingCharacteristics!G71-HousingCharacteristics!J71","v":-5},2.5167619974184589E-2,1.645]
["Y",{"$f":"HousingCharacteristics!E72/1.645","v":110.03039513677811},{"$f":"HousingCharacteristics!K72/1.645","v":176.29179331306992},207.8111744913966,{"$f":"HousingCharacteristics!D72-HousingCharacteristics!J72","v":-425},2.0451258265594134,1.645,"Single Family Units",null,"N",{"$f":"HousingCharacteristics!H72/1.645","v":134.95440729483283},{"$f":"HousingCharacteristics!K72/1.645","v":176.29179331306992},222.01686521036592,{"$f":"HousingCharacteristics!G72-HousingCharacteristics!J72","v":-20},9.0083246518455048E-2,1.645]
["Y",{"$f":"HousingCharacteristics!E73/1.645","v":112.46200607902736},{"$f":"HousingCharacteristics!K73/1.645","v":137.38601823708206},177.54610899245026,{"$f":"HousingCharacteristics!D73-HousingCharacteristics!J73","v":-417},2.3486856589897558,1.645,"SF Owner Occ.",null,"N",{"$f":"HousingCharacteristics!H73/1.645","v":130.09118541033433},{"$f":"HousingCharacteristics!K73/1.645","v":137.38601823708206},189.20527087929085,{"$f":"HousingCharacteristics!G73-HousingCharacteristics!J73","v":-28},0.14798742059286199,1.645]
["N",{"$f":"HousingCharacteristics!E74/1.645","v":65.653495440729486},{"$f":"HousingCharacteristics!K74/1.645","v":79.027355623100306},102.74095775476229,{"$f":"HousingCharacteristics!D74-HousingCharacteristics!J74","v":52},0.50612726546818354,1.645,"SF Renter Occ.",null,"N",{"$f":"HousingCharacteristics!H74/1.645","v":84.498480243161097},{"$f":"HousingCharacteristics!K74/1.645","v":79.027355623100306},115.69492685586455,{"$f":"HousingCharacteristics!G74-HousingCharacteristics!J74","v":49},0.42352764578040097,1.645]
["N",{"$f":"HousingCharacteristics!E75/1.645","v":118.71392582355398},{"$f":"HousingCharacteristics!K75/1.645","v":108.41310866510179},160.76815081001413,{"$f":"HousingCharacteristics!D75-HousingCharacteristics!J75","v":-30},0.18660412431721099,1.645,"Multi-family Units",null,"N",{"$f":"HousingCharacteristics!H75/1.645","v":77.709374404955469},{"$f":"HousingCharacteristics!K75/1.645","v":108.41310866510179},133.38721453288062,{"$f":"HousingCharacteristics!G75-HousingCharacteristics!J75","v":-40},0.29987881627245316,1.645]
["N",{"$f":"HousingCharacteristics!E76/1.645","v":155.681267624827},{"$f":"HousingCharacteristics!K76/1.645","v":76.956740858743132},173.66345917570786,{"$f":"HousingCharacteristics!D76-HousingCharacteristics!J76","v":-140},0.80615692365284453,1.645,"MF Owner Occ.",null,"N",{"$f":"HousingCharacteristics!H76/1.645","v":56.58722295367896},{"$f":"HousingCharacteristics!K76/1.645","v":76.956740858743132},95.522006706355981,{"$f":"HousingCharacteristics!G76-HousingCharacteristics!J76","v":-50},0.52343958972412408,1.645]
["N",{"$f":"HousingCharacteristics!E77/1.645","v":136.5631542845226},{"$f":"HousingCharacteristics!K77/1.645","v":53.898042913842836},146.81448885610973,{"$f":"HousingCharacteristics!D77-HousingCharacteristics!J77","v":167},1.1374899119369188,1.645,"MF Renter Occ.",null,"N",{"$f":"HousingCharacteristics!H77/1.645","v":53.082824305692952},{"$f":"HousingCharacteristics!K77/1.645","v":53.898042913842836},75.649092963574333,{"$f":"HousingCharacteristics!G77-HousingCharacteristics!J77","v":44},0.58163288251435308,1.645]
["N",{"$f":"HousingCharacteristics!E78/1.645","v":104.65288803941816},{"$f":"HousingCharacteristics!K78/1.645","v":88.680904403236667},137.1733566723764,{"$f":"HousingCharacteristics!D78-HousingCharacteristics!J78","v":106},0.77274481409075257,1.645,"Mobile Home & Other",null,"N",{"$f":"HousingCharacteristics!H78/1.645","v":81.363642451568992},{"$f":"HousingCharacteristics!K78/1.645","v":88.680904403236667},120.35092487705593,{"$f":"HousingCharacteristics!G78-HousingCharacteristics!J78","v":55},0.45699690348192223,1.645]
["N",{"$f":"HousingCharacteristics!$D88/1.645","v":69.300911854103347},{"$f":"HousingCharacteristics!L88/1.645","v":9.7264437689969601},69.980140698641506,{"$f":"HousingCharacteristics!$D88-HousingCharacteristics!$K88","v":114},1.6290335924147838,1.645,"No Bedrooms",null,"N",{"$f":"HousingCharacteristics!H88/1.645","v":9.1185410334346511},{"$f":"HousingCharacteristics!L88/1.645","v":9.7264437689969601},13.332347841617818,{"$f":"HousingCharacteristics!G88-HousingCharacteristics!K88","v":0},0,1.645]
["N",{"$f":"HousingCharacteristics!$D89/1.645","v":63.829787234042556},{"$f":"HousingCharacteristics!L89/1.645","v":54.10334346504559},83.674449579545097,{"$f":"HousingCharacteristics!$D89-HousingCharacteristics!$K89","v":-33},0.39438562387707798,1.645,"1 Bedroom",null,"N",{"$f":"HousingCharacteristics!H89/1.645","v":93.61702127659575},{"$f":"HousingCharacteristics!L89/1.645","v":54.10334346504559},108.12640032295199,{"$f":"HousingCharacteristics!G89-HousingCharacteristics!K89","v":114},1.0543216056347453,1.645]
["Y",{"$f":"HousingCharacteristics!$D90/1.645","v":122.18844984802432},{"$f":"HousingCharacteristics!L90/1.645","v":150.75987841945289},194.05813102601851,{"$f":"HousingCharacteristics!$D90-HousingCharacteristics!$K90","v":-856},4.4110493874911691,1.645,"2 Bedrooms",null,"N",{"$f":"HousingCharacteristics!H90/1.645","v":142.85714285714286},{"$f":"HousingCharacteristics!L90/1.645","v":150.75987841945289},207.69377507848986,{"$f":"HousingCharacteristics!G90-HousingCharacteristics!K90","v":142},0.68369887323939571,1.645]
["Y",{"$f":"HousingCharacteristics!$D91/1.645","v":133.13069908814589},{"$f":"HousingCharacteristics!L91/1.645","v":170.21276595744681},216.09296317692304,{"$f":"HousingCharacteristics!$D91-HousingCharacteristics!$K91","v":-1647},7.6217197255587736,1.645,"3 Bedrooms",null,"Y",{"$f":"HousingCharacteristics!H91/1.645","v":133.73860182370819},{"$f":"HousingCharacteristics!L91/1.645","v":170.21276595744681},216.46800990595565,{"$f":"HousingCharacteristics!G91-HousingCharacteristics!K91","v":-576},2.6609012585750786,1.645]
["Y",{"$f":"HousingCharacteristics!$D92/1.645","v":82.433045508493265},{"$f":"HousingCharacteristics!L92/1.645","v":124.35289027163273},149.19399555851453,{"$f":"HousingCharacteristics!$D92-HousingCharacteristics!$K92","v":-396.39764013852857},2.6569275704065429,1.645,"4+ Bedrooms",null,"N",{"$f":"HousingCharacteristics!H92/1.645","v":147.13255659188593},{"$f":"HousingCharacteristics!L92/1.645","v":124.35289027163273},192.64379182359667,{"$f":"HousingCharacteristics!G92-HousingCharacteristics!K92","v":315},1.6351422333321,1.645]
["N",{"$f":"'HHIncome-10YearComparison'!$F$30/1.645","v":22.492401215805472},{"$f":"'HHIncome-10YearComparison'!$M$30/1.645","v":46.200607902735563},{"$f":"SQRT((B83^2)+(C83^2))","v":51.384864338004036},{"$f":"'HHIncome-10YearComparison'!$E$30-'HHIncome-10YearComparison'!$L$30","v":-10},0.19460983557767303,1.645,"Household Income Less than $10,000",null,"N",{"$f":"'HHIncome-10YearComparison'!$F$30/1.645","v":22.492401215805472},{"$f":"'HHIncome-10YearComparison'!$J$30/1.645","v":50.455927051671729},{"$f":"SQRT((K83^2)+(L83^2))","v":55.242272646012552},{"$f":"'HHIncome-10YearComparison'!$E$30-'HHIncome-10YearComparison'!$I$30","v":-52},0.94130812345848369,1.645]
["N",{"$f":"'HHIncome-10YearComparison'!$F$31/1.645","v":13.373860182370821},{"$f":"'HHIncome-10YearComparison'!$M$31/1.645","v":74.164133738601819},{"$f":"SQRT((B84^2)+(C84^2))","v":75.360326892701437},{"$f":"'HHIncome-10YearComparison'!$E$31-'HHIncome-10YearComparison'!$L$31","v":-123},1.6321585252028996,1.645,"Household Income $10,000 to $14,999",null,"Y",{"$f":"'HHIncome-10YearComparison'!$F$31/1.645","v":13.373860182370821},{"$f":"'HHIncome-10YearComparison'!$J$31/1.645","v":62.61398176291793},{"$f":"SQRT((K84^2)+(L84^2))","v":64.026329337114305},{"$f":"'HHIncome-10YearComparison'!$E$31-'HHIncome-10YearComparison'!$I$31","v":-160},2.4989719332114264,1.645]
["N",{"$f":"'HHIncome-10YearComparison'!$F$32/1.645","v":52.887537993920972},{"$f":"'HHIncome-10YearComparison'!$M$32/1.645","v":105.32167086898386},117.85476668210327,{"$f":"'HHIncome-10YearComparison'!$E$32-'HHIncome-10YearComparison'!$L$32","v":-140},1.1879027377622358,1.645,"Household Income $15,000 to $24,999",null,"N",{"$f":"'HHIncome-10YearComparison'!$F$32/1.645","v":52.887537993920972},{"$f":"'HHIncome-10YearComparison'!$J$32/1.645","v":50.514486104661948},73.135524756964173,{"$f":"'HHIncome-10YearComparison'!$E$32-'HHIncome-10YearComparison'!$I$32","v":-8},0.10938596566558739,1.645]
["N",{"$f":"'HHIncome-10YearComparison'!$F$33/1.645","v":34.042553191489361},{"$f":"'HHIncome-10YearComparison'!$M$33/1.645","v":68.207120370949667},76.230615221789989,{"$f":"'HHIncome-10YearComparison'!$E$33-'HHIncome-10YearComparison'!$L$33","v":-91},1.1937461049637217,1.645,"Household Income $25,000 to $34,999",null,"Y",{"$f":"'HHIncome-10YearComparison'!$F$33/1.645","v":34.042553191489361},{"$f":"'HHIncome-10YearComparison'!$J$33/1.645","v":85.149793531395161},91.702686799431376,{"$f":"'HHIncome-10YearComparison'!$E$33-'HHIncome-10YearComparison'!$I$33","v":-165},1.7992929733987153,1.645]
["Y",{"$f":"'HHIncome-10YearComparison'!$F$34/1.645","v":40.729483282674771},{"$f":"'HHIncome-10YearComparison'!$M$34/1.645","v":98.446464994036091},106.53918189237073,{"$f":"'HHIncome-10YearComparison'!$E$34-'HHIncome-10YearComparison'!$L$34","v":-202},1.8960160610588019,1.645,"Household Income $35,000 to $49,999",null,"Y",{"$f":"'HHIncome-10YearComparison'!$F$34/1.645","v":40.729483282674771},{"$f":"'HHIncome-10YearComparison'!$J$34/1.645","v":105.32517954461969},112.92601230265795,{"$f":"'HHIncome-10YearComparison'!$E$34-'HHIncome-10YearComparison'!$I$34","v":-246},2.1784174875553441,1.645]
["Y",{"$f":"'HHIncome-10YearComparison'!$F$35/1.645","v":39.513677811550153},{"$f":"'HHIncome-10YearComparison'!$M$35/1.645","v":94.992461697269889},102.8829359685185,{"$f":"'HHIncome-10YearComparison'!$E$35-'HHIncome-10YearComparison'!$L$35","v":-319},3.100611359862552,1.645,"Household Income $50,000 to $74,999",null,"Y",{"$f":"'HHIncome-10YearComparison'!$F$35/1.645","v":39.513677811550153},{"$f":"'HHIncome-10YearComparison'!$J$35/1.645","v":103.18779621934941},110.49457915572587,{"$f":"'HHIncome-10YearComparison'!$E$35-'HHIncome-10YearComparison'!$I$35","v":-395},3.5748360056949542,1.645]
["Y",{"$f":"'HHIncome-10YearComparison'!$F$36/1.645","v":37.689969604863222},{"$f":"'HHIncome-10YearComparison'!$M$36/1.645","v":132.52279635258358},137.7781744759447,{"$f":"'HHIncome-10YearComparison'!$E$36-'HHIncome-10YearComparison'!$L$36","v":-367},2.6637020079263438,1.645,"Household Income $75,000 to $99,999",null,"Y",{"$f":"'HHIncome-10YearComparison'!$F$36/1.645","v":37.689969604863222},{"$f":"'HHIncome-10YearComparison'!$J$36/1.645","v":105.16717325227964},111.71691071046726,{"$f":"'HHIncome-10YearComparison'!$E$36-'HHIncome-10YearComparison'!$I$36","v":-489},4.3771350003342278,1.645]
["Y",{"$f":"'HHIncome-10YearComparison'!$F$37/1.645","v":45.59270516717325},{"$f":"'HHIncome-10YearComparison'!$M$37/1.645","v":120.40771699102685},128.75058475770896,{"$f":"'HHIncome-10YearComparison'!$E$37-'HHIncome-10YearComparison'!$L$37","v":-565},4.3883295836151186,1.645,"Household Income $100,000 to $149,999",null,"Y",{"$f":"'HHIncome-10YearComparison'!$F$37/1.645","v":45.59270516717325},{"$f":"'HHIncome-10YearComparison'!$J$37/1.645","v":124.60819870893023},132.68721848748291,{"$f":"'HHIncome-10YearComparison'!$E$37-'HHIncome-10YearComparison'!$I$37","v":-540},4.0697213051529983,1.645]
["Y",{"$f":"'HHIncome-10YearComparison'!$F$38/1.645","v":70.516717325227958},{"$f":"'HHIncome-10YearComparison'!$M$38/1.645","v":136.17021276595744},153.34579963941701,{"$f":"'HHIncome-10YearComparison'!$E$38-'HHIncome-10YearComparison'!$L$38","v":-341},2.2237322496073584,1.645,"Household Income $150,000 to $199,999",null,"N",{"$f":"'HHIncome-10YearComparison'!$F$38/1.645","v":70.516717325227958},{"$f":"'HHIncome-10YearComparison'!$J$38/1.645","v":112.46200607902736},132.74151661648773,{"$f":"'HHIncome-10YearComparison'!$E$38-'HHIncome-10YearComparison'!$I$38","v":-142},1.0697482115581183,1.645]
["Y",{"$f":"'HHIncome-10YearComparison'!$F$39/1.645","v":32.826747720364743},{"$f":"'HHIncome-10YearComparison'!$M$39/1.645","v":77.203647416413375},83.892780024828966,{"$f":"'HHIncome-10YearComparison'!$E$39-'HHIncome-10YearComparison'!$L$39","v":-168},2.0025561192545842,1.645,"Household Income Greater than $200,000",null,"N",{"$f":"'HHIncome-10YearComparison'!$F$39/1.645","v":32.826747720364743},{"$f":"'HHIncome-10YearComparison'!$J$39/1.645","v":79.635258358662611},86.135763418846039,{"$f":"'HHIncome-10YearComparison'!$E$39-'HHIncome-10YearComparison'!$I$39","v":-130},1.5092453452564014,1.645]
["N",{"$f":"'HHIncome-10YearComparison'!$F$41/1.645","v":0},{"$f":"'HHIncome-10YearComparison'!$M$41/1.645","v":8244.376899696048},8244.376899696048,{"$f":"'HHIncome-10YearComparison'!$E$41-'HHIncome-10YearComparison'!$I$41","v":-8982},1.0894698422061644,1.645,"Median Household Income",null,"Y",{"$f":"'HHIncome-10YearComparison'!$F$41/1.645","v":0},{"$f":"'HHIncome-10YearComparison'!$J$41/1.645","v":4393.3130699088142},4393.3130699088142,{"$f":"'HHIncome-10YearComparison'!$E$41-'HHIncome-10YearComparison'!$I$41","v":-8982},2.0444707347447073,1.645]
["N",{"$f":"PovertyCharacteristics!$E$54/1.645","v":40.729483282674771},{"$f":"PovertyCharacteristics!$M54/1.645","v":53.495440729483285},67.23580138077736,{"$f":"PovertyCharacteristics!$D54-PovertyCharacteristics!$L54","v":-41},0.6097941745024229,1.645,"Total Households Below Poverty Level",null,"N",{"$f":"PovertyCharacteristics!$I$54/1.645","v":38.297872340425535},{"$f":"PovertyCharacteristics!$M54/1.645","v":53.495440729483285},65.7912547732994,{"$f":"PovertyCharacteristics!$H54-PovertyCharacteristics!$L54","v":7},0.10639711955821926,1.645]
["N",{"$f":"PovertyCharacteristics!$E$55/1.645","v":69.300911854103347},{"$f":"PovertyCharacteristics!$M55/1.645","v":53.495440729483285},87.546436607390604,{"$f":"PovertyCharacteristics!$D55-PovertyCharacteristics!$L55","v":-84},0.95949079431645057,1.645,"Family Households Below Poverty Level",null,"N",{"$f":"PovertyCharacteristics!$I$55/1.645","v":11.550151975683891},{"$f":"PovertyCharacteristics!$M55/1.645","v":53.495440729483285},54.728129782617764,{"$f":"PovertyCharacteristics!$H55-PovertyCharacteristics!$L55","v":-72},1.3155940151067973,1.645]
["N",{"$f":"PovertyCharacteristics!$E$56/1.645","v":53.495440729483285},{"$f":"PovertyCharacteristics!$M56/1.645","v":53.495440729483285},75.653977804761311,{"$f":"PovertyCharacteristics!$D56-PovertyCharacteristics!$L56","v":0},0,1.645,"Married Couple Fam HH Below Poverty Level",null,"N",{"$f":"PovertyCharacteristics!$I$56/1.645","v":9.1185410334346511},{"$f":"PovertyCharacteristics!$M56/1.645","v":53.495440729483285},54.267024696587988,{"$f":"PovertyCharacteristics!$H56-PovertyCharacteristics!$L56","v":-84},1.5479013354730955,1.645]
["N",{"$f":"PovertyCharacteristics!$E$57/1.645","v":0},{"$f":"PovertyCharacteristics!$M57/1.645","v":9.7264437689969601},9.7264437689969601,{"$f":"PovertyCharacteristics!$D57-PovertyCharacteristics!$L57","v":0},0,1.645,"M C Fam HH w/Children Below Poverty Level",null,"N",{"$f":"PovertyCharacteristics!$I$57/1.645","v":9.1185410334346511},{"$f":"PovertyCharacteristics!$M57/1.645","v":9.7264437689969601},13.332347841617818,{"$f":"PovertyCharacteristics!$H57-PovertyCharacteristics!$L57","v":0},0,1.645]
["N",{"$f":"PovertyCharacteristics!$E$58/1.645","v":69.300911854103347},{"$f":"PovertyCharacteristics!$M58/1.645","v":9.7264437689969601},69.980140698641506,{"$f":"PovertyCharacteristics!$D58-PovertyCharacteristics!$L58","v":0},0,1.645,"Male Head of Family HH  Below Poverty Level",null,"N",{"$f":"PovertyCharacteristics!$I$58/1.645","v":9.1185410334346511},{"$f":"PovertyCharacteristics!$M58/1.645","v":9.7264437689969601},13.332347841617818,{"$f":"PovertyCharacteristics!$H58-PovertyCharacteristics!$L58","v":0},0,1.645]
["N",{"$f":"PovertyCharacteristics!$E$59/1.645","v":40.729483282674771},{"$f":"PovertyCharacteristics!$M59/1.645","v":9.7264437689969601},41.874747961810392,{"$f":"PovertyCharacteristics!$D59-PovertyCharacteristics!$L59","v":43},1.0268718522011364,1.645,"Male Head of HH w/Children Below Poverty Level",null,"N",{"$f":"PovertyCharacteristics!$I$59/1.645","v":9.1185410334346511},{"$f":"PovertyCharacteristics!$M59/1.645","v":9.7264437689969601},13.332347841617818,{"$f":"PovertyCharacteristics!$H59-PovertyCharacteristics!$L59","v":0},0,1.645]
["N",{"$f":"PovertyCharacteristics!$E$60/1.645","v":40.729483282674771},{"$f":"PovertyCharacteristics!$M60/1.645","v":9.7264437689969601},41.874747961810392,{"$f":"PovertyCharacteristics!$D60-PovertyCharacteristics!$L60","v":43},1.0268718522011364,1.645,"Female Head of Family HH  Below Poverty Level",null,"Y",{"$f":"PovertyCharacteristics!$I$60/1.645","v":35.258358662613979},{"$f":"PovertyCharacteristics!$M60/1.645","v":9.7264437689969601},36.575340927638472,{"$f":"PovertyCharacteristics!$H60-PovertyCharacteristics!$L60","v":79},2.1599251844650058,1.645]
["N",{"$f":"PovertyCharacteristics!$E$61/1.645","v":69.300911854103347},{"$f":"PovertyCharacteristics!$M61/1.645","v":9.7264437689969601},69.980140698641506,{"$f":"PovertyCharacteristics!$D61-PovertyCharacteristics!$L61","v":0},0,1.645,"Female Head of HH w/Children Below Poverty Level",null,"Y",{"$f":"PovertyCharacteristics!$I$61/1.645","v":32.218844984802431},{"$f":"PovertyCharacteristics!$M61/1.645","v":9.7264437689969601},33.654980025936553,{"$f":"PovertyCharacteristics!$H61-PovertyCharacteristics!$L61","v":65},1.931363499544706,1.645]
["N",{"$f":"PovertyCharacteristics!$E$62/1.645","v":27.96352583586626},{"$f":"PovertyCharacteristics!$M62/1.645","v":68.693009118541028},74.166625101410148,{"$f":"PovertyCharacteristics!$D62-PovertyCharacteristics!$L62","v":-77},1.038202829031464,1.645,"Non-Family HH  Below Poverty Level",null,"N",{"$f":"PovertyCharacteristics!$I$62/1.645","v":62.61398176291793},{"$f":"PovertyCharacteristics!$M62/1.645","v":68.693009118541028},92.947513220994665,{"$f":"PovertyCharacteristics!$H62-PovertyCharacteristics!$L62","v":17},0.18289892231522445,1.645]
["N",{"$f":"PovertyCharacteristics!$E$68/1.645","v":121.580547112462},{"$f":"PovertyCharacteristics!$M68/1.645","v":154.40729483282675},196.52847664844165,{"$f":"PovertyCharacteristics!$D68-PovertyCharacteristics!$L68","v":-227},1.1550488960745728,1.645,"Total Households At or Above Poverty Level",null,"N",{"$f":"PovertyCharacteristics!$I$68/1.645","v":119.14893617021276},{"$f":"PovertyCharacteristics!$M68/1.645","v":154.40729483282675},195.03353990553757,{"$f":"PovertyCharacteristics!$H68-PovertyCharacteristics!$L68","v":-23},0.11792843431514297,1.645]
["N",{"$f":"PovertyCharacteristics!$E$69/1.645","v":102.73556231003039},{"$f":"PovertyCharacteristics!$M69/1.645","v":117.93313069908814},156.40594323633084,{"$f":"PovertyCharacteristics!$D69-PovertyCharacteristics!$L69","v":-39},0.24935113840955925,1.645,"Family Households At or Above Poverty Level",null,"N",{"$f":"PovertyCharacteristics!$I$69/1.645","v":110.03039513677811},{"$f":"PovertyCharacteristics!$M69/1.645","v":117.93313069908814},161.29138591519305,{"$f":"PovertyCharacteristics!$H69-PovertyCharacteristics!$L69","v":92},0.57039623956342944,1.645]
["N",{"$f":"PovertyCharacteristics!$E$70/1.645","v":130.69908814589667},{"$f":"PovertyCharacteristics!$M70/1.645","v":130.69908814589667},184.83642304572368,{"$f":"PovertyCharacteristics!$D70-PovertyCharacteristics!$L70","v":0},0,1.645,"Married Couple Fam HH At or Above Poverty Level",null,"N",{"$f":"PovertyCharacteristics!$I$70/1.645","v":124.62006079027356},{"$f":"PovertyCharacteristics!$M70/1.645","v":130.69908814589667},180.58906720380483,{"$f":"PovertyCharacteristics!$H70-PovertyCharacteristics!$L70","v":122},0.67556692046211297,1.645]
["N",{"$f":"PovertyCharacteristics!$E$71/1.645","v":80.243161094224916},{"$f":"PovertyCharacteristics!$M71/1.645","v":106.99088145896657},133.73860182370819,{"$f":"PovertyCharacteristics!$D71-PovertyCharacteristics!$L71","v":-156},1.1664545454545456,1.645,"M C Fam HH w/Children At or Above Poverty Level",null,"N",{"$f":"PovertyCharacteristics!$I$71/1.645","v":80.243161094224916},{"$f":"PovertyCharacteristics!$M71/1.645","v":106.99088145896657},133.73860182370819,{"$f":"PovertyCharacteristics!$H71-PovertyCharacteristics!$L71","v":-156},1.1664545454545456,1.645]
["N",{"$f":"PovertyCharacteristics!$E$72/1.645","v":36.474164133738604},{"$f":"PovertyCharacteristics!$M72/1.645","v":57.142857142857139},67.791376824076096,{"$f":"PovertyCharacteristics!$D72-PovertyCharacteristics!$L72","v":-1},1.4751138667607798E-2,1.645,"Male Head of Family HH  At or Above Poverty Level",null,"N",{"$f":"PovertyCharacteristics!$I$72/1.645","v":69.908814589665653},{"$f":"PovertyCharacteristics!$M72/1.645","v":57.142857142857139},90.291464047169086,{"$f":"PovertyCharacteristics!$H72-PovertyCharacteristics!$L72","v":15},0.16612866075760896,1.645]
["Y",{"$f":"PovertyCharacteristics!$E$73/1.645","v":102.73556231003039},{"$f":"PovertyCharacteristics!$M73/1.645","v":51.063829787234042},114.72624144326244,{"$f":"PovertyCharacteristics!$D73-PovertyCharacteristics!$L73","v":2188},19.071486806112006,1.645,"Male Head of HH w/Children At or Above Poverty Level",null,"N",{"$f":"PovertyCharacteristics!$I$73/1.645","v":62.006079027355625},{"$f":"PovertyCharacteristics!$M73/1.645","v":51.063829787234042},80.326014147885374,{"$f":"PovertyCharacteristics!$H73-PovertyCharacteristics!$L73","v":6},7.4695602211179213E-2,1.645]
["N",{"$f":"PovertyCharacteristics!$E$74/1.645","v":49.848024316109424},{"$f":"PovertyCharacteristics!$M74/1.645","v":75.98784194528875},90.878917531634485,{"$f":"PovertyCharacteristics!$D74-PovertyCharacteristics!$L74","v":-2},2.200730438172099E-2,1.645,"Female Head of Family HH  At or Above Poverty Level",null,"N",{"$f":"PovertyCharacteristics!$I$74/1.645","v":59.574468085106382},{"$f":"PovertyCharacteristics!$M74/1.645","v":75.98784194528875},96.557078306696624,{"$f":"PovertyCharacteristics!$H74-PovertyCharacteristics!$L74","v":-45},0.4660455845304825,1.645]
["Y",{"$f":"PovertyCharacteristics!$E$75/1.645","v":89.969604863221889},{"$f":"PovertyCharacteristics!$M75/1.645","v":48.632218844984799},102.27229590182658,{"$f":"PovertyCharacteristics!$D75-PovertyCharacteristics!$L75","v":712},6.9618071416277232,1.645,"Female Head of HH w/Children At or Above Poverty Level",null,"N",{"$f":"PovertyCharacteristics!$I$75/1.645","v":43.161094224924014},{"$f":"PovertyCharacteristics!$M75/1.645","v":48.632218844984799},65.022863398033039,{"$f":"PovertyCharacteristics!$H75-PovertyCharacteristics!$L75","v":11},0.16917126415464431,1.645]
["Y",{"$f":"PovertyCharacteristics!$E$76/1.645","v":69.300911854103347},{"$f":"PovertyCharacteristics!$M76/1.645","v":164.74164133738603},178.72443810051868,{"$f":"PovertyCharacteristics!$D76-PovertyCharacteristics!$L76","v":-533},2.9822446536395248,1.645,"Non-Family HH  At or Above Poverty Level",null,"N",{"$f":"PovertyCharacteristics!$I$76/1.645","v":128.87537993920972},{"$f":"PovertyCharacteristics!$M76/1.645","v":164.74164133738603},209.16183195079256,{"$f":"PovertyCharacteristics!$H76-PovertyCharacteristics!$L76","v":-115},0.54981350530078987,1.645]
["N",{"$f":"PovertyCharacteristics!$E24/1.645","v":166.56534954407294},{"$f":"PovertyCharacteristics!M24/1.645","v":146.50455927051672},221.82786469645231,{"$f":"PovertyCharacteristics!H24-PovertyCharacteristics!L24","v":80},0.36063999493242854,1.645,"Total Individuals Living in Poverty",null,{"$f":"IF(O112>P112,\"Y\",\"N\")","v":"N"},{"$f":"PovertyCharacteristics!$I24/1.645","v":138.60182370820669},{"$f":"PovertyCharacteristics!$M24/1.645","v":146.50455927051672},201.67808860232969,{"$f":"PovertyCharacteristics!$H24-PovertyCharacteristics!$L24","v":80},0.39667174830154495,1.645]
["N",{"$f":"PovertyCharacteristics!$E25/1.645","v":73.244081318017763},{"$f":"PovertyCharacteristics!M25/1.645","v":48.999373936502458},88.122835260161679,{"$f":"PovertyCharacteristics!H25-PovertyCharacteristics!L25","v":10},0.11347796482577283,1.645,"Individuals Under 5 yrs. Living in Poverty",null,"N",{"$f":"PovertyCharacteristics!$I25/1.645","v":22.426585709053757},{"$f":"PovertyCharacteristics!$M25/1.645","v":48.999373936502458},53.887757354845739,{"$f":"PovertyCharacteristics!$H25-PovertyCharacteristics!$L25","v":10},0.18557090684162184,1.645]
["N",{"$f":"PovertyCharacteristics!$E26/1.645","v":190.93469143316855},{"$f":"PovertyCharacteristics!M26/1.645","v":29.706484432512134},193.23180796654151,{"$f":"PovertyCharacteristics!H26-PovertyCharacteristics!L26","v":92},0.47611209028241352,1.645,"Individuals 5 to 17 yrs. Living in Poverty",null,"N",{"$f":"PovertyCharacteristics!$I26/1.645","v":58.89445030897442},{"$f":"PovertyCharacteristics!$M26/1.645","v":29.706484432512134},65.962349067747297,{"$f":"PovertyCharacteristics!$H26-PovertyCharacteristics!$L26","v":92},1.394735046587114,1.645]
["N",{"$f":"PovertyCharacteristics!$E27/1.645","v":105.50746989024239},{"$f":"PovertyCharacteristics!M27/1.645","v":123.59576078923351},162.50457928227695,{"$f":"PovertyCharacteristics!H27-PovertyCharacteristics!L27","v":-21},0.12922712758464586,1.645,"Individuals 18 to 64 yrs. Living in Poverty",null,"N",{"$f":"PovertyCharacteristics!$I27/1.645","v":103.9442575644722},{"$f":"PovertyCharacteristics!$M27/1.645","v":123.59576078923351},161.49402702793304,{"$f":"PovertyCharacteristics!$H27-PovertyCharacteristics!$L27","v":-21},0.13003576904034789,1.645]
["N",{"$f":"PovertyCharacteristics!$E28/1.645","v":98.006289428895343},{"$f":"PovertyCharacteristics!M28/1.645","v":19.604274159996471},99.947788034356762,{"$f":"PovertyCharacteristics!H28-PovertyCharacteristics!L28","v":-17},0.17008880670932205,1.645,"Individuals 65 to 74 yrs. Living in Poverty",null,"N",{"$f":"PovertyCharacteristics!$I28/1.645","v":12.895564398538861},{"$f":"PovertyCharacteristics!$M28/1.645","v":19.604274159996471},23.465360566101861,{"$f":"PovertyCharacteristics!$H28-PovertyCharacteristics!$L28","v":-17},0.72447214063091181,1.645]
["N",{"$f":"PovertyCharacteristics!$E29/1.645","v":98.006289428895343},{"$f":"PovertyCharacteristics!M29/1.645","v":13.755268691774786},98.966864072796213,{"$f":"PovertyCharacteristics!H29-PovertyCharacteristics!L29","v":16},0.16167027368100717,1.645,"Individuals 75 yrs. & Over Living in Poverty",null,"N",{"$f":"PovertyCharacteristics!$I29/1.645","v":16.69243795470636},{"$f":"PovertyCharacteristics!$M29/1.645","v":13.755268691774786},21.629722643960118,{"$f":"PovertyCharacteristics!$H29-PovertyCharacteristics!$L29","v":16},0.73972284635225494,1.645]
[null,null,null,null,null,null,null,"Under 5",null,"N",{"$f":"DisabilityByAgePrior5YearEst!$E$31/1.645","v":131.30980521581529},{"$f":"DisabilityByAge!$E$31/1.645","v":125.14678514989248},{"$f":"SQRT((K118^2)+(L118^2))","v":181.39455002609284},{"$f":"DisabilityByAge!$D$31-DisabilityByAgePrior5YearEst!$D$31","v":-93},0.51269456544654923,1.645]
[null,null,null,null,null,null,null,"5 to 17",null,"N",{"$f":"DisabilityByAgePrior5YearEst!$F$31/1.645","v":794.52887537993922},{"$f":"DisabilityByAge!$F$31/1.645","v":998.17629179331311},{"$f":"SQRT((K119^2)+(L119^2))","v":1275.7868330213948},{"$f":"DisabilityByAge!$D$31-DisabilityByAgePrior5YearEst!$D$31","v":-93},7.2896190486424622E-2,1.645]
[null,null,null,null,null,null,null,"18 to 34",null,"N",{"$f":"DisabilityByAgePrior5YearEst!$I$31/1.645","v":151.39585438088577},{"$f":"DisabilityByAge!$I$31/1.645","v":173.3759490361297},230.17368317837079,{"$f":"DisabilityByAge!$D$31-DisabilityByAgePrior5YearEst!$D$31","v":-93},0.40404271555202331,1.645]
[null,null,null,null,null,null,null,"35 to 64",null,"N",{"$f":"DisabilityByAgePrior5YearEst!$K$31/1.645","v":156.24992493600436},{"$f":"DisabilityByAge!$K$31/1.645","v":174.11612083999552},233.94542649702498,{"$f":"DisabilityByAge!$D$31-DisabilityByAgePrior5YearEst!$D$31","v":-93},0.39752860909714194,1.645]
[null,null,null,null,null,null,null,"65 to 74",null,"N",{"$f":"DisabilityByAgePrior5YearEst!$M$31/1.645","v":101.2646267242613},{"$f":"DisabilityByAge!$M$31/1.645","v":88.772534142919355},134.66657879280871,{"$f":"DisabilityByAge!$D$31-DisabilityByAgePrior5YearEst!$D$31","v":-93},0.69059451003864269,1.645]
[null,null,null,null,null,null,null,"75 and Over",null,"N",{"$f":"DisabilityByAgePrior5YearEst!$O$31/1.645","v":84.812780578012422},{"$f":"DisabilityByAge!$O$31/1.645","v":93.516307883552969},126.24780231570588,{"$f":"DisabilityByAge!$D$31-DisabilityByAgePrior5YearEst!$D$31","v":-93},0.73664648646664255,1.645]
[null,null,null,null,null,null,null,"With a Disability -Under 5",null,"Y",{"$f":"DisabilityByAgePrior5YearEst!$E$33/1.645","v":12.895564398538861},{"$f":"DisabilityByAge!$E$33/1.645","v":13.755268691774786},18.854787135891581,{"$f":"DisabilityByAge!$D$31-DisabilityByAgePrior5YearEst!$D$31","v":-93},4.9324343642664168,1.645]
[null,null,null,null,null,null,null,"With a Disability -5 to 17",null,"Y",{"$f":"DisabilityByAgePrior5YearEst!$F$33/1.645","v":13.98176291793313},{"$f":"DisabilityByAge!$F$33/1.645","v":30.3951367781155},33.456748707153828,{"$f":"DisabilityByAge!$D$31-DisabilityByAgePrior5YearEst!$D$31","v":-93},2.7797082380606351,1.645]
[null,null,null,null,null,null,null,"With a Disability -18 to 34",null,"N",{"$f":"DisabilityByAgePrior5YearEst!$I$33/1.645","v":32.470201485893355},{"$f":"DisabilityByAge!$I$33/1.645","v":82.549520713765133},88.705903719013264,{"$f":"DisabilityByAge!$D$31-DisabilityByAgePrior5YearEst!$D$31","v":-93},1.0484082355396414,1.645]
[null,null,null,null,null,null,null,"With a Disability -35 to 64",null,"N",{"$f":"DisabilityByAgePrior5YearEst!$K$33/1.645","v":94.256294415128721},{"$f":"DisabilityByAge!$K$33/1.645","v":115.54150643615935},149.11099472006913,{"$f":"DisabilityByAge!$D$31-DisabilityByAgePrior5YearEst!$D$31","v":-93},{"$f":"ABS((N127/M127))","v":0.62369646299115566},1.645]
[null,null,null,null,null,null,null,"With a Disability -65 to 74",null,"N",{"$f":"DisabilityByAgePrior5YearEst!$M$33/1.645","v":80.137168645654953},{"$f":"DisabilityByAge!$M$33/1.645","v":34.237392924811488},87.144505695024023,{"$f":"DisabilityByAge!$D$31-DisabilityByAgePrior5YearEst!$D$31","v":-93},1.0671929257992261,1.645]
[null,null,null,null,null,null,null,"With a Disability -75 and Over",null,"N",{"$f":"DisabilityByAgePrior5YearEst!$O$33/1.645","v":62.380418394481715},{"$f":"DisabilityByAge!$O$33/1.645","v":77.21322009436912},99.263275970582797,{"$f":"DisabilityByAge!$D$31-DisabilityByAgePrior5YearEst!$D$31","v":-93},0.93690238500249623,1.645]
[null,null,null,null,null,null,null,"Hearing Disability - Under 5",null,"Y",{"$f":"DisabilityByAgePrior5YearEst!$E$38/1.645","v":12.895564398538861},{"$f":"DisabilityByAge!$E$38/1.645","v":13.755268691774786},18.854787135891581,{"$f":"DisabilityByAge!$D$31-DisabilityByAgePrior5YearEst!$D$31","v":-93},4.9324343642664168,1.645]
[null,null,null,null,null,null,null,"Hearing Disability - 5 to 17",null,{"$error":"#DIV/0!"},{"$f":"DisabilityByAgePrior5YearEst!$F$38/1.645","v":0},{"$f":"DisabilityByAge!$F$38/1.645","v":0},0,{"$f":"DisabilityByAge!$D$31-DisabilityByAgePrior5YearEst!$D$31","v":-93},{"$error":"#DIV/0!"},1.645]
[null,null,null,null,null,null,null,"Hearing Disability - 18 to 34",null,"Y",{"$f":"DisabilityByAgePrior5YearEst!$I$38/1.645","v":12.895564398538861},{"$f":"DisabilityByAge!$I$38/1.645","v":13.755268691774786},18.854787135891581,{"$f":"DisabilityByAge!$D$31-DisabilityByAgePrior5YearEst!$D$31","v":-93},4.9324343642664168,1.645]
[null,null,null,null,null,null,null,"Hearing Disability - 35 to 64",null,"N",{"$f":"DisabilityByAgePrior5YearEst!$K$38/1.645","v":55.027790797001124},{"$f":"DisabilityByAge!$K$38/1.645","v":53.36402759235196},76.653618315613926,{"$f":"DisabilityByAge!$D$31-DisabilityByAgePrior5YearEst!$D$31","v":-93},1.2132499684109028,1.645]
[null,null,null,null,null,null,null,"Hearing Disability - 65 to 74",null,"Y",{"$f":"DisabilityByAgePrior5YearEst!$M$38/1.645","v":42.55753343024228},{"$f":"DisabilityByAge!$M$38/1.645","v":26.189251341687555},49.970196492552162,{"$f":"DisabilityByAge!$D$31-DisabilityByAgePrior5YearEst!$D$31","v":-93},1.8611093517285096,1.645]
[null,null,null,null,null,null,null,"Hearing Disability - 75 and Over",null,"Y",{"$f":"DisabilityByAgePrior5YearEst!$O$38/1.645","v":31.704327806456654},{"$f":"DisabilityByAge!$O$38/1.645","v":40.693174398005013},51.585839571007384,{"$f":"DisabilityByAge!$D$31-DisabilityByAgePrior5YearEst!$D$31","v":-93},1.8028203238213549,1.645]
[null,null,null,null,null,null,null,"Visual Disability - Under 5",null,"Y",{"$f":"DisabilityByAgePrior5YearEst!$E$39/1.645","v":12.895564398538861},{"$f":"DisabilityByAge!$E$39/1.645","v":13.755268691774786},18.854787135891581,{"$f":"DisabilityByAge!$D$31-DisabilityByAgePrior5YearEst!$D$31","v":-93},4.9324343642664168,1.645]
[null,null,null,null,null,null,null,"Visual Disability - 5 to 17",null,"Y",{"$f":"DisabilityByAgePrior5YearEst!$F$39/1.645","v":0},{"$f":"DisabilityByAge!$F$39/1.645","v":30.3951367781155},30.3951367781155,{"$f":"DisabilityByAge!$D$31-DisabilityByAgePrior5YearEst!$D$31","v":-93},3.0597000000000003,1.645]
[null,null,null,null,null,null,null,"Visual Disability - 18 to 34",null,"Y",{"$f":"DisabilityByAgePrior5YearEst!$I$39/1.645","v":12.895564398538861},{"$f":"DisabilityByAge!$I$39/1.645","v":40.661377527515242},42.657276092033634,{"$f":"DisabilityByAge!$D$31-DisabilityByAgePrior5YearEst!$D$31","v":-93},2.1801673365020138,1.645]
[null,null,null,null,null,null,null,"Visual Disability - 35 to 64",null,"Y",{"$f":"DisabilityByAgePrior5YearEst!$K$39/1.645","v":25.805453224062155},{"$f":"DisabilityByAge!$K$39/1.645","v":42.683257584296555},{"$f":"SQRT((K140^2)+(L140^2))","v":32.538416270085435},{"$f":"DisabilityByAge!$D$31-DisabilityByAgePrior5YearEst!$D$31","v":-93},{"$f":"ABS((N140/M140))","v":2.8581600047172735},1.645]
[null,null,null,null,null,null,null,"Visual Disability - 65 to 74",null,"Y",{"$f":"DisabilityByAgePrior5YearEst!$M$39/1.645","v":19.309884710356947},{"$f":"DisabilityByAge!$M$39/1.645","v":26.189251341687555},32.538416270085435,{"$f":"DisabilityByAge!$D$31-DisabilityByAgePrior5YearEst!$D$31","v":-93},2.8581600047172735,1.645]
[null,null,null,null,null,null,null,"Visual Disability - 75 and Over",null,"Y",{"$f":"DisabilityByAgePrior5YearEst!$O$39/1.645","v":24.834891447799993},{"$f":"DisabilityByAge!$O$39/1.645","v":19.604274159996471},31.640154844189915,{"$f":"DisabilityByAge!$D$31-DisabilityByAgePrior5YearEst!$D$31","v":-93},2.9393029350827464,1.645]
[null,null,null,null,null,null,null,"Cognative Disability - 5 to 17",null,"Y",{"$f":"DisabilityByAgePrior5YearEst!$F$40/1.645","v":13.98176291793313},{"$f":"DisabilityByAge!$F$40/1.645","v":35.866261398176292},38.495173736139975,{"$f":"DisabilityByAge!$D$31-DisabilityByAgePrior5YearEst!$D$31","v":-93},2.4158872651791645,1.645]
[null,null,null,null,null,null,null,"Cognative Disability - 18 to 34",null,"Y",{"$f":"DisabilityByAgePrior5YearEst!$I$40/1.645","v":32.470201485893355},{"$f":"DisabilityByAge!$I$40/1.645","v":25.969616247165746},41.578058547262238,{"$f":"DisabilityByAge!$D$31-DisabilityByAgePrior5YearEst!$D$31","v":-93},2.2367566752614452,1.645]
[null,null,null,null,null,null,null,"Cognative Disability - 35 to 64",null,{"$f":"IF(O144>P144,\"Y\",\"N\")","v":"N"},{"$f":"DisabilityByAgePrior5YearEst!$K$40/1.645","v":36.418397083890966},{"$f":"DisabilityByAge!$K$40/1.645","v":33.895688412038055},{"$f":"SQRT((K145^2)+(L145^2))","v":78.38174442691566},{"$f":"DisabilityByAge!$D$31-DisabilityByAgePrior5YearEst!$D$31","v":-93},{"$f":"ABS((N145/M145))","v":1.186500768513957},1.645]
[null,null,null,null,null,null,null,"Cognative Disability - 65 to 74",null,"N",{"$f":"DisabilityByAgePrior5YearEst!$M$40/1.645","v":50.729838407355786},{"$f":"DisabilityByAge!$M$40/1.645","v":59.75099459063334},{"$f":"SQRT((K145^2)+(L145^2))","v":78.38174442691566},{"$f":"DisabilityByAge!$D$31-DisabilityByAgePrior5YearEst!$D$31","v":-93},{"$f":"ABS((N145/M145))","v":1.186500768513957},1.645]
[null,null,null,null,null,null,null,"Cognative Disability - 75 and Over",null,"Y",{"$f":"DisabilityByAgePrior5YearEst!$O$40/1.645","v":27.837697609374615},{"$f":"DisabilityByAge!$O$40/1.645","v":26.019373324051909},{"$f":"SQRT((K146^2)+(L146^2))","v":38.10439864854667},{"$f":"DisabilityByAge!$D$31-DisabilityByAgePrior5YearEst!$D$31","v":-93},{"$f":"ABS((N146/M146))","v":2.4406631071068507},1.645]
[null,null,null,null,null,null,null,"Amblatory Disability - 5 to 17",null,{"$error":"#DIV/0!"},{"$f":"DisabilityByAgePrior5YearEst!$F$41/1.645","v":0},{"$f":"DisabilityByAge!$F$41/1.645","v":0},{"$f":"SQRT((K147^2)+(L147^2))","v":0},{"$f":"DisabilityByAge!$D$31-DisabilityByAgePrior5YearEst!$D$31","v":-93},{"$f":"ABS((N147/M147))","v":{"$error":"#DIV/0!"}},1.645]
[null,null,null,null,null,null,null,"Amblatory Disability - 18 to 34",null,"Y",{"$f":"DisabilityByAgePrior5YearEst!$I$41/1.645","v":22.035950103819889},{"$f":"DisabilityByAge!$I$41/1.645","v":17.032128542397448},{"$f":"SQRT((K148^2)+(L148^2))","v":27.850969456426281},{"$f":"DisabilityByAge!$D$31-DisabilityByAgePrior5YearEst!$D$31","v":-93},{"$f":"ABS((N148/M148))","v":3.3392015364313057},1.645]
[null,null,null,null,null,null,null,"Amblatory Disability - 35 to 64",null,"N",{"$f":"DisabilityByAgePrior5YearEst!$K$41/1.645","v":72.628478121847579},{"$f":"DisabilityByAge!$K$41/1.645","v":53.963139261208866},{"$f":"SQRT((K150^2)+(L150^2))","v":92.433205148927485},{"$f":"DisabilityByAge!$D$31-DisabilityByAgePrior5YearEst!$D$31","v":-93},{"$f":"ABS((N150/M150))","v":1.0061319398170745},1.645]
[null,null,null,null,null,null,null,"Amblatory Disability - 65 to 74",null,"N",{"$f":"DisabilityByAgePrior5YearEst!$M$41/1.645","v":68.019942763279587},{"$f":"DisabilityByAge!$M$41/1.645","v":62.587417270437697},{"$f":"SQRT((K150^2)+(L150^2))","v":92.433205148927485},{"$f":"DisabilityByAge!$D$31-DisabilityByAgePrior5YearEst!$D$31","v":-93},{"$f":"ABS((N150/M150))","v":1.0061319398170745},1.645]
[null,null,null,null,null,null,null,"Amblatory Disability - 75 and Over",null,"Y",{"$f":"DisabilityByAgePrior5YearEst!$O$41/1.645","v":39.293282945148476},{"$f":"DisabilityByAge!$O$41/1.645","v":35.701025799455373},{"$f":"SQRT((K151^2)+(L151^2))","v":53.089785531125237},{"$f":"DisabilityByAge!$D$31-DisabilityByAgePrior5YearEst!$D$31","v":-93},{"$f":"ABS((N151/M151))","v":1.7517494009365773},1.645]
[null,null,null,null,null,null,null,"Self Care Disability - 5 to 17",null,{"$error":"#DIV/0!"},{"$f":"DisabilityByAgePrior5YearEst!$F$42/1.645","v":0},{"$f":"DisabilityByAge!$F$42/1.645","v":0},{"$f":"SQRT((K152^2)+(L152^2))","v":0},{"$f":"DisabilityByAge!$D$31-DisabilityByAgePrior5YearEst!$D$31","v":-93},{"$f":"ABS((N152/M152))","v":{"$error":"#DIV/0!"}},1.645]
[null,null,null,null,null,null,null,"Self Care Disability - 18 to 34",null,"Y",{"$f":"DisabilityByAgePrior5YearEst!$I$42/1.645","v":22.035950103819889},{"$f":"DisabilityByAge!$I$42/1.645","v":13.755268691774786},{"$f":"SQRT((K153^2)+(L153^2))","v":25.976730236135563},{"$f":"DisabilityByAge!$D$31-DisabilityByAgePrior5YearEst!$D$31","v":-93},{"$f":"ABS((N153/M153))","v":3.5801272583040529},1.645]
[null,null,null,null,null,null,null,"Self Care Disability - 35 to 64",null,"Y",{"$f":"DisabilityByAgePrior5YearEst!$K$42/1.645","v":15.688131186095976},{"$f":"DisabilityByAge!$K$42/1.645","v":79.391259415511286},{"$f":"SQRT((K155^2)+(L155^2))","v":27.51725300366267},{"$f":"DisabilityByAge!$D$31-DisabilityByAgePrior5YearEst!$D$31","v":-93},{"$f":"ABS((N155/M155))","v":3.379697820404576},1.645]
[null,null,null,null,null,null,null,"Self Care Disability - 65 to 74",null,"Y",{"$f":"DisabilityByAgePrior5YearEst!$M$42/1.645","v":19.309884710356947},{"$f":"DisabilityByAge!$M$42/1.645","v":19.604274159996471},{"$f":"SQRT((K155^2)+(L155^2))","v":27.51725300366267},{"$f":"DisabilityByAge!$D$31-DisabilityByAgePrior5YearEst!$D$31","v":-93},{"$f":"ABS((N155/M155))","v":3.379697820404576},1.645]
[null,null,null,null,null,null,null,"Self Care Disability - 75 and Over",null,"N",{"$f":"DisabilityByAgePrior5YearEst!$O$42/1.645","v":27.220198391778858},{"$f":"DisabilityByAge!$O$42/1.645","v":63.128291723998395},{"$f":"SQRT((K156^2)+(L156^2))","v":68.746784771929839},{"$f":"DisabilityByAge!$D$31-DisabilityByAgePrior5YearEst!$D$31","v":-93},{"$f":"ABS((N156/M156))","v":1.3527905386198229},1.645]
[null,null,null,null,null,null,null,"Independant Living Disability - 18 to 34",null,"N",{"$f":"DisabilityByAgePrior5YearEst!$I$43/1.645","v":22.035950103819889},{"$f":"DisabilityByAge!$I$43/1.645","v":54.16819309409231},{"$f":"SQRT((K157^2)+(L157^2))","v":58.478852930413318},{"$f":"DisabilityByAge!$D$31-DisabilityByAgePrior5YearEst!$D$31","v":-93},{"$f":"ABS((N157/M157))","v":1.5903184713740022},1.645]
[null,null,null,null,null,null,null,"Independant Living Disability - 35 to 64",null,"Y",{"$f":"DisabilityByAgePrior5YearEst!$K$43/1.645","v":47.354023329241208},{"$f":"DisabilityByAge!$K$43/1.645","v":78.230728823835321},{"$f":"SQRT((K159^2)+(L159^2))","v":32.172932820423689},{"$f":"DisabilityByAge!$D$31-DisabilityByAgePrior5YearEst!$D$31","v":-93},{"$f":"ABS((N159/M159))","v":2.890628607565509},1.645]
[null,null,null,null,null,null,null,"Independant Living Disability - 65 to 74",null,"Y",{"$f":"DisabilityByAgePrior5YearEst!$M$43/1.645","v":21.484008567869047},{"$f":"DisabilityByAge!$M$43/1.645","v":23.948590399504205},{"$f":"SQRT((K159^2)+(L159^2))","v":32.172932820423689},{"$f":"DisabilityByAge!$D$31-DisabilityByAgePrior5YearEst!$D$31","v":-93},{"$f":"ABS((N159/M159))","v":2.890628607565509},1.645]
[null,null,null,null,null,null,null,"Independant Living Disability - 75 and Over",null,"N",{"$f":"DisabilityByAgePrior5YearEst!$O$43/1.645","v":57.029571466848097},{"$f":"DisabilityByAge!$O$43/1.645","v":73.724342544902285},{"$f":"SQRT((K160^2)+(L160^2))","v":93.207567854602999},{"$f":"DisabilityByAge!$D$31-DisabilityByAgePrior5YearEst!$D$31","v":-93},0.99777305792457982,1.645]
[null,null,null,null,null,null,null,"No Disability - Under 5",null,"N",{"$f":"DisabilityByAgePrior5YearEst!$E$47/1.645","v":131.30980521581529},{"$f":"DisabilityByAge!$E$47/1.645","v":125.14678514989248},{"$f":"SQRT((K161^2)+(L161^2))","v":181.39455002609284},{"$f":"DisabilityByAge!$D$47-DisabilityByAgePrior5YearEst!$D$47","v":-93},0.51269456544654923,1.645]
[null,null,null,null,null,null,null,"No Disability - 5 to 17",null,"N",{"$f":"DisabilityByAgePrior5YearEst!$F$47/1.645","v":780.54711246200611},{"$f":"DisabilityByAge!$F$47/1.645","v":967.78115501519756},{"$f":"SQRT((K162^2)+(L162^2))","v":1243.3238350386939},{"$f":"DisabilityByAge!$D$47-DisabilityByAgePrior5YearEst!$D$47","v":-93},7.4799499035668141E-2,1.645]
[null,null,null,null,null,null,null,"No Disability - 18 to 34",null,"N",{"$f":"DisabilityByAgePrior5YearEst!$I$47/1.645","v":148.73878117571502},{"$f":"DisabilityByAge!$I$47/1.645","v":185.29070833199953},237.60444360283196,{"$f":"DisabilityByAge!$D$47-DisabilityByAgePrior5YearEst!$D$47","v":-93},0.39140682131119686,1.645]
[null,null,null,null,null,null,null,"No Disability - 35 to 64",null,"N",{"$f":"DisabilityByAgePrior5YearEst!$K$47/1.645","v":165.04195420485738},{"$f":"DisabilityByAge!$K$47/1.645","v":189.62375813491494},251.38817851475625,{"$f":"DisabilityByAge!$D$47-DisabilityByAgePrior5YearEst!$D$47","v":-93},0.36994579677318035,1.645]
[null,null,null,null,null,null,null,"No Disability - 65 to 74",null,{"$f":"IF(O165>P165,\"Y\",\"N\")","v":"N"},{"$f":"DisabilityByAgePrior5YearEst!$M$47/1.645","v":79.774351254054039},{"$f":"DisabilityByAge!$M$47/1.645","v":81.33411472697054},113.92622760552197,{"$f":"DisabilityByAge!$D$47-DisabilityByAgePrior5YearEst!$D$47","v":-93},0.81631773433260169,1.645]
[null,null,null,null,null,null,null,"No Disability - 75 and Over",null,"N",{"$f":"DisabilityByAgePrior5YearEst!$O$47/1.645","v":57.365536502558442},{"$f":"DisabilityByAge!$O$47/1.645","v":60.399962788446061},83.300421866110824,{"$f":"DisabilityByAge!$D$47-DisabilityByAgePrior5YearEst!$D$47","v":-93},{"$f":"ABS((N166/M166))","v":1.1164409245067133},1.645]
[{"$f":"IF(F167>G167,\"Y\",\"N\")","v":"N"},null,null,null,null,null,null,"Renter Total:",null,"N",{"$f":"'RentalHousingCost-Prior5Yr'!$F$52/1.645","v":93.00911854103343},{"$f":"RentalHousingCost!$F$52/1.645","v":84.498480243161097},125.66100944678065,{"$f":"'RentalHousingCost-Prior5Yr'!$E$52-RentalHousingCost!$E$52","v":80},{"$f":"ABS((N167/M167))","v":0.63663343428640218},1.645]
["N",null,null,null,null,null,null,"Renter Less than 20.0 percent",null,"N",{"$f":"'RentalHousingCost-Prior5Yr'!$F$53/1.645","v":51.546424135440908},{"$f":"RentalHousingCost!$F$53/1.645","v":33.835671854287533},61.659439917840565,{"$f":"'RentalHousingCost-Prior5Yr'!$E$53-RentalHousingCost!$E$53","v":48},0.7784696076376727,1.645]
["N",null,null,null,null,null,null,"Renter 20.0 to 24.9 percent",null,"N",{"$f":"'RentalHousingCost-Prior5Yr'!$F$54/1.645","v":9.1185410334346511},{"$f":"RentalHousingCost!$F$54/1.645","v":9.7264437689969601},13.332347841617818,{"$f":"'RentalHousingCost-Prior5Yr'!$E$54-RentalHousingCost!$E$54","v":0},0,1.645]
["N",null,null,null,null,null,null,"Renter 25.0 to 29.9 percent",null,"N",{"$f":"'RentalHousingCost-Prior5Yr'!$F$55/1.645","v":31.003039513677813},{"$f":"RentalHousingCost!$F$55/1.645","v":37.689969604863222},48.802892003468209,{"$f":"'RentalHousingCost-Prior5Yr'!$E$55-RentalHousingCost!$E$55","v":-7},0.14343412270532124,1.645]
["N",null,null,null,null,null,null,"Renter 30.0 to 34.9 percent",null,"N",{"$f":"'RentalHousingCost-Prior5Yr'!$F$56/1.645","v":60.838886337735218},{"$f":"RentalHousingCost!$F$56/1.645","v":51.575092894128638},79.758136248622705,{"$f":"'RentalHousingCost-Prior5Yr'!$E$56-RentalHousingCost!$E$56","v":41},0.51405413827868884,1.645]
["N",null,null,null,null,null,null,"Renter 35.0 to 39.9 percent",null,"N",{"$f":"'RentalHousingCost-Prior5Yr'!$F$57/1.645","v":65.838981478722474},{"$f":"RentalHousingCost!$F$57/1.645","v":79.312089346834554},103.0785089080931,{"$f":"'RentalHousingCost-Prior5Yr'!$E$57-RentalHousingCost!$E$57","v":17},0.16492283580816586,1.645]
["N",null,null,null,null,null,null,"Renter 40.0 to 49.9 percent",null,"N",{"$f":"'RentalHousingCost-Prior5Yr'!$F$58/1.645","v":46.200607902735563},{"$f":"RentalHousingCost!$F$58/1.645","v":63.829787234042556},78.795544981461063,{"$f":"'RentalHousingCost-Prior5Yr'!$E$58-RentalHousingCost!$E$58","v":-29},0.36804111205554946,1.645]
["N",null,null,null,null,null,null,"Renter 50.0 percent or more",null,"N",{"$f":"'RentalHousingCost-Prior5Yr'!$F$59/1.645","v":76.392841689507634},{"$f":"RentalHousingCost!$F$59/1.645","v":82.062366194140054},112.11644931400261,{"$f":"'RentalHousingCost-Prior5Yr'!$E$59-RentalHousingCost!$E$59","v":12},0.10703157363101828,1.645]
["N",null,null,null,null,null,null,"Renter Not computed",null,"N",{"$f":"'RentalHousingCost-Prior5Yr'!$F$60/1.645","v":46.907092337654525},{"$f":"RentalHousingCost!$F$60/1.645","v":47.076169961214205},{"$f":"SQRT((K175^2)+(L175^2))","v":66.456309631143185},{"$f":"'RentalHousingCost-Prior5Yr'!$E$60-RentalHousingCost!$E$60","v":46},0.69218408688831534,1.645]
["N",null,null,null,null,null,null,"Renter Less than $10,000:",null,"N",{"$f":"'RentalHousingCost-Prior5Yr'!$I$52/1.645","v":10.334346504559271},{"$f":"RentalHousingCost!$I$52/1.645","v":9.7264437689969601},{"$f":"SQRT((K176^2)+(L176^2))","v":14.191632255232525},{"$f":"'RentalHousingCost-Prior5Yr'!$H$52-RentalHousingCost!$H$52","v":10},0.70464058116450634,1.645]
["N",null,null,null,null,null,null,"Renter Less than 20.0 percent",null,"N",{"$f":"'RentalHousingCost-Prior5Yr'!$I$53/1.645","v":9.1185410334346511},{"$f":"RentalHousingCost!$I$53/1.645","v":9.7264437689969601},13.332347841617818,{"$f":"'RentalHousingCost-Prior5Yr'!$H$53-RentalHousingCost!$H$53","v":0},0,1.645]
["N",null,null,null,null,null,null,"Renter 20.0 to 24.9 percent",null,"N",{"$f":"'RentalHousingCost-Prior5Yr'!$I$54/1.645","v":9.1185410334346511},{"$f":"RentalHousingCost!$I$54/1.645","v":9.7264437689969601},13.332347841617818,{"$f":"'RentalHousingCost-Prior5Yr'!$H$54-RentalHousingCost!$H$54","v":0},0,1.645]
["N",null,null,null,null,null,null,"Renter 25.0 to 29.9 percent",null,"N",{"$f":"'RentalHousingCost-Prior5Yr'!$I$55/1.645","v":9.1185410334346511},{"$f":"RentalHousingCost!$I$55/1.645","v":9.7264437689969601},13.332347841617818,{"$f":"'RentalHousingCost-Prior5Yr'!$H$55-RentalHousingCost!$H$55","v":0},0,1.645]
["N",null,null,null,null,null,null,"Renter 30.0 to 34.9 percent",null,"N",{"$f":"'RentalHousingCost-Prior5Yr'!$I$56/1.645","v":15.793776360810432},{"$f":"RentalHousingCost!$I$56/1.645","v":16.846694784864457},23.092303845863317,{"$f":"'RentalHousingCost-Prior5Yr'!$H$56-RentalHousingCost!$H$56","v":0},0,1.645]
["N",null,null,null,null,null,null,"Renter 35.0 to 39.9 percent",null,"N",{"$f":"'RentalHousingCost-Prior5Yr'!$I$57/1.645","v":18.874376530407325},{"$f":"RentalHousingCost!$I$57/1.645","v":19.45288753799392},27.104555391620611,{"$f":"'RentalHousingCost-Prior5Yr'!$H$57-RentalHousingCost!$H$57","v":10},0.36894167255337107,1.645]
["N",null,null,null,null,null,null,"Renter 40.0 to 49.9 percent",null,"N",{"$f":"'RentalHousingCost-Prior5Yr'!$I$58/1.645","v":9.1185410334346511},{"$f":"RentalHousingCost!$I$58/1.645","v":9.7264437689969601},13.332347841617818,{"$f":"'RentalHousingCost-Prior5Yr'!$H$58-RentalHousingCost!$H$58","v":0},0,1.645]
["N",null,null,null,null,null,null,"Renter 50.0 percent or more",null,"N",{"$f":"'RentalHousingCost-Prior5Yr'!$I$59/1.645","v":18.237082066869302},{"$f":"RentalHousingCost!$I$59/1.645","v":19.45288753799392},26.664695683235635,{"$f":"'RentalHousingCost-Prior5Yr'!$H$59-RentalHousingCost!$H$59","v":0},0,1.645]
["N",null,null,null,null,null,null,"Renter Not computed",null,"N",{"$f":"'RentalHousingCost-Prior5Yr'!$I$60/1.645","v":16.525565007985637},{"$f":"RentalHousingCost!$I$60/1.645","v":16.846694784864457},{"$f":"SQRT((K184^2)+(L184^2))","v":23.598843700646409},{"$f":"'RentalHousingCost-Prior5Yr'!$H$60-RentalHousingCost!$H$60","v":10},0.42374957548136499,1.645]
["N",null,null,null,null,null,null,"Renter $10,000 to $19,999:",null,"Y",{"$f":"'RentalHousingCost-Prior5Yr'!$K$52/1.645","v":55.927051671732521},{"$f":"RentalHousingCost!$K$52/1.645","v":9.7264437689969601},{"$f":"SQRT((K185^2)+(L185^2))","v":56.766529020930101},{"$f":"'RentalHousingCost-Prior5Yr'!$J$52-RentalHousingCost!$J$52","v":122},2.1491537725517444,1.645]
["N",null,null,null,null,null,null,"Renter Less than 20.0 percent",null,"N",{"$f":"'RentalHousingCost-Prior5Yr'!$K$53/1.645","v":9.1185410334346511},{"$f":"RentalHousingCost!$K$53/1.645","v":9.7264437689969601},13.332347841617818,{"$f":"'RentalHousingCost-Prior5Yr'!$J$53-RentalHousingCost!$J$53","v":0},0,1.645]
["N",null,null,null,null,null,null,"Renter 20.0 to 24.9 percent",null,"N",{"$f":"'RentalHousingCost-Prior5Yr'!$K$54/1.645","v":9.1185410334346511},{"$f":"RentalHousingCost!$K$54/1.645","v":9.7264437689969601},13.332347841617818,{"$f":"'RentalHousingCost-Prior5Yr'!$J$54-RentalHousingCost!$J$54","v":0},0,1.645]
["N",null,null,null,null,null,null,"Renter 25.0 to 29.9 percent",null,"N",{"$f":"'RentalHousingCost-Prior5Yr'!$K$55/1.645","v":9.1185410334346511},{"$f":"RentalHousingCost!$K$55/1.645","v":9.7264437689969601},13.332347841617818,{"$f":"'RentalHousingCost-Prior5Yr'!$J$55-RentalHousingCost!$J$55","v":0},0,1.645]
["N",null,null,null,null,null,null,"Renter 30.0 to 34.9 percent",null,"N",{"$f":"'RentalHousingCost-Prior5Yr'!$K$56/1.645","v":15.793776360810432},{"$f":"RentalHousingCost!$K$56/1.645","v":16.846694784864457},23.092303845863317,{"$f":"'RentalHousingCost-Prior5Yr'!$J$56-RentalHousingCost!$J$56","v":0},0,1.645]
["N",null,null,null,null,null,null,"Renter 35.0 to 39.9 percent",null,"Y",{"$f":"'RentalHousingCost-Prior5Yr'!$K$57/1.645","v":46.531370779962579},{"$f":"RentalHousingCost!$K$57/1.645","v":19.45288753799392},50.433949877321673,{"$f":"'RentalHousingCost-Prior5Yr'!$J$57-RentalHousingCost!$J$57","v":87},1.7250284820368742,1.645]
["N",null,null,null,null,null,null,"Renter 40.0 to 49.9 percent",null,"N",{"$f":"'RentalHousingCost-Prior5Yr'!$K$58/1.645","v":9.1185410334346511},{"$f":"RentalHousingCost!$K$58/1.645","v":9.7264437689969601},13.332347841617818,{"$f":"'RentalHousingCost-Prior5Yr'!$J$58-RentalHousingCost!$J$58","v":0},0,1.645]
["N",null,null,null,null,null,null,"Renter 50.0 percent or more",null,"N",{"$f":"'RentalHousingCost-Prior5Yr'!$K$59/1.645","v":18.237082066869302},{"$f":"RentalHousingCost!$K$59/1.645","v":19.45288753799392},26.664695683235635,{"$f":"'RentalHousingCost-Prior5Yr'!$J$59-RentalHousingCost!$J$59","v":0},0,1.645]
["N",null,null,null,null,null,null,"Renter Not computed",null,"Y",{"$f":"'RentalHousingCost-Prior5Yr'!$K$60/1.645","v":45.62916475330141},{"$f":"RentalHousingCost!$K$60/1.645","v":16.846694784864457},{"$f":"SQRT((K193^2)+(L193^2))","v":48.639817035617057},{"$f":"'RentalHousingCost-Prior5Yr'!$J$60-RentalHousingCost!$J$60","v":87},1.7886580440114168,1.645]
["N",null,null,null,null,null,null,"Renter $20,000 to $34,999:",null,"Y",{"$f":"'RentalHousingCost-Prior5Yr'!$M$52/1.645","v":12.1580547112462},{"$f":"RentalHousingCost!$M$52/1.645","v":52.887537993920972},{"$f":"SQRT((K194^2)+(L194^2))","v":54.267024696587981},{"$f":"'RentalHousingCost-Prior5Yr'!$L$52-RentalHousingCost!$L$52","v":-93},1.7137479071309274,1.645]
["N",null,null,null,null,null,null,"Renter Less than 20.0 percent",null,"N",{"$f":"'RentalHousingCost-Prior5Yr'!$M$53/1.645","v":9.1185410334346511},{"$f":"RentalHousingCost!$M$53/1.645","v":27.96352583586626},29.412693990037557,{"$f":"'RentalHousingCost-Prior5Yr'!$L$53-RentalHousingCost!$L$53","v":-42},1.4279548828212036,1.645]
["N",null,null,null,null,null,null,"Renter 20.0 to 24.9 percent",null,"N",{"$f":"'RentalHousingCost-Prior5Yr'!$M$54/1.645","v":9.1185410334346511},{"$f":"RentalHousingCost!$M$54/1.645","v":9.7264437689969601},13.332347841617818,{"$f":"'RentalHousingCost-Prior5Yr'!$L$54-RentalHousingCost!$L$54","v":0},0,1.645]
["N",null,null,null,null,null,null,"Renter 25.0 to 29.9 percent",null,"N",{"$f":"'RentalHousingCost-Prior5Yr'!$M$55/1.645","v":9.1185410334346511},{"$f":"RentalHousingCost!$M$55/1.645","v":9.7264437689969601},13.332347841617818,{"$f":"'RentalHousingCost-Prior5Yr'!$L$55-RentalHousingCost!$L$55","v":0},0,1.645]
["N",null,null,null,null,null,null,"Renter 30.0 to 34.9 percent",null,"N",{"$f":"'RentalHousingCost-Prior5Yr'!$M$56/1.645","v":15.793776360810432},{"$f":"RentalHousingCost!$M$56/1.645","v":31.163539496598897},34.937223210944715,{"$f":"'RentalHousingCost-Prior5Yr'!$L$56-RentalHousingCost!$L$56","v":-42},1.2021562144882407,1.645]
["N",null,null,null,null,null,null,"Renter 35.0 to 39.9 percent",null,"N",{"$f":"'RentalHousingCost-Prior5Yr'!$M$57/1.645","v":19.931424086024318},{"$f":"RentalHousingCost!$M$57/1.645","v":48.070463765274688},52.038746648103825,{"$f":"'RentalHousingCost-Prior5Yr'!$L$57-RentalHousingCost!$L$57","v":-51},0.98003897643561566,1.645]
["N",null,null,null,null,null,null,"Renter 40.0 to 49.9 percent",null,"N",{"$f":"'RentalHousingCost-Prior5Yr'!$M$58/1.645","v":9.1185410334346511},{"$f":"RentalHousingCost!$M$58/1.645","v":9.7264437689969601},13.332347841617818,{"$f":"'RentalHousingCost-Prior5Yr'!$L$58-RentalHousingCost!$L$58","v":0},0,1.645]
["N",null,null,null,null,null,null,"Renter 50.0 percent or more",null,"N",{"$f":"'RentalHousingCost-Prior5Yr'!$M$59/1.645","v":18.237082066869302},{"$f":"RentalHousingCost!$M$59/1.645","v":32.646131506620186},37.394666259525103,{"$f":"'RentalHousingCost-Prior5Yr'!$L$59-RentalHousingCost!$L$59","v":-42},1.1231548293147779,1.645]
["N",null,null,null,null,null,null,"Renter Not computed",null,"N",{"$f":"'RentalHousingCost-Prior5Yr'!$M$60/1.645","v":17.723258039043465},{"$f":"RentalHousingCost!$M$60/1.645","v":47.076169961214205},50.301885190672976,{"$f":"'RentalHousingCost-Prior5Yr'!$L$60-RentalHousingCost!$L$60","v":-51},1.0138785019026775,1.645]
["N",null,null,null,null,null,null,"Renter $35,000 to $49,999:",null,"Y",{"$f":"'RentalHousingCost-Prior5Yr'!$O$52/1.645","v":58.358662613981764},{"$f":"RentalHousingCost!$O$52/1.645","v":9.7264437689969601},59.163647711107309,{"$f":"'RentalHousingCost-Prior5Yr'!$N$52-RentalHousingCost!$N$52","v":101},1.7071293591155365,1.645]
["N",null,null,null,null,null,null,"Renter Less than 20.0 percent",null,"N",{"$f":"'RentalHousingCost-Prior5Yr'!$O$53/1.645","v":40.729483282674771},{"$f":"RentalHousingCost!$O$53/1.645","v":9.7264437689969601},41.874747961810392,{"$f":"'RentalHousingCost-Prior5Yr'!$N$53-RentalHousingCost!$N$53","v":53},1.2656792596897728,1.645]
["N",null,null,null,null,null,null,"Renter 20.0 to 24.9 percent",null,"N",{"$f":"'RentalHousingCost-Prior5Yr'!$O$54/1.645","v":9.1185410334346511},{"$f":"RentalHousingCost!$O$54/1.645","v":9.7264437689969601},13.332347841617818,{"$f":"'RentalHousingCost-Prior5Yr'!$N$54-RentalHousingCost!$N$54","v":0},0,1.645]
["N",null,null,null,null,null,null,"Renter 25.0 to 29.9 percent",null,"N",{"$f":"'RentalHousingCost-Prior5Yr'!$O$55/1.645","v":9.1185410334346511},{"$f":"RentalHousingCost!$O$55/1.645","v":9.7264437689969601},13.332347841617818,{"$f":"'RentalHousingCost-Prior5Yr'!$N$55-RentalHousingCost!$N$55","v":0},0,1.645]
["N",null,null,null,null,null,null,"Renter 30.0 to 34.9 percent",null,"N",{"$f":"'RentalHousingCost-Prior5Yr'!$O$56/1.645","v":42.722200196508453},{"$f":"RentalHousingCost!$O$56/1.645","v":16.846694784864457},45.923822955029848,{"$f":"'RentalHousingCost-Prior5Yr'!$N$56-RentalHousingCost!$N$56","v":53},1.154085104193076,1.645]
["N",null,null,null,null,null,null,"Renter 35.0 to 39.9 percent",null,{"$f":"IF(O208>P208,\"Y\",\"N\")","v":"N"},{"$f":"'RentalHousingCost-Prior5Yr'!$O$57/1.645","v":47.103636784949586},{"$f":"RentalHousingCost!$O$57/1.645","v":19.45288753799392},50.962411951695294,{"$f":"'RentalHousingCost-Prior5Yr'!$N$57-RentalHousingCost!$N$57","v":48},0.94187064861641134,1.645]
["N",null,null,null,null,null,null,"Renter 40.0 to 49.9 percent",null,"N",{"$f":"'RentalHousingCost-Prior5Yr'!$O$58/1.645","v":44.376899696048632},{"$f":"RentalHousingCost!$O$58/1.645","v":9.7264437689969601},45.43030855084104,{"$f":"'RentalHousingCost-Prior5Yr'!$N$58-RentalHousingCost!$N$58","v":48},1.0565633721435816,1.645]
["N",null,null,null,null,null,null,"Renter 50.0 percent or more",null,"N",{"$f":"'RentalHousingCost-Prior5Yr'!$O$59/1.645","v":87.099099892557078},{"$f":"RentalHousingCost!$O$59/1.645","v":26.573138553861419},91.062532880962365,{"$f":"'RentalHousingCost-Prior5Yr'!$N$59-RentalHousingCost!$N$59","v":101},1.1091279454309486,1.645]
["N",null,null,null,null,null,null,"Renter Not computed",null,"N",{"$f":"'RentalHousingCost-Prior5Yr'!$O$60/1.645","v":15.793776360810432},{"$f":"RentalHousingCost!$O$60/1.645","v":16.846694784864457},23.092303845863317,{"$f":"'RentalHousingCost-Prior5Yr'!$N$60-RentalHousingCost!$N$60","v":0},0,1.645]
["N",null,null,null,null,null,null,"Renter $50,000 to $74,999:",null,"N",{"$f":"'RentalHousingCost-Prior5Yr'!$Q$52/1.645","v":31.003039513677813},{"$f":"RentalHousingCost!$Q$52/1.645","v":63.829787234042556},70.960765197606278,{"$f":"'RentalHousingCost-Prior5Yr'!$P$52-RentalHousingCost!$P$52","v":-39},0.54959948488993449,1.645]
["N",null,null,null,null,null,null,"Renter Less than 20.0 percent",null,"N",{"$f":"'RentalHousingCost-Prior5Yr'!$Q$53/1.645","v":9.1185410334346511},{"$f":"RentalHousingCost!$Q$53/1.645","v":9.7264437689969601},13.332347841617818,{"$f":"'RentalHousingCost-Prior5Yr'!$P$53-RentalHousingCost!$P$53","v":0},0,1.645]
["N",null,null,null,null,null,null,"Renter 20.0 to 24.9 percent",null,"N",{"$f":"'RentalHousingCost-Prior5Yr'!$Q$54/1.645","v":9.1185410334346511},{"$f":"RentalHousingCost!$Q$54/1.645","v":9.7264437689969601},13.332347841617818,{"$f":"'RentalHousingCost-Prior5Yr'!$P$54-RentalHousingCost!$P$54","v":0},0,1.645]
["N",null,null,null,null,null,null,"Renter 25.0 to 29.9 percent",null,"N",{"$f":"'RentalHousingCost-Prior5Yr'!$Q$55/1.645","v":31.003039513677813},{"$f":"RentalHousingCost!$Q$55/1.645","v":9.7264437689969601},32.492955659313722,{"$f":"'RentalHousingCost-Prior5Yr'!$P$55-RentalHousingCost!$P$55","v":46},1.4156914650149606,1.645]
["N",null,null,null,null,null,null,"Renter 30.0 to 34.9 percent",null,"N",{"$f":"'RentalHousingCost-Prior5Yr'!$Q$56/1.645","v":33.5780291298273},{"$f":"RentalHousingCost!$Q$56/1.645","v":16.846694784864457},37.567208645544987,{"$f":"'RentalHousingCost-Prior5Yr'!$P$56-RentalHousingCost!$P$56","v":46},1.2244721303097146,1.645]
["N",null,null,null,null,null,null,"Renter 35.0 to 39.9 percent",null,"N",{"$f":"'RentalHousingCost-Prior5Yr'!$Q$57/1.645","v":18.237082066869302},{"$f":"RentalHousingCost!$Q$57/1.645","v":65.427958891543881},67.922080114107828,{"$f":"'RentalHousingCost-Prior5Yr'!$P$57-RentalHousingCost!$P$57","v":-72},1.0600382067074705,1.645]
["N",null,null,null,null,null,null,"Renter 40.0 to 49.9 percent",null,"N",{"$f":"'RentalHousingCost-Prior5Yr'!$Q$58/1.645","v":9.1185410334346511},{"$f":"RentalHousingCost!$Q$58/1.645","v":63.221884498480243},63.876086840989309,{"$f":"'RentalHousingCost-Prior5Yr'!$P$58-RentalHousingCost!$P$58","v":-72},1.1271823864106461,1.645]
["N",null,null,null,null,null,null,"Renter 50.0 percent or more",null,"N",{"$f":"'RentalHousingCost-Prior5Yr'!$Q$59/1.645","v":34.794135006089206},{"$f":"RentalHousingCost!$Q$59/1.645","v":65.427958891543881},74.104315903566089,{"$f":"'RentalHousingCost-Prior5Yr'!$P$59-RentalHousingCost!$P$59","v":-26},0.35085675757177881,1.645]
["N",null,null,null,null,null,null,"Renter Not computed",null,"N",{"$f":"'RentalHousingCost-Prior5Yr'!$Q$60/1.645","v":15.793776360810432},{"$f":"RentalHousingCost!$Q$60/1.645","v":16.846694784864457},23.092303845863317,{"$f":"'RentalHousingCost-Prior5Yr'!$P$60-RentalHousingCost!$P$60","v":0},0,1.645]
["N",null,null,null,null,null,null,"Renter $75,000 to $99,999:",null,"N",{"$f":"'RentalHousingCost-Prior5Yr'!$S$52/1.645","v":13.373860182370821},{"$f":"RentalHousingCost!$S$52/1.645","v":40.729483282674771},42.868997476629744,{"$f":"'RentalHousingCost-Prior5Yr'!$R$52-RentalHousingCost!$R$52","v":-57},1.3296322133745686,1.645]
["N",null,null,null,null,null,null,"Renter Less than 20.0 percent",null,"N",{"$f":"'RentalHousingCost-Prior5Yr'!$S$53/1.645","v":9.1185410334346511},{"$f":"RentalHousingCost!$S$53/1.645","v":18.237082066869302},20.38967760638106,{"$f":"'RentalHousingCost-Prior5Yr'!$R$53-RentalHousingCost!$R$53","v":-18},0.88279963751691704,1.645]
["N",null,null,null,null,null,null,"Renter 20.0 to 24.9 percent",null,"N",{"$f":"'RentalHousingCost-Prior5Yr'!$S$54/1.645","v":9.1185410334346511},{"$f":"RentalHousingCost!$S$54/1.645","v":9.7264437689969601},13.332347841617818,{"$f":"'RentalHousingCost-Prior5Yr'!$R$54-RentalHousingCost!$R$54","v":0},0,1.645]
["N",null,null,null,null,null,null,"Renter 25.0 to 29.9 percent",null,"N",{"$f":"'RentalHousingCost-Prior5Yr'!$S$55/1.645","v":9.1185410334346511},{"$f":"RentalHousingCost!$S$55/1.645","v":32.826747720364743},34.069680897755752,{"$f":"'RentalHousingCost-Prior5Yr'!$R$55-RentalHousingCost!$R$55","v":-34},0.99795475343708484,1.645]
["N",null,null,null,null,null,null,"Renter 30.0 to 34.9 percent",null,"N",{"$f":"'RentalHousingCost-Prior5Yr'!$S$56/1.645","v":15.793776360810432},{"$f":"RentalHousingCost!$S$56/1.645","v":38.791625856641495},41.883572057991323,{"$f":"'RentalHousingCost-Prior5Yr'!$R$56-RentalHousingCost!$R$56","v":-52},1.2415368948952499,1.645]
["N",null,null,null,null,null,null,"Renter 35.0 to 39.9 percent",null,"N",{"$f":"'RentalHousingCost-Prior5Yr'!$S$57/1.645","v":20.695494869968634},{"$f":"RentalHousingCost!$S$57/1.645","v":23.100303951367781},31.014956884678657,{"$f":"'RentalHousingCost-Prior5Yr'!$R$57-RentalHousingCost!$R$57","v":-5},0.16121254072966301,1.645]
["N",null,null,null,null,null,null,"Renter 40.0 to 49.9 percent",null,"N",{"$f":"'RentalHousingCost-Prior5Yr'!$S$58/1.645","v":13.373860182370821},{"$f":"RentalHousingCost!$S$58/1.645","v":15.805471124620061},20.704421113588332,{"$f":"'RentalHousingCost-Prior5Yr'!$R$58-RentalHousingCost!$R$58","v":-5},0.24149431527542178,1.645]
["N",null,null,null,null,null,null,"Renter 50.0 percent or more",null,"N",{"$f":"'RentalHousingCost-Prior5Yr'!$S$59/1.645","v":20.695494869968634},{"$f":"RentalHousingCost!$S$59/1.645","v":41.887983409002352},46.721586680952463,{"$f":"'RentalHousingCost-Prior5Yr'!$R$59-RentalHousingCost!$R$59","v":-57},1.2199928137979497,1.645]
["N",null,null,null,null,null,null,"Renter Not computed",null,"N",{"$f":"'RentalHousingCost-Prior5Yr'!$S$60/1.645","v":15.793776360810432},{"$f":"RentalHousingCost!$S$60/1.645","v":16.846694784864457},23.092303845863317,{"$f":"'RentalHousingCost-Prior5Yr'!$R$60-RentalHousingCost!$R$60","v":0},0,1.645]
["N",null,null,null,null,null,null,"Renter $100,000 or more:",null,"N",{"$f":"'RentalHousingCost-Prior5Yr'!$U$52/1.645","v":31.610942249240122},{"$f":"RentalHousingCost!$U$52/1.645","v":19.45288753799392},37.116930145832818,{"$f":"'RentalHousingCost-Prior5Yr'!$T$52-RentalHousingCost!$T$52","v":36},0.96990779837005947,1.645]
[{"$f":"IF(F231>G231,\"Y\",\"N\")","v":"N"},null,null,null,null,null,null,"Renter Less than 20.0 percent",null,"Y",{"$f":"'RentalHousingCost-Prior5Yr'!$U$53/1.645","v":31.610942249240122},{"$f":"RentalHousingCost!$U$53/1.645","v":9.7264437689969601},33.07348451972144,{"$f":"'RentalHousingCost-Prior5Yr'!$T$53-RentalHousingCost!$T$53","v":55},{"$f":"ABS((N231/M231))","v":1.6629635733484316},1.645]
["N",null,null,null,null,null,null,"Renter 20.0 to 24.9 percent",null,"N",{"$f":"'RentalHousingCost-Prior5Yr'!$U$54/1.645","v":9.1185410334346511},{"$f":"RentalHousingCost!$U$54/1.645","v":9.7264437689969601},13.332347841617818,{"$f":"'RentalHousingCost-Prior5Yr'!$T$54-RentalHousingCost!$T$54","v":0},0,1.645]
["N",null,null,null,null,null,null,"Renter 25.0 to 29.9 percent",null,"N",{"$f":"'RentalHousingCost-Prior5Yr'!$U$55/1.645","v":9.1185410334346511},{"$f":"RentalHousingCost!$U$55/1.645","v":19.45288753799392},21.484008567869047,{"$f":"'RentalHousingCost-Prior5Yr'!$T$55-RentalHousingCost!$T$55","v":-19},0.8843787201060761,1.645]
["N",null,null,null,null,null,null,"Renter 30.0 to 34.9 percent",null,"N",{"$f":"'RentalHousingCost-Prior5Yr'!$U$56/1.645","v":34.140112053736104},{"$f":"RentalHousingCost!$U$56/1.645","v":23.824824245915408},41.631352384836312,{"$f":"'RentalHousingCost-Prior5Yr'!$T$56-RentalHousingCost!$T$56","v":36},0.86473289811052456,1.645]
["N",null,null,null,null,null,null,"Renter 35.0 to 39.9 percent",null,"N",{"$f":"'RentalHousingCost-Prior5Yr'!$U$57/1.645","v":18.237082066869302},{"$f":"RentalHousingCost!$U$57/1.645","v":19.45288753799392},26.664695683235635,{"$f":"'RentalHousingCost-Prior5Yr'!$T$57-RentalHousingCost!$T$57","v":0},0,1.645]
["N",null,null,null,null,null,null,"Renter 40.0 to 49.9 percent",null,"N",{"$f":"'RentalHousingCost-Prior5Yr'!$U$58/1.645","v":9.1185410334346511},{"$f":"RentalHousingCost!$U$58/1.645","v":9.7264437689969601},13.332347841617818,{"$f":"'RentalHousingCost-Prior5Yr'!$T$58-RentalHousingCost!$T$58","v":0},0,1.645]
["N",null,null,null,null,null,null,"Renter 50.0 percent or more",null,"N",{"$f":"'RentalHousingCost-Prior5Yr'!$U$59/1.645","v":35.336879341844671},{"$f":"RentalHousingCost!$U$59/1.645","v":25.733751353819724},43.714082403274887,{"$f":"'RentalHousingCost-Prior5Yr'!$T$59-RentalHousingCost!$T$59","v":36},0.82353324193997091,1.645]
["N",null,null,null,null,null,null,"Renter Not computed",null,"N",{"$f":"'RentalHousingCost-Prior5Yr'!$U$60/1.645","v":15.793776360810432},{"$f":"RentalHousingCost!$U$60/1.645","v":16.846694784864457},23.092303845863317,{"$f":"'RentalHousingCost-Prior5Yr'!$T$60-RentalHousingCost!$T$60","v":0},0,1.645]
[null,null,null,null,null,null,null,"Total Owner Housing",null,"N",{"$f":"OwnerHousingCostPrior5Year!$F$50/1.645","v":125.83586626139818},{"$f":"OwnerHousingCost!$F$50/1.645","v":177.50759878419453},217.58587468833329,{"$f":"OwnerHousingCostPrior5Year!$E$50-OwnerHousingCost!$E$50","v":-67},0.30792440040498853,1.645]
[null,null,null,null,null,null,null,"Monthly Costs Less than 20% of HH Income",null,"Y",{"$f":"OwnerHousingCostPrior5Year!$F$51/1.645","v":173.96111593952804},{"$f":"OwnerHousingCost!$F$51/1.645","v":220.67539156018245},280.99839554553648,{"$f":"OwnerHousingCostPrior5Year!$E$51-OwnerHousingCost!$E$51","v":-490},1.7437821986445978,1.645]
[null,null,null,null,null,null,null,"Monthly Costs 20% to 29.9% of HH Income",null,"N",{"$f":"OwnerHousingCostPrior5Year!$F$52/1.645","v":140.79085101014965},{"$f":"OwnerHousingCost!$F$52/1.645","v":116.41773861523134},182.68867943155777,{"$f":"OwnerHousingCostPrior5Year!$E$52-OwnerHousingCost!$E$52","v":207},1.1330751343985175,1.645]
[null,null,null,null,null,null,null,"Monthly Costs Less Than 30% of HH Income",null,"N",{"$f":"OwnerHousingCostPrior5Year!$F$53/1.645","v":223.79574077065914},{"$f":"OwnerHousingCost!$F$53/1.645","v":249.50093848425533},335.16451466647271,{"$f":"OwnerHousingCostPrior5Year!$E$53-OwnerHousingCost!$E$53","v":-283},0.84436146315076821,1.645]
[null,null,null,null,null,null,null,"Monthly Costs 30% or More of HH Income",null,"N",{"$f":"OwnerHousingCostPrior5Year!$F$54/1.645","v":179.57533239971198},{"$f":"OwnerHousingCost!$F$54/1.645","v":176.23623482568854},251.60785057704834,{"$f":"OwnerHousingCostPrior5Year!$E$54-OwnerHousingCost!$E$54","v":216},0.85847877760815594,1.645]
[null,null,null,null,null,null,null,"Monthly Costs 35% or More of HH Income",null,"N",{"$f":"OwnerHousingCostPrior5Year!$F$56/1.645","v":161.42879748902371},{"$f":"OwnerHousingCost!$F$56/1.645","v":154.01788965384065},223.11603929833208,{"$f":"OwnerHousingCostPrior5Year!$E$56-OwnerHousingCost!$E$56","v":152},0.68125985239796383,1.645]
[null,null,null,null,null,null,null,"Monthly Costs 50% or More of HH Income",null,"N",{"$f":"OwnerHousingCostPrior5Year!$F$57/1.645","v":125.1895948539437},{"$f":"OwnerHousingCost!$F$57/1.645","v":121.2944963212083},174.31233317671524,{"$f":"OwnerHousingCostPrior5Year!$E$57-OwnerHousingCost!$E$57","v":69},0.39584118198939389,1.645]
[null,null,null,null,null,null,null,"Percent not computed",null,"N",{"$f":"OwnerHousingCostPrior5Year!$F$58/1.645","v":12.895564398538861},{"$f":"OwnerHousingCost!$F$58/1.645","v":13.755268691774786},18.854787135891581,{"$f":"OwnerHousingCostPrior5Year!$E$58-OwnerHousingCost!$E$58","v":0},0,1.645]
[null,null,null,null,null,null,null,"Owner Less than $20,000:",null,"N",{"$f":"OwnerHousingCostPrior5Year!$I$50/1.645","v":71.732522796352583},{"$f":"OwnerHousingCost!$I$50/1.645","v":115.5015197568389},135.96380361283178,{"$f":"OwnerHousingCostPrior5Year!$H$50-OwnerHousingCost!$H$50","v":-85},0.62516638797517432,1.645]
[null,null,null,null,null,null,null,"Owner Less than 20.0 percent",null,"N",{"$f":"OwnerHousingCostPrior5Year!$I$51/1.645","v":9.1185410334346511},{"$f":"OwnerHousingCost!$I$51/1.645","v":9.7264437689969601},13.332347841617818,{"$f":"OwnerHousingCostPrior5Year!$H$51-OwnerHousingCost!$H$51","v":0},0,1.645]
[null,null,null,null,null,null,null,"Owner 20.0 to 24.9 percent",null,"N",{"$f":"OwnerHousingCostPrior5Year!$I$52/1.645","v":9.1185410334346511},{"$f":"OwnerHousingCost!$I$52/1.645","v":9.7264437689969601},13.332347841617818,{"$f":"OwnerHousingCostPrior5Year!$H$52-OwnerHousingCost!$H$52","v":0},0,1.645]
[null,null,null,null,null,null,null,"Owner 25.0 to 29.9 percent",null,"N",{"$f":"OwnerHousingCostPrior5Year!$I$53/1.645","v":12.895564398538861},{"$f":"OwnerHousingCost!$I$53/1.645","v":13.755268691774786},18.854787135891581,{"$f":"OwnerHousingCostPrior5Year!$H$53-OwnerHousingCost!$H$53","v":0},0,1.645]
[null,null,null,null,null,null,null,"Owner 30.0 or more",null,"N",{"$f":"OwnerHousingCostPrior5Year!$I$54/1.645","v":71.732522796352583},{"$f":"OwnerHousingCost!$I$54/1.645","v":115.5015197568389},135.96380361283178,{"$f":"OwnerHousingCostPrior5Year!$H$54-OwnerHousingCost!$H$54","v":-85},0.62516638797517432,1.645]
[null,null,null,null,null,null,null,"Owner $20,000 to $34,999:",null,"N",{"$f":"OwnerHousingCostPrior5Year!$J$50/1.645","v":172.64437689969606},{"$f":"OwnerHousingCost!$J$50/1.645","v":116.71732522796353},208.39629287358861,{"$f":"OwnerHousingCostPrior5Year!$K$50-OwnerHousingCost!$K$50","v":6},2.8791299102616706E-2,1.645]
[null,null,null,null,null,null,null,"Owner Less than 20.0 percent",null,"N",{"$f":"OwnerHousingCostPrior5Year!$J$51/1.645","v":0},{"$f":"OwnerHousingCost!$J$51/1.645","v":7.9027355623100304},7.9027355623100304,{"$f":"OwnerHousingCostPrior5Year!$K$51-OwnerHousingCost!$K$51","v":-6},0.75923076923076926,1.645]
[null,null,null,null,null,null,null,"Owner 20.0 to 24.9 percent",null,"N",{"$f":"OwnerHousingCostPrior5Year!$J$52/1.645","v":35.258358662613979},{"$f":"OwnerHousingCost!$J$52/1.645","v":10.94224924012158},36.917267965201155,{"$f":"OwnerHousingCostPrior5Year!$K$52-OwnerHousingCost!$K$52","v":34},0.92097822710090516,1.645]
[null,null,null,null,null,null,null,"Owner 25.0 to 29.9 percent",null,"N",{"$f":"OwnerHousingCostPrior5Year!$J$53/1.645","v":35.258358662613979},{"$f":"OwnerHousingCost!$J$53/1.645","v":18.844984802431611},39.978560601720076,{"$f":"OwnerHousingCostPrior5Year!$K$53-OwnerHousingCost!$K$53","v":28.956071854832395},0.72429000491794993,1.645]
[null,null,null,null,null,null,null,"Owner 30.0 or more",null,"N",{"$f":"OwnerHousingCostPrior5Year!$J$54/1.645","v":137.38601823708206},{"$f":"OwnerHousingCost!$J$54/1.645","v":97.872340425531917},168.68287710200775,{"$f":"OwnerHousingCostPrior5Year!$K$54-OwnerHousingCost!$K$54","v":1},5.9282839917134513E-3,1.645]
[null,null,null,null,null,null,null,"Owner $35,000 to $49,999:",null,"N",{"$f":"OwnerHousingCostPrior5Year!$M$50/1.645","v":70.516717325227958},{"$f":"OwnerHousingCost!$M$50/1.645","v":94.224924012158056},117.69003240471585,{"$f":"OwnerHousingCostPrior5Year!$L$50-OwnerHousingCost!$L$50","v":-57},0.48432308867064261,1.645]
[null,null,null,null,null,null,null,"Owner Less than 20.0 percent",null,"N",{"$f":"OwnerHousingCostPrior5Year!$M$51/1.645","v":38.90577507598784},{"$f":"OwnerHousingCost!$M$51/1.645","v":35.866261398176292},{"$f":"SQRT((K258^2)+(L258^2))","v":52.9154801636125},{"$f":"OwnerHousingCostPrior5Year!$L$51-OwnerHousingCost!$L$51","v":-19},0.35906316906230046,1.645]
[null,null,null,null,null,null,null,"Owner 20.0 to 24.9 percent",null,"N",{"$f":"OwnerHousingCostPrior5Year!$M$52/1.645","v":15.19756838905775},{"$f":"OwnerHousingCost!$M$52/1.645","v":52.887537993920972},55.027790797001124,{"$f":"OwnerHousingCostPrior5Year!$L$52-OwnerHousingCost!$L$52","v":-61},1.1085307826554496,1.645]
[null,null,null,null,null,null,null,"Owner 25.0 to 29.9 percent",null,"N",{"$f":"OwnerHousingCostPrior5Year!$M$53/1.645","v":41.768713401341969},{"$f":"OwnerHousingCost!$M$53/1.645","v":63.902115628050566},76.34203167943717,{"$f":"OwnerHousingCostPrior5Year!$L$53-OwnerHousingCost!$L$53","v":-80},1.0479155222895136,1.645]
[null,null,null,null,null,null,null,"Owner 30.0 or more",null,"N",{"$f":"OwnerHousingCostPrior5Year!$M$54/1.645","v":64.437689969604861},{"$f":"OwnerHousingCost!$M$54/1.645","v":83.282674772036472},105.30061636003711,{"$f":"OwnerHousingCostPrior5Year!$L$54-OwnerHousingCost!$L$54","v":23},0.21842227325013822,1.645]
[null,null,null,null,null,null,null,"Owner $50,000 to $74,999:",null,"N",{"$f":"OwnerHousingCostPrior5Year!$O$50/1.645","v":98.480243161094222},{"$f":"OwnerHousingCost!$O$50/1.645","v":91.79331306990882},134.62678268984422,{"$f":"OwnerHousingCostPrior5Year!$N$50-OwnerHousingCost!$N$50","v":66},0.49024420461753199,1.645]
[null,null,null,null,null,null,null,"Owner Less than 20.0 percent",null,"N",{"$f":"OwnerHousingCostPrior5Year!$O$51/1.645","v":55.319148936170215},{"$f":"OwnerHousingCost!$O$51/1.645","v":70.516717325227958},89.625976487557935,{"$f":"OwnerHousingCostPrior5Year!$N$51-OwnerHousingCost!$N$51","v":-60},0.66944877312805984,1.645]
[null,null,null,null,null,null,null,"Owner 20.0 to 24.9 percent",null,"N",{"$f":"OwnerHousingCostPrior5Year!$O$52/1.645","v":35.258358662613979},{"$f":"OwnerHousingCost!$O$52/1.645","v":37.689969604863222},51.610906448124311,{"$f":"OwnerHousingCostPrior5Year!$N$52-OwnerHousingCost!$N$52","v":10},0.19375749600622311,1.645]
[null,null,null,null,null,null,null,"Owner 25.0 to 29.9 percent",null,"N",{"$f":"OwnerHousingCostPrior5Year!$O$53/1.645","v":65.600000721064845},{"$f":"OwnerHousingCost!$O$53/1.645","v":79.957121203440153},103.42389146490925,{"$f":"OwnerHousingCostPrior5Year!$N$53-OwnerHousingCost!$N$53","v":-50},0.48344728951689592,1.645]
[null,null,null,null,null,null,null,"Owner 30.0 or more",null,"N",{"$f":"OwnerHousingCostPrior5Year!$O$54/1.645","v":75.98784194528875},{"$f":"OwnerHousingCost!$O$54/1.645","v":50.455927051671729},91.213774717121552,{"$f":"OwnerHousingCostPrior5Year!$N$54-OwnerHousingCost!$N$54","v":116},1.2717377431177166,1.645]
[null,null,null,null,null,null,null,"Owner $75,000 or more",null,"N",{"$f":"OwnerHousingCostPrior5Year!$Q$50/1.645","v":131.91489361702128},{"$f":"OwnerHousingCost!$Q$50/1.645","v":130.09118541033433},185.2707631534345,{"$f":"OwnerHousingCostPrior5Year!$P$50-OwnerHousingCost!$P$50","v":-83},0.44799297302652347,1.645]
[null,null,null,null,null,null,null,"Owner Less than 20.0 percent",null,"Y",{"$f":"OwnerHousingCostPrior5Year!$Q$51/1.645","v":116.71732522796353},{"$f":"OwnerHousingCost!$Q$51/1.645","v":150.15197568389058},190.18030868138237,{"$f":"OwnerHousingCostPrior5Year!$P$51-OwnerHousingCost!$P$51","v":-398},2.092750836085703,1.645]
[null,null,null,null,null,null,null,"Owner 20.0 to 24.9 percent",null,"N",{"$f":"OwnerHousingCostPrior5Year!$Q$52/1.645","v":120.97264437689969},{"$f":"OwnerHousingCost!$Q$52/1.645","v":93.00911854103343},152.59448489155776,{"$f":"OwnerHousingCostPrior5Year!$P$52-OwnerHousingCost!$P$52","v":218},1.4286230603610812,1.645]
[null,null,null,null,null,null,null,"Owner 25.0 to 29.9 percent",null,"N",{"$f":"OwnerHousingCostPrior5Year!$Q$53/1.645","v":168.09912163931747},{"$f":"OwnerHousingCost!$Q$53/1.645","v":176.62477723568591},243.831143682397,{"$f":"OwnerHousingCostPrior5Year!$P$53-OwnerHousingCost!$P$53","v":-180},0.73821578852314107,1.645]
[null,null,null,null,null,null,null,"Owner 30.0 or more",null,"N",{"$f":"OwnerHousingCostPrior5Year!$Q$54/1.645","v":80.243161094224916},{"$f":"OwnerHousingCost!$Q$54/1.645","v":62.61398176291793},101.78150919789286,{"$f":"OwnerHousingCostPrior5Year!$P$54-OwnerHousingCost!$P$54","v":97},0.95302182846791739,1.645]

{"sheet":"OwnerHousingCost","index":68,"n_rows":112,"n_cols":17,"rows_kept":112,"cut":false,"hidden":true,"merged":[]}
[]
[null,null,"HIDE THIS COLUMN",{"$f":"CntyDataLink!$A35","v":"Barrington"}]
[null,null,null,"OWNER HOUSING COST CHARACTERISTICS"]
[]
[]
[]
[]
[]
[]
[]
[]
[]
[]
[]
[]
[]
[]
[]
[]
[]
[]
[]
[]
[]
[]
[]
[]
[]
[]
[]
[]
[]
[]
[]
[]
[]
[null,null,null,"Income in 2019 Inflation Adjusted Dollars"]
[null,null,null,"Source: 2015-2019 American Community Survey Table B25106"]
[null,null,null,"Data from the American Community Survey are estimates."]
[]
[]
[null,null,null,{"$f":"CntyDataLink!A$35","v":"Barrington"}]
[]
[null,null,null,{"$f":"D3","v":"OWNER HOUSING COST CHARACTERISTICS"}]
[]
[null,null,null,"Owner Households by "]
[null,null,null,"Selected Monthly Housing Costs as a Percent of 2018 Household Income",null,null,null,"By Household Income"]
[null,null,"H73RenterOccHU",null,"Specified Owner Occ Housing Units","Margin of Error Owner Occ Housing Units",null,"Less than $20,000",{"$f":"\"Margin of Error \"&H48","v":"Margin of Error Less than $20,000"},"$20,000 to $34,999",{"$f":"\"Margin of Error \"&J48","v":"Margin of Error $20,000 to $34,999"},"$35,000 to $49,999",{"$f":"\"Margin of Error \"&L48","v":"Margin of Error $35,000 to $49,999"},"$50,000 to $74,999",{"$f":"\"Margin of Error \"&N48","v":"Margin of Error $50,000 to $74,999"},"$75,000 or More",{"$f":"\"Margin of Error \"&P48","v":"Margin of Error $75,000 or More"}]
[]
[null,null,null,"Total Households",{"$f":"CntyDataLink!$BF144","v":3015},{"$f":"CntyDataLink!$BG$144","v":292},null,{"$f":"CntyDataLink!$BZ$144","v":274},{"$f":"CntyDataLink!$CA$144","v":190},{"$f":"CntyDataLink!$CH$144","v":192},{"$f":"CntyDataLink!$CI$144","v":155},{"$f":"CntyDataLink!$CP$144","v":303},{"$f":"CntyDataLink!$CQ$144","v":155},{"$f":"CntyDataLink!$CX$144","v":385},{"$f":"CntyDataLink!$CY$144","v":151},{"$f":"CntyDataLink!$DF$144","v":1861},{"$f":"CntyDataLink!$DG$144","v":214}]
[null,null,null,"Monthly Costs Less than 20% of HH Income",{"$f":"CntyDataLink!$BH$144","v":1639},{"$f":"CntyDataLink!$BI$144","v":363.01101911650011},null,{"$f":"CntyDataLink!$CB$144","v":0},{"$f":"CntyDataLink!$CC$144","v":16},{"$f":"CntyDataLink!CJ$144","v":13},{"$f":"CntyDataLink!CK$144","v":21},{"$f":"CntyDataLink!CR$144","v":59},{"$f":"CntyDataLink!CS$144","v":59},{"$f":"CntyDataLink!CZ$144","v":214},{"$f":"CntyDataLink!DA$144","v":116},{"$f":"CntyDataLink!DH$144","v":1353},{"$f":"CntyDataLink!DI$144","v":247}]
[null,null,null,"Monthly Costs 20% to 29.9% of HH Income",{"$f":"CntyDataLink!$BJ$144","v":538},{"$f":"CntyDataLink!$BK$144","v":191.50718002205556},null,{"$f":"CntyDataLink!$CD$144","v":0},{"$f":"CntyDataLink!$CE$144","v":16},{"$f":"CntyDataLink!CL$144","v":18},{"$f":"CntyDataLink!CM$144","v":29},{"$f":"CntyDataLink!CT$144","v":83},{"$f":"CntyDataLink!CU$144","v":87},{"$f":"CntyDataLink!DB$144","v":64},{"$f":"CntyDataLink!DC$144","v":62},{"$f":"CntyDataLink!DJ$144","v":373},{"$f":"CntyDataLink!DK$144","v":153}]
[null,null,null,"Monthly Costs Less Than 30% of HH Income",{"$f":"CntyDataLink!$BL$144","v":2177},{"$f":"CntyDataLink!$BM$144","v":410.42904380660002},null,{"$f":"H52+H51","v":0},{"$f":"SQRT((I52^2)+(I51^2))","v":22.627416997969522},{"$f":"J52+J51","v":31},{"$f":"SQRT((K52^2)+(K51^2))","v":35.805027579936315},{"$f":"L52+L51","v":142},{"$f":"SQRT((M52^2)+(M51^2))","v":105.11898020814318},{"$f":"N52+N51","v":278},{"$f":"SQRT((O52^2)+(O51^2))","v":131.52946437965906},{"$f":"P52+P51","v":1726},{"$f":"SQRT((Q52^2)+(Q51^2))","v":290.54775855270333}]
[null,null,null,"Monthly Costs 30% or More of HH Income",{"$f":"CntyDataLink!$BN$144","v":838},{"$f":"CntyDataLink!$BO$144","v":289.90860628825766},null,{"$f":"CntyDataLink!$CF$144","v":274},{"$f":"CntyDataLink!$CG$144","v":190},{"$f":"CntyDataLink!CN$144","v":161},{"$f":"CntyDataLink!CO$144","v":142},{"$f":"CntyDataLink!CV$144","v":161},{"$f":"CntyDataLink!CW$144","v":137},{"$f":"CntyDataLink!DD$144","v":107},{"$f":"CntyDataLink!DE$144","v":83},{"$f":"CntyDataLink!$DL$144","v":135},{"$f":"CntyDataLink!$DM$144","v":103}]
[]
[null,null,null,"Monthly Costs 35% or More of HH Income",{"$f":"CntyDataLink!$BT$144","v":637},{"$f":"CntyDataLink!$BU$144","v":253.35942848056789},null,"NA","NA","NA","NA","NA","NA","NA","NA","NA","NA"]
[null,null,null,"Monthly Costs 50% or More of HH Income",{"$f":"CntyDataLink!$BV$144","v":397},{"$f":"CntyDataLink!$BW$144","v":199.52944644838766},null,"NA","NA","NA","NA","NA","NA","NA","NA","NA","NA"]
[null,null,null,"Percent not computed",{"$f":"CntyDataLink!$BX$144","v":0},{"$f":"CntyDataLink!$BY$144","v":22.627416997969522},null,"NA","NA","NA","NA","NA","NA","NA","NA","NA","NA"]
[]
[null,null,null,"Percent of Owner Households Paying ",null,null,null,"By Household Income"]
[null,null,null,{"$f":"D53","v":"Monthly Costs Less Than 30% of HH Income"},{"$f":"E53/E$50","v":0.72205638474295186},null,null,{"$f":"H53/H$50","v":0},null,{"$f":"J53/J$50","v":0.16145833333333334},null,{"$f":"L53/L$50","v":0.46864686468646866},null,{"$f":"N53/N$50","v":0.7220779220779221},null,{"$f":"P53/P$50","v":0.92745835572272972}]
[null,null,null,{"$f":"D54","v":"Monthly Costs 30% or More of HH Income"},{"$f":"E54/E$50","v":0.27794361525704808},null,null,{"$f":"H54/H50","v":1},null,{"$f":"J54/J50","v":0.83854166666666663},null,{"$f":"L54/L50","v":0.53135313531353134},null,{"$f":"N54/N50","v":0.2779220779220779},null,{"$f":"P54/P50","v":7.2541644277270279E-2}]
[]
[null,null,null,"Monthly Costs 35% or More of HH Income",{"$f":"E56/E$50","v":0.21127694859038143},null,null,"NA","NA","NA","NA","NA","NA","NA","NA","NA","NA"]
[null,null,null,"Monthly Costs 50% or More of HH Income",{"$f":"E57/E$50","v":0.13167495854063019},null,null,"NA","NA","NA","NA","NA","NA","NA","NA","NA","NA"]
[null,null,null,"Percent not computed",{"$f":"E58/$E$50","v":0},null,null,"NA","NA","NA","NA","NA","NA","NA","NA","NA","NA"]
[]
[null,null,null,{"$f":"D37","v":"Income in 2019 Inflation Adjusted Dollars"}]
[null,null,null,"Source: 2015-2019 American Community Survey Table B25091; B25106",null,null,null,"NA indicates that the American Community Survey does not provide that data."]
[null,null,null,"Data from the American Community Survey are estimates."]
[]
[]
[null,null,"H62ROHUGRent250to299",{"$f":"D3","v":"OWNER HOUSING COST CHARACTERISTICS"}]
[null,null,"H62ROHUGRent300to349"]
[null,null,"H62ROHUGRent350to399","Value of Owner Occupied Housing Units"]
[null,null,"H62ROHUGRent400to449"]
[null,null,"H62ROHUGRent450to499","Owner Occupied Housing Units",{"$f":"CntyDataLink!$B$144","v":3015},{"$f":"CntyDataLink!$C$144","v":292}]
[null,null,"H62ROHUGRent500to549"]
[null,null,"H62ROHUGRent550to599","Value","Housing Units","Margin of Error"]
[null,null,"H62ROHUGRent600to649","Less than $10,000",{"$f":"CntyDataLink!$D$144","v":17},{"$f":"CntyDataLink!$E$144","v":28}]
[null,null,"H62ROHUGRent650to699","$10,000 to $14,999",{"$f":"CntyDataLink!$F$144","v":21},{"$f":"CntyDataLink!$G$144","v":35}]
[null,null,"H62ROHUGRent700to749","$15,000 to $19,999",{"$f":"CntyDataLink!$H$144","v":0},{"$f":"CntyDataLink!$I$144","v":16}]
[null,null,"H62ROHUGRent750to799","$20,000 to $24,999",{"$f":"CntyDataLink!$J$144","v":48},{"$f":"CntyDataLink!$K$144","v":78}]
[null,null,"H62ROHUGRent800to899","$25,000 to $29,999",{"$f":"CntyDataLink!$L$144","v":13},{"$f":"CntyDataLink!$M$144","v":22}]
[null,null,"H62ROHUGRent900to999","$30,000 to $34,999",{"$f":"CntyDataLink!$N$144","v":67},{"$f":"CntyDataLink!$O$144","v":76}]
[null,null,"H62ROHUGRent1000to1249","$35,000 to $39,999",{"$f":"CntyDataLink!$P$144","v":0},{"$f":"CntyDataLink!$Q$144","v":16}]
[null,null,"H62ROHUGRent1250to1499","$40,000 to $49,999",{"$f":"CntyDataLink!$R$144","v":72},{"$f":"CntyDataLink!$S$144","v":88}]
[null,null,"H62ROHUGRent1500to1999","$50,000 to $59,999",{"$f":"CntyDataLink!$T$144","v":66},{"$f":"CntyDataLink!$U$144","v":69}]
[null,null,"H62ROHUGRent2000>","$60,000 to $69,999",{"$f":"CntyDataLink!$V$144","v":86},{"$f":"CntyDataLink!$W$144","v":123}]
[null,null,"H62ROHUNoGRent","$70,000 to $79,999",{"$f":"CntyDataLink!$X$144","v":0},{"$f":"CntyDataLink!$Y$144","v":16}]
[null,null,"H63MedianGrossRnt","$80,000 to $89,999",{"$f":"CntyDataLink!$Z$144","v":0},{"$f":"CntyDataLink!$AA$144","v":16}]
[null,null,null,"$90,000 to $99,999",{"$f":"CntyDataLink!$AB$144","v":0},{"$f":"CntyDataLink!$AC$144","v":16}]
[null,null,null,"$100,000 to $124,999",{"$f":"CntyDataLink!$AD$144","v":82},{"$f":"CntyDataLink!$AE$144","v":81}]
[null,null,null,"$125,000 to $149,999",{"$f":"CntyDataLink!$AF$144","v":29},{"$f":"CntyDataLink!$AG$144","v":50}]
[null,null,null,"$150,000 to $174,999",{"$f":"CntyDataLink!$AH$144","v":158},{"$f":"CntyDataLink!$AI$144","v":133}]
[null,null,null,"$175,000 to $199,999",{"$f":"CntyDataLink!$AJ$144","v":88},{"$f":"CntyDataLink!$AK$144","v":112}]
[null,null,null,"$200,000 to $249,999",{"$f":"CntyDataLink!$AL$144","v":461},{"$f":"CntyDataLink!$AM$144","v":213}]
[null,null,null,"$250,000 to $299,999",{"$f":"CntyDataLink!$AN$144","v":497},{"$f":"CntyDataLink!$AO$144","v":175}]
[null,null,null,"$300,000 to $399,999",{"$f":"CntyDataLink!$AP$144","v":800},{"$f":"CntyDataLink!$AQ$144","v":224}]
[null,null,null,"$400,000 to $499,999",{"$f":"CntyDataLink!$AR$144","v":387},{"$f":"CntyDataLink!$AS$144","v":215}]
[null,null,null,"$500,000 to $749,999",{"$f":"CntyDataLink!$AT$144","v":91},{"$f":"CntyDataLink!$AU$144","v":74}]
[null,null,null,"$750,000 to $999,999",{"$f":"CntyDataLink!$AV$144","v":32},{"$f":"CntyDataLink!$AW$144","v":51}]
[null,null,null,"$1,000,000 to $1,499,999",{"$f":"CntyDataLink!$AX$144","v":0},{"$f":"CntyDataLink!$AY$144","v":16}]
[null,null,null,"$1,500,000 to $1,999,999",{"$f":"CntyDataLink!$AZ$144","v":0},{"$f":"CntyDataLink!$BA$144","v":16}]
[null,null,null,"$2,000,000 or more",{"$f":"CntyDataLink!$BB$144","v":0},{"$f":"CntyDataLink!$BC$144","v":16}]
[]
[null,null,null,"Median Value",{"$f":"CntyDataLink!$BD$144","v":280100},{"$f":"CntyDataLink!$BE$144","v":21008}]
[]
[]
[]
[null,null,null,"Source: 2015-2019 American Community Survey Tables B25075 and B25077"]
[null,null,null,"Data from the American Community Survey are estimates."]

{"sheet":"OwnerHousingCostPrior5Year","index":69,"n_rows":70,"n_cols":17,"rows_kept":70,"cut":false,"hidden":true,"merged":[]}
[]
[null,null,"HIDE THIS COLUMN",{"$f":"CntyDataLink!$A35","v":"Barrington"}]
[null,null,null,"OWNER HOUSING COST CHARACTERISTICS"]
[]
[]
[]
[]
[]
[]
[]
[]
[]
[]
[]
[]
[]
[]
[]
[]
[]
[]
[]
[]
[]
[]
[]
[]
[]
[]
[]
[]
[]
[]
[]
[]
[]
[null,null,null,"Income in 2014 Inflation Adjusted Dollars"]
[null,null,null,"Source: 2010-2014 American Community Survey Table B25106"]
[null,null,null,"Data from the American Community Survey are estimates."]
[]
[]
[null,null,null,{"$f":"CntyDataLinkPrior5YearEstimates!$A$108","v":"Barrington"}]
[]
[null,null,null,{"$f":"D3","v":"OWNER HOUSING COST CHARACTERISTICS"}]
[]
[null,null,null,"Owner Households by "]
[null,null,null,"Selected Monthly Housing Costs as a Percent of 2014 Household Income",null,null,null,"By Household Income"]
[null,null,"H73RenterOccHU",null,"Specified Owner Occ Housing Units","Margin of Error Owner Occ Housing Units",null,"Less than $20,000",{"$f":"\"Margin of Error \"&H48","v":"Margin of Error Less than $20,000"},"$20,000 to $34,999",{"$f":"\"Margin of Error \"&J48","v":"Margin of Error $20,000 to $34,999"},"$35,000 to $49,999",{"$f":"\"Margin of Error \"&L48","v":"Margin of Error $35,000 to $49,999"},"$50,000 to $74,999",{"$f":"\"Margin of Error \"&N48","v":"Margin of Error $50,000 to $74,999"},"$75,000 or More",{"$f":"\"Margin of Error \"&P48","v":"Margin of Error $75,000 or More"}]
[]
[null,null,null,"Total Households",{"$f":"CntyDataLinkPrior5YearEstimates!$BF144","v":2948},{"$f":"CntyDataLinkPrior5YearEstimates!$BG$144","v":207},null,{"$f":"CntyDataLinkPrior5YearEstimates!$BZ$144","v":189},{"$f":"CntyDataLinkPrior5YearEstimates!$CA$144","v":118},{"$f":"CntyDataLinkPrior5YearEstimates!$CH$144","v":284},{"$f":"CntyDataLinkPrior5YearEstimates!$CI$144","v":161},{"$f":"CntyDataLinkPrior5YearEstimates!$CP$144","v":246},{"$f":"CntyDataLinkPrior5YearEstimates!$CQ$144","v":116},{"$f":"CntyDataLinkPrior5YearEstimates!$CX$144","v":451},{"$f":"CntyDataLinkPrior5YearEstimates!$CY$144","v":162},{"$f":"CntyDataLinkPrior5YearEstimates!$DF$144","v":1778},{"$f":"CntyDataLinkPrior5YearEstimates!$DG$144","v":217}]
[null,null,null,"Monthly Costs Less than 20% of HH Income",{"$f":"CntyDataLinkPrior5YearEstimates!$BH$144","v":1149},{"$f":"CntyDataLinkPrior5YearEstimates!$BI$144","v":286.16603572052361},null,{"$f":"CntyDataLinkPrior5YearEstimates!$CB$144","v":0},{"$f":"CntyDataLinkPrior5YearEstimates!$CC$144","v":15},{"$f":"CntyDataLinkPrior5YearEstimates!CJ$144","v":0},{"$f":"CntyDataLinkPrior5YearEstimates!CK$144","v":15},{"$f":"CntyDataLinkPrior5YearEstimates!CR$144","v":40},{"$f":"CntyDataLinkPrior5YearEstimates!CS$144","v":64},{"$f":"CntyDataLinkPrior5YearEstimates!CZ$144","v":154},{"$f":"CntyDataLinkPrior5YearEstimates!DA$144","v":91},{"$f":"CntyDataLinkPrior5YearEstimates!DH$144","v":955},{"$f":"CntyDataLinkPrior5YearEstimates!DI$144","v":192}]
[null,null,null,"Monthly Costs 20% to 29.9% of HH Income",{"$f":"CntyDataLinkPrior5YearEstimates!$BJ$144","v":745},{"$f":"CntyDataLinkPrior5YearEstimates!$BK$144","v":231.60094991169618},null,{"$f":"CntyDataLinkPrior5YearEstimates!$CD$144","v":0},{"$f":"CntyDataLinkPrior5YearEstimates!$CE$144","v":15},{"$f":"CntyDataLinkPrior5YearEstimates!CL$144","v":58},{"$f":"CntyDataLinkPrior5YearEstimates!CM$144","v":63},{"$f":"CntyDataLinkPrior5YearEstimates!CT$144","v":22},{"$f":"CntyDataLinkPrior5YearEstimates!CU$144","v":25},{"$f":"CntyDataLinkPrior5YearEstimates!DB$144","v":74},{"$f":"CntyDataLinkPrior5YearEstimates!DC$144","v":58},{"$f":"CntyDataLinkPrior5YearEstimates!DJ$144","v":591},{"$f":"CntyDataLinkPrior5YearEstimates!DK$144","v":199}]
[null,null,null,"Monthly Costs Less Than 30% of HH Income",{"$f":"CntyDataLinkPrior5YearEstimates!$BL$144","v":1894},{"$f":"CntyDataLinkPrior5YearEstimates!$BM$144","v":368.1439935677343},null,{"$f":"H52+H51","v":0},{"$f":"SQRT((I52^2)+(I51^2))","v":21.213203435596427},{"$f":"J52+J51","v":58},{"$f":"SQRT((K52^2)+(K51^2))","v":64.76109943476871},{"$f":"L52+L51","v":62},{"$f":"SQRT((M52^2)+(M51^2))","v":68.709533545207535},{"$f":"N52+N51","v":228},{"$f":"SQRT((O52^2)+(O51^2))","v":107.91200118615167},{"$f":"P52+P51","v":1546},{"$f":"SQRT((Q52^2)+(Q51^2))","v":276.52305509667724}]
[null,null,null,"Monthly Costs 30% or More of HH Income",{"$f":"CntyDataLinkPrior5YearEstimates!$BN$144","v":1054},{"$f":"CntyDataLinkPrior5YearEstimates!$BO$144","v":295.40142179752621},null,{"$f":"CntyDataLinkPrior5YearEstimates!$CF$144","v":189},{"$f":"CntyDataLinkPrior5YearEstimates!$CG$144","v":118},{"$f":"CntyDataLinkPrior5YearEstimates!CN$144","v":226},{"$f":"CntyDataLinkPrior5YearEstimates!CO$144","v":143},{"$f":"CntyDataLinkPrior5YearEstimates!CV$144","v":184},{"$f":"CntyDataLinkPrior5YearEstimates!CW$144","v":106},{"$f":"CntyDataLinkPrior5YearEstimates!DD$144","v":223},{"$f":"CntyDataLinkPrior5YearEstimates!DE$144","v":125},{"$f":"CntyDataLinkPrior5YearEstimates!$DL$144","v":232},{"$f":"CntyDataLinkPrior5YearEstimates!$DM$144","v":132}]
[]
[null,null,null,"Monthly Costs 35% or More of HH Income",{"$f":"CntyDataLinkPrior5YearEstimates!$BT$144","v":789},{"$f":"CntyDataLinkPrior5YearEstimates!$BU$144","v":265.55037186944401},null,"NA","NA","NA","NA","NA","NA","NA","NA","NA","NA"]
[null,null,null,"Monthly Costs 50% or More of HH Income",{"$f":"CntyDataLinkPrior5YearEstimates!$BV$144","v":466},{"$f":"CntyDataLinkPrior5YearEstimates!$BW$144","v":205.9368835347374},null,"NA","NA","NA","NA","NA","NA","NA","NA","NA","NA"]
[null,null,null,"Percent not computed",{"$f":"CntyDataLinkPrior5YearEstimates!$BX$144","v":0},{"$f":"CntyDataLinkPrior5YearEstimates!$BY$144","v":21.213203435596427},null,"NA","NA","NA","NA","NA","NA","NA","NA","NA","NA"]
[]
[null,null,null,"Percent of Owner Households Paying ",null,null,null,"By Household Income"]
[null,null,null,{"$f":"D53","v":"Monthly Costs Less Than 30% of HH Income"},{"$f":"E53/E$50","v":0.6424694708276798},null,null,{"$f":"H53/H$50","v":0},null,{"$f":"J53/J$50","v":0.20422535211267606},null,{"$f":"L53/L$50","v":0.25203252032520324},null,{"$f":"N53/N$50","v":0.50554323725055428},null,{"$f":"P53/P$50","v":0.86951631046119238}]
[null,null,null,{"$f":"D54","v":"Monthly Costs 30% or More of HH Income"},{"$f":"E54/E$50","v":0.3575305291723202},null,null,{"$f":"H54/H50","v":1},null,{"$f":"J54/J50","v":0.79577464788732399},null,{"$f":"L54/L50","v":0.74796747967479671},null,{"$f":"N54/N50","v":0.49445676274944567},null,{"$f":"P54/P50","v":0.13048368953880765}]
[]
[null,null,null,"Monthly Costs 35% or More of HH Income",{"$f":"E56/E$50","v":0.26763907734056985},null,null,"NA","NA","NA","NA","NA","NA","NA","NA","NA","NA"]
[null,null,null,"Monthly Costs 50% or More of HH Income",{"$f":"E57/E$50","v":0.15807327001356852},null,null,"NA","NA","NA","NA","NA","NA","NA","NA","NA","NA"]
[null,null,null,"Percent not computed",{"$f":"E58/$E$50","v":0},null,null,"NA","NA","NA","NA","NA","NA","NA","NA","NA","NA"]
[]
[null,null,"H62ROHUGRent200to249",{"$f":"D37","v":"Income in 2014 Inflation Adjusted Dollars"}]
[null,null,null,"Source: 2010-2014 American Community Survey Table B25091; B25106",null,null,null,null,"NA indicates that the American Community Survey does not provide that data."]
[null,null,null,"Data from the American Community Survey are estimates."]

{"sheet":"ACS_Table_B25075_&_B25077","index":70,"n_rows":160,"n_cols":28,"rows_kept":160,"cut":false,"hidden":true,"merged":[]}
[null,"B25075. VALUE"]
[null,"Universe:  OWNER-OCCUPIED HOUSING UNITS"]
[null,"Data Set: 2015-2019 American Community Survey 5-Year Estimates"]
[]
[null,null,"Barrington",null,"Dover",null,"Durham",null,"Farmington",null,"Lee",null,"Madbury",null,"Middleton",null,"Milton",null,"New Durham",null,"Rochester",null,"Rollinsford",null,"Somersworth",null,"Strafford"]
[null,null,"Estimate","Margin Of Error","Estimate","Margin Of Error","Estimate","Margin Of Error","Estimate","Margin Of Error","Estimate","Margin Of Error","Estimate","Margin Of Error","Estimate","Margin Of Error","Estimate","Margin Of Error","Estimate","Margin Of Error","Estimate","Margin Of Error","Estimate","Margin Of Error","Estimate","Margin Of Error","Estimate","Margin Of Error"]
[null,"Total:",2904,213,6949,378,1854,158,1931,249,1619,162,533,52,585,63,1602,107,893,59,8601,379,798,62,2795,280,1271,89]
[null,"Less than $10,000",17,28,16,28,0,18,0,16,13,20,0,11,0,11,9,14,0,11,49,39,0,11,20,32,0,11]
[null,"$10,000 to $14,999",22,36,17,26,0,18,0,16,0,11,0,11,3,5,25,29,6,9,128,75,0,11,14,24,0,11]
[null,"$15,000 to $19,999",0,16,0,24,0,18,18,29,0,11,0,11,7,6,35,28,25,29,168,91,0,11,48,45,0,11]
[null,"$20,000 to $24,999",19,34,51,47,0,18,0,16,20,32,0,11,3,4,40,49,8,11,126,82,0,11,54,63,0,11]
[null,"$25,000 to $29,999",12,20,39,37,20,21,0,16,0,11,0,11,0,11,20,23,0,11,188,85,0,11,100,71,0,11]
[null,"$30,000 to $34,999",93,79,0,24,0,18,18,29,0,11,0,11,4,6,0,11,0,11,144,105,6,9,135,80,0,11]
[null,"$35,000 to $39,999",13,20,16,26,0,18,0,16,59,83,0,11,0,11,0,11,0,11,16,25,0,11,49,48,0,11]
[null,"$40,000 to $49,999",63,61,40,38,0,18,24,39,51,46,0,11,0,11,0,11,0,11,97,67,0,11,12,20,0,11]
[null,"$50,000 to $59,999",77,68,31,42,0,18,18,29,0,11,3,5,10,9,0,11,0,11,199,93,0,11,0,18,22,25]
[null,"$60,000 to $69,999",0,16,37,41,0,18,61,58,52,68,3,5,13,9,39,47,0,11,114,61,7,9,0,18,8,12]
[null,"$70,000 to $79,999",0,16,51,49,0,18,90,80,0,11,0,11,12,10,1,12,0,11,152,75,0,11,0,18,7,11]
[null,"$80,000 to $89,999",0,16,33,38,0,18,65,59,0,11,0,11,6,7,28,25,0,11,235,107,10,10,19,31,0,11]
[null,"$90,000 to $99,999",0,16,17,27,0,18,153,135,0,11,4,6,3,4,0,11,10,11,92,56,0,11,40,44,45,56]
[null,"$100,000 to $124,999",30,36,200,113,10,11,119,85,0,11,13,10,46,19,55,40,31,20,540,162,17,15,177,106,42,25]
[null,"$125,000 to $149,999",45,49,128,77,0,18,11,19,13,22,2,5,75,22,79,58,60,35,873,153,60,36,118,69,33,27]
[null,"$150,000 to $174,999",93,116,357,138,55,40,283,125,0,11,17,13,74,26,204,88,56,26,1323,226,88,48,493,163,37,39]
[null,"$175,000 to $199,999",109,119,422,145,12,15,122,88,39,42,2,4,75,23,234,79,123,39,797,178,70,34,305,99,79,39]
[null,"$200,000 to $249,999",512,188,1603,314,129,68,361,147,157,89,25,15,136,40,304,113,168,43,1297,229,165,36,483,165,203,75]
[null,"$250,000 to $299,999",456,180,1413,243,216,60,342,165,210,125,59,25,52,23,293,111,212,57,1245,198,161,45,410,138,235,73]
[null,"$300,000 to $399,999",883,193,1359,231,606,105,151,102,599,150,175,42,51,25,116,66,92,30,482,135,117,33,254,118,277,95]
[null,"$400,000 to $499,999",342,164,676,169,482,108,21,33,228,120,135,33,11,9,59,34,45,26,115,84,32,17,18,29,150,82]
[null,"$500,000 to $749,999",92,75,332,118,213,80,56,68,178,102,73,29,4,6,0,11,18,17,71,58,45,25,18,28,115,45]
[null,"$750,000 to $999,999",26,44,80,50,25,24,0,16,0,11,14,11,0,11,18,23,26,27,33,27,15,14,0,18,12,15]
[null,"$1,000,000 to $1,499,999",0,16,13,15,70,49,18,29,0,11,8,11,0,11,43,53,6,8,18,30,5,8,28,28,6,11]
[null,"$1,500,000 to $1,999,999",0,16,0,24,0,18,0,16,0,11,0,11,0,11,0,11,0,11,0,24,0,11,0,18,0,11]
[null,"$2,000,000 or more",0,16,18,31,16,18,0,16,0,11,0,11,0,11,0,11,7,11,99,71,0,11,0,18,0,11]
[]
[]
[null,"B25077. MEDIAN VALUE (Dollars)"]
[null,"Universe:  OWNER-OCCUPIED HOUSING UNITS"]
[null,"Data Set: 2015-2019 American Community Survey 5-Year Estimates"]
[]
[null,null,"Barrington",null,"Dover",null,"Durham",null,"Farmington",null,"Lee",null,"Madbury",null,"Middleton",null,"Milton",null,"New Durham",null,"Rochester",null,"Rollinsford",null,"Somersworth",null,"Strafford"]
[null,null,"Estimate","Margin Of Error","Estimate","Margin Of Error","Estimate","Margin Of Error","Estimate","Margin Of Error","Estimate","Margin Of Error","Estimate","Margin Of Error","Estimate","Margin Of Error","Estimate","Margin Of Error","Estimate","Margin Of Error","Estimate","Margin Of Error","Estimate","Margin Of Error","Estimate","Margin Of Error","Estimate","Margin Of Error"]
[]
[null,"Median value (dollars)",288000,25571,264700,8643,380000,15913,196600,32821,332600,23413,379100,19065,187200,10426,205300,16328,237900,16827,172300,4361,242700,15648,184700,14414,283900,20799]
[]
[]
[]
[]
[]
[]
[]
[]
[]
[]
[]
[]
[]
[]
[]
[]
[]
[]
[]
[]
[]
[]
[]
[]
[]
[]
[null,"B25075. VALUE"]
[null,"Universe:  OWNER-OCCUPIED HOUSING UNITS"]
[null,"Data Set: 2010-2014 American Community Survey 5-Year Estimates"]
[]
[null,null,"Barrington",null,"Dover",null,"Durham",null,"Farmington",null,"Lee",null,"Madbury",null,"Middleton",null,"Milton",null,"New Durham",null,"Rochester",null,"Rollinsford",null,"Somersworth",null,"Strafford"]
[null,null,"Estimate","Margin Of Error","Estimate","Margin Of Error","Estimate","Margin Of Error","Estimate","Margin Of Error","Estimate","Margin Of Error","Estimate","Margin Of Error","Estimate","Margin Of Error","Estimate","Margin Of Error","Estimate","Margin Of Error","Estimate","Margin Of Error","Estimate","Margin Of Error","Estimate","Margin Of Error","Estimate","Margin Of Error"]
[null,"Total",2948,207,6375,380,1894,198,1852,247,1487,183,517,55,483,65,1396,129,888,76,8135,440,765,71,2538,212,1313,143]
[null,"Less than $10,000",0,15,25,39,5,7,76,94,0,11,2,4,0,11,53,40,4,7,85,63,0,11,71,49,0,11]
[null,"$10,000 to $14,999",44,56,11,16,0,17,22,37,0,11,2,4,2,5,0,11,0,11,85,57,0,11,64,76,0,11]
[null,"$15,000 to $19,999",50,58,29,33,0,17,15,25,26,41,6,7,2,3,16,17,0,11,155,96,0,11,31,36,0,11]
[null,"$20,000 to $24,999",122,99,34,37,10,16,29,33,0,11,0,11,0,11,17,20,0,11,143,73,0,11,39,37,0,11]
[null,"$25,000 to $29,999",16,27,21,25,0,17,0,15,32,49,0,11,2,4,29,31,4,7,77,49,0,11,0,17,9,14]
[null,"$30,000 to $34,999",0,15,14,21,0,17,0,15,0,11,0,11,0,11,9,15,0,11,202,101,0,11,39,37,0,11]
[null,"$35,000 to $39,999",0,15,0,23,0,17,0,15,0,11,0,11,0,11,0,11,0,11,92,60,0,11,32,30,0,11]
[null,"$40,000 to $49,999",67,68,9,14,0,17,18,27,29,50,4,7,0,11,10,16,0,11,147,61,4,6,146,96,8,12]
[null,"$50,000 to $59,999",15,25,0,23,0,17,106,101,64,52,3,4,4,6,0,11,7,10,183,98,0,11,11,18,0,11]
[null,"$60,000 to $69,999",81,90,62,65,14,24,26,26,0,11,0,11,5,7,0,11,6,9,235,107,0,11,11,19,0,11]
[null,"$70,000 to $79,999",9,18,11,19,0,17,52,43,0,11,19,25,13,11,8,11,0,11,184,74,0,11,40,48,0,11]
[null,"$80,000 to $89,999",43,70,29,34,0,17,92,59,0,11,3,6,14,9,28,34,0,11,351,122,0,11,0,17,0,11]
[null,"$90,000 to $99,999",53,67,57,45,0,17,45,43,0,11,0,11,4,6,28,36,12,13,248,117,0,11,0,17,0,11]
[null,"$100,000 to $124,999",82,76,167,83,0,17,88,60,17,25,20,17,29,17,76,52,32,27,516,157,33,26,59,51,42,28]
[null,"$125,000 to $149,999",18,29,377,120,18,20,242,104,0,11,4,8,73,32,77,43,36,21,638,136,13,13,124,70,6,11]
[null,"$150,000 to $174,999",284,155,474,145,20,18,338,137,45,59,11,9,82,24,194,81,140,52,962,188,64,32,281,103,66,44]
[null,"$175,000 to $199,999",70,57,557,168,43,54,74,56,80,57,14,12,85,32,112,52,139,45,1229,221,57,28,292,114,154,69]
[null,"$200,000 to $249,999",483,143,1695,241,164,60,259,121,259,101,63,30,104,36,313,81,126,47,1374,222,288,65,657,169,276,83]
[null,"$250,000 to $299,999",649,181,860,169,381,108,191,107,259,124,61,24,47,18,192,69,173,51,616,148,129,35,337,103,276,68]
[null,"$300,000 to $399,999",624,200,1199,202,751,145,97,88,436,136,164,36,5,5,136,73,116,38,484,156,97,34,194,94,247,90]
[null,"$400,000 to $499,999",141,86,492,143,237,70,16,27,180,85,67,22,9,8,22,22,45,29,109,69,13,13,91,68,82,51]
[null,"$500,000 to $749,999",97,78,185,68,220,81,66,85,54,46,57,29,3,4,51,38,31,26,0,20,38,21,0,17,110,63]
[null,"$750,000 to $999,999",0,15,47,38,0,17,0,15,0,11,17,13,0,11,6,9,17,17,0,20,10,11,8,15,30,26]
[null,"$1,000,000 or more",0,15,20,23,31,24,0,15,6,13,0,11,0,11,19,21,0,11,20,21,19,15,11,19,7,11]
[]
[]
[]
[]
[null,"B25077. MEDIAN VALUE (Dollars)"]
[null,"Universe:  OWNER-OCCUPIED HOUSING UNITS"]
[null,"Data Set: 2010-2014 American Community Survey 5-Year Estimates"]
[]
[null,null,"Barrington",null,"Dover",null,"Durham",null,"Farmington",null,"Lee",null,"Madbury",null,"Middleton",null,"Milton",null,"New Durham",null,"Rochester",null,"Rollinsford",null,"Somersworth",null,"Strafford"]
[null,null,"Estimate","Margin Of Error","Estimate","Margin Of Error","Estimate","Margin Of Error","Estimate","Margin Of Error","Estimate","Margin Of Error","Estimate","Margin Of Error","Estimate","Margin Of Error","Estimate","Margin Of Error","Estimate","Margin Of Error","Estimate","Margin Of Error","Estimate","Margin Of Error","Estimate","Margin Of Error","Estimate","Margin Of Error"]
[]
[null,"Median value (dollars)",252900,17303,238700,5717,338900,10637,158500,10540,287000,26901,328400,19415,178400,9052,206600,14773,225400,24634,168900,6186,236700,6258,202200,13078,267300,16753]
[]
[]
[]
[]
[]
[null,"B25075. VALUE"]
[null,"Universe:  OWNER-OCCUPIED HOUSING UNITS"]
[null,"Data Set: 2005-2009 American Community Survey 5-Year Estimates"]
[]
[null,null,"Barrington",null,"Dover",null,"Durham",null,"Farmington",null,"Lee",null,"Madbury",null,"Middleton",null,"Milton",null,"New Durham",null,"Rochester",null,"Rollinsford",null,"Somersworth",null,"Strafford"]
[null,null,"Estimate","Margin Of Error","Estimate","Margin Of Error","Estimate","Margin Of Error","Estimate","Margin Of Error","Estimate","Margin Of Error","Estimate","Margin Of Error","Estimate","Margin Of Error","Estimate","Margin Of Error","Estimate","Margin Of Error","Estimate","Margin Of Error","Estimate","Margin Of Error","Estimate","Margin Of Error","Estimate","Margin Of Error"]
[null,null,2392,209,6930,399,1940,225,1664,223,1364,124,462,49,565,65,1438,135,771,70,8596,406,761,84,2852,293,1267,118]
[null,"Less than $10,000",0,114,19,21,14,23,0,114,0,114,0,114,0,114,9,14,0,114,16,25,0,114,35,39,0,114]
[null,"$10,000 to $14,999",0,114,0,114,0,114,0,114,0,114,0,114,3,5,0,114,0,114,47,43,0,114,0,114,0,114]
[null,"$15,000 to $19,999",0,114,34,43,0,114,0,114,20,33,3,5,0,114,0,114,0,114,66,45,0,114,64,86,0,114]
[null,"$20,000 to $24,999",72,47,0,114,11,17,7,12,18,29,0,114,4,6,0,114,0,114,33,42,0,114,33,40,0,114]
[null,"$25,000 to $29,999",37,40,0,114,0,114,0,114,14,22,0,114,0,114,20,22,0,114,165,71,0,114,0,114,0,114]
[null,"$30,000 to $34,999",12,18,33,33,0,114,38,60,0,114,4,6,0,114,14,23,0,114,117,64,0,114,15,24,0,114]
[null,"$35,000 to $39,999",42,38,10,16,0,114,24,27,82,70,0,114,0,114,64,98,0,114,72,53,0,114,19,31,0,114]
[null,"$40,000 to $49,999",15,25,36,32,0,114,12,19,9,13,2,4,0,114,38,49,0,114,335,150,0,114,151,92,0,114]
[null,"$50,000 to $59,999",41,41,22,27,0,114,40,46,9,14,2,3,4,5,0,114,0,114,164,109,0,114,37,30,18,21]
[null,"$60,000 to $69,999",14,23,40,36,0,114,0,114,15,12,4,7,0,114,9,15,0,114,161,107,6,10,60,44,0,114]
[null,"$70,000 to $79,999",43,42,23,27,0,114,7,12,0,114,3,6,8,13,52,52,6,9,152,102,0,114,27,31,13,20]
[null,"$80,000 to $89,999",14,22,35,33,0,114,24,22,0,114,3,5,6,7,37,43,12,13,123,56,0,114,35,42,0,114]
[null,"$90,000 to $99,999",14,23,94,54,12,18,24,29,0,114,0,114,6,6,9,14,6,9,175,93,0,114,17,27,0,114]
[null,"$100,000 to $124,999",53,45,99,65,15,25,167,73,0,114,6,7,37,21,67,46,45,23,480,118,8,12,43,42,14,24]
[null,"$125,000 to $149,999",0,114,154,88,13,15,112,53,44,42,3,6,61,23,148,75,33,20,680,163,33,41,104,54,44,52]
[null,"$150,000 to $174,999",106,68,350,112,70,38,256,113,13,19,2,4,74,29,260,87,72,41,694,137,20,18,228,115,91,47]
[null,"$175,000 to $199,999",170,76,841,168,16,18,303,106,90,69,25,20,87,26,158,74,47,28,1122,218,24,22,301,118,38,30]
[null,"$200,000 to $249,999",427,125,1692,238,234,85,288,97,273,98,38,20,145,36,185,64,235,56,2162,262,269,51,884,168,362,115]
[null,"$250,000 to $299,999",532,155,1169,224,235,79,247,109,179,79,74,26,61,36,163,72,102,34,860,171,121,41,360,104,282,98]
[null,"$300,000 to $399,999",512,138,1449,212,668,136,97,46,266,77,124,31,37,21,98,55,102,41,740,180,174,56,390,175,216,80]
[null,"$400,000 to $499,999",177,81,526,130,256,67,0,114,184,76,112,42,30,18,66,52,34,22,169,87,62,33,40,48,72,38]
[null,"$500,000 to $749,999",97,51,233,74,288,93,18,29,124,86,51,25,0,114,0,114,65,42,31,27,33,25,9,15,91,77]
[null,"$750,000 to $999,999",14,23,27,25,25,24,0,114,11,18,4,7,2,4,35,39,7,11,23,29,11,14,0,114,26,31]
[null,"$1,000,000 or more",0,114,44,41,83,45,0,114,13,20,2,5,0,114,6,11,5,8,9,15,0,114,0,114,0,114]
[]
[]
[]
[]
[null,"B25077.MEDIAN VALUE (Dollars)"]
[null,"Universe:  OWNER-OCCUPIED HOUSING UNITS"]
[null,"Data Set: 2005-2009 American Community Survey 5-Year Estimates"]
[]
[null,null,"Barrington",null,"Dover",null,"Durham",null,"Farmington",null,"Lee",null,"Madbury",null,"Middleton",null,"Milton",null,"New Durham",null,"Rochester",null,"Rollinsford",null,"Somersworth",null,"Strafford"]
[null,null,"Estimate","Margin Of Error","Estimate","Margin Of Error","Estimate","Margin Of Error","Estimate","Margin Of Error","Estimate","Margin Of Error","Estimate","Margin Of Error","Estimate","Margin Of Error","Estimate","Margin Of Error","Estimate","Margin Of Error","Estimate","Margin Of Error","Estimate","Margin Of Error","Estimate","Margin Of Error","Estimate","Margin Of Error"]
[]
[null,"Median value (dollars)",359900,14039,344300,13235,411400,18682,300800,18293,344000,19059,301700,20351,306700,20058,251300,8360,358300,12312,252200,19885,296800,19357,283100,19293,389400,31310]

{"sheet":"ACS_Table_B25088","index":71,"n_rows":62,"n_cols":28,"rows_kept":62,"cut":false,"hidden":true,"merged":[]}
[null,"B25088. MEDIAN SELECTED MONTHLY OWNER COSTS (DOLLARS) BY MORTGAGE STATUS"]
[null,"Universe:  OWNER-OCCUPIED HOUSING UNITS"]
[null,"Data Set: 2015-2019 American Community Survey 5-Year Estimates"]
[]
[null,null,"Barrington",null,"Dover",null,"Durham",null,"Farmington",null,"Lee",null,"Madbury",null,"Middleton",null,"Milton",null,"New Durham",null,"Rochester",null,"Rollinsford",null,"Somersworth",null,"Strafford"]
[null,null,"Estimate","Margin Of Error","Estimate","Margin Of Error","Estimate","Margin Of Error","Estimate","Margin Of Error","Estimate","Margin Of Error","Estimate","Margin Of Error","Estimate","Margin Of Error","Estimate","Margin Of Error","Estimate","Margin Of Error","Estimate","Margin Of Error","Estimate","Margin Of Error","Estimate","Margin Of Error","Estimate","Margin Of Error"]
[]
[null,"Total:",1628,360,1634,67,2211,133,1385,170,2096,288,2213,234,1417,80,1387,139,1495,182,1276,63,1488,143,1394,105,1607,189]
[null,"Housing units with a mortgage (dollars)",2093,200,2074,80,2642,142,1743,114,2528,220,2658,174,1583,75,1765,117,1796,111,1661,59,1789,103,1763,137,1902,122]
[null,"Housing units without a mortgage (dollars)",788,64,893,45,1222,135,815,178,819,316,1143,127,667,35,728,67,693,76,729,40,838,72,794,56,791,78]
[]
[]
[]
[]
[]
[]
[]
[]
[]
[]
[]
[]
[]
[]
[]
[]
[]
[]
[]
[]
[]
[]
[]
[]
[]
[]
[]
[]
[]
[null,"B25088. MEDIAN SELECTED MONTHLY OWNER COSTS (DOLLARS) BY MORTGAGE STATUS"]
[null,"Universe:  OWNER-OCCUPIED HOUSING UNITS"]
[null,"Data Set: 2010-2014 American Community Survey 5-Year Estimates"]
[]
[null,null,"Barrington",null,"Dover",null,"Durham",null,"Farmington",null,"Lee",null,"Madbury",null,"Middleton",null,"Milton",null,"New Durham",null,"Rochester",null,"Rollinsford",null,"Somersworth",null,"Strafford"]
[null,null,"Estimate","Margin Of Error","Estimate","Margin Of Error","Estimate","Margin Of Error","Estimate","Margin Of Error","Estimate","Margin Of Error","Estimate","Margin Of Error","Estimate","Margin Of Error","Estimate","Margin Of Error","Estimate","Margin Of Error","Estimate","Margin Of Error","Estimate","Margin Of Error","Estimate","Margin Of Error","Estimate","Margin Of Error"]
[]
[null,"Total:",1771,202,1649,67,1945,130,1304,177,1815,253,2018,238,1342,110,1354,162,1577,110,1216,71,1666,195,1425,188,1695,191]
[null,"Housing units with a mortgage (dollars)",2060,190,2033,85,2471,135,1575,144,2172,164,2542,181,1523,119,1743,119,1802,127,1655,70,2058,137,1820,122,1982,120]
[null,"Housing units without a mortgage (dollars)",737,70,767,30,"1,000+","***",643,75,882,177,"1,000+","***",643,65,667,37,685,91,693,30,757,57,773,30,868,138]
[]
[]
[]
[null,"B25088. MEDIAN SELECTED MONTHLY OWNER COSTS (DOLLARS) BY MORTGAGE STATUS"]
[null,"Universe:  OWNER-OCCUPIED HOUSING UNITS"]
[null,"Data Set: 2005-2009 American Community Survey 5-Year Estimates"]
[]
[null,null,"Barrington",null,"Dover",null,"Durham",null,"Farmington",null,"Lee",null,"Madbury",null,"Middleton",null,"Milton",null,"New Durham",null,"Rochester",null,"Rollinsford",null,"Somersworth",null,"Strafford"]
[null,null,"Estimate","Margin Of Error","Estimate","Margin Of Error","Estimate","Margin Of Error","Estimate","Margin Of Error","Estimate","Margin Of Error","Estimate","Margin Of Error","Estimate","Margin Of Error","Estimate","Margin Of Error","Estimate","Margin Of Error","Estimate","Margin Of Error","Estimate","Margin Of Error","Estimate","Margin Of Error","Estimate","Margin Of Error"]
[]
[null,"Total:",1605,113,1608,70,1793,142,1364,97,1490,327,1996,174,1361,101,1162,106,1478,178,1235,72,1218,248,1154,107,1504,174]
[null,"Housing units with a mortgage (dollars)",1828,147,1898,88,2312,124,1538,81,2144,260,2258,188,1549,97,1394,152,1737,130,1584,67,1842,164,1581,89,1750,192]
[null,"Housing units without a mortgage (dollars)",649,34,731,34,984,63,602,77,814,72,793,123,529,80,508,143,598,124,625,25,667,102,678,50,707,161]

{"sheet":"ACS_Table_B25091","index":72,"n_rows":219,"n_cols":28,"rows_kept":219,"cut":false,"hidden":true,"merged":[]}
[null,"B25091. MORTGAGE STATUS BY SELECTED MONTHLY OWNER COSTS AS A PERCENTAGE OF HOUSEHOLD INCOME IN THE PAST 12 MONTHS "]
[null,"Universe:  OWNER-OCCUPIED HOUSING UNITS"]
[null,"Data Set: 2015-2019 American Community Survey 5-Year Estimates"]
[]
[null,null,"Barrington",null,"Dover",null,"Durham",null,"Farmington",null,"Lee",null,"Madbury",null,"Middleton",null,"Milton",null,"New Durham",null,"Rochester",null,"Rollinsford",null,"Somersworth",null,"Strafford"]
[null,null,"Estimate","Margin Of Error","Estimate","Margin Of Error","Estimate","Margin Of Error","Estimate","Margin Of Error","Estimate","Margin Of Error","Estimate","Margin Of Error","Estimate","Margin Of Error","Estimate","Margin Of Error","Estimate","Margin Of Error","Estimate","Margin Of Error","Estimate","Margin Of Error","Estimate","Margin Of Error","Estimate","Margin Of Error"]
[null,null,2904,213,6949,378,1854,158,1931,249,1619,162,533,52,585,63,1602,107,893,59,8601,379,798,62,2795,280,1271,89]
[null,"Housing units with a mortgage:",1988,278,4498,372,1283,133,1280,240,1170,156,382,54,437,54,1073,123,641,70,5383,361,522,70,1880,280,911,99]
[null,"Less than 10.0 percent",109,112,229,109,88,51,55,62,67,61,11,10,15,12,20,30,20,17,233,99,10,10,52,63,18,20]
[null,"10.0 to 14.9 percent",191,97,652,192,176,62,162,109,93,61,79,32,82,27,149,75,109,35,746,171,107,38,268,120,202,72]
[null,"15.0 to 19.9 percent",636,179,1092,213,236,72,229,124,321,153,105,40,71,28,189,71,150,42,981,225,95,33,335,120,285,92]
[null,"20.0 to 24.9 percent",307,125,924,210,274,78,322,181,240,127,50,18,77,27,220,94,101,41,993,211,50,25,314,143,128,60]
[null,"25.0 to 29.9 percent",117,82,530,158,198,82,260,142,111,64,35,18,60,21,131,72,56,28,755,188,80,39,251,125,35,23]
[null,"30.0 to 34.9 percent",253,150,356,177,111,53,65,71,139,66,27,15,36,17,35,31,44,34,319,128,70,38,244,136,75,42]
[null,"35.0 to 39.9 percent",25,41,130,77,49,36,67,96,0,11,21,21,24,13,74,54,32,19,284,111,15,14,112,69,58,31]
[null,"40.0 to 49.9 percent",86,93,186,102,54,38,49,61,50,46,13,11,19,10,207,106,64,25,411,133,39,30,205,130,65,37]
[null,"50.0 percent or more",264,167,380,150,69,40,62,60,149,100,41,23,46,28,48,31,59,30,661,214,56,37,99,56,45,29]
[null,"Not computed",0,16,19,29,28,39,9,16,0,11,0,11,7,7,0,11,6,10,0,24,0,11,0,18,0,11]
[null,"Housing units without a mortgage:",916,216,2451,302,571,108,651,189,449,188,151,36,148,36,529,129,252,60,3218,289,276,61,915,169,360,83]
[null,"Less than 10.0 percent",328,148,568,158,176,63,45,60,161,132,57,25,37,17,207,94,62,30,788,172,121,42,196,98,143,53]
[null,"10.0 to 14.9 percent",249,132,558,162,178,71,280,136,82,62,28,18,35,16,85,59,60,28,642,150,55,27,202,113,46,29]
[null,"15.0 to 19.9 percent",159,102,406,139,47,29,170,112,45,41,21,14,28,15,46,33,50,33,469,152,25,16,162,87,56,36]
[null,"20.0 to 24.9 percent",61,51,288,124,35,23,47,49,16,25,7,7,12,15,9,14,18,15,284,129,15,15,157,93,48,36]
[null,"25.0 to 29.9 percent",13,23,156,91,16,19,28,34,72,76,20,17,4,5,50,52,7,9,231,97,26,16,33,38,9,13]
[null,"30.0 to 34.9 percent",0,16,96,57,12,13,19,31,0,11,2,3,0,11,39,33,21,26,245,104,5,8,57,48,8,12]
[null,"35.0 to 39.9 percent",12,21,86,64,8,14,19,32,58,61,3,5,3,5,47,37,0,11,145,80,0,11,52,48,31,38]
[null,"40.0 to 49.9 percent",37,61,104,63,48,39,0,16,0,11,0,11,11,9,25,25,5,7,168,130,6,9,18,28,0,11]
[null,"50.0 percent or more",57,71,189,85,39,40,43,46,15,22,13,11,12,9,21,21,29,23,246,100,23,27,38,42,11,17]
[null,"Not computed",0,16,0,24,12,19,0,16,0,11,0,11,6,8,0,11,0,11,0,24,0,11,0,18,8,14]
[]
[]
[]
[null,"Calculated B25091. MORTGAGE STATUS BY SELECTED MONTHLY OWNER COSTS AS A PERCENTAGE OF HOUSEHOLD INCOME IN THE PAST 12 MONTHS "]
[null,"Universe:  OWNER-OCCUPIED HOUSING UNITS"]
[null,"Data Set: 2015-2019 American Community Survey 5-Year Estimates"]
[]
[null,null,"Barrington",null,"Dover",null,"Durham",null,"Farmington",null,"Lee",null,"Madbury",null,"Middleton",null,"Milton",null,"New Durham",null,"Rochester",null,"Rollinsford",null,"Somersworth",null,"Strafford"]
[null,null,"Estimate","Margin Of Error","Estimate","Margin Of Error","Estimate","Margin Of Error","Estimate","Margin Of Error","Estimate","Margin Of Error","Estimate","Margin Of Error","Estimate","Margin Of Error","Estimate","Margin Of Error","Estimate","Margin Of Error","Estimate","Margin Of Error","Estimate","Margin Of Error","Estimate","Margin Of Error","Estimate","Margin Of Error"]
[null,"Total:",{"$f":"C7","v":2904},{"$f":"D7","v":213},{"$f":"E7","v":6949},378,1854,158,1931,249,1619,162,533,52,585,63,1602,107,893,59,8601,379,798,62,{"$f":"Y7","v":2795},{"$f":"Z7","v":280},{"$f":"AA7","v":1271},{"$f":"AB7","v":89}]
[null,"Less than 10.0 percent",{"$f":"C9+C20","v":437},{"$f":"SQRT((D9^2)+(D20^2))","v":185.6017241299229},{"$f":"E9+E20","v":797},{"$f":"SQRT((F9^2)+(F20^2))","v":191.95051445620041},{"$f":"G9+G20","v":264},{"$f":"SQRT((H9^2)+(H20^2))","v":81.055536516637773},{"$f":"I9+I20","v":100},{"$f":"SQRT((J9^2)+(J20^2))","v":86.278618440491968},{"$f":"K9+K20","v":228},{"$f":"SQRT((L9^2)+(L20^2))","v":145.41320435228707},{"$f":"M9+M20","v":68},{"$f":"SQRT((N9^2)+(N20^2))","v":26.92582403567252},{"$f":"O9+O20","v":52},{"$f":"SQRT((P9^2)+(P20^2))","v":20.808652046684813},{"$f":"Q9+Q20","v":227},{"$f":"SQRT((R9^2)+(R20^2))","v":98.671171068352081},{"$f":"S9+S20","v":82},{"$f":"SQRT((T9^2)+(T20^2))","v":34.481879299133332},{"$f":"U9+U20","v":1021},{"$f":"SQRT((V9^2)+(V20^2))","v":198.45654436173174},{"$f":"W9+W20","v":131},{"$f":"SQRT((X9^2)+(X20^2))","v":43.174066289845804},248,{"$f":"SQRT((Z9^2)+(Z20^2))","v":116.50321883965266},{"$f":"AA9+AA20","v":161},{"$f":"SQRT((AB9^2)+(AB20^2))","v":56.648036153074187}]
[null,"10.0 to 14.9 percent",{"$f":"C10+C21","v":440},163.80781422142229,1210,251.21305698549986,354,94.260277954183863,442,174.28998823799375,175,86.977008456258133,107,36.715119501371639,117,31.384709652950431,234,95.425363504678359,169,44.82186966202994,1388,227.46648104720836,162,{"$f":"SQRT((X10^2)+(X21^2))","v":46.61544808322666},470,164.83021567661677,248,77.620873481300123]
[null,"15.0 to 19.9 percent",795,206.0218435020908,1498,254.34228905158497,283,77.620873481300123,399,167.09278859364338,366,158.39823231336896,126,42.379240200834182,99,31.76476034853718,235,78.294316524253531,200,53.413481444294568,1450,271.53084539329967,120,36.674241641784498,497,148.21943192442751,341,98.792712281827747]
[null,"20.0 to 24.9 percent",368,135.00370365289984,1212,243.87701818744628,309,81.320354155647891,369,187.51533270642165,256,129.43724348115578,57,19.313207915827967,89,30.886890422961002,229,95.036834964133774,119,43.657759905886145,1277,247.3095226634025,65,29.154759474226502,471,170.58135888777531,176,69.971422738143602]
[null,"25.0 to 29.9 percent",130,85.164546614186818,686,182.33211456021672,214,84.172442046075858,288,146.01369798755184,183,99.35793878699377,55,24.758836806279895,64,21.587033144922902,181,88.814413244698073,63,29.410882339705484,986,211.54904868611439,106,42.154477816715982,284,130.64838307457157,44,26.419689627245813]
[null,"30.0 to 34.9 percent",253,150.8509197850646,452,185.95160660774081,123,54.571054598569013,84,77.472575792986262,139,66.91038783328041,29,15.297058540778355,36,20.248456731316587,74,45.276925690687087,65,42.80186911806539,564,164.92422502470643,75,38.832975677895199,301,144.22205101855957,83,43.68065933568311]
[null,"35.0 to 39.9 percent",37,46.065171225124082,216,100.12492197250393,57,38.626415831655933,86,101.19288512538814,58,61.98386886924694,24,21.587033144922902,27,13.928388277184119,121,65.459911396212561,32,21.95449840010015,429,136.82470537150812,15,17.804493814764857,164,84.053554356731397,89,49.040799340956916]
[null,"40.0 to 49.9 percent",123,111.22050170719426,290,119.88744721612851,102,54.451813560247928,49,63.063460101710248,50,47.296934361541872,13,15.556349186104045,30,13.45362404707371,232,108.90821823902914,69,25.96150997149434,579,185.98118184375537,45,31.32091952673165,223,132.98120167903431,65,38.600518131237564]
[null,"50.0 percent or more",321,181.46625030566977,569,172.40939649566667,108,56.568542494923804,105,75.604232685743199,164,102.39140588936164,54,25.495097567963924,58,29.410882339705484,69,37.443290453698111,88,37.802116342871599,907,236.21176939348302,79,45.803929962395145,137,70,56,33.61547262794322]
[null,"Not computed",0,22.627416997969522,19,37.643060449437421,40,43.382023926967726,9,22.627416997969522,0,15.556349186104045,0,15.556349186104045,13,10.63014581273465,0,15.556349186104045,6,14.866068747318506,0,33.941125496954278,0,15.556349186104045,0,25.45584412271571,8,17.804493814764857]
[]
[]
[]
[]
[null,"Calculated MONTHLY OWNER COSTS AS A PERCENTAGE OF HOUSEHOLD INCOME IN THE PAST 12 MONTHS "]
[null,"Universe:  OWNER-OCCUPIED HOUSING UNITS"]
[null,"Data Set: 2015-2019 American Community Survey 5-Year Estimates"]
[null,null,"Barrington",null,"Dover",null,"Durham",null,"Farmington",null,"Lee",null,"Madbury",null,"Middleton",null,"Milton",null,"New Durham",null,"Rochester",null,"Rollinsford",null,"Somersworth",null,"Strafford"]
[null,null,"Estimate","Margin Of Error","Estimate","Margin Of Error","Estimate","Margin Of Error","Estimate","Margin Of Error","Estimate","Margin Of Error","Estimate","Margin Of Error","Estimate","Margin Of Error","Estimate","Margin Of Error","Estimate","Margin Of Error","Estimate","Margin Of Error","Estimate","Margin Of Error","Estimate","Margin Of Error","Estimate","Margin Of Error"]
[null,"Total:",{"$f":"C39","v":2904},{"$f":"D39","v":213},6949,378,1854,158,1931,249,1619,162,533,52,585,63,1602,107,893,59,8601,379,798,62,{"$f":"Y39","v":2795},{"$f":"Z39","v":280},{"$f":"AA39","v":1271},{"$f":"AB39","v":89}]
[null,"Less than 20% of HH Income",{"$f":"C40+C41+C42","v":1672},{"$f":"SQRT((D40^2)+(D41^2)+(D42^2))","v":322.06521078812597},{"$f":"E40+E41+E42","v":3505},{"$f":"SQRT((F40^2)+(F41^2)+(F42^2))","v":405.76224565624636},{"$f":"G40+G41+G42","v":901},{"$f":"SQRT((H40^2)+(H41^2)+(H42^2))","v":146.56056768449008},{"$f":"I40+I41+I42","v":941},{"$f":"SQRT((J40^2)+(J41^2)+(J42^2))","v":256.40007800310826},{"$f":"K40+K41+K42","v":769},{"$f":"SQRT((L40^2)+(L41^2)+(L42^2))","v":231.94827009486403},{"$f":"M40+M41+M42","v":301},{"$f":"SQRT((N40^2)+(N41^2)+(N42^2))","v":62.201286160335947},{"$f":"O40+O41+O42","v":268},{"$f":"SQRT((P40^2)+(P41^2)+(P42^2))","v":49.264591747014407},{"$f":"Q40+Q41+Q42","v":696},{"$f":"SQRT((R40^2)+(R41^2)+(R42^2))","v":158.025314427784},{"$f":"S40+S41+S42","v":451},{"$f":"SQRT((T40^2)+(T41^2)+(T42^2))","v":77.788173908377615},{"$f":"U40+U41+U42","v":3859},{"$f":"SQRT((V40^2)+(V41^2)+(V42^2))","v":406.02339834053902},{"$f":"W40+W41+W42","v":413},{"$f":"SQRT((X40^2)+(X41^2)+(X42^2))","v":73.362115563824901},{"$f":"Y40+Y41+Y42","v":1215},{"$f":"SQRT((Z40^2)+(Z41^2)+(Z42^2))","v":250.42164443194602},{"$f":"AA40+AA41+AA42","v":750},{"$f":"SQRT((AB40^2)+(AB41^2)+(AB42^2))","v":137.81872151489435}]
[null," 20% to 29.9% of HH Income",{"$f":"C43+C44","v":498},{"$f":"SQRT((D43^2)+(D44^2))","v":159.62142713307637},{"$f":"E43+E44","v":1898},{"$f":"SQRT((F43^2)+(F44^2))","v":304.50123152460321},{"$f":"G43+G44","v":523},{"$f":"SQRT((H43^2)+(H44^2))","v":117.03845521878695},{"$f":"I43+I44","v":657},{"$f":"SQRT((J43^2)+(J44^2))","v":237.6594201793819},{"$f":"K43+K44","v":439},{"$f":"SQRT((L43^2)+(L44^2))","v":163.17475294910057},{"$f":"M43+M44","v":112},{"$f":"SQRT((N43^2)+(N44^2))","v":31.400636936215164},{"$f":"O43+O44","v":153},{"$f":"SQRT((P43^2)+(P44^2))","v":37.682887362833547},{"$f":"Q43+Q44","v":410},{"$f":"SQRT((R43^2)+(R44^2))","v":130.0769003320728},{"$f":"S43+S44","v":182},{"$f":"SQRT((T43^2)+(T44^2))","v":52.640288753007418},{"$f":"U43+U44","v":2263},{"$f":"SQRT((V43^2)+(V44^2))","v":325.44584803005245},{"$f":"W43+W44","v":171},{"$f":"SQRT((X43^2)+(X44^2))","v":51.254268114957995},{"$f":"Y43+Y44","v":755},{"$f":"SQRT((Z43^2)+(Z44^2))","v":214.86507394176468},{"$f":"AA43+AA44","v":220},{"$f":"SQRT((AB43^2)+(AB44^2))","v":74.793047805260613}]
[null," Less Than 30% of HH Income",{"$f":"C40+C41+C42+C43+C44","v":2170},{"$f":"SQRT((D40^2)+(D41^2)+(D42^2)+(D43^2)+(D44^2))","v":359.45097023098992},{"$f":"E40+E41+E42+E43+E44","v":5403},{"$f":"SQRT((F40^2)+(F41^2)+(F42^2)+(F43^2)+(F44^2))","v":507.31055577427128},{"$f":"G40+G41+G42+G43+G44","v":1424},{"$f":"SQRT((H40^2)+(H41^2)+(H42^2)+(H43^2)+(H44^2))","v":187.5579910321072},{"$f":"I40+I41+I42+I43+I44","v":1598},{"$f":"SQRT((J40^2)+(J41^2)+(J42^2)+(J43^2)+(J44^2))","v":349.60406176130164},{"$f":"K40+K41+K42+K43+K44","v":1208},{"$f":"SQRT((L40^2)+(L41^2)+(L42^2)+(L43^2)+(L44^2))","v":283.59478133421283},{"$f":"M40+M41+M42+M43+M44","v":413},{"$f":"SQRT((N40^2)+(N41^2)+(N42^2)+(N43^2)+(N44^2))","v":69.677830046579373},{"$f":"O40+O41+O42+O43+O44","v":421},{"$f":"SQRT((P40^2)+(P41^2)+(P42^2)+(P43^2)+(P44^2))","v":62.024188829842828},{"$f":"Q40+Q41+Q42+Q43+Q44","v":1106},{"$f":"SQRT((R40^2)+(R41^2)+(R42^2)+(R43^2)+(R44^2))","v":204.67535269299037},{"$f":"S40+S41+S42+S43+S44","v":633},{"$f":"SQRT((T40^2)+(T41^2)+(T42^2)+(T43^2)+(T44^2))","v":93.925502394184718},{"$f":"U40+U41+U42+U43+U44","v":6122},{"$f":"SQRT((V40^2)+(V41^2)+(V42^2)+(V43^2)+(V44^2))","v":520.35564761036278},{"$f":"W40+W41+W42+W43+W44","v":584},{"$f":"SQRT((X40^2)+(X41^2)+(X42^2)+(X43^2)+(X44^2))","v":89.493016487321512},{"$f":"Y40+Y41+Y42+Y43+Y44","v":1970},{"$f":"SQRT((Z40^2)+(Z41^2)+(Z42^2)+(Z43^2)+(Z44^2))","v":329.96666498299493},{"$f":"AA40+AA41+AA42+AA43+AA44","v":970},{"$f":"SQRT((AB40^2)+(AB41^2)+(AB42^2)+(AB43^2)+(AB44^2))","v":156.80561214446377}]
[null," 30% or More of HH Income",{"$f":"C45+C46+C47+C48","v":734},{"$f":"SQRT((D45^2)+(D46^2)+(D47^2)+(D48^2))","v":264.91130591199766},{"$f":"E45+E46+E47+E48","v":1527},{"$f":"SQRT((F45^2)+(F46^2)+(F47^2)+(F48^2))","v":297.82713106767153},{"$f":"G45+G46+G47+G48","v":390},{"$f":"SQRT((H45^2)+(H46^2)+(H47^2)+(H48^2))","v":103.12613635737549},{"$f":"I45+I46+I47+I48","v":324},{"$f":"SQRT((J45^2)+(J46^2)+(J47^2)+(J48^2))","v":161.04347239177378},{"$f":"K45+K46+K47+K48","v":411},{"$f":"SQRT((L45^2)+(L46^2)+(L47^2)+(L48^2))","v":145.05171491574995},{"$f":"M45+M46+M47+M48","v":120},{"$f":"SQRT((N45^2)+(N46^2)+(N47^2)+(N48^2))","v":39.899874686520008},{"$f":"O45+O46+O47+O48","v":151},{"$f":"SQRT((P45^2)+(P46^2)+(P47^2)+(P48^2))","v":40.620192023179804},{"$f":"Q45+Q46+Q47+Q48","v":496},{"$f":"SQRT((R45^2)+(R46^2)+(R47^2)+(R48^2))","v":139.99285696063211},{"$f":"S45+S46+S47+S48","v":254},{"$f":"SQRT((T45^2)+(T46^2)+(T47^2)+(T48^2))","v":66.460514593253038},{"$f":"U45+U46+U47+U48","v":2479},{"$f":"SQRT((V45^2)+(V46^2)+(V47^2)+(V48^2))","v":369.19642468474689},{"$f":"W45+W46+W47+W48","v":214},{"$f":"SQRT((X45^2)+(X46^2)+(X47^2)+(X48^2))","v":70.028565600046392},{"$f":"Y45+Y46+Y47+Y48","v":825},{"$f":"SQRT((Z45^2)+(Z46^2)+(Z47^2)+(Z48^2))","v":224.6085483680441},{"$f":"AA45+AA46+AA47+AA48","v":293},{"$f":"SQRT((AB45^2)+(AB46^2)+(AB47^2)+(AB48^2))","v":83.264638352664448}]
[null," 30% to 34.9% of HH Income",{"$f":"C45","v":253},{"$f":"D45","v":150.8509197850646},{"$f":"E45","v":452},185.95160660774081,123,54.571054598569013,84,77.472575792986262,139,66.91038783328041,29,15.297058540778355,36,20.248456731316587,74,45.276925690687087,65,42.80186911806539,564,164.92422502470643,75,38.832975677895199,{"$f":"Y45","v":301},{"$f":"Z45","v":144.22205101855957},{"$f":"AA45","v":83},{"$f":"AB45","v":43.68065933568311}]
[null," Less Than 35% of HH Income",{"$f":"C40+C41+C42+C43+C44+C45","v":2423},{"$f":"SQRT((D40^2)+(D41^2)+(D42^2)+(D43^2)+(D44^2)+(D45^2))","v":389.82175413899108},{"$f":"E40+E41+E42+E43+E44+E45","v":5855},{"$f":"SQRT((F40^2)+(F41^2)+(F42^2)+(F43^2)+(F44^2)+(F45^2))","v":540.31657387128155},{"$f":"G40+G41+G42+G43+G44+G45","v":1547},{"$f":"SQRT((H40^2)+(H41^2)+(H42^2)+(H43^2)+(H44^2)+(H45^2))","v":195.33560863293718},{"$f":"I40+I41+I42+I43+I44+I45","v":1682},{"$f":"SQRT((J40^2)+(J41^2)+(J42^2)+(J43^2)+(J44^2)+(J45^2))","v":358.08518539587755},{"$f":"K40+K41+K42+K43+K44+K45","v":1347},{"$f":"SQRT((L40^2)+(L41^2)+(L42^2)+(L43^2)+(L44^2)+(L45^2))","v":291.38119362786608},{"$f":"M40+M41+M42+M43+M44+M45","v":442},{"$f":"SQRT((N40^2)+(N41^2)+(N42^2)+(N43^2)+(N44^2)+(N45^2))","v":71.337227308047233},{"$f":"O40+O41+O42+O43+O44+O45","v":457},{"$f":"SQRT((P40^2)+(P41^2)+(P42^2)+(P43^2)+(P44^2)+(P45^2))","v":65.245689512794641},{"$f":"Q40+Q41+Q42+Q43+Q44+Q45","v":1180},{"$f":"SQRT((R40^2)+(R41^2)+(R42^2)+(R43^2)+(R44^2)+(R45^2))","v":209.62347196819348},{"$f":"S40+S41+S42+S43+S44+S45","v":698},{"$f":"SQRT((T40^2)+(T41^2)+(T42^2)+(T43^2)+(T44^2)+(T45^2))","v":103.21821544669332},{"$f":"U40+U41+U42+U43+U44+U45","v":6686},{"$f":"SQRT((V40^2)+(V41^2)+(V42^2)+(V43^2)+(V44^2)+(V45^2))","v":545.86628399270091},{"$f":"W40+W41+W42+W43+W44+W45","v":659},{"$f":"SQRT((X40^2)+(X41^2)+(X42^2)+(X43^2)+(X44^2)+(X45^2))","v":97.5551126287085},{"$f":"Y40+Y41+Y42+Y43+Y44+Y45","v":2271},{"$f":"SQRT((Z40^2)+(Z41^2)+(Z42^2)+(Z43^2)+(Z44^2)+(Z45^2))","v":360.1083170380823},{"$f":"AA40+AA41+AA42+AA43+AA44+AA45","v":1053},{"$f":"SQRT((AB40^2)+(AB41^2)+(AB42^2)+(AB43^2)+(AB44^2)+(AB45^2))","v":162.77591959500643}]
[null," 35% or More of HH Income",{"$f":"C46+C47+C48","v":481},{"$f":"SQRT((D46^2)+(D47^2)+(D48^2))","v":217.76592938290415},{"$f":"E46+E47+E48","v":1075},{"$f":"SQRT((F46^2)+(F47^2)+(F48^2))","v":232.64350410015751},{"$f":"G46+G47+G48","v":267},{"$f":"SQRT((H46^2)+(H47^2)+(H48^2))","v":87.504285609334588},{"$f":"I46+I47+I48","v":240},{"$f":"SQRT((J46^2)+(J47^2)+(J48^2))","v":141.18427674496903},{"$f":"K46+K47+K48","v":272},{"$f":"SQRT((L46^2)+(L47^2)+(L48^2))","v":128.69731931940152},{"$f":"M46+M47+M48","v":91},{"$f":"SQRT((N46^2)+(N47^2)+(N48^2))","v":36.851051545376556},{"$f":"O46+O47+O48","v":115},{"$f":"SQRT((P46^2)+(P47^2)+(P48^2))","v":35.213633723318019},{"$f":"Q46+Q47+Q48","v":422},{"$f":"SQRT((R46^2)+(R47^2)+(R48^2))","v":132.46886426628711},{"$f":"S46+S47+S48","v":189},{"$f":"SQRT((T46^2)+(T47^2)+(T48^2))","v":50.842895275544642},{"$f":"U46+U47+U48","v":1915},{"$f":"SQRT((V46^2)+(V47^2)+(V48^2))","v":330.311973746033},{"$f":"W46+W47+W48","v":139},{"$f":"SQRT((X46^2)+(X47^2)+(X48^2))","v":58.27520913733386},{"$f":"Y46+Y47+Y48","v":524},{"$f":"SQRT((Z46^2)+(Z47^2)+(Z48^2))","v":172.18884981322105},{"$f":"AA46+AA47+AA48","v":210},{"$f":"SQRT((AB46^2)+(AB47^2)+(AB48^2))","v":70.887234393789129}]
[null," 50% or More of HH Income",{"$f":"C48","v":321},{"$f":"D48","v":181.46625030566977},{"$f":"E48","v":569},172.40939649566667,108,56.568542494923804,105,75.604232685743199,164,102.39140588936164,54,25.495097567963924,58,29.410882339705484,69,37.443290453698111,88,37.802116342871599,907,236.21176939348302,79,45.803929962395145,{"$f":"Y48","v":137},70,56,33.61547262794322]
[null,"Not computed",{"$f":"C49","v":0},{"$f":"D49","v":22.627416997969522},{"$f":"E49","v":19},37.643060449437421,40,43.382023926967726,9,22.627416997969522,0,15.556349186104045,0,15.556349186104045,13,10.63014581273465,0,15.556349186104045,6,14.866068747318506,0,33.941125496954278,0,15.556349186104045,0,25.45584412271571,8,17.804493814764857]
[]
[]
[]
[]
[]
[]
[]
[]
[]
[]
[]
[]
[null,"B25091. MORTGAGE STATUS BY SELECTED MONTHLY OWNER COSTS AS A PERCENTAGE OF HOUSEHOLD INCOME IN THE PAST 12 MONTHS "]
[null,"Universe:  OWNER-OCCUPIED HOUSING UNITS"]
[null,"Data Set: 2010-2014 American Community Survey 5-Year Estimates"]
[]
[null,null,"Barrington",null,"Dover",null,"Durham",null,"Farmington",null,"Lee",null,"Madbury",null,"Middleton",null,"Milton",null,"New Durham",null,"Rochester",null,"Rollinsford",null,"Somersworth",null,"Strafford"]
[null,null,"Estimate","Margin Of Error","Estimate","Margin Of Error","Estimate","Margin Of Error","Estimate","Margin Of Error","Estimate","Margin Of Error","Estimate","Margin Of Error","Estimate","Margin Of Error","Estimate","Margin Of Error","Estimate","Margin Of Error","Estimate","Margin Of Error","Estimate","Margin Of Error","Estimate","Margin Of Error","Estimate","Margin Of Error"]
[null,"Total:",2948,207,6375,380,1894,198,1852,247,1487,183,517,55,483,65,1396,129,888,76,8135,440,765,71,2538,212,1313,143]
[null,"Housing units with a mortgage:",2161,240,4306,330,1179,164,1269,239,1057,150,367,53,370,58,879,124,676,65,5053,373,495,76,1707,217,908,105]
[null,"Less than 10.0 percent",35,45,170,70,48,30,147,114,0,11,16,12,7,7,11,13,28,26,119,97,17,15,27,31,49,32]
[null,"10.0 to 14.9 percent",143,91,373,127,125,54,126,78,158,87,53,25,47,26,26,24,60,36,528,137,34,21,79,52,69,35]
[null,"15.0 to 19.9 percent",431,168,767,163,168,65,197,100,195,74,80,31,54,27,74,46,143,46,885,185,74,30,238,119,206,77]
[null,"20.0 to 24.9 percent",306,162,687,183,232,87,224,130,202,119,75,33,57,24,154,62,122,43,772,165,109,60,358,106,217,80]
[null,"25.0 to 29.9 percent",359,151,639,160,198,82,122,88,97,66,32,17,47,20,134,64,83,37,689,159,26,19,234,92,78,35]
[null,"30.0 to 34.9 percent",255,128,511,169,115,66,116,67,105,66,39,21,43,22,132,68,70,34,666,179,64,29,205,97,118,73]
[null,"35.0 to 39.9 percent",136,121,279,97,53,40,41,41,130,86,19,11,19,11,85,49,46,24,304,121,29,19,184,102,15,17]
[null,"40.0 to 49.9 percent",86,76,398,134,74,42,86,98,64,58,12,10,28,14,70,43,46,24,499,163,56,31,192,90,101,51]
[null,"50.0 percent or more",410,191,474,169,166,86,196,121,106,66,35,15,68,24,193,75,78,39,591,153,86,40,179,84,55,31]
[null,"Not computed",0,15,8,13,0,17,14,22,0,11,6,8,0,11,0,11,0,11,0,20,0,11,11,18,0,11]
[null,"Housing units without a mortgage:",787,224,2069,285,715,129,583,147,430,133,150,43,113,28,517,121,212,50,3082,324,270,62,831,190,405,123]
[null,"Less than 10.0 percent",325,180,413,127,148,64,149,102,42,45,28,16,28,13,79,42,40,23,405,137,42,24,151,98,120,67]
[null,"10.0 to 14.9 percent",189,100,450,131,183,69,183,105,205,111,24,13,24,12,146,71,46,23,659,152,45,20,130,64,86,56]
[null,"15.0 to 19.9 percent",26,31,346,113,35,32,44,34,45,53,31,19,22,13,124,65,34,26,559,172,45,24,69,50,69,51]
[null,"20.0 to 24.9 percent",58,63,205,98,106,51,38,33,26,31,16,22,21,12,24,17,40,24,274,97,67,31,139,80,17,21]
[null,"25.0 to 29.9 percent",22,25,187,86,76,44,29,34,22,27,9,8,3,4,28,36,25,18,359,110,16,14,49,40,19,20]
[null,"30.0 to 34.9 percent",10,19,143,102,20,23,29,33,0,11,7,9,0,11,26,26,5,8,158,84,0,11,33,38,0,11]
[null,"35.0 to 39.9 percent",51,63,60,52,32,29,0,15,0,11,8,14,0,11,22,34,0,11,103,58,8,9,39,37,17,18]
[null,"40.0 to 49.9 percent",50,61,97,64,16,20,33,38,35,51,10,9,2,4,15,17,0,11,146,80,21,17,133,90,20,20]
[null,"50.0 percent or more",56,77,147,82,99,48,78,67,26,41,17,15,10,8,53,33,20,19,402,127,26,22,88,61,57,49]
[null,"Not computed",0,15,21,32,0,17,0,15,29,50,0,11,3,4,0,11,2,4,17,27,0,11,0,17,0,11]
[]
[]
[]
[null,"Calculated B25091. MORTGAGE STATUS BY SELECTED MONTHLY OWNER COSTS AS A PERCENTAGE OF HOUSEHOLD INCOME IN THE PAST 12 MONTHS "]
[null,"Universe:  OWNER-OCCUPIED HOUSING UNITS"]
[null,"Data Set: 2010-2014 American Community Survey 5-Year Estimates"]
[]
[null,null,"Barrington",null,"Dover",null,"Durham",null,"Farmington",null,"Lee",null,"Madbury",null,"Middleton",null,"Milton",null,"New Durham",null,"Rochester",null,"Rollinsford",null,"Somersworth",null,"Strafford"]
[null,null,"Estimate","Margin Of Error","Estimate","Margin Of Error","Estimate","Margin Of Error","Estimate","Margin Of Error","Estimate","Margin Of Error","Estimate","Margin Of Error","Estimate","Margin Of Error","Estimate","Margin Of Error","Estimate","Margin Of Error","Estimate","Margin Of Error","Estimate","Margin Of Error","Estimate","Margin Of Error","Estimate","Margin Of Error"]
[null,"Total:",{"$f":"C85","v":"Barrington"},0,"Dover",0,"Durham",0,"Farmington",0,"Lee",0,"Madbury",0,"Middleton",0,"Milton",0,"New Durham",0,"Rochester",0,"Rollinsford",0,"Somersworth",0,"Strafford",0]
[null,"Less than 10.0 percent",{"$f":"C87+C98","v":2948},{"$f":"SQRT((D87^2)+(D98^2))","v":207.54276667713572},{"$f":"E87+E98","v":6383},{"$f":"SQRT((F87^2)+(F98^2))","v":380.22230339631579},{"$f":"G87+G98","v":1894},{"$f":"SQRT((H87^2)+(H98^2))","v":198.72845795205075},{"$f":"I87+I98","v":1866},{"$f":"SQRT((J87^2)+(J98^2))","v":247.97782158894776},{"$f":"K87+K98","v":1487},{"$f":"SQRT((L87^2)+(L98^2))","v":183.3303030052588},{"$f":"M87+M98","v":523},{"$f":"SQRT((N87^2)+(N98^2))","v":55.578772926361012},{"$f":"O87+O98","v":483},{"$f":"SQRT((P87^2)+(P98^2))","v":65.924198895398035},{"$f":"Q87+Q98","v":1396},{"$f":"SQRT((R87^2)+(R98^2))","v":129.46814279968643},{"$f":"S87+S98","v":888},{"$f":"SQRT((T87^2)+(T98^2))","v":76.791926658991954},{"$f":"U87+U98","v":8135},{"$f":"SQRT((V87^2)+(V98^2))","v":440.45431091090484},{"$f":"W87+W98","v":765},{"$f":"SQRT((X87^2)+(X98^2))","v":71.847059786744225},{"$f":"Y87+Y98","v":2549},{"$f":"SQRT((Z87^2)+(Z98^2))","v":212.76277869965884},{"$f":"AA87+AA98","v":1313},{"$f":"SQRT((AB87^2)+(AB98^2))","v":143.42245291445826}]
[null,"10.0 to 14.9 percent",2948,328.29255245893108,6375,436.03325561245902,1894,208.65521800328887,1852,280.58866691297425,1487,200.47194317410106,517,68.249542123006222,483,64.404968752418469,1396,173.25414857947845,888,82.006097334283623,8135,494.06983312078466,765,98.081598681913832,2538,288.4250335875858,1313,161.72198366332265]
[null,"15.0 to 19.9 percent",360,185.53975315279473,583,145.01379244747721,196,70.682388188289167,296,152.97058540778355,42,46.324939287601879,44,20,35,14.7648230602334,90,43.965895873961216,68,34.713109915419565,524,167.86303941010956,59,28.301943396169811,178,102.7861858422619,169,74.249579123386283]
[null,"20.0 to 24.9 percent",332,135.20724832641184,823,182.45547402037573,308,87.618491199061395,309,130.80137613954986,363,141.03191128251791,77,28.178005607210743,71,28.635642126552707,172,74.94664769020693,106,42.720018726587654,1187,204.62893246068603,79,29,209,82.462112512353215,155,66.037867924396224]
[null,"25.0 to 29.9 percent",457,170.83617883809038,1113,198.33809518093088,203,72.449982746719826,241,105.62196741208714,240,91.021975368588869,111,36.359317925395686,76,29.966648127543394,198,79.630396206473819,177,52.839379254491625,1444,252.60443384865596,119,38.418745424597091,307,129.07749610214788,275,92.357999112150537]
[null,"30.0 to 34.9 percent",364,173.81887124245171,892,207.5885353289049,338,100.84641788382967,262,134.12307780542466,228,122.97154142320898,91,39.66106403010388,78,26.832815729997478,178,64.288412641781719,162,49.244289008980523,1046,191.40010449317941,176,67.53517601961218,497,132.80060240827223,234,82.710337927008865]
[null,"35.0 to 39.9 percent",381,153.05554547287727,826,181.64801127455263,274,93.059120993054734,151,94.339811320566042,119,71.309185944028272,41,18.788294228055936,50,20.396078054371138,162,73.430239002743278,108,41.146081222881968,1048,193.34166648707671,42,23.600847442411894,283,100.31948963187563,97,40.311288741492746]
[null,"40.0 to 49.9 percent",265,129.40247292845683,654,197.39554199626699,135,69.892775020026207,145,74.686009399351363,105,66.91038783328041,46,22.847319317591726,43,24.596747752497688,158,72.801098892805186,75,34.928498393145958,824,197.72961336127676,64,31.016124838541646,238,104.17773274553444,118,73.824115301166998]
[null,"50.0 percent or more",187,136.41847382227965,339,110.05907504608605,85,49.406477308142499,41,43.657759905886145,130,86.700634369074834,27,17.804493814764857,19,15.556349186104045,107,59.640590204993778,46,26.40075756488817,407,134.18271125595876,37,21.023796041628639,223,108.50345616615168,32,24.758836806279895]
[null,"Not computed",136,97.452552557642122,495,148.49915824677257,90,46.518813398452032,119,105.1094667477673,99,77.233412458598508,22,13.45362404707371,30,14.560219778561036,85,46.238512086787566,46,26.40075756488817,645,181.57367650626011,77,35.355339059327378,325,127.27922061357856,121,54.78138369920935]
[]
[]
[]
[]
[null,"Calculated B25091. MORTGAGE STATUS BY SELECTED MONTHLY OWNER COSTS AS A PERCENTAGE OF HOUSEHOLD INCOME IN THE PAST 12 MONTHS "]
[null,"Universe:  OWNER-OCCUPIED HOUSING UNITS"]
[null,"Data Set: 2010-2014 American Community Survey 5-Year Estimates"]
[null,null,"Barrington",null,"Dover",null,"Durham",null,"Farmington",null,"Lee",null,"Madbury",null,"Middleton",null,"Milton",null,"New Durham",null,"Rochester",null,"Rollinsford",null,"Somersworth",null,"Strafford"]
[null,null,"Estimate","Margin Of Error","Estimate","Margin Of Error","Estimate","Margin Of Error","Estimate","Margin Of Error","Estimate","Margin Of Error","Estimate","Margin Of Error","Estimate","Margin Of Error","Estimate","Margin Of Error","Estimate","Margin Of Error","Estimate","Margin Of Error","Estimate","Margin Of Error","Estimate","Margin Of Error","Estimate","Margin Of Error"]
[null,"Total:",2948,207,6375,380,1894,198,1852,247,1487,183,517,55,483,65,1396,129,888,76,8135,440,765,71,2538,212,1313,143]
[null,"Less than 20% of HH Income",1149,286.16603572052361,2519,306.0343118017978,707,133.87307421584072,846,227.29936207565564,645,174.12926233117742,232,50.159744815937813,182,44,460,117.86008654332475,351,76.302031427741156,3155,365.8688289537659,257,55.839054433254866,694,184.46137807140008,599,135.66134305689297]
[null," 20% to 29.9% of HH Income",745,231.60094991169618,1718,275.84234627772435,612,137.22244714331543,413,163.97865714781298,347,142.15132781652093,132,43.886216514983374,128,33.704599092705436,340,97.596106479715672,270,64.171644828537779,2094,272.05697932602283,218,71.540198490079689,780,166.43316977093238,331,92.010868923187545]
[null," Less Than 30% of HH Income",1894,368.1439935677343,4237,412.00242717731652,1319,191.70811146114815,1259,280.27486508782766,992,224.78434109163388,364,66.648330811806531,310,55.42562584220407,800,153.02287410710858,621,99.699548644916135,5249,455.93310912895981,475,90.752410436307414,1474,248.44717748447053,930,163.9207125411551]
[null," 30% or More of HH Income",1054,295.40142179752621,2109,329.26433150282162,575,138.52797551397336,579,194.06699874012583,466,154.90642336585015,147,38.340579025361627,170,41.218927691049899,596,133.07516672918354,265,67.052218456960844,2869,360.01249978299364,290,68.833131557412088,1053,222.71730961018724,383,111.47196957082978]
[null," 30% to 34.9% of HH Income",265,129.40247292845683,654,197.39554199626699,135,69.892775020026207,145,74.686009399351363,105,66.91038783328041,46,22.847319317591726,43,24.596747752497688,158,72.801098892805186,75,34.928498393145958,824,197.72961336127676,64,31.016124838541646,238,104.17773274553444,118,73.824115301166998]
[null," Less Than 35% of HH Income",2159,390.22429447690723,4891,456.84899036771441,1454,204.05146409668322,1404,290.05516716652369,1097,234.53144778472674,410,70.455659815234142,353,60.638271743182131,958,169.45795938816212,696,105.64090116995405,6073,496.96277526591467,539,95.906204178874688,1712,269.40489973272571,1048,179.77764043395385]
[null," 35% or More of HH Income",789,265.55037186944401,1455,263.53367906208877,440,119.60351165413162,434,179.12007146045917,361,139.71041478715895,101,30.789608636681308,127,33.075670817082454,438,111.39569111954016,190,57.23635208501674,2045,300.85212314358029,226,61.449165982948863,815,196.85019685029528,265,83.522452071284405]
[null," 50% or More of HH Income",466,205.9368835347374,621,187.84301956687131,265,98.488578017961046,274,138.31124321616085,132,77.698133825723247,52,21.213203435596427,78,25.298221281347036,246,81.939001702485982,98,43.382023926967726,993,198.84164553734712,112,45.650848842053307,267,103.81233067415451,112,57.982756057296896]
[null,"Not computed",0,21.213203435596427,29,34.539832078341085,0,24.041630560342615,14,26.627053911388696,29,51.195702944680818,6,13.601470508735444,3,11.704699910719626,0,15.556349186104045,2,11.704699910719626,17,33.600595232822883,0,15.556349186104045,11,24.758836806279895,0,15.556349186104045]
[]
[]
[]
[null,"B25091. MORTGAGE STATUS BY SELECTED MONTHLY OWNER COSTS AS A PERCENTAGE OF HOUSEHOLD INCOME IN THE PAST 12 MONTHS "]
[null,"Universe:  OWNER-OCCUPIED HOUSING UNITS"]
[null,"Data Set: 2006-2010 American Community Survey 5-Year Estimates"]
[]
[null,null,"Alton",null,"Barnstead",null,"Belmont",null,"Center Harbor",null,"Gilford",null,"Gilmanton",null,"Laconia",null,"Meredith",null,"New Hampton",null,"Sanbornton",null,"Tilton"]
[null," ","Estimate","Margin of Error","Estimate","Margin of Error","Estimate","Margin of Error","Estimate","Margin of Error","Estimate","Margin of Error","Estimate","Margin of Error","Estimate","Margin of Error","Estimate","Margin of Error","Estimate","Margin of Error","Estimate","Margin of Error","Estimate","Margin of Error"]
[null,"Total:"]
[null,"Housing units with a mortgage:"]
[null,"Less than 10.0 percent"]
[null,"10.0 to 14.9 percent"]
[null,"15.0 to 19.9 percent"]
[null,"20.0 to 24.9 percent"]
[null,"25.0 to 29.9 percent"]
[null,"30.0 to 34.9 percent"]
[null,"35.0 to 39.9 percent"]
[null,"40.0 to 49.9 percent"]
[null,"50.0 percent or more"]
[null,"Not computed"]
[null,"Housing units without a mortgage:"]
[null,"Less than 10.0 percent"]
[null,"10.0 to 14.9 percent"]
[null,"15.0 to 19.9 percent"]
[null,"20.0 to 24.9 percent"]
[null,"25.0 to 29.9 percent"]
[null,"30.0 to 34.9 percent"]
[null,"35.0 to 39.9 percent"]
[null,"40.0 to 49.9 percent"]
[null,"50.0 percent or more"]
[null,"Not computed"]
[]
[]
[]
[null,"Calculated B25091. MORTGAGE STATUS BY SELECTED MONTHLY OWNER COSTS AS A PERCENTAGE OF HOUSEHOLD INCOME IN THE PAST 12 MONTHS "]
[null,"Universe:  OWNER-OCCUPIED HOUSING UNITS"]
[null,"Data Set: 2006-2010 American Community Survey 5-Year Estimates"]
[]
[null,null,"Alton",null,"Barnstead",null,"Belmont",null,"Center Harbor",null,"Gilford",null,"Gilmanton",null,"Laconia",null,"Meredith",null,"New Hampton",null,"Sanbornton",null,"Tilton"]
[null," ","Estimate","Margin of Error","Estimate","Margin of Error","Estimate","Margin of Error","Estimate","Margin of Error","Estimate","Margin of Error","Estimate","Margin of Error","Estimate","Margin of Error","Estimate","Margin of Error","Estimate","Margin of Error","Estimate","Margin of Error","Estimate","Margin of Error"]
[null,"Total:",{"$f":"C158","v":0},{"$f":"D158","v":0},{"$f":"E158","v":0},0,0,0,0,0,0,0,0,0,0,0,0,0,0,0,0,0,0,0]
[null,"Less than 10.0 percent",{"$f":"C160+C171","v":0},{"$f":"SQRT((D160^2)+(D171^2))","v":0},{"$f":"E160+E171","v":0},{"$f":"SQRT((F160^2)+(F171^2))","v":0},{"$f":"G160+G171","v":0},{"$f":"SQRT((H160^2)+(H171^2))","v":0},{"$f":"I160+I171","v":0},{"$f":"SQRT((J160^2)+(J171^2))","v":0},{"$f":"K160+K171","v":0},{"$f":"SQRT((L160^2)+(L171^2))","v":0},{"$f":"M160+M171","v":0},{"$f":"SQRT((N160^2)+(N171^2))","v":0},{"$f":"O160+O171","v":0},{"$f":"SQRT((P160^2)+(P171^2))","v":0},{"$f":"Q160+Q171","v":0},{"$f":"SQRT((R160^2)+(R171^2))","v":0},{"$f":"S160+S171","v":0},{"$f":"SQRT((T160^2)+(T171^2))","v":0},{"$f":"U160+U171","v":0},{"$f":"SQRT((V160^2)+(V171^2))","v":0},{"$f":"W160+W171","v":0},{"$f":"SQRT((X160^2)+(X171^2))","v":0}]
[null,"10.0 to 14.9 percent",0,0,0,0,0,0,0,0,0,0,0,0,0,0,0,0,0,0,0,0,0,{"$f":"SQRT((X161^2)+(X172^2))","v":0}]
[null,"15.0 to 19.9 percent",0,0,0,0,0,0,0,0,0,0,0,0,0,0,0,0,0,0,0,0,0,0]
[null,"20.0 to 24.9 percent",0,0,0,0,0,0,0,0,0,0,0,0,0,0,0,0,0,0,0,0,0,0]
[null,"25.0 to 29.9 percent",0,0,0,0,0,0,0,0,0,0,0,0,0,0,0,0,0,0,0,0,0,0]
[null,"30.0 to 34.9 percent",0,0,0,0,0,0,0,0,0,0,0,0,0,0,0,0,0,0,0,0,0,0]
[null,"35.0 to 39.9 percent",0,0,0,0,0,0,0,0,0,0,0,0,0,0,0,0,0,0,0,0,0,0]
[null,"40.0 to 49.9 percent",0,0,0,0,0,0,0,0,0,0,0,0,0,0,0,0,0,0,0,0,0,0]
[null,"50.0 percent or more",{"$f":"C168+C179","v":0},0,0,0,0,0,0,0,0,0,0,0,0,0,0,0,0,0,0,0,0,0]
[null,"Not computed",0,0,0,0,0,0,0,0,0,0,0,0,0,0,0,0,0,0,0,0,0,0]
[]
[]
[]
[]
[null,"Calculated MONTHLY OWNER COSTS AS A PERCENTAGE OF HOUSEHOLD INCOME IN THE PAST 12 MONTHS "]
[null,"Universe:  OWNER-OCCUPIED HOUSING UNITS"]
[null,"Data Set: 2006-2010 American Community Survey 5-Year Estimates"]
[null,null,"Alton",null,"Barnstead",null,"Belmont",null,"Center Harbor",null,"Gilford",null,"Gilmanton",null,"Laconia",null,"Meredith",null,"New Hampton",null,"Sanbornton",null,"Tilton"]
[null," ","Estimate","Margin of Error","Estimate","Margin of Error","Estimate","Margin of Error","Estimate","Margin of Error","Estimate","Margin of Error","Estimate","Margin of Error","Estimate","Margin of Error","Estimate","Margin of Error","Estimate","Margin of Error","Estimate","Margin of Error","Estimate","Margin of Error"]
[null,"Total:",{"$f":"C190","v":0},0,0,0,0,0,0,0,0,0,0,0,0,0,0,0,0,0,0,0,0,0]
[null,"Less than 20% of HH Income",{"$f":"C191+C192+C193","v":0},{"$f":"SQRT((D191^2)+(D192^2)+(D193^2))","v":0},{"$f":"E191+E192+E193","v":0},{"$f":"SQRT((F191^2)+(F192^2)+(F193^2))","v":0},{"$f":"G191+G192+G193","v":0},{"$f":"SQRT((H191^2)+(H192^2)+(H193^2))","v":0},{"$f":"I191+I192+I193","v":0},{"$f":"SQRT((J191^2)+(J192^2)+(J193^2))","v":0},{"$f":"K191+K192+K193","v":0},{"$f":"SQRT((L191^2)+(L192^2)+(L193^2))","v":0},{"$f":"M191+M192+M193","v":0},{"$f":"SQRT((N191^2)+(N192^2)+(N193^2))","v":0},{"$f":"O191+O192+O193","v":0},{"$f":"SQRT((P191^2)+(P192^2)+(P193^2))","v":0},{"$f":"Q191+Q192+Q193","v":0},{"$f":"SQRT((R191^2)+(R192^2)+(R193^2))","v":0},{"$f":"S191+S192+S193","v":0},{"$f":"SQRT((T191^2)+(T192^2)+(T193^2))","v":0},{"$f":"U191+U192+U193","v":0},{"$f":"SQRT((V191^2)+(V192^2)+(V193^2))","v":0},{"$f":"W191+W192+W193","v":0},{"$f":"SQRT((X191^2)+(X192^2)+(X193^2))","v":0}]
[null," 20% to 29.9% of HH Income",{"$f":"C194+C195","v":0},{"$f":"SQRT((D194^2)+(D195^2))","v":0},{"$f":"E194+E195","v":0},{"$f":"SQRT((F194^2)+(F195^2))","v":0},{"$f":"G194+G195","v":0},{"$f":"SQRT((H194^2)+(H195^2))","v":0},{"$f":"I194+I195","v":0},{"$f":"SQRT((J194^2)+(J195^2))","v":0},{"$f":"K194+K195","v":0},{"$f":"SQRT((L194^2)+(L195^2))","v":0},{"$f":"M194+M195","v":0},{"$f":"SQRT((N194^2)+(N195^2))","v":0},{"$f":"O194+O195","v":0},{"$f":"SQRT((P194^2)+(P195^2))","v":0},{"$f":"Q194+Q195","v":0},{"$f":"SQRT((R194^2)+(R195^2))","v":0},{"$f":"S194+S195","v":0},{"$f":"SQRT((T194^2)+(T195^2))","v":0},{"$f":"U194+U195","v":0},{"$f":"SQRT((V194^2)+(V195^2))","v":0},{"$f":"W194+W195","v":0},{"$f":"SQRT((X194^2)+(X195^2))","v":0}]
[null," Less Than 30% of HH Income",{"$f":"C191+C192+C193+C194+C195","v":0},{"$f":"SQRT((D191^2)+(D192^2)+(D193^2)+(D194^2)+(D195^2))","v":0},{"$f":"E191+E192+E193+E194+E195","v":0},{"$f":"SQRT((F191^2)+(F192^2)+(F193^2)+(F194^2)+(F195^2))","v":0},{"$f":"G191+G192+G193+G194+G195","v":0},{"$f":"SQRT((H191^2)+(H192^2)+(H193^2)+(H194^2)+(H195^2))","v":0},{"$f":"I191+I192+I193+I194+I195","v":0},{"$f":"SQRT((J191^2)+(J192^2)+(J193^2)+(J194^2)+(J195^2))","v":0},{"$f":"K191+K192+K193+K194+K195","v":0},{"$f":"SQRT((L191^2)+(L192^2)+(L193^2)+(L194^2)+(L195^2))","v":0},{"$f":"M191+M192+M193+M194+M195","v":0},{"$f":"SQRT((N191^2)+(N192^2)+(N193^2)+(N194^2)+(N195^2))","v":0},{"$f":"O191+O192+O193+O194+O195","v":0},{"$f":"SQRT((P191^2)+(P192^2)+(P193^2)+(P194^2)+(P195^2))","v":0},{"$f":"Q191+Q192+Q193+Q194+Q195","v":0},{"$f":"SQRT((R191^2)+(R192^2)+(R193^2)+(R194^2)+(R195^2))","v":0},{"$f":"S191+S192+S193+S194+S195","v":0},{"$f":"SQRT((T191^2)+(T192^2)+(T193^2)+(T194^2)+(T195^2))","v":0},{"$f":"U191+U192+U193+U194+U195","v":0},{"$f":"SQRT((V191^2)+(V192^2)+(V193^2)+(V194^2)+(V195^2))","v":0},{"$f":"W191+W192+W193+W194+W195","v":0},{"$f":"SQRT((X191^2)+(X192^2)+(X193^2)+(X194^2)+(X195^2))","v":0}]
[null," 30% or More of HH Income",{"$f":"C196+C197+C198+C199","v":0},{"$f":"SQRT((D196^2)+(D197^2)+(D198^2)+(D199^2))","v":0},{"$f":"E196+E197+E198+E199","v":0},{"$f":"SQRT((F196^2)+(F197^2)+(F198^2)+(F199^2))","v":0},{"$f":"G196+G197+G198+G199","v":0},{"$f":"SQRT((H196^2)+(H197^2)+(H198^2)+(H199^2))","v":0},{"$f":"I196+I197+I198+I199","v":0},{"$f":"SQRT((J196^2)+(J197^2)+(J198^2)+(J199^2))","v":0},{"$f":"K196+K197+K198+K199","v":0},{"$f":"SQRT((L196^2)+(L197^2)+(L198^2)+(L199^2))","v":0},{"$f":"M196+M197+M198+M199","v":0},{"$f":"SQRT((N196^2)+(N197^2)+(N198^2)+(N199^2))","v":0},{"$f":"O196+O197+O198+O199","v":0},{"$f":"SQRT((P196^2)+(P197^2)+(P198^2)+(P199^2))","v":0},{"$f":"Q196+Q197+Q198+Q199","v":0},{"$f":"SQRT((R196^2)+(R197^2)+(R198^2)+(R199^2))","v":0},{"$f":"S196+S197+S198+S199","v":0},{"$f":"SQRT((T196^2)+(T197^2)+(T198^2)+(T199^2))","v":0},{"$f":"U196+U197+U198+U199","v":0},{"$f":"SQRT((V196^2)+(V197^2)+(V198^2)+(V199^2))","v":0},{"$f":"W196+W197+W198+W199","v":0},{"$f":"SQRT((X196^2)+(X197^2)+(X198^2)+(X199^2))","v":0}]
[null," 30% to 34.9% of HH Income",{"$f":"C196","v":0},{"$f":"D196","v":0},{"$f":"E196","v":0},0,0,0,0,0,0,0,0,0,0,0,0,0,0,0,0,0,0,0]
[null," Less Than 35% of HH Income",{"$f":"C191+C192+C193+C194+C195+C196","v":0},{"$f":"SQRT((D191^2)+(D192^2)+(D193^2)+(D194^2)+(D195^2)+(D196^2))","v":0},{"$f":"E191+E192+E193+E194+E195+E196","v":0},{"$f":"SQRT((F191^2)+(F192^2)+(F193^2)+(F194^2)+(F195^2)+(F196^2))","v":0},{"$f":"G191+G192+G193+G194+G195+G196","v":0},{"$f":"SQRT((H191^2)+(H192^2)+(H193^2)+(H194^2)+(H195^2)+(H196^2))","v":0},{"$f":"I191+I192+I193+I194+I195+I196","v":0},{"$f":"SQRT((J191^2)+(J192^2)+(J193^2)+(J194^2)+(J195^2)+(J196^2))","v":0},{"$f":"K191+K192+K193+K194+K195+K196","v":0},{"$f":"SQRT((L191^2)+(L192^2)+(L193^2)+(L194^2)+(L195^2)+(L196^2))","v":0},{"$f":"M191+M192+M193+M194+M195+M196","v":0},{"$f":"SQRT((N191^2)+(N192^2)+(N193^2)+(N194^2)+(N195^2)+(N196^2))","v":0},{"$f":"O191+O192+O193+O194+O195+O196","v":0},{"$f":"SQRT((P191^2)+(P192^2)+(P193^2)+(P194^2)+(P195^2)+(P196^2))","v":0},{"$f":"Q191+Q192+Q193+Q194+Q195+Q196","v":0},{"$f":"SQRT((R191^2)+(R192^2)+(R193^2)+(R194^2)+(R195^2)+(R196^2))","v":0},{"$f":"S191+S192+S193+S194+S195+S196","v":0},{"$f":"SQRT((T191^2)+(T192^2)+(T193^2)+(T194^2)+(T195^2)+(T196^2))","v":0},{"$f":"U191+U192+U193+U194+U195+U196","v":0},{"$f":"SQRT((V191^2)+(V192^2)+(V193^2)+(V194^2)+(V195^2)+(V196^2))","v":0},{"$f":"W191+W192+W193+W194+W195+W196","v":0},{"$f":"SQRT((X191^2)+(X192^2)+(X193^2)+(X194^2)+(X195^2)+(X196^2))","v":0}]
[null," 35% or More of HH Income",{"$f":"C197+C198+C199","v":0},{"$f":"SQRT((D197^2)+(D198^2)+(D199^2))","v":0},{"$f":"E197+E198+E199","v":0},{"$f":"SQRT((F197^2)+(F198^2)+(F199^2))","v":0},{"$f":"G197+G198+G199","v":0},{"$f":"SQRT((H197^2)+(H198^2)+(H199^2))","v":0},{"$f":"I197+I198+I199","v":0},{"$f":"SQRT((J197^2)+(J198^2)+(J199^2))","v":0},{"$f":"K197+K198+K199","v":0},{"$f":"SQRT((L197^2)+(L198^2)+(L199^2))","v":0},{"$f":"M197+M198+M199","v":0},{"$f":"SQRT((N197^2)+(N198^2)+(N199^2))","v":0},{"$f":"O197+O198+O199","v":0},{"$f":"SQRT((P197^2)+(P198^2)+(P199^2))","v":0},{"$f":"Q197+Q198+Q199","v":0},{"$f":"SQRT((R197^2)+(R198^2)+(R199^2))","v":0},{"$f":"S197+S198+S199","v":0},{"$f":"SQRT((T197^2)+(T198^2)+(T199^2))","v":0},{"$f":"U197+U198+U199","v":0},{"$f":"SQRT((V197^2)+(V198^2)+(V199^2))","v":0},{"$f":"W197+W198+W199","v":0},{"$f":"SQRT((X197^2)+(X198^2)+(X199^2))","v":0}]
[null," 50% or More of HH Income",{"$f":"C199","v":0},{"$f":"D199","v":0},{"$f":"E199","v":0},0,0,0,0,0,0,0,0,0,0,0,0,0,0,0,0,0,0,0]
[null,"Not computed",{"$f":"C200","v":0},{"$f":"D200","v":0},0,0,0,0,0,0,0,0,0,0,0,0,0,0,0,0,0,0,0,0]

{"sheet":"ACS_Table_B25106","index":73,"n_rows":255,"n_cols":28,"rows_kept":255,"cut":false,"hidden":true,"merged":[]}
[null,"B25106. TENURE BY HOUSING COSTS AS A PERCENTAGE OF HOUSEHOLD INCOME IN THE PAST 12 MONTHS"]
[null,"Universe:  OCCUPIED HOUSING UNITS"]
[null,"Data Set: 2015-2019 American Community Survey 5-Year Estimates"]
[]
[null,null,"Barrington",null,"Dover",null,"Durham",null,"Farmington",null,"Lee",null,"Madbury",null,"Middleton",null,"Milton",null,"New Durham",null,"Rochester",null,"Rollinsford",null,"Somersworth",null,"Strafford"]
[null,null,"Estimate","Margin of Error","Estimate","Margin of Error","Estimate","Margin of Error","Estimate","Margin of Error","Estimate","Margin of Error","Estimate","Margin of Error","Estimate","Margin of Error","Estimate","Margin of Error","Estimate","Margin of Error","Estimate","Margin of Error","Estimate","Margin of Error","Estimate","Margin of Error","Estimate","Margin of Error"]
[null,"Total:",3183,200,13489,308,3187,199,2868,200,1876,180,615,47,658,59,1811,105,953,64,12780,347,1040,61,5127,249,1395,85]
[null,"Owner occupied housing units:",2904,213,6949,378,1854,158,1931,249,1619,162,533,52,585,63,1602,107,893,59,8601,379,798,62,2795,280,1271,89]
[null,"Less than $20,000:",114,98,321,144,24,21,88,67,26,38,9,8,34,16,117,67,47,27,638,188,55,40,107,61,7,11]
[null,"Less than 20 percent",0,16,15,25,0,18,0,16,0,11,0,11,0,11,0,11,0,11,16,27,5,8,0,18,0,11]
[null,"20 to 29 percent",0,16,0,24,7,10,18,29,0,11,0,11,0,11,10,16,0,11,35,42,0,11,0,18,0,11]
[null,"30 percent or more",114,98,306,139,17,22,70,61,26,38,9,8,34,16,107,63,47,27,587,189,50,40,107,61,7,11]
[null,"$20,000 to $34,999:",307,186,413,126,90,54,155,95,104,80,16,11,33,20,79,63,99,40,1054,233,40,23,106,64,70,43]
[null,"Less than 20 percent",35,42,31,34,9,13,54,51,0,11,0,11,6,7,7,11,17,25,72,56,5,9,0,18,0,11]
[null,"20 to 29 percent",32,40,82,53,5,9,28,34,12,18,5,6,4,5,0,11,18,15,167,83,11,13,29,32,7,10]
[null,"30 percent or more",240,177,300,103,76,51,73,62,92,77,11,9,23,19,72,62,64,30,815,211,24,18,77,58,63,40]
[null,"$35,000 to $49,999:",180,121,464,137,45,31,179,101,48,54,29,17,87,31,193,88,77,39,1016,241,52,24,444,156,93,45]
[null,"Less than 20 percent",78,67,72,51,0,18,82,73,0,11,5,5,23,15,32,28,11,12,237,114,10,10,17,27,16,18]
[null,"20 to 29 percent",31,36,158,92,0,18,48,56,16,25,3,5,19,17,43,52,29,25,239,104,36,24,161,97,10,16]
[null,"30 percent or more",71,91,234,93,45,31,49,61,32,48,21,16,45,21,118,62,37,29,540,174,6,9,266,110,67,36]
[null,"$50,000 to $74,999:",430,149,955,201,131,56,334,138,169,111,65,26,105,33,390,113,171,54,1525,238,171,56,617,177,236,81]
[null,"Less than 20 percent",242,138,339,109,25,17,186,103,32,38,8,8,34,16,68,44,58,30,795,167,26,16,155,94,60,43]
[null,"20 to 29 percent",59,61,285,128,43,37,64,55,72,84,30,19,35,20,132,70,39,24,369,132,35,20,137,78,83,47]
[null,"30 percent or more",129,100,331,133,63,39,84,102,65,58,27,20,36,19,190,84,74,39,361,113,110,49,325,163,93,46]
[null,"$75,000 or more:",1873,204,4777,354,1524,136,1166,208,1272,151,414,50,313,47,823,130,493,61,4368,342,480,56,1521,218,857,96]
[null,"Less than 20 percent",1317,214,3048,360,867,121,619,178,737,173,288,51,205,45,589,109,365,58,2739,309,367,55,1043,183,674,109]
[null,"20 to 29 percent",376,147,1373,270,468,103,499,212,339,128,74,25,95,28,225,96,96,37,1453,249,89,39,428,171,120,55]
[null,"30 percent or more",180,118,356,137,189,68,48,60,196,84,52,27,13,11,9,16,32,22,176,96,24,18,50,59,63,40]
[null,"Zero or negative income",0,16,19,29,40,43,9,16,0,11,0,11,13,10,0,11,6,10,0,24,0,11,0,18,8,14]
[null,"Renter occupied housing units:",279,139,6540,359,1333,135,937,230,257,135,82,31,73,33,209,92,60,37,4179,368,242,56,2332,330,124,57]
[null,"Less than $20,000:",0,16,977,187,509,144,152,106,42,68,6,7,6,8,82,57,18,27,1007,257,37,28,505,204,0,11]
[null,"Less than 20 percent",0,16,14,23,9,14,54,85,0,11,0,11,0,11,0,11,0,11,12,19,0,11,83,118,0,11]
[null,"20 to 29 percent",0,16,121,70,30,21,0,16,0,11,0,11,0,11,0,11,0,11,189,103,0,11,51,50,0,11]
[null,"30 percent or more",0,16,842,193,470,145,98,71,42,68,6,7,6,8,82,57,18,27,806,238,37,28,371,178,0,11]
[null,"$20,000 to $34,999:",106,87,978,229,279,78,252,147,39,41,2,4,4,6,38,40,12,12,817,203,51,32,259,94,20,30]
[null,"Less than 20 percent",42,46,88,104,0,18,0,16,0,11,0,11,0,11,0,11,0,11,55,51,0,11,22,36,0,11]
[null,"20 to 29 percent",0,16,95,75,65,51,17,29,0,11,2,4,0,11,8,13,0,11,117,95,4,7,35,42,0,11]
[null,"30 percent or more",64,76,795,194,214,84,235,147,39,41,0,11,4,6,30,38,12,12,645,188,47,31,202,95,20,30]
[null,"$35,000 to $49,999:",0,16,1115,272,164,70,208,162,58,72,6,7,7,8,19,24,0,11,497,178,28,19,348,138,9,13]
[null,"Less than 20 percent",0,16,109,92,0,18,0,16,14,21,3,5,0,11,0,11,0,11,67,79,6,9,39,45,9,13]
[null,"20 to 29 percent",0,16,227,131,46,26,119,121,44,70,3,5,0,11,0,11,0,11,128,88,16,14,112,77,0,11]
[null,"30 percent or more",0,16,779,226,118,71,89,102,0,11,0,11,7,8,19,24,0,11,302,141,6,9,197,114,0,11]
[null,"$50,000 to $74,999:",72,104,1475,298,105,48,9,22,44,41,24,20,20,21,59,57,16,17,874,204,46,30,513,174,95,54]
[null,"Less than 20 percent",0,16,437,150,42,30,0,16,0,11,7,8,9,14,7,11,8,11,383,168,6,9,213,136,20,23]
[null,"20 to 29 percent",0,16,809,231,43,37,0,16,44,41,6,7,0,11,52,56,8,12,409,132,40,30,234,117,75,49]
[null,"30 percent or more",72,104,229,128,20,17,9,22,0,11,11,17,11,17,0,11,0,11,82,47,0,11,66,61,0,11]
[null,"$75,000 or more:",88,74,1793,308,180,77,190,117,74,89,32,18,24,19,11,17,14,14,838,235,43,33,684,221,0,11]
[null,"Less than 20 percent",18,30,1166,256,127,66,150,103,74,89,14,11,9,7,11,17,14,14,671,223,43,33,464,191,0,11]
[null,"20 to 29 percent",53,62,556,164,40,35,40,46,0,11,18,15,15,17,0,11,0,11,157,89,0,11,220,128,0,11]
[null,"30 percent or more",17,26,71,63,13,14,0,16,0,11,0,11,0,11,0,11,0,11,10,17,0,11,0,18,0,11]
[null,"Zero or negative income",0,16,76,65,48,51,0,16,0,11,0,11,0,11,0,11,0,11,59,76,21,25,23,35,0,11]
[null,"No cash rent",13,22,126,95,48,37,126,106,0,11,12,13,12,10,0,11,0,11,87,57,16,20,0,18,0,11]
[]
[]
[]
[]
[]
[]
[null,"Calculated B25106. TENURE BY HOUSING COSTS AS A PERCENTAGE OF HOUSEHOLD INCOME IN THE PAST 12 MONTHS"]
[null,"Universe:  OCCUPIED HOUSING UNITS"]
[null,"Data Set: 2015-2019 American Community Survey 5-Year Estimates"]
[]
[null,null,"Barrington",null,"Dover",null,"Durham",null,"Farmington",null,"Lee",null,"Madbury",null,"Middleton",null,"Milton",null,"New Durham",null,"Rochester",null,"Rollinsford",null,"Somersworth",null,"Strafford"]
[null,null,"Estimate","Margin of Error","Estimate","Margin of Error","Estimate","Margin of Error","Estimate","Margin of Error","Estimate","Margin of Error","Estimate","Margin of Error","Estimate","Margin of Error","Estimate","Margin of Error","Estimate","Margin of Error","Estimate","Margin of Error","Estimate","Margin of Error","Estimate","Margin of Error","Estimate","Margin of Error"]
[null,{"$f":"B7","v":"Total:"},3183,200,13489,308,3187,199,2868,200,1876,180,615,47,658,59,1811,105,953,64,12780,347,1040,61,{"$f":"Y7","v":5127},249,1395,85]
[null,"Owner occupied housing units:",2904,213,6949,378,1854,158,1931,249,1619,162,533,52,585,63,1602,107,893,59,8601,379,798,62,2795,280,1271,89]
[null,"Less than 20 percent",{"$f":"C10+C14+C18+C22+C26","v":1672},{"$f":"SQRT((D10^2)+(D14^2)+(D18^2)+(D22^2)+(D26^2))","v":267.11233591880404},{"$f":"SQRT((E10^2)+(E14^2)+(E18^2)+(E22^2)+(E26^2))","v":3067.8322965898901},381.92014872221654,867.40705553966995,125.48705112480729,653.75607071751153,224.67532129719987,737.69438116336494,178.14600753314681,288.15447246225415,54.147945482723536,209.15544458607812,51.730068625510249,593.81646996357381,121.83185133617563,370.13375960590247,71.79136438319027,2862.8229075512163,374.47429818346677,368.12362054070911,59.38013135721409,{"$f":"SQRT((Y10^2)+(Y14^2)+(Y18^2)+(Y22^2)+(Y26^2))","v":1054.5913900653657},209.05023319766951,676.85448953227751,119.56588142108099]
[null,"20 to 29 percent",{"$f":"C11+C15+C19+C23+C27","v":498},{"$f":"SQRT((D11^2)+(D15^2)+(D19^2)+(D23^2)+(D27^2))","v":168.76611034209446},1413.521135321294,318.01415062855301,470.04999734070844,111.72734669721643,506.46717563925108,230.43871202556224,347.13830096951273,156.55669899432601,80.062475604992386,34.176014981270121,103.08734160894828,40.23679907746142,264.57135143473113,131.13733259449805,109.09628774619236,54,1527.6141528540511,314.47416428062894,102.77645644796283,52.792044855262048,478.24157075687179,214.66718426438635,146.41721210294915,75.571158519636313]
[null,"30 percent or more",{"$f":"C12+C16+C20+C24+C28","v":734},{"$f":"SQRT((D12^2)+(D16^2)+(D20^2)+(D24^2)+(D28^2))","v":270.44038160008574},688.97677754769063,273.92882287192782,218.58636736997119,100.9504829111778,148.2902559172382,159.02829936838285,229.79338545745827,141.7638882085279,63.843558798049472,39.11521443121589,71.937472849690792,39.242833740697165,258.3369892214431,137.72799279739758,119.0546093185812,66.895440801298264,1209.0041356422234,364.00961525761926,125.65030839596058,68.774995456197601,443.0112865379391,221.88961219489298,145.34441853748632,82.054859697643749]
[null,"Zero or negative income",{"$f":"C29","v":0},{"$f":"D29","v":16},{"$f":"E29","v":19},29,40,43,9,16,0,11,0,11,13,10,0,11,6,10,0,24,0,11,{"$f":"Y29","v":0},18,8,14]
[null,"Renter occupied housing units:",{"$f":"C30","v":279},{"$f":"D30","v":139},6540,359,1333,135,937,230,257,135,82,31,73,33,209,92,60,37,4179,368,242,56,2332,330,124,57]
[null,"Less than 20 percent",{"$f":"C32+C36+C40+C44+C48","v":60},{"$f":"SQRT((D32^2)+(D36^2)+(D40^2)+(D44^2)+(D48^2))","v":61.514225996918796},{"$f":"SQRT((E32^2)+(E36^2)+(E40^2)+(E44^2)+(E48^2))","v":1253.1344700390298},328.39762483915746,134.06714735534578,78.10249675906654,159.42396306703708,136.38914912851388,75.312681535050928,93.407708461347028,15.937377450509228,21.2602916254693,12.727922061357855,24.657656011875904,13.038404810405298,27.802877548915689,16.124515496597098,26.076809620810597,777.55257056999051,295.22195040342103,43.829214001622255,38.639358172723313,{"$f":"SQRT((Y32^2)+(Y36^2)+(Y40^2)+(Y44^2)+(Y48^2))","v":519.19071640390484},268.74151149385165,21.931712199461309,32.572994949804659]
[null,"20 to 29 percent",{"$f":"C33+C37+C41+C45+C49","v":53},{"$f":"SQRT((D33^2)+(D37^2)+(D41^2)+(D45^2)+(D49^2))","v":69.771054170049638},1019.2212713635837,328.54680031922391,103.39245620450265,79.448096264164818,126.68859459319927,134.57340004622014,62.22539674441618,83.330666623998638,19.313207915827967,20.880613017821101,15,27.802877548915689,52.611785751863621,60.56401571890688,8,25.059928172283335,507.66524403390076,229.61489498723728,43.266615305567875,37.242448899072144,345.72532449908846,200.66389809828772,75,53.712196007983138]
[null,"30 percent or more",{"$f":"C34+C38+C42+C46+C50","v":153},{"$f":"SQRT((D34^2)+(D38^2)+(D42^2)+(D46^2)+(D50^2))","v":133.34166640626628},1416.090392595049,382.51013058479901,530.27257141964265,183.32212086925026,269.8721919724224,194.40679000487611,57.314919523628397,81.657822650374413,12.529964086141668,26.476404589747453,14.89966442575134,23.958297101421877,89.358827208060418,74.236109811869852,21.633307652783937,35.156791662493895,1078.7441772728139,338.18190371455421,60.116553460756549,45.475268003608292,470.75471319998485,240.31229681395831,20,37.20215047547655]
[null,"Zero or negative income",{"$f":"C51","v":0},{"$f":"D51","v":16},{"$f":"E51","v":76},65,48,51,0,16,0,11,0,11,0,11,0,11,0,11,59,76,21,25,{"$f":"Y51","v":23},35,0,11]
[null,"No cash rent",{"$f":"C52","v":13},{"$f":"D52","v":22},126,95,48,37,126,106,0,11,12,13,12,10,0,11,0,11,87,57,16,20,0,18,0,11]
[]
[]
[]
[]
[]
[]
[]
[]
[]
[]
[]
[]
[]
[]
[]
[]
[]
[]
[]
[]
[]
[]
[]
[null,"B25106. TENURE BY HOUSING COSTS AS A PERCENTAGE OF HOUSEHOLD INCOME IN THE PAST 12 MONTHS"]
[null,"Universe:  OCCUPIED HOUSING UNITS"]
[null,"Data Set: 2010-2014 American Community Survey 5-Year Estimates"]
[]
[null,null,"Barrington",null,"Dover",null,"Durham",null,"Farmington",null,"Lee",null,"Madbury",null,"Middleton",null,"Milton",null,"New Durham",null,"Rochester",null,"Rollinsford",null,"Somersworth",null,"Strafford"]
[null,null,"Estimate","Margin of Error","Estimate","Margin of Error","Estimate","Margin of Error","Estimate","Margin of Error","Estimate","Margin of Error","Estimate","Margin of Error","Estimate","Margin of Error","Estimate","Margin of Error","Estimate","Margin of Error","Estimate","Margin of Error","Estimate","Margin of Error","Estimate","Margin of Error","Estimate","Margin of Error"]
[null,"Total:",3307,184,12586,374,3073,263,2625,158,1774,134,655,62,553,65,1656,120,1001,64,12715,331,1024,67,4492,207,1430,118]
[null,"Owner occupied housing units:",2948,207,6375,380,1894,198,1852,247,1487,183,517,55,483,65,1396,129,888,76,8135,440,765,71,2538,212,1313,143]
[null,"Less than $20,000:",189,118,342,138,72,42,149,113,89,71,20,12,35,15,107,56,57,35,725,151,63,30,192,108,82,49]
[null,"Less than 20 percent",0,15,60,67,0,17,0,15,0,11,0,11,0,11,7,11,0,11,12,20,0,11,0,17,0,11]
[null,"20 to 29 percent",0,15,18,28,0,17,0,15,0,11,0,11,0,11,0,11,4,7,52,41,0,11,12,19,0,11]
[null,"30 percent or more",189,118,264,116,72,42,149,113,89,71,20,12,35,15,100,55,53,34,661,148,63,30,180,105,82,49]
[null,"$20,000 to $34,999:",284,161,626,166,132,57,200,82,16,24,47,30,54,22,166,74,61,28,967,203,77,37,225,93,69,53]
[null,"Less than 20 percent",0,15,49,52,10,17,0,15,0,11,2,4,8,7,50,43,0,11,62,46,0,11,0,17,28,44]
[null,"20 to 29 percent",58,63,161,74,0,17,39,28,16,24,14,22,10,9,21,34,22,16,268,107,37,28,55,44,0,11]
[null,"30 percent or more",226,143,416,148,122,58,161,77,0,11,31,19,36,18,95,52,39,23,637,169,40,24,170,80,41,31]
[null,"$35,000 to $49,999:",246,116,598,171,103,73,308,138,143,78,41,22,74,31,254,85,102,37,1324,202,83,38,386,135,125,63]
[null,"Less than 20 percent",40,64,78,52,0,17,100,85,29,48,14,13,11,10,60,51,18,16,382,112,9,10,40,36,25,23]
[null,"20 to 29 percent",22,25,112,68,24,21,39,37,17,26,11,9,18,13,55,40,33,23,343,107,40,23,104,75,25,24]
[null,"30 percent or more",184,106,408,157,79,68,169,117,97,48,16,16,45,26,139,61,51,27,599,169,34,24,242,108,75,48]
[null,"$50,000 to $74,999:",451,162,1129,231,272,89,381,124,206,110,31,18,123,36,369,111,163,44,1821,284,182,59,576,171,196,77]
[null,"Less than 20 percent",154,91,337,110,13,14,178,90,39,45,7,8,43,21,122,65,56,24,730,200,41,22,184,94,46,37]
[null,"20 to 29 percent",74,58,286,129,167,69,117,84,22,33,6,10,38,20,118,57,57,28,417,130,31,18,180,94,59,45]
[null,"30 percent or more",223,125,506,150,92,48,86,58,145,91,18,12,42,19,129,62,50,25,674,172,110,53,212,100,91,57]
[null,"$75,000 or more:",1778,217,3651,306,1315,151,800,185,1004,151,372,48,194,40,500,100,503,64,3281,327,360,68,1148,163,841,145]
[null,"Less than 20 percent",955,192,1995,263,684,122,568,169,577,156,209,45,120,37,221,72,277,67,1969,310,207,44,470,128,500,129]
[null,"20 to 29 percent",591,199,1141,182,421,115,218,129,292,136,101,34,62,24,146,59,154,48,1014,191,110,62,429,121,247,78]
[null,"30 percent or more",232,132,515,149,210,69,14,22,135,84,62,26,12,10,133,62,72,34,298,107,43,22,249,102,94,58]
[null,"Zero or negative income",0,15,29,34,0,17,14,22,29,50,6,8,3,4,0,11,2,4,17,27,0,11,11,18,0,11]
[null,"Renter occupied housing units:",359,153,6211,406,1179,177,773,254,287,156,138,51,70,36,260,89,113,55,4580,453,259,64,1954,238,117,67]
[null,"Less than $20,000:",97,73,1132,232,515,120,253,147,85,100,18,22,11,14,50,46,8,9,1469,279,35,35,505,167,0,11]
[null,"Less than 20 percent",0,15,0,23,0,17,0,15,0,11,0,11,3,4,0,11,0,11,108,108,0,11,25,42,0,11]
[null,"20 to 29 percent",0,15,206,77,56,50,16,27,0,11,0,11,0,11,17,27,0,11,198,117,25,32,72,71,0,11]
[null,"30 percent or more",97,73,926,218,459,116,237,152,85,100,18,22,8,13,33,36,8,9,1163,270,10,11,408,143,0,11]
[null,"$20,000 to $34,999:",13,20,1361,278,188,69,225,130,27,43,25,24,10,13,92,59,24,20,1071,237,91,50,465,159,67,54]
[null,"Less than 20 percent",0,15,31,35,23,21,0,15,0,11,0,11,0,11,0,11,0,11,17,26,0,11,0,17,0,11]
[null,"20 to 29 percent",0,15,124,115,14,16,0,15,0,11,7,9,2,5,0,11,0,11,159,117,6,9,37,39,8,12]
[null,"30 percent or more",13,20,1206,270,151,66,225,130,27,43,18,22,8,12,92,59,24,20,895,185,85,49,428,161,59,54]
[null,"$35,000 to $49,999:",101,96,1110,214,125,71,133,108,31,46,15,10,5,8,12,13,22,34,863,229,32,28,260,117,10,18]
[null,"Less than 20 percent",53,67,35,29,13,20,0,15,0,11,5,7,0,11,0,11,22,34,30,35,0,11,25,30,10,18]
[null,"20 to 29 percent",0,15,507,133,12,13,77,88,31,46,10,10,0,11,12,13,0,11,548,169,6,10,189,110,0,11]
[null,"30 percent or more",48,73,568,168,100,68,56,52,0,11,0,11,5,8,0,11,0,11,285,148,26,26,46,42,0,11]
[null,"$50,000 to $74,999:",46,51,1278,288,159,80,67,50,50,55,43,31,17,21,20,33,29,31,651,205,82,55,283,123,25,40]
[null,"Less than 20 percent",0,15,477,170,37,36,18,30,0,11,23,23,0,11,20,33,23,30,228,156,0,11,117,69,25,40]
[null,"20 to 29 percent",46,51,550,208,51,36,49,43,50,55,20,23,17,21,0,11,0,11,358,140,63,50,155,101,0,11]
[null,"30 percent or more",0,15,251,127,71,61,0,15,0,11,0,11,0,11,0,11,6,8,65,62,19,23,11,17,0,11]
[null,"$75,000 or more:",67,57,1160,204,129,64,86,83,94,110,34,26,21,22,65,53,9,15,323,118,19,14,378,166,7,10]
[null,"Less than 20 percent",55,52,861,193,86,58,68,77,80,109,24,24,6,6,35,42,0,11,254,106,11,13,325,160,7,10]
[null,"20 to 29 percent",0,15,240,89,43,34,0,15,14,22,10,11,15,21,30,33,9,15,58,46,8,10,29,34,0,11]
[null,"30 percent or more",12,22,59,65,0,17,18,28,0,11,0,11,0,11,0,11,0,11,11,16,0,11,24,29,0,11]
[null,"Zero or negative income",0,15,60,70,47,46,0,15,0,11,0,11,2,4,0,11,0,11,53,63,0,11,0,17,0,11]
[null,"No cash rent",35,57,110,73,16,19,9,15,0,11,3,5,4,6,21,21,21,19,150,74,0,11,63,51,8,12]
[]
[]
[]
[]
[]
[]
[null,"Calculated B25106. TENURE BY HOUSING COSTS AS A PERCENTAGE OF HOUSEHOLD INCOME IN THE PAST 12 MONTHS"]
[null,"Universe:  OCCUPIED HOUSING UNITS"]
[null,"Data Set: 2010-2014 American Community Survey 5-Year Estimates"]
[]
[null,null,"Barrington",null,"Dover",null,"Durham",null,"Farmington",null,"Lee",null,"Madbury",null,"Middleton",null,"Milton",null,"New Durham",null,"Rochester",null,"Rollinsford",null,"Somersworth",null,"Strafford"]
[null,null,"Estimate","Margin of Error","Estimate","Margin of Error","Estimate","Margin of Error","Estimate","Margin of Error","Estimate","Margin of Error","Estimate","Margin of Error","Estimate","Margin of Error","Estimate","Margin of Error","Estimate","Margin of Error","Estimate","Margin of Error","Estimate","Margin of Error","Estimate","Margin of Error","Estimate","Margin of Error"]
[null,"Total:",3307,184,12586,374,3073,263,2625,158,1774,134,655,62,553,65,1656,120,1001,64,12715,331,1024,67,4492,207,1430,118]
[null,"Owner occupied housing units:",2948,207,6375,380,1894,198,1852,247,1487,183,517,55,483,65,1396,129,888,76,8135,440,765,71,2538,212,1313,143]
[null,"Less than 20 percent",1149,222.91478192349649,2026.2475169633151,301.93707953810508,684.19660917020042,126.28143173087641,603.57932370153299,210.5611550120297,579.04317628308172,170.02058698875263,209.59484726490774,48.938737212968626,128.19516371532899,45.607017003965517,264.33690623898889,118.23705003085962,283.17662332897464,74.585521383174637,2135.3624984999619,388.79300405228486,211.21316246863026,52.55473337388365,506.31610679495475,164.60255162056268,503.51266121121523,143.5130656072819]
[null,"20 to 29 percent",745,218.59551687992141,1192.6717905610076,246.27017683836587,453.54823337766402,137.85862323409444,253.4856997938937,161.47755261955143,293.75670205120429,144.76878116500117,102.73266277090262,44.068129073061407,75.577774510764741,36.701498607005135,196.73840499505937,98.015304927342854,168.97928867171859,62.625873247404705,1180.7887194583118,279.21318020466009,126.60963628413123,74.846509604656916,480.02708256930669,177.19762978098777,255.17640956796927,94.482802667998797]
[null,"30 percent or more",1054,280.46033587657274,964.61235737471247,323.58924580399764,280.84337271867395,129.68037631037319,290.30156733989571,190.35493164086924,237.86550821840478,151.00662237133841,76.05918747922567,39.761790704142086,80.336791073579732,41.060930335295616,269.58486604407153,130.91218430688565,120.89251424302499,64.768819658845104,1320.8220924863424,346.49531021357274,143.78456106272327,73.109506905736964,476.24468500971221,222.47022272654829,176.48512685209482,110.81064930772673]
[null,"Zero or negative income",0,15,29,34,0,17,14,22,29,50,6,8,3,4,0,11,2,4,17,27,0,11,11,18,0,11]
[null,"Renter occupied housing units:",359,153,6211,406,1179,177,773,254,287,156,138,51,70,36,260,89,113,55,4580,453,259,64,1954,238,117,67]
[null,"Less than 20 percent",108,88.70174744614674,985.41158913420543,262.19077024182218,97.277952281079607,76.092049518987196,70.342021580275897,86.625631310830855,80,111.19802156513397,33.61547262794322,37.363083384538811,6.7082039324993694,20.371548787463361,40.311288741492746,56.709787515031302,31.827660925679098,49.183330509431748,359.65678083417254,221.66867167013024,11,25.553864678361276,347.22327110952688,182.52123164169149,27.820855486487112,47.602520941647619]
[null,"20 to 29 percent",46,59.169248769948062,821.56010127074694,296.69512972072863,89.028085456219941,73.328030111274643,92.660671268883007,103.78824596263297,60.473134530963414,76.596344560298704,25.475478405713993,30.854497241083024,22.759613353482084,33.896902513356586,36.510272527057367,47.212286536451508,9,26.627053911388696,704.49769339579814,278.66646730455386,68.774995456197601,61.684682053164543,259.11387458027019,173.25992035089939,8,25.059928172283335]
[null,"30 percent or more",170,108.47580375364821,1643.4774108578433,411.0985283359696,498.52081200286915,162.62226169869857,332.04517764906632,209.0861066642162,89.185200566013194,110.50791826833044,25.45584412271571,36.4828726939094,12.369316876852981,24.879710609249457,97.739449558507332,71.693793315739683,26,28.053520278211074,1496.3839747872203,364.86846945166417,91.443971917234649,62.032249677083293,593.68425951847507,221.95495038408131,59,58.309518948453004]
[null,"Zero or negative income",0,15,60,70,47,46,0,15,0,11,0,11,2,4,0,11,0,11,53,63,0,11,0,17,0,11]
[null,"No cash rent",35,57,110,73,16,19,9,15,0,11,3,5,4,6,21,21,21,19,150,74,0,11,63,51,8,12]
[]
[]
[]
[]
[null,"B25106. TENURE BY HOUSING COSTS AS A PERCENTAGE OF HOUSEHOLD INCOME IN THE PAST 12 MONTHS"]
[null,"Universe:  OCCUPIED HOUSING UNITS"]
[null,"Data Set: 2006-2010 American Community Survey 5-Year Estimates"]
[]
[null,null,"Alton",null,"Barnstead",null,"Belmont",null,"Center Harbor",null,"Gilford",null,"Gilmanton",null,"Laconia",null,"Meredith",null,"New Hampton",null,"Sanbornton",null,"Tilton"]
[null,null,"Estimate","Margin of Error","Estimate","Margin of Error","Estimate","Margin of Error","Estimate","Margin of Error","Estimate","Margin of Error","Estimate","Margin of Error","Estimate","Margin of Error","Estimate","Margin of Error","Estimate","Margin of Error","Estimate","Margin of Error","Estimate","Margin of Error"]
[null,"Total:"]
[null,"Owner occupied housing units:"]
[null,"Less than $20,000:"]
[null,"Less than 20 percent"]
[null,"20 to 29 percent"]
[null,"30 percent or more"]
[null,"$20,000 to $34,999:"]
[null,"Less than 20 percent"]
[null,"20 to 29 percent"]
[null,"30 percent or more"]
[null,"$35,000 to $49,999:"]
[null,"Less than 20 percent"]
[null,"20 to 29 percent"]
[null,"30 percent or more"]
[null,"$50,000 to $74,999:"]
[null,"Less than 20 percent"]
[null,"20 to 29 percent"]
[null,"30 percent or more"]
[null,"$75,000 or more:"]
[null,"Less than 20 percent"]
[null,"20 to 29 percent"]
[null,"30 percent or more"]
[null,"Zero or negative income"]
[null,"Renter occupied housing units:"]
[null,"Less than $20,000:"]
[null,"Less than 20 percent"]
[null,"20 to 29 percent"]
[null,"30 percent or more"]
[null,"$20,000 to $34,999:"]
[null,"Less than 20 percent"]
[null,"20 to 29 percent"]
[null,"30 percent or more"]
[null,"$35,000 to $49,999:"]
[null,"Less than 20 percent"]
[null,"20 to 29 percent"]
[null,"30 percent or more"]
[null,"$50,000 to $74,999:"]
[null,"Less than 20 percent"]
[null,"20 to 29 percent"]
[null,"30 percent or more"]
[null,"$75,000 or more:"]
[null,"Less than 20 percent"]
[null,"20 to 29 percent"]
[null,"30 percent or more"]
[null,"Zero or negative income"]
[null,"No cash rent"]
[]
[]
[]
[]
[]
[]
[null,"Calculated B25106. TENURE BY HOUSING COSTS AS A PERCENTAGE OF HOUSEHOLD INCOME IN THE PAST 12 MONTHS"]
[null,"Universe:  OCCUPIED HOUSING UNITS"]
[null,"Data Set: 2006-2010 American Community Survey 5-Year Estimates"]
[]
[null,null,"Alton",null,"Barnstead",null,"Belmont",null,"Center Harbor",null,"Gilford",null,"Gilmanton",null,"Laconia",null,"Meredith",null,"New Hampton",null,"Sanbornton",null,"Tilton"]
[null,null,"Estimate","Margin of Error","Estimate","Margin of Error","Estimate","Margin of Error","Estimate","Margin of Error","Estimate","Margin of Error","Estimate","Margin of Error","Estimate","Margin of Error","Estimate","Margin of Error","Estimate","Margin of Error","Estimate","Margin of Error","Estimate","Margin of Error"]
[null,"Total:"]
[null,"Owner occupied housing units:"]
[null,"Less than 20 percent"]
[null,"20 to 29 percent"]
[null,"30 percent or more"]
[null,"Zero or negative income"]
[null,"Renter occupied housing units:"]
[null,"Less than 20 percent"]
[null,"20 to 29 percent"]
[null,"30 percent or more"]
[null,"Zero or negative income"]
[null,"No cash rent"]